{"text_format":"1","workbook":"xlsx","n_sheets":123,"sheets":["Data Input Instructions","Data Current Rates","Data Proposed Rates","Data Billing Quantities","Data Pass Through","Data BI Summary","Data BI List","Data BI List Acq_Seas","Bill Impact Summary","Bill Impact Summary_Acq","BI Template_Energy","BI Template_Seasonal","BI Template_EnergyNPDI","BI Template_DemandNPDI","BI Template_unmNPDI","BI Template_EnergyHCHI","BI Template_DemandHCHI","BI Template_unmHCHI","BI Template_EnergyWHSI","BI Template_DemandWHSI","BI Template_unmWHSI","BI Template_EnergyUNM","BI Template_Demand","BI_UR_Low","BI_UR_Typical","BI_UR_Avg","BI_UR_High","BI_R1_Low (with DRP)","BI_R1_Typical (with DRP)","BI_R1_Avg (with DRP)","BI_R1_High (with DRP)","BI_R1_Low (without DRP)","BI_R1_Typical (without DRP)","BI_R1_Avg (without DRP)","BI_R1_High (without DRP)","BI_R2_Low (with DRP)","BI_R2_Typical (with DRP)","BI_R2_Avg (with DRP)","BI_R2_High (with DRP)","BI_R2_Low (without DRP)","BI_R2_Typical (without DRP)","BI_R2_Avg (without DRP)","BI_R2_High (without DRP)","BI_GSe_Low","BI_GSe_Typical","BI_GSe_Avg","BI_GSe_High","BI_UGe_Low","BI_UGe_Typical","BI_UGe_Avg","BI_UGe_High","BI_GSd_Low","BI_GSd_Avg","BI_GSd_High","BI_UGd_Low","BI_UGd_Avg","BI_UGd_High","BI_StLgt_Low","BI_StLgt_Avg","BI_StLgt_High","BI_SenLgt_Low","BI_SenLgt_Avg","BI_SenLgt_High","BI_USL_Low","BI_USL_Avg","BI_USL_High","BI_Dgen_Low","BI_Dgen_Avg","BI_Dgen_High","BI_ST_Low","BI_ST_Avg","BI_ST_High","BI_WHSI_AUR_Low","BI_WHSI_AUR_Typical","BI_WHSI_AUR_Avg","BI_WHSI_AUR_High","BI_WHSI_AUGe_Low","BI_WHSI_AUGe_Typical","BI_WHSI_AUGe_Avg","BI_WHSI_AUGe_High","BI_WHSI_AUGd_Low","BI_WHSI_AUGd_Avg","BI_WHSI_AUGd_High","BI_WHSI_ST_Avg","BI_NPDI_AR_Low","BI_NPDI_AR_Typical","BI_NPDI_AR_Avg","BI_NPDI_AR_High","BI_HCHI_AR_Low","BI_HCHI_AR_Typical","BI_HCHI_AR_Avg","BI_HCHI_AR_High","BI_NPDI_AGSe_Low","BI_NPDI_AGSe_Typical","BI_NPDI_AGSe_Avg","BI_NPDI_AGSe_High","BI_HCHI_AGSe_Low","BI_HCHI_AGSe_Typical","BI_HCHI_AGSe_Avg","BI_HCHI_AGSe_High","BI_NPDI_AGSd_Low","BI_NPDI_AGSd_Avg","BI_NPDI_AGSd_High","BI_HCHI_AGSd_Low","BI_HCHI_AGSd_Avg","BI_HCHI_AGSd_High","BI_WHSI_USL_Avg","BI_NPDI_USL_Avg","BI_HCHI_USL_Avg","BI_WHSI_StLgt_Avg","BI_NPDI_StLgt_Avg","BI_HCHI_StLgt_Avg","BI_NPDI_SenLgt_Avg","BI_HCHI_SenLgt_Avg","BI_Seas_UR_Low","BI_Seas_UR_Avg","BI_Seas_UR_High","BI_Seas_R1_Low","BI_Seas_R1_Avg","BI_Seas_R1_High","BI_Seas_R2_Low","BI_Seas_R2_Avg","BI_Seas_R2_High"],"not_rendered":{"charts":0,"images":0,"macros":1,"external_links":0,"defined_names":35,"comments":0,"pivot_tables":0},"unopened":[],"bounds":{"document_bytes":16777216,"sheet_cells":100000,"rows_first":2000,"rows_last":500,"rows_between":2000,"halvings":0,"cell_chars":16384,"cell_head_chars":4096},"cells_cut":0,"cells_raw":0,"read":"whole","date_system":"1900"}

{"sheet":"Data Input Instructions","index":0,"n_rows":16,"n_cols":3,"rows_kept":16,"cut":false,"hidden":true,"merged":[]}
[]
[]
["Worksheet ID","Worksheet","Input Data Notes"]
[1,"Data Current Rates","R2 Service Charge should already be net of RRRP credit"]
[1,"Data Current Rates","Demand billed RTSR should already be loss adjusted"]
[2,"Data Proposed Rates","Mapped from Draft Rates file prepared for Claude"]
[2,"Data Proposed Rates","Row 5 with header name TEXT is precedent to templates; changes to TEXT need to reflected in templates"]
[2,"Data Proposed Rates","Templates are set up with 2-dimension vlookups so it will accommodate inserted/deleted rows and/or columns"]
[3,"Data Billing Quantities","Row 4 with header name TEXT is precedent to templates; changes to TEXT need to reflected in templates"]
[3,"Data Billing Quantities","Templates are set up with 2-dimension vlookups so it will accommodate inserted/deleted rows and/or columns"]
[4,"Data Pass Through","Changes to Pass Through rates can be manually input on this sheet, which is precedent to the templates"]
[4,"Data Pass Through","Links to templates from Column A TEXT; any changes in the TEXT of the charge names must be reflected in the templates"]
[5,"Data BI List","Instruction Sheet for macro to create individual bill impact worksheets"]
[5,"Data BI List","Need to MANUALLY update Test Year to appear as header on all bill impact worksheets"]
[6,"Data BI Summary","This replaces the need for cell references in summary sheet, and displays value for totals so rows can be added to templates and worksheets without having to update the summary sheet"]
[null,"Bill Impact Summary","This file has 2 hidden columns needed to link to worksheets; see Col E and F"]

{"sheet":"Data Current Rates","index":1,"n_rows":36,"n_cols":12,"rows_kept":36,"cut":false,"hidden":true,"merged":[]}
["Estimated 2022 rates for HONI Legacy and Acquired customers"]
[null,null,null,null,null,null,null,"Charges inherited from Acquisition"]
[1,2,3,4,5,6,7,"NPDI & HCHI","NPDI","WHSI","WHSI","HCHI"]
["Rate Class","Fixed Charge ($/month)","Current Variable Charge ($/kWh or $/kW)","Fixed Base Rate Adjustment for Past Tax Amounts ($/month)","Volumetric Base Rate Adjustment for Past Tax Amounts ($/kWh or $/kW)","Current RTSR-NW ($/kWh or $/kW)","Current RTSR-CONN ($/kWh or $/kW)","Current Low Voltage Volumetric ($/kWh or $/kW)","Current Rate Rider for Application of Tax Changes","Current Rate Rider for Recovery of Smart Meter","Rate Rider for Recovery of  Incremental Capital ","Funding Adder for Renewable Energy Generation"]
["Rate as shown on Bill Impact Sheet","Service Charge","Distribution Volumetric Charge","Fixed Base Rate Adjustment to Recover Past Tax Amounts ","Volumetric Base Rate Adjustment to Recover Past Tax Amounts ","Retail Transmission Rate – Network Service Rate","Retail Transmission Rate – Line and Transformation Connection Service Rate","Low Voltage Service Rate","Rate Rider for Application of Tax Change","Rate Rider for Recovery of Smart Meter Incremental Revenue Requirement","Rate Rider for Recovery of Incremental Capital","Funding Adder for Renewable Energy Generation"]
["UR",37.659999999999997,0,0.83,null,1.06E-2,7.7000000000000002E-3]
["R1",55.52,9.9000000000000008E-3,1.56,null,9.7999999999999997E-3,7.3000000000000001E-3]
["R2",66.8,1.5900000000000001E-2,4.42,null,9.1999999999999998E-3,6.7999999999999996E-3]
["Seasonal",57.87,3.0800000000000001E-2,1.79,null,7.7000000000000002E-3,6.1000000000000004E-3]
["GSe",33.799999999999997,6.7299999999999999E-2,1.1100000000000001,2.2000000000000001E-3,7.7000000000000002E-3,5.5999999999999999E-3]
["UGe",26.69,3.2099999999999997E-2,0.81,1E-3,8.3000000000000001E-3,5.7000000000000002E-3]
["St Lgt",3.67,0.1123,0.11,3.3999999999999998E-3,6.4000000000000003E-3,3.5999999999999999E-3]
["Sen Lgt",3.14,0.17050000000000001,0.14000000000000001,7.7999999999999996E-3,6.4000000000000003E-3,3.7000000000000002E-3]
["USL",39.42,2.63E-2,0.89,5.9999999999999995E-4,6.4999999999999997E-3,4.5999999999999999E-3]
["GSd",112.58,19.198899999999998,4.34,0.73380000000000001,2.4327999999999999,1.7088000000000001]
["UGd",103.78,11.065899999999999,3.92,0.41339999999999999,3.1179999999999999,2.1715]
["Dgen",202.25,10.499000000000001,1.74,8.8300000000000003E-2,1.1826000000000001,0.83250000000000002]
["ST",1369.8069573381615,1.6076999999999999,36.18,5.3999999999999999E-2,4.2840999999999996,2.9641000000000002]
["WHSI_RES",31.08,0,null,null,9.1999999999999998E-3,6.4000000000000003E-3,null,null,0.64,8.0000000000000004E-4]
["WHSI_GS<50",26.08,1.5100000000000001E-2,null,null,8.3000000000000001E-3,6.0000000000000001E-3,null,null,4.24,6.9999999999999999E-4]
["WHSI_GS 50>999",144.9,2.6686999999999999,null,null,3.5638000000000001,2.5609000000000002,null,null,0,0.3251]
["WHSI_GS >1,000kW",537.16999999999996,2.8365,null,null,3.5638000000000001,2.5609000000000002,null,null,0,0.47949999999999998]
["WHSI_St Lgt",3.19,12.895,null,null,2.6301999999999999,1.8902000000000001,null,null,0,0.21870000000000001]
["WHSI_USL",10.9,1.26E-2,null,null,8.3000000000000001E-3,6.0000000000000001E-3,null,null,0,8.0000000000000004E-4]
["NPDI_RES",38.69,0,null,null,8.3000000000000001E-3,3.8999999999999998E-3,8.9999999999999998E-4,2.0000000000000001E-4]
["NPDI_GS<50",52.54,1.6400000000000001E-2,null,null,7.7000000000000002E-3,3.3E-3,8.0000000000000004E-4,1E-4]
["NPDI_GS >50",258.16000000000003,4.1635999999999997,null,null,3.1089000000000002,1.3103,0.30499999999999999,2.1100000000000001E-2]
["NPDI_St Lgt",2.08,7.8083,null,null,2.3447,1.0129999999999999,0.2407,0.2079]
["NPDI_Sen Lgt",6.87,20.430900000000001,null,null,2.3565999999999998,1.0341,0.23580000000000001,6.5500000000000003E-2]
["NPDI_USL",16.29,9.1999999999999998E-3,null,null,7.7000000000000002E-3,3.3E-3,8.0000000000000004E-4,2.0000000000000001E-4]
["HCHI_RES",36.909999999999997,0,null,null,7.9000000000000008E-3,6.1000000000000004E-3,4.0000000000000002E-4,null,null,null,2.0000000000000001E-4]
["HCHI_GS<50",27.89,1.9599999999999999E-2,null,null,7.1999999999999998E-3,5.7000000000000002E-3,4.0000000000000002E-4,null,null,null,2.0000000000000001E-4]
["HCHI_GS >50",86.56,4.0727000000000002,null,null,3.0442,2.4142999999999999,0.155,null,null,null,1.95E-2]
["HCHI_St Lgt",5.9,15.103300000000001,null,null,2.1987999999999999,1.7343999999999999,0.113,null,null,null,0.2152]
["HCHI_Sen Lgt",14.73,38.022799999999997,null,null,2.2099000000000002,1.7706,0.1099,null,null,null,0.62239999999999995]
["HCHI_USL",20.2,2.5000000000000001E-3,null,null,7.1999999999999998E-3,5.7000000000000002E-3,4.0000000000000002E-4,null,null,null,2.0000000000000001E-4]

{"sheet":"Data Proposed Rates","index":2,"n_rows":42,"n_cols":13,"rows_kept":42,"cut":false,"hidden":true,"merged":[]}
["Proposed 2023 Rates"]
[]
[1,2,3,4,5,6,7,8,9,10,11,12,13]
["Rate Class","Proposed Fixed Charge ($/month)","Proposed Volumetric Charge ($/kWh or $/kW)","Proposed Group 1 DVA Rider - Volumetric ($/kWh or $/kW)","Porposed Group 1 DVA Rider - Volumetric Applicable to Non-WMP Only ($/kWh or $/kW)","Proposed Rate Rider for Disposition of Global Adjustment (Non WMP, Non-RPP, Non-LDC, and Class B) ($/kWh)","Proposed Rate Rider for CBR (Non-WMP Class B) ($/kWh or $/kW)","Proposed Group 2 Rate Rider - Fixed ($/month)","Proposed Group 2 Rate Rider - Volumetric ($/kWh or $/kW)","Proposed Base Rate Adjustment for Past Tax Amounts - Fixed ($/month)","Proposed Base Rate Adjustment for Past Tax Amounts - Volumetric ($/kWh or $/kW)","Proposed RTSR-NW ($/kWh or $/kW)","Proposed RTSR-CONN ($/kWh or $/kW)"]
["Rate as shown on Bill Impact Sheet","Service Charge","Distribution Volumetric Charge","Group 1 Volumetric DVA Rider (General)","Group 1 Volumetric Deferral/Variance Account Rider (Sub-Account RSVA Wholesale Market Service Charge & RSVA Power) ","Group 1 Volumetric Deferral/Variance Account Rider (Sub-Account Global Adjustment)","Group 1 Volumetric Deferral/Variance Account Rider (Sub Account CBR)","Group 2 Fixed DVA Rider ","Group 2 Volumetric DVA Rider ","Fixed Base Rate Adjustment to Recover Past Tax Amounts ","Volumetric Base Rate Adjustment to Recover Past Tax Amounts ","Retail Transmission Rate – Network Service Rate","Retail Transmission Rate – Line and Transformation Connection Service Rate"]
["Rounding Factor",2,4,4,4,4,4,2,4,2,4,4,4]
["UR",35.880000000000003,0,-4.0000000000000002E-4,0,-6.9999999999999999E-4,null,-0.08,null,0.8,0,1.0200000000000001E-2,7.4000000000000003E-3]
["R1",57.22,5.1999999999999998E-3,-4.0000000000000002E-4,0,-6.9999999999999999E-4,null,-0.14000000000000001,null,1.44,0,9.4999999999999998E-3,6.8999999999999999E-3]
["R2",56.08,8.0999999999999996E-3,-4.0000000000000002E-4,0,-6.9999999999999999E-4,null,-0.28999999999999998,null,4,0,8.8000000000000005E-3,6.4999999999999997E-3]
["GSe",30.95,6.4699999999999994E-2,-4.0000000000000002E-4,0,-6.9999999999999999E-4,null,null,-2.0000000000000001E-4,1.1000000000000001,2.3E-3,7.4999999999999997E-3,5.8999999999999999E-3]
["UGe",24.1,3.1099999999999999E-2,-4.0000000000000002E-4,0,-6.9999999999999999E-4,null,null,-1E-4,0.82,1.1000000000000001E-3,8.0000000000000002E-3,6.1999999999999998E-3]
["St Lgt",2.97,0.10639999999999999,-4.0000000000000002E-4,0,-6.9999999999999999E-4,null,null,-2.9999999999999997E-4,0.11,4.1000000000000003E-3,5.4999999999999997E-3,4.3E-3]
["Sen Lgt",2.83,0.1545,-4.0000000000000002E-4,0,-6.9999999999999999E-4,null,null,-2.9999999999999997E-4,0.16,8.9999999999999993E-3,5.4999999999999997E-3,4.3E-3]
["USL",34.68,2.1600000000000001E-2,-4.0000000000000002E-4,0,-6.9999999999999999E-4,null,null,-2.0000000000000001E-4,0.87,5.0000000000000001E-4,6.4000000000000003E-3,4.7000000000000002E-3]
["GSd",99.8,18.417400000000001,-5.0900000000000001E-2,-7.0999999999999994E-2,-6.9999999999999999E-4,null,null,-4.6600000000000003E-2,4.43,0.81110000000000004,2.4420000000000002,1.8695999999999999]
["UGd",91.19,10.671799999999999,-6.2899999999999998E-2,-8.77E-2,-6.9999999999999999E-4,null,null,-2.76E-2,4.01,0.46379999999999999,3.1219999999999999,2.3492000000000002]
["Dgen",192.51,10.0684,-2.35E-2,-3.3599999999999998E-2,-6.9999999999999999E-4,null,null,-5.9299999999999999E-2,1.77,9.1300000000000006E-2,1.3408,0.80249999999999999]
["ST",1162.53,1.4638,-7.9899999999999999E-2,-0.1119,-6.9999999999999999E-4,null,null,-4.7999999999999996E-3,32.54,5.04E-2,4.1165000000000003,3.2406000000000001]
["AUR",29.59,0,-4.0000000000000002E-4,0,-6.9999999999999999E-4,null,null,null,null,null,1.06E-2,7.6E-3]
["AUGe",25.36,1.47E-2,-4.0000000000000002E-4,0,-6.9999999999999999E-4,null,null,null,null,null,8.0999999999999996E-3,6.1999999999999998E-3]
["AUGd",150.84,2.4538000000000002,-5.79E-2,-8.0299999999999996E-2,-6.9999999999999999E-4,null,null,null,null,null,2.8411,2.1309999999999998]
["AR",35.94,0,-4.0000000000000002E-4,0,-6.9999999999999999E-4,null,null,null,null,null,1.01E-2,7.4000000000000003E-3]
["AGSe",37.65,1.7100000000000001E-2,-4.0000000000000002E-4,0,-6.9999999999999999E-4,null,null,null,null,null,8.0000000000000002E-3,6.1000000000000004E-3]
["AGSd",171.2,4.0885999999999996,-5.8400000000000001E-2,-8.1000000000000003E-2,-6.9999999999999999E-4,null,null,null,null,null,2.4941,1.9177999999999999]
["AUR-WHSI",29.59,0,-5.0000000000000001E-4,0,-6.9999999999999999E-4,null,null,null,null,null,1.06E-2,7.6E-3]
["AUGe-WHSI",25.36,1.47E-2,-5.0000000000000001E-4,0,-6.9999999999999999E-4,null,null,null,null,null,8.0999999999999996E-3,6.1999999999999998E-3]
["AUGd-WHSI",150.84,2.4538000000000002,-3.8300000000000001E-2,-8.0299999999999996E-2,-6.9999999999999999E-4,null,null,null,null,null,{"$f":"L21","v":2.8411},{"$f":"M21","v":2.1309999999999998}]
["ST-WHSI",1162.53,1.4638,-6.3299999999999995E-2,0,0,null,null,null,null,null,{"$f":"L18","v":4.1165000000000003},{"$f":"M18","v":3.2406000000000001}]
["St Lgt-WHSI",2.97,0.10639999999999999,-2.9999999999999997E-4,0,-6.9999999999999999E-4,null,null,null,null,null,5.4999999999999997E-3,4.3E-3]
["USL-WHSI",34.68,2.1600000000000001E-2,-5.0000000000000001E-4,0,-6.9999999999999999E-4,null,null,null,null,null,6.4000000000000003E-3,4.7000000000000002E-3]
["AR-NPDI",35.94,0,-5.0000000000000001E-4,0,-6.9999999999999999E-4,null,null,null,null,null,1.01E-2,7.4000000000000003E-3]
["AGSe-NPDI",37.65,1.7100000000000001E-2,-5.0000000000000001E-4,0,-6.9999999999999999E-4,null,null,null,null,null,8.0000000000000002E-3,6.1000000000000004E-3]
["AGSd-NPDI",171.2,4.0885999999999996,-3.8800000000000001E-2,-8.1000000000000003E-2,-6.9999999999999999E-4,null,null,null,null,null,{"$f":"L24","v":2.4941},{"$f":"M24","v":1.9177999999999999}]
["St Lgt-NPDI",2.97,0.10639999999999999,-6.9999999999999999E-4,0,-6.9999999999999999E-4,null,null,null,null,null,5.4999999999999997E-3,4.3E-3]
["Sen Lgt-NPDI",2.83,0.1545,-6.9999999999999999E-4,0,-6.9999999999999999E-4,null,null,null,null,null,5.4999999999999997E-3,4.3E-3]
["USL-NPDI",34.68,2.1600000000000001E-2,-8.9999999999999998E-4,0,-6.9999999999999999E-4,null,null,null,null,null,6.4000000000000003E-3,4.7000000000000002E-3]
["AR-HCHI",35.94,0,-4.0000000000000002E-4,0,-6.9999999999999999E-4,null,null,null,null,null,1.01E-2,7.4000000000000003E-3]
["AGSe-HCHI",37.65,1.7100000000000001E-2,-4.0000000000000002E-4,0,-6.9999999999999999E-4,null,null,null,null,null,8.0000000000000002E-3,6.1000000000000004E-3]
["AGSd-HCHI",171.2,4.0885999999999996,-5.8400000000000001E-2,-8.1000000000000003E-2,-6.9999999999999999E-4,null,null,null,null,null,{"$f":"L24","v":2.4941},{"$f":"M24","v":1.9177999999999999}]
["St Lgt-HCHI",2.97,0.10639999999999999,-4.0000000000000002E-4,0,-6.9999999999999999E-4,null,null,null,null,null,5.4999999999999997E-3,4.3E-3]
["Sen Lgt-HCHI",2.83,0.1545,-4.0000000000000002E-4,0,-6.9999999999999999E-4,null,null,null,null,null,5.4999999999999997E-3,4.3E-3]
["USL-HCHI",34.68,2.1600000000000001E-2,-4.0000000000000002E-4,0,-6.9999999999999999E-4,null,null,null,null,null,6.4000000000000003E-3,4.7000000000000002E-3]

{"sheet":"Data Billing Quantities","index":3,"n_rows":59,"n_cols":16,"rows_kept":59,"cut":false,"hidden":true,"merged":[]}
["Rate Class-Specific Billing Quantities (Applied to Current and Proposed Bill)"]
[]
[null,null,null,null,"Consumption (kWh)",null,null,null,"Peak (kW)",null,null,null,"TOU Split"]
["Rate Class","Loss Factor","Charge Determinant","Commodity Threshold","Low kWh","Typical kWh","Average kWh","High kWh","Low kW","Typical kW","Average kW","High kW","TOU-Off Peak","TOU-Mid Peak","TOU-On Peak","Acquired Street Light Service Charge"]
["UR",1.0569999999999999,"kWh",600,340,750,690,1260,null,null,null,null,0.64,0.18,0.18]
["R1",1.0760000000000001,"kWh",600,370,750,784,1650,null,null,null,null,{"$f":"M$5","v":0.64},{"$f":"N$5","v":0.18},{"$f":"O$5","v":0.18}]
["R2",1.105,"kWh",600,440,750,978,2110,null,null,null,null,{"$f":"M$5","v":0.64},0.18,0.18]
["Seasonal",1.1040000000000001,"kWh",600,40,null,369,1040,null,null,null,null,0.64,0.18,0.18]
["GSe",1.0960000000000001,"kWh",750,60,2000,1887,5570,null,null,null,null,0.64,0.18,0.18]
["UGe",1.0669999999999999,"kWh",750,180,2000,2494,6930,null,null,null,null,0.64,0.18,0.18]
["St Lgt",1.0920000000000001,"kWh",750,30,null,1274,2310]
["Sen Lgt",1.0920000000000001,"kWh",750,20,null,49,80]
["USL",1.0920000000000001,"kWh",750,100,null,477,550]
["GSd",1.0609999999999999,"kW",0,9310,null,34334,75790,55,null,110,250]
["UGd",1.05,"kW",0,13900,null,42592,97610,55,null,111,280]
["Dgen",1.0609999999999999,"kW",0,10,null,1709,8490,2.9416666666666664E-2,null,12,45]
["ST",1.034,"kW",0,88780,null,1373443,2641420,500,null,2808,13730]
["WHSI_RES",1.0430999999999999,"kWh",600,310,750,636,1160,null,null,null,null,{"$f":"M$5","v":0.64},0.18,0.18]
["WHSI_GS<50",1.0430999999999999,"kWh",750,190,2000,2471,7240,null,null,null,null,0.64,0.18,0.18]
["WHSI_GS 50>999",1.0430999999999999,"kW",null,9370,null,47636,137890,50,null,134,340]
["WHSI_GS >1,000kW",1.0326,"kW",null,null,null,895853,null,null,null,3301]
["WHSI_St Lgt",1.0430999999999999,"kW",750,null,null,37079,null,null,null,104,null,null,null,null,786]
["WHSI_USL",1.0430999999999999,"kWh",750,null,null,1349,null,null,null,null,null,{"$f":"M$5","v":0.64},0.18,0.18]
["NPDI_RES",1.0564,"kWh",600,290,750,692,1230,null,null,null,null,0.64,0.18,0.18]
["NPDI_GS<50",1.0564,"kWh",750,110,2000,2377,6410,null,null,null,null,0.64,0.18,0.18]
["NPDI_GS >50",1.0464,"kW",null,13020,null,70294,129420,55,null,181,300]
["NPDI_St Lgt",1.0564,"kW",750,null,null,11389,null,null,null,39,null,null,null,null,328]
["NPDI_Sen Lgt",1.0564,"kW",750,null,null,108,null,null,null,0.33680272108843551]
["NPDI_USL",1.0564,"kWh",750,null,null,904,null,null,null,null,null,{"$f":"M$5","v":0.64},0.18,0.18]
["HCHI_RES",1.0655000000000001,"kWh",600,250,750,742,1410,null,null,null,null,0.64,0.18,0.18]
["HCHI_GS<50",1.0654999999999999,"kWh",750,90,2000,2261,5430,null,null,null,null,0.64,0.18,0.18]
["HCHI_GS >50",1.0548,"kW",null,10880,null,57529,135160,55,null,175,375]
["HCHI_St Lgt",1.0654999999999999,"kW",750,null,null,31001,null,null,null,85,null,null,null,null,701]
["HCHI_Sen Lgt",1.0654999999999999,"kW",750,null,null,61,null,null,null,0.1956473214285713]
["HCHI_USL",1.0654999999999999,"kWh",750,null,null,471,null,null,null,null,null,{"$f":"M$5","v":0.64},0.18,0.18]
["AUR",1.0429999999999999,"kWh",750,310,750,636,1160,null,null,null,null,0.64,0.18,0.18]
["AUGe",{"$f":"B36","v":1.0429999999999999},"kWh",750,190,2000,2471,7240,null,null,null,null,0.64,0.18,0.18]
["AUGd",1.0329999999999999,"kW",null,9370,null,47636,137890,50,null,134,340]
["AR",1.0640000000000001,"kWh",750,null,750,null,null,null,null,null,null,{"$f":"M$5","v":0.64},0.18,0.18]
["AGSe",{"$f":"B39","v":1.0640000000000001},"kWh",750,null,2000,null,null,null,null,null,null,0.64,0.18,0.18]
["AGSd",1.0529999999999999,"kW"]
["AUR-WHSI",{"$f":"B36","v":1.0429999999999999},"kWh",{"$f":"D36","v":750},310,750,636,1160,null,null,null,null,{"$f":"M$5","v":0.64},0.18,0.18]
["AUGe-WHSI",{"$f":"B37","v":1.0429999999999999},"kWh",{"$f":"D37","v":750},190,2000,2471,7240,null,null,null,null,0.64,0.18,0.18]
["AUGd-WHSI",{"$f":"B38","v":1.0329999999999999},"kW",null,9370,null,47636,137890,50,null,134,340]
["ST-WHSI",{"$f":"B17","v":1.034},"kW",null,null,null,895853,null,null,null,3301]
["St Lgt-WHSI",{"$f":"B11","v":1.0920000000000001},"kWh",{"$f":"D11","v":750},null,null,{"$f":"G22","v":37079},null,null,null,{"$f":"K22","v":104},null,null,null,null,{"$f":"P22","v":786}]
["USL-WHSI",{"$f":"B13","v":1.0920000000000001},"kWh",{"$f":"D13","v":750},null,null,{"$f":"G23","v":1349},null,null,null,null,null,{"$f":"M$5","v":0.64},0.18,0.18]
["AR-NPDI",{"$f":"B39","v":1.0640000000000001},"kWh",{"$f":"D39","v":750},290,750,692,1230,null,null,null,null,0.64,0.18,0.18]
["AGSe-NPDI",{"$f":"B40","v":1.0640000000000001},"kWh",{"$f":"D40","v":750},110,2000,2377,6410,null,null,null,null,0.64,0.18,0.18]
["AGSd-NPDI",{"$f":"B41","v":1.0529999999999999},"kW",{"$f":"D41","v":0},13020,null,70294,129420,55,null,181,300]
["St Lgt-NPDI",{"$f":"B11","v":1.0920000000000001},"kWh",{"$f":"D11","v":750},null,null,{"$f":"G27","v":11389},null,null,null,{"$f":"K27","v":39},null,null,null,null,{"$f":"P27","v":328}]
["Sen Lgt-NPDI",{"$f":"B12","v":1.0920000000000001},"kWh",{"$f":"D12","v":750},null,null,{"$f":"G28","v":108},null,null,null,{"$f":"K28","v":0.33680272108843551}]
["USL-NPDI",{"$f":"B13","v":1.0920000000000001},"kWh",{"$f":"D13","v":750},null,null,{"$f":"G29","v":904},null,null,null,null,null,{"$f":"M$5","v":0.64},0.18,0.18]
["AR-HCHI",{"$f":"B48","v":1.0640000000000001},"kWh",750,250,750,742,1410,null,null,null,null,0.64,0.18,0.18]
["AGSe-HCHI",1.0640000000000001,"kWh",750,90,2000,2261,5430,null,null,null,null,0.64,0.18,0.18]
["AGSd-HCHI",1.0529999999999999,"kW",0,10880,null,57529,135160,55,null,175,375]
["St Lgt-HCHI",1.0920000000000001,"kWh",750,null,null,{"$f":"G33","v":31001},null,null,null,{"$f":"K33","v":85},null,null,null,null,{"$f":"P33","v":701}]
["Sen Lgt-HCHI",1.0920000000000001,"kWh",750,null,null,{"$f":"G34","v":61},null,null,null,{"$f":"K34","v":0.1956473214285713}]
["USL-HCHI",1.0920000000000001,"kWh",750,null,null,{"$f":"G35","v":471},null,null,null,null,null,{"$f":"M$5","v":0.64},0.18,0.18]

{"sheet":"Data Pass Through","index":4,"n_rows":23,"n_cols":5,"rows_kept":23,"cut":false,"hidden":true,"merged":[]}
["3. Pass Through Charges"]
[null,"Current Bill","Proposed Bill"]
["Effective Date","2022-01-01","2023-01-01","TOU %","Notes"]
["R2 Credit",60.5,{"$f":"B4","v":60.5}]
["Energy First Tier",9.8000000000000004E-2,{"$f":"B5","v":9.8000000000000004E-2},null,"Effective May 1 2018"]
["Energy Second Tier",0.115,0.115,null,"Effective May 1 2018"]
["Weighted Average Hourly Spot Price",0.11899999999999999,{"$f":"B7","v":0.11899999999999999},null,"Avg for May 2020 to Apr 2021"]
["TOU-Off Peak",8.2000000000000003E-2,8.2000000000000003E-2,0.64,"Effective May 1 2018"]
["TOU-Mid Peak",0.113,0.113,0.18,"Effective May 1 2018"]
["TOU-On Peak",0.17,0.17,0.18,"Effective May 1 2018"]
["Wholesale Market Service Rate (WMS) - not including CBR",3.0000000000000001E-3,3.0000000000000001E-3,null,"Effective May 1 2017, 0.0036 WMSC broken up between WMSC and CBR"]
["Capacity Based Recovery (CBR) - Applicable for Class B Customers",4.0000000000000002E-4,4.0000000000000002E-4,null,"Effective May 1 2017, 0.0036 WMSC broken up between WMSC and CBR"]
["Rural Rate Protection Charge",5.0000000000000001E-4,5.0000000000000001E-4,null,"RRRP charge reduced from $0.0021/kWh to $0.0003/kWh effective July 1, 2017."]
["Ontario Electricity Support Program Charge",0,0,null,"OESP charge removed for all rate classes effective May 1, 2017. ROW HIDDEN IN BILL IMPACT FILE"]
["Standard Supply Service – Administration Charge (if applicable)",0.25,0.25]
["Fair Hydro Plan - Distribution Rate Protection Savings*",{"$f":"IF('Bill Impact Summary'!L6=\"TOU\",0,IF('Bill Impact Summary'!L6=\"TOU (DRP applied)\",B17,\"error\"))","v":36.86},{"$f":"IF('Bill Impact Summary'!L6=\"TOU\",0,IF('Bill Impact Summary'!L6=\"TOU (DRP applied)\",C17,\"error\"))","v":36.86},null,"Highlighted cells are FORMULAS; do not overwrite with hard-entered values. Input DRP limit values in row 17 below"]
["DRP limit (applied when selected from Bill Impact Summary)",36.86,36.86,null,"Make change to FHP DRP limit here, but to apply DRP, must do in Bill Impact Summary sheet cell L6"]
["Smart Metering Entity Charge",0.56999999999999995,0.56999999999999995,null,"Change from 0.79 to 0.57 effective March 1 2018; only for metered energy-billed (UR, R1, R2, SEA, GSE, UGE)"]
["Debt Retirement Charge (DRC)",0,0,null,"DRC removed from all rate classes Apr 1 2018  ROW HIDDEN IN BILL IMPACT FILE"]
["Ontario Electricity Rebate (OER)",-0.189,{"$f":"B20","v":-0.189}]
[]
["Customer Attributes - Assumptions"]
["ST customers are assumed to be Non-WMP, Class A"]

{"sheet":"Data BI Summary","index":5,"n_rows":15,"n_cols":6,"rows_kept":15,"cut":false,"hidden":true,"merged":[]}
[]
["Summary Column","Current Total Bill","Change in DX Bill ($)","Change in DX Bill (%)","Change in Total Bill ($)","Change in Total Bill (%)"]
["BI Template_Energy","Total Amount on TOU","Sub-Total:  Distribution (excluding pass through)","Sub-Total:  Distribution (excluding pass through)","Total Amount on TOU","Total Amount on TOU"]
["BI Template_EnergyUNM","Total Amount on Two-Tier RPP","Sub-Total:  Distribution (excluding pass through)","Sub-Total:  Distribution (excluding pass through)","Total Amount on Two-Tier RPP","Total Amount on Two-Tier RPP"]
["BI Template_Demand","Total Amount on WAHSP","Sub-Total:  Distribution","Sub-Total:  Distribution","Total Amount on WAHSP","Total Amount on WAHSP"]
["BI Template_EnergyNPDI","Total Amount on TOU","Sub-Total:  Distribution (excluding pass through)","Sub-Total:  Distribution (excluding pass through)","Total Amount on TOU","Total Amount on TOU"]
["BI Template_UNMNPDI","Total Amount on Two-Tier RPP","Sub-Total:  Distribution (excluding pass through)","Sub-Total:  Distribution (excluding pass through)","Total Amount on Two-Tier RPP","Total Amount on Two-Tier RPP"]
["BI Template_DemandNPDI","Total Amount on WAHSP","Sub-Total:  Distribution","Sub-Total:  Distribution","Total Amount on WAHSP","Total Amount on WAHSP"]
["BI Template_EnergyHCHI","Total Amount on TOU","Sub-Total:  Distribution (excluding pass through)","Sub-Total:  Distribution (excluding pass through)","Total Amount on TOU","Total Amount on TOU"]
["BI Template_UNMHCHI","Total Amount on Two-Tier RPP","Sub-Total:  Distribution (excluding pass through)","Sub-Total:  Distribution (excluding pass through)","Total Amount on Two-Tier RPP","Total Amount on Two-Tier RPP"]
["BI Template_DemandHCHI","Total Amount on WAHSP","Sub-Total:  Distribution","Sub-Total:  Distribution","Total Amount on WAHSP","Total Amount on WAHSP"]
["BI Template_EnergyWHSI","Total Amount on TOU","Sub-Total:  Distribution (excluding pass through)","Sub-Total:  Distribution (excluding pass through)","Total Amount on TOU","Total Amount on TOU"]
["BI Template_UNMWHSI","Total Amount on Two-Tier RPP","Sub-Total:  Distribution (excluding pass through)","Sub-Total:  Distribution (excluding pass through)","Total Amount on Two-Tier RPP","Total Amount on Two-Tier RPP"]
["BI Template_DemandWHSI","Total Amount on WAHSP","Sub-Total:  Distribution","Sub-Total:  Distribution","Total Amount on WAHSP","Total Amount on WAHSP"]
["BI Template_Seasonal","Total Amount on TOU","Sub-Total:  Distribution (excluding pass through)","Sub-Total:  Distribution (excluding pass through)","Total Amount on TOU","Total Amount on TOU"]

{"sheet":"Data BI List","index":6,"n_rows":101,"n_cols":3,"rows_kept":101,"cut":false,"hidden":true,"merged":[]}
["Template Name","Bill Impact Worksheet Name","Bill Impact Header"]
["BI Template_Energy","BI_UR_Low","2023 Bill Impacts (Low Consumption Level) - UR"]
["BI Template_Energy","BI_UR_Typical","2023 Bill Impacts (Typical Consumption Level) - UR"]
["BI Template_Energy","BI_UR_Avg","2023 Bill Impacts (Average Consumption Level) - UR"]
["BI Template_Energy","BI_UR_High","2023 Bill Impacts (High Consumption Level) - UR"]
["BI Template_Energy","BI_R1_Low (with DRP)","2023 Bill Impacts (Low Consumption Level) - R1"]
["BI Template_Energy","BI_R1_Typical (with DRP)","2023 Bill Impacts (Typical Consumption Level) - R1"]
["BI Template_Energy","BI_R1_Avg (with DRP)","2023 Bill Impacts (Average Consumption Level) - R1"]
["BI Template_Energy","BI_R1_High (with DRP)","2023 Bill Impacts (High Consumption Level) - R1"]
["BI Template_Energy","BI_R1_Low (without DRP)","2023 Bill Impacts (Low Consumption Level) - R1"]
["BI Template_Energy","BI_R1_Typical (without DRP)","2023 Bill Impacts (Typical Consumption Level) - R1"]
["BI Template_Energy","BI_R1_Avg (without DRP)","2023 Bill Impacts (Average Consumption Level) - R1"]
["BI Template_Energy","BI_R1_High (without DRP)","2023 Bill Impacts (High Consumption Level) - R1"]
["BI Template_Energy","BI_R2_Low (with DRP)","2023 Bill Impacts (Low Consumption Level) - R2"]
["BI Template_Energy","BI_R2_Typical (with DRP)","2023 Bill Impacts (Typical Consumption Level) - R2"]
["BI Template_Energy","BI_R2_Avg (with DRP)","2023 Bill Impacts (Average Consumption Level) - R2"]
["BI Template_Energy","BI_R2_High (with DRP)","2023 Bill Impacts (High Consumption Level) - R2"]
["BI Template_Energy","BI_R2_Low (without DRP)","2023 Bill Impacts (Low Consumption Level) - R2"]
["BI Template_Energy","BI_R2_Typical (without DRP)","2023 Bill Impacts (Typical Consumption Level) - R2"]
["BI Template_Energy","BI_R2_Avg (without DRP)","2023 Bill Impacts (Average Consumption Level) - R2"]
["BI Template_Energy","BI_R2_High (without DRP)","2023 Bill Impacts (High Consumption Level) - R2"]
["BI Template_Energy","BI_GSe_Low","2023 Bill Impacts (Low Consumption Level) - GSe"]
["BI Template_Energy","BI_GSe_Typical","2023 Bill Impacts (Typical Consumption Level) - GSe"]
["BI Template_Energy","BI_GSe_Avg","2023 Bill Impacts (Average Consumption Level) - GSe"]
["BI Template_Energy","BI_GSe_High","2023 Bill Impacts (High Consumption Level) - GSe"]
["BI Template_Energy","BI_UGe_Low","2023 Bill Impacts (Low Consumption Level) - UGe"]
["BI Template_Energy","BI_UGe_Typical","2023 Bill Impacts (Typical Consumption Level) - UGe"]
["BI Template_Energy","BI_UGe_Avg","2023 Bill Impacts (Average Consumption Level) - UGe"]
["BI Template_Energy","BI_UGe_High","2023 Bill Impacts (High Consumption Level) - UGe"]
["BI Template_Demand","BI_GSd_Low","2023 Bill Impacts (Low Consumption Level) - GSd"]
["BI Template_Demand","BI_GSd_Avg","2023 Bill Impacts (Average Consumption Level) - GSd"]
["BI Template_Demand","BI_GSd_High","2023 Bill Impacts (High Consumption Level) - GSd"]
["BI Template_Demand","BI_UGd_Low","2023 Bill Impacts (Low Consumption Level) - UGd"]
["BI Template_Demand","BI_UGd_Avg","2023 Bill Impacts (Average Consumption Level) - UGd"]
["BI Template_Demand","BI_UGd_High","2023 Bill Impacts (High Consumption Level) - UGd"]
["BI Template_EnergyUNM","BI_StLgt_Low","2023 Bill Impacts (Low Consumption Level) - St Lgt"]
["BI Template_EnergyUNM","BI_StLgt_Avg","2023 Bill Impacts (Average Consumption Level) - St Lgt"]
["BI Template_EnergyUNM","BI_StLgt_High","2023 Bill Impacts (High Consumption Level) - St Lgt"]
["BI Template_EnergyUNM","BI_SenLgt_Low","2023 Bill Impacts (Low Consumption Level) - Sen Lgt"]
["BI Template_EnergyUNM","BI_SenLgt_Avg","2023 Bill Impacts (Average Consumption Level) - Sen Lgt"]
["BI Template_EnergyUNM","BI_SenLgt_High","2023 Bill Impacts (High Consumption Level) - Sen Lgt"]
["BI Template_EnergyUNM","BI_USL_Low","2023 Bill Impacts (Low Consumption Level) - USL"]
["BI Template_EnergyUNM","BI_USL_Avg","2023 Bill Impacts (Average Consumption Level) - USL"]
["BI Template_EnergyUNM","BI_USL_High","2023 Bill Impacts (High Consumption Level) - USL"]
["BI Template_Demand","BI_Dgen_Low","2023 Bill Impacts (Low Consumption Level) - Dgen"]
["BI Template_Demand","BI_Dgen_Avg","2023 Bill Impacts (Average Consumption Level) - Dgen"]
["BI Template_Demand","BI_Dgen_High","2023 Bill Impacts (High Consumption Level) - Dgen"]
["BI Template_Demand","BI_ST_Low","2023 Bill Impacts (Low Consumption Level) - ST"]
["BI Template_Demand","BI_ST_Avg","2023 Bill Impacts (Average Consumption Level) - ST"]
["BI Template_Demand","BI_ST_High","2023 Bill Impacts (High Consumption Level) - ST"]
["BI Template_EnergyWHSI","BI_WHSI_AUR_Low","2023 Bill Impacts (Low Consumption Level) - AUR_WHSI"]
["BI Template_EnergyWHSI","BI_WHSI_AUR_Typical","2023 Bill Impacts (Typical Consumption Level) - AUR_WHSI"]
["BI Template_EnergyWHSI","BI_WHSI_AUR_Avg","2023 Bill Impacts (Average Consumption Level) - AUR_WHSI"]
["BI Template_EnergyWHSI","BI_WHSI_AUR_High","2023 Bill Impacts (High Consumption Level) - AUR_WHSI"]
["BI Template_EnergyWHSI","BI_WHSI_AUGe_Low","2023 Bill Impacts (Low Consumption Level) - AUGe_WHSI"]
["BI Template_EnergyWHSI","BI_WHSI_AUGe_Typical","2023 Bill Impacts (Typical Consumption Level) - AUGe_WHSI"]
["BI Template_EnergyWHSI","BI_WHSI_AUGe_Avg","2023 Bill Impacts (Average Consumption Level) - AUGe_WHSI"]
["BI Template_EnergyWHSI","BI_WHSI_AUGe_High","2023 Bill Impacts (High Consumption Level) - AUGe_WHSI"]
["BI Template_DemandWHSI","BI_WHSI_AUGd_Low","2023 Bill Impacts (Low Consumption Level) - AUGd_WHSI"]
["BI Template_DemandWHSI","BI_WHSI_AUGd_Avg","2023 Bill Impacts (Average Consumption Level) - AUGd_WHSI"]
["BI Template_DemandWHSI","BI_WHSI_AUGd_High","2023 Bill Impacts (High Consumption Level) - AUGd_WHSI"]
["BI Template_DemandWHSI","BI_WHSI_ST_Avg","2023 Bill Impacts (Average Consumption Level) - ST_WHSI"]
["BI Template_EnergyNPDI","BI_NPDI_AR_Low","2023 Bill Impacts (Low Consumption Level) - AR_NPDI"]
["BI Template_EnergyNPDI","BI_NPDI_AR_Typical","2023 Bill Impacts (Typical Consumption Level) - AR_NPDI"]
["BI Template_EnergyNPDI","BI_NPDI_AR_Avg","2023 Bill Impacts (Average Consumption Level) - AR_NPDI"]
["BI Template_EnergyNPDI","BI_NPDI_AR_High","2023 Bill Impacts (High Consumption Level) - AR_NPDI"]
["BI Template_EnergyHCHI","BI_HCHI_AR_Low","2023 Bill Impacts (Low Consumption Level) - AR_HCHI"]
["BI Template_EnergyHCHI","BI_HCHI_AR_Typical","2023 Bill Impacts (Typical Consumption Level) - AR_HCHI"]
["BI Template_EnergyHCHI","BI_HCHI_AR_Avg","2023 Bill Impacts (Average Consumption Level) - AR_HCHI"]
["BI Template_EnergyHCHI","BI_HCHI_AR_High","2023 Bill Impacts (High Consumption Level) - AR_HCHI"]
["BI Template_EnergyNPDI","BI_NPDI_AGSe_Low","2023 Bill Impacts (Low Consumption Level) - AGSe_NPDI"]
["BI Template_EnergyNPDI","BI_NPDI_AGSe_Typical","2023 Bill Impacts (Typical Consumption Level) - AGSe_NPDI"]
["BI Template_EnergyNPDI","BI_NPDI_AGSe_Avg","2023 Bill Impacts (Average Consumption Level) - AGSe_NPDI"]
["BI Template_EnergyNPDI","BI_NPDI_AGSe_High","2023 Bill Impacts (High Consumption Level) - AGSe_NPDI"]
["BI Template_EnergyHCHI","BI_HCHI_AGSe_Low","2023 Bill Impacts (Low Consumption Level) - AGSe_HCHI"]
["BI Template_EnergyHCHI","BI_HCHI_AGSe_Typical","2023 Bill Impacts (Typical Consumption Level) - AGSe_HCHI"]
["BI Template_EnergyHCHI","BI_HCHI_AGSe_Avg","2023 Bill Impacts (Average Consumption Level) - AGSe_HCHI"]
["BI Template_EnergyHCHI","BI_HCHI_AGSe_High","2023 Bill Impacts (High Consumption Level) - AGSe_HCHI"]
["BI Template_DemandNPDI","BI_NPDI_AGSd_Low","2023 Bill Impacts (Low Consumption Level) - AGSd_NPDI"]
["BI Template_DemandNPDI","BI_NPDI_AGSd_Avg","2023 Bill Impacts (Average Consumption Level) - AGSd_NPDI"]
["BI Template_DemandNPDI","BI_NPDI_AGSd_High","2023 Bill Impacts (High Consumption Level) - AGSd_NPDI"]
["BI Template_DemandHCHI","BI_HCHI_AGSd_Low","2023 Bill Impacts (Low Consumption Level) - AGSd_HCHI"]
["BI Template_DemandHCHI","BI_HCHI_AGSd_Avg","2023 Bill Impacts (Average Consumption Level) - AGSd_HCHI"]
["BI Template_DemandHCHI","BI_HCHI_AGSd_High","2023 Bill Impacts (High Consumption Level) - AGSd_HCHI"]
["BI Template_unmWHSI","BI_WHSI_USL_Avg","2023 Bill Impacts (Average Consumption Level) - USL_WHSI"]
["BI Template_unmNPDI","BI_NPDI_USL_Avg","2023 Bill Impacts (Average Consumption Level) - USL_NPDI"]
["BI Template_unmHCHI","BI_HCHI_USL_Avg","2023 Bill Impacts (Average Consumption Level) - USL_HCHI"]
["BI Template_unmWHSI","BI_WHSI_StLgt_Avg","2023 Bill Impacts (Average Consumption Level) - St Lgt_WHSI"]
["BI Template_unmNPDI","BI_NPDI_StLgt_Avg","2023 Bill Impacts (Average Consumption Level) - St Lgt_NPDI"]
["BI Template_unmHCHI","BI_HCHI_StLgt_Avg","2023 Bill Impacts (Average Consumption Level) - St Lgt_HCHI"]
["BI Template_unmNPDI","BI_NPDI_SenLgt_Avg","2023 Bill Impacts (Average Consumption Level) - Sen Lgt_NPDI"]
["BI Template_unmHCHI","BI_HCHI_SenLgt_Avg","2023 Bill Impacts (Average Consumption Level) - Sen Lgt_HCHI"]
["BI Template_Seasonal","BI_Seas_UR_Low","2023 Bill Impacts (Low Consumption Level) - Seas-UR"]
["BI Template_Seasonal","BI_Seas_UR_Avg","2023 Bill Impacts (Average Consumption Level) - Seas-UR"]
["BI Template_Seasonal","BI_Seas_UR_High","2023 Bill Impacts (High Consumption Level) - Seas-UR"]
["BI Template_Seasonal","BI_Seas_R1_Low","2023 Bill Impacts (Low Consumption Level) - Seas-R1"]
["BI Template_Seasonal","BI_Seas_R1_Avg","2023 Bill Impacts (Average Consumption Level) - Seas-R1"]
["BI Template_Seasonal","BI_Seas_R1_High","2023 Bill Impacts (High Consumption Level) - Seas-R1"]
["BI Template_Seasonal","BI_Seas_R2_Low","2023 Bill Impacts (Low Consumption Level) - Seas-R2"]
["BI Template_Seasonal","BI_Seas_R2_Avg","2023 Bill Impacts (Average Consumption Level) - Seas-R2"]
["BI Template_Seasonal","BI_Seas_R2_High","2023 Bill Impacts (High Consumption Level) - Seas-R2"]

{"sheet":"Data BI List Acq_Seas","index":7,"n_rows":52,"n_cols":5,"rows_kept":52,"cut":false,"hidden":true,"merged":[]}
["Template Name","Bill Impact Worksheet Name","Bill Impact Header","Current Rate Class (Acq)","Proposed Rate Class"]
["BI Template_EnergyWHSI","BI_AUR_Low","2023 Bill Impacts (Low Consumption Level) - AUR_WHSI","WHSI_RES","AUR-WHSI"]
["BI Template_EnergyWHSI","BI_AUR_Typical","2023 Bill Impacts (Typical Consumption Level) - AUR_WHSI","WHSI_RES","AUR-WHSI"]
["BI Template_EnergyWHSI","BI_AUR_Avg","2023 Bill Impacts (Average Consumption Level) - AUR_WHSI","WHSI_RES","AUR-WHSI"]
["BI Template_EnergyWHSI","BI_AUR_High","2023 Bill Impacts (High Consumption Level) - AUR_WHSI","WHSI_RES","AUR-WHSI"]
["BI Template_EnergyWHSI","BI_AUGe_Low","2023 Bill Impacts (Low Consumption Level) - AUGe_WHSI","WHSI_GS<50","AUGe-WHSI"]
["BI Template_EnergyWHSI","BI_AUGe_Typical","2023 Bill Impacts (Typical Consumption Level) - AUGe_WHSI","WHSI_GS<50","AUGe-WHSI"]
["BI Template_EnergyWHSI","BI_AUGe_Avg","2023 Bill Impacts (Average Consumption Level) - AUGe_WHSI","WHSI_GS<50","AUGe-WHSI"]
["BI Template_EnergyWHSI","BI_AUGe_High","2023 Bill Impacts (High Consumption Level) - AUGe_WHSI","WHSI_GS<50","AUGe-WHSI"]
["BI Template_DemandWHSI","BI_AUGd_Low","2023 Bill Impacts (Low Consumption Level) - AUGd_WHSI","WHSI_GS 50>999","AUGd-WHSI"]
["BI Template_DemandWHSI","BI_AUGd_Avg","2023 Bill Impacts (Average Consumption Level) - AUGd_WHSI","WHSI_GS 50>999","AUGd-WHSI"]
["BI Template_DemandWHSI","BI_AUGd_High","2023 Bill Impacts (High Consumption Level) - AUGd_WHSI","WHSI_GS 50>999","AUGd-WHSI"]
["BI Template_DemandWHSI","BI_WHSI_ST_Avg","2023 Bill Impacts (Average Consumption Level) - ST_WHSI","WHSI_GS >1,000kW","ST-WHSI"]
["BI Template_EnergyNPDI","BI_NPDI_AR_Low","2023 Bill Impacts (Low Consumption Level) - AR_NPDI","NPDI_RES","AR-NPDI"]
["BI Template_EnergyNPDI","BI_NPDI_AR_Typical","2023 Bill Impacts (Typical Consumption Level) - AR_NPDI","NPDI_RES","AR-NPDI"]
["BI Template_EnergyNPDI","BI_NPDI_AR_Avg","2023 Bill Impacts (Average Consumption Level) - AR_NPDI","NPDI_RES","AR-NPDI"]
["BI Template_EnergyNPDI","BI_NPDI_AR_High","2023 Bill Impacts (High Consumption Level) - AR_NPDI","NPDI_RES","AR-NPDI"]
["BI Template_EnergyHCHI","BI_HCHI_AR_Low","2023 Bill Impacts (Low Consumption Level) - AR_HCHI","HCHI_RES","AR-HCHI"]
["BI Template_EnergyHCHI","BI_HCHI_AR_Typical","2023 Bill Impacts (Typical Consumption Level) - AR_HCHI","HCHI_RES","AR-HCHI"]
["BI Template_EnergyHCHI","BI_HCHI_AR_Avg","2023 Bill Impacts (Average Consumption Level) - AR_HCHI","HCHI_RES","AR-HCHI"]
["BI Template_EnergyHCHI","BI_HCHI_AR_High","2023 Bill Impacts (High Consumption Level) - AR_HCHI","HCHI_RES","AR-HCHI"]
["BI Template_EnergyNPDI","BI_NPDI_AGSe_Low","2023 Bill Impacts (Low Consumption Level) - AGSe_NPDI","NPDI_GS<50","AGSe-NPDI"]
["BI Template_EnergyNPDI","BI_NPDI_AGSe_Typical","2023 Bill Impacts (Typical Consumption Level) - AGSe_NPDI","NPDI_GS<50","AGSe-NPDI"]
["BI Template_EnergyNPDI","BI_NPDI_AGSe_Avg","2023 Bill Impacts (Average Consumption Level) - AGSe_NPDI","NPDI_GS<50","AGSe-NPDI"]
["BI Template_EnergyNPDI","BI_NPDI_AGSe_High","2023 Bill Impacts (High Consumption Level) - AGSe_NPDI","NPDI_GS<50","AGSe-NPDI"]
["BI Template_EnergyHCHI","BI_HCHI_AGSe_Low","2023 Bill Impacts (Low Consumption Level) - AGSe_HCHI","HCHI_GS<50","AGSe-HCHI"]
["BI Template_EnergyHCHI","BI_HCHI_AGSe_Typical","2023 Bill Impacts (Typical Consumption Level) - AGSe_HCHI","HCHI_GS<50","AGSe-HCHI"]
["BI Template_EnergyHCHI","BI_HCHI_AGSe_Avg","2023 Bill Impacts (Average Consumption Level) - AGSe_HCHI","HCHI_GS<50","AGSe-HCHI"]
["BI Template_EnergyHCHI","BI_HCHI_AGSe_High","2023 Bill Impacts (High Consumption Level) - AGSe_HCHI","HCHI_GS<50","AGSe-HCHI"]
["BI Template_DemandNPDI","BI_NPDI_AGSd_Low","2023 Bill Impacts (Low Consumption Level) - AGSd_NPDI","NPDI_GS >50","AGSd-NPDI"]
["BI Template_DemandNPDI","BI_NPDI_AGSd_Avg","2023 Bill Impacts (Average Consumption Level) - AGSd_NPDI","NPDI_GS >50","AGSd-NPDI"]
["BI Template_DemandNPDI","BI_NPDI_AGSd_High","2023 Bill Impacts (High Consumption Level) - AGSd_NPDI","NPDI_GS >50","AGSd-NPDI"]
["BI Template_DemandHCHI","BI_HCHI_AGSd_Low","2023 Bill Impacts (Low Consumption Level) - AGSd_HCHI","HCHI_GS >50","AGSd-HCHI"]
["BI Template_DemandHCHI","BI_HCHI_AGSd_Avg","2023 Bill Impacts (Average Consumption Level) - AGSd_HCHI","HCHI_GS >50","AGSd-HCHI"]
["BI Template_DemandHCHI","BI_HCHI_AGSd_High","2023 Bill Impacts (High Consumption Level) - AGSd_HCHI","HCHI_GS >50","AGSd-HCHI"]
["BI Template_EnergyUNM","BI_WHSI_USL_Avg","2023 Bill Impacts (Average Consumption Level) - USL_WHSI","WHSI_USL","USL-WHSI"]
["BI Template_unmNPDI","BI_NPDI_USL_Avg","2023 Bill Impacts (Average Consumption Level) - USL_NPDI","NPDI_USL","USL-NPDI"]
["BI Template_unmHCHI","BI_HCHI_USL_Avg","2023 Bill Impacts (Average Consumption Level) - USL_HCHI","HCHI_USL","USL-HCHI"]
["BI Template_unmWHSI","BI_WHSI_StLgt_Avg","2023 Bill Impacts (Average Consumption Level) - St Lgt_WHSI","WHSI_St Lgt","St Lgt-WHSI"]
["BI Template_unmNPDI","BI_NPDI_StLgt_Avg","2023 Bill Impacts (Average Consumption Level) - St Lgt_NPDI","NPDI_St Lgt","St Lgt-NPDI"]
["BI Template_unmHCHI","BI_HCHI_StLgt_Avg","2023 Bill Impacts (Average Consumption Level) - St Lgt_HCHI","HCHI_St Lgt","St Lgt-HCHI"]
["BI Template_unmNPDI","BI_NPDI_SenLgt_Avg","2023 Bill Impacts (Average Consumption Level) - Sen Lgt_NPDI","NPDI_Sen Lgt","Sen Lgt-NPDI"]
["BI Template_unmHCHI","BI_HCHI_SenLgt_Avg","2023 Bill Impacts (Average Consumption Level) - Sen Lgt_HCHI","HCHI_Sen Lgt","Sen Lgt-HCHI"]
["BI Template_Seasonal","BI_Seas_UR_Low","2023 Bill Impacts (Low Consumption Level) - Seas-UR","Seasonal","UR"]
["BI Template_Seasonal","BI_Seas_UR_Avg","2023 Bill Impacts (Average Consumption Level) - Seas-UR","Seasonal","UR"]
["BI Template_Seasonal","BI_Seas_UR_High","2023 Bill Impacts (High Consumption Level) - Seas-UR","Seasonal","UR"]
["BI Template_Seasonal","BI_Seas_R1_Low","2023 Bill Impacts (Low Consumption Level) - Seas-R1","Seasonal","R1"]
["BI Template_Seasonal","BI_Seas_R1_Avg","2023 Bill Impacts (Average Consumption Level) - Seas-R1","Seasonal","R1"]
["BI Template_Seasonal","BI_Seas_R1_High","2023 Bill Impacts (High Consumption Level) - Seas-R1","Seasonal","R1"]
["BI Template_Seasonal","BI_Seas_R2_Low","2023 Bill Impacts (Low Consumption Level) - Seas-R2","Seasonal","R2"]
["BI Template_Seasonal","BI_Seas_R2_Avg","2023 Bill Impacts (Average Consumption Level) - Seas-R2","Seasonal","R2"]
["BI Template_Seasonal","BI_Seas_R2_High","2023 Bill Impacts (High Consumption Level) - Seas-R2","Seasonal","R2"]

{"sheet":"Bill Impact Summary","index":8,"n_rows":59,"n_cols":15,"rows_kept":59,"cut":false,"hidden":true,"merged":[[56,0,58,0],[56,11,58,11],[53,0,55,0],[50,0,52,0],[34,0,37,0],[38,0,40,0],[41,0,43,0],[44,0,46,0],[47,0,49,0],[44,11,46,11],[41,11,43,11],[38,11,40,11],[53,11,55,11],[50,11,52,11],[47,11,49,11],[1,0,4,0],[5,0,8,0],[13,0,16,0],[30,0,33,0],[27,0,29,0],[21,0,23,0],[24,0,26,0],[9,0,12,0],[17,0,20,0],[1,11,4,11],[34,11,37,11],[30,11,33,11],[13,11,16,11],[5,11,8,11],[27,11,29,11],[24,11,26,11],[21,11,23,11],[9,11,12,11],[17,11,20,11]]}
["Rate Class","Consumption Level","Monthly Consumption (kWh)","Monthly Peak (kW)","BI Worksheet","Template","Current Total Bill","Change in DX Bill ($)","Change in DX Bill (%)","Change in Total Bill ($)","Change in Total Bill (%)","Commodity Price Used",null,null,"List for Data Validation of cell L6; do not remove"]
["UR","Low",{"$f":"VLOOKUP(A$2,'Data Billing Quantities'!A:P,MATCH(B2&\" kWh\",'Data Billing Quantities'!$4:$4,0),FALSE)","v":340},null,"BI_UR_Low","BI Template_Energy",{"$f":"VLOOKUP(VLOOKUP($F2,'Data BI Summary'!$A:$F,MATCH(G$1,'Data BI Summary'!$2:$2,0),FALSE),INDIRECT(\"'\"&$E2&\"'!\"&\"$A:$K\"),4,FALSE)","v":79.47245197960001},{"$f":"VLOOKUP(VLOOKUP($F2,'Data BI Summary'!$A:$F,MATCH(H$1,'Data BI Summary'!$2:$2,0),FALSE),INDIRECT(\"'\"&$E2&\"'!\"&\"$A:$K\"),8,FALSE)","v":-2.0259999999999962},{"$f":"VLOOKUP(VLOOKUP($F2,'Data BI Summary'!$A:$F,MATCH(I$1,'Data BI Summary'!$2:$2,0),FALSE),INDIRECT(\"'\"&$E2&\"'!\"&\"$A:$K\"),9,FALSE)","v":-5.2637048584047712E-2},{"$f":"VLOOKUP(VLOOKUP($F2,'Data BI Summary'!$A:$F,MATCH(J$1,'Data BI Summary'!$2:$2,0),FALSE),INDIRECT(\"'\"&$E2&\"'!\"&\"$A:$K\"),8,FALSE)","v":-2.1431896059999929},{"$f":"VLOOKUP(VLOOKUP($F2,'Data BI Summary'!$A:$F,MATCH(K$1,'Data BI Summary'!$2:$2,0),FALSE),INDIRECT(\"'\"&$E2&\"'!\"&\"$A:$K\"),9,FALSE)","v":-2.6967704564471395E-2},"TOU"]
[null,"Typical",{"$f":"VLOOKUP(A$2,'Data Billing Quantities'!A:P,MATCH(B3&\" kWh\",'Data Billing Quantities'!$4:$4,0),FALSE)","v":750},null,"BI_UR_Typical","BI Template_Energy",{"$f":"VLOOKUP(VLOOKUP($F3,'Data BI Summary'!$A:$F,MATCH(G$1,'Data BI Summary'!$2:$2,0),FALSE),INDIRECT(\"'\"&$E3&\"'!\"&\"$A:$K\"),4,FALSE)","v":130.70043495499999},{"$f":"VLOOKUP(VLOOKUP($F3,'Data BI Summary'!$A:$F,MATCH(H$1,'Data BI Summary'!$2:$2,0),FALSE),INDIRECT(\"'\"&$E3&\"'!\"&\"$A:$K\"),8,FALSE)","v":-2.1899999999999906},{"$f":"VLOOKUP(VLOOKUP($F3,'Data BI Summary'!$A:$F,MATCH(I$1,'Data BI Summary'!$2:$2,0),FALSE),INDIRECT(\"'\"&$E3&\"'!\"&\"$A:$K\"),9,FALSE)","v":-5.6897895557287373E-2},{"$f":"VLOOKUP(VLOOKUP($F3,'Data BI Summary'!$A:$F,MATCH(J$1,'Data BI Summary'!$2:$2,0),FALSE),INDIRECT(\"'\"&$E3&\"'!\"&\"$A:$K\"),8,FALSE)","v":-2.5829744249999749},{"$f":"VLOOKUP(VLOOKUP($F3,'Data BI Summary'!$A:$F,MATCH(K$1,'Data BI Summary'!$2:$2,0),FALSE),INDIRECT(\"'\"&$E3&\"'!\"&\"$A:$K\"),9,FALSE)","v":-1.9762554163567168E-2}]
[null,"Average",{"$f":"VLOOKUP(A$2,'Data Billing Quantities'!A:P,MATCH(B4&\" kWh\",'Data Billing Quantities'!$4:$4,0),FALSE)","v":690},null,"BI_UR_Avg","BI Template_Energy",{"$f":"VLOOKUP(VLOOKUP($F4,'Data BI Summary'!$A:$F,MATCH(G$1,'Data BI Summary'!$2:$2,0),FALSE),INDIRECT(\"'\"&$E4&\"'!\"&\"$A:$K\"),4,FALSE)","v":123.20365695860001},{"$f":"VLOOKUP(VLOOKUP($F4,'Data BI Summary'!$A:$F,MATCH(H$1,'Data BI Summary'!$2:$2,0),FALSE),INDIRECT(\"'\"&$E4&\"'!\"&\"$A:$K\"),8,FALSE)","v":-2.1659999999999968},{"$f":"VLOOKUP(VLOOKUP($F4,'Data BI Summary'!$A:$F,MATCH(I$1,'Data BI Summary'!$2:$2,0),FALSE),INDIRECT(\"'\"&$E4&\"'!\"&\"$A:$K\"),9,FALSE)","v":-5.6274356975837804E-2},{"$f":"VLOOKUP(VLOOKUP($F4,'Data BI Summary'!$A:$F,MATCH(J$1,'Data BI Summary'!$2:$2,0),FALSE),INDIRECT(\"'\"&$E4&\"'!\"&\"$A:$K\"),8,FALSE)","v":-2.5186156710000063},{"$f":"VLOOKUP(VLOOKUP($F4,'Data BI Summary'!$A:$F,MATCH(K$1,'Data BI Summary'!$2:$2,0),FALSE),INDIRECT(\"'\"&$E4&\"'!\"&\"$A:$K\"),9,FALSE)","v":-2.0442702214970243E-2}]
[null,"High",{"$f":"VLOOKUP(A$2,'Data Billing Quantities'!A:P,MATCH(B5&\" kWh\",'Data Billing Quantities'!$4:$4,0),FALSE)","v":1260},null,"BI_UR_High","BI Template_Energy",{"$f":"VLOOKUP(VLOOKUP($F5,'Data BI Summary'!$A:$F,MATCH(G$1,'Data BI Summary'!$2:$2,0),FALSE),INDIRECT(\"'\"&$E5&\"'!\"&\"$A:$K\"),4,FALSE)","v":194.42304792439998},{"$f":"VLOOKUP(VLOOKUP($F5,'Data BI Summary'!$A:$F,MATCH(H$1,'Data BI Summary'!$2:$2,0),FALSE),INDIRECT(\"'\"&$E5&\"'!\"&\"$A:$K\"),8,FALSE)","v":-2.3939999999999912},{"$f":"VLOOKUP(VLOOKUP($F5,'Data BI Summary'!$A:$F,MATCH(I$1,'Data BI Summary'!$2:$2,0),FALSE),INDIRECT(\"'\"&$E5&\"'!\"&\"$A:$K\"),9,FALSE)","v":-6.2197973499610072E-2},{"$f":"VLOOKUP(VLOOKUP($F5,'Data BI Summary'!$A:$F,MATCH(J$1,'Data BI Summary'!$2:$2,0),FALSE),INDIRECT(\"'\"&$E5&\"'!\"&\"$A:$K\"),8,FALSE)","v":-3.1300238339999851},{"$f":"VLOOKUP(VLOOKUP($F5,'Data BI Summary'!$A:$F,MATCH(K$1,'Data BI Summary'!$2:$2,0),FALSE),INDIRECT(\"'\"&$E5&\"'!\"&\"$A:$K\"),9,FALSE)","v":-1.6099036957887176E-2}]
["R1 (with DRP)","Low",{"$f":"VLOOKUP(\"R1\",'Data Billing Quantities'!A:P,MATCH(B6&\" kWh\",'Data Billing Quantities'!$4:$4,0),FALSE)","v":370},null,"BI_R1_Low (with DRP)","BI Template_Energy",{"$f":"VLOOKUP(VLOOKUP($F6,'Data BI Summary'!$A:$F,MATCH(G$1,'Data BI Summary'!$2:$2,0),FALSE),INDIRECT(\"'\"&$E6&\"'!\"&\"$A:$K\"),4,FALSE)","v":82.068459066399996},{"$f":"VLOOKUP(VLOOKUP($F6,'Data BI Summary'!$A:$F,MATCH(H$1,'Data BI Summary'!$2:$2,0),FALSE),INDIRECT(\"'\"&$E6&\"'!\"&\"$A:$K\"),8,FALSE)","v":-0.28800000000000381},{"$f":"VLOOKUP(VLOOKUP($F6,'Data BI Summary'!$A:$F,MATCH(I$1,'Data BI Summary'!$2:$2,0),FALSE),INDIRECT(\"'\"&$E6&\"'!\"&\"$A:$K\"),9,FALSE)","v":-7.8133478024960332E-3},{"$f":"VLOOKUP(VLOOKUP($F6,'Data BI Summary'!$A:$F,MATCH(J$1,'Data BI Summary'!$2:$2,0),FALSE),INDIRECT(\"'\"&$E6&\"'!\"&\"$A:$K\"),8,FALSE)","v":-0.53324964400000852},{"$f":"VLOOKUP(VLOOKUP($F6,'Data BI Summary'!$A:$F,MATCH(K$1,'Data BI Summary'!$2:$2,0),FALSE),INDIRECT(\"'\"&$E6&\"'!\"&\"$A:$K\"),9,FALSE)","v":-6.4976197928678855E-3},"TOU (DRP applied)",null,null,"TOU"]
[null,"Typical",{"$f":"VLOOKUP(\"R1\",'Data Billing Quantities'!A:P,MATCH(B7&\" kWh\",'Data Billing Quantities'!$4:$4,0),FALSE)","v":750},null,"BI_R1_Typical (with DRP)","BI Template_Energy",{"$f":"VLOOKUP(VLOOKUP($F7,'Data BI Summary'!$A:$F,MATCH(G$1,'Data BI Summary'!$2:$2,0),FALSE),INDIRECT(\"'\"&$E7&\"'!\"&\"$A:$K\"),4,FALSE)","v":129.93981054000002},{"$f":"VLOOKUP(VLOOKUP($F7,'Data BI Summary'!$A:$F,MATCH(H$1,'Data BI Summary'!$2:$2,0),FALSE),INDIRECT(\"'\"&$E7&\"'!\"&\"$A:$K\"),8,FALSE)","v":-0.43999999999999773},{"$f":"VLOOKUP(VLOOKUP($F7,'Data BI Summary'!$A:$F,MATCH(I$1,'Data BI Summary'!$2:$2,0),FALSE),INDIRECT(\"'\"&$E7&\"'!\"&\"$A:$K\"),9,FALSE)","v":-1.1937059142702055E-2},{"$f":"VLOOKUP(VLOOKUP($F7,'Data BI Summary'!$A:$F,MATCH(J$1,'Data BI Summary'!$2:$2,0),FALSE),INDIRECT(\"'\"&$E7&\"'!\"&\"$A:$K\"),8,FALSE)","v":-0.94561090000001968},{"$f":"VLOOKUP(VLOOKUP($F7,'Data BI Summary'!$A:$F,MATCH(K$1,'Data BI Summary'!$2:$2,0),FALSE),INDIRECT(\"'\"&$E7&\"'!\"&\"$A:$K\"),9,FALSE)","v":-7.2772993593747583E-3},null,null,null,"TOU (DRP applied)"]
[null,"Average",{"$f":"VLOOKUP(\"R1\",'Data Billing Quantities'!A:P,MATCH(B8&\" kWh\",'Data Billing Quantities'!$4:$4,0),FALSE)","v":784},null,"BI_R1_Avg (with DRP)","BI Template_Energy",{"$f":"VLOOKUP(VLOOKUP($F8,'Data BI Summary'!$A:$F,MATCH(G$1,'Data BI Summary'!$2:$2,0),FALSE),INDIRECT(\"'\"&$E8&\"'!\"&\"$A:$K\"),4,FALSE)","v":134.22303672447995},{"$f":"VLOOKUP(VLOOKUP($F8,'Data BI Summary'!$A:$F,MATCH(H$1,'Data BI Summary'!$2:$2,0),FALSE),INDIRECT(\"'\"&$E8&\"'!\"&\"$A:$K\"),8,FALSE)","v":-0.45360000000000156},{"$f":"VLOOKUP(VLOOKUP($F8,'Data BI Summary'!$A:$F,MATCH(I$1,'Data BI Summary'!$2:$2,0),FALSE),INDIRECT(\"'\"&$E8&\"'!\"&\"$A:$K\"),9,FALSE)","v":-1.2306022788931134E-2},{"$f":"VLOOKUP(VLOOKUP($F8,'Data BI Summary'!$A:$F,MATCH(J$1,'Data BI Summary'!$2:$2,0),FALSE),INDIRECT(\"'\"&$E8&\"'!\"&\"$A:$K\"),8,FALSE)","v":-0.98250638080000385},{"$f":"VLOOKUP(VLOOKUP($F8,'Data BI Summary'!$A:$F,MATCH(K$1,'Data BI Summary'!$2:$2,0),FALSE),INDIRECT(\"'\"&$E8&\"'!\"&\"$A:$K\"),9,FALSE)","v":-7.3199534504408345E-3}]
[null,"High",{"$f":"VLOOKUP(\"R1\",'Data Billing Quantities'!A:P,MATCH(B9&\" kWh\",'Data Billing Quantities'!$4:$4,0),FALSE)","v":1650},null,"BI_R1_High (with DRP)","BI Template_Energy",{"$f":"VLOOKUP(VLOOKUP($F9,'Data BI Summary'!$A:$F,MATCH(G$1,'Data BI Summary'!$2:$2,0),FALSE),INDIRECT(\"'\"&$E9&\"'!\"&\"$A:$K\"),4,FALSE)","v":243.31932718800002},{"$f":"VLOOKUP(VLOOKUP($F9,'Data BI Summary'!$A:$F,MATCH(H$1,'Data BI Summary'!$2:$2,0),FALSE),INDIRECT(\"'\"&$E9&\"'!\"&\"$A:$K\"),8,FALSE)","v":-0.79999999999999716},{"$f":"VLOOKUP(VLOOKUP($F9,'Data BI Summary'!$A:$F,MATCH(I$1,'Data BI Summary'!$2:$2,0),FALSE),INDIRECT(\"'\"&$E9&\"'!\"&\"$A:$K\"),9,FALSE)","v":-2.1703743895821952E-2},{"$f":"VLOOKUP(VLOOKUP($F9,'Data BI Summary'!$A:$F,MATCH(J$1,'Data BI Summary'!$2:$2,0),FALSE),INDIRECT(\"'\"&$E9&\"'!\"&\"$A:$K\"),8,FALSE)","v":-1.922255980000017},{"$f":"VLOOKUP(VLOOKUP($F9,'Data BI Summary'!$A:$F,MATCH(K$1,'Data BI Summary'!$2:$2,0),FALSE),INDIRECT(\"'\"&$E9&\"'!\"&\"$A:$K\"),9,FALSE)","v":-7.9001368375262327E-3}]
["R1 (without DRP)","Low",{"$f":"VLOOKUP(\"R1\",'Data Billing Quantities'!A:P,MATCH(B10&\" kWh\",'Data Billing Quantities'!$4:$4,0),FALSE)","v":370},null,"BI_R1_Low (without DRP)","BI Template_Energy",{"$f":"VLOOKUP(VLOOKUP($F10,'Data BI Summary'!$A:$F,MATCH(G$1,'Data BI Summary'!$2:$2,0),FALSE),INDIRECT(\"'\"&$E10&\"'!\"&\"$A:$K\"),4,FALSE)","v":104.54236206639999},{"$f":"VLOOKUP(VLOOKUP($F10,'Data BI Summary'!$A:$F,MATCH(H$1,'Data BI Summary'!$2:$2,0),FALSE),INDIRECT(\"'\"&$E10&\"'!\"&\"$A:$K\"),8,FALSE)","v":-0.44700000000001694},{"$f":"VLOOKUP(VLOOKUP($F10,'Data BI Summary'!$A:$F,MATCH(I$1,'Data BI Summary'!$2:$2,0),FALSE),INDIRECT(\"'\"&$E10&\"'!\"&\"$A:$K\"),9,FALSE)","v":-7.3588726272988967E-3},{"$f":"VLOOKUP(VLOOKUP($F10,'Data BI Summary'!$A:$F,MATCH(J$1,'Data BI Summary'!$2:$2,0),FALSE),INDIRECT(\"'\"&$E10&\"'!\"&\"$A:$K\"),8,FALSE)","v":-0.68286864400000979},{"$f":"VLOOKUP(VLOOKUP($F10,'Data BI Summary'!$A:$F,MATCH(K$1,'Data BI Summary'!$2:$2,0),FALSE),INDIRECT(\"'\"&$E10&\"'!\"&\"$A:$K\"),9,FALSE)","v":-6.5319802470723432E-3},"TOU"]
[null,"Typical",{"$f":"VLOOKUP(\"R1\",'Data Billing Quantities'!A:P,MATCH(B11&\" kWh\",'Data Billing Quantities'!$4:$4,0),FALSE)","v":750},null,"BI_R1_Typical (without DRP)","BI Template_Energy",{"$f":"VLOOKUP(VLOOKUP($F11,'Data BI Summary'!$A:$F,MATCH(G$1,'Data BI Summary'!$2:$2,0),FALSE),INDIRECT(\"'\"&$E11&\"'!\"&\"$A:$K\"),4,FALSE)","v":155.95375553999997},{"$f":"VLOOKUP(VLOOKUP($F11,'Data BI Summary'!$A:$F,MATCH(H$1,'Data BI Summary'!$2:$2,0),FALSE),INDIRECT(\"'\"&$E11&\"'!\"&\"$A:$K\"),8,FALSE)","v":-2.3850000000000122},{"$f":"VLOOKUP(VLOOKUP($F11,'Data BI Summary'!$A:$F,MATCH(I$1,'Data BI Summary'!$2:$2,0),FALSE),INDIRECT(\"'\"&$E11&\"'!\"&\"$A:$K\"),9,FALSE)","v":-3.6973877993954143E-2},{"$f":"VLOOKUP(VLOOKUP($F11,'Data BI Summary'!$A:$F,MATCH(J$1,'Data BI Summary'!$2:$2,0),FALSE),INDIRECT(\"'\"&$E11&\"'!\"&\"$A:$K\"),8,FALSE)","v":-2.7758558999999536},{"$f":"VLOOKUP(VLOOKUP($F11,'Data BI Summary'!$A:$F,MATCH(K$1,'Data BI Summary'!$2:$2,0),FALSE),INDIRECT(\"'\"&$E11&\"'!\"&\"$A:$K\"),9,FALSE)","v":-1.7799224458483687E-2}]
[null,"Average",{"$f":"VLOOKUP(\"R1\",'Data Billing Quantities'!A:P,MATCH(B12&\" kWh\",'Data Billing Quantities'!$4:$4,0),FALSE)","v":784},null,"BI_R1_Avg (without DRP)","BI Template_Energy",{"$f":"VLOOKUP(VLOOKUP($F12,'Data BI Summary'!$A:$F,MATCH(G$1,'Data BI Summary'!$2:$2,0),FALSE),INDIRECT(\"'\"&$E12&\"'!\"&\"$A:$K\"),4,FALSE)","v":160.55372232447996},{"$f":"VLOOKUP(VLOOKUP($F12,'Data BI Summary'!$A:$F,MATCH(H$1,'Data BI Summary'!$2:$2,0),FALSE),INDIRECT(\"'\"&$E12&\"'!\"&\"$A:$K\"),8,FALSE)","v":-2.558400000000006},{"$f":"VLOOKUP(VLOOKUP($F12,'Data BI Summary'!$A:$F,MATCH(I$1,'Data BI Summary'!$2:$2,0),FALSE),INDIRECT(\"'\"&$E12&\"'!\"&\"$A:$K\"),9,FALSE)","v":-3.945615160637625E-2},{"$f":"VLOOKUP(VLOOKUP($F12,'Data BI Summary'!$A:$F,MATCH(J$1,'Data BI Summary'!$2:$2,0),FALSE),INDIRECT(\"'\"&$E12&\"'!\"&\"$A:$K\"),8,FALSE)","v":-2.9631231807999825},{"$f":"VLOOKUP(VLOOKUP($F12,'Data BI Summary'!$A:$F,MATCH(K$1,'Data BI Summary'!$2:$2,0),FALSE),INDIRECT(\"'\"&$E12&\"'!\"&\"$A:$K\"),9,FALSE)","v":-1.8455649223824869E-2}]
[null,"High",{"$f":"VLOOKUP(\"R1\",'Data Billing Quantities'!A:P,MATCH(B13&\" kWh\",'Data Billing Quantities'!$4:$4,0),FALSE)","v":1650},null,"BI_R1_High (without DRP)","BI Template_Energy",{"$f":"VLOOKUP(VLOOKUP($F13,'Data BI Summary'!$A:$F,MATCH(G$1,'Data BI Summary'!$2:$2,0),FALSE),INDIRECT(\"'\"&$E13&\"'!\"&\"$A:$K\"),4,FALSE)","v":277.71758218799994},{"$f":"VLOOKUP(VLOOKUP($F13,'Data BI Summary'!$A:$F,MATCH(H$1,'Data BI Summary'!$2:$2,0),FALSE),INDIRECT(\"'\"&$E13&\"'!\"&\"$A:$K\"),8,FALSE)","v":-6.9750000000000085},{"$f":"VLOOKUP(VLOOKUP($F13,'Data BI Summary'!$A:$F,MATCH(I$1,'Data BI Summary'!$2:$2,0),FALSE),INDIRECT(\"'\"&$E13&\"'!\"&\"$A:$K\"),9,FALSE)","v":-9.5007832186882898E-2},{"$f":"VLOOKUP(VLOOKUP($F13,'Data BI Summary'!$A:$F,MATCH(J$1,'Data BI Summary'!$2:$2,0),FALSE),INDIRECT(\"'\"&$E13&\"'!\"&\"$A:$K\"),8,FALSE)","v":-7.7329309799999919},{"$f":"VLOOKUP(VLOOKUP($F13,'Data BI Summary'!$A:$F,MATCH(K$1,'Data BI Summary'!$2:$2,0),FALSE),INDIRECT(\"'\"&$E13&\"'!\"&\"$A:$K\"),9,FALSE)","v":-2.7844585564500601E-2}]
["R2 (with DRP)","Low",{"$f":"VLOOKUP(\"R2\",'Data Billing Quantities'!A:P,MATCH(B14&\" kWh\",'Data Billing Quantities'!$4:$4,0),FALSE)","v":440},null,"BI_R2_Low (with DRP)","BI Template_Energy",{"$f":"VLOOKUP(VLOOKUP($F14,'Data BI Summary'!$A:$F,MATCH(G$1,'Data BI Summary'!$2:$2,0),FALSE),INDIRECT(\"'\"&$E14&\"'!\"&\"$A:$K\"),4,FALSE)","v":91.877531143999988},{"$f":"VLOOKUP(VLOOKUP($F14,'Data BI Summary'!$A:$F,MATCH(H$1,'Data BI Summary'!$2:$2,0),FALSE),INDIRECT(\"'\"&$E14&\"'!\"&\"$A:$K\"),8,FALSE)","v":-0.46600000000000108},{"$f":"VLOOKUP(VLOOKUP($F14,'Data BI Summary'!$A:$F,MATCH(I$1,'Data BI Summary'!$2:$2,0),FALSE),INDIRECT(\"'\"&$E14&\"'!\"&\"$A:$K\"),9,FALSE)","v":-1.2642430819316361E-2},{"$f":"VLOOKUP(VLOOKUP($F14,'Data BI Summary'!$A:$F,MATCH(J$1,'Data BI Summary'!$2:$2,0),FALSE),INDIRECT(\"'\"&$E14&\"'!\"&\"$A:$K\"),8,FALSE)","v":-0.75876593999998931},{"$f":"VLOOKUP(VLOOKUP($F14,'Data BI Summary'!$A:$F,MATCH(K$1,'Data BI Summary'!$2:$2,0),FALSE),INDIRECT(\"'\"&$E14&\"'!\"&\"$A:$K\"),9,FALSE)","v":-8.2584493787798089E-3},{"$f":"L6","v":"TOU (DRP applied)"}]
[null,"Typical",{"$f":"VLOOKUP(\"R2\",'Data Billing Quantities'!A:P,MATCH(B15&\" kWh\",'Data Billing Quantities'!$4:$4,0),FALSE)","v":750},null,"BI_R2_Typical (with DRP)","BI Template_Energy",{"$f":"VLOOKUP(VLOOKUP($F15,'Data BI Summary'!$A:$F,MATCH(G$1,'Data BI Summary'!$2:$2,0),FALSE),INDIRECT(\"'\"&$E15&\"'!\"&\"$A:$K\"),4,FALSE)","v":131.62844444999996},{"$f":"VLOOKUP(VLOOKUP($F15,'Data BI Summary'!$A:$F,MATCH(H$1,'Data BI Summary'!$2:$2,0),FALSE),INDIRECT(\"'\"&$E15&\"'!\"&\"$A:$K\"),8,FALSE)","v":-0.59000000000000341},{"$f":"VLOOKUP(VLOOKUP($F15,'Data BI Summary'!$A:$F,MATCH(I$1,'Data BI Summary'!$2:$2,0),FALSE),INDIRECT(\"'\"&$E15&\"'!\"&\"$A:$K\"),9,FALSE)","v":-1.6006511123168841E-2},{"$f":"VLOOKUP(VLOOKUP($F15,'Data BI Summary'!$A:$F,MATCH(J$1,'Data BI Summary'!$2:$2,0),FALSE),INDIRECT(\"'\"&$E15&\"'!\"&\"$A:$K\"),8,FALSE)","v":-1.1010876249999626},{"$f":"VLOOKUP(VLOOKUP($F15,'Data BI Summary'!$A:$F,MATCH(K$1,'Data BI Summary'!$2:$2,0),FALSE),INDIRECT(\"'\"&$E15&\"'!\"&\"$A:$K\"),9,FALSE)","v":-8.36511917770341E-3}]
[null,"Average",{"$f":"VLOOKUP(\"R2\",'Data Billing Quantities'!A:P,MATCH(B16&\" kWh\",'Data Billing Quantities'!$4:$4,0),FALSE)","v":978},null,"BI_R2_Avg (with DRP)","BI Template_Energy",{"$f":"VLOOKUP(VLOOKUP($F16,'Data BI Summary'!$A:$F,MATCH(G$1,'Data BI Summary'!$2:$2,0),FALSE),INDIRECT(\"'\"&$E16&\"'!\"&\"$A:$K\"),4,FALSE)","v":160.86460004279999},{"$f":"VLOOKUP(VLOOKUP($F16,'Data BI Summary'!$A:$F,MATCH(H$1,'Data BI Summary'!$2:$2,0),FALSE),INDIRECT(\"'\"&$E16&\"'!\"&\"$A:$K\"),8,FALSE)","v":-0.68120000000000402},{"$f":"VLOOKUP(VLOOKUP($F16,'Data BI Summary'!$A:$F,MATCH(I$1,'Data BI Summary'!$2:$2,0),FALSE),INDIRECT(\"'\"&$E16&\"'!\"&\"$A:$K\"),9,FALSE)","v":-1.8480737927292566E-2},{"$f":"VLOOKUP(VLOOKUP($F16,'Data BI Summary'!$A:$F,MATCH(J$1,'Data BI Summary'!$2:$2,0),FALSE),INDIRECT(\"'\"&$E16&\"'!\"&\"$A:$K\"),8,FALSE)","v":-1.3528597030000356},{"$f":"VLOOKUP(VLOOKUP($F16,'Data BI Summary'!$A:$F,MATCH(K$1,'Data BI Summary'!$2:$2,0),FALSE),INDIRECT(\"'\"&$E16&\"'!\"&\"$A:$K\"),9,FALSE)","v":-8.4099279931078106E-3}]
[null,"High",{"$f":"VLOOKUP(\"R2\",'Data Billing Quantities'!A:P,MATCH(B17&\" kWh\",'Data Billing Quantities'!$4:$4,0),FALSE)","v":2110},null,"BI_R2_High (with DRP)","BI Template_Energy",{"$f":"VLOOKUP(VLOOKUP($F17,'Data BI Summary'!$A:$F,MATCH(G$1,'Data BI Summary'!$2:$2,0),FALSE),INDIRECT(\"'\"&$E17&\"'!\"&\"$A:$K\"),4,FALSE)","v":306.01954798600002},{"$f":"VLOOKUP(VLOOKUP($F17,'Data BI Summary'!$A:$F,MATCH(H$1,'Data BI Summary'!$2:$2,0),FALSE),INDIRECT(\"'\"&$E17&\"'!\"&\"$A:$K\"),8,FALSE)","v":-1.1339999999999861},{"$f":"VLOOKUP(VLOOKUP($F17,'Data BI Summary'!$A:$F,MATCH(I$1,'Data BI Summary'!$2:$2,0),FALSE),INDIRECT(\"'\"&$E17&\"'!\"&\"$A:$K\"),9,FALSE)","v":-3.076505697232735E-2},{"$f":"VLOOKUP(VLOOKUP($F17,'Data BI Summary'!$A:$F,MATCH(J$1,'Data BI Summary'!$2:$2,0),FALSE),INDIRECT(\"'\"&$E17&\"'!\"&\"$A:$K\"),8,FALSE)","v":-2.6028859850000003},{"$f":"VLOOKUP(VLOOKUP($F17,'Data BI Summary'!$A:$F,MATCH(K$1,'Data BI Summary'!$2:$2,0),FALSE),INDIRECT(\"'\"&$E17&\"'!\"&\"$A:$K\"),9,FALSE)","v":-8.5056199910440982E-3}]
["R2 (without DRP)","Low",{"$f":"VLOOKUP(\"R2\",'Data Billing Quantities'!A:P,MATCH(B18&\" kWh\",'Data Billing Quantities'!$4:$4,0),FALSE)","v":440},null,"BI_R2_Low (without DRP)","BI Template_Energy",{"$f":"VLOOKUP(VLOOKUP($F18,'Data BI Summary'!$A:$F,MATCH(G$1,'Data BI Summary'!$2:$2,0),FALSE),INDIRECT(\"'\"&$E18&\"'!\"&\"$A:$K\"),4,FALSE)","v":130.793527144},{"$f":"VLOOKUP(VLOOKUP($F18,'Data BI Summary'!$A:$F,MATCH(H$1,'Data BI Summary'!$2:$2,0),FALSE),INDIRECT(\"'\"&$E18&\"'!\"&\"$A:$K\"),8,FALSE)","v":-15.037999999999997},{"$f":"VLOOKUP(VLOOKUP($F18,'Data BI Summary'!$A:$F,MATCH(I$1,'Data BI Summary'!$2:$2,0),FALSE),INDIRECT(\"'\"&$E18&\"'!\"&\"$A:$K\"),9,FALSE)","v":-0.19226245269510073},{"$f":"VLOOKUP(VLOOKUP($F18,'Data BI Summary'!$A:$F,MATCH(J$1,'Data BI Summary'!$2:$2,0),FALSE),INDIRECT(\"'\"&$E18&\"'!\"&\"$A:$K\"),8,FALSE)","v":-14.471017939999996},{"$f":"VLOOKUP(VLOOKUP($F18,'Data BI Summary'!$A:$F,MATCH(K$1,'Data BI Summary'!$2:$2,0),FALSE),INDIRECT(\"'\"&$E18&\"'!\"&\"$A:$K\"),9,FALSE)","v":-0.1106401689440473},{"$f":"L10","v":"TOU"}]
[null,"Typical",{"$f":"VLOOKUP(\"R2\",'Data Billing Quantities'!A:P,MATCH(B19&\" kWh\",'Data Billing Quantities'!$4:$4,0),FALSE)","v":750},null,"BI_R2_Typical (without DRP)","BI Template_Energy",{"$f":"VLOOKUP(VLOOKUP($F19,'Data BI Summary'!$A:$F,MATCH(G$1,'Data BI Summary'!$2:$2,0),FALSE),INDIRECT(\"'\"&$E19&\"'!\"&\"$A:$K\"),4,FALSE)","v":175.18262944999998},{"$f":"VLOOKUP(VLOOKUP($F19,'Data BI Summary'!$A:$F,MATCH(H$1,'Data BI Summary'!$2:$2,0),FALSE),INDIRECT(\"'\"&$E19&\"'!\"&\"$A:$K\"),8,FALSE)","v":-17.579999999999998},{"$f":"VLOOKUP(VLOOKUP($F19,'Data BI Summary'!$A:$F,MATCH(I$1,'Data BI Summary'!$2:$2,0),FALSE),INDIRECT(\"'\"&$E19&\"'!\"&\"$A:$K\"),9,FALSE)","v":-0.21143784953996031},{"$f":"VLOOKUP(VLOOKUP($F19,'Data BI Summary'!$A:$F,MATCH(J$1,'Data BI Summary'!$2:$2,0),FALSE),INDIRECT(\"'\"&$E19&\"'!\"&\"$A:$K\"),8,FALSE)","v":-17.088677624999974},{"$f":"VLOOKUP(VLOOKUP($F19,'Data BI Summary'!$A:$F,MATCH(K$1,'Data BI Summary'!$2:$2,0),FALSE),INDIRECT(\"'\"&$E19&\"'!\"&\"$A:$K\"),9,FALSE)","v":-9.7547785865820483E-2}]
[null,"Average",{"$f":"VLOOKUP(\"R2\",'Data Billing Quantities'!A:P,MATCH(B20&\" kWh\",'Data Billing Quantities'!$4:$4,0),FALSE)","v":978},null,"BI_R2_Avg (without DRP)","BI Template_Energy",{"$f":"VLOOKUP(VLOOKUP($F20,'Data BI Summary'!$A:$F,MATCH(G$1,'Data BI Summary'!$2:$2,0),FALSE),INDIRECT(\"'\"&$E20&\"'!\"&\"$A:$K\"),4,FALSE)","v":207.83009824279998},{"$f":"VLOOKUP(VLOOKUP($F20,'Data BI Summary'!$A:$F,MATCH(H$1,'Data BI Summary'!$2:$2,0),FALSE),INDIRECT(\"'\"&$E20&\"'!\"&\"$A:$K\"),8,FALSE)","v":-19.449600000000004},{"$f":"VLOOKUP(VLOOKUP($F20,'Data BI Summary'!$A:$F,MATCH(I$1,'Data BI Summary'!$2:$2,0),FALSE),INDIRECT(\"'\"&$E20&\"'!\"&\"$A:$K\"),9,FALSE)","v":-0.22415068767848872},{"$f":"VLOOKUP(VLOOKUP($F20,'Data BI Summary'!$A:$F,MATCH(J$1,'Data BI Summary'!$2:$2,0),FALSE),INDIRECT(\"'\"&$E20&\"'!\"&\"$A:$K\"),8,FALSE)","v":-19.013924102999994},{"$f":"VLOOKUP(VLOOKUP($F20,'Data BI Summary'!$A:$F,MATCH(K$1,'Data BI Summary'!$2:$2,0),FALSE),INDIRECT(\"'\"&$E20&\"'!\"&\"$A:$K\"),9,FALSE)","v":-9.1487827142278266E-2}]
[null,"High",{"$f":"VLOOKUP(\"R2\",'Data Billing Quantities'!A:P,MATCH(B21&\" kWh\",'Data Billing Quantities'!$4:$4,0),FALSE)","v":2110},null,"BI_R2_High (without DRP)","BI Template_Energy",{"$f":"VLOOKUP(VLOOKUP($F21,'Data BI Summary'!$A:$F,MATCH(G$1,'Data BI Summary'!$2:$2,0),FALSE),INDIRECT(\"'\"&$E21&\"'!\"&\"$A:$K\"),4,FALSE)","v":369.92191698600004},{"$f":"VLOOKUP(VLOOKUP($F21,'Data BI Summary'!$A:$F,MATCH(H$1,'Data BI Summary'!$2:$2,0),FALSE),INDIRECT(\"'\"&$E21&\"'!\"&\"$A:$K\"),8,FALSE)","v":-28.731999999999999},{"$f":"VLOOKUP(VLOOKUP($F21,'Data BI Summary'!$A:$F,MATCH(I$1,'Data BI Summary'!$2:$2,0),FALSE),INDIRECT(\"'\"&$E21&\"'!\"&\"$A:$K\"),9,FALSE)","v":-0.2742414263761227},{"$f":"VLOOKUP(VLOOKUP($F21,'Data BI Summary'!$A:$F,MATCH(J$1,'Data BI Summary'!$2:$2,0),FALSE),INDIRECT(\"'\"&$E21&\"'!\"&\"$A:$K\"),8,FALSE)","v":-28.572603985000057},{"$f":"VLOOKUP(VLOOKUP($F21,'Data BI Summary'!$A:$F,MATCH(K$1,'Data BI Summary'!$2:$2,0),FALSE),INDIRECT(\"'\"&$E21&\"'!\"&\"$A:$K\"),9,FALSE)","v":-7.7239554276210695E-2}]
["Seasonal-UR","Low",{"$f":"VLOOKUP(\"Seasonal\",'Data Billing Quantities'!A:P,MATCH(B22&\" kWh\",'Data Billing Quantities'!$4:$4,0),FALSE)","v":40},null,"BI_Seas_UR_Low","BI Template_Seasonal",{"$f":"VLOOKUP(VLOOKUP($F22,'Data BI Summary'!$A:$F,MATCH(G$1,'Data BI Summary'!$2:$2,0),FALSE),INDIRECT(\"'\"&$E22&\"'!\"&\"$A:$K\"),4,FALSE)","v":63.104080307199986},{"$f":"VLOOKUP(VLOOKUP($F22,'Data BI Summary'!$A:$F,MATCH(H$1,'Data BI Summary'!$2:$2,0),FALSE),INDIRECT(\"'\"&$E22&\"'!\"&\"$A:$K\"),8,FALSE)","v":-24.307999999999993},{"$f":"VLOOKUP(VLOOKUP($F22,'Data BI Summary'!$A:$F,MATCH(I$1,'Data BI Summary'!$2:$2,0),FALSE),INDIRECT(\"'\"&$E22&\"'!\"&\"$A:$K\"),9,FALSE)","v":-0.39919858109439654},{"$f":"VLOOKUP(VLOOKUP($F22,'Data BI Summary'!$A:$F,MATCH(J$1,'Data BI Summary'!$2:$2,0),FALSE),INDIRECT(\"'\"&$E22&\"'!\"&\"$A:$K\"),8,FALSE)","v":-22.936914145599978},{"$f":"VLOOKUP(VLOOKUP($F22,'Data BI Summary'!$A:$F,MATCH(K$1,'Data BI Summary'!$2:$2,0),FALSE),INDIRECT(\"'\"&$E22&\"'!\"&\"$A:$K\"),9,FALSE)","v":-0.36347751260995631},"TOU"]
[null,"Average",{"$f":"VLOOKUP(\"Seasonal\",'Data Billing Quantities'!A:P,MATCH(B23&\" kWh\",'Data Billing Quantities'!$4:$4,0),FALSE)","v":369},null,"BI_Seas_UR_Avg","BI Template_Seasonal",{"$f":"VLOOKUP(VLOOKUP($F23,'Data BI Summary'!$A:$F,MATCH(G$1,'Data BI Summary'!$2:$2,0),FALSE),INDIRECT(\"'\"&$E23&\"'!\"&\"$A:$K\"),4,FALSE)","v":114.03657283391999},{"$f":"VLOOKUP(VLOOKUP($F23,'Data BI Summary'!$A:$F,MATCH(H$1,'Data BI Summary'!$2:$2,0),FALSE),INDIRECT(\"'\"&$E23&\"'!\"&\"$A:$K\"),8,FALSE)","v":-34.572799999999994},{"$f":"VLOOKUP(VLOOKUP($F23,'Data BI Summary'!$A:$F,MATCH(I$1,'Data BI Summary'!$2:$2,0),FALSE),INDIRECT(\"'\"&$E23&\"'!\"&\"$A:$K\"),9,FALSE)","v":-0.48676807668264216},{"$f":"VLOOKUP(VLOOKUP($F23,'Data BI Summary'!$A:$F,MATCH(J$1,'Data BI Summary'!$2:$2,0),FALSE),INDIRECT(\"'\"&$E23&\"'!\"&\"$A:$K\"),8,FALSE)","v":-33.114974493159977},{"$f":"VLOOKUP(VLOOKUP($F23,'Data BI Summary'!$A:$F,MATCH(K$1,'Data BI Summary'!$2:$2,0),FALSE),INDIRECT(\"'\"&$E23&\"'!\"&\"$A:$K\"),9,FALSE)","v":-0.29038907141998904}]
[null,"High",{"$f":"VLOOKUP(\"Seasonal\",'Data Billing Quantities'!A:P,MATCH(B24&\" kWh\",'Data Billing Quantities'!$4:$4,0),FALSE)","v":1040},null,"BI_Seas_UR_High","BI Template_Seasonal",{"$f":"VLOOKUP(VLOOKUP($F24,'Data BI Summary'!$A:$F,MATCH(G$1,'Data BI Summary'!$2:$2,0),FALSE),INDIRECT(\"'\"&$E24&\"'!\"&\"$A:$K\"),4,FALSE)","v":217.91408798719999},{"$f":"VLOOKUP(VLOOKUP($F24,'Data BI Summary'!$A:$F,MATCH(H$1,'Data BI Summary'!$2:$2,0),FALSE),INDIRECT(\"'\"&$E24&\"'!\"&\"$A:$K\"),8,FALSE)","v":-55.508000000000003},{"$f":"VLOOKUP(VLOOKUP($F24,'Data BI Summary'!$A:$F,MATCH(I$1,'Data BI Summary'!$2:$2,0),FALSE),INDIRECT(\"'\"&$E24&\"'!\"&\"$A:$K\"),9,FALSE)","v":-0.60537451467957948},{"$f":"VLOOKUP(VLOOKUP($F24,'Data BI Summary'!$A:$F,MATCH(J$1,'Data BI Summary'!$2:$2,0),FALSE),INDIRECT(\"'\"&$E24&\"'!\"&\"$A:$K\"),8,FALSE)","v":-53.873267785599978},{"$f":"VLOOKUP(VLOOKUP($F24,'Data BI Summary'!$A:$F,MATCH(K$1,'Data BI Summary'!$2:$2,0),FALSE),INDIRECT(\"'\"&$E24&\"'!\"&\"$A:$K\"),9,FALSE)","v":-0.24722250994972123}]
["Seasonal-R1","Low",{"$f":"VLOOKUP(\"Seasonal\",'Data Billing Quantities'!A:P,MATCH(B25&\" kWh\",'Data Billing Quantities'!$4:$4,0),FALSE)","v":40},null,"BI_Seas_R1_Low","BI Template_Seasonal",{"$f":"VLOOKUP(VLOOKUP($F25,'Data BI Summary'!$A:$F,MATCH(G$1,'Data BI Summary'!$2:$2,0),FALSE),INDIRECT(\"'\"&$E25&\"'!\"&\"$A:$K\"),4,FALSE)","v":63.104080307199986},{"$f":"VLOOKUP(VLOOKUP($F25,'Data BI Summary'!$A:$F,MATCH(H$1,'Data BI Summary'!$2:$2,0),FALSE),INDIRECT(\"'\"&$E25&\"'!\"&\"$A:$K\"),8,FALSE)","v":-2.1799999999999997},{"$f":"VLOOKUP(VLOOKUP($F25,'Data BI Summary'!$A:$F,MATCH(I$1,'Data BI Summary'!$2:$2,0),FALSE),INDIRECT(\"'\"&$E25&\"'!\"&\"$A:$K\"),9,FALSE)","v":-3.5801090455232214E-2},{"$f":"VLOOKUP(VLOOKUP($F25,'Data BI Summary'!$A:$F,MATCH(J$1,'Data BI Summary'!$2:$2,0),FALSE),INDIRECT(\"'\"&$E25&\"'!\"&\"$A:$K\"),8,FALSE)","v":-2.0737291263999893},{"$f":"VLOOKUP(VLOOKUP($F25,'Data BI Summary'!$A:$F,MATCH(K$1,'Data BI Summary'!$2:$2,0),FALSE),INDIRECT(\"'\"&$E25&\"'!\"&\"$A:$K\"),9,FALSE)","v":-3.2862044994630607E-2},"TOU"]
[null,"Average",{"$f":"VLOOKUP(\"Seasonal\",'Data Billing Quantities'!A:P,MATCH(B26&\" kWh\",'Data Billing Quantities'!$4:$4,0),FALSE)","v":369},null,"BI_Seas_R1_Avg","BI Template_Seasonal",{"$f":"VLOOKUP(VLOOKUP($F26,'Data BI Summary'!$A:$F,MATCH(G$1,'Data BI Summary'!$2:$2,0),FALSE),INDIRECT(\"'\"&$E26&\"'!\"&\"$A:$K\"),4,FALSE)","v":114.03657283391999},{"$f":"VLOOKUP(VLOOKUP($F26,'Data BI Summary'!$A:$F,MATCH(H$1,'Data BI Summary'!$2:$2,0),FALSE),INDIRECT(\"'\"&$E26&\"'!\"&\"$A:$K\"),8,FALSE)","v":-10.734000000000002},{"$f":"VLOOKUP(VLOOKUP($F26,'Data BI Summary'!$A:$F,MATCH(I$1,'Data BI Summary'!$2:$2,0),FALSE),INDIRECT(\"'\"&$E26&\"'!\"&\"$A:$K\"),9,FALSE)","v":-0.15112945827678068},{"$f":"VLOOKUP(VLOOKUP($F26,'Data BI Summary'!$A:$F,MATCH(J$1,'Data BI Summary'!$2:$2,0),FALSE),INDIRECT(\"'\"&$E26&\"'!\"&\"$A:$K\"),8,FALSE)","v":-10.306864691039991},{"$f":"VLOOKUP(VLOOKUP($F26,'Data BI Summary'!$A:$F,MATCH(K$1,'Data BI Summary'!$2:$2,0),FALSE),INDIRECT(\"'\"&$E26&\"'!\"&\"$A:$K\"),9,FALSE)","v":-9.0382097908630152E-2}]
[null,"High",{"$f":"VLOOKUP(\"Seasonal\",'Data Billing Quantities'!A:P,MATCH(B27&\" kWh\",'Data Billing Quantities'!$4:$4,0),FALSE)","v":1040},null,"BI_Seas_R1_High","BI Template_Seasonal",{"$f":"VLOOKUP(VLOOKUP($F27,'Data BI Summary'!$A:$F,MATCH(G$1,'Data BI Summary'!$2:$2,0),FALSE),INDIRECT(\"'\"&$E27&\"'!\"&\"$A:$K\"),4,FALSE)","v":217.91408798719999},{"$f":"VLOOKUP(VLOOKUP($F27,'Data BI Summary'!$A:$F,MATCH(H$1,'Data BI Summary'!$2:$2,0),FALSE),INDIRECT(\"'\"&$E27&\"'!\"&\"$A:$K\"),8,FALSE)","v":-28.180000000000007},{"$f":"VLOOKUP(VLOOKUP($F27,'Data BI Summary'!$A:$F,MATCH(I$1,'Data BI Summary'!$2:$2,0),FALSE),INDIRECT(\"'\"&$E27&\"'!\"&\"$A:$K\"),9,FALSE)","v":-0.30733324608471846},{"$f":"VLOOKUP(VLOOKUP($F27,'Data BI Summary'!$A:$F,MATCH(J$1,'Data BI Summary'!$2:$2,0),FALSE),INDIRECT(\"'\"&$E27&\"'!\"&\"$A:$K\"),8,FALSE)","v":-27.098457286399992},{"$f":"VLOOKUP(VLOOKUP($F27,'Data BI Summary'!$A:$F,MATCH(K$1,'Data BI Summary'!$2:$2,0),FALSE),INDIRECT(\"'\"&$E27&\"'!\"&\"$A:$K\"),9,FALSE)","v":-0.12435385677309548}]
["Seasonal-R2","Low",{"$f":"VLOOKUP(\"Seasonal\",'Data Billing Quantities'!A:P,MATCH(B28&\" kWh\",'Data Billing Quantities'!$4:$4,0),FALSE)","v":40},null,"BI_Seas_R2_Low","BI Template_Seasonal",{"$f":"VLOOKUP(VLOOKUP($F28,'Data BI Summary'!$A:$F,MATCH(G$1,'Data BI Summary'!$2:$2,0),FALSE),INDIRECT(\"'\"&$E28&\"'!\"&\"$A:$K\"),4,FALSE)","v":63.104080307199986},{"$f":"VLOOKUP(VLOOKUP($F28,'Data BI Summary'!$A:$F,MATCH(H$1,'Data BI Summary'!$2:$2,0),FALSE),INDIRECT(\"'\"&$E28&\"'!\"&\"$A:$K\"),8,FALSE)","v":59.705999999999989},{"$f":"VLOOKUP(VLOOKUP($F28,'Data BI Summary'!$A:$F,MATCH(I$1,'Data BI Summary'!$2:$2,0),FALSE),INDIRECT(\"'\"&$E28&\"'!\"&\"$A:$K\"),9,FALSE)","v":0.98052289299086892},{"$f":"VLOOKUP(VLOOKUP($F28,'Data BI Summary'!$A:$F,MATCH(J$1,'Data BI Summary'!$2:$2,0),FALSE),INDIRECT(\"'\"&$E28&\"'!\"&\"$A:$K\"),8,FALSE)","v":56.250293256799999},{"$f":"VLOOKUP(VLOOKUP($F28,'Data BI Summary'!$A:$F,MATCH(K$1,'Data BI Summary'!$2:$2,0),FALSE),INDIRECT(\"'\"&$E28&\"'!\"&\"$A:$K\"),9,FALSE)","v":0.89138916188882333},"TOU"]
[null,"Average",{"$f":"VLOOKUP(\"Seasonal\",'Data Billing Quantities'!A:P,MATCH(B29&\" kWh\",'Data Billing Quantities'!$4:$4,0),FALSE)","v":369},null,"BI_Seas_R2_Avg","BI Template_Seasonal",{"$f":"VLOOKUP(VLOOKUP($F29,'Data BI Summary'!$A:$F,MATCH(G$1,'Data BI Summary'!$2:$2,0),FALSE),INDIRECT(\"'\"&$E29&\"'!\"&\"$A:$K\"),4,FALSE)","v":114.03657283391999},{"$f":"VLOOKUP(VLOOKUP($F29,'Data BI Summary'!$A:$F,MATCH(H$1,'Data BI Summary'!$2:$2,0),FALSE),INDIRECT(\"'\"&$E29&\"'!\"&\"$A:$K\"),8,FALSE)","v":52.106099999999998},{"$f":"VLOOKUP(VLOOKUP($F29,'Data BI Summary'!$A:$F,MATCH(I$1,'Data BI Summary'!$2:$2,0),FALSE),INDIRECT(\"'\"&$E29&\"'!\"&\"$A:$K\"),9,FALSE)","v":0.73362834599550586},{"$f":"VLOOKUP(VLOOKUP($F29,'Data BI Summary'!$A:$F,MATCH(J$1,'Data BI Summary'!$2:$2,0),FALSE),INDIRECT(\"'\"&$E29&\"'!\"&\"$A:$K\"),8,FALSE)","v":49.64942854397998},{"$f":"VLOOKUP(VLOOKUP($F29,'Data BI Summary'!$A:$F,MATCH(K$1,'Data BI Summary'!$2:$2,0),FALSE),INDIRECT(\"'\"&$E29&\"'!\"&\"$A:$K\"),9,FALSE)","v":0.43538162635147026}]
[null,"High",{"$f":"VLOOKUP(\"Seasonal\",'Data Billing Quantities'!A:P,MATCH(B30&\" kWh\",'Data Billing Quantities'!$4:$4,0),FALSE)","v":1040},null,"BI_Seas_R2_High","BI Template_Seasonal",{"$f":"VLOOKUP(VLOOKUP($F30,'Data BI Summary'!$A:$F,MATCH(G$1,'Data BI Summary'!$2:$2,0),FALSE),INDIRECT(\"'\"&$E30&\"'!\"&\"$A:$K\"),4,FALSE)","v":217.91408798719999},{"$f":"VLOOKUP(VLOOKUP($F30,'Data BI Summary'!$A:$F,MATCH(H$1,'Data BI Summary'!$2:$2,0),FALSE),INDIRECT(\"'\"&$E30&\"'!\"&\"$A:$K\"),8,FALSE)","v":36.605999999999995},{"$f":"VLOOKUP(VLOOKUP($F30,'Data BI Summary'!$A:$F,MATCH(I$1,'Data BI Summary'!$2:$2,0),FALSE),INDIRECT(\"'\"&$E30&\"'!\"&\"$A:$K\"),9,FALSE)","v":0.399227849757885},{"$f":"VLOOKUP(VLOOKUP($F30,'Data BI Summary'!$A:$F,MATCH(J$1,'Data BI Summary'!$2:$2,0),FALSE),INDIRECT(\"'\"&$E30&\"'!\"&\"$A:$K\"),8,FALSE)","v":36.18687467679996},{"$f":"VLOOKUP(VLOOKUP($F30,'Data BI Summary'!$A:$F,MATCH(K$1,'Data BI Summary'!$2:$2,0),FALSE),INDIRECT(\"'\"&$E30&\"'!\"&\"$A:$K\"),9,FALSE)","v":0.16606028096230993}]
["GSe","Low",{"$f":"VLOOKUP(A$31,'Data Billing Quantities'!A:P,MATCH(B31&\" kWh\",'Data Billing Quantities'!$4:$4,0),FALSE)","v":60},null,"BI_GSe_Low","BI Template_Energy",{"$f":"VLOOKUP(VLOOKUP($F31,'Data BI Summary'!$A:$F,MATCH(G$1,'Data BI Summary'!$2:$2,0),FALSE),INDIRECT(\"'\"&$E31&\"'!\"&\"$A:$K\"),4,FALSE)","v":45.009884899199989},{"$f":"VLOOKUP(VLOOKUP($F31,'Data BI Summary'!$A:$F,MATCH(H$1,'Data BI Summary'!$2:$2,0),FALSE),INDIRECT(\"'\"&$E31&\"'!\"&\"$A:$K\"),8,FALSE)","v":-3.0459999999999994},{"$f":"VLOOKUP(VLOOKUP($F31,'Data BI Summary'!$A:$F,MATCH(I$1,'Data BI Summary'!$2:$2,0),FALSE),INDIRECT(\"'\"&$E31&\"'!\"&\"$A:$K\"),9,FALSE)","v":-7.7942681678607989E-2},{"$f":"VLOOKUP(VLOOKUP($F31,'Data BI Summary'!$A:$F,MATCH(J$1,'Data BI Summary'!$2:$2,0),FALSE),INDIRECT(\"'\"&$E31&\"'!\"&\"$A:$K\"),8,FALSE)","v":-2.8600979839999994},{"$f":"VLOOKUP(VLOOKUP($F31,'Data BI Summary'!$A:$F,MATCH(K$1,'Data BI Summary'!$2:$2,0),FALSE),INDIRECT(\"'\"&$E31&\"'!\"&\"$A:$K\"),9,FALSE)","v":-6.3543774670946448E-2},"TOU"]
[null,"Typical",{"$f":"VLOOKUP(A$31,'Data Billing Quantities'!A:P,MATCH(B32&\" kWh\",'Data Billing Quantities'!$4:$4,0),FALSE)","v":2000},null,"BI_GSe_Typical","BI Template_Energy",{"$f":"VLOOKUP(VLOOKUP($F32,'Data BI Summary'!$A:$F,MATCH(G$1,'Data BI Summary'!$2:$2,0),FALSE),INDIRECT(\"'\"&$E32&\"'!\"&\"$A:$K\"),4,FALSE)","v":413.22042664000003},{"$f":"VLOOKUP(VLOOKUP($F32,'Data BI Summary'!$A:$F,MATCH(H$1,'Data BI Summary'!$2:$2,0),FALSE),INDIRECT(\"'\"&$E32&\"'!\"&\"$A:$K\"),8,FALSE)","v":-9.0600000000000307},{"$f":"VLOOKUP(VLOOKUP($F32,'Data BI Summary'!$A:$F,MATCH(I$1,'Data BI Summary'!$2:$2,0),FALSE),INDIRECT(\"'\"&$E32&\"'!\"&\"$A:$K\"),9,FALSE)","v":-5.2095911678454551E-2},{"$f":"VLOOKUP(VLOOKUP($F32,'Data BI Summary'!$A:$F,MATCH(J$1,'Data BI Summary'!$2:$2,0),FALSE),INDIRECT(\"'\"&$E32&\"'!\"&\"$A:$K\"),8,FALSE)","v":-8.319192800000053},{"$f":"VLOOKUP(VLOOKUP($F32,'Data BI Summary'!$A:$F,MATCH(K$1,'Data BI Summary'!$2:$2,0),FALSE),INDIRECT(\"'\"&$E32&\"'!\"&\"$A:$K\"),9,FALSE)","v":-2.0132578797339516E-2}]
[null,"Average",{"$f":"VLOOKUP(A$31,'Data Billing Quantities'!A:P,MATCH(B33&\" kWh\",'Data Billing Quantities'!$4:$4,0),FALSE)","v":1887},null,"BI_GSe_Avg","BI Template_Energy",{"$f":"VLOOKUP(VLOOKUP($F33,'Data BI Summary'!$A:$F,MATCH(G$1,'Data BI Summary'!$2:$2,0),FALSE),INDIRECT(\"'\"&$E33&\"'!\"&\"$A:$K\"),4,FALSE)","v":391.77311157984002},{"$f":"VLOOKUP(VLOOKUP($F33,'Data BI Summary'!$A:$F,MATCH(H$1,'Data BI Summary'!$2:$2,0),FALSE),INDIRECT(\"'\"&$E33&\"'!\"&\"$A:$K\"),8,FALSE)","v":-8.709699999999998},{"$f":"VLOOKUP(VLOOKUP($F33,'Data BI Summary'!$A:$F,MATCH(I$1,'Data BI Summary'!$2:$2,0),FALSE),INDIRECT(\"'\"&$E33&\"'!\"&\"$A:$K\"),9,FALSE)","v":-5.2450220256358517E-2},{"$f":"VLOOKUP(VLOOKUP($F33,'Data BI Summary'!$A:$F,MATCH(J$1,'Data BI Summary'!$2:$2,0),FALSE),INDIRECT(\"'\"&$E33&\"'!\"&\"$A:$K\"),8,FALSE)","v":-8.0012145967999686},{"$f":"VLOOKUP(VLOOKUP($F33,'Data BI Summary'!$A:$F,MATCH(K$1,'Data BI Summary'!$2:$2,0),FALSE),INDIRECT(\"'\"&$E33&\"'!\"&\"$A:$K\"),9,FALSE)","v":-2.0423082545238405E-2}]
[null,"High",{"$f":"VLOOKUP(A$31,'Data Billing Quantities'!A:P,MATCH(B34&\" kWh\",'Data Billing Quantities'!$4:$4,0),FALSE)","v":5570},null,"BI_GSe_High","BI Template_Energy",{"$f":"VLOOKUP(VLOOKUP($F34,'Data BI Summary'!$A:$F,MATCH(G$1,'Data BI Summary'!$2:$2,0),FALSE),INDIRECT(\"'\"&$E34&\"'!\"&\"$A:$K\"),4,FALSE)","v":1090.8037431424002},{"$f":"VLOOKUP(VLOOKUP($F34,'Data BI Summary'!$A:$F,MATCH(H$1,'Data BI Summary'!$2:$2,0),FALSE),INDIRECT(\"'\"&$E34&\"'!\"&\"$A:$K\"),8,FALSE)","v":-20.12700000000001},{"$f":"VLOOKUP(VLOOKUP($F34,'Data BI Summary'!$A:$F,MATCH(I$1,'Data BI Summary'!$2:$2,0),FALSE),INDIRECT(\"'\"&$E34&\"'!\"&\"$A:$K\"),9,FALSE)","v":-4.7691487471121403E-2},{"$f":"VLOOKUP(VLOOKUP($F34,'Data BI Summary'!$A:$F,MATCH(J$1,'Data BI Summary'!$2:$2,0),FALSE),INDIRECT(\"'\"&$E34&\"'!\"&\"$A:$K\"),8,FALSE)","v":-18.365052848000005},{"$f":"VLOOKUP(VLOOKUP($F34,'Data BI Summary'!$A:$F,MATCH(K$1,'Data BI Summary'!$2:$2,0),FALSE),INDIRECT(\"'\"&$E34&\"'!\"&\"$A:$K\"),9,FALSE)","v":-1.6836257634296106E-2}]
["UGe","Low",{"$f":"VLOOKUP(A$35,'Data Billing Quantities'!A:P,MATCH(B35&\" kWh\",'Data Billing Quantities'!$4:$4,0),FALSE)","v":180},null,"BI_UGe_Low","BI Template_Energy",{"$f":"VLOOKUP(VLOOKUP($F35,'Data BI Summary'!$A:$F,MATCH(G$1,'Data BI Summary'!$2:$2,0),FALSE),INDIRECT(\"'\"&$E35&\"'!\"&\"$A:$K\"),4,FALSE)","v":54.181574767200004},{"$f":"VLOOKUP(VLOOKUP($F35,'Data BI Summary'!$A:$F,MATCH(H$1,'Data BI Summary'!$2:$2,0),FALSE),INDIRECT(\"'\"&$E35&\"'!\"&\"$A:$K\"),8,FALSE)","v":-2.8319999999999972},{"$f":"VLOOKUP(VLOOKUP($F35,'Data BI Summary'!$A:$F,MATCH(I$1,'Data BI Summary'!$2:$2,0),FALSE),INDIRECT(\"'\"&$E35&\"'!\"&\"$A:$K\"),9,FALSE)","v":-8.464343355849116E-2},{"$f":"VLOOKUP(VLOOKUP($F35,'Data BI Summary'!$A:$F,MATCH(J$1,'Data BI Summary'!$2:$2,0),FALSE),INDIRECT(\"'\"&$E35&\"'!\"&\"$A:$K\"),8,FALSE)","v":-2.6287663079999959},{"$f":"VLOOKUP(VLOOKUP($F35,'Data BI Summary'!$A:$F,MATCH(K$1,'Data BI Summary'!$2:$2,0),FALSE),INDIRECT(\"'\"&$E35&\"'!\"&\"$A:$K\"),9,FALSE)","v":-4.8517716941504932E-2},"TOU"]
[null,"Typical",{"$f":"VLOOKUP(A$35,'Data Billing Quantities'!A:P,MATCH(B36&\" kWh\",'Data Billing Quantities'!$4:$4,0),FALSE)","v":2000},null,"BI_UGe_Typical","BI Template_Energy",{"$f":"VLOOKUP(VLOOKUP($F36,'Data BI Summary'!$A:$F,MATCH(G$1,'Data BI Summary'!$2:$2,0),FALSE),INDIRECT(\"'\"&$E36&\"'!\"&\"$A:$K\"),4,FALSE)","v":332.56528408000003},{"$f":"VLOOKUP(VLOOKUP($F36,'Data BI Summary'!$A:$F,MATCH(H$1,'Data BI Summary'!$2:$2,0),FALSE),INDIRECT(\"'\"&$E36&\"'!\"&\"$A:$K\"),8,FALSE)","v":-5.3799999999999812},{"$f":"VLOOKUP(VLOOKUP($F36,'Data BI Summary'!$A:$F,MATCH(I$1,'Data BI Summary'!$2:$2,0),FALSE),INDIRECT(\"'\"&$E36&\"'!\"&\"$A:$K\"),9,FALSE)","v":-5.7417289220917628E-2},{"$f":"VLOOKUP(VLOOKUP($F36,'Data BI Summary'!$A:$F,MATCH(J$1,'Data BI Summary'!$2:$2,0),FALSE),INDIRECT(\"'\"&$E36&\"'!\"&\"$A:$K\"),8,FALSE)","v":-4.6609611999999743},{"$f":"VLOOKUP(VLOOKUP($F36,'Data BI Summary'!$A:$F,MATCH(K$1,'Data BI Summary'!$2:$2,0),FALSE),INDIRECT(\"'\"&$E36&\"'!\"&\"$A:$K\"),9,FALSE)","v":-1.4015176637856041E-2}]
[null,"Average",{"$f":"VLOOKUP(A$35,'Data Billing Quantities'!A:P,MATCH(B37&\" kWh\",'Data Billing Quantities'!$4:$4,0),FALSE)","v":2494},null,"BI_UGe_Avg","BI Template_Energy",{"$f":"VLOOKUP(VLOOKUP($F37,'Data BI Summary'!$A:$F,MATCH(G$1,'Data BI Summary'!$2:$2,0),FALSE),INDIRECT(\"'\"&$E37&\"'!\"&\"$A:$K\"),4,FALSE)","v":408.12657660776006},{"$f":"VLOOKUP(VLOOKUP($F37,'Data BI Summary'!$A:$F,MATCH(H$1,'Data BI Summary'!$2:$2,0),FALSE),INDIRECT(\"'\"&$E37&\"'!\"&\"$A:$K\"),8,FALSE)","v":-6.0715999999999894},{"$f":"VLOOKUP(VLOOKUP($F37,'Data BI Summary'!$A:$F,MATCH(I$1,'Data BI Summary'!$2:$2,0),FALSE),INDIRECT(\"'\"&$E37&\"'!\"&\"$A:$K\"),9,FALSE)","v":-5.5170583927146681E-2},{"$f":"VLOOKUP(VLOOKUP($F37,'Data BI Summary'!$A:$F,MATCH(J$1,'Data BI Summary'!$2:$2,0),FALSE),INDIRECT(\"'\"&$E37&\"'!\"&\"$A:$K\"),8,FALSE)","v":-5.2125569564000216},{"$f":"VLOOKUP(VLOOKUP($F37,'Data BI Summary'!$A:$F,MATCH(K$1,'Data BI Summary'!$2:$2,0),FALSE),INDIRECT(\"'\"&$E37&\"'!\"&\"$A:$K\"),9,FALSE)","v":-1.2771912576057688E-2}]
[null,"High",{"$f":"VLOOKUP(A$35,'Data Billing Quantities'!A:P,MATCH(B38&\" kWh\",'Data Billing Quantities'!$4:$4,0),FALSE)","v":6930},null,"BI_UGe_High","BI Template_Energy",{"$f":"VLOOKUP(VLOOKUP($F38,'Data BI Summary'!$A:$F,MATCH(G$1,'Data BI Summary'!$2:$2,0),FALSE),INDIRECT(\"'\"&$E38&\"'!\"&\"$A:$K\"),4,FALSE)","v":1086.6486285372},{"$f":"VLOOKUP(VLOOKUP($F38,'Data BI Summary'!$A:$F,MATCH(H$1,'Data BI Summary'!$2:$2,0),FALSE),INDIRECT(\"'\"&$E38&\"'!\"&\"$A:$K\"),8,FALSE)","v":-12.282000000000011},{"$f":"VLOOKUP(VLOOKUP($F38,'Data BI Summary'!$A:$F,MATCH(I$1,'Data BI Summary'!$2:$2,0),FALSE),INDIRECT(\"'\"&$E38&\"'!\"&\"$A:$K\"),9,FALSE)","v":-4.7811649661519101E-2},{"$f":"VLOOKUP(VLOOKUP($F38,'Data BI Summary'!$A:$F,MATCH(J$1,'Data BI Summary'!$2:$2,0),FALSE),INDIRECT(\"'\"&$E38&\"'!\"&\"$A:$K\"),8,FALSE)","v":-10.165752857999905},{"$f":"VLOOKUP(VLOOKUP($F38,'Data BI Summary'!$A:$F,MATCH(K$1,'Data BI Summary'!$2:$2,0),FALSE),INDIRECT(\"'\"&$E38&\"'!\"&\"$A:$K\"),9,FALSE)","v":-9.3551425833800651E-3}]
["GSd","Low",{"$f":"VLOOKUP(A$39,'Data Billing Quantities'!A:P,MATCH(B39&\" kWh\",'Data Billing Quantities'!$4:$4,0),FALSE)","v":9310},{"$f":"VLOOKUP(A$39,'Data Billing Quantities'!A:P,MATCH(B39&\" kW\",'Data Billing Quantities'!$4:$4,0),FALSE)","v":55},"BI_GSd_Low","BI Template_Demand",{"$f":"VLOOKUP(VLOOKUP($F39,'Data BI Summary'!$A:$F,MATCH(G$1,'Data BI Summary'!$2:$2,0),FALSE),INDIRECT(\"'\"&$E39&\"'!\"&\"$A:$K\"),4,FALSE)","v":3000.4343520699999},{"$f":"VLOOKUP(VLOOKUP($F39,'Data BI Summary'!$A:$F,MATCH(H$1,'Data BI Summary'!$2:$2,0),FALSE),INDIRECT(\"'\"&$E39&\"'!\"&\"$A:$K\"),8,FALSE)","v":-67.205500000000256},{"$f":"VLOOKUP(VLOOKUP($F39,'Data BI Summary'!$A:$F,MATCH(I$1,'Data BI Summary'!$2:$2,0),FALSE),INDIRECT(\"'\"&$E39&\"'!\"&\"$A:$K\"),9,FALSE)","v":-5.5394391035085817E-2},{"$f":"VLOOKUP(VLOOKUP($F39,'Data BI Summary'!$A:$F,MATCH(J$1,'Data BI Summary'!$2:$2,0),FALSE),INDIRECT(\"'\"&$E39&\"'!\"&\"$A:$K\"),8,FALSE)","v":-65.376715000000331},{"$f":"VLOOKUP(VLOOKUP($F39,'Data BI Summary'!$A:$F,MATCH(K$1,'Data BI Summary'!$2:$2,0),FALSE),INDIRECT(\"'\"&$E39&\"'!\"&\"$A:$K\"),9,FALSE)","v":-2.1789083622141884E-2},"WAHSP"]
[null,"Average",{"$f":"VLOOKUP(A$39,'Data Billing Quantities'!A:P,MATCH(B40&\" kWh\",'Data Billing Quantities'!$4:$4,0),FALSE)","v":34334},{"$f":"VLOOKUP(A$39,'Data Billing Quantities'!A:P,MATCH(B40&\" kW\",'Data Billing Quantities'!$4:$4,0),FALSE)","v":110},"BI_GSd_Avg","BI Template_Demand",{"$f":"VLOOKUP(VLOOKUP($F40,'Data BI Summary'!$A:$F,MATCH(G$1,'Data BI Summary'!$2:$2,0),FALSE),INDIRECT(\"'\"&$E40&\"'!\"&\"$A:$K\"),4,FALSE)","v":8183.9008859979986},{"$f":"VLOOKUP(VLOOKUP($F40,'Data BI Summary'!$A:$F,MATCH(H$1,'Data BI Summary'!$2:$2,0),FALSE),INDIRECT(\"'\"&$E40&\"'!\"&\"$A:$K\"),8,FALSE)","v":-132.72080000000051},{"$f":"VLOOKUP(VLOOKUP($F40,'Data BI Summary'!$A:$F,MATCH(I$1,'Data BI Summary'!$2:$2,0),FALSE),INDIRECT(\"'\"&$E40&\"'!\"&\"$A:$K\"),9,FALSE)","v":-5.7466907582841141E-2},{"$f":"VLOOKUP(VLOOKUP($F40,'Data BI Summary'!$A:$F,MATCH(J$1,'Data BI Summary'!$2:$2,0),FALSE),INDIRECT(\"'\"&$E40&\"'!\"&\"$A:$K\"),8,FALSE)","v":-128.8435040000013},{"$f":"VLOOKUP(VLOOKUP($F40,'Data BI Summary'!$A:$F,MATCH(K$1,'Data BI Summary'!$2:$2,0),FALSE),INDIRECT(\"'\"&$E40&\"'!\"&\"$A:$K\"),9,FALSE)","v":-1.5743531818725013E-2}]
[null,"High",{"$f":"VLOOKUP(A$39,'Data Billing Quantities'!A:P,MATCH(B41&\" kWh\",'Data Billing Quantities'!$4:$4,0),FALSE)","v":75790},{"$f":"VLOOKUP(A$39,'Data Billing Quantities'!A:P,MATCH(B41&\" kW\",'Data Billing Quantities'!$4:$4,0),FALSE)","v":250},"BI_GSd_High","BI Template_Demand",{"$f":"VLOOKUP(VLOOKUP($F41,'Data BI Summary'!$A:$F,MATCH(G$1,'Data BI Summary'!$2:$2,0),FALSE),INDIRECT(\"'\"&$E41&\"'!\"&\"$A:$K\"),4,FALSE)","v":18100.934437629996},{"$f":"VLOOKUP(VLOOKUP($F41,'Data BI Summary'!$A:$F,MATCH(H$1,'Data BI Summary'!$2:$2,0),FALSE),INDIRECT(\"'\"&$E41&\"'!\"&\"$A:$K\"),8,FALSE)","v":-283.91799999999967},{"$f":"VLOOKUP(VLOOKUP($F41,'Data BI Summary'!$A:$F,MATCH(I$1,'Data BI Summary'!$2:$2,0),FALSE),INDIRECT(\"'\"&$E41&\"'!\"&\"$A:$K\"),9,FALSE)","v":-5.5669159103898989E-2},{"$f":"VLOOKUP(VLOOKUP($F41,'Data BI Summary'!$A:$F,MATCH(J$1,'Data BI Summary'!$2:$2,0),FALSE),INDIRECT(\"'\"&$E41&\"'!\"&\"$A:$K\"),8,FALSE)","v":-272.80233999999837},{"$f":"VLOOKUP(VLOOKUP($F41,'Data BI Summary'!$A:$F,MATCH(K$1,'Data BI Summary'!$2:$2,0),FALSE),INDIRECT(\"'\"&$E41&\"'!\"&\"$A:$K\"),9,FALSE)","v":-1.5071174415883752E-2}]
["UGd","Low",{"$f":"VLOOKUP(A$42,'Data Billing Quantities'!A:P,MATCH(B42&\" kWh\",'Data Billing Quantities'!$4:$4,0),FALSE)","v":13900},{"$f":"VLOOKUP(A$42,'Data Billing Quantities'!A:P,MATCH(B42&\" kW\",'Data Billing Quantities'!$4:$4,0),FALSE)","v":55},"BI_UGd_Low","BI Template_Demand",{"$f":"VLOOKUP(VLOOKUP($F42,'Data BI Summary'!$A:$F,MATCH(G$1,'Data BI Summary'!$2:$2,0),FALSE),INDIRECT(\"'\"&$E42&\"'!\"&\"$A:$K\"),4,FALSE)","v":3191.074235},{"$f":"VLOOKUP(VLOOKUP($F42,'Data BI Summary'!$A:$F,MATCH(H$1,'Data BI Summary'!$2:$2,0),FALSE),INDIRECT(\"'\"&$E42&\"'!\"&\"$A:$K\"),8,FALSE)","v":-50.934499999999957},{"$f":"VLOOKUP(VLOOKUP($F42,'Data BI Summary'!$A:$F,MATCH(I$1,'Data BI Summary'!$2:$2,0),FALSE),INDIRECT(\"'\"&$E42&\"'!\"&\"$A:$K\"),9,FALSE)","v":-6.8917809952216372E-2},{"$f":"VLOOKUP(VLOOKUP($F42,'Data BI Summary'!$A:$F,MATCH(J$1,'Data BI Summary'!$2:$2,0),FALSE),INDIRECT(\"'\"&$E42&\"'!\"&\"$A:$K\"),8,FALSE)","v":-46.263329999999769},{"$f":"VLOOKUP(VLOOKUP($F42,'Data BI Summary'!$A:$F,MATCH(K$1,'Data BI Summary'!$2:$2,0),FALSE),INDIRECT(\"'\"&$E42&\"'!\"&\"$A:$K\"),9,FALSE)","v":-1.4497729163608683E-2},"WAHSP"]
[null,"Average",{"$f":"VLOOKUP(A$42,'Data Billing Quantities'!A:P,MATCH(B43&\" kWh\",'Data Billing Quantities'!$4:$4,0),FALSE)","v":42592},{"$f":"VLOOKUP(A$42,'Data Billing Quantities'!A:P,MATCH(B43&\" kW\",'Data Billing Quantities'!$4:$4,0),FALSE)","v":111},"BI_UGd_Avg","BI Template_Demand",{"$f":"VLOOKUP(VLOOKUP($F43,'Data BI Summary'!$A:$F,MATCH(G$1,'Data BI Summary'!$2:$2,0),FALSE),INDIRECT(\"'\"&$E43&\"'!\"&\"$A:$K\"),4,FALSE)","v":8436.0957271999996},{"$f":"VLOOKUP(VLOOKUP($F43,'Data BI Summary'!$A:$F,MATCH(H$1,'Data BI Summary'!$2:$2,0),FALSE),INDIRECT(\"'\"&$E43&\"'!\"&\"$A:$K\"),8,FALSE)","v":-100.24529999999982},{"$f":"VLOOKUP(VLOOKUP($F43,'Data BI Summary'!$A:$F,MATCH(I$1,'Data BI Summary'!$2:$2,0),FALSE),INDIRECT(\"'\"&$E43&\"'!\"&\"$A:$K\"),9,FALSE)","v":-7.2541524824149883E-2},{"$f":"VLOOKUP(VLOOKUP($F43,'Data BI Summary'!$A:$F,MATCH(J$1,'Data BI Summary'!$2:$2,0),FALSE),INDIRECT(\"'\"&$E43&\"'!\"&\"$A:$K\"),8,FALSE)","v":-90.486557999998695},{"$f":"VLOOKUP(VLOOKUP($F43,'Data BI Summary'!$A:$F,MATCH(K$1,'Data BI Summary'!$2:$2,0),FALSE),INDIRECT(\"'\"&$E43&\"'!\"&\"$A:$K\"),9,FALSE)","v":-1.0726117972825782E-2}]
[null,"High",{"$f":"VLOOKUP(A$42,'Data Billing Quantities'!A:P,MATCH(B44&\" kWh\",'Data Billing Quantities'!$4:$4,0),FALSE)","v":97610},{"$f":"VLOOKUP(A$42,'Data Billing Quantities'!A:P,MATCH(B44&\" kW\",'Data Billing Quantities'!$4:$4,0),FALSE)","v":280},"BI_UGd_High","BI Template_Demand",{"$f":"VLOOKUP(VLOOKUP($F44,'Data BI Summary'!$A:$F,MATCH(G$1,'Data BI Summary'!$2:$2,0),FALSE),INDIRECT(\"'\"&$E44&\"'!\"&\"$A:$K\"),4,FALSE)","v":19661.204988500001},{"$f":"VLOOKUP(VLOOKUP($F44,'Data BI Summary'!$A:$F,MATCH(H$1,'Data BI Summary'!$2:$2,0),FALSE),INDIRECT(\"'\"&$E44&\"'!\"&\"$A:$K\"),8,FALSE)","v":-226.95899999999983},{"$f":"VLOOKUP(VLOOKUP($F44,'Data BI Summary'!$A:$F,MATCH(I$1,'Data BI Summary'!$2:$2,0),FALSE),INDIRECT(\"'\"&$E44&\"'!\"&\"$A:$K\"),9,FALSE)","v":-6.8321962344486731E-2},{"$f":"VLOOKUP(VLOOKUP($F44,'Data BI Summary'!$A:$F,MATCH(J$1,'Data BI Summary'!$2:$2,0),FALSE),INDIRECT(\"'\"&$E44&\"'!\"&\"$A:$K\"),8,FALSE)","v":-198.97379000000365},{"$f":"VLOOKUP(VLOOKUP($F44,'Data BI Summary'!$A:$F,MATCH(K$1,'Data BI Summary'!$2:$2,0),FALSE),INDIRECT(\"'\"&$E44&\"'!\"&\"$A:$K\"),9,FALSE)","v":-1.0120121839754229E-2}]
["St Lgt","Low",{"$f":"VLOOKUP(A$45,'Data Billing Quantities'!A:P,MATCH(B45&\" kWh\",'Data Billing Quantities'!$4:$4,0),FALSE)","v":30},null,"BI_StLgt_Low","BI Template_EnergyUNM",{"$f":"VLOOKUP(VLOOKUP($F45,'Data BI Summary'!$A:$F,MATCH(G$1,'Data BI Summary'!$2:$2,0),FALSE),INDIRECT(\"'\"&$E45&\"'!\"&\"$A:$K\"),4,FALSE)","v":10.508000204000002},{"$f":"VLOOKUP(VLOOKUP($F45,'Data BI Summary'!$A:$F,MATCH(H$1,'Data BI Summary'!$2:$2,0),FALSE),INDIRECT(\"'\"&$E45&\"'!\"&\"$A:$K\"),8,FALSE)","v":-0.87699999999999889},{"$f":"VLOOKUP(VLOOKUP($F45,'Data BI Summary'!$A:$F,MATCH(I$1,'Data BI Summary'!$2:$2,0),FALSE),INDIRECT(\"'\"&$E45&\"'!\"&\"$A:$K\"),9,FALSE)","v":-0.1209488346434973},{"$f":"VLOOKUP(VLOOKUP($F45,'Data BI Summary'!$A:$F,MATCH(J$1,'Data BI Summary'!$2:$2,0),FALSE),INDIRECT(\"'\"&$E45&\"'!\"&\"$A:$K\"),8,FALSE)","v":-0.83142243200000188},{"$f":"VLOOKUP(VLOOKUP($F45,'Data BI Summary'!$A:$F,MATCH(K$1,'Data BI Summary'!$2:$2,0),FALSE),INDIRECT(\"'\"&$E45&\"'!\"&\"$A:$K\"),9,FALSE)","v":-7.9122803184140639E-2},"Two-tier RPP"]
[null,"Average",{"$f":"VLOOKUP(A$45,'Data Billing Quantities'!A:P,MATCH(B46&\" kWh\",'Data Billing Quantities'!$4:$4,0),FALSE)","v":1274},null,"BI_StLgt_Avg","BI Template_EnergyUNM",{"$f":"VLOOKUP(VLOOKUP($F46,'Data BI Summary'!$A:$F,MATCH(G$1,'Data BI Summary'!$2:$2,0),FALSE),INDIRECT(\"'\"&$E46&\"'!\"&\"$A:$K\"),4,FALSE)","v":299.24600903920009},{"$f":"VLOOKUP(VLOOKUP($F46,'Data BI Summary'!$A:$F,MATCH(H$1,'Data BI Summary'!$2:$2,0),FALSE),INDIRECT(\"'\"&$E46&\"'!\"&\"$A:$K\"),8,FALSE)","v":-8.2166000000000281},{"$f":"VLOOKUP(VLOOKUP($F46,'Data BI Summary'!$A:$F,MATCH(I$1,'Data BI Summary'!$2:$2,0),FALSE),INDIRECT(\"'\"&$E46&\"'!\"&\"$A:$K\"),9,FALSE)","v":-5.4349134618056058E-2},{"$f":"VLOOKUP(VLOOKUP($F46,'Data BI Summary'!$A:$F,MATCH(J$1,'Data BI Summary'!$2:$2,0),FALSE),INDIRECT(\"'\"&$E46&\"'!\"&\"$A:$K\"),8,FALSE)","v":-7.9936459456000648},{"$f":"VLOOKUP(VLOOKUP($F46,'Data BI Summary'!$A:$F,MATCH(K$1,'Data BI Summary'!$2:$2,0),FALSE),INDIRECT(\"'\"&$E46&\"'!\"&\"$A:$K\"),9,FALSE)","v":-2.6712623407294724E-2}]
[null,"High",{"$f":"VLOOKUP(A$45,'Data Billing Quantities'!A:P,MATCH(B47&\" kWh\",'Data Billing Quantities'!$4:$4,0),FALSE)","v":2310},null,"BI_StLgt_High","BI Template_EnergyUNM",{"$f":"VLOOKUP(VLOOKUP($F47,'Data BI Summary'!$A:$F,MATCH(G$1,'Data BI Summary'!$2:$2,0),FALSE),INDIRECT(\"'\"&$E47&\"'!\"&\"$A:$K\"),4,FALSE)","v":549.26153814799989},{"$f":"VLOOKUP(VLOOKUP($F47,'Data BI Summary'!$A:$F,MATCH(H$1,'Data BI Summary'!$2:$2,0),FALSE),INDIRECT(\"'\"&$E47&\"'!\"&\"$A:$K\"),8,FALSE)","v":-14.328999999999951},{"$f":"VLOOKUP(VLOOKUP($F47,'Data BI Summary'!$A:$F,MATCH(I$1,'Data BI Summary'!$2:$2,0),FALSE),INDIRECT(\"'\"&$E47&\"'!\"&\"$A:$K\"),9,FALSE)","v":-5.286537021254599E-2},{"$f":"VLOOKUP(VLOOKUP($F47,'Data BI Summary'!$A:$F,MATCH(J$1,'Data BI Summary'!$2:$2,0),FALSE),INDIRECT(\"'\"&$E47&\"'!\"&\"$A:$K\"),8,FALSE)","v":-13.958327263999877},{"$f":"VLOOKUP(VLOOKUP($F47,'Data BI Summary'!$A:$F,MATCH(K$1,'Data BI Summary'!$2:$2,0),FALSE),INDIRECT(\"'\"&$E47&\"'!\"&\"$A:$K\"),9,FALSE)","v":-2.5412897671780489E-2}]
["Sen Lgt","Low",{"$f":"VLOOKUP(A$48,'Data Billing Quantities'!A:P,MATCH(B48&\" kWh\",'Data Billing Quantities'!$4:$4,0),FALSE)","v":20},null,"BI_SenLgt_Low","BI Template_EnergyUNM",{"$f":"VLOOKUP(VLOOKUP($F48,'Data BI Summary'!$A:$F,MATCH(G$1,'Data BI Summary'!$2:$2,0),FALSE),INDIRECT(\"'\"&$E48&\"'!\"&\"$A:$K\"),4,FALSE)","v":8.9790972800000013},{"$f":"VLOOKUP(VLOOKUP($F48,'Data BI Summary'!$A:$F,MATCH(H$1,'Data BI Summary'!$2:$2,0),FALSE),INDIRECT(\"'\"&$E48&\"'!\"&\"$A:$K\"),8,FALSE)","v":-0.60000000000000053},{"$f":"VLOOKUP(VLOOKUP($F48,'Data BI Summary'!$A:$F,MATCH(I$1,'Data BI Summary'!$2:$2,0),FALSE),INDIRECT(\"'\"&$E48&\"'!\"&\"$A:$K\"),9,FALSE)","v":-8.7642418930762564E-2},{"$f":"VLOOKUP(VLOOKUP($F48,'Data BI Summary'!$A:$F,MATCH(J$1,'Data BI Summary'!$2:$2,0),FALSE),INDIRECT(\"'\"&$E48&\"'!\"&\"$A:$K\"),8,FALSE)","v":-0.57076543200000174},{"$f":"VLOOKUP(VLOOKUP($F48,'Data BI Summary'!$A:$F,MATCH(K$1,'Data BI Summary'!$2:$2,0),FALSE),INDIRECT(\"'\"&$E48&\"'!\"&\"$A:$K\"),9,FALSE)","v":-6.3566014956906849E-2},"Two-tier RPP"]
[null,"Average",{"$f":"VLOOKUP(A$48,'Data Billing Quantities'!A:P,MATCH(B49&\" kWh\",'Data Billing Quantities'!$4:$4,0),FALSE)","v":49},null,"BI_SenLgt_Avg","BI Template_EnergyUNM",{"$f":"VLOOKUP(VLOOKUP($F49,'Data BI Summary'!$A:$F,MATCH(G$1,'Data BI Summary'!$2:$2,0),FALSE),INDIRECT(\"'\"&$E49&\"'!\"&\"$A:$K\"),4,FALSE)","v":17.182279835999999},{"$f":"VLOOKUP(VLOOKUP($F49,'Data BI Summary'!$A:$F,MATCH(H$1,'Data BI Summary'!$2:$2,0),FALSE),INDIRECT(\"'\"&$E49&\"'!\"&\"$A:$K\"),8,FALSE)","v":-1.0494999999999965},{"$f":"VLOOKUP(VLOOKUP($F49,'Data BI Summary'!$A:$F,MATCH(I$1,'Data BI Summary'!$2:$2,0),FALSE),INDIRECT(\"'\"&$E49&\"'!\"&\"$A:$K\"),9,FALSE)","v":-8.7336789634425149E-2},{"$f":"VLOOKUP(VLOOKUP($F49,'Data BI Summary'!$A:$F,MATCH(J$1,'Data BI Summary'!$2:$2,0),FALSE),INDIRECT(\"'\"&$E49&\"'!\"&\"$A:$K\"),8,FALSE)","v":-1.0026848083999944},{"$f":"VLOOKUP(VLOOKUP($F49,'Data BI Summary'!$A:$F,MATCH(K$1,'Data BI Summary'!$2:$2,0),FALSE),INDIRECT(\"'\"&$E49&\"'!\"&\"$A:$K\"),9,FALSE)","v":-5.8355748944280812E-2}]
[null,"High",{"$f":"VLOOKUP(A$48,'Data Billing Quantities'!A:P,MATCH(B50&\" kWh\",'Data Billing Quantities'!$4:$4,0),FALSE)","v":80},null,"BI_SenLgt_High","BI Template_EnergyUNM",{"$f":"VLOOKUP(VLOOKUP($F50,'Data BI Summary'!$A:$F,MATCH(G$1,'Data BI Summary'!$2:$2,0),FALSE),INDIRECT(\"'\"&$E50&\"'!\"&\"$A:$K\"),4,FALSE)","v":25.951199119999998},{"$f":"VLOOKUP(VLOOKUP($F50,'Data BI Summary'!$A:$F,MATCH(H$1,'Data BI Summary'!$2:$2,0),FALSE),INDIRECT(\"'\"&$E50&\"'!\"&\"$A:$K\"),8,FALSE)","v":-1.5300000000000011},{"$f":"VLOOKUP(VLOOKUP($F50,'Data BI Summary'!$A:$F,MATCH(I$1,'Data BI Summary'!$2:$2,0),FALSE),INDIRECT(\"'\"&$E50&\"'!\"&\"$A:$K\"),9,FALSE)","v":-8.7209302325581453E-2},{"$f":"VLOOKUP(VLOOKUP($F50,'Data BI Summary'!$A:$F,MATCH(J$1,'Data BI Summary'!$2:$2,0),FALSE),INDIRECT(\"'\"&$E50&\"'!\"&\"$A:$K\"),8,FALSE)","v":-1.4643917279999954},{"$f":"VLOOKUP(VLOOKUP($F50,'Data BI Summary'!$A:$F,MATCH(K$1,'Data BI Summary'!$2:$2,0),FALSE),INDIRECT(\"'\"&$E50&\"'!\"&\"$A:$K\"),9,FALSE)","v":-5.6428672957598403E-2}]
["USL","Low",{"$f":"VLOOKUP(A$51,'Data Billing Quantities'!A:P,MATCH(B51&\" kWh\",'Data Billing Quantities'!$4:$4,0),FALSE)","v":100},null,"BI_USL_Low","BI Template_EnergyUNM",{"$f":"VLOOKUP(VLOOKUP($F51,'Data BI Summary'!$A:$F,MATCH(G$1,'Data BI Summary'!$2:$2,0),FALSE),INDIRECT(\"'\"&$E51&\"'!\"&\"$A:$K\"),4,FALSE)","v":52.309813600000012},{"$f":"VLOOKUP(VLOOKUP($F51,'Data BI Summary'!$A:$F,MATCH(H$1,'Data BI Summary'!$2:$2,0),FALSE),INDIRECT(\"'\"&$E51&\"'!\"&\"$A:$K\"),8,FALSE)","v":-5.3000000000000185},{"$f":"VLOOKUP(VLOOKUP($F51,'Data BI Summary'!$A:$F,MATCH(I$1,'Data BI Summary'!$2:$2,0),FALSE),INDIRECT(\"'\"&$E51&\"'!\"&\"$A:$K\"),9,FALSE)","v":-0.12325581395348878},{"$f":"VLOOKUP(VLOOKUP($F51,'Data BI Summary'!$A:$F,MATCH(J$1,'Data BI Summary'!$2:$2,0),FALSE),INDIRECT(\"'\"&$E51&\"'!\"&\"$A:$K\"),8,FALSE)","v":-4.987300000000026},{"$f":"VLOOKUP(VLOOKUP($F51,'Data BI Summary'!$A:$F,MATCH(K$1,'Data BI Summary'!$2:$2,0),FALSE),INDIRECT(\"'\"&$E51&\"'!\"&\"$A:$K\"),9,FALSE)","v":-9.5341574683034711E-2},"Two-tier RPP"]
[null,"Average",{"$f":"VLOOKUP(A$51,'Data Billing Quantities'!A:P,MATCH(B52&\" kWh\",'Data Billing Quantities'!$4:$4,0),FALSE)","v":477},null,"BI_USL_Avg","BI Template_EnergyUNM",{"$f":"VLOOKUP(VLOOKUP($F52,'Data BI Summary'!$A:$F,MATCH(G$1,'Data BI Summary'!$2:$2,0),FALSE),INDIRECT(\"'\"&$E52&\"'!\"&\"$A:$K\"),4,FALSE)","v":105.62837167200003},{"$f":"VLOOKUP(VLOOKUP($F52,'Data BI Summary'!$A:$F,MATCH(H$1,'Data BI Summary'!$2:$2,0),FALSE),INDIRECT(\"'\"&$E52&\"'!\"&\"$A:$K\"),8,FALSE)","v":-7.335799999999999},{"$f":"VLOOKUP(VLOOKUP($F52,'Data BI Summary'!$A:$F,MATCH(I$1,'Data BI Summary'!$2:$2,0),FALSE),INDIRECT(\"'\"&$E52&\"'!\"&\"$A:$K\"),9,FALSE)","v":-0.13804329212872096},{"$f":"VLOOKUP(VLOOKUP($F52,'Data BI Summary'!$A:$F,MATCH(J$1,'Data BI Summary'!$2:$2,0),FALSE),INDIRECT(\"'\"&$E52&\"'!\"&\"$A:$K\"),8,FALSE)","v":-6.9029878000000053},{"$f":"VLOOKUP(VLOOKUP($F52,'Data BI Summary'!$A:$F,MATCH(K$1,'Data BI Summary'!$2:$2,0),FALSE),INDIRECT(\"'\"&$E52&\"'!\"&\"$A:$K\"),9,FALSE)","v":-6.5351644550910457E-2}]
[null,"High",{"$f":"VLOOKUP(A$51,'Data Billing Quantities'!A:P,MATCH(B53&\" kWh\",'Data Billing Quantities'!$4:$4,0),FALSE)","v":550},null,"BI_USL_High","BI Template_EnergyUNM",{"$f":"VLOOKUP(VLOOKUP($F53,'Data BI Summary'!$A:$F,MATCH(G$1,'Data BI Summary'!$2:$2,0),FALSE),INDIRECT(\"'\"&$E53&\"'!\"&\"$A:$K\"),4,FALSE)","v":115.95265480000002},{"$f":"VLOOKUP(VLOOKUP($F53,'Data BI Summary'!$A:$F,MATCH(H$1,'Data BI Summary'!$2:$2,0),FALSE),INDIRECT(\"'\"&$E53&\"'!\"&\"$A:$K\"),8,FALSE)","v":-7.730000000000004},{"$f":"VLOOKUP(VLOOKUP($F53,'Data BI Summary'!$A:$F,MATCH(I$1,'Data BI Summary'!$2:$2,0),FALSE),INDIRECT(\"'\"&$E53&\"'!\"&\"$A:$K\"),9,FALSE)","v":-0.14027765175573911},{"$f":"VLOOKUP(VLOOKUP($F53,'Data BI Summary'!$A:$F,MATCH(J$1,'Data BI Summary'!$2:$2,0),FALSE),INDIRECT(\"'\"&$E53&\"'!\"&\"$A:$K\"),8,FALSE)","v":-7.2739300000000213},{"$f":"VLOOKUP(VLOOKUP($F53,'Data BI Summary'!$A:$F,MATCH(K$1,'Data BI Summary'!$2:$2,0),FALSE),INDIRECT(\"'\"&$E53&\"'!\"&\"$A:$K\"),9,FALSE)","v":-6.2731897019058333E-2}]
["DGen","Low",{"$f":"VLOOKUP(A$54,'Data Billing Quantities'!A:P,MATCH($B54&\" kWh\",'Data Billing Quantities'!$4:$4,0),FALSE)","v":10},{"$f":"VLOOKUP(A$54,'Data Billing Quantities'!A:P,MATCH($B54&\" kW\",'Data Billing Quantities'!$4:$4,0),FALSE)","v":2.9416666666666664E-2},"BI_Dgen_Low","BI Template_Demand",{"$f":"VLOOKUP(VLOOKUP($F54,'Data BI Summary'!$A:$F,MATCH(G$1,'Data BI Summary'!$2:$2,0),FALSE),INDIRECT(\"'\"&$E54&\"'!\"&\"$A:$K\"),4,FALSE)","v":232.68359924800001},{"$f":"VLOOKUP(VLOOKUP($F54,'Data BI Summary'!$A:$F,MATCH(H$1,'Data BI Summary'!$2:$2,0),FALSE),INDIRECT(\"'\"&$E54&\"'!\"&\"$A:$K\"),8,FALSE)","v":-9.7330026666667209},{"$f":"VLOOKUP(VLOOKUP($F54,'Data BI Summary'!$A:$F,MATCH(I$1,'Data BI Summary'!$2:$2,0),FALSE),INDIRECT(\"'\"&$E54&\"'!\"&\"$A:$K\"),9,FALSE)","v":-4.764040096913897E-2},{"$f":"VLOOKUP(VLOOKUP($F54,'Data BI Summary'!$A:$F,MATCH(J$1,'Data BI Summary'!$2:$2,0),FALSE),INDIRECT(\"'\"&$E54&\"'!\"&\"$A:$K\"),8,FALSE)","v":-10.994031538500053},{"$f":"VLOOKUP(VLOOKUP($F54,'Data BI Summary'!$A:$F,MATCH(K$1,'Data BI Summary'!$2:$2,0),FALSE),INDIRECT(\"'\"&$E54&\"'!\"&\"$A:$K\"),9,FALSE)","v":-4.7248845960915102E-2},"WAHSP"]
[null,"Average",{"$f":"VLOOKUP(A$54,'Data Billing Quantities'!A:P,MATCH($B55&\" kWh\",'Data Billing Quantities'!$4:$4,0),FALSE)","v":1709},{"$f":"VLOOKUP(A$54,'Data Billing Quantities'!A:P,MATCH($B55&\" kW\",'Data Billing Quantities'!$4:$4,0),FALSE)","v":12},"BI_Dgen_Avg","BI Template_Demand",{"$f":"VLOOKUP(VLOOKUP($F55,'Data BI Summary'!$A:$F,MATCH(G$1,'Data BI Summary'!$2:$2,0),FALSE),INDIRECT(\"'\"&$E55&\"'!\"&\"$A:$K\"),4,FALSE)","v":653.49832537299994},{"$f":"VLOOKUP(VLOOKUP($F55,'Data BI Summary'!$A:$F,MATCH(H$1,'Data BI Summary'!$2:$2,0),FALSE),INDIRECT(\"'\"&$E55&\"'!\"&\"$A:$K\"),8,FALSE)","v":-17.434300000000007},{"$f":"VLOOKUP(VLOOKUP($F55,'Data BI Summary'!$A:$F,MATCH(I$1,'Data BI Summary'!$2:$2,0),FALSE),INDIRECT(\"'\"&$E55&\"'!\"&\"$A:$K\"),9,FALSE)","v":-5.2665618648757746E-2},{"$f":"VLOOKUP(VLOOKUP($F55,'Data BI Summary'!$A:$F,MATCH(J$1,'Data BI Summary'!$2:$2,0),FALSE),INDIRECT(\"'\"&$E55&\"'!\"&\"$A:$K\"),8,FALSE)","v":-17.962366999999972},{"$f":"VLOOKUP(VLOOKUP($F55,'Data BI Summary'!$A:$F,MATCH(K$1,'Data BI Summary'!$2:$2,0),FALSE),INDIRECT(\"'\"&$E55&\"'!\"&\"$A:$K\"),9,FALSE)","v":-2.7486477474517653E-2}]
[null,"High",{"$f":"VLOOKUP(A$54,'Data Billing Quantities'!A:P,MATCH($B56&\" kWh\",'Data Billing Quantities'!$4:$4,0),FALSE)","v":8490},{"$f":"VLOOKUP(A$54,'Data Billing Quantities'!A:P,MATCH($B56&\" kW\",'Data Billing Quantities'!$4:$4,0),FALSE)","v":45},"BI_Dgen_High","BI Template_Demand",{"$f":"VLOOKUP(VLOOKUP($F56,'Data BI Summary'!$A:$F,MATCH(G$1,'Data BI Summary'!$2:$2,0),FALSE),INDIRECT(\"'\"&$E56&\"'!\"&\"$A:$K\"),4,FALSE)","v":2122.6119795300001},{"$f":"VLOOKUP(VLOOKUP($F56,'Data BI Summary'!$A:$F,MATCH(H$1,'Data BI Summary'!$2:$2,0),FALSE),INDIRECT(\"'\"&$E56&\"'!\"&\"$A:$K\"),8,FALSE)","v":-40.132999999999811},{"$f":"VLOOKUP(VLOOKUP($F56,'Data BI Summary'!$A:$F,MATCH(I$1,'Data BI Summary'!$2:$2,0),FALSE),INDIRECT(\"'\"&$E56&\"'!\"&\"$A:$K\"),9,FALSE)","v":-5.8982817192653948E-2},{"$f":"VLOOKUP(VLOOKUP($F56,'Data BI Summary'!$A:$F,MATCH(J$1,'Data BI Summary'!$2:$2,0),FALSE),INDIRECT(\"'\"&$E56&\"'!\"&\"$A:$K\"),8,FALSE)","v":-38.831319999999778},{"$f":"VLOOKUP(VLOOKUP($F56,'Data BI Summary'!$A:$F,MATCH(K$1,'Data BI Summary'!$2:$2,0),FALSE),INDIRECT(\"'\"&$E56&\"'!\"&\"$A:$K\"),9,FALSE)","v":-1.8294120816465954E-2}]
["ST","Low",{"$f":"VLOOKUP(A$57,'Data Billing Quantities'!A:P,MATCH($B57&\" kWh\",'Data Billing Quantities'!$4:$4,0),FALSE)","v":88780},{"$f":"VLOOKUP(A$57,'Data Billing Quantities'!A:P,MATCH($B57&\" kW\",'Data Billing Quantities'!$4:$4,0),FALSE)","v":500},"BI_ST_Low","BI Template_Demand",{"$f":"VLOOKUP(VLOOKUP($F57,'Data BI Summary'!$A:$F,MATCH(G$1,'Data BI Summary'!$2:$2,0),FALSE),INDIRECT(\"'\"&$E57&\"'!\"&\"$A:$K\"),4,FALSE)","v":19371.84432383212},{"$f":"VLOOKUP(VLOOKUP($F57,'Data BI Summary'!$A:$F,MATCH(H$1,'Data BI Summary'!$2:$2,0),FALSE),INDIRECT(\"'\"&$E57&\"'!\"&\"$A:$K\"),8,FALSE)","v":-445.11295733816178},{"$f":"VLOOKUP(VLOOKUP($F57,'Data BI Summary'!$A:$F,MATCH(I$1,'Data BI Summary'!$2:$2,0),FALSE),INDIRECT(\"'\"&$E57&\"'!\"&\"$A:$K\"),9,FALSE)","v":-0.19899213301082377},{"$f":"VLOOKUP(VLOOKUP($F57,'Data BI Summary'!$A:$F,MATCH(J$1,'Data BI Summary'!$2:$2,0),FALSE),INDIRECT(\"'\"&$E57&\"'!\"&\"$A:$K\"),8,FALSE)","v":-441.44914179211628},{"$f":"VLOOKUP(VLOOKUP($F57,'Data BI Summary'!$A:$F,MATCH(K$1,'Data BI Summary'!$2:$2,0),FALSE),INDIRECT(\"'\"&$E57&\"'!\"&\"$A:$K\"),9,FALSE)","v":-2.2788183428101658E-2},"WAHSP"]
[null,"Average",{"$f":"VLOOKUP(A$57,'Data Billing Quantities'!A:P,MATCH($B58&\" kWh\",'Data Billing Quantities'!$4:$4,0),FALSE)","v":1373443},{"$f":"VLOOKUP(A$57,'Data Billing Quantities'!A:P,MATCH($B58&\" kW\",'Data Billing Quantities'!$4:$4,0),FALSE)","v":2808},"BI_ST_Avg","BI Template_Demand",{"$f":"VLOOKUP(VLOOKUP($F58,'Data BI Summary'!$A:$F,MATCH(G$1,'Data BI Summary'!$2:$2,0),FALSE),INDIRECT(\"'\"&$E58&\"'!\"&\"$A:$K\"),4,FALSE)","v":227085.30824816614},{"$f":"VLOOKUP(VLOOKUP($F58,'Data BI Summary'!$A:$F,MATCH(H$1,'Data BI Summary'!$2:$2,0),FALSE),INDIRECT(\"'\"&$E58&\"'!\"&\"$A:$K\"),8,FALSE)","v":-2138.5598573381612},{"$f":"VLOOKUP(VLOOKUP($F58,'Data BI Summary'!$A:$F,MATCH(I$1,'Data BI Summary'!$2:$2,0),FALSE),INDIRECT(\"'\"&$E58&\"'!\"&\"$A:$K\"),9,FALSE)","v":-0.35219788753776954},{"$f":"VLOOKUP(VLOOKUP($F58,'Data BI Summary'!$A:$F,MATCH(J$1,'Data BI Summary'!$2:$2,0),FALSE),INDIRECT(\"'\"&$E58&\"'!\"&\"$A:$K\"),8,FALSE)","v":-2071.028582792118},{"$f":"VLOOKUP(VLOOKUP($F58,'Data BI Summary'!$A:$F,MATCH(K$1,'Data BI Summary'!$2:$2,0),FALSE),INDIRECT(\"'\"&$E58&\"'!\"&\"$A:$K\"),9,FALSE)","v":-9.120046553292788E-3}]
[null,"High",{"$f":"VLOOKUP(A$57,'Data Billing Quantities'!A:P,MATCH($B59&\" kWh\",'Data Billing Quantities'!$4:$4,0),FALSE)","v":2641420},{"$f":"VLOOKUP(A$57,'Data Billing Quantities'!A:P,MATCH($B59&\" kW\",'Data Billing Quantities'!$4:$4,0),FALSE)","v":13730},"BI_ST_High","BI Template_Demand",{"$f":"VLOOKUP(VLOOKUP($F59,'Data BI Summary'!$A:$F,MATCH(G$1,'Data BI Summary'!$2:$2,0),FALSE),INDIRECT(\"'\"&$E59&\"'!\"&\"$A:$K\"),4,FALSE)","v":519130.04511335219},{"$f":"VLOOKUP(VLOOKUP($F59,'Data BI Summary'!$A:$F,MATCH(H$1,'Data BI Summary'!$2:$2,0),FALSE),INDIRECT(\"'\"&$E59&\"'!\"&\"$A:$K\"),8,FALSE)","v":-6784.403957338156},{"$f":"VLOOKUP(VLOOKUP($F59,'Data BI Summary'!$A:$F,MATCH(I$1,'Data BI Summary'!$2:$2,0),FALSE),INDIRECT(\"'\"&$E59&\"'!\"&\"$A:$K\"),9,FALSE)","v":-0.28010272557445937},{"$f":"VLOOKUP(VLOOKUP($F59,'Data BI Summary'!$A:$F,MATCH(J$1,'Data BI Summary'!$2:$2,0),FALSE),INDIRECT(\"'\"&$E59&\"'!\"&\"$A:$K\"),8,FALSE)","v":-5976.8038617921411},{"$f":"VLOOKUP(VLOOKUP($F59,'Data BI Summary'!$A:$F,MATCH(K$1,'Data BI Summary'!$2:$2,0),FALSE),INDIRECT(\"'\"&$E59&\"'!\"&\"$A:$K\"),9,FALSE)","v":-1.1513114908398538E-2}]

{"sheet":"Bill Impact Summary_Acq","index":9,"n_rows":46,"n_cols":12,"rows_kept":46,"cut":false,"hidden":true,"merged":[[2,0,5,0],[2,11,5,11],[6,0,9,0],[6,11,9,11],[10,0,12,0],[10,11,12,11],[15,0,15,0],[15,11,15,11],[17,0,20,0],[17,11,20,11],[21,0,24,0],[21,11,24,11],[40,0,42,0],[40,11,42,11],[46,0,48,0],[25,0,27,0],[25,11,27,11],[32,0,35,0],[32,11,35,11],[36,0,39,0],[36,11,39,11]]}
["Rate Class","Consumption Level","Monthly Consumption (kWh)","Monthly Peak (kW)","BI Worksheet","Template","Current Total Bill","Change in DX Bill ($)","Change in DX Bill (%)","Change in Total Bill ($)","Change in Total Bill (%)","Commodity Price Used"]
["WHSI to HONI"]
["AUR-WHSI","Low",{"$f":"VLOOKUP(A$3,'Data Billing Quantities'!A:P,MATCH($B3&\" kWh\",'Data Billing Quantities'!$4:$4,0),FALSE)","v":310},null,"BI_WHSI_AUR_Low","BI Template_EnergyWHSI",{"$f":"VLOOKUP(VLOOKUP($F3,'Data BI Summary'!$A:$F,MATCH(G$1,'Data BI Summary'!$2:$2,0),FALSE),INDIRECT(\"'\"&$E3&\"'!\"&\"$A:$K\"),4,FALSE)","v":68.255937606919986},{"$f":"VLOOKUP(VLOOKUP($F3,'Data BI Summary'!$A:$F,MATCH(H$1,'Data BI Summary'!$2:$2,0),FALSE),INDIRECT(\"'\"&$E3&\"'!\"&\"$A:$K\"),8,FALSE)","v":-2.5330000000000013},{"$f":"VLOOKUP(VLOOKUP($F3,'Data BI Summary'!$A:$F,MATCH(I$1,'Data BI Summary'!$2:$2,0),FALSE),INDIRECT(\"'\"&$E3&\"'!\"&\"$A:$K\"),9,FALSE)","v":-7.9235485485485521E-2},{"$f":"VLOOKUP(VLOOKUP($F3,'Data BI Summary'!$A:$F,MATCH(J$1,'Data BI Summary'!$2:$2,0),FALSE),INDIRECT(\"'\"&$E3&\"'!\"&\"$A:$K\"),8,FALSE)","v":-1.596079521319993},{"$f":"VLOOKUP(VLOOKUP($F3,'Data BI Summary'!$A:$F,MATCH(K$1,'Data BI Summary'!$2:$2,0),FALSE),INDIRECT(\"'\"&$E3&\"'!\"&\"$A:$K\"),9,FALSE)","v":-2.338374619526401E-2},"TOU"]
[null,"Typical",{"$f":"VLOOKUP(A$3,'Data Billing Quantities'!A:P,MATCH($B4&\" kWh\",'Data Billing Quantities'!$4:$4,0),FALSE)","v":750},null,"BI_WHSI_AUR_Typical","BI Template_EnergyWHSI",{"$f":"VLOOKUP(VLOOKUP($F4,'Data BI Summary'!$A:$F,MATCH(G$1,'Data BI Summary'!$2:$2,0),FALSE),INDIRECT(\"'\"&$E4&\"'!\"&\"$A:$K\"),4,FALSE)","v":121.67448904899996},{"$f":"VLOOKUP(VLOOKUP($F4,'Data BI Summary'!$A:$F,MATCH(H$1,'Data BI Summary'!$2:$2,0),FALSE),INDIRECT(\"'\"&$E4&\"'!\"&\"$A:$K\"),8,FALSE)","v":-3.1050000000000004},{"$f":"VLOOKUP(VLOOKUP($F4,'Data BI Summary'!$A:$F,MATCH(I$1,'Data BI Summary'!$2:$2,0),FALSE),INDIRECT(\"'\"&$E4&\"'!\"&\"$A:$K\"),9,FALSE)","v":-9.6070544554455461E-2},{"$f":"VLOOKUP(VLOOKUP($F4,'Data BI Summary'!$A:$F,MATCH(J$1,'Data BI Summary'!$2:$2,0),FALSE),INDIRECT(\"'\"&$E4&\"'!\"&\"$A:$K\"),8,FALSE)","v":-1.0166272289999654},{"$f":"VLOOKUP(VLOOKUP($F4,'Data BI Summary'!$A:$F,MATCH(K$1,'Data BI Summary'!$2:$2,0),FALSE),INDIRECT(\"'\"&$E4&\"'!\"&\"$A:$K\"),9,FALSE)","v":-8.3553030462331004E-3}]
[null,"Average",{"$f":"VLOOKUP(A$3,'Data Billing Quantities'!A:P,MATCH($B5&\" kWh\",'Data Billing Quantities'!$4:$4,0),FALSE)","v":636},null,"BI_WHSI_AUR_Avg","BI Template_EnergyWHSI",{"$f":"VLOOKUP(VLOOKUP($F5,'Data BI Summary'!$A:$F,MATCH(G$1,'Data BI Summary'!$2:$2,0),FALSE),INDIRECT(\"'\"&$E5&\"'!\"&\"$A:$K\"),4,FALSE)","v":107.83422799355198},{"$f":"VLOOKUP(VLOOKUP($F5,'Data BI Summary'!$A:$F,MATCH(H$1,'Data BI Summary'!$2:$2,0),FALSE),INDIRECT(\"'\"&$E5&\"'!\"&\"$A:$K\"),8,FALSE)","v":-2.9568000000000012},{"$f":"VLOOKUP(VLOOKUP($F5,'Data BI Summary'!$A:$F,MATCH(I$1,'Data BI Summary'!$2:$2,0),FALSE),INDIRECT(\"'\"&$E5&\"'!\"&\"$A:$K\"),9,FALSE)","v":-9.1744030184183131E-2},{"$f":"VLOOKUP(VLOOKUP($F5,'Data BI Summary'!$A:$F,MATCH(J$1,'Data BI Summary'!$2:$2,0),FALSE),INDIRECT(\"'\"&$E5&\"'!\"&\"$A:$K\"),8,FALSE)","v":-1.1667580501919872},{"$f":"VLOOKUP(VLOOKUP($F5,'Data BI Summary'!$A:$F,MATCH(K$1,'Data BI Summary'!$2:$2,0),FALSE),INDIRECT(\"'\"&$E5&\"'!\"&\"$A:$K\"),9,FALSE)","v":-1.0819923060623704E-2}]
[null,"High",{"$f":"VLOOKUP(A$3,'Data Billing Quantities'!A:P,MATCH($B6&\" kWh\",'Data Billing Quantities'!$4:$4,0),FALSE)","v":1160},null,"BI_WHSI_AUR_High","BI Template_EnergyWHSI",{"$f":"VLOOKUP(VLOOKUP($F6,'Data BI Summary'!$A:$F,MATCH(G$1,'Data BI Summary'!$2:$2,0),FALSE),INDIRECT(\"'\"&$E6&\"'!\"&\"$A:$K\"),4,FALSE)","v":171.45086652911999},{"$f":"VLOOKUP(VLOOKUP($F6,'Data BI Summary'!$A:$F,MATCH(H$1,'Data BI Summary'!$2:$2,0),FALSE),INDIRECT(\"'\"&$E6&\"'!\"&\"$A:$K\"),8,FALSE)","v":-3.6379999999999946},{"$f":"VLOOKUP(VLOOKUP($F6,'Data BI Summary'!$A:$F,MATCH(I$1,'Data BI Summary'!$2:$2,0),FALSE),INDIRECT(\"'\"&$E6&\"'!\"&\"$A:$K\"),9,FALSE)","v":-0.11143102180838015},{"$f":"VLOOKUP(VLOOKUP($F6,'Data BI Summary'!$A:$F,MATCH(J$1,'Data BI Summary'!$2:$2,0),FALSE),INDIRECT(\"'\"&$E6&\"'!\"&\"$A:$K\"),8,FALSE)","v":-0.47668304751999813},{"$f":"VLOOKUP(VLOOKUP($F6,'Data BI Summary'!$A:$F,MATCH(K$1,'Data BI Summary'!$2:$2,0),FALSE),INDIRECT(\"'\"&$E6&\"'!\"&\"$A:$K\"),9,FALSE)","v":-2.7802895206658876E-3}]
["AUGe-WHSI","Low",{"$f":"VLOOKUP(A$7,'Data Billing Quantities'!A:P,MATCH($B7&\" kWh\",'Data Billing Quantities'!$4:$4,0),FALSE)","v":190},null,"BI_WHSI_AUGe_Low","BI Template_EnergyWHSI",{"$f":"VLOOKUP(VLOOKUP($F7,'Data BI Summary'!$A:$F,MATCH(G$1,'Data BI Summary'!$2:$2,0),FALSE),INDIRECT(\"'\"&$E7&\"'!\"&\"$A:$K\"),4,FALSE)","v":54.809247155380007},{"$f":"VLOOKUP(VLOOKUP($F7,'Data BI Summary'!$A:$F,MATCH(H$1,'Data BI Summary'!$2:$2,0),FALSE),INDIRECT(\"'\"&$E7&\"'!\"&\"$A:$K\"),8,FALSE)","v":-5.2640000000000029},{"$f":"VLOOKUP(VLOOKUP($F7,'Data BI Summary'!$A:$F,MATCH(I$1,'Data BI Summary'!$2:$2,0),FALSE),INDIRECT(\"'\"&$E7&\"'!\"&\"$A:$K\"),9,FALSE)","v":-0.15797371106176109},{"$f":"VLOOKUP(VLOOKUP($F7,'Data BI Summary'!$A:$F,MATCH(J$1,'Data BI Summary'!$2:$2,0),FALSE),INDIRECT(\"'\"&$E7&\"'!\"&\"$A:$K\"),8,FALSE)","v":-4.9555984439800085},{"$f":"VLOOKUP(VLOOKUP($F7,'Data BI Summary'!$A:$F,MATCH(K$1,'Data BI Summary'!$2:$2,0),FALSE),INDIRECT(\"'\"&$E7&\"'!\"&\"$A:$K\"),9,FALSE)","v":-9.0415371514431991E-2},"TOU"]
[null,"Typical",{"$f":"VLOOKUP(A$7,'Data Billing Quantities'!A:P,MATCH($B8&\" kWh\",'Data Billing Quantities'!$4:$4,0),FALSE)","v":2000},null,"BI_WHSI_AUGe_Typical","BI Template_EnergyWHSI",{"$f":"VLOOKUP(VLOOKUP($F8,'Data BI Summary'!$A:$F,MATCH(G$1,'Data BI Summary'!$2:$2,0),FALSE),INDIRECT(\"'\"&$E8&\"'!\"&\"$A:$K\"),4,FALSE)","v":297.792289004},{"$f":"VLOOKUP(VLOOKUP($F8,'Data BI Summary'!$A:$F,MATCH(H$1,'Data BI Summary'!$2:$2,0),FALSE),INDIRECT(\"'\"&$E8&\"'!\"&\"$A:$K\"),8,FALSE)","v":-8.1600000000000037},{"$f":"VLOOKUP(VLOOKUP($F8,'Data BI Summary'!$A:$F,MATCH(I$1,'Data BI Summary'!$2:$2,0),FALSE),INDIRECT(\"'\"&$E8&\"'!\"&\"$A:$K\"),9,FALSE)","v":-0.13178294573643418},{"$f":"VLOOKUP(VLOOKUP($F8,'Data BI Summary'!$A:$F,MATCH(J$1,'Data BI Summary'!$2:$2,0),FALSE),INDIRECT(\"'\"&$E8&\"'!\"&\"$A:$K\"),8,FALSE)","v":-7.7014488840000013},{"$f":"VLOOKUP(VLOOKUP($F8,'Data BI Summary'!$A:$F,MATCH(K$1,'Data BI Summary'!$2:$2,0),FALSE),INDIRECT(\"'\"&$E8&\"'!\"&\"$A:$K\"),9,FALSE)","v":-2.5861814319498896E-2}]
[null,"Average",{"$f":"VLOOKUP(A$7,'Data Billing Quantities'!A:P,MATCH($B9&\" kWh\",'Data Billing Quantities'!$4:$4,0),FALSE)","v":2471},null,"BI_WHSI_AUGe_Avg","BI Template_EnergyWHSI",{"$f":"VLOOKUP(VLOOKUP($F9,'Data BI Summary'!$A:$F,MATCH(G$1,'Data BI Summary'!$2:$2,0),FALSE),INDIRECT(\"'\"&$E9&\"'!\"&\"$A:$K\"),4,FALSE)","v":361.02157779444201},{"$f":"VLOOKUP(VLOOKUP($F9,'Data BI Summary'!$A:$F,MATCH(H$1,'Data BI Summary'!$2:$2,0),FALSE),INDIRECT(\"'\"&$E9&\"'!\"&\"$A:$K\"),8,FALSE)","v":-8.9136000000000024},{"$f":"VLOOKUP(VLOOKUP($F9,'Data BI Summary'!$A:$F,MATCH(I$1,'Data BI Summary'!$2:$2,0),FALSE),INDIRECT(\"'\"&$E9&\"'!\"&\"$A:$K\"),9,FALSE)","v":-0.12850877572381342},{"$f":"VLOOKUP(VLOOKUP($F9,'Data BI Summary'!$A:$F,MATCH(J$1,'Data BI Summary'!$2:$2,0),FALSE),INDIRECT(\"'\"&$E9&\"'!\"&\"$A:$K\"),8,FALSE)","v":-8.4159768161820239},{"$f":"VLOOKUP(VLOOKUP($F9,'Data BI Summary'!$A:$F,MATCH(K$1,'Data BI Summary'!$2:$2,0),FALSE),INDIRECT(\"'\"&$E9&\"'!\"&\"$A:$K\"),9,FALSE)","v":-2.3311561784193136E-2}]
[null,"High",{"$f":"VLOOKUP(A$7,'Data Billing Quantities'!A:P,MATCH($B10&\" kWh\",'Data Billing Quantities'!$4:$4,0),FALSE)","v":7240},null,"BI_WHSI_AUGe_High","BI Template_EnergyWHSI",{"$f":"VLOOKUP(VLOOKUP($F10,'Data BI Summary'!$A:$F,MATCH(G$1,'Data BI Summary'!$2:$2,0),FALSE),INDIRECT(\"'\"&$E10&\"'!\"&\"$A:$K\"),4,FALSE)","v":1001.23490739448},{"$f":"VLOOKUP(VLOOKUP($F10,'Data BI Summary'!$A:$F,MATCH(H$1,'Data BI Summary'!$2:$2,0),FALSE),INDIRECT(\"'\"&$E10&\"'!\"&\"$A:$K\"),8,FALSE)","v":-16.544000000000011},{"$f":"VLOOKUP(VLOOKUP($F10,'Data BI Summary'!$A:$F,MATCH(I$1,'Data BI Summary'!$2:$2,0),FALSE),INDIRECT(\"'\"&$E10&\"'!\"&\"$A:$K\"),9,FALSE)","v":-0.11432362209077346},{"$f":"VLOOKUP(VLOOKUP($F10,'Data BI Summary'!$A:$F,MATCH(J$1,'Data BI Summary'!$2:$2,0),FALSE),INDIRECT(\"'\"&$E10&\"'!\"&\"$A:$K\"),8,FALSE)","v":-15.650761760080059},{"$f":"VLOOKUP(VLOOKUP($F10,'Data BI Summary'!$A:$F,MATCH(K$1,'Data BI Summary'!$2:$2,0),FALSE),INDIRECT(\"'\"&$E10&\"'!\"&\"$A:$K\"),9,FALSE)","v":-1.5631458356569025E-2}]
["AUGd-WHSI","Low",{"$f":"VLOOKUP(A$11,'Data Billing Quantities'!A:P,MATCH($B11&\" kWh\",'Data Billing Quantities'!$4:$4,0),FALSE)","v":9370},{"$f":"VLOOKUP(A$11,'Data Billing Quantities'!A:P,MATCH(B11&\" kW\",'Data Billing Quantities'!$4:$4,0),FALSE)","v":50},"BI_WHSI_AUGd_Low","BI Template_DemandWHSI",{"$f":"VLOOKUP(VLOOKUP($F11,'Data BI Summary'!$A:$F,MATCH(G$1,'Data BI Summary'!$2:$2,0),FALSE),INDIRECT(\"'\"&$E11&\"'!\"&\"$A:$K\"),4,FALSE)","v":2036.577299819},{"$f":"VLOOKUP(VLOOKUP($F11,'Data BI Summary'!$A:$F,MATCH(H$1,'Data BI Summary'!$2:$2,0),FALSE),INDIRECT(\"'\"&$E11&\"'!\"&\"$A:$K\"),8,FALSE)","v":-33.549000000000035},{"$f":"VLOOKUP(VLOOKUP($F11,'Data BI Summary'!$A:$F,MATCH(I$1,'Data BI Summary'!$2:$2,0),FALSE),INDIRECT(\"'\"&$E11&\"'!\"&\"$A:$K\"),9,FALSE)","v":-0.11388370277334611},{"$f":"VLOOKUP(VLOOKUP($F11,'Data BI Summary'!$A:$F,MATCH(J$1,'Data BI Summary'!$2:$2,0),FALSE),INDIRECT(\"'\"&$E11&\"'!\"&\"$A:$K\"),8,FALSE)","v":-116.17517264900039},{"$f":"VLOOKUP(VLOOKUP($F11,'Data BI Summary'!$A:$F,MATCH(K$1,'Data BI Summary'!$2:$2,0),FALSE),INDIRECT(\"'\"&$E11&\"'!\"&\"$A:$K\"),9,FALSE)","v":-5.7044322677722768E-2},"WAHSP"]
[null,"Average",{"$f":"VLOOKUP(A$11,'Data Billing Quantities'!A:P,MATCH($B12&\" kWh\",'Data Billing Quantities'!$4:$4,0),FALSE)","v":47636},{"$f":"VLOOKUP(A$11,'Data Billing Quantities'!A:P,MATCH(B12&\" kW\",'Data Billing Quantities'!$4:$4,0),FALSE)","v":134},"BI_WHSI_AUGd_Avg","BI Template_DemandWHSI",{"$f":"VLOOKUP(VLOOKUP($F12,'Data BI Summary'!$A:$F,MATCH(G$1,'Data BI Summary'!$2:$2,0),FALSE),INDIRECT(\"'\"&$E12&\"'!\"&\"$A:$K\"),4,FALSE)","v":8445.4175216731983},{"$f":"VLOOKUP(VLOOKUP($F12,'Data BI Summary'!$A:$F,MATCH(H$1,'Data BI Summary'!$2:$2,0),FALSE),INDIRECT(\"'\"&$E12&\"'!\"&\"$A:$K\"),8,FALSE)","v":-115.65759999999995},{"$f":"VLOOKUP(VLOOKUP($F12,'Data BI Summary'!$A:$F,MATCH(I$1,'Data BI Summary'!$2:$2,0),FALSE),INDIRECT(\"'\"&$E12&\"'!\"&\"$A:$K\"),9,FALSE)","v":-0.2118002626773309},{"$f":"VLOOKUP(VLOOKUP($F12,'Data BI Summary'!$A:$F,MATCH(J$1,'Data BI Summary'!$2:$2,0),FALSE),INDIRECT(\"'\"&$E12&\"'!\"&\"$A:$K\"),8,FALSE)","v":-372.0367821971995},{"$f":"VLOOKUP(VLOOKUP($F12,'Data BI Summary'!$A:$F,MATCH(K$1,'Data BI Summary'!$2:$2,0),FALSE),INDIRECT(\"'\"&$E12&\"'!\"&\"$A:$K\"),9,FALSE)","v":-4.4051911139082668E-2}]
[null,"High",{"$f":"VLOOKUP(A$11,'Data Billing Quantities'!A:P,MATCH($B13&\" kWh\",'Data Billing Quantities'!$4:$4,0),FALSE)","v":137890},{"$f":"VLOOKUP(A$11,'Data Billing Quantities'!A:P,MATCH(B13&\" kW\",'Data Billing Quantities'!$4:$4,0),FALSE)","v":340},"BI_WHSI_AUGd_High","BI Template_DemandWHSI",{"$f":"VLOOKUP(VLOOKUP($F13,'Data BI Summary'!$A:$F,MATCH(G$1,'Data BI Summary'!$2:$2,0),FALSE),INDIRECT(\"'\"&$E13&\"'!\"&\"$A:$K\"),4,FALSE)","v":23642.450934742999},{"$f":"VLOOKUP(VLOOKUP($F13,'Data BI Summary'!$A:$F,MATCH(H$1,'Data BI Summary'!$2:$2,0),FALSE),INDIRECT(\"'\"&$E13&\"'!\"&\"$A:$K\"),8,FALSE)","v":-314.50700000000018},{"$f":"VLOOKUP(VLOOKUP($F13,'Data BI Summary'!$A:$F,MATCH(I$1,'Data BI Summary'!$2:$2,0),FALSE),INDIRECT(\"'\"&$E13&\"'!\"&\"$A:$K\"),9,FALSE)","v":-0.27047571706719697},{"$f":"VLOOKUP(VLOOKUP($F13,'Data BI Summary'!$A:$F,MATCH(J$1,'Data BI Summary'!$2:$2,0),FALSE),INDIRECT(\"'\"&$E13&\"'!\"&\"$A:$K\"),8,FALSE)","v":-991.63430025300113},{"$f":"VLOOKUP(VLOOKUP($F13,'Data BI Summary'!$A:$F,MATCH(K$1,'Data BI Summary'!$2:$2,0),FALSE),INDIRECT(\"'\"&$E13&\"'!\"&\"$A:$K\"),9,FALSE)","v":-4.1942956886748872E-2}]
["St Lgt-WHSI","Average",{"$f":"VLOOKUP(A14,'Data Billing Quantities'!A:P,MATCH($B14&\" kWh\",'Data Billing Quantities'!$4:$4,0),FALSE)","v":37079},{"$f":"VLOOKUP(A$14,'Data Billing Quantities'!A:P,MATCH(B14&\" kW\",'Data Billing Quantities'!$4:$4,0),FALSE)","v":104},"BI_WHSI_StLgt_Avg","BI Template_unmWHSI",{"$f":"VLOOKUP(VLOOKUP($F14,'Data BI Summary'!$A:$F,MATCH(G$1,'Data BI Summary'!$2:$2,0),FALSE),INDIRECT(\"'\"&$E14&\"'!\"&\"$A:$K\"),4,FALSE)","v":10088.0684150493},{"$f":"VLOOKUP(VLOOKUP($F14,'Data BI Summary'!$A:$F,MATCH(H$1,'Data BI Summary'!$2:$2,0),FALSE),INDIRECT(\"'\"&$E14&\"'!\"&\"$A:$K\"),8,FALSE)","v":65.887099999999464},{"$f":"VLOOKUP(VLOOKUP($F14,'Data BI Summary'!$A:$F,MATCH(I$1,'Data BI Summary'!$2:$2,0),FALSE),INDIRECT(\"'\"&$E14&\"'!\"&\"$A:$K\"),9,FALSE)","v":1.7019967736842272E-2},{"$f":"VLOOKUP(VLOOKUP($F14,'Data BI Summary'!$A:$F,MATCH(J$1,'Data BI Summary'!$2:$2,0),FALSE),INDIRECT(\"'\"&$E14&\"'!\"&\"$A:$K\"),8,FALSE)","v":235.21539745869995},{"$f":"VLOOKUP(VLOOKUP($F14,'Data BI Summary'!$A:$F,MATCH(K$1,'Data BI Summary'!$2:$2,0),FALSE),INDIRECT(\"'\"&$E14&\"'!\"&\"$A:$K\"),9,FALSE)","v":2.3316197688331246E-2},"Two-tier RPP"]
["USL-WHSI","Average",{"$f":"VLOOKUP(A15,'Data Billing Quantities'!A:P,MATCH($B15&\" kWh\",'Data Billing Quantities'!$4:$4,0),FALSE)","v":1349},null,"BI_WHSI_USL_Avg","BI Template_unmWHSI",{"$f":"VLOOKUP(VLOOKUP($F15,'Data BI Summary'!$A:$F,MATCH(G$1,'Data BI Summary'!$2:$2,0),FALSE),INDIRECT(\"'\"&$E15&\"'!\"&\"$A:$K\"),4,FALSE)","v":191.87733491628001},{"$f":"VLOOKUP(VLOOKUP($F15,'Data BI Summary'!$A:$F,MATCH(H$1,'Data BI Summary'!$2:$2,0),FALSE),INDIRECT(\"'\"&$E15&\"'!\"&\"$A:$K\"),8,FALSE)","v":34.167299999999997},{"$f":"VLOOKUP(VLOOKUP($F15,'Data BI Summary'!$A:$F,MATCH(I$1,'Data BI Summary'!$2:$2,0),FALSE),INDIRECT(\"'\"&$E15&\"'!\"&\"$A:$K\"),9,FALSE)","v":1.1791341979390266},{"$f":"VLOOKUP(VLOOKUP($F15,'Data BI Summary'!$A:$F,MATCH(J$1,'Data BI Summary'!$2:$2,0),FALSE),INDIRECT(\"'\"&$E15&\"'!\"&\"$A:$K\"),8,FALSE)","v":35.983876623719993},{"$f":"VLOOKUP(VLOOKUP($F15,'Data BI Summary'!$A:$F,MATCH(K$1,'Data BI Summary'!$2:$2,0),FALSE),INDIRECT(\"'\"&$E15&\"'!\"&\"$A:$K\"),9,FALSE)","v":0.18753583709832375},"Two-tier RPP"]
["ST-WHSI","Average",{"$f":"VLOOKUP(A16,'Data Billing Quantities'!A:P,MATCH($B16&\" kWh\",'Data Billing Quantities'!$4:$4,0),FALSE)","v":895853},{"$f":"VLOOKUP(A$16,'Data Billing Quantities'!A:P,MATCH(B16&\" kW\",'Data Billing Quantities'!$4:$4,0),FALSE)","v":3301},"BI_WHSI_ST_Avg","BI Template_DemandWHSI",{"$f":"VLOOKUP(VLOOKUP($F16,'Data BI Summary'!$A:$F,MATCH(G$1,'Data BI Summary'!$2:$2,0),FALSE),INDIRECT(\"'\"&$E16&\"'!\"&\"$A:$K\"),4,FALSE)","v":164291.5760648406},{"$f":"VLOOKUP(VLOOKUP($F16,'Data BI Summary'!$A:$F,MATCH(H$1,'Data BI Summary'!$2:$2,0),FALSE),INDIRECT(\"'\"&$E16&\"'!\"&\"$A:$K\"),8,FALSE)","v":-5697.7055},{"$f":"VLOOKUP(VLOOKUP($F16,'Data BI Summary'!$A:$F,MATCH(I$1,'Data BI Summary'!$2:$2,0),FALSE),INDIRECT(\"'\"&$E16&\"'!\"&\"$A:$K\"),9,FALSE)","v":-0.49617378684115332},{"$f":"VLOOKUP(VLOOKUP($F16,'Data BI Summary'!$A:$F,MATCH(J$1,'Data BI Summary'!$2:$2,0),FALSE),INDIRECT(\"'\"&$E16&\"'!\"&\"$A:$K\"),8,FALSE)","v":-1667.2162750865973},{"$f":"VLOOKUP(VLOOKUP($F16,'Data BI Summary'!$A:$F,MATCH(K$1,'Data BI Summary'!$2:$2,0),FALSE),INDIRECT(\"'\"&$E16&\"'!\"&\"$A:$K\"),9,FALSE)","v":-1.014791089732197E-2},"WAHSP"]
["NPDI to HONI"]
["AR-NPDI","Low",{"$f":"VLOOKUP(A$18,'Data Billing Quantities'!A:P,MATCH($B18&\" kWh\",'Data Billing Quantities'!$4:$4,0),FALSE)","v":290},null,"BI_NPDI_AR_Low","BI Template_EnergyNPDI",{"$f":"VLOOKUP(VLOOKUP($F18,'Data BI Summary'!$A:$F,MATCH(G$1,'Data BI Summary'!$2:$2,0),FALSE),INDIRECT(\"'\"&$E18&\"'!\"&\"$A:$K\"),4,FALSE)","v":71.934433641919981},{"$f":"VLOOKUP(VLOOKUP($F18,'Data BI Summary'!$A:$F,MATCH(H$1,'Data BI Summary'!$2:$2,0),FALSE),INDIRECT(\"'\"&$E18&\"'!\"&\"$A:$K\"),8,FALSE)","v":-3.2140000000000057},{"$f":"VLOOKUP(VLOOKUP($F18,'Data BI Summary'!$A:$F,MATCH(I$1,'Data BI Summary'!$2:$2,0),FALSE),INDIRECT(\"'\"&$E18&\"'!\"&\"$A:$K\"),9,FALSE)","v":-8.2391243046476603E-2},{"$f":"VLOOKUP(VLOOKUP($F18,'Data BI Summary'!$A:$F,MATCH(J$1,'Data BI Summary'!$2:$2,0),FALSE),INDIRECT(\"'\"&$E18&\"'!\"&\"$A:$K\"),8,FALSE)","v":-1.237612534719986},{"$f":"VLOOKUP(VLOOKUP($F18,'Data BI Summary'!$A:$F,MATCH(K$1,'Data BI Summary'!$2:$2,0),FALSE),INDIRECT(\"'\"&$E18&\"'!\"&\"$A:$K\"),9,FALSE)","v":-1.7204730364329499E-2},"TOU"]
[null,"Typical",{"$f":"VLOOKUP(A$18,'Data Billing Quantities'!A:P,MATCH($B19&\" kWh\",'Data Billing Quantities'!$4:$4,0),FALSE)","v":750},null,"BI_NPDI_AR_Typical","BI Template_EnergyNPDI",{"$f":"VLOOKUP(VLOOKUP($F19,'Data BI Summary'!$A:$F,MATCH(G$1,'Data BI Summary'!$2:$2,0),FALSE),INDIRECT(\"'\"&$E19&\"'!\"&\"$A:$K\"),4,FALSE)","v":127.06388493599994},{"$f":"VLOOKUP(VLOOKUP($F19,'Data BI Summary'!$A:$F,MATCH(H$1,'Data BI Summary'!$2:$2,0),FALSE),INDIRECT(\"'\"&$E19&\"'!\"&\"$A:$K\"),8,FALSE)","v":-3.9499999999999957},{"$f":"VLOOKUP(VLOOKUP($F19,'Data BI Summary'!$A:$F,MATCH(I$1,'Data BI Summary'!$2:$2,0),FALSE),INDIRECT(\"'\"&$E19&\"'!\"&\"$A:$K\"),9,FALSE)","v":-9.9962039731747346E-2},{"$f":"VLOOKUP(VLOOKUP($F19,'Data BI Summary'!$A:$F,MATCH(J$1,'Data BI Summary'!$2:$2,0),FALSE),INDIRECT(\"'\"&$E19&\"'!\"&\"$A:$K\"),8,FALSE)","v":0.9039848240000623},{"$f":"VLOOKUP(VLOOKUP($F19,'Data BI Summary'!$A:$F,MATCH(K$1,'Data BI Summary'!$2:$2,0),FALSE),INDIRECT(\"'\"&$E19&\"'!\"&\"$A:$K\"),9,FALSE)","v":7.1144119704460882E-3}]
[null,"Average",{"$f":"VLOOKUP(A$18,'Data Billing Quantities'!A:P,MATCH($B20&\" kWh\",'Data Billing Quantities'!$4:$4,0),FALSE)","v":692},null,"BI_NPDI_AR_Avg","BI Template_EnergyNPDI",{"$f":"VLOOKUP(VLOOKUP($F20,'Data BI Summary'!$A:$F,MATCH(G$1,'Data BI Summary'!$2:$2,0),FALSE),INDIRECT(\"'\"&$E20&\"'!\"&\"$A:$K\"),4,FALSE)","v":120.11278020761598},{"$f":"VLOOKUP(VLOOKUP($F20,'Data BI Summary'!$A:$F,MATCH(H$1,'Data BI Summary'!$2:$2,0),FALSE),INDIRECT(\"'\"&$E20&\"'!\"&\"$A:$K\"),8,FALSE)","v":-3.8571999999999917},{"$f":"VLOOKUP(VLOOKUP($F20,'Data BI Summary'!$A:$F,MATCH(I$1,'Data BI Summary'!$2:$2,0),FALSE),INDIRECT(\"'\"&$E20&\"'!\"&\"$A:$K\"),9,FALSE)","v":-9.7771423936407323E-2},{"$f":"VLOOKUP(VLOOKUP($F20,'Data BI Summary'!$A:$F,MATCH(J$1,'Data BI Summary'!$2:$2,0),FALSE),INDIRECT(\"'\"&$E20&\"'!\"&\"$A:$K\"),8,FALSE)","v":0.63395733094401407},{"$f":"VLOOKUP(VLOOKUP($F20,'Data BI Summary'!$A:$F,MATCH(K$1,'Data BI Summary'!$2:$2,0),FALSE),INDIRECT(\"'\"&$E20&\"'!\"&\"$A:$K\"),9,FALSE)","v":5.2780172921500388E-3}]
[null,"High",{"$f":"VLOOKUP(A$18,'Data Billing Quantities'!A:P,MATCH($B21&\" kWh\",'Data Billing Quantities'!$4:$4,0),FALSE)","v":1230},null,"BI_NPDI_AR_High","BI Template_EnergyNPDI",{"$f":"VLOOKUP(VLOOKUP($F21,'Data BI Summary'!$A:$F,MATCH(G$1,'Data BI Summary'!$2:$2,0),FALSE),INDIRECT(\"'\"&$E21&\"'!\"&\"$A:$K\"),4,FALSE)","v":184.59026889504003},{"$f":"VLOOKUP(VLOOKUP($F21,'Data BI Summary'!$A:$F,MATCH(H$1,'Data BI Summary'!$2:$2,0),FALSE),INDIRECT(\"'\"&$E21&\"'!\"&\"$A:$K\"),8,FALSE)","v":-4.7180000000000035},{"$f":"VLOOKUP(VLOOKUP($F21,'Data BI Summary'!$A:$F,MATCH(I$1,'Data BI Summary'!$2:$2,0),FALSE),INDIRECT(\"'\"&$E21&\"'!\"&\"$A:$K\"),9,FALSE)","v":-0.11782333990959727},{"$f":"VLOOKUP(VLOOKUP($F21,'Data BI Summary'!$A:$F,MATCH(J$1,'Data BI Summary'!$2:$2,0),FALSE),INDIRECT(\"'\"&$E21&\"'!\"&\"$A:$K\"),8,FALSE)","v":3.1386951113599935},{"$f":"VLOOKUP(VLOOKUP($F21,'Data BI Summary'!$A:$F,MATCH(K$1,'Data BI Summary'!$2:$2,0),FALSE),INDIRECT(\"'\"&$E21&\"'!\"&\"$A:$K\"),9,FALSE)","v":1.7003578412601417E-2}]
["AGSe-NPDI","Low",{"$f":"VLOOKUP(A$22,'Data Billing Quantities'!A:P,MATCH($B22&\" kWh\",'Data Billing Quantities'!$4:$4,0),FALSE)","v":110},null,"BI_NPDI_AGSe_Low","BI Template_EnergyNPDI",{"$f":"VLOOKUP(VLOOKUP($F22,'Data BI Summary'!$A:$F,MATCH(G$1,'Data BI Summary'!$2:$2,0),FALSE),INDIRECT(\"'\"&$E22&\"'!\"&\"$A:$K\"),4,FALSE)","v":64.940534100479994},{"$f":"VLOOKUP(VLOOKUP($F22,'Data BI Summary'!$A:$F,MATCH(H$1,'Data BI Summary'!$2:$2,0),FALSE),INDIRECT(\"'\"&$E22&\"'!\"&\"$A:$K\"),8,FALSE)","v":-14.967000000000006},{"$f":"VLOOKUP(VLOOKUP($F22,'Data BI Summary'!$A:$F,MATCH(I$1,'Data BI Summary'!$2:$2,0),FALSE),INDIRECT(\"'\"&$E22&\"'!\"&\"$A:$K\"),9,FALSE)","v":-0.27491137519975029},{"$f":"VLOOKUP(VLOOKUP($F22,'Data BI Summary'!$A:$F,MATCH(J$1,'Data BI Summary'!$2:$2,0),FALSE),INDIRECT(\"'\"&$E22&\"'!\"&\"$A:$K\"),8,FALSE)","v":-13.64945011167999},{"$f":"VLOOKUP(VLOOKUP($F22,'Data BI Summary'!$A:$F,MATCH(K$1,'Data BI Summary'!$2:$2,0),FALSE),INDIRECT(\"'\"&$E22&\"'!\"&\"$A:$K\"),9,FALSE)","v":-0.21018382895589863},"TOU"]
[null,"Typical",{"$f":"VLOOKUP(A$22,'Data Billing Quantities'!A:P,MATCH($B23&\" kWh\",'Data Billing Quantities'!$4:$4,0),FALSE)","v":2000},null,"BI_NPDI_AGSe_Typical","BI Template_EnergyNPDI",{"$f":"VLOOKUP(VLOOKUP($F23,'Data BI Summary'!$A:$F,MATCH(G$1,'Data BI Summary'!$2:$2,0),FALSE),INDIRECT(\"'\"&$E23&\"'!\"&\"$A:$K\"),4,FALSE)","v":318.00765273599995},{"$f":"VLOOKUP(VLOOKUP($F23,'Data BI Summary'!$A:$F,MATCH(H$1,'Data BI Summary'!$2:$2,0),FALSE),INDIRECT(\"'\"&$E23&\"'!\"&\"$A:$K\"),8,FALSE)","v":-16.290000000000006},{"$f":"VLOOKUP(VLOOKUP($F23,'Data BI Summary'!$A:$F,MATCH(I$1,'Data BI Summary'!$2:$2,0),FALSE),INDIRECT(\"'\"&$E23&\"'!\"&\"$A:$K\"),9,FALSE)","v":-0.18694055542804688},{"$f":"VLOOKUP(VLOOKUP($F23,'Data BI Summary'!$A:$F,MATCH(J$1,'Data BI Summary'!$2:$2,0),FALSE),INDIRECT(\"'\"&$E23&\"'!\"&\"$A:$K\"),8,FALSE)","v":-7.4289465759999302},{"$f":"VLOOKUP(VLOOKUP($F23,'Data BI Summary'!$A:$F,MATCH(K$1,'Data BI Summary'!$2:$2,0),FALSE),INDIRECT(\"'\"&$E23&\"'!\"&\"$A:$K\"),9,FALSE)","v":-2.3360905035097412E-2}]
[null,"Average",{"$f":"VLOOKUP(A$22,'Data Billing Quantities'!A:P,MATCH($B24&\" kWh\",'Data Billing Quantities'!$4:$4,0),FALSE)","v":2377},null,"BI_NPDI_AGSe_Avg","BI Template_EnergyNPDI",{"$f":"VLOOKUP(VLOOKUP($F24,'Data BI Summary'!$A:$F,MATCH(G$1,'Data BI Summary'!$2:$2,0),FALSE),INDIRECT(\"'\"&$E24&\"'!\"&\"$A:$K\"),4,FALSE)","v":368.48717851673598},{"$f":"VLOOKUP(VLOOKUP($F24,'Data BI Summary'!$A:$F,MATCH(H$1,'Data BI Summary'!$2:$2,0),FALSE),INDIRECT(\"'\"&$E24&\"'!\"&\"$A:$K\"),8,FALSE)","v":-16.553900000000013},{"$f":"VLOOKUP(VLOOKUP($F24,'Data BI Summary'!$A:$F,MATCH(I$1,'Data BI Summary'!$2:$2,0),FALSE),INDIRECT(\"'\"&$E24&\"'!\"&\"$A:$K\"),9,FALSE)","v":-0.17674064536242526},{"$f":"VLOOKUP(VLOOKUP($F24,'Data BI Summary'!$A:$F,MATCH(J$1,'Data BI Summary'!$2:$2,0),FALSE),INDIRECT(\"'\"&$E24&\"'!\"&\"$A:$K\"),8,FALSE)","v":-6.1881371405759182},{"$f":"VLOOKUP(VLOOKUP($F24,'Data BI Summary'!$A:$F,MATCH(K$1,'Data BI Summary'!$2:$2,0),FALSE),INDIRECT(\"'\"&$E24&\"'!\"&\"$A:$K\"),9,FALSE)","v":-1.6793358090463017E-2}]
[null,"High",{"$f":"VLOOKUP(A$22,'Data Billing Quantities'!A:P,MATCH($B25&\" kWh\",'Data Billing Quantities'!$4:$4,0),FALSE)","v":6410},null,"BI_NPDI_AGSe_High","BI Template_EnergyNPDI",{"$f":"VLOOKUP(VLOOKUP($F25,'Data BI Summary'!$A:$F,MATCH(G$1,'Data BI Summary'!$2:$2,0),FALSE),INDIRECT(\"'\"&$E25&\"'!\"&\"$A:$K\"),4,FALSE)","v":908.49759621888018},{"$f":"VLOOKUP(VLOOKUP($F25,'Data BI Summary'!$A:$F,MATCH(H$1,'Data BI Summary'!$2:$2,0),FALSE),INDIRECT(\"'\"&$E25&\"'!\"&\"$A:$K\"),8,FALSE)","v":-19.377000000000038},{"$f":"VLOOKUP(VLOOKUP($F25,'Data BI Summary'!$A:$F,MATCH(I$1,'Data BI Summary'!$2:$2,0),FALSE),INDIRECT(\"'\"&$E25&\"'!\"&\"$A:$K\"),9,FALSE)","v":-0.11856234664969764},{"$f":"VLOOKUP(VLOOKUP($F25,'Data BI Summary'!$A:$F,MATCH(J$1,'Data BI Summary'!$2:$2,0),FALSE),INDIRECT(\"'\"&$E25&\"'!\"&\"$A:$K\"),8,FALSE)","v":7.0855616739199831},{"$f":"VLOOKUP(VLOOKUP($F25,'Data BI Summary'!$A:$F,MATCH(K$1,'Data BI Summary'!$2:$2,0),FALSE),INDIRECT(\"'\"&$E25&\"'!\"&\"$A:$K\"),9,FALSE)","v":7.7992079488264174E-3}]
["AGSd-NPDI","Low",{"$f":"VLOOKUP(A$26,'Data Billing Quantities'!A:P,MATCH($B26&\" kWh\",'Data Billing Quantities'!$4:$4,0),FALSE)","v":13020},{"$f":"VLOOKUP(A$26,'Data Billing Quantities'!A:P,MATCH(B26&\" kW\",'Data Billing Quantities'!$4:$4,0),FALSE)","v":55},"BI_NPDI_AGSd_Low","BI Template_DemandNPDI",{"$f":"VLOOKUP(VLOOKUP($F26,'Data BI Summary'!$A:$F,MATCH(G$1,'Data BI Summary'!$2:$2,0),FALSE),INDIRECT(\"'\"&$E26&\"'!\"&\"$A:$K\"),4,FALSE)","v":2737.7694592560001},{"$f":"VLOOKUP(VLOOKUP($F26,'Data BI Summary'!$A:$F,MATCH(H$1,'Data BI Summary'!$2:$2,0),FALSE),INDIRECT(\"'\"&$E26&\"'!\"&\"$A:$K\"),8,FALSE)","v":-124.7235},{"$f":"VLOOKUP(VLOOKUP($F26,'Data BI Summary'!$A:$F,MATCH(I$1,'Data BI Summary'!$2:$2,0),FALSE),INDIRECT(\"'\"&$E26&\"'!\"&\"$A:$K\"),9,FALSE)","v":-0.24693150872066261},{"$f":"VLOOKUP(VLOOKUP($F26,'Data BI Summary'!$A:$F,MATCH(J$1,'Data BI Summary'!$2:$2,0),FALSE),INDIRECT(\"'\"&$E26&\"'!\"&\"$A:$K\"),8,FALSE)","v":-129.45727163599986},{"$f":"VLOOKUP(VLOOKUP($F26,'Data BI Summary'!$A:$F,MATCH(K$1,'Data BI Summary'!$2:$2,0),FALSE),INDIRECT(\"'\"&$E26&\"'!\"&\"$A:$K\"),9,FALSE)","v":-4.7285673086286964E-2},"WAHSP"]
[null,"Average",{"$f":"VLOOKUP(A$26,'Data Billing Quantities'!A:P,MATCH($B27&\" kWh\",'Data Billing Quantities'!$4:$4,0),FALSE)","v":70294},{"$f":"VLOOKUP(A$26,'Data Billing Quantities'!A:P,MATCH(B27&\" kW\",'Data Billing Quantities'!$4:$4,0),FALSE)","v":181},"BI_NPDI_AGSd_Avg","BI Template_DemandNPDI",{"$f":"VLOOKUP(VLOOKUP($F27,'Data BI Summary'!$A:$F,MATCH(G$1,'Data BI Summary'!$2:$2,0),FALSE),INDIRECT(\"'\"&$E27&\"'!\"&\"$A:$K\"),4,FALSE)","v":12329.327455483202},{"$f":"VLOOKUP(VLOOKUP($F27,'Data BI Summary'!$A:$F,MATCH(H$1,'Data BI Summary'!$2:$2,0),FALSE),INDIRECT(\"'\"&$E27&\"'!\"&\"$A:$K\"),8,FALSE)","v":-230.4486999999998},{"$f":"VLOOKUP(VLOOKUP($F27,'Data BI Summary'!$A:$F,MATCH(I$1,'Data BI Summary'!$2:$2,0),FALSE),INDIRECT(\"'\"&$E27&\"'!\"&\"$A:$K\"),9,FALSE)","v":-0.21521257509719158},{"$f":"VLOOKUP(VLOOKUP($F27,'Data BI Summary'!$A:$F,MATCH(J$1,'Data BI Summary'!$2:$2,0),FALSE),INDIRECT(\"'\"&$E27&\"'!\"&\"$A:$K\"),8,FALSE)","v":-197.46944906920362},{"$f":"VLOOKUP(VLOOKUP($F27,'Data BI Summary'!$A:$F,MATCH(K$1,'Data BI Summary'!$2:$2,0),FALSE),INDIRECT(\"'\"&$E27&\"'!\"&\"$A:$K\"),9,FALSE)","v":-1.6016238499804249E-2}]
[null,"High",{"$f":"VLOOKUP(A$26,'Data Billing Quantities'!A:P,MATCH($B28&\" kWh\",'Data Billing Quantities'!$4:$4,0),FALSE)","v":129420},{"$f":"VLOOKUP(A$26,'Data Billing Quantities'!A:P,MATCH(B28&\" kW\",'Data Billing Quantities'!$4:$4,0),FALSE)","v":300},"BI_NPDI_AGSd_High","BI Template_DemandNPDI",{"$f":"VLOOKUP(VLOOKUP($F28,'Data BI Summary'!$A:$F,MATCH(G$1,'Data BI Summary'!$2:$2,0),FALSE),INDIRECT(\"'\"&$E28&\"'!\"&\"$A:$K\"),4,FALSE)","v":22119.550346175998},{"$f":"VLOOKUP(VLOOKUP($F28,'Data BI Summary'!$A:$F,MATCH(H$1,'Data BI Summary'!$2:$2,0),FALSE),INDIRECT(\"'\"&$E28&\"'!\"&\"$A:$K\"),8,FALSE)","v":-333.82400000000007},{"$f":"VLOOKUP(VLOOKUP($F28,'Data BI Summary'!$A:$F,MATCH(I$1,'Data BI Summary'!$2:$2,0),FALSE),INDIRECT(\"'\"&$E28&\"'!\"&\"$A:$K\"),9,FALSE)","v":-0.20798096033194818},{"$f":"VLOOKUP(VLOOKUP($F28,'Data BI Summary'!$A:$F,MATCH(J$1,'Data BI Summary'!$2:$2,0),FALSE),INDIRECT(\"'\"&$E28&\"'!\"&\"$A:$K\"),8,FALSE)","v":-261.07097515600253},{"$f":"VLOOKUP(VLOOKUP($F28,'Data BI Summary'!$A:$F,MATCH(K$1,'Data BI Summary'!$2:$2,0),FALSE),INDIRECT(\"'\"&$E28&\"'!\"&\"$A:$K\"),9,FALSE)","v":-1.1802725239445755E-2}]
["St Lgt-NPDI","Average",{"$f":"VLOOKUP(A$29,'Data Billing Quantities'!A:P,MATCH($B29&\" kWh\",'Data Billing Quantities'!$4:$4,0),FALSE)","v":11389},{"$f":"VLOOKUP(A$29,'Data Billing Quantities'!A:P,MATCH(B29&\" kW\",'Data Billing Quantities'!$4:$4,0),FALSE)","v":39},"BI_NPDI_StLgt_Avg","BI Template_unmNPDI",{"$f":"VLOOKUP(VLOOKUP($F29,'Data BI Summary'!$A:$F,MATCH(G$1,'Data BI Summary'!$2:$2,0),FALSE),INDIRECT(\"'\"&$E29&\"'!\"&\"$A:$K\"),4,FALSE)","v":2402.59477341204},{"$f":"VLOOKUP(VLOOKUP($F29,'Data BI Summary'!$A:$F,MATCH(H$1,'Data BI Summary'!$2:$2,0),FALSE),INDIRECT(\"'\"&$E29&\"'!\"&\"$A:$K\"),8,FALSE)","v":202.52819999999997},{"$f":"VLOOKUP(VLOOKUP($F29,'Data BI Summary'!$A:$F,MATCH(I$1,'Data BI Summary'!$2:$2,0),FALSE),INDIRECT(\"'\"&$E29&\"'!\"&\"$A:$K\"),9,FALSE)","v":0.20166927041039506},{"$f":"VLOOKUP(VLOOKUP($F29,'Data BI Summary'!$A:$F,MATCH(J$1,'Data BI Summary'!$2:$2,0),FALSE),INDIRECT(\"'\"&$E29&\"'!\"&\"$A:$K\"),8,FALSE)","v":227.40792916756027},{"$f":"VLOOKUP(VLOOKUP($F29,'Data BI Summary'!$A:$F,MATCH(K$1,'Data BI Summary'!$2:$2,0),FALSE),INDIRECT(\"'\"&$E29&\"'!\"&\"$A:$K\"),9,FALSE)","v":9.4650971393152317E-2},"Two-tier RPP"]
["Sen Lgt-NPDI","Average",{"$f":"VLOOKUP(A$30,'Data Billing Quantities'!A:P,MATCH($B30&\" kWh\",'Data Billing Quantities'!$4:$4,0),FALSE)","v":108},{"$f":"VLOOKUP(A$30,'Data Billing Quantities'!A:P,MATCH(B30&\" kW\",'Data Billing Quantities'!$4:$4,0),FALSE)","v":0.33680272108843551},"BI_NPDI_SenLgt_Avg","BI Template_unmNPDI",{"$f":"VLOOKUP(VLOOKUP($F30,'Data BI Summary'!$A:$F,MATCH(G$1,'Data BI Summary'!$2:$2,0),FALSE),INDIRECT(\"'\"&$E30&\"'!\"&\"$A:$K\"),4,FALSE)","v":25.285189093752109},{"$f":"VLOOKUP(VLOOKUP($F30,'Data BI Summary'!$A:$F,MATCH(H$1,'Data BI Summary'!$2:$2,0),FALSE),INDIRECT(\"'\"&$E30&\"'!\"&\"$A:$K\"),8,FALSE)","v":5.5877386258503332},{"$f":"VLOOKUP(VLOOKUP($F30,'Data BI Summary'!$A:$F,MATCH(I$1,'Data BI Summary'!$2:$2,0),FALSE),INDIRECT(\"'\"&$E30&\"'!\"&\"$A:$K\"),9,FALSE)","v":0.4033693219613067},{"$f":"VLOOKUP(VLOOKUP($F30,'Data BI Summary'!$A:$F,MATCH(J$1,'Data BI Summary'!$2:$2,0),FALSE),INDIRECT(\"'\"&$E30&\"'!\"&\"$A:$K\"),8,FALSE)","v":5.6396948854478879},{"$f":"VLOOKUP(VLOOKUP($F30,'Data BI Summary'!$A:$F,MATCH(K$1,'Data BI Summary'!$2:$2,0),FALSE),INDIRECT(\"'\"&$E30&\"'!\"&\"$A:$K\"),9,FALSE)","v":0.223043413459836},"Two-tier RPP"]
["USL-NPDI","Average",{"$f":"VLOOKUP(A$31,'Data Billing Quantities'!A:P,MATCH($B31&\" kWh\",'Data Billing Quantities'!$4:$4,0),FALSE)","v":904},null,"BI_NPDI_USL_Avg","BI Template_unmNPDI",{"$f":"VLOOKUP(VLOOKUP($F31,'Data BI Summary'!$A:$F,MATCH(G$1,'Data BI Summary'!$2:$2,0),FALSE),INDIRECT(\"'\"&$E31&\"'!\"&\"$A:$K\"),4,FALSE)","v":128.97668710304001},{"$f":"VLOOKUP(VLOOKUP($F31,'Data BI Summary'!$A:$F,MATCH(H$1,'Data BI Summary'!$2:$2,0),FALSE),INDIRECT(\"'\"&$E31&\"'!\"&\"$A:$K\"),8,FALSE)","v":27.882000000000001},{"$f":"VLOOKUP(VLOOKUP($F31,'Data BI Summary'!$A:$F,MATCH(I$1,'Data BI Summary'!$2:$2,0),FALSE),INDIRECT(\"'\"&$E31&\"'!\"&\"$A:$K\"),9,FALSE)","v":1.0929488687144269},{"$f":"VLOOKUP(VLOOKUP($F31,'Data BI Summary'!$A:$F,MATCH(J$1,'Data BI Summary'!$2:$2,0),FALSE),INDIRECT(\"'\"&$E31&\"'!\"&\"$A:$K\"),8,FALSE)","v":30.263699136960014},{"$f":"VLOOKUP(VLOOKUP($F31,'Data BI Summary'!$A:$F,MATCH(K$1,'Data BI Summary'!$2:$2,0),FALSE),INDIRECT(\"'\"&$E31&\"'!\"&\"$A:$K\"),9,FALSE)","v":0.2346447239165185},"Two-tier RPP"]
["HCHI to HONI"]
["AR-HCHI","Low",{"$f":"VLOOKUP(A$33,'Data Billing Quantities'!A:P,MATCH($B33&\" kWh\",'Data Billing Quantities'!$4:$4,0),FALSE)","v":250},null,"BI_HCHI_AR_Low","BI Template_EnergyHCHI",{"$f":"VLOOKUP(VLOOKUP($F33,'Data BI Summary'!$A:$F,MATCH(G$1,'Data BI Summary'!$2:$2,0),FALSE),INDIRECT(\"'\"&$E33&\"'!\"&\"$A:$K\"),4,FALSE)","v":66.055014714999984},{"$f":"VLOOKUP(VLOOKUP($F33,'Data BI Summary'!$A:$F,MATCH(H$1,'Data BI Summary'!$2:$2,0),FALSE),INDIRECT(\"'\"&$E33&\"'!\"&\"$A:$K\"),8,FALSE)","v":-1.2199999999999989},{"$f":"VLOOKUP(VLOOKUP($F33,'Data BI Summary'!$A:$F,MATCH(I$1,'Data BI Summary'!$2:$2,0),FALSE),INDIRECT(\"'\"&$E33&\"'!\"&\"$A:$K\"),9,FALSE)","v":-3.2919589854290311E-2},{"$f":"VLOOKUP(VLOOKUP($F33,'Data BI Summary'!$A:$F,MATCH(J$1,'Data BI Summary'!$2:$2,0),FALSE),INDIRECT(\"'\"&$E33&\"'!\"&\"$A:$K\"),8,FALSE)","v":-0.3147597949999863},{"$f":"VLOOKUP(VLOOKUP($F33,'Data BI Summary'!$A:$F,MATCH(K$1,'Data BI Summary'!$2:$2,0),FALSE),INDIRECT(\"'\"&$E33&\"'!\"&\"$A:$K\"),9,FALSE)","v":-4.7651158107835474E-3},"TOU"]
[null,"Typical",{"$f":"VLOOKUP(A$33,'Data Billing Quantities'!A:P,MATCH($B34&\" kWh\",'Data Billing Quantities'!$4:$4,0),FALSE)","v":750},null,"BI_HCHI_AR_Typical","BI Template_EnergyHCHI",{"$f":"VLOOKUP(VLOOKUP($F34,'Data BI Summary'!$A:$F,MATCH(G$1,'Data BI Summary'!$2:$2,0),FALSE),INDIRECT(\"'\"&$E34&\"'!\"&\"$A:$K\"),4,FALSE)","v":127.15718414499999},{"$f":"VLOOKUP(VLOOKUP($F34,'Data BI Summary'!$A:$F,MATCH(H$1,'Data BI Summary'!$2:$2,0),FALSE),INDIRECT(\"'\"&$E34&\"'!\"&\"$A:$K\"),8,FALSE)","v":-1.7199999999999918},{"$f":"VLOOKUP(VLOOKUP($F34,'Data BI Summary'!$A:$F,MATCH(I$1,'Data BI Summary'!$2:$2,0),FALSE),INDIRECT(\"'\"&$E34&\"'!\"&\"$A:$K\"),9,FALSE)","v":-4.603854389721606E-2},{"$f":"VLOOKUP(VLOOKUP($F34,'Data BI Summary'!$A:$F,MATCH(J$1,'Data BI Summary'!$2:$2,0),FALSE),INDIRECT(\"'\"&$E34&\"'!\"&\"$A:$K\"),8,FALSE)","v":0.8812606150000164},{"$f":"VLOOKUP(VLOOKUP($F34,'Data BI Summary'!$A:$F,MATCH(K$1,'Data BI Summary'!$2:$2,0),FALSE),INDIRECT(\"'\"&$E34&\"'!\"&\"$A:$K\"),9,FALSE)","v":6.9304823075910247E-3}]
[null,"Average",{"$f":"VLOOKUP(A$33,'Data Billing Quantities'!A:P,MATCH($B35&\" kWh\",'Data Billing Quantities'!$4:$4,0),FALSE)","v":742},null,"BI_HCHI_AR_Avg","BI Template_EnergyHCHI",{"$f":"VLOOKUP(VLOOKUP($F35,'Data BI Summary'!$A:$F,MATCH(G$1,'Data BI Summary'!$2:$2,0),FALSE),INDIRECT(\"'\"&$E35&\"'!\"&\"$A:$K\"),4,FALSE)","v":126.17954943412001},{"$f":"VLOOKUP(VLOOKUP($F35,'Data BI Summary'!$A:$F,MATCH(H$1,'Data BI Summary'!$2:$2,0),FALSE),INDIRECT(\"'\"&$E35&\"'!\"&\"$A:$K\"),8,FALSE)","v":-1.7119999999999962},{"$f":"VLOOKUP(VLOOKUP($F35,'Data BI Summary'!$A:$F,MATCH(I$1,'Data BI Summary'!$2:$2,0),FALSE),INDIRECT(\"'\"&$E35&\"'!\"&\"$A:$K\"),9,FALSE)","v":-4.5830299396067919E-2},{"$f":"VLOOKUP(VLOOKUP($F35,'Data BI Summary'!$A:$F,MATCH(J$1,'Data BI Summary'!$2:$2,0),FALSE),INDIRECT(\"'\"&$E35&\"'!\"&\"$A:$K\"),8,FALSE)","v":0.86212428844001465},{"$f":"VLOOKUP(VLOOKUP($F35,'Data BI Summary'!$A:$F,MATCH(K$1,'Data BI Summary'!$2:$2,0),FALSE),INDIRECT(\"'\"&$E35&\"'!\"&\"$A:$K\"),9,FALSE)","v":6.8325199472212498E-3}]
[null,"High",{"$f":"VLOOKUP(A$33,'Data Billing Quantities'!A:P,MATCH($B36&\" kWh\",'Data Billing Quantities'!$4:$4,0),FALSE)","v":1410},null,"BI_HCHI_AR_High","BI Template_EnergyHCHI",{"$f":"VLOOKUP(VLOOKUP($F36,'Data BI Summary'!$A:$F,MATCH(G$1,'Data BI Summary'!$2:$2,0),FALSE),INDIRECT(\"'\"&$E36&\"'!\"&\"$A:$K\"),4,FALSE)","v":207.81204779260003},{"$f":"VLOOKUP(VLOOKUP($F36,'Data BI Summary'!$A:$F,MATCH(H$1,'Data BI Summary'!$2:$2,0),FALSE),INDIRECT(\"'\"&$E36&\"'!\"&\"$A:$K\"),8,FALSE)","v":-2.3800000000000026},{"$f":"VLOOKUP(VLOOKUP($F36,'Data BI Summary'!$A:$F,MATCH(I$1,'Data BI Summary'!$2:$2,0),FALSE),INDIRECT(\"'\"&$E36&\"'!\"&\"$A:$K\"),9,FALSE)","v":-6.3036338595190242E-2},{"$f":"VLOOKUP(VLOOKUP($F36,'Data BI Summary'!$A:$F,MATCH(J$1,'Data BI Summary'!$2:$2,0),FALSE),INDIRECT(\"'\"&$E36&\"'!\"&\"$A:$K\"),8,FALSE)","v":2.4600075561999688},{"$f":"VLOOKUP(VLOOKUP($F36,'Data BI Summary'!$A:$F,MATCH(K$1,'Data BI Summary'!$2:$2,0),FALSE),INDIRECT(\"'\"&$E36&\"'!\"&\"$A:$K\"),9,FALSE)","v":1.183765610478512E-2}]
["AGSe-HCHI","Low",{"$f":"VLOOKUP(A$37,'Data Billing Quantities'!A:P,MATCH($B37&\" kWh\",'Data Billing Quantities'!$4:$4,0),FALSE)","v":90},null,"BI_HCHI_AGSe_Low","BI Template_EnergyHCHI",{"$f":"VLOOKUP(VLOOKUP($F37,'Data BI Summary'!$A:$F,MATCH(G$1,'Data BI Summary'!$2:$2,0),FALSE),INDIRECT(\"'\"&$E37&\"'!\"&\"$A:$K\"),4,FALSE)","v":39.575163582899997},{"$f":"VLOOKUP(VLOOKUP($F37,'Data BI Summary'!$A:$F,MATCH(H$1,'Data BI Summary'!$2:$2,0),FALSE),INDIRECT(\"'\"&$E37&\"'!\"&\"$A:$K\"),8,FALSE)","v":9.4449999999999967},{"$f":"VLOOKUP(VLOOKUP($F37,'Data BI Summary'!$A:$F,MATCH(I$1,'Data BI Summary'!$2:$2,0),FALSE),INDIRECT(\"'\"&$E37&\"'!\"&\"$A:$K\"),9,FALSE)","v":0.31792783088730298},{"$f":"VLOOKUP(VLOOKUP($F37,'Data BI Summary'!$A:$F,MATCH(J$1,'Data BI Summary'!$2:$2,0),FALSE),INDIRECT(\"'\"&$E37&\"'!\"&\"$A:$K\"),8,FALSE)","v":8.980605044299999},{"$f":"VLOOKUP(VLOOKUP($F37,'Data BI Summary'!$A:$F,MATCH(K$1,'Data BI Summary'!$2:$2,0),FALSE),INDIRECT(\"'\"&$E37&\"'!\"&\"$A:$K\"),9,FALSE)","v":0.22692527917131394},"TOU"]
[null,"Typical",{"$f":"VLOOKUP(A$37,'Data Billing Quantities'!A:P,MATCH($B38&\" kWh\",'Data Billing Quantities'!$4:$4,0),FALSE)","v":2000},null,"BI_HCHI_AGSe_Typical","BI Template_EnergyHCHI",{"$f":"VLOOKUP(VLOOKUP($F38,'Data BI Summary'!$A:$F,MATCH(G$1,'Data BI Summary'!$2:$2,0),FALSE),INDIRECT(\"'\"&$E38&\"'!\"&\"$A:$K\"),4,FALSE)","v":306.10618962000001},{"$f":"VLOOKUP(VLOOKUP($F38,'Data BI Summary'!$A:$F,MATCH(H$1,'Data BI Summary'!$2:$2,0),FALSE),INDIRECT(\"'\"&$E38&\"'!\"&\"$A:$K\"),8,FALSE)","v":2.7599999999999909},{"$f":"VLOOKUP(VLOOKUP($F38,'Data BI Summary'!$A:$F,MATCH(I$1,'Data BI Summary'!$2:$2,0),FALSE),INDIRECT(\"'\"&$E38&\"'!\"&\"$A:$K\"),9,FALSE)","v":4.0415873480743748E-2},{"$f":"VLOOKUP(VLOOKUP($F38,'Data BI Summary'!$A:$F,MATCH(J$1,'Data BI Summary'!$2:$2,0),FALSE),INDIRECT(\"'\"&$E38&\"'!\"&\"$A:$K\"),8,FALSE)","v":4.6607165400000099},{"$f":"VLOOKUP(VLOOKUP($F38,'Data BI Summary'!$A:$F,MATCH(K$1,'Data BI Summary'!$2:$2,0),FALSE),INDIRECT(\"'\"&$E38&\"'!\"&\"$A:$K\"),9,FALSE)","v":1.5225816066593819E-2}]
[null,"Average",{"$f":"VLOOKUP(A$37,'Data Billing Quantities'!A:P,MATCH($B39&\" kWh\",'Data Billing Quantities'!$4:$4,0),FALSE)","v":2261},null,"BI_HCHI_AGSe_Avg","BI Template_EnergyHCHI",{"$f":"VLOOKUP(VLOOKUP($F39,'Data BI Summary'!$A:$F,MATCH(G$1,'Data BI Summary'!$2:$2,0),FALSE),INDIRECT(\"'\"&$E39&\"'!\"&\"$A:$K\"),4,FALSE)","v":342.52744501040991},{"$f":"VLOOKUP(VLOOKUP($F39,'Data BI Summary'!$A:$F,MATCH(H$1,'Data BI Summary'!$2:$2,0),FALSE),INDIRECT(\"'\"&$E39&\"'!\"&\"$A:$K\"),8,FALSE)","v":1.8464999999999918},{"$f":"VLOOKUP(VLOOKUP($F39,'Data BI Summary'!$A:$F,MATCH(I$1,'Data BI Summary'!$2:$2,0),FALSE),INDIRECT(\"'\"&$E39&\"'!\"&\"$A:$K\"),9,FALSE)","v":2.5101206869832492E-2},{"$f":"VLOOKUP(VLOOKUP($F39,'Data BI Summary'!$A:$F,MATCH(J$1,'Data BI Summary'!$2:$2,0),FALSE),INDIRECT(\"'\"&$E39&\"'!\"&\"$A:$K\"),8,FALSE)","v":4.0704071684700693},{"$f":"VLOOKUP(VLOOKUP($F39,'Data BI Summary'!$A:$F,MATCH(K$1,'Data BI Summary'!$2:$2,0),FALSE),INDIRECT(\"'\"&$E39&\"'!\"&\"$A:$K\"),9,FALSE)","v":1.1883448254332915E-2}]
[null,"High",{"$f":"VLOOKUP(A$37,'Data Billing Quantities'!A:P,MATCH($B40&\" kWh\",'Data Billing Quantities'!$4:$4,0),FALSE)","v":5430},null,"BI_HCHI_AGSe_High","BI Template_EnergyHCHI",{"$f":"VLOOKUP(VLOOKUP($F40,'Data BI Summary'!$A:$F,MATCH(G$1,'Data BI Summary'!$2:$2,0),FALSE),INDIRECT(\"'\"&$E40&\"'!\"&\"$A:$K\"),4,FALSE)","v":784.74567616829995},{"$f":"VLOOKUP(VLOOKUP($F40,'Data BI Summary'!$A:$F,MATCH(H$1,'Data BI Summary'!$2:$2,0),FALSE),INDIRECT(\"'\"&$E40&\"'!\"&\"$A:$K\"),8,FALSE)","v":-9.2449999999999761},{"$f":"VLOOKUP(VLOOKUP($F40,'Data BI Summary'!$A:$F,MATCH(I$1,'Data BI Summary'!$2:$2,0),FALSE),INDIRECT(\"'\"&$E40&\"'!\"&\"$A:$K\"),9,FALSE)","v":-6.7199220794324416E-2},{"$f":"VLOOKUP(VLOOKUP($F40,'Data BI Summary'!$A:$F,MATCH(J$1,'Data BI Summary'!$2:$2,0),FALSE),INDIRECT(\"'\"&$E40&\"'!\"&\"$A:$K\"),8,FALSE)","v":-3.0969889938996857},{"$f":"VLOOKUP(VLOOKUP($F40,'Data BI Summary'!$A:$F,MATCH(K$1,'Data BI Summary'!$2:$2,0),FALSE),INDIRECT(\"'\"&$E40&\"'!\"&\"$A:$K\"),9,FALSE)","v":-3.946487490089072E-3}]
["AGSd-HCHI","Low",{"$f":"VLOOKUP(A$41,'Data Billing Quantities'!A:P,MATCH($B41&\" kWh\",'Data Billing Quantities'!$4:$4,0),FALSE)","v":10880},{"$f":"VLOOKUP(A$41,'Data Billing Quantities'!A:P,MATCH(B41&\" kW\",'Data Billing Quantities'!$4:$4,0),FALSE)","v":55},"BI_HCHI_AGSd_Low","BI Template_DemandHCHI",{"$f":"VLOOKUP(VLOOKUP($F41,'Data BI Summary'!$A:$F,MATCH(G$1,'Data BI Summary'!$2:$2,0),FALSE),INDIRECT(\"'\"&$E41&\"'!\"&\"$A:$K\"),4,FALSE)","v":2295.0881154479998},{"$f":"VLOOKUP(VLOOKUP($F41,'Data BI Summary'!$A:$F,MATCH(H$1,'Data BI Summary'!$2:$2,0),FALSE),INDIRECT(\"'\"&$E41&\"'!\"&\"$A:$K\"),8,FALSE)","v":60.634000000000071},{"$f":"VLOOKUP(VLOOKUP($F41,'Data BI Summary'!$A:$F,MATCH(I$1,'Data BI Summary'!$2:$2,0),FALSE),INDIRECT(\"'\"&$E41&\"'!\"&\"$A:$K\"),9,FALSE)","v":0.18938892290008646},{"$f":"VLOOKUP(VLOOKUP($F41,'Data BI Summary'!$A:$F,MATCH(J$1,'Data BI Summary'!$2:$2,0),FALSE),INDIRECT(\"'\"&$E41&\"'!\"&\"$A:$K\"),8,FALSE)","v":0.75046283200026664},{"$f":"VLOOKUP(VLOOKUP($F41,'Data BI Summary'!$A:$F,MATCH(K$1,'Data BI Summary'!$2:$2,0),FALSE),INDIRECT(\"'\"&$E41&\"'!\"&\"$A:$K\"),9,FALSE)","v":3.2698650084455547E-4},"WAHSP"]
[null,"Average",{"$f":"VLOOKUP(A$41,'Data Billing Quantities'!A:P,MATCH($B42&\" kWh\",'Data Billing Quantities'!$4:$4,0),FALSE)","v":57529},{"$f":"VLOOKUP(A$41,'Data Billing Quantities'!A:P,MATCH(B42&\" kW\",'Data Billing Quantities'!$4:$4,0),FALSE)","v":175},"BI_HCHI_AGSd_Avg","BI Template_DemandHCHI",{"$f":"VLOOKUP(VLOOKUP($F42,'Data BI Summary'!$A:$F,MATCH(G$1,'Data BI Summary'!$2:$2,0),FALSE),INDIRECT(\"'\"&$E42&\"'!\"&\"$A:$K\"),4,FALSE)","v":10444.6745383284},{"$f":"VLOOKUP(VLOOKUP($F42,'Data BI Summary'!$A:$F,MATCH(H$1,'Data BI Summary'!$2:$2,0),FALSE),INDIRECT(\"'\"&$E42&\"'!\"&\"$A:$K\"),8,FALSE)","v":-7.7803000000001248},{"$f":"VLOOKUP(VLOOKUP($F42,'Data BI Summary'!$A:$F,MATCH(I$1,'Data BI Summary'!$2:$2,0),FALSE),INDIRECT(\"'\"&$E42&\"'!\"&\"$A:$K\"),9,FALSE)","v":-9.3758887469573213E-3},{"$f":"VLOOKUP(VLOOKUP($F42,'Data BI Summary'!$A:$F,MATCH(J$1,'Data BI Summary'!$2:$2,0),FALSE),INDIRECT(\"'\"&$E42&\"'!\"&\"$A:$K\"),8,FALSE)","v":-230.13790787939979},{"$f":"VLOOKUP(VLOOKUP($F42,'Data BI Summary'!$A:$F,MATCH(K$1,'Data BI Summary'!$2:$2,0),FALSE),INDIRECT(\"'\"&$E42&\"'!\"&\"$A:$K\"),9,FALSE)","v":-2.2033995126882318E-2}]
[null,"High",{"$f":"VLOOKUP(A$41,'Data Billing Quantities'!A:P,MATCH($B43&\" kWh\",'Data Billing Quantities'!$4:$4,0),FALSE)","v":135160},{"$f":"VLOOKUP(A$41,'Data Billing Quantities'!A:P,MATCH(B43&\" kW\",'Data Billing Quantities'!$4:$4,0),FALSE)","v":375},"BI_HCHI_AGSd_High","BI Template_DemandHCHI",{"$f":"VLOOKUP(VLOOKUP($F43,'Data BI Summary'!$A:$F,MATCH(G$1,'Data BI Summary'!$2:$2,0),FALSE),INDIRECT(\"'\"&$E43&\"'!\"&\"$A:$K\"),4,FALSE)","v":24010.130714535993},{"$f":"VLOOKUP(VLOOKUP($F43,'Data BI Summary'!$A:$F,MATCH(H$1,'Data BI Summary'!$2:$2,0),FALSE),INDIRECT(\"'\"&$E43&\"'!\"&\"$A:$K\"),8,FALSE)","v":-121.72200000000021},{"$f":"VLOOKUP(VLOOKUP($F43,'Data BI Summary'!$A:$F,MATCH(I$1,'Data BI Summary'!$2:$2,0),FALSE),INDIRECT(\"'\"&$E43&\"'!\"&\"$A:$K\"),9,FALSE)","v":-7.2485499565284828E-2},{"$f":"VLOOKUP(VLOOKUP($F43,'Data BI Summary'!$A:$F,MATCH(J$1,'Data BI Summary'!$2:$2,0),FALSE),INDIRECT(\"'\"&$E43&\"'!\"&\"$A:$K\"),8,FALSE)","v":-614.82971757599807},{"$f":"VLOOKUP(VLOOKUP($F43,'Data BI Summary'!$A:$F,MATCH(K$1,'Data BI Summary'!$2:$2,0),FALSE),INDIRECT(\"'\"&$E43&\"'!\"&\"$A:$K\"),9,FALSE)","v":-2.5607095808261197E-2}]
["St Lgt-HCHI","Average",{"$f":"VLOOKUP(A$44,'Data Billing Quantities'!A:P,MATCH($B44&\" kWh\",'Data Billing Quantities'!$4:$4,0),FALSE)","v":31001},{"$f":"VLOOKUP(A$44,'Data Billing Quantities'!A:P,MATCH(B44&\" kW\",'Data Billing Quantities'!$4:$4,0),FALSE)","v":85},"BI_HCHI_StLgt_Avg","BI Template_unmHCHI",{"$f":"VLOOKUP(VLOOKUP($F44,'Data BI Summary'!$A:$F,MATCH(G$1,'Data BI Summary'!$2:$2,0),FALSE),INDIRECT(\"'\"&$E44&\"'!\"&\"$A:$K\"),4,FALSE)","v":10957.443480883499},{"$f":"VLOOKUP(VLOOKUP($F44,'Data BI Summary'!$A:$F,MATCH(H$1,'Data BI Summary'!$2:$2,0),FALSE),INDIRECT(\"'\"&$E44&\"'!\"&\"$A:$K\"),8,FALSE)","v":-2158.5015000000008},{"$f":"VLOOKUP(VLOOKUP($F44,'Data BI Summary'!$A:$F,MATCH(I$1,'Data BI Summary'!$2:$2,0),FALSE),INDIRECT(\"'\"&$E44&\"'!\"&\"$A:$K\"),9,FALSE)","v":-0.39623144416027134},{"$f":"VLOOKUP(VLOOKUP($F44,'Data BI Summary'!$A:$F,MATCH(J$1,'Data BI Summary'!$2:$2,0),FALSE),INDIRECT(\"'\"&$E44&\"'!\"&\"$A:$K\"),8,FALSE)","v":-2331.6235782314998},{"$f":"VLOOKUP(VLOOKUP($F44,'Data BI Summary'!$A:$F,MATCH(K$1,'Data BI Summary'!$2:$2,0),FALSE),INDIRECT(\"'\"&$E44&\"'!\"&\"$A:$K\"),9,FALSE)","v":-0.21278901253739352},"Two-tier RPP"]
["Sen Lgt-HCHI","Average",{"$f":"VLOOKUP(A$45,'Data Billing Quantities'!A:P,MATCH($B45&\" kWh\",'Data Billing Quantities'!$4:$4,0),FALSE)","v":61},{"$f":"VLOOKUP(A$45,'Data Billing Quantities'!A:P,MATCH(B45&\" kW\",'Data Billing Quantities'!$4:$4,0),FALSE)","v":0.1956473214285713},"BI_HCHI_SenLgt_Avg","BI Template_unmHCHI",{"$f":"VLOOKUP(VLOOKUP($F45,'Data BI Summary'!$A:$F,MATCH(G$1,'Data BI Summary'!$2:$2,0),FALSE),INDIRECT(\"'\"&$E45&\"'!\"&\"$A:$K\"),4,FALSE)","v":28.196262439583922},{"$f":"VLOOKUP(VLOOKUP($F45,'Data BI Summary'!$A:$F,MATCH(H$1,'Data BI Summary'!$2:$2,0),FALSE),INDIRECT(\"'\"&$E45&\"'!\"&\"$A:$K\"),8,FALSE)","v":-10.082231506696424},{"$f":"VLOOKUP(VLOOKUP($F45,'Data BI Summary'!$A:$F,MATCH(I$1,'Data BI Summary'!$2:$2,0),FALSE),INDIRECT(\"'\"&$E45&\"'!\"&\"$A:$K\"),9,FALSE)","v":-0.45186812967844814},{"$f":"VLOOKUP(VLOOKUP($F45,'Data BI Summary'!$A:$F,MATCH(J$1,'Data BI Summary'!$2:$2,0),FALSE),INDIRECT(\"'\"&$E45&\"'!\"&\"$A:$K\"),8,FALSE)","v":-9.4509210031839181},{"$f":"VLOOKUP(VLOOKUP($F45,'Data BI Summary'!$A:$F,MATCH(K$1,'Data BI Summary'!$2:$2,0),FALSE),INDIRECT(\"'\"&$E45&\"'!\"&\"$A:$K\"),9,FALSE)","v":-0.33518346707952479},"Two-tier RPP"]
["USL-HCHI","Average",{"$f":"VLOOKUP(A$46,'Data Billing Quantities'!A:P,MATCH($B46&\" kWh\",'Data Billing Quantities'!$4:$4,0),FALSE)","v":471},null,"BI_HCHI_USL_Avg","BI Template_unmHCHI",{"$f":"VLOOKUP(VLOOKUP($F46,'Data BI Summary'!$A:$F,MATCH(G$1,'Data BI Summary'!$2:$2,0),FALSE),INDIRECT(\"'\"&$E46&\"'!\"&\"$A:$K\"),4,FALSE)","v":74.830707693400001},{"$f":"VLOOKUP(VLOOKUP($F46,'Data BI Summary'!$A:$F,MATCH(H$1,'Data BI Summary'!$2:$2,0),FALSE),INDIRECT(\"'\"&$E46&\"'!\"&\"$A:$K\"),8,FALSE)","v":23.005099999999999},{"$f":"VLOOKUP(VLOOKUP($F46,'Data BI Summary'!$A:$F,MATCH(I$1,'Data BI Summary'!$2:$2,0),FALSE),INDIRECT(\"'\"&$E46&\"'!\"&\"$A:$K\"),9,FALSE)","v":1.0620957428636062},{"$f":"VLOOKUP(VLOOKUP($F46,'Data BI Summary'!$A:$F,MATCH(J$1,'Data BI Summary'!$2:$2,0),FALSE),INDIRECT(\"'\"&$E46&\"'!\"&\"$A:$K\"),8,FALSE)","v":22.124960062599996},{"$f":"VLOOKUP(VLOOKUP($F46,'Data BI Summary'!$A:$F,MATCH(K$1,'Data BI Summary'!$2:$2,0),FALSE),INDIRECT(\"'\"&$E46&\"'!\"&\"$A:$K\"),9,FALSE)","v":0.29566685582142899},"Two-tier RPP"]

{"sheet":"BI Template_Energy","index":10,"n_rows":53,"n_cols":11,"rows_kept":53,"cut":false,"hidden":true,"merged":[[0,0,0,10]]}
["2023 Bill Impacts (Low Consumption Level) - R1"]
[]
["Rate Class",{"$f":"RIGHT(A1,LEN(A1)-FIND(\"- \",A1,1)-1)","v":"R1"}]
["Monthly Consumption (kWh)",{"$f":"IF(COUNTIF(A1,\"*Low*\")>0,VLOOKUP(B3,'Data Billing Quantities'!$A:$Z,MATCH(\"Low kWh\",'Data Billing Quantities'!4:4,0),FALSE),IF(COUNTIF(A1,\"*Typical*\")>0,VLOOKUP(B3,'Data Billing Quantities'!$A:$Z,MATCH(\"Typical kWh\",'Data Billing Quantities'!4:4,0),FALSE),IF(COUNTIF(A1,\"*Average*\")>0,VLOOKUP(B3,'Data Billing Quantities'!$A:$Z,MATCH(\"Average kWh\",'Data Billing Quantities'!4:4,0),FALSE),IF(COUNTIF(A1,\"*High*\")>0,VLOOKUP(B3,'Data Billing Quantities'!$A:$Z,MATCH(\"High kWh\",'Data Billing Quantities'!4:4,0),FALSE),\"error\"))))","v":370}]
["Peak (kW)",{"$f":"IF(COUNTIF(A1,\"*Low*\")>0,VLOOKUP(B3,'Data Billing Quantities'!$A:$Z,MATCH(\"Low kW\",'Data Billing Quantities'!4:4,0),FALSE),IF(COUNTIF(A1,\"*Typical*\")>0,VLOOKUP(B3,'Data Billing Quantities'!$A:$Z,MATCH(\"Typical kW\",'Data Billing Quantities'!4:4,0),FALSE),IF(COUNTIF(A1,\"*Average*\")>0,VLOOKUP(B3,'Data Billing Quantities'!$A:$Z,MATCH(\"Average kW\",'Data Billing Quantities'!4:4,0),FALSE),IF(COUNTIF(A1,\"*High*\")>0,VLOOKUP(B3,'Data Billing Quantities'!$A:$Z,MATCH(\"High kW\",'Data Billing Quantities'!4:4,0),FALSE),\"error\"))))","v":0}]
["Loss factor",{"$f":"VLOOKUP(B3,'Data Billing Quantities'!A:D,MATCH(A6,'Data Billing Quantities'!4:4,0),FALSE)","v":1.0760000000000001}]
["Commodity Threshold",{"$f":"VLOOKUP(B3,'Data Billing Quantities'!A:D,MATCH(A7,'Data Billing Quantities'!4:4,0),FALSE)","v":600}]
["Monthly Consumption (kWh) - Uplifted",{"$f":"B4*B6","v":398.12}]
["Charge determinant",{"$f":"VLOOKUP(B3,'Data Billing Quantities'!A:D,MATCH(A9,'Data Billing Quantities'!4:4,0),FALSE)","v":"kWh"}]
[]
[null,"Volume","Current Rate ($)","Current Charge ($)","Volume","Proposed Rate ($)","Proposed Charge ($)","Change ($)","Change (%)","% of Total Bill on RPP","% of Total Bill"]
["Energy First Tier",{"$f":"IF(B4>B7,B7,B4)","v":370},{"$f":"VLOOKUP($A12,'Data Pass Through'!$A:$D,2,FALSE)","v":9.8000000000000004E-2},{"$f":"B12*C12","v":36.26},{"$f":"B12","v":370},{"$f":"VLOOKUP($A12,'Data Pass Through'!$A:$D,3,FALSE)","v":9.8000000000000004E-2},{"$f":"E12*F12","v":36.26},{"$f":"G12-D12","v":0},{"$f":"IF(ISERROR(H12/ABS(D12)),\"N/A\",(H12/ABS(D12)))","v":0},{"$f":"G12/$G$47","v":0.4560736096615669}]
["Energy Second Tier",{"$f":"IF(B4>B7,(B4)-B7,0)","v":0},{"$f":"VLOOKUP($A13,'Data Pass Through'!$A:$D,2,FALSE)","v":0.115},{"$f":"B13*C13","v":0},{"$f":"B13","v":0},{"$f":"VLOOKUP($A13,'Data Pass Through'!$A:$D,3,FALSE)","v":0.115},{"$f":"E13*F13","v":0},0,"N/A",{"$f":"G13/$G$47","v":0}]
["Sub-Total:  Energy (RPP Tiered)",null,null,{"$f":"SUM(D12:D13)","v":36.26},null,null,{"$f":"SUM(G12:G13)","v":36.26},0,0,{"$f":"G14/$G$47","v":0.4560736096615669}]
["TOU-Off Peak",{"$f":"B$4*VLOOKUP($B$3,'Data Billing Quantities'!$A:$O,MATCH('BI Template_Energy'!$A15,'Data Billing Quantities'!$4:$4,0),FALSE)","v":236.8},{"$f":"VLOOKUP($A15,'Data Pass Through'!$A:$D,2,FALSE)","v":8.2000000000000003E-2},{"$f":"B15*C15","v":19.4176},236.8,{"$f":"VLOOKUP($A15,'Data Pass Through'!$A:$D,3,FALSE)","v":8.2000000000000003E-2},{"$f":"E15*F15","v":19.4176},0,0,null,{"$f":"G15/$G$52","v":0.2381498758334635}]
["TOU-Mid Peak",{"$f":"B$4*VLOOKUP($B$3,'Data Billing Quantities'!$A:$O,MATCH('BI Template_Energy'!$A16,'Data Billing Quantities'!$4:$4,0),FALSE)","v":66.599999999999994},{"$f":"VLOOKUP($A16,'Data Pass Through'!$A:$D,2,FALSE)","v":0.113},{"$f":"B16*C16","v":7.5257999999999994},66.599999999999994,{"$f":"VLOOKUP($A16,'Data Pass Through'!$A:$D,3,FALSE)","v":0.113},{"$f":"E16*F16","v":7.5257999999999994},0,0,null,9.2301228552832459E-2]
["TOU-On Peak",{"$f":"B$4*VLOOKUP($B$3,'Data Billing Quantities'!$A:$O,MATCH('BI Template_Energy'!$A17,'Data Billing Quantities'!$4:$4,0),FALSE)","v":66.599999999999994},{"$f":"VLOOKUP($A17,'Data Pass Through'!$A:$D,2,FALSE)","v":0.17},{"$f":"B17*C17","v":11.321999999999999},66.599999999999994,{"$f":"VLOOKUP($A17,'Data Pass Through'!$A:$D,3,FALSE)","v":0.17},{"$f":"E17*F17","v":11.321999999999999},0,0,null,0.13886025534496918]
["Sub-Total:  Energy (RPP TOU)",null,null,{"$f":"SUM(D15:D17)","v":38.2654},null,null,{"$f":"SUM(G15:G17)","v":38.2654},0,0,{"$f":"G18/$G$47","v":0.48129727256325766},0.46931135973126514]
["Service Charge",1,{"$f":"VLOOKUP($B$3,'Data Current Rates'!$A:$AP,MATCH('BI Template_Energy'!$A19,CurrentHeader,0),FALSE)","v":55.52},{"$f":"B19*C19","v":55.52},1,{"$f":"VLOOKUP($B$3,'Data Proposed Rates'!$A:$AZ,MATCH('BI Template_Energy'!$A19,ProposedHeader,0),FALSE)","v":57.22},{"$f":"E19*F19","v":57.22},1.6999999999999957,3.0619596541786667E-2,0.71970578998441426,0.70178270719299918]
["Fixed Base Rate Adjustment to Recover Past Tax Amounts ",1,{"$f":"VLOOKUP($B$3,'Data Current Rates'!$A:$AP,MATCH('BI Template_Energy'!$A20,CurrentHeader,0),FALSE)","v":1.56},{"$f":"B20*C20","v":1.56},1,{"$f":"VLOOKUP($B$3,'Data Proposed Rates'!$A:$AZ,MATCH('BI Template_Energy'!$A20,ProposedHeader,0),FALSE)","v":1.44},1.44,-0.12000000000000011,-7.6923076923076983E-2,1.811213452599714E-2,1.7661081760886384E-2]
["Group 2 Fixed DVA Rider ",null,null,null,1,{"$f":"VLOOKUP($B$3,'Data Proposed Rates'!$A:$AZ,MATCH('BI Template_Energy'!$A21,ProposedHeader,0),FALSE)","v":-0.14000000000000001},-0.14000000000000001,-0.14000000000000001,"N/A",-1.7609019678052778E-3,-1.7170496156417318E-3]
["Distribution Volumetric Charge",{"$f":"IF($B$9=\"kWh\",$B$4,$B$5)","v":370},{"$f":"VLOOKUP($B$3,'Data Current Rates'!$A:$AP,MATCH('BI Template_Energy'!$A22,CurrentHeader,0),FALSE)","v":9.9000000000000008E-3},3.6630000000000003,370,{"$f":"VLOOKUP($B$3,'Data Proposed Rates'!$A:$AZ,MATCH('BI Template_Energy'!$A22,ProposedHeader,0),FALSE)","v":5.1999999999999998E-3},1.9239999999999999,-1.7390000000000003,-0.47474747474747481,2.4199824186123958E-2,2.3597167574962084E-2]
["Volumetric Base Rate Adjustment to Recover Past Tax Amounts ",{"$f":"IF($B$9=\"kWh\",$B$4,$B$5)","v":370},{"$f":"VLOOKUP($B$3,'Data Current Rates'!$A:$AP,MATCH('BI Template_Energy'!$A23,CurrentHeader,0),FALSE)","v":0},0,370,{"$f":"VLOOKUP($B$3,'Data Proposed Rates'!$A:$AZ,MATCH('BI Template_Energy'!$A23,ProposedHeader,0),FALSE)","v":0},0,0,"N/A",0,0]
["Group 1 Volumetric DVA Rider (General)",null,null,null,{"$f":"B4","v":370},{"$f":"VLOOKUP($B$3,'Data Proposed Rates'!$A:$AZ,MATCH('BI Template_Energy'!$A24,ProposedHeader,0),FALSE)","v":-4.0000000000000002E-4},{"$f":"E24*F24","v":-0.14800000000000002},{"$f":"G24-D24","v":-0.14800000000000002},{"$f":"IF(ISERROR(H24/ABS(D24)),\"N/A\",(H24/ABS(D24)))","v":"N/A"},-1.8615249373941511E-3,-1.8151667365355452E-3]
["Group 2 Volumetric DVA Rider ",null,null,null,{"$f":"B4","v":370},{"$f":"VLOOKUP($B$3,'Data Proposed Rates'!$A:$AZ,MATCH('BI Template_Energy'!$A25,ProposedHeader,0),FALSE)","v":0},0,0,"N/A",0,0]
["Fair Hydro Plan - Distribution Rate Protection Savings*",null,null,{"$f":"IF(AND(B3<>\"R1\",B3<>\"R2\"),0,IF(VLOOKUP($A26,'Data Pass Through'!$A:$D,2,FALSE)=0,0,IF(SUM(D19:D20,D22:D23)<VLOOKUP($A26,'Data Pass Through'!$A:$D,2,FALSE),0,VLOOKUP($A26,'Data Pass Through'!$A:$D,2,FALSE)-SUM(D19:D20,D22:D23))))","v":-23.88300000000001},null,null,{"$f":"IF(AND(B3<>\"R1\",B3<>\"R2\"),0,IF(VLOOKUP($A26,'Data Pass Through'!$A:$D,2,FALSE)=0,0,IF(SUM(G19:G20,G22:G23)<VLOOKUP($A26,'Data Pass Through'!$A:$D,2,FALSE),0,VLOOKUP($A26,'Data Pass Through'!$A:$D,2,FALSE)-SUM(G19:G20,G22:G23))))","v":-23.723999999999997},0.15900000000001313,6.6574550935817557E-3,-0.29839741631580285,-0.29096632201060313]
["Sub-Total:  Distribution (excluding pass through)",null,null,{"$f":"SUM(INDIRECT(\"D19:D\"&ROW()-1))","v":36.86},null,null,{"$f":"SUM(INDIRECT(\"g19:g\"&ROW()-1))","v":36.571999999999996},{"$f":"G27-D27","v":-0.28800000000000381},{"$f":"IF(ISERROR(H27/ABS(D27)),\"N/A\",(H27/ABS(D27)))","v":-7.8133478024960332E-3},0.45999790547553293,0.44854241816606716]
["Smart Metering Entity Charge",1,{"$f":"VLOOKUP($A28,'Data Pass Through'!$A:$D,2,FALSE)","v":0.56999999999999995},{"$f":"B28*C28","v":0.56999999999999995},1,{"$f":"VLOOKUP($A28,'Data Pass Through'!$A:$D,3,FALSE)","v":0.56999999999999995},{"$f":"E28*F28","v":0.56999999999999995},0,0,7.1693865832072011E-3,6.9908448636841931E-3]
["Line Losses on Cost of Power (based on two-tier RPP prices)",{"$f":"B8-B4","v":28.120000000000005},{"$f":"IF(B4>B7,C13,C12)","v":9.8000000000000004E-2},{"$f":"B29*C29","v":2.7557600000000004},28.120000000000005,{"$f":"IF(B4>B7,F13,F12)","v":9.8000000000000004E-2},{"$f":"E29*F29","v":2.7557600000000004},0,0,3.4661594334279094E-2,3.3798404634291852E-2]
["Line Losses on Cost of Power (based on TOU prices)",{"$f":"B8-B4","v":28.120000000000005},{"$f":"VLOOKUP($B$3,'Data Billing Quantities'!$A:$O,MATCH('BI Template_Energy'!$A15,'Data Billing Quantities'!$4:$4,0),FALSE)*C15+VLOOKUP($B$3,'Data Billing Quantities'!$A:$O,MATCH('BI Template_Energy'!$A16,'Data Billing Quantities'!$4:$4,0),FALSE)*C16+VLOOKUP($B$3,'Data Billing Quantities'!$A:$O,MATCH('BI Template_Energy'!$A17,'Data Billing Quantities'!$4:$4,0),FALSE)*C17","v":0.10342000000000001},{"$f":"B30*C30","v":2.9081704000000008},28.120000000000005,{"$f":"VLOOKUP($B$3,'Data Billing Quantities'!$A:$O,MATCH('BI Template_Energy'!$A15,'Data Billing Quantities'!$4:$4,0),FALSE)*F15+VLOOKUP($B$3,'Data Billing Quantities'!$A:$O,MATCH('BI Template_Energy'!$A16,'Data Billing Quantities'!$4:$4,0),FALSE)*F16+VLOOKUP($B$3,'Data Billing Quantities'!$A:$O,MATCH('BI Template_Energy'!$A17,'Data Billing Quantities'!$4:$4,0),FALSE)*F17","v":0.10342000000000001},{"$f":"E30*F30","v":2.9081704000000008},0,0,3.6578592714807595E-2,3.5667663339576161E-2]
["Sub-Total:  Distribution (based on two-tier RPP prices)",null,null,{"$f":"SUM(D27,D28:D29)","v":40.185760000000002},null,null,{"$f":"SUM(G27,G28:G29)","v":39.897759999999998},-0.28800000000000381,-7.1667177627100691E-3,0.50182888639301926,0.48933166766404323]
["Sub-Total:  Distribution (based on TOU prices)",null,null,{"$f":"SUM(D27,D28,D30)","v":40.338170400000003},null,null,{"$f":"SUM(G27,G28,G30)","v":40.050170399999999},-0.28800000000000381,-7.139639630259576E-3,0.50374588477354776,0.49120092636932755]
["Retail Transmission Rate – Network Service Rate",{"$f":"B8","v":398.12},{"$f":"VLOOKUP($B$3,'Data Current Rates'!$A:$AP,MATCH('BI Template_Energy'!$A33,CurrentHeader,0),FALSE)","v":9.7999999999999997E-3},{"$f":"B33*C33","v":3.9015759999999999},398.12,{"$f":"VLOOKUP($B$3,'Data Proposed Rates'!$A:$AZ,MATCH('BI Template_Energy'!$A33,ProposedHeader,0),FALSE)","v":9.4999999999999998E-3},{"$f":"E33*F33","v":3.7821400000000001},{"$f":"G33-D33","v":-0.11943599999999988},-3.0612244897959152E-2,4.7571269775107526E-2,4.6386585952165854E-2]
["Retail Transmission Rate – Line and Transformation Connection Service Rate",{"$f":"B8","v":398.12},{"$f":"VLOOKUP($B$3,'Data Current Rates'!$A:$AP,MATCH('BI Template_Energy'!$A34,CurrentHeader,0),FALSE)","v":7.3000000000000001E-3},{"$f":"B34*C34","v":2.9062760000000001},398.12,{"$f":"VLOOKUP($B$3,'Data Proposed Rates'!$A:$AZ,MATCH('BI Template_Energy'!$A34,ProposedHeader,0),FALSE)","v":6.8999999999999999E-3},{"$f":"E34*F34","v":2.7470279999999998},{"$f":"G34-D34","v":-0.15924800000000028},-5.47945205479453E-2,3.4551764362972831E-2,3.3691309796836245E-2]
["Sub-Total:  Retail Transmission ",null,null,{"$f":"SUM(D33:D34)","v":6.8078520000000005},null,null,{"$f":"SUM(G33:G34)","v":6.5291680000000003},{"$f":"G35-D35","v":-0.27868400000000015},-4.0935672514619902E-2,8.2123034138080364E-2,8.0077895749002106E-2]
["Sub-Total:  Delivery (based on two-tier RPP prices)",null,null,{"$f":"D31+D35","v":46.993611999999999},null,null,{"$f":"G31+G35","v":46.426927999999997},{"$f":"G36-D36","v":-0.56668400000000219},-1.2058745346069636E-2,0.58395192053109957,0.56940956341304538]
["Sub-Total:  Delivery (based on TOU prices)",null,null,{"$f":"D32+D35","v":47.146022400000007},null,null,{"$f":"G32+G35","v":46.579338399999997},{"$f":"G37-D37","v":-0.56668400000000929},-1.2019762668250233E-2,0.58586891891162807,0.5712788221183297]
["Wholesale Market Service Rate (WMS) - not including CBR",{"$f":"B8","v":398.12},{"$f":"VLOOKUP($A38,'Data Pass Through'!$A:$D,2,FALSE)","v":3.0000000000000001E-3},{"$f":"B38*C38","v":1.1943600000000001},{"$f":"$B$8","v":398.12},{"$f":"VLOOKUP($A38,'Data Pass Through'!$A:$D,3,FALSE)","v":3.0000000000000001E-3},{"$f":"E38*F38","v":1.1943600000000001},0,0,1.5022506244770797E-2,1.4648395563841848E-2]
["Capacity Based Recovery (CBR) - Applicable for Class B Customers",{"$f":"B8","v":398.12},{"$f":"VLOOKUP($A39,'Data Pass Through'!$A:$D,2,FALSE)","v":4.0000000000000002E-4},{"$f":"B39*C39","v":0.159248},{"$f":"$B$8","v":398.12},{"$f":"VLOOKUP($A39,'Data Pass Through'!$A:$D,3,FALSE)","v":4.0000000000000002E-4},{"$f":"E39*F39","v":0.159248},{"$f":"G39-D39","v":0},{"$f":"IF(ISERROR(H39/ABS(D39)),\"N/A\",(H39/ABS(D39)))","v":0},2.0030008326361063E-3,1.9531194085122463E-3]
["Rural Rate Protection Charge",{"$f":"B8","v":398.12},{"$f":"VLOOKUP($A40,'Data Pass Through'!$A:$D,2,FALSE)","v":5.0000000000000001E-4},0.19906000000000001,398.12,{"$f":"VLOOKUP($A40,'Data Pass Through'!$A:$D,3,FALSE)","v":5.0000000000000001E-4},0.19906000000000001,0,0,2.5037510407951327E-3,2.4413992606403083E-3]
["Standard Supply Service – Administration Charge (if applicable)",1,{"$f":"VLOOKUP($A41,'Data Pass Through'!$A:$D,2,FALSE)","v":0.25},{"$f":"B41*C41","v":0.25},1,{"$f":"VLOOKUP($A41,'Data Pass Through'!$A:$D,3,FALSE)","v":0.25},0.25,0,0,3.1444677996522816E-3,3.066160027931664E-3]
["Sub-Total:  Regulatory",null,null,{"$f":"SUM(D38:D41)","v":1.8026680000000002},null,null,{"$f":"SUM(G38:G41)","v":1.8026680000000002},0,0,2.2673725917854319E-2,2.2109074260926068E-2]
["Total  Electricty Charge on Two-Tier RPP ",null,null,{"$f":"SUM(D14,D27,D28,D29,D35,D42)","v":85.056279999999987},null,null,{"$f":"SUM(G14,G27,G28,G29,G35,G42)","v":84.489595999999977},-0.56668400000000929,-6.6624592563889386E-3,1.0626992561105206]
["     HST",null,0.13,{"$f":"D43*C44","v":11.057316399999999},null,{"$f":"C44","v":0.13},{"$f":"G43*F44","v":10.983647479999997},-7.3668920000002913E-2,-6.6624592563890922E-3,0.13815090329436766]
["Total Electricity Charge on Two-Tier RPP (including HST)",null,null,{"$f":"SUM(D43:D44)","v":96.113596399999992},null,null,{"$f":"SUM(G43:G44)","v":95.473243479999979},-0.6403529200000122,-6.662459256388956E-3,1.2008501594048884]
["Ontario Electricity Rebate (OER)",null,{"$f":"IF(($B$4*12)<250000,VLOOKUP(A46,'Data Pass Through'!$A$4:$C$20,2,0),0)","v":-0.189},{"$f":"D43*C46","v":-16.075636919999997},null,{"$f":"C46","v":-0.189},{"$f":"G43*F46","v":-15.968533643999995},0.10710327600000191,6.662459256388949E-3,-0.20085015940488837]
["Total Amount on Two-Tier RPP",null,null,{"$f":"SUM(D45:D46)","v":80.037959479999998},null,null,{"$f":"SUM(G45:G46)","v":79.504709835999989},-0.53324964400000852,-6.6624592563889352E-3,1]
["Total Electricty Charge on TOU (before HST)",null,null,{"$f":"SUM(D18,D27,D28,D30,D35,D42)","v":87.214090399999989},null,null,{"$f":"SUM(G18,G27,G28,G30,G35,G42)","v":86.647406399999994},-0.56668399999999508,-6.497619792867726E-3,null,{"$f":"G48/$G$52","v":1.0626992561105209}]
["     HST",null,0.13,{"$f":"D48*C49","v":11.337831752},null,{"$f":"C49","v":0.13},{"$f":"G48*F49","v":11.264162832},-7.366891999999936E-2,-6.497619792867726E-3,null,{"$f":"G49/$G$52","v":0.13815090329436772}]
["Total Electricity Charge on TOU (including HST)",null,null,{"$f":"SUM(D48:D49)","v":98.551922151999989},null,null,{"$f":"SUM(G48:G49)","v":97.911569231999991},-0.64035291999999799,-6.4976197928677624E-3,null,{"$f":"G50/$G$52","v":1.2008501594048886}]
["Ontario Electricity Rebate (OER)",null,{"$f":"IF(($B$4*12)<250000,VLOOKUP(A51,'Data Pass Through'!$A$4:$C$20,2,0),0)","v":-0.189},{"$f":"D48*C51","v":-16.483463085599997},null,{"$f":"C51","v":-0.189},{"$f":"G48*F51","v":-16.3763598096},0.10710327599999658,6.4976197928675759E-3,null,{"$f":"G51/$G$52","v":-0.20085015940488846}]
["Total Amount on TOU",null,null,{"$f":"SUM(D50:D51)","v":82.068459066399996},null,null,{"$f":"SUM(G50:G51)","v":81.535209422399987},-0.53324964400000852,-6.4976197928678855E-3,null,{"$f":"G52/$G$52","v":1}]
["* Distribution rate protection applies to R1 and R2 customers"]

{"sheet":"BI Template_Seasonal","index":11,"n_rows":52,"n_cols":11,"rows_kept":52,"cut":false,"hidden":true,"merged":[[0,0,0,10]]}
["2023 Bill Impacts (Low Consumption Level) - Seas-UR"]
[]
["Rate Class",{"$f":"VLOOKUP(A1,'Data BI List Acq_Seas'!C:E,2,FALSE)","v":"Seasonal"},{"$f":"VLOOKUP(A1,'Data BI List Acq_Seas'!C:E,3,FALSE)","v":"UR"}]
["Monthly Consumption (kWh)",{"$f":"IF(COUNTIF(A1,\"*Low*\")>0,VLOOKUP(B3,'Data Billing Quantities'!$A:$Z,MATCH(\"Low kWh\",'Data Billing Quantities'!4:4,0),FALSE),IF(COUNTIF(A1,\"*Typical*\")>0,VLOOKUP(B3,'Data Billing Quantities'!$A:$Z,MATCH(\"Typical kWh\",'Data Billing Quantities'!4:4,0),FALSE),IF(COUNTIF(A1,\"*Average*\")>0,VLOOKUP(B3,'Data Billing Quantities'!$A:$Z,MATCH(\"Average kWh\",'Data Billing Quantities'!4:4,0),FALSE),IF(COUNTIF(A1,\"*High*\")>0,VLOOKUP(B3,'Data Billing Quantities'!$A:$Z,MATCH(\"High kWh\",'Data Billing Quantities'!4:4,0),FALSE),\"error\"))))","v":40},{"$f":"B4","v":40}]
["Peak (kW)",{"$f":"IF(COUNTIF(A1,\"*Low*\")>0,VLOOKUP(B3,'Data Billing Quantities'!$A:$Z,MATCH(\"Low kW\",'Data Billing Quantities'!4:4,0),FALSE),IF(COUNTIF(A1,\"*Typical*\")>0,VLOOKUP(B3,'Data Billing Quantities'!$A:$Z,MATCH(\"Typical kW\",'Data Billing Quantities'!4:4,0),FALSE),IF(COUNTIF(A1,\"*Average*\")>0,VLOOKUP(B3,'Data Billing Quantities'!$A:$Z,MATCH(\"Average kW\",'Data Billing Quantities'!4:4,0),FALSE),IF(COUNTIF(A1,\"*High*\")>0,VLOOKUP(B3,'Data Billing Quantities'!$A:$Z,MATCH(\"High kW\",'Data Billing Quantities'!4:4,0),FALSE),\"error\"))))","v":0},{"$f":"B5","v":0}]
["Loss factor",{"$f":"VLOOKUP(B3,'Data Billing Quantities'!A:D,MATCH(A6,'Data Billing Quantities'!4:4,0),FALSE)","v":1.1040000000000001},{"$f":"VLOOKUP(C3,'Data Billing Quantities'!A:D,MATCH(A6,'Data Billing Quantities'!4:4,0),FALSE)","v":1.0569999999999999}]
["Commodity Threshold",{"$f":"VLOOKUP(B3,'Data Billing Quantities'!A:D,MATCH(A7,'Data Billing Quantities'!4:4,0),FALSE)","v":600},{"$f":"B7","v":600}]
["Monthly Consumption (kWh) - Uplifted",{"$f":"B4*B6","v":44.160000000000004},{"$f":"C4*C6","v":42.28}]
["Charge determinant",{"$f":"VLOOKUP(B3,'Data Billing Quantities'!A:D,MATCH(A9,'Data Billing Quantities'!4:4,0),FALSE)","v":"kWh"},{"$f":"VLOOKUP(C3,'Data Billing Quantities'!A:D,MATCH(A9,'Data Billing Quantities'!4:4,0),FALSE)","v":"kWh"}]
[]
[null,"Volume","Current Rate ($)","Current Charge ($)","Volume","Proposed Rate ($)","Proposed Charge ($)","Change ($)","Change (%)","% of Total Bill on RPP","% of Total Bill"]
["Energy First Tier",{"$f":"IF(B4>B7,B7,B4)","v":40},{"$f":"VLOOKUP($A12,'Data Pass Through'!$A:$D,2,FALSE)","v":9.8000000000000004E-2},{"$f":"B12*C12","v":3.92},{"$f":"B12","v":40},{"$f":"VLOOKUP($A12,'Data Pass Through'!$A:$D,3,FALSE)","v":9.8000000000000004E-2},{"$f":"E12*F12","v":3.92},{"$f":"G12-D12","v":0},{"$f":"IF(ISERROR(H12/ABS(D12)),\"N/A\",(H12/ABS(D12)))","v":0},{"$f":"G12/$G$46","v":9.811889837149021E-2}]
["Energy Second Tier",{"$f":"IF(B4>B7,(B4)-B7,0)","v":0},{"$f":"VLOOKUP($A13,'Data Pass Through'!$A:$D,2,FALSE)","v":0.115},{"$f":"B13*C13","v":0},{"$f":"B13","v":0},{"$f":"VLOOKUP($A13,'Data Pass Through'!$A:$D,3,FALSE)","v":0.115},{"$f":"E13*F13","v":0},0,"N/A",{"$f":"G13/$G$46","v":0}]
["Sub-Total:  Energy (RPP Tiered)",null,null,{"$f":"SUM(D12:D13)","v":3.92},null,null,{"$f":"SUM(G12:G13)","v":3.92},0,0,{"$f":"G14/$G$46","v":9.811889837149021E-2}]
["TOU-Off Peak",{"$f":"B$4*VLOOKUP($B$3,'Data Billing Quantities'!$A:$O,MATCH('BI Template_Seasonal'!$A15,'Data Billing Quantities'!$4:$4,0),FALSE)","v":25.6},{"$f":"VLOOKUP($A15,'Data Pass Through'!$A:$D,2,FALSE)","v":8.2000000000000003E-2},{"$f":"B15*C15","v":2.0992000000000002},25.6,{"$f":"VLOOKUP($A15,'Data Pass Through'!$A:$D,3,FALSE)","v":8.2000000000000003E-2},{"$f":"E15*F15","v":2.0992000000000002},0,0,null,{"$f":"G15/$G$51","v":5.2261590761830859E-2}]
["TOU-Mid Peak",{"$f":"B$4*VLOOKUP($B$3,'Data Billing Quantities'!$A:$O,MATCH('BI Template_Seasonal'!$A16,'Data Billing Quantities'!$4:$4,0),FALSE)","v":7.1999999999999993},{"$f":"VLOOKUP($A16,'Data Pass Through'!$A:$D,2,FALSE)","v":0.113},{"$f":"B16*C16","v":0.81359999999999999},7.1999999999999993,{"$f":"VLOOKUP($A16,'Data Pass Through'!$A:$D,3,FALSE)","v":0.113},{"$f":"E16*F16","v":0.81359999999999999},0,0,null,2.0255349773163865E-2]
["TOU-On Peak",{"$f":"B$4*VLOOKUP($B$3,'Data Billing Quantities'!$A:$O,MATCH('BI Template_Seasonal'!$A17,'Data Billing Quantities'!$4:$4,0),FALSE)","v":7.1999999999999993},{"$f":"VLOOKUP($A17,'Data Pass Through'!$A:$D,2,FALSE)","v":0.17},{"$f":"B17*C17","v":1.224},7.1999999999999993,{"$f":"VLOOKUP($A17,'Data Pass Through'!$A:$D,3,FALSE)","v":0.17},{"$f":"E17*F17","v":1.224},0,0,null,3.0472650101219974E-2]
["Sub-Total:  Energy (RPP TOU)",null,null,{"$f":"SUM(D15:D17)","v":4.1368},null,null,{"$f":"SUM(G15:G17)","v":4.1368},0,0,{"$f":"G18/$G$46","v":0.10354547417938284},0.1029895906362147]
["Service Charge",1,{"$f":"VLOOKUP($B$3,'Data Current Rates'!$A:$AP,MATCH('BI Template_Seasonal'!$A19,CurrentHeader,0),FALSE)","v":57.87},{"$f":"B19*C19","v":57.87},1,{"$f":"IF(C3=\"R2\",(VLOOKUP($C$3,'Data Proposed Rates'!$A:$AZ,MATCH('BI Template_Seasonal'!$A19,ProposedHeader,0),FALSE)+'Data Pass Through'!B4),VLOOKUP($C$3,'Data Proposed Rates'!$A:$AZ,MATCH('BI Template_Seasonal'!$A19,ProposedHeader,0),FALSE))","v":35.880000000000003},{"$f":"E19*F19","v":35.880000000000003},-21.989999999999995,-0.37998963193364432,0.89808828407374208,0.8932669000259581]
["Fixed Base Rate Adjustment to Recover Past Tax Amounts ",1,{"$f":"VLOOKUP($B$3,'Data Current Rates'!$A:$AP,MATCH('BI Template_Seasonal'!$A20,CurrentHeader,0),FALSE)","v":1.79},{"$f":"B20*C20","v":1.79},1,{"$f":"IF(C4=\"R2\",(VLOOKUP($C$3,'Data Proposed Rates'!$A:$AZ,MATCH('BI Template_Seasonal'!$A20,ProposedHeader,0),FALSE)+'Data Pass Through'!B5),VLOOKUP($C$3,'Data Proposed Rates'!$A:$AZ,MATCH('BI Template_Seasonal'!$A20,ProposedHeader,0),FALSE))","v":0.8},{"$f":"E20*F20","v":0.8},-0.99,-0.55307262569832405,2.0024264973773513E-2,1.99167647720392E-2]
["Group 2 Fixed DVA Rider ",null,null,null,1,{"$f":"VLOOKUP($C$3,'Data Proposed Rates'!$A:$AZ,MATCH('BI Template_Seasonal'!$A21,ProposedHeader,0),FALSE)","v":-0.08},-0.08,-0.08,"N/A",-2.0024264973773514E-3,-1.99167647720392E-3]
["Distribution Volumetric Charge",{"$f":"IF($B$9=\"kWh\",$B$4,$B$5)","v":40},{"$f":"VLOOKUP($B$3,'Data Current Rates'!$A:$AP,MATCH('BI Template_Seasonal'!$A22,CurrentHeader,0),FALSE)","v":3.0800000000000001E-2},1.232,{"$f":"IF($C$9=\"kWh\",$C$4,$C$5)","v":40},{"$f":"VLOOKUP($C$3,'Data Proposed Rates'!$A:$AZ,MATCH('BI Template_Seasonal'!$A22,ProposedHeader,0),FALSE)","v":0},0,-1.232,-1,0,0]
["Volumetric Base Rate Adjustment to Recover Past Tax Amounts ",{"$f":"IF($B$9=\"kWh\",$B$4,$B$5)","v":40},{"$f":"VLOOKUP($B$3,'Data Current Rates'!$A:$AP,MATCH('BI Template_Seasonal'!$A23,CurrentHeader,0),FALSE)","v":0},0,{"$f":"IF($C$9=\"kWh\",$C$4,$C$5)","v":40},{"$f":"VLOOKUP($C$3,'Data Proposed Rates'!$A:$AZ,MATCH('BI Template_Seasonal'!$A23,ProposedHeader,0),FALSE)","v":0},{"$f":"E23*F23","v":0},0,"N/A",0,0]
["Group 1 Volumetric DVA Rider (General)",null,null,null,{"$f":"IF($C$9=\"kWh\",$C$4,$C$5)","v":40},{"$f":"VLOOKUP($C$3,'Data Proposed Rates'!$A:$AZ,MATCH('BI Template_Seasonal'!$A24,ProposedHeader,0),FALSE)","v":-4.0000000000000002E-4},-1.6E-2,-1.6E-2,"N/A",-4.0048529947547026E-4,-3.9833529544078397E-4]
["Group 2 Volumetric DVA Rider ",null,null,null,40,{"$f":"VLOOKUP($C$3,'Data Proposed Rates'!$A:$AZ,MATCH('BI Template_Seasonal'!$A25,ProposedHeader,0),FALSE)","v":0},0,0,"N/A",0,0]
["Sub-Total:  Distribution (excluding pass through)",null,null,{"$f":"SUM(INDIRECT(\"D19:D\"&ROW()-1))","v":60.891999999999996},null,null,{"$f":"SUM(INDIRECT(\"g19:g\"&ROW()-1))","v":36.584000000000003},{"$f":"G26-D26","v":-24.307999999999993},-0.39919858109439654,0.91570963725066279,0.91079365302535265]
["Smart Metering Entity Charge",{"$f":"B19","v":1},{"$f":"VLOOKUP($A27,'Data Pass Through'!$A:$D,2,FALSE)","v":0.56999999999999995},{"$f":"B27*C27","v":0.56999999999999995},{"$f":"E19","v":1},{"$f":"VLOOKUP($A27,'Data Pass Through'!$A:$D,3,FALSE)","v":0.56999999999999995},{"$f":"E27*F27","v":0.56999999999999995},0,0,1.4267288793813627E-2,1.4190694900077927E-2]
["Line Losses on Cost of Power (based on two-tier RPP prices)",{"$f":"B8-B4","v":4.1600000000000037},{"$f":"IF(B4>B7,C13,C12)","v":9.8000000000000004E-2},{"$f":"B28*C28","v":0.40768000000000038},{"$f":"C8-C4","v":2.2800000000000011},{"$f":"IF(C4>C7,F13,F12)","v":9.8000000000000004E-2},{"$f":"E28*F28","v":0.22344000000000011},-0.18424000000000026,-0.45192307692307715,5.5927772071749449E-3,5.5627524008305508E-3]
["Line Losses on Cost of Power (based on TOU prices)",{"$f":"B8-B4","v":4.1600000000000037},{"$f":"VLOOKUP($B$3,'Data Billing Quantities'!$A:$O,MATCH('BI Template_Seasonal'!$A15,'Data Billing Quantities'!$4:$4,0),FALSE)*C15+VLOOKUP($B$3,'Data Billing Quantities'!$A:$O,MATCH('BI Template_Seasonal'!$A16,'Data Billing Quantities'!$4:$4,0),FALSE)*C16+VLOOKUP($B$3,'Data Billing Quantities'!$A:$O,MATCH('BI Template_Seasonal'!$A17,'Data Billing Quantities'!$4:$4,0),FALSE)*C17","v":0.10342000000000001},{"$f":"B29*C29","v":0.43022720000000042},{"$f":"C8-C4","v":2.2800000000000011},{"$f":"VLOOKUP($C$3,'Data Billing Quantities'!$A:$O,MATCH('BI Template_Seasonal'!$A15,'Data Billing Quantities'!$4:$4,0),FALSE)*F15+VLOOKUP($C$3,'Data Billing Quantities'!$A:$O,MATCH('BI Template_Seasonal'!$A16,'Data Billing Quantities'!$4:$4,0),FALSE)*F16+VLOOKUP($C$3,'Data Billing Quantities'!$A:$O,MATCH('BI Template_Seasonal'!$A17,'Data Billing Quantities'!$4:$4,0),FALSE)*F17","v":0.10342000000000001},{"$f":"E29*F29","v":0.23579760000000013},-0.19442960000000029,-0.45192307692307715,5.9020920282248247E-3,5.8704066662642407E-3]
["Sub-Total:  Distribution (based on two-tier RPP prices)",null,null,{"$f":"SUM(D26,D27:D28)","v":61.869679999999995},null,null,{"$f":"SUM(G26,G27:G28)","v":37.377440000000007},-24.492239999999988,-0.39586821848763387,0.93556970325165145,0.9305471003262612]
["Sub-Total:  Distribution (based on TOU prices)",null,null,{"$f":"SUM(D26,D27,D29)","v":61.892227199999994},null,null,{"$f":"SUM(G26,G27,G29)","v":37.389797600000001},-24.502429599999992,-0.39588863914724326,0.93587901807270124,0.93085475459169476]
["Retail Transmission Rate – Network Service Rate",{"$f":"IF($B$9=\"kWh\",$B$8,$B$5)","v":44.160000000000004},{"$f":"VLOOKUP($B$3,'Data Current Rates'!$A:$AP,MATCH('BI Template_Seasonal'!$A32,CurrentHeader,0),FALSE)","v":7.7000000000000002E-3},{"$f":"B32*C32","v":0.34003200000000006},{"$f":"IF($C$9=\"kWh\",$C$8,$C$5)","v":42.28},{"$f":"VLOOKUP($C$3,'Data Proposed Rates'!$A:$AZ,MATCH('BI Template_Seasonal'!$A32,ProposedHeader,0),FALSE)","v":1.0200000000000001E-2},{"$f":"E32*F32","v":0.43125600000000003},{"$f":"G32-D32","v":9.1223999999999972E-2},0.26828063241106709,1.0794480519412088E-2,1.0736530385663171E-2]
["Retail Transmission Rate – Line and Transformation Connection Service Rate",{"$f":"IF($B$9=\"kWh\",$B$8,$B$5)","v":44.160000000000004},{"$f":"VLOOKUP($B$3,'Data Current Rates'!$A:$AP,MATCH('BI Template_Seasonal'!$A33,CurrentHeader,0),FALSE)","v":6.1000000000000004E-3},{"$f":"B33*C33","v":0.26937600000000006},{"$f":"IF($C$9=\"kWh\",$C$8,$C$5)","v":42.28},{"$f":"VLOOKUP($C$3,'Data Proposed Rates'!$A:$AZ,MATCH('BI Template_Seasonal'!$A33,ProposedHeader,0),FALSE)","v":7.4000000000000003E-3},{"$f":"E33*F33","v":0.31287200000000004},{"$f":"G33-D33","v":4.3495999999999979E-2},0.16146947018294119,7.8312897885930849E-3,7.7892475346968111E-3]
["Sub-Total:  Retail Transmission ",null,null,{"$f":"SUM(D32:D33)","v":0.60940800000000017},null,null,{"$f":"SUM(G32:G33)","v":0.74412800000000012},{"$f":"G34-D34","v":0.13471999999999995},0.22106700273051866,1.8625770308005173E-2,1.8525777920359983E-2]
["Sub-Total:  Delivery (based on two-tier RPP prices)",null,null,{"$f":"D30+D34","v":62.479087999999997},null,null,{"$f":"G30+G34","v":38.121568000000011},{"$f":"G35-D35","v":-24.357519999999987},-0.38985076094580617,0.95419547355965673,0.94907287824662123]
["Sub-Total:  Delivery (based on TOU prices)",null,null,{"$f":"D31+D34","v":62.501635199999996},null,null,{"$f":"G31+G34","v":38.133925600000005},{"$f":"G36-D36","v":-24.367709599999991},-0.3898731532707162,0.95450478838070651,0.94938053251205479]
["Wholesale Market Service Rate (WMS) - not including CBR",{"$f":"B8","v":44.160000000000004},{"$f":"VLOOKUP($A37,'Data Pass Through'!$A:$D,2,FALSE)","v":3.0000000000000001E-3},{"$f":"B37*C37","v":0.13248000000000001},{"$f":"$C$8","v":42.28},{"$f":"VLOOKUP($A37,'Data Pass Through'!$A:$D,3,FALSE)","v":3.0000000000000001E-3},{"$f":"E37*F37","v":0.12684000000000001},-5.6400000000000061E-3,-4.2572463768115985E-2,3.1748472115917907E-3,3.157803054606815E-3]
["Capacity Based Recovery (CBR) - Applicable for Class B Customers",{"$f":"B8","v":44.160000000000004},{"$f":"VLOOKUP($A38,'Data Pass Through'!$A:$D,2,FALSE)","v":4.0000000000000002E-4},{"$f":"B38*C38","v":1.7664000000000003E-2},{"$f":"$C$8","v":42.28},{"$f":"VLOOKUP($A38,'Data Pass Through'!$A:$D,3,FALSE)","v":4.0000000000000002E-4},{"$f":"E38*F38","v":1.6912E-2},-7.5200000000000267E-4,-4.2572463768116089E-2,4.2331296154557208E-4,4.2104040728090867E-4]
["Rural Rate Protection Charge",{"$f":"B8","v":44.160000000000004},{"$f":"VLOOKUP($A39,'Data Pass Through'!$A:$D,2,FALSE)","v":5.0000000000000001E-4},2.2080000000000002E-2,42.28,{"$f":"VLOOKUP($A39,'Data Pass Through'!$A:$D,3,FALSE)","v":5.0000000000000001E-4},2.1140000000000003E-2,-9.3999999999999986E-4,-4.257246376811593E-2,5.2914120193196519E-4,5.2630050910113587E-4]
["Standard Supply Service – Administration Charge (if applicable)",1,{"$f":"VLOOKUP($A40,'Data Pass Through'!$A:$D,2,FALSE)","v":0.25},{"$f":"B40*C40","v":0.25},1,{"$f":"VLOOKUP($A40,'Data Pass Through'!$A:$D,3,FALSE)","v":0.25},0.25,0,0,6.2575828043042224E-3,6.22398899126225E-3]
["Sub-Total:  Regulatory",null,null,{"$f":"SUM(D37:D40)","v":0.42222400000000004},null,null,{"$f":"SUM(G37:G40)","v":0.41489200000000004},-7.3320000000000052E-3,-1.7365190041305101E-2,1.0384884179373551E-2,1.032913296225111E-2]
["Total  Electricty Charge on Two-Tier RPP ",null,null,{"$f":"SUM(D14,D26,D27,D28,D34,D41)","v":66.821311999999992},null,null,{"$f":"SUM(G14,G26,G27,G28,G34,G41)","v":42.456460000000014},-24.364851999999978,-0.3646269621284895,1.0626992561105206]
["     HST",null,0.13,{"$f":"D42*C43","v":8.6867705599999994},null,{"$f":"C43","v":0.13},{"$f":"G42*F43","v":5.5193398000000018},-3.1674307599999976,-0.36462696212848955,0.13815090329436769]
["Total Electricity Charge on Two-Tier RPP (including HST)",null,null,{"$f":"SUM(D42:D43)","v":75.508082559999991},null,null,{"$f":"SUM(G42:G43)","v":47.975799800000019},-27.532282759999973,-0.36462696212848944,1.2008501594048884]
["Ontario Electricity Rebate (OER)",null,{"$f":"IF(($B$4*12)<250000,VLOOKUP(A45,'Data Pass Through'!$A$4:$C$20,2,0),0)","v":-0.189},{"$f":"D42*C45","v":-12.629227967999999},null,{"$f":"C45","v":-0.189},{"$f":"G42*F45","v":-8.0242709400000027},4.6049570279999958,0.3646269621284895,-0.2008501594048884]
["Total Amount on Two-Tier RPP",null,null,{"$f":"SUM(D44:D45)","v":62.878854591999996},null,null,{"$f":"SUM(G44:G45)","v":39.951528860000018},-22.927325731999979,-0.36462696212848944,1]
["Total Electricty Charge on TOU (before HST)",null,null,{"$f":"SUM(D18,D26,D27,D29,D34,D41)","v":67.060659199999989},null,null,{"$f":"SUM(G18,G26,G27,G29,G34,G41)","v":42.685617600000008},-24.375041599999982,-0.36347751260995637,null,{"$f":"G47/$G$51","v":1.0626992561105206}]
["     HST",null,0.13,{"$f":"D47*C48","v":8.7178856959999997},null,{"$f":"C48","v":0.13},{"$f":"G47*F48","v":5.5491302880000015},-3.1687554079999982,-0.36347751260995637,null,{"$f":"G48/$G$51","v":0.13815090329436772}]
["Total Electricity Charge on TOU (including HST)",null,null,{"$f":"SUM(D47:D48)","v":75.778544895999985},null,null,{"$f":"SUM(G47:G48)","v":48.234747888000008},-27.543797007999977,-0.36347751260995637,null,{"$f":"G49/$G$51","v":1.2008501594048884}]
["Ontario Electricity Rebate (OER)",null,{"$f":"IF(($B$4*12)<250000,VLOOKUP(A50,'Data Pass Through'!$A$4:$C$20,2,0),0)","v":-0.189},{"$f":"D47*C50","v":-12.674464588799998},null,{"$f":"C50","v":-0.189},{"$f":"G47*F50","v":-8.067581726400002},4.6068828623999956,0.36347751260995631,null,{"$f":"G50/$G$51","v":-0.20085015940488843}]
["Total Amount on TOU",null,null,{"$f":"SUM(D49:D50)","v":63.104080307199986},null,null,{"$f":"SUM(G49:G50)","v":40.167166161600008},-22.936914145599978,-0.36347751260995631,null,{"$f":"G51/$G$51","v":1}]
["* Distribution rate protection applies to R1 and R2 customers"]

{"sheet":"BI Template_EnergyNPDI","index":12,"n_rows":49,"n_cols":11,"rows_kept":49,"cut":false,"hidden":true,"merged":[[0,0,0,10]]}
["2023 Bill Impacts (Low Consumption Level) - AR_NPDI"]
[]
["Rate Class",{"$f":"VLOOKUP(A1,'Data BI List Acq_Seas'!C:E,2,FALSE)","v":"NPDI_RES"},{"$f":"VLOOKUP(A1,'Data BI List Acq_Seas'!C:E,3,FALSE)","v":"AR-NPDI"}]
["Monthly Consumption (kWh)",{"$f":"IF(COUNTIF(A1,\"*Low*\")>0,VLOOKUP(B3,'Data Billing Quantities'!$A:$Z,MATCH(\"Low kWh\",'Data Billing Quantities'!4:4,0),FALSE),IF(COUNTIF(A1,\"*Typical*\")>0,VLOOKUP(B3,'Data Billing Quantities'!$A:$Z,MATCH(\"Typical kWh\",'Data Billing Quantities'!4:4,0),FALSE),IF(COUNTIF(A1,\"*Average*\")>0,VLOOKUP(B3,'Data Billing Quantities'!$A:$Z,MATCH(\"Average kWh\",'Data Billing Quantities'!4:4,0),FALSE),IF(COUNTIF(A1,\"*High*\")>0,VLOOKUP(B3,'Data Billing Quantities'!$A:$Z,MATCH(\"High kWh\",'Data Billing Quantities'!4:4,0),FALSE),\"error\"))))","v":290},{"$f":"B4","v":290}]
["Peak (kW)",{"$f":"IF(COUNTIF(A1,\"*Low*\")>0,VLOOKUP(B3,'Data Billing Quantities'!$A:$Z,MATCH(\"Low kW\",'Data Billing Quantities'!4:4,0),FALSE),IF(COUNTIF(A1,\"*Typical*\")>0,VLOOKUP(B3,'Data Billing Quantities'!$A:$Z,MATCH(\"Typical kW\",'Data Billing Quantities'!4:4,0),FALSE),IF(COUNTIF(A1,\"*Average*\")>0,VLOOKUP(B3,'Data Billing Quantities'!$A:$Z,MATCH(\"Average kW\",'Data Billing Quantities'!4:4,0),FALSE),IF(COUNTIF(A1,\"*High*\")>0,VLOOKUP(B3,'Data Billing Quantities'!$A:$Z,MATCH(\"High kW\",'Data Billing Quantities'!4:4,0),FALSE),\"error\"))))","v":0},{"$f":"B5","v":0}]
["Loss factor",{"$f":"VLOOKUP(B3,'Data Billing Quantities'!A:D,MATCH(A6,'Data Billing Quantities'!4:4,0),FALSE)","v":1.0564},{"$f":"VLOOKUP(C3,'Data Billing Quantities'!A:D,MATCH(A6,'Data Billing Quantities'!4:4,0),FALSE)","v":1.0640000000000001}]
["Commodity Threshold",{"$f":"VLOOKUP(B3,'Data Billing Quantities'!A:D,MATCH(A7,'Data Billing Quantities'!4:4,0),FALSE)","v":600},{"$f":"B7","v":600}]
["Monthly Consumption (kWh) - Uplifted",{"$f":"B4*B6","v":306.35599999999999},{"$f":"C4*C6","v":308.56}]
["Charge determinant",{"$f":"VLOOKUP(B3,'Data Billing Quantities'!A:D,MATCH(A9,'Data Billing Quantities'!4:4,0),FALSE)","v":"kWh"},{"$f":"VLOOKUP(C3,'Data Billing Quantities'!A:D,MATCH(A9,'Data Billing Quantities'!4:4,0),FALSE)","v":"kWh"}]
[]
[null,"Volume","Current Rate ($)","Current Charge ($)","Volume","Proposed Rate ($)","Proposed Charge ($)","Change ($)","Change (%)","% of Total Bill on RPP","% of Total Bill"]
["Energy First Tier",{"$f":"IF(B4>B7,B7,B4)","v":290},{"$f":"VLOOKUP($A12,'Data Pass Through'!$A:$D,2,FALSE)","v":9.8000000000000004E-2},{"$f":"B12*C12","v":28.42},{"$f":"B12","v":290},{"$f":"VLOOKUP($A12,'Data Pass Through'!$A:$D,3,FALSE)","v":9.8000000000000004E-2},{"$f":"E12*F12","v":28.42},{"$f":"G12-D12","v":0},{"$f":"IF(ISERROR(H12/ABS(D12)),\"N/A\",(H12/ABS(D12)))","v":0},{"$f":"G12/$G$44","v":0.4111505580819429}]
["Energy Second Tier",{"$f":"IF(B4>B7,(B4)-B7,0)","v":0},{"$f":"VLOOKUP($A13,'Data Pass Through'!$A:$D,2,FALSE)","v":0.115},{"$f":"B13*C13","v":0},{"$f":"B13","v":0},{"$f":"VLOOKUP($A13,'Data Pass Through'!$A:$D,3,FALSE)","v":0.115},{"$f":"E13*F13","v":0},0,"N/A",{"$f":"G13/$G$44","v":0}]
["Sub-Total:  Energy (RPP Tiered)",null,null,{"$f":"SUM(D12:D13)","v":28.42},null,null,{"$f":"SUM(G12:G13)","v":28.42},0,0,{"$f":"G14/$G$44","v":0.4111505580819429}]
["TOU-Off Peak",{"$f":"B$4*VLOOKUP($B$3,'Data Billing Quantities'!$A:$O,MATCH('BI Template_EnergyNPDI'!$A15,'Data Billing Quantities'!$4:$4,0),FALSE)","v":185.6},{"$f":"VLOOKUP($A15,'Data Pass Through'!$A:$D,2,FALSE)","v":8.2000000000000003E-2},{"$f":"B15*C15","v":15.219200000000001},185.6,{"$f":"VLOOKUP($A15,'Data Pass Through'!$A:$D,3,FALSE)","v":8.2000000000000003E-2},{"$f":"E15*F15","v":15.219200000000001},0,0,null,{"$f":"G15/$G$49","v":0.21527417727768283}]
["TOU-Mid Peak",{"$f":"B$4*VLOOKUP($B$3,'Data Billing Quantities'!$A:$O,MATCH('BI Template_EnergyNPDI'!$A16,'Data Billing Quantities'!$4:$4,0),FALSE)","v":52.199999999999996},{"$f":"VLOOKUP($A16,'Data Pass Through'!$A:$D,2,FALSE)","v":0.113},{"$f":"B16*C16","v":5.8986000000000001},52.199999999999996,{"$f":"VLOOKUP($A16,'Data Pass Through'!$A:$D,3,FALSE)","v":0.113},{"$f":"E16*F16","v":5.8986000000000001},0,0,null,8.3435151787882397E-2]
["TOU-On Peak",{"$f":"B$4*VLOOKUP($B$3,'Data Billing Quantities'!$A:$O,MATCH('BI Template_EnergyNPDI'!$A17,'Data Billing Quantities'!$4:$4,0),FALSE)","v":52.199999999999996},{"$f":"VLOOKUP($A17,'Data Pass Through'!$A:$D,2,FALSE)","v":0.17},{"$f":"B17*C17","v":8.8740000000000006},52.199999999999996,{"$f":"VLOOKUP($A17,'Data Pass Through'!$A:$D,3,FALSE)","v":0.17},{"$f":"E17*F17","v":8.8740000000000006},0,0,null,0.1255219097693806]
["Sub-Total:  Energy (RPP TOU)",null,null,{"$f":"SUM(D15:D17)","v":29.991800000000005},null,null,{"$f":"SUM(G15:G17)","v":29.991800000000005},0,0,{"$f":"G18/$G$44","v":0.43388970119218917},0.4242312388349459]
["Service Charge",1,{"$f":"VLOOKUP($B$3,'Data Current Rates'!$A:$AP,MATCH('BI Template_EnergyNPDI'!$A19,CurrentHeader,0),FALSE)","v":38.69},{"$f":"B19*C19","v":38.69},1,{"$f":"VLOOKUP($C$3,'Data Proposed Rates'!$A:$AZ,MATCH('BI Template_EnergyNPDI'!$A19,ProposedHeader,0),FALSE)","v":35.94},{"$f":"E19*F19","v":35.94},-2.75,-7.1077797880589308E-2,0.51994197950263987,0.50836797803826217]
["Distribution Volumetric Charge",{"$f":"IF($B$9=\"kWh\",$B$4,$B$5)","v":290},{"$f":"VLOOKUP($B$3,'Data Current Rates'!$A:$AP,MATCH('BI Template_EnergyNPDI'!$A20,CurrentHeader,0),FALSE)","v":0},{"$f":"B20*C20","v":0},{"$f":"IF($C$9=\"kWh\",$C$4,$C$5)","v":290},{"$f":"VLOOKUP($C$3,'Data Proposed Rates'!$A:$AZ,MATCH('BI Template_EnergyNPDI'!$A20,ProposedHeader,0),FALSE)","v":0},0,0,"N/A",0,0]
["Low Voltage Service Rate",{"$f":"IF($B$9=\"kWh\",$B$4,$B$5)","v":290},{"$f":"VLOOKUP($B$3,'Data Current Rates'!$A:$AP,MATCH('BI Template_EnergyNPDI'!$A21,CurrentHeader,0),FALSE)","v":8.9999999999999998E-4},0.26100000000000001,null,null,null,{"$f":"G21-D21","v":-0.26100000000000001},{"$f":"IF(ISERROR(H21/ABS(D21)),\"N/A\",(H21/ABS(D21)))","v":-1},0,0]
["Rate Rider for Application of Tax Change",290,{"$f":"VLOOKUP($B$3,'Data Current Rates'!$A:$AP,MATCH('BI Template_EnergyNPDI'!$A22,CurrentHeader,0),FALSE)","v":2.0000000000000001E-4},5.8000000000000003E-2,null,null,null,-5.8000000000000003E-2,-1,0,0]
["Group 1 Volumetric DVA Rider (General)",null,null,null,{"$f":"IF($C$9=\"kWh\",$C$4,$C$5)","v":290},{"$f":"VLOOKUP($C$3,'Data Proposed Rates'!$A:$AZ,MATCH('BI Template_EnergyNPDI'!$A23,ProposedHeader,0),FALSE)","v":-5.0000000000000001E-4},-0.14499999999999999,-0.14499999999999999,"N/A",-2.0977069289895042E-3,-2.0510115975388987E-3]
["Sub-Total:  Distribution (excluding pass through)",null,null,{"$f":"SUM(INDIRECT(\"D19:D\"&ROW()-1))","v":39.009},null,null,{"$f":"SUM(INDIRECT(\"g19:g\"&ROW()-1))","v":35.794999999999995},{"$f":"G24-D24","v":-3.2140000000000057},-8.2391243046476603E-2,{"$f":"G24/$G$44","v":0.5178442725736504},{"$f":"G24/$G$49","v":0.50631696644072322}]
["Smart Metering Entity Charge",{"$f":"B19","v":1},{"$f":"VLOOKUP($A25,'Data Pass Through'!$A:$D,2,FALSE)","v":0.56999999999999995},{"$f":"B25*C25","v":0.56999999999999995},{"$f":"E19","v":1},{"$f":"VLOOKUP($A25,'Data Pass Through'!$A:$D,3,FALSE)","v":0.56999999999999995},{"$f":"E25*F25","v":0.56999999999999995},0,0,8.2461582725794312E-3,8.062597314463257E-3]
["Line Losses on Cost of Power (based on two-tier RPP prices)",{"$f":"B8-B4","v":16.355999999999995},{"$f":"IF(B4>B7,C13,C12)","v":9.8000000000000004E-2},{"$f":"B26*C26","v":1.6028879999999994},{"$f":"C8-C4","v":18.560000000000002},{"$f":"IF(C4>C7,F13,F12)","v":9.8000000000000004E-2},{"$f":"E26*F26","v":1.8188800000000003},0.21599200000000085,0.13475177304964597,2.6313635717244349E-2,2.5727889479527949E-2]
["Line Losses on Cost of Power (based on TOU prices)",{"$f":"B8-B4","v":16.355999999999995},{"$f":"VLOOKUP($B$3,'Data Billing Quantities'!$A:$O,MATCH('BI Template_EnergyNPDI'!$A15,'Data Billing Quantities'!$4:$4,0),FALSE)*C15+VLOOKUP($B$3,'Data Billing Quantities'!$A:$O,MATCH('BI Template_EnergyNPDI'!$A16,'Data Billing Quantities'!$4:$4,0),FALSE)*C16+VLOOKUP($B$3,'Data Billing Quantities'!$A:$O,MATCH('BI Template_EnergyNPDI'!$A17,'Data Billing Quantities'!$4:$4,0),FALSE)*C17","v":0.10342000000000001},{"$f":"B27*C27","v":1.6915375199999996},{"$f":"C8-C4","v":18.560000000000002},{"$f":"VLOOKUP($C$3,'Data Billing Quantities'!$A:$O,MATCH('BI Template_EnergyNPDI'!$A15,'Data Billing Quantities'!$4:$4,0),FALSE)*F15+VLOOKUP($C$3,'Data Billing Quantities'!$A:$O,MATCH('BI Template_EnergyNPDI'!$A16,'Data Billing Quantities'!$4:$4,0),FALSE)*F16+VLOOKUP($C$3,'Data Billing Quantities'!$A:$O,MATCH('BI Template_EnergyNPDI'!$A17,'Data Billing Quantities'!$4:$4,0),FALSE)*F17","v":0.10342000000000001},{"$f":"E27*F27","v":1.9194752000000004},0.22793768000000081,0.13475177304964589,2.7768940876300108E-2,2.7150799285436539E-2]
["Sub-Total:  Distribution (based on two-tier RPP prices)",null,null,{"$f":"SUM(D24,D25:D26)","v":41.181888000000001},null,null,{"$f":"SUM(G24,G25:G26)","v":38.183879999999995},-2.9980080000000058,-7.2799187837138638E-2,0.55240406656347418,0.54010745323471443]
["Sub-Total:  Distribution (based on TOU prices)",null,null,{"$f":"SUM(D24,D25,D27)","v":41.270537519999998},null,null,{"$f":"SUM(G24,G25,G27)","v":38.284475199999996},-2.986062320000002,-7.2353366334347718E-2,0.55385937172252997,0.54153036304062308]
["Retail Transmission Rate – Network Service Rate",{"$f":"IF($B$9=\"kWh\",$B$8,$B$5)","v":306.35599999999999},{"$f":"VLOOKUP($B$3,'Data Current Rates'!$A:$AP,MATCH('BI Template_EnergyNPDI'!$A30,CurrentHeader,0),FALSE)","v":8.3000000000000001E-3},{"$f":"B30*C30","v":2.5427548},{"$f":"IF($C$9=\"kWh\",$C$8,$C$5)","v":308.56},{"$f":"VLOOKUP($C$3,'Data Proposed Rates'!$A:$AZ,MATCH('BI Template_EnergyNPDI'!$A30,ProposedHeader,0),FALSE)","v":1.01E-2},{"$f":"E30*F30","v":3.1164559999999999},{"$f":"G30-D30","v":0.57370119999999991},0.22562191210886709,4.5085595483385622E-2,4.408198206358404E-2]
["Retail Transmission Rate – Line and Transformation Connection Service Rate",{"$f":"IF($B$9=\"kWh\",$B$8,$B$5)","v":306.35599999999999},{"$f":"VLOOKUP($B$3,'Data Current Rates'!$A:$AP,MATCH('BI Template_EnergyNPDI'!$A31,CurrentHeader,0),FALSE)","v":3.8999999999999998E-3},{"$f":"B31*C31","v":1.1947884},{"$f":"IF($C$9=\"kWh\",$C$8,$C$5)","v":308.56},{"$f":"VLOOKUP($C$3,'Data Proposed Rates'!$A:$AZ,MATCH('BI Template_EnergyNPDI'!$A31,ProposedHeader,0),FALSE)","v":7.4000000000000003E-3},{"$f":"E31*F31","v":2.283344},{"$f":"G31-D31","v":1.0885556000000001},0.91108651540306229,3.303301055218353E-2,3.2297689828764548E-2]
["Sub-Total:  Retail Transmission ",null,null,{"$f":"SUM(D30:D31)","v":3.7375432000000002},null,null,{"$f":"SUM(G30:G31)","v":5.3997999999999999},{"$f":"G32-D32","v":1.6622567999999998},0.44474584267012612,7.8118606035569152E-2,7.6379671892348594E-2]
["Sub-Total:  Delivery (based on two-tier RPP prices)",null,null,{"$f":"D28+D32","v":44.919431199999998},null,null,{"$f":"G28+G32","v":43.583679999999994},{"$f":"G33-D33","v":-1.3357512000000042},-2.9736600938971913E-2,0.63052267259904327,0.61648712512706305]
["Sub-Total:  Delivery (based on TOU prices)",null,null,{"$f":"D29+D32","v":45.008080719999995},null,null,{"$f":"G29+G32","v":43.684275199999995},{"$f":"G34-D34","v":-1.3238055200000005},-2.9412618774738115E-2,0.63197797775809905,0.61791003493297159]
["Wholesale Market Service Rate (WMS) - not including CBR",{"$f":"B8","v":306.35599999999999},{"$f":"VLOOKUP($A35,'Data Pass Through'!$A:$D,2,FALSE)","v":3.0000000000000001E-3},{"$f":"B35*C35","v":0.919068},{"$f":"$C$8","v":308.56},{"$f":"VLOOKUP($A35,'Data Pass Through'!$A:$D,3,FALSE)","v":3.0000000000000001E-3},{"$f":"E35*F35","v":0.92568000000000006},6.6120000000000623E-3,7.1942446043166148E-3,1.3391761034668997E-2,1.3093658038688331E-2]
["Capacity Based Recovery (CBR) - Applicable for Class B Customers",{"$f":"B8","v":306.35599999999999},{"$f":"VLOOKUP($A36,'Data Pass Through'!$A:$D,2,FALSE)","v":4.0000000000000002E-4},{"$f":"B36*C36","v":0.12254240000000001},{"$f":"$C$8","v":308.56},{"$f":"VLOOKUP($A36,'Data Pass Through'!$A:$D,3,FALSE)","v":4.0000000000000002E-4},{"$f":"E36*F36","v":0.12342400000000001},8.8159999999999628E-4,7.1942446043165159E-3,1.7855681379558663E-3,1.7458210718251108E-3]
["Rural Rate Protection Charge",{"$f":"B8","v":306.35599999999999},{"$f":"VLOOKUP($A37,'Data Pass Through'!$A:$D,2,FALSE)","v":5.0000000000000001E-4},0.15317800000000001,308.56,{"$f":"VLOOKUP($A37,'Data Pass Through'!$A:$D,3,FALSE)","v":5.0000000000000001E-4},0.15428,1.1019999999999919E-3,7.1942446043164934E-3,2.231960172444833E-3,2.1822763397813883E-3]
["Standard Supply Service – Administration Charge (if applicable)",1,{"$f":"VLOOKUP($A38,'Data Pass Through'!$A:$D,2,FALSE)","v":0.25},{"$f":"B38*C38","v":0.25},1,{"$f":"VLOOKUP($A38,'Data Pass Through'!$A:$D,3,FALSE)","v":0.25},0.25,0,0,3.6167360844646629E-3,3.5362268923084463E-3]
["Sub-Total:  Regulatory",null,null,{"$f":"SUM(D35:D38)","v":1.4447884},null,null,{"$f":"SUM(G35:G38)","v":1.453384},8.5956000000000365E-3,5.9493833145393728E-3,2.102602542953436E-2,2.0557982342603275E-2]
["Total  Electricty Charge on Two-Tier RPP ",null,null,{"$f":"SUM(D14,D24,D25,D26,D32,D39)","v":74.784219599999986},null,null,{"$f":"SUM(G14,G24,G25,G26,G32,G39)","v":73.457064000000003},-1.3271555999999833,-1.7746465860024613E-2,1.0626992561105206]
["     HST",null,0.13,{"$f":"D40*C41","v":9.7219485479999985},null,{"$f":"C41","v":0.13},{"$f":"G40*F41","v":9.5494183200000009},-0.17253022799999762,-1.7746465860024593E-2,0.13815090329436769]
["Total Electricity Charge on Two-Tier RPP (including HST)",null,null,{"$f":"SUM(D40:D41)","v":84.506168147999986},null,null,{"$f":"SUM(G40:G41)","v":83.006482320000003},-1.4996858279999827,-1.7746465860024631E-2,1.2008501594048884]
["Ontario Electricity Rebate (OER)",null,{"$f":"IF(($B$4*12)<250000,VLOOKUP(A43,'Data Pass Through'!$A$4:$C$20,2,0),0)","v":-0.189},{"$f":"D40*C43","v":-14.134217504399997},null,{"$f":"C43","v":-0.189},{"$f":"G40*F43","v":-13.883385096000001},0.25083240839999554,1.7746465860024523E-2,-0.20085015940488843]
["Total Amount on Two-Tier RPP",null,null,{"$f":"SUM(D42:D43)","v":70.371950643599988},null,null,{"$f":"SUM(G42:G43)","v":69.123097224000006},-1.2488534195999819,-1.7746465860024579E-2,1]
["Total Electricty Charge on TOU (before HST)",null,null,{"$f":"SUM(D18,D24,D25,D27,D32,D39)","v":76.444669119999986},null,null,{"$f":"SUM(G18,G24,G25,G27,G32,G39)","v":75.129459199999985},-1.3152099200000009,-1.7204730364329703E-2,null,{"$f":"G45/$G$49","v":1.0626992561105206}]
["     HST",null,0.13,{"$f":"D45*C46","v":9.9378069855999982},null,{"$f":"C46","v":0.13},{"$f":"G45*F46","v":9.7668296959999985},-0.17097728959999969,-1.7204730364329658E-2,null,{"$f":"G46/$G$49","v":0.13815090329436769}]
["Total Electricity Charge on TOU (including HST)",null,null,{"$f":"SUM(D45:D46)","v":86.382476105599977},null,null,{"$f":"SUM(G45:G46)","v":84.896288895999987},-1.48618720959999,-1.7204730364329575E-2,null,{"$f":"G47/$G$49","v":1.2008501594048884}]
["Ontario Electricity Rebate (OER)",null,{"$f":"IF(($B$4*12)<250000,VLOOKUP(A48,'Data Pass Through'!$A$4:$C$20,2,0),0)","v":-0.189},{"$f":"D45*C48","v":-14.448042463679997},null,{"$f":"C48","v":-0.189},{"$f":"G45*F48","v":-14.199467788799998},0.24857467487999862,1.7204730364329596E-2,null,{"$f":"G48/$G$49","v":-0.2008501594048884}]
["Total Amount on TOU",null,null,{"$f":"SUM(D47:D48)","v":71.934433641919981},null,null,{"$f":"SUM(G47:G48)","v":70.696821107199995},-1.237612534719986,-1.7204730364329499E-2,null,{"$f":"G49/$G$49","v":1}]

{"sheet":"BI Template_DemandNPDI","index":13,"n_rows":33,"n_cols":10,"rows_kept":33,"cut":false,"hidden":true,"merged":[[0,0,0,9]]}
["2023 Bill Impacts (Low Consumption Level) - AGSd_NPDI"]
[]
["Rate Class",{"$f":"VLOOKUP(A1,'Data BI List Acq_Seas'!C:E,2,FALSE)","v":"NPDI_GS >50"},{"$f":"VLOOKUP(A1,'Data BI List Acq_Seas'!C:E,3,FALSE)","v":"AGSd-NPDI"}]
["Monthly Consumption (kWh)",{"$f":"IF(COUNTIF(A1,\"*Low*\")>0,VLOOKUP(B3,'Data Billing Quantities'!$A:$Z,MATCH(\"Low kWh\",'Data Billing Quantities'!4:4,0),FALSE),IF(COUNTIF(A1,\"*Typical*\")>0,VLOOKUP(B3,'Data Billing Quantities'!$A:$Z,MATCH(\"Typical kWh\",'Data Billing Quantities'!4:4,0),FALSE),IF(COUNTIF(A1,\"*Average*\")>0,VLOOKUP(B3,'Data Billing Quantities'!$A:$Z,MATCH(\"Average kWh\",'Data Billing Quantities'!4:4,0),FALSE),IF(COUNTIF(A1,\"*High*\")>0,VLOOKUP(B3,'Data Billing Quantities'!$A:$Z,MATCH(\"High kWh\",'Data Billing Quantities'!4:4,0),FALSE),\"error\"))))","v":13020},{"$f":"B4","v":13020}]
["Peak (kW)",{"$f":"IF(COUNTIF(A1,\"*Low*\")>0,VLOOKUP(B3,'Data Billing Quantities'!$A:$Z,MATCH(\"Low kW\",'Data Billing Quantities'!4:4,0),FALSE),IF(COUNTIF(A1,\"*Typical*\")>0,VLOOKUP(B3,'Data Billing Quantities'!$A:$Z,MATCH(\"Typical kW\",'Data Billing Quantities'!4:4,0),FALSE),IF(COUNTIF(A1,\"*Average*\")>0,VLOOKUP(B3,'Data Billing Quantities'!$A:$Z,MATCH(\"Average kW\",'Data Billing Quantities'!4:4,0),FALSE),IF(COUNTIF(A1,\"*High*\")>0,VLOOKUP(B3,'Data Billing Quantities'!$A:$Z,MATCH(\"High kW\",'Data Billing Quantities'!4:4,0),FALSE),\"error\"))))","v":55},{"$f":"B5","v":55}]
["Loss factor",{"$f":"VLOOKUP(B3,'Data Billing Quantities'!A:D,MATCH(A6,'Data Billing Quantities'!4:4,0),FALSE)","v":1.0464},{"$f":"VLOOKUP(C3,'Data Billing Quantities'!A:D,MATCH(A6,'Data Billing Quantities'!4:4,0),FALSE)","v":1.0529999999999999}]
["Commodity Threshold",{"$f":"VLOOKUP(B3,'Data Billing Quantities'!A:D,MATCH(A7,'Data Billing Quantities'!4:4,0),FALSE)","v":0},{"$f":"B7","v":0}]
["Monthly Consumption (kWh) - Uplifted",{"$f":"B4*B6","v":13624.128000000001},{"$f":"C4*C6","v":13710.06}]
["Charge determinant",{"$f":"VLOOKUP(B3,'Data Billing Quantities'!A:D,MATCH(A9,'Data Billing Quantities'!4:4,0),FALSE)","v":"kW"},{"$f":"VLOOKUP(C3,'Data Billing Quantities'!A:D,MATCH(A9,'Data Billing Quantities'!4:4,0),FALSE)","v":"kW"}]
[]
[null,"Volume","Current Rate ($)","Current Charge ($)","Volume","Proposed Rate ($)","Proposed Charge ($)","Change ($)","Change (%)","% of Total Bill"]
["Weighted Average Hourly Spot Price",{"$f":"B8","v":13624.128000000001},{"$f":"VLOOKUP($A12,'Data Pass Through'!$A:$D,2,FALSE)","v":0.11899999999999999},{"$f":"B12*C12","v":1621.2712320000001},{"$f":"C8","v":13710.06},{"$f":"VLOOKUP($A12,'Data Pass Through'!$A:$D,3,FALSE)","v":0.11899999999999999},{"$f":"E12*F12","v":1631.4971399999999},{"$f":"G12-D12","v":10.22590799999989},{"$f":"IF(ISERROR(H12/ABS(D12)),\"N/A\",(H12/ABS(D12)))","v":6.3073394495412162E-3},{"$f":"G12/G$33","v":0.62549918209318645}]
["Sub-Total:  Energy (WASHP)",null,null,{"$f":"SUM(D12:D12)","v":1621.2712320000001},null,null,{"$f":"SUM(G12:G12)","v":1631.4971399999999},10.22590799999989,6.3073394495412162E-3,0.62549918209318645]
["Service Charge",1,{"$f":"VLOOKUP($B$3,'Data Current Rates'!$A:$AP,MATCH('BI Template_DemandNPDI'!$A14,CurrentHeader,0),FALSE)","v":258.16000000000003},{"$f":"B14*C14","v":258.16000000000003},1,{"$f":"VLOOKUP($C$3,'Data Proposed Rates'!$A:$AZ,MATCH('BI Template_DemandNPDI'!$A14,ProposedHeader,0),FALSE)","v":171.2},{"$f":"E14*F14","v":171.2},-86.960000000000036,-0.33684536721413089,6.5636314860076012E-2]
["Distribution Volumetric Charge",{"$f":"IF($B$9=\"kWh\",$B$4,$B$5)","v":55},{"$f":"VLOOKUP($B$3,'Data Current Rates'!$A:$AP,MATCH('BI Template_DemandNPDI'!$A15,CurrentHeader,0),FALSE)","v":4.1635999999999997},{"$f":"B15*C15","v":228.99799999999999},{"$f":"IF($C$9=\"kWh\",$C$4,$C$5)","v":55},{"$f":"VLOOKUP($C$3,'Data Proposed Rates'!$A:$AZ,MATCH('BI Template_DemandNPDI'!$A15,ProposedHeader,0),FALSE)","v":4.0885999999999996},224.87299999999999,-4.125,-1.8013257757709674E-2,8.6213989670151134E-2]
["Low Voltage Service Rate",{"$f":"IF($B$9=\"kWh\",$B$4,$B$5)","v":55},{"$f":"VLOOKUP($B$3,'Data Current Rates'!$A:$AP,MATCH('BI Template_DemandNPDI'!$A16,CurrentHeader,0),FALSE)","v":0.30499999999999999},16.774999999999999,null,null,null,-16.774999999999999,-1,0]
["Rate Rider for Application of Tax Change",55,{"$f":"VLOOKUP($B$3,'Data Current Rates'!$A:$AP,MATCH('BI Template_DemandNPDI'!$A17,CurrentHeader,0),FALSE)","v":2.1100000000000001E-2},1.1605000000000001,null,null,null,-1.1605000000000001,-1,0]
["Group 1 Volumetric DVA Rider (General)",null,null,null,{"$f":"IF($C$9=\"kWh\",$C$4,$C$5)","v":55},{"$f":"VLOOKUP($C$3,'Data Proposed Rates'!$A:$AZ,MATCH('BI Template_DemandNPDI'!$A18,ProposedHeader,0),FALSE)","v":-3.8800000000000001E-2},-2.1339999999999999,-2.1339999999999999,"N/A",-8.1815359761333063E-4]
["Group 1 Volumetric Deferral/Variance Account Rider (Sub-Account RSVA Wholesale Market Service Charge & RSVA Power) ",null,null,null,55,{"$f":"VLOOKUP($C$3,'Data Proposed Rates'!$A:$AZ,MATCH('BI Template_DemandNPDI'!$A19,ProposedHeader,0),FALSE)","v":-8.1000000000000003E-2},-4.4550000000000001,-4.4550000000000001,"N/A",-1.7080010671824688E-3]
["Group 1 Volumetric Deferral/Variance Account Rider (Sub-Account Global Adjustment)",null,null,null,{"$f":"C4","v":13020},{"$f":"VLOOKUP($C$3,'Data Proposed Rates'!$A:$AZ,MATCH('BI Template_DemandNPDI'!$A20,ProposedHeader,0),FALSE)","v":-6.9999999999999999E-4},-9.1140000000000008,-9.1140000000000008,"N/A",-3.4942136310440004E-3]
["Sub-Total:  Distribution",null,null,{"$f":"SUM(INDIRECT(\"D14:D\"&ROW()-1))","v":505.09350000000001},null,null,{"$f":"SUM(INDIRECT(\"g14:g\"&ROW()-1))","v":380.37},{"$f":"G21-D21","v":-124.7235},-0.24693150872066261,0.14582993623438734]
["Retail Transmission Rate – Network Service Rate",{"$f":"IF($B$9=\"kWh\",$B$4,$B$5)","v":55},{"$f":"VLOOKUP($B$3,'Data Current Rates'!$A:$AP,MATCH('BI Template_DemandNPDI'!$A22,CurrentHeader,0),FALSE)","v":3.1089000000000002},{"$f":"B22*C22","v":170.98950000000002},{"$f":"IF($C$9=\"kWh\",$C$4,$C$5)","v":55},{"$f":"VLOOKUP($C$3,'Data Proposed Rates'!$A:$AZ,MATCH('BI Template_DemandNPDI'!$A22,ProposedHeader,0),FALSE)","v":2.4941},{"$f":"E22*F22","v":137.1755},{"$f":"G22-D22","v":-33.814000000000021},-0.19775483289909623,5.2591672366170308E-2]
["Retail Transmission Rate – Line and Transformation Connection Service Rate",{"$f":"IF($B$9=\"kWh\",$B$4,$B$5)","v":55},{"$f":"VLOOKUP($B$3,'Data Current Rates'!$A:$AP,MATCH('BI Template_DemandNPDI'!$A23,CurrentHeader,0),FALSE)","v":1.3103},{"$f":"B23*C23","v":72.066500000000005},{"$f":"IF($C$9=\"kWh\",$C$4,$C$5)","v":55},{"$f":"VLOOKUP($C$3,'Data Proposed Rates'!$A:$AZ,MATCH('BI Template_DemandNPDI'!$A23,ProposedHeader,0),FALSE)","v":1.9177999999999999},{"$f":"E23*F23","v":105.479},{"$f":"G23-D23","v":33.412499999999994},0.46363428222544445,4.043956106966097E-2]
["Sub-Total:  Retail Transmission ",null,null,{"$f":"SUM(D22:D23)","v":243.05600000000004},null,null,{"$f":"SUM(G22:G23)","v":242.65449999999998},{"$f":"G24-D24","v":-0.40150000000005548},-1.6518826937004453E-3,9.3031233435831279E-2]
["Sub-Total:  Delivery (based on two-tier RPP prices)",null,null,{"$f":"SUM(D21,D24)","v":748.14949999999999},null,null,{"$f":"SUM(G21,G24)","v":623.02449999999999},{"$f":"G25-D25","v":-125.125},-0.16724598492680942,0.23886116967021861]
["Wholesale Market Service Rate (WMS) - not including CBR",{"$f":"B8","v":13624.128000000001},{"$f":"VLOOKUP($A26,'Data Pass Through'!$A:$D,2,FALSE)","v":3.0000000000000001E-3},{"$f":"B26*C26","v":40.872384000000004},{"$f":"$C$8","v":13710.06},{"$f":"VLOOKUP($A26,'Data Pass Through'!$A:$D,3,FALSE)","v":3.0000000000000001E-3},{"$f":"E26*F26","v":41.130180000000003},{"$f":"G26-D26","v":0.25779599999999903},6.3073394495412596E-3,1.5768886943525708E-2]
["Capacity Based Recovery (CBR) - Applicable for Class B Customers",{"$f":"B8","v":13624.128000000001},{"$f":"VLOOKUP($A27,'Data Pass Through'!$A:$D,2,FALSE)","v":4.0000000000000002E-4},{"$f":"B27*C27","v":5.4496512000000008},{"$f":"$C$8","v":13710.06},{"$f":"VLOOKUP($A27,'Data Pass Through'!$A:$D,3,FALSE)","v":4.0000000000000002E-4},{"$f":"E27*F27","v":5.4840239999999998},3.4372799999998982E-2,6.3073394495410965E-3,2.1025182591367609E-3]
["Rural Rate Protection Charge",{"$f":"B8","v":13624.128000000001},{"$f":"VLOOKUP($A28,'Data Pass Through'!$A:$D,2,FALSE)","v":5.0000000000000001E-4},6.8120640000000003,13710.06,{"$f":"VLOOKUP($A28,'Data Pass Through'!$A:$D,3,FALSE)","v":5.0000000000000001E-4},6.8550300000000002,4.2965999999999838E-2,6.3073394495412605E-3,2.6281478239209514E-3]
["Standard Supply Service – Administration Charge (if applicable)",1,{"$f":"VLOOKUP($A29,'Data Pass Through'!$A:$D,2,FALSE)","v":0.25},{"$f":"B29*C29","v":0.25},{"$f":"B29","v":1},{"$f":"VLOOKUP($A29,'Data Pass Through'!$A:$D,3,FALSE)","v":0.25},0.25,0,0,9.5847422400811938E-5]
["Sub-Total:  Regulatory",null,null,{"$f":"SUM(D26:D29)","v":53.384099200000001},null,null,{"$f":"SUM(G26:G29)","v":53.719234},0.33513479999999873,6.277801911472522E-3,2.0595400448984232E-2]
["Total Electricity Charge on WAHSP",null,null,{"$f":"SUM(D13,D25,D30)","v":2422.8048312000001},null,null,{"$f":"SUM(G13,G25,G30)","v":2308.2408740000001},-114.5639572,-4.7285673086287019E-2,0.88495575221238931]
["     HST",null,0.13,{"$f":"D31*C32","v":314.96462805600004},null,{"$f":"C32","v":0.13},{"$f":"G31*F32","v":300.07131362000001},-14.893314436000026,-4.7285673086287096E-2,0.11504424778761062]
["Total Amount on WAHSP",null,null,{"$f":"SUM(D31:D32)","v":2737.7694592560001},null,null,{"$f":"SUM(G31:G32)","v":2608.3121876200003},-129.45727163599986,-4.7285673086286964E-2,1]

{"sheet":"BI Template_unmNPDI","index":14,"n_rows":36,"n_cols":10,"rows_kept":36,"cut":false,"hidden":true,"merged":[[0,0,0,9]]}
["2023 Bill Impacts (Average Consumption Level) - St Lgt_NPDI"]
[]
["Rate Class",{"$f":"VLOOKUP(A1,'Data BI List Acq_Seas'!C:E,2,FALSE)","v":"NPDI_St Lgt"},{"$f":"VLOOKUP(A1,'Data BI List Acq_Seas'!C:E,3,FALSE)","v":"St Lgt-NPDI"}]
["Monthly Consumption (kWh)",{"$f":"IF(COUNTIF(A1,\"*Low*\")>0,VLOOKUP(B3,'Data Billing Quantities'!$A:$Z,MATCH(\"Low kWh\",'Data Billing Quantities'!4:4,0),FALSE),IF(COUNTIF(A1,\"*Typical*\")>0,VLOOKUP(B3,'Data Billing Quantities'!$A:$Z,MATCH(\"Typical kWh\",'Data Billing Quantities'!4:4,0),FALSE),IF(COUNTIF(A1,\"*Average*\")>0,VLOOKUP(B3,'Data Billing Quantities'!$A:$Z,MATCH(\"Average kWh\",'Data Billing Quantities'!4:4,0),FALSE),IF(COUNTIF(A1,\"*High*\")>0,VLOOKUP(B3,'Data Billing Quantities'!$A:$Z,MATCH(\"High kWh\",'Data Billing Quantities'!4:4,0),FALSE),\"error\"))))","v":11389},{"$f":"B4","v":11389}]
["Peak (kW)",{"$f":"IF(COUNTIF(A1,\"*Low*\")>0,VLOOKUP(B3,'Data Billing Quantities'!$A:$Z,MATCH(\"Low kW\",'Data Billing Quantities'!4:4,0),FALSE),IF(COUNTIF(A1,\"*Typical*\")>0,VLOOKUP(B3,'Data Billing Quantities'!$A:$Z,MATCH(\"Typical kW\",'Data Billing Quantities'!4:4,0),FALSE),IF(COUNTIF(A1,\"*Average*\")>0,VLOOKUP(B3,'Data Billing Quantities'!$A:$Z,MATCH(\"Average kW\",'Data Billing Quantities'!4:4,0),FALSE),IF(COUNTIF(A1,\"*High*\")>0,VLOOKUP(B3,'Data Billing Quantities'!$A:$Z,MATCH(\"High kW\",'Data Billing Quantities'!4:4,0),FALSE),\"error\"))))","v":39},{"$f":"B5","v":39}]
["Loss factor",{"$f":"VLOOKUP(B3,'Data Billing Quantities'!A:D,MATCH(A6,'Data Billing Quantities'!4:4,0),FALSE)","v":1.0564},{"$f":"VLOOKUP(C3,'Data Billing Quantities'!A:D,MATCH(A6,'Data Billing Quantities'!4:4,0),FALSE)","v":1.0920000000000001}]
["Commodity Threshold",{"$f":"VLOOKUP(B3,'Data Billing Quantities'!A:D,MATCH(A7,'Data Billing Quantities'!4:4,0),FALSE)","v":750},{"$f":"B7","v":750}]
["Monthly Consumption (kWh) - Uplifted",{"$f":"B4*B6","v":12031.339599999999},{"$f":"C4*C6","v":12436.788}]
["Charge determinant",{"$f":"VLOOKUP(B3,'Data Billing Quantities'!A:D,MATCH(A9,'Data Billing Quantities'!4:4,0),FALSE)","v":"kW"},{"$f":"VLOOKUP(C3,'Data Billing Quantities'!A:D,MATCH(A9,'Data Billing Quantities'!4:4,0),FALSE)","v":"kWh"}]
[]
[null,"Volume","Current Rate ($)","Current Charge ($)","Volume","Proposed Rate ($)","Proposed Charge ($)","Change ($)","Change (%)","% of Total Bill "]
["Energy First Tier",{"$f":"IF(B4>B7,B7,B4)","v":750},{"$f":"VLOOKUP($A12,'Data Pass Through'!$A:$D,2,FALSE)","v":9.8000000000000004E-2},{"$f":"B12*C12","v":73.5},{"$f":"B12","v":750},{"$f":"VLOOKUP($A12,'Data Pass Through'!$A:$D,3,FALSE)","v":9.8000000000000004E-2},{"$f":"E12*F12","v":73.5},{"$f":"G12-D12","v":0},{"$f":"IF(ISERROR(H12/ABS(D12)),\"N/A\",(H12/ABS(D12)))","v":0},{"$f":"G12/$G$36","v":2.7946739342856408E-2}]
["Energy Second Tier",{"$f":"IF(B4>B7,(B4)-B7,0)","v":10639},{"$f":"VLOOKUP($A13,'Data Pass Through'!$A:$D,2,FALSE)","v":0.115},{"$f":"B13*C13","v":1223.4850000000001},{"$f":"B13","v":10639},{"$f":"VLOOKUP($A13,'Data Pass Through'!$A:$D,3,FALSE)","v":0.115},{"$f":"E13*F13","v":1223.4850000000001},0,0,0.46520294401217249]
["Sub-Total:  Energy (RPP Tiered)",null,null,{"$f":"SUM(D12:D13)","v":1296.9850000000001},null,null,{"$f":"SUM(G12:G13)","v":1296.9850000000001},0,0,0.4931496833550289]
["Service Charge",{"$f":"IF(VLOOKUP(B$3,'Data Billing Quantities'!A:P,MATCH(\"Acquired Street Light Service Charge\",'Data Billing Quantities'!$4:$4,0),FALSE)>0,VLOOKUP(B$3,'Data Billing Quantities'!A:P,MATCH(\"Acquired Street Light Service Charge\",'Data Billing Quantities'!$4:$4,0),FALSE),1)","v":328},{"$f":"VLOOKUP($B$3,'Data Current Rates'!$A:$AP,MATCH('BI Template_unmNPDI'!$A15,CurrentHeader,0),FALSE)","v":2.08},{"$f":"B15*C15","v":682.24},1,{"$f":"VLOOKUP($C$3,'Data Proposed Rates'!$A:$AZ,MATCH('BI Template_unmNPDI'!$A15,ProposedHeader,0),FALSE)","v":2.97},{"$f":"E15*F15","v":2.97},-679.27,-0.99564669324577859,1.1292764060990958E-3]
["Distribution Volumetric Charge",{"$f":"IF($B$9=\"kWh\",$B$4,$B$5)","v":39},{"$f":"VLOOKUP($B$3,'Data Current Rates'!$A:$AP,MATCH('BI Template_unmNPDI'!$A16,CurrentHeader,0),FALSE)","v":7.8083},{"$f":"B16*C16","v":304.52370000000002},{"$f":"IF($C$9=\"kWh\",$C$4,$C$5)","v":11389},{"$f":"VLOOKUP($C$3,'Data Proposed Rates'!$A:$AZ,MATCH('BI Template_unmNPDI'!$A16,ProposedHeader,0),FALSE)","v":0.10639999999999999},1211.7895999999998,907.26589999999987,2.9792948791834588,0.46075602842971736]
["Low Voltage Service Rate",{"$f":"IF($B$9=\"kWh\",$B$4,$B$5)","v":39},{"$f":"VLOOKUP($B$3,'Data Current Rates'!$A:$AP,MATCH('BI Template_unmNPDI'!$A17,CurrentHeader,0),FALSE)","v":0.2407},9.3872999999999998,null,null,null,-9.3872999999999998,-1,0]
["Rate Rider for Application of Tax Change",39,{"$f":"VLOOKUP($B$3,'Data Current Rates'!$A:$AP,MATCH('BI Template_unmNPDI'!$A18,CurrentHeader,0),FALSE)","v":0.2079},8.1081000000000003,null,null,null,-8.1081000000000003,-1,0]
["Group 1 Volumetric DVA Rider (General)",null,null,null,{"$f":"IF($C$9=\"kWh\",$C$4,$C$5)","v":11389},{"$f":"VLOOKUP($C$3,'Data Proposed Rates'!$A:$AZ,MATCH('BI Template_unmNPDI'!$A19,ProposedHeader,0),FALSE)","v":-6.9999999999999999E-4},-7.9722999999999997,-7.9722999999999997,"N/A",-3.0312896607218253E-3]
["Sub-Total:  Distribution (excluding pass through)",null,null,{"$f":"SUM(INDIRECT(\"D15:D\"&ROW()-1))","v":1004.2591},null,null,{"$f":"SUM(INDIRECT(\"g15:g\"&ROW()-1))","v":1206.7873},{"$f":"G20-D20","v":202.52819999999997},0.20166927041039506,0.45885401517509466]
["Line Losses on Cost of Power (based on two-tier RPP prices)",{"$f":"B8-B4","v":642.33959999999934},{"$f":"IF(B4>B7,C13,C12)","v":0.115},{"$f":"B21*C21","v":73.86905399999992},{"$f":"C8-C4","v":1047.7880000000005},{"$f":"IF(C4>C7,F13,F12)","v":0.115},{"$f":"E21*F21","v":120.49562000000006},46.626566000000139,0.63120567375886782,4.5815778014909894E-2]
["Sub-Total:  Distribution (based on two-tier RPP prices)",null,null,{"$f":"SUM(D20,D21:D21)","v":1078.128154},null,null,{"$f":"SUM(G20,G21:G21)","v":1327.2829200000001},249.15476600000011,0.23109939674203156,0.5046697931900046]
["Retail Transmission Rate – Network Service Rate",{"$f":"IF($B$9=\"kWh\",$B$8,$B$5)","v":39},{"$f":"VLOOKUP($B$3,'Data Current Rates'!$A:$AP,MATCH('BI Template_unmNPDI'!$A23,CurrentHeader,0),FALSE)","v":2.3447},{"$f":"B23*C23","v":91.443299999999994},{"$f":"IF($C$9=\"kWh\",$C$8,$C$5)","v":12436.788},{"$f":"VLOOKUP($C$3,'Data Proposed Rates'!$A:$AZ,MATCH('BI Template_unmNPDI'!$A23,ProposedHeader,0),FALSE)","v":5.4999999999999997E-3},{"$f":"E23*F23","v":68.402333999999996},{"$f":"G23-D23","v":-23.040965999999997},-0.25196997483686612,2.6008465288993258E-2]
["Retail Transmission Rate – Line and Transformation Connection Service Rate",{"$f":"IF($B$9=\"kWh\",$B$8,$B$5)","v":39},{"$f":"VLOOKUP($B$3,'Data Current Rates'!$A:$AP,MATCH('BI Template_unmNPDI'!$A24,CurrentHeader,0),FALSE)","v":1.0129999999999999},{"$f":"B24*C24","v":39.506999999999998},{"$f":"IF($C$9=\"kWh\",$C$8,$C$5)","v":12436.788},{"$f":"VLOOKUP($C$3,'Data Proposed Rates'!$A:$AZ,MATCH('BI Template_unmNPDI'!$A24,ProposedHeader,0),FALSE)","v":4.3E-3},{"$f":"E24*F24","v":53.478188400000001},{"$f":"G24-D24","v":13.971188400000003},0.35363830207305041,2.0333891044122004E-2]
["Sub-Total:  Retail Transmission ",null,null,{"$f":"SUM(D23:D24)","v":130.9503},null,null,{"$f":"SUM(G23:G24)","v":121.88052239999999},{"$f":"G25-D25","v":-9.069777600000009},-6.9261220478303673E-2,4.6342356333115259E-2]
["Sub-Total:  Delivery (based on two-tier RPP prices)",null,null,{"$f":"D22+D25","v":1209.078454},null,null,{"$f":"G22+G25","v":1449.1634424000001},{"$f":"G26-D26","v":240.08498840000016},0.19856857725462385,0.55101214952311994]
["Wholesale Market Service Rate (WMS) - not including CBR",{"$f":"B8","v":12031.339599999999},{"$f":"VLOOKUP($A27,'Data Pass Through'!$A:$D,2,FALSE)","v":3.0000000000000001E-3},{"$f":"B27*C27","v":36.094018800000001},{"$f":"$C$8","v":12436.788},{"$f":"VLOOKUP($A27,'Data Pass Through'!$A:$D,3,FALSE)","v":3.0000000000000001E-3},{"$f":"E27*F27","v":37.310364},{"$f":"G27-D27","v":1.2163451999999992},3.369935630443012E-2,1.4186435612178142E-2]
["Capacity Based Recovery (CBR) - Applicable for Class B Customers",{"$f":"B8","v":12031.339599999999},{"$f":"VLOOKUP($A28,'Data Pass Through'!$A:$D,2,FALSE)","v":4.0000000000000002E-4},{"$f":"B28*C28","v":4.8125358399999998},{"$f":"$C$8","v":12436.788},{"$f":"VLOOKUP($A28,'Data Pass Through'!$A:$D,3,FALSE)","v":4.0000000000000002E-4},{"$f":"E28*F28","v":4.9747152000000003},0.16217936000000055,3.3699356304430259E-2,1.8915247482904191E-3]
["Rural Rate Protection Charge",{"$f":"B8","v":12031.339599999999},{"$f":"VLOOKUP($A29,'Data Pass Through'!$A:$D,2,FALSE)","v":5.0000000000000001E-4},6.0156697999999995,12436.788,{"$f":"VLOOKUP($A29,'Data Pass Through'!$A:$D,3,FALSE)","v":5.0000000000000001E-4},6.218394,0.20272420000000047,3.3699356304430217E-2,2.3644059353630236E-3]
["Standard Supply Service – Administration Charge (if applicable)",1,{"$f":"VLOOKUP($A30,'Data Pass Through'!$A:$D,2,FALSE)","v":0.25},{"$f":"B30*C30","v":0.25},1,{"$f":"VLOOKUP($A30,'Data Pass Through'!$A:$D,3,FALSE)","v":0.25},0.25,0,0,9.5056936540327921E-5]
["Sub-Total:  Regulatory",null,null,{"$f":"SUM(D27:D30)","v":47.172224440000001},null,null,{"$f":"SUM(G27:G30)","v":48.753473200000002},1.5812487600000011,3.3520758852727976E-2,1.8537423232371914E-2]
["Total  Electricty Charge on Two-Tier RPP ",null,null,{"$f":"SUM(D26,D31,D14)","v":2553.2356784399999},null,null,{"$f":"SUM(G26,G31,G14)","v":2794.9019156000004},241.66623716000049,9.46509713931524E-2,1.0626992561105209]
["     HST",null,0.13,{"$f":"D32*C33","v":331.92063819719999},null,{"$f":"C33","v":0.13},{"$f":"G32*F33","v":363.33724902800009},31.416610830800096,9.4650971393152497E-2,0.13815090329436772]
["Total Electricity Charge on Two-Tier RPP (including HST)",null,null,{"$f":"SUM(D32:D33)","v":2885.1563166371998},null,null,{"$f":"SUM(G32:G33)","v":3158.2391646280003},273.08284799080047,9.4650971393152372E-2,1.2008501594048884]
["Ontario Electricity Rebate (OER)",null,{"$f":"IF(($B$4*12)<250000,VLOOKUP(A35,'Data Pass Through'!$A$4:$C$20,2,0),0)","v":-0.189},{"$f":"D32*C35","v":-482.56154322515999},null,{"$f":"C35","v":-0.189},{"$f":"G32*F35","v":-528.23646204840009},-45.674918823240091,-9.46509713931524E-2,-0.20085015940488843]
["Total Amount on Two-Tier RPP",null,null,{"$f":"SUM(D34:D35)","v":2402.59477341204},null,null,{"$f":"SUM(G34:G35)","v":2630.0027025796003},227.40792916756027,9.4650971393152317E-2,1]

{"sheet":"BI Template_EnergyHCHI","index":15,"n_rows":49,"n_cols":11,"rows_kept":49,"cut":false,"hidden":true,"merged":[[0,0,0,10]]}
["2023 Bill Impacts (Low Consumption Level) - AR_HCHI"]
[]
["Rate Class",{"$f":"VLOOKUP(A1,'Data BI List Acq_Seas'!C:E,2,FALSE)","v":"HCHI_RES"},{"$f":"VLOOKUP(A1,'Data BI List Acq_Seas'!C:E,3,FALSE)","v":"AR-HCHI"}]
["Monthly Consumption (kWh)",{"$f":"IF(COUNTIF(A1,\"*Low*\")>0,VLOOKUP(B3,'Data Billing Quantities'!$A:$Z,MATCH(\"Low kWh\",'Data Billing Quantities'!4:4,0),FALSE),IF(COUNTIF(A1,\"*Typical*\")>0,VLOOKUP(B3,'Data Billing Quantities'!$A:$Z,MATCH(\"Typical kWh\",'Data Billing Quantities'!4:4,0),FALSE),IF(COUNTIF(A1,\"*Average*\")>0,VLOOKUP(B3,'Data Billing Quantities'!$A:$Z,MATCH(\"Average kWh\",'Data Billing Quantities'!4:4,0),FALSE),IF(COUNTIF(A1,\"*High*\")>0,VLOOKUP(B3,'Data Billing Quantities'!$A:$Z,MATCH(\"High kWh\",'Data Billing Quantities'!4:4,0),FALSE),\"error\"))))","v":250},{"$f":"B4","v":250}]
["Peak (kW)",{"$f":"IF(COUNTIF(A1,\"*Low*\")>0,VLOOKUP(B3,'Data Billing Quantities'!$A:$Z,MATCH(\"Low kW\",'Data Billing Quantities'!4:4,0),FALSE),IF(COUNTIF(A1,\"*Typical*\")>0,VLOOKUP(B3,'Data Billing Quantities'!$A:$Z,MATCH(\"Typical kW\",'Data Billing Quantities'!4:4,0),FALSE),IF(COUNTIF(A1,\"*Average*\")>0,VLOOKUP(B3,'Data Billing Quantities'!$A:$Z,MATCH(\"Average kW\",'Data Billing Quantities'!4:4,0),FALSE),IF(COUNTIF(A1,\"*High*\")>0,VLOOKUP(B3,'Data Billing Quantities'!$A:$Z,MATCH(\"High kW\",'Data Billing Quantities'!4:4,0),FALSE),\"error\"))))","v":0},{"$f":"B5","v":0}]
["Loss factor",{"$f":"VLOOKUP(B3,'Data Billing Quantities'!A:D,MATCH(A6,'Data Billing Quantities'!4:4,0),FALSE)","v":1.0655000000000001},{"$f":"VLOOKUP(C3,'Data Billing Quantities'!A:D,MATCH(A6,'Data Billing Quantities'!4:4,0),FALSE)","v":1.0640000000000001}]
["Commodity Threshold",{"$f":"VLOOKUP(B3,'Data Billing Quantities'!A:D,MATCH(A7,'Data Billing Quantities'!4:4,0),FALSE)","v":600},{"$f":"B7","v":600}]
["Monthly Consumption (kWh) - Uplifted",{"$f":"B4*B6","v":266.375},{"$f":"C4*C6","v":266}]
["Charge determinant",{"$f":"VLOOKUP(B3,'Data Billing Quantities'!A:D,MATCH(A9,'Data Billing Quantities'!4:4,0),FALSE)","v":"kWh"},{"$f":"VLOOKUP(C3,'Data Billing Quantities'!A:D,MATCH(A9,'Data Billing Quantities'!4:4,0),FALSE)","v":"kWh"}]
[]
[null,"Volume","Current Rate ($)","Current Charge ($)","Volume","Proposed Rate ($)","Proposed Charge ($)","Change ($)","Change (%)","% of Total Bill on RPP","% of Total Bill "]
["Energy First Tier",{"$f":"IF(B4>B7,B7,B4)","v":250},{"$f":"VLOOKUP($A12,'Data Pass Through'!$A:$D,2,FALSE)","v":9.8000000000000004E-2},{"$f":"B12*C12","v":24.5},{"$f":"B12","v":250},{"$f":"VLOOKUP($A12,'Data Pass Through'!$A:$D,3,FALSE)","v":9.8000000000000004E-2},{"$f":"E12*F12","v":24.5},{"$f":"G12-D12","v":0},{"$f":"IF(ISERROR(H12/ABS(D12)),\"N/A\",(H12/ABS(D12)))","v":0},{"$f":"G12/$G$44","v":0.38053170947126519}]
["Energy Second Tier",{"$f":"IF(B4>B7,(B4)-B7,0)","v":0},{"$f":"VLOOKUP($A13,'Data Pass Through'!$A:$D,2,FALSE)","v":0.115},{"$f":"B13*C13","v":0},{"$f":"B13","v":0},{"$f":"VLOOKUP($A13,'Data Pass Through'!$A:$D,3,FALSE)","v":0.115},{"$f":"E13*F13","v":0},0,"N/A",{"$f":"G13/$G$44","v":0}]
["Sub-Total:  Energy (RPP Tiered)",null,null,{"$f":"SUM(D12:D13)","v":24.5},null,null,{"$f":"SUM(G12:G13)","v":24.5},0,0,{"$f":"G14/$G$44","v":0.38053170947126519}]
["TOU-Off Peak",{"$f":"B$4*VLOOKUP($B$3,'Data Billing Quantities'!$A:$O,MATCH('BI Template_EnergyHCHI'!$A15,'Data Billing Quantities'!$4:$4,0),FALSE)","v":160},{"$f":"VLOOKUP($A15,'Data Pass Through'!$A:$D,2,FALSE)","v":8.2000000000000003E-2},{"$f":"B15*C15","v":13.120000000000001},160,{"$f":"VLOOKUP($A15,'Data Pass Through'!$A:$D,3,FALSE)","v":8.2000000000000003E-2},{"$f":"E15*F15","v":13.120000000000001},0,0,null,{"$f":"G15/$G$49","v":0.19957330582252633}]
["TOU-Mid Peak",{"$f":"B$4*VLOOKUP($B$3,'Data Billing Quantities'!$A:$O,MATCH('BI Template_EnergyHCHI'!$A16,'Data Billing Quantities'!$4:$4,0),FALSE)","v":45},{"$f":"VLOOKUP($A16,'Data Pass Through'!$A:$D,2,FALSE)","v":0.113},{"$f":"B16*C16","v":5.085},45,{"$f":"VLOOKUP($A16,'Data Pass Through'!$A:$D,3,FALSE)","v":0.113},{"$f":"E16*F16","v":5.085},0,0,null,7.7349867386245913E-2]
["TOU-On Peak",{"$f":"B$4*VLOOKUP($B$3,'Data Billing Quantities'!$A:$O,MATCH('BI Template_EnergyHCHI'!$A17,'Data Billing Quantities'!$4:$4,0),FALSE)","v":45},{"$f":"VLOOKUP($A17,'Data Pass Through'!$A:$D,2,FALSE)","v":0.17},{"$f":"B17*C17","v":7.65},45,{"$f":"VLOOKUP($A17,'Data Pass Through'!$A:$D,3,FALSE)","v":0.17},{"$f":"E17*F17","v":7.65},0,0,null,0.11636705712975048]
["Sub-Total:  Energy (RPP TOU)",null,null,{"$f":"SUM(D15:D17)","v":25.855000000000004},null,null,{"$f":"SUM(G15:G17)","v":25.855000000000004},0,0,{"$f":"G18/$G$44","v":0.40157744279100255},0.39329023033852278]
["Service Charge",1,{"$f":"VLOOKUP($B$3,'Data Current Rates'!$A:$AP,MATCH('BI Template_EnergyHCHI'!$A19,CurrentHeader,0),FALSE)","v":36.909999999999997},{"$f":"B19*C19","v":36.909999999999997},1,{"$f":"VLOOKUP($C$3,'Data Proposed Rates'!$A:$AZ,MATCH('BI Template_EnergyHCHI'!$A19,ProposedHeader,0),FALSE)","v":35.94},{"$f":"E19*F19","v":35.94},-0.96999999999999886,-2.6280140883229448E-2,0.55821671993458244,0.54669699780957282]
["Distribution Volumetric Charge",{"$f":"IF($B$9=\"kWh\",$B$4,$B$5)","v":250},{"$f":"VLOOKUP($B$3,'Data Current Rates'!$A:$AP,MATCH('BI Template_EnergyHCHI'!$A20,CurrentHeader,0),FALSE)","v":0},{"$f":"B20*C20","v":0},{"$f":"IF($C$9=\"kWh\",$C$4,$C$5)","v":250},{"$f":"VLOOKUP($C$3,'Data Proposed Rates'!$A:$AZ,MATCH('BI Template_EnergyHCHI'!$A20,ProposedHeader,0),FALSE)","v":0},0,0,"N/A",0,0]
["Low Voltage Service Rate",{"$f":"IF($B$9=\"kWh\",$B$4,$B$5)","v":250},{"$f":"VLOOKUP($B$3,'Data Current Rates'!$A:$AP,MATCH('BI Template_EnergyHCHI'!$A21,CurrentHeader,0),FALSE)","v":4.0000000000000002E-4},0.1,null,null,null,-0.1,-1,0,0]
["Funding Adder for Renewable Energy Generation",250,{"$f":"VLOOKUP($B$3,'Data Current Rates'!$A:$AP,MATCH('BI Template_EnergyHCHI'!$A22,CurrentHeader,0),FALSE)","v":2.0000000000000001E-4},0.05,null,null,null,-0.05,-1,0,0]
["Group 1 Volumetric DVA Rider (General)",null,null,null,{"$f":"IF($C$9=\"kWh\",$C$4,$C$5)","v":250},{"$f":"VLOOKUP($C$3,'Data Proposed Rates'!$A:$AZ,MATCH('BI Template_EnergyHCHI'!$A23,ProposedHeader,0),FALSE)","v":-4.0000000000000002E-4},-0.1,-0.1,"N/A",-1.5531906509031231E-3,-1.5211380016960849E-3]
["Sub-Total:  Distribution (excluding pass through)",null,null,{"$f":"SUM(INDIRECT(\"D19:D\"&ROW()-1))","v":37.059999999999995},null,null,{"$f":"SUM(INDIRECT(\"g19:g\"&ROW()-1))","v":35.839999999999996},{"$f":"G24-D24","v":-1.2199999999999989},-3.2919589854290311E-2,0.55666352928367924,0.54517585980787675]
["Smart Metering Entity Charge",{"$f":"B19","v":1},{"$f":"VLOOKUP($A25,'Data Pass Through'!$A:$D,2,FALSE)","v":0.56999999999999995},{"$f":"B25*C25","v":0.56999999999999995},{"$f":"E19","v":1},{"$f":"VLOOKUP($A25,'Data Pass Through'!$A:$D,3,FALSE)","v":0.56999999999999995},{"$f":"E25*F25","v":0.56999999999999995},0,0,8.8531867101478007E-3,8.6704866096676825E-3]
["Line Losses on Cost of Power (based on two-tier RPP prices)",{"$f":"B8-B4","v":16.375},{"$f":"IF(B4>B7,C13,C12)","v":9.8000000000000004E-2},{"$f":"B26*C26","v":1.6047500000000001},{"$f":"C8-C4","v":16},{"$f":"IF(C4>C7,F13,F12)","v":9.8000000000000004E-2},{"$f":"E26*F26","v":1.5680000000000001},-3.675000000000006E-2,-2.2900763358778661E-2,2.4354029406160972E-2,2.3851443866594609E-2]
["Line Losses on Cost of Power (based on TOU prices)",{"$f":"B8-B4","v":16.375},{"$f":"VLOOKUP($B$3,'Data Billing Quantities'!$A:$O,MATCH('BI Template_EnergyHCHI'!$A15,'Data Billing Quantities'!$4:$4,0),FALSE)*C15+VLOOKUP($B$3,'Data Billing Quantities'!$A:$O,MATCH('BI Template_EnergyHCHI'!$A16,'Data Billing Quantities'!$4:$4,0),FALSE)*C16+VLOOKUP($B$3,'Data Billing Quantities'!$A:$O,MATCH('BI Template_EnergyHCHI'!$A17,'Data Billing Quantities'!$4:$4,0),FALSE)*C17","v":0.10342000000000001},{"$f":"B27*C27","v":1.6935025000000001},{"$f":"C8-C4","v":16},{"$f":"VLOOKUP($C$3,'Data Billing Quantities'!$A:$O,MATCH('BI Template_EnergyHCHI'!$A15,'Data Billing Quantities'!$4:$4,0),FALSE)*F15+VLOOKUP($C$3,'Data Billing Quantities'!$A:$O,MATCH('BI Template_EnergyHCHI'!$A16,'Data Billing Quantities'!$4:$4,0),FALSE)*F16+VLOOKUP($C$3,'Data Billing Quantities'!$A:$O,MATCH('BI Template_EnergyHCHI'!$A17,'Data Billing Quantities'!$4:$4,0),FALSE)*F17","v":0.10342000000000001},{"$f":"E27*F27","v":1.6547200000000002},-3.8782499999999942E-2,-2.2900763358778591E-2,2.570095633862416E-2,2.5170574741665456E-2]
["Sub-Total:  Distribution (based on two-tier RPP prices)",null,null,{"$f":"SUM(D24,D25:D26)","v":39.234749999999998},null,null,{"$f":"SUM(G24,G25:G26)","v":37.977999999999994},-1.2567500000000038,-3.203155366097666E-2,0.58987074539998796,0.57769779028413892]
["Sub-Total:  Distribution (based on TOU prices)",null,null,{"$f":"SUM(D24,D25,D27)","v":39.323502499999996},null,null,{"$f":"SUM(G24,G25,G27)","v":38.064719999999994},-1.2587825000000024,-3.2010945617064565E-2,0.59121767233245115,0.57901692115920977]
["Retail Transmission Rate – Network Service Rate",{"$f":"IF($B$9=\"kWh\",$B$8,$B$5)","v":266.375},{"$f":"VLOOKUP($B$3,'Data Current Rates'!$A:$AP,MATCH('BI Template_EnergyHCHI'!$A30,CurrentHeader,0),FALSE)","v":7.9000000000000008E-3},{"$f":"B30*C30","v":2.1043625000000001},{"$f":"IF($C$9=\"kWh\",$C$8,$C$5)","v":266},{"$f":"VLOOKUP($C$3,'Data Proposed Rates'!$A:$AZ,MATCH('BI Template_EnergyHCHI'!$A30,ProposedHeader,0),FALSE)","v":1.01E-2},{"$f":"E30*F30","v":2.6865999999999999},{"$f":"G30-D30","v":0.58223749999999974},0.27668118016739024,4.1728020027163304E-2,4.0866893553567013E-2]
["Retail Transmission Rate – Line and Transformation Connection Service Rate",{"$f":"IF($B$9=\"kWh\",$B$8,$B$5)","v":266.375},{"$f":"VLOOKUP($B$3,'Data Current Rates'!$A:$AP,MATCH('BI Template_EnergyHCHI'!$A31,CurrentHeader,0),FALSE)","v":6.1000000000000004E-3},{"$f":"B31*C31","v":1.6248875},{"$f":"IF($C$9=\"kWh\",$C$8,$C$5)","v":266},{"$f":"VLOOKUP($C$3,'Data Proposed Rates'!$A:$AZ,MATCH('BI Template_EnergyHCHI'!$A31,ProposedHeader,0),FALSE)","v":7.4000000000000003E-3},{"$f":"E31*F31","v":1.9684000000000001},{"$f":"G31-D31","v":0.34351250000000011},0.21140694355763098,3.0573004772377076E-2,2.9942080425385733E-2]
["Sub-Total:  Retail Transmission ",null,null,{"$f":"SUM(D30:D31)","v":3.7292500000000004},null,null,{"$f":"SUM(G30:G31)","v":4.6550000000000002},{"$f":"G32-D32","v":0.92574999999999985},0.24824026278742367,7.2301024799540384E-2,7.0808973978952749E-2]
["Sub-Total:  Delivery (based on two-tier RPP prices)",null,null,{"$f":"D28+D32","v":42.963999999999999},null,null,{"$f":"G28+G32","v":42.632999999999996},{"$f":"G33-D33","v":-0.33100000000000307},-7.7041243832046153E-3,0.66217177019952844,0.64850676426309173]
["Sub-Total:  Delivery (based on TOU prices)",null,null,{"$f":"D29+D32","v":43.052752499999997},null,null,{"$f":"G29+G32","v":42.719719999999995},{"$f":"G34-D34","v":-0.33303250000000162},-7.7354519899744305E-3,0.66351869713199163,0.64982589513816258]
["Wholesale Market Service Rate (WMS) - not including CBR",{"$f":"B8","v":266.375},{"$f":"VLOOKUP($A35,'Data Pass Through'!$A:$D,2,FALSE)","v":3.0000000000000001E-3},{"$f":"B35*C35","v":0.79912499999999997},{"$f":"$C$8","v":266},{"$f":"VLOOKUP($A35,'Data Pass Through'!$A:$D,3,FALSE)","v":3.0000000000000001E-3},{"$f":"E35*F35","v":0.79800000000000004},-1.1249999999999316E-3,-1.4077897700609187E-3,1.2394461394206923E-2,1.2138681253534758E-2]
["Capacity Based Recovery (CBR) - Applicable for Class B Customers",{"$f":"B8","v":266.375},{"$f":"VLOOKUP($A36,'Data Pass Through'!$A:$D,2,FALSE)","v":4.0000000000000002E-4},{"$f":"B36*C36","v":0.10655000000000001},{"$f":"$C$8","v":266},{"$f":"VLOOKUP($A36,'Data Pass Through'!$A:$D,3,FALSE)","v":4.0000000000000002E-4},{"$f":"E36*F36","v":0.10640000000000001},-1.4999999999999736E-4,-1.4077897700609794E-3,1.6525948525609232E-3,1.6184908338046343E-3]
["Rural Rate Protection Charge",{"$f":"B8","v":266.375},{"$f":"VLOOKUP($A37,'Data Pass Through'!$A:$D,2,FALSE)","v":5.0000000000000001E-4},0.13318750000000001,266,{"$f":"VLOOKUP($A37,'Data Pass Through'!$A:$D,3,FALSE)","v":5.0000000000000001E-4},0.13300000000000001,-1.8750000000000711E-4,-1.4077897700610575E-3,2.065743565701154E-3,2.0231135422557928E-3]
["Standard Supply Service – Administration Charge (if applicable)",1,{"$f":"VLOOKUP($A38,'Data Pass Through'!$A:$D,2,FALSE)","v":0.25},{"$f":"B38*C38","v":0.25},1,{"$f":"VLOOKUP($A38,'Data Pass Through'!$A:$D,3,FALSE)","v":0.25},0.25,0,0,3.882976627257808E-3,3.8028450042402119E-3]
["Sub-Total:  Regulatory",null,null,{"$f":"SUM(D35:D38)","v":1.2888625},null,null,{"$f":"SUM(G35:G38)","v":1.2874000000000001},-1.4624999999999222E-3,-1.134721508306683E-3,1.999577643972681E-2,1.9583130633835398E-2]
["Total  Electricty Charge on Two-Tier RPP ",null,null,{"$f":"SUM(D14,D24,D25,D26,D32,D39)","v":68.752862499999992},null,null,{"$f":"SUM(G14,G24,G25,G26,G32,G39)","v":68.420400000000001},-0.33246249999999122,-4.835616844316719E-3,1.0626992561105204]
["     HST",null,0.13,{"$f":"D40*C41","v":8.9378721249999984},null,{"$f":"C41","v":0.13},{"$f":"G40*F41","v":8.8946520000000007},-4.3220124999997722E-2,-4.8356168443165915E-3,0.13815090329436766]
["Total Electricity Charge on Two-Tier RPP (including HST)",null,null,{"$f":"SUM(D40:D41)","v":77.69073462499999},null,null,{"$f":"SUM(G40:G41)","v":77.315052000000009},-0.37568262499998184,-4.8356168443166123E-3,1.2008501594048882]
["Ontario Electricity Rebate (OER)",null,{"$f":"IF(($B$4*12)<250000,VLOOKUP(A43,'Data Pass Through'!$A$4:$C$20,2,0),0)","v":-0.189},{"$f":"D40*C43","v":-12.994291012499998},null,{"$f":"C43","v":-0.189},{"$f":"G40*F43","v":-12.9314556},6.2835412499998355E-2,4.8356168443167199E-3,-0.20085015940488837]
["Total Amount on Two-Tier RPP",null,null,{"$f":"SUM(D42:D43)","v":64.696443612499991},null,null,{"$f":"SUM(G42:G43)","v":64.383596400000016},-0.3128472124999746,-4.8356168443164536E-3,1]
["Total Electricty Charge on TOU (before HST)",null,null,{"$f":"SUM(D18,D24,D25,D27,D32,D39)","v":70.19661499999998},null,null,{"$f":"SUM(G18,G24,G25,G27,G32,G39)","v":69.862120000000004},-0.33449499999997556,-4.7651158107834069E-3,null,{"$f":"G45/$G$49","v":1.0626992561105209}]
["     HST",null,0.13,{"$f":"D45*C46","v":9.1255599499999978},null,{"$f":"C46","v":0.13},{"$f":"G45*F46","v":9.0820756000000014},-4.3484349999996397E-2,-4.76511581078336E-3,null,{"$f":"G46/$G$49","v":0.13815090329436772}]
["Total Electricity Charge on TOU (including HST)",null,null,{"$f":"SUM(D45:D46)","v":79.322174949999976},null,null,{"$f":"SUM(G45:G46)","v":78.9441956},-0.37797934999997551,-4.7651158107834459E-3,null,{"$f":"G47/$G$49","v":1.2008501594048884}]
["Ontario Electricity Rebate (OER)",null,{"$f":"IF(($B$4*12)<250000,VLOOKUP(A48,'Data Pass Through'!$A$4:$C$20,2,0),0)","v":-0.189},{"$f":"D45*C48","v":-13.267160234999997},null,{"$f":"C48","v":-0.189},{"$f":"G45*F48","v":-13.203940680000001},6.3219554999996319E-2,4.7651158107834771E-3,null,{"$f":"G48/$G$49","v":-0.20085015940488843}]
["Total Amount on TOU",null,null,{"$f":"SUM(D47:D48)","v":66.055014714999984},null,null,{"$f":"SUM(G47:G48)","v":65.740254919999998},-0.3147597949999863,-4.7651158107835474E-3,null,{"$f":"G49/$G$49","v":1}]

{"sheet":"BI Template_DemandHCHI","index":16,"n_rows":33,"n_cols":10,"rows_kept":33,"cut":false,"hidden":true,"merged":[[0,0,0,9]]}
["2023 Bill Impacts (Low Consumption Level) - AGSd_HCHI"]
[]
["Rate Class",{"$f":"VLOOKUP(A1,'Data BI List Acq_Seas'!C:E,2,FALSE)","v":"HCHI_GS >50"},{"$f":"VLOOKUP(A1,'Data BI List Acq_Seas'!C:E,3,FALSE)","v":"AGSd-HCHI"}]
["Monthly Consumption (kWh)",{"$f":"IF(COUNTIF(A1,\"*Low*\")>0,VLOOKUP(B3,'Data Billing Quantities'!$A:$Z,MATCH(\"Low kWh\",'Data Billing Quantities'!4:4,0),FALSE),IF(COUNTIF(A1,\"*Typical*\")>0,VLOOKUP(B3,'Data Billing Quantities'!$A:$Z,MATCH(\"Typical kWh\",'Data Billing Quantities'!4:4,0),FALSE),IF(COUNTIF(A1,\"*Average*\")>0,VLOOKUP(B3,'Data Billing Quantities'!$A:$Z,MATCH(\"Average kWh\",'Data Billing Quantities'!4:4,0),FALSE),IF(COUNTIF(A1,\"*High*\")>0,VLOOKUP(B3,'Data Billing Quantities'!$A:$Z,MATCH(\"High kWh\",'Data Billing Quantities'!4:4,0),FALSE),\"error\"))))","v":10880},{"$f":"B4","v":10880}]
["Peak (kW)",{"$f":"IF(COUNTIF(A1,\"*Low*\")>0,VLOOKUP(B3,'Data Billing Quantities'!$A:$Z,MATCH(\"Low kW\",'Data Billing Quantities'!4:4,0),FALSE),IF(COUNTIF(A1,\"*Typical*\")>0,VLOOKUP(B3,'Data Billing Quantities'!$A:$Z,MATCH(\"Typical kW\",'Data Billing Quantities'!4:4,0),FALSE),IF(COUNTIF(A1,\"*Average*\")>0,VLOOKUP(B3,'Data Billing Quantities'!$A:$Z,MATCH(\"Average kW\",'Data Billing Quantities'!4:4,0),FALSE),IF(COUNTIF(A1,\"*High*\")>0,VLOOKUP(B3,'Data Billing Quantities'!$A:$Z,MATCH(\"High kW\",'Data Billing Quantities'!4:4,0),FALSE),\"error\"))))","v":55},{"$f":"B5","v":55}]
["Loss factor",{"$f":"VLOOKUP(B3,'Data Billing Quantities'!A:D,MATCH(A6,'Data Billing Quantities'!4:4,0),FALSE)","v":1.0548},{"$f":"VLOOKUP(C3,'Data Billing Quantities'!A:D,MATCH(A6,'Data Billing Quantities'!4:4,0),FALSE)","v":1.0529999999999999}]
["Commodity Threshold",{"$f":"VLOOKUP(B3,'Data Billing Quantities'!A:D,MATCH(A7,'Data Billing Quantities'!4:4,0),FALSE)","v":0},{"$f":"B7","v":0}]
["Monthly Consumption (kWh) - Uplifted",{"$f":"B4*B6","v":11476.224},{"$f":"C4*C6","v":11456.64}]
["Charge determinant",{"$f":"VLOOKUP(B3,'Data Billing Quantities'!A:D,MATCH(A9,'Data Billing Quantities'!4:4,0),FALSE)","v":"kW"},{"$f":"VLOOKUP(C3,'Data Billing Quantities'!A:D,MATCH(A9,'Data Billing Quantities'!4:4,0),FALSE)","v":"kW"}]
[]
[null,"Volume","Current Rate ($)","Current Charge ($)","Volume","Proposed Rate ($)","Proposed Charge ($)","Change ($)","Change (%)","% of Total Bill"]
["Weighted Average Hourly Spot Price",{"$f":"B8","v":11476.224},{"$f":"VLOOKUP($A12,'Data Pass Through'!$A:$D,2,FALSE)","v":0.11899999999999999},{"$f":"B12*C12","v":1365.670656},{"$f":"C8","v":11456.64},{"$f":"VLOOKUP($A12,'Data Pass Through'!$A:$D,3,FALSE)","v":0.11899999999999999},{"$f":"E12*F12","v":1363.34016},{"$f":"G12-D12","v":-2.3304960000000392},{"$f":"IF(ISERROR(H12/ABS(D12)),\"N/A\",(H12/ABS(D12)))","v":-1.7064846416382539E-3},{"$f":"G12/G$33","v":0.59383101795483773}]
["Sub-Total:  Energy (WAHSP)",null,null,{"$f":"SUM(D12:D12)","v":1365.670656},null,null,{"$f":"SUM(G12:G12)","v":1363.34016},-2.3304960000000392,-1.7064846416382539E-3,0.59383101795483773]
["Service Charge",1,{"$f":"VLOOKUP($B$3,'Data Current Rates'!$A:$AP,MATCH('BI Template_DemandHCHI'!$A14,CurrentHeader,0),FALSE)","v":86.56},{"$f":"B14*C14","v":86.56},1,{"$f":"VLOOKUP($C$3,'Data Proposed Rates'!$A:$AZ,MATCH('BI Template_DemandHCHI'!$A14,ProposedHeader,0),FALSE)","v":171.2},{"$f":"E14*F14","v":171.2},84.639999999999986,0.97781885397412183,7.4569702600023324E-2]
["Distribution Volumetric Charge",{"$f":"IF($B$9=\"kWh\",$B$4,$B$5)","v":55},{"$f":"VLOOKUP($B$3,'Data Current Rates'!$A:$AP,MATCH('BI Template_DemandHCHI'!$A15,CurrentHeader,0),FALSE)","v":4.0727000000000002},{"$f":"B15*C15","v":223.99850000000001},{"$f":"IF($C$9=\"kWh\",$C$4,$C$5)","v":55},{"$f":"VLOOKUP($C$3,'Data Proposed Rates'!$A:$AZ,MATCH('BI Template_DemandHCHI'!$A15,ProposedHeader,0),FALSE)","v":4.0885999999999996},224.87299999999999,0.8744999999999834,3.9040440002945705E-3,9.7948088392377605E-2]
["Low Voltage Service Rate",{"$f":"IF($B$9=\"kWh\",$B$4,$B$5)","v":55},{"$f":"VLOOKUP($B$3,'Data Current Rates'!$A:$AP,MATCH('BI Template_DemandHCHI'!$A16,CurrentHeader,0),FALSE)","v":0.155},8.5250000000000004,null,null,null,-8.5250000000000004,-1,0]
["Funding Adder for Renewable Energy Generation",55,{"$f":"VLOOKUP($B$3,'Data Current Rates'!$A:$AP,MATCH('BI Template_DemandHCHI'!$A17,CurrentHeader,0),FALSE)","v":1.95E-2},1.0725,null,null,null,-1.0725,-1,0]
["Group 1 Volumetric DVA Rider (General)",null,null,null,{"$f":"IF($C$9=\"kWh\",$C$4,$C$5)","v":55},{"$f":"VLOOKUP($C$3,'Data Proposed Rates'!$A:$AZ,MATCH('BI Template_DemandHCHI'!$A18,ProposedHeader,0),FALSE)","v":-5.8400000000000001E-2},-3.2120000000000002,-3.2120000000000002,"N/A",-1.3990530651359519E-3]
["Group 1 Volumetric Deferral/Variance Account Rider (Sub-Account RSVA Wholesale Market Service Charge & RSVA Power) ",null,null,null,55,{"$f":"VLOOKUP($C$3,'Data Proposed Rates'!$A:$AZ,MATCH('BI Template_DemandHCHI'!$A19,ProposedHeader,0),FALSE)","v":-8.1000000000000003E-2},-4.4550000000000001,-4.4550000000000001,"N/A",-1.9404674362330839E-3]
["Group 1 Volumetric Deferral/Variance Account Rider (Sub-Account Global Adjustment)",null,null,null,{"$f":"C4","v":10880},{"$f":"VLOOKUP($C$3,'Data Proposed Rates'!$A:$AZ,MATCH('BI Template_DemandHCHI'!$A20,ProposedHeader,0),FALSE)","v":-6.9999999999999999E-4},-7.6159999999999997,-7.6159999999999997,"N/A",-3.3173063960384211E-3]
["Sub-Total:  Distribution",null,null,{"$f":"SUM(INDIRECT(\"D14:D\"&ROW()-1))","v":320.15599999999995},null,null,{"$f":"SUM(INDIRECT(\"g14:g\"&ROW()-1))","v":380.79},{"$f":"G21-D21","v":60.634000000000071},0.18938892290008646,0.16586096409499351]
["Retail Transmission Rate – Network Service Rate",{"$f":"IF($B$9=\"kWh\",$B$4,$B$5)","v":55},{"$f":"VLOOKUP($B$3,'Data Current Rates'!$A:$AP,MATCH('BI Template_DemandHCHI'!$A22,CurrentHeader,0),FALSE)","v":3.0442},{"$f":"B22*C22","v":167.43100000000001},{"$f":"IF($C$9=\"kWh\",$C$4,$C$5)","v":55},{"$f":"VLOOKUP($C$3,'Data Proposed Rates'!$A:$AZ,MATCH('BI Template_DemandHCHI'!$A22,ProposedHeader,0),FALSE)","v":2.4941},{"$f":"E22*F22","v":137.1755},{"$f":"G22-D22","v":-30.255500000000012},-0.18070429012548458,5.9749627564307836E-2]
["Retail Transmission Rate – Line and Transformation Connection Service Rate",{"$f":"IF($B$9=\"kWh\",$B$4,$B$5)","v":55},{"$f":"VLOOKUP($B$3,'Data Current Rates'!$A:$AP,MATCH('BI Template_DemandHCHI'!$A23,CurrentHeader,0),FALSE)","v":2.4142999999999999},{"$f":"B23*C23","v":132.78649999999999},{"$f":"IF($C$9=\"kWh\",$C$4,$C$5)","v":55},{"$f":"VLOOKUP($C$3,'Data Proposed Rates'!$A:$AZ,MATCH('BI Template_DemandHCHI'!$A23,ProposedHeader,0),FALSE)","v":1.9177999999999999},{"$f":"E23*F23","v":105.479},{"$f":"G23-D23","v":-27.30749999999999},-0.20564967071200757,4.5943561101330965E-2]
["Sub-Total:  Retail Transmission ",null,null,{"$f":"SUM(D22:D23)","v":300.21749999999997},null,null,{"$f":"SUM(G22:G23)","v":242.65449999999998},{"$f":"G24-D24","v":-57.562999999999988},-0.1917376568654392,0.10569318866563879]
["Sub-Total:  Delivery (based on two-tier RPP prices)",null,null,{"$f":"SUM(D21,D24)","v":620.37349999999992},null,null,{"$f":"SUM(G21,G24)","v":623.44450000000006},{"$f":"G25-D25","v":3.0710000000001401},4.9502436838455227E-3,0.27155415276063233]
["Wholesale Market Service Rate (WMS) - not including CBR",{"$f":"B8","v":11476.224},{"$f":"VLOOKUP($A26,'Data Pass Through'!$A:$D,2,FALSE)","v":3.0000000000000001E-3},{"$f":"B26*C26","v":34.428671999999999},{"$f":"$C$8","v":11456.64},{"$f":"VLOOKUP($A26,'Data Pass Through'!$A:$D,3,FALSE)","v":3.0000000000000001E-3},{"$f":"E26*F26","v":34.36992},{"$f":"G26-D26","v":-5.8751999999998361E-2},-1.7064846416381778E-3,1.4970529864407675E-2]
["Capacity Based Recovery (CBR) - Applicable for Class B Customers",{"$f":"B8","v":11476.224},{"$f":"VLOOKUP($A27,'Data Pass Through'!$A:$D,2,FALSE)","v":4.0000000000000002E-4},{"$f":"B27*C27","v":4.5904896000000006},{"$f":"$C$8","v":11456.64},{"$f":"VLOOKUP($A27,'Data Pass Through'!$A:$D,3,FALSE)","v":4.0000000000000002E-4},{"$f":"E27*F27","v":4.5826560000000001},-7.8336000000005512E-3,-1.7064846416383452E-3,1.99607064858769E-3]
["Rural Rate Protection Charge",{"$f":"B8","v":11476.224},{"$f":"VLOOKUP($A28,'Data Pass Through'!$A:$D,2,FALSE)","v":5.0000000000000001E-4},5.7381120000000001,11456.64,{"$f":"VLOOKUP($A28,'Data Pass Through'!$A:$D,3,FALSE)","v":5.0000000000000001E-4},5.7283200000000001,-9.7920000000000229E-3,-1.7064846416382292E-3,2.4950883107346124E-3]
["Standard Supply Service – Administration Charge (if applicable)",1,{"$f":"VLOOKUP($A29,'Data Pass Through'!$A:$D,2,FALSE)","v":0.25},{"$f":"B29*C29","v":0.25},{"$f":"B29","v":1},{"$f":"VLOOKUP($A29,'Data Pass Through'!$A:$D,3,FALSE)","v":0.25},0.25,0,0,1.0889267318928641E-4]
["Sub-Total:  Regulatory",null,null,{"$f":"SUM(D26:D29)","v":45.007273599999998},null,null,{"$f":"SUM(G26:G29)","v":44.930896000000004},-7.6377599999993606E-2,-1.6970057035401854E-3,1.9570581496919266E-2]
["Total  Electricty Charge on WAHSP",null,null,{"$f":"SUM(D13,D25,D30)","v":2031.0514295999999},null,null,{"$f":"SUM(G13,G25,G30)","v":2031.7155560000001},0.66412640000021383,3.2698650084454458E-4,0.88495575221238942]
["     HST",null,0.13,{"$f":"D31*C32","v":264.03668584799999},null,{"$f":"C32","v":0.13},{"$f":"G31*F32","v":264.12302228000004},8.633643200005281E-2,3.2698650084463928E-4,0.11504424778761063]
["Total Amount on WAHSP",null,null,{"$f":"SUM(D31:D32)","v":2295.0881154479998},null,null,{"$f":"SUM(G31:G32)","v":2295.8385782800001},0.75046283200026664,3.2698650084455547E-4,1]

{"sheet":"BI Template_unmHCHI","index":17,"n_rows":36,"n_cols":10,"rows_kept":36,"cut":false,"hidden":true,"merged":[[0,0,0,9]]}
["2023 Bill Impacts (Average Consumption Level) - St Lgt_HCHI"]
[]
["Rate Class",{"$f":"VLOOKUP(A1,'Data BI List Acq_Seas'!C:E,2,FALSE)","v":"HCHI_St Lgt"},{"$f":"VLOOKUP(A1,'Data BI List Acq_Seas'!C:E,3,FALSE)","v":"St Lgt-HCHI"}]
["Monthly Consumption (kWh)",{"$f":"IF(COUNTIF(A1,\"*Low*\")>0,VLOOKUP(B3,'Data Billing Quantities'!$A:$Z,MATCH(\"Low kWh\",'Data Billing Quantities'!4:4,0),FALSE),IF(COUNTIF(A1,\"*Typical*\")>0,VLOOKUP(B3,'Data Billing Quantities'!$A:$Z,MATCH(\"Typical kWh\",'Data Billing Quantities'!4:4,0),FALSE),IF(COUNTIF(A1,\"*Average*\")>0,VLOOKUP(B3,'Data Billing Quantities'!$A:$Z,MATCH(\"Average kWh\",'Data Billing Quantities'!4:4,0),FALSE),IF(COUNTIF(A1,\"*High*\")>0,VLOOKUP(B3,'Data Billing Quantities'!$A:$Z,MATCH(\"High kWh\",'Data Billing Quantities'!4:4,0),FALSE),\"error\"))))","v":31001},{"$f":"B4","v":31001}]
["Peak (kW)",{"$f":"IF(COUNTIF(A1,\"*Low*\")>0,VLOOKUP(B3,'Data Billing Quantities'!$A:$Z,MATCH(\"Low kW\",'Data Billing Quantities'!4:4,0),FALSE),IF(COUNTIF(A1,\"*Typical*\")>0,VLOOKUP(B3,'Data Billing Quantities'!$A:$Z,MATCH(\"Typical kW\",'Data Billing Quantities'!4:4,0),FALSE),IF(COUNTIF(A1,\"*Average*\")>0,VLOOKUP(B3,'Data Billing Quantities'!$A:$Z,MATCH(\"Average kW\",'Data Billing Quantities'!4:4,0),FALSE),IF(COUNTIF(A1,\"*High*\")>0,VLOOKUP(B3,'Data Billing Quantities'!$A:$Z,MATCH(\"High kW\",'Data Billing Quantities'!4:4,0),FALSE),\"error\"))))","v":85},{"$f":"B5","v":85}]
["Loss factor",{"$f":"VLOOKUP(B3,'Data Billing Quantities'!A:D,MATCH(A6,'Data Billing Quantities'!4:4,0),FALSE)","v":1.0654999999999999},{"$f":"VLOOKUP(C3,'Data Billing Quantities'!A:D,MATCH(A6,'Data Billing Quantities'!4:4,0),FALSE)","v":1.0920000000000001}]
["Commodity Threshold",{"$f":"VLOOKUP(B3,'Data Billing Quantities'!A:D,MATCH(A7,'Data Billing Quantities'!4:4,0),FALSE)","v":750},{"$f":"B7","v":750}]
["Monthly Consumption (kWh) - Uplifted",{"$f":"B4*B6","v":33031.565499999997},{"$f":"C4*C6","v":33853.092000000004}]
["Charge determinant",{"$f":"VLOOKUP(B3,'Data Billing Quantities'!A:D,MATCH(A9,'Data Billing Quantities'!4:4,0),FALSE)","v":"kW"},{"$f":"VLOOKUP(C3,'Data Billing Quantities'!A:D,MATCH(A9,'Data Billing Quantities'!4:4,0),FALSE)","v":"kWh"}]
[]
[null,"Volume","Current Rate ($)","Current Charge ($)","Volume","Proposed Rate ($)","Proposed Charge ($)","Change ($)","Change (%)","% of Total Bill"]
["Energy First Tier",{"$f":"IF(B4>B7,B7,B4)","v":750},{"$f":"VLOOKUP($A12,'Data Pass Through'!$A:$D,2,FALSE)","v":9.8000000000000004E-2},{"$f":"B12*C12","v":73.5},{"$f":"B12","v":750},{"$f":"VLOOKUP($A12,'Data Pass Through'!$A:$D,3,FALSE)","v":9.8000000000000004E-2},{"$f":"E12*F12","v":73.5},{"$f":"G12-D12","v":0},{"$f":"IF(ISERROR(H12/ABS(D12)),\"N/A\",(H12/ABS(D12)))","v":0},{"$f":"G12/$G$36","v":8.5209291208830484E-3}]
["Energy Second Tier",{"$f":"IF(B4>B7,(B4)-B7,0)","v":30251},{"$f":"VLOOKUP($A13,'Data Pass Through'!$A:$D,2,FALSE)","v":0.115},{"$f":"B13*C13","v":3478.8650000000002},{"$f":"B13","v":30251},{"$f":"VLOOKUP($A13,'Data Pass Through'!$A:$D,3,FALSE)","v":0.115},{"$f":"E13*F13","v":3478.8650000000002},0,0,0.40330832770232389]
["Sub-Total:  Energy (RPP Tiered)",null,null,{"$f":"SUM(D12:D13)","v":3552.3650000000002},null,null,{"$f":"SUM(G12:G13)","v":3552.3650000000002},0,0,0.41182925682320692]
["Service Charge",{"$f":"IF(VLOOKUP(B$3,'Data Billing Quantities'!A:P,MATCH(\"Acquired Street Light Service Charge\",'Data Billing Quantities'!$4:$4,0),FALSE)>0,VLOOKUP(B$3,'Data Billing Quantities'!A:P,MATCH(\"Acquired Street Light Service Charge\",'Data Billing Quantities'!$4:$4,0),FALSE),1)","v":701},{"$f":"VLOOKUP($B$3,'Data Current Rates'!$A:$AP,MATCH('BI Template_unmHCHI'!$A15,CurrentHeader,0),FALSE)","v":5.9},{"$f":"B15*C15","v":4135.9000000000005},1,{"$f":"VLOOKUP($C$3,'Data Proposed Rates'!$A:$AZ,MATCH('BI Template_unmHCHI'!$A15,ProposedHeader,0),FALSE)","v":2.97},{"$f":"E15*F15","v":2.97},-4132.93,-0.99928189753137153,3.4431509508874356E-4]
["Distribution Volumetric Charge",{"$f":"IF($B$9=\"kWh\",$B$4,$B$5)","v":85},{"$f":"VLOOKUP($B$3,'Data Current Rates'!$A:$AP,MATCH('BI Template_unmHCHI'!$A16,CurrentHeader,0),FALSE)","v":15.103300000000001},{"$f":"B16*C16","v":1283.7805000000001},{"$f":"IF($C$9=\"kWh\",$C$4,$C$5)","v":31001},{"$f":"VLOOKUP($C$3,'Data Proposed Rates'!$A:$AZ,MATCH('BI Template_unmHCHI'!$A16,ProposedHeader,0),FALSE)","v":0.10639999999999999},3298.5063999999998,2014.7258999999997,1.5693694521765984,0.38239917332216466]
["Low Voltage Service Rate",{"$f":"IF($B$9=\"kWh\",$B$4,$B$5)","v":85},{"$f":"VLOOKUP($B$3,'Data Current Rates'!$A:$AP,MATCH('BI Template_unmHCHI'!$A17,CurrentHeader,0),FALSE)","v":0.113},9.6050000000000004,null,null,null,-9.6050000000000004,-1,0]
["Funding Adder for Renewable Energy Generation",85,{"$f":"VLOOKUP($B$3,'Data Current Rates'!$A:$AP,MATCH('BI Template_unmHCHI'!$A18,CurrentHeader,0),FALSE)","v":0.2152},18.292000000000002,null,null,null,-18.292000000000002,-1,0]
["Group 1 Volumetric DVA Rider (General)",null,null,null,{"$f":"IF($C$9=\"kWh\",$C$4,$C$5)","v":31001},{"$f":"VLOOKUP($C$3,'Data Proposed Rates'!$A:$AZ,MATCH('BI Template_unmHCHI'!$A19,ProposedHeader,0),FALSE)","v":-4.0000000000000002E-4},-12.400400000000001,-12.400400000000001,"N/A",-1.4375908771509954E-3]
["Sub-Total:  Distribution (excluding pass through)",null,null,{"$f":"SUM(INDIRECT(\"D15:D\"&ROW()-1))","v":5447.5775000000003},null,null,{"$f":"SUM(INDIRECT(\"g15:g\"&ROW()-1))","v":3289.0759999999996},{"$f":"G20-D20","v":-2158.5015000000008},-0.39623144416027134,0.38130589754010241]
["Line Losses on Cost of Power (based on two-tier RPP prices)",{"$f":"B8-B4","v":2030.565499999997},{"$f":"IF(B4>B7,C13,C12)","v":0.115},{"$f":"B21*C21","v":233.51503249999965},{"$f":"C8-C4","v":2852.0920000000042},{"$f":"IF(C4>C7,F13,F12)","v":0.115},{"$f":"E21*F21","v":327.99058000000048},94.475547500000829,0.4045801526717599,3.8024278700643878E-2]
["Sub-Total:  Distribution (based on two-tier RPP prices)",null,null,{"$f":"SUM(D20,D21:D21)","v":5681.0925324999998},null,null,{"$f":"SUM(G20,G21:G21)","v":3617.0665800000002},-2064.0259524999997,-0.36331496814957037,0.41933017624074631]
["Retail Transmission Rate – Network Service Rate",{"$f":"IF($B$9=\"kWh\",$B$8,$B$5)","v":85},{"$f":"VLOOKUP($B$3,'Data Current Rates'!$A:$AP,MATCH('BI Template_unmHCHI'!$A23,CurrentHeader,0),FALSE)","v":2.1987999999999999},{"$f":"B23*C23","v":186.898},{"$f":"IF($C$9=\"kWh\",$C$8,$C$5)","v":33853.092000000004},{"$f":"VLOOKUP($C$3,'Data Proposed Rates'!$A:$AZ,MATCH('BI Template_unmHCHI'!$A23,ProposedHeader,0),FALSE)","v":5.4999999999999997E-3},{"$f":"E23*F23","v":186.19200600000002},{"$f":"G23-D23","v":-0.70599399999997559},-3.7774293999934486E-3,2.1585427020422196E-2]
["Retail Transmission Rate – Line and Transformation Connection Service Rate",{"$f":"IF($B$9=\"kWh\",$B$8,$B$5)","v":85},{"$f":"VLOOKUP($B$3,'Data Current Rates'!$A:$AP,MATCH('BI Template_unmHCHI'!$A24,CurrentHeader,0),FALSE)","v":1.7343999999999999},{"$f":"B24*C24","v":147.42400000000001},{"$f":"IF($C$9=\"kWh\",$C$8,$C$5)","v":33853.092000000004},{"$f":"VLOOKUP($C$3,'Data Proposed Rates'!$A:$AZ,MATCH('BI Template_unmHCHI'!$A24,ProposedHeader,0),FALSE)","v":4.3E-3},{"$f":"E24*F24","v":145.56829560000003},{"$f":"G24-D24","v":-1.8557043999999792},-1.2587532559148979E-2,1.6875879306875535E-2]
["Sub-Total:  Retail Transmission ",null,null,{"$f":"SUM(D23:D24)","v":334.322},null,null,{"$f":"SUM(G23:G24)","v":331.76030160000005},{"$f":"G25-D25","v":-2.5616983999999547},-7.6623686146886976E-3,3.8461306327297731E-2]
["Sub-Total:  Delivery (based on two-tier RPP prices)",null,null,{"$f":"D22+D25","v":6015.4145325},null,null,{"$f":"G22+G25","v":3948.8268816},{"$f":"G26-D26","v":-2066.5876509},-0.34354866813162555,0.45779148256804403]
["Wholesale Market Service Rate (WMS) - not including CBR",{"$f":"B8","v":33031.565499999997},{"$f":"VLOOKUP($A27,'Data Pass Through'!$A:$D,2,FALSE)","v":3.0000000000000001E-3},{"$f":"B27*C27","v":99.094696499999998},{"$f":"$C$8","v":33853.092000000004},{"$f":"VLOOKUP($A27,'Data Pass Through'!$A:$D,3,FALSE)","v":3.0000000000000001E-3},{"$f":"E27*F27","v":101.55927600000001},{"$f":"G27-D27","v":2.4645795000000135},2.487095260441121E-2,1.1773869283866652E-2]
["Capacity Based Recovery (CBR) - Applicable for Class B Customers",{"$f":"B8","v":33031.565499999997},{"$f":"VLOOKUP($A28,'Data Pass Through'!$A:$D,2,FALSE)","v":4.0000000000000002E-4},{"$f":"B28*C28","v":13.212626199999999},{"$f":"$C$8","v":33853.092000000004},{"$f":"VLOOKUP($A28,'Data Pass Through'!$A:$D,3,FALSE)","v":4.0000000000000002E-4},{"$f":"E28*F28","v":13.541236800000002},0.32861060000000286,2.4870952604411294E-2,1.569849237848887E-3]
["Rural Rate Protection Charge",{"$f":"B8","v":33031.565499999997},{"$f":"VLOOKUP($A29,'Data Pass Through'!$A:$D,2,FALSE)","v":5.0000000000000001E-4},16.51578275,33853.092000000004,{"$f":"VLOOKUP($A29,'Data Pass Through'!$A:$D,3,FALSE)","v":5.0000000000000001E-4},16.926546000000002,0.41076325000000224,2.487095260441121E-2,1.9623115473111088E-3]
["Standard Supply Service – Administration Charge (if applicable)",1,{"$f":"VLOOKUP($A30,'Data Pass Through'!$A:$D,2,FALSE)","v":0.25},{"$f":"B30*C30","v":0.25},1,{"$f":"VLOOKUP($A30,'Data Pass Through'!$A:$D,3,FALSE)","v":0.25},0.25,0,0,2.8982752111847101E-5]
["Sub-Total:  Regulatory",null,null,{"$f":"SUM(D27:D30)","v":129.07310545000001},null,null,{"$f":"SUM(G27:G30)","v":132.27705880000002},3.2039533500000061,2.4822780383486974E-2,1.5335012821138494E-2]
["Total  Electricty Charge on Two-Tier RPP ",null,null,{"$f":"SUM(D26,D31,D14)","v":9696.8526379499999},null,null,{"$f":"SUM(G26,G31,G14)","v":7633.4689404000001},-2063.3836975499999,-0.21278901253739352,0.88495575221238942]
["     HST",null,0.13,{"$f":"D32*C33","v":1260.5908429335},null,{"$f":"C33","v":0.13},{"$f":"G32*F33","v":992.35096225200004},-268.23988068149993,-0.21278901253739346,0.11504424778761063]
["Total Electricity Charge on Two-Tier RPP (including HST)",null,null,{"$f":"SUM(D32:D33)","v":10957.443480883499},null,null,{"$f":"SUM(G32:G33)","v":8625.8199026519997},-2331.6235782314998,-0.21278901253739352,1]
["Ontario Electricity Rebate (OER)",null,{"$f":"IF(($B$4*12)<250000,VLOOKUP(A35,'Data Pass Through'!$A$4:$C$20,2,0),0)","v":0},{"$f":"D32*C35","v":0},null,{"$f":"C35","v":0},{"$f":"G32*F35","v":0},0,"N/A",0]
["Total Amount on Two-Tier RPP",null,null,{"$f":"SUM(D34:D35)","v":10957.443480883499},null,null,{"$f":"SUM(G34:G35)","v":8625.8199026519997},-2331.6235782314998,-0.21278901253739352,1]

{"sheet":"BI Template_EnergyWHSI","index":18,"n_rows":49,"n_cols":11,"rows_kept":49,"cut":false,"hidden":true,"merged":[[0,0,0,10]]}
["2023 Bill Impacts (Low Consumption Level) - AUR_WHSI"]
[]
["Rate Class",{"$f":"VLOOKUP(A1,'Data BI List Acq_Seas'!C:E,2,FALSE)","v":"WHSI_RES"},{"$f":"VLOOKUP(A1,'Data BI List Acq_Seas'!C:E,3,FALSE)","v":"AUR-WHSI"}]
["Monthly Consumption (kWh)",{"$f":"IF(COUNTIF(A1,\"*Low*\")>0,VLOOKUP(B3,'Data Billing Quantities'!$A:$Z,MATCH(\"Low kWh\",'Data Billing Quantities'!4:4,0),FALSE),IF(COUNTIF(A1,\"*Typical*\")>0,VLOOKUP(B3,'Data Billing Quantities'!$A:$Z,MATCH(\"Typical kWh\",'Data Billing Quantities'!4:4,0),FALSE),IF(COUNTIF(A1,\"*Average*\")>0,VLOOKUP(B3,'Data Billing Quantities'!$A:$Z,MATCH(\"Average kWh\",'Data Billing Quantities'!4:4,0),FALSE),IF(COUNTIF(A1,\"*High*\")>0,VLOOKUP(B3,'Data Billing Quantities'!$A:$Z,MATCH(\"High kWh\",'Data Billing Quantities'!4:4,0),FALSE),\"error\"))))","v":310},{"$f":"B4","v":310}]
["Peak (kW)",{"$f":"IF(COUNTIF(A1,\"*Low*\")>0,VLOOKUP(B3,'Data Billing Quantities'!$A:$Z,MATCH(\"Low kW\",'Data Billing Quantities'!4:4,0),FALSE),IF(COUNTIF(A1,\"*Typical*\")>0,VLOOKUP(B3,'Data Billing Quantities'!$A:$Z,MATCH(\"Typical kW\",'Data Billing Quantities'!4:4,0),FALSE),IF(COUNTIF(A1,\"*Average*\")>0,VLOOKUP(B3,'Data Billing Quantities'!$A:$Z,MATCH(\"Average kW\",'Data Billing Quantities'!4:4,0),FALSE),IF(COUNTIF(A1,\"*High*\")>0,VLOOKUP(B3,'Data Billing Quantities'!$A:$Z,MATCH(\"High kW\",'Data Billing Quantities'!4:4,0),FALSE),\"error\"))))","v":0},{"$f":"B5","v":0}]
["Loss factor",{"$f":"VLOOKUP(B3,'Data Billing Quantities'!A:D,MATCH(A6,'Data Billing Quantities'!4:4,0),FALSE)","v":1.0430999999999999},{"$f":"VLOOKUP(C3,'Data Billing Quantities'!A:D,MATCH(A6,'Data Billing Quantities'!4:4,0),FALSE)","v":1.0429999999999999}]
["Commodity Threshold",{"$f":"VLOOKUP(B3,'Data Billing Quantities'!A:D,MATCH(A7,'Data Billing Quantities'!4:4,0),FALSE)","v":600},{"$f":"B7","v":600}]
["Monthly Consumption (kWh) - Uplifted",{"$f":"B4*B6","v":323.36099999999999},{"$f":"C4*C6","v":323.33}]
["Charge determinant",{"$f":"VLOOKUP(B3,'Data Billing Quantities'!A:D,MATCH(A9,'Data Billing Quantities'!4:4,0),FALSE)","v":"kWh"},{"$f":"VLOOKUP(C3,'Data Billing Quantities'!A:D,MATCH(A9,'Data Billing Quantities'!4:4,0),FALSE)","v":"kWh"}]
[]
[null,"Volume","Current Rate ($)","Current Charge ($)","Volume","Proposed Rate ($)","Proposed Charge ($)","Change ($)","Change (%)","% of Total Bill on RPP","% of Total Bill"]
["Energy First Tier",{"$f":"IF(B4>B7,B7,B4)","v":310},{"$f":"VLOOKUP($A12,'Data Pass Through'!$A:$D,2,FALSE)","v":9.8000000000000004E-2},{"$f":"B12*C12","v":30.380000000000003},{"$f":"B12","v":310},{"$f":"VLOOKUP($A12,'Data Pass Through'!$A:$D,3,FALSE)","v":9.8000000000000004E-2},{"$f":"E12*F12","v":30.380000000000003},{"$f":"G12-D12","v":0},{"$f":"IF(ISERROR(H12/ABS(D12)),\"N/A\",(H12/ABS(D12)))","v":0},{"$f":"G12/$G$44","v":0.46730694211939644}]
["Energy Second Tier",{"$f":"IF(B4>B7,(B4)-B7,0)","v":0},{"$f":"VLOOKUP($A13,'Data Pass Through'!$A:$D,2,FALSE)","v":0.115},{"$f":"B13*C13","v":0},{"$f":"B13","v":0},{"$f":"VLOOKUP($A13,'Data Pass Through'!$A:$D,3,FALSE)","v":0.115},{"$f":"E13*F13","v":0},0,"N/A",{"$f":"G13/$G$44","v":0}]
["Sub-Total:  Energy (RPP Tiered)",null,null,{"$f":"SUM(D12:D13)","v":30.380000000000003},null,null,{"$f":"SUM(G12:G13)","v":30.380000000000003},0,0,{"$f":"G14/$G$44","v":0.46730694211939644}]
["TOU-Off Peak",{"$f":"B$4*VLOOKUP($B$3,'Data Billing Quantities'!$A:$O,MATCH('BI Template_EnergyWHSI'!$A15,'Data Billing Quantities'!$4:$4,0),FALSE)","v":198.4},{"$f":"VLOOKUP($A15,'Data Pass Through'!$A:$D,2,FALSE)","v":8.2000000000000003E-2},{"$f":"B15*C15","v":16.268800000000002},198.4,{"$f":"VLOOKUP($A15,'Data Pass Through'!$A:$D,3,FALSE)","v":8.2000000000000003E-2},{"$f":"E15*F15","v":16.268800000000002},0,0,null,{"$f":"G15/$G$49","v":0.24405692522040373}]
["TOU-Mid Peak",{"$f":"B$4*VLOOKUP($B$3,'Data Billing Quantities'!$A:$O,MATCH('BI Template_EnergyWHSI'!$A16,'Data Billing Quantities'!$4:$4,0),FALSE)","v":55.8},{"$f":"VLOOKUP($A16,'Data Pass Through'!$A:$D,2,FALSE)","v":0.113},{"$f":"B16*C16","v":6.3053999999999997},55.8,{"$f":"VLOOKUP($A16,'Data Pass Through'!$A:$D,3,FALSE)","v":0.113},{"$f":"E16*F16","v":6.3053999999999997},0,0,null,9.4590660422694567E-2]
["TOU-On Peak",{"$f":"B$4*VLOOKUP($B$3,'Data Billing Quantities'!$A:$O,MATCH('BI Template_EnergyWHSI'!$A17,'Data Billing Quantities'!$4:$4,0),FALSE)","v":55.8},{"$f":"VLOOKUP($A17,'Data Pass Through'!$A:$D,2,FALSE)","v":0.17},{"$f":"B17*C17","v":9.4860000000000007},55.8,{"$f":"VLOOKUP($A17,'Data Pass Through'!$A:$D,3,FALSE)","v":0.17},{"$f":"E17*F17","v":9.4860000000000007},0,0,null,0.14230453337927504]
["Sub-Total:  Energy (RPP TOU)",null,null,{"$f":"SUM(D15:D17)","v":32.060200000000002},null,null,{"$f":"SUM(G15:G17)","v":32.060200000000002},0,0,{"$f":"G18/$G$44","v":0.49315187708150998},0.48095211902237334]
["Service Charge",1,{"$f":"VLOOKUP($B$3,'Data Current Rates'!$A:$AP,MATCH('BI Template_EnergyWHSI'!$A19,CurrentHeader,0),FALSE)","v":31.08},{"$f":"B19*C19","v":31.08},1,{"$f":"VLOOKUP($C$3,'Data Proposed Rates'!$A:$AZ,MATCH('BI Template_EnergyWHSI'!$A19,ProposedHeader,0),FALSE)","v":29.59},{"$f":"E19*F19","v":29.59},-1.4899999999999984,-4.7940797940797891E-2,0.45515511577725276,0.44389533446054691]
["Rate Rider for Recovery of Smart Meter Incremental Revenue Requirement",1,{"$f":"VLOOKUP($B$3,'Data Current Rates'!$A:$AP,MATCH('BI Template_EnergyWHSI'!$A20,CurrentHeader,0),FALSE)","v":0.64},{"$f":"B20*C20","v":0.64},null,null,null,{"$f":"G20-D20","v":-0.64},{"$f":"IF(ISERROR(H20/ABS(D20)),\"N/A\",(H20/ABS(D20)))","v":-1},0,0]
["Distribution Volumetric Charge",{"$f":"IF($B$9=\"kWh\",$B$4,$B$5)","v":310},{"$f":"VLOOKUP($B$3,'Data Current Rates'!$A:$AP,MATCH('BI Template_EnergyWHSI'!$A21,CurrentHeader,0),FALSE)","v":0},{"$f":"B21*C21","v":0},{"$f":"IF($C$9=\"kWh\",$C$4,$C$5)","v":310},{"$f":"VLOOKUP($C$3,'Data Proposed Rates'!$A:$AZ,MATCH('BI Template_EnergyWHSI'!$A21,ProposedHeader,0),FALSE)","v":0},0,0,"N/A",0,0]
["Rate Rider for Recovery of Incremental Capital",{"$f":"IF($B$9=\"kWh\",$B$4,$B$5)","v":310},{"$f":"VLOOKUP($B$3,'Data Current Rates'!$A:$AP,MATCH('BI Template_EnergyWHSI'!$A22,CurrentHeader,0),FALSE)","v":8.0000000000000004E-4},0.248,null,null,null,-0.248,-1,0,0]
["Group 1 Volumetric DVA Rider (General)",null,null,null,{"$f":"IF($C$9=\"kWh\",$C$4,$C$5)","v":310},{"$f":"VLOOKUP($C$3,'Data Proposed Rates'!$A:$AZ,MATCH('BI Template_EnergyWHSI'!$A23,ProposedHeader,0),FALSE)","v":-5.0000000000000001E-4},-0.155,-0.155,"N/A",-2.3842190924458998E-3,-2.3252374735175658E-3]
["Sub-Total:  Distribution (excluding pass through)",null,null,{"$f":"SUM(INDIRECT(\"D19:D\"&ROW()-1))","v":31.968},null,null,{"$f":"SUM(INDIRECT(\"g19:g\"&ROW()-1))","v":29.434999999999999},{"$f":"G24-D24","v":-2.5330000000000013},-7.9235485485485521E-2,0.45277089668480686,0.44157009698702931]
["Smart Metering Entity Charge",{"$f":"B19","v":1},{"$f":"VLOOKUP($A25,'Data Pass Through'!$A:$D,2,FALSE)","v":0.56999999999999995},{"$f":"B25*C25","v":0.56999999999999995},{"$f":"E19","v":1},{"$f":"VLOOKUP($A25,'Data Pass Through'!$A:$D,3,FALSE)","v":0.56999999999999995},{"$f":"E25*F25","v":0.56999999999999995},0,0,8.7677734367365336E-3,8.5508732897097567E-3]
["Line Losses on Cost of Power (based on two-tier RPP prices)",{"$f":"B8-B4","v":13.36099999999999},{"$f":"IF(B4>B7,C13,C12)","v":9.8000000000000004E-2},{"$f":"B26*C26","v":1.309377999999999},{"$f":"C8-C4","v":13.329999999999984},{"$f":"IF(C4>C7,F13,F12)","v":9.8000000000000004E-2},{"$f":"E26*F26","v":1.3063399999999985},-3.0380000000005403E-3,-2.3201856148496024E-3,2.0094198511134021E-2,1.959710142680602E-2]
["Line Losses on Cost of Power (based on TOU prices)",{"$f":"B8-B4","v":13.36099999999999},{"$f":"VLOOKUP($B$3,'Data Billing Quantities'!$A:$O,MATCH('BI Template_EnergyWHSI'!$A15,'Data Billing Quantities'!$4:$4,0),FALSE)*C15+VLOOKUP($B$3,'Data Billing Quantities'!$A:$O,MATCH('BI Template_EnergyWHSI'!$A16,'Data Billing Quantities'!$4:$4,0),FALSE)*C16+VLOOKUP($B$3,'Data Billing Quantities'!$A:$O,MATCH('BI Template_EnergyWHSI'!$A17,'Data Billing Quantities'!$4:$4,0),FALSE)*C17","v":0.10342000000000001},{"$f":"B27*C27","v":1.3817946199999991},{"$f":"C8-C4","v":13.329999999999984},{"$f":"VLOOKUP($C$3,'Data Billing Quantities'!$A:$O,MATCH('BI Template_EnergyWHSI'!$A15,'Data Billing Quantities'!$4:$4,0),FALSE)*F15+VLOOKUP($C$3,'Data Billing Quantities'!$A:$O,MATCH('BI Template_EnergyWHSI'!$A16,'Data Billing Quantities'!$4:$4,0),FALSE)*F16+VLOOKUP($C$3,'Data Billing Quantities'!$A:$O,MATCH('BI Template_EnergyWHSI'!$A17,'Data Billing Quantities'!$4:$4,0),FALSE)*F17","v":0.10342000000000001},{"$f":"E27*F27","v":1.3785885999999985},-3.2060200000005867E-3,-2.3201856148496141E-3,2.1205530714504903E-2,2.068094111796203E-2]
["Sub-Total:  Distribution (based on two-tier RPP prices)",null,null,{"$f":"SUM(D24,D25:D26)","v":33.847377999999999},null,null,{"$f":"SUM(G24,G25:G26)","v":31.311339999999998},-2.5360380000000013,-7.4925685528728442E-2,0.4816328686326774,0.46971807170354507]
["Sub-Total:  Distribution (based on TOU prices)",null,null,{"$f":"SUM(D24,D25,D27)","v":33.919794619999998},null,null,{"$f":"SUM(G24,G25,G27)","v":31.383588599999996},-2.5362060200000016,-7.477067737033373E-2,0.48274420083604824,0.47080191139470107]
["Retail Transmission Rate – Network Service Rate",{"$f":"IF($B$9=\"kWh\",$B$8,$B$5)","v":323.36099999999999},{"$f":"VLOOKUP($B$3,'Data Current Rates'!$A:$AP,MATCH('BI Template_EnergyWHSI'!$A30,CurrentHeader,0),FALSE)","v":9.1999999999999998E-3},{"$f":"B30*C30","v":2.9749211999999998},{"$f":"IF($C$9=\"kWh\",$C$8,$C$5)","v":323.33},{"$f":"VLOOKUP($C$3,'Data Proposed Rates'!$A:$AZ,MATCH('BI Template_EnergyWHSI'!$A30,ProposedHeader,0),FALSE)","v":1.06E-2},{"$f":"E30*F30","v":3.427298},{"$f":"G30-D30","v":0.45237680000000013},0.15206345633625529,5.2718898884526758E-2,5.1414720919431008E-2]
["Retail Transmission Rate – Line and Transformation Connection Service Rate",{"$f":"IF($B$9=\"kWh\",$B$8,$B$5)","v":323.36099999999999},{"$f":"VLOOKUP($B$3,'Data Current Rates'!$A:$AP,MATCH('BI Template_EnergyWHSI'!$A31,CurrentHeader,0),FALSE)","v":6.4000000000000003E-3},{"$f":"B31*C31","v":2.0695104},{"$f":"IF($C$9=\"kWh\",$C$8,$C$5)","v":323.33},{"$f":"VLOOKUP($C$3,'Data Proposed Rates'!$A:$AZ,MATCH('BI Template_EnergyWHSI'!$A31,ProposedHeader,0),FALSE)","v":7.6E-3},{"$f":"E31*F31","v":2.4573079999999998},{"$f":"G31-D31","v":0.38779759999999985},0.18738615664845165,3.7798455804000319E-2,3.6863384810158079E-2]
["Sub-Total:  Retail Transmission ",null,null,{"$f":"SUM(D30:D31)","v":5.0444315999999993},null,null,{"$f":"SUM(G30:G31)","v":5.8846059999999998},{"$f":"G32-D32","v":0.84017440000000043},0.16655482056690005,9.0517354688527077E-2,8.8278105729589079E-2]
["Sub-Total:  Delivery (based on two-tier RPP prices)",null,null,{"$f":"D28+D32","v":38.891809600000002},null,null,{"$f":"G28+G32","v":37.195945999999999},{"$f":"G33-D33","v":-1.6958636000000027},-4.3604646259504533E-2,0.57215022332120447,0.55799617743313423]
["Sub-Total:  Delivery (based on TOU prices)",null,null,{"$f":"D29+D32","v":38.96422622},null,null,{"$f":"G29+G32","v":37.268194599999994},{"$f":"G34-D34","v":-1.6960316200000065},-4.3527917388218228E-2,0.57326155552457536,0.55908001712429012]
["Wholesale Market Service Rate (WMS) - not including CBR",{"$f":"B8","v":323.36099999999999},{"$f":"VLOOKUP($A35,'Data Pass Through'!$A:$D,2,FALSE)","v":3.0000000000000001E-3},{"$f":"B35*C35","v":0.97008300000000003},{"$f":"$C$8","v":323.33},{"$f":"VLOOKUP($A35,'Data Pass Through'!$A:$D,3,FALSE)","v":3.0000000000000001E-3},{"$f":"E35*F35","v":0.96999000000000002},-9.3000000000009742E-5,-9.5868085514342323E-5,1.4920443080526442E-2,1.4551336109272926E-2]
["Capacity Based Recovery (CBR) - Applicable for Class B Customers",{"$f":"B8","v":323.36099999999999},{"$f":"VLOOKUP($A36,'Data Pass Through'!$A:$D,2,FALSE)","v":4.0000000000000002E-4},{"$f":"B36*C36","v":0.1293444},{"$f":"$C$8","v":323.33},{"$f":"VLOOKUP($A36,'Data Pass Through'!$A:$D,3,FALSE)","v":4.0000000000000002E-4},{"$f":"E36*F36","v":0.129332},-1.2399999999995748E-5,-9.5868085514299402E-5,1.989392410736859E-3,1.9401781479030569E-3]
["Rural Rate Protection Charge",{"$f":"B8","v":323.36099999999999},{"$f":"VLOOKUP($A37,'Data Pass Through'!$A:$D,2,FALSE)","v":5.0000000000000001E-4},0.1616805,323.33,{"$f":"VLOOKUP($A37,'Data Pass Through'!$A:$D,3,FALSE)","v":5.0000000000000001E-4},0.161665,-1.5500000000001624E-5,-9.5868085514342323E-5,2.4867405134210738E-3,2.4252226848788211E-3]
["Standard Supply Service – Administration Charge (if applicable)",1,{"$f":"VLOOKUP($A38,'Data Pass Through'!$A:$D,2,FALSE)","v":0.25},{"$f":"B38*C38","v":0.25},1,{"$f":"VLOOKUP($A38,'Data Pass Through'!$A:$D,3,FALSE)","v":0.25},0.25,0,0,3.8455146652353225E-3,3.7503830218025254E-3]
["Sub-Total:  Regulatory",null,null,{"$f":"SUM(D35:D38)","v":1.5111078999999998},null,null,{"$f":"SUM(G35:G38)","v":1.5109869999999999},-1.2089999999997936E-4,-8.0007522957149097E-5,2.3242090669919696E-2,2.2667119963857327E-2]
["Total  Electricty Charge on Two-Tier RPP ",null,null,{"$f":"SUM(D14,D24,D25,D26,D32,D39)","v":70.782917499999996},null,null,{"$f":"SUM(G14,G24,G25,G26,G32,G39)","v":69.086933000000002},-1.6959844999999945,-2.3960364448102813E-2,1.0626992561105206]
["     HST",null,0.13,{"$f":"D40*C41","v":9.2017792749999998},null,{"$f":"C41","v":0.13},{"$f":"G40*F41","v":8.9813012900000011},-0.22047798499999871,-2.3960364448102751E-2,0.13815090329436769]
["Total Electricity Charge on Two-Tier RPP (including HST)",null,null,{"$f":"SUM(D40:D41)","v":79.984696775000003},null,null,{"$f":"SUM(G40:G41)","v":78.068234290000007},-1.9164624849999967,-2.3960364448102848E-2,1.2008501594048884]
["Ontario Electricity Rebate (OER)",null,{"$f":"IF(($B$4*12)<250000,VLOOKUP(A43,'Data Pass Through'!$A$4:$C$20,2,0),0)","v":-0.189},{"$f":"D40*C43","v":-13.377971407499999},null,{"$f":"C43","v":-0.189},{"$f":"G40*F43","v":-13.057430337000001},0.32054107049999736,2.3960364448102695E-2,-0.20085015940488843]
["Total Amount on Two-Tier RPP",null,null,{"$f":"SUM(D42:D43)","v":66.606725367500005},null,null,{"$f":"SUM(G42:G43)","v":65.010803953000007},-1.5959214144999976,-2.3960364448102855E-2,1]
["Total Electricty Charge on TOU (before HST)",null,null,{"$f":"SUM(D18,D24,D25,D27,D32,D39)","v":72.53553411999998},null,null,{"$f":"SUM(G18,G24,G25,G27,G32,G39)","v":70.839381599999996},-1.6961525199999841,-2.3383746195263896E-2,null,{"$f":"G45/$G$49","v":1.0626992561105209}]
["     HST",null,0.13,{"$f":"D45*C46","v":9.4296194355999976},null,{"$f":"C46","v":0.13},{"$f":"G45*F46","v":9.209119608},-0.22049982759999764,-2.3383746195263864E-2,null,{"$f":"G46/$G$49","v":0.13815090329436772}]
["Total Electricity Charge on TOU (including HST)",null,null,{"$f":"SUM(D45:D46)","v":81.965153555599983},null,null,{"$f":"SUM(G45:G46)","v":80.04850120799999},-1.9166523475999924,-2.3383746195264021E-2,null,{"$f":"G47/$G$49","v":1.2008501594048884}]
["Ontario Electricity Rebate (OER)",null,{"$f":"IF(($B$4*12)<250000,VLOOKUP(A48,'Data Pass Through'!$A$4:$C$20,2,0),0)","v":-0.189},{"$f":"D45*C48","v":-13.709215948679997},null,{"$f":"C48","v":-0.189},{"$f":"G45*F48","v":-13.3886431224},0.32057282627999761,2.3383746195263941E-2,null,{"$f":"G48/$G$49","v":-0.20085015940488843}]
["Total Amount on TOU",null,null,{"$f":"SUM(D47:D48)","v":68.255937606919986},null,null,{"$f":"SUM(G47:G48)","v":66.659858085599993},-1.596079521319993,-2.338374619526401E-2,null,{"$f":"G49/$G$49","v":1}]

{"sheet":"BI Template_DemandWHSI","index":19,"n_rows":32,"n_cols":10,"rows_kept":32,"cut":false,"hidden":true,"merged":[[0,0,0,9]]}
["2023 Bill Impacts (Low Consumption Level) - AUGd_WHSI"]
[]
["Rate Class",{"$f":"VLOOKUP(A1,'Data BI List Acq_Seas'!C:E,2,FALSE)","v":"WHSI_GS 50>999"},{"$f":"VLOOKUP(A1,'Data BI List Acq_Seas'!C:E,3,FALSE)","v":"AUGd-WHSI"}]
["Monthly Consumption (kWh)",{"$f":"IF(COUNTIF(A1,\"*Low*\")>0,VLOOKUP(B3,'Data Billing Quantities'!$A:$Z,MATCH(\"Low kWh\",'Data Billing Quantities'!4:4,0),FALSE),IF(COUNTIF(A1,\"*Typical*\")>0,VLOOKUP(B3,'Data Billing Quantities'!$A:$Z,MATCH(\"Typical kWh\",'Data Billing Quantities'!4:4,0),FALSE),IF(COUNTIF(A1,\"*Average*\")>0,VLOOKUP(B3,'Data Billing Quantities'!$A:$Z,MATCH(\"Average kWh\",'Data Billing Quantities'!4:4,0),FALSE),IF(COUNTIF(A1,\"*High*\")>0,VLOOKUP(B3,'Data Billing Quantities'!$A:$Z,MATCH(\"High kWh\",'Data Billing Quantities'!4:4,0),FALSE),\"error\"))))","v":9370},{"$f":"B4","v":9370}]
["Peak (kW)",{"$f":"IF(COUNTIF(A1,\"*Low*\")>0,VLOOKUP(B3,'Data Billing Quantities'!$A:$Z,MATCH(\"Low kW\",'Data Billing Quantities'!4:4,0),FALSE),IF(COUNTIF(A1,\"*Typical*\")>0,VLOOKUP(B3,'Data Billing Quantities'!$A:$Z,MATCH(\"Typical kW\",'Data Billing Quantities'!4:4,0),FALSE),IF(COUNTIF(A1,\"*Average*\")>0,VLOOKUP(B3,'Data Billing Quantities'!$A:$Z,MATCH(\"Average kW\",'Data Billing Quantities'!4:4,0),FALSE),IF(COUNTIF(A1,\"*High*\")>0,VLOOKUP(B3,'Data Billing Quantities'!$A:$Z,MATCH(\"High kW\",'Data Billing Quantities'!4:4,0),FALSE),\"error\"))))","v":50},{"$f":"B5","v":50}]
["Loss factor",{"$f":"VLOOKUP(B3,'Data Billing Quantities'!A:D,MATCH(A6,'Data Billing Quantities'!4:4,0),FALSE)","v":1.0430999999999999},{"$f":"VLOOKUP(C3,'Data Billing Quantities'!A:D,MATCH(A6,'Data Billing Quantities'!4:4,0),FALSE)","v":1.0329999999999999}]
["Commodity Threshold",{"$f":"VLOOKUP(B3,'Data Billing Quantities'!A:D,MATCH(A7,'Data Billing Quantities'!4:4,0),FALSE)","v":0},{"$f":"B7","v":0}]
["Monthly Consumption (kWh) - Uplifted",{"$f":"B4*B6","v":9773.8469999999998},{"$f":"C4*C6","v":9679.2099999999991}]
["Charge determinant",{"$f":"VLOOKUP(B3,'Data Billing Quantities'!A:D,MATCH(A9,'Data Billing Quantities'!4:4,0),FALSE)","v":"kW"},{"$f":"VLOOKUP(C3,'Data Billing Quantities'!A:D,MATCH(A9,'Data Billing Quantities'!4:4,0),FALSE)","v":"kW"}]
[]
[null,"Volume","Current Rate ($)","Current Charge ($)","Volume","Proposed Rate ($)","Proposed Charge ($)","Change ($)","Change (%)","% of Total Bill"]
["Weighted Average Hourly Spot Price",{"$f":"B8","v":9773.8469999999998},{"$f":"VLOOKUP($A12,'Data Pass Through'!$A:$D,2,FALSE)","v":0.11899999999999999},{"$f":"B12*C12","v":1163.0877929999999},{"$f":"C8","v":9679.2099999999991},{"$f":"VLOOKUP($A12,'Data Pass Through'!$A:$D,3,FALSE)","v":0.11899999999999999},{"$f":"E12*F12","v":1151.8259899999998},{"$f":"G12-D12","v":-11.2618030000001},{"$f":"IF(ISERROR(H12/ABS(D12)),\"N/A\",(H12/ABS(D12)))","v":-9.6826766369476468E-3},{"$f":"G12/G$32","v":0.59978375034263687}]
["Sub-Total:  Energy (WAHSP)",null,null,{"$f":"SUM(D12:D12)","v":1163.0877929999999},null,null,{"$f":"SUM(G12:G12)","v":1151.8259899999998},-11.2618030000001,-9.6826766369476468E-3,{"$f":"G13/G$32","v":0.59978375034263687}]
["Service Charge",1,{"$f":"VLOOKUP($B$3,'Data Current Rates'!$A:$AP,MATCH('BI Template_DemandWHSI'!$A14,CurrentHeader,0),FALSE)","v":144.9},{"$f":"B14*C14","v":144.9},1,{"$f":"VLOOKUP($C$3,'Data Proposed Rates'!$A:$AZ,MATCH('BI Template_DemandWHSI'!$A14,ProposedHeader,0),FALSE)","v":150.84},{"$f":"E14*F14","v":150.84},5.9399999999999977,4.0993788819875761E-2,7.8546049218496422E-2]
["Distribution Volumetric Charge",{"$f":"IF($B$9=\"kWh\",$B$4,$B$5)","v":50},{"$f":"VLOOKUP($B$3,'Data Current Rates'!$A:$AP,MATCH('BI Template_DemandWHSI'!$A15,CurrentHeader,0),FALSE)","v":2.6686999999999999},{"$f":"B15*C15","v":133.435},{"$f":"IF($C$9=\"kWh\",$C$4,$C$5)","v":50},{"$f":"VLOOKUP($C$3,'Data Proposed Rates'!$A:$AZ,MATCH('BI Template_DemandWHSI'!$A15,ProposedHeader,0),FALSE)","v":2.4538000000000002},122.69000000000001,-10.74499999999999,-8.0526098849627081E-2,6.3887660956094702E-2]
["Rate Rider for Recovery of Incremental Capital",{"$f":"IF($B$9=\"kWh\",$B$4,$B$5)","v":50},{"$f":"VLOOKUP($B$3,'Data Current Rates'!$A:$AP,MATCH('BI Template_DemandWHSI'!$A16,CurrentHeader,0),FALSE)","v":0.3251},16.254999999999999,null,null,null,-16.254999999999999,-1,0]
["Group 1 Volumetric DVA Rider (General)",null,null,null,{"$f":"IF($C$9=\"kWh\",$C$4,$C$5)","v":50},{"$f":"VLOOKUP($C$3,'Data Proposed Rates'!$A:$AZ,MATCH('BI Template_DemandWHSI'!$A17,ProposedHeader,0),FALSE)","v":-3.8300000000000001E-2},-1.915,-1.915,"N/A",-9.971869812610756E-4]
["Group 1 Volumetric Deferral/Variance Account Rider (Sub-Account RSVA Wholesale Market Service Charge & RSVA Power) ",null,null,null,50,{"$f":"VLOOKUP($C$3,'Data Proposed Rates'!$A:$AZ,MATCH('BI Template_DemandWHSI'!$A18,ProposedHeader,0),FALSE)","v":-8.0299999999999996E-2},-4.0149999999999997,-4.0149999999999997,"N/A",-2.0907079528789648E-3]
["Group 1 Volumetric Deferral/Variance Account Rider (Sub-Account Global Adjustment)",null,null,null,{"$f":"C4","v":9370},{"$f":"VLOOKUP($C$3,'Data Proposed Rates'!$A:$AZ,MATCH('BI Template_DemandWHSI'!$A19,ProposedHeader,0),FALSE)","v":-6.9999999999999999E-4},-6.5590000000000002,-6.5590000000000002,"N/A",-3.4154305013532086E-3]
["Sub-Total:  Distribution",null,null,{"$f":"SUM(INDIRECT(\"D14:D\"&ROW()-1))","v":294.59000000000003},null,null,{"$f":"SUM(INDIRECT(\"g14:g\"&ROW()-1))","v":261.041},{"$f":"G20-D20","v":-33.549000000000035},-0.11388370277334611,0.13593038473909785]
["Retail Transmission Rate – Network Service Rate",{"$f":"IF($B$9=\"kWh\",$B$4,$B$5)","v":50},{"$f":"VLOOKUP($B$3,'Data Current Rates'!$A:$AP,MATCH('BI Template_DemandWHSI'!$A21,CurrentHeader,0),FALSE)","v":3.5638000000000001},{"$f":"B21*C21","v":178.19},{"$f":"IF($C$9=\"kWh\",$C$4,$C$5)","v":50},{"$f":"VLOOKUP($C$3,'Data Proposed Rates'!$A:$AZ,MATCH('BI Template_DemandWHSI'!$A21,ProposedHeader,0),FALSE)","v":2.8411},{"$f":"E21*F21","v":142.05500000000001},{"$f":"G21-D21","v":-36.134999999999991},-0.20278915764072053,7.3971486487228247E-2]
["Retail Transmission Rate – Line and Transformation Connection Service Rate",{"$f":"IF($B$9=\"kWh\",$B$4,$B$5)","v":50},{"$f":"VLOOKUP($B$3,'Data Current Rates'!$A:$AP,MATCH('BI Template_DemandWHSI'!$A22,CurrentHeader,0),FALSE)","v":2.5609000000000002},{"$f":"B22*C22","v":128.04500000000002},{"$f":"IF($C$9=\"kWh\",$C$4,$C$5)","v":50},{"$f":"VLOOKUP($C$3,'Data Proposed Rates'!$A:$AZ,MATCH('BI Template_DemandWHSI'!$A22,ProposedHeader,0),FALSE)","v":2.1309999999999998},{"$f":"E22*F22","v":106.54999999999998},{"$f":"G22-D22","v":-21.495000000000033},-0.16787067046741402,5.5483171202802911E-2]
["Sub-Total:  Retail Transmission ",null,null,{"$f":"SUM(D21:D22)","v":306.23500000000001},null,null,{"$f":"SUM(G21:G22)","v":248.60499999999999},{"$f":"G23-D23","v":-57.630000000000024},-0.18818880924779996,0.12945465769003117]
["Sub-Total:  Delivery (based on two-tier RPP prices)",null,null,{"$f":"SUM(D20,D23)","v":600.82500000000005},null,null,{"$f":"SUM(G20,G23)","v":509.64599999999996},{"$f":"G24-D24","v":-91.179000000000087},-0.15175633503932107,0.26538504242912903]
["Wholesale Market Service Rate (WMS) - not including CBR",{"$f":"B8","v":9773.8469999999998},{"$f":"VLOOKUP($A25,'Data Pass Through'!$A:$D,2,FALSE)","v":3.0000000000000001E-3},{"$f":"B25*C25","v":29.321541},{"$f":"$C$8","v":9679.2099999999991},{"$f":"VLOOKUP($A25,'Data Pass Through'!$A:$D,3,FALSE)","v":3.0000000000000001E-3},{"$f":"E25*F25","v":29.037629999999996},{"$f":"G25-D25","v":-0.28391100000000336},-9.6826766369476746E-3,1.5120598748133703E-2]
["Capacity Based Recovery (CBR) - Applicable for Class B Customers",{"$f":"B8","v":9773.8469999999998},{"$f":"VLOOKUP($A26,'Data Pass Through'!$A:$D,2,FALSE)","v":4.0000000000000002E-4},{"$f":"B26*C26","v":3.9095388},{"$f":"$C$8","v":9679.2099999999991},{"$f":"VLOOKUP($A26,'Data Pass Through'!$A:$D,3,FALSE)","v":4.0000000000000002E-4},{"$f":"E26*F26","v":3.8716839999999997},-3.7854800000000299E-2,-9.6826766369476364E-3,2.0160798330844938E-3]
["Rural Rate Protection Charge",{"$f":"B8","v":9773.8469999999998},{"$f":"VLOOKUP($A27,'Data Pass Through'!$A:$D,2,FALSE)","v":5.0000000000000001E-4},4.8869235,9679.2099999999991,{"$f":"VLOOKUP($A27,'Data Pass Through'!$A:$D,3,FALSE)","v":5.0000000000000001E-4},4.8396049999999997,-4.7318500000000263E-2,-9.6826766369476139E-3,2.5200997913556174E-3]
["Standard Supply Service – Administration Charge (if applicable)",1,{"$f":"VLOOKUP($A28,'Data Pass Through'!$A:$D,2,FALSE)","v":0.25},{"$f":"B28*C28","v":0.25},{"$f":"B28","v":1},{"$f":"VLOOKUP($A28,'Data Pass Through'!$A:$D,3,FALSE)","v":0.25},0.25,0,0,1.3018106804974877E-4]
["Sub-Total:  Regulatory",null,null,{"$f":"SUM(D25:D28)","v":38.368003300000005},null,null,{"$f":"SUM(G25:G28)","v":37.998918999999994},-0.36908430000001147,-9.6195858073232447E-3,1.9786959440623562E-2]
["Total  Electricty Charge on WAHSP",null,null,{"$f":"SUM(D13,D24,D29)","v":1802.2807963},null,null,{"$f":"SUM(G13,G24,G29)","v":1699.4709089999997},-102.80988730000036,-5.7044322677722775E-2,0.88495575221238942]
["     HST",null,0.13,{"$f":"D30*C31","v":234.296503519},null,{"$f":"C31","v":0.13},{"$f":"G30*F31","v":220.93121816999997},-13.365285349000033,-5.704432267772272E-2,0.11504424778761062]
["Total Amount on WAHSP",null,null,{"$f":"SUM(D30:D31)","v":2036.577299819},null,null,{"$f":"SUM(G30:G31)","v":1920.4021271699996},-116.17517264900039,-5.7044322677722768E-2,1]

{"sheet":"BI Template_unmWHSI","index":20,"n_rows":35,"n_cols":10,"rows_kept":35,"cut":false,"hidden":true,"merged":[[0,0,0,9]]}
["2023 Bill Impacts (Average Consumption Level) - St Lgt_WHSI"]
[]
["Rate Class",{"$f":"VLOOKUP(A1,'Data BI List Acq_Seas'!C:E,2,FALSE)","v":"WHSI_St Lgt"},{"$f":"VLOOKUP(A1,'Data BI List Acq_Seas'!C:E,3,FALSE)","v":"St Lgt-WHSI"}]
["Monthly Consumption (kWh)",{"$f":"IF(COUNTIF(A1,\"*Low*\")>0,VLOOKUP(B3,'Data Billing Quantities'!$A:$Z,MATCH(\"Low kWh\",'Data Billing Quantities'!4:4,0),FALSE),IF(COUNTIF(A1,\"*Typical*\")>0,VLOOKUP(B3,'Data Billing Quantities'!$A:$Z,MATCH(\"Typical kWh\",'Data Billing Quantities'!4:4,0),FALSE),IF(COUNTIF(A1,\"*Average*\")>0,VLOOKUP(B3,'Data Billing Quantities'!$A:$Z,MATCH(\"Average kWh\",'Data Billing Quantities'!4:4,0),FALSE),IF(COUNTIF(A1,\"*High*\")>0,VLOOKUP(B3,'Data Billing Quantities'!$A:$Z,MATCH(\"High kWh\",'Data Billing Quantities'!4:4,0),FALSE),\"error\"))))","v":37079},{"$f":"B4","v":37079}]
["Peak (kW)",{"$f":"IF(COUNTIF(A1,\"*Low*\")>0,VLOOKUP(B3,'Data Billing Quantities'!$A:$Z,MATCH(\"Low kW\",'Data Billing Quantities'!4:4,0),FALSE),IF(COUNTIF(A1,\"*Typical*\")>0,VLOOKUP(B3,'Data Billing Quantities'!$A:$Z,MATCH(\"Typical kW\",'Data Billing Quantities'!4:4,0),FALSE),IF(COUNTIF(A1,\"*Average*\")>0,VLOOKUP(B3,'Data Billing Quantities'!$A:$Z,MATCH(\"Average kW\",'Data Billing Quantities'!4:4,0),FALSE),IF(COUNTIF(A1,\"*High*\")>0,VLOOKUP(B3,'Data Billing Quantities'!$A:$Z,MATCH(\"High kW\",'Data Billing Quantities'!4:4,0),FALSE),\"error\"))))","v":104},{"$f":"B5","v":104}]
["Loss factor",{"$f":"VLOOKUP(B3,'Data Billing Quantities'!A:D,MATCH(A6,'Data Billing Quantities'!4:4,0),FALSE)","v":1.0430999999999999},{"$f":"VLOOKUP(C3,'Data Billing Quantities'!A:D,MATCH(A6,'Data Billing Quantities'!4:4,0),FALSE)","v":1.0920000000000001}]
["Commodity Threshold",{"$f":"VLOOKUP(B3,'Data Billing Quantities'!A:D,MATCH(A7,'Data Billing Quantities'!4:4,0),FALSE)","v":750},{"$f":"B7","v":750}]
["Monthly Consumption (kWh) - Uplifted",{"$f":"B4*B6","v":38677.104899999998},{"$f":"C4*C6","v":40490.268000000004}]
["Charge determinant",{"$f":"VLOOKUP(B3,'Data Billing Quantities'!A:D,MATCH(A9,'Data Billing Quantities'!4:4,0),FALSE)","v":"kW"},{"$f":"VLOOKUP(C3,'Data Billing Quantities'!A:D,MATCH(A9,'Data Billing Quantities'!4:4,0),FALSE)","v":"kWh"}]
[]
[null,"Volume","Current Rate ($)","Current Charge ($)","Volume","Proposed Rate ($)","Proposed Charge ($)","Change ($)","Change (%)","% of Total Bill"]
["Energy First Tier",{"$f":"IF(B4>B7,B7,B4)","v":750},{"$f":"VLOOKUP($A12,'Data Pass Through'!$A:$D,2,FALSE)","v":9.8000000000000004E-2},{"$f":"B12*C12","v":73.5},{"$f":"B12","v":750},{"$f":"VLOOKUP($A12,'Data Pass Through'!$A:$D,3,FALSE)","v":9.8000000000000004E-2},{"$f":"E12*F12","v":73.5},{"$f":"G12-D12","v":0},{"$f":"IF(ISERROR(H12/ABS(D12)),\"N/A\",(H12/ABS(D12)))","v":0},{"$f":"G12/$G$35","v":7.1198275020730511E-3}]
["Energy Second Tier",{"$f":"IF(B4>B7,(B4)-B7,0)","v":36329},{"$f":"VLOOKUP($A13,'Data Pass Through'!$A:$D,2,FALSE)","v":0.115},{"$f":"B13*C13","v":4177.835},{"$f":"B13","v":36329},{"$f":"VLOOKUP($A13,'Data Pass Through'!$A:$D,3,FALSE)","v":0.115},{"$f":"E13*F13","v":4177.835},0,0,0.40470019771596416]
["Sub-Total:  Energy (RPP Tiered)",null,null,{"$f":"SUM(D12:D13)","v":4251.335},null,null,{"$f":"SUM(G12:G13)","v":4251.335},0,0,0.41182002521803723]
["Service Charge",{"$f":"IF(VLOOKUP(B$3,'Data Billing Quantities'!A:P,MATCH(\"Acquired Street Light Service Charge\",'Data Billing Quantities'!$4:$4,0),FALSE)>0,VLOOKUP(B$3,'Data Billing Quantities'!A:P,MATCH(\"Acquired Street Light Service Charge\",'Data Billing Quantities'!$4:$4,0),FALSE),1)","v":786},{"$f":"VLOOKUP($B$3,'Data Current Rates'!$A:$AP,MATCH('BI Template_unmWHSI'!$A15,CurrentHeader,0),FALSE)","v":3.19},{"$f":"B15*C15","v":2507.34},1,{"$f":"VLOOKUP($C$3,'Data Proposed Rates'!$A:$AZ,MATCH('BI Template_unmWHSI'!$A15,ProposedHeader,0),FALSE)","v":2.97},{"$f":"E15*F15","v":2.97},-2504.3700000000003,-0.99881547775730462,2.8769915212458456E-4]
["Distribution Volumetric Charge",{"$f":"IF($B$9=\"kWh\",$B$4,$B$5)","v":104},{"$f":"VLOOKUP($B$3,'Data Current Rates'!$A:$AP,MATCH('BI Template_unmWHSI'!$A16,CurrentHeader,0),FALSE)","v":12.895},{"$f":"B16*C16","v":1341.08},{"$f":"IF($C$9=\"kWh\",$C$4,$C$5)","v":37079},{"$f":"VLOOKUP($C$3,'Data Proposed Rates'!$A:$AZ,MATCH('BI Template_unmWHSI'!$A16,ProposedHeader,0),FALSE)","v":0.10639999999999999},3945.2055999999998,2604.1255999999998,1.9418122707071912,0.38216575962194033]
["Rate Rider for Recovery of Incremental Capital",{"$f":"IF($B$9=\"kWh\",$B$4,$B$5)","v":104},{"$f":"VLOOKUP($B$3,'Data Current Rates'!$A:$AP,MATCH('BI Template_unmWHSI'!$A17,CurrentHeader,0),FALSE)","v":0.21870000000000001},22.744800000000001,null,null,null,-22.744800000000001,-1,0]
["Group 1 Volumetric DVA Rider (General)",null,null,null,{"$f":"IF($C$9=\"kWh\",$C$4,$C$5)","v":37079},{"$f":"VLOOKUP($C$3,'Data Proposed Rates'!$A:$AZ,MATCH('BI Template_unmWHSI'!$A18,ProposedHeader,0),FALSE)","v":-2.9999999999999997E-4},-11.123699999999999,-11.123699999999999,"N/A",-1.0775350365280273E-3]
["Sub-Total:  Distribution (excluding pass through)",null,null,{"$f":"SUM(INDIRECT(\"D15:D\"&ROW()-1))","v":3871.1648},null,null,{"$f":"SUM(INDIRECT(\"g15:g\"&ROW()-1))","v":3937.0518999999995},{"$f":"G19-D19","v":65.887099999999464},1.7019967736842272E-2,0.38137592373753681]
["Line Losses on Cost of Power (based on two-tier RPP prices)",{"$f":"B8-B4","v":1598.1048999999985},{"$f":"IF(B4>B7,C13,C12)","v":0.115},{"$f":"B20*C20","v":183.78206349999982},{"$f":"C8-C4","v":3411.2680000000037},{"$f":"IF(C4>C7,F13,F12)","v":0.115},{"$f":"E20*F20","v":392.29582000000045},208.51375650000062,1.1345707656612574,3.8001068954888473E-2]
["Sub-Total:  Distribution (based on two-tier RPP prices)",null,null,{"$f":"SUM(D19,D20:D20)","v":4054.9468634999998},null,null,{"$f":"SUM(G19,G20:G20)","v":4329.3477199999998},274.40085649999992,6.7670641746252799E-2,0.41937699269242529]
["Retail Transmission Rate – Network Service Rate",{"$f":"IF($B$9=\"kWh\",$B$8,$B$5)","v":104},{"$f":"VLOOKUP($B$3,'Data Current Rates'!$A:$AP,MATCH('BI Template_unmWHSI'!$A22,CurrentHeader,0),FALSE)","v":2.6301999999999999},{"$f":"B22*C22","v":273.54079999999999},{"$f":"IF($C$9=\"kWh\",$C$8,$C$5)","v":40490.268000000004},{"$f":"VLOOKUP($C$3,'Data Proposed Rates'!$A:$AZ,MATCH('BI Template_unmWHSI'!$A22,ProposedHeader,0),FALSE)","v":5.4999999999999997E-3},{"$f":"E22*F22","v":222.69647399999999},{"$f":"G22-D22","v":-50.844325999999995},-0.18587474336552354,2.1572251431291104E-2]
["Retail Transmission Rate – Line and Transformation Connection Service Rate",{"$f":"IF($B$9=\"kWh\",$B$8,$B$5)","v":104},{"$f":"VLOOKUP($B$3,'Data Current Rates'!$A:$AP,MATCH('BI Template_unmWHSI'!$A23,CurrentHeader,0),FALSE)","v":1.8902000000000001},{"$f":"B23*C23","v":196.58080000000001},{"$f":"IF($C$9=\"kWh\",$C$8,$C$5)","v":40490.268000000004},{"$f":"VLOOKUP($C$3,'Data Proposed Rates'!$A:$AZ,MATCH('BI Template_unmWHSI'!$A23,ProposedHeader,0),FALSE)","v":4.3E-3},{"$f":"E23*F23","v":174.10815240000002},{"$f":"G23-D23","v":-22.472647599999988},-0.11431761189292132,1.6865578391736684E-2]
["Sub-Total:  Retail Transmission ",null,null,{"$f":"SUM(D22:D23)","v":470.1216},null,null,{"$f":"SUM(G22:G23)","v":396.80462640000002},{"$f":"G24-D24","v":-73.316973599999983},-0.15595321210512342,3.8437829823027791E-2]
["Sub-Total:  Delivery (based on two-tier RPP prices)",null,null,{"$f":"D21+D24","v":4525.0684634999998},null,null,{"$f":"G21+G24","v":4726.1523464000002},{"$f":"G25-D25","v":201.08388290000039},4.4437754814535615E-2,0.45781482251545313]
["Wholesale Market Service Rate (WMS) - not including CBR",{"$f":"B8","v":38677.104899999998},{"$f":"VLOOKUP($A26,'Data Pass Through'!$A:$D,2,FALSE)","v":3.0000000000000001E-3},{"$f":"B26*C26","v":116.0313147},{"$f":"$C$8","v":40490.268000000004},{"$f":"VLOOKUP($A26,'Data Pass Through'!$A:$D,3,FALSE)","v":3.0000000000000001E-3},{"$f":"E26*F26","v":121.47080400000002},{"$f":"G26-D26","v":5.4394893000000195},4.6879493816508654E-2,1.1766682598886059E-2]
["Capacity Based Recovery (CBR) - Applicable for Class B Customers",{"$f":"B8","v":38677.104899999998},{"$f":"VLOOKUP($A27,'Data Pass Through'!$A:$D,2,FALSE)","v":4.0000000000000002E-4},{"$f":"B27*C27","v":15.47084196},{"$f":"$C$8","v":40490.268000000004},{"$f":"VLOOKUP($A27,'Data Pass Through'!$A:$D,3,FALSE)","v":4.0000000000000002E-4},{"$f":"E27*F27","v":16.196107200000004},0.72526524000000414,4.6879493816508751E-2,1.5688910131848081E-3]
["Rural Rate Protection Charge",{"$f":"B8","v":38677.104899999998},{"$f":"VLOOKUP($A28,'Data Pass Through'!$A:$D,2,FALSE)","v":5.0000000000000001E-4},19.338552449999998,40490.268000000004,{"$f":"VLOOKUP($A28,'Data Pass Through'!$A:$D,3,FALSE)","v":5.0000000000000001E-4},20.245134000000004,0.90658155000000562,4.6879493816508779E-2,1.9611137664810102E-3]
["Standard Supply Service – Administration Charge (if applicable)",1,{"$f":"VLOOKUP($A29,'Data Pass Through'!$A:$D,2,FALSE)","v":0.25},{"$f":"B29*C29","v":0.25},1,{"$f":"VLOOKUP($A29,'Data Pass Through'!$A:$D,3,FALSE)","v":0.25},0.25,0,0,2.421710034718725E-5]
["Sub-Total:  Regulatory",null,null,{"$f":"SUM(D26:D29)","v":151.09070911000001},null,null,{"$f":"SUM(G26:G29)","v":158.16204520000002},7.0713360900000168,4.6801925357645949E-2,1.5320904478899064E-2]
["Total  Electricty Charge on Two-Tier RPP ",null,null,{"$f":"SUM(D25,D30,D14)","v":8927.4941726100005},null,null,{"$f":"SUM(G25,G30,G14)","v":9135.6493915999999},208.15521898999941,2.3316197688331184E-2,0.88495575221238942]
["     HST",null,0.13,{"$f":"D31*C32","v":1160.5742424393002},null,{"$f":"C32","v":0.13},{"$f":"G31*F32","v":1187.634420908},27.06017846869986,2.3316197688331129E-2,0.11504424778761063]
["Total Electricity Charge on Two-Tier RPP (including HST)",null,null,{"$f":"SUM(D31:D32)","v":10088.0684150493},null,null,{"$f":"SUM(G31:G32)","v":10323.283812508},235.21539745869995,2.3316197688331246E-2,1]
["Ontario Electricity Rebate (OER)",null,{"$f":"IF(($B$4*12)<250000,VLOOKUP(A34,'Data Pass Through'!$A$4:$C$20,2,0),0)","v":0},{"$f":"D31*C34","v":0},null,{"$f":"C34","v":0},{"$f":"G31*F34","v":0},0,"N/A",0]
["Total Amount on Two-Tier RPP",null,null,{"$f":"SUM(D33:D34)","v":10088.0684150493},null,null,{"$f":"SUM(G33:G34)","v":10323.283812508},235.21539745869995,2.3316197688331246E-2,1]

{"sheet":"BI Template_EnergyUNM","index":21,"n_rows":37,"n_cols":10,"rows_kept":37,"cut":false,"hidden":true,"merged":[[0,0,0,9]]}
["2023 Bill Impacts (Average Consumption Level) - USL"]
[]
["Rate Class",{"$f":"RIGHT(A1,LEN(A1)-FIND(\"- \",A1,1)-1)","v":"USL"}]
["Monthly Consumption (kWh)",{"$f":"IF(COUNTIF(A1,\"*Low*\")>0,VLOOKUP(B3,'Data Billing Quantities'!$A:$Z,MATCH(\"Low kWh\",'Data Billing Quantities'!4:4,0),FALSE),IF(COUNTIF(A1,\"*Typical*\")>0,VLOOKUP(B3,'Data Billing Quantities'!$A:$Z,MATCH(\"Typical kWh\",'Data Billing Quantities'!4:4,0),FALSE),IF(COUNTIF(A1,\"*Average*\")>0,VLOOKUP(B3,'Data Billing Quantities'!$A:$Z,MATCH(\"Average kWh\",'Data Billing Quantities'!4:4,0),FALSE),IF(COUNTIF(A1,\"*High*\")>0,VLOOKUP(B3,'Data Billing Quantities'!$A:$Z,MATCH(\"High kWh\",'Data Billing Quantities'!4:4,0),FALSE),\"error\"))))","v":477}]
["Peak (kW)",{"$f":"IF(COUNTIF(A1,\"*Low*\")>0,VLOOKUP(B3,'Data Billing Quantities'!$A:$Z,MATCH(\"Low kW\",'Data Billing Quantities'!4:4,0),FALSE),IF(COUNTIF(A1,\"*Typical*\")>0,VLOOKUP(B3,'Data Billing Quantities'!$A:$Z,MATCH(\"Typical kW\",'Data Billing Quantities'!4:4,0),FALSE),IF(COUNTIF(A1,\"*Average*\")>0,VLOOKUP(B3,'Data Billing Quantities'!$A:$Z,MATCH(\"Average kW\",'Data Billing Quantities'!4:4,0),FALSE),IF(COUNTIF(A1,\"*High*\")>0,VLOOKUP(B3,'Data Billing Quantities'!$A:$Z,MATCH(\"High kW\",'Data Billing Quantities'!4:4,0),FALSE),\"error\"))))","v":0}]
["Loss factor",{"$f":"VLOOKUP(B3,'Data Billing Quantities'!A:D,MATCH(A6,'Data Billing Quantities'!4:4,0),FALSE)","v":1.0920000000000001}]
["Commodity Threshold",{"$f":"VLOOKUP(B3,'Data Billing Quantities'!A:D,MATCH(A7,'Data Billing Quantities'!4:4,0),FALSE)","v":750}]
["Monthly Consumption (kWh) - Uplifted",{"$f":"B4*B6","v":520.88400000000001}]
["Charge determinant",{"$f":"VLOOKUP(B3,'Data Billing Quantities'!A:D,MATCH(A9,'Data Billing Quantities'!4:4,0),FALSE)","v":"kWh"}]
[]
[null,"Volume","Current Rate ($)","Current Charge ($)","Volume","Proposed Rate ($)","Proposed Charge ($)","Change ($)","Change (%)","% of Total Bill"]
["Energy First Tier",{"$f":"IF(B4>B7,B7,B4)","v":477},{"$f":"VLOOKUP($A12,'Data Pass Through'!$A:$D,2,FALSE)","v":9.8000000000000004E-2},{"$f":"B12*C12","v":46.746000000000002},{"$f":"B12","v":477},{"$f":"VLOOKUP($A12,'Data Pass Through'!$A:$D,3,FALSE)","v":9.8000000000000004E-2},{"$f":"E12*F12","v":46.746000000000002},{"$f":"G12-D12","v":0},{"$f":"IF(ISERROR(H12/ABS(D12)),\"N/A\",(H12/ABS(D12)))","v":0},{"$f":"G12/$G$37","v":0.47349524678078114}]
["Energy Second Tier",{"$f":"IF(B4>B7,(B4)-B7,0)","v":0},{"$f":"VLOOKUP($A13,'Data Pass Through'!$A:$D,2,FALSE)","v":0.115},{"$f":"B13*C13","v":0},{"$f":"B13","v":0},{"$f":"VLOOKUP($A13,'Data Pass Through'!$A:$D,3,FALSE)","v":0.115},{"$f":"E13*F13","v":0},0,"N/A",{"$f":"G13/$G$37","v":0}]
["Sub-Total:  Energy (RPP Tiered)",null,null,{"$f":"SUM(D12:D13)","v":46.746000000000002},null,null,{"$f":"SUM(G12:G13)","v":46.746000000000002},0,0,{"$f":"G14/$G$37","v":0.47349524678078114}]
["Service Charge",1,{"$f":"VLOOKUP($B$3,'Data Current Rates'!$A:$AP,MATCH('BI Template_EnergyUNM'!$A15,CurrentHeader,0),FALSE)","v":39.42},{"$f":"B15*C15","v":39.42},1,{"$f":"VLOOKUP($B$3,'Data Proposed Rates'!$A:$AZ,MATCH('BI Template_EnergyUNM'!$A15,ProposedHeader,0),FALSE)","v":34.68},{"$f":"E15*F15","v":34.68},-4.740000000000002,-0.12024353120243536,{"$f":"G15/$G$37","v":0.3512774388901187}]
["Fixed Base Rate Adjustment to Recover Past Tax Amounts ",1,{"$f":"VLOOKUP($B$3,'Data Current Rates'!$A:$AP,MATCH('BI Template_EnergyUNM'!$A16,CurrentHeader,0),FALSE)","v":0.89},{"$f":"B16*C16","v":0.89},1,{"$f":"VLOOKUP($B$3,'Data Proposed Rates'!$A:$AZ,MATCH('BI Template_EnergyUNM'!$A16,ProposedHeader,0),FALSE)","v":0.87},{"$f":"E16*F16","v":0.87},{"$f":"G16-D16","v":-2.0000000000000018E-2},{"$f":"IF(ISERROR(H16/ABS(D16)),\"N/A\",(H16/ABS(D16)))","v":-2.2471910112359571E-2}]
["Distribution Volumetric Charge",{"$f":"IF($B$9=\"kWh\",$B$4,$B$5)","v":477},{"$f":"VLOOKUP($B$3,'Data Current Rates'!$A:$AP,MATCH('BI Template_EnergyUNM'!$A17,CurrentHeader,0),FALSE)","v":2.63E-2},12.5451,477,{"$f":"VLOOKUP($B$3,'Data Proposed Rates'!$A:$AZ,MATCH('BI Template_EnergyUNM'!$A17,ProposedHeader,0),FALSE)","v":2.1600000000000001E-2},10.3032,-2.2418999999999993,-0.17870722433460071,{"$f":"G17/$G$37","v":0.10436221765780482}]
["Volumetric Base Rate Adjustment to Recover Past Tax Amounts ",{"$f":"IF($B$9=\"kWh\",$B$4,$B$5)","v":477},{"$f":"VLOOKUP($B$3,'Data Current Rates'!$A:$AP,MATCH('BI Template_EnergyUNM'!$A18,CurrentHeader,0),FALSE)","v":5.9999999999999995E-4},{"$f":"B18*C18","v":0.28619999999999995},{"$f":"B18","v":477},{"$f":"VLOOKUP($B$3,'Data Proposed Rates'!$A:$AZ,MATCH('BI Template_EnergyUNM'!$A18,ProposedHeader,0),FALSE)","v":5.0000000000000001E-4},{"$f":"E18*F18","v":0.23850000000000002},{"$f":"G18-D18","v":-4.7699999999999937E-2},{"$f":"IF(ISERROR(H18/ABS(D18)),\"N/A\",(H18/ABS(D18)))","v":-0.16666666666666646},2.4157920754121487E-3]
["Group 1 Volumetric DVA Rider (General)",null,null,null,{"$f":"B4","v":477},{"$f":"VLOOKUP($B$3,'Data Proposed Rates'!$A:$AZ,MATCH('BI Template_EnergyUNM'!$A19,ProposedHeader,0),FALSE)","v":-4.0000000000000002E-4},{"$f":"E19*F19","v":-0.1908},{"$f":"G19-D19","v":-0.1908},{"$f":"IF(ISERROR(H19/ABS(D19)),\"N/A\",(H19/ABS(D19)))","v":"N/A"},-1.9326336603297189E-3]
["Group 2 Volumetric DVA Rider ",null,null,null,{"$f":"B4","v":477},{"$f":"VLOOKUP($B$3,'Data Proposed Rates'!$A:$AZ,MATCH('BI Template_EnergyUNM'!$A20,ProposedHeader,0),FALSE)","v":-2.0000000000000001E-4},-9.5399999999999999E-2,-9.5399999999999999E-2,"N/A",-9.6631683016485943E-4]
["Sub-Total:  Distribution (excluding pass through)",null,null,{"$f":"SUM(INDIRECT(\"D15:D\"&ROW()-1))","v":53.141300000000001},null,null,{"$f":"SUM(INDIRECT(\"g15:g\"&ROW()-1))","v":45.805500000000002},{"$f":"G21-D21","v":-7.335799999999999},-0.13804329212872096,0.46396882142679741]
["Line Losses on Cost of Power (based on two-tier RPP prices)",{"$f":"B8-B4","v":43.884000000000015},{"$f":"IF(B4>B7,C13,C12)","v":9.8000000000000004E-2},{"$f":"B22*C22","v":4.300632000000002},43.884000000000015,{"$f":"IF(B4>B7,F13,F12)","v":9.8000000000000004E-2},{"$f":"E22*F22","v":4.300632000000002},0,0,4.3561562703831887E-2]
["Sub-Total:  Distribution (based on two-tier RPP prices)",null,null,{"$f":"SUM(D21,D22:D22)","v":57.441932000000001},null,null,{"$f":"SUM(G21,G22:G22)","v":50.106132000000002},-7.335799999999999,-0.127708100068779,0.50753038413062923]
["Retail Transmission Rate – Network Service Rate",{"$f":"B8","v":520.88400000000001},{"$f":"VLOOKUP($B$3,'Data Current Rates'!$A:$AP,MATCH('BI Template_EnergyUNM'!$A24,CurrentHeader,0),FALSE)","v":6.4999999999999997E-3},{"$f":"B24*C24","v":3.3857460000000001},520.88400000000001,{"$f":"VLOOKUP($B$3,'Data Proposed Rates'!$A:$AZ,MATCH('BI Template_EnergyUNM'!$A24,ProposedHeader,0),FALSE)","v":6.4000000000000003E-3},{"$f":"E24*F24","v":3.3336576000000004},{"$f":"G24-D24","v":-5.2088399999999702E-2},-1.5384615384615295E-2,3.376697531328085E-2]
["Retail Transmission Rate – Line and Transformation Connection Service Rate",{"$f":"B8","v":520.88400000000001},{"$f":"VLOOKUP($B$3,'Data Current Rates'!$A:$AP,MATCH('BI Template_EnergyUNM'!$A25,CurrentHeader,0),FALSE)","v":4.5999999999999999E-3},{"$f":"B25*C25","v":2.3960664},520.88400000000001,{"$f":"VLOOKUP($B$3,'Data Proposed Rates'!$A:$AZ,MATCH('BI Template_EnergyUNM'!$A25,ProposedHeader,0),FALSE)","v":4.7000000000000002E-3},{"$f":"E25*F25","v":2.4481548000000002},{"$f":"G25-D25","v":5.2088400000000146E-2},2.1739130434782671E-2,2.4797622495690626E-2]
["Sub-Total:  Retail Transmission ",null,null,{"$f":"SUM(D24:D25)","v":5.7818123999999997},null,null,{"$f":"SUM(G24:G25)","v":5.7818124000000006},{"$f":"G26-D26","v":0},0,5.8564597808971476E-2]
["Sub-Total:  Delivery (based on two-tier RPP prices)",null,null,{"$f":"D23+D26","v":63.223744400000001},null,null,{"$f":"G23+G26","v":55.887944400000002},{"$f":"G27-D27","v":-7.335799999999999},-0.11602919234881633,0.56609498193960073]
["Wholesale Market Service Rate (WMS) - not including CBR",{"$f":"B8","v":520.88400000000001},{"$f":"VLOOKUP($A28,'Data Pass Through'!$A:$D,2,FALSE)","v":3.0000000000000001E-3},{"$f":"B28*C28","v":1.5626520000000002},{"$f":"$B$8","v":520.88400000000001},{"$f":"VLOOKUP($A28,'Data Pass Through'!$A:$D,3,FALSE)","v":3.0000000000000001E-3},{"$f":"E28*F28","v":1.5626520000000002},{"$f":"G28-D28","v":0},0,1.5828269678100398E-2]
["Capacity Based Recovery (CBR) - Applicable for Class B Customers",{"$f":"B8","v":520.88400000000001},{"$f":"VLOOKUP($A29,'Data Pass Through'!$A:$D,2,FALSE)","v":4.0000000000000002E-4},{"$f":"B29*C29","v":0.20835360000000003},{"$f":"$B$8","v":520.88400000000001},{"$f":"VLOOKUP($A29,'Data Pass Through'!$A:$D,3,FALSE)","v":4.0000000000000002E-4},{"$f":"E29*F29","v":0.20835360000000003},0,0,2.1104359570800531E-3]
["Rural Rate Protection Charge",{"$f":"B8","v":520.88400000000001},{"$f":"VLOOKUP($A30,'Data Pass Through'!$A:$D,2,FALSE)","v":5.0000000000000001E-4},0.26044200000000001,520.88400000000001,{"$f":"VLOOKUP($A30,'Data Pass Through'!$A:$D,3,FALSE)","v":5.0000000000000001E-4},0.26044200000000001,0,0,2.6380449463500664E-3]
["Standard Supply Service – Administration Charge (if applicable)",1,{"$f":"VLOOKUP($A31,'Data Pass Through'!$A:$D,2,FALSE)","v":0.25},{"$f":"B31*C31","v":0.25},1,{"$f":"VLOOKUP($A31,'Data Pass Through'!$A:$D,3,FALSE)","v":0.25},0.25,0,0,2.5322768086081223E-3]
["Sub-Total:  Regulatory",null,null,{"$f":"SUM(D28:D31)","v":2.2814475999999999},null,null,{"$f":"SUM(G28:G31)","v":2.2814475999999999},0,0,2.3109027390138637E-2]
["Total  Electricty Charge on Two-Tier RPP ",null,null,{"$f":"SUM(D14,D21,D22,D26,D32)","v":112.25119200000003},null,null,{"$f":"SUM(G14,G21,G22,G26,G32)","v":104.91539200000003},-7.3358000000000061,-6.5351644550910457E-2,1.0626992561105206]
["     HST",null,0.13,{"$f":"D33*C34","v":14.592654960000004},null,{"$f":"C34","v":0.13},{"$f":"G33*F34","v":13.639000960000004},-0.95365400000000022,-6.5351644550910415E-2,0.13815090329436772]
["Total Electricity Charge on Two-Tier RPP (including HST)",null,null,{"$f":"SUM(D33:D34)","v":126.84384696000004},null,null,{"$f":"SUM(G33:G34)","v":118.55439296000003},-8.2894540000000063,-6.5351644550910457E-2,1.2008501594048884]
["Ontario Electricity Rebate (OER)",null,{"$f":"IF(($B$4*12)<250000,VLOOKUP(A36,'Data Pass Through'!$A$4:$C$20,2,0),0)","v":-0.189},{"$f":"D33*C36","v":-21.215475288000007},null,{"$f":"C36","v":-0.189},{"$f":"G33*F36","v":-19.829009088000006},1.386466200000001,6.5351644550910443E-2,-0.20085015940488843]
["Total Amount on Two-Tier RPP",null,null,{"$f":"SUM(D35:D36)","v":105.62837167200003},null,null,{"$f":"SUM(G35:G36)","v":98.725383872000023},-6.9029878000000053,-6.5351644550910457E-2,1]

{"sheet":"BI Template_Demand","index":22,"n_rows":34,"n_cols":10,"rows_kept":34,"cut":false,"hidden":true,"merged":[[0,0,0,9]]}
["2023 Bill Impacts (Average Consumption Level) - GSd"]
[]
["Rate Class",{"$f":"RIGHT(A1,LEN(A1)-FIND(\"- \",A1,1)-1)","v":"GSd"}]
["Monthly Consumption (kWh)",{"$f":"IF(COUNTIF(A1,\"*Low*\")>0,VLOOKUP(B3,'Data Billing Quantities'!$A:$Z,MATCH(\"Low kWh\",'Data Billing Quantities'!4:4,0),FALSE),IF(COUNTIF(A1,\"*Typical*\")>0,VLOOKUP(B3,'Data Billing Quantities'!$A:$Z,MATCH(\"Typical kWh\",'Data Billing Quantities'!4:4,0),FALSE),IF(COUNTIF(A1,\"*Average*\")>0,VLOOKUP(B3,'Data Billing Quantities'!$A:$Z,MATCH(\"Average kWh\",'Data Billing Quantities'!4:4,0),FALSE),IF(COUNTIF(A1,\"*High*\")>0,VLOOKUP(B3,'Data Billing Quantities'!$A:$Z,MATCH(\"High kWh\",'Data Billing Quantities'!4:4,0),FALSE),\"error\"))))","v":34334}]
["Peak (kW)",{"$f":"IF(COUNTIF(A1,\"*Low*\")>0,VLOOKUP(B3,'Data Billing Quantities'!$A:$Z,MATCH(\"Low kW\",'Data Billing Quantities'!4:4,0),FALSE),IF(COUNTIF(A1,\"*Typical*\")>0,VLOOKUP(B3,'Data Billing Quantities'!$A:$Z,MATCH(\"Typical kW\",'Data Billing Quantities'!4:4,0),FALSE),IF(COUNTIF(A1,\"*Average*\")>0,VLOOKUP(B3,'Data Billing Quantities'!$A:$Z,MATCH(\"Average kW\",'Data Billing Quantities'!4:4,0),FALSE),IF(COUNTIF(A1,\"*High*\")>0,VLOOKUP(B3,'Data Billing Quantities'!$A:$Z,MATCH(\"High kW\",'Data Billing Quantities'!4:4,0),FALSE),\"error\"))))","v":110}]
["Loss factor",{"$f":"VLOOKUP(B3,'Data Billing Quantities'!A:D,MATCH(A6,'Data Billing Quantities'!4:4,0),FALSE)","v":1.0609999999999999}]
["Load factor",{"$f":"B4/(B5*730)","v":0.42757160647571607}]
["Monthly Consumption (kWh) - Uplifted",{"$f":"B4*B6","v":36428.373999999996}]
["Charge determinant",{"$f":"VLOOKUP(B3,'Data Billing Quantities'!A:D,MATCH(A9,'Data Billing Quantities'!4:4,0),FALSE)","v":"kW"}]
[]
[null,"Volume","Current Rate ($)","Current Charge ($)","Volume","Proposed Rate ($)","Proposed Charge ($)","Change ($)","Change (%)","% of Total Bill "]
["Weighted Average Hourly Spot Price",{"$f":"B8","v":36428.373999999996},{"$f":"VLOOKUP($A12,'Data Pass Through'!$A:$D,2,FALSE)","v":0.11899999999999999},{"$f":"B12*C12","v":4334.9765059999991},{"$f":"B8","v":36428.373999999996},{"$f":"VLOOKUP($A12,'Data Pass Through'!$A:$D,3,FALSE)","v":0.11899999999999999},{"$f":"E12*F12","v":4334.9765059999991},{"$f":"G12-D12","v":0},{"$f":"IF(ISERROR(H12/ABS(D12)),\"N/A\",(H12/ABS(D12)))","v":0},{"$f":"G12/$G$34","v":0.5381682960680213}]
["Sub-Total:  Energy (WAHSP)",null,null,{"$f":"SUM(D12:D12)","v":4334.9765059999991},null,null,{"$f":"SUM(G12:G12)","v":4334.9765059999991},{"$f":"G13-D13","v":0},0,0.5381682960680213]
["Service Charge",1,{"$f":"VLOOKUP($B$3,'Data Current Rates'!$A:$AQ,MATCH($A14,CurrentHeader,0),FALSE)","v":112.58},{"$f":"B14*C14","v":112.58},{"$f":"B14","v":1},{"$f":"VLOOKUP($B$3,'Data Proposed Rates'!$A:$AZ,MATCH($A14,ProposedHeader,0),FALSE)","v":99.8},{"$f":"E14*F14","v":99.8},-12.780000000000001,-0.11351927518209275,1.2389731725939034E-2]
["Fixed Base Rate Adjustment to Recover Past Tax Amounts ",1,{"$f":"VLOOKUP($B$3,'Data Current Rates'!$A:$AQ,MATCH($A15,CurrentHeader,0),FALSE)","v":4.34},{"$f":"B15*C15","v":4.34},1,{"$f":"VLOOKUP($B$3,'Data Proposed Rates'!$A:$AZ,MATCH($A15,ProposedHeader,0),FALSE)","v":4.43},{"$f":"E15*F15","v":4.43},8.9999999999999858E-2,2.0737327188940061E-2,5.499650455501996E-4]
["Distribution Volumetric Charge",{"$f":"IF($B$9=\"kWh\",$B$4,$B$5)","v":110},{"$f":"VLOOKUP($B$3,'Data Current Rates'!$A:$AQ,MATCH($A16,CurrentHeader,0),FALSE)","v":19.198899999999998},{"$f":"B16*C16","v":2111.8789999999999},{"$f":"$B$5","v":110},{"$f":"VLOOKUP($B$3,'Data Proposed Rates'!$A:$AZ,MATCH($A16,ProposedHeader,0),FALSE)","v":18.417400000000001},2025.914,-85.964999999999918,{"$f":"IF(ISERROR(H16/ABS(D16)),\"N/A\",(H16/ABS(D16)))","v":-4.0705457083478704E-2},0.25150832625074199]
["Volumetric Base Rate Adjustment to Recover Past Tax Amounts ",{"$f":"IF($B$9=\"kWh\",$B$4,$B$5)","v":110},{"$f":"VLOOKUP($B$3,'Data Current Rates'!$A:$AQ,MATCH($A17,CurrentHeader,0),FALSE)","v":0.73380000000000001},80.718000000000004,{"$f":"$B$5","v":110},{"$f":"VLOOKUP($B$3,'Data Proposed Rates'!$A:$AZ,MATCH($A17,ProposedHeader,0),FALSE)","v":0.81110000000000004},89.221000000000004,8.5030000000000001,{"$f":"IF(ISERROR(H17/ABS(D17)),\"N/A\",(H17/ABS(D17)))","v":0.10534205505587353},1.1076395333867801E-2]
["Group 1 Volumetric DVA Rider (General)",null,null,null,110,{"$f":"VLOOKUP($B$3,'Data Proposed Rates'!$A:$AZ,MATCH($A18,ProposedHeader,0),FALSE)","v":-5.0900000000000001E-2},-5.5990000000000002,-5.5990000000000002,"N/A",-6.9509126185904465E-4]
["Group 1 Volumetric Deferral/Variance Account Rider (Sub-Account RSVA Wholesale Market Service Charge & RSVA Power) ",null,null,null,110,{"$f":"VLOOKUP($B$3,'Data Proposed Rates'!$A:$AZ,MATCH($A19,ProposedHeader,0),FALSE)","v":-7.0999999999999994E-2},-7.81,-7.81,"N/A",-9.6957720220023898E-4]
["Group 1 Volumetric Deferral/Variance Account Rider (Sub-Account Global Adjustment)",null,null,null,{"$f":"B4","v":34334},{"$f":"VLOOKUP($B$3,'Data Proposed Rates'!$A:$AZ,MATCH($A20,ProposedHeader,0),FALSE)","v":-6.9999999999999999E-4},-24.033799999999999,-24.033799999999999,"N/A",-2.9836907249987327E-3]
["Group 2 Volumetric DVA Rider ",null,null,null,{"$f":"B5","v":110},{"$f":"VLOOKUP($B$3,'Data Proposed Rates'!$A:$AZ,MATCH($A21,ProposedHeader,0),FALSE)","v":-4.6600000000000003E-2},{"$f":"E21*F21","v":-5.1260000000000003},{"$f":"G21-D21","v":-5.1260000000000003},{"$f":"IF(ISERROR(H21/ABS(D21)),\"N/A\",(H21/ABS(D21)))","v":"N/A"},-6.3637038904973441E-4]
["Sub-Total:  Distribution",null,null,{"$f":"SUM(INDIRECT(\"D14:D\"&ROW()-1))","v":2309.5169999999998},null,null,{"$f":"SUM(INDIRECT(\"g14:g\"&ROW()-1))","v":2176.7961999999993},-132.72080000000051,-5.7466907582841141E-2,0.2702396887779912]
["Retail Transmission Rate – Network Service Rate",{"$f":"IF($B$9=\"kWh\",$B$4,$B$5)","v":110},{"$f":"VLOOKUP($B$3,'Data Current Rates'!$A:$AQ,MATCH($A23,CurrentHeader,0),FALSE)","v":2.4327999999999999},{"$f":"B23*C23","v":267.608},110,{"$f":"VLOOKUP($B$3,'Data Proposed Rates'!$A:$AZ,MATCH($A23,ProposedHeader,0),FALSE)","v":2.4420000000000002},{"$f":"E23*F23","v":268.62},1.0120000000000005,3.7816507727721159E-3,3.3347993348915264E-2]
["Retail Transmission Rate – Line and Transformation Connection Service Rate",{"$f":"IF($B$9=\"kWh\",$B$4,$B$5)","v":110},{"$f":"VLOOKUP($B$3,'Data Current Rates'!$A:$AQ,MATCH($A24,CurrentHeader,0),FALSE)","v":1.7088000000000001},{"$f":"B24*C24","v":187.96800000000002},110,{"$f":"VLOOKUP($B$3,'Data Proposed Rates'!$A:$AZ,MATCH($A24,ProposedHeader,0),FALSE)","v":1.8695999999999999},{"$f":"E24*F24","v":205.65600000000001},17.687999999999988,9.4101123595505543E-2,2.55312892568108E-2]
["Sub-Total:  Retail Transmission ",null,null,{"$f":"SUM(D23:D24)","v":455.57600000000002},null,null,{"$f":"SUM(G23:G24)","v":474.27600000000001},18.699999999999989,4.1046938381301884E-2,5.8879282605726065E-2]
["Sub-Total:  Delivery ",null,null,{"$f":"D22+D25","v":2765.0929999999998},null,null,{"$f":"G22+G25","v":2651.0721999999992},-114.02080000000069,-4.1235792069200097E-2,0.32911897138371726]
["Wholesale Market Service Rate (WMS) - not including CBR",{"$f":"$B$8","v":36428.373999999996},{"$f":"VLOOKUP($A27,'Data Pass Through'!$A:$D,2,FALSE)","v":3.0000000000000001E-3},{"$f":"B27*C27","v":109.28512199999999},{"$f":"$B$8","v":36428.373999999996},{"$f":"VLOOKUP($A27,'Data Pass Through'!$A:$D,3,FALSE)","v":3.0000000000000001E-3},{"$f":"E27*F27","v":109.28512199999999},0,0,1.3567267968101379E-2]
["Capacity Based Recovery (CBR) - Applicable for Class B Customers",{"$f":"$B$8","v":36428.373999999996},{"$f":"VLOOKUP($A28,'Data Pass Through'!$A:$D,2,FALSE)","v":4.0000000000000002E-4},{"$f":"B28*C28","v":14.5713496},{"$f":"$B$8","v":36428.373999999996},{"$f":"VLOOKUP($A28,'Data Pass Through'!$A:$D,3,FALSE)","v":4.0000000000000002E-4},{"$f":"E28*F28","v":14.5713496},{"$f":"G28-D28","v":0},0,1.8089690624135174E-3]
["Rural Rate Protection Charge",{"$f":"$B$8","v":36428.373999999996},{"$f":"VLOOKUP($A29,'Data Pass Through'!$A:$D,2,FALSE)","v":5.0000000000000001E-4},{"$f":"B29*C29","v":18.214186999999999},{"$f":"$B$8","v":36428.373999999996},{"$f":"VLOOKUP($A29,'Data Pass Through'!$A:$D,3,FALSE)","v":5.0000000000000001E-4},{"$f":"E29*F29","v":18.214186999999999},{"$f":"G29-D29","v":0},0,2.2612113280168966E-3]
["Standard Supply Service – Administration Charge (if applicable)",1,{"$f":"VLOOKUP($A30,'Data Pass Through'!$A:$D,2,FALSE)","v":0.25},{"$f":"B30*C30","v":0.25},1,{"$f":"VLOOKUP($A30,'Data Pass Through'!$A:$D,3,FALSE)","v":0.25},{"$f":"E30*F30","v":0.25},0,0,3.1036402119085757E-5]
["Sub-Total:  Regulatory",null,null,{"$f":"SUM(D27:D30)","v":142.3206586},null,null,{"$f":"SUM(G27:G30)","v":142.3206586},0,0,1.7668484760650881E-2]
["Total Electricity Charge on Two-Tier RPP (before HST)",null,null,{"$f":"SUM(D13,D22,D25,D31)","v":7242.3901645999986},null,null,{"$f":"SUM(G13,G22,G25,G31)","v":7128.3693645999974},-114.02080000000115,-1.574353181872501E-2,0.88495575221238931]
["     HST",null,0.13,{"$f":"D32*C33","v":941.51072139799987},null,{"$f":"C33","v":0.13},{"$f":"G32*F33","v":926.68801739799972},-14.822704000000158,-1.574353181872502E-2,0.11504424778761062]
["Total Amount on WAHSP",null,null,{"$f":"SUM(D32:D33)","v":8183.9008859979986},null,null,{"$f":"SUM(G32:G33)","v":8055.0573819979973},-128.8435040000013,-1.5743531818725013E-2,1]

{"sheet":"BI_UR_Low","index":23,"n_rows":53,"n_cols":11,"rows_kept":53,"cut":false,"hidden":false,"merged":[[0,0,0,10]]}
["2023 Bill Impacts (Low Consumption Level) - UR"]
[]
["Rate Class",{"$f":"RIGHT(A1,LEN(A1)-FIND(\"- \",A1,1)-1)","v":"UR"}]
["Monthly Consumption (kWh)",{"$f":"IF(COUNTIF(A1,\"*Low*\")>0,VLOOKUP(B3,'Data Billing Quantities'!$A:$Z,MATCH(\"Low kWh\",'Data Billing Quantities'!4:4,0),FALSE),IF(COUNTIF(A1,\"*Typical*\")>0,VLOOKUP(B3,'Data Billing Quantities'!$A:$Z,MATCH(\"Typical kWh\",'Data Billing Quantities'!4:4,0),FALSE),IF(COUNTIF(A1,\"*Average*\")>0,VLOOKUP(B3,'Data Billing Quantities'!$A:$Z,MATCH(\"Average kWh\",'Data Billing Quantities'!4:4,0),FALSE),IF(COUNTIF(A1,\"*High*\")>0,VLOOKUP(B3,'Data Billing Quantities'!$A:$Z,MATCH(\"High kWh\",'Data Billing Quantities'!4:4,0),FALSE),\"error\"))))","v":340}]
["Peak (kW)",{"$f":"IF(COUNTIF(A1,\"*Low*\")>0,VLOOKUP(B3,'Data Billing Quantities'!$A:$Z,MATCH(\"Low kW\",'Data Billing Quantities'!4:4,0),FALSE),IF(COUNTIF(A1,\"*Typical*\")>0,VLOOKUP(B3,'Data Billing Quantities'!$A:$Z,MATCH(\"Typical kW\",'Data Billing Quantities'!4:4,0),FALSE),IF(COUNTIF(A1,\"*Average*\")>0,VLOOKUP(B3,'Data Billing Quantities'!$A:$Z,MATCH(\"Average kW\",'Data Billing Quantities'!4:4,0),FALSE),IF(COUNTIF(A1,\"*High*\")>0,VLOOKUP(B3,'Data Billing Quantities'!$A:$Z,MATCH(\"High kW\",'Data Billing Quantities'!4:4,0),FALSE),\"error\"))))","v":0}]
["Loss factor",{"$f":"VLOOKUP(B3,'Data Billing Quantities'!A:D,MATCH(A6,'Data Billing Quantities'!4:4,0),FALSE)","v":1.0569999999999999}]
["Commodity Threshold",{"$f":"VLOOKUP(B3,'Data Billing Quantities'!A:D,MATCH(A7,'Data Billing Quantities'!4:4,0),FALSE)","v":600}]
["Monthly Consumption (kWh) - Uplifted",{"$f":"B4*B6","v":359.38}]
["Charge determinant",{"$f":"VLOOKUP(B3,'Data Billing Quantities'!A:D,MATCH(A9,'Data Billing Quantities'!4:4,0),FALSE)","v":"kWh"}]
[]
[null,"Volume","Current Rate ($)","Current Charge ($)","Volume","Proposed Rate ($)","Proposed Charge ($)","Change ($)","Change (%)","% of Total Bill on RPP","% of Total Bill"]
["Energy First Tier",{"$f":"IF(B4>B7,B7,B4)","v":340},{"$f":"VLOOKUP($A12,'Data Pass Through'!$A:$D,2,FALSE)","v":9.8000000000000004E-2},{"$f":"B12*C12","v":33.32},{"$f":"B12","v":340},{"$f":"VLOOKUP($A12,'Data Pass Through'!$A:$D,3,FALSE)","v":9.8000000000000004E-2},{"$f":"E12*F12","v":33.32},{"$f":"G12-D12","v":0},{"$f":"IF(ISERROR(H12/ABS(D12)),\"N/A\",(H12/ABS(D12)))","v":0},{"$f":"G12/$G$47","v":0.44134586731560022}]
["Energy Second Tier",{"$f":"IF(B4>B7,(B4)-B7,0)","v":0},{"$f":"VLOOKUP($A13,'Data Pass Through'!$A:$D,2,FALSE)","v":0.115},{"$f":"B13*C13","v":0},{"$f":"B13","v":0},{"$f":"VLOOKUP($A13,'Data Pass Through'!$A:$D,3,FALSE)","v":0.115},{"$f":"E13*F13","v":0},0,"N/A",{"$f":"G13/$G$47","v":0}]
["Sub-Total:  Energy (RPP Tiered)",null,null,{"$f":"SUM(D12:D13)","v":33.32},null,null,{"$f":"SUM(G12:G13)","v":33.32},0,0,{"$f":"G14/$G$47","v":0.44134586731560022}]
["TOU-Off Peak",{"$f":"B$4*VLOOKUP($B$3,'Data Billing Quantities'!$A:$O,MATCH(BI_UR_Low!$A15,'Data Billing Quantities'!$4:$4,0),FALSE)","v":217.6},{"$f":"VLOOKUP($A15,'Data Pass Through'!$A:$D,2,FALSE)","v":8.2000000000000003E-2},{"$f":"B15*C15","v":17.8432},217.6,{"$f":"VLOOKUP($A15,'Data Pass Through'!$A:$D,3,FALSE)","v":8.2000000000000003E-2},{"$f":"E15*F15","v":17.8432},0,0,null,{"$f":"G15/$G$52","v":0.23074318120085438}]
["TOU-Mid Peak",{"$f":"B$4*VLOOKUP($B$3,'Data Billing Quantities'!$A:$O,MATCH(BI_UR_Low!$A16,'Data Billing Quantities'!$4:$4,0),FALSE)","v":61.199999999999996},{"$f":"VLOOKUP($A16,'Data Pass Through'!$A:$D,2,FALSE)","v":0.113},{"$f":"B16*C16","v":6.9155999999999995},61.199999999999996,{"$f":"VLOOKUP($A16,'Data Pass Through'!$A:$D,3,FALSE)","v":0.113},{"$f":"E16*F16","v":6.9155999999999995},0,0,null,8.9430569848044553E-2]
["TOU-On Peak",{"$f":"B$4*VLOOKUP($B$3,'Data Billing Quantities'!$A:$O,MATCH(BI_UR_Low!$A17,'Data Billing Quantities'!$4:$4,0),FALSE)","v":61.199999999999996},{"$f":"VLOOKUP($A17,'Data Pass Through'!$A:$D,2,FALSE)","v":0.17},{"$f":"B17*C17","v":10.404},61.199999999999996,{"$f":"VLOOKUP($A17,'Data Pass Through'!$A:$D,3,FALSE)","v":0.17},{"$f":"E17*F17","v":10.404},0,0,null,0.13454156525812014]
["Sub-Total:  Energy (RPP TOU)",null,null,{"$f":"SUM(D15:D17)","v":35.162800000000004},null,null,{"$f":"SUM(G15:G17)","v":35.162800000000004},0,0,{"$f":"G18/$G$47","v":0.46575499589570796},0.45471531630701911]
["Service Charge",1,{"$f":"VLOOKUP($B$3,'Data Current Rates'!$A:$AP,MATCH(BI_UR_Low!$A19,CurrentHeader,0),FALSE)","v":37.659999999999997},{"$f":"B19*C19","v":37.659999999999997},1,{"$f":"VLOOKUP($B$3,'Data Proposed Rates'!$A:$AZ,MATCH(BI_UR_Low!$A19,ProposedHeader,0),FALSE)","v":35.880000000000003},{"$f":"E19*F19","v":35.880000000000003},-1.779999999999994,-4.7265002655337077E-2,0.47525479349591043,0.46398994247033359]
["Fixed Base Rate Adjustment to Recover Past Tax Amounts ",1,{"$f":"VLOOKUP($B$3,'Data Current Rates'!$A:$AP,MATCH(BI_UR_Low!$A20,CurrentHeader,0),FALSE)","v":0.83},0.83,1,{"$f":"VLOOKUP($B$3,'Data Proposed Rates'!$A:$AZ,MATCH(BI_UR_Low!$A20,ProposedHeader,0),FALSE)","v":0.8},0.8,-2.9999999999999916E-2,-3.6144578313252913E-2,1.0596539431346945E-2,1.0345372184399857E-2]
["Group 2 Fixed DVA Rider ",null,null,null,1,{"$f":"VLOOKUP($B$3,'Data Proposed Rates'!$A:$AZ,MATCH(BI_UR_Low!$A21,ProposedHeader,0),FALSE)","v":-0.08},-0.08,-0.08,"N/A",-1.0596539431346943E-3,-1.0345372184399856E-3]
["Distribution Volumetric Charge",{"$f":"IF($B$9=\"kWh\",$B$4,$B$5)","v":340},{"$f":"VLOOKUP($B$3,'Data Current Rates'!$A:$AP,MATCH(BI_UR_Low!$A22,CurrentHeader,0),FALSE)","v":0},0,340,{"$f":"VLOOKUP($B$3,'Data Proposed Rates'!$A:$AZ,MATCH(BI_UR_Low!$A22,ProposedHeader,0),FALSE)","v":0},0,0,"N/A",0,0]
["Volumetric Base Rate Adjustment to Recover Past Tax Amounts ",{"$f":"IF($B$9=\"kWh\",$B$4,$B$5)","v":340},{"$f":"VLOOKUP($B$3,'Data Current Rates'!$A:$AP,MATCH(BI_UR_Low!$A23,CurrentHeader,0),FALSE)","v":0},0,340,{"$f":"VLOOKUP($B$3,'Data Proposed Rates'!$A:$AZ,MATCH(BI_UR_Low!$A23,ProposedHeader,0),FALSE)","v":0},0,0,"N/A",0,0]
["Group 1 Volumetric DVA Rider (General)",null,null,null,{"$f":"B4","v":340},{"$f":"VLOOKUP($B$3,'Data Proposed Rates'!$A:$AZ,MATCH(BI_UR_Low!$A24,ProposedHeader,0),FALSE)","v":-4.0000000000000002E-4},-0.13600000000000001,-0.13600000000000001,"N/A",-1.8014117033289805E-3,-1.7587132713479756E-3]
["Group 2 Volumetric DVA Rider ",null,null,null,{"$f":"B4","v":340},{"$f":"VLOOKUP($B$3,'Data Proposed Rates'!$A:$AZ,MATCH(BI_UR_Low!$A25,ProposedHeader,0),FALSE)","v":0},0,0,"N/A",0,0]
["Fair Hydro Plan - Distribution Rate Protection Savings*",null,null,{"$f":"IF(AND(B3<>\"R1\",B3<>\"R2\"),0,IF(VLOOKUP($A26,'Data Pass Through'!$A:$D,2,FALSE)=0,0,IF(SUM(D19:D20,D22:D23)<VLOOKUP($A26,'Data Pass Through'!$A:$D,2,FALSE),0,VLOOKUP($A26,'Data Pass Through'!$A:$D,2,FALSE)-SUM(D19:D20,D22:D23))))","v":0},null,null,{"$f":"IF(AND(B3<>\"R1\",B3<>\"R2\"),0,IF(VLOOKUP($A26,'Data Pass Through'!$A:$D,2,FALSE)=0,0,IF(SUM(G19:G20,G22:G23)<VLOOKUP($A26,'Data Pass Through'!$A:$D,2,FALSE),0,VLOOKUP($A26,'Data Pass Through'!$A:$D,2,FALSE)-SUM(G19:G20,G22:G23))))","v":0},0,"N/A",0,0]
["Sub-Total:  Distribution (excluding pass through)",null,null,{"$f":"SUM(INDIRECT(\"D19:D\"&ROW()-1))","v":38.489999999999995},null,null,{"$f":"SUM(INDIRECT(\"g19:g\"&ROW()-1))","v":36.463999999999999},{"$f":"G27-D27","v":-2.0259999999999962},-5.2637048584047712E-2,0.48299026728079369,0.47154206416494543]
["Smart Metering Entity Charge",1,{"$f":"VLOOKUP($A28,'Data Pass Through'!$A:$D,2,FALSE)","v":0.56999999999999995},{"$f":"B28*C28","v":0.56999999999999995},1,{"$f":"VLOOKUP($A28,'Data Pass Through'!$A:$D,3,FALSE)","v":0.56999999999999995},{"$f":"E28*F28","v":0.56999999999999995},0,0,7.550034344834697E-3,7.3710776813848966E-3]
["Line Losses on Cost of Power (based on two-tier RPP prices)",{"$f":"B8-B4","v":19.379999999999995},{"$f":"IF(B4>B7,C13,C12)","v":9.8000000000000004E-2},{"$f":"B29*C29","v":1.8992399999999996},19.379999999999995,{"$f":"IF(B4>B7,F13,F12)","v":9.8000000000000004E-2},{"$f":"E29*F29","v":1.8992399999999996},0,0,2.5156714436989205E-2,2.4560430834374473E-2]
["Line Losses on Cost of Power (based on TOU prices)",{"$f":"B8-B4","v":19.379999999999995},{"$f":"VLOOKUP($B$3,'Data Billing Quantities'!$A:$O,MATCH(BI_UR_Low!$A15,'Data Billing Quantities'!$4:$4,0),FALSE)*C15+VLOOKUP($B$3,'Data Billing Quantities'!$A:$O,MATCH(BI_UR_Low!$A16,'Data Billing Quantities'!$4:$4,0),FALSE)*C16+VLOOKUP($B$3,'Data Billing Quantities'!$A:$O,MATCH(BI_UR_Low!$A17,'Data Billing Quantities'!$4:$4,0),FALSE)*C17","v":0.10342000000000001},{"$f":"B30*C30","v":2.0042795999999998},19.379999999999995,{"$f":"VLOOKUP($B$3,'Data Billing Quantities'!$A:$O,MATCH(BI_UR_Low!$A15,'Data Billing Quantities'!$4:$4,0),FALSE)*F15+VLOOKUP($B$3,'Data Billing Quantities'!$A:$O,MATCH(BI_UR_Low!$A16,'Data Billing Quantities'!$4:$4,0),FALSE)*F16+VLOOKUP($B$3,'Data Billing Quantities'!$A:$O,MATCH(BI_UR_Low!$A17,'Data Billing Quantities'!$4:$4,0),FALSE)*F17","v":0.10342000000000001},{"$f":"E30*F30","v":2.0042795999999998},0,0,2.6548034766055346E-2,2.5918773029500086E-2]
["Sub-Total:  Distribution (based on two-tier RPP prices)",null,null,{"$f":"SUM(D27,D28:D29)","v":40.959239999999994},null,null,{"$f":"SUM(G27,G28:G29)","v":38.933239999999998},-2.0259999999999962,-4.9463808410507536E-2,0.51569701606261753,0.50347357268070481]
["Sub-Total:  Distribution (based on TOU prices)",null,null,{"$f":"SUM(D27,D28,D30)","v":41.064279599999992},null,null,{"$f":"SUM(G27,G28,G30)","v":39.038279599999996},-2.0259999999999962,-4.9337283394105778E-2,0.51708833639168372,0.50483191487583035]
["Retail Transmission Rate – Network Service Rate",{"$f":"B8","v":359.38},{"$f":"VLOOKUP($B$3,'Data Current Rates'!$A:$AP,MATCH(BI_UR_Low!$A33,CurrentHeader,0),FALSE)","v":1.06E-2},{"$f":"B33*C33","v":3.809428},359.38,{"$f":"VLOOKUP($B$3,'Data Proposed Rates'!$A:$AZ,MATCH(BI_UR_Low!$A33,ProposedHeader,0),FALSE)","v":1.0200000000000001E-2},{"$f":"E33*F33","v":3.6656760000000004},{"$f":"G33-D33","v":-0.14375199999999966},-3.7735849056603682E-2,4.8554350345677677E-2,4.7403478159277666E-2]
["Retail Transmission Rate – Line and Transformation Connection Service Rate",{"$f":"B8","v":359.38},{"$f":"VLOOKUP($B$3,'Data Current Rates'!$A:$AP,MATCH(BI_UR_Low!$A34,CurrentHeader,0),FALSE)","v":7.7000000000000002E-3},{"$f":"B34*C34","v":2.767226},359.38,{"$f":"VLOOKUP($B$3,'Data Proposed Rates'!$A:$AZ,MATCH(BI_UR_Low!$A34,ProposedHeader,0),FALSE)","v":7.4000000000000003E-3},{"$f":"E34*F34","v":2.6594120000000001},{"$f":"G34-D34","v":-0.10781399999999985},-3.8961038961038912E-2,3.5225705152746548E-2,3.4390758664573987E-2]
["Sub-Total:  Retail Transmission ",null,null,{"$f":"SUM(D33:D34)","v":6.5766539999999996},null,null,{"$f":"SUM(G33:G34)","v":6.3250880000000009},{"$f":"G35-D35","v":-0.25156599999999862},-3.8251366120218372E-2,8.3780055498424238E-2,8.179423682385166E-2]
["Sub-Total:  Delivery (based on two-tier RPP prices)",null,null,{"$f":"D31+D35","v":47.535893999999992},null,null,{"$f":"G31+G35","v":45.258327999999999},{"$f":"G36-D36","v":-2.2775659999999931},-4.7912552144280564E-2,0.5994770715610418,0.58526780950455648]
["Sub-Total:  Delivery (based on TOU prices)",null,null,{"$f":"D32+D35","v":47.64093359999999},null,null,{"$f":"G32+G35","v":45.363367599999997},{"$f":"G37-D37","v":-2.2775659999999931},-4.780691367475623E-2,0.60086839189010788,0.58662615169968202]
["Wholesale Market Service Rate (WMS) - not including CBR",{"$f":"B8","v":359.38},{"$f":"VLOOKUP($A38,'Data Pass Through'!$A:$D,2,FALSE)","v":3.0000000000000001E-3},{"$f":"B38*C38","v":1.0781400000000001},{"$f":"$B$8","v":359.38},{"$f":"VLOOKUP($A38,'Data Pass Through'!$A:$D,3,FALSE)","v":3.0000000000000001E-3},{"$f":"E38*F38","v":1.0781400000000001},0,0,1.4280691278140493E-2,1.3942199458611077E-2]
["Capacity Based Recovery (CBR) - Applicable for Class B Customers",{"$f":"B8","v":359.38},{"$f":"VLOOKUP($A39,'Data Pass Through'!$A:$D,2,FALSE)","v":4.0000000000000002E-4},{"$f":"B39*C39","v":0.14375200000000002},{"$f":"$B$8","v":359.38},{"$f":"VLOOKUP($A39,'Data Pass Through'!$A:$D,3,FALSE)","v":4.0000000000000002E-4},{"$f":"E39*F39","v":0.14375200000000002},0,0,1.9040921704187325E-3,1.8589599278148103E-3]
["Rural Rate Protection Charge",{"$f":"B8","v":359.38},{"$f":"VLOOKUP($A40,'Data Pass Through'!$A:$D,2,FALSE)","v":5.0000000000000001E-4},0.17968999999999999,359.38,{"$f":"VLOOKUP($A40,'Data Pass Through'!$A:$D,3,FALSE)","v":5.0000000000000001E-4},0.17968999999999999,0,0,2.3801152130234152E-3,2.3236999097685125E-3]
["Standard Supply Service – Administration Charge (if applicable)",1,{"$f":"VLOOKUP($A41,'Data Pass Through'!$A:$D,2,FALSE)","v":0.25},{"$f":"B41*C41","v":0.25},1,{"$f":"VLOOKUP($A41,'Data Pass Through'!$A:$D,3,FALSE)","v":0.25},0.25,0,0,3.3114185722959199E-3,3.2329288076249551E-3]
["Sub-Total:  Regulatory",null,null,{"$f":"SUM(D38:D41)","v":1.6515820000000001},null,null,{"$f":"SUM(G38:G41)","v":1.6515820000000001},0,0,2.1876317233878562E-2,2.1357788103819355E-2]
["Total  Electricty Charge on Two-Tier RPP ",null,null,{"$f":"SUM(D14,D27,D28,D29,D35,D42)","v":82.507476000000011},null,null,{"$f":"SUM(G14,G27,G28,G29,G35,G42)","v":80.229910000000004},-2.2775660000000073,-2.7604359149224333E-2,1.0626992561105206]
["     HST",null,0.13,{"$f":"D43*C44","v":10.725971880000001},null,{"$f":"C44","v":0.13},{"$f":"G43*F44","v":10.4298883},-0.29608358000000123,-2.760435914922436E-2,0.13815090329436769]
["Total Electricity Charge on Two-Tier RPP (including HST)",null,null,{"$f":"SUM(D43:D44)","v":93.233447880000014},null,null,{"$f":"SUM(G43:G44)","v":90.659798300000006},-2.5736495800000085,-2.7604359149224336E-2,1.2008501594048884]
["Ontario Electricity Rebate (OER)",null,{"$f":"IF(($B$4*12)<250000,VLOOKUP(A46,'Data Pass Through'!$A$4:$C$20,2,0),0)","v":-0.189},{"$f":"D43*C46","v":-15.593912964000003},null,{"$f":"C46","v":-0.189},{"$f":"G43*F46","v":-15.163452990000001},0.43045997400000147,2.7604359149224336E-2,-0.2008501594048884]
["Total Amount on Two-Tier RPP",null,null,{"$f":"SUM(D45:D46)","v":77.639534916000017},null,null,{"$f":"SUM(G45:G46)","v":75.496345310000009},-2.1431896060000071,-2.7604359149224333E-2,1]
["Total Electricty Charge on TOU (before HST)",null,null,{"$f":"SUM(D18,D27,D28,D30,D35,D42)","v":84.455315600000006},null,null,{"$f":"SUM(G18,G27,G28,G30,G35,G42)","v":82.177749600000013},-2.2775659999999931,-2.6967704564471402E-2,null,{"$f":"G48/$G$52","v":1.0626992561105206}]
["     HST",null,0.13,{"$f":"D48*C49","v":10.979191028000001},null,{"$f":"C49","v":0.13},{"$f":"G48*F49","v":10.683107448000001},-0.29608357999999946,-2.6967704564471437E-2,null,{"$f":"G49/$G$52","v":0.13815090329436769}]
["Total Electricity Charge on TOU (including HST)",null,null,{"$f":"SUM(D48:D49)","v":95.434506628000008},null,null,{"$f":"SUM(G48:G49)","v":92.860857048000014},-2.5736495799999943,-2.6967704564471427E-2,null,{"$f":"G50/$G$52","v":1.2008501594048884}]
["Ontario Electricity Rebate (OER)",null,{"$f":"IF(($B$4*12)<250000,VLOOKUP(A51,'Data Pass Through'!$A$4:$C$20,2,0),0)","v":-0.189},{"$f":"D48*C51","v":-15.962054648400001},null,{"$f":"C51","v":-0.189},{"$f":"G48*F51","v":-15.531594674400003},0.43045997399999791,2.6967704564471357E-2,null,{"$f":"G51/$G$52","v":-0.2008501594048884}]
["Total Amount on TOU",null,null,{"$f":"SUM(D50:D51)","v":79.47245197960001},null,null,{"$f":"SUM(G50:G51)","v":77.329262373600017},-2.1431896059999929,-2.6967704564471395E-2,null,{"$f":"G52/$G$52","v":1}]
["* Distribution rate protection applies to R1 and R2 customers"]

{"sheet":"BI_UR_Typical","index":24,"n_rows":53,"n_cols":11,"rows_kept":53,"cut":false,"hidden":false,"merged":[[0,0,0,10]]}
["2023 Bill Impacts (Typical Consumption Level) - UR"]
[]
["Rate Class",{"$f":"RIGHT(A1,LEN(A1)-FIND(\"- \",A1,1)-1)","v":"UR"}]
["Monthly Consumption (kWh)",{"$f":"IF(COUNTIF(A1,\"*Low*\")>0,VLOOKUP(B3,'Data Billing Quantities'!$A:$Z,MATCH(\"Low kWh\",'Data Billing Quantities'!4:4,0),FALSE),IF(COUNTIF(A1,\"*Typical*\")>0,VLOOKUP(B3,'Data Billing Quantities'!$A:$Z,MATCH(\"Typical kWh\",'Data Billing Quantities'!4:4,0),FALSE),IF(COUNTIF(A1,\"*Average*\")>0,VLOOKUP(B3,'Data Billing Quantities'!$A:$Z,MATCH(\"Average kWh\",'Data Billing Quantities'!4:4,0),FALSE),IF(COUNTIF(A1,\"*High*\")>0,VLOOKUP(B3,'Data Billing Quantities'!$A:$Z,MATCH(\"High kWh\",'Data Billing Quantities'!4:4,0),FALSE),\"error\"))))","v":750}]
["Peak (kW)",{"$f":"IF(COUNTIF(A1,\"*Low*\")>0,VLOOKUP(B3,'Data Billing Quantities'!$A:$Z,MATCH(\"Low kW\",'Data Billing Quantities'!4:4,0),FALSE),IF(COUNTIF(A1,\"*Typical*\")>0,VLOOKUP(B3,'Data Billing Quantities'!$A:$Z,MATCH(\"Typical kW\",'Data Billing Quantities'!4:4,0),FALSE),IF(COUNTIF(A1,\"*Average*\")>0,VLOOKUP(B3,'Data Billing Quantities'!$A:$Z,MATCH(\"Average kW\",'Data Billing Quantities'!4:4,0),FALSE),IF(COUNTIF(A1,\"*High*\")>0,VLOOKUP(B3,'Data Billing Quantities'!$A:$Z,MATCH(\"High kW\",'Data Billing Quantities'!4:4,0),FALSE),\"error\"))))","v":0}]
["Loss factor",{"$f":"VLOOKUP(B3,'Data Billing Quantities'!A:D,MATCH(A6,'Data Billing Quantities'!4:4,0),FALSE)","v":1.0569999999999999}]
["Commodity Threshold",{"$f":"VLOOKUP(B3,'Data Billing Quantities'!A:D,MATCH(A7,'Data Billing Quantities'!4:4,0),FALSE)","v":600}]
["Monthly Consumption (kWh) - Uplifted",{"$f":"B4*B6","v":792.75}]
["Charge determinant",{"$f":"VLOOKUP(B3,'Data Billing Quantities'!A:D,MATCH(A9,'Data Billing Quantities'!4:4,0),FALSE)","v":"kWh"}]
[]
[null,"Volume","Current Rate ($)","Current Charge ($)","Volume","Proposed Rate ($)","Proposed Charge ($)","Change ($)","Change (%)","% of Total Bill on RPP","% of Total Bill"]
["Energy First Tier",{"$f":"IF(B4>B7,B7,B4)","v":600},{"$f":"VLOOKUP($A12,'Data Pass Through'!$A:$D,2,FALSE)","v":9.8000000000000004E-2},{"$f":"B12*C12","v":58.800000000000004},{"$f":"B12","v":600},{"$f":"VLOOKUP($A12,'Data Pass Through'!$A:$D,3,FALSE)","v":9.8000000000000004E-2},{"$f":"E12*F12","v":58.800000000000004},{"$f":"G12-D12","v":0},{"$f":"IF(ISERROR(H12/ABS(D12)),\"N/A\",(H12/ABS(D12)))","v":0},{"$f":"G12/$G$47","v":0.46241798899247205}]
["Energy Second Tier",{"$f":"IF(B4>B7,(B4)-B7,0)","v":150},{"$f":"VLOOKUP($A13,'Data Pass Through'!$A:$D,2,FALSE)","v":0.115},{"$f":"B13*C13","v":17.25},{"$f":"B13","v":150},{"$f":"VLOOKUP($A13,'Data Pass Through'!$A:$D,3,FALSE)","v":0.115},{"$f":"E13*F13","v":17.25},0,0,{"$f":"G13/$G$47","v":0.13565833860748541}]
["Sub-Total:  Energy (RPP Tiered)",null,null,{"$f":"SUM(D12:D13)","v":76.050000000000011},null,null,{"$f":"SUM(G12:G13)","v":76.050000000000011},0,0,{"$f":"G14/$G$47","v":0.59807632759995755}]
["TOU-Off Peak",{"$f":"B$4*VLOOKUP($B$3,'Data Billing Quantities'!$A:$O,MATCH(BI_UR_Typical!$A15,'Data Billing Quantities'!$4:$4,0),FALSE)","v":480},{"$f":"VLOOKUP($A15,'Data Pass Through'!$A:$D,2,FALSE)","v":8.2000000000000003E-2},{"$f":"B15*C15","v":39.36},480,{"$f":"VLOOKUP($A15,'Data Pass Through'!$A:$D,3,FALSE)","v":8.2000000000000003E-2},{"$f":"E15*F15","v":39.36},0,0,null,{"$f":"G15/$G$52","v":0.3072180781384084}]
["TOU-Mid Peak",{"$f":"B$4*VLOOKUP($B$3,'Data Billing Quantities'!$A:$O,MATCH(BI_UR_Typical!$A16,'Data Billing Quantities'!$4:$4,0),FALSE)","v":135},{"$f":"VLOOKUP($A16,'Data Pass Through'!$A:$D,2,FALSE)","v":0.113},{"$f":"B16*C16","v":15.255000000000001},135,{"$f":"VLOOKUP($A16,'Data Pass Through'!$A:$D,3,FALSE)","v":0.113},{"$f":"E16*F16","v":15.255000000000001},0,0,null,0.1190704212906865]
["TOU-On Peak",{"$f":"B$4*VLOOKUP($B$3,'Data Billing Quantities'!$A:$O,MATCH(BI_UR_Typical!$A17,'Data Billing Quantities'!$4:$4,0),FALSE)","v":135},{"$f":"VLOOKUP($A17,'Data Pass Through'!$A:$D,2,FALSE)","v":0.17},{"$f":"B17*C17","v":22.950000000000003},135,{"$f":"VLOOKUP($A17,'Data Pass Through'!$A:$D,3,FALSE)","v":0.17},{"$f":"E17*F17","v":22.950000000000003},0,0,null,0.17913249220722749]
["Sub-Total:  Energy (RPP TOU)",null,null,{"$f":"SUM(D15:D17)","v":77.564999999999998},null,null,{"$f":"SUM(G15:G17)","v":77.564999999999998},0,0,{"$f":"G18/$G$47","v":0.60999066864287566},0.60542099163632235]
["Service Charge",1,{"$f":"VLOOKUP($B$3,'Data Current Rates'!$A:$AP,MATCH(BI_UR_Typical!$A19,CurrentHeader,0),FALSE)","v":37.659999999999997},{"$f":"B19*C19","v":37.659999999999997},1,{"$f":"VLOOKUP($B$3,'Data Proposed Rates'!$A:$AZ,MATCH(BI_UR_Typical!$A19,ProposedHeader,0),FALSE)","v":35.880000000000003},{"$f":"E19*F19","v":35.880000000000003},-1.779999999999994,-4.7265002655337077E-2,0.28216934430356966,0.28005550415665892]
["Fixed Base Rate Adjustment to Recover Past Tax Amounts ",1,{"$f":"VLOOKUP($B$3,'Data Current Rates'!$A:$AP,MATCH(BI_UR_Typical!$A20,CurrentHeader,0),FALSE)","v":0.83},0.83,1,{"$f":"VLOOKUP($B$3,'Data Proposed Rates'!$A:$AZ,MATCH(BI_UR_Typical!$A20,ProposedHeader,0),FALSE)","v":0.8},0.8,-2.9999999999999916E-2,-3.6144578313252913E-2,6.2914012107819321E-3,6.24426988086196E-3]
["Group 2 Fixed DVA Rider ",null,null,null,1,{"$f":"VLOOKUP($B$3,'Data Proposed Rates'!$A:$AZ,MATCH(BI_UR_Typical!$A21,ProposedHeader,0),FALSE)","v":-0.08},-0.08,-0.08,"N/A",-6.2914012107819319E-4,-6.2442698808619595E-4]
["Distribution Volumetric Charge",{"$f":"IF($B$9=\"kWh\",$B$4,$B$5)","v":750},{"$f":"VLOOKUP($B$3,'Data Current Rates'!$A:$AP,MATCH(BI_UR_Typical!$A22,CurrentHeader,0),FALSE)","v":0},0,750,{"$f":"VLOOKUP($B$3,'Data Proposed Rates'!$A:$AZ,MATCH(BI_UR_Typical!$A22,ProposedHeader,0),FALSE)","v":0},0,0,"N/A",0,0]
["Volumetric Base Rate Adjustment to Recover Past Tax Amounts ",{"$f":"IF($B$9=\"kWh\",$B$4,$B$5)","v":750},{"$f":"VLOOKUP($B$3,'Data Current Rates'!$A:$AP,MATCH(BI_UR_Typical!$A23,CurrentHeader,0),FALSE)","v":0},0,750,{"$f":"VLOOKUP($B$3,'Data Proposed Rates'!$A:$AZ,MATCH(BI_UR_Typical!$A23,ProposedHeader,0),FALSE)","v":0},0,0,"N/A",0,0]
["Group 1 Volumetric DVA Rider (General)",null,null,null,{"$f":"B4","v":750},{"$f":"VLOOKUP($B$3,'Data Proposed Rates'!$A:$AZ,MATCH(BI_UR_Typical!$A24,ProposedHeader,0),FALSE)","v":-4.0000000000000002E-4},-0.3,-0.3,"N/A",-2.3592754540432245E-3,-2.3416012053232346E-3]
["Group 2 Volumetric DVA Rider ",null,null,null,{"$f":"B4","v":750},{"$f":"VLOOKUP($B$3,'Data Proposed Rates'!$A:$AZ,MATCH(BI_UR_Typical!$A25,ProposedHeader,0),FALSE)","v":0},0,0,"N/A",0,0]
["Fair Hydro Plan - Distribution Rate Protection Savings*",null,null,{"$f":"IF(AND(B3<>\"R1\",B3<>\"R2\"),0,IF(VLOOKUP($A26,'Data Pass Through'!$A:$D,2,FALSE)=0,0,IF(SUM(D19:D20,D22:D23)<VLOOKUP($A26,'Data Pass Through'!$A:$D,2,FALSE),0,VLOOKUP($A26,'Data Pass Through'!$A:$D,2,FALSE)-SUM(D19:D20,D22:D23))))","v":0},null,null,{"$f":"IF(AND(B3<>\"R1\",B3<>\"R2\"),0,IF(VLOOKUP($A26,'Data Pass Through'!$A:$D,2,FALSE)=0,0,IF(SUM(G19:G20,G22:G23)<VLOOKUP($A26,'Data Pass Through'!$A:$D,2,FALSE),0,VLOOKUP($A26,'Data Pass Through'!$A:$D,2,FALSE)-SUM(G19:G20,G22:G23))))","v":0},0,"N/A",0,0]
["Sub-Total:  Distribution (excluding pass through)",null,null,{"$f":"SUM(INDIRECT(\"D19:D\"&ROW()-1))","v":38.489999999999995},null,null,{"$f":"SUM(INDIRECT(\"g19:g\"&ROW()-1))","v":36.300000000000004},{"$f":"G27-D27","v":-2.1899999999999906},-5.6897895557287373E-2,0.28547232993923022,0.28333374584411142]
["Smart Metering Entity Charge",1,{"$f":"VLOOKUP($A28,'Data Pass Through'!$A:$D,2,FALSE)","v":0.56999999999999995},{"$f":"B28*C28","v":0.56999999999999995},1,{"$f":"VLOOKUP($A28,'Data Pass Through'!$A:$D,3,FALSE)","v":0.56999999999999995},{"$f":"E28*F28","v":0.56999999999999995},0,0,4.4826233626821263E-3,4.4490422901141457E-3]
["Line Losses on Cost of Power (based on two-tier RPP prices)",{"$f":"B8-B4","v":42.75},{"$f":"IF(B4>B7,C13,C12)","v":0.115},{"$f":"B29*C29","v":4.9162499999999998},42.75,{"$f":"IF(B4>B7,F13,F12)","v":0.115},{"$f":"E29*F29","v":4.9162499999999998},0,0,3.8662626503133339E-2,3.8372989752234507E-2]
["Line Losses on Cost of Power (based on TOU prices)",{"$f":"B8-B4","v":42.75},{"$f":"VLOOKUP($B$3,'Data Billing Quantities'!$A:$O,MATCH(BI_UR_Typical!$A15,'Data Billing Quantities'!$4:$4,0),FALSE)*C15+VLOOKUP($B$3,'Data Billing Quantities'!$A:$O,MATCH(BI_UR_Typical!$A16,'Data Billing Quantities'!$4:$4,0),FALSE)*C16+VLOOKUP($B$3,'Data Billing Quantities'!$A:$O,MATCH(BI_UR_Typical!$A17,'Data Billing Quantities'!$4:$4,0),FALSE)*C17","v":0.10342000000000001},{"$f":"B30*C30","v":4.4212050000000005},42.75,{"$f":"VLOOKUP($B$3,'Data Billing Quantities'!$A:$O,MATCH(BI_UR_Typical!$A15,'Data Billing Quantities'!$4:$4,0),FALSE)*F15+VLOOKUP($B$3,'Data Billing Quantities'!$A:$O,MATCH(BI_UR_Typical!$A16,'Data Billing Quantities'!$4:$4,0),FALSE)*F16+VLOOKUP($B$3,'Data Billing Quantities'!$A:$O,MATCH(BI_UR_Typical!$A17,'Data Billing Quantities'!$4:$4,0),FALSE)*F17","v":0.10342000000000001},{"$f":"E30*F30","v":4.4212050000000005},0,0,3.476946811264392E-2,3.4508996523270379E-2]
["Sub-Total:  Distribution (based on two-tier RPP prices)",null,null,{"$f":"SUM(D27,D28:D29)","v":43.976249999999993},null,null,{"$f":"SUM(G27,G28:G29)","v":41.786250000000003},-2.1899999999999906,-4.979960774281552E-2,0.32861757980504563,0.32615577788646011]
["Sub-Total:  Distribution (based on TOU prices)",null,null,{"$f":"SUM(D27,D28,D30)","v":43.481204999999996},null,null,{"$f":"SUM(G27,G28,G30)","v":41.291205000000005},-2.1899999999999906,-5.0366589426396782E-2,0.32472442141455626,0.32229178465749597]
["Retail Transmission Rate – Network Service Rate",{"$f":"B8","v":792.75},{"$f":"VLOOKUP($B$3,'Data Current Rates'!$A:$AP,MATCH(BI_UR_Typical!$A33,CurrentHeader,0),FALSE)","v":1.06E-2},{"$f":"B33*C33","v":8.4031500000000001},792.75,{"$f":"VLOOKUP($B$3,'Data Proposed Rates'!$A:$AZ,MATCH(BI_UR_Typical!$A33,ProposedHeader,0),FALSE)","v":1.0200000000000001E-2},{"$f":"E33*F33","v":8.0860500000000002},{"$f":"G33-D33","v":-0.31709999999999994},-3.7735849056603765E-2,6.359073095055405E-2,6.3114348087679809E-2]
["Retail Transmission Rate – Line and Transformation Connection Service Rate",{"$f":"B8","v":792.75},{"$f":"VLOOKUP($B$3,'Data Current Rates'!$A:$AP,MATCH(BI_UR_Typical!$A34,CurrentHeader,0),FALSE)","v":7.7000000000000002E-3},{"$f":"B34*C34","v":6.1041750000000006},792.75,{"$f":"VLOOKUP($B$3,'Data Proposed Rates'!$A:$AZ,MATCH(BI_UR_Typical!$A34,ProposedHeader,0),FALSE)","v":7.4000000000000003E-3},{"$f":"E34*F34","v":5.8663500000000006},{"$f":"G34-D34","v":-0.23782499999999995},-3.8961038961038946E-2,4.6134451866088243E-2,4.5788840769493203E-2]
["Sub-Total:  Retail Transmission ",null,null,{"$f":"SUM(D33:D34)","v":14.507325000000002},null,null,{"$f":"SUM(G33:G34)","v":13.952400000000001},{"$f":"G35-D35","v":-0.55492500000000078},-3.8251366120218629E-2,0.1097251828166423,0.10890318885717301]
["Sub-Total:  Delivery (based on two-tier RPP prices)",null,null,{"$f":"D31+D35","v":58.483574999999995},null,null,{"$f":"G31+G35","v":55.738650000000007},{"$f":"G36-D36","v":-2.7449249999999878},-4.6934972767994916E-2,0.43834276262168798,0.43505896674363315]
["Sub-Total:  Delivery (based on TOU prices)",null,null,{"$f":"D32+D35","v":57.988529999999997},null,null,{"$f":"G32+G35","v":55.243605000000002},{"$f":"G37-D37","v":-2.744924999999995},-4.7335654137119793E-2,0.43444960423119849,0.43119497351466896]
["Wholesale Market Service Rate (WMS) - not including CBR",{"$f":"B8","v":792.75},{"$f":"VLOOKUP($A38,'Data Pass Through'!$A:$D,2,FALSE)","v":3.0000000000000001E-3},{"$f":"B38*C38","v":2.37825},{"$f":"$B$8","v":792.75},{"$f":"VLOOKUP($A38,'Data Pass Through'!$A:$D,3,FALSE)","v":3.0000000000000001E-3},{"$f":"E38*F38","v":2.37825},0,0,1.8703156161927661E-2,1.8563043555199943E-2]
["Capacity Based Recovery (CBR) - Applicable for Class B Customers",{"$f":"B8","v":792.75},{"$f":"VLOOKUP($A39,'Data Pass Through'!$A:$D,2,FALSE)","v":4.0000000000000002E-4},{"$f":"B39*C39","v":0.31709999999999999},{"$f":"$B$8","v":792.75},{"$f":"VLOOKUP($A39,'Data Pass Through'!$A:$D,3,FALSE)","v":4.0000000000000002E-4},{"$f":"E39*F39","v":0.31709999999999999},0,0,2.4937541549236884E-3,2.4750724740266591E-3]
["Rural Rate Protection Charge",{"$f":"B8","v":792.75},{"$f":"VLOOKUP($A40,'Data Pass Through'!$A:$D,2,FALSE)","v":5.0000000000000001E-4},0.39637500000000003,792.75,{"$f":"VLOOKUP($A40,'Data Pass Through'!$A:$D,3,FALSE)","v":5.0000000000000001E-4},0.39637500000000003,0,0,3.1171926936546107E-3,3.0938405925333241E-3]
["Standard Supply Service – Administration Charge (if applicable)",1,{"$f":"VLOOKUP($A41,'Data Pass Through'!$A:$D,2,FALSE)","v":0.25},{"$f":"B41*C41","v":0.25},1,{"$f":"VLOOKUP($A41,'Data Pass Through'!$A:$D,3,FALSE)","v":0.25},0.25,0,0,1.966062878369354E-3,1.9513343377693623E-3]
["Sub-Total:  Regulatory",null,null,{"$f":"SUM(D38:D41)","v":3.3417249999999998},null,null,{"$f":"SUM(G38:G41)","v":3.3417249999999998},0,0,2.6280165888875315E-2,2.6083290959529288E-2]
["Total  Electricty Charge on Two-Tier RPP ",null,null,{"$f":"SUM(D14,D27,D28,D29,D35,D42)","v":137.87530000000001},null,null,{"$f":"SUM(G14,G27,G28,G29,G35,G42)","v":135.13037500000002},-2.744924999999995,-1.9908750878511197E-2,1.0626992561105209]
["     HST",null,0.13,{"$f":"D43*C44","v":17.923789000000003},null,{"$f":"C44","v":0.13},{"$f":"G43*F44","v":17.566948750000002},-0.35684025000000119,-1.9908750878511298E-2,0.13815090329436769]
["Total Electricity Charge on Two-Tier RPP (including HST)",null,null,{"$f":"SUM(D43:D44)","v":155.79908900000001},null,null,{"$f":"SUM(G43:G44)","v":152.69732375000001},-3.1017652499999997,-1.9908750878511232E-2,1.2008501594048884]
["Ontario Electricity Rebate (OER)",null,{"$f":"IF(($B$4*12)<250000,VLOOKUP(A46,'Data Pass Through'!$A$4:$C$20,2,0),0)","v":-0.189},{"$f":"D43*C46","v":-26.058431700000003},null,{"$f":"C46","v":-0.189},{"$f":"G43*F46","v":-25.539640875000003},0.51879082499999996,1.9908750878511228E-2,-0.20085015940488843]
["Total Amount on Two-Tier RPP",null,null,{"$f":"SUM(D45:D46)","v":129.74065730000001},null,null,{"$f":"SUM(G45:G46)","v":127.15768287500001},-2.5829744250000033,-1.990875087851126E-2,1]
["Total Electricty Charge on TOU (before HST)",null,null,{"$f":"SUM(D18,D27,D28,D30,D35,D42)","v":138.89525499999999},null,null,{"$f":"SUM(G18,G27,G28,G30,G35,G42)","v":136.15033},-2.744924999999995,-1.9762554163567325E-2,null,{"$f":"G48/$G$52","v":1.0626992561105206}]
["     HST",null,0.13,{"$f":"D48*C49","v":18.056383149999998},null,{"$f":"C49","v":0.13},{"$f":"G48*F49","v":17.699542900000001},-0.35684024999999764,-1.9762554163567231E-2,null,{"$f":"G49/$G$52","v":0.13815090329436769}]
["Total Electricity Charge on TOU (including HST)",null,null,{"$f":"SUM(D48:D49)","v":156.95163814999998},null,null,{"$f":"SUM(G48:G49)","v":153.84987290000001},-3.1017652499999713,-1.9762554163567179E-2,null,{"$f":"G50/$G$52","v":1.2008501594048884}]
["Ontario Electricity Rebate (OER)",null,{"$f":"IF(($B$4*12)<250000,VLOOKUP(A51,'Data Pass Through'!$A$4:$C$20,2,0),0)","v":-0.189},{"$f":"D48*C51","v":-26.251203194999999},null,{"$f":"C51","v":-0.189},{"$f":"G48*F51","v":-25.732412369999999},0.51879082499999996,1.9762554163567359E-2,null,{"$f":"G51/$G$52","v":-0.20085015940488837}]
["Total Amount on TOU",null,null,{"$f":"SUM(D50:D51)","v":130.70043495499999},null,null,{"$f":"SUM(G50:G51)","v":128.11746053000002},-2.5829744249999749,-1.9762554163567168E-2,null,{"$f":"G52/$G$52","v":1}]
["* Distribution rate protection applies to R1 and R2 customers"]

{"sheet":"BI_UR_Avg","index":25,"n_rows":53,"n_cols":11,"rows_kept":53,"cut":false,"hidden":false,"merged":[[0,0,0,10]]}
["2023 Bill Impacts (Average Consumption Level) - UR"]
[]
["Rate Class",{"$f":"RIGHT(A1,LEN(A1)-FIND(\"- \",A1,1)-1)","v":"UR"}]
["Monthly Consumption (kWh)",{"$f":"IF(COUNTIF(A1,\"*Low*\")>0,VLOOKUP(B3,'Data Billing Quantities'!$A:$Z,MATCH(\"Low kWh\",'Data Billing Quantities'!4:4,0),FALSE),IF(COUNTIF(A1,\"*Typical*\")>0,VLOOKUP(B3,'Data Billing Quantities'!$A:$Z,MATCH(\"Typical kWh\",'Data Billing Quantities'!4:4,0),FALSE),IF(COUNTIF(A1,\"*Average*\")>0,VLOOKUP(B3,'Data Billing Quantities'!$A:$Z,MATCH(\"Average kWh\",'Data Billing Quantities'!4:4,0),FALSE),IF(COUNTIF(A1,\"*High*\")>0,VLOOKUP(B3,'Data Billing Quantities'!$A:$Z,MATCH(\"High kWh\",'Data Billing Quantities'!4:4,0),FALSE),\"error\"))))","v":690}]
["Peak (kW)",{"$f":"IF(COUNTIF(A1,\"*Low*\")>0,VLOOKUP(B3,'Data Billing Quantities'!$A:$Z,MATCH(\"Low kW\",'Data Billing Quantities'!4:4,0),FALSE),IF(COUNTIF(A1,\"*Typical*\")>0,VLOOKUP(B3,'Data Billing Quantities'!$A:$Z,MATCH(\"Typical kW\",'Data Billing Quantities'!4:4,0),FALSE),IF(COUNTIF(A1,\"*Average*\")>0,VLOOKUP(B3,'Data Billing Quantities'!$A:$Z,MATCH(\"Average kW\",'Data Billing Quantities'!4:4,0),FALSE),IF(COUNTIF(A1,\"*High*\")>0,VLOOKUP(B3,'Data Billing Quantities'!$A:$Z,MATCH(\"High kW\",'Data Billing Quantities'!4:4,0),FALSE),\"error\"))))","v":0}]
["Loss factor",{"$f":"VLOOKUP(B3,'Data Billing Quantities'!A:D,MATCH(A6,'Data Billing Quantities'!4:4,0),FALSE)","v":1.0569999999999999}]
["Commodity Threshold",{"$f":"VLOOKUP(B3,'Data Billing Quantities'!A:D,MATCH(A7,'Data Billing Quantities'!4:4,0),FALSE)","v":600}]
["Monthly Consumption (kWh) - Uplifted",{"$f":"B4*B6","v":729.32999999999993}]
["Charge determinant",{"$f":"VLOOKUP(B3,'Data Billing Quantities'!A:D,MATCH(A9,'Data Billing Quantities'!4:4,0),FALSE)","v":"kWh"}]
[]
[null,"Volume","Current Rate ($)","Current Charge ($)","Volume","Proposed Rate ($)","Proposed Charge ($)","Change ($)","Change (%)","% of Total Bill on RPP","% of Total Bill"]
["Energy First Tier",{"$f":"IF(B4>B7,B7,B4)","v":600},{"$f":"VLOOKUP($A12,'Data Pass Through'!$A:$D,2,FALSE)","v":9.8000000000000004E-2},{"$f":"B12*C12","v":58.800000000000004},{"$f":"B12","v":600},{"$f":"VLOOKUP($A12,'Data Pass Through'!$A:$D,3,FALSE)","v":9.8000000000000004E-2},{"$f":"E12*F12","v":58.800000000000004},{"$f":"G12-D12","v":0},{"$f":"IF(ISERROR(H12/ABS(D12)),\"N/A\",(H12/ABS(D12)))","v":0},{"$f":"G12/$G$47","v":0.49397572308062282}]
["Energy Second Tier",{"$f":"IF(B4>B7,(B4)-B7,0)","v":90},{"$f":"VLOOKUP($A13,'Data Pass Through'!$A:$D,2,FALSE)","v":0.115},{"$f":"B13*C13","v":10.35},{"$f":"B13","v":90},{"$f":"VLOOKUP($A13,'Data Pass Through'!$A:$D,3,FALSE)","v":0.115},{"$f":"E13*F13","v":10.35},0,0,{"$f":"G13/$G$47","v":8.694980839939534E-2}]
["Sub-Total:  Energy (RPP Tiered)",null,null,{"$f":"SUM(D12:D13)","v":69.150000000000006},null,null,{"$f":"SUM(G12:G13)","v":69.150000000000006},0,0,{"$f":"G14/$G$47","v":0.58092553148001813}]
["TOU-Off Peak",{"$f":"B$4*VLOOKUP($B$3,'Data Billing Quantities'!$A:$O,MATCH(BI_UR_Avg!$A15,'Data Billing Quantities'!$4:$4,0),FALSE)","v":441.6},{"$f":"VLOOKUP($A15,'Data Pass Through'!$A:$D,2,FALSE)","v":8.2000000000000003E-2},{"$f":"B15*C15","v":36.211200000000005},441.6,{"$f":"VLOOKUP($A15,'Data Pass Through'!$A:$D,3,FALSE)","v":8.2000000000000003E-2},{"$f":"E15*F15","v":36.211200000000005},0,0,null,{"$f":"G15/$G$52","v":0.30004712774391362}]
["TOU-Mid Peak",{"$f":"B$4*VLOOKUP($B$3,'Data Billing Quantities'!$A:$O,MATCH(BI_UR_Avg!$A16,'Data Billing Quantities'!$4:$4,0),FALSE)","v":124.19999999999999},{"$f":"VLOOKUP($A16,'Data Pass Through'!$A:$D,2,FALSE)","v":0.113},{"$f":"B16*C16","v":14.034599999999999},124.19999999999999,{"$f":"VLOOKUP($A16,'Data Pass Through'!$A:$D,3,FALSE)","v":0.113},{"$f":"E16*F16","v":14.034599999999999},0,0,null,0.11629113144647869]
["TOU-On Peak",{"$f":"B$4*VLOOKUP($B$3,'Data Billing Quantities'!$A:$O,MATCH(BI_UR_Avg!$A17,'Data Billing Quantities'!$4:$4,0),FALSE)","v":124.19999999999999},{"$f":"VLOOKUP($A17,'Data Pass Through'!$A:$D,2,FALSE)","v":0.17},{"$f":"B17*C17","v":21.114000000000001},124.19999999999999,{"$f":"VLOOKUP($A17,'Data Pass Through'!$A:$D,3,FALSE)","v":0.17},{"$f":"E17*F17","v":21.114000000000001},0,0,null,0.1749512596982423]
["Sub-Total:  Energy (RPP TOU)",null,null,{"$f":"SUM(D15:D17)","v":71.359800000000007},null,null,{"$f":"SUM(G15:G17)","v":71.359800000000007},0,0,{"$f":"G18/$G$47","v":0.59948994564436442},0.59128951888863457]
["Service Charge",1,{"$f":"VLOOKUP($B$3,'Data Current Rates'!$A:$AP,MATCH(BI_UR_Avg!$A19,CurrentHeader,0),FALSE)","v":37.659999999999997},{"$f":"B19*C19","v":37.659999999999997},1,{"$f":"VLOOKUP($B$3,'Data Proposed Rates'!$A:$AZ,MATCH(BI_UR_Avg!$A19,ProposedHeader,0),FALSE)","v":35.880000000000003},{"$f":"E19*F19","v":35.880000000000003},-1.779999999999994,-4.7265002655337077E-2,0.30142600245123718,0.29730279425845096]
["Fixed Base Rate Adjustment to Recover Past Tax Amounts ",1,{"$f":"VLOOKUP($B$3,'Data Current Rates'!$A:$AP,MATCH(BI_UR_Avg!$A20,CurrentHeader,0),FALSE)","v":0.83},0.83,1,{"$f":"VLOOKUP($B$3,'Data Proposed Rates'!$A:$AZ,MATCH(BI_UR_Avg!$A20,ProposedHeader,0),FALSE)","v":0.8},0.8,-2.9999999999999916E-2,-3.6144578313252913E-2,6.7207581371513305E-3,6.6288248441126185E-3]
["Group 2 Fixed DVA Rider ",null,null,null,1,{"$f":"VLOOKUP($B$3,'Data Proposed Rates'!$A:$AZ,MATCH(BI_UR_Avg!$A21,ProposedHeader,0),FALSE)","v":-0.08},-0.08,-0.08,"N/A",-6.7207581371513309E-4,-6.6288248441126181E-4]
["Distribution Volumetric Charge",{"$f":"IF($B$9=\"kWh\",$B$4,$B$5)","v":690},{"$f":"VLOOKUP($B$3,'Data Current Rates'!$A:$AP,MATCH(BI_UR_Avg!$A22,CurrentHeader,0),FALSE)","v":0},0,690,{"$f":"VLOOKUP($B$3,'Data Proposed Rates'!$A:$AZ,MATCH(BI_UR_Avg!$A22,ProposedHeader,0),FALSE)","v":0},0,0,"N/A",0,0]
["Volumetric Base Rate Adjustment to Recover Past Tax Amounts ",{"$f":"IF($B$9=\"kWh\",$B$4,$B$5)","v":690},{"$f":"VLOOKUP($B$3,'Data Current Rates'!$A:$AP,MATCH(BI_UR_Avg!$A23,CurrentHeader,0),FALSE)","v":0},0,690,{"$f":"VLOOKUP($B$3,'Data Proposed Rates'!$A:$AZ,MATCH(BI_UR_Avg!$A23,ProposedHeader,0),FALSE)","v":0},0,0,"N/A",0,0]
["Group 1 Volumetric DVA Rider (General)",null,null,null,{"$f":"B4","v":690},{"$f":"VLOOKUP($B$3,'Data Proposed Rates'!$A:$AZ,MATCH(BI_UR_Avg!$A24,ProposedHeader,0),FALSE)","v":-4.0000000000000002E-4},-0.27600000000000002,-0.27600000000000002,"N/A",-2.3186615573172089E-3,-2.2869445712188534E-3]
["Group 2 Volumetric DVA Rider ",null,null,null,{"$f":"B4","v":690},{"$f":"VLOOKUP($B$3,'Data Proposed Rates'!$A:$AZ,MATCH(BI_UR_Avg!$A25,ProposedHeader,0),FALSE)","v":0},0,0,"N/A",0,0]
["Fair Hydro Plan - Distribution Rate Protection Savings*",null,null,{"$f":"IF(AND(B3<>\"R1\",B3<>\"R2\"),0,IF(VLOOKUP($A26,'Data Pass Through'!$A:$D,2,FALSE)=0,0,IF(SUM(D19:D20,D22:D23)<VLOOKUP($A26,'Data Pass Through'!$A:$D,2,FALSE),0,VLOOKUP($A26,'Data Pass Through'!$A:$D,2,FALSE)-SUM(D19:D20,D22:D23))))","v":0},null,null,{"$f":"IF(AND(B3<>\"R1\",B3<>\"R2\"),0,IF(VLOOKUP($A26,'Data Pass Through'!$A:$D,2,FALSE)=0,0,IF(SUM(G19:G20,G22:G23)<VLOOKUP($A26,'Data Pass Through'!$A:$D,2,FALSE),0,VLOOKUP($A26,'Data Pass Through'!$A:$D,2,FALSE)-SUM(G19:G20,G22:G23))))","v":0},0,"N/A",0,0]
["Sub-Total:  Distribution (excluding pass through)",null,null,{"$f":"SUM(INDIRECT(\"D19:D\"&ROW()-1))","v":38.489999999999995},null,null,{"$f":"SUM(INDIRECT(\"g19:g\"&ROW()-1))","v":36.323999999999998},{"$f":"G27-D27","v":-2.1659999999999968},-5.6274356975837804E-2,0.30515602321735613,0.30098179204693343]
["Smart Metering Entity Charge",1,{"$f":"VLOOKUP($A28,'Data Pass Through'!$A:$D,2,FALSE)","v":0.56999999999999995},{"$f":"B28*C28","v":0.56999999999999995},1,{"$f":"VLOOKUP($A28,'Data Pass Through'!$A:$D,3,FALSE)","v":0.56999999999999995},{"$f":"E28*F28","v":0.56999999999999995},0,0,4.7885401727203224E-3,4.7230377014302405E-3]
["Line Losses on Cost of Power (based on two-tier RPP prices)",{"$f":"B8-B4","v":39.329999999999927},{"$f":"IF(B4>B7,C13,C12)","v":0.115},{"$f":"B29*C29","v":4.5229499999999918},39.329999999999927,{"$f":"IF(B4>B7,F13,F12)","v":0.115},{"$f":"E29*F29","v":4.5229499999999918},0,0,3.7997066270535694E-2,3.7477304160848893E-2]
["Line Losses on Cost of Power (based on TOU prices)",{"$f":"B8-B4","v":39.329999999999927},{"$f":"VLOOKUP($B$3,'Data Billing Quantities'!$A:$O,MATCH(BI_UR_Avg!$A15,'Data Billing Quantities'!$4:$4,0),FALSE)*C15+VLOOKUP($B$3,'Data Billing Quantities'!$A:$O,MATCH(BI_UR_Avg!$A16,'Data Billing Quantities'!$4:$4,0),FALSE)*C16+VLOOKUP($B$3,'Data Billing Quantities'!$A:$O,MATCH(BI_UR_Avg!$A17,'Data Billing Quantities'!$4:$4,0),FALSE)*C17","v":0.10342000000000001},{"$f":"B30*C30","v":4.0675085999999929},39.329999999999927,{"$f":"VLOOKUP($B$3,'Data Billing Quantities'!$A:$O,MATCH(BI_UR_Avg!$A15,'Data Billing Quantities'!$4:$4,0),FALSE)*F15+VLOOKUP($B$3,'Data Billing Quantities'!$A:$O,MATCH(BI_UR_Avg!$A16,'Data Billing Quantities'!$4:$4,0),FALSE)*F16+VLOOKUP($B$3,'Data Billing Quantities'!$A:$O,MATCH(BI_UR_Avg!$A17,'Data Billing Quantities'!$4:$4,0),FALSE)*F17","v":0.10342000000000001},{"$f":"E30*F30","v":4.0675085999999929},0,0,3.417092690172871E-2,3.3703502576652111E-2]
["Sub-Total:  Distribution (based on two-tier RPP prices)",null,null,{"$f":"SUM(D27,D28:D29)","v":43.58294999999999},null,null,{"$f":"SUM(G27,G28:G29)","v":41.416949999999993},-2.1659999999999968,-4.9698333866798769E-2,0.34794162966061215,0.34318213390921259]
["Sub-Total:  Distribution (based on TOU prices)",null,null,{"$f":"SUM(D27,D28,D30)","v":43.127508599999985},null,null,{"$f":"SUM(G27,G28,G30)","v":40.961508599999988},-2.1659999999999968,-5.0223165453151114E-2,0.34411549029180516,0.33940833232501577]
["Retail Transmission Rate – Network Service Rate",{"$f":"B8","v":729.32999999999993},{"$f":"VLOOKUP($B$3,'Data Current Rates'!$A:$AP,MATCH(BI_UR_Avg!$A33,CurrentHeader,0),FALSE)","v":1.06E-2},{"$f":"B33*C33","v":7.7308979999999989},729.32999999999993,{"$f":"VLOOKUP($B$3,'Data Proposed Rates'!$A:$AZ,MATCH(BI_UR_Avg!$A33,ProposedHeader,0),FALSE)","v":1.0200000000000001E-2},{"$f":"E33*F33","v":7.4391660000000002},{"$f":"G33-D33","v":-0.29173199999999877},-3.7735849056603619E-2,6.2496044285149391E-2,6.1641160500347368E-2]
["Retail Transmission Rate – Line and Transformation Connection Service Rate",{"$f":"B8","v":729.32999999999993},{"$f":"VLOOKUP($B$3,'Data Current Rates'!$A:$AP,MATCH(BI_UR_Avg!$A34,CurrentHeader,0),FALSE)","v":7.7000000000000002E-3},{"$f":"B34*C34","v":5.6158409999999996},729.32999999999993,{"$f":"VLOOKUP($B$3,'Data Proposed Rates'!$A:$AZ,MATCH(BI_UR_Avg!$A34,ProposedHeader,0),FALSE)","v":7.4000000000000003E-3},{"$f":"E34*F34","v":5.3970419999999999},{"$f":"G34-D34","v":-0.21879899999999974},-3.8961038961038919E-2,4.5340267422559359E-2,4.4720057617899066E-2]
["Sub-Total:  Retail Transmission ",null,null,{"$f":"SUM(D33:D34)","v":13.346738999999999},null,null,{"$f":"SUM(G33:G34)","v":12.836207999999999},{"$f":"G35-D35","v":-0.51053100000000029},-3.8251366120218601E-2,0.10783631170770874,0.10636121811824642]
["Sub-Total:  Delivery (based on two-tier RPP prices)",null,null,{"$f":"D31+D35","v":56.929688999999989},null,null,{"$f":"G31+G35","v":54.253157999999992},{"$f":"G36-D36","v":-2.6765309999999971},-4.7014678053133183E-2,0.45577794136832095,0.44954335202745899]
["Sub-Total:  Delivery (based on TOU prices)",null,null,{"$f":"D32+D35","v":56.474247599999984},null,null,{"$f":"G32+G35","v":53.797716599999987},{"$f":"G37-D37","v":-2.6765309999999971},-4.7393831945447606E-2,0.4519518019995139,0.44576955044326216]
["Wholesale Market Service Rate (WMS) - not including CBR",{"$f":"B8","v":729.32999999999993},{"$f":"VLOOKUP($A38,'Data Pass Through'!$A:$D,2,FALSE)","v":3.0000000000000001E-3},{"$f":"B38*C38","v":2.1879899999999997},{"$f":"$B$8","v":729.32999999999993},{"$f":"VLOOKUP($A38,'Data Pass Through'!$A:$D,3,FALSE)","v":3.0000000000000001E-3},{"$f":"E38*F38","v":2.1879899999999997},0,0,1.838118949563217E-2,1.8129753088337457E-2]
["Capacity Based Recovery (CBR) - Applicable for Class B Customers",{"$f":"B8","v":729.32999999999993},{"$f":"VLOOKUP($A39,'Data Pass Through'!$A:$D,2,FALSE)","v":4.0000000000000002E-4},{"$f":"B39*C39","v":0.29173199999999999},{"$f":"$B$8","v":729.32999999999993},{"$f":"VLOOKUP($A39,'Data Pass Through'!$A:$D,3,FALSE)","v":4.0000000000000002E-4},{"$f":"E39*F39","v":0.29173199999999999},0,0,2.4508252660842898E-3,2.4173004117783278E-3]
["Rural Rate Protection Charge",{"$f":"B8","v":729.32999999999993},{"$f":"VLOOKUP($A40,'Data Pass Through'!$A:$D,2,FALSE)","v":5.0000000000000001E-4},0.36466499999999996,729.32999999999993,{"$f":"VLOOKUP($A40,'Data Pass Through'!$A:$D,3,FALSE)","v":5.0000000000000001E-4},0.36466499999999996,0,0,3.0635315826053619E-3,3.0216255147229097E-3]
["Standard Supply Service – Administration Charge (if applicable)",1,{"$f":"VLOOKUP($A41,'Data Pass Through'!$A:$D,2,FALSE)","v":0.25},{"$f":"B41*C41","v":0.25},1,{"$f":"VLOOKUP($A41,'Data Pass Through'!$A:$D,3,FALSE)","v":0.25},0.25,0,0,2.1002369178597909E-3,2.0715077637851933E-3]
["Sub-Total:  Regulatory",null,null,{"$f":"SUM(D38:D41)","v":3.0943869999999998},null,null,{"$f":"SUM(G38:G41)","v":3.0943869999999998},0,0,2.5995783262181615E-2,2.564018677862389E-2]
["Total  Electricty Charge on Two-Tier RPP ",null,null,{"$f":"SUM(D14,D27,D28,D29,D35,D42)","v":129.17407599999999},null,null,{"$f":"SUM(G14,G27,G28,G29,G35,G42)","v":126.49754499999999},-2.6765309999999971,-2.0720341750305977E-2,1.0626992561105206]
["     HST",null,0.13,{"$f":"D43*C44","v":16.79262988},null,{"$f":"C44","v":0.13},{"$f":"G43*F44","v":16.444680849999997},-0.34794903000000232,-2.0720341750306136E-2,0.13815090329436766]
["Total Electricity Charge on Two-Tier RPP (including HST)",null,null,{"$f":"SUM(D43:D44)","v":145.96670587999998},null,null,{"$f":"SUM(G43:G44)","v":142.94222585},-3.0244800299999781,-2.0720341750305852E-2,1.2008501594048884]
["Ontario Electricity Rebate (OER)",null,{"$f":"IF(($B$4*12)<250000,VLOOKUP(A46,'Data Pass Through'!$A$4:$C$20,2,0),0)","v":-0.189},{"$f":"D43*C46","v":-24.413900363999996},null,{"$f":"C46","v":-0.189},{"$f":"G43*F46","v":-23.908036005},0.50586435899999671,2.0720341750305866E-2,-0.2008501594048884]
["Total Amount on Two-Tier RPP",null,null,{"$f":"SUM(D45:D46)","v":121.55280551599998},null,null,{"$f":"SUM(G45:G46)","v":119.034189845},-2.5186156709999779,-2.0720341750305821E-2,1]
["Total Electricty Charge on TOU (before HST)",null,null,{"$f":"SUM(D18,D27,D28,D30,D35,D42)","v":130.9284346},null,null,{"$f":"SUM(G18,G27,G28,G30,G35,G42)","v":128.25190359999999},-2.6765310000000113,-2.0442702214970278E-2,null,{"$f":"G48/$G$52","v":1.0626992561105206}]
["     HST",null,0.13,{"$f":"D48*C49","v":17.020696498},null,{"$f":"C49","v":0.13},{"$f":"G48*F49","v":16.672747468000001},-0.34794902999999877,-2.0442702214970122E-2,null,{"$f":"G49/$G$52","v":0.13815090329436769}]
["Total Electricity Charge on TOU (including HST)",null,null,{"$f":"SUM(D48:D49)","v":147.94913109800001},null,null,{"$f":"SUM(G48:G49)","v":144.924651068},-3.0244800300000065,-2.0442702214970236E-2,null,{"$f":"G50/$G$52","v":1.2008501594048884}]
["Ontario Electricity Rebate (OER)",null,{"$f":"IF(($B$4*12)<250000,VLOOKUP(A51,'Data Pass Through'!$A$4:$C$20,2,0),0)","v":-0.189},{"$f":"D48*C51","v":-24.745474139400002},null,{"$f":"C51","v":-0.189},{"$f":"G48*F51","v":-24.239609780399999},0.50586435900000382,2.0442702214970344E-2,null,{"$f":"G51/$G$52","v":-0.2008501594048884}]
["Total Amount on TOU",null,null,{"$f":"SUM(D50:D51)","v":123.20365695860001},null,null,{"$f":"SUM(G50:G51)","v":120.6850412876},-2.5186156710000063,-2.0442702214970243E-2,null,{"$f":"G52/$G$52","v":1}]
["* Distribution rate protection applies to R1 and R2 customers"]

{"sheet":"BI_UR_High","index":26,"n_rows":53,"n_cols":11,"rows_kept":53,"cut":false,"hidden":false,"merged":[[0,0,0,10]]}
["2023 Bill Impacts (High Consumption Level) - UR"]
[]
["Rate Class",{"$f":"RIGHT(A1,LEN(A1)-FIND(\"- \",A1,1)-1)","v":"UR"}]
["Monthly Consumption (kWh)",{"$f":"IF(COUNTIF(A1,\"*Low*\")>0,VLOOKUP(B3,'Data Billing Quantities'!$A:$Z,MATCH(\"Low kWh\",'Data Billing Quantities'!4:4,0),FALSE),IF(COUNTIF(A1,\"*Typical*\")>0,VLOOKUP(B3,'Data Billing Quantities'!$A:$Z,MATCH(\"Typical kWh\",'Data Billing Quantities'!4:4,0),FALSE),IF(COUNTIF(A1,\"*Average*\")>0,VLOOKUP(B3,'Data Billing Quantities'!$A:$Z,MATCH(\"Average kWh\",'Data Billing Quantities'!4:4,0),FALSE),IF(COUNTIF(A1,\"*High*\")>0,VLOOKUP(B3,'Data Billing Quantities'!$A:$Z,MATCH(\"High kWh\",'Data Billing Quantities'!4:4,0),FALSE),\"error\"))))","v":1260}]
["Peak (kW)",{"$f":"IF(COUNTIF(A1,\"*Low*\")>0,VLOOKUP(B3,'Data Billing Quantities'!$A:$Z,MATCH(\"Low kW\",'Data Billing Quantities'!4:4,0),FALSE),IF(COUNTIF(A1,\"*Typical*\")>0,VLOOKUP(B3,'Data Billing Quantities'!$A:$Z,MATCH(\"Typical kW\",'Data Billing Quantities'!4:4,0),FALSE),IF(COUNTIF(A1,\"*Average*\")>0,VLOOKUP(B3,'Data Billing Quantities'!$A:$Z,MATCH(\"Average kW\",'Data Billing Quantities'!4:4,0),FALSE),IF(COUNTIF(A1,\"*High*\")>0,VLOOKUP(B3,'Data Billing Quantities'!$A:$Z,MATCH(\"High kW\",'Data Billing Quantities'!4:4,0),FALSE),\"error\"))))","v":0}]
["Loss factor",{"$f":"VLOOKUP(B3,'Data Billing Quantities'!A:D,MATCH(A6,'Data Billing Quantities'!4:4,0),FALSE)","v":1.0569999999999999}]
["Commodity Threshold",{"$f":"VLOOKUP(B3,'Data Billing Quantities'!A:D,MATCH(A7,'Data Billing Quantities'!4:4,0),FALSE)","v":600}]
["Monthly Consumption (kWh) - Uplifted",{"$f":"B4*B6","v":1331.82}]
["Charge determinant",{"$f":"VLOOKUP(B3,'Data Billing Quantities'!A:D,MATCH(A9,'Data Billing Quantities'!4:4,0),FALSE)","v":"kWh"}]
[]
[null,"Volume","Current Rate ($)","Current Charge ($)","Volume","Proposed Rate ($)","Proposed Charge ($)","Change ($)","Change (%)","% of Total Bill on RPP","% of Total Bill"]
["Energy First Tier",{"$f":"IF(B4>B7,B7,B4)","v":600},{"$f":"VLOOKUP($A12,'Data Pass Through'!$A:$D,2,FALSE)","v":9.8000000000000004E-2},{"$f":"B12*C12","v":58.800000000000004},{"$f":"B12","v":600},{"$f":"VLOOKUP($A12,'Data Pass Through'!$A:$D,3,FALSE)","v":9.8000000000000004E-2},{"$f":"E12*F12","v":58.800000000000004},{"$f":"G12-D12","v":0},{"$f":"IF(ISERROR(H12/ABS(D12)),\"N/A\",(H12/ABS(D12)))","v":0},{"$f":"G12/$G$47","v":0.29968292685514808}]
["Energy Second Tier",{"$f":"IF(B4>B7,(B4)-B7,0)","v":660},{"$f":"VLOOKUP($A13,'Data Pass Through'!$A:$D,2,FALSE)","v":0.115},{"$f":"B13*C13","v":75.900000000000006},{"$f":"B13","v":660},{"$f":"VLOOKUP($A13,'Data Pass Through'!$A:$D,3,FALSE)","v":0.115},{"$f":"E13*F13","v":75.900000000000006},0,0,{"$f":"G13/$G$47","v":0.38683561476710443}]
["Sub-Total:  Energy (RPP Tiered)",null,null,{"$f":"SUM(D12:D13)","v":134.70000000000002},null,null,{"$f":"SUM(G12:G13)","v":134.70000000000002},0,0,{"$f":"G14/$G$47","v":0.68651854162225256}]
["TOU-Off Peak",{"$f":"B$4*VLOOKUP($B$3,'Data Billing Quantities'!$A:$O,MATCH(BI_UR_High!$A15,'Data Billing Quantities'!$4:$4,0),FALSE)","v":806.4},{"$f":"VLOOKUP($A15,'Data Pass Through'!$A:$D,2,FALSE)","v":8.2000000000000003E-2},{"$f":"B15*C15","v":66.124800000000008},806.4,{"$f":"VLOOKUP($A15,'Data Pass Through'!$A:$D,3,FALSE)","v":8.2000000000000003E-2},{"$f":"E15*F15","v":66.124800000000008},0,0,null,{"$f":"G15/$G$52","v":0.34567282479026096}]
["TOU-Mid Peak",{"$f":"B$4*VLOOKUP($B$3,'Data Billing Quantities'!$A:$O,MATCH(BI_UR_High!$A16,'Data Billing Quantities'!$4:$4,0),FALSE)","v":226.79999999999998},{"$f":"VLOOKUP($A16,'Data Pass Through'!$A:$D,2,FALSE)","v":0.113},{"$f":"B16*C16","v":25.628399999999999},226.79999999999998,{"$f":"VLOOKUP($A16,'Data Pass Through'!$A:$D,3,FALSE)","v":0.113},{"$f":"E16*F16","v":25.628399999999999},0,0,null,0.13397456662031074]
["TOU-On Peak",{"$f":"B$4*VLOOKUP($B$3,'Data Billing Quantities'!$A:$O,MATCH(BI_UR_High!$A17,'Data Billing Quantities'!$4:$4,0),FALSE)","v":226.79999999999998},{"$f":"VLOOKUP($A17,'Data Pass Through'!$A:$D,2,FALSE)","v":0.17},{"$f":"B17*C17","v":38.555999999999997},226.79999999999998,{"$f":"VLOOKUP($A17,'Data Pass Through'!$A:$D,3,FALSE)","v":0.17},{"$f":"E17*F17","v":38.555999999999997},0,0,null,0.20155465774737011]
["Sub-Total:  Energy (RPP TOU)",null,null,{"$f":"SUM(D15:D17)","v":130.3092},null,null,{"$f":"SUM(G15:G17)","v":130.3092},0,0,{"$f":"G18/$G$47","v":0.66414017775770173},0.6812020491579418]
["Service Charge",1,{"$f":"VLOOKUP($B$3,'Data Current Rates'!$A:$AP,MATCH(BI_UR_High!$A19,CurrentHeader,0),FALSE)","v":37.659999999999997},{"$f":"B19*C19","v":37.659999999999997},1,{"$f":"VLOOKUP($B$3,'Data Proposed Rates'!$A:$AZ,MATCH(BI_UR_High!$A19,ProposedHeader,0),FALSE)","v":35.880000000000003},{"$f":"E19*F19","v":35.880000000000003},-1.779999999999994,-4.7265002655337077E-2,0.18286774516263118,0.18756564788815336]
["Fixed Base Rate Adjustment to Recover Past Tax Amounts ",1,{"$f":"VLOOKUP($B$3,'Data Current Rates'!$A:$AP,MATCH(BI_UR_High!$A20,CurrentHeader,0),FALSE)","v":0.83},0.83,1,{"$f":"VLOOKUP($B$3,'Data Proposed Rates'!$A:$AZ,MATCH(BI_UR_High!$A20,ProposedHeader,0),FALSE)","v":0.8},0.8,-2.9999999999999916E-2,-3.6144578313252913E-2,4.0773187327231035E-3,4.1820657277180234E-3]
["Group 2 Fixed DVA Rider ",null,null,null,1,{"$f":"VLOOKUP($B$3,'Data Proposed Rates'!$A:$AZ,MATCH(BI_UR_High!$A21,ProposedHeader,0),FALSE)","v":-0.08},-0.08,-0.08,"N/A",-4.077318732723103E-4,-4.1820657277180233E-4]
["Distribution Volumetric Charge",{"$f":"IF($B$9=\"kWh\",$B$4,$B$5)","v":1260},{"$f":"VLOOKUP($B$3,'Data Current Rates'!$A:$AP,MATCH(BI_UR_High!$A22,CurrentHeader,0),FALSE)","v":0},0,1260,{"$f":"VLOOKUP($B$3,'Data Proposed Rates'!$A:$AZ,MATCH(BI_UR_High!$A22,ProposedHeader,0),FALSE)","v":0},0,0,"N/A",0,0]
["Volumetric Base Rate Adjustment to Recover Past Tax Amounts ",{"$f":"IF($B$9=\"kWh\",$B$4,$B$5)","v":1260},{"$f":"VLOOKUP($B$3,'Data Current Rates'!$A:$AP,MATCH(BI_UR_High!$A23,CurrentHeader,0),FALSE)","v":0},0,1260,{"$f":"VLOOKUP($B$3,'Data Proposed Rates'!$A:$AZ,MATCH(BI_UR_High!$A23,ProposedHeader,0),FALSE)","v":0},0,0,"N/A",0,0]
["Group 1 Volumetric DVA Rider (General)",null,null,null,{"$f":"B4","v":1260},{"$f":"VLOOKUP($B$3,'Data Proposed Rates'!$A:$AZ,MATCH(BI_UR_High!$A24,ProposedHeader,0),FALSE)","v":-4.0000000000000002E-4},-0.504,-0.504,"N/A",-2.5687108016155548E-3,-2.6347014084623548E-3]
["Group 2 Volumetric DVA Rider ",null,null,null,{"$f":"B4","v":1260},{"$f":"VLOOKUP($B$3,'Data Proposed Rates'!$A:$AZ,MATCH(BI_UR_High!$A25,ProposedHeader,0),FALSE)","v":0},0,0,"N/A",0,0]
["Fair Hydro Plan - Distribution Rate Protection Savings*",null,null,{"$f":"IF(AND(B3<>\"R1\",B3<>\"R2\"),0,IF(VLOOKUP($A26,'Data Pass Through'!$A:$D,2,FALSE)=0,0,IF(SUM(D19:D20,D22:D23)<VLOOKUP($A26,'Data Pass Through'!$A:$D,2,FALSE),0,VLOOKUP($A26,'Data Pass Through'!$A:$D,2,FALSE)-SUM(D19:D20,D22:D23))))","v":0},null,null,{"$f":"IF(AND(B3<>\"R1\",B3<>\"R2\"),0,IF(VLOOKUP($A26,'Data Pass Through'!$A:$D,2,FALSE)=0,0,IF(SUM(G19:G20,G22:G23)<VLOOKUP($A26,'Data Pass Through'!$A:$D,2,FALSE),0,VLOOKUP($A26,'Data Pass Through'!$A:$D,2,FALSE)-SUM(G19:G20,G22:G23))))","v":0},0,"N/A",0,0]
["Sub-Total:  Distribution (excluding pass through)",null,null,{"$f":"SUM(INDIRECT(\"D19:D\"&ROW()-1))","v":38.489999999999995},null,null,{"$f":"SUM(INDIRECT(\"g19:g\"&ROW()-1))","v":36.096000000000004},{"$f":"G27-D27","v":-2.3939999999999912},-6.2197973499610072E-2,0.18396862122046642,0.18869480563463722]
["Smart Metering Entity Charge",1,{"$f":"VLOOKUP($A28,'Data Pass Through'!$A:$D,2,FALSE)","v":0.56999999999999995},{"$f":"B28*C28","v":0.56999999999999995},1,{"$f":"VLOOKUP($A28,'Data Pass Through'!$A:$D,3,FALSE)","v":0.56999999999999995},{"$f":"E28*F28","v":0.56999999999999995},0,0,2.9050895970652107E-3,2.9797218309990914E-3]
["Line Losses on Cost of Power (based on two-tier RPP prices)",{"$f":"B8-B4","v":71.819999999999936},{"$f":"IF(B4>B7,C13,C12)","v":0.115},{"$f":"B29*C29","v":8.2592999999999925},71.819999999999936,{"$f":"IF(B4>B7,F13,F12)","v":0.115},{"$f":"E29*F29","v":8.2592999999999925},0,0,4.2094748261474871E-2,4.3176169331176795E-2]
["Line Losses on Cost of Power (based on TOU prices)",{"$f":"B8-B4","v":71.819999999999936},{"$f":"VLOOKUP($B$3,'Data Billing Quantities'!$A:$O,MATCH(BI_UR_High!$A15,'Data Billing Quantities'!$4:$4,0),FALSE)*C15+VLOOKUP($B$3,'Data Billing Quantities'!$A:$O,MATCH(BI_UR_High!$A16,'Data Billing Quantities'!$4:$4,0),FALSE)*C16+VLOOKUP($B$3,'Data Billing Quantities'!$A:$O,MATCH(BI_UR_High!$A17,'Data Billing Quantities'!$4:$4,0),FALSE)*C17","v":0.10342000000000001},{"$f":"B30*C30","v":7.4276243999999947},71.819999999999936,{"$f":"VLOOKUP($B$3,'Data Billing Quantities'!$A:$O,MATCH(BI_UR_High!$A15,'Data Billing Quantities'!$4:$4,0),FALSE)*F15+VLOOKUP($B$3,'Data Billing Quantities'!$A:$O,MATCH(BI_UR_High!$A16,'Data Billing Quantities'!$4:$4,0),FALSE)*F16+VLOOKUP($B$3,'Data Billing Quantities'!$A:$O,MATCH(BI_UR_High!$A17,'Data Billing Quantities'!$4:$4,0),FALSE)*F17","v":0.10342000000000001},{"$f":"E30*F30","v":7.4276243999999947},0,0,3.7855990132188967E-2,3.8828516802002652E-2]
["Sub-Total:  Distribution (based on two-tier RPP prices)",null,null,{"$f":"SUM(D27,D28:D29)","v":47.319299999999984},null,null,{"$f":"SUM(G27,G28:G29)","v":44.925299999999993},-2.3939999999999912,-5.0592464385567665E-2,0.22896845907900648,0.23485069679681309]
["Sub-Total:  Distribution (based on TOU prices)",null,null,{"$f":"SUM(D27,D28,D30)","v":46.487624399999987},null,null,{"$f":"SUM(G27,G28,G30)","v":44.093624399999996},-2.3939999999999912,-5.1497576632459456E-2,0.22472970094972058,0.23050304426763896]
["Retail Transmission Rate – Network Service Rate",{"$f":"B8","v":1331.82},{"$f":"VLOOKUP($B$3,'Data Current Rates'!$A:$AP,MATCH(BI_UR_High!$A33,CurrentHeader,0),FALSE)","v":1.06E-2},{"$f":"B33*C33","v":14.117291999999999},1331.82,{"$f":"VLOOKUP($B$3,'Data Proposed Rates'!$A:$AZ,MATCH(BI_UR_High!$A33,ProposedHeader,0),FALSE)","v":1.0200000000000001E-2},{"$f":"E33*F33","v":13.584564},{"$f":"G33-D33","v":-0.53272799999999876},-3.7735849056603689E-2,6.9235746591344863E-2,7.1014424412990079E-2]
["Retail Transmission Rate – Line and Transformation Connection Service Rate",{"$f":"B8","v":1331.82},{"$f":"VLOOKUP($B$3,'Data Current Rates'!$A:$AP,MATCH(BI_UR_High!$A34,CurrentHeader,0),FALSE)","v":7.7000000000000002E-3},{"$f":"B34*C34","v":10.255013999999999},1331.82,{"$f":"VLOOKUP($B$3,'Data Proposed Rates'!$A:$AZ,MATCH(BI_UR_High!$A34,ProposedHeader,0),FALSE)","v":7.4000000000000003E-3},{"$f":"E34*F34","v":9.8554680000000001},{"$f":"G34-D34","v":-0.39954599999999907},-3.896103896103887E-2,5.0229855370191367E-2,5.1520268691777116E-2]
["Sub-Total:  Retail Transmission ",null,null,{"$f":"SUM(D33:D34)","v":24.372305999999998},null,null,{"$f":"SUM(G33:G34)","v":23.440032000000002},{"$f":"G35-D35","v":-0.93227399999999605},-3.825136612021842E-2,0.11946560196153624,0.1225346931047672]
["Sub-Total:  Delivery (based on two-tier RPP prices)",null,null,{"$f":"D31+D35","v":71.691605999999979},null,null,{"$f":"G31+G35","v":68.365331999999995},{"$f":"G36-D36","v":-3.3262739999999837},-4.6396979864002277E-2,0.3484340610405427,0.35738538990158031]
["Sub-Total:  Delivery (based on TOU prices)",null,null,{"$f":"D32+D35","v":70.859930399999982},null,null,{"$f":"G32+G35","v":67.533656399999998},{"$f":"G37-D37","v":-3.3262739999999837},-4.6941536369332709E-2,0.34419530291125683,0.35303773737240618]
["Wholesale Market Service Rate (WMS) - not including CBR",{"$f":"B8","v":1331.82},{"$f":"VLOOKUP($A38,'Data Pass Through'!$A:$D,2,FALSE)","v":3.0000000000000001E-3},{"$f":"B38*C38","v":3.99546},{"$f":"$B$8","v":1331.82},{"$f":"VLOOKUP($A38,'Data Pass Through'!$A:$D,3,FALSE)","v":3.0000000000000001E-3},{"$f":"E38*F38","v":3.99546},0,0,2.036345487980731E-2,2.0886595415585317E-2]
["Capacity Based Recovery (CBR) - Applicable for Class B Customers",{"$f":"B8","v":1331.82},{"$f":"VLOOKUP($A39,'Data Pass Through'!$A:$D,2,FALSE)","v":4.0000000000000002E-4},{"$f":"B39*C39","v":0.53272799999999998},{"$f":"$B$8","v":1331.82},{"$f":"VLOOKUP($A39,'Data Pass Through'!$A:$D,3,FALSE)","v":4.0000000000000002E-4},{"$f":"E39*F39","v":0.53272799999999998},0,0,2.7151273173076414E-3,2.7848793887447088E-3]
["Rural Rate Protection Charge",{"$f":"B8","v":1331.82},{"$f":"VLOOKUP($A40,'Data Pass Through'!$A:$D,2,FALSE)","v":5.0000000000000001E-4},0.66591,1331.82,{"$f":"VLOOKUP($A40,'Data Pass Through'!$A:$D,3,FALSE)","v":5.0000000000000001E-4},0.66591,0,0,3.3939091466345518E-3,3.481099235930886E-3]
["Standard Supply Service – Administration Charge (if applicable)",1,{"$f":"VLOOKUP($A41,'Data Pass Through'!$A:$D,2,FALSE)","v":0.25},{"$f":"B41*C41","v":0.25},1,{"$f":"VLOOKUP($A41,'Data Pass Through'!$A:$D,3,FALSE)","v":0.25},0.25,0,0,1.2741621039759697E-3,1.3068955399118823E-3]
["Sub-Total:  Regulatory",null,null,{"$f":"SUM(D38:D41)","v":5.4440980000000003},null,null,{"$f":"SUM(G38:G41)","v":5.4440980000000003},0,0,2.7746653447725474E-2,2.8459469580172796E-2]
["Total  Electricty Charge on Two-Tier RPP ",null,null,{"$f":"SUM(D14,D27,D28,D29,D35,D42)","v":211.83570399999999},null,null,{"$f":"SUM(G14,G27,G28,G29,G35,G42)","v":208.50943000000001},-3.3262739999999837,-1.5702140560780932E-2,1.0626992561105206]
["     HST",null,0.13,{"$f":"D43*C44","v":27.538641519999999},null,{"$f":"C44","v":0.13},{"$f":"G43*F44","v":27.106225900000002},-0.43241561999999689,-1.5702140560780897E-2,0.13815090329436769]
["Total Electricity Charge on Two-Tier RPP (including HST)",null,null,{"$f":"SUM(D43:D44)","v":239.37434551999999},null,null,{"$f":"SUM(G43:G44)","v":235.61565590000001},-3.7586896199999842,-1.5702140560780946E-2,1.2008501594048884]
["Ontario Electricity Rebate (OER)",null,{"$f":"IF(($B$4*12)<250000,VLOOKUP(A46,'Data Pass Through'!$A$4:$C$20,2,0),0)","v":-0.189},{"$f":"D43*C46","v":-40.036948056},null,{"$f":"C46","v":-0.189},{"$f":"G43*F46","v":-39.408282270000001},0.62866578599999912,1.5702140560780987E-2,-0.2008501594048884]
["Total Amount on Two-Tier RPP",null,null,{"$f":"SUM(D45:D46)","v":199.33739746399999},null,null,{"$f":"SUM(G45:G46)","v":196.20737363000001},-3.1300238339999851,-1.5702140560780935E-2,1]
["Total Electricty Charge on TOU (before HST)",null,null,{"$f":"SUM(D18,D27,D28,D30,D35,D42)","v":206.61322839999997},null,null,{"$f":"SUM(G18,G27,G28,G30,G35,G42)","v":203.28695439999998},-3.3262739999999837,-1.6099036957887176E-2,null,{"$f":"G48/$G$52","v":1.0626992561105206}]
["     HST",null,0.13,{"$f":"D48*C49","v":26.859719691999995},null,{"$f":"C49","v":0.13},{"$f":"G48*F49","v":26.427304071999998},-0.43241561999999689,-1.6099036957887138E-2,null,{"$f":"G49/$G$52","v":0.13815090329436769}]
["Total Electricity Charge on TOU (including HST)",null,null,{"$f":"SUM(D48:D49)","v":233.47294809199997},null,null,{"$f":"SUM(G48:G49)","v":229.71425847199998},-3.7586896199999842,-1.6099036957887187E-2,null,{"$f":"G50/$G$52","v":1.2008501594048884}]
["Ontario Electricity Rebate (OER)",null,{"$f":"IF(($B$4*12)<250000,VLOOKUP(A51,'Data Pass Through'!$A$4:$C$20,2,0),0)","v":-0.189},{"$f":"D48*C51","v":-39.049900167599993},null,{"$f":"C51","v":-0.189},{"$f":"G48*F51","v":-38.421234381599994},0.62866578599999912,1.6099036957887232E-2,null,{"$f":"G51/$G$52","v":-0.2008501594048884}]
["Total Amount on TOU",null,null,{"$f":"SUM(D50:D51)","v":194.42304792439998},null,null,{"$f":"SUM(G50:G51)","v":191.2930240904},-3.1300238339999851,-1.6099036957887176E-2,null,{"$f":"G52/$G$52","v":1}]
["* Distribution rate protection applies to R1 and R2 customers"]

{"sheet":"BI_R1_Low (with DRP)","index":27,"n_rows":53,"n_cols":11,"rows_kept":53,"cut":false,"hidden":false,"merged":[[0,0,0,10]]}
["2023 Bill Impacts (Low Consumption Level) - R1"]
[]
["Rate Class",{"$f":"RIGHT(A1,LEN(A1)-FIND(\"- \",A1,1)-1)","v":"R1"},"With DRP"]
["Monthly Consumption (kWh)",{"$f":"IF(COUNTIF(A1,\"*Low*\")>0,VLOOKUP(B3,'Data Billing Quantities'!$A:$Z,MATCH(\"Low kWh\",'Data Billing Quantities'!4:4,0),FALSE),IF(COUNTIF(A1,\"*Typical*\")>0,VLOOKUP(B3,'Data Billing Quantities'!$A:$Z,MATCH(\"Typical kWh\",'Data Billing Quantities'!4:4,0),FALSE),IF(COUNTIF(A1,\"*Average*\")>0,VLOOKUP(B3,'Data Billing Quantities'!$A:$Z,MATCH(\"Average kWh\",'Data Billing Quantities'!4:4,0),FALSE),IF(COUNTIF(A1,\"*High*\")>0,VLOOKUP(B3,'Data Billing Quantities'!$A:$Z,MATCH(\"High kWh\",'Data Billing Quantities'!4:4,0),FALSE),\"error\"))))","v":370}]
["Peak (kW)",{"$f":"IF(COUNTIF(A1,\"*Low*\")>0,VLOOKUP(B3,'Data Billing Quantities'!$A:$Z,MATCH(\"Low kW\",'Data Billing Quantities'!4:4,0),FALSE),IF(COUNTIF(A1,\"*Typical*\")>0,VLOOKUP(B3,'Data Billing Quantities'!$A:$Z,MATCH(\"Typical kW\",'Data Billing Quantities'!4:4,0),FALSE),IF(COUNTIF(A1,\"*Average*\")>0,VLOOKUP(B3,'Data Billing Quantities'!$A:$Z,MATCH(\"Average kW\",'Data Billing Quantities'!4:4,0),FALSE),IF(COUNTIF(A1,\"*High*\")>0,VLOOKUP(B3,'Data Billing Quantities'!$A:$Z,MATCH(\"High kW\",'Data Billing Quantities'!4:4,0),FALSE),\"error\"))))","v":0}]
["Loss factor",{"$f":"VLOOKUP(B3,'Data Billing Quantities'!A:D,MATCH(A6,'Data Billing Quantities'!4:4,0),FALSE)","v":1.0760000000000001}]
["Commodity Threshold",{"$f":"VLOOKUP(B3,'Data Billing Quantities'!A:D,MATCH(A7,'Data Billing Quantities'!4:4,0),FALSE)","v":600}]
["Monthly Consumption (kWh) - Uplifted",{"$f":"B4*B6","v":398.12}]
["Charge determinant",{"$f":"VLOOKUP(B3,'Data Billing Quantities'!A:D,MATCH(A9,'Data Billing Quantities'!4:4,0),FALSE)","v":"kWh"}]
[]
[null,"Volume","Current Rate ($)","Current Charge ($)","Volume","Proposed Rate ($)","Proposed Charge ($)","Change ($)","Change (%)","% of Total Bill on RPP","% of Total Bill"]
["Energy First Tier",{"$f":"IF(B4>B7,B7,B4)","v":370},{"$f":"VLOOKUP($A12,'Data Pass Through'!$A:$D,2,FALSE)","v":9.8000000000000004E-2},{"$f":"B12*C12","v":36.26},{"$f":"B12","v":370},{"$f":"VLOOKUP($A12,'Data Pass Through'!$A:$D,3,FALSE)","v":9.8000000000000004E-2},{"$f":"E12*F12","v":36.26},{"$f":"G12-D12","v":0},{"$f":"IF(ISERROR(H12/ABS(D12)),\"N/A\",(H12/ABS(D12)))","v":0},{"$f":"G12/$G$47","v":0.4560736096615669}]
["Energy Second Tier",{"$f":"IF(B4>B7,(B4)-B7,0)","v":0},{"$f":"VLOOKUP($A13,'Data Pass Through'!$A:$D,2,FALSE)","v":0.115},{"$f":"B13*C13","v":0},{"$f":"B13","v":0},{"$f":"VLOOKUP($A13,'Data Pass Through'!$A:$D,3,FALSE)","v":0.115},{"$f":"E13*F13","v":0},0,"N/A",{"$f":"G13/$G$47","v":0}]
["Sub-Total:  Energy (RPP Tiered)",null,null,{"$f":"SUM(D12:D13)","v":36.26},null,null,{"$f":"SUM(G12:G13)","v":36.26},0,0,{"$f":"G14/$G$47","v":0.4560736096615669}]
["TOU-Off Peak",{"$f":"B$4*VLOOKUP($B$3,'Data Billing Quantities'!$A:$O,MATCH('BI_R1_Low (with DRP)'!$A15,'Data Billing Quantities'!$4:$4,0),FALSE)","v":236.8},{"$f":"VLOOKUP($A15,'Data Pass Through'!$A:$D,2,FALSE)","v":8.2000000000000003E-2},{"$f":"B15*C15","v":19.4176},236.8,{"$f":"VLOOKUP($A15,'Data Pass Through'!$A:$D,3,FALSE)","v":8.2000000000000003E-2},{"$f":"E15*F15","v":19.4176},0,0,null,{"$f":"G15/$G$52","v":0.2381498758334635}]
["TOU-Mid Peak",{"$f":"B$4*VLOOKUP($B$3,'Data Billing Quantities'!$A:$O,MATCH('BI_R1_Low (with DRP)'!$A16,'Data Billing Quantities'!$4:$4,0),FALSE)","v":66.599999999999994},{"$f":"VLOOKUP($A16,'Data Pass Through'!$A:$D,2,FALSE)","v":0.113},{"$f":"B16*C16","v":7.5257999999999994},66.599999999999994,{"$f":"VLOOKUP($A16,'Data Pass Through'!$A:$D,3,FALSE)","v":0.113},{"$f":"E16*F16","v":7.5257999999999994},0,0,null,9.2301228552832459E-2]
["TOU-On Peak",{"$f":"B$4*VLOOKUP($B$3,'Data Billing Quantities'!$A:$O,MATCH('BI_R1_Low (with DRP)'!$A17,'Data Billing Quantities'!$4:$4,0),FALSE)","v":66.599999999999994},{"$f":"VLOOKUP($A17,'Data Pass Through'!$A:$D,2,FALSE)","v":0.17},{"$f":"B17*C17","v":11.321999999999999},66.599999999999994,{"$f":"VLOOKUP($A17,'Data Pass Through'!$A:$D,3,FALSE)","v":0.17},{"$f":"E17*F17","v":11.321999999999999},0,0,null,0.13886025534496918]
["Sub-Total:  Energy (RPP TOU)",null,null,{"$f":"SUM(D15:D17)","v":38.2654},null,null,{"$f":"SUM(G15:G17)","v":38.2654},0,0,{"$f":"G18/$G$47","v":0.48129727256325766},0.46931135973126514]
["Service Charge",1,{"$f":"VLOOKUP($B$3,'Data Current Rates'!$A:$AP,MATCH('BI_R1_Low (with DRP)'!$A19,CurrentHeader,0),FALSE)","v":55.52},{"$f":"B19*C19","v":55.52},1,{"$f":"VLOOKUP($B$3,'Data Proposed Rates'!$A:$AZ,MATCH('BI_R1_Low (with DRP)'!$A19,ProposedHeader,0),FALSE)","v":57.22},{"$f":"E19*F19","v":57.22},1.6999999999999957,3.0619596541786667E-2,0.71970578998441426,0.70178270719299918]
["Fixed Base Rate Adjustment to Recover Past Tax Amounts ",1,{"$f":"VLOOKUP($B$3,'Data Current Rates'!$A:$AP,MATCH('BI_R1_Low (with DRP)'!$A20,CurrentHeader,0),FALSE)","v":1.56},1.56,1,{"$f":"VLOOKUP($B$3,'Data Proposed Rates'!$A:$AZ,MATCH('BI_R1_Low (with DRP)'!$A20,ProposedHeader,0),FALSE)","v":1.44},1.44,-0.12000000000000011,-7.6923076923076983E-2,1.811213452599714E-2,1.7661081760886384E-2]
["Group 2 Fixed DVA Rider ",null,null,null,1,{"$f":"VLOOKUP($B$3,'Data Proposed Rates'!$A:$AZ,MATCH('BI_R1_Low (with DRP)'!$A21,ProposedHeader,0),FALSE)","v":-0.14000000000000001},-0.14000000000000001,-0.14000000000000001,"N/A",-1.7609019678052778E-3,-1.7170496156417318E-3]
["Distribution Volumetric Charge",{"$f":"IF($B$9=\"kWh\",$B$4,$B$5)","v":370},{"$f":"VLOOKUP($B$3,'Data Current Rates'!$A:$AP,MATCH('BI_R1_Low (with DRP)'!$A22,CurrentHeader,0),FALSE)","v":9.9000000000000008E-3},3.6630000000000003,370,{"$f":"VLOOKUP($B$3,'Data Proposed Rates'!$A:$AZ,MATCH('BI_R1_Low (with DRP)'!$A22,ProposedHeader,0),FALSE)","v":5.1999999999999998E-3},1.9239999999999999,-1.7390000000000003,-0.47474747474747481,2.4199824186123958E-2,2.3597167574962084E-2]
["Volumetric Base Rate Adjustment to Recover Past Tax Amounts ",{"$f":"IF($B$9=\"kWh\",$B$4,$B$5)","v":370},{"$f":"VLOOKUP($B$3,'Data Current Rates'!$A:$AP,MATCH('BI_R1_Low (with DRP)'!$A23,CurrentHeader,0),FALSE)","v":0},0,370,{"$f":"VLOOKUP($B$3,'Data Proposed Rates'!$A:$AZ,MATCH('BI_R1_Low (with DRP)'!$A23,ProposedHeader,0),FALSE)","v":0},0,0,"N/A",0,0]
["Group 1 Volumetric DVA Rider (General)",null,null,null,{"$f":"B4","v":370},{"$f":"VLOOKUP($B$3,'Data Proposed Rates'!$A:$AZ,MATCH('BI_R1_Low (with DRP)'!$A24,ProposedHeader,0),FALSE)","v":-4.0000000000000002E-4},-0.14800000000000002,-0.14800000000000002,"N/A",-1.8615249373941511E-3,-1.8151667365355452E-3]
["Group 2 Volumetric DVA Rider ",null,null,null,{"$f":"B4","v":370},{"$f":"VLOOKUP($B$3,'Data Proposed Rates'!$A:$AZ,MATCH('BI_R1_Low (with DRP)'!$A25,ProposedHeader,0),FALSE)","v":0},0,0,"N/A",0,0]
["Fair Hydro Plan - Distribution Rate Protection Savings*",null,null,{"$f":"IF(AND(B3<>\"R1\",B3<>\"R2\"),0,IF(VLOOKUP($A26,'Data Pass Through'!$A:$D,2,FALSE)=0,0,IF(SUM(D19:D20,D22:D23)<VLOOKUP($A26,'Data Pass Through'!$A:$D,2,FALSE),0,VLOOKUP($A26,'Data Pass Through'!$A:$D,2,FALSE)-SUM(D19:D20,D22:D23))))","v":-23.88300000000001},null,null,{"$f":"IF(AND(B3<>\"R1\",B3<>\"R2\"),0,IF(VLOOKUP($A26,'Data Pass Through'!$A:$D,2,FALSE)=0,0,IF(SUM(G19:G20,G22:G23)<VLOOKUP($A26,'Data Pass Through'!$A:$D,2,FALSE),0,VLOOKUP($A26,'Data Pass Through'!$A:$D,2,FALSE)-SUM(G19:G20,G22:G23))))","v":-23.723999999999997},0.15900000000001313,6.6574550935817557E-3,-0.29839741631580285,-0.29096632201060313]
["Sub-Total:  Distribution (excluding pass through)",null,null,{"$f":"SUM(INDIRECT(\"D19:D\"&ROW()-1))","v":36.86},null,null,{"$f":"SUM(INDIRECT(\"g19:g\"&ROW()-1))","v":36.571999999999996},{"$f":"G27-D27","v":-0.28800000000000381},-7.8133478024960332E-3,0.45999790547553293,0.44854241816606716]
["Smart Metering Entity Charge",1,{"$f":"VLOOKUP($A28,'Data Pass Through'!$A:$D,2,FALSE)","v":0.56999999999999995},{"$f":"B28*C28","v":0.56999999999999995},1,{"$f":"VLOOKUP($A28,'Data Pass Through'!$A:$D,3,FALSE)","v":0.56999999999999995},{"$f":"E28*F28","v":0.56999999999999995},0,0,7.1693865832072011E-3,6.9908448636841931E-3]
["Line Losses on Cost of Power (based on two-tier RPP prices)",{"$f":"B8-B4","v":28.120000000000005},{"$f":"IF(B4>B7,C13,C12)","v":9.8000000000000004E-2},{"$f":"B29*C29","v":2.7557600000000004},28.120000000000005,{"$f":"IF(B4>B7,F13,F12)","v":9.8000000000000004E-2},{"$f":"E29*F29","v":2.7557600000000004},0,0,3.4661594334279094E-2,3.3798404634291852E-2]
["Line Losses on Cost of Power (based on TOU prices)",{"$f":"B8-B4","v":28.120000000000005},{"$f":"VLOOKUP($B$3,'Data Billing Quantities'!$A:$O,MATCH('BI_R1_Low (with DRP)'!$A15,'Data Billing Quantities'!$4:$4,0),FALSE)*C15+VLOOKUP($B$3,'Data Billing Quantities'!$A:$O,MATCH('BI_R1_Low (with DRP)'!$A16,'Data Billing Quantities'!$4:$4,0),FALSE)*C16+VLOOKUP($B$3,'Data Billing Quantities'!$A:$O,MATCH('BI_R1_Low (with DRP)'!$A17,'Data Billing Quantities'!$4:$4,0),FALSE)*C17","v":0.10342000000000001},{"$f":"B30*C30","v":2.9081704000000008},28.120000000000005,{"$f":"VLOOKUP($B$3,'Data Billing Quantities'!$A:$O,MATCH('BI_R1_Low (with DRP)'!$A15,'Data Billing Quantities'!$4:$4,0),FALSE)*F15+VLOOKUP($B$3,'Data Billing Quantities'!$A:$O,MATCH('BI_R1_Low (with DRP)'!$A16,'Data Billing Quantities'!$4:$4,0),FALSE)*F16+VLOOKUP($B$3,'Data Billing Quantities'!$A:$O,MATCH('BI_R1_Low (with DRP)'!$A17,'Data Billing Quantities'!$4:$4,0),FALSE)*F17","v":0.10342000000000001},{"$f":"E30*F30","v":2.9081704000000008},0,0,3.6578592714807595E-2,3.5667663339576161E-2]
["Sub-Total:  Distribution (based on two-tier RPP prices)",null,null,{"$f":"SUM(D27,D28:D29)","v":40.185760000000002},null,null,{"$f":"SUM(G27,G28:G29)","v":39.897759999999998},-0.28800000000000381,-7.1667177627100691E-3,0.50182888639301926,0.48933166766404323]
["Sub-Total:  Distribution (based on TOU prices)",null,null,{"$f":"SUM(D27,D28,D30)","v":40.338170400000003},null,null,{"$f":"SUM(G27,G28,G30)","v":40.050170399999999},-0.28800000000000381,-7.139639630259576E-3,0.50374588477354776,0.49120092636932755]
["Retail Transmission Rate – Network Service Rate",{"$f":"B8","v":398.12},{"$f":"VLOOKUP($B$3,'Data Current Rates'!$A:$AP,MATCH('BI_R1_Low (with DRP)'!$A33,CurrentHeader,0),FALSE)","v":9.7999999999999997E-3},{"$f":"B33*C33","v":3.9015759999999999},398.12,{"$f":"VLOOKUP($B$3,'Data Proposed Rates'!$A:$AZ,MATCH('BI_R1_Low (with DRP)'!$A33,ProposedHeader,0),FALSE)","v":9.4999999999999998E-3},{"$f":"E33*F33","v":3.7821400000000001},{"$f":"G33-D33","v":-0.11943599999999988},-3.0612244897959152E-2,4.7571269775107526E-2,4.6386585952165854E-2]
["Retail Transmission Rate – Line and Transformation Connection Service Rate",{"$f":"B8","v":398.12},{"$f":"VLOOKUP($B$3,'Data Current Rates'!$A:$AP,MATCH('BI_R1_Low (with DRP)'!$A34,CurrentHeader,0),FALSE)","v":7.3000000000000001E-3},{"$f":"B34*C34","v":2.9062760000000001},398.12,{"$f":"VLOOKUP($B$3,'Data Proposed Rates'!$A:$AZ,MATCH('BI_R1_Low (with DRP)'!$A34,ProposedHeader,0),FALSE)","v":6.8999999999999999E-3},{"$f":"E34*F34","v":2.7470279999999998},{"$f":"G34-D34","v":-0.15924800000000028},-5.47945205479453E-2,3.4551764362972831E-2,3.3691309796836245E-2]
["Sub-Total:  Retail Transmission ",null,null,{"$f":"SUM(D33:D34)","v":6.8078520000000005},null,null,{"$f":"SUM(G33:G34)","v":6.5291680000000003},{"$f":"G35-D35","v":-0.27868400000000015},-4.0935672514619902E-2,8.2123034138080364E-2,8.0077895749002106E-2]
["Sub-Total:  Delivery (based on two-tier RPP prices)",null,null,{"$f":"D31+D35","v":46.993611999999999},null,null,{"$f":"G31+G35","v":46.426927999999997},{"$f":"G36-D36","v":-0.56668400000000219},-1.2058745346069636E-2,0.58395192053109957,0.56940956341304538]
["Sub-Total:  Delivery (based on TOU prices)",null,null,{"$f":"D32+D35","v":47.146022400000007},null,null,{"$f":"G32+G35","v":46.579338399999997},{"$f":"G37-D37","v":-0.56668400000000929},-1.2019762668250233E-2,0.58586891891162807,0.5712788221183297]
["Wholesale Market Service Rate (WMS) - not including CBR",{"$f":"B8","v":398.12},{"$f":"VLOOKUP($A38,'Data Pass Through'!$A:$D,2,FALSE)","v":3.0000000000000001E-3},{"$f":"B38*C38","v":1.1943600000000001},{"$f":"$B$8","v":398.12},{"$f":"VLOOKUP($A38,'Data Pass Through'!$A:$D,3,FALSE)","v":3.0000000000000001E-3},{"$f":"E38*F38","v":1.1943600000000001},0,0,1.5022506244770797E-2,1.4648395563841848E-2]
["Capacity Based Recovery (CBR) - Applicable for Class B Customers",{"$f":"B8","v":398.12},{"$f":"VLOOKUP($A39,'Data Pass Through'!$A:$D,2,FALSE)","v":4.0000000000000002E-4},{"$f":"B39*C39","v":0.159248},{"$f":"$B$8","v":398.12},{"$f":"VLOOKUP($A39,'Data Pass Through'!$A:$D,3,FALSE)","v":4.0000000000000002E-4},{"$f":"E39*F39","v":0.159248},0,0,2.0030008326361063E-3,1.9531194085122463E-3]
["Rural Rate Protection Charge",{"$f":"B8","v":398.12},{"$f":"VLOOKUP($A40,'Data Pass Through'!$A:$D,2,FALSE)","v":5.0000000000000001E-4},0.19906000000000001,398.12,{"$f":"VLOOKUP($A40,'Data Pass Through'!$A:$D,3,FALSE)","v":5.0000000000000001E-4},0.19906000000000001,0,0,2.5037510407951327E-3,2.4413992606403083E-3]
["Standard Supply Service – Administration Charge (if applicable)",1,{"$f":"VLOOKUP($A41,'Data Pass Through'!$A:$D,2,FALSE)","v":0.25},{"$f":"B41*C41","v":0.25},1,{"$f":"VLOOKUP($A41,'Data Pass Through'!$A:$D,3,FALSE)","v":0.25},0.25,0,0,3.1444677996522816E-3,3.066160027931664E-3]
["Sub-Total:  Regulatory",null,null,{"$f":"SUM(D38:D41)","v":1.8026680000000002},null,null,{"$f":"SUM(G38:G41)","v":1.8026680000000002},0,0,2.2673725917854319E-2,2.2109074260926068E-2]
["Total  Electricty Charge on Two-Tier RPP ",null,null,{"$f":"SUM(D14,D27,D28,D29,D35,D42)","v":85.056279999999987},null,null,{"$f":"SUM(G14,G27,G28,G29,G35,G42)","v":84.489595999999977},-0.56668400000000929,-6.6624592563889386E-3,1.0626992561105206]
["     HST",null,0.13,{"$f":"D43*C44","v":11.057316399999999},null,{"$f":"C44","v":0.13},{"$f":"G43*F44","v":10.983647479999997},-7.3668920000002913E-2,-6.6624592563890922E-3,0.13815090329436766]
["Total Electricity Charge on Two-Tier RPP (including HST)",null,null,{"$f":"SUM(D43:D44)","v":96.113596399999992},null,null,{"$f":"SUM(G43:G44)","v":95.473243479999979},-0.6403529200000122,-6.662459256388956E-3,1.2008501594048884]
["Ontario Electricity Rebate (OER)",null,{"$f":"IF(($B$4*12)<250000,VLOOKUP(A46,'Data Pass Through'!$A$4:$C$20,2,0),0)","v":-0.189},{"$f":"D43*C46","v":-16.075636919999997},null,{"$f":"C46","v":-0.189},{"$f":"G43*F46","v":-15.968533643999995},0.10710327600000191,6.662459256388949E-3,-0.20085015940488837]
["Total Amount on Two-Tier RPP",null,null,{"$f":"SUM(D45:D46)","v":80.037959479999998},null,null,{"$f":"SUM(G45:G46)","v":79.504709835999989},-0.53324964400000852,-6.6624592563889352E-3,1]
["Total Electricty Charge on TOU (before HST)",null,null,{"$f":"SUM(D18,D27,D28,D30,D35,D42)","v":87.214090399999989},null,null,{"$f":"SUM(G18,G27,G28,G30,G35,G42)","v":86.647406399999994},-0.56668399999999508,-6.497619792867726E-3,null,{"$f":"G48/$G$52","v":1.0626992561105209}]
["     HST",null,0.13,{"$f":"D48*C49","v":11.337831752},null,{"$f":"C49","v":0.13},{"$f":"G48*F49","v":11.264162832},-7.366891999999936E-2,-6.497619792867726E-3,null,{"$f":"G49/$G$52","v":0.13815090329436772}]
["Total Electricity Charge on TOU (including HST)",null,null,{"$f":"SUM(D48:D49)","v":98.551922151999989},null,null,{"$f":"SUM(G48:G49)","v":97.911569231999991},-0.64035291999999799,-6.4976197928677624E-3,null,{"$f":"G50/$G$52","v":1.2008501594048886}]
["Ontario Electricity Rebate (OER)",null,{"$f":"IF(($B$4*12)<250000,VLOOKUP(A51,'Data Pass Through'!$A$4:$C$20,2,0),0)","v":-0.189},{"$f":"D48*C51","v":-16.483463085599997},null,{"$f":"C51","v":-0.189},{"$f":"G48*F51","v":-16.3763598096},0.10710327599999658,6.4976197928675759E-3,null,{"$f":"G51/$G$52","v":-0.20085015940488846}]
["Total Amount on TOU",null,null,{"$f":"SUM(D50:D51)","v":82.068459066399996},null,null,{"$f":"SUM(G50:G51)","v":81.535209422399987},-0.53324964400000852,-6.4976197928678855E-3,null,{"$f":"G52/$G$52","v":1}]
["* Distribution rate protection applies to R1 and R2 customers"]

{"sheet":"BI_R1_Typical (with DRP)","index":28,"n_rows":53,"n_cols":11,"rows_kept":53,"cut":false,"hidden":false,"merged":[[0,0,0,10]]}
["2023 Bill Impacts (Typical Consumption Level) - R1"]
[]
["Rate Class",{"$f":"RIGHT(A1,LEN(A1)-FIND(\"- \",A1,1)-1)","v":"R1"},"With DRP"]
["Monthly Consumption (kWh)",{"$f":"IF(COUNTIF(A1,\"*Low*\")>0,VLOOKUP(B3,'Data Billing Quantities'!$A:$Z,MATCH(\"Low kWh\",'Data Billing Quantities'!4:4,0),FALSE),IF(COUNTIF(A1,\"*Typical*\")>0,VLOOKUP(B3,'Data Billing Quantities'!$A:$Z,MATCH(\"Typical kWh\",'Data Billing Quantities'!4:4,0),FALSE),IF(COUNTIF(A1,\"*Average*\")>0,VLOOKUP(B3,'Data Billing Quantities'!$A:$Z,MATCH(\"Average kWh\",'Data Billing Quantities'!4:4,0),FALSE),IF(COUNTIF(A1,\"*High*\")>0,VLOOKUP(B3,'Data Billing Quantities'!$A:$Z,MATCH(\"High kWh\",'Data Billing Quantities'!4:4,0),FALSE),\"error\"))))","v":750}]
["Peak (kW)",{"$f":"IF(COUNTIF(A1,\"*Low*\")>0,VLOOKUP(B3,'Data Billing Quantities'!$A:$Z,MATCH(\"Low kW\",'Data Billing Quantities'!4:4,0),FALSE),IF(COUNTIF(A1,\"*Typical*\")>0,VLOOKUP(B3,'Data Billing Quantities'!$A:$Z,MATCH(\"Typical kW\",'Data Billing Quantities'!4:4,0),FALSE),IF(COUNTIF(A1,\"*Average*\")>0,VLOOKUP(B3,'Data Billing Quantities'!$A:$Z,MATCH(\"Average kW\",'Data Billing Quantities'!4:4,0),FALSE),IF(COUNTIF(A1,\"*High*\")>0,VLOOKUP(B3,'Data Billing Quantities'!$A:$Z,MATCH(\"High kW\",'Data Billing Quantities'!4:4,0),FALSE),\"error\"))))","v":0}]
["Loss factor",{"$f":"VLOOKUP(B3,'Data Billing Quantities'!A:D,MATCH(A6,'Data Billing Quantities'!4:4,0),FALSE)","v":1.0760000000000001}]
["Commodity Threshold",{"$f":"VLOOKUP(B3,'Data Billing Quantities'!A:D,MATCH(A7,'Data Billing Quantities'!4:4,0),FALSE)","v":600}]
["Monthly Consumption (kWh) - Uplifted",{"$f":"B4*B6","v":807}]
["Charge determinant",{"$f":"VLOOKUP(B3,'Data Billing Quantities'!A:D,MATCH(A9,'Data Billing Quantities'!4:4,0),FALSE)","v":"kWh"}]
[]
[null,"Volume","Current Rate ($)","Current Charge ($)","Volume","Proposed Rate ($)","Proposed Charge ($)","Change ($)","Change (%)","% of Total Bill on RPP","% of Total Bill"]
["Energy First Tier",{"$f":"IF(B4>B7,B7,B4)","v":600},{"$f":"VLOOKUP($A12,'Data Pass Through'!$A:$D,2,FALSE)","v":9.8000000000000004E-2},{"$f":"B12*C12","v":58.800000000000004},{"$f":"B12","v":600},{"$f":"VLOOKUP($A12,'Data Pass Through'!$A:$D,3,FALSE)","v":9.8000000000000004E-2},{"$f":"E12*F12","v":58.800000000000004},{"$f":"G12-D12","v":0},{"$f":"IF(ISERROR(H12/ABS(D12)),\"N/A\",(H12/ABS(D12)))","v":0},{"$f":"G12/$G$47","v":0.458695195444215}]
["Energy Second Tier",{"$f":"IF(B4>B7,(B4)-B7,0)","v":150},{"$f":"VLOOKUP($A13,'Data Pass Through'!$A:$D,2,FALSE)","v":0.115},{"$f":"B13*C13","v":17.25},{"$f":"B13","v":150},{"$f":"VLOOKUP($A13,'Data Pass Through'!$A:$D,3,FALSE)","v":0.115},{"$f":"E13*F13","v":17.25},0,0,{"$f":"G13/$G$47","v":0.13456619254103244}]
["Sub-Total:  Energy (RPP Tiered)",null,null,{"$f":"SUM(D12:D13)","v":76.050000000000011},null,null,{"$f":"SUM(G12:G13)","v":76.050000000000011},0,0,{"$f":"G14/$G$47","v":0.59326138798524752}]
["TOU-Off Peak",{"$f":"B$4*VLOOKUP($B$3,'Data Billing Quantities'!$A:$O,MATCH('BI_R1_Typical (with DRP)'!$A15,'Data Billing Quantities'!$4:$4,0),FALSE)","v":480},{"$f":"VLOOKUP($A15,'Data Pass Through'!$A:$D,2,FALSE)","v":8.2000000000000003E-2},{"$f":"B15*C15","v":39.36},480,{"$f":"VLOOKUP($A15,'Data Pass Through'!$A:$D,3,FALSE)","v":8.2000000000000003E-2},{"$f":"E15*F15","v":39.36},0,0,null,{"$f":"G15/$G$52","v":0.30512999894450138}]
["TOU-Mid Peak",{"$f":"B$4*VLOOKUP($B$3,'Data Billing Quantities'!$A:$O,MATCH('BI_R1_Typical (with DRP)'!$A16,'Data Billing Quantities'!$4:$4,0),FALSE)","v":135},{"$f":"VLOOKUP($A16,'Data Pass Through'!$A:$D,2,FALSE)","v":0.113},{"$f":"B16*C16","v":15.255000000000001},135,{"$f":"VLOOKUP($A16,'Data Pass Through'!$A:$D,3,FALSE)","v":0.113},{"$f":"E16*F16","v":15.255000000000001},0,0,null,0.11826113145066994]
["TOU-On Peak",{"$f":"B$4*VLOOKUP($B$3,'Data Billing Quantities'!$A:$O,MATCH('BI_R1_Typical (with DRP)'!$A17,'Data Billing Quantities'!$4:$4,0),FALSE)","v":135},{"$f":"VLOOKUP($A17,'Data Pass Through'!$A:$D,2,FALSE)","v":0.17},{"$f":"B17*C17","v":22.950000000000003},135,{"$f":"VLOOKUP($A17,'Data Pass Through'!$A:$D,3,FALSE)","v":0.17},{"$f":"E17*F17","v":22.950000000000003},0,0,null,0.177914976518707]
["Sub-Total:  Energy (RPP TOU)",null,null,{"$f":"SUM(D15:D17)","v":77.564999999999998},null,null,{"$f":"SUM(G15:G17)","v":77.564999999999998},0,0,{"$f":"G18/$G$47","v":0.60507981011276413},0.6013061069138782]
["Service Charge",1,{"$f":"VLOOKUP($B$3,'Data Current Rates'!$A:$AP,MATCH('BI_R1_Typical (with DRP)'!$A19,CurrentHeader,0),FALSE)","v":55.52},{"$f":"B19*C19","v":55.52},1,{"$f":"VLOOKUP($B$3,'Data Proposed Rates'!$A:$AZ,MATCH('BI_R1_Typical (with DRP)'!$A19,ProposedHeader,0),FALSE)","v":57.22},{"$f":"E19*F19","v":57.22},1.6999999999999957,3.0619596541786667E-2,0.44636971230132616,0.44358583688019226]
["Fixed Base Rate Adjustment to Recover Past Tax Amounts ",1,{"$f":"VLOOKUP($B$3,'Data Current Rates'!$A:$AP,MATCH('BI_R1_Typical (with DRP)'!$A20,CurrentHeader,0),FALSE)","v":1.56},1.56,1,{"$f":"VLOOKUP($B$3,'Data Proposed Rates'!$A:$AZ,MATCH('BI_R1_Typical (with DRP)'!$A20,ProposedHeader,0),FALSE)","v":1.44},1.44,-0.12000000000000011,-7.6923076923076983E-2,1.1233351725164447E-2,1.1163292644311025E-2]
["Group 2 Fixed DVA Rider ",null,null,null,1,{"$f":"VLOOKUP($B$3,'Data Proposed Rates'!$A:$AZ,MATCH('BI_R1_Typical (with DRP)'!$A21,ProposedHeader,0),FALSE)","v":-0.14000000000000001},-0.14000000000000001,-0.14000000000000001,"N/A",-1.0921314177243214E-3,-1.0853201181969055E-3]
["Distribution Volumetric Charge",{"$f":"IF($B$9=\"kWh\",$B$4,$B$5)","v":750},{"$f":"VLOOKUP($B$3,'Data Current Rates'!$A:$AP,MATCH('BI_R1_Typical (with DRP)'!$A22,CurrentHeader,0),FALSE)","v":9.9000000000000008E-3},7.4250000000000007,750,{"$f":"VLOOKUP($B$3,'Data Proposed Rates'!$A:$AZ,MATCH('BI_R1_Typical (with DRP)'!$A22,ProposedHeader,0),FALSE)","v":5.1999999999999998E-3},3.9,-3.5250000000000008,-0.47474747474747481,3.0423660922320378E-2,3.0233917578342359E-2]
["Volumetric Base Rate Adjustment to Recover Past Tax Amounts ",{"$f":"IF($B$9=\"kWh\",$B$4,$B$5)","v":750},{"$f":"VLOOKUP($B$3,'Data Current Rates'!$A:$AP,MATCH('BI_R1_Typical (with DRP)'!$A23,CurrentHeader,0),FALSE)","v":0},0,750,{"$f":"VLOOKUP($B$3,'Data Proposed Rates'!$A:$AZ,MATCH('BI_R1_Typical (with DRP)'!$A23,ProposedHeader,0),FALSE)","v":0},0,0,"N/A",0,0]
["Group 1 Volumetric DVA Rider (General)",null,null,null,{"$f":"B4","v":750},{"$f":"VLOOKUP($B$3,'Data Proposed Rates'!$A:$AZ,MATCH('BI_R1_Typical (with DRP)'!$A24,ProposedHeader,0),FALSE)","v":-4.0000000000000002E-4},-0.3,-0.3,"N/A",-2.3402816094092601E-3,-2.325685967564797E-3]
["Group 2 Volumetric DVA Rider ",null,null,null,{"$f":"B4","v":750},{"$f":"VLOOKUP($B$3,'Data Proposed Rates'!$A:$AZ,MATCH('BI_R1_Typical (with DRP)'!$A25,ProposedHeader,0),FALSE)","v":0},0,0,"N/A",0,0]
["Fair Hydro Plan - Distribution Rate Protection Savings*",null,null,{"$f":"IF(AND(B3<>\"R1\",B3<>\"R2\"),0,IF(VLOOKUP($A26,'Data Pass Through'!$A:$D,2,FALSE)=0,0,IF(SUM(D19:D20,D22:D23)<VLOOKUP($A26,'Data Pass Through'!$A:$D,2,FALSE),0,VLOOKUP($A26,'Data Pass Through'!$A:$D,2,FALSE)-SUM(D19:D20,D22:D23))))","v":-27.64500000000001},null,null,{"$f":"IF(AND(B3<>\"R1\",B3<>\"R2\"),0,IF(VLOOKUP($A26,'Data Pass Through'!$A:$D,2,FALSE)=0,0,IF(SUM(G19:G20,G22:G23)<VLOOKUP($A26,'Data Pass Through'!$A:$D,2,FALSE),0,VLOOKUP($A26,'Data Pass Through'!$A:$D,2,FALSE)-SUM(G19:G20,G22:G23))))","v":-25.699999999999996},1.9450000000000145,7.035630312895691E-2,-0.20048412453939324,-0.19923376455471759]
["Sub-Total:  Distribution (excluding pass through)",null,null,{"$f":"SUM(INDIRECT(\"D19:D\"&ROW()-1))","v":36.86},null,null,{"$f":"SUM(INDIRECT(\"g19:g\"&ROW()-1))","v":36.42},{"$f":"G27-D27","v":-0.43999999999999773},-1.1937059142702055E-2,0.28411018738228416,0.28233827646236637]
["Smart Metering Entity Charge",1,{"$f":"VLOOKUP($A28,'Data Pass Through'!$A:$D,2,FALSE)","v":0.56999999999999995},{"$f":"B28*C28","v":0.56999999999999995},1,{"$f":"VLOOKUP($A28,'Data Pass Through'!$A:$D,3,FALSE)","v":0.56999999999999995},{"$f":"E28*F28","v":0.56999999999999995},0,0,4.4465350578775939E-3,4.418803338373114E-3]
["Line Losses on Cost of Power (based on two-tier RPP prices)",{"$f":"B8-B4","v":57},{"$f":"IF(B4>B7,C13,C12)","v":0.115},{"$f":"B29*C29","v":6.5550000000000006},57,{"$f":"IF(B4>B7,F13,F12)","v":0.115},{"$f":"E29*F29","v":6.5550000000000006},0,0,5.1135153165592334E-2,5.0816238391290819E-2]
["Line Losses on Cost of Power (based on TOU prices)",{"$f":"B8-B4","v":57},{"$f":"VLOOKUP($B$3,'Data Billing Quantities'!$A:$O,MATCH('BI_R1_Typical (with DRP)'!$A15,'Data Billing Quantities'!$4:$4,0),FALSE)*C15+VLOOKUP($B$3,'Data Billing Quantities'!$A:$O,MATCH('BI_R1_Typical (with DRP)'!$A16,'Data Billing Quantities'!$4:$4,0),FALSE)*C16+VLOOKUP($B$3,'Data Billing Quantities'!$A:$O,MATCH('BI_R1_Typical (with DRP)'!$A17,'Data Billing Quantities'!$4:$4,0),FALSE)*C17","v":0.10342000000000001},{"$f":"B30*C30","v":5.894940000000001},57,{"$f":"VLOOKUP($B$3,'Data Billing Quantities'!$A:$O,MATCH('BI_R1_Typical (with DRP)'!$A15,'Data Billing Quantities'!$4:$4,0),FALSE)*F15+VLOOKUP($B$3,'Data Billing Quantities'!$A:$O,MATCH('BI_R1_Typical (with DRP)'!$A16,'Data Billing Quantities'!$4:$4,0),FALSE)*F16+VLOOKUP($B$3,'Data Billing Quantities'!$A:$O,MATCH('BI_R1_Typical (with DRP)'!$A17,'Data Billing Quantities'!$4:$4,0),FALSE)*F17","v":0.10342000000000001},{"$f":"E30*F30","v":5.894940000000001},0,0,4.5986065568570086E-2,4.5699264125454754E-2]
["Sub-Total:  Distribution (based on two-tier RPP prices)",null,null,{"$f":"SUM(D27,D28:D29)","v":43.984999999999999},null,null,{"$f":"SUM(G27,G28:G29)","v":43.545000000000002},-0.43999999999999773,-1.0003410253495458E-2,0.33969187560575409,0.33757331819203029]
["Sub-Total:  Distribution (based on TOU prices)",null,null,{"$f":"SUM(D27,D28,D30)","v":43.324939999999998},null,null,{"$f":"SUM(G27,G28,G30)","v":42.88494},-0.43999999999999773,-1.0155813256752294E-2,0.33454278800873183,0.33245634392619422]
["Retail Transmission Rate – Network Service Rate",{"$f":"B8","v":807},{"$f":"VLOOKUP($B$3,'Data Current Rates'!$A:$AP,MATCH('BI_R1_Typical (with DRP)'!$A33,CurrentHeader,0),FALSE)","v":9.7999999999999997E-3},{"$f":"B33*C33","v":7.9085999999999999},807,{"$f":"VLOOKUP($B$3,'Data Proposed Rates'!$A:$AZ,MATCH('BI_R1_Typical (with DRP)'!$A33,ProposedHeader,0),FALSE)","v":9.4999999999999998E-3},{"$f":"E33*F33","v":7.6665000000000001},{"$f":"G33-D33","v":-0.24209999999999976},-3.0612244897959155E-2,5.9805896528453639E-2,5.943290490111839E-2]
["Retail Transmission Rate – Line and Transformation Connection Service Rate",{"$f":"B8","v":807},{"$f":"VLOOKUP($B$3,'Data Current Rates'!$A:$AP,MATCH('BI_R1_Typical (with DRP)'!$A34,CurrentHeader,0),FALSE)","v":7.3000000000000001E-3},{"$f":"B34*C34","v":5.8910999999999998},807,{"$f":"VLOOKUP($B$3,'Data Proposed Rates'!$A:$AZ,MATCH('BI_R1_Typical (with DRP)'!$A34,ProposedHeader,0),FALSE)","v":6.8999999999999999E-3},{"$f":"E34*F34","v":5.5682999999999998},{"$f":"G34-D34","v":-0.32279999999999998},-5.4794520547945202E-2,4.343796695224527E-2,4.3167057243970193E-2]
["Sub-Total:  Retail Transmission ",null,null,{"$f":"SUM(D33:D34)","v":13.7997},null,null,{"$f":"SUM(G33:G34)","v":13.2348},{"$f":"G35-D35","v":-0.56489999999999974},-4.0935672514619867E-2,0.10324386348069892,0.10259996214508858]
["Sub-Total:  Delivery (based on two-tier RPP prices)",null,null,{"$f":"D31+D35","v":57.784700000000001},null,null,{"$f":"G31+G35","v":56.779800000000002},{"$f":"G36-D36","v":-1.0048999999999992},-1.7390416494331529E-2,0.44293573908645301,0.44017328033711889]
["Sub-Total:  Delivery (based on TOU prices)",null,null,{"$f":"D32+D35","v":57.124639999999999},null,null,{"$f":"G32+G35","v":56.11974},{"$f":"G37-D37","v":-1.0048999999999992},-1.7591358124970227E-2,0.43778665148943074,0.43505630607128282]
["Wholesale Market Service Rate (WMS) - not including CBR",{"$f":"B8","v":807},{"$f":"VLOOKUP($A38,'Data Pass Through'!$A:$D,2,FALSE)","v":3.0000000000000001E-3},{"$f":"B38*C38","v":2.4210000000000003},{"$f":"$B$8","v":807},{"$f":"VLOOKUP($A38,'Data Pass Through'!$A:$D,3,FALSE)","v":3.0000000000000001E-3},{"$f":"E38*F38","v":2.4210000000000003},0,0,1.8886072587932731E-2,1.8768285758247915E-2]
["Capacity Based Recovery (CBR) - Applicable for Class B Customers",{"$f":"B8","v":807},{"$f":"VLOOKUP($A39,'Data Pass Through'!$A:$D,2,FALSE)","v":4.0000000000000002E-4},{"$f":"B39*C39","v":0.32280000000000003},{"$f":"$B$8","v":807},{"$f":"VLOOKUP($A39,'Data Pass Through'!$A:$D,3,FALSE)","v":4.0000000000000002E-4},{"$f":"E39*F39","v":0.32280000000000003},0,0,2.5181430117243641E-3,2.502438101099722E-3]
["Rural Rate Protection Charge",{"$f":"B8","v":807},{"$f":"VLOOKUP($A40,'Data Pass Through'!$A:$D,2,FALSE)","v":5.0000000000000001E-4},0.40350000000000003,807,{"$f":"VLOOKUP($A40,'Data Pass Through'!$A:$D,3,FALSE)","v":5.0000000000000001E-4},0.40350000000000003,0,0,3.1476787646554549E-3,3.1280476263746524E-3]
["Standard Supply Service – Administration Charge (if applicable)",1,{"$f":"VLOOKUP($A41,'Data Pass Through'!$A:$D,2,FALSE)","v":0.25},{"$f":"B41*C41","v":0.25},1,{"$f":"VLOOKUP($A41,'Data Pass Through'!$A:$D,3,FALSE)","v":0.25},0.25,0,0,1.9502346745077167E-3,1.9380716396373309E-3]
["Sub-Total:  Regulatory",null,null,{"$f":"SUM(D38:D41)","v":3.3973000000000004},null,null,{"$f":"SUM(G38:G41)","v":3.3973000000000004},0,0,2.6502129038820266E-2,2.6336843125359621E-2]
["Total  Electricty Charge on Two-Tier RPP ",null,null,{"$f":"SUM(D14,D27,D28,D29,D35,D42)","v":137.232},null,null,{"$f":"SUM(G14,G27,G28,G29,G35,G42)","v":136.22710000000001},-1.0048999999999921,-7.32263611985537E-3,1.0626992561105206]
["     HST",null,0.13,{"$f":"D43*C44","v":17.840160000000001},null,{"$f":"C44","v":0.13},{"$f":"G43*F44","v":17.709523000000001},-0.13063700000000011,-7.3226361198554333E-3,0.13815090329436769]
["Total Electricity Charge on Two-Tier RPP (including HST)",null,null,{"$f":"SUM(D43:D44)","v":155.07216},null,null,{"$f":"SUM(G43:G44)","v":153.936623},-1.1355369999999994,-7.3226361198554229E-3,1.2008501594048884]
["Ontario Electricity Rebate (OER)",null,{"$f":"IF(($B$4*12)<250000,VLOOKUP(A46,'Data Pass Through'!$A$4:$C$20,2,0),0)","v":-0.189},{"$f":"D43*C46","v":-25.936848000000001},null,{"$f":"C46","v":-0.189},{"$f":"G43*F46","v":-25.7469219},0.18992610000000099,7.3226361198554654E-3,-0.2008501594048884]
["Total Amount on Two-Tier RPP",null,null,{"$f":"SUM(D45:D46)","v":129.135312},null,null,{"$f":"SUM(G45:G46)","v":128.18970110000001},-0.94561089999999126,-7.3226361198553596E-3,1]
["Total Electricty Charge on TOU (before HST)",null,null,{"$f":"SUM(D18,D27,D28,D30,D35,D42)","v":138.08694},null,null,{"$f":"SUM(G18,G27,G28,G30,G35,G42)","v":137.08204000000001},-1.0048999999999921,-7.2772993593745519E-3,null,{"$f":"G48/$G$52","v":1.0626992561105206}]
["     HST",null,0.13,{"$f":"D48*C49","v":17.951302200000001},null,{"$f":"C49","v":0.13},{"$f":"G48*F49","v":17.820665200000001},-0.13063700000000011,-7.2772993593746144E-3,null,{"$f":"G49/$G$52","v":0.13815090329436769}]
["Total Electricity Charge on TOU (including HST)",null,null,{"$f":"SUM(D48:D49)","v":156.03824220000001},null,null,{"$f":"SUM(G48:G49)","v":154.90270520000001},-1.1355369999999994,-7.277299359374604E-3,null,{"$f":"G50/$G$52","v":1.2008501594048884}]
["Ontario Electricity Rebate (OER)",null,{"$f":"IF(($B$4*12)<250000,VLOOKUP(A51,'Data Pass Through'!$A$4:$C$20,2,0),0)","v":-0.189},{"$f":"D48*C51","v":-26.098431659999999},null,{"$f":"C51","v":-0.189},{"$f":"G48*F51","v":-25.908505560000002},0.18992609999999743,7.2772993593745103E-3,null,{"$f":"G51/$G$52","v":-0.20085015940488843}]
["Total Amount on TOU",null,null,{"$f":"SUM(D50:D51)","v":129.93981054000002},null,null,{"$f":"SUM(G50:G51)","v":128.99419964000001},-0.94561090000001968,-7.2772993593747583E-3,null,{"$f":"G52/$G$52","v":1}]
["* Distribution rate protection applies to R1 and R2 customers"]

{"sheet":"BI_R1_Avg (with DRP)","index":29,"n_rows":53,"n_cols":11,"rows_kept":53,"cut":false,"hidden":false,"merged":[[0,0,0,10]]}
["2023 Bill Impacts (Average Consumption Level) - R1"]
[]
["Rate Class",{"$f":"RIGHT(A1,LEN(A1)-FIND(\"- \",A1,1)-1)","v":"R1"},"With DRP"]
["Monthly Consumption (kWh)",{"$f":"IF(COUNTIF(A1,\"*Low*\")>0,VLOOKUP(B3,'Data Billing Quantities'!$A:$Z,MATCH(\"Low kWh\",'Data Billing Quantities'!4:4,0),FALSE),IF(COUNTIF(A1,\"*Typical*\")>0,VLOOKUP(B3,'Data Billing Quantities'!$A:$Z,MATCH(\"Typical kWh\",'Data Billing Quantities'!4:4,0),FALSE),IF(COUNTIF(A1,\"*Average*\")>0,VLOOKUP(B3,'Data Billing Quantities'!$A:$Z,MATCH(\"Average kWh\",'Data Billing Quantities'!4:4,0),FALSE),IF(COUNTIF(A1,\"*High*\")>0,VLOOKUP(B3,'Data Billing Quantities'!$A:$Z,MATCH(\"High kWh\",'Data Billing Quantities'!4:4,0),FALSE),\"error\"))))","v":784}]
["Peak (kW)",{"$f":"IF(COUNTIF(A1,\"*Low*\")>0,VLOOKUP(B3,'Data Billing Quantities'!$A:$Z,MATCH(\"Low kW\",'Data Billing Quantities'!4:4,0),FALSE),IF(COUNTIF(A1,\"*Typical*\")>0,VLOOKUP(B3,'Data Billing Quantities'!$A:$Z,MATCH(\"Typical kW\",'Data Billing Quantities'!4:4,0),FALSE),IF(COUNTIF(A1,\"*Average*\")>0,VLOOKUP(B3,'Data Billing Quantities'!$A:$Z,MATCH(\"Average kW\",'Data Billing Quantities'!4:4,0),FALSE),IF(COUNTIF(A1,\"*High*\")>0,VLOOKUP(B3,'Data Billing Quantities'!$A:$Z,MATCH(\"High kW\",'Data Billing Quantities'!4:4,0),FALSE),\"error\"))))","v":0}]
["Loss factor",{"$f":"VLOOKUP(B3,'Data Billing Quantities'!A:D,MATCH(A6,'Data Billing Quantities'!4:4,0),FALSE)","v":1.0760000000000001}]
["Commodity Threshold",{"$f":"VLOOKUP(B3,'Data Billing Quantities'!A:D,MATCH(A7,'Data Billing Quantities'!4:4,0),FALSE)","v":600}]
["Monthly Consumption (kWh) - Uplifted",{"$f":"B4*B6","v":843.58400000000006}]
["Charge determinant",{"$f":"VLOOKUP(B3,'Data Billing Quantities'!A:D,MATCH(A9,'Data Billing Quantities'!4:4,0),FALSE)","v":"kWh"}]
[]
[null,"Volume","Current Rate ($)","Current Charge ($)","Volume","Proposed Rate ($)","Proposed Charge ($)","Change ($)","Change (%)","% of Total Bill on RPP","% of Total Bill"]
["Energy First Tier",{"$f":"IF(B4>B7,B7,B4)","v":600},{"$f":"VLOOKUP($A12,'Data Pass Through'!$A:$D,2,FALSE)","v":9.8000000000000004E-2},{"$f":"B12*C12","v":58.800000000000004},{"$f":"B12","v":600},{"$f":"VLOOKUP($A12,'Data Pass Through'!$A:$D,3,FALSE)","v":9.8000000000000004E-2},{"$f":"E12*F12","v":58.800000000000004},{"$f":"G12-D12","v":0},{"$f":"IF(ISERROR(H12/ABS(D12)),\"N/A\",(H12/ABS(D12)))","v":0},{"$f":"G12/$G$47","v":0.4426554885790796}]
["Energy Second Tier",{"$f":"IF(B4>B7,(B4)-B7,0)","v":184},{"$f":"VLOOKUP($A13,'Data Pass Through'!$A:$D,2,FALSE)","v":0.115},{"$f":"B13*C13","v":21.16},{"$f":"B13","v":184},{"$f":"VLOOKUP($A13,'Data Pass Through'!$A:$D,3,FALSE)","v":0.115},{"$f":"E13*F13","v":21.16},0,0,{"$f":"G13/$G$47","v":0.15929575065192728}]
["Sub-Total:  Energy (RPP Tiered)",null,null,{"$f":"SUM(D12:D13)","v":79.960000000000008},null,null,{"$f":"SUM(G12:G13)","v":79.960000000000008},0,0,{"$f":"G14/$G$47","v":0.60195123923100691}]
["TOU-Off Peak",{"$f":"B$4*VLOOKUP($B$3,'Data Billing Quantities'!$A:$O,MATCH('BI_R1_Avg (with DRP)'!$A15,'Data Billing Quantities'!$4:$4,0),FALSE)","v":501.76},{"$f":"VLOOKUP($A15,'Data Pass Through'!$A:$D,2,FALSE)","v":8.2000000000000003E-2},{"$f":"B15*C15","v":41.14432},501.76,{"$f":"VLOOKUP($A15,'Data Pass Through'!$A:$D,3,FALSE)","v":8.2000000000000003E-2},{"$f":"E15*F15","v":41.14432},0,0,null,{"$f":"G15/$G$52","v":0.3087973298655638}]
["TOU-Mid Peak",{"$f":"B$4*VLOOKUP($B$3,'Data Billing Quantities'!$A:$O,MATCH('BI_R1_Avg (with DRP)'!$A16,'Data Billing Quantities'!$4:$4,0),FALSE)","v":141.12},{"$f":"VLOOKUP($A16,'Data Pass Through'!$A:$D,2,FALSE)","v":0.113},{"$f":"B16*C16","v":15.946560000000002},141.12,{"$f":"VLOOKUP($A16,'Data Pass Through'!$A:$D,3,FALSE)","v":0.113},{"$f":"E16*F16","v":15.946560000000002},0,0,null,0.11968250170475549]
["TOU-On Peak",{"$f":"B$4*VLOOKUP($B$3,'Data Billing Quantities'!$A:$O,MATCH('BI_R1_Avg (with DRP)'!$A17,'Data Billing Quantities'!$4:$4,0),FALSE)","v":141.12},{"$f":"VLOOKUP($A17,'Data Pass Through'!$A:$D,2,FALSE)","v":0.17},{"$f":"B17*C17","v":23.990400000000001},141.12,{"$f":"VLOOKUP($A17,'Data Pass Through'!$A:$D,3,FALSE)","v":0.17},{"$f":"E17*F17","v":23.990400000000001},0,0,null,0.1800533211487472]
["Sub-Total:  Energy (RPP TOU)",null,null,{"$f":"SUM(D15:D17)","v":81.081279999999992},null,null,{"$f":"SUM(G15:G17)","v":81.081279999999992},0,0,{"$f":"G18/$G$47","v":0.61039240838464537},0.60853315271906638]
["Service Charge",1,{"$f":"VLOOKUP($B$3,'Data Current Rates'!$A:$AP,MATCH('BI_R1_Avg (with DRP)'!$A19,CurrentHeader,0),FALSE)","v":55.52},{"$f":"B19*C19","v":55.52},1,{"$f":"VLOOKUP($B$3,'Data Proposed Rates'!$A:$AZ,MATCH('BI_R1_Avg (with DRP)'!$A19,ProposedHeader,0),FALSE)","v":57.22},{"$f":"E19*F19","v":57.22},1.6999999999999957,3.0619596541786667E-2,0.43076100436215875,0.42944890606789854]
["Fixed Base Rate Adjustment to Recover Past Tax Amounts ",1,{"$f":"VLOOKUP($B$3,'Data Current Rates'!$A:$AP,MATCH('BI_R1_Avg (with DRP)'!$A20,CurrentHeader,0),FALSE)","v":1.56},1.56,1,{"$f":"VLOOKUP($B$3,'Data Proposed Rates'!$A:$AZ,MATCH('BI_R1_Avg (with DRP)'!$A20,ProposedHeader,0),FALSE)","v":1.44},1.44,-0.12000000000000011,-7.6923076923076983E-2,1.0840542577446847E-2,1.0807522277835964E-2]
["Group 2 Fixed DVA Rider ",null,null,null,1,{"$f":"VLOOKUP($B$3,'Data Proposed Rates'!$A:$AZ,MATCH('BI_R1_Avg (with DRP)'!$A21,ProposedHeader,0),FALSE)","v":-0.14000000000000001},-0.14000000000000001,-0.14000000000000001,"N/A",-1.053941639473999E-3,-1.0507313325673856E-3]
["Distribution Volumetric Charge",{"$f":"IF($B$9=\"kWh\",$B$4,$B$5)","v":784},{"$f":"VLOOKUP($B$3,'Data Current Rates'!$A:$AP,MATCH('BI_R1_Avg (with DRP)'!$A22,CurrentHeader,0),FALSE)","v":9.9000000000000008E-3},7.7616000000000005,784,{"$f":"VLOOKUP($B$3,'Data Proposed Rates'!$A:$AZ,MATCH('BI_R1_Avg (with DRP)'!$A22,ProposedHeader,0),FALSE)","v":5.1999999999999998E-3},4.0767999999999995,-3.684800000000001,-0.47474747474747486,3.0690780541482849E-2,3.0597296404362262E-2]
["Volumetric Base Rate Adjustment to Recover Past Tax Amounts ",{"$f":"IF($B$9=\"kWh\",$B$4,$B$5)","v":784},{"$f":"VLOOKUP($B$3,'Data Current Rates'!$A:$AP,MATCH('BI_R1_Avg (with DRP)'!$A23,CurrentHeader,0),FALSE)","v":0},0,784,{"$f":"VLOOKUP($B$3,'Data Proposed Rates'!$A:$AZ,MATCH('BI_R1_Avg (with DRP)'!$A23,ProposedHeader,0),FALSE)","v":0},0,0,"N/A",0,0]
["Group 1 Volumetric DVA Rider (General)",null,null,null,{"$f":"B4","v":784},{"$f":"VLOOKUP($B$3,'Data Proposed Rates'!$A:$AZ,MATCH('BI_R1_Avg (with DRP)'!$A24,ProposedHeader,0),FALSE)","v":-4.0000000000000002E-4},-0.31359999999999999,-0.31359999999999999,"N/A",-2.3608292724217575E-3,-2.3536381849509434E-3]
["Group 2 Volumetric DVA Rider ",null,null,null,{"$f":"B4","v":784},{"$f":"VLOOKUP($B$3,'Data Proposed Rates'!$A:$AZ,MATCH('BI_R1_Avg (with DRP)'!$A25,ProposedHeader,0),FALSE)","v":0},0,0,"N/A",0,0]
["Fair Hydro Plan - Distribution Rate Protection Savings*",null,null,{"$f":"IF(AND(B3<>\"R1\",B3<>\"R2\"),0,IF(VLOOKUP($A26,'Data Pass Through'!$A:$D,2,FALSE)=0,0,IF(SUM(D19:D20,D22:D23)<VLOOKUP($A26,'Data Pass Through'!$A:$D,2,FALSE),0,VLOOKUP($A26,'Data Pass Through'!$A:$D,2,FALSE)-SUM(D19:D20,D22:D23))))","v":-27.9816},null,null,{"$f":"IF(AND(B3<>\"R1\",B3<>\"R2\"),0,IF(VLOOKUP($A26,'Data Pass Through'!$A:$D,2,FALSE)=0,0,IF(SUM(G19:G20,G22:G23)<VLOOKUP($A26,'Data Pass Through'!$A:$D,2,FALSE),0,VLOOKUP($A26,'Data Pass Through'!$A:$D,2,FALSE)-SUM(G19:G20,G22:G23))))","v":-25.876799999999996},2.1048000000000044,7.5220859421905983E-2,-0.19480455011671979,-0.19421117533271226]
["Sub-Total:  Distribution (excluding pass through)",null,null,{"$f":"SUM(INDIRECT(\"D19:D\"&ROW()-1))","v":36.86},null,null,{"$f":"SUM(INDIRECT(\"g19:g\"&ROW()-1))","v":36.406399999999998},{"$f":"G27-D27","v":-0.45360000000000156},-1.2306022788931134E-2,0.27407300645247284,0.27323817989986615]
["Smart Metering Entity Charge",1,{"$f":"VLOOKUP($A28,'Data Pass Through'!$A:$D,2,FALSE)","v":0.56999999999999995},{"$f":"B28*C28","v":0.56999999999999995},1,{"$f":"VLOOKUP($A28,'Data Pass Through'!$A:$D,3,FALSE)","v":0.56999999999999995},{"$f":"E28*F28","v":0.56999999999999995},0,0,4.2910481035727099E-3,4.2779775683100697E-3]
["Line Losses on Cost of Power (based on two-tier RPP prices)",{"$f":"B8-B4","v":59.58400000000006},{"$f":"IF(B4>B7,C13,C12)","v":0.115},{"$f":"B29*C29","v":6.8521600000000076},59.58400000000006,{"$f":"IF(B4>B7,F13,F12)","v":0.115},{"$f":"E29*F29","v":6.8521600000000076},0,0,5.1584119602415462E-2,5.1426994341178173E-2]
["Line Losses on Cost of Power (based on TOU prices)",{"$f":"B8-B4","v":59.58400000000006},{"$f":"VLOOKUP($B$3,'Data Billing Quantities'!$A:$O,MATCH('BI_R1_Avg (with DRP)'!$A15,'Data Billing Quantities'!$4:$4,0),FALSE)*C15+VLOOKUP($B$3,'Data Billing Quantities'!$A:$O,MATCH('BI_R1_Avg (with DRP)'!$A16,'Data Billing Quantities'!$4:$4,0),FALSE)*C16+VLOOKUP($B$3,'Data Billing Quantities'!$A:$O,MATCH('BI_R1_Avg (with DRP)'!$A17,'Data Billing Quantities'!$4:$4,0),FALSE)*C17","v":0.10342000000000001},{"$f":"B30*C30","v":6.162177280000007},59.58400000000006,{"$f":"VLOOKUP($B$3,'Data Billing Quantities'!$A:$O,MATCH('BI_R1_Avg (with DRP)'!$A15,'Data Billing Quantities'!$4:$4,0),FALSE)*F15+VLOOKUP($B$3,'Data Billing Quantities'!$A:$O,MATCH('BI_R1_Avg (with DRP)'!$A16,'Data Billing Quantities'!$4:$4,0),FALSE)*F16+VLOOKUP($B$3,'Data Billing Quantities'!$A:$O,MATCH('BI_R1_Avg (with DRP)'!$A17,'Data Billing Quantities'!$4:$4,0),FALSE)*F17","v":0.10342000000000001},{"$f":"E30*F30","v":6.162177280000007},0,0,4.6389823037233109E-2,4.6248519606649101E-2]
["Sub-Total:  Distribution (based on two-tier RPP prices)",null,null,{"$f":"SUM(D27,D28:D29)","v":44.282160000000005},null,null,{"$f":"SUM(G27,G28:G29)","v":43.828560000000003},-0.45360000000000156,-1.0243402760840969E-2,0.32994817415846101,0.32894315180935441]
["Sub-Total:  Distribution (based on TOU prices)",null,null,{"$f":"SUM(D27,D28,D30)","v":43.592177280000008},null,null,{"$f":"SUM(G27,G28,G30)","v":43.138577280000007},-0.45360000000000156,-1.0405536688072523E-2,0.32475387759327867,0.32376467707482537]
["Retail Transmission Rate – Network Service Rate",{"$f":"B8","v":843.58400000000006},{"$f":"VLOOKUP($B$3,'Data Current Rates'!$A:$AP,MATCH('BI_R1_Avg (with DRP)'!$A33,CurrentHeader,0),FALSE)","v":9.7999999999999997E-3},{"$f":"B33*C33","v":8.2671232000000003},843.58400000000006,{"$f":"VLOOKUP($B$3,'Data Proposed Rates'!$A:$AZ,MATCH('BI_R1_Avg (with DRP)'!$A33,ProposedHeader,0),FALSE)","v":9.4999999999999998E-3},{"$f":"E33*F33","v":8.0140480000000007},{"$f":"G33-D33","v":-0.25307519999999961},-3.0612244897959134E-2,6.0330992056738024E-2,6.0147223816421368E-2]
["Retail Transmission Rate – Line and Transformation Connection Service Rate",{"$f":"B8","v":843.58400000000006},{"$f":"VLOOKUP($B$3,'Data Current Rates'!$A:$AP,MATCH('BI_R1_Avg (with DRP)'!$A34,CurrentHeader,0),FALSE)","v":7.3000000000000001E-3},{"$f":"B34*C34","v":6.1581632000000006},843.58400000000006,{"$f":"VLOOKUP($B$3,'Data Proposed Rates'!$A:$AZ,MATCH('BI_R1_Avg (with DRP)'!$A34,ProposedHeader,0),FALSE)","v":6.8999999999999999E-3},{"$f":"E34*F34","v":5.8207295999999999},{"$f":"G34-D34","v":-0.33743360000000067},-5.4794520547945307E-2,4.3819352125420243E-2,4.3685878350874466E-2]
["Sub-Total:  Retail Transmission ",null,null,{"$f":"SUM(D33:D34)","v":14.425286400000001},null,null,{"$f":"SUM(G33:G34)","v":13.834777600000001},{"$f":"G35-D35","v":-0.59050880000000028},-4.0935672514619902E-2,0.10415034418215827,0.10383310216729583]
["Sub-Total:  Delivery (based on two-tier RPP prices)",null,null,{"$f":"D31+D35","v":58.707446400000009},null,null,{"$f":"G31+G35","v":57.663337600000006},{"$f":"G36-D36","v":-1.0441088000000036},-1.7784946612837235E-2,0.43409851834061924,0.4327762539766502]
["Sub-Total:  Delivery (based on TOU prices)",null,null,{"$f":"D32+D35","v":58.017463680000006},null,null,{"$f":"G32+G35","v":56.973354880000009},{"$f":"G37-D37","v":-1.0441087999999965},-1.7996457166050254E-2,0.42890422177543697,0.42759777924212117]
["Wholesale Market Service Rate (WMS) - not including CBR",{"$f":"B8","v":843.58400000000006},{"$f":"VLOOKUP($A38,'Data Pass Through'!$A:$D,2,FALSE)","v":3.0000000000000001E-3},{"$f":"B38*C38","v":2.5307520000000001},{"$f":"$B$8","v":843.58400000000006},{"$f":"VLOOKUP($A38,'Data Pass Through'!$A:$D,3,FALSE)","v":3.0000000000000001E-3},{"$f":"E38*F38","v":2.5307520000000001},0,0,1.9051892228443584E-2,1.8993860152554116E-2]
["Capacity Based Recovery (CBR) - Applicable for Class B Customers",{"$f":"B8","v":843.58400000000006},{"$f":"VLOOKUP($A39,'Data Pass Through'!$A:$D,2,FALSE)","v":4.0000000000000002E-4},{"$f":"B39*C39","v":0.33743360000000006},{"$f":"$B$8","v":843.58400000000006},{"$f":"VLOOKUP($A39,'Data Pass Through'!$A:$D,3,FALSE)","v":4.0000000000000002E-4},{"$f":"E39*F39","v":0.33743360000000006},0,0,2.5402522971258116E-3,2.5325146870072159E-3]
["Rural Rate Protection Charge",{"$f":"B8","v":843.58400000000006},{"$f":"VLOOKUP($A40,'Data Pass Through'!$A:$D,2,FALSE)","v":5.0000000000000001E-4},0.42179200000000006,843.58400000000006,{"$f":"VLOOKUP($A40,'Data Pass Through'!$A:$D,3,FALSE)","v":5.0000000000000001E-4},0.42179200000000006,0,0,3.1753153714072645E-3,3.1656433587590196E-3]
["Standard Supply Service – Administration Charge (if applicable)",1,{"$f":"VLOOKUP($A41,'Data Pass Through'!$A:$D,2,FALSE)","v":0.25},{"$f":"B41*C41","v":0.25},1,{"$f":"VLOOKUP($A41,'Data Pass Through'!$A:$D,3,FALSE)","v":0.25},0.25,0,0,1.8820386419178554E-3,1.8763059510131885E-3]
["Sub-Total:  Regulatory",null,null,{"$f":"SUM(D38:D41)","v":3.5399776000000003},null,null,{"$f":"SUM(G38:G41)","v":3.5399776000000003},0,0,2.664949853889452E-2,2.6568324149333539E-2]
["Total  Electricty Charge on Two-Tier RPP ",null,null,{"$f":"SUM(D14,D27,D28,D29,D35,D42)","v":142.207424},null,null,{"$f":"SUM(G14,G27,G28,G29,G35,G42)","v":141.1633152},-1.0441088000000036,-7.3421539511186393E-3,1.0626992561105206]
["     HST",null,0.13,{"$f":"D43*C44","v":18.486965120000001},null,{"$f":"C44","v":0.13},{"$f":"G43*F44","v":18.351230976},-0.13573414400000061,-7.3421539511186471E-3,0.13815090329436769]
["Total Electricity Charge on Two-Tier RPP (including HST)",null,null,{"$f":"SUM(D43:D44)","v":160.69438912000001},null,null,{"$f":"SUM(G43:G44)","v":159.51454617600001},-1.1798429440000007,-7.3421539511186176E-3,1.2008501594048884]
["Ontario Electricity Rebate (OER)",null,{"$f":"IF(($B$4*12)<250000,VLOOKUP(A46,'Data Pass Through'!$A$4:$C$20,2,0),0)","v":-0.189},{"$f":"D43*C46","v":-26.877203136000002},null,{"$f":"C46","v":-0.189},{"$f":"G43*F46","v":-26.679866572800002},0.19733656320000037,7.3421539511186271E-3,-0.2008501594048884]
["Total Amount on Two-Tier RPP",null,null,{"$f":"SUM(D45:D46)","v":133.81718598400002},null,null,{"$f":"SUM(G45:G46)","v":132.83467960320002},-0.98250638080000385,-7.3421539511186419E-3,1]
["Total Electricty Charge on TOU (before HST)",null,null,{"$f":"SUM(D18,D27,D28,D30,D35,D42)","v":142.63872127999997},null,null,{"$f":"SUM(G18,G27,G28,G30,G35,G42)","v":141.59461247999997},-1.0441088000000036,-7.3199534504408302E-3,null,{"$f":"G48/$G$52","v":1.0626992561105209}]
["     HST",null,0.13,{"$f":"D48*C49","v":18.543033766399997},null,{"$f":"C49","v":0.13},{"$f":"G48*F49","v":18.407299622399997},-0.13573414400000061,-7.3199534504408371E-3,null,{"$f":"G49/$G$52","v":0.13815090329436772}]
["Total Electricity Charge on TOU (including HST)",null,null,{"$f":"SUM(D48:D49)","v":161.18175504639996},null,null,{"$f":"SUM(G48:G49)","v":160.00191210239996},-1.1798429440000007,-7.3199534504408094E-3,null,{"$f":"G50/$G$52","v":1.2008501594048886}]
["Ontario Electricity Rebate (OER)",null,{"$f":"IF(($B$4*12)<250000,VLOOKUP(A51,'Data Pass Through'!$A$4:$C$20,2,0),0)","v":-0.189},{"$f":"D48*C51","v":-26.958718321919996},null,{"$f":"C51","v":-0.189},{"$f":"G48*F51","v":-26.761381758719995},0.19733656320000037,7.319953450440818E-3,null,{"$f":"G51/$G$52","v":-0.20085015940488846}]
["Total Amount on TOU",null,null,{"$f":"SUM(D50:D51)","v":134.22303672447995},null,null,{"$f":"SUM(G50:G51)","v":133.24053034367995},-0.98250638080000385,-7.3199534504408345E-3,null,{"$f":"G52/$G$52","v":1}]
["* Distribution rate protection applies to R1 and R2 customers"]

{"sheet":"BI_R1_High (with DRP)","index":30,"n_rows":53,"n_cols":11,"rows_kept":53,"cut":false,"hidden":false,"merged":[[0,0,0,10]]}
["2023 Bill Impacts (High Consumption Level) - R1"]
[]
["Rate Class",{"$f":"RIGHT(A1,LEN(A1)-FIND(\"- \",A1,1)-1)","v":"R1"},"With DRP"]
["Monthly Consumption (kWh)",{"$f":"IF(COUNTIF(A1,\"*Low*\")>0,VLOOKUP(B3,'Data Billing Quantities'!$A:$Z,MATCH(\"Low kWh\",'Data Billing Quantities'!4:4,0),FALSE),IF(COUNTIF(A1,\"*Typical*\")>0,VLOOKUP(B3,'Data Billing Quantities'!$A:$Z,MATCH(\"Typical kWh\",'Data Billing Quantities'!4:4,0),FALSE),IF(COUNTIF(A1,\"*Average*\")>0,VLOOKUP(B3,'Data Billing Quantities'!$A:$Z,MATCH(\"Average kWh\",'Data Billing Quantities'!4:4,0),FALSE),IF(COUNTIF(A1,\"*High*\")>0,VLOOKUP(B3,'Data Billing Quantities'!$A:$Z,MATCH(\"High kWh\",'Data Billing Quantities'!4:4,0),FALSE),\"error\"))))","v":1650}]
["Peak (kW)",{"$f":"IF(COUNTIF(A1,\"*Low*\")>0,VLOOKUP(B3,'Data Billing Quantities'!$A:$Z,MATCH(\"Low kW\",'Data Billing Quantities'!4:4,0),FALSE),IF(COUNTIF(A1,\"*Typical*\")>0,VLOOKUP(B3,'Data Billing Quantities'!$A:$Z,MATCH(\"Typical kW\",'Data Billing Quantities'!4:4,0),FALSE),IF(COUNTIF(A1,\"*Average*\")>0,VLOOKUP(B3,'Data Billing Quantities'!$A:$Z,MATCH(\"Average kW\",'Data Billing Quantities'!4:4,0),FALSE),IF(COUNTIF(A1,\"*High*\")>0,VLOOKUP(B3,'Data Billing Quantities'!$A:$Z,MATCH(\"High kW\",'Data Billing Quantities'!4:4,0),FALSE),\"error\"))))","v":0}]
["Loss factor",{"$f":"VLOOKUP(B3,'Data Billing Quantities'!A:D,MATCH(A6,'Data Billing Quantities'!4:4,0),FALSE)","v":1.0760000000000001}]
["Commodity Threshold",{"$f":"VLOOKUP(B3,'Data Billing Quantities'!A:D,MATCH(A7,'Data Billing Quantities'!4:4,0),FALSE)","v":600}]
["Monthly Consumption (kWh) - Uplifted",{"$f":"B4*B6","v":1775.4}]
["Charge determinant",{"$f":"VLOOKUP(B3,'Data Billing Quantities'!A:D,MATCH(A9,'Data Billing Quantities'!4:4,0),FALSE)","v":"kWh"}]
[]
[null,"Volume","Current Rate ($)","Current Charge ($)","Volume","Proposed Rate ($)","Proposed Charge ($)","Change ($)","Change (%)","% of Total Bill on RPP","% of Total Bill"]
["Energy First Tier",{"$f":"IF(B4>B7,B7,B4)","v":600},{"$f":"VLOOKUP($A12,'Data Pass Through'!$A:$D,2,FALSE)","v":9.8000000000000004E-2},{"$f":"B12*C12","v":58.800000000000004},{"$f":"B12","v":600},{"$f":"VLOOKUP($A12,'Data Pass Through'!$A:$D,3,FALSE)","v":9.8000000000000004E-2},{"$f":"E12*F12","v":58.800000000000004},{"$f":"G12-D12","v":0},{"$f":"IF(ISERROR(H12/ABS(D12)),\"N/A\",(H12/ABS(D12)))","v":0},{"$f":"G12/$G$47","v":0.23412768171326853}]
["Energy Second Tier",{"$f":"IF(B4>B7,(B4)-B7,0)","v":1050},{"$f":"VLOOKUP($A13,'Data Pass Through'!$A:$D,2,FALSE)","v":0.115},{"$f":"B13*C13","v":120.75},{"$f":"B13","v":1050},{"$f":"VLOOKUP($A13,'Data Pass Through'!$A:$D,3,FALSE)","v":0.115},{"$f":"E13*F13","v":120.75},0,0,{"$f":"G13/$G$47","v":0.48079791780403358}]
["Sub-Total:  Energy (RPP Tiered)",null,null,{"$f":"SUM(D12:D13)","v":179.55},null,null,{"$f":"SUM(G12:G13)","v":179.55},0,0,{"$f":"G14/$G$47","v":0.71492559951730217}]
["TOU-Off Peak",{"$f":"B$4*VLOOKUP($B$3,'Data Billing Quantities'!$A:$O,MATCH('BI_R1_High (with DRP)'!$A15,'Data Billing Quantities'!$4:$4,0),FALSE)","v":1056},{"$f":"VLOOKUP($A15,'Data Pass Through'!$A:$D,2,FALSE)","v":8.2000000000000003E-2},{"$f":"B15*C15","v":86.591999999999999},1056,{"$f":"VLOOKUP($A15,'Data Pass Through'!$A:$D,3,FALSE)","v":8.2000000000000003E-2},{"$f":"E15*F15","v":86.591999999999999},0,0,null,{"$f":"G15/$G$52","v":0.35871189143545129}]
["TOU-Mid Peak",{"$f":"B$4*VLOOKUP($B$3,'Data Billing Quantities'!$A:$O,MATCH('BI_R1_High (with DRP)'!$A16,'Data Billing Quantities'!$4:$4,0),FALSE)","v":297},{"$f":"VLOOKUP($A16,'Data Pass Through'!$A:$D,2,FALSE)","v":0.113},{"$f":"B16*C16","v":33.561},297,{"$f":"VLOOKUP($A16,'Data Pass Through'!$A:$D,3,FALSE)","v":0.113},{"$f":"E16*F16","v":33.561},0,0,null,0.13902819877662118]
["TOU-On Peak",{"$f":"B$4*VLOOKUP($B$3,'Data Billing Quantities'!$A:$O,MATCH('BI_R1_High (with DRP)'!$A17,'Data Billing Quantities'!$4:$4,0),FALSE)","v":297},{"$f":"VLOOKUP($A17,'Data Pass Through'!$A:$D,2,FALSE)","v":0.17},{"$f":"B17*C17","v":50.49},297,{"$f":"VLOOKUP($A17,'Data Pass Through'!$A:$D,3,FALSE)","v":0.17},{"$f":"E17*F17","v":50.49},0,0,null,0.20915746718606726]
["Sub-Total:  Energy (RPP TOU)",null,null,{"$f":"SUM(D15:D17)","v":170.643},null,null,{"$f":"SUM(G15:G17)","v":170.643},0,0,{"$f":"G18/$G$47","v":0.67946003385369524},0.70689755739813975]
["Service Charge",1,{"$f":"VLOOKUP($B$3,'Data Current Rates'!$A:$AP,MATCH('BI_R1_High (with DRP)'!$A19,CurrentHeader,0),FALSE)","v":55.52},{"$f":"B19*C19","v":55.52},1,{"$f":"VLOOKUP($B$3,'Data Proposed Rates'!$A:$AZ,MATCH('BI_R1_High (with DRP)'!$A19,ProposedHeader,0),FALSE)","v":57.22},{"$f":"E19*F19","v":57.22},1.6999999999999957,3.0619596541786667E-2,0.22783649570804804,0.23703684437288111]
["Fixed Base Rate Adjustment to Recover Past Tax Amounts ",1,{"$f":"VLOOKUP($B$3,'Data Current Rates'!$A:$AP,MATCH('BI_R1_High (with DRP)'!$A20,CurrentHeader,0),FALSE)","v":1.56},1.56,1,{"$f":"VLOOKUP($B$3,'Data Proposed Rates'!$A:$AZ,MATCH('BI_R1_High (with DRP)'!$A20,ProposedHeader,0),FALSE)","v":1.44},1.44,-0.12000000000000011,-7.6923076923076983E-2,5.7337391439984129E-3,5.9652753564653762E-3]
["Group 2 Fixed DVA Rider ",null,null,null,1,{"$f":"VLOOKUP($B$3,'Data Proposed Rates'!$A:$AZ,MATCH('BI_R1_High (with DRP)'!$A21,ProposedHeader,0),FALSE)","v":-0.14000000000000001},-0.14000000000000001,-0.14000000000000001,"N/A",-5.5744686122206801E-4,-5.7995732632302273E-4]
["Distribution Volumetric Charge",{"$f":"IF($B$9=\"kWh\",$B$4,$B$5)","v":1650},{"$f":"VLOOKUP($B$3,'Data Current Rates'!$A:$AP,MATCH('BI_R1_High (with DRP)'!$A22,CurrentHeader,0),FALSE)","v":9.9000000000000008E-3},16.335000000000001,1650,{"$f":"VLOOKUP($B$3,'Data Proposed Rates'!$A:$AZ,MATCH('BI_R1_High (with DRP)'!$A22,ProposedHeader,0),FALSE)","v":5.1999999999999998E-3},8.58,-7.7550000000000008,-0.47474747474747475,3.4163529066323875E-2,3.554309899893953E-2]
["Volumetric Base Rate Adjustment to Recover Past Tax Amounts ",{"$f":"IF($B$9=\"kWh\",$B$4,$B$5)","v":1650},{"$f":"VLOOKUP($B$3,'Data Current Rates'!$A:$AP,MATCH('BI_R1_High (with DRP)'!$A23,CurrentHeader,0),FALSE)","v":0},0,1650,{"$f":"VLOOKUP($B$3,'Data Proposed Rates'!$A:$AZ,MATCH('BI_R1_High (with DRP)'!$A23,ProposedHeader,0),FALSE)","v":0},0,0,"N/A",0,0]
["Group 1 Volumetric DVA Rider (General)",null,null,null,{"$f":"B4","v":1650},{"$f":"VLOOKUP($B$3,'Data Proposed Rates'!$A:$AZ,MATCH('BI_R1_High (with DRP)'!$A24,ProposedHeader,0),FALSE)","v":-4.0000000000000002E-4},-0.66,-0.66,"N/A",-2.6279637743326059E-3,-2.7340845383799642E-3]
["Group 2 Volumetric DVA Rider ",null,null,null,{"$f":"B4","v":1650},{"$f":"VLOOKUP($B$3,'Data Proposed Rates'!$A:$AZ,MATCH('BI_R1_High (with DRP)'!$A25,ProposedHeader,0),FALSE)","v":0},0,0,"N/A",0,0]
["Fair Hydro Plan - Distribution Rate Protection Savings*",null,null,{"$f":"IF(AND(B3<>\"R1\",B3<>\"R2\"),0,IF(VLOOKUP($A26,'Data Pass Through'!$A:$D,2,FALSE)=0,0,IF(SUM(D19:D20,D22:D23)<VLOOKUP($A26,'Data Pass Through'!$A:$D,2,FALSE),0,VLOOKUP($A26,'Data Pass Through'!$A:$D,2,FALSE)-SUM(D19:D20,D22:D23))))","v":-36.555000000000007},null,null,{"$f":"IF(AND(B3<>\"R1\",B3<>\"R2\"),0,IF(VLOOKUP($A26,'Data Pass Through'!$A:$D,2,FALSE)=0,0,IF(SUM(G19:G20,G22:G23)<VLOOKUP($A26,'Data Pass Through'!$A:$D,2,FALSE),0,VLOOKUP($A26,'Data Pass Through'!$A:$D,2,FALSE)-SUM(G19:G20,G22:G23))))","v":-30.379999999999995},6.1750000000000114,0.16892353987142689,-0.12096596888518872,-0.12585073981209591]
["Sub-Total:  Distribution (excluding pass through)",null,null,{"$f":"SUM(INDIRECT(\"D19:D\"&ROW()-1))","v":36.86},null,null,{"$f":"SUM(INDIRECT(\"g19:g\"&ROW()-1))","v":36.06},{"$f":"G27-D27","v":-0.79999999999999716},-2.1703743895821952E-2,0.14358238439762694,0.14938043705148712]
["Smart Metering Entity Charge",1,{"$f":"VLOOKUP($A28,'Data Pass Through'!$A:$D,2,FALSE)","v":0.56999999999999995},{"$f":"B28*C28","v":0.56999999999999995},1,{"$f":"VLOOKUP($A28,'Data Pass Through'!$A:$D,3,FALSE)","v":0.56999999999999995},{"$f":"E28*F28","v":0.56999999999999995},0,0,2.2696050778327048E-3,2.3612548286008777E-3]
["Line Losses on Cost of Power (based on two-tier RPP prices)",{"$f":"B8-B4","v":125.40000000000009},{"$f":"IF(B4>B7,C13,C12)","v":0.115},{"$f":"B29*C29","v":14.421000000000012},125.40000000000009,{"$f":"IF(B4>B7,F13,F12)","v":0.115},{"$f":"E29*F29","v":14.421000000000012},0,0,5.7421008469167485E-2,5.9739747163602266E-2]
["Line Losses on Cost of Power (based on TOU prices)",{"$f":"B8-B4","v":125.40000000000009},{"$f":"VLOOKUP($B$3,'Data Billing Quantities'!$A:$O,MATCH('BI_R1_High (with DRP)'!$A15,'Data Billing Quantities'!$4:$4,0),FALSE)*C15+VLOOKUP($B$3,'Data Billing Quantities'!$A:$O,MATCH('BI_R1_High (with DRP)'!$A16,'Data Billing Quantities'!$4:$4,0),FALSE)*C16+VLOOKUP($B$3,'Data Billing Quantities'!$A:$O,MATCH('BI_R1_High (with DRP)'!$A17,'Data Billing Quantities'!$4:$4,0),FALSE)*C17","v":0.10342000000000001},{"$f":"B30*C30","v":12.968868000000011},125.40000000000009,{"$f":"VLOOKUP($B$3,'Data Billing Quantities'!$A:$O,MATCH('BI_R1_High (with DRP)'!$A15,'Data Billing Quantities'!$4:$4,0),FALSE)*F15+VLOOKUP($B$3,'Data Billing Quantities'!$A:$O,MATCH('BI_R1_High (with DRP)'!$A16,'Data Billing Quantities'!$4:$4,0),FALSE)*F16+VLOOKUP($B$3,'Data Billing Quantities'!$A:$O,MATCH('BI_R1_High (with DRP)'!$A17,'Data Billing Quantities'!$4:$4,0),FALSE)*F17","v":0.10342000000000001},{"$f":"E30*F30","v":12.968868000000011},0,0,5.1638962572880885E-2,5.3724214362258667E-2]
["Sub-Total:  Distribution (based on two-tier RPP prices)",null,null,{"$f":"SUM(D27,D28:D29)","v":51.851000000000013},null,null,{"$f":"SUM(G27,G28:G29)","v":51.051000000000016},-0.79999999999999716,-1.5428824902123333E-2,0.20327299794462714,0.21148143904369029]
["Sub-Total:  Distribution (based on TOU prices)",null,null,{"$f":"SUM(D27,D28,D30)","v":50.398868000000007},null,null,{"$f":"SUM(G27,G28,G30)","v":49.59886800000001},-0.79999999999999716,-1.5873372393998948E-2,0.1974909520483405,0.20546590624234667]
["Retail Transmission Rate – Network Service Rate",{"$f":"B8","v":1775.4},{"$f":"VLOOKUP($B$3,'Data Current Rates'!$A:$AP,MATCH('BI_R1_High (with DRP)'!$A33,CurrentHeader,0),FALSE)","v":9.7999999999999997E-3},{"$f":"B33*C33","v":17.39892},1775.4,{"$f":"VLOOKUP($B$3,'Data Proposed Rates'!$A:$AZ,MATCH('BI_R1_High (with DRP)'!$A33,ProposedHeader,0),FALSE)","v":9.4999999999999998E-3},{"$f":"E33*F33","v":16.866299999999999},{"$f":"G33-D33","v":-0.53262000000000143},-3.0612244897959266E-2,6.7157614253069736E-2,6.9869530378299974E-2]
["Retail Transmission Rate – Line and Transformation Connection Service Rate",{"$f":"B8","v":1775.4},{"$f":"VLOOKUP($B$3,'Data Current Rates'!$A:$AP,MATCH('BI_R1_High (with DRP)'!$A34,CurrentHeader,0),FALSE)","v":7.3000000000000001E-3},{"$f":"B34*C34","v":12.960420000000001},1775.4,{"$f":"VLOOKUP($B$3,'Data Proposed Rates'!$A:$AZ,MATCH('BI_R1_High (with DRP)'!$A34,ProposedHeader,0),FALSE)","v":6.8999999999999999E-3},{"$f":"E34*F34","v":12.250260000000001},{"$f":"G34-D34","v":-0.71016000000000012},-5.4794520547945209E-2,4.8777635615387505E-2,5.0747343116870514E-2]
["Sub-Total:  Retail Transmission ",null,null,{"$f":"SUM(D33:D34)","v":30.359340000000003},null,null,{"$f":"SUM(G33:G34)","v":29.11656},{"$f":"G35-D35","v":-1.2427800000000033},-4.0935672514619992E-2,0.11593524986845724,0.1206168734951705]
["Sub-Total:  Delivery (based on two-tier RPP prices)",null,null,{"$f":"D31+D35","v":82.210340000000016},null,null,{"$f":"G31+G35","v":80.167560000000009},{"$f":"G36-D36","v":-2.0427800000000076},-2.4848212524118101E-2,0.31920824781308432,0.33209831253886074]
["Sub-Total:  Delivery (based on TOU prices)",null,null,{"$f":"D32+D35","v":80.75820800000001},null,null,{"$f":"G32+G35","v":78.715428000000003},{"$f":"G37-D37","v":-2.0427800000000076},-2.5295013975545462E-2,0.31342620191679771,0.32608277973751715]
["Wholesale Market Service Rate (WMS) - not including CBR",{"$f":"B8","v":1775.4},{"$f":"VLOOKUP($A38,'Data Pass Through'!$A:$D,2,FALSE)","v":3.0000000000000001E-3},{"$f":"B38*C38","v":5.3262},{"$f":"$B$8","v":1775.4},{"$f":"VLOOKUP($A38,'Data Pass Through'!$A:$D,3,FALSE)","v":3.0000000000000001E-3},{"$f":"E38*F38","v":5.3262},0,0,2.1207667658864129E-2,2.2064062224726309E-2]
["Capacity Based Recovery (CBR) - Applicable for Class B Customers",{"$f":"B8","v":1775.4},{"$f":"VLOOKUP($A39,'Data Pass Through'!$A:$D,2,FALSE)","v":4.0000000000000002E-4},{"$f":"B39*C39","v":0.71016000000000012},{"$f":"$B$8","v":1775.4},{"$f":"VLOOKUP($A39,'Data Pass Through'!$A:$D,3,FALSE)","v":4.0000000000000002E-4},{"$f":"E39*F39","v":0.71016000000000012},0,0,2.8276890211818844E-3,2.9418749632968417E-3]
["Rural Rate Protection Charge",{"$f":"B8","v":1775.4},{"$f":"VLOOKUP($A40,'Data Pass Through'!$A:$D,2,FALSE)","v":5.0000000000000001E-4},0.88770000000000004,1775.4,{"$f":"VLOOKUP($A40,'Data Pass Through'!$A:$D,3,FALSE)","v":5.0000000000000001E-4},0.88770000000000004,0,0,3.5346112764773553E-3,3.6773437041210518E-3]
["Standard Supply Service – Administration Charge (if applicable)",1,{"$f":"VLOOKUP($A41,'Data Pass Through'!$A:$D,2,FALSE)","v":0.25},{"$f":"B41*C41","v":0.25},1,{"$f":"VLOOKUP($A41,'Data Pass Through'!$A:$D,3,FALSE)","v":0.25},0.25,0,0,9.9544082361083556E-4,1.0356380827196833E-3]
["Sub-Total:  Regulatory",null,null,{"$f":"SUM(D38:D41)","v":7.1740599999999999},null,null,{"$f":"SUM(G38:G41)","v":7.1740599999999999},0,0,2.8565408780134204E-2,2.9718918974863884E-2]
["Total  Electricty Charge on Two-Tier RPP ",null,null,{"$f":"SUM(D14,D27,D28,D29,D35,D42)","v":268.93440000000004},null,null,{"$f":"SUM(G14,G27,G28,G29,G35,G42)","v":266.89162000000005},-2.0427799999999934,-7.5958300611598702E-3,1.0626992561105209]
["     HST",null,0.13,{"$f":"D43*C44","v":34.961472000000008},null,{"$f":"C44","v":0.13},{"$f":"G43*F44","v":34.695910600000005},-0.26556140000000283,-7.595830061159976E-3,0.13815090329436769]
["Total Electricity Charge on Two-Tier RPP (including HST)",null,null,{"$f":"SUM(D43:D44)","v":303.89587200000005},null,null,{"$f":"SUM(G43:G44)","v":301.58753060000004},-2.3083414000000175,-7.5958300611599526E-3,1.2008501594048884]
["Ontario Electricity Rebate (OER)",null,{"$f":"IF(($B$4*12)<250000,VLOOKUP(A46,'Data Pass Through'!$A$4:$C$20,2,0),0)","v":-0.189},{"$f":"D43*C46","v":-50.828601600000006},null,{"$f":"C46","v":-0.189},{"$f":"G43*F46","v":-50.442516180000005},0.38608542000000057,7.5958300611599066E-3,-0.20085015940488843]
["Total Amount on Two-Tier RPP",null,null,{"$f":"SUM(D45:D46)","v":253.06727040000004},null,null,{"$f":"SUM(G45:G46)","v":251.14501442000002},-1.922255980000017,-7.5958300611599621E-3,1]
["Total Electricty Charge on TOU (before HST)",null,null,{"$f":"SUM(D18,D27,D28,D30,D35,D42)","v":258.57526799999999},null,null,{"$f":"SUM(G18,G27,G28,G30,G35,G42)","v":256.532488},-2.0427799999999934,-7.9001368375261373E-3,null,{"$f":"G48/$G$52","v":1.0626992561105206}]
["     HST",null,0.13,{"$f":"D48*C49","v":33.614784839999999},null,{"$f":"C49","v":0.13},{"$f":"G48*F49","v":33.349223440000003},-0.26556139999999573,-7.9001368375260367E-3,null,{"$f":"G49/$G$52","v":0.13815090329436772}]
["Total Electricity Charge on TOU (including HST)",null,null,{"$f":"SUM(D48:D49)","v":292.19005284000002},null,null,{"$f":"SUM(G48:G49)","v":289.88171144},-2.3083414000000175,-7.9001368375262223E-3,null,{"$f":"G50/$G$52","v":1.2008501594048884}]
["Ontario Electricity Rebate (OER)",null,{"$f":"IF(($B$4*12)<250000,VLOOKUP(A51,'Data Pass Through'!$A$4:$C$20,2,0),0)","v":-0.189},{"$f":"D48*C51","v":-48.870725651999997},null,{"$f":"C51","v":-0.189},{"$f":"G48*F51","v":-48.484640232000004},0.38608541999999346,7.9001368375260297E-3,null,{"$f":"G51/$G$52","v":-0.20085015940488843}]
["Total Amount on TOU",null,null,{"$f":"SUM(D50:D51)","v":243.31932718800002},null,null,{"$f":"SUM(G50:G51)","v":241.397071208},-1.922255980000017,-7.9001368375262327E-3,null,{"$f":"G52/$G$52","v":1}]
["* Distribution rate protection applies to R1 and R2 customers"]

{"sheet":"BI_R1_Low (without DRP)","index":31,"n_rows":53,"n_cols":11,"rows_kept":53,"cut":false,"hidden":false,"merged":[[0,0,0,10]]}
["2023 Bill Impacts (Low Consumption Level) - R1"]
[]
["Rate Class",{"$f":"RIGHT(A1,LEN(A1)-FIND(\"- \",A1,1)-1)","v":"R1"},"Without DRP"]
["Monthly Consumption (kWh)",{"$f":"IF(COUNTIF(A1,\"*Low*\")>0,VLOOKUP(B3,'Data Billing Quantities'!$A:$Z,MATCH(\"Low kWh\",'Data Billing Quantities'!4:4,0),FALSE),IF(COUNTIF(A1,\"*Typical*\")>0,VLOOKUP(B3,'Data Billing Quantities'!$A:$Z,MATCH(\"Typical kWh\",'Data Billing Quantities'!4:4,0),FALSE),IF(COUNTIF(A1,\"*Average*\")>0,VLOOKUP(B3,'Data Billing Quantities'!$A:$Z,MATCH(\"Average kWh\",'Data Billing Quantities'!4:4,0),FALSE),IF(COUNTIF(A1,\"*High*\")>0,VLOOKUP(B3,'Data Billing Quantities'!$A:$Z,MATCH(\"High kWh\",'Data Billing Quantities'!4:4,0),FALSE),\"error\"))))","v":370}]
["Peak (kW)",{"$f":"IF(COUNTIF(A1,\"*Low*\")>0,VLOOKUP(B3,'Data Billing Quantities'!$A:$Z,MATCH(\"Low kW\",'Data Billing Quantities'!4:4,0),FALSE),IF(COUNTIF(A1,\"*Typical*\")>0,VLOOKUP(B3,'Data Billing Quantities'!$A:$Z,MATCH(\"Typical kW\",'Data Billing Quantities'!4:4,0),FALSE),IF(COUNTIF(A1,\"*Average*\")>0,VLOOKUP(B3,'Data Billing Quantities'!$A:$Z,MATCH(\"Average kW\",'Data Billing Quantities'!4:4,0),FALSE),IF(COUNTIF(A1,\"*High*\")>0,VLOOKUP(B3,'Data Billing Quantities'!$A:$Z,MATCH(\"High kW\",'Data Billing Quantities'!4:4,0),FALSE),\"error\"))))","v":0}]
["Loss factor",{"$f":"VLOOKUP(B3,'Data Billing Quantities'!A:D,MATCH(A6,'Data Billing Quantities'!4:4,0),FALSE)","v":1.0760000000000001}]
["Commodity Threshold",{"$f":"VLOOKUP(B3,'Data Billing Quantities'!A:D,MATCH(A7,'Data Billing Quantities'!4:4,0),FALSE)","v":600}]
["Monthly Consumption (kWh) - Uplifted",{"$f":"B4*B6","v":398.12}]
["Charge determinant",{"$f":"VLOOKUP(B3,'Data Billing Quantities'!A:D,MATCH(A9,'Data Billing Quantities'!4:4,0),FALSE)","v":"kWh"}]
[]
[null,"Volume","Current Rate ($)","Current Charge ($)","Volume","Proposed Rate ($)","Proposed Charge ($)","Change ($)","Change (%)","% of Total Bill on RPP","% of Total Bill"]
["Energy First Tier",{"$f":"IF(B4>B7,B7,B4)","v":370},{"$f":"VLOOKUP($A12,'Data Pass Through'!$A:$D,2,FALSE)","v":9.8000000000000004E-2},{"$f":"B12*C12","v":36.26},{"$f":"B12","v":370},{"$f":"VLOOKUP($A12,'Data Pass Through'!$A:$D,3,FALSE)","v":9.8000000000000004E-2},{"$f":"E12*F12","v":36.26},{"$f":"G12-D12","v":0},{"$f":"IF(ISERROR(H12/ABS(D12)),\"N/A\",(H12/ABS(D12)))","v":0},{"$f":"G12/$G$47","v":0.3560871872936141}]
["Energy Second Tier",{"$f":"IF(B4>B7,(B4)-B7,0)","v":0},{"$f":"VLOOKUP($A13,'Data Pass Through'!$A:$D,2,FALSE)","v":0.115},{"$f":"B13*C13","v":0},{"$f":"B13","v":0},{"$f":"VLOOKUP($A13,'Data Pass Through'!$A:$D,3,FALSE)","v":0.115},{"$f":"E13*F13","v":0},0,"N/A",{"$f":"G13/$G$47","v":0}]
["Sub-Total:  Energy (RPP Tiered)",null,null,{"$f":"SUM(D12:D13)","v":36.26},null,null,{"$f":"SUM(G12:G13)","v":36.26},0,0,{"$f":"G14/$G$47","v":0.3560871872936141}]
["TOU-Off Peak",{"$f":"B$4*VLOOKUP($B$3,'Data Billing Quantities'!$A:$O,MATCH('BI_R1_Low (without DRP)'!$A15,'Data Billing Quantities'!$4:$4,0),FALSE)","v":236.8},{"$f":"VLOOKUP($A15,'Data Pass Through'!$A:$D,2,FALSE)","v":8.2000000000000003E-2},{"$f":"B15*C15","v":19.4176},236.8,{"$f":"VLOOKUP($A15,'Data Pass Through'!$A:$D,3,FALSE)","v":8.2000000000000003E-2},{"$f":"E15*F15","v":19.4176},0,0,null,{"$f":"G15/$G$52","v":0.18696028028008937}]
["TOU-Mid Peak",{"$f":"B$4*VLOOKUP($B$3,'Data Billing Quantities'!$A:$O,MATCH('BI_R1_Low (without DRP)'!$A16,'Data Billing Quantities'!$4:$4,0),FALSE)","v":66.599999999999994},{"$f":"VLOOKUP($A16,'Data Pass Through'!$A:$D,2,FALSE)","v":0.113},{"$f":"B16*C16","v":7.5257999999999994},66.599999999999994,{"$f":"VLOOKUP($A16,'Data Pass Through'!$A:$D,3,FALSE)","v":0.113},{"$f":"E16*F16","v":7.5257999999999994},0,0,null,7.2461358629897443E-2]
["TOU-On Peak",{"$f":"B$4*VLOOKUP($B$3,'Data Billing Quantities'!$A:$O,MATCH('BI_R1_Low (without DRP)'!$A17,'Data Billing Quantities'!$4:$4,0),FALSE)","v":66.599999999999994},{"$f":"VLOOKUP($A17,'Data Pass Through'!$A:$D,2,FALSE)","v":0.17},{"$f":"B17*C17","v":11.321999999999999},66.599999999999994,{"$f":"VLOOKUP($A17,'Data Pass Through'!$A:$D,3,FALSE)","v":0.17},{"$f":"E17*F17","v":11.321999999999999},0,0,null,0.10901266342550943]
["Sub-Total:  Energy (RPP TOU)",null,null,{"$f":"SUM(D15:D17)","v":38.2654},null,null,{"$f":"SUM(G15:G17)","v":38.2654},0,0,{"$f":"G18/$G$47","v":0.37578098887658751},0.36843430233549629]
["Service Charge",1,{"$f":"VLOOKUP($B$3,'Data Current Rates'!$A:$AP,MATCH('BI_R1_Low (without DRP)'!$A19,CurrentHeader,0),FALSE)","v":55.52},{"$f":"B19*C19","v":55.52},1,{"$f":"VLOOKUP($B$3,'Data Proposed Rates'!$A:$AZ,MATCH('BI_R1_Low (without DRP)'!$A19,ProposedHeader,0),FALSE)","v":57.22},{"$f":"E19*F19","v":57.22},1.6999999999999957,3.0619596541786667E-2,0.56192247261281303,0.55093663674330062]
["Fixed Base Rate Adjustment to Recover Past Tax Amounts ",1,{"$f":"VLOOKUP($B$3,'Data Current Rates'!$A:$AP,MATCH('BI_R1_Low (without DRP)'!$A20,CurrentHeader,0),FALSE)","v":1.56},1.56,1,{"$f":"VLOOKUP($B$3,'Data Proposed Rates'!$A:$AZ,MATCH('BI_R1_Low (without DRP)'!$A20,ProposedHeader,0),FALSE)","v":1.44},1.44,-0.12000000000000011,-7.6923076923076983E-2,1.4141355479944962E-2,1.3864885650303267E-2]
["Group 2 Fixed DVA Rider ",null,null,null,1,{"$f":"VLOOKUP($B$3,'Data Proposed Rates'!$A:$AZ,MATCH('BI_R1_Low (without DRP)'!$A21,ProposedHeader,0),FALSE)","v":-0.14000000000000001},-0.14000000000000001,-0.14000000000000001,"N/A",-1.3748540049946492E-3,-1.3479749937794843E-3]
["Distribution Volumetric Charge",{"$f":"IF($B$9=\"kWh\",$B$4,$B$5)","v":370},{"$f":"VLOOKUP($B$3,'Data Current Rates'!$A:$AP,MATCH('BI_R1_Low (without DRP)'!$A22,CurrentHeader,0),FALSE)","v":9.9000000000000008E-3},3.6630000000000003,370,{"$f":"VLOOKUP($B$3,'Data Proposed Rates'!$A:$AZ,MATCH('BI_R1_Low (without DRP)'!$A22,ProposedHeader,0),FALSE)","v":5.1999999999999998E-3},1.9239999999999999,-1.7390000000000003,-0.47474747474747481,1.8894422182926463E-2,1.8525027771655198E-2]
["Volumetric Base Rate Adjustment to Recover Past Tax Amounts ",{"$f":"IF($B$9=\"kWh\",$B$4,$B$5)","v":370},{"$f":"VLOOKUP($B$3,'Data Current Rates'!$A:$AP,MATCH('BI_R1_Low (without DRP)'!$A23,CurrentHeader,0),FALSE)","v":0},0,370,{"$f":"VLOOKUP($B$3,'Data Proposed Rates'!$A:$AZ,MATCH('BI_R1_Low (without DRP)'!$A23,ProposedHeader,0),FALSE)","v":0},0,0,"N/A",0,0]
["Group 1 Volumetric DVA Rider (General)",null,null,null,{"$f":"B4","v":370},{"$f":"VLOOKUP($B$3,'Data Proposed Rates'!$A:$AZ,MATCH('BI_R1_Low (without DRP)'!$A24,ProposedHeader,0),FALSE)","v":-4.0000000000000002E-4},-0.14800000000000002,-0.14800000000000002,"N/A",-1.4534170909943436E-3,-1.4250021362811694E-3]
["Group 2 Volumetric DVA Rider ",null,null,null,{"$f":"B4","v":370},{"$f":"VLOOKUP($B$3,'Data Proposed Rates'!$A:$AZ,MATCH('BI_R1_Low (without DRP)'!$A25,ProposedHeader,0),FALSE)","v":0},0,0,"N/A",0,0]
["Fair Hydro Plan - Distribution Rate Protection Savings*",null,null,0,null,null,{"$f":"D26","v":0},0,"N/A",0,0]
["Sub-Total:  Distribution (excluding pass through)",null,null,{"$f":"SUM(INDIRECT(\"D19:D\"&ROW()-1))","v":60.743000000000009},null,null,{"$f":"SUM(INDIRECT(\"g19:g\"&ROW()-1))","v":60.295999999999992},{"$f":"G27-D27","v":-0.44700000000001694},-7.3588726272988967E-3,0.59212997917969545,0.58055357303519839]
["Smart Metering Entity Charge",1,{"$f":"VLOOKUP($A28,'Data Pass Through'!$A:$D,2,FALSE)","v":0.56999999999999995},{"$f":"B28*C28","v":0.56999999999999995},1,{"$f":"VLOOKUP($A28,'Data Pass Through'!$A:$D,3,FALSE)","v":0.56999999999999995},{"$f":"E28*F28","v":0.56999999999999995},0,0,5.5976198774782141E-3,5.4881839032450428E-3]
["Line Losses on Cost of Power (based on two-tier RPP prices)",{"$f":"B8-B4","v":28.120000000000005},{"$f":"IF(B4>B7,C13,C12)","v":9.8000000000000004E-2},{"$f":"B29*C29","v":2.7557600000000004},28.120000000000005,{"$f":"IF(B4>B7,F13,F12)","v":9.8000000000000004E-2},{"$f":"E29*F29","v":2.7557600000000004},0,0,2.7062626234314678E-2,2.6533539777555373E-2]
["Line Losses on Cost of Power (based on TOU prices)",{"$f":"B8-B4","v":28.120000000000005},{"$f":"VLOOKUP($B$3,'Data Billing Quantities'!$A:$O,MATCH('BI_R1_Low (without DRP)'!$A15,'Data Billing Quantities'!$4:$4,0),FALSE)*C15+VLOOKUP($B$3,'Data Billing Quantities'!$A:$O,MATCH('BI_R1_Low (without DRP)'!$A16,'Data Billing Quantities'!$4:$4,0),FALSE)*C16+VLOOKUP($B$3,'Data Billing Quantities'!$A:$O,MATCH('BI_R1_Low (without DRP)'!$A17,'Data Billing Quantities'!$4:$4,0),FALSE)*C17","v":0.10342000000000001},{"$f":"B30*C30","v":2.9081704000000008},28.120000000000005,{"$f":"VLOOKUP($B$3,'Data Billing Quantities'!$A:$O,MATCH('BI_R1_Low (without DRP)'!$A15,'Data Billing Quantities'!$4:$4,0),FALSE)*F15+VLOOKUP($B$3,'Data Billing Quantities'!$A:$O,MATCH('BI_R1_Low (without DRP)'!$A16,'Data Billing Quantities'!$4:$4,0),FALSE)*F16+VLOOKUP($B$3,'Data Billing Quantities'!$A:$O,MATCH('BI_R1_Low (without DRP)'!$A17,'Data Billing Quantities'!$4:$4,0),FALSE)*F17","v":0.10342000000000001},{"$f":"E30*F30","v":2.9081704000000008},0,0,2.8559355154620658E-2,2.8001006977497724E-2]
["Sub-Total:  Distribution (based on two-tier RPP prices)",null,null,{"$f":"SUM(D27,D28:D29)","v":64.068760000000012},null,null,{"$f":"SUM(G27,G28:G29)","v":63.621759999999995},-0.44700000000001694,-6.976879215393225E-3,0.62479022529148831,0.61257529671599886]
["Sub-Total:  Distribution (based on TOU prices)",null,null,{"$f":"SUM(D27,D28,D30)","v":64.221170400000005},null,null,{"$f":"SUM(G27,G28,G30)","v":63.774170399999996},-0.44700000000000983,-6.9603216075926544E-3,0.62628695421179426,0.61404276391594115]
["Retail Transmission Rate – Network Service Rate",{"$f":"B8","v":398.12},{"$f":"VLOOKUP($B$3,'Data Current Rates'!$A:$AP,MATCH('BI_R1_Low (without DRP)'!$A33,CurrentHeader,0),FALSE)","v":9.7999999999999997E-3},{"$f":"B33*C33","v":3.9015759999999999},398.12,{"$f":"VLOOKUP($B$3,'Data Proposed Rates'!$A:$AZ,MATCH('BI_R1_Low (without DRP)'!$A33,ProposedHeader,0),FALSE)","v":9.4999999999999998E-3},{"$f":"E33*F33","v":3.7821400000000001},{"$f":"G33-D33","v":-0.11943599999999988},-3.0612244897959152E-2,3.7142073760360446E-2,3.6415929592665278E-2]
["Retail Transmission Rate – Line and Transformation Connection Service Rate",{"$f":"B8","v":398.12},{"$f":"VLOOKUP($B$3,'Data Current Rates'!$A:$AP,MATCH('BI_R1_Low (without DRP)'!$A34,CurrentHeader,0),FALSE)","v":7.3000000000000001E-3},{"$f":"B34*C34","v":2.9062760000000001},398.12,{"$f":"VLOOKUP($B$3,'Data Proposed Rates'!$A:$AZ,MATCH('BI_R1_Low (without DRP)'!$A34,ProposedHeader,0),FALSE)","v":6.8999999999999999E-3},{"$f":"E34*F34","v":2.7470279999999998},{"$f":"G34-D34","v":-0.15924800000000028},-5.47945205479453E-2,2.6976874625946008E-2,2.6449464651514779E-2]
["Sub-Total:  Retail Transmission ",null,null,{"$f":"SUM(D33:D34)","v":6.8078520000000005},null,null,{"$f":"SUM(G33:G34)","v":6.5291680000000003},{"$f":"G35-D35","v":-0.27868400000000015},-4.0935672514619902E-2,6.4118948386306454E-2,6.2865394244180056E-2]
["Sub-Total:  Delivery (based on two-tier RPP prices)",null,null,{"$f":"D31+D35","v":70.876612000000009},null,null,{"$f":"G31+G35","v":70.150927999999993},{"$f":"G36-D36","v":-0.72568400000001532},-1.0238694817974866E-2,0.68890917367779481,0.67544069096017889]
["Sub-Total:  Delivery (based on TOU prices)",null,null,{"$f":"D32+D35","v":71.029022400000002},null,null,{"$f":"G32+G35","v":70.303338400000001},{"$f":"G37-D37","v":-0.72568400000000111},-1.0216725156560807E-2,0.69040590259810086,0.67690815816012129]
["Wholesale Market Service Rate (WMS) - not including CBR",{"$f":"B8","v":398.12},{"$f":"VLOOKUP($A38,'Data Pass Through'!$A:$D,2,FALSE)","v":3.0000000000000001E-3},{"$f":"B38*C38","v":1.1943600000000001},{"$f":"$B$8","v":398.12},{"$f":"VLOOKUP($A38,'Data Pass Through'!$A:$D,3,FALSE)","v":3.0000000000000001E-3},{"$f":"E38*F38","v":1.1943600000000001},0,0,1.1729075924324352E-2,1.1499767239789035E-2]
["Capacity Based Recovery (CBR) - Applicable for Class B Customers",{"$f":"B8","v":398.12},{"$f":"VLOOKUP($A39,'Data Pass Through'!$A:$D,2,FALSE)","v":4.0000000000000002E-4},{"$f":"B39*C39","v":0.159248},{"$f":"$B$8","v":398.12},{"$f":"VLOOKUP($A39,'Data Pass Through'!$A:$D,3,FALSE)","v":4.0000000000000002E-4},{"$f":"E39*F39","v":0.159248},0,0,1.5638767899099136E-3,1.533302298638538E-3]
["Rural Rate Protection Charge",{"$f":"B8","v":398.12},{"$f":"VLOOKUP($A40,'Data Pass Through'!$A:$D,2,FALSE)","v":5.0000000000000001E-4},0.19906000000000001,398.12,{"$f":"VLOOKUP($A40,'Data Pass Through'!$A:$D,3,FALSE)","v":5.0000000000000001E-4},0.19906000000000001,0,0,1.9548459873873921E-3,1.9166278732981727E-3]
["Standard Supply Service – Administration Charge (if applicable)",1,{"$f":"VLOOKUP($A41,'Data Pass Through'!$A:$D,2,FALSE)","v":0.25},{"$f":"B41*C41","v":0.25},1,{"$f":"VLOOKUP($A41,'Data Pass Through'!$A:$D,3,FALSE)","v":0.25},0.25,0,0,2.4550964374904448E-3,2.4070982031776504E-3]
["Sub-Total:  Regulatory",null,null,{"$f":"SUM(D38:D41)","v":1.8026680000000002},null,null,{"$f":"SUM(G38:G41)","v":1.8026680000000002},0,0,1.7702895139112104E-2,1.7356795614903397E-2]
["Total  Electricty Charge on Two-Tier RPP ",null,null,{"$f":"SUM(D14,D27,D28,D29,D35,D42)","v":108.93928},null,null,{"$f":"SUM(G14,G27,G28,G29,G35,G42)","v":108.21359599999997},-0.72568400000002953,-6.6613621826767128E-3,1.0626992561105209]
["     HST",null,0.13,{"$f":"D43*C44","v":14.162106400000001},null,{"$f":"C44","v":0.13},{"$f":"G43*F44","v":14.067767479999997},-9.4338920000003768E-2,-6.6613621826767068E-3,0.13815090329436772]
["Total Electricity Charge on Two-Tier RPP (including HST)",null,null,{"$f":"SUM(D43:D44)","v":123.1013864},null,null,{"$f":"SUM(G43:G44)","v":122.28136347999997},-0.82002292000002797,-6.6613621826766686E-3,1.2008501594048886]
["Ontario Electricity Rebate (OER)",null,{"$f":"IF(($B$4*12)<250000,VLOOKUP(A46,'Data Pass Through'!$A$4:$C$20,2,0),0)","v":-0.189},{"$f":"D43*C46","v":-20.589523919999998},null,{"$f":"C46","v":-0.189},{"$f":"G43*F46","v":-20.452369643999994},0.13715427600000396,6.6613621826766348E-3,-0.20085015940488843]
["Total Amount on Two-Tier RPP",null,null,{"$f":"SUM(D45:D46)","v":102.51186247999999},null,null,{"$f":"SUM(G45:G46)","v":101.82899383599997},-0.68286864400002401,-6.6613621826766764E-3,1]
["Total Electricty Charge on TOU (before HST)",null,null,{"$f":"SUM(D18,D27,D28,D30,D35,D42)","v":111.0970904},null,null,{"$f":"SUM(G18,G27,G28,G30,G35,G42)","v":110.37140639999998},-0.72568400000001532,-6.5319802470723875E-3,null,{"$f":"G48/$G$52","v":1.0626992561105209}]
["     HST",null,0.13,{"$f":"D48*C49","v":14.442621752000001},null,{"$f":"C49","v":0.13},{"$f":"G48*F49","v":14.348282831999999},-9.4338920000001991E-2,-6.5319802470723866E-3,null,{"$f":"G49/$G$52","v":0.13815090329436772}]
["Total Electricity Charge on TOU (including HST)",null,null,{"$f":"SUM(D48:D49)","v":125.53971215199999},null,null,{"$f":"SUM(G48:G49)","v":124.71968923199998},-0.82002292000001376,-6.5319802470723588E-3,null,{"$f":"G50/$G$52","v":1.2008501594048884}]
["Ontario Electricity Rebate (OER)",null,{"$f":"IF(($B$4*12)<250000,VLOOKUP(A51,'Data Pass Through'!$A$4:$C$20,2,0),0)","v":-0.189},{"$f":"D48*C51","v":-20.997350085600001},null,{"$f":"C51","v":-0.189},{"$f":"G48*F51","v":-20.860195809599997},0.13715427600000396,6.5319802470724378E-3,null,{"$f":"G51/$G$52","v":-0.20085015940488843}]
["Total Amount on TOU",null,null,{"$f":"SUM(D50:D51)","v":104.54236206639999},null,null,{"$f":"SUM(G50:G51)","v":103.85949342239998},-0.68286864400000979,-6.5319802470723432E-3,null,{"$f":"G52/$G$52","v":1}]
["* Distribution rate protection applies to R1 and R2 customers"]

{"sheet":"BI_R1_Typical (without DRP)","index":32,"n_rows":53,"n_cols":11,"rows_kept":53,"cut":false,"hidden":false,"merged":[[0,0,0,10]]}
["2023 Bill Impacts (Typical Consumption Level) - R1"]
[]
["Rate Class",{"$f":"RIGHT(A1,LEN(A1)-FIND(\"- \",A1,1)-1)","v":"R1"},"Without DRP"]
["Monthly Consumption (kWh)",{"$f":"IF(COUNTIF(A1,\"*Low*\")>0,VLOOKUP(B3,'Data Billing Quantities'!$A:$Z,MATCH(\"Low kWh\",'Data Billing Quantities'!4:4,0),FALSE),IF(COUNTIF(A1,\"*Typical*\")>0,VLOOKUP(B3,'Data Billing Quantities'!$A:$Z,MATCH(\"Typical kWh\",'Data Billing Quantities'!4:4,0),FALSE),IF(COUNTIF(A1,\"*Average*\")>0,VLOOKUP(B3,'Data Billing Quantities'!$A:$Z,MATCH(\"Average kWh\",'Data Billing Quantities'!4:4,0),FALSE),IF(COUNTIF(A1,\"*High*\")>0,VLOOKUP(B3,'Data Billing Quantities'!$A:$Z,MATCH(\"High kWh\",'Data Billing Quantities'!4:4,0),FALSE),\"error\"))))","v":750}]
["Peak (kW)",{"$f":"IF(COUNTIF(A1,\"*Low*\")>0,VLOOKUP(B3,'Data Billing Quantities'!$A:$Z,MATCH(\"Low kW\",'Data Billing Quantities'!4:4,0),FALSE),IF(COUNTIF(A1,\"*Typical*\")>0,VLOOKUP(B3,'Data Billing Quantities'!$A:$Z,MATCH(\"Typical kW\",'Data Billing Quantities'!4:4,0),FALSE),IF(COUNTIF(A1,\"*Average*\")>0,VLOOKUP(B3,'Data Billing Quantities'!$A:$Z,MATCH(\"Average kW\",'Data Billing Quantities'!4:4,0),FALSE),IF(COUNTIF(A1,\"*High*\")>0,VLOOKUP(B3,'Data Billing Quantities'!$A:$Z,MATCH(\"High kW\",'Data Billing Quantities'!4:4,0),FALSE),\"error\"))))","v":0}]
["Loss factor",{"$f":"VLOOKUP(B3,'Data Billing Quantities'!A:D,MATCH(A6,'Data Billing Quantities'!4:4,0),FALSE)","v":1.0760000000000001}]
["Commodity Threshold",{"$f":"VLOOKUP(B3,'Data Billing Quantities'!A:D,MATCH(A7,'Data Billing Quantities'!4:4,0),FALSE)","v":600}]
["Monthly Consumption (kWh) - Uplifted",{"$f":"B4*B6","v":807}]
["Charge determinant",{"$f":"VLOOKUP(B3,'Data Billing Quantities'!A:D,MATCH(A9,'Data Billing Quantities'!4:4,0),FALSE)","v":"kWh"}]
[]
[null,"Volume","Current Rate ($)","Current Charge ($)","Volume","Proposed Rate ($)","Proposed Charge ($)","Change ($)","Change (%)","% of Total Bill on RPP","% of Total Bill"]
["Energy First Tier",{"$f":"IF(B4>B7,B7,B4)","v":600},{"$f":"VLOOKUP($A12,'Data Pass Through'!$A:$D,2,FALSE)","v":9.8000000000000004E-2},{"$f":"B12*C12","v":58.800000000000004},{"$f":"B12","v":600},{"$f":"VLOOKUP($A12,'Data Pass Through'!$A:$D,3,FALSE)","v":9.8000000000000004E-2},{"$f":"E12*F12","v":58.800000000000004},{"$f":"G12-D12","v":0},{"$f":"IF(ISERROR(H12/ABS(D12)),\"N/A\",(H12/ABS(D12)))","v":0},{"$f":"G12/$G$47","v":0.38589412309180249}]
["Energy Second Tier",{"$f":"IF(B4>B7,(B4)-B7,0)","v":150},{"$f":"VLOOKUP($A13,'Data Pass Through'!$A:$D,2,FALSE)","v":0.115},{"$f":"B13*C13","v":17.25},{"$f":"B13","v":150},{"$f":"VLOOKUP($A13,'Data Pass Through'!$A:$D,3,FALSE)","v":0.115},{"$f":"E13*F13","v":17.25},0,0,{"$f":"G13/$G$47","v":0.11320873509070736}]
["Sub-Total:  Energy (RPP Tiered)",null,null,{"$f":"SUM(D12:D13)","v":76.050000000000011},null,null,{"$f":"SUM(G12:G13)","v":76.050000000000011},0,0,{"$f":"G14/$G$47","v":0.49910285818250993}]
["TOU-Off Peak",{"$f":"B$4*VLOOKUP($B$3,'Data Billing Quantities'!$A:$O,MATCH('BI_R1_Typical (without DRP)'!$A15,'Data Billing Quantities'!$4:$4,0),FALSE)","v":480},{"$f":"VLOOKUP($A15,'Data Pass Through'!$A:$D,2,FALSE)","v":8.2000000000000003E-2},{"$f":"B15*C15","v":39.36},480,{"$f":"VLOOKUP($A15,'Data Pass Through'!$A:$D,3,FALSE)","v":8.2000000000000003E-2},{"$f":"E15*F15","v":39.36},0,0,null,{"$f":"G15/$G$52","v":0.2569561280870426}]
["TOU-Mid Peak",{"$f":"B$4*VLOOKUP($B$3,'Data Billing Quantities'!$A:$O,MATCH('BI_R1_Typical (without DRP)'!$A16,'Data Billing Quantities'!$4:$4,0),FALSE)","v":135},{"$f":"VLOOKUP($A16,'Data Pass Through'!$A:$D,2,FALSE)","v":0.113},{"$f":"B16*C16","v":15.255000000000001},135,{"$f":"VLOOKUP($A16,'Data Pass Through'!$A:$D,3,FALSE)","v":0.113},{"$f":"E16*F16","v":15.255000000000001},0,0,null,9.9590084704467355E-2]
["TOU-On Peak",{"$f":"B$4*VLOOKUP($B$3,'Data Billing Quantities'!$A:$O,MATCH('BI_R1_Typical (without DRP)'!$A17,'Data Billing Quantities'!$4:$4,0),FALSE)","v":135},{"$f":"VLOOKUP($A17,'Data Pass Through'!$A:$D,2,FALSE)","v":0.17},{"$f":"B17*C17","v":22.950000000000003},135,{"$f":"VLOOKUP($A17,'Data Pass Through'!$A:$D,3,FALSE)","v":0.17},{"$f":"E17*F17","v":22.950000000000003},0,0,null,0.14982579114831371]
["Sub-Total:  Energy (RPP TOU)",null,null,{"$f":"SUM(D15:D17)","v":77.564999999999998},null,null,{"$f":"SUM(G15:G17)","v":77.564999999999998},0,0,{"$f":"G18/$G$47","v":0.50904553839482414},0.50637200393982362]
["Service Charge",1,{"$f":"VLOOKUP($B$3,'Data Current Rates'!$A:$AP,MATCH('BI_R1_Typical (without DRP)'!$A19,CurrentHeader,0),FALSE)","v":55.52},{"$f":"B19*C19","v":55.52},1,{"$f":"VLOOKUP($B$3,'Data Proposed Rates'!$A:$AZ,MATCH('BI_R1_Typical (without DRP)'!$A19,ProposedHeader,0),FALSE)","v":57.22},{"$f":"E19*F19","v":57.22},1.6999999999999957,3.0619596541786667E-2,0.37552485924001594,0.37355258254930329]
["Fixed Base Rate Adjustment to Recover Past Tax Amounts ",1,{"$f":"VLOOKUP($B$3,'Data Current Rates'!$A:$AP,MATCH('BI_R1_Typical (without DRP)'!$A20,CurrentHeader,0),FALSE)","v":1.56},1.56,1,{"$f":"VLOOKUP($B$3,'Data Proposed Rates'!$A:$AZ,MATCH('BI_R1_Typical (without DRP)'!$A20,ProposedHeader,0),FALSE)","v":1.44},1.44,-0.12000000000000011,-7.6923076923076983E-2,9.4504683206155706E-3,9.4008339544039976E-3]
["Group 2 Fixed DVA Rider ",null,null,null,1,{"$f":"VLOOKUP($B$3,'Data Proposed Rates'!$A:$AZ,MATCH('BI_R1_Typical (without DRP)'!$A21,ProposedHeader,0),FALSE)","v":-0.14000000000000001},-0.14000000000000001,-0.14000000000000001,"N/A",-9.1879553117095837E-4,-9.1396996778927758E-4]
["Distribution Volumetric Charge",{"$f":"IF($B$9=\"kWh\",$B$4,$B$5)","v":750},{"$f":"VLOOKUP($B$3,'Data Current Rates'!$A:$AP,MATCH('BI_R1_Typical (without DRP)'!$A22,CurrentHeader,0),FALSE)","v":9.9000000000000008E-3},7.4250000000000007,750,{"$f":"VLOOKUP($B$3,'Data Proposed Rates'!$A:$AZ,MATCH('BI_R1_Typical (without DRP)'!$A22,ProposedHeader,0),FALSE)","v":5.1999999999999998E-3},3.9,-3.5250000000000008,-0.47474747474747481,2.5595018368333836E-2,2.5460591959844157E-2]
["Volumetric Base Rate Adjustment to Recover Past Tax Amounts ",{"$f":"IF($B$9=\"kWh\",$B$4,$B$5)","v":750},{"$f":"VLOOKUP($B$3,'Data Current Rates'!$A:$AP,MATCH('BI_R1_Typical (without DRP)'!$A23,CurrentHeader,0),FALSE)","v":0},0,750,{"$f":"VLOOKUP($B$3,'Data Proposed Rates'!$A:$AZ,MATCH('BI_R1_Typical (without DRP)'!$A23,ProposedHeader,0),FALSE)","v":0},0,0,"N/A",0,0]
["Group 1 Volumetric DVA Rider (General)",null,null,null,{"$f":"B4","v":750},{"$f":"VLOOKUP($B$3,'Data Proposed Rates'!$A:$AZ,MATCH('BI_R1_Typical (without DRP)'!$A24,ProposedHeader,0),FALSE)","v":-4.0000000000000002E-4},-0.3,-0.3,"N/A",-1.9688475667949106E-3,-1.9585070738341662E-3]
["Group 2 Volumetric DVA Rider ",null,null,null,{"$f":"B4","v":750},{"$f":"VLOOKUP($B$3,'Data Proposed Rates'!$A:$AZ,MATCH('BI_R1_Typical (without DRP)'!$A25,ProposedHeader,0),FALSE)","v":0},0,0,"N/A",0,0]
["Fair Hydro Plan - Distribution Rate Protection Savings*",null,null,0,null,null,0,0,"N/A",0,0]
["Sub-Total:  Distribution (excluding pass through)",null,null,{"$f":"SUM(INDIRECT(\"D19:D\"&ROW()-1))","v":64.50500000000001},null,null,{"$f":"SUM(INDIRECT(\"g19:g\"&ROW()-1))","v":62.12},{"$f":"G27-D27","v":-2.3850000000000122},-3.6973877993954143E-2,0.40768270283099944,0.40554153142192795]
["Smart Metering Entity Charge",1,{"$f":"VLOOKUP($A28,'Data Pass Through'!$A:$D,2,FALSE)","v":0.56999999999999995},{"$f":"B28*C28","v":0.56999999999999995},1,{"$f":"VLOOKUP($A28,'Data Pass Through'!$A:$D,3,FALSE)","v":0.56999999999999995},{"$f":"E28*F28","v":0.56999999999999995},0,0,3.74081037691033E-3,3.7211634402849153E-3]
["Line Losses on Cost of Power (based on two-tier RPP prices)",{"$f":"B8-B4","v":57},{"$f":"IF(B4>B7,C13,C12)","v":0.115},{"$f":"B29*C29","v":6.5550000000000006},57,{"$f":"IF(B4>B7,F13,F12)","v":0.115},{"$f":"E29*F29","v":6.5550000000000006},0,0,4.30193193344688E-2,4.2793379563276529E-2]
["Line Losses on Cost of Power (based on TOU prices)",{"$f":"B8-B4","v":57},{"$f":"VLOOKUP($B$3,'Data Billing Quantities'!$A:$O,MATCH('BI_R1_Typical (without DRP)'!$A15,'Data Billing Quantities'!$4:$4,0),FALSE)*C15+VLOOKUP($B$3,'Data Billing Quantities'!$A:$O,MATCH('BI_R1_Typical (without DRP)'!$A16,'Data Billing Quantities'!$4:$4,0),FALSE)*C16+VLOOKUP($B$3,'Data Billing Quantities'!$A:$O,MATCH('BI_R1_Typical (without DRP)'!$A17,'Data Billing Quantities'!$4:$4,0),FALSE)*C17","v":0.10342000000000001},{"$f":"B30*C30","v":5.894940000000001},57,{"$f":"VLOOKUP($B$3,'Data Billing Quantities'!$A:$O,MATCH('BI_R1_Typical (without DRP)'!$A15,'Data Billing Quantities'!$4:$4,0),FALSE)*F15+VLOOKUP($B$3,'Data Billing Quantities'!$A:$O,MATCH('BI_R1_Typical (without DRP)'!$A16,'Data Billing Quantities'!$4:$4,0),FALSE)*F16+VLOOKUP($B$3,'Data Billing Quantities'!$A:$O,MATCH('BI_R1_Typical (without DRP)'!$A17,'Data Billing Quantities'!$4:$4,0),FALSE)*F17","v":0.10342000000000001},{"$f":"E30*F30","v":5.894940000000001},0,0,3.8687460918006643E-2,3.8484272299426601E-2]
["Sub-Total:  Distribution (based on two-tier RPP prices)",null,null,{"$f":"SUM(D27,D28:D29)","v":71.63000000000001},null,null,{"$f":"SUM(G27,G28:G29)","v":69.245000000000005},-2.3850000000000051,-3.3296104983945342E-2,0.45444283254237866,0.45205607442548945]
["Sub-Total:  Distribution (based on TOU prices)",null,null,{"$f":"SUM(D27,D28,D30)","v":70.969940000000008},null,null,{"$f":"SUM(G27,G28,G30)","v":68.584940000000003},-2.3850000000000051,-3.3605777319242552E-2,0.4501109741259165,0.44774696716163953]
["Retail Transmission Rate – Network Service Rate",{"$f":"B8","v":807},{"$f":"VLOOKUP($B$3,'Data Current Rates'!$A:$AP,MATCH('BI_R1_Typical (without DRP)'!$A33,CurrentHeader,0),FALSE)","v":9.7999999999999997E-3},{"$f":"B33*C33","v":7.9085999999999999},807,{"$f":"VLOOKUP($B$3,'Data Proposed Rates'!$A:$AZ,MATCH('BI_R1_Typical (without DRP)'!$A33,ProposedHeader,0),FALSE)","v":9.4999999999999998E-3},{"$f":"E33*F33","v":7.6665000000000001},{"$f":"G33-D33","v":-0.24209999999999976},-3.0612244897959155E-2,5.0313899569443939E-2,5.0049648271832115E-2]
["Retail Transmission Rate – Line and Transformation Connection Service Rate",{"$f":"B8","v":807},{"$f":"VLOOKUP($B$3,'Data Current Rates'!$A:$AP,MATCH('BI_R1_Typical (without DRP)'!$A34,CurrentHeader,0),FALSE)","v":7.3000000000000001E-3},{"$f":"B34*C34","v":5.8910999999999998},807,{"$f":"VLOOKUP($B$3,'Data Proposed Rates'!$A:$AZ,MATCH('BI_R1_Typical (without DRP)'!$A34,ProposedHeader,0),FALSE)","v":6.8999999999999999E-3},{"$f":"E34*F34","v":5.5682999999999998},{"$f":"G34-D34","v":-0.32279999999999998},-5.4794520547945202E-2,3.6543779687280335E-2,3.6351849797435956E-2]
["Sub-Total:  Retail Transmission ",null,null,{"$f":"SUM(D33:D34)","v":13.7997},null,null,{"$f":"SUM(G33:G34)","v":13.2348},{"$f":"G35-D35","v":-0.56489999999999974},-4.0935672514619867E-2,8.6857679256724274E-2,8.6401498069268071E-2]
["Sub-Total:  Delivery (based on two-tier RPP prices)",null,null,{"$f":"D31+D35","v":85.429700000000011},null,null,{"$f":"G31+G35","v":82.479800000000012},{"$f":"G36-D36","v":-2.9498999999999995},-3.4530145839210477E-2,0.54130051179910299,0.53845757249475756]
["Sub-Total:  Delivery (based on TOU prices)",null,null,{"$f":"D32+D35","v":84.76964000000001},null,null,{"$f":"G32+G35","v":81.819739999999996},{"$f":"G37-D37","v":-2.9499000000000137},-3.4799015307839146E-2,0.53696865338264066,0.53414846523090753]
["Wholesale Market Service Rate (WMS) - not including CBR",{"$f":"B8","v":807},{"$f":"VLOOKUP($A38,'Data Pass Through'!$A:$D,2,FALSE)","v":3.0000000000000001E-3},{"$f":"B38*C38","v":2.4210000000000003},{"$f":"$B$8","v":807},{"$f":"VLOOKUP($A38,'Data Pass Through'!$A:$D,3,FALSE)","v":3.0000000000000001E-3},{"$f":"E38*F38","v":2.4210000000000003},0,0,1.588859986403493E-2,1.5805152085841722E-2]
["Capacity Based Recovery (CBR) - Applicable for Class B Customers",{"$f":"B8","v":807},{"$f":"VLOOKUP($A39,'Data Pass Through'!$A:$D,2,FALSE)","v":4.0000000000000002E-4},{"$f":"B39*C39","v":0.32280000000000003},{"$f":"$B$8","v":807},{"$f":"VLOOKUP($A39,'Data Pass Through'!$A:$D,3,FALSE)","v":4.0000000000000002E-4},{"$f":"E39*F39","v":0.32280000000000003},0,0,2.1184799818713242E-3,2.1073536114455628E-3]
["Rural Rate Protection Charge",{"$f":"B8","v":807},{"$f":"VLOOKUP($A40,'Data Pass Through'!$A:$D,2,FALSE)","v":5.0000000000000001E-4},0.40350000000000003,807,{"$f":"VLOOKUP($A40,'Data Pass Through'!$A:$D,3,FALSE)","v":5.0000000000000001E-4},0.40350000000000003,0,0,2.648099977339155E-3,2.6341920143069537E-3]
["Standard Supply Service – Administration Charge (if applicable)",1,{"$f":"VLOOKUP($A41,'Data Pass Through'!$A:$D,2,FALSE)","v":0.25},{"$f":"B41*C41","v":0.25},1,{"$f":"VLOOKUP($A41,'Data Pass Through'!$A:$D,3,FALSE)","v":0.25},0.25,0,0,1.6407063056624255E-3,1.6320892281951383E-3]
["Sub-Total:  Regulatory",null,null,{"$f":"SUM(D38:D41)","v":3.3973000000000004},null,null,{"$f":"SUM(G38:G41)","v":3.3973000000000004},0,0,2.2295886128907837E-2,2.2178786939789377E-2]
["Total  Electricty Charge on Two-Tier RPP ",null,null,{"$f":"SUM(D14,D27,D28,D29,D35,D42)","v":164.87700000000001},null,null,{"$f":"SUM(G14,G27,G28,G29,G35,G42)","v":161.92710000000002},-2.9498999999999853,-1.7891519132444095E-2,1.0626992561105206]
["     HST",null,0.13,{"$f":"D43*C44","v":21.434010000000001},null,{"$f":"C44","v":0.13},{"$f":"G43*F44","v":21.050523000000005},-0.38348699999999525,-1.7891519132443964E-2,0.13815090329436772]
["Total Electricity Charge on Two-Tier RPP (including HST)",null,null,{"$f":"SUM(D43:D44)","v":186.31101000000001},null,null,{"$f":"SUM(G43:G44)","v":182.97762300000002},-3.3333869999999877,-1.789151913244412E-2,1.2008501594048884]
["Ontario Electricity Rebate (OER)",null,{"$f":"IF(($B$4*12)<250000,VLOOKUP(A46,'Data Pass Through'!$A$4:$C$20,2,0),0)","v":-0.189},{"$f":"D43*C46","v":-31.161753000000001},null,{"$f":"C46","v":-0.189},{"$f":"G43*F46","v":-30.604221900000006},0.55753109999999495,1.7891519132444023E-2,-0.20085015940488843]
["Total Amount on Two-Tier RPP",null,null,{"$f":"SUM(D45:D46)","v":155.14925700000001},null,null,{"$f":"SUM(G45:G46)","v":152.37340110000002},-2.7758558999999821,-1.7891519132444068E-2,1]
["Total Electricty Charge on TOU (before HST)",null,null,{"$f":"SUM(D18,D27,D28,D30,D35,D42)","v":165.73193999999998},null,null,{"$f":"SUM(G18,G27,G28,G30,G35,G42)","v":162.78203999999999},-2.9498999999999853,-1.7799224458483896E-2,null,{"$f":"G48/$G$52","v":1.0626992561105206}]
["     HST",null,0.13,{"$f":"D48*C49","v":21.545152199999997},null,{"$f":"C49","v":0.13},{"$f":"G48*F49","v":21.161665200000002},-0.38348699999999525,-1.7799224458483764E-2,null,{"$f":"G49/$G$52","v":0.13815090329436769}]
["Total Electricity Charge on TOU (including HST)",null,null,{"$f":"SUM(D48:D49)","v":187.27709219999997},null,null,{"$f":"SUM(G48:G49)","v":183.94370520000001},-3.3333869999999592,-1.7799224458483767E-2,null,{"$f":"G50/$G$52","v":1.2008501594048884}]
["Ontario Electricity Rebate (OER)",null,{"$f":"IF(($B$4*12)<250000,VLOOKUP(A51,'Data Pass Through'!$A$4:$C$20,2,0),0)","v":-0.189},{"$f":"D48*C51","v":-31.323336659999995},null,{"$f":"C51","v":-0.189},{"$f":"G48*F51","v":-30.76580556},0.55753109999999495,1.7799224458483826E-2,null,{"$f":"G51/$G$52","v":-0.2008501594048884}]
["Total Amount on TOU",null,null,{"$f":"SUM(D50:D51)","v":155.95375553999997},null,null,{"$f":"SUM(G50:G51)","v":153.17789964000002},-2.7758558999999536,-1.7799224458483687E-2,null,{"$f":"G52/$G$52","v":1}]
["* Distribution rate protection applies to R1 and R2 customers"]

{"sheet":"BI_R1_Avg (without DRP)","index":33,"n_rows":53,"n_cols":11,"rows_kept":53,"cut":false,"hidden":false,"merged":[[0,0,0,10]]}
["2023 Bill Impacts (Average Consumption Level) - R1"]
[]
["Rate Class",{"$f":"RIGHT(A1,LEN(A1)-FIND(\"- \",A1,1)-1)","v":"R1"},"Without DRP"]
["Monthly Consumption (kWh)",{"$f":"IF(COUNTIF(A1,\"*Low*\")>0,VLOOKUP(B3,'Data Billing Quantities'!$A:$Z,MATCH(\"Low kWh\",'Data Billing Quantities'!4:4,0),FALSE),IF(COUNTIF(A1,\"*Typical*\")>0,VLOOKUP(B3,'Data Billing Quantities'!$A:$Z,MATCH(\"Typical kWh\",'Data Billing Quantities'!4:4,0),FALSE),IF(COUNTIF(A1,\"*Average*\")>0,VLOOKUP(B3,'Data Billing Quantities'!$A:$Z,MATCH(\"Average kWh\",'Data Billing Quantities'!4:4,0),FALSE),IF(COUNTIF(A1,\"*High*\")>0,VLOOKUP(B3,'Data Billing Quantities'!$A:$Z,MATCH(\"High kWh\",'Data Billing Quantities'!4:4,0),FALSE),\"error\"))))","v":784}]
["Peak (kW)",{"$f":"IF(COUNTIF(A1,\"*Low*\")>0,VLOOKUP(B3,'Data Billing Quantities'!$A:$Z,MATCH(\"Low kW\",'Data Billing Quantities'!4:4,0),FALSE),IF(COUNTIF(A1,\"*Typical*\")>0,VLOOKUP(B3,'Data Billing Quantities'!$A:$Z,MATCH(\"Typical kW\",'Data Billing Quantities'!4:4,0),FALSE),IF(COUNTIF(A1,\"*Average*\")>0,VLOOKUP(B3,'Data Billing Quantities'!$A:$Z,MATCH(\"Average kW\",'Data Billing Quantities'!4:4,0),FALSE),IF(COUNTIF(A1,\"*High*\")>0,VLOOKUP(B3,'Data Billing Quantities'!$A:$Z,MATCH(\"High kW\",'Data Billing Quantities'!4:4,0),FALSE),\"error\"))))","v":0}]
["Loss factor",{"$f":"VLOOKUP(B3,'Data Billing Quantities'!A:D,MATCH(A6,'Data Billing Quantities'!4:4,0),FALSE)","v":1.0760000000000001}]
["Commodity Threshold",{"$f":"VLOOKUP(B3,'Data Billing Quantities'!A:D,MATCH(A7,'Data Billing Quantities'!4:4,0),FALSE)","v":600}]
["Monthly Consumption (kWh) - Uplifted",{"$f":"B4*B6","v":843.58400000000006}]
["Charge determinant",{"$f":"VLOOKUP(B3,'Data Billing Quantities'!A:D,MATCH(A9,'Data Billing Quantities'!4:4,0),FALSE)","v":"kWh"}]
[]
[null,"Volume","Current Rate ($)","Current Charge ($)","Volume","Proposed Rate ($)","Proposed Charge ($)","Change ($)","Change (%)","% of Total Bill on RPP","% of Total Bill"]
["Energy First Tier",{"$f":"IF(B4>B7,B7,B4)","v":600},{"$f":"VLOOKUP($A12,'Data Pass Through'!$A:$D,2,FALSE)","v":9.8000000000000004E-2},{"$f":"B12*C12","v":58.800000000000004},{"$f":"B12","v":600},{"$f":"VLOOKUP($A12,'Data Pass Through'!$A:$D,3,FALSE)","v":9.8000000000000004E-2},{"$f":"E12*F12","v":58.800000000000004},{"$f":"G12-D12","v":0},{"$f":"IF(ISERROR(H12/ABS(D12)),\"N/A\",(H12/ABS(D12)))","v":0},{"$f":"G12/$G$47","v":0.37408209509722984}]
["Energy Second Tier",{"$f":"IF(B4>B7,(B4)-B7,0)","v":184},{"$f":"VLOOKUP($A13,'Data Pass Through'!$A:$D,2,FALSE)","v":0.115},{"$f":"B13*C13","v":21.16},{"$f":"B13","v":184},{"$f":"VLOOKUP($A13,'Data Pass Through'!$A:$D,3,FALSE)","v":0.115},{"$f":"E13*F13","v":21.16},0,0,{"$f":"G13/$G$47","v":0.13461865871186024}]
["Sub-Total:  Energy (RPP Tiered)",null,null,{"$f":"SUM(D12:D13)","v":79.960000000000008},null,null,{"$f":"SUM(G12:G13)","v":79.960000000000008},0,0,{"$f":"G14/$G$47","v":0.50870075380909008}]
["TOU-Off Peak",{"$f":"B$4*VLOOKUP($B$3,'Data Billing Quantities'!$A:$O,MATCH('BI_R1_Avg (without DRP)'!$A15,'Data Billing Quantities'!$4:$4,0),FALSE)","v":501.76},{"$f":"VLOOKUP($A15,'Data Pass Through'!$A:$D,2,FALSE)","v":8.2000000000000003E-2},{"$f":"B15*C15","v":41.14432},501.76,{"$f":"VLOOKUP($A15,'Data Pass Through'!$A:$D,3,FALSE)","v":8.2000000000000003E-2},{"$f":"E15*F15","v":41.14432},0,0,null,{"$f":"G15/$G$52","v":0.26108359396798481}]
["TOU-Mid Peak",{"$f":"B$4*VLOOKUP($B$3,'Data Billing Quantities'!$A:$O,MATCH('BI_R1_Avg (without DRP)'!$A16,'Data Billing Quantities'!$4:$4,0),FALSE)","v":141.12},{"$f":"VLOOKUP($A16,'Data Pass Through'!$A:$D,2,FALSE)","v":0.113},{"$f":"B16*C16","v":15.946560000000002},141.12,{"$f":"VLOOKUP($A16,'Data Pass Through'!$A:$D,3,FALSE)","v":0.113},{"$f":"E16*F16","v":15.946560000000002},0,0,null,0.10118979232676852]
["TOU-On Peak",{"$f":"B$4*VLOOKUP($B$3,'Data Billing Quantities'!$A:$O,MATCH('BI_R1_Avg (without DRP)'!$A17,'Data Billing Quantities'!$4:$4,0),FALSE)","v":141.12},{"$f":"VLOOKUP($A17,'Data Pass Through'!$A:$D,2,FALSE)","v":0.17},{"$f":"B17*C17","v":23.990400000000001},141.12,{"$f":"VLOOKUP($A17,'Data Pass Through'!$A:$D,3,FALSE)","v":0.17},{"$f":"E17*F17","v":23.990400000000001},0,0,null,0.15223243093407651]
["Sub-Total:  Energy (RPP TOU)",null,null,{"$f":"SUM(D15:D17)","v":81.081279999999992},null,null,{"$f":"SUM(G15:G17)","v":81.081279999999992},0,0,{"$f":"G18/$G$47","v":0.5158342703327401},0.51450581722882982]
["Service Charge",1,{"$f":"VLOOKUP($B$3,'Data Current Rates'!$A:$AP,MATCH('BI_R1_Avg (without DRP)'!$A19,CurrentHeader,0),FALSE)","v":55.52},{"$f":"B19*C19","v":55.52},1,{"$f":"VLOOKUP($B$3,'Data Proposed Rates'!$A:$AZ,MATCH('BI_R1_Avg (without DRP)'!$A19,ProposedHeader,0),FALSE)","v":57.22},{"$f":"E19*F19","v":57.22},1.6999999999999957,3.0619596541786667E-2,0.36403022927658996,0.36309272450846414]
["Fixed Base Rate Adjustment to Recover Past Tax Amounts ",1,{"$f":"VLOOKUP($B$3,'Data Current Rates'!$A:$AP,MATCH('BI_R1_Avg (without DRP)'!$A20,CurrentHeader,0),FALSE)","v":1.56},1.56,1,{"$f":"VLOOKUP($B$3,'Data Proposed Rates'!$A:$AZ,MATCH('BI_R1_Avg (without DRP)'!$A20,ProposedHeader,0),FALSE)","v":1.44},1.44,-0.12000000000000011,-7.6923076923076983E-2,9.1611941656464437E-3,9.1376008964031523E-3]
["Group 2 Fixed DVA Rider ",null,null,null,1,{"$f":"VLOOKUP($B$3,'Data Proposed Rates'!$A:$AZ,MATCH('BI_R1_Avg (without DRP)'!$A21,ProposedHeader,0),FALSE)","v":-0.14000000000000001},-0.14000000000000001,-0.14000000000000001,"N/A",-8.9067165499340435E-4,-8.8837786492808432E-4]
["Distribution Volumetric Charge",{"$f":"IF($B$9=\"kWh\",$B$4,$B$5)","v":784},{"$f":"VLOOKUP($B$3,'Data Current Rates'!$A:$AP,MATCH('BI_R1_Avg (without DRP)'!$A22,CurrentHeader,0),FALSE)","v":9.9000000000000008E-3},7.7616000000000005,784,{"$f":"VLOOKUP($B$3,'Data Proposed Rates'!$A:$AZ,MATCH('BI_R1_Avg (without DRP)'!$A22,ProposedHeader,0),FALSE)","v":5.1999999999999998E-3},4.0767999999999995,-3.684800000000001,-0.47474747474747486,2.593635859340793E-2,2.5869563426705811E-2]
["Volumetric Base Rate Adjustment to Recover Past Tax Amounts ",{"$f":"IF($B$9=\"kWh\",$B$4,$B$5)","v":784},{"$f":"VLOOKUP($B$3,'Data Current Rates'!$A:$AP,MATCH('BI_R1_Avg (without DRP)'!$A23,CurrentHeader,0),FALSE)","v":0},0,784,{"$f":"VLOOKUP($B$3,'Data Proposed Rates'!$A:$AZ,MATCH('BI_R1_Avg (without DRP)'!$A23,ProposedHeader,0),FALSE)","v":0},0,0,"N/A",0,0]
["Group 1 Volumetric DVA Rider (General)",null,null,null,{"$f":"B4","v":784},{"$f":"VLOOKUP($B$3,'Data Proposed Rates'!$A:$AZ,MATCH('BI_R1_Avg (without DRP)'!$A24,ProposedHeader,0),FALSE)","v":-4.0000000000000002E-4},-0.31359999999999999,-0.31359999999999999,"N/A",-1.9951045071852254E-3,-1.9899664174389087E-3]
["Group 2 Volumetric DVA Rider ",null,null,null,{"$f":"B4","v":784},{"$f":"VLOOKUP($B$3,'Data Proposed Rates'!$A:$AZ,MATCH('BI_R1_Avg (without DRP)'!$A25,ProposedHeader,0),FALSE)","v":0},0,0,"N/A",0,0]
["Fair Hydro Plan - Distribution Rate Protection Savings*",null,null,0,null,null,0,0,"N/A",0,0]
["Sub-Total:  Distribution (excluding pass through)",null,null,{"$f":"SUM(INDIRECT(\"D19:D\"&ROW()-1))","v":64.8416},null,null,{"$f":"SUM(INDIRECT(\"g19:g\"&ROW()-1))","v":62.283199999999994},{"$f":"G27-D27","v":-2.558400000000006},-3.945615160637625E-2,0.39624200587346564,0.39522154454920605]
["Smart Metering Entity Charge",1,{"$f":"VLOOKUP($A28,'Data Pass Through'!$A:$D,2,FALSE)","v":0.56999999999999995},{"$f":"B28*C28","v":0.56999999999999995},1,{"$f":"VLOOKUP($A28,'Data Pass Through'!$A:$D,3,FALSE)","v":0.56999999999999995},{"$f":"E28*F28","v":0.56999999999999995},0,0,3.6263060239017171E-3,3.6169670214929142E-3]
["Line Losses on Cost of Power (based on two-tier RPP prices)",{"$f":"B8-B4","v":59.58400000000006},{"$f":"IF(B4>B7,C13,C12)","v":0.115},{"$f":"B29*C29","v":6.8521600000000076},59.58400000000006,{"$f":"IF(B4>B7,F13,F12)","v":0.115},{"$f":"E29*F29","v":6.8521600000000076},0,0,4.359303348199723E-2,4.3480766221040204E-2]
["Line Losses on Cost of Power (based on TOU prices)",{"$f":"B8-B4","v":59.58400000000006},{"$f":"VLOOKUP($B$3,'Data Billing Quantities'!$A:$O,MATCH('BI_R1_Avg (without DRP)'!$A15,'Data Billing Quantities'!$4:$4,0),FALSE)*C15+VLOOKUP($B$3,'Data Billing Quantities'!$A:$O,MATCH('BI_R1_Avg (without DRP)'!$A16,'Data Billing Quantities'!$4:$4,0),FALSE)*C16+VLOOKUP($B$3,'Data Billing Quantities'!$A:$O,MATCH('BI_R1_Avg (without DRP)'!$A17,'Data Billing Quantities'!$4:$4,0),FALSE)*C17","v":0.10342000000000001},{"$f":"B30*C30","v":6.162177280000007},59.58400000000006,{"$f":"VLOOKUP($B$3,'Data Billing Quantities'!$A:$O,MATCH('BI_R1_Avg (without DRP)'!$A15,'Data Billing Quantities'!$4:$4,0),FALSE)*F15+VLOOKUP($B$3,'Data Billing Quantities'!$A:$O,MATCH('BI_R1_Avg (without DRP)'!$A16,'Data Billing Quantities'!$4:$4,0),FALSE)*F16+VLOOKUP($B$3,'Data Billing Quantities'!$A:$O,MATCH('BI_R1_Avg (without DRP)'!$A17,'Data Billing Quantities'!$4:$4,0),FALSE)*F17","v":0.10342000000000001},{"$f":"E30*F30","v":6.162177280000007},0,0,3.9203404545288291E-2,3.9102442109391108E-2]
["Sub-Total:  Distribution (based on two-tier RPP prices)",null,null,{"$f":"SUM(D27,D28:D29)","v":72.263760000000005},null,null,{"$f":"SUM(G27,G28:G29)","v":69.705359999999999},-2.558400000000006,-3.5403638006104382E-2,0.4434613453793646,0.44231927779173918]
["Sub-Total:  Distribution (based on TOU prices)",null,null,{"$f":"SUM(D27,D28,D30)","v":71.573777280000002},null,null,{"$f":"SUM(G27,G28,G30)","v":69.015377279999996},-2.558400000000006,-3.5744934768377867E-2,0.43907171644265564,0.43794095368009006]
["Retail Transmission Rate – Network Service Rate",{"$f":"B8","v":843.58400000000006},{"$f":"VLOOKUP($B$3,'Data Current Rates'!$A:$AP,MATCH('BI_R1_Avg (without DRP)'!$A33,CurrentHeader,0),FALSE)","v":9.7999999999999997E-3},{"$f":"B33*C33","v":8.2671232000000003},843.58400000000006,{"$f":"VLOOKUP($B$3,'Data Proposed Rates'!$A:$AZ,MATCH('BI_R1_Avg (without DRP)'!$A33,ProposedHeader,0),FALSE)","v":9.4999999999999998E-3},{"$f":"E33*F33","v":8.0140480000000007},{"$f":"G33-D33","v":-0.25307519999999961},-3.0612244897959134E-2,5.0984895681118449E-2,5.0853591797651317E-2]
["Retail Transmission Rate – Line and Transformation Connection Service Rate",{"$f":"B8","v":843.58400000000006},{"$f":"VLOOKUP($B$3,'Data Current Rates'!$A:$AP,MATCH('BI_R1_Avg (without DRP)'!$A34,CurrentHeader,0),FALSE)","v":7.3000000000000001E-3},{"$f":"B34*C34","v":6.1581632000000006},843.58400000000006,{"$f":"VLOOKUP($B$3,'Data Proposed Rates'!$A:$AZ,MATCH('BI_R1_Avg (without DRP)'!$A34,ProposedHeader,0),FALSE)","v":6.8999999999999999E-3},{"$f":"E34*F34","v":5.8207295999999999},{"$f":"G34-D34","v":-0.33743360000000067},-5.4794520547945307E-2,3.7031134757864972E-2,3.6935766674083582E-2]
["Sub-Total:  Retail Transmission ",null,null,{"$f":"SUM(D33:D34)","v":14.425286400000001},null,null,{"$f":"SUM(G33:G34)","v":13.834777600000001},{"$f":"G35-D35","v":-0.59050880000000028},-4.0935672514619902E-2,8.8016030438983414E-2,8.7789358471734899E-2]
["Sub-Total:  Delivery (based on two-tier RPP prices)",null,null,{"$f":"D31+D35","v":86.689046400000009},null,null,{"$f":"G31+G35","v":83.540137599999994},{"$f":"G36-D36","v":-3.1489088000000152},-3.6324183166929092E-2,0.53147737581834797,0.53010863626347404]
["Sub-Total:  Delivery (based on TOU prices)",null,null,{"$f":"D32+D35","v":85.999063680000006},null,null,{"$f":"G32+G35","v":82.850154879999991},{"$f":"G37-D37","v":-3.1489088000000152},-3.6615617255055383E-2,0.52708774688163906,0.52573031215182497]
["Wholesale Market Service Rate (WMS) - not including CBR",{"$f":"B8","v":843.58400000000006},{"$f":"VLOOKUP($A38,'Data Pass Through'!$A:$D,2,FALSE)","v":3.0000000000000001E-3},{"$f":"B38*C38","v":2.5307520000000001},{"$f":"$B$8","v":843.58400000000006},{"$f":"VLOOKUP($A38,'Data Pass Through'!$A:$D,3,FALSE)","v":3.0000000000000001E-3},{"$f":"E38*F38","v":2.5307520000000001},0,0,1.6100493372984772E-2,1.6059028988731995E-2]
["Capacity Based Recovery (CBR) - Applicable for Class B Customers",{"$f":"B8","v":843.58400000000006},{"$f":"VLOOKUP($A39,'Data Pass Through'!$A:$D,2,FALSE)","v":4.0000000000000002E-4},{"$f":"B39*C39","v":0.33743360000000006},{"$f":"$B$8","v":843.58400000000006},{"$f":"VLOOKUP($A39,'Data Pass Through'!$A:$D,3,FALSE)","v":4.0000000000000002E-4},{"$f":"E39*F39","v":0.33743360000000006},0,0,2.1467324497313031E-3,2.1412038651642661E-3]
["Rural Rate Protection Charge",{"$f":"B8","v":843.58400000000006},{"$f":"VLOOKUP($A40,'Data Pass Through'!$A:$D,2,FALSE)","v":5.0000000000000001E-4},0.42179200000000006,843.58400000000006,{"$f":"VLOOKUP($A40,'Data Pass Through'!$A:$D,3,FALSE)","v":5.0000000000000001E-4},0.42179200000000006,0,0,2.6834155621641288E-3,2.6765048314553327E-3]
["Standard Supply Service – Administration Charge (if applicable)",1,{"$f":"VLOOKUP($A41,'Data Pass Through'!$A:$D,2,FALSE)","v":0.25},{"$f":"B41*C41","v":0.25},1,{"$f":"VLOOKUP($A41,'Data Pass Through'!$A:$D,3,FALSE)","v":0.25},0.25,0,0,1.5904850982025077E-3,1.5863890445144361E-3]
["Sub-Total:  Regulatory",null,null,{"$f":"SUM(D38:D41)","v":3.5399776000000003},null,null,{"$f":"SUM(G38:G41)","v":3.5399776000000003},0,0,2.2521126483082712E-2,2.2463126729866029E-2]
["Total  Electricty Charge on Two-Tier RPP ",null,null,{"$f":"SUM(D14,D27,D28,D29,D35,D42)","v":170.18902400000002},null,null,{"$f":"SUM(G14,G27,G28,G29,G35,G42)","v":167.0401152},-3.1489088000000152,-1.8502419991550188E-2,1.0626992561105209]
["     HST",null,0.13,{"$f":"D43*C44","v":22.124573120000004},null,{"$f":"C44","v":0.13},{"$f":"G43*F44","v":21.715214976000002},-0.40935814400000226,-1.8502419991550199E-2,0.13815090329436772]
["Total Electricity Charge on Two-Tier RPP (including HST)",null,null,{"$f":"SUM(D43:D44)","v":192.31359712000003},null,null,{"$f":"SUM(G43:G44)","v":188.755330176},-3.5582669440000245,-1.8502419991550226E-2,1.2008501594048886]
["Ontario Electricity Rebate (OER)",null,{"$f":"IF(($B$4*12)<250000,VLOOKUP(A46,'Data Pass Through'!$A$4:$C$20,2,0),0)","v":-0.189},{"$f":"D43*C46","v":-32.165725536000004},null,{"$f":"C46","v":-0.189},{"$f":"G43*F46","v":-31.570581772800001},0.59514376320000295,1.8502419991550192E-2,-0.20085015940488843]
["Total Amount on Two-Tier RPP",null,null,{"$f":"SUM(D45:D46)","v":160.14787158400003},null,null,{"$f":"SUM(G45:G46)","v":157.18474840319999},-2.9631231808000393,-1.8502419991550344E-2,1]
["Total Electricty Charge on TOU (before HST)",null,null,{"$f":"SUM(D18,D27,D28,D30,D35,D42)","v":170.62032127999998},null,null,{"$f":"SUM(G18,G27,G28,G30,G35,G42)","v":167.47141247999997},-3.1489088000000152,-1.8455649223825067E-2,null,{"$f":"G48/$G$52","v":1.0626992561105206}]
["     HST",null,0.13,{"$f":"D48*C49","v":22.180641766399997},null,{"$f":"C49","v":0.13},{"$f":"G48*F49","v":21.771283622399995},-0.40935814400000226,-1.8455649223825081E-2,null,{"$f":"G49/$G$52","v":0.13815090329436769}]
["Total Electricity Charge on TOU (including HST)",null,null,{"$f":"SUM(D48:D49)","v":192.80096304639997},null,null,{"$f":"SUM(G48:G49)","v":189.24269610239998},-3.5582669439999961,-1.845564922382496E-2,null,{"$f":"G50/$G$52","v":1.2008501594048884}]
["Ontario Electricity Rebate (OER)",null,{"$f":"IF(($B$4*12)<250000,VLOOKUP(A51,'Data Pass Through'!$A$4:$C$20,2,0),0)","v":-0.189},{"$f":"D48*C51","v":-32.247240721920001},null,{"$f":"C51","v":-0.189},{"$f":"G48*F51","v":-31.652096958719994},0.5951437632000065,1.8455649223825178E-2,null,{"$f":"G51/$G$52","v":-0.2008501594048884}]
["Total Amount on TOU",null,null,{"$f":"SUM(D50:D51)","v":160.55372232447996},null,null,{"$f":"SUM(G50:G51)","v":157.59059914367998},-2.9631231807999825,-1.8455649223824869E-2,null,{"$f":"G52/$G$52","v":1}]
["* Distribution rate protection applies to R1 and R2 customers"]

{"sheet":"BI_R1_High (without DRP)","index":34,"n_rows":53,"n_cols":11,"rows_kept":53,"cut":false,"hidden":false,"merged":[[0,0,0,10]]}
["2023 Bill Impacts (High Consumption Level) - R1"]
[]
["Rate Class",{"$f":"RIGHT(A1,LEN(A1)-FIND(\"- \",A1,1)-1)","v":"R1"},"Without DRP"]
["Monthly Consumption (kWh)",{"$f":"IF(COUNTIF(A1,\"*Low*\")>0,VLOOKUP(B3,'Data Billing Quantities'!$A:$Z,MATCH(\"Low kWh\",'Data Billing Quantities'!4:4,0),FALSE),IF(COUNTIF(A1,\"*Typical*\")>0,VLOOKUP(B3,'Data Billing Quantities'!$A:$Z,MATCH(\"Typical kWh\",'Data Billing Quantities'!4:4,0),FALSE),IF(COUNTIF(A1,\"*Average*\")>0,VLOOKUP(B3,'Data Billing Quantities'!$A:$Z,MATCH(\"Average kWh\",'Data Billing Quantities'!4:4,0),FALSE),IF(COUNTIF(A1,\"*High*\")>0,VLOOKUP(B3,'Data Billing Quantities'!$A:$Z,MATCH(\"High kWh\",'Data Billing Quantities'!4:4,0),FALSE),\"error\"))))","v":1650}]
["Peak (kW)",{"$f":"IF(COUNTIF(A1,\"*Low*\")>0,VLOOKUP(B3,'Data Billing Quantities'!$A:$Z,MATCH(\"Low kW\",'Data Billing Quantities'!4:4,0),FALSE),IF(COUNTIF(A1,\"*Typical*\")>0,VLOOKUP(B3,'Data Billing Quantities'!$A:$Z,MATCH(\"Typical kW\",'Data Billing Quantities'!4:4,0),FALSE),IF(COUNTIF(A1,\"*Average*\")>0,VLOOKUP(B3,'Data Billing Quantities'!$A:$Z,MATCH(\"Average kW\",'Data Billing Quantities'!4:4,0),FALSE),IF(COUNTIF(A1,\"*High*\")>0,VLOOKUP(B3,'Data Billing Quantities'!$A:$Z,MATCH(\"High kW\",'Data Billing Quantities'!4:4,0),FALSE),\"error\"))))","v":0}]
["Loss factor",{"$f":"VLOOKUP(B3,'Data Billing Quantities'!A:D,MATCH(A6,'Data Billing Quantities'!4:4,0),FALSE)","v":1.0760000000000001}]
["Commodity Threshold",{"$f":"VLOOKUP(B3,'Data Billing Quantities'!A:D,MATCH(A7,'Data Billing Quantities'!4:4,0),FALSE)","v":600}]
["Monthly Consumption (kWh) - Uplifted",{"$f":"B4*B6","v":1775.4}]
["Charge determinant",{"$f":"VLOOKUP(B3,'Data Billing Quantities'!A:D,MATCH(A9,'Data Billing Quantities'!4:4,0),FALSE)","v":"kWh"}]
[]
[null,"Volume","Current Rate ($)","Current Charge ($)","Volume","Proposed Rate ($)","Proposed Charge ($)","Change ($)","Change (%)","% of Total Bill on RPP","% of Total Bill"]
["Energy First Tier",{"$f":"IF(B4>B7,B7,B4)","v":600},{"$f":"VLOOKUP($A12,'Data Pass Through'!$A:$D,2,FALSE)","v":9.8000000000000004E-2},{"$f":"B12*C12","v":58.800000000000004},{"$f":"B12","v":600},{"$f":"VLOOKUP($A12,'Data Pass Through'!$A:$D,3,FALSE)","v":9.8000000000000004E-2},{"$f":"E12*F12","v":58.800000000000004},{"$f":"G12-D12","v":0},{"$f":"IF(ISERROR(H12/ABS(D12)),\"N/A\",(H12/ABS(D12)))","v":0},{"$f":"G12/$G$47","v":0.21020074590133636}]
["Energy Second Tier",{"$f":"IF(B4>B7,(B4)-B7,0)","v":1050},{"$f":"VLOOKUP($A13,'Data Pass Through'!$A:$D,2,FALSE)","v":0.115},{"$f":"B13*C13","v":120.75},{"$f":"B13","v":1050},{"$f":"VLOOKUP($A13,'Data Pass Through'!$A:$D,3,FALSE)","v":0.115},{"$f":"E13*F13","v":120.75},0,0,{"$f":"G13/$G$47","v":0.43166224604738718}]
["Sub-Total:  Energy (RPP Tiered)",null,null,{"$f":"SUM(D12:D13)","v":179.55},null,null,{"$f":"SUM(G12:G13)","v":179.55},0,0,{"$f":"G14/$G$47","v":0.64186299194872354}]
["TOU-Off Peak",{"$f":"B$4*VLOOKUP($B$3,'Data Billing Quantities'!$A:$O,MATCH('BI_R1_High (without DRP)'!$A15,'Data Billing Quantities'!$4:$4,0),FALSE)","v":1056},{"$f":"VLOOKUP($A15,'Data Pass Through'!$A:$D,2,FALSE)","v":8.2000000000000003E-2},{"$f":"B15*C15","v":86.591999999999999},1056,{"$f":"VLOOKUP($A15,'Data Pass Through'!$A:$D,3,FALSE)","v":8.2000000000000003E-2},{"$f":"E15*F15","v":86.591999999999999},0,0,null,{"$f":"G15/$G$52","v":0.32072934373327877}]
["TOU-Mid Peak",{"$f":"B$4*VLOOKUP($B$3,'Data Billing Quantities'!$A:$O,MATCH('BI_R1_High (without DRP)'!$A16,'Data Billing Quantities'!$4:$4,0),FALSE)","v":297},{"$f":"VLOOKUP($A16,'Data Pass Through'!$A:$D,2,FALSE)","v":0.113},{"$f":"B16*C16","v":33.561},297,{"$f":"VLOOKUP($A16,'Data Pass Through'!$A:$D,3,FALSE)","v":0.113},{"$f":"E16*F16","v":33.561},0,0,null,0.12430706653077155]
["TOU-On Peak",{"$f":"B$4*VLOOKUP($B$3,'Data Billing Quantities'!$A:$O,MATCH('BI_R1_High (without DRP)'!$A17,'Data Billing Quantities'!$4:$4,0),FALSE)","v":297},{"$f":"VLOOKUP($A17,'Data Pass Through'!$A:$D,2,FALSE)","v":0.17},{"$f":"B17*C17","v":50.49},297,{"$f":"VLOOKUP($A17,'Data Pass Through'!$A:$D,3,FALSE)","v":0.17},{"$f":"E17*F17","v":50.49},0,0,null,0.1870106310639926]
["Sub-Total:  Energy (RPP TOU)",null,null,{"$f":"SUM(D15:D17)","v":170.643},null,null,{"$f":"SUM(G15:G17)","v":170.643},0,0,{"$f":"G18/$G$47","v":0.61002186875581188},0.6320470413280429]
["Service Charge",1,{"$f":"VLOOKUP($B$3,'Data Current Rates'!$A:$AP,MATCH('BI_R1_High (without DRP)'!$A19,CurrentHeader,0),FALSE)","v":55.52},{"$f":"B19*C19","v":55.52},1,{"$f":"VLOOKUP($B$3,'Data Proposed Rates'!$A:$AZ,MATCH('BI_R1_High (without DRP)'!$A19,ProposedHeader,0),FALSE)","v":57.22},{"$f":"E19*F19","v":57.22},1.6999999999999957,3.0619596541786667E-2,0.20455249456589228,0.21193797404400191]
["Fixed Base Rate Adjustment to Recover Past Tax Amounts ",1,{"$f":"VLOOKUP($B$3,'Data Current Rates'!$A:$AP,MATCH('BI_R1_High (without DRP)'!$A20,CurrentHeader,0),FALSE)","v":1.56},1.56,1,{"$f":"VLOOKUP($B$3,'Data Proposed Rates'!$A:$AZ,MATCH('BI_R1_High (without DRP)'!$A20,ProposedHeader,0),FALSE)","v":1.44},1.44,-0.12000000000000011,-7.6923076923076983E-2,5.1477733690123186E-3,5.3336365365844584E-3]
["Group 2 Fixed DVA Rider ",null,null,null,1,{"$f":"VLOOKUP($B$3,'Data Proposed Rates'!$A:$AZ,MATCH('BI_R1_High (without DRP)'!$A21,ProposedHeader,0),FALSE)","v":-0.14000000000000001},-0.14000000000000001,-0.14000000000000001,"N/A",-5.0047796643175324E-4,-5.1854799661237797E-4]
["Distribution Volumetric Charge",{"$f":"IF($B$9=\"kWh\",$B$4,$B$5)","v":1650},{"$f":"VLOOKUP($B$3,'Data Current Rates'!$A:$AP,MATCH('BI_R1_High (without DRP)'!$A22,CurrentHeader,0),FALSE)","v":9.9000000000000008E-3},16.335000000000001,1650,{"$f":"VLOOKUP($B$3,'Data Proposed Rates'!$A:$AZ,MATCH('BI_R1_High (without DRP)'!$A22,ProposedHeader,0),FALSE)","v":5.1999999999999998E-3},8.58,-7.7550000000000008,-0.47474747474747475,3.0672149657031734E-2,3.1779584363815734E-2]
["Volumetric Base Rate Adjustment to Recover Past Tax Amounts ",{"$f":"IF($B$9=\"kWh\",$B$4,$B$5)","v":1650},{"$f":"VLOOKUP($B$3,'Data Current Rates'!$A:$AP,MATCH('BI_R1_High (without DRP)'!$A23,CurrentHeader,0),FALSE)","v":0},0,1650,{"$f":"VLOOKUP($B$3,'Data Proposed Rates'!$A:$AZ,MATCH('BI_R1_High (without DRP)'!$A23,ProposedHeader,0),FALSE)","v":0},0,0,"N/A",0,0]
["Group 1 Volumetric DVA Rider (General)",null,null,null,{"$f":"B4","v":1650},{"$f":"VLOOKUP($B$3,'Data Proposed Rates'!$A:$AZ,MATCH('BI_R1_High (without DRP)'!$A24,ProposedHeader,0),FALSE)","v":-4.0000000000000002E-4},-0.66,-0.66,"N/A",-2.3593961274639796E-3,-2.4445834126012103E-3]
["Group 2 Volumetric DVA Rider ",null,null,null,{"$f":"B4","v":1650},{"$f":"VLOOKUP($B$3,'Data Proposed Rates'!$A:$AZ,MATCH('BI_R1_High (without DRP)'!$A25,ProposedHeader,0),FALSE)","v":0},0,0,"N/A",0,0]
["Fair Hydro Plan - Distribution Rate Protection Savings*",null,null,0,null,null,0,0,"N/A",0,0]
["Sub-Total:  Distribution (excluding pass through)",null,null,{"$f":"SUM(INDIRECT(\"D19:D\"&ROW()-1))","v":73.415000000000006},null,null,{"$f":"SUM(INDIRECT(\"g19:g\"&ROW()-1))","v":66.44},{"$f":"G27-D27","v":-6.9750000000000085},-9.5007832186882898E-2,0.2375125434980406,0.2460880635351885]
["Smart Metering Entity Charge",1,{"$f":"VLOOKUP($A28,'Data Pass Through'!$A:$D,2,FALSE)","v":0.56999999999999995},{"$f":"B28*C28","v":0.56999999999999995},1,{"$f":"VLOOKUP($A28,'Data Pass Through'!$A:$D,3,FALSE)","v":0.56999999999999995},{"$f":"E28*F28","v":0.56999999999999995},0,0,2.0376602919007095E-3,2.1112311290646816E-3]
["Line Losses on Cost of Power (based on two-tier RPP prices)",{"$f":"B8-B4","v":125.40000000000009},{"$f":"IF(B4>B7,C13,C12)","v":0.115},{"$f":"B29*C29","v":14.421000000000012},125.40000000000009,{"$f":"IF(B4>B7,F13,F12)","v":0.115},{"$f":"E29*F29","v":14.421000000000012},0,0,5.1552805385087996E-2,5.3414147565336488E-2]
["Line Losses on Cost of Power (based on TOU prices)",{"$f":"B8-B4","v":125.40000000000009},{"$f":"VLOOKUP($B$3,'Data Billing Quantities'!$A:$O,MATCH('BI_R1_High (without DRP)'!$A15,'Data Billing Quantities'!$4:$4,0),FALSE)*C15+VLOOKUP($B$3,'Data Billing Quantities'!$A:$O,MATCH('BI_R1_High (without DRP)'!$A16,'Data Billing Quantities'!$4:$4,0),FALSE)*C16+VLOOKUP($B$3,'Data Billing Quantities'!$A:$O,MATCH('BI_R1_High (without DRP)'!$A17,'Data Billing Quantities'!$4:$4,0),FALSE)*C17","v":0.10342000000000001},{"$f":"B30*C30","v":12.968868000000011},125.40000000000009,{"$f":"VLOOKUP($B$3,'Data Billing Quantities'!$A:$O,MATCH('BI_R1_High (without DRP)'!$A15,'Data Billing Quantities'!$4:$4,0),FALSE)*F15+VLOOKUP($B$3,'Data Billing Quantities'!$A:$O,MATCH('BI_R1_High (without DRP)'!$A16,'Data Billing Quantities'!$4:$4,0),FALSE)*F16+VLOOKUP($B$3,'Data Billing Quantities'!$A:$O,MATCH('BI_R1_High (without DRP)'!$A17,'Data Billing Quantities'!$4:$4,0),FALSE)*F17","v":0.10342000000000001},{"$f":"E30*F30","v":12.968868000000011},0,0,4.6361662025441744E-2,4.8035575140931305E-2]
["Sub-Total:  Distribution (based on two-tier RPP prices)",null,null,{"$f":"SUM(D27,D28:D29)","v":88.406000000000006},null,null,{"$f":"SUM(G27,G28:G29)","v":81.430999999999997},-6.9750000000000085,-7.8897359907698666E-2,0.29110300917502924,0.30161344222958963]
["Sub-Total:  Distribution (based on TOU prices)",null,null,{"$f":"SUM(D27,D28,D30)","v":86.953868000000014},null,null,{"$f":"SUM(G27,G28,G30)","v":79.978868000000006},-6.9750000000000085,-8.021494799978314E-2,0.28591186581538303,0.29623486980518449]
["Retail Transmission Rate – Network Service Rate",{"$f":"B8","v":1775.4},{"$f":"VLOOKUP($B$3,'Data Current Rates'!$A:$AP,MATCH('BI_R1_High (without DRP)'!$A33,CurrentHeader,0),FALSE)","v":9.7999999999999997E-3},{"$f":"B33*C33","v":17.39892},1775.4,{"$f":"VLOOKUP($B$3,'Data Proposed Rates'!$A:$AZ,MATCH('BI_R1_High (without DRP)'!$A33,ProposedHeader,0),FALSE)","v":9.4999999999999998E-3},{"$f":"E33*F33","v":16.866299999999999},{"$f":"G33-D33","v":-0.53262000000000143},-3.0612244897959266E-2,6.0294368037341992E-2,6.2471329109023928E-2]
["Retail Transmission Rate – Line and Transformation Connection Service Rate",{"$f":"B8","v":1775.4},{"$f":"VLOOKUP($B$3,'Data Current Rates'!$A:$AP,MATCH('BI_R1_High (without DRP)'!$A34,CurrentHeader,0),FALSE)","v":7.3000000000000001E-3},{"$f":"B34*C34","v":12.960420000000001},1775.4,{"$f":"VLOOKUP($B$3,'Data Proposed Rates'!$A:$AZ,MATCH('BI_R1_High (without DRP)'!$A34,ProposedHeader,0),FALSE)","v":6.8999999999999999E-3},{"$f":"E34*F34","v":12.250260000000001},{"$f":"G34-D34","v":-0.71016000000000012},-5.4794520547945209E-2,4.3792751521858929E-2,4.5373912721291071E-2]
["Sub-Total:  Retail Transmission ",null,null,{"$f":"SUM(D33:D34)","v":30.359340000000003},null,null,{"$f":"SUM(G33:G34)","v":29.11656},{"$f":"G35-D35","v":-1.2427800000000033},-4.0935672514619992E-2,0.10408711955920091,0.10784524183031499]
["Sub-Total:  Delivery (based on two-tier RPP prices)",null,null,{"$f":"D31+D35","v":118.76534000000001},null,null,{"$f":"G31+G35","v":110.54756},{"$f":"G36-D36","v":-8.2177800000000047},-6.9193419561633079E-2,0.39519012873423021,0.40945868405990465]
["Sub-Total:  Delivery (based on TOU prices)",null,null,{"$f":"D32+D35","v":117.31320800000002},null,null,{"$f":"G32+G35","v":109.095428},{"$f":"G37-D37","v":-8.217780000000019},-7.0049912879375162E-2,0.38999898537458394,0.40408011163549945]
["Wholesale Market Service Rate (WMS) - not including CBR",{"$f":"B8","v":1775.4},{"$f":"VLOOKUP($A38,'Data Pass Through'!$A:$D,2,FALSE)","v":3.0000000000000001E-3},{"$f":"B38*C38","v":5.3262},{"$f":"$B$8","v":1775.4},{"$f":"VLOOKUP($A38,'Data Pass Through'!$A:$D,3,FALSE)","v":3.0000000000000001E-3},{"$f":"E38*F38","v":5.3262},0,0,1.9040326748634314E-2,1.9727788139691768E-2]
["Capacity Based Recovery (CBR) - Applicable for Class B Customers",{"$f":"B8","v":1775.4},{"$f":"VLOOKUP($A39,'Data Pass Through'!$A:$D,2,FALSE)","v":4.0000000000000002E-4},{"$f":"B39*C39","v":0.71016000000000012},{"$f":"$B$8","v":1775.4},{"$f":"VLOOKUP($A39,'Data Pass Through'!$A:$D,3,FALSE)","v":4.0000000000000002E-4},{"$f":"E39*F39","v":0.71016000000000012},0,0,2.5387102331512422E-3,2.630371751958903E-3]
["Rural Rate Protection Charge",{"$f":"B8","v":1775.4},{"$f":"VLOOKUP($A40,'Data Pass Through'!$A:$D,2,FALSE)","v":5.0000000000000001E-4},0.88770000000000004,1775.4,{"$f":"VLOOKUP($A40,'Data Pass Through'!$A:$D,3,FALSE)","v":5.0000000000000001E-4},0.88770000000000004,0,0,3.1733877914390525E-3,3.2879646899486282E-3]
["Standard Supply Service – Administration Charge (if applicable)",1,{"$f":"VLOOKUP($A41,'Data Pass Through'!$A:$D,2,FALSE)","v":0.25},{"$f":"B41*C41","v":0.25},1,{"$f":"VLOOKUP($A41,'Data Pass Through'!$A:$D,3,FALSE)","v":0.25},0.25,0,0,8.9371065434241644E-4,9.2597856537924639E-4]
["Sub-Total:  Regulatory",null,null,{"$f":"SUM(D38:D41)","v":7.1740599999999999},null,null,{"$f":"SUM(G38:G41)","v":7.1740599999999999},0,0,2.5646135427567024E-2,2.6572103146978544E-2]
["Total  Electricty Charge on Two-Tier RPP ",null,null,{"$f":"SUM(D14,D27,D28,D29,D35,D42)","v":305.48939999999999},null,null,{"$f":"SUM(G14,G27,G28,G29,G35,G42)","v":297.27161999999998},-8.2177800000000047,-2.6900376903421216E-2,1.0626992561105206]
["     HST",null,0.13,{"$f":"D43*C44","v":39.713622000000001},null,{"$f":"C44","v":0.13},{"$f":"G43*F44","v":38.645310600000002},-1.0683113999999989,-2.6900376903421171E-2,0.13815090329436769]
["Total Electricity Charge on Two-Tier RPP (including HST)",null,null,{"$f":"SUM(D43:D44)","v":345.20302199999998},null,null,{"$f":"SUM(G43:G44)","v":335.9169306},-9.2860913999999752,-2.690037690342113E-2,1.2008501594048884]
["Ontario Electricity Rebate (OER)",null,{"$f":"IF(($B$4*12)<250000,VLOOKUP(A46,'Data Pass Through'!$A$4:$C$20,2,0),0)","v":-0.189},{"$f":"D43*C46","v":-57.7374966},null,{"$f":"C46","v":-0.189},{"$f":"G43*F46","v":-56.184336179999995},1.5531604200000046,2.6900376903421279E-2,-0.2008501594048884]
["Total Amount on Two-Tier RPP",null,null,{"$f":"SUM(D45:D46)","v":287.46552539999999},null,null,{"$f":"SUM(G45:G46)","v":279.73259442},-7.7329309799999919,-2.6900376903421171E-2,1]
["Total Electricty Charge on TOU (before HST)",null,null,{"$f":"SUM(D18,D27,D28,D30,D35,D42)","v":295.13026799999994},null,null,{"$f":"SUM(G18,G27,G28,G30,G35,G42)","v":286.912488},-8.2177799999999479,-2.7844585564500451E-2,null,{"$f":"G48/$G$52","v":1.0626992561105209}]
["     HST",null,0.13,{"$f":"D48*C49","v":38.366934839999992},null,{"$f":"C49","v":0.13},{"$f":"G48*F49","v":37.29862344},-1.0683113999999918,-2.7844585564500413E-2,null,{"$f":"G49/$G$52","v":0.13815090329436772}]
["Total Electricity Charge on TOU (including HST)",null,null,{"$f":"SUM(D48:D49)","v":333.49720283999994},null,null,{"$f":"SUM(G48:G49)","v":324.21111143999997},-9.2860913999999752,-2.7844585564500552E-2,null,{"$f":"G50/$G$52","v":1.2008501594048886}]
["Ontario Electricity Rebate (OER)",null,{"$f":"IF(($B$4*12)<250000,VLOOKUP(A51,'Data Pass Through'!$A$4:$C$20,2,0),0)","v":-0.189},{"$f":"D48*C51","v":-55.779620651999991},null,{"$f":"C51","v":-0.189},{"$f":"G48*F51","v":-54.226460232000001},1.5531604199999904,2.7844585564500455E-2,null,{"$f":"G51/$G$52","v":-0.20085015940488846}]
["Total Amount on TOU",null,null,{"$f":"SUM(D50:D51)","v":277.71758218799994},null,null,{"$f":"SUM(G50:G51)","v":269.98465120799995},-7.7329309799999919,-2.7844585564500601E-2,null,{"$f":"G52/$G$52","v":1}]
["* Distribution rate protection applies to R1 and R2 customers"]

{"sheet":"BI_R2_Low (with DRP)","index":35,"n_rows":53,"n_cols":11,"rows_kept":53,"cut":false,"hidden":false,"merged":[[0,0,0,10]]}
["2023 Bill Impacts (Low Consumption Level) - R2"]
[]
["Rate Class",{"$f":"RIGHT(A1,LEN(A1)-FIND(\"- \",A1,1)-1)","v":"R2"},"With DRP"]
["Monthly Consumption (kWh)",{"$f":"IF(COUNTIF(A1,\"*Low*\")>0,VLOOKUP(B3,'Data Billing Quantities'!$A:$Z,MATCH(\"Low kWh\",'Data Billing Quantities'!4:4,0),FALSE),IF(COUNTIF(A1,\"*Typical*\")>0,VLOOKUP(B3,'Data Billing Quantities'!$A:$Z,MATCH(\"Typical kWh\",'Data Billing Quantities'!4:4,0),FALSE),IF(COUNTIF(A1,\"*Average*\")>0,VLOOKUP(B3,'Data Billing Quantities'!$A:$Z,MATCH(\"Average kWh\",'Data Billing Quantities'!4:4,0),FALSE),IF(COUNTIF(A1,\"*High*\")>0,VLOOKUP(B3,'Data Billing Quantities'!$A:$Z,MATCH(\"High kWh\",'Data Billing Quantities'!4:4,0),FALSE),\"error\"))))","v":440}]
["Peak (kW)",{"$f":"IF(COUNTIF(A1,\"*Low*\")>0,VLOOKUP(B3,'Data Billing Quantities'!$A:$Z,MATCH(\"Low kW\",'Data Billing Quantities'!4:4,0),FALSE),IF(COUNTIF(A1,\"*Typical*\")>0,VLOOKUP(B3,'Data Billing Quantities'!$A:$Z,MATCH(\"Typical kW\",'Data Billing Quantities'!4:4,0),FALSE),IF(COUNTIF(A1,\"*Average*\")>0,VLOOKUP(B3,'Data Billing Quantities'!$A:$Z,MATCH(\"Average kW\",'Data Billing Quantities'!4:4,0),FALSE),IF(COUNTIF(A1,\"*High*\")>0,VLOOKUP(B3,'Data Billing Quantities'!$A:$Z,MATCH(\"High kW\",'Data Billing Quantities'!4:4,0),FALSE),\"error\"))))","v":0}]
["Loss factor",{"$f":"VLOOKUP(B3,'Data Billing Quantities'!A:D,MATCH(A6,'Data Billing Quantities'!4:4,0),FALSE)","v":1.105}]
["Commodity Threshold",{"$f":"VLOOKUP(B3,'Data Billing Quantities'!A:D,MATCH(A7,'Data Billing Quantities'!4:4,0),FALSE)","v":600}]
["Monthly Consumption (kWh) - Uplifted",{"$f":"B4*B6","v":486.2}]
["Charge determinant",{"$f":"VLOOKUP(B3,'Data Billing Quantities'!A:D,MATCH(A9,'Data Billing Quantities'!4:4,0),FALSE)","v":"kWh"}]
[]
[null,"Volume","Current Rate ($)","Current Charge ($)","Volume","Proposed Rate ($)","Proposed Charge ($)","Change ($)","Change (%)","% of Total Bill on RPP","% of Total Bill"]
["Energy First Tier",{"$f":"IF(B4>B7,B7,B4)","v":440},{"$f":"VLOOKUP($A12,'Data Pass Through'!$A:$D,2,FALSE)","v":9.8000000000000004E-2},{"$f":"B12*C12","v":43.120000000000005},{"$f":"B12","v":440},{"$f":"VLOOKUP($A12,'Data Pass Through'!$A:$D,3,FALSE)","v":9.8000000000000004E-2},{"$f":"E12*F12","v":43.120000000000005},{"$f":"G12-D12","v":0},{"$f":"IF(ISERROR(H12/ABS(D12)),\"N/A\",(H12/ABS(D12)))","v":0},{"$f":"G12/$G$47","v":0.48646737212161345}]
["Energy Second Tier",{"$f":"IF(B4>B7,(B4)-B7,0)","v":0},{"$f":"VLOOKUP($A13,'Data Pass Through'!$A:$D,2,FALSE)","v":0.115},{"$f":"B13*C13","v":0},{"$f":"B13","v":0},{"$f":"VLOOKUP($A13,'Data Pass Through'!$A:$D,3,FALSE)","v":0.115},{"$f":"E13*F13","v":0},0,"N/A",{"$f":"G13/$G$47","v":0}]
["Sub-Total:  Energy (RPP Tiered)",null,null,{"$f":"SUM(D12:D13)","v":43.120000000000005},null,null,{"$f":"SUM(G12:G13)","v":43.120000000000005},0,0,{"$f":"G14/$G$47","v":0.48646737212161345}]
["TOU-Off Peak",{"$f":"B$4*VLOOKUP($B$3,'Data Billing Quantities'!$A:$O,MATCH('BI_R2_Low (with DRP)'!$A15,'Data Billing Quantities'!$4:$4,0),FALSE)","v":281.60000000000002},{"$f":"VLOOKUP($A15,'Data Pass Through'!$A:$D,2,FALSE)","v":8.2000000000000003E-2},{"$f":"B15*C15","v":23.091200000000004},281.60000000000002,{"$f":"VLOOKUP($A15,'Data Pass Through'!$A:$D,3,FALSE)","v":8.2000000000000003E-2},{"$f":"E15*F15","v":23.091200000000004},0,0,null,{"$f":"G15/$G$52","v":0.25341871071565319}]
["TOU-Mid Peak",{"$f":"B$4*VLOOKUP($B$3,'Data Billing Quantities'!$A:$O,MATCH('BI_R2_Low (with DRP)'!$A16,'Data Billing Quantities'!$4:$4,0),FALSE)","v":79.2},{"$f":"VLOOKUP($A16,'Data Pass Through'!$A:$D,2,FALSE)","v":0.113},{"$f":"B16*C16","v":8.9496000000000002},79.2,{"$f":"VLOOKUP($A16,'Data Pass Through'!$A:$D,3,FALSE)","v":0.113},{"$f":"E16*F16","v":8.9496000000000002},0,0,null,9.821906585282747E-2]
["TOU-On Peak",{"$f":"B$4*VLOOKUP($B$3,'Data Billing Quantities'!$A:$O,MATCH('BI_R2_Low (with DRP)'!$A17,'Data Billing Quantities'!$4:$4,0),FALSE)","v":79.2},{"$f":"VLOOKUP($A17,'Data Pass Through'!$A:$D,2,FALSE)","v":0.17},{"$f":"B17*C17","v":13.464000000000002},79.2,{"$f":"VLOOKUP($A17,'Data Pass Through'!$A:$D,3,FALSE)","v":0.17},{"$f":"E17*F17","v":13.464000000000002},0,0,null,0.14776319641575816]
["Sub-Total:  Energy (RPP TOU)",null,null,{"$f":"SUM(D15:D17)","v":45.504800000000003},null,null,{"$f":"SUM(G15:G17)","v":45.504800000000003},0,0,{"$f":"G18/$G$47","v":0.51337199617160467},0.4994009729842388]
["Service Charge",1,{"$f":"VLOOKUP($B$3,'Data Current Rates'!$A:$AP,MATCH('BI_R2_Low (with DRP)'!$A19,CurrentHeader,0),FALSE)","v":66.8},{"$f":"B19*C19","v":66.8},1,{"$f":"VLOOKUP($B$3,'Data Proposed Rates'!$A:$AZ,MATCH('BI_R2_Low (with DRP)'!$A19,ProposedHeader,0),FALSE)","v":56.08},{"$f":"E19*F19","v":56.08},-10.719999999999999,-0.16047904191616766,0.63267834481864738,0.61546049130984226]
["Fixed Base Rate Adjustment to Recover Past Tax Amounts ",1,{"$f":"VLOOKUP($B$3,'Data Current Rates'!$A:$AP,MATCH('BI_R2_Low (with DRP)'!$A20,CurrentHeader,0),FALSE)","v":4.42},4.42,1,{"$f":"VLOOKUP($B$3,'Data Proposed Rates'!$A:$AZ,MATCH('BI_R2_Low (with DRP)'!$A20,ProposedHeader,0),FALSE)","v":4},4,-0.41999999999999993,-9.5022624434389122E-2,4.512684342501052E-2,4.3898751163326838E-2]
["Group 2 Fixed DVA Rider ",null,null,null,1,{"$f":"VLOOKUP($B$3,'Data Proposed Rates'!$A:$AZ,MATCH('BI_R2_Low (with DRP)'!$A21,ProposedHeader,0),FALSE)","v":-0.28999999999999998},-0.28999999999999998,-0.28999999999999998,"N/A",-3.2716961483132624E-3,-3.1826594593411957E-3]
["Distribution Volumetric Charge",{"$f":"IF($B$9=\"kWh\",$B$4,$B$5)","v":440},{"$f":"VLOOKUP($B$3,'Data Current Rates'!$A:$AP,MATCH('BI_R2_Low (with DRP)'!$A22,CurrentHeader,0),FALSE)","v":1.5900000000000001E-2},6.9960000000000004,440,{"$f":"VLOOKUP($B$3,'Data Proposed Rates'!$A:$AZ,MATCH('BI_R2_Low (with DRP)'!$A22,ProposedHeader,0),FALSE)","v":8.0999999999999996E-3},3.5639999999999996,-3.4320000000000008,-0.49056603773584917,4.0208017491684366E-2,3.9113787286524211E-2]
["Volumetric Base Rate Adjustment to Recover Past Tax Amounts ",{"$f":"IF($B$9=\"kWh\",$B$4,$B$5)","v":440},{"$f":"VLOOKUP($B$3,'Data Current Rates'!$A:$AP,MATCH('BI_R2_Low (with DRP)'!$A23,CurrentHeader,0),FALSE)","v":0},0,440,{"$f":"VLOOKUP($B$3,'Data Proposed Rates'!$A:$AZ,MATCH('BI_R2_Low (with DRP)'!$A23,ProposedHeader,0),FALSE)","v":0},0,0,"N/A",0,0]
["Group 1 Volumetric DVA Rider (General)",null,null,null,{"$f":"B4","v":440},{"$f":"VLOOKUP($B$3,'Data Proposed Rates'!$A:$AZ,MATCH('BI_R2_Low (with DRP)'!$A24,ProposedHeader,0),FALSE)","v":-4.0000000000000002E-4},-0.17600000000000002,-0.17600000000000002,"N/A",-1.9855811107004628E-3,-1.9315450511863811E-3]
["Group 2 Volumetric DVA Rider ",null,null,null,{"$f":"B4","v":440},{"$f":"VLOOKUP($B$3,'Data Proposed Rates'!$A:$AZ,MATCH('BI_R2_Low (with DRP)'!$A25,ProposedHeader,0),FALSE)","v":0},0,0,"N/A",0,0]
["Fair Hydro Plan - Distribution Rate Protection Savings*",null,null,{"$f":"IF(AND(B3<>\"R1\",B3<>\"R2\"),0,IF(VLOOKUP($A26,'Data Pass Through'!$A:$D,2,FALSE)=0,0,IF(SUM(D19:D20,D22:D23)<VLOOKUP($A26,'Data Pass Through'!$A:$D,2,FALSE),0,VLOOKUP($A26,'Data Pass Through'!$A:$D,2,FALSE)-SUM(D19:D20,D22:D23))))","v":-41.355999999999995},null,null,{"$f":"IF(AND(B3<>\"R1\",B3<>\"R2\"),0,IF(VLOOKUP($A26,'Data Pass Through'!$A:$D,2,FALSE)=0,0,IF(SUM(G19:G20,G22:G23)<VLOOKUP($A26,'Data Pass Through'!$A:$D,2,FALSE),0,VLOOKUP($A26,'Data Pass Through'!$A:$D,2,FALSE)-SUM(G19:G20,G22:G23))))","v":-26.783999999999999},14.571999999999996,0.35235516007350803,-0.30216934357387043,-0.29394603778963652]
["Sub-Total:  Distribution (excluding pass through)",null,null,{"$f":"SUM(INDIRECT(\"D19:D\"&ROW()-1))","v":36.86},null,null,{"$f":"SUM(INDIRECT(\"g19:g\"&ROW()-1))","v":36.393999999999998},{"$f":"G27-D27","v":-0.46600000000000108},-1.2642430819316361E-2,0.4105865849024582,0.39941278745952924]
["Smart Metering Entity Charge",1,{"$f":"VLOOKUP($A28,'Data Pass Through'!$A:$D,2,FALSE)","v":0.56999999999999995},{"$f":"B28*C28","v":0.56999999999999995},1,{"$f":"VLOOKUP($A28,'Data Pass Through'!$A:$D,3,FALSE)","v":0.56999999999999995},{"$f":"E28*F28","v":0.56999999999999995},0,0,6.4305751880639984E-3,6.2555720407740743E-3]
["Line Losses on Cost of Power (based on two-tier RPP prices)",{"$f":"B8-B4","v":46.199999999999989},{"$f":"IF(B4>B7,C13,C12)","v":9.8000000000000004E-2},{"$f":"B29*C29","v":4.5275999999999987},46.199999999999989,{"$f":"IF(B4>B7,F13,F12)","v":9.8000000000000004E-2},{"$f":"E29*F29","v":4.5275999999999987},0,0,5.107907407276939E-2,4.9688996441769634E-2]
["Line Losses on Cost of Power (based on TOU prices)",{"$f":"B8-B4","v":46.199999999999989},{"$f":"VLOOKUP($B$3,'Data Billing Quantities'!$A:$O,MATCH('BI_R2_Low (with DRP)'!$A15,'Data Billing Quantities'!$4:$4,0),FALSE)*C15+VLOOKUP($B$3,'Data Billing Quantities'!$A:$O,MATCH('BI_R2_Low (with DRP)'!$A16,'Data Billing Quantities'!$4:$4,0),FALSE)*C16+VLOOKUP($B$3,'Data Billing Quantities'!$A:$O,MATCH('BI_R2_Low (with DRP)'!$A17,'Data Billing Quantities'!$4:$4,0),FALSE)*C17","v":0.10342000000000001},{"$f":"B30*C30","v":4.7780039999999993},46.199999999999989,{"$f":"VLOOKUP($B$3,'Data Billing Quantities'!$A:$O,MATCH('BI_R2_Low (with DRP)'!$A15,'Data Billing Quantities'!$4:$4,0),FALSE)*F15+VLOOKUP($B$3,'Data Billing Quantities'!$A:$O,MATCH('BI_R2_Low (with DRP)'!$A16,'Data Billing Quantities'!$4:$4,0),FALSE)*F16+VLOOKUP($B$3,'Data Billing Quantities'!$A:$O,MATCH('BI_R2_Low (with DRP)'!$A17,'Data Billing Quantities'!$4:$4,0),FALSE)*F17","v":0.10342000000000001},{"$f":"E30*F30","v":4.7780039999999993},0,0,5.3904059598018479E-2,5.2437102163345066E-2]
["Sub-Total:  Distribution (based on two-tier RPP prices)",null,null,{"$f":"SUM(D27,D28:D29)","v":41.957599999999999},null,null,{"$f":"SUM(G27,G28:G29)","v":41.491599999999998},-0.46600000000000108,-1.1106450321276743E-2,0.46809623416329155,0.45535735594207294]
["Sub-Total:  Distribution (based on TOU prices)",null,null,{"$f":"SUM(D27,D28,D30)","v":42.208004000000003},null,null,{"$f":"SUM(G27,G28,G30)","v":41.742003999999994},-0.46600000000000819,-1.1040559984784122E-2,0.47092121968854062,0.45810546166364835]
["Retail Transmission Rate – Network Service Rate",{"$f":"B8","v":486.2},{"$f":"VLOOKUP($B$3,'Data Current Rates'!$A:$AP,MATCH('BI_R2_Low (with DRP)'!$A33,CurrentHeader,0),FALSE)","v":9.1999999999999998E-3},{"$f":"B33*C33","v":4.4730400000000001},486.2,{"$f":"VLOOKUP($B$3,'Data Proposed Rates'!$A:$AZ,MATCH('BI_R2_Low (with DRP)'!$A33,ProposedHeader,0),FALSE)","v":8.8000000000000005E-3},{"$f":"E33*F33","v":4.2785600000000006},{"$f":"G33-D33","v":-0.19447999999999954},-4.3478260869565112E-2,4.8269476801128253E-2,4.6955860194340927E-2]
["Retail Transmission Rate – Line and Transformation Connection Service Rate",{"$f":"B8","v":486.2},{"$f":"VLOOKUP($B$3,'Data Current Rates'!$A:$AP,MATCH('BI_R2_Low (with DRP)'!$A34,CurrentHeader,0),FALSE)","v":6.7999999999999996E-3},{"$f":"B34*C34","v":3.3061599999999998},486.2,{"$f":"VLOOKUP($B$3,'Data Proposed Rates'!$A:$AZ,MATCH('BI_R2_Low (with DRP)'!$A34,ProposedHeader,0),FALSE)","v":6.4999999999999997E-3},{"$f":"E34*F34","v":3.1602999999999999},{"$f":"G34-D34","v":-0.14585999999999988},-4.4117647058823498E-2,3.5653590819015181E-2,3.4683305825365447E-2]
["Sub-Total:  Retail Transmission ",null,null,{"$f":"SUM(D33:D34)","v":7.7791999999999994},null,null,{"$f":"SUM(G33:G34)","v":7.43886},{"$f":"G35-D35","v":-0.34033999999999942},-4.3749999999999928E-2,8.3923067620143441E-2,8.1639166019706375E-2]
["Sub-Total:  Delivery (based on two-tier RPP prices)",null,null,{"$f":"D31+D35","v":49.736800000000002},null,null,{"$f":"G31+G35","v":48.930459999999997},{"$f":"G36-D36","v":-0.80634000000000583},-1.6212140708690665E-2,0.55201930178343495,0.53699652196177927]
["Sub-Total:  Delivery (based on TOU prices)",null,null,{"$f":"D32+D35","v":49.987204000000006},null,null,{"$f":"G32+G35","v":49.180863999999993},{"$f":"G37-D37","v":-0.80634000000001294},-1.613092822715215E-2,0.55484428730868407,0.53974462768335463]
["Wholesale Market Service Rate (WMS) - not including CBR",{"$f":"B8","v":486.2},{"$f":"VLOOKUP($A38,'Data Pass Through'!$A:$D,2,FALSE)","v":3.0000000000000001E-3},{"$f":"B38*C38","v":1.4585999999999999},{"$f":"$B$8","v":486.2},{"$f":"VLOOKUP($A38,'Data Pass Through'!$A:$D,3,FALSE)","v":3.0000000000000001E-3},{"$f":"E38*F38","v":1.4585999999999999},0,0,1.6455503454930083E-2,1.600767961170713E-2]
["Capacity Based Recovery (CBR) - Applicable for Class B Customers",{"$f":"B8","v":486.2},{"$f":"VLOOKUP($A39,'Data Pass Through'!$A:$D,2,FALSE)","v":4.0000000000000002E-4},{"$f":"B39*C39","v":0.19448000000000001},{"$f":"$B$8","v":486.2},{"$f":"VLOOKUP($A39,'Data Pass Through'!$A:$D,3,FALSE)","v":4.0000000000000002E-4},{"$f":"E39*F39","v":0.19448000000000001},0,0,2.1940671273240116E-3,2.1343572815609511E-3]
["Rural Rate Protection Charge",{"$f":"B8","v":486.2},{"$f":"VLOOKUP($A40,'Data Pass Through'!$A:$D,2,FALSE)","v":5.0000000000000001E-4},0.24310000000000001,486.2,{"$f":"VLOOKUP($A40,'Data Pass Through'!$A:$D,3,FALSE)","v":5.0000000000000001E-4},0.24310000000000001,0,0,2.7425839091550141E-3,2.6679466019511886E-3]
["Standard Supply Service – Administration Charge (if applicable)",1,{"$f":"VLOOKUP($A41,'Data Pass Through'!$A:$D,2,FALSE)","v":0.25},{"$f":"B41*C41","v":0.25},1,{"$f":"VLOOKUP($A41,'Data Pass Through'!$A:$D,3,FALSE)","v":0.25},0.25,0,0,2.8204277140631575E-3,2.7436719477079274E-3]
["Sub-Total:  Regulatory",null,null,{"$f":"SUM(D38:D41)","v":2.1461800000000002},null,null,{"$f":"SUM(G38:G41)","v":2.1461800000000002},0,0,2.4212582205472271E-2,2.3553655442927202E-2]
["Total  Electricty Charge on Two-Tier RPP ",null,null,{"$f":"SUM(D14,D27,D28,D29,D35,D42)","v":95.002979999999994},null,null,{"$f":"SUM(G14,G27,G28,G29,G35,G42)","v":94.196640000000002},-0.80633999999999162,-8.4875232334816406E-3,1.0626992561105206]
["     HST",null,0.13,{"$f":"D43*C44","v":12.350387399999999},null,{"$f":"C44","v":0.13},{"$f":"G43*F44","v":12.245563200000001},-0.1048241999999977,-8.4875232334815434E-3,0.13815090329436769]
["Total Electricity Charge on Two-Tier RPP (including HST)",null,null,{"$f":"SUM(D43:D44)","v":107.3533674},null,null,{"$f":"SUM(G43:G44)","v":106.44220320000001},-0.91116419999998755,-8.4875232334816128E-3,1.2008501594048884]
["Ontario Electricity Rebate (OER)",null,{"$f":"IF(($B$4*12)<250000,VLOOKUP(A46,'Data Pass Through'!$A$4:$C$20,2,0),0)","v":-0.189},{"$f":"D43*C46","v":-17.955563219999998},null,{"$f":"C46","v":-0.189},{"$f":"G43*F46","v":-17.80316496},0.15239825999999823,8.4875232334816302E-3,-0.2008501594048884]
["Total Amount on Two-Tier RPP",null,null,{"$f":"SUM(D45:D46)","v":89.397804179999994},null,null,{"$f":"SUM(G45:G46)","v":88.639038240000005},-0.75876593999998931,-8.4875232334816093E-3,1]
["Total Electricty Charge on TOU (before HST)",null,null,{"$f":"SUM(D18,D27,D28,D30,D35,D42)","v":97.638183999999995},null,null,{"$f":"SUM(G18,G27,G28,G30,G35,G42)","v":96.83184399999999},-0.80634000000000583,-8.2584493787799841E-3,null,{"$f":"G48/$G$52","v":1.0626992561105206}]
["     HST",null,0.13,{"$f":"D48*C49","v":12.69296392},null,{"$f":"C49","v":0.13},{"$f":"G48*F49","v":12.588139719999999},-0.10482420000000126,-8.258449378780024E-3,null,{"$f":"G49/$G$52","v":0.13815090329436769}]
["Total Electricity Charge on TOU (including HST)",null,null,{"$f":"SUM(D48:D49)","v":110.33114791999999},null,null,{"$f":"SUM(G48:G49)","v":109.41998371999999},-0.91116420000000176,-8.2584493787799407E-3,null,{"$f":"G50/$G$52","v":1.2008501594048884}]
["Ontario Electricity Rebate (OER)",null,{"$f":"IF(($B$4*12)<250000,VLOOKUP(A51,'Data Pass Through'!$A$4:$C$20,2,0),0)","v":-0.189},{"$f":"D48*C51","v":-18.453616776},null,{"$f":"C51","v":-0.189},{"$f":"G48*F51","v":-18.301218515999999},0.15239826000000178,8.2584493787800205E-3,null,{"$f":"G51/$G$52","v":-0.2008501594048884}]
["Total Amount on TOU",null,null,{"$f":"SUM(D50:D51)","v":91.877531143999988},null,null,{"$f":"SUM(G50:G51)","v":91.118765203999999},-0.75876593999998931,-8.2584493787798089E-3,null,{"$f":"G52/$G$52","v":1}]
["* Distribution rate protection applies to R1 and R2 customers"]

{"sheet":"BI_R2_Typical (with DRP)","index":36,"n_rows":53,"n_cols":11,"rows_kept":53,"cut":false,"hidden":false,"merged":[[0,0,0,10]]}
["2023 Bill Impacts (Typical Consumption Level) - R2"]
[]
["Rate Class",{"$f":"RIGHT(A1,LEN(A1)-FIND(\"- \",A1,1)-1)","v":"R2"},"With DRP"]
["Monthly Consumption (kWh)",{"$f":"IF(COUNTIF(A1,\"*Low*\")>0,VLOOKUP(B3,'Data Billing Quantities'!$A:$Z,MATCH(\"Low kWh\",'Data Billing Quantities'!4:4,0),FALSE),IF(COUNTIF(A1,\"*Typical*\")>0,VLOOKUP(B3,'Data Billing Quantities'!$A:$Z,MATCH(\"Typical kWh\",'Data Billing Quantities'!4:4,0),FALSE),IF(COUNTIF(A1,\"*Average*\")>0,VLOOKUP(B3,'Data Billing Quantities'!$A:$Z,MATCH(\"Average kWh\",'Data Billing Quantities'!4:4,0),FALSE),IF(COUNTIF(A1,\"*High*\")>0,VLOOKUP(B3,'Data Billing Quantities'!$A:$Z,MATCH(\"High kWh\",'Data Billing Quantities'!4:4,0),FALSE),\"error\"))))","v":750}]
["Peak (kW)",{"$f":"IF(COUNTIF(A1,\"*Low*\")>0,VLOOKUP(B3,'Data Billing Quantities'!$A:$Z,MATCH(\"Low kW\",'Data Billing Quantities'!4:4,0),FALSE),IF(COUNTIF(A1,\"*Typical*\")>0,VLOOKUP(B3,'Data Billing Quantities'!$A:$Z,MATCH(\"Typical kW\",'Data Billing Quantities'!4:4,0),FALSE),IF(COUNTIF(A1,\"*Average*\")>0,VLOOKUP(B3,'Data Billing Quantities'!$A:$Z,MATCH(\"Average kW\",'Data Billing Quantities'!4:4,0),FALSE),IF(COUNTIF(A1,\"*High*\")>0,VLOOKUP(B3,'Data Billing Quantities'!$A:$Z,MATCH(\"High kW\",'Data Billing Quantities'!4:4,0),FALSE),\"error\"))))","v":0}]
["Loss factor",{"$f":"VLOOKUP(B3,'Data Billing Quantities'!A:D,MATCH(A6,'Data Billing Quantities'!4:4,0),FALSE)","v":1.105}]
["Commodity Threshold",{"$f":"VLOOKUP(B3,'Data Billing Quantities'!A:D,MATCH(A7,'Data Billing Quantities'!4:4,0),FALSE)","v":600}]
["Monthly Consumption (kWh) - Uplifted",{"$f":"B4*B6","v":828.75}]
["Charge determinant",{"$f":"VLOOKUP(B3,'Data Billing Quantities'!A:D,MATCH(A9,'Data Billing Quantities'!4:4,0),FALSE)","v":"kWh"}]
[]
[null,"Volume","Current Rate ($)","Current Charge ($)","Volume","Proposed Rate ($)","Proposed Charge ($)","Change ($)","Change (%)","% of Total Bill on RPP","% of Total Bill"]
["Energy First Tier",{"$f":"IF(B4>B7,B7,B4)","v":600},{"$f":"VLOOKUP($A12,'Data Pass Through'!$A:$D,2,FALSE)","v":9.8000000000000004E-2},{"$f":"B12*C12","v":58.800000000000004},{"$f":"B12","v":600},{"$f":"VLOOKUP($A12,'Data Pass Through'!$A:$D,3,FALSE)","v":9.8000000000000004E-2},{"$f":"E12*F12","v":58.800000000000004},{"$f":"G12-D12","v":0},{"$f":"IF(ISERROR(H12/ABS(D12)),\"N/A\",(H12/ABS(D12)))","v":0},{"$f":"G12/$G$47","v":0.45244738282686681}]
["Energy Second Tier",{"$f":"IF(B4>B7,(B4)-B7,0)","v":150},{"$f":"VLOOKUP($A13,'Data Pass Through'!$A:$D,2,FALSE)","v":0.115},{"$f":"B13*C13","v":17.25},{"$f":"B13","v":150},{"$f":"VLOOKUP($A13,'Data Pass Through'!$A:$D,3,FALSE)","v":0.115},{"$f":"E13*F13","v":17.25},0,0,{"$f":"G13/$G$47","v":0.13273328832931042}]
["Sub-Total:  Energy (RPP Tiered)",null,null,{"$f":"SUM(D12:D13)","v":76.050000000000011},null,null,{"$f":"SUM(G12:G13)","v":76.050000000000011},0,0,{"$f":"G14/$G$47","v":0.58518067115617733}]
["TOU-Off Peak",{"$f":"B$4*VLOOKUP($B$3,'Data Billing Quantities'!$A:$O,MATCH('BI_R2_Typical (with DRP)'!$A15,'Data Billing Quantities'!$4:$4,0),FALSE)","v":480},{"$f":"VLOOKUP($A15,'Data Pass Through'!$A:$D,2,FALSE)","v":8.2000000000000003E-2},{"$f":"B15*C15","v":39.36},480,{"$f":"VLOOKUP($A15,'Data Pass Through'!$A:$D,3,FALSE)","v":8.2000000000000003E-2},{"$f":"E15*F15","v":39.36},0,0,null,{"$f":"G15/$G$52","v":0.3015459820639021}]
["TOU-Mid Peak",{"$f":"B$4*VLOOKUP($B$3,'Data Billing Quantities'!$A:$O,MATCH('BI_R2_Typical (with DRP)'!$A16,'Data Billing Quantities'!$4:$4,0),FALSE)","v":135},{"$f":"VLOOKUP($A16,'Data Pass Through'!$A:$D,2,FALSE)","v":0.113},{"$f":"B16*C16","v":15.255000000000001},135,{"$f":"VLOOKUP($A16,'Data Pass Through'!$A:$D,3,FALSE)","v":0.113},{"$f":"E16*F16","v":15.255000000000001},0,0,null,0.11687205173741938]
["TOU-On Peak",{"$f":"B$4*VLOOKUP($B$3,'Data Billing Quantities'!$A:$O,MATCH('BI_R2_Typical (with DRP)'!$A17,'Data Billing Quantities'!$4:$4,0),FALSE)","v":135},{"$f":"VLOOKUP($A17,'Data Pass Through'!$A:$D,2,FALSE)","v":0.17},{"$f":"B17*C17","v":22.950000000000003},135,{"$f":"VLOOKUP($A17,'Data Pass Through'!$A:$D,3,FALSE)","v":0.17},{"$f":"E17*F17","v":22.950000000000003},0,0,null,0.17582521057841854]
["Sub-Total:  Energy (RPP TOU)",null,null,{"$f":"SUM(D15:D17)","v":77.564999999999998},null,null,{"$f":"SUM(G15:G17)","v":77.564999999999998},0,0,{"$f":"G18/$G$47","v":0.5968381164790123},0.59424324437973997]
["Service Charge",1,{"$f":"VLOOKUP($B$3,'Data Current Rates'!$A:$AP,MATCH('BI_R2_Typical (with DRP)'!$A19,CurrentHeader,0),FALSE)","v":66.8},{"$f":"B19*C19","v":66.8},1,{"$f":"VLOOKUP($B$3,'Data Proposed Rates'!$A:$AZ,MATCH('BI_R2_Typical (with DRP)'!$A19,ProposedHeader,0),FALSE)","v":56.08},{"$f":"E19*F19","v":56.08},-10.719999999999999,-0.16047904191616766,0.43151784402943349,0.42964173460730765]
["Fixed Base Rate Adjustment to Recover Past Tax Amounts ",1,{"$f":"VLOOKUP($B$3,'Data Current Rates'!$A:$AP,MATCH('BI_R2_Typical (with DRP)'!$A20,CurrentHeader,0),FALSE)","v":4.42},4.42,1,{"$f":"VLOOKUP($B$3,'Data Proposed Rates'!$A:$AZ,MATCH('BI_R2_Typical (with DRP)'!$A20,ProposedHeader,0),FALSE)","v":4},4,-0.41999999999999993,-9.5022624434389122E-2,3.0778733525637196E-2,3.0644916876412815E-2]
["Group 2 Fixed DVA Rider ",null,null,null,1,{"$f":"VLOOKUP($B$3,'Data Proposed Rates'!$A:$AZ,MATCH('BI_R2_Typical (with DRP)'!$A21,ProposedHeader,0),FALSE)","v":-0.28999999999999998},-0.28999999999999998,-0.28999999999999998,"N/A",-2.2314581806086968E-3,-2.2217564735399291E-3]
["Distribution Volumetric Charge",{"$f":"IF($B$9=\"kWh\",$B$4,$B$5)","v":750},{"$f":"VLOOKUP($B$3,'Data Current Rates'!$A:$AP,MATCH('BI_R2_Typical (with DRP)'!$A22,CurrentHeader,0),FALSE)","v":1.5900000000000001E-2},11.925000000000001,750,{"$f":"VLOOKUP($B$3,'Data Proposed Rates'!$A:$AZ,MATCH('BI_R2_Typical (with DRP)'!$A22,ProposedHeader,0),FALSE)","v":8.0999999999999996E-3},6.0749999999999993,-5.8500000000000014,-0.49056603773584917,4.6745201542061486E-2,4.6541967506051961E-2]
["Volumetric Base Rate Adjustment to Recover Past Tax Amounts ",{"$f":"IF($B$9=\"kWh\",$B$4,$B$5)","v":750},{"$f":"VLOOKUP($B$3,'Data Current Rates'!$A:$AP,MATCH('BI_R2_Typical (with DRP)'!$A23,CurrentHeader,0),FALSE)","v":0},0,750,{"$f":"VLOOKUP($B$3,'Data Proposed Rates'!$A:$AZ,MATCH('BI_R2_Typical (with DRP)'!$A23,ProposedHeader,0),FALSE)","v":0},0,0,"N/A",0,0]
["Group 1 Volumetric DVA Rider (General)",null,null,null,{"$f":"B4","v":750},{"$f":"VLOOKUP($B$3,'Data Proposed Rates'!$A:$AZ,MATCH('BI_R2_Typical (with DRP)'!$A24,ProposedHeader,0),FALSE)","v":-4.0000000000000002E-4},-0.3,-0.3,"N/A",-2.3084050144227897E-3,-2.2983687657309611E-3]
["Group 2 Volumetric DVA Rider ",null,null,null,{"$f":"B4","v":750},{"$f":"VLOOKUP($B$3,'Data Proposed Rates'!$A:$AZ,MATCH('BI_R2_Typical (with DRP)'!$A25,ProposedHeader,0),FALSE)","v":0},0,0,"N/A",0,0]
["Fair Hydro Plan - Distribution Rate Protection Savings*",null,null,{"$f":"IF(AND(B3<>\"R1\",B3<>\"R2\"),0,IF(VLOOKUP($A26,'Data Pass Through'!$A:$D,2,FALSE)=0,0,IF(SUM(D19:D20,D22:D23)<VLOOKUP($A26,'Data Pass Through'!$A:$D,2,FALSE),0,VLOOKUP($A26,'Data Pass Through'!$A:$D,2,FALSE)-SUM(D19:D20,D22:D23))))","v":-46.284999999999997},null,null,{"$f":"IF(AND(B3<>\"R1\",B3<>\"R2\"),0,IF(VLOOKUP($A26,'Data Pass Through'!$A:$D,2,FALSE)=0,0,IF(SUM(G19:G20,G22:G23)<VLOOKUP($A26,'Data Pass Through'!$A:$D,2,FALSE),0,VLOOKUP($A26,'Data Pass Through'!$A:$D,2,FALSE)-SUM(G19:G20,G22:G23))))","v":-29.295000000000002},16.989999999999995,0.36707356595009172,-0.22541574965838543,-0.22443570997362838]
["Sub-Total:  Distribution (excluding pass through)",null,null,{"$f":"SUM(INDIRECT(\"D19:D\"&ROW()-1))","v":36.86},null,null,{"$f":"SUM(INDIRECT(\"g19:g\"&ROW()-1))","v":36.269999999999996},{"$f":"G27-D27","v":-0.59000000000000341},-1.6006511123168841E-2,0.27908616624371524,0.27787278377687319]
["Smart Metering Entity Charge",1,{"$f":"VLOOKUP($A28,'Data Pass Through'!$A:$D,2,FALSE)","v":0.56999999999999995},{"$f":"B28*C28","v":0.56999999999999995},1,{"$f":"VLOOKUP($A28,'Data Pass Through'!$A:$D,3,FALSE)","v":0.56999999999999995},{"$f":"E28*F28","v":0.56999999999999995},0,0,4.3859695274032998E-3,4.3669006548888263E-3]
["Line Losses on Cost of Power (based on two-tier RPP prices)",{"$f":"B8-B4","v":78.75},{"$f":"IF(B4>B7,C13,C12)","v":0.115},{"$f":"B29*C29","v":9.0562500000000004},78.75,{"$f":"IF(B4>B7,F13,F12)","v":0.115},{"$f":"E29*F29","v":9.0562500000000004},0,0,6.9684976372887966E-2,6.9382007115503394E-2]
["Line Losses on Cost of Power (based on TOU prices)",{"$f":"B8-B4","v":78.75},{"$f":"VLOOKUP($B$3,'Data Billing Quantities'!$A:$O,MATCH('BI_R2_Typical (with DRP)'!$A15,'Data Billing Quantities'!$4:$4,0),FALSE)*C15+VLOOKUP($B$3,'Data Billing Quantities'!$A:$O,MATCH('BI_R2_Typical (with DRP)'!$A16,'Data Billing Quantities'!$4:$4,0),FALSE)*C16+VLOOKUP($B$3,'Data Billing Quantities'!$A:$O,MATCH('BI_R2_Typical (with DRP)'!$A17,'Data Billing Quantities'!$4:$4,0),FALSE)*C17","v":0.10342000000000001},{"$f":"B30*C30","v":8.1443250000000003},78.75,{"$f":"VLOOKUP($B$3,'Data Billing Quantities'!$A:$O,MATCH('BI_R2_Typical (with DRP)'!$A15,'Data Billing Quantities'!$4:$4,0),FALSE)*F15+VLOOKUP($B$3,'Data Billing Quantities'!$A:$O,MATCH('BI_R2_Typical (with DRP)'!$A16,'Data Billing Quantities'!$4:$4,0),FALSE)*F16+VLOOKUP($B$3,'Data Billing Quantities'!$A:$O,MATCH('BI_R2_Typical (with DRP)'!$A17,'Data Billing Quantities'!$4:$4,0),FALSE)*F17","v":0.10342000000000001},{"$f":"E30*F30","v":8.1443250000000003},0,0,6.2668002230296296E-2,6.2395540659872704E-2]
["Sub-Total:  Distribution (based on two-tier RPP prices)",null,null,{"$f":"SUM(D27,D28:D29)","v":46.486249999999998},null,null,{"$f":"SUM(G27,G28:G29)","v":45.896249999999995},-0.59000000000000341,-1.2691925031595438E-2,0.35315711214400652,0.35162169154726541]
["Sub-Total:  Distribution (based on TOU prices)",null,null,{"$f":"SUM(D27,D28,D30)","v":45.574325000000002},null,null,{"$f":"SUM(G27,G28,G30)","v":44.984324999999998},-0.59000000000000341,-1.2945885649430977E-2,0.34614013800141485,0.34463522509163474]
["Retail Transmission Rate – Network Service Rate",{"$f":"B8","v":828.75},{"$f":"VLOOKUP($B$3,'Data Current Rates'!$A:$AP,MATCH('BI_R2_Typical (with DRP)'!$A33,CurrentHeader,0),FALSE)","v":9.1999999999999998E-3},{"$f":"B33*C33","v":7.6245000000000003},828.75,{"$f":"VLOOKUP($B$3,'Data Proposed Rates'!$A:$AZ,MATCH('BI_R2_Typical (with DRP)'!$A33,ProposedHeader,0),FALSE)","v":8.8000000000000005E-3},{"$f":"E33*F33","v":7.2930000000000001},{"$f":"G33-D33","v":-0.33150000000000013},-4.347826086956523E-2,5.611732590061802E-2,5.5873344694919669E-2]
["Retail Transmission Rate – Line and Transformation Connection Service Rate",{"$f":"B8","v":828.75},{"$f":"VLOOKUP($B$3,'Data Current Rates'!$A:$AP,MATCH('BI_R2_Typical (with DRP)'!$A34,CurrentHeader,0),FALSE)","v":6.7999999999999996E-3},{"$f":"B34*C34","v":5.6354999999999995},828.75,{"$f":"VLOOKUP($B$3,'Data Proposed Rates'!$A:$AZ,MATCH('BI_R2_Typical (with DRP)'!$A34,ProposedHeader,0),FALSE)","v":6.4999999999999997E-3},{"$f":"E34*F34","v":5.3868749999999999},{"$f":"G34-D34","v":-0.24862499999999965},-4.411764705882347E-2,4.145029754022922E-2,4.127008414965657E-2]
["Sub-Total:  Retail Transmission ",null,null,{"$f":"SUM(D33:D34)","v":13.26},null,null,{"$f":"SUM(G33:G34)","v":12.679874999999999},{"$f":"G35-D35","v":-0.58012500000000067},-4.3750000000000053E-2,9.7567623440847226E-2,9.7143428844576232E-2]
["Sub-Total:  Delivery (based on two-tier RPP prices)",null,null,{"$f":"D31+D35","v":59.746249999999996},null,null,{"$f":"G31+G35","v":58.57612499999999},{"$f":"G36-D36","v":-1.1701250000000059},-1.9584911186894673E-2,0.45072473558485371,0.44876512039184158]
["Sub-Total:  Delivery (based on TOU prices)",null,null,{"$f":"D32+D35","v":58.834325},null,null,{"$f":"G32+G35","v":57.664199999999994},{"$f":"G37-D37","v":-1.1701250000000059},-1.9888474967631666E-2,0.44370776144226209,0.44177865393621091]
["Wholesale Market Service Rate (WMS) - not including CBR",{"$f":"B8","v":828.75},{"$f":"VLOOKUP($A38,'Data Pass Through'!$A:$D,2,FALSE)","v":3.0000000000000001E-3},{"$f":"B38*C38","v":2.4862500000000001},{"$f":"$B$8","v":828.75},{"$f":"VLOOKUP($A38,'Data Pass Through'!$A:$D,3,FALSE)","v":3.0000000000000001E-3},{"$f":"E38*F38","v":2.4862500000000001},0,0,1.9130906557028871E-2,1.9047731145995343E-2]
["Capacity Based Recovery (CBR) - Applicable for Class B Customers",{"$f":"B8","v":828.75},{"$f":"VLOOKUP($A39,'Data Pass Through'!$A:$D,2,FALSE)","v":4.0000000000000002E-4},{"$f":"B39*C39","v":0.33150000000000002},{"$f":"$B$8","v":828.75},{"$f":"VLOOKUP($A39,'Data Pass Through'!$A:$D,3,FALSE)","v":4.0000000000000002E-4},{"$f":"E39*F39","v":0.33150000000000002},0,0,2.5507875409371827E-3,2.5396974861327123E-3]
["Rural Rate Protection Charge",{"$f":"B8","v":828.75},{"$f":"VLOOKUP($A40,'Data Pass Through'!$A:$D,2,FALSE)","v":5.0000000000000001E-4},0.41437499999999999,828.75,{"$f":"VLOOKUP($A40,'Data Pass Through'!$A:$D,3,FALSE)","v":5.0000000000000001E-4},0.41437499999999999,0,0,3.1884844261714784E-3,3.17462185766589E-3]
["Standard Supply Service – Administration Charge (if applicable)",1,{"$f":"VLOOKUP($A41,'Data Pass Through'!$A:$D,2,FALSE)","v":0.25},{"$f":"B41*C41","v":0.25},1,{"$f":"VLOOKUP($A41,'Data Pass Through'!$A:$D,3,FALSE)","v":0.25},0.25,0,0,1.9236708453523248E-3,1.9153073047758009E-3]
["Sub-Total:  Regulatory",null,null,{"$f":"SUM(D38:D41)","v":3.4821250000000004},null,null,{"$f":"SUM(G38:G41)","v":3.4821250000000004},0,0,2.679384936948986E-2,2.6677357794569746E-2]
["Total  Electricty Charge on Two-Tier RPP ",null,null,{"$f":"SUM(D14,D27,D28,D29,D35,D42)","v":139.27837500000001},null,null,{"$f":"SUM(G14,G27,G28,G29,G35,G42)","v":138.10825},-1.170125000000013,-8.4013401218962589E-3,1.0626992561105209]
["     HST",null,0.13,{"$f":"D43*C44","v":18.106188750000001},null,{"$f":"C44","v":0.13},{"$f":"G43*F44","v":17.954072499999999},-0.1521162500000024,-8.4013401218962988E-3,0.13815090329436769]
["Total Electricity Charge on Two-Tier RPP (including HST)",null,null,{"$f":"SUM(D43:D44)","v":157.38456375000001},null,null,{"$f":"SUM(G43:G44)","v":156.06232249999999},-1.3222412500000189,-8.4013401218962867E-3,1.2008501594048886]
["Ontario Electricity Rebate (OER)",null,{"$f":"IF(($B$4*12)<250000,VLOOKUP(A46,'Data Pass Through'!$A$4:$C$20,2,0),0)","v":-0.189},{"$f":"D43*C46","v":-26.323612875000002},null,{"$f":"C46","v":-0.189},{"$f":"G43*F46","v":-26.102459249999999},0.22115362500000302,8.4013401218962797E-3,-0.20085015940488843]
["Total Amount on Two-Tier RPP",null,null,{"$f":"SUM(D45:D46)","v":131.060950875},null,null,{"$f":"SUM(G45:G46)","v":129.95986324999998},-1.1010876250000194,-8.4013401218963144E-3,1]
["Total Electricty Charge on TOU (before HST)",null,null,{"$f":"SUM(D18,D27,D28,D30,D35,D42)","v":139.88144999999997},null,null,{"$f":"SUM(G18,G27,G28,G30,G35,G42)","v":138.71132499999999},-1.1701249999999845,-8.3651191777035817E-3,null,{"$f":"G48/$G$52","v":1.0626992561105206}]
["     HST",null,0.13,{"$f":"D48*C49","v":18.184588499999997},null,{"$f":"C49","v":0.13},{"$f":"G48*F49","v":18.032472249999998},-0.15211624999999884,-8.3651191777036286E-3,null,{"$f":"G49/$G$52","v":0.13815090329436769}]
["Total Electricity Charge on TOU (including HST)",null,null,{"$f":"SUM(D48:D49)","v":158.06603849999996},null,null,{"$f":"SUM(G48:G49)","v":156.74379725},-1.3222412499999621,-8.3651191777034534E-3,null,{"$f":"G50/$G$52","v":1.2008501594048884}]
["Ontario Electricity Rebate (OER)",null,{"$f":"IF(($B$4*12)<250000,VLOOKUP(A51,'Data Pass Through'!$A$4:$C$20,2,0),0)","v":-0.189},{"$f":"D48*C51","v":-26.437594049999994},null,{"$f":"C51","v":-0.189},{"$f":"G48*F51","v":-26.216440424999998},0.22115362499999591,8.3651191777035384E-3,null,{"$f":"G51/$G$52","v":-0.2008501594048884}]
["Total Amount on TOU",null,null,{"$f":"SUM(D50:D51)","v":131.62844444999996},null,null,{"$f":"SUM(G50:G51)","v":130.527356825},-1.1010876249999626,-8.36511917770341E-3,null,{"$f":"G52/$G$52","v":1}]
["* Distribution rate protection applies to R1 and R2 customers"]

{"sheet":"BI_R2_Avg (with DRP)","index":37,"n_rows":53,"n_cols":11,"rows_kept":53,"cut":false,"hidden":false,"merged":[[0,0,0,10]]}
["2023 Bill Impacts (Average Consumption Level) - R2"]
[]
["Rate Class",{"$f":"RIGHT(A1,LEN(A1)-FIND(\"- \",A1,1)-1)","v":"R2"},"With DRP"]
["Monthly Consumption (kWh)",{"$f":"IF(COUNTIF(A1,\"*Low*\")>0,VLOOKUP(B3,'Data Billing Quantities'!$A:$Z,MATCH(\"Low kWh\",'Data Billing Quantities'!4:4,0),FALSE),IF(COUNTIF(A1,\"*Typical*\")>0,VLOOKUP(B3,'Data Billing Quantities'!$A:$Z,MATCH(\"Typical kWh\",'Data Billing Quantities'!4:4,0),FALSE),IF(COUNTIF(A1,\"*Average*\")>0,VLOOKUP(B3,'Data Billing Quantities'!$A:$Z,MATCH(\"Average kWh\",'Data Billing Quantities'!4:4,0),FALSE),IF(COUNTIF(A1,\"*High*\")>0,VLOOKUP(B3,'Data Billing Quantities'!$A:$Z,MATCH(\"High kWh\",'Data Billing Quantities'!4:4,0),FALSE),\"error\"))))","v":978}]
["Peak (kW)",{"$f":"IF(COUNTIF(A1,\"*Low*\")>0,VLOOKUP(B3,'Data Billing Quantities'!$A:$Z,MATCH(\"Low kW\",'Data Billing Quantities'!4:4,0),FALSE),IF(COUNTIF(A1,\"*Typical*\")>0,VLOOKUP(B3,'Data Billing Quantities'!$A:$Z,MATCH(\"Typical kW\",'Data Billing Quantities'!4:4,0),FALSE),IF(COUNTIF(A1,\"*Average*\")>0,VLOOKUP(B3,'Data Billing Quantities'!$A:$Z,MATCH(\"Average kW\",'Data Billing Quantities'!4:4,0),FALSE),IF(COUNTIF(A1,\"*High*\")>0,VLOOKUP(B3,'Data Billing Quantities'!$A:$Z,MATCH(\"High kW\",'Data Billing Quantities'!4:4,0),FALSE),\"error\"))))","v":0}]
["Loss factor",{"$f":"VLOOKUP(B3,'Data Billing Quantities'!A:D,MATCH(A6,'Data Billing Quantities'!4:4,0),FALSE)","v":1.105}]
["Commodity Threshold",{"$f":"VLOOKUP(B3,'Data Billing Quantities'!A:D,MATCH(A7,'Data Billing Quantities'!4:4,0),FALSE)","v":600}]
["Monthly Consumption (kWh) - Uplifted",{"$f":"B4*B6","v":1080.69}]
["Charge determinant",{"$f":"VLOOKUP(B3,'Data Billing Quantities'!A:D,MATCH(A9,'Data Billing Quantities'!4:4,0),FALSE)","v":"kWh"}]
[]
[null,"Volume","Current Rate ($)","Current Charge ($)","Volume","Proposed Rate ($)","Proposed Charge ($)","Change ($)","Change (%)","% of Total Bill on RPP","% of Total Bill"]
["Energy First Tier",{"$f":"IF(B4>B7,B7,B4)","v":600},{"$f":"VLOOKUP($A12,'Data Pass Through'!$A:$D,2,FALSE)","v":9.8000000000000004E-2},{"$f":"B12*C12","v":58.800000000000004},{"$f":"B12","v":600},{"$f":"VLOOKUP($A12,'Data Pass Through'!$A:$D,3,FALSE)","v":9.8000000000000004E-2},{"$f":"E12*F12","v":58.800000000000004},{"$f":"G12-D12","v":0},{"$f":"IF(ISERROR(H12/ABS(D12)),\"N/A\",(H12/ABS(D12)))","v":0},{"$f":"G12/$G$47","v":0.36365979457652398}]
["Energy Second Tier",{"$f":"IF(B4>B7,(B4)-B7,0)","v":378},{"$f":"VLOOKUP($A13,'Data Pass Through'!$A:$D,2,FALSE)","v":0.115},{"$f":"B13*C13","v":43.47},{"$f":"B13","v":378},{"$f":"VLOOKUP($A13,'Data Pass Through'!$A:$D,3,FALSE)","v":0.115},{"$f":"E13*F13","v":43.47},0,0,{"$f":"G13/$G$47","v":0.26884849099050162}]
["Sub-Total:  Energy (RPP Tiered)",null,null,{"$f":"SUM(D12:D13)","v":102.27000000000001},null,null,{"$f":"SUM(G12:G13)","v":102.27000000000001},0,0,{"$f":"G14/$G$47","v":0.63250828556702565}]
["TOU-Off Peak",{"$f":"B$4*VLOOKUP($B$3,'Data Billing Quantities'!$A:$O,MATCH('BI_R2_Avg (with DRP)'!$A15,'Data Billing Quantities'!$4:$4,0),FALSE)","v":625.91999999999996},{"$f":"VLOOKUP($A15,'Data Pass Through'!$A:$D,2,FALSE)","v":8.2000000000000003E-2},{"$f":"B15*C15","v":51.32544},625.91999999999996,{"$f":"VLOOKUP($A15,'Data Pass Through'!$A:$D,3,FALSE)","v":8.2000000000000003E-2},{"$f":"E15*F15","v":51.32544},0,0,null,{"$f":"G15/$G$52","v":0.3217659082062797}]
["TOU-Mid Peak",{"$f":"B$4*VLOOKUP($B$3,'Data Billing Quantities'!$A:$O,MATCH('BI_R2_Avg (with DRP)'!$A16,'Data Billing Quantities'!$4:$4,0),FALSE)","v":176.04},{"$f":"VLOOKUP($A16,'Data Pass Through'!$A:$D,2,FALSE)","v":0.113},{"$f":"B16*C16","v":19.892520000000001},176.04,{"$f":"VLOOKUP($A16,'Data Pass Through'!$A:$D,3,FALSE)","v":0.113},{"$f":"E16*F16","v":19.892520000000001},0,0,null,0.1247088142704979]
["TOU-On Peak",{"$f":"B$4*VLOOKUP($B$3,'Data Billing Quantities'!$A:$O,MATCH('BI_R2_Avg (with DRP)'!$A17,'Data Billing Quantities'!$4:$4,0),FALSE)","v":176.04},{"$f":"VLOOKUP($A17,'Data Pass Through'!$A:$D,2,FALSE)","v":0.17},{"$f":"B17*C17","v":29.9268},176.04,{"$f":"VLOOKUP($A17,'Data Pass Through'!$A:$D,3,FALSE)","v":0.17},{"$f":"E17*F17","v":29.9268},0,0,null,0.18761503031844817]
["Sub-Total:  Energy (RPP TOU)",null,null,{"$f":"SUM(D15:D17)","v":101.14476000000001},null,null,{"$f":"SUM(G15:G17)","v":101.14476000000001},0,0,{"$f":"G18/$G$47","v":0.62554902455938466},0.63408975279522584]
["Service Charge",1,{"$f":"VLOOKUP($B$3,'Data Current Rates'!$A:$AP,MATCH('BI_R2_Avg (with DRP)'!$A19,CurrentHeader,0),FALSE)","v":66.8},{"$f":"B19*C19","v":66.8},1,{"$f":"VLOOKUP($B$3,'Data Proposed Rates'!$A:$AZ,MATCH('BI_R2_Avg (with DRP)'!$A19,ProposedHeader,0),FALSE)","v":56.08},{"$f":"E19*F19","v":56.08},-10.719999999999999,-0.16047904191616766,0.34683743673216777,0.35157286780606589]
["Fixed Base Rate Adjustment to Recover Past Tax Amounts ",1,{"$f":"VLOOKUP($B$3,'Data Current Rates'!$A:$AP,MATCH('BI_R2_Avg (with DRP)'!$A20,CurrentHeader,0),FALSE)","v":4.42},4.42,1,{"$f":"VLOOKUP($B$3,'Data Proposed Rates'!$A:$AZ,MATCH('BI_R2_Avg (with DRP)'!$A20,ProposedHeader,0),FALSE)","v":4},4,-0.41999999999999993,-9.5022624434389122E-2,2.4738761535817957E-2,2.5076524094583875E-2]
["Group 2 Fixed DVA Rider ",null,null,null,1,{"$f":"VLOOKUP($B$3,'Data Proposed Rates'!$A:$AZ,MATCH('BI_R2_Avg (with DRP)'!$A21,ProposedHeader,0),FALSE)","v":-0.28999999999999998},-0.28999999999999998,-0.28999999999999998,"N/A",-1.7935602113468019E-3,-1.8180479968573308E-3]
["Distribution Volumetric Charge",{"$f":"IF($B$9=\"kWh\",$B$4,$B$5)","v":978},{"$f":"VLOOKUP($B$3,'Data Current Rates'!$A:$AP,MATCH('BI_R2_Avg (with DRP)'!$A22,CurrentHeader,0),FALSE)","v":1.5900000000000001E-2},15.5502,978,{"$f":"VLOOKUP($B$3,'Data Proposed Rates'!$A:$AZ,MATCH('BI_R2_Avg (with DRP)'!$A22,ProposedHeader,0),FALSE)","v":8.0999999999999996E-3},7.9217999999999993,-7.628400000000001,-0.49056603773584911,4.8993880283610666E-2,4.9662802143118627E-2]
["Volumetric Base Rate Adjustment to Recover Past Tax Amounts ",{"$f":"IF($B$9=\"kWh\",$B$4,$B$5)","v":978},{"$f":"VLOOKUP($B$3,'Data Current Rates'!$A:$AP,MATCH('BI_R2_Avg (with DRP)'!$A23,CurrentHeader,0),FALSE)","v":0},0,978,{"$f":"VLOOKUP($B$3,'Data Proposed Rates'!$A:$AZ,MATCH('BI_R2_Avg (with DRP)'!$A23,ProposedHeader,0),FALSE)","v":0},0,0,"N/A",0,0]
["Group 1 Volumetric DVA Rider (General)",null,null,null,{"$f":"B4","v":978},{"$f":"VLOOKUP($B$3,'Data Proposed Rates'!$A:$AZ,MATCH('BI_R2_Avg (with DRP)'!$A24,ProposedHeader,0),FALSE)","v":-4.0000000000000002E-4},-0.39119999999999999,-0.39119999999999999,"N/A",-2.4194508782029961E-3,-2.4524840564503028E-3]
["Group 2 Volumetric DVA Rider ",null,null,null,{"$f":"B4","v":978},{"$f":"VLOOKUP($B$3,'Data Proposed Rates'!$A:$AZ,MATCH('BI_R2_Avg (with DRP)'!$A25,ProposedHeader,0),FALSE)","v":0},0,0,"N/A",0,0]
["Fair Hydro Plan - Distribution Rate Protection Savings*",null,null,{"$f":"IF(AND(B3<>\"R1\",B3<>\"R2\"),0,IF(VLOOKUP($A26,'Data Pass Through'!$A:$D,2,FALSE)=0,0,IF(SUM(D19:D20,D22:D23)<VLOOKUP($A26,'Data Pass Through'!$A:$D,2,FALSE),0,VLOOKUP($A26,'Data Pass Through'!$A:$D,2,FALSE)-SUM(D19:D20,D22:D23))))","v":-49.910200000000003},null,null,{"$f":"IF(AND(B3<>\"R1\",B3<>\"R2\"),0,IF(VLOOKUP($A26,'Data Pass Through'!$A:$D,2,FALSE)=0,0,IF(SUM(G19:G20,G22:G23)<VLOOKUP($A26,'Data Pass Through'!$A:$D,2,FALSE),0,VLOOKUP($A26,'Data Pass Through'!$A:$D,2,FALSE)-SUM(G19:G20,G22:G23))))","v":-31.141800000000003},18.7684,0.37604337389952353,-0.19260239099903392,-0.19523202451217803]
["Sub-Total:  Distribution (excluding pass through)",null,null,{"$f":"SUM(INDIRECT(\"D19:D\"&ROW()-1))","v":36.86},null,null,{"$f":"SUM(INDIRECT(\"g19:g\"&ROW()-1))","v":36.178799999999995},{"$f":"G27-D27","v":-0.68120000000000402},-1.8480737927292566E-2,0.22375467646301264,0.22680963747828273]
["Smart Metering Entity Charge",1,{"$f":"VLOOKUP($A28,'Data Pass Through'!$A:$D,2,FALSE)","v":0.56999999999999995},{"$f":"B28*C28","v":0.56999999999999995},1,{"$f":"VLOOKUP($A28,'Data Pass Through'!$A:$D,3,FALSE)","v":0.56999999999999995},{"$f":"E28*F28","v":0.56999999999999995},0,0,3.5252735188540585E-3,3.5734046834782016E-3]
["Line Losses on Cost of Power (based on two-tier RPP prices)",{"$f":"B8-B4","v":102.69000000000005},{"$f":"IF(B4>B7,C13,C12)","v":0.115},{"$f":"B29*C29","v":11.809350000000007},102.69000000000005,{"$f":"IF(B4>B7,F13,F12)","v":0.115},{"$f":"E29*F29","v":11.809350000000007},0,0,7.3037173385752996E-2,7.4034362454093561E-2]
["Line Losses on Cost of Power (based on TOU prices)",{"$f":"B8-B4","v":102.69000000000005},{"$f":"VLOOKUP($B$3,'Data Billing Quantities'!$A:$O,MATCH('BI_R2_Avg (with DRP)'!$A15,'Data Billing Quantities'!$4:$4,0),FALSE)*C15+VLOOKUP($B$3,'Data Billing Quantities'!$A:$O,MATCH('BI_R2_Avg (with DRP)'!$A16,'Data Billing Quantities'!$4:$4,0),FALSE)*C16+VLOOKUP($B$3,'Data Billing Quantities'!$A:$O,MATCH('BI_R2_Avg (with DRP)'!$A17,'Data Billing Quantities'!$4:$4,0),FALSE)*C17","v":0.10342000000000001},{"$f":"B30*C30","v":10.620199800000007},102.69000000000005,{"$f":"VLOOKUP($B$3,'Data Billing Quantities'!$A:$O,MATCH('BI_R2_Avg (with DRP)'!$A15,'Data Billing Quantities'!$4:$4,0),FALSE)*F15+VLOOKUP($B$3,'Data Billing Quantities'!$A:$O,MATCH('BI_R2_Avg (with DRP)'!$A16,'Data Billing Quantities'!$4:$4,0),FALSE)*F16+VLOOKUP($B$3,'Data Billing Quantities'!$A:$O,MATCH('BI_R2_Avg (with DRP)'!$A17,'Data Billing Quantities'!$4:$4,0),FALSE)*F17","v":0.10342000000000001},{"$f":"E30*F30","v":10.620199800000007},0,0,6.5682647578735431E-2,6.6579424043498758E-2]
["Sub-Total:  Distribution (based on two-tier RPP prices)",null,null,{"$f":"SUM(D27,D28:D29)","v":49.239350000000009},null,null,{"$f":"SUM(G27,G28:G29)","v":48.558150000000005},-0.68120000000000402,-1.3834463696210528E-2,0.30031712336761973,0.30441740461585448]
["Sub-Total:  Distribution (based on TOU prices)",null,null,{"$f":"SUM(D27,D28,D30)","v":48.050199800000009},null,null,{"$f":"SUM(G27,G28,G30)","v":47.368999800000005},-0.68120000000000402,-1.4176840113784582E-2,0.29296259756060217,0.29696246620525968]
["Retail Transmission Rate – Network Service Rate",{"$f":"B8","v":1080.69},{"$f":"VLOOKUP($B$3,'Data Current Rates'!$A:$AP,MATCH('BI_R2_Avg (with DRP)'!$A33,CurrentHeader,0),FALSE)","v":9.1999999999999998E-3},{"$f":"B33*C33","v":9.9423480000000009},1080.69,{"$f":"VLOOKUP($B$3,'Data Proposed Rates'!$A:$AZ,MATCH('BI_R2_Avg (with DRP)'!$A33,ProposedHeader,0),FALSE)","v":8.8000000000000005E-3},{"$f":"E33*F33","v":9.510072000000001},{"$f":"G33-D33","v":-0.43227599999999988},-4.3478260869565202E-2,5.8816850849114845E-2,5.9619887412306866E-2]
["Retail Transmission Rate – Line and Transformation Connection Service Rate",{"$f":"B8","v":1080.69},{"$f":"VLOOKUP($B$3,'Data Current Rates'!$A:$AP,MATCH('BI_R2_Avg (with DRP)'!$A34,CurrentHeader,0),FALSE)","v":6.7999999999999996E-3},{"$f":"B34*C34","v":7.3486919999999998},1080.69,{"$f":"VLOOKUP($B$3,'Data Proposed Rates'!$A:$AZ,MATCH('BI_R2_Avg (with DRP)'!$A34,ProposedHeader,0),FALSE)","v":6.4999999999999997E-3},{"$f":"E34*F34","v":7.0244850000000003},{"$f":"G34-D34","v":-0.32420699999999947},-4.4117647058823456E-2,4.3444264831732554E-2,4.4037416838635754E-2]
["Sub-Total:  Retail Transmission ",null,null,{"$f":"SUM(D33:D34)","v":17.291040000000002},null,null,{"$f":"SUM(G33:G34)","v":16.534557},{"$f":"G35-D35","v":-0.7564830000000029},-4.3750000000000164E-2,0.10226111568084738,0.10365730425094261]
["Sub-Total:  Delivery (based on two-tier RPP prices)",null,null,{"$f":"D31+D35","v":66.530390000000011},null,null,{"$f":"G31+G35","v":65.092707000000004},{"$f":"G36-D36","v":-1.4376830000000069},-2.1609417891583181E-2,0.40257823904846707,0.40807470886679709]
["Sub-Total:  Delivery (based on TOU prices)",null,null,{"$f":"D32+D35","v":65.341239800000011},null,null,{"$f":"G32+G35","v":63.903556800000004},{"$f":"G37-D37","v":-1.4376830000000069},-2.2002689333727742E-2,0.39522371324144956,0.40061977045620228]
["Wholesale Market Service Rate (WMS) - not including CBR",{"$f":"B8","v":1080.69},{"$f":"VLOOKUP($A38,'Data Pass Through'!$A:$D,2,FALSE)","v":3.0000000000000001E-3},{"$f":"B38*C38","v":3.2420700000000005},{"$f":"$B$8","v":1080.69},{"$f":"VLOOKUP($A38,'Data Pass Through'!$A:$D,3,FALSE)","v":3.0000000000000001E-3},{"$f":"E38*F38","v":3.2420700000000005},0,0,2.0051199153107335E-2,2.0324961617831889E-2]
["Capacity Based Recovery (CBR) - Applicable for Class B Customers",{"$f":"B8","v":1080.69},{"$f":"VLOOKUP($A39,'Data Pass Through'!$A:$D,2,FALSE)","v":4.0000000000000002E-4},{"$f":"B39*C39","v":0.43227600000000005},{"$f":"$B$8","v":1080.69},{"$f":"VLOOKUP($A39,'Data Pass Through'!$A:$D,3,FALSE)","v":4.0000000000000002E-4},{"$f":"E39*F39","v":0.43227600000000005},0,0,2.6734932204143112E-3,2.7099948823775849E-3]
["Rural Rate Protection Charge",{"$f":"B8","v":1080.69},{"$f":"VLOOKUP($A40,'Data Pass Through'!$A:$D,2,FALSE)","v":5.0000000000000001E-4},0.54034500000000008,1080.69,{"$f":"VLOOKUP($A40,'Data Pass Through'!$A:$D,3,FALSE)","v":5.0000000000000001E-4},0.54034500000000008,0,0,3.3418665255178889E-3,3.387493602971981E-3]
["Standard Supply Service – Administration Charge (if applicable)",1,{"$f":"VLOOKUP($A41,'Data Pass Through'!$A:$D,2,FALSE)","v":0.25},{"$f":"B41*C41","v":0.25},1,{"$f":"VLOOKUP($A41,'Data Pass Through'!$A:$D,3,FALSE)","v":0.25},0.25,0,0,1.5461725959886223E-3,1.5672827559114922E-3]
["Sub-Total:  Regulatory",null,null,{"$f":"SUM(D38:D41)","v":4.4646910000000002},null,null,{"$f":"SUM(G38:G41)","v":4.4646910000000002},0,0,2.7612731495028155E-2,2.7989732859092942E-2]
["Total  Electricty Charge on Two-Tier RPP ",null,null,{"$f":"SUM(D14,D27,D28,D29,D35,D42)","v":173.26508099999998},null,null,{"$f":"SUM(G14,G27,G28,G29,G35,G42)","v":171.82739799999999},-1.4376829999999927,-8.2975922886619775E-3,1.0626992561105209]
["     HST",null,0.13,{"$f":"D43*C44","v":22.524460529999999},null,{"$f":"C44","v":0.13},{"$f":"G43*F44","v":22.337561739999998},-0.18689879000000076,-8.2975922886620521E-3,0.13815090329436769]
["Total Electricity Charge on Two-Tier RPP (including HST)",null,null,{"$f":"SUM(D43:D44)","v":195.78954152999998},null,null,{"$f":"SUM(G43:G44)","v":194.16495973999997},-1.6245817900000077,-8.297592288662059E-3,1.2008501594048884]
["Ontario Electricity Rebate (OER)",null,{"$f":"IF(($B$4*12)<250000,VLOOKUP(A46,'Data Pass Through'!$A$4:$C$20,2,0),0)","v":-0.189},{"$f":"D43*C46","v":-32.747100308999997},null,{"$f":"C46","v":-0.189},{"$f":"G43*F46","v":-32.475378221999996},0.27172208700000056,8.2975922886620364E-3,-0.2008501594048884]
["Total Amount on Two-Tier RPP",null,null,{"$f":"SUM(D45:D46)","v":163.04244122099999},null,null,{"$f":"SUM(G45:G46)","v":161.68958151799998},-1.3528597030000071,-8.2975922886620625E-3,1]
["Total Electricty Charge on TOU (before HST)",null,null,{"$f":"SUM(D18,D27,D28,D30,D35,D42)","v":170.95069079999999},null,null,{"$f":"SUM(G18,G27,G28,G30,G35,G42)","v":169.51300779999997},-1.4376830000000211,-8.4099279931077135E-3,null,{"$f":"G48/$G$52","v":1.0626992561105209}]
["     HST",null,0.13,{"$f":"D48*C49","v":22.223589804},null,{"$f":"C49","v":0.13},{"$f":"G48*F49","v":22.036691013999995},-0.18689879000000431,-8.4099279931077828E-3,null,{"$f":"G49/$G$52","v":0.13815090329436769}]
["Total Electricity Charge on TOU (including HST)",null,null,{"$f":"SUM(D48:D49)","v":193.17428060399999},null,null,{"$f":"SUM(G48:G49)","v":191.54969881399995},-1.6245817900000361,-8.4099279931077759E-3,null,{"$f":"G50/$G$52","v":1.2008501594048884}]
["Ontario Electricity Rebate (OER)",null,{"$f":"IF(($B$4*12)<250000,VLOOKUP(A51,'Data Pass Through'!$A$4:$C$20,2,0),0)","v":-0.189},{"$f":"D48*C51","v":-32.309680561199997},null,{"$f":"C51","v":-0.189},{"$f":"G48*F51","v":-32.037958474199996},0.27172208700000056,8.4099279931076076E-3,null,{"$f":"G51/$G$52","v":-0.20085015940488846}]
["Total Amount on TOU",null,null,{"$f":"SUM(D50:D51)","v":160.86460004279999},null,null,{"$f":"SUM(G50:G51)","v":159.51174033979996},-1.3528597030000356,-8.4099279931078106E-3,null,{"$f":"G52/$G$52","v":1}]
["* Distribution rate protection applies to R1 and R2 customers"]

{"sheet":"BI_R2_High (with DRP)","index":38,"n_rows":53,"n_cols":11,"rows_kept":53,"cut":false,"hidden":false,"merged":[[0,0,0,10]]}
["2023 Bill Impacts (High Consumption Level) - R2"]
[]
["Rate Class",{"$f":"RIGHT(A1,LEN(A1)-FIND(\"- \",A1,1)-1)","v":"R2"},"With DRP"]
["Monthly Consumption (kWh)",{"$f":"IF(COUNTIF(A1,\"*Low*\")>0,VLOOKUP(B3,'Data Billing Quantities'!$A:$Z,MATCH(\"Low kWh\",'Data Billing Quantities'!4:4,0),FALSE),IF(COUNTIF(A1,\"*Typical*\")>0,VLOOKUP(B3,'Data Billing Quantities'!$A:$Z,MATCH(\"Typical kWh\",'Data Billing Quantities'!4:4,0),FALSE),IF(COUNTIF(A1,\"*Average*\")>0,VLOOKUP(B3,'Data Billing Quantities'!$A:$Z,MATCH(\"Average kWh\",'Data Billing Quantities'!4:4,0),FALSE),IF(COUNTIF(A1,\"*High*\")>0,VLOOKUP(B3,'Data Billing Quantities'!$A:$Z,MATCH(\"High kWh\",'Data Billing Quantities'!4:4,0),FALSE),\"error\"))))","v":2110}]
["Peak (kW)",{"$f":"IF(COUNTIF(A1,\"*Low*\")>0,VLOOKUP(B3,'Data Billing Quantities'!$A:$Z,MATCH(\"Low kW\",'Data Billing Quantities'!4:4,0),FALSE),IF(COUNTIF(A1,\"*Typical*\")>0,VLOOKUP(B3,'Data Billing Quantities'!$A:$Z,MATCH(\"Typical kW\",'Data Billing Quantities'!4:4,0),FALSE),IF(COUNTIF(A1,\"*Average*\")>0,VLOOKUP(B3,'Data Billing Quantities'!$A:$Z,MATCH(\"Average kW\",'Data Billing Quantities'!4:4,0),FALSE),IF(COUNTIF(A1,\"*High*\")>0,VLOOKUP(B3,'Data Billing Quantities'!$A:$Z,MATCH(\"High kW\",'Data Billing Quantities'!4:4,0),FALSE),\"error\"))))","v":0}]
["Loss factor",{"$f":"VLOOKUP(B3,'Data Billing Quantities'!A:D,MATCH(A6,'Data Billing Quantities'!4:4,0),FALSE)","v":1.105}]
["Commodity Threshold",{"$f":"VLOOKUP(B3,'Data Billing Quantities'!A:D,MATCH(A7,'Data Billing Quantities'!4:4,0),FALSE)","v":600}]
["Monthly Consumption (kWh) - Uplifted",{"$f":"B4*B6","v":2331.5500000000002}]
["Charge determinant",{"$f":"VLOOKUP(B3,'Data Billing Quantities'!A:D,MATCH(A9,'Data Billing Quantities'!4:4,0),FALSE)","v":"kWh"}]
[]
[null,"Volume","Current Rate ($)","Current Charge ($)","Volume","Proposed Rate ($)","Proposed Charge ($)","Change ($)","Change (%)","% of Total Bill on RPP","% of Total Bill"]
["Energy First Tier",{"$f":"IF(B4>B7,B7,B4)","v":600},{"$f":"VLOOKUP($A12,'Data Pass Through'!$A:$D,2,FALSE)","v":9.8000000000000004E-2},{"$f":"B12*C12","v":58.800000000000004},{"$f":"B12","v":600},{"$f":"VLOOKUP($A12,'Data Pass Through'!$A:$D,3,FALSE)","v":9.8000000000000004E-2},{"$f":"E12*F12","v":58.800000000000004},{"$f":"G12-D12","v":0},{"$f":"IF(ISERROR(H12/ABS(D12)),\"N/A\",(H12/ABS(D12)))","v":0},{"$f":"G12/$G$47","v":0.18419618682153269}]
["Energy Second Tier",{"$f":"IF(B4>B7,(B4)-B7,0)","v":1510},{"$f":"VLOOKUP($A13,'Data Pass Through'!$A:$D,2,FALSE)","v":0.115},{"$f":"B13*C13","v":173.65},{"$f":"B13","v":1510},{"$f":"VLOOKUP($A13,'Data Pass Through'!$A:$D,3,FALSE)","v":0.115},{"$f":"E13*F13","v":173.65},0,0,{"$f":"G13/$G$47","v":0.54397394288365897}]
["Sub-Total:  Energy (RPP Tiered)",null,null,{"$f":"SUM(D12:D13)","v":232.45000000000002},null,null,{"$f":"SUM(G12:G13)","v":232.45000000000002},0,0,{"$f":"G14/$G$47","v":0.72817012970519168}]
["TOU-Off Peak",{"$f":"B$4*VLOOKUP($B$3,'Data Billing Quantities'!$A:$O,MATCH('BI_R2_High (with DRP)'!$A15,'Data Billing Quantities'!$4:$4,0),FALSE)","v":1350.4},{"$f":"VLOOKUP($A15,'Data Pass Through'!$A:$D,2,FALSE)","v":8.2000000000000003E-2},{"$f":"B15*C15","v":110.73280000000001},1350.4,{"$f":"VLOOKUP($A15,'Data Pass Through'!$A:$D,3,FALSE)","v":8.2000000000000003E-2},{"$f":"E15*F15","v":110.73280000000001},0,0,null,{"$f":"G15/$G$52","v":0.36495293063251433}]
["TOU-Mid Peak",{"$f":"B$4*VLOOKUP($B$3,'Data Billing Quantities'!$A:$O,MATCH('BI_R2_High (with DRP)'!$A16,'Data Billing Quantities'!$4:$4,0),FALSE)","v":379.8},{"$f":"VLOOKUP($A16,'Data Pass Through'!$A:$D,2,FALSE)","v":0.113},{"$f":"B16*C16","v":42.917400000000001},379.8,{"$f":"VLOOKUP($A16,'Data Pass Through'!$A:$D,3,FALSE)","v":0.113},{"$f":"E16*F16","v":42.917400000000001},0,0,null,0.14144707715444629]
["TOU-On Peak",{"$f":"B$4*VLOOKUP($B$3,'Data Billing Quantities'!$A:$O,MATCH('BI_R2_High (with DRP)'!$A17,'Data Billing Quantities'!$4:$4,0),FALSE)","v":379.8},{"$f":"VLOOKUP($A17,'Data Pass Through'!$A:$D,2,FALSE)","v":0.17},{"$f":"B17*C17","v":64.566000000000003},379.8,{"$f":"VLOOKUP($A17,'Data Pass Through'!$A:$D,3,FALSE)","v":0.17},{"$f":"E17*F17","v":64.566000000000003},0,0,null,0.21279648775447671]
["Sub-Total:  Energy (RPP TOU)",null,null,{"$f":"SUM(D15:D17)","v":218.21620000000001},null,null,{"$f":"SUM(G15:G17)","v":218.21620000000001},0,0,{"$f":"G18/$G$47","v":0.68358149562389348},0.71919649554143739]
["Service Charge",1,{"$f":"VLOOKUP($B$3,'Data Current Rates'!$A:$AP,MATCH('BI_R2_High (with DRP)'!$A19,CurrentHeader,0),FALSE)","v":66.8},{"$f":"B19*C19","v":66.8},1,{"$f":"VLOOKUP($B$3,'Data Proposed Rates'!$A:$AZ,MATCH('BI_R2_High (with DRP)'!$A19,ProposedHeader,0),FALSE)","v":56.08},{"$f":"E19*F19","v":56.08},-10.719999999999999,-0.16047904191616766,0.17567554688693116,0.18482834670369938]
["Fixed Base Rate Adjustment to Recover Past Tax Amounts ",1,{"$f":"VLOOKUP($B$3,'Data Current Rates'!$A:$AP,MATCH('BI_R2_High (with DRP)'!$A20,CurrentHeader,0),FALSE)","v":4.42},4.42,1,{"$f":"VLOOKUP($B$3,'Data Proposed Rates'!$A:$AZ,MATCH('BI_R2_High (with DRP)'!$A20,ProposedHeader,0),FALSE)","v":4},4,-0.41999999999999993,-9.5022624434389122E-2,1.2530352845002223E-2,1.3183191633644748E-2]
["Group 2 Fixed DVA Rider ",null,null,null,1,{"$f":"VLOOKUP($B$3,'Data Proposed Rates'!$A:$AZ,MATCH('BI_R2_High (with DRP)'!$A21,ProposedHeader,0),FALSE)","v":-0.28999999999999998},-0.28999999999999998,-0.28999999999999998,"N/A",-9.0845058126266104E-4,-9.5578139343924424E-4]
["Distribution Volumetric Charge",{"$f":"IF($B$9=\"kWh\",$B$4,$B$5)","v":2110},{"$f":"VLOOKUP($B$3,'Data Current Rates'!$A:$AP,MATCH('BI_R2_High (with DRP)'!$A22,CurrentHeader,0),FALSE)","v":1.5900000000000001E-2},33.548999999999999,2110,{"$f":"VLOOKUP($B$3,'Data Proposed Rates'!$A:$AZ,MATCH('BI_R2_High (with DRP)'!$A22,ProposedHeader,0),FALSE)","v":8.0999999999999996E-3},17.090999999999998,-16.458000000000002,-0.49056603773584911,5.3539065118483234E-2,5.6328482052655594E-2]
["Volumetric Base Rate Adjustment to Recover Past Tax Amounts ",{"$f":"IF($B$9=\"kWh\",$B$4,$B$5)","v":2110},{"$f":"VLOOKUP($B$3,'Data Current Rates'!$A:$AP,MATCH('BI_R2_High (with DRP)'!$A23,CurrentHeader,0),FALSE)","v":0},0,2110,{"$f":"VLOOKUP($B$3,'Data Proposed Rates'!$A:$AZ,MATCH('BI_R2_High (with DRP)'!$A23,ProposedHeader,0),FALSE)","v":0},0,0,"N/A",0,0]
["Group 1 Volumetric DVA Rider (General)",null,null,null,{"$f":"B4","v":2110},{"$f":"VLOOKUP($B$3,'Data Proposed Rates'!$A:$AZ,MATCH('BI_R2_High (with DRP)'!$A24,ProposedHeader,0),FALSE)","v":-4.0000000000000002E-4},-0.84400000000000008,-0.84400000000000008,"N/A",-2.6439044502954692E-3,-2.7816534346990422E-3]
["Group 2 Volumetric DVA Rider ",null,null,null,{"$f":"B4","v":2110},{"$f":"VLOOKUP($B$3,'Data Proposed Rates'!$A:$AZ,MATCH('BI_R2_High (with DRP)'!$A25,ProposedHeader,0),FALSE)","v":0},0,0,"N/A",0,0]
["Fair Hydro Plan - Distribution Rate Protection Savings*",null,null,{"$f":"IF(AND(B3<>\"R1\",B3<>\"R2\"),0,IF(VLOOKUP($A26,'Data Pass Through'!$A:$D,2,FALSE)=0,0,IF(SUM(D19:D20,D22:D23)<VLOOKUP($A26,'Data Pass Through'!$A:$D,2,FALSE),0,VLOOKUP($A26,'Data Pass Through'!$A:$D,2,FALSE)-SUM(D19:D20,D22:D23))))","v":-67.909000000000006},null,null,{"$f":"IF(AND(B3<>\"R1\",B3<>\"R2\"),0,IF(VLOOKUP($A26,'Data Pass Through'!$A:$D,2,FALSE)=0,0,IF(SUM(G19:G20,G22:G23)<VLOOKUP($A26,'Data Pass Through'!$A:$D,2,FALSE),0,VLOOKUP($A26,'Data Pass Through'!$A:$D,2,FALSE)-SUM(G19:G20,G22:G23))))","v":-40.310999999999993},27.598000000000013,0.40639679571190873,-0.12627776338372113,-0.13285690948596335]
["Sub-Total:  Distribution (excluding pass through)",null,null,{"$f":"SUM(INDIRECT(\"D19:D\"&ROW()-1))","v":36.86},null,null,{"$f":"SUM(INDIRECT(\"g19:g\"&ROW()-1))","v":35.726000000000013},{"$f":"G27-D27","v":-1.1339999999999861},-3.076505697232735E-2,0.11191484643513738,0.11774567607589811]
["Smart Metering Entity Charge",1,{"$f":"VLOOKUP($A28,'Data Pass Through'!$A:$D,2,FALSE)","v":0.56999999999999995},{"$f":"B28*C28","v":0.56999999999999995},1,{"$f":"VLOOKUP($A28,'Data Pass Through'!$A:$D,3,FALSE)","v":0.56999999999999995},{"$f":"E28*F28","v":0.56999999999999995},0,0,1.7855752804128164E-3,1.8786048077943766E-3]
["Line Losses on Cost of Power (based on two-tier RPP prices)",{"$f":"B8-B4","v":221.55000000000018},{"$f":"IF(B4>B7,C13,C12)","v":0.115},{"$f":"B29*C29","v":25.47825000000002},221.55000000000018,{"$f":"IF(B4>B7,F13,F12)","v":0.115},{"$f":"E29*F29","v":25.47825000000002},0,0,7.9812865593294535E-2,8.3971163059977399E-2]
["Line Losses on Cost of Power (based on TOU prices)",{"$f":"B8-B4","v":221.55000000000018},{"$f":"VLOOKUP($B$3,'Data Billing Quantities'!$A:$O,MATCH('BI_R2_High (with DRP)'!$A15,'Data Billing Quantities'!$4:$4,0),FALSE)*C15+VLOOKUP($B$3,'Data Billing Quantities'!$A:$O,MATCH('BI_R2_High (with DRP)'!$A16,'Data Billing Quantities'!$4:$4,0),FALSE)*C16+VLOOKUP($B$3,'Data Billing Quantities'!$A:$O,MATCH('BI_R2_High (with DRP)'!$A17,'Data Billing Quantities'!$4:$4,0),FALSE)*C17","v":0.10342000000000001},{"$f":"B30*C30","v":22.91270100000002},221.55000000000018,{"$f":"VLOOKUP($B$3,'Data Billing Quantities'!$A:$O,MATCH('BI_R2_High (with DRP)'!$A15,'Data Billing Quantities'!$4:$4,0),FALSE)*F15+VLOOKUP($B$3,'Data Billing Quantities'!$A:$O,MATCH('BI_R2_High (with DRP)'!$A16,'Data Billing Quantities'!$4:$4,0),FALSE)*F16+VLOOKUP($B$3,'Data Billing Quantities'!$A:$O,MATCH('BI_R2_High (with DRP)'!$A17,'Data Billing Quantities'!$4:$4,0),FALSE)*F17","v":0.10342000000000001},{"$f":"E30*F30","v":22.91270100000002},0,0,7.1776057040508878E-2,7.5515632031850979E-2]
["Sub-Total:  Distribution (based on two-tier RPP prices)",null,null,{"$f":"SUM(D27,D28:D29)","v":62.908250000000024},null,null,{"$f":"SUM(G27,G28:G29)","v":61.774250000000038},-1.1339999999999861,-1.8026252518548613E-2,0.19351328730884473,0.20359544394366991]
["Sub-Total:  Distribution (based on TOU prices)",null,null,{"$f":"SUM(D27,D28,D30)","v":60.342701000000019},null,null,{"$f":"SUM(G27,G28,G30)","v":59.208701000000033},-1.1339999999999861,-1.8792662264156618E-2,0.18547647875605908,0.19513991291554347]
["Retail Transmission Rate – Network Service Rate",{"$f":"B8","v":2331.5500000000002},{"$f":"VLOOKUP($B$3,'Data Current Rates'!$A:$AP,MATCH('BI_R2_High (with DRP)'!$A33,CurrentHeader,0),FALSE)","v":9.1999999999999998E-3},{"$f":"B33*C33","v":21.45026},2331.5500000000002,{"$f":"VLOOKUP($B$3,'Data Proposed Rates'!$A:$AZ,MATCH('BI_R2_High (with DRP)'!$A33,ProposedHeader,0),FALSE)","v":8.8000000000000005E-3},{"$f":"E33*F33","v":20.517640000000004},{"$f":"G33-D33","v":-0.93261999999999645},-4.347826086956505E-2,6.427331718668286E-2,6.7621994997533727E-2]
["Retail Transmission Rate – Line and Transformation Connection Service Rate",{"$f":"B8","v":2331.5500000000002},{"$f":"VLOOKUP($B$3,'Data Current Rates'!$A:$AP,MATCH('BI_R2_High (with DRP)'!$A34,CurrentHeader,0),FALSE)","v":6.7999999999999996E-3},{"$f":"B34*C34","v":15.85454},2331.5500000000002,{"$f":"VLOOKUP($B$3,'Data Proposed Rates'!$A:$AZ,MATCH('BI_R2_High (with DRP)'!$A34,ProposedHeader,0),FALSE)","v":6.4999999999999997E-3},{"$f":"E34*F34","v":15.155075},{"$f":"G34-D34","v":-0.699465},-4.4117647058823532E-2,4.7474609285618016E-2,4.9948064486814672E-2]
["Sub-Total:  Retail Transmission ",null,null,{"$f":"SUM(D33:D34)","v":37.3048},null,null,{"$f":"SUM(G33:G34)","v":35.672715000000004},{"$f":"G35-D35","v":-1.6320849999999965},-4.3749999999999907E-2,0.11174792647230088,0.1175700594843484]
["Sub-Total:  Delivery (based on two-tier RPP prices)",null,null,{"$f":"D31+D35","v":100.21305000000002},null,null,{"$f":"G31+G35","v":97.446965000000034},{"$f":"G36-D36","v":-2.7660849999999897},-2.7602043845586868E-2,0.30526121378114562,0.32116550342801825]
["Sub-Total:  Delivery (based on TOU prices)",null,null,{"$f":"D32+D35","v":97.64750100000002},null,null,{"$f":"G32+G35","v":94.88141600000003},{"$f":"G37-D37","v":-2.7660849999999897},-2.8327248231370398E-2,0.29722440522835991,0.31270997239989184]
["Wholesale Market Service Rate (WMS) - not including CBR",{"$f":"B8","v":2331.5500000000002},{"$f":"VLOOKUP($A38,'Data Pass Through'!$A:$D,2,FALSE)","v":3.0000000000000001E-3},{"$f":"B38*C38","v":6.9946500000000009},{"$f":"$B$8","v":2331.5500000000002},{"$f":"VLOOKUP($A38,'Data Pass Through'!$A:$D,3,FALSE)","v":3.0000000000000001E-3},{"$f":"E38*F38","v":6.9946500000000009},0,0,2.19113581318237E-2,2.3052952840068315E-2]
["Capacity Based Recovery (CBR) - Applicable for Class B Customers",{"$f":"B8","v":2331.5500000000002},{"$f":"VLOOKUP($A39,'Data Pass Through'!$A:$D,2,FALSE)","v":4.0000000000000002E-4},{"$f":"B39*C39","v":0.93262000000000012},{"$f":"$B$8","v":2331.5500000000002},{"$f":"VLOOKUP($A39,'Data Pass Through'!$A:$D,3,FALSE)","v":4.0000000000000002E-4},{"$f":"E39*F39","v":0.93262000000000012},0,0,2.9215144175764934E-3,3.0737270453424417E-3]
["Rural Rate Protection Charge",{"$f":"B8","v":2331.5500000000002},{"$f":"VLOOKUP($A40,'Data Pass Through'!$A:$D,2,FALSE)","v":5.0000000000000001E-4},1.165775,2331.5500000000002,{"$f":"VLOOKUP($A40,'Data Pass Through'!$A:$D,3,FALSE)","v":5.0000000000000001E-4},1.165775,0,0,3.6518930219706165E-3,3.8421588066780516E-3]
["Standard Supply Service – Administration Charge (if applicable)",1,{"$f":"VLOOKUP($A41,'Data Pass Through'!$A:$D,2,FALSE)","v":0.25},{"$f":"B41*C41","v":0.25},1,{"$f":"VLOOKUP($A41,'Data Pass Through'!$A:$D,3,FALSE)","v":0.25},0.25,0,0,7.8314705281263891E-4,8.2394947710279676E-4]
["Sub-Total:  Regulatory",null,null,{"$f":"SUM(D38:D41)","v":9.343045},null,null,{"$f":"SUM(G38:G41)","v":9.343045},0,0,2.9267912624183448E-2,3.07927881691916E-2]
["Total  Electricty Charge on Two-Tier RPP ",null,null,{"$f":"SUM(D14,D27,D28,D29,D35,D42)","v":342.00609500000002},null,null,{"$f":"SUM(G14,G27,G28,G29,G35,G42)","v":339.24001000000004},-2.7660849999999755,-8.0878236979957194E-3,1.0626992561105206]
["     HST",null,0.13,{"$f":"D43*C44","v":44.460792350000006},null,{"$f":"C44","v":0.13},{"$f":"G43*F44","v":44.101201300000007},-0.3595910499999988,-8.0878236979957628E-3,0.13815090329436769]
["Total Electricity Charge on Two-Tier RPP (including HST)",null,null,{"$f":"SUM(D43:D44)","v":386.46688735000004},null,null,{"$f":"SUM(G43:G44)","v":383.34121130000005},-3.1256760499999814,-8.087823697995742E-3,1.2008501594048884]
["Ontario Electricity Rebate (OER)",null,{"$f":"IF(($B$4*12)<250000,VLOOKUP(A46,'Data Pass Through'!$A$4:$C$20,2,0),0)","v":-0.189},{"$f":"D43*C46","v":-64.639151955000003},null,{"$f":"C46","v":-0.189},{"$f":"G43*F46","v":-64.116361890000007},0.52279006499999525,8.0878236979957177E-3,-0.2008501594048884]
["Total Amount on Two-Tier RPP",null,null,{"$f":"SUM(D45:D46)","v":321.82773539500005},null,null,{"$f":"SUM(G45:G46)","v":319.22484941000005},-2.6028859850000003,-8.0878236979957923E-3,1]
["Total Electricty Charge on TOU (before HST)",null,null,{"$f":"SUM(D18,D27,D28,D30,D35,D42)","v":325.20674600000007},null,null,{"$f":"SUM(G18,G27,G28,G30,G35,G42)","v":322.44066100000003},-2.7660850000000323,-8.5056199910441953E-3,null,{"$f":"G48/$G$52","v":1.0626992561105209}]
["     HST",null,0.13,{"$f":"D48*C49","v":42.276876980000011},null,{"$f":"C49","v":0.13},{"$f":"G48*F49","v":41.917285930000006},-0.35959105000000591,-8.5056199910442352E-3,null,{"$f":"G49/$G$52","v":0.13815090329436772}]
["Total Electricity Charge on TOU (including HST)",null,null,{"$f":"SUM(D48:D49)","v":367.48362298000006},null,null,{"$f":"SUM(G48:G49)","v":364.35794693000003},-3.1256760500000382,-8.5056199910442006E-3,null,{"$f":"G50/$G$52","v":1.2008501594048884}]
["Ontario Electricity Rebate (OER)",null,{"$f":"IF(($B$4*12)<250000,VLOOKUP(A51,'Data Pass Through'!$A$4:$C$20,2,0),0)","v":-0.189},{"$f":"D48*C51","v":-61.464074994000015},null,{"$f":"C51","v":-0.189},{"$f":"G48*F51","v":-60.941284929000005},0.52279006500000946,8.5056199910442491E-3,null,{"$f":"G51/$G$52","v":-0.20085015940488843}]
["Total Amount on TOU",null,null,{"$f":"SUM(D50:D51)","v":306.01954798600002},null,null,{"$f":"SUM(G50:G51)","v":303.41666200100002},-2.6028859850000003,-8.5056199910440982E-3,null,{"$f":"G52/$G$52","v":1}]
["* Distribution rate protection applies to R1 and R2 customers"]

{"sheet":"BI_R2_Low (without DRP)","index":39,"n_rows":53,"n_cols":11,"rows_kept":53,"cut":false,"hidden":false,"merged":[[0,0,0,10]]}
["2023 Bill Impacts (Low Consumption Level) - R2"]
[]
["Rate Class",{"$f":"RIGHT(A1,LEN(A1)-FIND(\"- \",A1,1)-1)","v":"R2"},"Without DRP"]
["Monthly Consumption (kWh)",{"$f":"IF(COUNTIF(A1,\"*Low*\")>0,VLOOKUP(B3,'Data Billing Quantities'!$A:$Z,MATCH(\"Low kWh\",'Data Billing Quantities'!4:4,0),FALSE),IF(COUNTIF(A1,\"*Typical*\")>0,VLOOKUP(B3,'Data Billing Quantities'!$A:$Z,MATCH(\"Typical kWh\",'Data Billing Quantities'!4:4,0),FALSE),IF(COUNTIF(A1,\"*Average*\")>0,VLOOKUP(B3,'Data Billing Quantities'!$A:$Z,MATCH(\"Average kWh\",'Data Billing Quantities'!4:4,0),FALSE),IF(COUNTIF(A1,\"*High*\")>0,VLOOKUP(B3,'Data Billing Quantities'!$A:$Z,MATCH(\"High kWh\",'Data Billing Quantities'!4:4,0),FALSE),\"error\"))))","v":440}]
["Peak (kW)",{"$f":"IF(COUNTIF(A1,\"*Low*\")>0,VLOOKUP(B3,'Data Billing Quantities'!$A:$Z,MATCH(\"Low kW\",'Data Billing Quantities'!4:4,0),FALSE),IF(COUNTIF(A1,\"*Typical*\")>0,VLOOKUP(B3,'Data Billing Quantities'!$A:$Z,MATCH(\"Typical kW\",'Data Billing Quantities'!4:4,0),FALSE),IF(COUNTIF(A1,\"*Average*\")>0,VLOOKUP(B3,'Data Billing Quantities'!$A:$Z,MATCH(\"Average kW\",'Data Billing Quantities'!4:4,0),FALSE),IF(COUNTIF(A1,\"*High*\")>0,VLOOKUP(B3,'Data Billing Quantities'!$A:$Z,MATCH(\"High kW\",'Data Billing Quantities'!4:4,0),FALSE),\"error\"))))","v":0}]
["Loss factor",{"$f":"VLOOKUP(B3,'Data Billing Quantities'!A:D,MATCH(A6,'Data Billing Quantities'!4:4,0),FALSE)","v":1.105}]
["Commodity Threshold",{"$f":"VLOOKUP(B3,'Data Billing Quantities'!A:D,MATCH(A7,'Data Billing Quantities'!4:4,0),FALSE)","v":600}]
["Monthly Consumption (kWh) - Uplifted",{"$f":"B4*B6","v":486.2}]
["Charge determinant",{"$f":"VLOOKUP(B3,'Data Billing Quantities'!A:D,MATCH(A9,'Data Billing Quantities'!4:4,0),FALSE)","v":"kWh"}]
[]
[null,"Volume","Current Rate ($)","Current Charge ($)","Volume","Proposed Rate ($)","Proposed Charge ($)","Change ($)","Change (%)","% of Total Bill on RPP","% of Total Bill"]
["Energy First Tier",{"$f":"IF(B4>B7,B7,B4)","v":440},{"$f":"VLOOKUP($A12,'Data Pass Through'!$A:$D,2,FALSE)","v":9.8000000000000004E-2},{"$f":"B12*C12","v":43.120000000000005},{"$f":"B12","v":440},{"$f":"VLOOKUP($A12,'Data Pass Through'!$A:$D,3,FALSE)","v":9.8000000000000004E-2},{"$f":"E12*F12","v":43.120000000000005},{"$f":"G12-D12","v":0},{"$f":"IF(ISERROR(H12/ABS(D12)),\"N/A\",(H12/ABS(D12)))","v":0},{"$f":"G12/$G$47","v":0.37876797414433966}]
["Energy Second Tier",{"$f":"IF(B4>B7,(B4)-B7,0)","v":0},{"$f":"VLOOKUP($A13,'Data Pass Through'!$A:$D,2,FALSE)","v":0.115},{"$f":"B13*C13","v":0},{"$f":"B13","v":0},{"$f":"VLOOKUP($A13,'Data Pass Through'!$A:$D,3,FALSE)","v":0.115},{"$f":"E13*F13","v":0},0,"N/A",{"$f":"G13/$G$47","v":0}]
["Sub-Total:  Energy (RPP Tiered)",null,null,{"$f":"SUM(D12:D13)","v":43.120000000000005},null,null,{"$f":"SUM(G12:G13)","v":43.120000000000005},0,0,{"$f":"G14/$G$47","v":0.37876797414433966}]
["TOU-Off Peak",{"$f":"B$4*VLOOKUP($B$3,'Data Billing Quantities'!$A:$O,MATCH('BI_R2_Low (without DRP)'!$A15,'Data Billing Quantities'!$4:$4,0),FALSE)","v":281.60000000000002},{"$f":"VLOOKUP($A15,'Data Pass Through'!$A:$D,2,FALSE)","v":8.2000000000000003E-2},{"$f":"B15*C15","v":23.091200000000004},281.60000000000002,{"$f":"VLOOKUP($A15,'Data Pass Through'!$A:$D,3,FALSE)","v":8.2000000000000003E-2},{"$f":"E15*F15","v":23.091200000000004},0,0,null,{"$f":"G15/$G$52","v":0.19851016074201022}]
["TOU-Mid Peak",{"$f":"B$4*VLOOKUP($B$3,'Data Billing Quantities'!$A:$O,MATCH('BI_R2_Low (without DRP)'!$A16,'Data Billing Quantities'!$4:$4,0),FALSE)","v":79.2},{"$f":"VLOOKUP($A16,'Data Pass Through'!$A:$D,2,FALSE)","v":0.113},{"$f":"B16*C16","v":8.9496000000000002},79.2,{"$f":"VLOOKUP($A16,'Data Pass Through'!$A:$D,3,FALSE)","v":0.113},{"$f":"E16*F16","v":8.9496000000000002},0,0,null,7.6937817635146483E-2]
["TOU-On Peak",{"$f":"B$4*VLOOKUP($B$3,'Data Billing Quantities'!$A:$O,MATCH('BI_R2_Low (without DRP)'!$A17,'Data Billing Quantities'!$4:$4,0),FALSE)","v":79.2},{"$f":"VLOOKUP($A17,'Data Pass Through'!$A:$D,2,FALSE)","v":0.17},{"$f":"B17*C17","v":13.464000000000002},79.2,{"$f":"VLOOKUP($A17,'Data Pass Through'!$A:$D,3,FALSE)","v":0.17},{"$f":"E17*F17","v":13.464000000000002},0,0,null,0.11574715927411419]
["Sub-Total:  Energy (RPP TOU)",null,null,{"$f":"SUM(D15:D17)","v":45.504800000000003},null,null,{"$f":"SUM(G15:G17)","v":45.504800000000003},0,0,{"$f":"G18/$G$47","v":0.39971616210211841},0.3911951376512709]
["Service Charge",1,{"$f":"VLOOKUP($B$3,'Data Current Rates'!$A:$AP,MATCH('BI_R2_Low (without DRP)'!$A19,CurrentHeader,0),FALSE)","v":66.8},{"$f":"B19*C19","v":66.8},1,{"$f":"VLOOKUP($B$3,'Data Proposed Rates'!$A:$AZ,MATCH('BI_R2_Low (without DRP)'!$A19,ProposedHeader,0),FALSE)","v":56.08},{"$f":"E19*F19","v":56.08},-10.719999999999999,-0.16047904191616766,0.49260918344189619,0.48210789454042802]
["Fixed Base Rate Adjustment to Recover Past Tax Amounts ",1,{"$f":"VLOOKUP($B$3,'Data Current Rates'!$A:$AP,MATCH('BI_R2_Low (without DRP)'!$A20,CurrentHeader,0),FALSE)","v":4.42},4.42,1,{"$f":"VLOOKUP($B$3,'Data Proposed Rates'!$A:$AZ,MATCH('BI_R2_Low (without DRP)'!$A20,ProposedHeader,0),FALSE)","v":4},4,-0.41999999999999993,-9.5022624434389122E-2,3.5136175709122412E-2,3.438715367620742E-2]
["Group 2 Fixed DVA Rider ",null,null,null,1,{"$f":"VLOOKUP($B$3,'Data Proposed Rates'!$A:$AZ,MATCH('BI_R2_Low (without DRP)'!$A21,ProposedHeader,0),FALSE)","v":-0.28999999999999998},-0.28999999999999998,-0.28999999999999998,"N/A",-2.5473727389113748E-3,-2.4930686415250377E-3]
["Distribution Volumetric Charge",{"$f":"IF($B$9=\"kWh\",$B$4,$B$5)","v":440},{"$f":"VLOOKUP($B$3,'Data Current Rates'!$A:$AP,MATCH('BI_R2_Low (without DRP)'!$A22,CurrentHeader,0),FALSE)","v":1.5900000000000001E-2},6.9960000000000004,440,{"$f":"VLOOKUP($B$3,'Data Proposed Rates'!$A:$AZ,MATCH('BI_R2_Low (without DRP)'!$A22,ProposedHeader,0),FALSE)","v":8.0999999999999996E-3},3.5639999999999996,-3.4320000000000008,-0.49056603773584917,3.1306332556828069E-2,3.0638953925500808E-2]
["Volumetric Base Rate Adjustment to Recover Past Tax Amounts ",{"$f":"IF($B$9=\"kWh\",$B$4,$B$5)","v":440},{"$f":"VLOOKUP($B$3,'Data Current Rates'!$A:$AP,MATCH('BI_R2_Low (without DRP)'!$A23,CurrentHeader,0),FALSE)","v":0},0,440,{"$f":"VLOOKUP($B$3,'Data Proposed Rates'!$A:$AZ,MATCH('BI_R2_Low (without DRP)'!$A23,ProposedHeader,0),FALSE)","v":0},0,0,"N/A",0,0]
["Group 1 Volumetric DVA Rider (General)",null,null,null,{"$f":"B4","v":440},{"$f":"VLOOKUP($B$3,'Data Proposed Rates'!$A:$AZ,MATCH('BI_R2_Low (without DRP)'!$A24,ProposedHeader,0),FALSE)","v":-4.0000000000000002E-4},-0.17600000000000002,-0.17600000000000002,"N/A",-1.5459917312013864E-3,-1.5130347617531266E-3]
["Group 2 Volumetric DVA Rider ",null,null,null,{"$f":"B4","v":440},{"$f":"VLOOKUP($B$3,'Data Proposed Rates'!$A:$AZ,MATCH('BI_R2_Low (without DRP)'!$A25,ProposedHeader,0),FALSE)","v":0},0,0,"N/A",0,0]
["Fair Hydro Plan - Distribution Rate Protection Savings*",null,null,0,null,null,0,0,"N/A",0,0]
["Sub-Total:  Distribution (excluding pass through)",null,null,{"$f":"SUM(INDIRECT(\"D19:D\"&ROW()-1))","v":78.215999999999994},null,null,{"$f":"SUM(INDIRECT(\"g19:g\"&ROW()-1))","v":63.177999999999997},{"$f":"G27-D27","v":-15.037999999999997},-0.19226245269510073,0.55495832723773386,0.54312789873885803]
["Smart Metering Entity Charge",1,{"$f":"VLOOKUP($A28,'Data Pass Through'!$A:$D,2,FALSE)","v":0.56999999999999995},{"$f":"B28*C28","v":0.56999999999999995},1,{"$f":"VLOOKUP($A28,'Data Pass Through'!$A:$D,3,FALSE)","v":0.56999999999999995},{"$f":"E28*F28","v":0.56999999999999995},0,0,5.0069050385499435E-3,4.9001693988595567E-3]
["Line Losses on Cost of Power (based on two-tier RPP prices)",{"$f":"B8-B4","v":46.199999999999989},{"$f":"IF(B4>B7,C13,C12)","v":9.8000000000000004E-2},{"$f":"B29*C29","v":4.5275999999999987},46.199999999999989,{"$f":"IF(B4>B7,F13,F12)","v":9.8000000000000004E-2},{"$f":"E29*F29","v":4.5275999999999987},0,0,3.9770637285155647E-2,3.8922819246099166E-2]
["Line Losses on Cost of Power (based on TOU prices)",{"$f":"B8-B4","v":46.199999999999989},{"$f":"VLOOKUP($B$3,'Data Billing Quantities'!$A:$O,MATCH('BI_R2_Low (without DRP)'!$A15,'Data Billing Quantities'!$4:$4,0),FALSE)*C15+VLOOKUP($B$3,'Data Billing Quantities'!$A:$O,MATCH('BI_R2_Low (without DRP)'!$A16,'Data Billing Quantities'!$4:$4,0),FALSE)*C16+VLOOKUP($B$3,'Data Billing Quantities'!$A:$O,MATCH('BI_R2_Low (without DRP)'!$A17,'Data Billing Quantities'!$4:$4,0),FALSE)*C17","v":0.10342000000000001},{"$f":"B30*C30","v":4.7780039999999993},46.199999999999989,{"$f":"VLOOKUP($B$3,'Data Billing Quantities'!$A:$O,MATCH('BI_R2_Low (without DRP)'!$A15,'Data Billing Quantities'!$4:$4,0),FALSE)*F15+VLOOKUP($B$3,'Data Billing Quantities'!$A:$O,MATCH('BI_R2_Low (without DRP)'!$A16,'Data Billing Quantities'!$4:$4,0),FALSE)*F16+VLOOKUP($B$3,'Data Billing Quantities'!$A:$O,MATCH('BI_R2_Low (without DRP)'!$A17,'Data Billing Quantities'!$4:$4,0),FALSE)*F17","v":0.10342000000000001},{"$f":"E30*F30","v":4.7780039999999993},0,0,4.1970197020722425E-2,4.1075489453383435E-2]
["Sub-Total:  Distribution (based on two-tier RPP prices)",null,null,{"$f":"SUM(D27,D28:D29)","v":83.31359999999998},null,null,{"$f":"SUM(G27,G28:G29)","v":68.275599999999997},-15.037999999999982,-0.18049874210212963,0.59973586956143954,0.58695088738381684]
["Sub-Total:  Distribution (based on TOU prices)",null,null,{"$f":"SUM(D27,D28,D30)","v":83.564003999999983},null,null,{"$f":"SUM(G27,G28,G30)","v":68.526004},-15.037999999999982,-0.17995786798344399,0.60193542929700627,0.58910355759110111]
["Retail Transmission Rate – Network Service Rate",{"$f":"B8","v":486.2},{"$f":"VLOOKUP($B$3,'Data Current Rates'!$A:$AP,MATCH('BI_R2_Low (without DRP)'!$A33,CurrentHeader,0),FALSE)","v":9.1999999999999998E-3},{"$f":"B33*C33","v":4.4730400000000001},486.2,{"$f":"VLOOKUP($B$3,'Data Proposed Rates'!$A:$AZ,MATCH('BI_R2_Low (without DRP)'!$A33,ProposedHeader,0),FALSE)","v":8.8000000000000005E-3},{"$f":"E33*F33","v":4.2785600000000006},{"$f":"G33-D33","v":-0.19447999999999954},-4.3478260869565112E-2,3.75830589855057E-2,3.6781875058218512E-2]
["Retail Transmission Rate – Line and Transformation Connection Service Rate",{"$f":"B8","v":486.2},{"$f":"VLOOKUP($B$3,'Data Current Rates'!$A:$AP,MATCH('BI_R2_Low (without DRP)'!$A34,CurrentHeader,0),FALSE)","v":6.7999999999999996E-3},{"$f":"B34*C34","v":3.3061599999999998},486.2,{"$f":"VLOOKUP($B$3,'Data Proposed Rates'!$A:$AZ,MATCH('BI_R2_Low (without DRP)'!$A34,ProposedHeader,0),FALSE)","v":6.4999999999999997E-3},{"$f":"E34*F34","v":3.1602999999999999},{"$f":"G34-D34","v":-0.14585999999999988},-4.4117647058823498E-2,2.776021402338489E-2,2.7168430440729575E-2]
["Sub-Total:  Retail Transmission ",null,null,{"$f":"SUM(D33:D34)","v":7.7791999999999994},null,null,{"$f":"SUM(G33:G34)","v":7.43886},{"$f":"G35-D35","v":-0.34033999999999942},-4.3749999999999928E-2,6.534327300889059E-2,6.3950305498948076E-2]
["Sub-Total:  Delivery (based on two-tier RPP prices)",null,null,{"$f":"D31+D35","v":91.092799999999983},null,null,{"$f":"G31+G35","v":75.714460000000003},{"$f":"G36-D36","v":-15.37833999999998},-0.16882058735706865,0.66507914257033018,0.65090119288276493]
["Sub-Total:  Delivery (based on TOU prices)",null,null,{"$f":"D32+D35","v":91.343203999999986},null,null,{"$f":"G32+G35","v":75.964864000000006},{"$f":"G37-D37","v":-15.37833999999998},-0.16835779047119895,0.66727870230589692,0.6530538630900492]
["Wholesale Market Service Rate (WMS) - not including CBR",{"$f":"B8","v":486.2},{"$f":"VLOOKUP($A38,'Data Pass Through'!$A:$D,2,FALSE)","v":3.0000000000000001E-3},{"$f":"B38*C38","v":1.4585999999999999},{"$f":"$B$8","v":486.2},{"$f":"VLOOKUP($A38,'Data Pass Through'!$A:$D,3,FALSE)","v":3.0000000000000001E-3},{"$f":"E38*F38","v":1.4585999999999999},0,0,1.2812406472331487E-2,1.2539275588029034E-2]
["Capacity Based Recovery (CBR) - Applicable for Class B Customers",{"$f":"B8","v":486.2},{"$f":"VLOOKUP($A39,'Data Pass Through'!$A:$D,2,FALSE)","v":4.0000000000000002E-4},{"$f":"B39*C39","v":0.19448000000000001},{"$f":"$B$8","v":486.2},{"$f":"VLOOKUP($A39,'Data Pass Through'!$A:$D,3,FALSE)","v":4.0000000000000002E-4},{"$f":"E39*F39","v":0.19448000000000001},0,0,1.7083208629775318E-3,1.6719034117372049E-3]
["Rural Rate Protection Charge",{"$f":"B8","v":486.2},{"$f":"VLOOKUP($A40,'Data Pass Through'!$A:$D,2,FALSE)","v":5.0000000000000001E-4},0.24310000000000001,486.2,{"$f":"VLOOKUP($A40,'Data Pass Through'!$A:$D,3,FALSE)","v":5.0000000000000001E-4},0.24310000000000001,0,0,2.1354010787219147E-3,2.0898792646715058E-3]
["Standard Supply Service – Administration Charge (if applicable)",1,{"$f":"VLOOKUP($A41,'Data Pass Through'!$A:$D,2,FALSE)","v":0.25},{"$f":"B41*C41","v":0.25},1,{"$f":"VLOOKUP($A41,'Data Pass Through'!$A:$D,3,FALSE)","v":0.25},0.25,0,0,2.1960109818201508E-3,2.1491971047629638E-3]
["Sub-Total:  Regulatory",null,null,{"$f":"SUM(D38:D41)","v":2.1461800000000002},null,null,{"$f":"SUM(G38:G41)","v":2.1461800000000002},0,0,1.8852139395851085E-2,1.845025536920071E-2]
["Total  Electricty Charge on Two-Tier RPP ",null,null,{"$f":"SUM(D14,D27,D28,D29,D35,D42)","v":136.35897999999997},null,null,{"$f":"SUM(G14,G27,G28,G29,G35,G42)","v":120.98063999999999},-15.37833999999998,-0.11277834433786453,1.0626992561105209]
["     HST",null,0.13,{"$f":"D43*C44","v":17.726667399999997},null,{"$f":"C44","v":0.13},{"$f":"G43*F44","v":15.7274832},-1.9991841999999966,-0.11277834433786449,0.13815090329436772]
["Total Electricity Charge on Two-Tier RPP (including HST)",null,null,{"$f":"SUM(D43:D44)","v":154.08564739999997},null,null,{"$f":"SUM(G43:G44)","v":136.70812319999999},-17.377524199999982,-0.11277834433786456,1.2008501594048884]
["Ontario Electricity Rebate (OER)",null,{"$f":"IF(($B$4*12)<250000,VLOOKUP(A46,'Data Pass Through'!$A$4:$C$20,2,0),0)","v":-0.189},{"$f":"D43*C46","v":-25.771847219999994},null,{"$f":"C46","v":-0.189},{"$f":"G43*F46","v":-22.865340959999997},2.9065062599999969,0.11277834433786456,-0.2008501594048884]
["Total Amount on Two-Tier RPP",null,null,{"$f":"SUM(D45:D46)","v":128.31380017999999},null,null,{"$f":"SUM(G45:G46)","v":113.84278223999999},-14.471017939999996,-0.11277834433786464,1]
["Total Electricty Charge on TOU (before HST)",null,null,{"$f":"SUM(D18,D27,D28,D30,D35,D42)","v":138.99418399999999},null,null,{"$f":"SUM(G18,G27,G28,G30,G35,G42)","v":123.615844},-15.378339999999994,-0.1106401689440473,null,{"$f":"G48/$G$52","v":1.0626992561105206}]
["     HST",null,0.13,{"$f":"D48*C49","v":18.069243919999998},null,{"$f":"C49","v":0.13},{"$f":"G48*F49","v":16.07005972},-1.9991841999999984,-0.11064016894404725,null,{"$f":"G49/$G$52","v":0.13815090329436769}]
["Total Electricity Charge on TOU (including HST)",null,null,{"$f":"SUM(D48:D49)","v":157.06342791999998},null,null,{"$f":"SUM(G48:G49)","v":139.68590372},-17.377524199999982,-0.11064016894404723,null,{"$f":"G50/$G$52","v":1.2008501594048884}]
["Ontario Electricity Rebate (OER)",null,{"$f":"IF(($B$4*12)<250000,VLOOKUP(A51,'Data Pass Through'!$A$4:$C$20,2,0),0)","v":-0.189},{"$f":"D48*C51","v":-26.269900776},null,{"$f":"C51","v":-0.189},{"$f":"G48*F51","v":-23.363394516},2.9065062600000005,0.11064016894404735,null,{"$f":"G51/$G$52","v":-0.2008501594048884}]
["Total Amount on TOU",null,null,{"$f":"SUM(D50:D51)","v":130.793527144},null,null,{"$f":"SUM(G50:G51)","v":116.322509204},-14.471017939999996,-0.1106401689440473,null,{"$f":"G52/$G$52","v":1}]
["* Distribution rate protection applies to R1 and R2 customers"]

{"sheet":"BI_R2_Typical (without DRP)","index":40,"n_rows":53,"n_cols":11,"rows_kept":53,"cut":false,"hidden":false,"merged":[[0,0,0,10]]}
["2023 Bill Impacts (Typical Consumption Level) - R2"]
[]
["Rate Class",{"$f":"RIGHT(A1,LEN(A1)-FIND(\"- \",A1,1)-1)","v":"R2"},"Without DRP"]
["Monthly Consumption (kWh)",{"$f":"IF(COUNTIF(A1,\"*Low*\")>0,VLOOKUP(B3,'Data Billing Quantities'!$A:$Z,MATCH(\"Low kWh\",'Data Billing Quantities'!4:4,0),FALSE),IF(COUNTIF(A1,\"*Typical*\")>0,VLOOKUP(B3,'Data Billing Quantities'!$A:$Z,MATCH(\"Typical kWh\",'Data Billing Quantities'!4:4,0),FALSE),IF(COUNTIF(A1,\"*Average*\")>0,VLOOKUP(B3,'Data Billing Quantities'!$A:$Z,MATCH(\"Average kWh\",'Data Billing Quantities'!4:4,0),FALSE),IF(COUNTIF(A1,\"*High*\")>0,VLOOKUP(B3,'Data Billing Quantities'!$A:$Z,MATCH(\"High kWh\",'Data Billing Quantities'!4:4,0),FALSE),\"error\"))))","v":750}]
["Peak (kW)",{"$f":"IF(COUNTIF(A1,\"*Low*\")>0,VLOOKUP(B3,'Data Billing Quantities'!$A:$Z,MATCH(\"Low kW\",'Data Billing Quantities'!4:4,0),FALSE),IF(COUNTIF(A1,\"*Typical*\")>0,VLOOKUP(B3,'Data Billing Quantities'!$A:$Z,MATCH(\"Typical kW\",'Data Billing Quantities'!4:4,0),FALSE),IF(COUNTIF(A1,\"*Average*\")>0,VLOOKUP(B3,'Data Billing Quantities'!$A:$Z,MATCH(\"Average kW\",'Data Billing Quantities'!4:4,0),FALSE),IF(COUNTIF(A1,\"*High*\")>0,VLOOKUP(B3,'Data Billing Quantities'!$A:$Z,MATCH(\"High kW\",'Data Billing Quantities'!4:4,0),FALSE),\"error\"))))","v":0}]
["Loss factor",{"$f":"VLOOKUP(B3,'Data Billing Quantities'!A:D,MATCH(A6,'Data Billing Quantities'!4:4,0),FALSE)","v":1.105}]
["Commodity Threshold",{"$f":"VLOOKUP(B3,'Data Billing Quantities'!A:D,MATCH(A7,'Data Billing Quantities'!4:4,0),FALSE)","v":600}]
["Monthly Consumption (kWh) - Uplifted",{"$f":"B4*B6","v":828.75}]
["Charge determinant",{"$f":"VLOOKUP(B3,'Data Billing Quantities'!A:D,MATCH(A9,'Data Billing Quantities'!4:4,0),FALSE)","v":"kWh"}]
[]
[null,"Volume","Current Rate ($)","Current Charge ($)","Volume","Proposed Rate ($)","Proposed Charge ($)","Change ($)","Change (%)","% of Total Bill on RPP","% of Total Bill"]
["Energy First Tier",{"$f":"IF(B4>B7,B7,B4)","v":600},{"$f":"VLOOKUP($A12,'Data Pass Through'!$A:$D,2,FALSE)","v":9.8000000000000004E-2},{"$f":"B12*C12","v":58.800000000000004},{"$f":"B12","v":600},{"$f":"VLOOKUP($A12,'Data Pass Through'!$A:$D,3,FALSE)","v":9.8000000000000004E-2},{"$f":"E12*F12","v":58.800000000000004},{"$f":"G12-D12","v":0},{"$f":"IF(ISERROR(H12/ABS(D12)),\"N/A\",(H12/ABS(D12)))","v":0},{"$f":"G12/$G$47","v":0.37327062801527816}]
["Energy Second Tier",{"$f":"IF(B4>B7,(B4)-B7,0)","v":150},{"$f":"VLOOKUP($A13,'Data Pass Through'!$A:$D,2,FALSE)","v":0.115},{"$f":"B13*C13","v":17.25},{"$f":"B13","v":150},{"$f":"VLOOKUP($A13,'Data Pass Through'!$A:$D,3,FALSE)","v":0.115},{"$f":"E13*F13","v":17.25},0,0,{"$f":"G13/$G$47","v":0.10950541383101273}]
["Sub-Total:  Energy (RPP Tiered)",null,null,{"$f":"SUM(D12:D13)","v":76.050000000000011},null,null,{"$f":"SUM(G12:G13)","v":76.050000000000011},0,0,{"$f":"G14/$G$47","v":0.48277604184629092}]
["TOU-Off Peak",{"$f":"B$4*VLOOKUP($B$3,'Data Billing Quantities'!$A:$O,MATCH('BI_R2_Typical (without DRP)'!$A15,'Data Billing Quantities'!$4:$4,0),FALSE)","v":480},{"$f":"VLOOKUP($A15,'Data Pass Through'!$A:$D,2,FALSE)","v":8.2000000000000003E-2},{"$f":"B15*C15","v":39.36},480,{"$f":"VLOOKUP($A15,'Data Pass Through'!$A:$D,3,FALSE)","v":8.2000000000000003E-2},{"$f":"E15*F15","v":39.36},0,0,null,{"$f":"G15/$G$52","v":0.24896588101971812}]
["TOU-Mid Peak",{"$f":"B$4*VLOOKUP($B$3,'Data Billing Quantities'!$A:$O,MATCH('BI_R2_Typical (without DRP)'!$A16,'Data Billing Quantities'!$4:$4,0),FALSE)","v":135},{"$f":"VLOOKUP($A16,'Data Pass Through'!$A:$D,2,FALSE)","v":0.113},{"$f":"B16*C16","v":15.255000000000001},135,{"$f":"VLOOKUP($A16,'Data Pass Through'!$A:$D,3,FALSE)","v":0.113},{"$f":"E16*F16","v":15.255000000000001},0,0,null,9.6493254953145327E-2]
["TOU-On Peak",{"$f":"B$4*VLOOKUP($B$3,'Data Billing Quantities'!$A:$O,MATCH('BI_R2_Typical (without DRP)'!$A17,'Data Billing Quantities'!$4:$4,0),FALSE)","v":135},{"$f":"VLOOKUP($A17,'Data Pass Through'!$A:$D,2,FALSE)","v":0.17},{"$f":"B17*C17","v":22.950000000000003},135,{"$f":"VLOOKUP($A17,'Data Pass Through'!$A:$D,3,FALSE)","v":0.17},{"$f":"E17*F17","v":22.950000000000003},0,0,null,0.14516684373482042]
["Sub-Total:  Energy (RPP TOU)",null,null,{"$f":"SUM(D15:D17)","v":77.564999999999998},null,null,{"$f":"SUM(G15:G17)","v":77.564999999999998},0,0,{"$f":"G18/$G$47","v":0.49239347384362325},0.49062597970768385]
["Service Charge",1,{"$f":"VLOOKUP($B$3,'Data Current Rates'!$A:$AP,MATCH('BI_R2_Typical (without DRP)'!$A19,CurrentHeader,0),FALSE)","v":66.8},{"$f":"B19*C19","v":66.8},1,{"$f":"VLOOKUP($B$3,'Data Proposed Rates'!$A:$AZ,MATCH('BI_R2_Typical (without DRP)'!$A19,ProposedHeader,0),FALSE)","v":56.08},{"$f":"E19*F19","v":56.08},-10.719999999999999,-0.16047904191616766,0.35600368739960542,0.35472577763175284]
["Fixed Base Rate Adjustment to Recover Past Tax Amounts ",1,{"$f":"VLOOKUP($B$3,'Data Current Rates'!$A:$AP,MATCH('BI_R2_Typical (without DRP)'!$A20,CurrentHeader,0),FALSE)","v":4.42},4.42,1,{"$f":"VLOOKUP($B$3,'Data Proposed Rates'!$A:$AZ,MATCH('BI_R2_Typical (without DRP)'!$A20,ProposedHeader,0),FALSE)","v":4},4,-0.41999999999999993,-9.5022624434389122E-2,2.5392559728930487E-2,2.5301410672735582E-2]
["Group 2 Fixed DVA Rider ",null,null,null,1,{"$f":"VLOOKUP($B$3,'Data Proposed Rates'!$A:$AZ,MATCH('BI_R2_Typical (without DRP)'!$A21,ProposedHeader,0),FALSE)","v":-0.28999999999999998},-0.28999999999999998,-0.28999999999999998,"N/A",-1.8409605803474602E-3,-1.8343522737733296E-3]
["Distribution Volumetric Charge",{"$f":"IF($B$9=\"kWh\",$B$4,$B$5)","v":750},{"$f":"VLOOKUP($B$3,'Data Current Rates'!$A:$AP,MATCH('BI_R2_Typical (without DRP)'!$A22,CurrentHeader,0),FALSE)","v":1.5900000000000001E-2},11.925000000000001,750,{"$f":"VLOOKUP($B$3,'Data Proposed Rates'!$A:$AZ,MATCH('BI_R2_Typical (without DRP)'!$A22,ProposedHeader,0),FALSE)","v":8.0999999999999996E-3},6.0749999999999993,-5.8500000000000014,-0.49056603773584917,3.856495008831317E-2,3.8426517459217158E-2]
["Volumetric Base Rate Adjustment to Recover Past Tax Amounts ",{"$f":"IF($B$9=\"kWh\",$B$4,$B$5)","v":750},{"$f":"VLOOKUP($B$3,'Data Current Rates'!$A:$AP,MATCH('BI_R2_Typical (without DRP)'!$A23,CurrentHeader,0),FALSE)","v":0},0,750,{"$f":"VLOOKUP($B$3,'Data Proposed Rates'!$A:$AZ,MATCH('BI_R2_Typical (without DRP)'!$A23,ProposedHeader,0),FALSE)","v":0},0,0,"N/A",0,0]
["Group 1 Volumetric DVA Rider (General)",null,null,null,{"$f":"B4","v":750},{"$f":"VLOOKUP($B$3,'Data Proposed Rates'!$A:$AZ,MATCH('BI_R2_Typical (without DRP)'!$A24,ProposedHeader,0),FALSE)","v":-4.0000000000000002E-4},-0.3,-0.3,"N/A",-1.9044419796697865E-3,-1.8976058004551686E-3]
["Group 2 Volumetric DVA Rider ",null,null,null,{"$f":"B4","v":750},{"$f":"VLOOKUP($B$3,'Data Proposed Rates'!$A:$AZ,MATCH('BI_R2_Typical (without DRP)'!$A25,ProposedHeader,0),FALSE)","v":0},0,0,"N/A",0,0]
["Fair Hydro Plan - Distribution Rate Protection Savings*",null,null,0,null,null,0,0,"N/A",0,0]
["Sub-Total:  Distribution (excluding pass through)",null,null,{"$f":"SUM(INDIRECT(\"D19:D\"&ROW()-1))","v":83.144999999999996},null,null,{"$f":"SUM(INDIRECT(\"g19:g\"&ROW()-1))","v":65.564999999999998},{"$f":"G27-D27","v":-17.579999999999998},-0.21143784953996031,0.41621579465683184,0.41472174768947706]
["Smart Metering Entity Charge",1,{"$f":"VLOOKUP($A28,'Data Pass Through'!$A:$D,2,FALSE)","v":0.56999999999999995},{"$f":"B28*C28","v":0.56999999999999995},1,{"$f":"VLOOKUP($A28,'Data Pass Through'!$A:$D,3,FALSE)","v":0.56999999999999995},{"$f":"E28*F28","v":0.56999999999999995},0,0,3.6184397613725941E-3,3.6054510208648203E-3]
["Line Losses on Cost of Power (based on two-tier RPP prices)",{"$f":"B8-B4","v":78.75},{"$f":"IF(B4>B7,C13,C12)","v":0.115},{"$f":"B29*C29","v":9.0562500000000004},78.75,{"$f":"IF(B4>B7,F13,F12)","v":0.115},{"$f":"E29*F29","v":9.0562500000000004},0,0,5.7490342261281684E-2,5.7283975101240406E-2]
["Line Losses on Cost of Power (based on TOU prices)",{"$f":"B8-B4","v":78.75},{"$f":"VLOOKUP($B$3,'Data Billing Quantities'!$A:$O,MATCH('BI_R2_Typical (without DRP)'!$A15,'Data Billing Quantities'!$4:$4,0),FALSE)*C15+VLOOKUP($B$3,'Data Billing Quantities'!$A:$O,MATCH('BI_R2_Typical (without DRP)'!$A16,'Data Billing Quantities'!$4:$4,0),FALSE)*C16+VLOOKUP($B$3,'Data Billing Quantities'!$A:$O,MATCH('BI_R2_Typical (without DRP)'!$A17,'Data Billing Quantities'!$4:$4,0),FALSE)*C17","v":0.10342000000000001},{"$f":"B30*C30","v":8.1443250000000003},78.75,{"$f":"VLOOKUP($B$3,'Data Billing Quantities'!$A:$O,MATCH('BI_R2_Typical (without DRP)'!$A15,'Data Billing Quantities'!$4:$4,0),FALSE)*F15+VLOOKUP($B$3,'Data Billing Quantities'!$A:$O,MATCH('BI_R2_Typical (without DRP)'!$A16,'Data Billing Quantities'!$4:$4,0),FALSE)*F16+VLOOKUP($B$3,'Data Billing Quantities'!$A:$O,MATCH('BI_R2_Typical (without DRP)'!$A17,'Data Billing Quantities'!$4:$4,0),FALSE)*F17","v":0.10342000000000001},{"$f":"E30*F30","v":8.1443250000000003},0,0,5.1701314753580446E-2,5.1515727869306804E-2]
["Sub-Total:  Distribution (based on two-tier RPP prices)",null,null,{"$f":"SUM(D27,D28:D29)","v":92.771249999999995},null,null,{"$f":"SUM(G27,G28:G29)","v":75.191249999999997},-17.579999999999998,-0.18949836290876754,0.47732457667948608,0.4756111738115823]
["Sub-Total:  Distribution (based on TOU prices)",null,null,{"$f":"SUM(D27,D28,D30)","v":91.859324999999984},null,null,{"$f":"SUM(G27,G28,G30)","v":74.279324999999986},-17.579999999999998,-0.19137959047706915,0.47153554917178475,0.46984292657964866]
["Retail Transmission Rate – Network Service Rate",{"$f":"B8","v":828.75},{"$f":"VLOOKUP($B$3,'Data Current Rates'!$A:$AP,MATCH('BI_R2_Typical (without DRP)'!$A33,CurrentHeader,0),FALSE)","v":9.1999999999999998E-3},{"$f":"B33*C33","v":7.6245000000000003},828.75,{"$f":"VLOOKUP($B$3,'Data Proposed Rates'!$A:$AZ,MATCH('BI_R2_Typical (without DRP)'!$A33,ProposedHeader,0),FALSE)","v":8.8000000000000005E-3},{"$f":"E33*F33","v":7.2930000000000001},{"$f":"G33-D33","v":-0.33150000000000013},-4.347826086956523E-2,4.6296984525772508E-2,4.6130797009065153E-2]
["Retail Transmission Rate – Line and Transformation Connection Service Rate",{"$f":"B8","v":828.75},{"$f":"VLOOKUP($B$3,'Data Current Rates'!$A:$AP,MATCH('BI_R2_Typical (without DRP)'!$A34,CurrentHeader,0),FALSE)","v":6.7999999999999996E-3},{"$f":"B34*C34","v":5.6354999999999995},828.75,{"$f":"VLOOKUP($B$3,'Data Proposed Rates'!$A:$AZ,MATCH('BI_R2_Typical (without DRP)'!$A34,ProposedHeader,0),FALSE)","v":6.4999999999999997E-3},{"$f":"E34*F34","v":5.3868749999999999},{"$f":"G34-D34","v":-0.24862499999999965},-4.411764705882347E-2,3.4196636297445605E-2,3.4073884154423119E-2]
["Sub-Total:  Retail Transmission ",null,null,{"$f":"SUM(D33:D34)","v":13.26},null,null,{"$f":"SUM(G33:G34)","v":12.679874999999999},{"$f":"G35-D35","v":-0.58012500000000067},-4.3750000000000053E-2,8.0493620823218107E-2,8.0204681163488264E-2]
["Sub-Total:  Delivery (based on two-tier RPP prices)",null,null,{"$f":"D31+D35","v":106.03125},null,null,{"$f":"G31+G35","v":87.871124999999992},{"$f":"G36-D36","v":-18.160125000000008},-0.17127144120247575,0.55781819750270412,0.55581585497507058]
["Sub-Total:  Delivery (based on TOU prices)",null,null,{"$f":"D32+D35","v":105.11932499999999},null,null,{"$f":"G32+G35","v":86.959199999999981},{"$f":"G37-D37","v":-18.160125000000008},-0.17275724515925125,0.55202916999500284,0.55004760774313688]
["Wholesale Market Service Rate (WMS) - not including CBR",{"$f":"B8","v":828.75},{"$f":"VLOOKUP($A38,'Data Pass Through'!$A:$D,2,FALSE)","v":3.0000000000000001E-3},{"$f":"B38*C38","v":2.4862500000000001},{"$f":"$B$8","v":828.75},{"$f":"VLOOKUP($A38,'Data Pass Through'!$A:$D,3,FALSE)","v":3.0000000000000001E-3},{"$f":"E38*F38","v":2.4862500000000001},0,0,1.5783062906513354E-2,1.5726408071272211E-2]
["Capacity Based Recovery (CBR) - Applicable for Class B Customers",{"$f":"B8","v":828.75},{"$f":"VLOOKUP($A39,'Data Pass Through'!$A:$D,2,FALSE)","v":4.0000000000000002E-4},{"$f":"B39*C39","v":0.33150000000000002},{"$f":"$B$8","v":828.75},{"$f":"VLOOKUP($A39,'Data Pass Through'!$A:$D,3,FALSE)","v":4.0000000000000002E-4},{"$f":"E39*F39","v":0.33150000000000002},0,0,2.1044083875351141E-3,2.0968544095029615E-3]
["Rural Rate Protection Charge",{"$f":"B8","v":828.75},{"$f":"VLOOKUP($A40,'Data Pass Through'!$A:$D,2,FALSE)","v":5.0000000000000001E-4},0.41437499999999999,828.75,{"$f":"VLOOKUP($A40,'Data Pass Through'!$A:$D,3,FALSE)","v":5.0000000000000001E-4},0.41437499999999999,0,0,2.6305104844188926E-3,2.6210680118787014E-3]
["Standard Supply Service – Administration Charge (if applicable)",1,{"$f":"VLOOKUP($A41,'Data Pass Through'!$A:$D,2,FALSE)","v":0.25},{"$f":"B41*C41","v":0.25},1,{"$f":"VLOOKUP($A41,'Data Pass Through'!$A:$D,3,FALSE)","v":0.25},0.25,0,0,1.5870349830581555E-3,1.5813381670459739E-3]
["Sub-Total:  Regulatory",null,null,{"$f":"SUM(D38:D41)","v":3.4821250000000004},null,null,{"$f":"SUM(G38:G41)","v":3.4821250000000004},0,0,2.2105016761525518E-2,2.2025668659699849E-2]
["Total  Electricty Charge on Two-Tier RPP ",null,null,{"$f":"SUM(D14,D27,D28,D29,D35,D42)","v":185.56337499999998},null,null,{"$f":"SUM(G14,G27,G28,G29,G35,G42)","v":167.40325000000001},-18.160124999999965,-9.7864813032205122E-2,1.0626992561105206]
["     HST",null,0.13,{"$f":"D43*C44","v":24.123238749999999},null,{"$f":"C44","v":0.13},{"$f":"G43*F44","v":21.762422500000003},-2.3608162499999956,-9.7864813032205122E-2,0.13815090329436769]
["Total Electricity Charge on Two-Tier RPP (including HST)",null,null,{"$f":"SUM(D43:D44)","v":209.68661374999999},null,null,{"$f":"SUM(G43:G44)","v":189.16567250000003},-20.520941249999964,-9.7864813032205136E-2,1.2008501594048884]
["Ontario Electricity Rebate (OER)",null,{"$f":"IF(($B$4*12)<250000,VLOOKUP(A46,'Data Pass Through'!$A$4:$C$20,2,0),0)","v":-0.189},{"$f":"D43*C46","v":-35.071477874999999},null,{"$f":"C46","v":-0.189},{"$f":"G43*F46","v":-31.639214250000002},3.4322636249999974,9.7864813032205233E-2,-0.2008501594048884]
["Total Amount on Two-Tier RPP",null,null,{"$f":"SUM(D45:D46)","v":174.61513587499999},null,null,{"$f":"SUM(G45:G46)","v":157.52645825000002},-17.088677624999974,-9.7864813032205164E-2,1]
["Total Electricty Charge on TOU (before HST)",null,null,{"$f":"SUM(D18,D27,D28,D30,D35,D42)","v":186.16644999999997},null,null,{"$f":"SUM(G18,G27,G28,G30,G35,G42)","v":168.006325},-18.160124999999965,-9.7547785865820441E-2,null,{"$f":"G48/$G$52","v":1.0626992561105206}]
["     HST",null,0.13,{"$f":"D48*C49","v":24.201638499999998},null,{"$f":"C49","v":0.13},{"$f":"G48*F49","v":21.840822250000002},-2.3608162499999956,-9.7547785865820441E-2,null,{"$f":"G49/$G$52","v":0.13815090329436772}]
["Total Electricity Charge on TOU (including HST)",null,null,{"$f":"SUM(D48:D49)","v":210.36808849999997},null,null,{"$f":"SUM(G48:G49)","v":189.84714725000001},-20.520941249999964,-9.7547785865820455E-2,null,{"$f":"G50/$G$52","v":1.2008501594048884}]
["Ontario Electricity Rebate (OER)",null,{"$f":"IF(($B$4*12)<250000,VLOOKUP(A51,'Data Pass Through'!$A$4:$C$20,2,0),0)","v":-0.189},{"$f":"D48*C51","v":-35.185459049999992},null,{"$f":"C51","v":-0.189},{"$f":"G48*F51","v":-31.753195425000001},3.4322636249999903,9.7547785865820358E-2,null,{"$f":"G51/$G$52","v":-0.20085015940488843}]
["Total Amount on TOU",null,null,{"$f":"SUM(D50:D51)","v":175.18262944999998},null,null,{"$f":"SUM(G50:G51)","v":158.093951825},-17.088677624999974,-9.7547785865820483E-2,null,{"$f":"G52/$G$52","v":1}]
["* Distribution rate protection applies to R1 and R2 customers"]

{"sheet":"BI_R2_Avg (without DRP)","index":41,"n_rows":53,"n_cols":11,"rows_kept":53,"cut":false,"hidden":false,"merged":[[0,0,0,10]]}
["2023 Bill Impacts (Average Consumption Level) - R2"]
[]
["Rate Class",{"$f":"RIGHT(A1,LEN(A1)-FIND(\"- \",A1,1)-1)","v":"R2"},"Without DRP"]
["Monthly Consumption (kWh)",{"$f":"IF(COUNTIF(A1,\"*Low*\")>0,VLOOKUP(B3,'Data Billing Quantities'!$A:$Z,MATCH(\"Low kWh\",'Data Billing Quantities'!4:4,0),FALSE),IF(COUNTIF(A1,\"*Typical*\")>0,VLOOKUP(B3,'Data Billing Quantities'!$A:$Z,MATCH(\"Typical kWh\",'Data Billing Quantities'!4:4,0),FALSE),IF(COUNTIF(A1,\"*Average*\")>0,VLOOKUP(B3,'Data Billing Quantities'!$A:$Z,MATCH(\"Average kWh\",'Data Billing Quantities'!4:4,0),FALSE),IF(COUNTIF(A1,\"*High*\")>0,VLOOKUP(B3,'Data Billing Quantities'!$A:$Z,MATCH(\"High kWh\",'Data Billing Quantities'!4:4,0),FALSE),\"error\"))))","v":978}]
["Peak (kW)",{"$f":"IF(COUNTIF(A1,\"*Low*\")>0,VLOOKUP(B3,'Data Billing Quantities'!$A:$Z,MATCH(\"Low kW\",'Data Billing Quantities'!4:4,0),FALSE),IF(COUNTIF(A1,\"*Typical*\")>0,VLOOKUP(B3,'Data Billing Quantities'!$A:$Z,MATCH(\"Typical kW\",'Data Billing Quantities'!4:4,0),FALSE),IF(COUNTIF(A1,\"*Average*\")>0,VLOOKUP(B3,'Data Billing Quantities'!$A:$Z,MATCH(\"Average kW\",'Data Billing Quantities'!4:4,0),FALSE),IF(COUNTIF(A1,\"*High*\")>0,VLOOKUP(B3,'Data Billing Quantities'!$A:$Z,MATCH(\"High kW\",'Data Billing Quantities'!4:4,0),FALSE),\"error\"))))","v":0}]
["Loss factor",{"$f":"VLOOKUP(B3,'Data Billing Quantities'!A:D,MATCH(A6,'Data Billing Quantities'!4:4,0),FALSE)","v":1.105}]
["Commodity Threshold",{"$f":"VLOOKUP(B3,'Data Billing Quantities'!A:D,MATCH(A7,'Data Billing Quantities'!4:4,0),FALSE)","v":600}]
["Monthly Consumption (kWh) - Uplifted",{"$f":"B4*B6","v":1080.69}]
["Charge determinant",{"$f":"VLOOKUP(B3,'Data Billing Quantities'!A:D,MATCH(A9,'Data Billing Quantities'!4:4,0),FALSE)","v":"kWh"}]
[]
[null,"Volume","Current Rate ($)","Current Charge ($)","Volume","Proposed Rate ($)","Proposed Charge ($)","Change ($)","Change (%)","% of Total Bill on RPP","% of Total Bill"]
["Energy First Tier",{"$f":"IF(B4>B7,B7,B4)","v":600},{"$f":"VLOOKUP($A12,'Data Pass Through'!$A:$D,2,FALSE)","v":9.8000000000000004E-2},{"$f":"B12*C12","v":58.800000000000004},{"$f":"B12","v":600},{"$f":"VLOOKUP($A12,'Data Pass Through'!$A:$D,3,FALSE)","v":9.8000000000000004E-2},{"$f":"E12*F12","v":58.800000000000004},{"$f":"G12-D12","v":0},{"$f":"IF(ISERROR(H12/ABS(D12)),\"N/A\",(H12/ABS(D12)))","v":0},{"$f":"G12/$G$47","v":0.30786304954162863}]
["Energy Second Tier",{"$f":"IF(B4>B7,(B4)-B7,0)","v":378},{"$f":"VLOOKUP($A13,'Data Pass Through'!$A:$D,2,FALSE)","v":0.115},{"$f":"B13*C13","v":43.47},{"$f":"B13","v":378},{"$f":"VLOOKUP($A13,'Data Pass Through'!$A:$D,3,FALSE)","v":0.115},{"$f":"E13*F13","v":43.47},0,0,{"$f":"G13/$G$47","v":0.22759875448256114}]
["Sub-Total:  Energy (RPP Tiered)",null,null,{"$f":"SUM(D12:D13)","v":102.27000000000001},null,null,{"$f":"SUM(G12:G13)","v":102.27000000000001},0,0,{"$f":"G14/$G$47","v":0.53546180402418975}]
["TOU-Off Peak",{"$f":"B$4*VLOOKUP($B$3,'Data Billing Quantities'!$A:$O,MATCH('BI_R2_Avg (without DRP)'!$A15,'Data Billing Quantities'!$4:$4,0),FALSE)","v":625.91999999999996},{"$f":"VLOOKUP($A15,'Data Pass Through'!$A:$D,2,FALSE)","v":8.2000000000000003E-2},{"$f":"B15*C15","v":51.32544},625.91999999999996,{"$f":"VLOOKUP($A15,'Data Pass Through'!$A:$D,3,FALSE)","v":8.2000000000000003E-2},{"$f":"E15*F15","v":51.32544},0,0,null,{"$f":"G15/$G$52","v":0.27182756050336299}]
["TOU-Mid Peak",{"$f":"B$4*VLOOKUP($B$3,'Data Billing Quantities'!$A:$O,MATCH('BI_R2_Avg (without DRP)'!$A16,'Data Billing Quantities'!$4:$4,0),FALSE)","v":176.04},{"$f":"VLOOKUP($A16,'Data Pass Through'!$A:$D,2,FALSE)","v":0.113},{"$f":"B16*C16","v":19.892520000000001},176.04,{"$f":"VLOOKUP($A16,'Data Pass Through'!$A:$D,3,FALSE)","v":0.113},{"$f":"E16*F16","v":19.892520000000001},0,0,null,0.10535389825911591]
["TOU-On Peak",{"$f":"B$4*VLOOKUP($B$3,'Data Billing Quantities'!$A:$O,MATCH('BI_R2_Avg (without DRP)'!$A17,'Data Billing Quantities'!$4:$4,0),FALSE)","v":176.04},{"$f":"VLOOKUP($A17,'Data Pass Through'!$A:$D,2,FALSE)","v":0.17},{"$f":"B17*C17","v":29.9268},176.04,{"$f":"VLOOKUP($A17,'Data Pass Through'!$A:$D,3,FALSE)","v":0.17},{"$f":"E17*F17","v":29.9268},0,0,null,0.15849701508008587]
["Sub-Total:  Energy (RPP TOU)",null,null,{"$f":"SUM(D15:D17)","v":101.14476000000001},null,null,{"$f":"SUM(G15:G17)","v":101.14476000000001},0,0,{"$f":"G18/$G$47","v":0.52957031052306358},0.53567847384256484]
["Service Charge",1,{"$f":"VLOOKUP($B$3,'Data Current Rates'!$A:$AP,MATCH('BI_R2_Avg (without DRP)'!$A19,CurrentHeader,0),FALSE)","v":66.8},{"$f":"B19*C19","v":66.8},1,{"$f":"VLOOKUP($B$3,'Data Proposed Rates'!$A:$AZ,MATCH('BI_R2_Avg (without DRP)'!$A19,ProposedHeader,0),FALSE)","v":56.08},{"$f":"E19*F19","v":56.08},-10.719999999999999,-0.16047904191616766,0.29362176561725395,0.29700845415116939]
["Fixed Base Rate Adjustment to Recover Past Tax Amounts ",1,{"$f":"VLOOKUP($B$3,'Data Current Rates'!$A:$AP,MATCH('BI_R2_Avg (without DRP)'!$A20,CurrentHeader,0),FALSE)","v":4.42},4.42,1,{"$f":"VLOOKUP($B$3,'Data Proposed Rates'!$A:$AZ,MATCH('BI_R2_Avg (without DRP)'!$A20,ProposedHeader,0),FALSE)","v":4},4,-0.41999999999999993,-9.5022624434389122E-2,2.0943064594668614E-2,2.1184625831039187E-2]
["Group 2 Fixed DVA Rider ",null,null,null,1,{"$f":"VLOOKUP($B$3,'Data Proposed Rates'!$A:$AZ,MATCH('BI_R2_Avg (without DRP)'!$A21,ProposedHeader,0),FALSE)","v":-0.28999999999999998},-0.28999999999999998,-0.28999999999999998,"N/A",-1.5183721831134743E-3,-1.5358853727503409E-3]
["Distribution Volumetric Charge",{"$f":"IF($B$9=\"kWh\",$B$4,$B$5)","v":978},{"$f":"VLOOKUP($B$3,'Data Current Rates'!$A:$AP,MATCH('BI_R2_Avg (without DRP)'!$A22,CurrentHeader,0),FALSE)","v":1.5900000000000001E-2},15.5502,978,{"$f":"VLOOKUP($B$3,'Data Proposed Rates'!$A:$AZ,MATCH('BI_R2_Avg (without DRP)'!$A22,ProposedHeader,0),FALSE)","v":8.0999999999999996E-3},7.9217999999999993,-7.628400000000001,-0.49056603773584911,4.1476692276511448E-2,4.1955092227081554E-2]
["Volumetric Base Rate Adjustment to Recover Past Tax Amounts ",{"$f":"IF($B$9=\"kWh\",$B$4,$B$5)","v":978},{"$f":"VLOOKUP($B$3,'Data Current Rates'!$A:$AP,MATCH('BI_R2_Avg (without DRP)'!$A23,CurrentHeader,0),FALSE)","v":0},0,978,{"$f":"VLOOKUP($B$3,'Data Proposed Rates'!$A:$AZ,MATCH('BI_R2_Avg (without DRP)'!$A23,ProposedHeader,0),FALSE)","v":0},0,0,"N/A",0,0]
["Group 1 Volumetric DVA Rider (General)",null,null,null,{"$f":"B4","v":978},{"$f":"VLOOKUP($B$3,'Data Proposed Rates'!$A:$AZ,MATCH('BI_R2_Avg (without DRP)'!$A24,ProposedHeader,0),FALSE)","v":-4.0000000000000002E-4},-0.39119999999999999,-0.39119999999999999,"N/A",-2.0482317173585902E-3,-2.0718564062756325E-3]
["Group 2 Volumetric DVA Rider ",null,null,null,{"$f":"B4","v":978},{"$f":"VLOOKUP($B$3,'Data Proposed Rates'!$A:$AZ,MATCH('BI_R2_Avg (without DRP)'!$A25,ProposedHeader,0),FALSE)","v":0},0,0,"N/A",0,0]
["Fair Hydro Plan - Distribution Rate Protection Savings*",null,null,0,null,null,0,0,"N/A",0,0]
["Sub-Total:  Distribution (excluding pass through)",null,null,{"$f":"SUM(INDIRECT(\"D19:D\"&ROW()-1))","v":86.770200000000003},null,null,{"$f":"SUM(INDIRECT(\"g19:g\"&ROW()-1))","v":67.320599999999999},{"$f":"G27-D27","v":-19.449600000000004},-0.22415068767848872,0.35247491858796193,0.35654043043026418]
["Smart Metering Entity Charge",1,{"$f":"VLOOKUP($A28,'Data Pass Through'!$A:$D,2,FALSE)","v":0.56999999999999995},{"$f":"B28*C28","v":0.56999999999999995},1,{"$f":"VLOOKUP($A28,'Data Pass Through'!$A:$D,3,FALSE)","v":0.56999999999999995},{"$f":"E28*F28","v":0.56999999999999995},0,0,2.9843867047402769E-3,3.0188091809230837E-3]
["Line Losses on Cost of Power (based on two-tier RPP prices)",{"$f":"B8-B4","v":102.69000000000005},{"$f":"IF(B4>B7,C13,C12)","v":0.115},{"$f":"B29*C29","v":11.809350000000007},102.69000000000005,{"$f":"IF(B4>B7,F13,F12)","v":0.115},{"$f":"E29*F29","v":11.809350000000007},0,0,6.1830994967762481E-2,6.25441652644457E-2]
["Line Losses on Cost of Power (based on TOU prices)",{"$f":"B8-B4","v":102.69000000000005},{"$f":"VLOOKUP($B$3,'Data Billing Quantities'!$A:$O,MATCH('BI_R2_Avg (without DRP)'!$A15,'Data Billing Quantities'!$4:$4,0),FALSE)*C15+VLOOKUP($B$3,'Data Billing Quantities'!$A:$O,MATCH('BI_R2_Avg (without DRP)'!$A16,'Data Billing Quantities'!$4:$4,0),FALSE)*C16+VLOOKUP($B$3,'Data Billing Quantities'!$A:$O,MATCH('BI_R2_Avg (without DRP)'!$A17,'Data Billing Quantities'!$4:$4,0),FALSE)*C17","v":0.10342000000000001},{"$f":"B30*C30","v":10.620199800000007},102.69000000000005,{"$f":"VLOOKUP($B$3,'Data Billing Quantities'!$A:$O,MATCH('BI_R2_Avg (without DRP)'!$A15,'Data Billing Quantities'!$4:$4,0),FALSE)*F15+VLOOKUP($B$3,'Data Billing Quantities'!$A:$O,MATCH('BI_R2_Avg (without DRP)'!$A16,'Data Billing Quantities'!$4:$4,0),FALSE)*F16+VLOOKUP($B$3,'Data Billing Quantities'!$A:$O,MATCH('BI_R2_Avg (without DRP)'!$A17,'Data Billing Quantities'!$4:$4,0),FALSE)*F17","v":0.10342000000000001},{"$f":"E30*F30","v":10.620199800000007},0,0,5.5604882604921704E-2,5.6246239753469339E-2]
["Sub-Total:  Distribution (based on two-tier RPP prices)",null,null,{"$f":"SUM(D27,D28:D29)","v":99.149550000000005},null,null,{"$f":"SUM(G27,G28:G29)","v":79.699950000000001},-19.449600000000004,-0.19616427911170553,0.41729030026046465,0.42210340487563291]
["Sub-Total:  Distribution (based on TOU prices)",null,null,{"$f":"SUM(D27,D28,D30)","v":97.960399800000005},null,null,{"$f":"SUM(G27,G28,G30)","v":78.510799800000001},-19.449600000000004,-0.19854553513163595,0.41106418789762389,0.41580547936465656]
["Retail Transmission Rate – Network Service Rate",{"$f":"B8","v":1080.69},{"$f":"VLOOKUP($B$3,'Data Current Rates'!$A:$AP,MATCH('BI_R2_Avg (without DRP)'!$A33,CurrentHeader,0),FALSE)","v":9.1999999999999998E-3},{"$f":"B33*C33","v":9.9423480000000009},1080.69,{"$f":"VLOOKUP($B$3,'Data Proposed Rates'!$A:$AZ,MATCH('BI_R2_Avg (without DRP)'!$A33,ProposedHeader,0),FALSE)","v":8.8000000000000005E-3},{"$f":"E33*F33","v":9.510072000000001},{"$f":"G33-D33","v":-0.43227599999999988},-4.3478260869565202E-2,4.9792513048987332E-2,5.0366829236560627E-2]
["Retail Transmission Rate – Line and Transformation Connection Service Rate",{"$f":"B8","v":1080.69},{"$f":"VLOOKUP($B$3,'Data Current Rates'!$A:$AP,MATCH('BI_R2_Avg (without DRP)'!$A34,CurrentHeader,0),FALSE)","v":6.7999999999999996E-3},{"$f":"B34*C34","v":7.3486919999999998},1080.69,{"$f":"VLOOKUP($B$3,'Data Proposed Rates'!$A:$AZ,MATCH('BI_R2_Avg (without DRP)'!$A34,ProposedHeader,0),FALSE)","v":6.4999999999999997E-3},{"$f":"E34*F34","v":7.0244850000000003},{"$f":"G34-D34","v":-0.32420699999999947},-4.4117647058823456E-2,3.6778560774820189E-2,3.7202771595186826E-2]
["Sub-Total:  Retail Transmission ",null,null,{"$f":"SUM(D33:D34)","v":17.291040000000002},null,null,{"$f":"SUM(G33:G34)","v":16.534557},{"$f":"G35-D35","v":-0.7564830000000029},-4.3750000000000164E-2,8.6571073823807521E-2,8.7569600831747446E-2]
["Sub-Total:  Delivery (based on two-tier RPP prices)",null,null,{"$f":"D31+D35","v":116.44059000000001},null,null,{"$f":"G31+G35","v":96.234507000000008},{"$f":"G36-D36","v":-20.206083000000007},-0.17353126603017044,0.50386137408427223,0.50967300570738039]
["Sub-Total:  Delivery (based on TOU prices)",null,null,{"$f":"D32+D35","v":115.25143980000001},null,null,{"$f":"G32+G35","v":95.045356800000008},{"$f":"G37-D37","v":-20.206083000000007},-0.17532174031894399,0.49763526172143147,0.50337508019640409]
["Wholesale Market Service Rate (WMS) - not including CBR",{"$f":"B8","v":1080.69},{"$f":"VLOOKUP($A38,'Data Pass Through'!$A:$D,2,FALSE)","v":3.0000000000000001E-3},{"$f":"B38*C38","v":3.2420700000000005},{"$f":"$B$8","v":1080.69},{"$f":"VLOOKUP($A38,'Data Pass Through'!$A:$D,3,FALSE)","v":3.0000000000000001E-3},{"$f":"E38*F38","v":3.2420700000000005},0,0,1.6974720357609319E-2,1.7170509967009306E-2]
["Capacity Based Recovery (CBR) - Applicable for Class B Customers",{"$f":"B8","v":1080.69},{"$f":"VLOOKUP($A39,'Data Pass Through'!$A:$D,2,FALSE)","v":4.0000000000000002E-4},{"$f":"B39*C39","v":0.43227600000000005},{"$f":"$B$8","v":1080.69},{"$f":"VLOOKUP($A39,'Data Pass Through'!$A:$D,3,FALSE)","v":4.0000000000000002E-4},{"$f":"E39*F39","v":0.43227600000000005},0,0,2.2632960476812423E-3,2.289401328934574E-3]
["Rural Rate Protection Charge",{"$f":"B8","v":1080.69},{"$f":"VLOOKUP($A40,'Data Pass Through'!$A:$D,2,FALSE)","v":5.0000000000000001E-4},0.54034500000000008,1080.69,{"$f":"VLOOKUP($A40,'Data Pass Through'!$A:$D,3,FALSE)","v":5.0000000000000001E-4},0.54034500000000008,0,0,2.8291200596015534E-3,2.8617516611682179E-3]
["Standard Supply Service – Administration Charge (if applicable)",1,{"$f":"VLOOKUP($A41,'Data Pass Through'!$A:$D,2,FALSE)","v":0.25},{"$f":"B41*C41","v":0.25},1,{"$f":"VLOOKUP($A41,'Data Pass Through'!$A:$D,3,FALSE)","v":0.25},0.25,0,0,1.3089415371667884E-3,1.3240391144399492E-3]
["Sub-Total:  Regulatory",null,null,{"$f":"SUM(D38:D41)","v":4.4646910000000002},null,null,{"$f":"SUM(G38:G41)","v":4.4646910000000002},0,0,2.33760780020589E-2,2.3645702071552047E-2]
["Total  Electricty Charge on Two-Tier RPP ",null,null,{"$f":"SUM(D14,D27,D28,D29,D35,D42)","v":223.17528100000001},null,null,{"$f":"SUM(G14,G27,G28,G29,G35,G42)","v":202.96919799999998},-20.206083000000035,-9.0539072738974324E-2,1.0626992561105206]
["     HST",null,0.13,{"$f":"D43*C44","v":29.012786530000003},null,{"$f":"C44","v":0.13},{"$f":"G43*F44","v":26.385995739999998},-2.6267907900000047,-9.0539072738974324E-2,0.13815090329436769]
["Total Electricity Charge on Two-Tier RPP (including HST)",null,null,{"$f":"SUM(D43:D44)","v":252.18806753000001},null,null,{"$f":"SUM(G43:G44)","v":229.35519373999998},-22.832873790000036,-9.0539072738974311E-2,1.2008501594048884]
["Ontario Electricity Rebate (OER)",null,{"$f":"IF(($B$4*12)<250000,VLOOKUP(A46,'Data Pass Through'!$A$4:$C$20,2,0),0)","v":-0.189},{"$f":"D43*C46","v":-42.180128109000002},null,{"$f":"C46","v":-0.189},{"$f":"G43*F46","v":-38.361178421999995},3.818949687000007,9.0539072738974338E-2,-0.2008501594048884]
["Total Amount on Two-Tier RPP",null,null,{"$f":"SUM(D45:D46)","v":210.007939421},null,null,{"$f":"SUM(G45:G46)","v":190.99401531799998},-19.013924103000022,-9.0539072738974269E-2,1]
["Total Electricty Charge on TOU (before HST)",null,null,{"$f":"SUM(D18,D27,D28,D30,D35,D42)","v":220.86089079999999},null,null,{"$f":"SUM(G18,G27,G28,G30,G35,G42)","v":200.65480779999999},-20.206083000000007,-9.1487827142278322E-2,null,{"$f":"G48/$G$52","v":1.0626992561105209}]
["     HST",null,0.13,{"$f":"D48*C49","v":28.711915804},null,{"$f":"C49","v":0.13},{"$f":"G48*F49","v":26.085125013999999},-2.6267907900000012,-9.1487827142278322E-2,null,{"$f":"G49/$G$52","v":0.13815090329436769}]
["Total Electricity Charge on TOU (including HST)",null,null,{"$f":"SUM(D48:D49)","v":249.57280660399999},null,null,{"$f":"SUM(G48:G49)","v":226.73993281399999},-22.832873790000008,-9.1487827142278322E-2,null,{"$f":"G50/$G$52","v":1.2008501594048884}]
["Ontario Electricity Rebate (OER)",null,{"$f":"IF(($B$4*12)<250000,VLOOKUP(A51,'Data Pass Through'!$A$4:$C$20,2,0),0)","v":-0.189},{"$f":"D48*C51","v":-41.742708361200002},null,{"$f":"C51","v":-0.189},{"$f":"G48*F51","v":-37.923758674199995},3.818949687000007,9.1487827142278447E-2,null,{"$f":"G51/$G$52","v":-0.2008501594048884}]
["Total Amount on TOU",null,null,{"$f":"SUM(D50:D51)","v":207.83009824279998},null,null,{"$f":"SUM(G50:G51)","v":188.81617413979998},-19.013924102999994,-9.1487827142278266E-2,null,{"$f":"G52/$G$52","v":1}]
["* Distribution rate protection applies to R1 and R2 customers"]

{"sheet":"BI_R2_High (without DRP)","index":42,"n_rows":53,"n_cols":11,"rows_kept":53,"cut":false,"hidden":false,"merged":[[0,0,0,10]]}
["2023 Bill Impacts (High Consumption Level) - R2"]
[]
["Rate Class",{"$f":"RIGHT(A1,LEN(A1)-FIND(\"- \",A1,1)-1)","v":"R2"},"Without DRP"]
["Monthly Consumption (kWh)",{"$f":"IF(COUNTIF(A1,\"*Low*\")>0,VLOOKUP(B3,'Data Billing Quantities'!$A:$Z,MATCH(\"Low kWh\",'Data Billing Quantities'!4:4,0),FALSE),IF(COUNTIF(A1,\"*Typical*\")>0,VLOOKUP(B3,'Data Billing Quantities'!$A:$Z,MATCH(\"Typical kWh\",'Data Billing Quantities'!4:4,0),FALSE),IF(COUNTIF(A1,\"*Average*\")>0,VLOOKUP(B3,'Data Billing Quantities'!$A:$Z,MATCH(\"Average kWh\",'Data Billing Quantities'!4:4,0),FALSE),IF(COUNTIF(A1,\"*High*\")>0,VLOOKUP(B3,'Data Billing Quantities'!$A:$Z,MATCH(\"High kWh\",'Data Billing Quantities'!4:4,0),FALSE),\"error\"))))","v":2110}]
["Peak (kW)",{"$f":"IF(COUNTIF(A1,\"*Low*\")>0,VLOOKUP(B3,'Data Billing Quantities'!$A:$Z,MATCH(\"Low kW\",'Data Billing Quantities'!4:4,0),FALSE),IF(COUNTIF(A1,\"*Typical*\")>0,VLOOKUP(B3,'Data Billing Quantities'!$A:$Z,MATCH(\"Typical kW\",'Data Billing Quantities'!4:4,0),FALSE),IF(COUNTIF(A1,\"*Average*\")>0,VLOOKUP(B3,'Data Billing Quantities'!$A:$Z,MATCH(\"Average kW\",'Data Billing Quantities'!4:4,0),FALSE),IF(COUNTIF(A1,\"*High*\")>0,VLOOKUP(B3,'Data Billing Quantities'!$A:$Z,MATCH(\"High kW\",'Data Billing Quantities'!4:4,0),FALSE),\"error\"))))","v":0}]
["Loss factor",{"$f":"VLOOKUP(B3,'Data Billing Quantities'!A:D,MATCH(A6,'Data Billing Quantities'!4:4,0),FALSE)","v":1.105}]
["Commodity Threshold",{"$f":"VLOOKUP(B3,'Data Billing Quantities'!A:D,MATCH(A7,'Data Billing Quantities'!4:4,0),FALSE)","v":600}]
["Monthly Consumption (kWh) - Uplifted",{"$f":"B4*B6","v":2331.5500000000002}]
["Charge determinant",{"$f":"VLOOKUP(B3,'Data Billing Quantities'!A:D,MATCH(A9,'Data Billing Quantities'!4:4,0),FALSE)","v":"kWh"}]
[]
[null,"Volume","Current Rate ($)","Current Charge ($)","Volume","Proposed Rate ($)","Proposed Charge ($)","Change ($)","Change (%)","% of Total Bill on RPP","% of Total Bill"]
["Energy First Tier",{"$f":"IF(B4>B7,B7,B4)","v":600},{"$f":"VLOOKUP($A12,'Data Pass Through'!$A:$D,2,FALSE)","v":9.8000000000000004E-2},{"$f":"B12*C12","v":58.800000000000004},{"$f":"B12","v":600},{"$f":"VLOOKUP($A12,'Data Pass Through'!$A:$D,3,FALSE)","v":9.8000000000000004E-2},{"$f":"E12*F12","v":58.800000000000004},{"$f":"G12-D12","v":0},{"$f":"IF(ISERROR(H12/ABS(D12)),\"N/A\",(H12/ABS(D12)))","v":0},{"$f":"G12/$G$47","v":0.16463324984775729}]
["Energy Second Tier",{"$f":"IF(B4>B7,(B4)-B7,0)","v":1510},{"$f":"VLOOKUP($A13,'Data Pass Through'!$A:$D,2,FALSE)","v":0.115},{"$f":"B13*C13","v":173.65},{"$f":"B13","v":1510},{"$f":"VLOOKUP($A13,'Data Pass Through'!$A:$D,3,FALSE)","v":0.115},{"$f":"E13*F13","v":173.65},0,0,{"$f":"G13/$G$47","v":0.48620006523916753}]
["Sub-Total:  Energy (RPP Tiered)",null,null,{"$f":"SUM(D12:D13)","v":232.45000000000002},null,null,{"$f":"SUM(G12:G13)","v":232.45000000000002},0,0,{"$f":"G14/$G$47","v":0.65083331508692477}]
["TOU-Off Peak",{"$f":"B$4*VLOOKUP($B$3,'Data Billing Quantities'!$A:$O,MATCH('BI_R2_High (without DRP)'!$A15,'Data Billing Quantities'!$4:$4,0),FALSE)","v":1350.4},{"$f":"VLOOKUP($A15,'Data Pass Through'!$A:$D,2,FALSE)","v":8.2000000000000003E-2},{"$f":"B15*C15","v":110.73280000000001},1350.4,{"$f":"VLOOKUP($A15,'Data Pass Through'!$A:$D,3,FALSE)","v":8.2000000000000003E-2},{"$f":"E15*F15","v":110.73280000000001},0,0,null,{"$f":"G15/$G$52","v":0.32439731319944276}]
["TOU-Mid Peak",{"$f":"B$4*VLOOKUP($B$3,'Data Billing Quantities'!$A:$O,MATCH('BI_R2_High (without DRP)'!$A16,'Data Billing Quantities'!$4:$4,0),FALSE)","v":379.8},{"$f":"VLOOKUP($A16,'Data Pass Through'!$A:$D,2,FALSE)","v":0.113},{"$f":"B16*C16","v":42.917400000000001},379.8,{"$f":"VLOOKUP($A16,'Data Pass Through'!$A:$D,3,FALSE)","v":0.113},{"$f":"E16*F16","v":42.917400000000001},0,0,null,0.12572868426975353]
["TOU-On Peak",{"$f":"B$4*VLOOKUP($B$3,'Data Billing Quantities'!$A:$O,MATCH('BI_R2_High (without DRP)'!$A17,'Data Billing Quantities'!$4:$4,0),FALSE)","v":379.8},{"$f":"VLOOKUP($A17,'Data Pass Through'!$A:$D,2,FALSE)","v":0.17},{"$f":"B17*C17","v":64.566000000000003},379.8,{"$f":"VLOOKUP($A17,'Data Pass Through'!$A:$D,3,FALSE)","v":0.17},{"$f":"E17*F17","v":64.566000000000003},0,0,null,0.18914934801644337]
["Sub-Total:  Energy (RPP TOU)",null,null,{"$f":"SUM(D15:D17)","v":218.21620000000001},null,null,{"$f":"SUM(G15:G17)","v":218.21620000000001},0,0,{"$f":"G18/$G$47","v":0.61098030910592127},0.63927534548563969]
["Service Charge",1,{"$f":"VLOOKUP($B$3,'Data Current Rates'!$A:$AP,MATCH('BI_R2_High (without DRP)'!$A19,CurrentHeader,0),FALSE)","v":66.8},{"$f":"B19*C19","v":66.8},1,{"$f":"VLOOKUP($B$3,'Data Proposed Rates'!$A:$AZ,MATCH('BI_R2_High (without DRP)'!$A19,ProposedHeader,0),FALSE)","v":56.08},{"$f":"E19*F19","v":56.08},-10.719999999999999,-0.16047904191616766,0.15701756209969775,0.16428918373078932]
["Fixed Base Rate Adjustment to Recover Past Tax Amounts ",1,{"$f":"VLOOKUP($B$3,'Data Current Rates'!$A:$AP,MATCH('BI_R2_High (without DRP)'!$A20,CurrentHeader,0),FALSE)","v":4.42},4.42,1,{"$f":"VLOOKUP($B$3,'Data Proposed Rates'!$A:$AZ,MATCH('BI_R2_High (without DRP)'!$A20,ProposedHeader,0),FALSE)","v":4},4,-0.41999999999999993,-9.5022624434389122E-2,1.1199540805969882E-2,1.1718201407331621E-2]
["Group 2 Fixed DVA Rider ",null,null,null,1,{"$f":"VLOOKUP($B$3,'Data Proposed Rates'!$A:$AZ,MATCH('BI_R2_High (without DRP)'!$A21,ProposedHeader,0),FALSE)","v":-0.28999999999999998},-0.28999999999999998,-0.28999999999999998,"N/A",-8.1196670843281644E-4,-8.4956960203154245E-4]
["Distribution Volumetric Charge",{"$f":"IF($B$9=\"kWh\",$B$4,$B$5)","v":2110},{"$f":"VLOOKUP($B$3,'Data Current Rates'!$A:$AP,MATCH('BI_R2_High (without DRP)'!$A22,CurrentHeader,0),FALSE)","v":1.5900000000000001E-2},33.548999999999999,2110,{"$f":"VLOOKUP($B$3,'Data Proposed Rates'!$A:$AZ,MATCH('BI_R2_High (without DRP)'!$A22,ProposedHeader,0),FALSE)","v":8.0999999999999996E-3},17.090999999999998,-16.458000000000002,-0.49056603773584911,4.7852837978707805E-2,5.0068945063176176E-2]
["Volumetric Base Rate Adjustment to Recover Past Tax Amounts ",{"$f":"IF($B$9=\"kWh\",$B$4,$B$5)","v":2110},{"$f":"VLOOKUP($B$3,'Data Current Rates'!$A:$AP,MATCH('BI_R2_High (without DRP)'!$A23,CurrentHeader,0),FALSE)","v":0},0,2110,{"$f":"VLOOKUP($B$3,'Data Proposed Rates'!$A:$AZ,MATCH('BI_R2_High (without DRP)'!$A23,ProposedHeader,0),FALSE)","v":0},0,0,"N/A",0,0]
["Group 1 Volumetric DVA Rider (General)",null,null,null,{"$f":"B4","v":2110},{"$f":"VLOOKUP($B$3,'Data Proposed Rates'!$A:$AZ,MATCH('BI_R2_High (without DRP)'!$A24,ProposedHeader,0),FALSE)","v":-4.0000000000000002E-4},-0.84400000000000008,-0.84400000000000008,"N/A",-2.3631031100596455E-3,-2.4725404969469724E-3]
["Group 2 Volumetric DVA Rider ",null,null,null,{"$f":"B4","v":2110},{"$f":"VLOOKUP($B$3,'Data Proposed Rates'!$A:$AZ,MATCH('BI_R2_High (without DRP)'!$A25,ProposedHeader,0),FALSE)","v":0},0,0,"N/A",0,0]
["Fair Hydro Plan - Distribution Rate Protection Savings*",null,null,0,null,null,0,0,"N/A",0,0]
["Sub-Total:  Distribution (excluding pass through)",null,null,{"$f":"SUM(INDIRECT(\"D19:D\"&ROW()-1))","v":104.76900000000001},null,null,{"$f":"SUM(INDIRECT(\"g19:g\"&ROW()-1))","v":76.037000000000006},{"$f":"G27-D27","v":-28.731999999999999},-0.2742414263761227,0.21289487106588301,0.22275422010231863]
["Smart Metering Entity Charge",1,{"$f":"VLOOKUP($A28,'Data Pass Through'!$A:$D,2,FALSE)","v":0.56999999999999995},{"$f":"B28*C28","v":0.56999999999999995},1,{"$f":"VLOOKUP($A28,'Data Pass Through'!$A:$D,3,FALSE)","v":0.56999999999999995},{"$f":"E28*F28","v":0.56999999999999995},0,0,1.5959345648507081E-3,1.669843700544756E-3]
["Line Losses on Cost of Power (based on two-tier RPP prices)",{"$f":"B8-B4","v":221.55000000000018},{"$f":"IF(B4>B7,C13,C12)","v":0.115},{"$f":"B29*C29","v":25.47825000000002},221.55000000000018,{"$f":"IF(B4>B7,F13,F12)","v":0.115},{"$f":"E29*F29","v":25.47825000000002},0,0,7.13361751349256E-2,7.4639816251586777E-2]
["Line Losses on Cost of Power (based on TOU prices)",{"$f":"B8-B4","v":221.55000000000018},{"$f":"VLOOKUP($B$3,'Data Billing Quantities'!$A:$O,MATCH('BI_R2_High (without DRP)'!$A15,'Data Billing Quantities'!$4:$4,0),FALSE)*C15+VLOOKUP($B$3,'Data Billing Quantities'!$A:$O,MATCH('BI_R2_High (without DRP)'!$A16,'Data Billing Quantities'!$4:$4,0),FALSE)*C16+VLOOKUP($B$3,'Data Billing Quantities'!$A:$O,MATCH('BI_R2_High (without DRP)'!$A17,'Data Billing Quantities'!$4:$4,0),FALSE)*C17","v":0.10342000000000001},{"$f":"B30*C30","v":22.91270100000002},221.55000000000018,{"$f":"VLOOKUP($B$3,'Data Billing Quantities'!$A:$O,MATCH('BI_R2_High (without DRP)'!$A15,'Data Billing Quantities'!$4:$4,0),FALSE)*F15+VLOOKUP($B$3,'Data Billing Quantities'!$A:$O,MATCH('BI_R2_High (without DRP)'!$A16,'Data Billing Quantities'!$4:$4,0),FALSE)*F16+VLOOKUP($B$3,'Data Billing Quantities'!$A:$O,MATCH('BI_R2_High (without DRP)'!$A17,'Data Billing Quantities'!$4:$4,0),FALSE)*F17","v":0.10342000000000001},{"$f":"E30*F30","v":22.91270100000002},0,0,6.4152932456121789E-2,6.7123911275992224E-2]
["Sub-Total:  Distribution (based on two-tier RPP prices)",null,null,{"$f":"SUM(D27,D28:D29)","v":130.81725000000003},null,null,{"$f":"SUM(G27,G28:G29)","v":102.08525000000002},-28.732000000000014,-0.21963464298477461,0.28582698076565927,0.29906388005445012]
["Sub-Total:  Distribution (based on TOU prices)",null,null,{"$f":"SUM(D27,D28,D30)","v":128.25170100000003},null,null,{"$f":"SUM(G27,G28,G30)","v":99.519701000000026},-28.731999999999999,-0.22402821776219556,0.2786437380868555,0.2915479750788556]
["Retail Transmission Rate – Network Service Rate",{"$f":"B8","v":2331.5500000000002},{"$f":"VLOOKUP($B$3,'Data Current Rates'!$A:$AP,MATCH('BI_R2_High (without DRP)'!$A33,CurrentHeader,0),FALSE)","v":9.1999999999999998E-3},{"$f":"B33*C33","v":21.45026},2331.5500000000002,{"$f":"VLOOKUP($B$3,'Data Proposed Rates'!$A:$AZ,MATCH('BI_R2_High (without DRP)'!$A33,ProposedHeader,0),FALSE)","v":8.8000000000000005E-3},{"$f":"E33*F33","v":20.517640000000004},{"$f":"G33-D33","v":-0.93261999999999645},-4.347826086956505E-2,5.7447036605549985E-2,6.0107459480780903E-2]
["Retail Transmission Rate – Line and Transformation Connection Service Rate",{"$f":"B8","v":2331.5500000000002},{"$f":"VLOOKUP($B$3,'Data Current Rates'!$A:$AP,MATCH('BI_R2_High (without DRP)'!$A34,CurrentHeader,0),FALSE)","v":6.7999999999999996E-3},{"$f":"B34*C34","v":15.85454},2331.5500000000002,{"$f":"VLOOKUP($B$3,'Data Proposed Rates'!$A:$AZ,MATCH('BI_R2_High (without DRP)'!$A34,ProposedHeader,0),FALSE)","v":6.4999999999999997E-3},{"$f":"E34*F34","v":15.155075},{"$f":"G34-D34","v":-0.699465},-4.4117647058823532E-2,4.2432470220008504E-2,4.4397555298304067E-2]
["Sub-Total:  Retail Transmission ",null,null,{"$f":"SUM(D33:D34)","v":37.3048},null,null,{"$f":"SUM(G33:G34)","v":35.672715000000004},{"$f":"G35-D35","v":-1.6320849999999965},-4.3749999999999907E-2,9.9879506825558489E-2,0.10450501477908497]
["Sub-Total:  Delivery (based on two-tier RPP prices)",null,null,{"$f":"D31+D35","v":168.12205000000003},null,null,{"$f":"G31+G35","v":137.75796500000001},{"$f":"G36-D36","v":-30.364085000000017},-0.18060739207022525,0.38570648759121773,0.40356889483353509]
["Sub-Total:  Delivery (based on TOU prices)",null,null,{"$f":"D32+D35","v":165.55650100000003},null,null,{"$f":"G32+G35","v":135.19241600000004},{"$f":"G37-D37","v":-30.364084999999989},-0.1834061774475409,0.37852324491241401,0.39605298985794057]
["Wholesale Market Service Rate (WMS) - not including CBR",{"$f":"B8","v":2331.5500000000002},{"$f":"VLOOKUP($A38,'Data Pass Through'!$A:$D,2,FALSE)","v":3.0000000000000001E-3},{"$f":"B38*C38","v":6.9946500000000009},{"$f":"$B$8","v":2331.5500000000002},{"$f":"VLOOKUP($A38,'Data Pass Through'!$A:$D,3,FALSE)","v":3.0000000000000001E-3},{"$f":"E38*F38","v":6.9946500000000009},0,0,1.9584217024619311E-2,2.0491179368448034E-2]
["Capacity Based Recovery (CBR) - Applicable for Class B Customers",{"$f":"B8","v":2331.5500000000002},{"$f":"VLOOKUP($A39,'Data Pass Through'!$A:$D,2,FALSE)","v":4.0000000000000002E-4},{"$f":"B39*C39","v":0.93262000000000012},{"$f":"$B$8","v":2331.5500000000002},{"$f":"VLOOKUP($A39,'Data Pass Through'!$A:$D,3,FALSE)","v":4.0000000000000002E-4},{"$f":"E39*F39","v":0.93262000000000012},0,0,2.6112289366159083E-3,2.7321572491264042E-3]
["Rural Rate Protection Charge",{"$f":"B8","v":2331.5500000000002},{"$f":"VLOOKUP($A40,'Data Pass Through'!$A:$D,2,FALSE)","v":5.0000000000000001E-4},1.165775,2331.5500000000002,{"$f":"VLOOKUP($A40,'Data Pass Through'!$A:$D,3,FALSE)","v":5.0000000000000001E-4},1.165775,0,0,3.2640361707698849E-3,3.4151965614080053E-3]
["Standard Supply Service – Administration Charge (if applicable)",1,{"$f":"VLOOKUP($A41,'Data Pass Through'!$A:$D,2,FALSE)","v":0.25},{"$f":"B41*C41","v":0.25},1,{"$f":"VLOOKUP($A41,'Data Pass Through'!$A:$D,3,FALSE)","v":0.25},0.25,0,0,6.9997130037311762E-4,7.323875879582263E-4]
["Sub-Total:  Regulatory",null,null,{"$f":"SUM(D38:D41)","v":9.343045},null,null,{"$f":"SUM(G38:G41)","v":9.343045},0,0,2.6159453432378219E-2,2.7370920766940667E-2]
["Total  Electricty Charge on Two-Tier RPP ",null,null,{"$f":"SUM(D14,D27,D28,D29,D35,D42)","v":409.91509500000006},null,null,{"$f":"SUM(G14,G27,G28,G29,G35,G42)","v":379.55101000000002},-30.364085000000046,-7.4074083561133652E-2,1.0626992561105209]
["     HST",null,0.13,{"$f":"D43*C44","v":53.288962350000013},null,{"$f":"C44","v":0.13},{"$f":"G43*F44","v":49.341631300000003},-3.9473310500000096,-7.4074083561133722E-2,0.13815090329436769]
["Total Electricity Charge on Two-Tier RPP (including HST)",null,null,{"$f":"SUM(D43:D44)","v":463.20405735000008},null,null,{"$f":"SUM(G43:G44)","v":428.89264130000004},-34.311416050000048,-7.4074083561133652E-2,1.2008501594048884]
["Ontario Electricity Rebate (OER)",null,{"$f":"IF(($B$4*12)<250000,VLOOKUP(A46,'Data Pass Through'!$A$4:$C$20,2,0),0)","v":-0.189},{"$f":"D43*C46","v":-77.473952955000016},null,{"$f":"C46","v":-0.189},{"$f":"G43*F46","v":-71.735140890000011},5.7388120650000047,7.4074083561133597E-2,-0.20085015940488843]
["Total Amount on Two-Tier RPP",null,null,{"$f":"SUM(D45:D46)","v":385.73010439500007},null,null,{"$f":"SUM(G45:G46)","v":357.15750041000001},-28.572603985000057,-7.4074083561133694E-2,1]
["Total Electricty Charge on TOU (before HST)",null,null,{"$f":"SUM(D18,D27,D28,D30,D35,D42)","v":393.11574600000006},null,null,{"$f":"SUM(G18,G27,G28,G30,G35,G42)","v":362.75166100000001},-30.364085000000046,-7.7239554276210654E-2,null,{"$f":"G48/$G$52","v":1.0626992561105209}]
["     HST",null,0.13,{"$f":"D48*C49","v":51.105046980000012},null,{"$f":"C49","v":0.13},{"$f":"G48*F49","v":47.157715930000002},-3.9473310500000096,-7.7239554276210723E-2,null,{"$f":"G49/$G$52","v":0.13815090329436772}]
["Total Electricity Charge on TOU (including HST)",null,null,{"$f":"SUM(D48:D49)","v":444.22079298000006},null,null,{"$f":"SUM(G48:G49)","v":409.90937693000001},-34.311416050000048,-7.7239554276210654E-2,null,{"$f":"G50/$G$52","v":1.2008501594048886}]
["Ontario Electricity Rebate (OER)",null,{"$f":"IF(($B$4*12)<250000,VLOOKUP(A51,'Data Pass Through'!$A$4:$C$20,2,0),0)","v":-0.189},{"$f":"D48*C51","v":-74.298875994000014},null,{"$f":"C51","v":-0.189},{"$f":"G48*F51","v":-68.560063929000009},5.7388120650000047,7.7239554276210598E-2,null,{"$f":"G51/$G$52","v":-0.20085015940488846}]
["Total Amount on TOU",null,null,{"$f":"SUM(D50:D51)","v":369.92191698600004},null,null,{"$f":"SUM(G50:G51)","v":341.34931300099998},-28.572603985000057,-7.7239554276210695E-2,null,{"$f":"G52/$G$52","v":1}]
["* Distribution rate protection applies to R1 and R2 customers"]

{"sheet":"BI_GSe_Low","index":43,"n_rows":53,"n_cols":11,"rows_kept":53,"cut":false,"hidden":false,"merged":[[0,0,0,10]]}
["2023 Bill Impacts (Low Consumption Level) - GSe"]
[]
["Rate Class",{"$f":"RIGHT(A1,LEN(A1)-FIND(\"- \",A1,1)-1)","v":"GSe"}]
["Monthly Consumption (kWh)",{"$f":"IF(COUNTIF(A1,\"*Low*\")>0,VLOOKUP(B3,'Data Billing Quantities'!$A:$Z,MATCH(\"Low kWh\",'Data Billing Quantities'!4:4,0),FALSE),IF(COUNTIF(A1,\"*Typical*\")>0,VLOOKUP(B3,'Data Billing Quantities'!$A:$Z,MATCH(\"Typical kWh\",'Data Billing Quantities'!4:4,0),FALSE),IF(COUNTIF(A1,\"*Average*\")>0,VLOOKUP(B3,'Data Billing Quantities'!$A:$Z,MATCH(\"Average kWh\",'Data Billing Quantities'!4:4,0),FALSE),IF(COUNTIF(A1,\"*High*\")>0,VLOOKUP(B3,'Data Billing Quantities'!$A:$Z,MATCH(\"High kWh\",'Data Billing Quantities'!4:4,0),FALSE),\"error\"))))","v":60}]
["Peak (kW)",{"$f":"IF(COUNTIF(A1,\"*Low*\")>0,VLOOKUP(B3,'Data Billing Quantities'!$A:$Z,MATCH(\"Low kW\",'Data Billing Quantities'!4:4,0),FALSE),IF(COUNTIF(A1,\"*Typical*\")>0,VLOOKUP(B3,'Data Billing Quantities'!$A:$Z,MATCH(\"Typical kW\",'Data Billing Quantities'!4:4,0),FALSE),IF(COUNTIF(A1,\"*Average*\")>0,VLOOKUP(B3,'Data Billing Quantities'!$A:$Z,MATCH(\"Average kW\",'Data Billing Quantities'!4:4,0),FALSE),IF(COUNTIF(A1,\"*High*\")>0,VLOOKUP(B3,'Data Billing Quantities'!$A:$Z,MATCH(\"High kW\",'Data Billing Quantities'!4:4,0),FALSE),\"error\"))))","v":0}]
["Loss factor",{"$f":"VLOOKUP(B3,'Data Billing Quantities'!A:D,MATCH(A6,'Data Billing Quantities'!4:4,0),FALSE)","v":1.0960000000000001}]
["Commodity Threshold",{"$f":"VLOOKUP(B3,'Data Billing Quantities'!A:D,MATCH(A7,'Data Billing Quantities'!4:4,0),FALSE)","v":750}]
["Monthly Consumption (kWh) - Uplifted",{"$f":"B4*B6","v":65.760000000000005}]
["Charge determinant",{"$f":"VLOOKUP(B3,'Data Billing Quantities'!A:D,MATCH(A9,'Data Billing Quantities'!4:4,0),FALSE)","v":"kWh"}]
[]
[null,"Volume","Current Rate ($)","Current Charge ($)","Volume","Proposed Rate ($)","Proposed Charge ($)","Change ($)","Change (%)","% of Total Bill on RPP","% of Total Bill"]
["Energy First Tier",{"$f":"IF(B4>B7,B7,B4)","v":60},{"$f":"VLOOKUP($A12,'Data Pass Through'!$A:$D,2,FALSE)","v":9.8000000000000004E-2},{"$f":"B12*C12","v":5.88},{"$f":"B12","v":60},{"$f":"VLOOKUP($A12,'Data Pass Through'!$A:$D,3,FALSE)","v":9.8000000000000004E-2},{"$f":"E12*F12","v":5.88},{"$f":"G12-D12","v":0},{"$f":"IF(ISERROR(H12/ABS(D12)),\"N/A\",(H12/ABS(D12)))","v":0},{"$f":"G12/$G$47","v":0.14062142466440511}]
["Energy Second Tier",{"$f":"IF(B4>B7,(B4)-B7,0)","v":0},{"$f":"VLOOKUP($A13,'Data Pass Through'!$A:$D,2,FALSE)","v":0.115},{"$f":"B13*C13","v":0},{"$f":"B13","v":0},{"$f":"VLOOKUP($A13,'Data Pass Through'!$A:$D,3,FALSE)","v":0.115},{"$f":"E13*F13","v":0},0,"N/A",{"$f":"G13/$G$47","v":0}]
["Sub-Total:  Energy (RPP Tiered)",null,null,{"$f":"SUM(D12:D13)","v":5.88},null,null,{"$f":"SUM(G12:G13)","v":5.88},0,0,{"$f":"G14/$G$47","v":0.14062142466440511}]
["TOU-Off Peak",{"$f":"B$4*VLOOKUP($B$3,'Data Billing Quantities'!$A:$O,MATCH(BI_GSe_Low!$A15,'Data Billing Quantities'!$4:$4,0),FALSE)","v":38.4},{"$f":"VLOOKUP($A15,'Data Pass Through'!$A:$D,2,FALSE)","v":8.2000000000000003E-2},{"$f":"B15*C15","v":3.1488},38.4,{"$f":"VLOOKUP($A15,'Data Pass Through'!$A:$D,3,FALSE)","v":8.2000000000000003E-2},{"$f":"E15*F15","v":3.1488},0,0,null,{"$f":"G15/$G$52","v":7.4705003997647373E-2}]
["TOU-Mid Peak",{"$f":"B$4*VLOOKUP($B$3,'Data Billing Quantities'!$A:$O,MATCH(BI_GSe_Low!$A16,'Data Billing Quantities'!$4:$4,0),FALSE)","v":10.799999999999999},{"$f":"VLOOKUP($A16,'Data Pass Through'!$A:$D,2,FALSE)","v":0.113},{"$f":"B16*C16","v":1.2203999999999999},10.799999999999999,{"$f":"VLOOKUP($A16,'Data Pass Through'!$A:$D,3,FALSE)","v":0.113},{"$f":"E16*F16","v":1.2203999999999999},0,0,null,2.8953883028051589E-2]
["TOU-On Peak",{"$f":"B$4*VLOOKUP($B$3,'Data Billing Quantities'!$A:$O,MATCH(BI_GSe_Low!$A17,'Data Billing Quantities'!$4:$4,0),FALSE)","v":10.799999999999999},{"$f":"VLOOKUP($A17,'Data Pass Through'!$A:$D,2,FALSE)","v":0.17},{"$f":"B17*C17","v":1.8359999999999999},10.799999999999999,{"$f":"VLOOKUP($A17,'Data Pass Through'!$A:$D,3,FALSE)","v":0.17},{"$f":"E17*F17","v":1.8359999999999999},0,0,null,4.3558939068750177E-2]
["Sub-Total:  Energy (RPP TOU)",null,null,{"$f":"SUM(D15:D17)","v":6.2051999999999996},null,null,{"$f":"SUM(G15:G17)","v":6.2051999999999996},0,0,{"$f":"G18/$G$47","v":0.14839865039584466},0.14721782609444914]
["Service Charge",1,{"$f":"VLOOKUP($B$3,'Data Current Rates'!$A:$AP,MATCH(BI_GSe_Low!$A19,CurrentHeader,0),FALSE)","v":33.799999999999997},{"$f":"B19*C19","v":33.799999999999997},1,{"$f":"VLOOKUP($B$3,'Data Proposed Rates'!$A:$AZ,MATCH(BI_GSe_Low!$A19,ProposedHeader,0),FALSE)","v":30.95},{"$f":"E19*F19","v":30.95},-2.8499999999999979,-8.431952662721888E-2,0.74017569615022749,0.73428603713388785]
["Fixed Base Rate Adjustment to Recover Past Tax Amounts ",1,{"$f":"VLOOKUP($B$3,'Data Current Rates'!$A:$AP,MATCH(BI_GSe_Low!$A20,CurrentHeader,0),FALSE)","v":1.1100000000000001},1.1100000000000001,1,{"$f":"VLOOKUP($B$3,'Data Proposed Rates'!$A:$AZ,MATCH(BI_GSe_Low!$A20,ProposedHeader,0),FALSE)","v":1.1000000000000001},1.1000000000000001,-1.0000000000000009E-2,-9.0090090090090159E-3,2.6306729103885311E-2,2.6097403581495208E-2]
["Group 2 Fixed DVA Rider ",null,null,null,1,{"$f":"VLOOKUP($B$3,'Data Proposed Rates'!$A:$AZ,MATCH(BI_GSe_Low!$A21,ProposedHeader,0),FALSE)","v":0},0,0,"N/A",0,0]
["Distribution Volumetric Charge",{"$f":"IF($B$9=\"kWh\",$B$4,$B$5)","v":60},{"$f":"VLOOKUP($B$3,'Data Current Rates'!$A:$AP,MATCH(BI_GSe_Low!$A22,CurrentHeader,0),FALSE)","v":6.7299999999999999E-2},4.0380000000000003,60,{"$f":"VLOOKUP($B$3,'Data Proposed Rates'!$A:$AZ,MATCH(BI_GSe_Low!$A22,ProposedHeader,0),FALSE)","v":6.4699999999999994E-2},3.8819999999999997,-0.15600000000000058,-3.8632986627043231E-2,9.2838838528438869E-2,9.2100109730331253E-2]
["Volumetric Base Rate Adjustment to Recover Past Tax Amounts ",{"$f":"IF($B$9=\"kWh\",$B$4,$B$5)","v":60},{"$f":"VLOOKUP($B$3,'Data Current Rates'!$A:$AP,MATCH(BI_GSe_Low!$A23,CurrentHeader,0),FALSE)","v":2.2000000000000001E-3},0.13200000000000001,60,{"$f":"VLOOKUP($B$3,'Data Proposed Rates'!$A:$AZ,MATCH(BI_GSe_Low!$A23,ProposedHeader,0),FALSE)","v":2.3E-3},0.13800000000000001,6.0000000000000053E-3,4.5454545454545491E-2,3.3002987421237935E-3,3.2740379038603078E-3]
["Group 1 Volumetric DVA Rider (General)",null,null,null,{"$f":"B4","v":60},{"$f":"VLOOKUP($B$3,'Data Proposed Rates'!$A:$AZ,MATCH(BI_GSe_Low!$A24,ProposedHeader,0),FALSE)","v":-4.0000000000000002E-4},-2.4E-2,-2.4E-2,"N/A",-5.739649986302249E-4,-5.693978963235318E-4]
["Group 2 Volumetric DVA Rider ",null,null,null,{"$f":"B4","v":60},{"$f":"VLOOKUP($B$3,'Data Proposed Rates'!$A:$AZ,MATCH(BI_GSe_Low!$A25,ProposedHeader,0),FALSE)","v":-2.0000000000000001E-4},-1.2E-2,-1.2E-2,"N/A",-2.8698249931511245E-4,-2.846989481617659E-4]
["Fair Hydro Plan - Distribution Rate Protection Savings*",null,null,{"$f":"IF(AND(B3<>\"R1\",B3<>\"R2\"),0,IF(VLOOKUP($A26,'Data Pass Through'!$A:$D,2,FALSE)=0,0,IF(SUM(D19:D20,D22:D23)<VLOOKUP($A26,'Data Pass Through'!$A:$D,2,FALSE),0,VLOOKUP($A26,'Data Pass Through'!$A:$D,2,FALSE)-SUM(D19:D20,D22:D23))))","v":0},null,null,{"$f":"IF(AND(B3<>\"R1\",B3<>\"R2\"),0,IF(VLOOKUP($A26,'Data Pass Through'!$A:$D,2,FALSE)=0,0,IF(SUM(G19:G20,G22:G23)<VLOOKUP($A26,'Data Pass Through'!$A:$D,2,FALSE),0,VLOOKUP($A26,'Data Pass Through'!$A:$D,2,FALSE)-SUM(G19:G20,G22:G23))))","v":0},0,"N/A",0,0]
["Sub-Total:  Distribution (excluding pass through)",null,null,{"$f":"SUM(INDIRECT(\"D19:D\"&ROW()-1))","v":39.079999999999991},null,null,{"$f":"SUM(INDIRECT(\"g19:g\"&ROW()-1))","v":36.033999999999992},{"$f":"G27-D27","v":-3.0459999999999994},-7.7942681678607989E-2,0.86176061502672996,0.85490349150508915]
["Smart Metering Entity Charge",1,{"$f":"VLOOKUP($A28,'Data Pass Through'!$A:$D,2,FALSE)","v":0.56999999999999995},{"$f":"B28*C28","v":0.56999999999999995},1,{"$f":"VLOOKUP($A28,'Data Pass Through'!$A:$D,3,FALSE)","v":0.56999999999999995},{"$f":"E28*F28","v":0.56999999999999995},0,0,1.3631668717467842E-2,1.3523200037683879E-2]
["Line Losses on Cost of Power (based on two-tier RPP prices)",{"$f":"B8-B4","v":5.7600000000000051},{"$f":"IF(B4>B7,C13,C12)","v":9.8000000000000004E-2},{"$f":"B29*C29","v":0.56448000000000054},5.7600000000000051,{"$f":"IF(B4>B7,F13,F12)","v":9.8000000000000004E-2},{"$f":"E29*F29","v":0.56448000000000054},0,0,1.3499656767782904E-2,1.339223852152948E-2]
["Line Losses on Cost of Power (based on TOU prices)",{"$f":"B8-B4","v":5.7600000000000051},{"$f":"VLOOKUP($B$3,'Data Billing Quantities'!$A:$O,MATCH(BI_GSe_Low!$A15,'Data Billing Quantities'!$4:$4,0),FALSE)*C15+VLOOKUP($B$3,'Data Billing Quantities'!$A:$O,MATCH(BI_GSe_Low!$A16,'Data Billing Quantities'!$4:$4,0),FALSE)*C16+VLOOKUP($B$3,'Data Billing Quantities'!$A:$O,MATCH(BI_GSe_Low!$A17,'Data Billing Quantities'!$4:$4,0),FALSE)*C17","v":0.10342000000000001},{"$f":"B30*C30","v":0.59569920000000065},5.7600000000000051,{"$f":"VLOOKUP($B$3,'Data Billing Quantities'!$A:$O,MATCH(BI_GSe_Low!$A15,'Data Billing Quantities'!$4:$4,0),FALSE)*F15+VLOOKUP($B$3,'Data Billing Quantities'!$A:$O,MATCH(BI_GSe_Low!$A16,'Data Billing Quantities'!$4:$4,0),FALSE)*F16+VLOOKUP($B$3,'Data Billing Quantities'!$A:$O,MATCH(BI_GSe_Low!$A17,'Data Billing Quantities'!$4:$4,0),FALSE)*F17","v":0.10342000000000001},{"$f":"E30*F30","v":0.59569920000000065},0,0,1.4246270438001103E-2,1.4132911305067133E-2]
["Sub-Total:  Distribution (based on two-tier RPP prices)",null,null,{"$f":"SUM(D27,D28:D29)","v":40.214479999999995},null,null,{"$f":"SUM(G27,G28:G29)","v":37.168479999999995},-3.0459999999999994,-7.5743861415092276E-2,0.88889194051198084,0.88181893006430256]
["Sub-Total:  Distribution (based on TOU prices)",null,null,{"$f":"SUM(D27,D28,D30)","v":40.24569919999999},null,null,{"$f":"SUM(G27,G28,G30)","v":37.199699199999991},-3.0459999999999994,-7.568510575162278E-2,0.88963855418219895,0.88255960284784007]
["Retail Transmission Rate – Network Service Rate",{"$f":"B8","v":65.760000000000005},{"$f":"VLOOKUP($B$3,'Data Current Rates'!$A:$AP,MATCH(BI_GSe_Low!$A33,CurrentHeader,0),FALSE)","v":7.7000000000000002E-3},{"$f":"B33*C33","v":0.50635200000000002},65.760000000000005,{"$f":"VLOOKUP($B$3,'Data Proposed Rates'!$A:$AZ,MATCH(BI_GSe_Low!$A33,ProposedHeader,0),FALSE)","v":7.4999999999999997E-3},{"$f":"E33*F33","v":0.49320000000000003},{"$f":"G33-D33","v":-1.3151999999999997E-2},-2.5974025974025965E-2,1.1794980721851122E-2,1.1701126769448579E-2]
["Retail Transmission Rate – Line and Transformation Connection Service Rate",{"$f":"B8","v":65.760000000000005},{"$f":"VLOOKUP($B$3,'Data Current Rates'!$A:$AP,MATCH(BI_GSe_Low!$A34,CurrentHeader,0),FALSE)","v":5.5999999999999999E-3},{"$f":"B34*C34","v":0.36825600000000003},65.760000000000005,{"$f":"VLOOKUP($B$3,'Data Proposed Rates'!$A:$AZ,MATCH(BI_GSe_Low!$A34,ProposedHeader,0),FALSE)","v":5.8999999999999999E-3},{"$f":"E34*F34","v":0.387984},{"$f":"G34-D34","v":1.9727999999999968E-2},5.3571428571428478E-2,9.2787181678562168E-3,9.2048863919662154E-3]
["Sub-Total:  Retail Transmission ",null,null,{"$f":"SUM(D33:D34)","v":0.87460800000000005},null,null,{"$f":"SUM(G33:G34)","v":0.88118399999999997},{"$f":"G35-D35","v":6.5759999999999152E-3},7.5187969924811054E-3,2.1073698889707337E-2,2.0906013161414792E-2]
["Sub-Total:  Delivery (based on two-tier RPP prices)",null,null,{"$f":"D31+D35","v":41.089087999999997},null,null,{"$f":"G31+G35","v":38.049663999999993},{"$f":"G36-D36","v":-3.0394240000000039},-7.3971561500708022E-2,0.90996563940168806,0.90272494322571728]
["Sub-Total:  Delivery (based on TOU prices)",null,null,{"$f":"D32+D35","v":41.120307199999992},null,null,{"$f":"G32+G35","v":38.080883199999988},{"$f":"G37-D37","v":-3.0394240000000039},-7.3915401098949091E-2,0.91071225307190617,0.9034656160092549]
["Wholesale Market Service Rate (WMS) - not including CBR",{"$f":"B8","v":65.760000000000005},{"$f":"VLOOKUP($A38,'Data Pass Through'!$A:$D,2,FALSE)","v":3.0000000000000001E-3},{"$f":"B38*C38","v":0.19728000000000001},{"$f":"$B$8","v":65.760000000000005},{"$f":"VLOOKUP($A38,'Data Pass Through'!$A:$D,3,FALSE)","v":3.0000000000000001E-3},{"$f":"E38*F38","v":0.19728000000000001},0,0,4.7179922887404489E-3,4.6804507077794315E-3]
["Capacity Based Recovery (CBR) - Applicable for Class B Customers",{"$f":"B8","v":65.760000000000005},{"$f":"VLOOKUP($A39,'Data Pass Through'!$A:$D,2,FALSE)","v":4.0000000000000002E-4},{"$f":"B39*C39","v":2.6304000000000004E-2},{"$f":"$B$8","v":65.760000000000005},{"$f":"VLOOKUP($A39,'Data Pass Through'!$A:$D,3,FALSE)","v":4.0000000000000002E-4},{"$f":"E39*F39","v":2.6304000000000004E-2},0,0,6.290656384987266E-4,6.2406009437059094E-4]
["Rural Rate Protection Charge",{"$f":"B8","v":65.760000000000005},{"$f":"VLOOKUP($A40,'Data Pass Through'!$A:$D,2,FALSE)","v":5.0000000000000001E-4},3.2880000000000006E-2,65.760000000000005,{"$f":"VLOOKUP($A40,'Data Pass Through'!$A:$D,3,FALSE)","v":5.0000000000000001E-4},3.2880000000000006E-2,0,0,7.863320481234083E-4,7.8007511796323865E-4]
["Standard Supply Service – Administration Charge (if applicable)",1,{"$f":"VLOOKUP($A41,'Data Pass Through'!$A:$D,2,FALSE)","v":0.25},{"$f":"B41*C41","v":0.25},1,{"$f":"VLOOKUP($A41,'Data Pass Through'!$A:$D,3,FALSE)","v":0.25},0.25,0,0,5.9788020690648433E-3,5.9312280867034562E-3]
["Sub-Total:  Regulatory",null,null,{"$f":"SUM(D38:D41)","v":0.50646400000000003},null,null,{"$f":"SUM(G38:G41)","v":0.50646400000000003},0,0,1.2112192044427428E-2,1.2015814006816717E-2]
["Total  Electricty Charge on Two-Tier RPP ",null,null,{"$f":"SUM(D14,D27,D28,D29,D35,D42)","v":47.475552},null,null,{"$f":"SUM(G14,G27,G28,G29,G35,G42)","v":44.436127999999997},-3.0394240000000039,-6.4020824865817338E-2,1.0626992561105206]
["     HST",null,0.13,{"$f":"D43*C44","v":6.1718217600000003},null,{"$f":"C44","v":0.13},{"$f":"G43*F44","v":5.7766966399999999},-0.39512512000000033,-6.4020824865817297E-2,0.13815090329436772]
["Total Electricity Charge on Two-Tier RPP (including HST)",null,null,{"$f":"SUM(D43:D44)","v":53.647373760000001},null,null,{"$f":"SUM(G43:G44)","v":50.212824639999994},-3.4345491200000069,-6.402082486581738E-2,1.2008501594048884]
["Ontario Electricity Rebate (OER)",null,{"$f":"IF(($B$4*12)<250000,VLOOKUP(A46,'Data Pass Through'!$A$4:$C$20,2,0),0)","v":-0.189},{"$f":"D43*C46","v":-8.9728793279999994},null,{"$f":"C46","v":-0.189},{"$f":"G43*F46","v":-8.398428191999999},0.57445113600000042,6.4020824865817297E-2,-0.2008501594048884]
["Total Amount on Two-Tier RPP",null,null,{"$f":"SUM(D45:D46)","v":44.674494432000003},null,null,{"$f":"SUM(G45:G46)","v":41.814396447999997},-2.8600979840000065,-6.4020824865817394E-2,1]
["Total Electricty Charge on TOU (before HST)",null,null,{"$f":"SUM(D18,D27,D28,D30,D35,D42)","v":47.831971199999991},null,null,{"$f":"SUM(G18,G27,G28,G30,G35,G42)","v":44.792547199999987},-3.0394240000000039,-6.3543774670946546E-2,null,{"$f":"G48/$G$52","v":1.0626992561105206}]
["     HST",null,0.13,{"$f":"D48*C49","v":6.2181562559999994},null,{"$f":"C49","v":0.13},{"$f":"G48*F49","v":5.8230311359999982},-0.39512512000000122,-6.3543774670946657E-2,null,{"$f":"G49/$G$52","v":0.13815090329436769}]
["Total Electricity Charge on TOU (including HST)",null,null,{"$f":"SUM(D48:D49)","v":54.050127455999991},null,null,{"$f":"SUM(G48:G49)","v":50.615578335999984},-3.4345491200000069,-6.3543774670946587E-2,null,{"$f":"G50/$G$52","v":1.2008501594048884}]
["Ontario Electricity Rebate (OER)",null,{"$f":"IF(($B$4*12)<250000,VLOOKUP(A51,'Data Pass Through'!$A$4:$C$20,2,0),0)","v":-0.189},{"$f":"D48*C51","v":-9.0402425567999991},null,{"$f":"C51","v":-0.189},{"$f":"G48*F51","v":-8.4657914207999969},0.57445113600000219,6.3543774670946698E-2,null,{"$f":"G51/$G$52","v":-0.2008501594048884}]
["Total Amount on TOU",null,null,{"$f":"SUM(D50:D51)","v":45.009884899199989},null,null,{"$f":"SUM(G50:G51)","v":42.149786915199989},-2.8600979839999994,-6.3543774670946448E-2,null,{"$f":"G52/$G$52","v":1}]
["* Distribution rate protection applies to R1 and R2 customers"]

{"sheet":"BI_GSe_Typical","index":44,"n_rows":53,"n_cols":11,"rows_kept":53,"cut":false,"hidden":false,"merged":[[0,0,0,10]]}
["2023 Bill Impacts (Typical Consumption Level) - GSe"]
[]
["Rate Class",{"$f":"RIGHT(A1,LEN(A1)-FIND(\"- \",A1,1)-1)","v":"GSe"}]
["Monthly Consumption (kWh)",{"$f":"IF(COUNTIF(A1,\"*Low*\")>0,VLOOKUP(B3,'Data Billing Quantities'!$A:$Z,MATCH(\"Low kWh\",'Data Billing Quantities'!4:4,0),FALSE),IF(COUNTIF(A1,\"*Typical*\")>0,VLOOKUP(B3,'Data Billing Quantities'!$A:$Z,MATCH(\"Typical kWh\",'Data Billing Quantities'!4:4,0),FALSE),IF(COUNTIF(A1,\"*Average*\")>0,VLOOKUP(B3,'Data Billing Quantities'!$A:$Z,MATCH(\"Average kWh\",'Data Billing Quantities'!4:4,0),FALSE),IF(COUNTIF(A1,\"*High*\")>0,VLOOKUP(B3,'Data Billing Quantities'!$A:$Z,MATCH(\"High kWh\",'Data Billing Quantities'!4:4,0),FALSE),\"error\"))))","v":2000}]
["Peak (kW)",{"$f":"IF(COUNTIF(A1,\"*Low*\")>0,VLOOKUP(B3,'Data Billing Quantities'!$A:$Z,MATCH(\"Low kW\",'Data Billing Quantities'!4:4,0),FALSE),IF(COUNTIF(A1,\"*Typical*\")>0,VLOOKUP(B3,'Data Billing Quantities'!$A:$Z,MATCH(\"Typical kW\",'Data Billing Quantities'!4:4,0),FALSE),IF(COUNTIF(A1,\"*Average*\")>0,VLOOKUP(B3,'Data Billing Quantities'!$A:$Z,MATCH(\"Average kW\",'Data Billing Quantities'!4:4,0),FALSE),IF(COUNTIF(A1,\"*High*\")>0,VLOOKUP(B3,'Data Billing Quantities'!$A:$Z,MATCH(\"High kW\",'Data Billing Quantities'!4:4,0),FALSE),\"error\"))))","v":0}]
["Loss factor",{"$f":"VLOOKUP(B3,'Data Billing Quantities'!A:D,MATCH(A6,'Data Billing Quantities'!4:4,0),FALSE)","v":1.0960000000000001}]
["Commodity Threshold",{"$f":"VLOOKUP(B3,'Data Billing Quantities'!A:D,MATCH(A7,'Data Billing Quantities'!4:4,0),FALSE)","v":750}]
["Monthly Consumption (kWh) - Uplifted",{"$f":"B4*B6","v":2192}]
["Charge determinant",{"$f":"VLOOKUP(B3,'Data Billing Quantities'!A:D,MATCH(A9,'Data Billing Quantities'!4:4,0),FALSE)","v":"kWh"}]
[]
[null,"Volume","Current Rate ($)","Current Charge ($)","Volume","Proposed Rate ($)","Proposed Charge ($)","Change ($)","Change (%)","% of Total Bill on RPP","% of Total Bill"]
["Energy First Tier",{"$f":"IF(B4>B7,B7,B4)","v":750},{"$f":"VLOOKUP($A12,'Data Pass Through'!$A:$D,2,FALSE)","v":9.8000000000000004E-2},{"$f":"B12*C12","v":73.5},{"$f":"B12","v":750},{"$f":"VLOOKUP($A12,'Data Pass Through'!$A:$D,3,FALSE)","v":9.8000000000000004E-2},{"$f":"E12*F12","v":73.5},{"$f":"G12-D12","v":0},{"$f":"IF(ISERROR(H12/ABS(D12)),\"N/A\",(H12/ABS(D12)))","v":0},{"$f":"G12/$G$47","v":0.17634812870748073}]
["Energy Second Tier",{"$f":"IF(B4>B7,(B4)-B7,0)","v":1250},{"$f":"VLOOKUP($A13,'Data Pass Through'!$A:$D,2,FALSE)","v":0.115},{"$f":"B13*C13","v":143.75},{"$f":"B13","v":1250},{"$f":"VLOOKUP($A13,'Data Pass Through'!$A:$D,3,FALSE)","v":0.115},{"$f":"E13*F13","v":143.75},0,0,{"$f":"G13/$G$47","v":0.34489855104354222}]
["Sub-Total:  Energy (RPP Tiered)",null,null,{"$f":"SUM(D12:D13)","v":217.25},null,null,{"$f":"SUM(G12:G13)","v":217.25},0,0,{"$f":"G14/$G$47","v":0.5212466797510229}]
["TOU-Off Peak",{"$f":"B$4*VLOOKUP($B$3,'Data Billing Quantities'!$A:$O,MATCH(BI_GSe_Typical!$A15,'Data Billing Quantities'!$4:$4,0),FALSE)","v":1280},{"$f":"VLOOKUP($A15,'Data Pass Through'!$A:$D,2,FALSE)","v":8.2000000000000003E-2},{"$f":"B15*C15","v":104.96000000000001},1280,{"$f":"VLOOKUP($A15,'Data Pass Through'!$A:$D,3,FALSE)","v":8.2000000000000003E-2},{"$f":"E15*F15","v":104.96000000000001},0,0,null,{"$f":"G15/$G$52","v":0.25922370995163679}]
["TOU-Mid Peak",{"$f":"B$4*VLOOKUP($B$3,'Data Billing Quantities'!$A:$O,MATCH(BI_GSe_Typical!$A16,'Data Billing Quantities'!$4:$4,0),FALSE)","v":360},{"$f":"VLOOKUP($A16,'Data Pass Through'!$A:$D,2,FALSE)","v":0.113},{"$f":"B16*C16","v":40.68},360,{"$f":"VLOOKUP($A16,'Data Pass Through'!$A:$D,3,FALSE)","v":0.113},{"$f":"E16*F16","v":40.68},0,0,null,0.10046894551098116]
["TOU-On Peak",{"$f":"B$4*VLOOKUP($B$3,'Data Billing Quantities'!$A:$O,MATCH(BI_GSe_Typical!$A17,'Data Billing Quantities'!$4:$4,0),FALSE)","v":360},{"$f":"VLOOKUP($A17,'Data Pass Through'!$A:$D,2,FALSE)","v":0.17},{"$f":"B17*C17","v":61.2},360,{"$f":"VLOOKUP($A17,'Data Pass Through'!$A:$D,3,FALSE)","v":0.17},{"$f":"E17*F17","v":61.2},0,0,null,0.15114797112271502]
["Sub-Total:  Energy (RPP TOU)",null,null,{"$f":"SUM(D15:D17)","v":206.84000000000003},null,null,{"$f":"SUM(G15:G17)","v":206.84000000000003},0,0,{"$f":"G18/$G$47","v":0.49627002641980023},0.51084062658533302]
["Service Charge",1,{"$f":"VLOOKUP($B$3,'Data Current Rates'!$A:$AP,MATCH(BI_GSe_Typical!$A19,CurrentHeader,0),FALSE)","v":33.799999999999997},{"$f":"B19*C19","v":33.799999999999997},1,{"$f":"VLOOKUP($B$3,'Data Proposed Rates'!$A:$AZ,MATCH(BI_GSe_Typical!$A19,ProposedHeader,0),FALSE)","v":30.95},{"$f":"E19*F19","v":30.95},-2.8499999999999979,-8.431952662721888E-2,7.4258157598592223E-2,7.6438393892941672E-2]
["Fixed Base Rate Adjustment to Recover Past Tax Amounts ",1,{"$f":"VLOOKUP($B$3,'Data Current Rates'!$A:$AP,MATCH(BI_GSe_Typical!$A20,CurrentHeader,0),FALSE)","v":1.1100000000000001},1.1100000000000001,1,{"$f":"VLOOKUP($B$3,'Data Proposed Rates'!$A:$AZ,MATCH(BI_GSe_Typical!$A20,ProposedHeader,0),FALSE)","v":1.1000000000000001},1.1000000000000001,-1.0000000000000009E-2,-9.0090090090090159E-3,2.6392236949418888E-3,2.7167118992644859E-3]
["Group 2 Fixed DVA Rider ",null,null,null,1,{"$f":"VLOOKUP($B$3,'Data Proposed Rates'!$A:$AZ,MATCH(BI_GSe_Typical!$A21,ProposedHeader,0),FALSE)","v":0},0,0,"N/A",0,0]
["Distribution Volumetric Charge",{"$f":"IF($B$9=\"kWh\",$B$4,$B$5)","v":2000},{"$f":"VLOOKUP($B$3,'Data Current Rates'!$A:$AP,MATCH(BI_GSe_Typical!$A22,CurrentHeader,0),FALSE)","v":6.7299999999999999E-2},134.6,2000,{"$f":"VLOOKUP($B$3,'Data Proposed Rates'!$A:$AZ,MATCH(BI_GSe_Typical!$A22,ProposedHeader,0),FALSE)","v":6.4699999999999994E-2},129.39999999999998,-5.2000000000000171,-3.8632986627043217E-2,0.3104686782958912,0.31958410887711308]
["Volumetric Base Rate Adjustment to Recover Past Tax Amounts ",{"$f":"IF($B$9=\"kWh\",$B$4,$B$5)","v":2000},{"$f":"VLOOKUP($B$3,'Data Current Rates'!$A:$AP,MATCH(BI_GSe_Typical!$A23,CurrentHeader,0),FALSE)","v":2.2000000000000001E-3},4.4000000000000004,2000,{"$f":"VLOOKUP($B$3,'Data Proposed Rates'!$A:$AZ,MATCH(BI_GSe_Typical!$A23,ProposedHeader,0),FALSE)","v":2.3E-3},4.5999999999999996,0.19999999999999929,4.5454545454545289E-2,1.103675363339335E-2,1.136079521510603E-2]
["Group 1 Volumetric DVA Rider (General)",null,null,null,{"$f":"B4","v":2000},{"$f":"VLOOKUP($B$3,'Data Proposed Rates'!$A:$AZ,MATCH(BI_GSe_Typical!$A24,ProposedHeader,0),FALSE)","v":-4.0000000000000002E-4},-0.8,-0.8,"N/A",-1.9194354145031917E-3,-1.9757904721923532E-3]
["Group 2 Volumetric DVA Rider ",null,null,null,{"$f":"B4","v":2000},{"$f":"VLOOKUP($B$3,'Data Proposed Rates'!$A:$AZ,MATCH(BI_GSe_Typical!$A25,ProposedHeader,0),FALSE)","v":-2.0000000000000001E-4},-0.4,-0.4,"N/A",-9.5971770725159584E-4,-9.878952360961766E-4]
["Fair Hydro Plan - Distribution Rate Protection Savings*",null,null,{"$f":"IF(AND(B3<>\"R1\",B3<>\"R2\"),0,IF(VLOOKUP($A26,'Data Pass Through'!$A:$D,2,FALSE)=0,0,IF(SUM(D19:D20,D22:D23)<VLOOKUP($A26,'Data Pass Through'!$A:$D,2,FALSE),0,VLOOKUP($A26,'Data Pass Through'!$A:$D,2,FALSE)-SUM(D19:D20,D22:D23))))","v":0},null,null,{"$f":"IF(AND(B3<>\"R1\",B3<>\"R2\"),0,IF(VLOOKUP($A26,'Data Pass Through'!$A:$D,2,FALSE)=0,0,IF(SUM(G19:G20,G22:G23)<VLOOKUP($A26,'Data Pass Through'!$A:$D,2,FALSE),0,VLOOKUP($A26,'Data Pass Through'!$A:$D,2,FALSE)-SUM(G19:G20,G22:G23))))","v":0},0,"N/A",0,0]
["Sub-Total:  Distribution (excluding pass through)",null,null,{"$f":"SUM(INDIRECT(\"D19:D\"&ROW()-1))","v":173.91},null,null,{"$f":"SUM(INDIRECT(\"g19:g\"&ROW()-1))","v":164.84999999999997},{"$f":"G27-D27","v":-9.0600000000000307},-5.2095911678454551E-2,0.39552366010106382,0.40713632417613671]
["Smart Metering Entity Charge",1,{"$f":"VLOOKUP($A28,'Data Pass Through'!$A:$D,2,FALSE)","v":0.56999999999999995},{"$f":"B28*C28","v":0.56999999999999995},1,{"$f":"VLOOKUP($A28,'Data Pass Through'!$A:$D,3,FALSE)","v":0.56999999999999995},{"$f":"E28*F28","v":0.56999999999999995},0,0,1.3675977328335238E-3,1.4077507114370516E-3]
["Line Losses on Cost of Power (based on two-tier RPP prices)",{"$f":"B8-B4","v":192},{"$f":"IF(B4>B7,C13,C12)","v":0.115},{"$f":"B29*C29","v":22.080000000000002},192,{"$f":"IF(B4>B7,F13,F12)","v":0.115},{"$f":"E29*F29","v":22.080000000000002},0,0,5.2976417440288089E-2,5.4531817032508957E-2]
["Line Losses on Cost of Power (based on TOU prices)",{"$f":"B8-B4","v":192},{"$f":"VLOOKUP($B$3,'Data Billing Quantities'!$A:$O,MATCH(BI_GSe_Typical!$A15,'Data Billing Quantities'!$4:$4,0),FALSE)*C15+VLOOKUP($B$3,'Data Billing Quantities'!$A:$O,MATCH(BI_GSe_Typical!$A16,'Data Billing Quantities'!$4:$4,0),FALSE)*C16+VLOOKUP($B$3,'Data Billing Quantities'!$A:$O,MATCH(BI_GSe_Typical!$A17,'Data Billing Quantities'!$4:$4,0),FALSE)*C17","v":0.10342000000000001},{"$f":"B30*C30","v":19.856640000000002},192,{"$f":"VLOOKUP($B$3,'Data Billing Quantities'!$A:$O,MATCH(BI_GSe_Typical!$A15,'Data Billing Quantities'!$4:$4,0),FALSE)*F15+VLOOKUP($B$3,'Data Billing Quantities'!$A:$O,MATCH(BI_GSe_Typical!$A16,'Data Billing Quantities'!$4:$4,0),FALSE)*F16+VLOOKUP($B$3,'Data Billing Quantities'!$A:$O,MATCH(BI_GSe_Typical!$A17,'Data Billing Quantities'!$4:$4,0),FALSE)*F17","v":0.10342000000000001},{"$f":"E30*F30","v":19.856640000000002},0,0,4.7641922536300819E-2,4.9040700152191967E-2]
["Sub-Total:  Distribution (based on two-tier RPP prices)",null,null,{"$f":"SUM(D27,D28:D29)","v":196.56},null,null,{"$f":"SUM(G27,G28:G29)","v":187.49999999999997},-9.0600000000000307,-4.6092796092796248E-2,0.44986767527418542,0.46307589192008275]
["Sub-Total:  Distribution (based on TOU prices)",null,null,{"$f":"SUM(D27,D28,D30)","v":194.33663999999999},null,null,{"$f":"SUM(G27,G28,G30)","v":185.27663999999996},-9.0600000000000307,-4.6620132981613924E-2,0.44453318037019812,0.45758477503976569]
["Retail Transmission Rate – Network Service Rate",{"$f":"B8","v":2192},{"$f":"VLOOKUP($B$3,'Data Current Rates'!$A:$AP,MATCH(BI_GSe_Typical!$A33,CurrentHeader,0),FALSE)","v":7.7000000000000002E-3},{"$f":"B33*C33","v":16.878399999999999},2192,{"$f":"VLOOKUP($B$3,'Data Proposed Rates'!$A:$AZ,MATCH(BI_GSe_Typical!$A33,ProposedHeader,0),FALSE)","v":7.4999999999999997E-3},{"$f":"E33*F33","v":16.439999999999998},{"$f":"G33-D33","v":-0.43840000000000146},-2.5974025974026062E-2,3.9444397768040582E-2,4.0602494203552851E-2]
["Retail Transmission Rate – Line and Transformation Connection Service Rate",{"$f":"B8","v":2192},{"$f":"VLOOKUP($B$3,'Data Current Rates'!$A:$AP,MATCH(BI_GSe_Typical!$A34,CurrentHeader,0),FALSE)","v":5.5999999999999999E-3},{"$f":"B34*C34","v":12.2752},2192,{"$f":"VLOOKUP($B$3,'Data Proposed Rates'!$A:$AZ,MATCH(BI_GSe_Typical!$A34,ProposedHeader,0),FALSE)","v":5.8999999999999999E-3},{"$f":"E34*F34","v":12.9328},{"$f":"G34-D34","v":0.65760000000000041},5.3571428571428603E-2,3.1029592910858595E-2,3.1940628773461585E-2]
["Sub-Total:  Retail Transmission ",null,null,{"$f":"SUM(D33:D34)","v":29.153599999999997},null,null,{"$f":"SUM(G33:G34)","v":29.372799999999998},{"$f":"G35-D35","v":0.21920000000000073},7.5187969924812286E-3,7.0473990678899173E-2,7.2543122977014443E-2]
["Sub-Total:  Delivery (based on two-tier RPP prices)",null,null,{"$f":"D31+D35","v":225.71359999999999},null,null,{"$f":"G31+G35","v":216.87279999999998},{"$f":"G36-D36","v":-8.8408000000000015},-3.9168220257884336E-2,0.52034166595308462,0.53561901489709718]
["Sub-Total:  Delivery (based on TOU prices)",null,null,{"$f":"D32+D35","v":223.49023999999997},null,null,{"$f":"G32+G35","v":214.64943999999997},{"$f":"G37-D37","v":-8.8408000000000015},-3.9557879574517452E-2,0.51500717104909732,0.53012789801678017]
["Wholesale Market Service Rate (WMS) - not including CBR",{"$f":"B8","v":2192},{"$f":"VLOOKUP($A38,'Data Pass Through'!$A:$D,2,FALSE)","v":3.0000000000000001E-3},{"$f":"B38*C38","v":6.5760000000000005},{"$f":"$B$8","v":2192},{"$f":"VLOOKUP($A38,'Data Pass Through'!$A:$D,3,FALSE)","v":3.0000000000000001E-3},{"$f":"E38*F38","v":6.5760000000000005},0,0,1.5777759107216235E-2,1.6240997681421145E-2]
["Capacity Based Recovery (CBR) - Applicable for Class B Customers",{"$f":"B8","v":2192},{"$f":"VLOOKUP($A39,'Data Pass Through'!$A:$D,2,FALSE)","v":4.0000000000000002E-4},{"$f":"B39*C39","v":0.87680000000000002},{"$f":"$B$8","v":2192},{"$f":"VLOOKUP($A39,'Data Pass Through'!$A:$D,3,FALSE)","v":4.0000000000000002E-4},{"$f":"E39*F39","v":0.87680000000000002},0,0,2.1037012142954979E-3,2.1654663575228191E-3]
["Rural Rate Protection Charge",{"$f":"B8","v":2192},{"$f":"VLOOKUP($A40,'Data Pass Through'!$A:$D,2,FALSE)","v":5.0000000000000001E-4},1.0960000000000001,2192,{"$f":"VLOOKUP($A40,'Data Pass Through'!$A:$D,3,FALSE)","v":5.0000000000000001E-4},1.0960000000000001,0,0,2.6296265178693727E-3,2.7068329469035241E-3]
["Standard Supply Service – Administration Charge (if applicable)",1,{"$f":"VLOOKUP($A41,'Data Pass Through'!$A:$D,2,FALSE)","v":0.25},{"$f":"B41*C41","v":0.25},1,{"$f":"VLOOKUP($A41,'Data Pass Through'!$A:$D,3,FALSE)","v":0.25},0.25,0,0,5.9982356703224731E-4,6.1743452256011035E-4]
["Sub-Total:  Regulatory",null,null,{"$f":"SUM(D38:D41)","v":8.7988},null,null,{"$f":"SUM(G38:G41)","v":8.7988},0,0,2.1110910406413351E-2,2.1730731508407597E-2]
["Total  Electricty Charge on Two-Tier RPP ",null,null,{"$f":"SUM(D14,D27,D28,D29,D35,D42)","v":451.76239999999996},null,null,{"$f":"SUM(G14,G27,G28,G29,G35,G42)","v":442.9215999999999},-8.8408000000000584,-1.956957905305988E-2,1.0626992561105209]
["     HST",null,0.13,{"$f":"D43*C44","v":58.729111999999994},null,{"$f":"C44","v":0.13},{"$f":"G43*F44","v":57.579807999999986},-1.1493040000000079,-1.9569579053059886E-2,0.13815090329436769]
["Total Electricity Charge on Two-Tier RPP (including HST)",null,null,{"$f":"SUM(D43:D44)","v":510.49151199999994},null,null,{"$f":"SUM(G43:G44)","v":500.50140799999986},-9.9901040000000876,-1.9569579053059925E-2,1.2008501594048884]
["Ontario Electricity Rebate (OER)",null,{"$f":"IF(($B$4*12)<250000,VLOOKUP(A46,'Data Pass Through'!$A$4:$C$20,2,0),0)","v":-0.189},{"$f":"D43*C46","v":-85.383093599999995},null,{"$f":"C46","v":-0.189},{"$f":"G43*F46","v":-83.712182399999975},1.6709112000000204,1.9569579053059991E-2,-0.2008501594048884]
["Total Amount on Two-Tier RPP",null,null,{"$f":"SUM(D45:D46)","v":425.10841839999995},null,null,{"$f":"SUM(G45:G46)","v":416.7892255999999},-8.319192800000053,-1.9569579053059876E-2,1]
["Total Electricty Charge on TOU (before HST)",null,null,{"$f":"SUM(D18,D27,D28,D30,D35,D42)","v":439.12904000000003},null,null,{"$f":"SUM(G18,G27,G28,G30,G35,G42)","v":430.28823999999997},-8.8408000000000584,-2.0132578797339519E-2,null,{"$f":"G48/$G$52","v":1.0626992561105206}]
["     HST",null,0.13,{"$f":"D48*C49","v":57.086775200000005},null,{"$f":"C49","v":0.13},{"$f":"G48*F49","v":55.937471199999997},-1.1493040000000079,-2.0132578797339522E-2,null,{"$f":"G49/$G$52","v":0.13815090329436769}]
["Total Electricity Charge on TOU (including HST)",null,null,{"$f":"SUM(D48:D49)","v":496.21581520000007},null,null,{"$f":"SUM(G48:G49)","v":486.22571119999998},-9.9901040000000876,-2.0132578797339561E-2,null,{"$f":"G50/$G$52","v":1.2008501594048884}]
["Ontario Electricity Rebate (OER)",null,{"$f":"IF(($B$4*12)<250000,VLOOKUP(A51,'Data Pass Through'!$A$4:$C$20,2,0),0)","v":-0.189},{"$f":"D48*C51","v":-82.995388560000009},null,{"$f":"C51","v":-0.189},{"$f":"G48*F51","v":-81.324477359999989},1.6709112000000204,2.013257879733963E-2,null,{"$f":"G51/$G$52","v":-0.2008501594048884}]
["Total Amount on TOU",null,null,{"$f":"SUM(D50:D51)","v":413.22042664000003},null,null,{"$f":"SUM(G50:G51)","v":404.90123383999997},-8.319192800000053,-2.0132578797339516E-2,null,{"$f":"G52/$G$52","v":1}]
["* Distribution rate protection applies to R1 and R2 customers"]

{"sheet":"BI_GSe_Avg","index":45,"n_rows":53,"n_cols":11,"rows_kept":53,"cut":false,"hidden":false,"merged":[[0,0,0,10]]}
["2023 Bill Impacts (Average Consumption Level) - GSe"]
[]
["Rate Class",{"$f":"RIGHT(A1,LEN(A1)-FIND(\"- \",A1,1)-1)","v":"GSe"}]
["Monthly Consumption (kWh)",{"$f":"IF(COUNTIF(A1,\"*Low*\")>0,VLOOKUP(B3,'Data Billing Quantities'!$A:$Z,MATCH(\"Low kWh\",'Data Billing Quantities'!4:4,0),FALSE),IF(COUNTIF(A1,\"*Typical*\")>0,VLOOKUP(B3,'Data Billing Quantities'!$A:$Z,MATCH(\"Typical kWh\",'Data Billing Quantities'!4:4,0),FALSE),IF(COUNTIF(A1,\"*Average*\")>0,VLOOKUP(B3,'Data Billing Quantities'!$A:$Z,MATCH(\"Average kWh\",'Data Billing Quantities'!4:4,0),FALSE),IF(COUNTIF(A1,\"*High*\")>0,VLOOKUP(B3,'Data Billing Quantities'!$A:$Z,MATCH(\"High kWh\",'Data Billing Quantities'!4:4,0),FALSE),\"error\"))))","v":1887}]
["Peak (kW)",{"$f":"IF(COUNTIF(A1,\"*Low*\")>0,VLOOKUP(B3,'Data Billing Quantities'!$A:$Z,MATCH(\"Low kW\",'Data Billing Quantities'!4:4,0),FALSE),IF(COUNTIF(A1,\"*Typical*\")>0,VLOOKUP(B3,'Data Billing Quantities'!$A:$Z,MATCH(\"Typical kW\",'Data Billing Quantities'!4:4,0),FALSE),IF(COUNTIF(A1,\"*Average*\")>0,VLOOKUP(B3,'Data Billing Quantities'!$A:$Z,MATCH(\"Average kW\",'Data Billing Quantities'!4:4,0),FALSE),IF(COUNTIF(A1,\"*High*\")>0,VLOOKUP(B3,'Data Billing Quantities'!$A:$Z,MATCH(\"High kW\",'Data Billing Quantities'!4:4,0),FALSE),\"error\"))))","v":0}]
["Loss factor",{"$f":"VLOOKUP(B3,'Data Billing Quantities'!A:D,MATCH(A6,'Data Billing Quantities'!4:4,0),FALSE)","v":1.0960000000000001}]
["Commodity Threshold",{"$f":"VLOOKUP(B3,'Data Billing Quantities'!A:D,MATCH(A7,'Data Billing Quantities'!4:4,0),FALSE)","v":750}]
["Monthly Consumption (kWh) - Uplifted",{"$f":"B4*B6","v":2068.152}]
["Charge determinant",{"$f":"VLOOKUP(B3,'Data Billing Quantities'!A:D,MATCH(A9,'Data Billing Quantities'!4:4,0),FALSE)","v":"kWh"}]
[]
[null,"Volume","Current Rate ($)","Current Charge ($)","Volume","Proposed Rate ($)","Proposed Charge ($)","Change ($)","Change (%)","% of Total Bill on RPP","% of Total Bill"]
["Energy First Tier",{"$f":"IF(B4>B7,B7,B4)","v":750},{"$f":"VLOOKUP($A12,'Data Pass Through'!$A:$D,2,FALSE)","v":9.8000000000000004E-2},{"$f":"B12*C12","v":73.5},{"$f":"B12","v":750},{"$f":"VLOOKUP($A12,'Data Pass Through'!$A:$D,3,FALSE)","v":9.8000000000000004E-2},{"$f":"E12*F12","v":73.5},{"$f":"G12-D12","v":0},{"$f":"IF(ISERROR(H12/ABS(D12)),\"N/A\",(H12/ABS(D12)))","v":0},{"$f":"G12/$G$47","v":0.18640139944646364}]
["Energy Second Tier",{"$f":"IF(B4>B7,(B4)-B7,0)","v":1137},{"$f":"VLOOKUP($A13,'Data Pass Through'!$A:$D,2,FALSE)","v":0.115},{"$f":"B13*C13","v":130.755},{"$f":"B13","v":1137},{"$f":"VLOOKUP($A13,'Data Pass Through'!$A:$D,3,FALSE)","v":0.115},{"$f":"E13*F13","v":130.755},0,0,{"$f":"G13/$G$47","v":0.33160428550506604}]
["Sub-Total:  Energy (RPP Tiered)",null,null,{"$f":"SUM(D12:D13)","v":204.255},null,null,{"$f":"SUM(G12:G13)","v":204.255},0,0,{"$f":"G14/$G$47","v":0.51800568495152965}]
["TOU-Off Peak",{"$f":"B$4*VLOOKUP($B$3,'Data Billing Quantities'!$A:$O,MATCH(BI_GSe_Avg!$A15,'Data Billing Quantities'!$4:$4,0),FALSE)","v":1207.68},{"$f":"VLOOKUP($A15,'Data Pass Through'!$A:$D,2,FALSE)","v":8.2000000000000003E-2},{"$f":"B15*C15","v":99.02976000000001},1207.68,{"$f":"VLOOKUP($A15,'Data Pass Through'!$A:$D,3,FALSE)","v":8.2000000000000003E-2},{"$f":"E15*F15","v":99.02976000000001},0,0,null,{"$f":"G15/$G$52","v":0.25804328242507141}]
["TOU-Mid Peak",{"$f":"B$4*VLOOKUP($B$3,'Data Billing Quantities'!$A:$O,MATCH(BI_GSe_Avg!$A16,'Data Billing Quantities'!$4:$4,0),FALSE)","v":339.65999999999997},{"$f":"VLOOKUP($A16,'Data Pass Through'!$A:$D,2,FALSE)","v":0.113},{"$f":"B16*C16","v":38.38158},339.65999999999997,{"$f":"VLOOKUP($A16,'Data Pass Through'!$A:$D,3,FALSE)","v":0.113},{"$f":"E16*F16","v":38.38158},0,0,null,0.10001143987282682]
["TOU-On Peak",{"$f":"B$4*VLOOKUP($B$3,'Data Billing Quantities'!$A:$O,MATCH(BI_GSe_Avg!$A17,'Data Billing Quantities'!$4:$4,0),FALSE)","v":339.65999999999997},{"$f":"VLOOKUP($A17,'Data Pass Through'!$A:$D,2,FALSE)","v":0.17},{"$f":"B17*C17","v":57.742199999999997},339.65999999999997,{"$f":"VLOOKUP($A17,'Data Pass Through'!$A:$D,3,FALSE)","v":0.17},{"$f":"E17*F17","v":57.742199999999997},0,0,null,0.15045968830425274]
["Sub-Total:  Energy (RPP TOU)",null,null,{"$f":"SUM(D15:D17)","v":195.15353999999999},null,null,{"$f":"SUM(G15:G17)","v":195.15353999999999},0,0,{"$f":"G18/$G$47","v":0.49492371378137984},0.50851441060215097]
["Service Charge",1,{"$f":"VLOOKUP($B$3,'Data Current Rates'!$A:$AP,MATCH(BI_GSe_Avg!$A19,CurrentHeader,0),FALSE)","v":33.799999999999997},{"$f":"B19*C19","v":33.799999999999997},1,{"$f":"VLOOKUP($B$3,'Data Proposed Rates'!$A:$AZ,MATCH(BI_GSe_Avg!$A19,ProposedHeader,0),FALSE)","v":30.95},{"$f":"E19*F19","v":30.95},-2.8499999999999979,-8.431952662721888E-2,7.8491473644463253E-2,8.0646864044262648E-2]
["Fixed Base Rate Adjustment to Recover Past Tax Amounts ",1,{"$f":"VLOOKUP($B$3,'Data Current Rates'!$A:$AP,MATCH(BI_GSe_Avg!$A20,CurrentHeader,0),FALSE)","v":1.1100000000000001},1.1100000000000001,1,{"$f":"VLOOKUP($B$3,'Data Proposed Rates'!$A:$AZ,MATCH(BI_GSe_Avg!$A20,ProposedHeader,0),FALSE)","v":1.1000000000000001},1.1000000000000001,-1.0000000000000009E-2,-9.0090090090090159E-3,2.7896808080423133E-3,2.8662859595699167E-3]
["Group 2 Fixed DVA Rider ",null,null,null,1,{"$f":"VLOOKUP($B$3,'Data Proposed Rates'!$A:$AZ,MATCH(BI_GSe_Avg!$A21,ProposedHeader,0),FALSE)","v":0},0,0,"N/A",0,0]
["Distribution Volumetric Charge",{"$f":"IF($B$9=\"kWh\",$B$4,$B$5)","v":1887},{"$f":"VLOOKUP($B$3,'Data Current Rates'!$A:$AP,MATCH(BI_GSe_Avg!$A22,CurrentHeader,0),FALSE)","v":6.7299999999999999E-2},126.99509999999999,1887,{"$f":"VLOOKUP($B$3,'Data Proposed Rates'!$A:$AZ,MATCH(BI_GSe_Avg!$A22,ProposedHeader,0),FALSE)","v":6.4699999999999994E-2},122.08889999999998,-4.9062000000000126,-3.8632986627043189E-2,0.30962641927727008,0.31812881808121407]
["Volumetric Base Rate Adjustment to Recover Past Tax Amounts ",{"$f":"IF($B$9=\"kWh\",$B$4,$B$5)","v":1887},{"$f":"VLOOKUP($B$3,'Data Current Rates'!$A:$AP,MATCH(BI_GSe_Avg!$A23,CurrentHeader,0),FALSE)","v":2.2000000000000001E-3},4.1514000000000006,1887,{"$f":"VLOOKUP($B$3,'Data Proposed Rates'!$A:$AZ,MATCH(BI_GSe_Avg!$A23,ProposedHeader,0),FALSE)","v":2.3E-3},4.3400999999999996,0.18869999999999898,4.5454545454545199E-2,1.1006812431804038E-2,1.1309061539208539E-2]
["Group 1 Volumetric DVA Rider (General)",null,null,null,{"$f":"B4","v":1887},{"$f":"VLOOKUP($B$3,'Data Proposed Rates'!$A:$AZ,MATCH(BI_GSe_Avg!$A24,ProposedHeader,0),FALSE)","v":-4.0000000000000002E-4},-0.75480000000000003,-0.75480000000000003,"N/A",-1.9142282490093982E-3,-1.9667933111667027E-3]
["Group 2 Volumetric DVA Rider ",null,null,null,{"$f":"B4","v":1887},{"$f":"VLOOKUP($B$3,'Data Proposed Rates'!$A:$AZ,MATCH(BI_GSe_Avg!$A25,ProposedHeader,0),FALSE)","v":-2.0000000000000001E-4},-0.37740000000000001,-0.37740000000000001,"N/A",-9.571141245046991E-4,-9.8339665558335137E-4]
["Fair Hydro Plan - Distribution Rate Protection Savings*",null,null,{"$f":"IF(AND(B3<>\"R1\",B3<>\"R2\"),0,IF(VLOOKUP($A26,'Data Pass Through'!$A:$D,2,FALSE)=0,0,IF(SUM(D19:D20,D22:D23)<VLOOKUP($A26,'Data Pass Through'!$A:$D,2,FALSE),0,VLOOKUP($A26,'Data Pass Through'!$A:$D,2,FALSE)-SUM(D19:D20,D22:D23))))","v":0},null,null,{"$f":"IF(AND(B3<>\"R1\",B3<>\"R2\"),0,IF(VLOOKUP($A26,'Data Pass Through'!$A:$D,2,FALSE)=0,0,IF(SUM(G19:G20,G22:G23)<VLOOKUP($A26,'Data Pass Through'!$A:$D,2,FALSE),0,VLOOKUP($A26,'Data Pass Through'!$A:$D,2,FALSE)-SUM(G19:G20,G22:G23))))","v":0},0,"N/A",0,0]
["Sub-Total:  Distribution (excluding pass through)",null,null,{"$f":"SUM(INDIRECT(\"D19:D\"&ROW()-1))","v":166.0565},null,null,{"$f":"SUM(INDIRECT(\"g19:g\"&ROW()-1))","v":157.3468},{"$f":"G27-D27","v":-8.709699999999998},-5.2450220256358517E-2,0.39904304378806565,0.41000083965750517]
["Smart Metering Entity Charge",1,{"$f":"VLOOKUP($A28,'Data Pass Through'!$A:$D,2,FALSE)","v":0.56999999999999995},{"$f":"B28*C28","v":0.56999999999999995},1,{"$f":"VLOOKUP($A28,'Data Pass Through'!$A:$D,3,FALSE)","v":0.56999999999999995},{"$f":"E28*F28","v":0.56999999999999995},0,0,1.4455618732582894E-3,1.4852572699589565E-3]
["Line Losses on Cost of Power (based on two-tier RPP prices)",{"$f":"B8-B4","v":181.15200000000004},{"$f":"IF(B4>B7,C13,C12)","v":0.115},{"$f":"B29*C29","v":20.832480000000007},181.15200000000004,{"$f":"IF(B4>B7,F13,F12)","v":0.115},{"$f":"E29*F29","v":20.832480000000007},0,0,5.2832699672659404E-2,5.4283495388201007E-2]
["Line Losses on Cost of Power (based on TOU prices)",{"$f":"B8-B4","v":181.15200000000004},{"$f":"VLOOKUP($B$3,'Data Billing Quantities'!$A:$O,MATCH(BI_GSe_Avg!$A15,'Data Billing Quantities'!$4:$4,0),FALSE)*C15+VLOOKUP($B$3,'Data Billing Quantities'!$A:$O,MATCH(BI_GSe_Avg!$A16,'Data Billing Quantities'!$4:$4,0),FALSE)*C16+VLOOKUP($B$3,'Data Billing Quantities'!$A:$O,MATCH(BI_GSe_Avg!$A17,'Data Billing Quantities'!$4:$4,0),FALSE)*C17","v":0.10342000000000001},{"$f":"B30*C30","v":18.734739840000007},181.15200000000004,{"$f":"VLOOKUP($B$3,'Data Billing Quantities'!$A:$O,MATCH(BI_GSe_Avg!$A15,'Data Billing Quantities'!$4:$4,0),FALSE)*F15+VLOOKUP($B$3,'Data Billing Quantities'!$A:$O,MATCH(BI_GSe_Avg!$A16,'Data Billing Quantities'!$4:$4,0),FALSE)*F16+VLOOKUP($B$3,'Data Billing Quantities'!$A:$O,MATCH(BI_GSe_Avg!$A17,'Data Billing Quantities'!$4:$4,0),FALSE)*F17","v":0.10342000000000001},{"$f":"E30*F30","v":18.734739840000007},0,0,4.7512676523012484E-2,4.8817383417806511E-2]
["Sub-Total:  Distribution (based on two-tier RPP prices)",null,null,{"$f":"SUM(D27,D28:D29)","v":187.45898},null,null,{"$f":"SUM(G27,G28:G29)","v":178.74928},-8.709699999999998,-4.6461897957622504E-2,0.45332130533398335,0.46576959231566512]
["Sub-Total:  Distribution (based on TOU prices)",null,null,{"$f":"SUM(D27,D28,D30)","v":185.36123984},null,null,{"$f":"SUM(G27,G28,G30)","v":176.65153984},-8.709699999999998,-4.6987709013588987E-2,0.44800128218433638,0.46030348034527063]
["Retail Transmission Rate – Network Service Rate",{"$f":"B8","v":2068.152},{"$f":"VLOOKUP($B$3,'Data Current Rates'!$A:$AP,MATCH(BI_GSe_Avg!$A33,CurrentHeader,0),FALSE)","v":7.7000000000000002E-3},{"$f":"B33*C33","v":15.924770400000002},2068.152,{"$f":"VLOOKUP($B$3,'Data Proposed Rates'!$A:$AZ,MATCH(BI_GSe_Avg!$A33,ProposedHeader,0),FALSE)","v":7.4999999999999997E-3},{"$f":"E33*F33","v":15.511139999999999},{"$f":"G33-D33","v":-0.4136304000000024},-2.5974025974026121E-2,3.9337390517143127E-2,4.0417602544475732E-2]
["Retail Transmission Rate – Line and Transformation Connection Service Rate",{"$f":"B8","v":2068.152},{"$f":"VLOOKUP($B$3,'Data Current Rates'!$A:$AP,MATCH(BI_GSe_Avg!$A34,CurrentHeader,0),FALSE)","v":5.5999999999999999E-3},{"$f":"B34*C34","v":11.5816512},2068.152,{"$f":"VLOOKUP($B$3,'Data Proposed Rates'!$A:$AZ,MATCH(BI_GSe_Avg!$A34,ProposedHeader,0),FALSE)","v":5.8999999999999999E-3},{"$f":"E34*F34","v":12.2020968},{"$f":"G34-D34","v":0.62044560000000004},5.3571428571428575E-2,3.0945413873485927E-2,3.1795180668320912E-2]
["Sub-Total:  Retail Transmission ",null,null,{"$f":"SUM(D33:D34)","v":27.506421600000003},null,null,{"$f":"SUM(G33:G34)","v":27.713236799999997},{"$f":"G35-D35","v":0.20681519999999409},7.5187969924809875E-3,7.0282804390629047E-2,7.2212783212796644E-2]
["Sub-Total:  Delivery (based on two-tier RPP prices)",null,null,{"$f":"D31+D35","v":214.96540160000001},null,null,{"$f":"G31+G35","v":206.4625168},{"$f":"G36-D36","v":-8.5028848000000039},-3.9554666642690112E-2,0.52360410972461235,0.53798237552846173]
["Sub-Total:  Delivery (based on TOU prices)",null,null,{"$f":"D32+D35","v":212.86766144000001},null,null,{"$f":"G32+G35","v":204.36477664},{"$f":"G37-D37","v":-8.5028848000000039},-3.9944464755613765E-2,0.5182840865749655,0.53251626355806725]
["Wholesale Market Service Rate (WMS) - not including CBR",{"$f":"B8","v":2068.152},{"$f":"VLOOKUP($A38,'Data Pass Through'!$A:$D,2,FALSE)","v":3.0000000000000001E-3},{"$f":"B38*C38","v":6.2044560000000004},{"$f":"$B$8","v":2068.152},{"$f":"VLOOKUP($A38,'Data Pass Through'!$A:$D,3,FALSE)","v":3.0000000000000001E-3},{"$f":"E38*F38","v":6.2044560000000004},0,0,1.5734956206857251E-2,1.6167041017790297E-2]
["Capacity Based Recovery (CBR) - Applicable for Class B Customers",{"$f":"B8","v":2068.152},{"$f":"VLOOKUP($A39,'Data Pass Through'!$A:$D,2,FALSE)","v":4.0000000000000002E-4},{"$f":"B39*C39","v":0.82726080000000002},{"$f":"$B$8","v":2068.152},{"$f":"VLOOKUP($A39,'Data Pass Through'!$A:$D,3,FALSE)","v":4.0000000000000002E-4},{"$f":"E39*F39","v":0.82726080000000002},0,0,2.0979941609143003E-3,2.155605469038706E-3]
["Rural Rate Protection Charge",{"$f":"B8","v":2068.152},{"$f":"VLOOKUP($A40,'Data Pass Through'!$A:$D,2,FALSE)","v":5.0000000000000001E-4},1.034076,2068.152,{"$f":"VLOOKUP($A40,'Data Pass Through'!$A:$D,3,FALSE)","v":5.0000000000000001E-4},1.034076,0,0,2.6224927011428752E-3,2.6945068362983823E-3]
["Standard Supply Service – Administration Charge (if applicable)",1,{"$f":"VLOOKUP($A41,'Data Pass Through'!$A:$D,2,FALSE)","v":0.25},{"$f":"B41*C41","v":0.25},1,{"$f":"VLOOKUP($A41,'Data Pass Through'!$A:$D,3,FALSE)","v":0.25},0.25,0,0,6.3401836546416205E-4,6.5142862717498101E-4]
["Sub-Total:  Regulatory",null,null,{"$f":"SUM(D38:D41)","v":8.3157928000000005},null,null,{"$f":"SUM(G38:G41)","v":8.3157928000000005},0,0,2.1089461434378592E-2,2.1668581950302367E-2]
["Total  Electricty Charge on Two-Tier RPP ",null,null,{"$f":"SUM(D14,D27,D28,D29,D35,D42)","v":427.53619440000006},null,null,{"$f":"SUM(G14,G27,G28,G29,G35,G42)","v":419.03330960000005},-8.5028848000000039,-1.9888105174189676E-2,1.0626992561105209]
["     HST",null,0.13,{"$f":"D43*C44","v":55.579705272000012},null,{"$f":"C44","v":0.13},{"$f":"G43*F44","v":54.474330248000008},-1.1053750240000042,-1.9888105174189739E-2,0.13815090329436772]
["Total Electricity Charge on Two-Tier RPP (including HST)",null,null,{"$f":"SUM(D43:D44)","v":483.11589967200007},null,null,{"$f":"SUM(G43:G44)","v":473.50763984800005},-9.6082598240000152,-1.9888105174189697E-2,1.2008501594048884]
["Ontario Electricity Rebate (OER)",null,{"$f":"IF(($B$4*12)<250000,VLOOKUP(A46,'Data Pass Through'!$A$4:$C$20,2,0),0)","v":-0.189},{"$f":"D43*C46","v":-80.804340741600015},null,{"$f":"C46","v":-0.189},{"$f":"G43*F46","v":-79.197295514400011},1.607045227200004,1.9888105174189714E-2,-0.20085015940488843]
["Total Amount on Two-Tier RPP",null,null,{"$f":"SUM(D45:D46)","v":402.31155893040005},null,null,{"$f":"SUM(G45:G46)","v":394.31034433360003},-8.0012145968000254,-1.9888105174189728E-2,1]
["Total Electricty Charge on TOU (before HST)",null,null,{"$f":"SUM(D18,D27,D28,D30,D35,D42)","v":416.33699424000002},null,null,{"$f":"SUM(G18,G27,G28,G30,G35,G42)","v":407.83410944000002},-8.5028848000000039,-2.0423082545238495E-2,null,{"$f":"G48/$G$52","v":1.0626992561105206}]
["     HST",null,0.13,{"$f":"D48*C49","v":54.123809251200008},null,{"$f":"C49","v":0.13},{"$f":"G48*F49","v":53.018434227200004},-1.1053750240000042,-2.0423082545238561E-2,null,{"$f":"G49/$G$52","v":0.13815090329436769}]
["Total Electricity Charge on TOU (including HST)",null,null,{"$f":"SUM(D48:D49)","v":470.46080349120001},null,null,{"$f":"SUM(G48:G49)","v":460.85254366720005},-9.6082598239999584,-2.0423082545238398E-2,null,{"$f":"G50/$G$52","v":1.2008501594048884}]
["Ontario Electricity Rebate (OER)",null,{"$f":"IF(($B$4*12)<250000,VLOOKUP(A51,'Data Pass Through'!$A$4:$C$20,2,0),0)","v":-0.189},{"$f":"D48*C51","v":-78.687691911360005},null,{"$f":"C51","v":-0.189},{"$f":"G48*F51","v":-77.080646684160001},1.607045227200004,2.0423082545238534E-2,null,{"$f":"G51/$G$52","v":-0.2008501594048884}]
["Total Amount on TOU",null,null,{"$f":"SUM(D50:D51)","v":391.77311157984002},null,null,{"$f":"SUM(G50:G51)","v":383.77189698304005},-8.0012145967999686,-2.0423082545238405E-2,null,{"$f":"G52/$G$52","v":1}]
["* Distribution rate protection applies to R1 and R2 customers"]

{"sheet":"BI_GSe_High","index":46,"n_rows":53,"n_cols":11,"rows_kept":53,"cut":false,"hidden":false,"merged":[[0,0,0,10]]}
["2023 Bill Impacts (High Consumption Level) - GSe"]
[]
["Rate Class",{"$f":"RIGHT(A1,LEN(A1)-FIND(\"- \",A1,1)-1)","v":"GSe"}]
["Monthly Consumption (kWh)",{"$f":"IF(COUNTIF(A1,\"*Low*\")>0,VLOOKUP(B3,'Data Billing Quantities'!$A:$Z,MATCH(\"Low kWh\",'Data Billing Quantities'!4:4,0),FALSE),IF(COUNTIF(A1,\"*Typical*\")>0,VLOOKUP(B3,'Data Billing Quantities'!$A:$Z,MATCH(\"Typical kWh\",'Data Billing Quantities'!4:4,0),FALSE),IF(COUNTIF(A1,\"*Average*\")>0,VLOOKUP(B3,'Data Billing Quantities'!$A:$Z,MATCH(\"Average kWh\",'Data Billing Quantities'!4:4,0),FALSE),IF(COUNTIF(A1,\"*High*\")>0,VLOOKUP(B3,'Data Billing Quantities'!$A:$Z,MATCH(\"High kWh\",'Data Billing Quantities'!4:4,0),FALSE),\"error\"))))","v":5570}]
["Peak (kW)",{"$f":"IF(COUNTIF(A1,\"*Low*\")>0,VLOOKUP(B3,'Data Billing Quantities'!$A:$Z,MATCH(\"Low kW\",'Data Billing Quantities'!4:4,0),FALSE),IF(COUNTIF(A1,\"*Typical*\")>0,VLOOKUP(B3,'Data Billing Quantities'!$A:$Z,MATCH(\"Typical kW\",'Data Billing Quantities'!4:4,0),FALSE),IF(COUNTIF(A1,\"*Average*\")>0,VLOOKUP(B3,'Data Billing Quantities'!$A:$Z,MATCH(\"Average kW\",'Data Billing Quantities'!4:4,0),FALSE),IF(COUNTIF(A1,\"*High*\")>0,VLOOKUP(B3,'Data Billing Quantities'!$A:$Z,MATCH(\"High kW\",'Data Billing Quantities'!4:4,0),FALSE),\"error\"))))","v":0}]
["Loss factor",{"$f":"VLOOKUP(B3,'Data Billing Quantities'!A:D,MATCH(A6,'Data Billing Quantities'!4:4,0),FALSE)","v":1.0960000000000001}]
["Commodity Threshold",{"$f":"VLOOKUP(B3,'Data Billing Quantities'!A:D,MATCH(A7,'Data Billing Quantities'!4:4,0),FALSE)","v":750}]
["Monthly Consumption (kWh) - Uplifted",{"$f":"B4*B6","v":6104.72}]
["Charge determinant",{"$f":"VLOOKUP(B3,'Data Billing Quantities'!A:D,MATCH(A9,'Data Billing Quantities'!4:4,0),FALSE)","v":"kWh"}]
[]
[null,"Volume","Current Rate ($)","Current Charge ($)","Volume","Proposed Rate ($)","Proposed Charge ($)","Change ($)","Change (%)","% of Total Bill on RPP","% of Total Bill"]
["Energy First Tier",{"$f":"IF(B4>B7,B7,B4)","v":750},{"$f":"VLOOKUP($A12,'Data Pass Through'!$A:$D,2,FALSE)","v":9.8000000000000004E-2},{"$f":"B12*C12","v":73.5},{"$f":"B12","v":750},{"$f":"VLOOKUP($A12,'Data Pass Through'!$A:$D,3,FALSE)","v":9.8000000000000004E-2},{"$f":"E12*F12","v":73.5},{"$f":"G12-D12","v":0},{"$f":"IF(ISERROR(H12/ABS(D12)),\"N/A\",(H12/ABS(D12)))","v":0},{"$f":"G12/$G$47","v":6.521954805774223E-2}]
["Energy Second Tier",{"$f":"IF(B4>B7,(B4)-B7,0)","v":4820},{"$f":"VLOOKUP($A13,'Data Pass Through'!$A:$D,2,FALSE)","v":0.115},{"$f":"B13*C13","v":554.30000000000007},{"$f":"B13","v":4820},{"$f":"VLOOKUP($A13,'Data Pass Through'!$A:$D,3,FALSE)","v":0.115},{"$f":"E13*F13","v":554.30000000000007},0,0,{"$f":"G13/$G$47","v":0.4918529998422656}]
["Sub-Total:  Energy (RPP Tiered)",null,null,{"$f":"SUM(D12:D13)","v":627.80000000000007},null,null,{"$f":"SUM(G12:G13)","v":627.80000000000007},0,0,{"$f":"G14/$G$47","v":0.55707254790000782}]
["TOU-Off Peak",{"$f":"B$4*VLOOKUP($B$3,'Data Billing Quantities'!$A:$O,MATCH(BI_GSe_High!$A15,'Data Billing Quantities'!$4:$4,0),FALSE)","v":3564.8},{"$f":"VLOOKUP($A15,'Data Pass Through'!$A:$D,2,FALSE)","v":8.2000000000000003E-2},{"$f":"B15*C15","v":292.31360000000001},3564.8,{"$f":"VLOOKUP($A15,'Data Pass Through'!$A:$D,3,FALSE)","v":8.2000000000000003E-2},{"$f":"E15*F15","v":292.31360000000001},0,0,null,{"$f":"G15/$G$52","v":0.27256905466526543}]
["TOU-Mid Peak",{"$f":"B$4*VLOOKUP($B$3,'Data Billing Quantities'!$A:$O,MATCH(BI_GSe_High!$A16,'Data Billing Quantities'!$4:$4,0),FALSE)","v":1002.5999999999999},{"$f":"VLOOKUP($A16,'Data Pass Through'!$A:$D,2,FALSE)","v":0.113},{"$f":"B16*C16","v":113.29379999999999},1002.5999999999999,{"$f":"VLOOKUP($A16,'Data Pass Through'!$A:$D,3,FALSE)","v":0.113},{"$f":"E16*F16","v":113.29379999999999},0,0,null,0.1056412837631764]
["TOU-On Peak",{"$f":"B$4*VLOOKUP($B$3,'Data Billing Quantities'!$A:$O,MATCH(BI_GSe_High!$A17,'Data Billing Quantities'!$4:$4,0),FALSE)","v":1002.5999999999999},{"$f":"VLOOKUP($A17,'Data Pass Through'!$A:$D,2,FALSE)","v":0.17},{"$f":"B17*C17","v":170.44200000000001},1002.5999999999999,{"$f":"VLOOKUP($A17,'Data Pass Through'!$A:$D,3,FALSE)","v":0.17},{"$f":"E17*F17","v":170.44200000000001},0,0,null,0.15892936495345125]
["Sub-Total:  Energy (RPP TOU)",null,null,{"$f":"SUM(D15:D17)","v":576.04939999999999},null,null,{"$f":"SUM(G15:G17)","v":576.04939999999999},0,0,{"$f":"G18/$G$47","v":0.51115212961814382},0.5371397033818931]
["Service Charge",1,{"$f":"VLOOKUP($B$3,'Data Current Rates'!$A:$AP,MATCH(BI_GSe_High!$A19,CurrentHeader,0),FALSE)","v":33.799999999999997},{"$f":"B19*C19","v":33.799999999999997},1,{"$f":"VLOOKUP($B$3,'Data Proposed Rates'!$A:$AZ,MATCH(BI_GSe_High!$A19,ProposedHeader,0),FALSE)","v":30.95},{"$f":"E19*F19","v":30.95},-2.8499999999999979,-8.431952662721888E-2,2.7463197447443834E-2,2.8859458615302074E-2]
["Fixed Base Rate Adjustment to Recover Past Tax Amounts ",1,{"$f":"VLOOKUP($B$3,'Data Current Rates'!$A:$AP,MATCH(BI_GSe_High!$A20,CurrentHeader,0),FALSE)","v":1.1100000000000001},1.1100000000000001,1,{"$f":"VLOOKUP($B$3,'Data Proposed Rates'!$A:$AZ,MATCH(BI_GSe_High!$A20,ProposedHeader,0),FALSE)","v":1.1000000000000001},1.1000000000000001,-1.0000000000000009E-2,-9.0090090090090159E-3,9.7607486889138035E-4,1.025699659994581E-3]
["Group 2 Fixed DVA Rider ",null,null,null,1,{"$f":"VLOOKUP($B$3,'Data Proposed Rates'!$A:$AZ,MATCH(BI_GSe_High!$A21,ProposedHeader,0),FALSE)","v":0},0,0,"N/A",0,0]
["Distribution Volumetric Charge",{"$f":"IF($B$9=\"kWh\",$B$4,$B$5)","v":5570},{"$f":"VLOOKUP($B$3,'Data Current Rates'!$A:$AP,MATCH(BI_GSe_High!$A22,CurrentHeader,0),FALSE)","v":6.7299999999999999E-2},374.86099999999999,5570,{"$f":"VLOOKUP($B$3,'Data Proposed Rates'!$A:$AZ,MATCH(BI_GSe_High!$A22,ProposedHeader,0),FALSE)","v":6.4699999999999994E-2},360.37899999999996,-14.482000000000028,-3.8632986627043168E-2,0.31977898652382425,0.33603692524471551]
["Volumetric Base Rate Adjustment to Recover Past Tax Amounts ",{"$f":"IF($B$9=\"kWh\",$B$4,$B$5)","v":5570},{"$f":"VLOOKUP($B$3,'Data Current Rates'!$A:$AP,MATCH(BI_GSe_High!$A23,CurrentHeader,0),FALSE)","v":2.2000000000000001E-3},12.254000000000001,5570,{"$f":"VLOOKUP($B$3,'Data Proposed Rates'!$A:$AZ,MATCH(BI_GSe_High!$A23,ProposedHeader,0),FALSE)","v":2.3E-3},12.811,0.55699999999999861,4.5454545454545338E-2,1.1367722859424974E-2,1.1945671221991434E-2]
["Group 1 Volumetric DVA Rider (General)",null,null,null,{"$f":"B4","v":5570},{"$f":"VLOOKUP($B$3,'Data Proposed Rates'!$A:$AZ,MATCH(BI_GSe_High!$A24,ProposedHeader,0),FALSE)","v":-4.0000000000000002E-4},-2.2280000000000002,-2.2280000000000002,"N/A",-1.976995279899996E-3,-2.077508038607206E-3]
["Group 2 Volumetric DVA Rider ",null,null,null,{"$f":"B4","v":5570},{"$f":"VLOOKUP($B$3,'Data Proposed Rates'!$A:$AZ,MATCH(BI_GSe_High!$A25,ProposedHeader,0),FALSE)","v":-2.0000000000000001E-4},-1.1140000000000001,-1.1140000000000001,"N/A",-9.8849763994999802E-4,-1.038754019303603E-3]
["Fair Hydro Plan - Distribution Rate Protection Savings*",null,null,{"$f":"IF(AND(B3<>\"R1\",B3<>\"R2\"),0,IF(VLOOKUP($A26,'Data Pass Through'!$A:$D,2,FALSE)=0,0,IF(SUM(D19:D20,D22:D23)<VLOOKUP($A26,'Data Pass Through'!$A:$D,2,FALSE),0,VLOOKUP($A26,'Data Pass Through'!$A:$D,2,FALSE)-SUM(D19:D20,D22:D23))))","v":0},null,null,{"$f":"IF(AND(B3<>\"R1\",B3<>\"R2\"),0,IF(VLOOKUP($A26,'Data Pass Through'!$A:$D,2,FALSE)=0,0,IF(SUM(G19:G20,G22:G23)<VLOOKUP($A26,'Data Pass Through'!$A:$D,2,FALSE),0,VLOOKUP($A26,'Data Pass Through'!$A:$D,2,FALSE)-SUM(G19:G20,G22:G23))))","v":0},0,"N/A",0,0]
["Sub-Total:  Distribution (excluding pass through)",null,null,{"$f":"SUM(INDIRECT(\"D19:D\"&ROW()-1))","v":422.02499999999998},null,null,{"$f":"SUM(INDIRECT(\"g19:g\"&ROW()-1))","v":401.89799999999997},{"$f":"G27-D27","v":-20.12700000000001},-4.7691487471121403E-2,0.35662048877973446,0.3747514926840928]
["Smart Metering Entity Charge",1,{"$f":"VLOOKUP($A28,'Data Pass Through'!$A:$D,2,FALSE)","v":0.56999999999999995},{"$f":"B28*C28","v":0.56999999999999995},1,{"$f":"VLOOKUP($A28,'Data Pass Through'!$A:$D,3,FALSE)","v":0.56999999999999995},{"$f":"E28*F28","v":0.56999999999999995},0,0,5.0578425024371519E-4,5.3149891472446462E-4]
["Line Losses on Cost of Power (based on two-tier RPP prices)",{"$f":"B8-B4","v":534.72000000000025},{"$f":"IF(B4>B7,C13,C12)","v":0.115},{"$f":"B29*C29","v":61.492800000000031},534.72000000000025,{"$f":"IF(B4>B7,F13,F12)","v":0.115},{"$f":"E29*F29","v":61.492800000000031},0,0,5.4565069725239911E-2,5.7339221865558912E-2]
["Line Losses on Cost of Power (based on TOU prices)",{"$f":"B8-B4","v":534.72000000000025},{"$f":"VLOOKUP($B$3,'Data Billing Quantities'!$A:$O,MATCH(BI_GSe_High!$A15,'Data Billing Quantities'!$4:$4,0),FALSE)*C15+VLOOKUP($B$3,'Data Billing Quantities'!$A:$O,MATCH(BI_GSe_High!$A16,'Data Billing Quantities'!$4:$4,0),FALSE)*C16+VLOOKUP($B$3,'Data Billing Quantities'!$A:$O,MATCH(BI_GSe_High!$A17,'Data Billing Quantities'!$4:$4,0),FALSE)*C17","v":0.10342000000000001},{"$f":"B30*C30","v":55.300742400000033},534.72000000000025,{"$f":"VLOOKUP($B$3,'Data Billing Quantities'!$A:$O,MATCH(BI_GSe_High!$A15,'Data Billing Quantities'!$4:$4,0),FALSE)*F15+VLOOKUP($B$3,'Data Billing Quantities'!$A:$O,MATCH(BI_GSe_High!$A16,'Data Billing Quantities'!$4:$4,0),FALSE)*F16+VLOOKUP($B$3,'Data Billing Quantities'!$A:$O,MATCH(BI_GSe_High!$A17,'Data Billing Quantities'!$4:$4,0),FALSE)*F17","v":0.10342000000000001},{"$f":"E30*F30","v":55.300742400000033},0,0,4.9070604443341839E-2,5.1565411524661764E-2]
["Sub-Total:  Distribution (based on two-tier RPP prices)",null,null,{"$f":"SUM(D27,D28:D29)","v":484.08780000000002},null,null,{"$f":"SUM(G27,G28:G29)","v":463.96080000000001},-20.12700000000001,-4.1577168439279007E-2,0.41169134275521807,0.43262221346437618]
["Sub-Total:  Distribution (based on TOU prices)",null,null,{"$f":"SUM(D27,D28,D30)","v":477.89574240000002},null,null,{"$f":"SUM(G27,G28,G30)","v":457.76874240000001},-20.12700000000001,-4.2115880545245905E-2,0.40619687747332001,0.42684840312347905]
["Retail Transmission Rate – Network Service Rate",{"$f":"B8","v":6104.72},{"$f":"VLOOKUP($B$3,'Data Current Rates'!$A:$AP,MATCH(BI_GSe_High!$A33,CurrentHeader,0),FALSE)","v":7.7000000000000002E-3},{"$f":"B33*C33","v":47.006344000000006},6104.72,{"$f":"VLOOKUP($B$3,'Data Proposed Rates'!$A:$AZ,MATCH(BI_GSe_High!$A33,ProposedHeader,0),FALSE)","v":7.4999999999999997E-3},{"$f":"E33*F33","v":45.785400000000003},{"$f":"G33-D33","v":-1.2209440000000029},-2.5974025974026031E-2,4.0627253001944912E-2,4.2692790193378079E-2]
["Retail Transmission Rate – Line and Transformation Connection Service Rate",{"$f":"B8","v":6104.72},{"$f":"VLOOKUP($B$3,'Data Current Rates'!$A:$AP,MATCH(BI_GSe_High!$A34,CurrentHeader,0),FALSE)","v":5.5999999999999999E-3},{"$f":"B34*C34","v":34.186432000000003},6104.72,{"$f":"VLOOKUP($B$3,'Data Proposed Rates'!$A:$AZ,MATCH(BI_GSe_High!$A34,ProposedHeader,0),FALSE)","v":5.8999999999999999E-3},{"$f":"E34*F34","v":36.017848000000001},{"$f":"G34-D34","v":1.8314159999999973},5.3571428571428485E-2,3.1960105694863329E-2,3.3584994952124088E-2]
["Sub-Total:  Retail Transmission ",null,null,{"$f":"SUM(D33:D34)","v":81.192776000000009},null,null,{"$f":"SUM(G33:G34)","v":81.803247999999996},{"$f":"G35-D35","v":0.61047199999998725},7.5187969924810447E-3,7.2587358696808241E-2,7.6277785145502167E-2]
["Sub-Total:  Delivery (based on two-tier RPP prices)",null,null,{"$f":"D31+D35","v":565.280576},null,null,{"$f":"G31+G35","v":545.764048},{"$f":"G36-D36","v":-19.516527999999994},-3.4525382312092734E-2,0.48427870145202634,0.50889999860987833]
["Sub-Total:  Delivery (based on TOU prices)",null,null,{"$f":"D32+D35","v":559.0885184},null,null,{"$f":"G32+G35","v":539.5719904},{"$f":"G37-D37","v":-19.516527999999994},-3.4907760323628911E-2,0.47878423617012827,0.50312618826898114]
["Wholesale Market Service Rate (WMS) - not including CBR",{"$f":"B8","v":6104.72},{"$f":"VLOOKUP($A38,'Data Pass Through'!$A:$D,2,FALSE)","v":3.0000000000000001E-3},{"$f":"B38*C38","v":18.314160000000001},{"$f":"$B$8","v":6104.72},{"$f":"VLOOKUP($A38,'Data Pass Through'!$A:$D,3,FALSE)","v":3.0000000000000001E-3},{"$f":"E38*F38","v":18.314160000000001},0,0,1.6250901200777965E-2,1.7077116077351233E-2]
["Capacity Based Recovery (CBR) - Applicable for Class B Customers",{"$f":"B8","v":6104.72},{"$f":"VLOOKUP($A39,'Data Pass Through'!$A:$D,2,FALSE)","v":4.0000000000000002E-4},{"$f":"B39*C39","v":2.4418880000000001},{"$f":"$B$8","v":6104.72},{"$f":"VLOOKUP($A39,'Data Pass Through'!$A:$D,3,FALSE)","v":4.0000000000000002E-4},{"$f":"E39*F39","v":2.4418880000000001},0,0,2.1667868267703952E-3,2.2769488103134977E-3]
["Rural Rate Protection Charge",{"$f":"B8","v":6104.72},{"$f":"VLOOKUP($A40,'Data Pass Through'!$A:$D,2,FALSE)","v":5.0000000000000001E-4},3.0523600000000002,6104.72,{"$f":"VLOOKUP($A40,'Data Pass Through'!$A:$D,3,FALSE)","v":5.0000000000000001E-4},3.0523600000000002,0,0,2.7084835334629941E-3,2.8461860128918721E-3]
["Standard Supply Service – Administration Charge (if applicable)",1,{"$f":"VLOOKUP($A41,'Data Pass Through'!$A:$D,2,FALSE)","v":0.25},{"$f":"B41*C41","v":0.25},1,{"$f":"VLOOKUP($A41,'Data Pass Through'!$A:$D,3,FALSE)","v":0.25},0.25,0,0,2.218351974753137E-4,2.3311355908967748E-4]
["Sub-Total:  Regulatory",null,null,{"$f":"SUM(D38:D41)","v":24.058408},null,null,{"$f":"SUM(G38:G41)","v":24.058408},0,0,2.1348006758486669E-2,2.243336445964628E-2]
["Total  Electricty Charge on Two-Tier RPP ",null,null,{"$f":"SUM(D14,D27,D28,D29,D35,D42)","v":1217.1389840000002},null,null,{"$f":"SUM(G14,G27,G28,G29,G35,G42)","v":1197.6224560000001},-19.516528000000108,-1.6034757128443194E-2,1.0626992561105209]
["     HST",null,0.13,{"$f":"D43*C44","v":158.22806792000003},null,{"$f":"C44","v":0.13},{"$f":"G43*F44","v":155.69091928},-2.5371486400000265,-1.603475712844327E-2,0.13815090329436769]
["Total Electricity Charge on Two-Tier RPP (including HST)",null,null,{"$f":"SUM(D43:D44)","v":1375.3670519200002},null,null,{"$f":"SUM(G43:G44)","v":1353.3133752799999},-22.053676640000276,-1.6034757128443305E-2,1.2008501594048884]
["Ontario Electricity Rebate (OER)",null,{"$f":"IF(($B$4*12)<250000,VLOOKUP(A46,'Data Pass Through'!$A$4:$C$20,2,0),0)","v":-0.189},{"$f":"D43*C46","v":-230.03926797600002},null,{"$f":"C46","v":-0.189},{"$f":"G43*F46","v":-226.350644184},3.6886237920000156,1.6034757128443173E-2,-0.20085015940488843]
["Total Amount on Two-Tier RPP",null,null,{"$f":"SUM(D45:D46)","v":1145.3277839440002},null,null,{"$f":"SUM(G45:G46)","v":1126.962731096},-18.365052848000232,-1.6034757128443305E-2,1]
["Total Electricty Charge on TOU (before HST)",null,null,{"$f":"SUM(D18,D27,D28,D30,D35,D42)","v":1159.1963264000003},null,null,{"$f":"SUM(G18,G27,G28,G30,G35,G42)","v":1139.6797984000002},-19.516528000000108,-1.6836257634296192E-2,null,{"$f":"G48/$G$52","v":1.0626992561105206}]
["     HST",null,0.13,{"$f":"D48*C49","v":150.69552243200005},null,{"$f":"C49","v":0.13},{"$f":"G48*F49","v":148.15837379200002},-2.5371486400000265,-1.6836257634296276E-2,null,{"$f":"G49/$G$52","v":0.13815090329436769}]
["Total Electricity Charge on TOU (including HST)",null,null,{"$f":"SUM(D48:D49)","v":1309.8918488320003},null,null,{"$f":"SUM(G48:G49)","v":1287.8381721920002},-22.053676640000049,-1.683625763429614E-2,null,{"$f":"G50/$G$52","v":1.2008501594048884}]
["Ontario Electricity Rebate (OER)",null,{"$f":"IF(($B$4*12)<250000,VLOOKUP(A51,'Data Pass Through'!$A$4:$C$20,2,0),0)","v":-0.189},{"$f":"D48*C51","v":-219.08810568960007},null,{"$f":"C51","v":-0.189},{"$f":"G48*F51","v":-215.39948189760005},3.6886237920000156,1.6836257634296171E-2,null,{"$f":"G51/$G$52","v":-0.20085015940488843}]
["Total Amount on TOU",null,null,{"$f":"SUM(D50:D51)","v":1090.8037431424002},null,null,{"$f":"SUM(G50:G51)","v":1072.4386902944002},-18.365052848000005,-1.6836257634296106E-2,null,{"$f":"G52/$G$52","v":1}]
["* Distribution rate protection applies to R1 and R2 customers"]

{"sheet":"BI_UGe_Low","index":47,"n_rows":53,"n_cols":11,"rows_kept":53,"cut":false,"hidden":false,"merged":[[0,0,0,10]]}
["2023 Bill Impacts (Low Consumption Level) - UGe"]
[]
["Rate Class",{"$f":"RIGHT(A1,LEN(A1)-FIND(\"- \",A1,1)-1)","v":"UGe"}]
["Monthly Consumption (kWh)",{"$f":"IF(COUNTIF(A1,\"*Low*\")>0,VLOOKUP(B3,'Data Billing Quantities'!$A:$Z,MATCH(\"Low kWh\",'Data Billing Quantities'!4:4,0),FALSE),IF(COUNTIF(A1,\"*Typical*\")>0,VLOOKUP(B3,'Data Billing Quantities'!$A:$Z,MATCH(\"Typical kWh\",'Data Billing Quantities'!4:4,0),FALSE),IF(COUNTIF(A1,\"*Average*\")>0,VLOOKUP(B3,'Data Billing Quantities'!$A:$Z,MATCH(\"Average kWh\",'Data Billing Quantities'!4:4,0),FALSE),IF(COUNTIF(A1,\"*High*\")>0,VLOOKUP(B3,'Data Billing Quantities'!$A:$Z,MATCH(\"High kWh\",'Data Billing Quantities'!4:4,0),FALSE),\"error\"))))","v":180}]
["Peak (kW)",{"$f":"IF(COUNTIF(A1,\"*Low*\")>0,VLOOKUP(B3,'Data Billing Quantities'!$A:$Z,MATCH(\"Low kW\",'Data Billing Quantities'!4:4,0),FALSE),IF(COUNTIF(A1,\"*Typical*\")>0,VLOOKUP(B3,'Data Billing Quantities'!$A:$Z,MATCH(\"Typical kW\",'Data Billing Quantities'!4:4,0),FALSE),IF(COUNTIF(A1,\"*Average*\")>0,VLOOKUP(B3,'Data Billing Quantities'!$A:$Z,MATCH(\"Average kW\",'Data Billing Quantities'!4:4,0),FALSE),IF(COUNTIF(A1,\"*High*\")>0,VLOOKUP(B3,'Data Billing Quantities'!$A:$Z,MATCH(\"High kW\",'Data Billing Quantities'!4:4,0),FALSE),\"error\"))))","v":0}]
["Loss factor",{"$f":"VLOOKUP(B3,'Data Billing Quantities'!A:D,MATCH(A6,'Data Billing Quantities'!4:4,0),FALSE)","v":1.0669999999999999}]
["Commodity Threshold",{"$f":"VLOOKUP(B3,'Data Billing Quantities'!A:D,MATCH(A7,'Data Billing Quantities'!4:4,0),FALSE)","v":750}]
["Monthly Consumption (kWh) - Uplifted",{"$f":"B4*B6","v":192.06}]
["Charge determinant",{"$f":"VLOOKUP(B3,'Data Billing Quantities'!A:D,MATCH(A9,'Data Billing Quantities'!4:4,0),FALSE)","v":"kWh"}]
[]
[null,"Volume","Current Rate ($)","Current Charge ($)","Volume","Proposed Rate ($)","Proposed Charge ($)","Change ($)","Change (%)","% of Total Bill on RPP","% of Total Bill"]
["Energy First Tier",{"$f":"IF(B4>B7,B7,B4)","v":180},{"$f":"VLOOKUP($A12,'Data Pass Through'!$A:$D,2,FALSE)","v":9.8000000000000004E-2},{"$f":"B12*C12","v":17.64},{"$f":"B12","v":180},{"$f":"VLOOKUP($A12,'Data Pass Through'!$A:$D,3,FALSE)","v":9.8000000000000004E-2},{"$f":"E12*F12","v":17.64},{"$f":"G12-D12","v":0},{"$f":"IF(ISERROR(H12/ABS(D12)),\"N/A\",(H12/ABS(D12)))","v":0},{"$f":"G12/$G$47","v":0.34880092618405473}]
["Energy Second Tier",{"$f":"IF(B4>B7,(B4)-B7,0)","v":0},{"$f":"VLOOKUP($A13,'Data Pass Through'!$A:$D,2,FALSE)","v":0.115},{"$f":"B13*C13","v":0},{"$f":"B13","v":0},{"$f":"VLOOKUP($A13,'Data Pass Through'!$A:$D,3,FALSE)","v":0.115},{"$f":"E13*F13","v":0},0,"N/A",{"$f":"G13/$G$47","v":0}]
["Sub-Total:  Energy (RPP Tiered)",null,null,{"$f":"SUM(D12:D13)","v":17.64},null,null,{"$f":"SUM(G12:G13)","v":17.64},0,0,{"$f":"G14/$G$47","v":0.34880092618405473}]
["TOU-Off Peak",{"$f":"B$4*VLOOKUP($B$3,'Data Billing Quantities'!$A:$O,MATCH(BI_UGe_Low!$A15,'Data Billing Quantities'!$4:$4,0),FALSE)","v":115.2},{"$f":"VLOOKUP($A15,'Data Pass Through'!$A:$D,2,FALSE)","v":8.2000000000000003E-2},{"$f":"B15*C15","v":9.4464000000000006},115.2,{"$f":"VLOOKUP($A15,'Data Pass Through'!$A:$D,3,FALSE)","v":8.2000000000000003E-2},{"$f":"E15*F15","v":9.4464000000000006},0,0,null,{"$f":"G15/$G$52","v":0.18323734986186219}]
["TOU-Mid Peak",{"$f":"B$4*VLOOKUP($B$3,'Data Billing Quantities'!$A:$O,MATCH(BI_UGe_Low!$A16,'Data Billing Quantities'!$4:$4,0),FALSE)","v":32.4},{"$f":"VLOOKUP($A16,'Data Pass Through'!$A:$D,2,FALSE)","v":0.113},{"$f":"B16*C16","v":3.6612},32.4,{"$f":"VLOOKUP($A16,'Data Pass Through'!$A:$D,3,FALSE)","v":0.113},{"$f":"E16*F16","v":3.6612},0,0,null,7.1018439332893993E-2]
["TOU-On Peak",{"$f":"B$4*VLOOKUP($B$3,'Data Billing Quantities'!$A:$O,MATCH(BI_UGe_Low!$A17,'Data Billing Quantities'!$4:$4,0),FALSE)","v":32.4},{"$f":"VLOOKUP($A17,'Data Pass Through'!$A:$D,2,FALSE)","v":0.17},{"$f":"B17*C17","v":5.508},32.4,{"$f":"VLOOKUP($A17,'Data Pass Through'!$A:$D,3,FALSE)","v":0.17},{"$f":"E17*F17","v":5.508},0,0,null,0.10684189988134495]
["Sub-Total:  Energy (RPP TOU)",null,null,{"$f":"SUM(D15:D17)","v":18.615600000000001},null,null,{"$f":"SUM(G15:G17)","v":18.615600000000001},0,0,{"$f":"G18/$G$47","v":0.36809175291790752},0.36109768907610112]
["Service Charge",1,{"$f":"VLOOKUP($B$3,'Data Current Rates'!$A:$AP,MATCH(BI_UGe_Low!$A19,CurrentHeader,0),FALSE)","v":26.69},{"$f":"B19*C19","v":26.69},1,{"$f":"VLOOKUP($B$3,'Data Proposed Rates'!$A:$AZ,MATCH(BI_UGe_Low!$A19,ProposedHeader,0),FALSE)","v":24.1},{"$f":"E19*F19","v":24.1},-2.59,-9.7040089921318837E-2,0.47653641275712694,0.46748180594415639]
["Fixed Base Rate Adjustment to Recover Past Tax Amounts ",1,{"$f":"VLOOKUP($B$3,'Data Current Rates'!$A:$AP,MATCH(BI_UGe_Low!$A20,CurrentHeader,0),FALSE)","v":0.81},0.81,1,{"$f":"VLOOKUP($B$3,'Data Proposed Rates'!$A:$AZ,MATCH(BI_UGe_Low!$A20,ProposedHeader,0),FALSE)","v":0.82},0.82,9.9999999999998979E-3,1.2345679012345552E-2,1.6214102010823402E-2,1.5906019953286648E-2]
["Group 2 Fixed DVA Rider ",null,null,null,1,{"$f":"VLOOKUP($B$3,'Data Proposed Rates'!$A:$AZ,MATCH(BI_UGe_Low!$A21,ProposedHeader,0),FALSE)","v":0},0,0,"N/A",0,0]
["Distribution Volumetric Charge",{"$f":"IF($B$9=\"kWh\",$B$4,$B$5)","v":180},{"$f":"VLOOKUP($B$3,'Data Current Rates'!$A:$AP,MATCH(BI_UGe_Low!$A22,CurrentHeader,0),FALSE)","v":3.2099999999999997E-2},5.7779999999999996,180,{"$f":"VLOOKUP($B$3,'Data Proposed Rates'!$A:$AZ,MATCH(BI_UGe_Low!$A22,ProposedHeader,0),FALSE)","v":3.1099999999999999E-2},5.5979999999999999,-0.17999999999999972,-3.1152647975077833E-2,0.11069090616657246,0.10858768255914469]
["Volumetric Base Rate Adjustment to Recover Past Tax Amounts ",{"$f":"IF($B$9=\"kWh\",$B$4,$B$5)","v":180},{"$f":"VLOOKUP($B$3,'Data Current Rates'!$A:$AP,MATCH(BI_UGe_Low!$A23,CurrentHeader,0),FALSE)","v":1E-3},0.18,180,{"$f":"VLOOKUP($B$3,'Data Proposed Rates'!$A:$AZ,MATCH(BI_UGe_Low!$A23,ProposedHeader,0),FALSE)","v":1.1000000000000001E-3},0.19800000000000001,1.8000000000000016E-2,0.10000000000000009,3.9151124367597977E-3,3.8407218911594588E-3]
["Group 1 Volumetric DVA Rider (General)",null,null,null,{"$f":"B4","v":180},{"$f":"VLOOKUP($B$3,'Data Proposed Rates'!$A:$AZ,MATCH(BI_UGe_Low!$A24,ProposedHeader,0),FALSE)","v":-4.0000000000000002E-4},-7.2000000000000008E-2,-7.2000000000000008E-2,"N/A",-1.4236772497308358E-3,-1.3966261422398033E-3]
["Group 2 Volumetric DVA Rider ",null,null,null,{"$f":"B4","v":180},{"$f":"VLOOKUP($B$3,'Data Proposed Rates'!$A:$AZ,MATCH(BI_UGe_Low!$A25,ProposedHeader,0),FALSE)","v":-1E-4},-1.8000000000000002E-2,-1.8000000000000002E-2,"N/A",-3.5591931243270894E-4,-3.4915653555995081E-4]
["Fair Hydro Plan - Distribution Rate Protection Savings*",null,null,{"$f":"IF(AND(B3<>\"R1\",B3<>\"R2\"),0,IF(VLOOKUP($A26,'Data Pass Through'!$A:$D,2,FALSE)=0,0,IF(SUM(D19:D20,D22:D23)<VLOOKUP($A26,'Data Pass Through'!$A:$D,2,FALSE),0,VLOOKUP($A26,'Data Pass Through'!$A:$D,2,FALSE)-SUM(D19:D20,D22:D23))))","v":0},null,null,{"$f":"IF(AND(B3<>\"R1\",B3<>\"R2\"),0,IF(VLOOKUP($A26,'Data Pass Through'!$A:$D,2,FALSE)=0,0,IF(SUM(G19:G20,G22:G23)<VLOOKUP($A26,'Data Pass Through'!$A:$D,2,FALSE),0,VLOOKUP($A26,'Data Pass Through'!$A:$D,2,FALSE)-SUM(G19:G20,G22:G23))))","v":0},0,"N/A",0,0]
["Sub-Total:  Distribution (excluding pass through)",null,null,{"$f":"SUM(INDIRECT(\"D19:D\"&ROW()-1))","v":33.457999999999998},null,null,{"$f":"SUM(INDIRECT(\"g19:g\"&ROW()-1))","v":30.626000000000001},{"$f":"G27-D27","v":-2.8319999999999972},-8.464343355849116E-2,0.60557693680911906,0.59407044766994743]
["Smart Metering Entity Charge",1,{"$f":"VLOOKUP($A28,'Data Pass Through'!$A:$D,2,FALSE)","v":0.56999999999999995},{"$f":"B28*C28","v":0.56999999999999995},1,{"$f":"VLOOKUP($A28,'Data Pass Through'!$A:$D,3,FALSE)","v":0.56999999999999995},{"$f":"E28*F28","v":0.56999999999999995},0,0,1.1270778227035781E-2,1.1056623626065108E-2]
["Line Losses on Cost of Power (based on two-tier RPP prices)",{"$f":"B8-B4","v":12.060000000000002},{"$f":"IF(B4>B7,C13,C12)","v":9.8000000000000004E-2},{"$f":"B29*C29","v":1.1818800000000003},12.060000000000002,{"$f":"IF(B4>B7,F13,F12)","v":9.8000000000000004E-2},{"$f":"E29*F29","v":1.1818800000000003},0,0,2.336966205433167E-2,2.2925618124866376E-2]
["Line Losses on Cost of Power (based on TOU prices)",{"$f":"B8-B4","v":12.060000000000002},{"$f":"VLOOKUP($B$3,'Data Billing Quantities'!$A:$O,MATCH(BI_UGe_Low!$A15,'Data Billing Quantities'!$4:$4,0),FALSE)*C15+VLOOKUP($B$3,'Data Billing Quantities'!$A:$O,MATCH(BI_UGe_Low!$A16,'Data Billing Quantities'!$4:$4,0),FALSE)*C16+VLOOKUP($B$3,'Data Billing Quantities'!$A:$O,MATCH(BI_UGe_Low!$A17,'Data Billing Quantities'!$4:$4,0),FALSE)*C17","v":0.10342000000000001},{"$f":"B30*C30","v":1.2472452000000003},12.060000000000002,{"$f":"VLOOKUP($B$3,'Data Billing Quantities'!$A:$O,MATCH(BI_UGe_Low!$A15,'Data Billing Quantities'!$4:$4,0),FALSE)*F15+VLOOKUP($B$3,'Data Billing Quantities'!$A:$O,MATCH(BI_UGe_Low!$A16,'Data Billing Quantities'!$4:$4,0),FALSE)*F16+VLOOKUP($B$3,'Data Billing Quantities'!$A:$O,MATCH(BI_UGe_Low!$A17,'Data Billing Quantities'!$4:$4,0),FALSE)*F17","v":0.10342000000000001},{"$f":"E30*F30","v":1.2472452000000003},0,0,2.466214744549981E-2,2.4193545168098778E-2]
["Sub-Total:  Distribution (based on two-tier RPP prices)",null,null,{"$f":"SUM(D27,D28:D29)","v":35.209879999999998},null,null,{"$f":"SUM(G27,G28:G29)","v":32.377880000000005},-2.8319999999999936,-8.0431969663060307E-2,0.64021737709048654,0.628052689420879]
["Sub-Total:  Distribution (based on TOU prices)",null,null,{"$f":"SUM(D27,D28,D30)","v":35.275245200000001},null,null,{"$f":"SUM(G27,G28,G30)","v":32.4432452},-2.8320000000000007,-8.0282928834184281E-2,0.64150986248165465,0.6293206164641113]
["Retail Transmission Rate – Network Service Rate",{"$f":"B8","v":192.06},{"$f":"VLOOKUP($B$3,'Data Current Rates'!$A:$AP,MATCH(BI_UGe_Low!$A33,CurrentHeader,0),FALSE)","v":8.3000000000000001E-3},{"$f":"B33*C33","v":1.594098},192.06,{"$f":"VLOOKUP($B$3,'Data Proposed Rates'!$A:$AZ,MATCH(BI_UGe_Low!$A33,ProposedHeader,0),FALSE)","v":8.0000000000000002E-3},{"$f":"E33*F33","v":1.5364800000000001},{"$f":"G33-D33","v":-5.7617999999999947E-2},-3.6144578313252976E-2,3.0381272509256031E-2,2.9804001875397401E-2]
["Retail Transmission Rate – Line and Transformation Connection Service Rate",{"$f":"B8","v":192.06},{"$f":"VLOOKUP($B$3,'Data Current Rates'!$A:$AP,MATCH(BI_UGe_Low!$A34,CurrentHeader,0),FALSE)","v":5.7000000000000002E-3},{"$f":"B34*C34","v":1.0947420000000001},192.06,{"$f":"VLOOKUP($B$3,'Data Proposed Rates'!$A:$AZ,MATCH(BI_UGe_Low!$A34,ProposedHeader,0),FALSE)","v":6.1999999999999998E-3},{"$f":"E34*F34","v":1.1907719999999999},{"$f":"G34-D34","v":9.6029999999999838E-2},8.7719298245613878E-2,2.3545486194673424E-2,2.3098101453432985E-2]
["Sub-Total:  Retail Transmission ",null,null,{"$f":"SUM(D33:D34)","v":2.6888399999999999},null,null,{"$f":"SUM(G33:G34)","v":2.727252},{"$f":"G35-D35","v":3.8412000000000113E-2},1.4285714285714329E-2,5.3926758703929455E-2,5.2902103328830385E-2]
["Sub-Total:  Delivery (based on two-tier RPP prices)",null,null,{"$f":"D31+D35","v":37.898719999999997},null,null,{"$f":"G31+G35","v":35.105132000000005},{"$f":"G36-D36","v":-2.7935879999999926},-7.3711935389902158E-2,0.69414413579441603,0.68095479274970938]
["Sub-Total:  Delivery (based on TOU prices)",null,null,{"$f":"D32+D35","v":37.9640852},null,null,{"$f":"G32+G35","v":35.1704972},{"$f":"G37-D37","v":-2.7935879999999997},-7.3585020823839054E-2,0.69543662118558403,0.68222271979294169]
["Wholesale Market Service Rate (WMS) - not including CBR",{"$f":"B8","v":192.06},{"$f":"VLOOKUP($A38,'Data Pass Through'!$A:$D,2,FALSE)","v":3.0000000000000001E-3},{"$f":"B38*C38","v":0.57618000000000003},{"$f":"$B$8","v":192.06},{"$f":"VLOOKUP($A38,'Data Pass Through'!$A:$D,3,FALSE)","v":3.0000000000000001E-3},{"$f":"E38*F38","v":0.57618000000000003},0,0,1.1392977190971012E-2,1.1176500703274025E-2]
["Capacity Based Recovery (CBR) - Applicable for Class B Customers",{"$f":"B8","v":192.06},{"$f":"VLOOKUP($A39,'Data Pass Through'!$A:$D,2,FALSE)","v":4.0000000000000002E-4},{"$f":"B39*C39","v":7.6824000000000003E-2},{"$f":"$B$8","v":192.06},{"$f":"VLOOKUP($A39,'Data Pass Through'!$A:$D,3,FALSE)","v":4.0000000000000002E-4},{"$f":"E39*F39","v":7.6824000000000003E-2},0,0,1.5190636254628015E-3,1.49020009376987E-3]
["Rural Rate Protection Charge",{"$f":"B8","v":192.06},{"$f":"VLOOKUP($A40,'Data Pass Through'!$A:$D,2,FALSE)","v":5.0000000000000001E-4},9.6030000000000004E-2,192.06,{"$f":"VLOOKUP($A40,'Data Pass Through'!$A:$D,3,FALSE)","v":5.0000000000000001E-4},9.6030000000000004E-2,0,0,1.8988295318285019E-3,1.8627501172123375E-3]
["Standard Supply Service – Administration Charge (if applicable)",1,{"$f":"VLOOKUP($A41,'Data Pass Through'!$A:$D,2,FALSE)","v":0.25},{"$f":"B41*C41","v":0.25},1,{"$f":"VLOOKUP($A41,'Data Pass Through'!$A:$D,3,FALSE)","v":0.25},0.25,0,0,4.9433237837876237E-3,4.8493963272215387E-3]
["Sub-Total:  Regulatory",null,null,{"$f":"SUM(D38:D41)","v":0.99903399999999998},null,null,{"$f":"SUM(G38:G41)","v":0.99903399999999998},0,0,1.9754194132049936E-2,1.9378847241477769E-2]
["Total  Electricty Charge on Two-Tier RPP ",null,null,{"$f":"SUM(D14,D27,D28,D29,D35,D42)","v":56.537754},null,null,{"$f":"SUM(G14,G27,G28,G29,G35,G42)","v":53.744166000000007},-2.7935879999999926,-4.9411018343600857E-2,1.0626992561105206]
["     HST",null,0.13,{"$f":"D43*C44","v":7.34990802},null,{"$f":"C44","v":0.13},{"$f":"G43*F44","v":6.9867415800000012},-0.36316643999999876,-4.9411018343600815E-2,0.13815090329436769]
["Total Electricity Charge on Two-Tier RPP (including HST)",null,null,{"$f":"SUM(D43:D44)","v":63.88766202},null,null,{"$f":"SUM(G43:G44)","v":60.730907580000007},-3.1567544399999932,-4.9411018343600878E-2,1.2008501594048884]
["Ontario Electricity Rebate (OER)",null,{"$f":"IF(($B$4*12)<250000,VLOOKUP(A46,'Data Pass Through'!$A$4:$C$20,2,0),0)","v":-0.189},{"$f":"D43*C46","v":-10.685635506000001},null,{"$f":"C46","v":-0.189},{"$f":"G43*F46","v":-10.157647374000002},0.52798813199999906,4.9411018343600892E-2,-0.20085015940488843]
["Total Amount on Two-Tier RPP",null,null,{"$f":"SUM(D45:D46)","v":53.202026513999996},null,null,{"$f":"SUM(G45:G46)","v":50.573260206000008},-2.6287663079999888,-4.9411018343600781E-2,1]
["Total Electricty Charge on TOU (before HST)",null,null,{"$f":"SUM(D18,D27,D28,D30,D35,D42)","v":57.578719200000002},null,null,{"$f":"SUM(G18,G27,G28,G30,G35,G42)","v":54.785131200000009},-2.7935879999999926,-4.8517716941504883E-2,null,{"$f":"G48/$G$52","v":1.0626992561105206}]
["     HST",null,0.13,{"$f":"D48*C49","v":7.4852334960000002},null,{"$f":"C49","v":0.13},{"$f":"G48*F49","v":7.1220670560000015},-0.36316643999999876,-4.8517716941504849E-2,null,{"$f":"G49/$G$52","v":0.13815090329436769}]
["Total Electricity Charge on TOU (including HST)",null,null,{"$f":"SUM(D48:D49)","v":65.063952696000001},null,null,{"$f":"SUM(G48:G49)","v":61.907198256000008},-3.1567544399999932,-4.8517716941504904E-2,null,{"$f":"G50/$G$52","v":1.2008501594048884}]
["Ontario Electricity Rebate (OER)",null,{"$f":"IF(($B$4*12)<250000,VLOOKUP(A51,'Data Pass Through'!$A$4:$C$20,2,0),0)","v":-0.189},{"$f":"D48*C51","v":-10.8823779288},null,{"$f":"C51","v":-0.189},{"$f":"G48*F51","v":-10.354389796800001},0.52798813199999906,4.8517716941504925E-2,null,{"$f":"G51/$G$52","v":-0.2008501594048884}]
["Total Amount on TOU",null,null,{"$f":"SUM(D50:D51)","v":54.181574767200004},null,null,{"$f":"SUM(G50:G51)","v":51.552808459200008},-2.6287663079999959,-4.8517716941504932E-2,null,{"$f":"G52/$G$52","v":1}]
["* Distribution rate protection applies to R1 and R2 customers"]

{"sheet":"BI_UGe_Typical","index":48,"n_rows":53,"n_cols":11,"rows_kept":53,"cut":false,"hidden":false,"merged":[[0,0,0,10]]}
["2023 Bill Impacts (Typical Consumption Level) - UGe"]
[]
["Rate Class",{"$f":"RIGHT(A1,LEN(A1)-FIND(\"- \",A1,1)-1)","v":"UGe"}]
["Monthly Consumption (kWh)",{"$f":"IF(COUNTIF(A1,\"*Low*\")>0,VLOOKUP(B3,'Data Billing Quantities'!$A:$Z,MATCH(\"Low kWh\",'Data Billing Quantities'!4:4,0),FALSE),IF(COUNTIF(A1,\"*Typical*\")>0,VLOOKUP(B3,'Data Billing Quantities'!$A:$Z,MATCH(\"Typical kWh\",'Data Billing Quantities'!4:4,0),FALSE),IF(COUNTIF(A1,\"*Average*\")>0,VLOOKUP(B3,'Data Billing Quantities'!$A:$Z,MATCH(\"Average kWh\",'Data Billing Quantities'!4:4,0),FALSE),IF(COUNTIF(A1,\"*High*\")>0,VLOOKUP(B3,'Data Billing Quantities'!$A:$Z,MATCH(\"High kWh\",'Data Billing Quantities'!4:4,0),FALSE),\"error\"))))","v":2000}]
["Peak (kW)",{"$f":"IF(COUNTIF(A1,\"*Low*\")>0,VLOOKUP(B3,'Data Billing Quantities'!$A:$Z,MATCH(\"Low kW\",'Data Billing Quantities'!4:4,0),FALSE),IF(COUNTIF(A1,\"*Typical*\")>0,VLOOKUP(B3,'Data Billing Quantities'!$A:$Z,MATCH(\"Typical kW\",'Data Billing Quantities'!4:4,0),FALSE),IF(COUNTIF(A1,\"*Average*\")>0,VLOOKUP(B3,'Data Billing Quantities'!$A:$Z,MATCH(\"Average kW\",'Data Billing Quantities'!4:4,0),FALSE),IF(COUNTIF(A1,\"*High*\")>0,VLOOKUP(B3,'Data Billing Quantities'!$A:$Z,MATCH(\"High kW\",'Data Billing Quantities'!4:4,0),FALSE),\"error\"))))","v":0}]
["Loss factor",{"$f":"VLOOKUP(B3,'Data Billing Quantities'!A:D,MATCH(A6,'Data Billing Quantities'!4:4,0),FALSE)","v":1.0669999999999999}]
["Commodity Threshold",{"$f":"VLOOKUP(B3,'Data Billing Quantities'!A:D,MATCH(A7,'Data Billing Quantities'!4:4,0),FALSE)","v":750}]
["Monthly Consumption (kWh) - Uplifted",{"$f":"B4*B6","v":2134}]
["Charge determinant",{"$f":"VLOOKUP(B3,'Data Billing Quantities'!A:D,MATCH(A9,'Data Billing Quantities'!4:4,0),FALSE)","v":"kWh"}]
[]
[null,"Volume","Current Rate ($)","Current Charge ($)","Volume","Proposed Rate ($)","Proposed Charge ($)","Change ($)","Change (%)","% of Total Bill on RPP","% of Total Bill"]
["Energy First Tier",{"$f":"IF(B4>B7,B7,B4)","v":750},{"$f":"VLOOKUP($A12,'Data Pass Through'!$A:$D,2,FALSE)","v":9.8000000000000004E-2},{"$f":"B12*C12","v":73.5},{"$f":"B12","v":750},{"$f":"VLOOKUP($A12,'Data Pass Through'!$A:$D,3,FALSE)","v":9.8000000000000004E-2},{"$f":"E12*F12","v":73.5},{"$f":"G12-D12","v":0},{"$f":"IF(ISERROR(H12/ABS(D12)),\"N/A\",(H12/ABS(D12)))","v":0},{"$f":"G12/$G$47","v":0.21671168381618852}]
["Energy Second Tier",{"$f":"IF(B4>B7,(B4)-B7,0)","v":1250},{"$f":"VLOOKUP($A13,'Data Pass Through'!$A:$D,2,FALSE)","v":0.115},{"$f":"B13*C13","v":143.75},{"$f":"B13","v":1250},{"$f":"VLOOKUP($A13,'Data Pass Through'!$A:$D,3,FALSE)","v":0.115},{"$f":"E13*F13","v":143.75},0,0,{"$f":"G13/$G$47","v":0.42384087821193334}]
["Sub-Total:  Energy (RPP Tiered)",null,null,{"$f":"SUM(D12:D13)","v":217.25},null,null,{"$f":"SUM(G12:G13)","v":217.25},0,0,{"$f":"G14/$G$47","v":0.64055256202812183}]
["TOU-Off Peak",{"$f":"B$4*VLOOKUP($B$3,'Data Billing Quantities'!$A:$O,MATCH(BI_UGe_Typical!$A15,'Data Billing Quantities'!$4:$4,0),FALSE)","v":1280},{"$f":"VLOOKUP($A15,'Data Pass Through'!$A:$D,2,FALSE)","v":8.2000000000000003E-2},{"$f":"B15*C15","v":104.96000000000001},1280,{"$f":"VLOOKUP($A15,'Data Pass Through'!$A:$D,3,FALSE)","v":8.2000000000000003E-2},{"$f":"E15*F15","v":104.96000000000001},0,0,null,{"$f":"G15/$G$52","v":0.32009337076782363}]
["TOU-Mid Peak",{"$f":"B$4*VLOOKUP($B$3,'Data Billing Quantities'!$A:$O,MATCH(BI_UGe_Typical!$A16,'Data Billing Quantities'!$4:$4,0),FALSE)","v":360},{"$f":"VLOOKUP($A16,'Data Pass Through'!$A:$D,2,FALSE)","v":0.113},{"$f":"B16*C16","v":40.68},360,{"$f":"VLOOKUP($A16,'Data Pass Through'!$A:$D,3,FALSE)","v":0.113},{"$f":"E16*F16","v":40.68},0,0,null,0.12406057853310846]
["TOU-On Peak",{"$f":"B$4*VLOOKUP($B$3,'Data Billing Quantities'!$A:$O,MATCH(BI_UGe_Typical!$A17,'Data Billing Quantities'!$4:$4,0),FALSE)","v":360},{"$f":"VLOOKUP($A17,'Data Pass Through'!$A:$D,2,FALSE)","v":0.17},{"$f":"B17*C17","v":61.2},360,{"$f":"VLOOKUP($A17,'Data Pass Through'!$A:$D,3,FALSE)","v":0.17},{"$f":"E17*F17","v":61.2},0,0,null,0.18663980841264105]
["Sub-Total:  Energy (RPP TOU)",null,null,{"$f":"SUM(D15:D17)","v":206.84000000000003},null,null,{"$f":"SUM(G15:G17)","v":206.84000000000003},0,0,{"$f":"G18/$G$47","v":0.60985911129986992},0.63079375771357316]
["Service Charge",1,{"$f":"VLOOKUP($B$3,'Data Current Rates'!$A:$AP,MATCH(BI_UGe_Typical!$A19,CurrentHeader,0),FALSE)","v":26.69},{"$f":"B19*C19","v":26.69},1,{"$f":"VLOOKUP($B$3,'Data Proposed Rates'!$A:$AZ,MATCH(BI_UGe_Typical!$A19,ProposedHeader,0),FALSE)","v":24.1},{"$f":"E19*F19","v":24.1},-2.59,-9.7040089921318837E-2,7.1057844625444136E-2,7.3497048737657666E-2]
["Fixed Base Rate Adjustment to Recover Past Tax Amounts ",1,{"$f":"VLOOKUP($B$3,'Data Current Rates'!$A:$AP,MATCH(BI_UGe_Typical!$A20,CurrentHeader,0),FALSE)","v":0.81},0.81,1,{"$f":"VLOOKUP($B$3,'Data Proposed Rates'!$A:$AZ,MATCH(BI_UGe_Typical!$A20,ProposedHeader,0),FALSE)","v":0.82},0.82,9.9999999999998979E-3,1.2345679012345552E-2,2.4177357922350283E-3,2.5007294591236216E-3]
["Group 2 Fixed DVA Rider ",null,null,null,1,{"$f":"VLOOKUP($B$3,'Data Proposed Rates'!$A:$AZ,MATCH(BI_UGe_Typical!$A21,ProposedHeader,0),FALSE)","v":0},0,0,"N/A",0,0]
["Distribution Volumetric Charge",{"$f":"IF($B$9=\"kWh\",$B$4,$B$5)","v":2000},{"$f":"VLOOKUP($B$3,'Data Current Rates'!$A:$AP,MATCH(BI_UGe_Typical!$A22,CurrentHeader,0),FALSE)","v":3.2099999999999997E-2},64.199999999999989,2000,{"$f":"VLOOKUP($B$3,'Data Proposed Rates'!$A:$AZ,MATCH(BI_UGe_Typical!$A22,ProposedHeader,0),FALSE)","v":3.1099999999999999E-2},62.199999999999996,-1.9999999999999929,-3.1152647975077778E-2,0.18339410521587654,0.18968947848474302]
["Volumetric Base Rate Adjustment to Recover Past Tax Amounts ",{"$f":"IF($B$9=\"kWh\",$B$4,$B$5)","v":2000},{"$f":"VLOOKUP($B$3,'Data Current Rates'!$A:$AP,MATCH(BI_UGe_Typical!$A23,CurrentHeader,0),FALSE)","v":1E-3},2,2000,{"$f":"VLOOKUP($B$3,'Data Proposed Rates'!$A:$AZ,MATCH(BI_UGe_Typical!$A23,ProposedHeader,0),FALSE)","v":1.1000000000000001E-3},2.2000000000000002,0.20000000000000018,0.10000000000000009,6.4866082230695893E-3,6.7092741586243518E-3]
["Group 1 Volumetric DVA Rider (General)",null,null,null,{"$f":"B4","v":2000},{"$f":"VLOOKUP($B$3,'Data Proposed Rates'!$A:$AZ,MATCH(BI_UGe_Typical!$A24,ProposedHeader,0),FALSE)","v":-4.0000000000000002E-4},-0.8,-0.8,"N/A",-2.3587666265707597E-3,-2.4397360576815822E-3]
["Group 2 Volumetric DVA Rider ",null,null,null,{"$f":"B4","v":2000},{"$f":"VLOOKUP($B$3,'Data Proposed Rates'!$A:$AZ,MATCH(BI_UGe_Typical!$A25,ProposedHeader,0),FALSE)","v":-1E-4},-0.2,-0.2,"N/A",-5.8969165664268992E-4,-6.0993401442039556E-4]
["Fair Hydro Plan - Distribution Rate Protection Savings*",null,null,{"$f":"IF(AND(B3<>\"R1\",B3<>\"R2\"),0,IF(VLOOKUP($A26,'Data Pass Through'!$A:$D,2,FALSE)=0,0,IF(SUM(D19:D20,D22:D23)<VLOOKUP($A26,'Data Pass Through'!$A:$D,2,FALSE),0,VLOOKUP($A26,'Data Pass Through'!$A:$D,2,FALSE)-SUM(D19:D20,D22:D23))))","v":0},null,null,{"$f":"IF(AND(B3<>\"R1\",B3<>\"R2\"),0,IF(VLOOKUP($A26,'Data Pass Through'!$A:$D,2,FALSE)=0,0,IF(SUM(G19:G20,G22:G23)<VLOOKUP($A26,'Data Pass Through'!$A:$D,2,FALSE),0,VLOOKUP($A26,'Data Pass Through'!$A:$D,2,FALSE)-SUM(G19:G20,G22:G23))))","v":0},0,"N/A",0,0]
["Sub-Total:  Distribution (excluding pass through)",null,null,{"$f":"SUM(INDIRECT(\"D19:D\"&ROW()-1))","v":93.699999999999989},null,null,{"$f":"SUM(INDIRECT(\"g19:g\"&ROW()-1))","v":88.320000000000007},{"$f":"G27-D27","v":-5.3799999999999812},-5.7417289220917628E-2,0.26040783557341185,0.2693468607680467]
["Smart Metering Entity Charge",1,{"$f":"VLOOKUP($A28,'Data Pass Through'!$A:$D,2,FALSE)","v":0.56999999999999995},{"$f":"B28*C28","v":0.56999999999999995},1,{"$f":"VLOOKUP($A28,'Data Pass Through'!$A:$D,3,FALSE)","v":0.56999999999999995},{"$f":"E28*F28","v":0.56999999999999995},0,0,1.680621221431666E-3,1.7383119410981274E-3]
["Line Losses on Cost of Power (based on two-tier RPP prices)",{"$f":"B8-B4","v":134},{"$f":"IF(B4>B7,C13,C12)","v":0.115},{"$f":"B29*C29","v":15.41},134,{"$f":"IF(B4>B7,F13,F12)","v":0.115},{"$f":"E29*F29","v":15.41},0,0,4.5435742144319252E-2,4.6995415811091477E-2]
["Line Losses on Cost of Power (based on TOU prices)",{"$f":"B8-B4","v":134},{"$f":"VLOOKUP($B$3,'Data Billing Quantities'!$A:$O,MATCH(BI_UGe_Typical!$A15,'Data Billing Quantities'!$4:$4,0),FALSE)*C15+VLOOKUP($B$3,'Data Billing Quantities'!$A:$O,MATCH(BI_UGe_Typical!$A16,'Data Billing Quantities'!$4:$4,0),FALSE)*C16+VLOOKUP($B$3,'Data Billing Quantities'!$A:$O,MATCH(BI_UGe_Typical!$A17,'Data Billing Quantities'!$4:$4,0),FALSE)*C17","v":0.10342000000000001},{"$f":"B30*C30","v":13.858280000000002},134,{"$f":"VLOOKUP($B$3,'Data Billing Quantities'!$A:$O,MATCH(BI_UGe_Typical!$A15,'Data Billing Quantities'!$4:$4,0),FALSE)*F15+VLOOKUP($B$3,'Data Billing Quantities'!$A:$O,MATCH(BI_UGe_Typical!$A16,'Data Billing Quantities'!$4:$4,0),FALSE)*F16+VLOOKUP($B$3,'Data Billing Quantities'!$A:$O,MATCH(BI_UGe_Typical!$A17,'Data Billing Quantities'!$4:$4,0),FALSE)*F17","v":0.10342000000000001},{"$f":"E30*F30","v":13.858280000000002},0,0,4.0860560457091286E-2,4.2263181766809405E-2]
["Sub-Total:  Distribution (based on two-tier RPP prices)",null,null,{"$f":"SUM(D27,D28:D29)","v":109.67999999999998},null,null,{"$f":"SUM(G27,G28:G29)","v":104.3},-5.3799999999999812,-4.9051787016775913E-2,0.30752419893916277,0.3180805885202363]
["Sub-Total:  Distribution (based on TOU prices)",null,null,{"$f":"SUM(D27,D28,D30)","v":108.12827999999999},null,null,{"$f":"SUM(G27,G28,G30)","v":102.74828000000001},-5.3799999999999812,-4.9755716080936291E-2,0.30294901725193485,0.31334835447595422]
["Retail Transmission Rate – Network Service Rate",{"$f":"B8","v":2134},{"$f":"VLOOKUP($B$3,'Data Current Rates'!$A:$AP,MATCH(BI_UGe_Typical!$A33,CurrentHeader,0),FALSE)","v":8.3000000000000001E-3},{"$f":"B33*C33","v":17.712199999999999},2134,{"$f":"VLOOKUP($B$3,'Data Proposed Rates'!$A:$AZ,MATCH(BI_UGe_Typical!$A33,ProposedHeader,0),FALSE)","v":8.0000000000000002E-3},{"$f":"E33*F33","v":17.071999999999999},{"$f":"G33-D33","v":-0.6402000000000001},-3.6144578313253017E-2,5.0336079811020007E-2,5.2063967470924961E-2]
["Retail Transmission Rate – Line and Transformation Connection Service Rate",{"$f":"B8","v":2134},{"$f":"VLOOKUP($B$3,'Data Current Rates'!$A:$AP,MATCH(BI_UGe_Typical!$A34,CurrentHeader,0),FALSE)","v":5.7000000000000002E-3},{"$f":"B34*C34","v":12.1638},2134,{"$f":"VLOOKUP($B$3,'Data Proposed Rates'!$A:$AZ,MATCH(BI_UGe_Typical!$A34,ProposedHeader,0),FALSE)","v":6.1999999999999998E-3},{"$f":"E34*F34","v":13.2308},{"$f":"G34-D34","v":1.0670000000000002},8.7719298245614044E-2,3.9010461853540505E-2,4.0349574789966848E-2]
["Sub-Total:  Retail Transmission ",null,null,{"$f":"SUM(D33:D34)","v":29.875999999999998},null,null,{"$f":"SUM(G33:G34)","v":30.302799999999998},{"$f":"G35-D35","v":0.42680000000000007},1.4285714285714289E-2,8.9346541664560505E-2,9.2413542260891809E-2]
["Sub-Total:  Delivery (based on two-tier RPP prices)",null,null,{"$f":"D31+D35","v":139.55599999999998},null,null,{"$f":"G31+G35","v":134.6028},{"$f":"G36-D36","v":-4.9531999999999812},-3.5492562125598197E-2,0.39687074060372329,0.41049413078112812]
["Sub-Total:  Delivery (based on TOU prices)",null,null,{"$f":"D32+D35","v":138.00427999999999},null,null,{"$f":"G32+G35","v":133.05108000000001},{"$f":"G37-D37","v":-4.9531999999999812},-3.5891640462165239E-2,0.39229555891649537,0.40576189673684609]
["Wholesale Market Service Rate (WMS) - not including CBR",{"$f":"B8","v":2134},{"$f":"VLOOKUP($A38,'Data Pass Through'!$A:$D,2,FALSE)","v":3.0000000000000001E-3},{"$f":"B38*C38","v":6.4020000000000001},{"$f":"$B$8","v":2134},{"$f":"VLOOKUP($A38,'Data Pass Through'!$A:$D,3,FALSE)","v":3.0000000000000001E-3},{"$f":"E38*F38","v":6.4020000000000001},0,0,1.8876029929132503E-2,1.9523987801596861E-2]
["Capacity Based Recovery (CBR) - Applicable for Class B Customers",{"$f":"B8","v":2134},{"$f":"VLOOKUP($A39,'Data Pass Through'!$A:$D,2,FALSE)","v":4.0000000000000002E-4},{"$f":"B39*C39","v":0.85360000000000003},{"$f":"$B$8","v":2134},{"$f":"VLOOKUP($A39,'Data Pass Through'!$A:$D,3,FALSE)","v":4.0000000000000002E-4},{"$f":"E39*F39","v":0.85360000000000003},0,0,2.5168039905510003E-3,2.6031983735462483E-3]
["Rural Rate Protection Charge",{"$f":"B8","v":2134},{"$f":"VLOOKUP($A40,'Data Pass Through'!$A:$D,2,FALSE)","v":5.0000000000000001E-4},1.0669999999999999,2134,{"$f":"VLOOKUP($A40,'Data Pass Through'!$A:$D,3,FALSE)","v":5.0000000000000001E-4},1.0669999999999999,0,0,3.1460049881887504E-3,3.2539979669328101E-3]
["Standard Supply Service – Administration Charge (if applicable)",1,{"$f":"VLOOKUP($A41,'Data Pass Through'!$A:$D,2,FALSE)","v":0.25},{"$f":"B41*C41","v":0.25},1,{"$f":"VLOOKUP($A41,'Data Pass Through'!$A:$D,3,FALSE)","v":0.25},0.25,0,0,7.3711457080336234E-4,7.624175180254945E-4]
["Sub-Total:  Regulatory",null,null,{"$f":"SUM(D38:D41)","v":8.5725999999999996},null,null,{"$f":"SUM(G38:G41)","v":8.5725999999999996},0,0,2.5275953478675613E-2,2.6143601660101413E-2]
["Total  Electricty Charge on Two-Tier RPP ",null,null,{"$f":"SUM(D14,D27,D28,D29,D35,D42)","v":365.37860000000001},null,null,{"$f":"SUM(G14,G27,G28,G29,G35,G42)","v":360.42540000000002},-4.9531999999999812,-1.3556349496111652E-2,1.0626992561105209]
["     HST",null,0.13,{"$f":"D43*C44","v":47.499217999999999},null,{"$f":"C44","v":0.13},{"$f":"G43*F44","v":46.855302000000002},-0.64391599999999727,-1.3556349496111647E-2,0.13815090329436772]
["Total Electricity Charge on Two-Tier RPP (including HST)",null,null,{"$f":"SUM(D43:D44)","v":412.87781799999999},null,null,{"$f":"SUM(G43:G44)","v":407.28070200000002},-5.5971159999999713,-1.3556349496111635E-2,1.2008501594048886]
["Ontario Electricity Rebate (OER)",null,{"$f":"IF(($B$4*12)<250000,VLOOKUP(A46,'Data Pass Through'!$A$4:$C$20,2,0),0)","v":-0.189},{"$f":"D43*C46","v":-69.056555400000008},null,{"$f":"C46","v":-0.189},{"$f":"G43*F46","v":-68.120400600000011},0.93615479999999707,1.3556349496111661E-2,-0.20085015940488846]
["Total Amount on Two-Tier RPP",null,null,{"$f":"SUM(D45:D46)","v":343.82126259999995},null,null,{"$f":"SUM(G45:G46)","v":339.16030139999998},-4.6609611999999743,-1.3556349496111631E-2,1]
["Total Electricty Charge on TOU (before HST)",null,null,{"$f":"SUM(D18,D27,D28,D30,D35,D42)","v":353.41687999999999},null,null,{"$f":"SUM(G18,G27,G28,G30,G35,G42)","v":348.46368000000001},-4.9531999999999812,-1.4015176637856067E-2,null,{"$f":"G48/$G$52","v":1.0626992561105206}]
["     HST",null,0.13,{"$f":"D48*C49","v":45.944194400000001},null,{"$f":"C49","v":0.13},{"$f":"G48*F49","v":45.300278400000003},-0.64391599999999727,-1.401517663785606E-2,null,{"$f":"G49/$G$52","v":0.13815090329436769}]
["Total Electricity Charge on TOU (including HST)",null,null,{"$f":"SUM(D48:D49)","v":399.36107440000001},null,null,{"$f":"SUM(G48:G49)","v":393.76395840000004},-5.5971159999999713,-1.4015176637856048E-2,null,{"$f":"G50/$G$52","v":1.2008501594048884}]
["Ontario Electricity Rebate (OER)",null,{"$f":"IF(($B$4*12)<250000,VLOOKUP(A51,'Data Pass Through'!$A$4:$C$20,2,0),0)","v":-0.189},{"$f":"D48*C51","v":-66.795790319999995},null,{"$f":"C51","v":-0.189},{"$f":"G48*F51","v":-65.859635519999998},0.93615479999999707,1.4015176637856078E-2,null,{"$f":"G51/$G$52","v":-0.20085015940488837}]
["Total Amount on TOU",null,null,{"$f":"SUM(D50:D51)","v":332.56528408000003},null,null,{"$f":"SUM(G50:G51)","v":327.90432288000005},-4.6609611999999743,-1.4015176637856041E-2,null,{"$f":"G52/$G$52","v":1}]
["* Distribution rate protection applies to R1 and R2 customers"]

{"sheet":"BI_UGe_Avg","index":49,"n_rows":53,"n_cols":11,"rows_kept":53,"cut":false,"hidden":false,"merged":[[0,0,0,10]]}
["2023 Bill Impacts (Average Consumption Level) - UGe"]
[]
["Rate Class",{"$f":"RIGHT(A1,LEN(A1)-FIND(\"- \",A1,1)-1)","v":"UGe"}]
["Monthly Consumption (kWh)",{"$f":"IF(COUNTIF(A1,\"*Low*\")>0,VLOOKUP(B3,'Data Billing Quantities'!$A:$Z,MATCH(\"Low kWh\",'Data Billing Quantities'!4:4,0),FALSE),IF(COUNTIF(A1,\"*Typical*\")>0,VLOOKUP(B3,'Data Billing Quantities'!$A:$Z,MATCH(\"Typical kWh\",'Data Billing Quantities'!4:4,0),FALSE),IF(COUNTIF(A1,\"*Average*\")>0,VLOOKUP(B3,'Data Billing Quantities'!$A:$Z,MATCH(\"Average kWh\",'Data Billing Quantities'!4:4,0),FALSE),IF(COUNTIF(A1,\"*High*\")>0,VLOOKUP(B3,'Data Billing Quantities'!$A:$Z,MATCH(\"High kWh\",'Data Billing Quantities'!4:4,0),FALSE),\"error\"))))","v":2494}]
["Peak (kW)",{"$f":"IF(COUNTIF(A1,\"*Low*\")>0,VLOOKUP(B3,'Data Billing Quantities'!$A:$Z,MATCH(\"Low kW\",'Data Billing Quantities'!4:4,0),FALSE),IF(COUNTIF(A1,\"*Typical*\")>0,VLOOKUP(B3,'Data Billing Quantities'!$A:$Z,MATCH(\"Typical kW\",'Data Billing Quantities'!4:4,0),FALSE),IF(COUNTIF(A1,\"*Average*\")>0,VLOOKUP(B3,'Data Billing Quantities'!$A:$Z,MATCH(\"Average kW\",'Data Billing Quantities'!4:4,0),FALSE),IF(COUNTIF(A1,\"*High*\")>0,VLOOKUP(B3,'Data Billing Quantities'!$A:$Z,MATCH(\"High kW\",'Data Billing Quantities'!4:4,0),FALSE),\"error\"))))","v":0}]
["Loss factor",{"$f":"VLOOKUP(B3,'Data Billing Quantities'!A:D,MATCH(A6,'Data Billing Quantities'!4:4,0),FALSE)","v":1.0669999999999999}]
["Commodity Threshold",{"$f":"VLOOKUP(B3,'Data Billing Quantities'!A:D,MATCH(A7,'Data Billing Quantities'!4:4,0),FALSE)","v":750}]
["Monthly Consumption (kWh) - Uplifted",{"$f":"B4*B6","v":2661.098}]
["Charge determinant",{"$f":"VLOOKUP(B3,'Data Billing Quantities'!A:D,MATCH(A9,'Data Billing Quantities'!4:4,0),FALSE)","v":"kWh"}]
[]
[null,"Volume","Current Rate ($)","Current Charge ($)","Volume","Proposed Rate ($)","Proposed Charge ($)","Change ($)","Change (%)","% of Total Bill on RPP","% of Total Bill"]
["Energy First Tier",{"$f":"IF(B4>B7,B7,B4)","v":750},{"$f":"VLOOKUP($A12,'Data Pass Through'!$A:$D,2,FALSE)","v":9.8000000000000004E-2},{"$f":"B12*C12","v":73.5},{"$f":"B12","v":750},{"$f":"VLOOKUP($A12,'Data Pass Through'!$A:$D,3,FALSE)","v":9.8000000000000004E-2},{"$f":"E12*F12","v":73.5},{"$f":"G12-D12","v":0},{"$f":"IF(ISERROR(H12/ABS(D12)),\"N/A\",(H12/ABS(D12)))","v":0},{"$f":"G12/$G$47","v":0.17503597859714071}]
["Energy Second Tier",{"$f":"IF(B4>B7,(B4)-B7,0)","v":1744},{"$f":"VLOOKUP($A13,'Data Pass Through'!$A:$D,2,FALSE)","v":0.115},{"$f":"B13*C13","v":200.56},{"$f":"B13","v":1744},{"$f":"VLOOKUP($A13,'Data Pass Through'!$A:$D,3,FALSE)","v":0.115},{"$f":"E13*F13","v":200.56},0,0,{"$f":"G13/$G$47","v":0.47762198459105498}]
["Sub-Total:  Energy (RPP Tiered)",null,null,{"$f":"SUM(D12:D13)","v":274.06},null,null,{"$f":"SUM(G12:G13)","v":274.06},0,0,{"$f":"G14/$G$47","v":0.65265796318819569}]
["TOU-Off Peak",{"$f":"B$4*VLOOKUP($B$3,'Data Billing Quantities'!$A:$O,MATCH(BI_UGe_Avg!$A15,'Data Billing Quantities'!$4:$4,0),FALSE)","v":1596.16},{"$f":"VLOOKUP($A15,'Data Pass Through'!$A:$D,2,FALSE)","v":8.2000000000000003E-2},{"$f":"B15*C15","v":130.88512},1596.16,{"$f":"VLOOKUP($A15,'Data Pass Through'!$A:$D,3,FALSE)","v":8.2000000000000003E-2},{"$f":"E15*F15","v":130.88512},0,0,null,{"$f":"G15/$G$52","v":0.3248462788990425}]
["TOU-Mid Peak",{"$f":"B$4*VLOOKUP($B$3,'Data Billing Quantities'!$A:$O,MATCH(BI_UGe_Avg!$A16,'Data Billing Quantities'!$4:$4,0),FALSE)","v":448.91999999999996},{"$f":"VLOOKUP($A16,'Data Pass Through'!$A:$D,2,FALSE)","v":0.113},{"$f":"B16*C16","v":50.727959999999996},448.91999999999996,{"$f":"VLOOKUP($A16,'Data Pass Through'!$A:$D,3,FALSE)","v":0.113},{"$f":"E16*F16","v":50.727959999999996},0,0,null,0.12590269269829504]
["TOU-On Peak",{"$f":"B$4*VLOOKUP($B$3,'Data Billing Quantities'!$A:$O,MATCH(BI_UGe_Avg!$A17,'Data Billing Quantities'!$4:$4,0),FALSE)","v":448.91999999999996},{"$f":"VLOOKUP($A17,'Data Pass Through'!$A:$D,2,FALSE)","v":0.17},{"$f":"B17*C17","v":76.316400000000002},448.91999999999996,{"$f":"VLOOKUP($A17,'Data Pass Through'!$A:$D,3,FALSE)","v":0.17},{"$f":"E17*F17","v":76.316400000000002},0,0,null,0.18941113060805453]
["Sub-Total:  Energy (RPP TOU)",null,null,{"$f":"SUM(D15:D17)","v":257.92948000000001},null,null,{"$f":"SUM(G15:G17)","v":257.92948000000001},0,0,{"$f":"G18/$G$47","v":0.61424406722247127},0.6401601022053921]
["Service Charge",1,{"$f":"VLOOKUP($B$3,'Data Current Rates'!$A:$AP,MATCH(BI_UGe_Avg!$A19,CurrentHeader,0),FALSE)","v":26.69},{"$f":"B19*C19","v":26.69},1,{"$f":"VLOOKUP($B$3,'Data Proposed Rates'!$A:$AZ,MATCH(BI_UGe_Avg!$A19,ProposedHeader,0),FALSE)","v":24.1},{"$f":"E19*F19","v":24.1},-2.59,-9.7040089921318837E-2,5.7392749444776757E-2,5.9814250248362268E-2]
["Fixed Base Rate Adjustment to Recover Past Tax Amounts ",1,{"$f":"VLOOKUP($B$3,'Data Current Rates'!$A:$AP,MATCH(BI_UGe_Avg!$A20,CurrentHeader,0),FALSE)","v":0.81},0.81,1,{"$f":"VLOOKUP($B$3,'Data Proposed Rates'!$A:$AZ,MATCH(BI_UGe_Avg!$A20,ProposedHeader,0),FALSE)","v":0.82},0.82,9.9999999999998979E-3,1.2345679012345552E-2,1.9527823462538146E-3,2.0351736599027821E-3]
["Group 2 Fixed DVA Rider ",null,null,null,1,{"$f":"VLOOKUP($B$3,'Data Proposed Rates'!$A:$AZ,MATCH(BI_UGe_Avg!$A21,ProposedHeader,0),FALSE)","v":0},0,0,"N/A",0,0]
["Distribution Volumetric Charge",{"$f":"IF($B$9=\"kWh\",$B$4,$B$5)","v":2494},{"$f":"VLOOKUP($B$3,'Data Current Rates'!$A:$AP,MATCH(BI_UGe_Avg!$A22,CurrentHeader,0),FALSE)","v":3.2099999999999997E-2},80.057399999999987,2494,{"$f":"VLOOKUP($B$3,'Data Proposed Rates'!$A:$AZ,MATCH(BI_UGe_Avg!$A22,ProposedHeader,0),FALSE)","v":3.1099999999999999E-2},77.563400000000001,-2.4939999999999856,-3.1152647975077705E-2,0.18471272955539408,0.19250608372256522]
["Volumetric Base Rate Adjustment to Recover Past Tax Amounts ",{"$f":"IF($B$9=\"kWh\",$B$4,$B$5)","v":2494},{"$f":"VLOOKUP($B$3,'Data Current Rates'!$A:$AP,MATCH(BI_UGe_Avg!$A23,CurrentHeader,0),FALSE)","v":1E-3},2.4940000000000002,2494,{"$f":"VLOOKUP($B$3,'Data Proposed Rates'!$A:$AZ,MATCH(BI_UGe_Avg!$A23,ProposedHeader,0),FALSE)","v":1.1000000000000001E-3},2.7434000000000003,0.24940000000000007,0.10000000000000002,6.533247669161849E-3,6.8088968519235292E-3]
["Group 1 Volumetric DVA Rider (General)",null,null,null,{"$f":"B4","v":2494},{"$f":"VLOOKUP($B$3,'Data Proposed Rates'!$A:$AZ,MATCH(BI_UGe_Avg!$A24,ProposedHeader,0),FALSE)","v":-4.0000000000000002E-4},-0.99760000000000004,-0.99760000000000004,"N/A",-2.3757264251497629E-3,-2.4759624916085559E-3]
["Group 2 Volumetric DVA Rider ",null,null,null,{"$f":"B4","v":2494},{"$f":"VLOOKUP($B$3,'Data Proposed Rates'!$A:$AZ,MATCH(BI_UGe_Avg!$A25,ProposedHeader,0),FALSE)","v":-1E-4},-0.24940000000000001,-0.24940000000000001,"N/A",-5.9393160628744073E-4,-6.1899062290213898E-4]
["Fair Hydro Plan - Distribution Rate Protection Savings*",null,null,{"$f":"IF(AND(B3<>\"R1\",B3<>\"R2\"),0,IF(VLOOKUP($A26,'Data Pass Through'!$A:$D,2,FALSE)=0,0,IF(SUM(D19:D20,D22:D23)<VLOOKUP($A26,'Data Pass Through'!$A:$D,2,FALSE),0,VLOOKUP($A26,'Data Pass Through'!$A:$D,2,FALSE)-SUM(D19:D20,D22:D23))))","v":0},null,null,{"$f":"IF(AND(B3<>\"R1\",B3<>\"R2\"),0,IF(VLOOKUP($A26,'Data Pass Through'!$A:$D,2,FALSE)=0,0,IF(SUM(G19:G20,G22:G23)<VLOOKUP($A26,'Data Pass Through'!$A:$D,2,FALSE),0,VLOOKUP($A26,'Data Pass Through'!$A:$D,2,FALSE)-SUM(G19:G20,G22:G23))))","v":0},0,"N/A",0,0]
["Sub-Total:  Distribution (excluding pass through)",null,null,{"$f":"SUM(INDIRECT(\"D19:D\"&ROW()-1))","v":110.05139999999999},null,null,{"$f":"SUM(INDIRECT(\"g19:g\"&ROW()-1))","v":103.9798},{"$f":"G27-D27","v":-6.0715999999999894},-5.5170583927146681E-2,0.24762185098414927,0.25806945136824311]
["Smart Metering Entity Charge",1,{"$f":"VLOOKUP($A28,'Data Pass Through'!$A:$D,2,FALSE)","v":0.56999999999999995},{"$f":"B28*C28","v":0.56999999999999995},1,{"$f":"VLOOKUP($A28,'Data Pass Through'!$A:$D,3,FALSE)","v":0.56999999999999995},{"$f":"E28*F28","v":0.56999999999999995},0,0,1.3574218748349687E-3,1.4146938855421779E-3]
["Line Losses on Cost of Power (based on two-tier RPP prices)",{"$f":"B8-B4","v":167.09799999999996},{"$f":"IF(B4>B7,C13,C12)","v":0.115},{"$f":"B29*C29","v":19.216269999999994},167.09799999999996,{"$f":"IF(B4>B7,F13,F12)","v":0.115},{"$f":"E29*F29","v":19.216269999999994},0,0,4.5762430264447297E-2,4.7693227494609788E-2]
["Line Losses on Cost of Power (based on TOU prices)",{"$f":"B8-B4","v":167.09799999999996},{"$f":"VLOOKUP($B$3,'Data Billing Quantities'!$A:$O,MATCH(BI_UGe_Avg!$A15,'Data Billing Quantities'!$4:$4,0),FALSE)*C15+VLOOKUP($B$3,'Data Billing Quantities'!$A:$O,MATCH(BI_UGe_Avg!$A16,'Data Billing Quantities'!$4:$4,0),FALSE)*C16+VLOOKUP($B$3,'Data Billing Quantities'!$A:$O,MATCH(BI_UGe_Avg!$A17,'Data Billing Quantities'!$4:$4,0),FALSE)*C17","v":0.10342000000000001},{"$f":"B30*C30","v":17.281275159999996},167.09799999999996,{"$f":"VLOOKUP($B$3,'Data Billing Quantities'!$A:$O,MATCH(BI_UGe_Avg!$A15,'Data Billing Quantities'!$4:$4,0),FALSE)*F15+VLOOKUP($B$3,'Data Billing Quantities'!$A:$O,MATCH(BI_UGe_Avg!$A16,'Data Billing Quantities'!$4:$4,0),FALSE)*F16+VLOOKUP($B$3,'Data Billing Quantities'!$A:$O,MATCH(BI_UGe_Avg!$A17,'Data Billing Quantities'!$4:$4,0),FALSE)*F17","v":0.10342000000000001},{"$f":"E30*F30","v":17.281275159999996},0,0,4.1154352503905561E-2,4.2890726847761261E-2]
["Sub-Total:  Distribution (based on two-tier RPP prices)",null,null,{"$f":"SUM(D27,D28:D29)","v":129.83766999999997},null,null,{"$f":"SUM(G27,G28:G29)","v":123.76606999999998},-6.0715999999999894,-4.67630079929807E-2,0.29474170312343151,0.30717737274839502]
["Sub-Total:  Distribution (based on TOU prices)",null,null,{"$f":"SUM(D27,D28,D30)","v":127.90267515999997},null,null,{"$f":"SUM(G27,G28,G30)","v":121.83107515999998},-6.0715999999999894,-4.7470469186080083E-2,0.29013362536288978,0.30237487210154651]
["Retail Transmission Rate – Network Service Rate",{"$f":"B8","v":2661.098},{"$f":"VLOOKUP($B$3,'Data Current Rates'!$A:$AP,MATCH(BI_UGe_Avg!$A33,CurrentHeader,0),FALSE)","v":8.3000000000000001E-3},{"$f":"B33*C33","v":22.0871134},2661.098,{"$f":"VLOOKUP($B$3,'Data Proposed Rates'!$A:$AZ,MATCH(BI_UGe_Avg!$A33,ProposedHeader,0),FALSE)","v":8.0000000000000002E-3},{"$f":"E33*F33","v":21.288784},{"$f":"G33-D33","v":-0.79832940000000008},-3.6144578313253017E-2,5.0698001912695939E-2,5.2837039570926579E-2]
["Retail Transmission Rate – Line and Transformation Connection Service Rate",{"$f":"B8","v":2661.098},{"$f":"VLOOKUP($B$3,'Data Current Rates'!$A:$AP,MATCH(BI_UGe_Avg!$A34,CurrentHeader,0),FALSE)","v":5.7000000000000002E-3},{"$f":"B34*C34","v":15.1682586},2661.098,{"$f":"VLOOKUP($B$3,'Data Proposed Rates'!$A:$AZ,MATCH(BI_UGe_Avg!$A34,ProposedHeader,0),FALSE)","v":6.1999999999999998E-3},{"$f":"E34*F34","v":16.498807599999999},{"$f":"G34-D34","v":1.3305489999999995},8.7719298245614002E-2,3.9290951482339354E-2,4.0948705667468097E-2]
["Sub-Total:  Retail Transmission ",null,null,{"$f":"SUM(D33:D34)","v":37.255372000000001},null,null,{"$f":"SUM(G33:G34)","v":37.787591599999999},{"$f":"G35-D35","v":0.53221959999999768},1.4285714285714223E-2,8.9988953395035293E-2,9.3785745238394683E-2]
["Sub-Total:  Delivery (based on two-tier RPP prices)",null,null,{"$f":"D31+D35","v":167.09304199999997},null,null,{"$f":"G31+G35","v":161.5536616},{"$f":"G36-D36","v":-5.5393803999999705},-3.3151472578971726E-2,0.38473065651846683,0.40096311798678974]
["Sub-Total:  Delivery (based on TOU prices)",null,null,{"$f":"D32+D35","v":165.15804715999997},null,null,{"$f":"G32+G35","v":159.61866676},{"$f":"G37-D37","v":-5.5393803999999705},-3.3539875865894631E-2,0.3801225787579251,0.39616061733994123]
["Wholesale Market Service Rate (WMS) - not including CBR",{"$f":"B8","v":2661.098},{"$f":"VLOOKUP($A38,'Data Pass Through'!$A:$D,2,FALSE)","v":3.0000000000000001E-3},{"$f":"B38*C38","v":7.9832939999999999},{"$f":"$B$8","v":2661.098},{"$f":"VLOOKUP($A38,'Data Pass Through'!$A:$D,3,FALSE)","v":3.0000000000000001E-3},{"$f":"E38*F38","v":7.9832939999999999},0,0,1.9011750717260977E-2,1.9813889839097466E-2]
["Capacity Based Recovery (CBR) - Applicable for Class B Customers",{"$f":"B8","v":2661.098},{"$f":"VLOOKUP($A39,'Data Pass Through'!$A:$D,2,FALSE)","v":4.0000000000000002E-4},{"$f":"B39*C39","v":1.0644392},{"$f":"$B$8","v":2661.098},{"$f":"VLOOKUP($A39,'Data Pass Through'!$A:$D,3,FALSE)","v":4.0000000000000002E-4},{"$f":"E39*F39","v":1.0644392},0,0,2.534900095634797E-3,2.6418519785463292E-3]
["Rural Rate Protection Charge",{"$f":"B8","v":2661.098},{"$f":"VLOOKUP($A40,'Data Pass Through'!$A:$D,2,FALSE)","v":5.0000000000000001E-4},1.330549,2661.098,{"$f":"VLOOKUP($A40,'Data Pass Through'!$A:$D,3,FALSE)","v":5.0000000000000001E-4},1.330549,0,0,3.1686251195434962E-3,3.3023149731829112E-3]
["Standard Supply Service – Administration Charge (if applicable)",1,{"$f":"VLOOKUP($A41,'Data Pass Through'!$A:$D,2,FALSE)","v":0.25},{"$f":"B41*C41","v":0.25},1,{"$f":"VLOOKUP($A41,'Data Pass Through'!$A:$D,3,FALSE)","v":0.25},0.25,0,0,5.9536047141884598E-4,6.2047977436060435E-4]
["Sub-Total:  Regulatory",null,null,{"$f":"SUM(D38:D41)","v":10.628282199999999},null,null,{"$f":"SUM(G38:G41)","v":10.628282199999999},0,0,2.5310636403858115E-2,2.6378536565187311E-2]
["Total  Electricty Charge on Two-Tier RPP ",null,null,{"$f":"SUM(D14,D27,D28,D29,D35,D42)","v":451.78132420000003},null,null,{"$f":"SUM(G14,G27,G28,G29,G35,G42)","v":446.2419438},-5.5393804000000273,-1.2261198290586681E-2,1.0626992561105206]
["     HST",null,0.13,{"$f":"D43*C44","v":58.731572146000005},null,{"$f":"C44","v":0.13},{"$f":"G43*F44","v":58.011452693999999},-0.72011945200000582,-1.2261198290586719E-2,0.13815090329436769]
["Total Electricity Charge on Two-Tier RPP (including HST)",null,null,{"$f":"SUM(D43:D44)","v":510.51289634600005},null,null,{"$f":"SUM(G43:G44)","v":504.25339649400001},-6.2594998520000331,-1.2261198290586684E-2,1.2008501594048884]
["Ontario Electricity Rebate (OER)",null,{"$f":"IF(($B$4*12)<250000,VLOOKUP(A46,'Data Pass Through'!$A$4:$C$20,2,0),0)","v":-0.189},{"$f":"D43*C46","v":-85.386670273800007},null,{"$f":"C46","v":-0.189},{"$f":"G43*F46","v":-84.339727378199996},1.0469428956000115,1.2261198290586755E-2,-0.2008501594048884]
["Total Amount on Two-Tier RPP",null,null,{"$f":"SUM(D45:D46)","v":425.12622607220004},null,null,{"$f":"SUM(G45:G46)","v":419.91366911580002},-5.2125569564000216,-1.226119829058667E-2,1]
["Total Electricty Charge on TOU (before HST)",null,null,{"$f":"SUM(D18,D27,D28,D30,D35,D42)","v":433.71580936000004},null,null,{"$f":"SUM(G18,G27,G28,G30,G35,G42)","v":428.17642896000001},-5.5393804000000273,-1.2771912576057698E-2,null,{"$f":"G48/$G$52","v":1.0626992561105206}]
["     HST",null,0.13,{"$f":"D48*C49","v":56.38305521680001},null,{"$f":"C49","v":0.13},{"$f":"G48*F49","v":55.662935764800004},-0.72011945200000582,-1.2771912576057736E-2,null,{"$f":"G49/$G$52","v":0.13815090329436769}]
["Total Electricity Charge on TOU (including HST)",null,null,{"$f":"SUM(D48:D49)","v":490.09886457680005},null,null,{"$f":"SUM(G48:G49)","v":483.83936472480002},-6.2594998520000331,-1.2771912576057701E-2,null,{"$f":"G50/$G$52","v":1.2008501594048884}]
["Ontario Electricity Rebate (OER)",null,{"$f":"IF(($B$4*12)<250000,VLOOKUP(A51,'Data Pass Through'!$A$4:$C$20,2,0),0)","v":-0.189},{"$f":"D48*C51","v":-81.972287969040011},null,{"$f":"C51","v":-0.189},{"$f":"G48*F51","v":-80.925345073439999},1.0469428956000115,1.2771912576057774E-2,null,{"$f":"G51/$G$52","v":-0.2008501594048884}]
["Total Amount on TOU",null,null,{"$f":"SUM(D50:D51)","v":408.12657660776006},null,null,{"$f":"SUM(G50:G51)","v":402.91401965136004},-5.2125569564000216,-1.2771912576057688E-2,null,{"$f":"G52/$G$52","v":1}]
["* Distribution rate protection applies to R1 and R2 customers"]

{"sheet":"BI_UGe_High","index":50,"n_rows":53,"n_cols":11,"rows_kept":53,"cut":false,"hidden":false,"merged":[[0,0,0,10]]}
["2023 Bill Impacts (High Consumption Level) - UGe"]
[]
["Rate Class",{"$f":"RIGHT(A1,LEN(A1)-FIND(\"- \",A1,1)-1)","v":"UGe"}]
["Monthly Consumption (kWh)",{"$f":"IF(COUNTIF(A1,\"*Low*\")>0,VLOOKUP(B3,'Data Billing Quantities'!$A:$Z,MATCH(\"Low kWh\",'Data Billing Quantities'!4:4,0),FALSE),IF(COUNTIF(A1,\"*Typical*\")>0,VLOOKUP(B3,'Data Billing Quantities'!$A:$Z,MATCH(\"Typical kWh\",'Data Billing Quantities'!4:4,0),FALSE),IF(COUNTIF(A1,\"*Average*\")>0,VLOOKUP(B3,'Data Billing Quantities'!$A:$Z,MATCH(\"Average kWh\",'Data Billing Quantities'!4:4,0),FALSE),IF(COUNTIF(A1,\"*High*\")>0,VLOOKUP(B3,'Data Billing Quantities'!$A:$Z,MATCH(\"High kWh\",'Data Billing Quantities'!4:4,0),FALSE),\"error\"))))","v":6930}]
["Peak (kW)",{"$f":"IF(COUNTIF(A1,\"*Low*\")>0,VLOOKUP(B3,'Data Billing Quantities'!$A:$Z,MATCH(\"Low kW\",'Data Billing Quantities'!4:4,0),FALSE),IF(COUNTIF(A1,\"*Typical*\")>0,VLOOKUP(B3,'Data Billing Quantities'!$A:$Z,MATCH(\"Typical kW\",'Data Billing Quantities'!4:4,0),FALSE),IF(COUNTIF(A1,\"*Average*\")>0,VLOOKUP(B3,'Data Billing Quantities'!$A:$Z,MATCH(\"Average kW\",'Data Billing Quantities'!4:4,0),FALSE),IF(COUNTIF(A1,\"*High*\")>0,VLOOKUP(B3,'Data Billing Quantities'!$A:$Z,MATCH(\"High kW\",'Data Billing Quantities'!4:4,0),FALSE),\"error\"))))","v":0}]
["Loss factor",{"$f":"VLOOKUP(B3,'Data Billing Quantities'!A:D,MATCH(A6,'Data Billing Quantities'!4:4,0),FALSE)","v":1.0669999999999999}]
["Commodity Threshold",{"$f":"VLOOKUP(B3,'Data Billing Quantities'!A:D,MATCH(A7,'Data Billing Quantities'!4:4,0),FALSE)","v":750}]
["Monthly Consumption (kWh) - Uplifted",{"$f":"B4*B6","v":7394.3099999999995}]
["Charge determinant",{"$f":"VLOOKUP(B3,'Data Billing Quantities'!A:D,MATCH(A9,'Data Billing Quantities'!4:4,0),FALSE)","v":"kWh"}]
[]
[null,"Volume","Current Rate ($)","Current Charge ($)","Volume","Proposed Rate ($)","Proposed Charge ($)","Change ($)","Change (%)","% of Total Bill on RPP","% of Total Bill"]
["Energy First Tier",{"$f":"IF(B4>B7,B7,B4)","v":750},{"$f":"VLOOKUP($A12,'Data Pass Through'!$A:$D,2,FALSE)","v":9.8000000000000004E-2},{"$f":"B12*C12","v":73.5},{"$f":"B12","v":750},{"$f":"VLOOKUP($A12,'Data Pass Through'!$A:$D,3,FALSE)","v":9.8000000000000004E-2},{"$f":"E12*F12","v":73.5},{"$f":"G12-D12","v":0},{"$f":"IF(ISERROR(H12/ABS(D12)),\"N/A\",(H12/ABS(D12)))","v":0},{"$f":"G12/$G$47","v":6.4188815654245945E-2}]
["Energy Second Tier",{"$f":"IF(B4>B7,(B4)-B7,0)","v":6180},{"$f":"VLOOKUP($A13,'Data Pass Through'!$A:$D,2,FALSE)","v":0.115},{"$f":"B13*C13","v":710.7},{"$f":"B13","v":6180},{"$f":"VLOOKUP($A13,'Data Pass Through'!$A:$D,3,FALSE)","v":0.115},{"$f":"E13*F13","v":710.7},0,0,{"$f":"G13/$G$47","v":0.62066654810166799}]
["Sub-Total:  Energy (RPP Tiered)",null,null,{"$f":"SUM(D12:D13)","v":784.2},null,null,{"$f":"SUM(G12:G13)","v":784.2},0,0,{"$f":"G14/$G$47","v":0.68485536375591394}]
["TOU-Off Peak",{"$f":"B$4*VLOOKUP($B$3,'Data Billing Quantities'!$A:$O,MATCH(BI_UGe_High!$A15,'Data Billing Quantities'!$4:$4,0),FALSE)","v":4435.2},{"$f":"VLOOKUP($A15,'Data Pass Through'!$A:$D,2,FALSE)","v":8.2000000000000003E-2},{"$f":"B15*C15","v":363.68639999999999},4435.2,{"$f":"VLOOKUP($A15,'Data Pass Through'!$A:$D,3,FALSE)","v":8.2000000000000003E-2},{"$f":"E15*F15","v":363.68639999999999},0,0,null,{"$f":"G15/$G$52","v":0.33784689772285914}]
["TOU-Mid Peak",{"$f":"B$4*VLOOKUP($B$3,'Data Billing Quantities'!$A:$O,MATCH(BI_UGe_High!$A16,'Data Billing Quantities'!$4:$4,0),FALSE)","v":1247.3999999999999},{"$f":"VLOOKUP($A16,'Data Pass Through'!$A:$D,2,FALSE)","v":0.113},{"$f":"B16*C16","v":140.9562},1247.3999999999999,{"$f":"VLOOKUP($A16,'Data Pass Through'!$A:$D,3,FALSE)","v":0.113},{"$f":"E16*F16","v":140.9562},0,0,null,0.13094142339334899]
["TOU-On Peak",{"$f":"B$4*VLOOKUP($B$3,'Data Billing Quantities'!$A:$O,MATCH(BI_UGe_High!$A17,'Data Billing Quantities'!$4:$4,0),FALSE)","v":1247.3999999999999},{"$f":"VLOOKUP($A17,'Data Pass Through'!$A:$D,2,FALSE)","v":0.17},{"$f":"B17*C17","v":212.05799999999999},1247.3999999999999,{"$f":"VLOOKUP($A17,'Data Pass Through'!$A:$D,3,FALSE)","v":0.17},{"$f":"E17*F17","v":212.05799999999999},0,0,null,0.19699152191919758]
["Sub-Total:  Energy (RPP TOU)",null,null,{"$f":"SUM(D15:D17)","v":716.70060000000001},null,null,{"$f":"SUM(G15:G17)","v":716.70060000000001},0,0,{"$f":"G18/$G$47","v":0.62590697541071372},0.66577984303540572]
["Service Charge",1,{"$f":"VLOOKUP($B$3,'Data Current Rates'!$A:$AP,MATCH(BI_UGe_High!$A19,CurrentHeader,0),FALSE)","v":26.69},{"$f":"B19*C19","v":26.69},1,{"$f":"VLOOKUP($B$3,'Data Proposed Rates'!$A:$AZ,MATCH(BI_UGe_High!$A19,ProposedHeader,0),FALSE)","v":24.1},{"$f":"E19*F19","v":24.1},-2.59,-9.7040089921318837E-2,2.1046944996834387E-2,2.2387722595953286E-2]
["Fixed Base Rate Adjustment to Recover Past Tax Amounts ",1,{"$f":"VLOOKUP($B$3,'Data Current Rates'!$A:$AP,MATCH(BI_UGe_High!$A20,CurrentHeader,0),FALSE)","v":0.81},0.81,1,{"$f":"VLOOKUP($B$3,'Data Proposed Rates'!$A:$AZ,MATCH(BI_UGe_High!$A20,ProposedHeader,0),FALSE)","v":0.82},0.82,9.9999999999998979E-3,1.2345679012345552E-2,7.1612012022424039E-4,7.6173993894944781E-4]
["Group 2 Fixed DVA Rider ",null,null,null,1,{"$f":"VLOOKUP($B$3,'Data Proposed Rates'!$A:$AZ,MATCH(BI_UGe_High!$A21,ProposedHeader,0),FALSE)","v":0},0,0,"N/A",0,0]
["Distribution Volumetric Charge",{"$f":"IF($B$9=\"kWh\",$B$4,$B$5)","v":6930},{"$f":"VLOOKUP($B$3,'Data Current Rates'!$A:$AP,MATCH(BI_UGe_High!$A22,CurrentHeader,0),FALSE)","v":3.2099999999999997E-2},222.45299999999997,6930,{"$f":"VLOOKUP($B$3,'Data Proposed Rates'!$A:$AZ,MATCH(BI_UGe_High!$A22,ProposedHeader,0),FALSE)","v":3.1099999999999999E-2},215.523,-6.9299999999999784,-3.1152647975077788E-2,0.18821994715986459,0.20021033763683152]
["Volumetric Base Rate Adjustment to Recover Past Tax Amounts ",{"$f":"IF($B$9=\"kWh\",$B$4,$B$5)","v":6930},{"$f":"VLOOKUP($B$3,'Data Current Rates'!$A:$AP,MATCH(BI_UGe_High!$A23,CurrentHeader,0),FALSE)","v":1E-3},6.93,6930,{"$f":"VLOOKUP($B$3,'Data Proposed Rates'!$A:$AZ,MATCH(BI_UGe_High!$A23,ProposedHeader,0),FALSE)","v":1.1000000000000001E-3},7.6230000000000002,0.6930000000000005,0.10000000000000007,6.6572971664260799E-3,7.0813945787946845E-3]
["Group 1 Volumetric DVA Rider (General)",null,null,null,{"$f":"B4","v":6930},{"$f":"VLOOKUP($B$3,'Data Proposed Rates'!$A:$AZ,MATCH(BI_UGe_High!$A24,ProposedHeader,0),FALSE)","v":-4.0000000000000002E-4},-2.7720000000000002,-2.7720000000000002,"N/A",-2.4208353332458472E-3,-2.5750525741071581E-3]
["Group 2 Volumetric DVA Rider ",null,null,null,{"$f":"B4","v":6930},{"$f":"VLOOKUP($B$3,'Data Proposed Rates'!$A:$AZ,MATCH(BI_UGe_High!$A25,ProposedHeader,0),FALSE)","v":-1E-4},-0.69300000000000006,-0.69300000000000006,"N/A",-6.0520883331146181E-4,-6.4376314352678952E-4]
["Fair Hydro Plan - Distribution Rate Protection Savings*",null,null,{"$f":"IF(AND(B3<>\"R1\",B3<>\"R2\"),0,IF(VLOOKUP($A26,'Data Pass Through'!$A:$D,2,FALSE)=0,0,IF(SUM(D19:D20,D22:D23)<VLOOKUP($A26,'Data Pass Through'!$A:$D,2,FALSE),0,VLOOKUP($A26,'Data Pass Through'!$A:$D,2,FALSE)-SUM(D19:D20,D22:D23))))","v":0},null,null,{"$f":"IF(AND(B3<>\"R1\",B3<>\"R2\"),0,IF(VLOOKUP($A26,'Data Pass Through'!$A:$D,2,FALSE)=0,0,IF(SUM(G19:G20,G22:G23)<VLOOKUP($A26,'Data Pass Through'!$A:$D,2,FALSE),0,VLOOKUP($A26,'Data Pass Through'!$A:$D,2,FALSE)-SUM(G19:G20,G22:G23))))","v":0},0,"N/A",0,0]
["Sub-Total:  Distribution (excluding pass through)",null,null,{"$f":"SUM(INDIRECT(\"D19:D\"&ROW()-1))","v":256.88299999999998},null,null,{"$f":"SUM(INDIRECT(\"g19:g\"&ROW()-1))","v":244.60099999999997},{"$f":"G27-D27","v":-12.282000000000011},-4.7811649661519101E-2,0.21361426527679198,0.22722237903289497]
["Smart Metering Entity Charge",1,{"$f":"VLOOKUP($A28,'Data Pass Through'!$A:$D,2,FALSE)","v":0.56999999999999995},{"$f":"B28*C28","v":0.56999999999999995},1,{"$f":"VLOOKUP($A28,'Data Pass Through'!$A:$D,3,FALSE)","v":0.56999999999999995},{"$f":"E28*F28","v":0.56999999999999995},0,0,4.9779081527782563E-4,5.2950215268437225E-4]
["Line Losses on Cost of Power (based on two-tier RPP prices)",{"$f":"B8-B4","v":464.30999999999949},{"$f":"IF(B4>B7,C13,C12)","v":0.115},{"$f":"B29*C29","v":53.395649999999947},464.30999999999949,{"$f":"IF(B4>B7,F13,F12)","v":0.115},{"$f":"E29*F29","v":53.395649999999947},0,0,4.6631340606648079E-2,4.960195020873908E-2]
["Line Losses on Cost of Power (based on TOU prices)",{"$f":"B8-B4","v":464.30999999999949},{"$f":"VLOOKUP($B$3,'Data Billing Quantities'!$A:$O,MATCH(BI_UGe_High!$A15,'Data Billing Quantities'!$4:$4,0),FALSE)*C15+VLOOKUP($B$3,'Data Billing Quantities'!$A:$O,MATCH(BI_UGe_High!$A16,'Data Billing Quantities'!$4:$4,0),FALSE)*C16+VLOOKUP($B$3,'Data Billing Quantities'!$A:$O,MATCH(BI_UGe_High!$A17,'Data Billing Quantities'!$4:$4,0),FALSE)*C17","v":0.10342000000000001},{"$f":"B30*C30","v":48.018940199999953},464.30999999999949,{"$f":"VLOOKUP($B$3,'Data Billing Quantities'!$A:$O,MATCH(BI_UGe_High!$A15,'Data Billing Quantities'!$4:$4,0),FALSE)*F15+VLOOKUP($B$3,'Data Billing Quantities'!$A:$O,MATCH(BI_UGe_High!$A16,'Data Billing Quantities'!$4:$4,0),FALSE)*F16+VLOOKUP($B$3,'Data Billing Quantities'!$A:$O,MATCH(BI_UGe_High!$A17,'Data Billing Quantities'!$4:$4,0),FALSE)*F17","v":0.10342000000000001},{"$f":"E30*F30","v":48.018940199999953},0,0,4.1935767352517778E-2,4.4607249483372136E-2]
["Sub-Total:  Distribution (based on two-tier RPP prices)",null,null,{"$f":"SUM(D27,D28:D29)","v":310.84864999999991},null,null,{"$f":"SUM(G27,G28:G29)","v":298.56664999999992},-12.281999999999982,-3.9511189770327089E-2,0.26074339669871788,0.27735383139431846]
["Sub-Total:  Distribution (based on TOU prices)",null,null,{"$f":"SUM(D27,D28,D30)","v":305.47194019999995},null,null,{"$f":"SUM(G27,G28,G30)","v":293.18994019999991},-12.282000000000039,-4.0206638920611541E-2,0.2560478234445876,0.27235913066895145]
["Retail Transmission Rate – Network Service Rate",{"$f":"B8","v":7394.3099999999995},{"$f":"VLOOKUP($B$3,'Data Current Rates'!$A:$AP,MATCH(BI_UGe_High!$A33,CurrentHeader,0),FALSE)","v":8.3000000000000001E-3},{"$f":"B33*C33","v":61.372772999999995},7394.3099999999995,{"$f":"VLOOKUP($B$3,'Data Proposed Rates'!$A:$AZ,MATCH(BI_UGe_High!$A33,ProposedHeader,0),FALSE)","v":8.0000000000000002E-3},{"$f":"E33*F33","v":59.15448},{"$f":"G33-D33","v":-2.2182929999999956},-3.6144578313252941E-2,5.1660626011466378E-2,5.4951621931446752E-2]
["Retail Transmission Rate – Line and Transformation Connection Service Rate",{"$f":"B8","v":7394.3099999999995},{"$f":"VLOOKUP($B$3,'Data Current Rates'!$A:$AP,MATCH(BI_UGe_High!$A34,CurrentHeader,0),FALSE)","v":5.7000000000000002E-3},{"$f":"B34*C34","v":42.147566999999995},7394.3099999999995,{"$f":"VLOOKUP($B$3,'Data Proposed Rates'!$A:$AZ,MATCH(BI_UGe_High!$A34,ProposedHeader,0),FALSE)","v":6.1999999999999998E-3},{"$f":"E34*F34","v":45.844721999999997},{"$f":"G34-D34","v":3.6971550000000022},8.77192982456141E-2,4.0036985158886436E-2,4.2587506996871229E-2]
["Sub-Total:  Retail Transmission ",null,null,{"$f":"SUM(D33:D34)","v":103.52033999999999},null,null,{"$f":"SUM(G33:G34)","v":104.999202},{"$f":"G35-D35","v":1.4788620000000066},1.4285714285714351E-2,9.1697611170352814E-2,9.7539128928317981E-2]
["Sub-Total:  Delivery (based on two-tier RPP prices)",null,null,{"$f":"D31+D35","v":414.36898999999988},null,null,{"$f":"G31+G35","v":403.56585199999995},{"$f":"G36-D36","v":-10.803137999999933},-2.6071299399117526E-2,0.35244100786907073,0.37489296032263647]
["Sub-Total:  Delivery (based on TOU prices)",null,null,{"$f":"D32+D35","v":408.99228019999993},null,null,{"$f":"G32+G35","v":398.18914219999988},{"$f":"G37-D37","v":-10.803138000000047},-2.6414038902439041E-2,0.34774543461494034,0.36989825959726941]
["Wholesale Market Service Rate (WMS) - not including CBR",{"$f":"B8","v":7394.3099999999995},{"$f":"VLOOKUP($A38,'Data Pass Through'!$A:$D,2,FALSE)","v":3.0000000000000001E-3},{"$f":"B38*C38","v":22.182929999999999},{"$f":"$B$8","v":7394.3099999999995},{"$f":"VLOOKUP($A38,'Data Pass Through'!$A:$D,3,FALSE)","v":3.0000000000000001E-3},{"$f":"E38*F38","v":22.182929999999999},0,0,1.9372734754299889E-2,2.0606858224292531E-2]
["Capacity Based Recovery (CBR) - Applicable for Class B Customers",{"$f":"B8","v":7394.3099999999995},{"$f":"VLOOKUP($A39,'Data Pass Through'!$A:$D,2,FALSE)","v":4.0000000000000002E-4},{"$f":"B39*C39","v":2.9577239999999998},{"$f":"$B$8","v":7394.3099999999995},{"$f":"VLOOKUP($A39,'Data Pass Through'!$A:$D,3,FALSE)","v":4.0000000000000002E-4},{"$f":"E39*F39","v":2.9577239999999998},0,0,2.5830313005733188E-3,2.7475810965723376E-3]
["Rural Rate Protection Charge",{"$f":"B8","v":7394.3099999999995},{"$f":"VLOOKUP($A40,'Data Pass Through'!$A:$D,2,FALSE)","v":5.0000000000000001E-4},3.697155,7394.3099999999995,{"$f":"VLOOKUP($A40,'Data Pass Through'!$A:$D,3,FALSE)","v":5.0000000000000001E-4},3.697155,0,0,3.2287891257166486E-3,3.434476370715422E-3]
["Standard Supply Service – Administration Charge (if applicable)",1,{"$f":"VLOOKUP($A41,'Data Pass Through'!$A:$D,2,FALSE)","v":0.25},{"$f":"B41*C41","v":0.25},1,{"$f":"VLOOKUP($A41,'Data Pass Through'!$A:$D,3,FALSE)","v":0.25},0.25,0,0,2.1832930494641479E-4,2.3223778626507558E-4]
["Sub-Total:  Regulatory",null,null,{"$f":"SUM(D38:D41)","v":29.087808999999996},null,null,{"$f":"SUM(G38:G41)","v":29.087808999999996},0,0,2.5402884485536271E-2,2.7021153477845363E-2]
["Total  Electricty Charge on Two-Tier RPP ",null,null,{"$f":"SUM(D14,D27,D28,D29,D35,D42)","v":1227.6567990000001},null,null,{"$f":"SUM(G14,G27,G28,G29,G35,G42)","v":1216.8536609999999},-10.803138000000217,-8.7998030140019751E-3,1.0626992561105209]
["     HST",null,0.13,{"$f":"D43*C44","v":159.59538387000001},null,{"$f":"C44","v":0.13},{"$f":"G43*F44","v":158.19097592999998},-1.4044079400000271,-8.7998030140019681E-3,0.13815090329436769]
["Total Electricity Charge on Two-Tier RPP (including HST)",null,null,{"$f":"SUM(D43:D44)","v":1387.2521828700001},null,null,{"$f":"SUM(G43:G44)","v":1375.0446369299998},-12.207545940000273,-8.7998030140019941E-3,1.2008501594048884]
["Ontario Electricity Rebate (OER)",null,{"$f":"IF(($B$4*12)<250000,VLOOKUP(A46,'Data Pass Through'!$A$4:$C$20,2,0),0)","v":-0.189},{"$f":"D43*C46","v":-232.02713501100001},null,{"$f":"C46","v":-0.189},{"$f":"G43*F46","v":-229.98534192899999},2.0417930820000265,8.7998030140019126E-3,-0.20085015940488846]
["Total Amount on Two-Tier RPP",null,null,{"$f":"SUM(D45:D46)","v":1155.2250478590001},null,null,{"$f":"SUM(G45:G46)","v":1145.0592950009998},-10.16575285800036,-8.7998030140021086E-3,1]
["Total Electricty Charge on TOU (before HST)",null,null,{"$f":"SUM(D18,D27,D28,D30,D35,D42)","v":1154.7806892000001},null,null,{"$f":"SUM(G18,G27,G28,G30,G35,G42)","v":1143.9775512000001},-10.80313799999999,-9.3551425833801414E-3,null,{"$f":"G48/$G$52","v":1.0626992561105206}]
["     HST",null,0.13,{"$f":"D48*C49","v":150.12148959600003},null,{"$f":"C49","v":0.13},{"$f":"G48*F49","v":148.717081656},-1.4044079400000271,-9.3551425833803305E-3,null,{"$f":"G49/$G$52","v":0.13815090329436769}]
["Total Electricity Charge on TOU (including HST)",null,null,{"$f":"SUM(D48:D49)","v":1304.902178796},null,null,{"$f":"SUM(G48:G49)","v":1292.6946328560002},-12.207545939999818,-9.3551425833800113E-3,null,{"$f":"G50/$G$52","v":1.2008501594048886}]
["Ontario Electricity Rebate (OER)",null,{"$f":"IF(($B$4*12)<250000,VLOOKUP(A51,'Data Pass Through'!$A$4:$C$20,2,0),0)","v":-0.189},{"$f":"D48*C51","v":-218.25355025880003},null,{"$f":"C51","v":-0.189},{"$f":"G48*F51","v":-216.21175717680003},2.0417930819999981,9.3551425833801414E-3,null,{"$f":"G51/$G$52","v":-0.20085015940488843}]
["Total Amount on TOU",null,null,{"$f":"SUM(D50:D51)","v":1086.6486285372},null,null,{"$f":"SUM(G50:G51)","v":1076.4828756792001},-10.165752857999905,-9.3551425833800651E-3,null,{"$f":"G52/$G$52","v":1}]
["* Distribution rate protection applies to R1 and R2 customers"]

{"sheet":"BI_GSd_Low","index":51,"n_rows":34,"n_cols":10,"rows_kept":34,"cut":false,"hidden":false,"merged":[[0,0,0,9]]}
["2023 Bill Impacts (Low Consumption Level) - GSd"]
[]
["Rate Class",{"$f":"RIGHT(A1,LEN(A1)-FIND(\"- \",A1,1)-1)","v":"GSd"}]
["Monthly Consumption (kWh)",{"$f":"IF(COUNTIF(A1,\"*Low*\")>0,VLOOKUP(B3,'Data Billing Quantities'!$A:$Z,MATCH(\"Low kWh\",'Data Billing Quantities'!4:4,0),FALSE),IF(COUNTIF(A1,\"*Typical*\")>0,VLOOKUP(B3,'Data Billing Quantities'!$A:$Z,MATCH(\"Typical kWh\",'Data Billing Quantities'!4:4,0),FALSE),IF(COUNTIF(A1,\"*Average*\")>0,VLOOKUP(B3,'Data Billing Quantities'!$A:$Z,MATCH(\"Average kWh\",'Data Billing Quantities'!4:4,0),FALSE),IF(COUNTIF(A1,\"*High*\")>0,VLOOKUP(B3,'Data Billing Quantities'!$A:$Z,MATCH(\"High kWh\",'Data Billing Quantities'!4:4,0),FALSE),\"error\"))))","v":9310}]
["Peak (kW)",{"$f":"IF(COUNTIF(A1,\"*Low*\")>0,VLOOKUP(B3,'Data Billing Quantities'!$A:$Z,MATCH(\"Low kW\",'Data Billing Quantities'!4:4,0),FALSE),IF(COUNTIF(A1,\"*Typical*\")>0,VLOOKUP(B3,'Data Billing Quantities'!$A:$Z,MATCH(\"Typical kW\",'Data Billing Quantities'!4:4,0),FALSE),IF(COUNTIF(A1,\"*Average*\")>0,VLOOKUP(B3,'Data Billing Quantities'!$A:$Z,MATCH(\"Average kW\",'Data Billing Quantities'!4:4,0),FALSE),IF(COUNTIF(A1,\"*High*\")>0,VLOOKUP(B3,'Data Billing Quantities'!$A:$Z,MATCH(\"High kW\",'Data Billing Quantities'!4:4,0),FALSE),\"error\"))))","v":55}]
["Loss factor",{"$f":"VLOOKUP(B3,'Data Billing Quantities'!A:D,MATCH(A6,'Data Billing Quantities'!4:4,0),FALSE)","v":1.0609999999999999}]
["Load factor",{"$f":"B4/(B5*730)","v":0.23188044831880447}]
["Monthly Consumption (kWh) - Uplifted",{"$f":"B4*B6","v":9877.91}]
["Charge determinant",{"$f":"VLOOKUP(B3,'Data Billing Quantities'!A:D,MATCH(A9,'Data Billing Quantities'!4:4,0),FALSE)","v":"kW"}]
[]
[null,"Volume","Current Rate ($)","Current Charge ($)","Volume","Proposed Rate ($)","Proposed Charge ($)","Change ($)","Change (%)","% of Total Bill "]
["Weighted Average Hourly Spot Price",{"$f":"B8","v":9877.91},{"$f":"VLOOKUP($A12,'Data Pass Through'!$A:$D,2,FALSE)","v":0.11899999999999999},{"$f":"B12*C12","v":1175.47129},{"$f":"B8","v":9877.91},{"$f":"VLOOKUP($A12,'Data Pass Through'!$A:$D,3,FALSE)","v":0.11899999999999999},{"$f":"E12*F12","v":1175.47129},{"$f":"G12-D12","v":0},{"$f":"IF(ISERROR(H12/ABS(D12)),\"N/A\",(H12/ABS(D12)))","v":0},{"$f":"G12/$G$34","v":0.40049342648461439}]
["Sub-Total:  Energy (WAHSP)",null,null,{"$f":"SUM(D12:D12)","v":1175.47129},null,null,{"$f":"SUM(G12:G12)","v":1175.47129},{"$f":"G13-D13","v":0},0,0.40049342648461439]
["Service Charge",1,{"$f":"VLOOKUP($B$3,'Data Current Rates'!$A:$AQ,MATCH($A14,CurrentHeader,0),FALSE)","v":112.58},{"$f":"B14*C14","v":112.58},{"$f":"B14","v":1},{"$f":"VLOOKUP($B$3,'Data Proposed Rates'!$A:$AZ,MATCH($A14,ProposedHeader,0),FALSE)","v":99.8},{"$f":"E14*F14","v":99.8},-12.780000000000001,-0.11351927518209275,3.4002739414558156E-2]
["Fixed Base Rate Adjustment to Recover Past Tax Amounts ",1,{"$f":"VLOOKUP($B$3,'Data Current Rates'!$A:$AQ,MATCH($A15,CurrentHeader,0),FALSE)","v":4.34},{"$f":"B15*C15","v":4.34},1,{"$f":"VLOOKUP($B$3,'Data Proposed Rates'!$A:$AZ,MATCH($A15,ProposedHeader,0),FALSE)","v":4.43},{"$f":"E15*F15","v":4.43},8.9999999999999858E-2,2.0737327188940061E-2,1.5093400361372005E-3]
["Distribution Volumetric Charge",{"$f":"IF($B$9=\"kWh\",$B$4,$B$5)","v":55},{"$f":"VLOOKUP($B$3,'Data Current Rates'!$A:$AQ,MATCH($A16,CurrentHeader,0),FALSE)","v":19.198899999999998},{"$f":"B16*C16","v":1055.9395},{"$f":"$B$5","v":55},{"$f":"VLOOKUP($B$3,'Data Proposed Rates'!$A:$AZ,MATCH($A16,ProposedHeader,0),FALSE)","v":18.417400000000001},1012.957,-42.982499999999959,{"$f":"IF(ISERROR(H16/ABS(D16)),\"N/A\",(H16/ABS(D16)))","v":-4.0705457083478704E-2},0.34512337584321229]
["Volumetric Base Rate Adjustment to Recover Past Tax Amounts ",{"$f":"IF($B$9=\"kWh\",$B$4,$B$5)","v":55},{"$f":"VLOOKUP($B$3,'Data Current Rates'!$A:$AQ,MATCH($A17,CurrentHeader,0),FALSE)","v":0.73380000000000001},40.359000000000002,{"$f":"$B$5","v":55},{"$f":"VLOOKUP($B$3,'Data Proposed Rates'!$A:$AZ,MATCH($A17,ProposedHeader,0),FALSE)","v":0.81110000000000004},44.610500000000002,4.2515000000000001,{"$f":"IF(ISERROR(H17/ABS(D17)),\"N/A\",(H17/ABS(D17)))","v":0.10534205505587353},1.519919044742632E-2]
["Group 1 Volumetric DVA Rider (General)",null,null,null,55,{"$f":"VLOOKUP($B$3,'Data Proposed Rates'!$A:$AZ,MATCH($A18,ProposedHeader,0),FALSE)","v":-5.0900000000000001E-2},-2.7995000000000001,-2.7995000000000001,"N/A",-9.5381431854765092E-4]
["Group 1 Volumetric Deferral/Variance Account Rider (Sub-Account RSVA Wholesale Market Service Charge & RSVA Power) ",null,null,null,55,{"$f":"VLOOKUP($B$3,'Data Proposed Rates'!$A:$AZ,MATCH($A19,ProposedHeader,0),FALSE)","v":-7.0999999999999994E-2},-3.9049999999999998,-3.9049999999999998,"N/A",-1.3304679099584128E-3]
["Group 1 Volumetric Deferral/Variance Account Rider (Sub-Account Global Adjustment)",null,null,null,{"$f":"B4","v":9310},{"$f":"VLOOKUP($B$3,'Data Proposed Rates'!$A:$AZ,MATCH($A20,ProposedHeader,0),FALSE)","v":-6.9999999999999999E-4},-6.5170000000000003,-6.5170000000000003,"N/A",-2.2203993262993539E-3]
["Group 2 Volumetric DVA Rider ",null,null,null,{"$f":"B5","v":55},{"$f":"VLOOKUP($B$3,'Data Proposed Rates'!$A:$AZ,MATCH($A21,ProposedHeader,0),FALSE)","v":-4.6600000000000003E-2},-2.5630000000000002,-2.5630000000000002,"N/A",-8.7323668456425402E-4]
["Sub-Total:  Distribution",null,null,{"$f":"SUM(INDIRECT(\"D14:D\"&ROW()-1))","v":1213.2184999999999},null,null,{"$f":"SUM(INDIRECT(\"g14:g\"&ROW()-1))","v":1146.0129999999997},-67.205500000000256,-5.5394391035085817E-2,0.3904567275019642]
["Retail Transmission Rate – Network Service Rate",{"$f":"IF($B$9=\"kWh\",$B$4,$B$5)","v":55},{"$f":"VLOOKUP($B$3,'Data Current Rates'!$A:$AQ,MATCH($A23,CurrentHeader,0),FALSE)","v":2.4327999999999999},{"$f":"B23*C23","v":133.804},55,{"$f":"VLOOKUP($B$3,'Data Proposed Rates'!$A:$AZ,MATCH($A23,ProposedHeader,0),FALSE)","v":2.4420000000000002},{"$f":"E23*F23","v":134.31},0.50600000000000023,3.7816507727721159E-3,4.5760600508710482E-2]
["Retail Transmission Rate – Line and Transformation Connection Service Rate",{"$f":"IF($B$9=\"kWh\",$B$4,$B$5)","v":55},{"$f":"VLOOKUP($B$3,'Data Current Rates'!$A:$AQ,MATCH($A24,CurrentHeader,0),FALSE)","v":1.7088000000000001},{"$f":"B24*C24","v":93.984000000000009},55,{"$f":"VLOOKUP($B$3,'Data Proposed Rates'!$A:$AZ,MATCH($A24,ProposedHeader,0),FALSE)","v":1.8695999999999999},{"$f":"E24*F24","v":102.828},8.8439999999999941,9.4101123595505543E-2,3.503440569659505E-2]
["Sub-Total:  Retail Transmission ",null,null,{"$f":"SUM(D23:D24)","v":227.78800000000001},null,null,{"$f":"SUM(G23:G24)","v":237.13800000000001},9.3499999999999943,4.1046938381301884E-2,8.0795006205305525E-2]
["Sub-Total:  Delivery ",null,null,{"$f":"D22+D25","v":1441.0065},null,null,{"$f":"G22+G25","v":1383.1509999999996},-57.855500000000347,-4.0149367820339704E-2,0.47125173370726969]
["Wholesale Market Service Rate (WMS) - not including CBR",{"$f":"$B$8","v":9877.91},{"$f":"VLOOKUP($A27,'Data Pass Through'!$A:$D,2,FALSE)","v":3.0000000000000001E-3},{"$f":"B27*C27","v":29.63373},{"$f":"$B$8","v":9877.91},{"$f":"VLOOKUP($A27,'Data Pass Through'!$A:$D,3,FALSE)","v":3.0000000000000001E-3},{"$f":"E27*F27","v":29.63373},0,0,1.0096472936586918E-2]
["Capacity Based Recovery (CBR) - Applicable for Class B Customers",{"$f":"$B$8","v":9877.91},{"$f":"VLOOKUP($A28,'Data Pass Through'!$A:$D,2,FALSE)","v":4.0000000000000002E-4},{"$f":"B28*C28","v":3.9511640000000003},{"$f":"$B$8","v":9877.91},{"$f":"VLOOKUP($A28,'Data Pass Through'!$A:$D,3,FALSE)","v":4.0000000000000002E-4},{"$f":"E28*F28","v":3.9511640000000003},{"$f":"G28-D28","v":0},0,1.3461963915449226E-3]
["Rural Rate Protection Charge",{"$f":"$B$8","v":9877.91},{"$f":"VLOOKUP($A29,'Data Pass Through'!$A:$D,2,FALSE)","v":5.0000000000000001E-4},{"$f":"B29*C29","v":4.938955},{"$f":"$B$8","v":9877.91},{"$f":"VLOOKUP($A29,'Data Pass Through'!$A:$D,3,FALSE)","v":5.0000000000000001E-4},{"$f":"E29*F29","v":4.938955},{"$f":"G29-D29","v":0},0,1.682745489431153E-3]
["Standard Supply Service – Administration Charge (if applicable)",1,{"$f":"VLOOKUP($A30,'Data Pass Through'!$A:$D,2,FALSE)","v":0.25},{"$f":"B30*C30","v":0.25},1,{"$f":"VLOOKUP($A30,'Data Pass Through'!$A:$D,3,FALSE)","v":0.25},{"$f":"E30*F30","v":0.25},0,0,8.5177202942279953E-5]
["Sub-Total:  Regulatory",null,null,{"$f":"SUM(D27:D30)","v":38.773848999999998},null,null,{"$f":"SUM(G27:G30)","v":38.773848999999998},0,0,1.3210592020505273E-2]
["Total Electricity Charge on Two-Tier RPP (before HST)",null,null,{"$f":"SUM(D13,D22,D25,D31)","v":2655.2516390000001},null,null,{"$f":"SUM(G13,G22,G25,G31)","v":2597.3961389999995},-57.855500000000575,-2.1789083622141988E-2,0.88495575221238931]
["     HST",null,0.13,{"$f":"D32*C33","v":345.18271307000003},null,{"$f":"C33","v":0.13},{"$f":"G32*F33","v":337.66149806999994},-7.5212150000000975,-2.1789083622142054E-2,0.11504424778761062]
["Total Amount on WAHSP",null,null,{"$f":"SUM(D32:D33)","v":3000.4343520699999},null,null,{"$f":"SUM(G32:G33)","v":2935.0576370699996},-65.376715000000331,-2.1789083622141884E-2,1]

{"sheet":"BI_GSd_Avg","index":52,"n_rows":34,"n_cols":10,"rows_kept":34,"cut":false,"hidden":false,"merged":[[0,0,0,9]]}
["2023 Bill Impacts (Average Consumption Level) - GSd"]
[]
["Rate Class",{"$f":"RIGHT(A1,LEN(A1)-FIND(\"- \",A1,1)-1)","v":"GSd"}]
["Monthly Consumption (kWh)",{"$f":"IF(COUNTIF(A1,\"*Low*\")>0,VLOOKUP(B3,'Data Billing Quantities'!$A:$Z,MATCH(\"Low kWh\",'Data Billing Quantities'!4:4,0),FALSE),IF(COUNTIF(A1,\"*Typical*\")>0,VLOOKUP(B3,'Data Billing Quantities'!$A:$Z,MATCH(\"Typical kWh\",'Data Billing Quantities'!4:4,0),FALSE),IF(COUNTIF(A1,\"*Average*\")>0,VLOOKUP(B3,'Data Billing Quantities'!$A:$Z,MATCH(\"Average kWh\",'Data Billing Quantities'!4:4,0),FALSE),IF(COUNTIF(A1,\"*High*\")>0,VLOOKUP(B3,'Data Billing Quantities'!$A:$Z,MATCH(\"High kWh\",'Data Billing Quantities'!4:4,0),FALSE),\"error\"))))","v":34334}]
["Peak (kW)",{"$f":"IF(COUNTIF(A1,\"*Low*\")>0,VLOOKUP(B3,'Data Billing Quantities'!$A:$Z,MATCH(\"Low kW\",'Data Billing Quantities'!4:4,0),FALSE),IF(COUNTIF(A1,\"*Typical*\")>0,VLOOKUP(B3,'Data Billing Quantities'!$A:$Z,MATCH(\"Typical kW\",'Data Billing Quantities'!4:4,0),FALSE),IF(COUNTIF(A1,\"*Average*\")>0,VLOOKUP(B3,'Data Billing Quantities'!$A:$Z,MATCH(\"Average kW\",'Data Billing Quantities'!4:4,0),FALSE),IF(COUNTIF(A1,\"*High*\")>0,VLOOKUP(B3,'Data Billing Quantities'!$A:$Z,MATCH(\"High kW\",'Data Billing Quantities'!4:4,0),FALSE),\"error\"))))","v":110}]
["Loss factor",{"$f":"VLOOKUP(B3,'Data Billing Quantities'!A:D,MATCH(A6,'Data Billing Quantities'!4:4,0),FALSE)","v":1.0609999999999999}]
["Load factor",{"$f":"B4/(B5*730)","v":0.42757160647571607}]
["Monthly Consumption (kWh) - Uplifted",{"$f":"B4*B6","v":36428.373999999996}]
["Charge determinant",{"$f":"VLOOKUP(B3,'Data Billing Quantities'!A:D,MATCH(A9,'Data Billing Quantities'!4:4,0),FALSE)","v":"kW"}]
[]
[null,"Volume","Current Rate ($)","Current Charge ($)","Volume","Proposed Rate ($)","Proposed Charge ($)","Change ($)","Change (%)","% of Total Bill "]
["Weighted Average Hourly Spot Price",{"$f":"B8","v":36428.373999999996},{"$f":"VLOOKUP($A12,'Data Pass Through'!$A:$D,2,FALSE)","v":0.11899999999999999},{"$f":"B12*C12","v":4334.9765059999991},{"$f":"B8","v":36428.373999999996},{"$f":"VLOOKUP($A12,'Data Pass Through'!$A:$D,3,FALSE)","v":0.11899999999999999},{"$f":"E12*F12","v":4334.9765059999991},{"$f":"G12-D12","v":0},{"$f":"IF(ISERROR(H12/ABS(D12)),\"N/A\",(H12/ABS(D12)))","v":0},{"$f":"G12/$G$34","v":0.5381682960680213}]
["Sub-Total:  Energy (WAHSP)",null,null,{"$f":"SUM(D12:D12)","v":4334.9765059999991},null,null,{"$f":"SUM(G12:G12)","v":4334.9765059999991},{"$f":"G13-D13","v":0},0,0.5381682960680213]
["Service Charge",1,{"$f":"VLOOKUP($B$3,'Data Current Rates'!$A:$AQ,MATCH($A14,CurrentHeader,0),FALSE)","v":112.58},{"$f":"B14*C14","v":112.58},{"$f":"B14","v":1},{"$f":"VLOOKUP($B$3,'Data Proposed Rates'!$A:$AZ,MATCH($A14,ProposedHeader,0),FALSE)","v":99.8},{"$f":"E14*F14","v":99.8},-12.780000000000001,-0.11351927518209275,1.2389731725939034E-2]
["Fixed Base Rate Adjustment to Recover Past Tax Amounts ",1,{"$f":"VLOOKUP($B$3,'Data Current Rates'!$A:$AQ,MATCH($A15,CurrentHeader,0),FALSE)","v":4.34},{"$f":"B15*C15","v":4.34},1,{"$f":"VLOOKUP($B$3,'Data Proposed Rates'!$A:$AZ,MATCH($A15,ProposedHeader,0),FALSE)","v":4.43},{"$f":"E15*F15","v":4.43},8.9999999999999858E-2,2.0737327188940061E-2,5.499650455501996E-4]
["Distribution Volumetric Charge",{"$f":"IF($B$9=\"kWh\",$B$4,$B$5)","v":110},{"$f":"VLOOKUP($B$3,'Data Current Rates'!$A:$AQ,MATCH($A16,CurrentHeader,0),FALSE)","v":19.198899999999998},{"$f":"B16*C16","v":2111.8789999999999},{"$f":"$B$5","v":110},{"$f":"VLOOKUP($B$3,'Data Proposed Rates'!$A:$AZ,MATCH($A16,ProposedHeader,0),FALSE)","v":18.417400000000001},2025.914,-85.964999999999918,{"$f":"IF(ISERROR(H16/ABS(D16)),\"N/A\",(H16/ABS(D16)))","v":-4.0705457083478704E-2},0.25150832625074199]
["Volumetric Base Rate Adjustment to Recover Past Tax Amounts ",{"$f":"IF($B$9=\"kWh\",$B$4,$B$5)","v":110},{"$f":"VLOOKUP($B$3,'Data Current Rates'!$A:$AQ,MATCH($A17,CurrentHeader,0),FALSE)","v":0.73380000000000001},80.718000000000004,{"$f":"$B$5","v":110},{"$f":"VLOOKUP($B$3,'Data Proposed Rates'!$A:$AZ,MATCH($A17,ProposedHeader,0),FALSE)","v":0.81110000000000004},89.221000000000004,8.5030000000000001,{"$f":"IF(ISERROR(H17/ABS(D17)),\"N/A\",(H17/ABS(D17)))","v":0.10534205505587353},1.1076395333867801E-2]
["Group 1 Volumetric DVA Rider (General)",null,null,null,110,{"$f":"VLOOKUP($B$3,'Data Proposed Rates'!$A:$AZ,MATCH($A18,ProposedHeader,0),FALSE)","v":-5.0900000000000001E-2},-5.5990000000000002,-5.5990000000000002,"N/A",-6.9509126185904465E-4]
["Group 1 Volumetric Deferral/Variance Account Rider (Sub-Account RSVA Wholesale Market Service Charge & RSVA Power) ",null,null,null,110,{"$f":"VLOOKUP($B$3,'Data Proposed Rates'!$A:$AZ,MATCH($A19,ProposedHeader,0),FALSE)","v":-7.0999999999999994E-2},-7.81,-7.81,"N/A",-9.6957720220023898E-4]
["Group 1 Volumetric Deferral/Variance Account Rider (Sub-Account Global Adjustment)",null,null,null,{"$f":"B4","v":34334},{"$f":"VLOOKUP($B$3,'Data Proposed Rates'!$A:$AZ,MATCH($A20,ProposedHeader,0),FALSE)","v":-6.9999999999999999E-4},-24.033799999999999,-24.033799999999999,"N/A",-2.9836907249987327E-3]
["Group 2 Volumetric DVA Rider ",null,null,null,{"$f":"B5","v":110},{"$f":"VLOOKUP($B$3,'Data Proposed Rates'!$A:$AZ,MATCH($A21,ProposedHeader,0),FALSE)","v":-4.6600000000000003E-2},-5.1260000000000003,-5.1260000000000003,"N/A",-6.3637038904973441E-4]
["Sub-Total:  Distribution",null,null,{"$f":"SUM(INDIRECT(\"D14:D\"&ROW()-1))","v":2309.5169999999998},null,null,{"$f":"SUM(INDIRECT(\"g14:g\"&ROW()-1))","v":2176.7961999999993},-132.72080000000051,-5.7466907582841141E-2,0.2702396887779912]
["Retail Transmission Rate – Network Service Rate",{"$f":"IF($B$9=\"kWh\",$B$4,$B$5)","v":110},{"$f":"VLOOKUP($B$3,'Data Current Rates'!$A:$AQ,MATCH($A23,CurrentHeader,0),FALSE)","v":2.4327999999999999},{"$f":"B23*C23","v":267.608},110,{"$f":"VLOOKUP($B$3,'Data Proposed Rates'!$A:$AZ,MATCH($A23,ProposedHeader,0),FALSE)","v":2.4420000000000002},{"$f":"E23*F23","v":268.62},1.0120000000000005,3.7816507727721159E-3,3.3347993348915264E-2]
["Retail Transmission Rate – Line and Transformation Connection Service Rate",{"$f":"IF($B$9=\"kWh\",$B$4,$B$5)","v":110},{"$f":"VLOOKUP($B$3,'Data Current Rates'!$A:$AQ,MATCH($A24,CurrentHeader,0),FALSE)","v":1.7088000000000001},{"$f":"B24*C24","v":187.96800000000002},110,{"$f":"VLOOKUP($B$3,'Data Proposed Rates'!$A:$AZ,MATCH($A24,ProposedHeader,0),FALSE)","v":1.8695999999999999},{"$f":"E24*F24","v":205.65600000000001},17.687999999999988,9.4101123595505543E-2,2.55312892568108E-2]
["Sub-Total:  Retail Transmission ",null,null,{"$f":"SUM(D23:D24)","v":455.57600000000002},null,null,{"$f":"SUM(G23:G24)","v":474.27600000000001},18.699999999999989,4.1046938381301884E-2,5.8879282605726065E-2]
["Sub-Total:  Delivery ",null,null,{"$f":"D22+D25","v":2765.0929999999998},null,null,{"$f":"G22+G25","v":2651.0721999999992},-114.02080000000069,-4.1235792069200097E-2,0.32911897138371726]
["Wholesale Market Service Rate (WMS) - not including CBR",{"$f":"$B$8","v":36428.373999999996},{"$f":"VLOOKUP($A27,'Data Pass Through'!$A:$D,2,FALSE)","v":3.0000000000000001E-3},{"$f":"B27*C27","v":109.28512199999999},{"$f":"$B$8","v":36428.373999999996},{"$f":"VLOOKUP($A27,'Data Pass Through'!$A:$D,3,FALSE)","v":3.0000000000000001E-3},{"$f":"E27*F27","v":109.28512199999999},0,0,1.3567267968101379E-2]
["Capacity Based Recovery (CBR) - Applicable for Class B Customers",{"$f":"$B$8","v":36428.373999999996},{"$f":"VLOOKUP($A28,'Data Pass Through'!$A:$D,2,FALSE)","v":4.0000000000000002E-4},{"$f":"B28*C28","v":14.5713496},{"$f":"$B$8","v":36428.373999999996},{"$f":"VLOOKUP($A28,'Data Pass Through'!$A:$D,3,FALSE)","v":4.0000000000000002E-4},{"$f":"E28*F28","v":14.5713496},{"$f":"G28-D28","v":0},0,1.8089690624135174E-3]
["Rural Rate Protection Charge",{"$f":"$B$8","v":36428.373999999996},{"$f":"VLOOKUP($A29,'Data Pass Through'!$A:$D,2,FALSE)","v":5.0000000000000001E-4},{"$f":"B29*C29","v":18.214186999999999},{"$f":"$B$8","v":36428.373999999996},{"$f":"VLOOKUP($A29,'Data Pass Through'!$A:$D,3,FALSE)","v":5.0000000000000001E-4},{"$f":"E29*F29","v":18.214186999999999},{"$f":"G29-D29","v":0},0,2.2612113280168966E-3]
["Standard Supply Service – Administration Charge (if applicable)",1,{"$f":"VLOOKUP($A30,'Data Pass Through'!$A:$D,2,FALSE)","v":0.25},{"$f":"B30*C30","v":0.25},1,{"$f":"VLOOKUP($A30,'Data Pass Through'!$A:$D,3,FALSE)","v":0.25},{"$f":"E30*F30","v":0.25},0,0,3.1036402119085757E-5]
["Sub-Total:  Regulatory",null,null,{"$f":"SUM(D27:D30)","v":142.3206586},null,null,{"$f":"SUM(G27:G30)","v":142.3206586},0,0,1.7668484760650881E-2]
["Total Electricity Charge on Two-Tier RPP (before HST)",null,null,{"$f":"SUM(D13,D22,D25,D31)","v":7242.3901645999986},null,null,{"$f":"SUM(G13,G22,G25,G31)","v":7128.3693645999974},-114.02080000000115,-1.574353181872501E-2,0.88495575221238931]
["     HST",null,0.13,{"$f":"D32*C33","v":941.51072139799987},null,{"$f":"C33","v":0.13},{"$f":"G32*F33","v":926.68801739799972},-14.822704000000158,-1.574353181872502E-2,0.11504424778761062]
["Total Amount on WAHSP",null,null,{"$f":"SUM(D32:D33)","v":8183.9008859979986},null,null,{"$f":"SUM(G32:G33)","v":8055.0573819979973},-128.8435040000013,-1.5743531818725013E-2,1]

{"sheet":"BI_GSd_High","index":53,"n_rows":34,"n_cols":10,"rows_kept":34,"cut":false,"hidden":false,"merged":[[0,0,0,9]]}
["2023 Bill Impacts (High Consumption Level) - GSd"]
[]
["Rate Class",{"$f":"RIGHT(A1,LEN(A1)-FIND(\"- \",A1,1)-1)","v":"GSd"}]
["Monthly Consumption (kWh)",{"$f":"IF(COUNTIF(A1,\"*Low*\")>0,VLOOKUP(B3,'Data Billing Quantities'!$A:$Z,MATCH(\"Low kWh\",'Data Billing Quantities'!4:4,0),FALSE),IF(COUNTIF(A1,\"*Typical*\")>0,VLOOKUP(B3,'Data Billing Quantities'!$A:$Z,MATCH(\"Typical kWh\",'Data Billing Quantities'!4:4,0),FALSE),IF(COUNTIF(A1,\"*Average*\")>0,VLOOKUP(B3,'Data Billing Quantities'!$A:$Z,MATCH(\"Average kWh\",'Data Billing Quantities'!4:4,0),FALSE),IF(COUNTIF(A1,\"*High*\")>0,VLOOKUP(B3,'Data Billing Quantities'!$A:$Z,MATCH(\"High kWh\",'Data Billing Quantities'!4:4,0),FALSE),\"error\"))))","v":75790}]
["Peak (kW)",{"$f":"IF(COUNTIF(A1,\"*Low*\")>0,VLOOKUP(B3,'Data Billing Quantities'!$A:$Z,MATCH(\"Low kW\",'Data Billing Quantities'!4:4,0),FALSE),IF(COUNTIF(A1,\"*Typical*\")>0,VLOOKUP(B3,'Data Billing Quantities'!$A:$Z,MATCH(\"Typical kW\",'Data Billing Quantities'!4:4,0),FALSE),IF(COUNTIF(A1,\"*Average*\")>0,VLOOKUP(B3,'Data Billing Quantities'!$A:$Z,MATCH(\"Average kW\",'Data Billing Quantities'!4:4,0),FALSE),IF(COUNTIF(A1,\"*High*\")>0,VLOOKUP(B3,'Data Billing Quantities'!$A:$Z,MATCH(\"High kW\",'Data Billing Quantities'!4:4,0),FALSE),\"error\"))))","v":250}]
["Loss factor",{"$f":"VLOOKUP(B3,'Data Billing Quantities'!A:D,MATCH(A6,'Data Billing Quantities'!4:4,0),FALSE)","v":1.0609999999999999}]
["Load factor",{"$f":"B4/(B5*730)","v":0.41528767123287669}]
["Monthly Consumption (kWh) - Uplifted",{"$f":"B4*B6","v":80413.19}]
["Charge determinant",{"$f":"VLOOKUP(B3,'Data Billing Quantities'!A:D,MATCH(A9,'Data Billing Quantities'!4:4,0),FALSE)","v":"kW"}]
[]
[null,"Volume","Current Rate ($)","Current Charge ($)","Volume","Proposed Rate ($)","Proposed Charge ($)","Change ($)","Change (%)","% of Total Bill "]
["Weighted Average Hourly Spot Price",{"$f":"B8","v":80413.19},{"$f":"VLOOKUP($A12,'Data Pass Through'!$A:$D,2,FALSE)","v":0.11899999999999999},{"$f":"B12*C12","v":9569.169609999999},{"$f":"B8","v":80413.19},{"$f":"VLOOKUP($A12,'Data Pass Through'!$A:$D,3,FALSE)","v":0.11899999999999999},{"$f":"E12*F12","v":9569.169609999999},{"$f":"G12-D12","v":0},{"$f":"IF(ISERROR(H12/ABS(D12)),\"N/A\",(H12/ABS(D12)))","v":0},{"$f":"G12/$G$34","v":0.53674549625263812}]
["Sub-Total:  Energy (WAHSP)",null,null,{"$f":"SUM(D12:D12)","v":9569.169609999999},null,null,{"$f":"SUM(G12:G12)","v":9569.169609999999},{"$f":"G13-D13","v":0},0,0.53674549625263812]
["Service Charge",1,{"$f":"VLOOKUP($B$3,'Data Current Rates'!$A:$AQ,MATCH($A14,CurrentHeader,0),FALSE)","v":112.58},{"$f":"B14*C14","v":112.58},{"$f":"B14","v":1},{"$f":"VLOOKUP($B$3,'Data Proposed Rates'!$A:$AZ,MATCH($A14,ProposedHeader,0),FALSE)","v":99.8},{"$f":"E14*F14","v":99.8},-12.780000000000001,-0.11351927518209275,5.5978943533443425E-3]
["Fixed Base Rate Adjustment to Recover Past Tax Amounts ",1,{"$f":"VLOOKUP($B$3,'Data Current Rates'!$A:$AQ,MATCH($A15,CurrentHeader,0),FALSE)","v":4.34},{"$f":"B15*C15","v":4.34},1,{"$f":"VLOOKUP($B$3,'Data Proposed Rates'!$A:$AZ,MATCH($A15,ProposedHeader,0),FALSE)","v":4.43},{"$f":"E15*F15","v":4.43},8.9999999999999858E-2,2.0737327188940061E-2,2.4848368722760959E-4]
["Distribution Volumetric Charge",{"$f":"IF($B$9=\"kWh\",$B$4,$B$5)","v":250},{"$f":"VLOOKUP($B$3,'Data Current Rates'!$A:$AQ,MATCH($A16,CurrentHeader,0),FALSE)","v":19.198899999999998},{"$f":"B16*C16","v":4799.7249999999995},{"$f":"$B$5","v":250},{"$f":"VLOOKUP($B$3,'Data Proposed Rates'!$A:$AZ,MATCH($A16,ProposedHeader,0),FALSE)","v":18.417400000000001},4604.3500000000004,-195.37499999999909,{"$f":"IF(ISERROR(H16/ABS(D16)),\"N/A\",(H16/ABS(D16)))","v":-4.0705457083478558E-2},0.25826317500822671]
["Volumetric Base Rate Adjustment to Recover Past Tax Amounts ",{"$f":"IF($B$9=\"kWh\",$B$4,$B$5)","v":250},{"$f":"VLOOKUP($B$3,'Data Current Rates'!$A:$AQ,MATCH($A17,CurrentHeader,0),FALSE)","v":0.73380000000000001},183.45,{"$f":"$B$5","v":250},{"$f":"VLOOKUP($B$3,'Data Proposed Rates'!$A:$AZ,MATCH($A17,ProposedHeader,0),FALSE)","v":0.81110000000000004},202.77500000000001,19.325000000000017,{"$f":"IF(ISERROR(H17/ABS(D17)),\"N/A\",(H17/ABS(D17)))","v":0.10534205505587363},1.1373878031056104E-2]
["Group 1 Volumetric DVA Rider (General)",null,null,null,250,{"$f":"VLOOKUP($B$3,'Data Proposed Rates'!$A:$AZ,MATCH($A18,ProposedHeader,0),FALSE)","v":-5.0900000000000001E-2},-12.725,-12.725,"N/A",-7.1375957561429625E-4]
["Group 1 Volumetric Deferral/Variance Account Rider (Sub-Account RSVA Wholesale Market Service Charge & RSVA Power) ",null,null,null,250,{"$f":"VLOOKUP($B$3,'Data Proposed Rates'!$A:$AZ,MATCH($A19,ProposedHeader,0),FALSE)","v":-7.0999999999999994E-2},-17.75,-17.75,"N/A",-9.9561748268398877E-4]
["Group 1 Volumetric Deferral/Variance Account Rider (Sub-Account Global Adjustment)",null,null,null,{"$f":"B4","v":75790},{"$f":"VLOOKUP($B$3,'Data Proposed Rates'!$A:$AZ,MATCH($A20,ProposedHeader,0),FALSE)","v":-6.9999999999999999E-4},-53.052999999999997,-53.052999999999997,"N/A",-2.9758024962723189E-3]
["Group 2 Volumetric DVA Rider ",null,null,null,{"$f":"B5","v":250},{"$f":"VLOOKUP($B$3,'Data Proposed Rates'!$A:$AZ,MATCH($A21,ProposedHeader,0),FALSE)","v":-4.6600000000000003E-2},-11.65,-11.65,"N/A",-6.5346161539540676E-4]
["Sub-Total:  Distribution",null,null,{"$f":"SUM(INDIRECT(\"D14:D\"&ROW()-1))","v":5100.0949999999993},null,null,{"$f":"SUM(INDIRECT(\"g14:g\"&ROW()-1))","v":4816.1769999999997},-283.91799999999967,-5.5669159103898989E-2,0.27014478990988872]
["Retail Transmission Rate – Network Service Rate",{"$f":"IF($B$9=\"kWh\",$B$4,$B$5)","v":250},{"$f":"VLOOKUP($B$3,'Data Current Rates'!$A:$AQ,MATCH($A23,CurrentHeader,0),FALSE)","v":2.4327999999999999},{"$f":"B23*C23","v":608.19999999999993},250,{"$f":"VLOOKUP($B$3,'Data Proposed Rates'!$A:$AZ,MATCH($A23,ProposedHeader,0),FALSE)","v":2.4420000000000002},{"$f":"E23*F23","v":610.5},2.3000000000000682,3.781650772772227E-3,3.4243632291750717E-2]
["Retail Transmission Rate – Line and Transformation Connection Service Rate",{"$f":"IF($B$9=\"kWh\",$B$4,$B$5)","v":250},{"$f":"VLOOKUP($B$3,'Data Current Rates'!$A:$AQ,MATCH($A24,CurrentHeader,0),FALSE)","v":1.7088000000000001},{"$f":"B24*C24","v":427.20000000000005},250,{"$f":"VLOOKUP($B$3,'Data Proposed Rates'!$A:$AZ,MATCH($A24,ProposedHeader,0),FALSE)","v":1.8695999999999999},{"$f":"E24*F24","v":467.4},40.199999999999932,9.4101123595505445E-2,2.6216992191915287E-2]
["Sub-Total:  Retail Transmission ",null,null,{"$f":"SUM(D23:D24)","v":1035.4000000000001},null,null,{"$f":"SUM(G23:G24)","v":1077.9000000000001},42.5,4.1046938381301912E-2,6.0460624483666008E-2]
["Sub-Total:  Delivery ",null,null,{"$f":"D22+D25","v":6135.494999999999},null,null,{"$f":"G22+G25","v":5894.0769999999993},-241.41799999999967,-3.9347762486971256E-2,0.33060541439355473]
["Wholesale Market Service Rate (WMS) - not including CBR",{"$f":"$B$8","v":80413.19},{"$f":"VLOOKUP($A27,'Data Pass Through'!$A:$D,2,FALSE)","v":3.0000000000000001E-3},{"$f":"B27*C27","v":241.23957000000001},{"$f":"$B$8","v":80413.19},{"$f":"VLOOKUP($A27,'Data Pass Through'!$A:$D,3,FALSE)","v":3.0000000000000001E-3},{"$f":"E27*F27","v":241.23957000000001},0,0,1.3531399065192559E-2]
["Capacity Based Recovery (CBR) - Applicable for Class B Customers",{"$f":"$B$8","v":80413.19},{"$f":"VLOOKUP($A28,'Data Pass Through'!$A:$D,2,FALSE)","v":4.0000000000000002E-4},{"$f":"B28*C28","v":32.165276000000006},{"$f":"$B$8","v":80413.19},{"$f":"VLOOKUP($A28,'Data Pass Through'!$A:$D,3,FALSE)","v":4.0000000000000002E-4},{"$f":"E28*F28","v":32.165276000000006},{"$f":"G28-D28","v":0},0,1.8041865420256747E-3]
["Rural Rate Protection Charge",{"$f":"$B$8","v":80413.19},{"$f":"VLOOKUP($A29,'Data Pass Through'!$A:$D,2,FALSE)","v":5.0000000000000001E-4},{"$f":"B29*C29","v":40.206595},{"$f":"$B$8","v":80413.19},{"$f":"VLOOKUP($A29,'Data Pass Through'!$A:$D,3,FALSE)","v":5.0000000000000001E-4},{"$f":"E29*F29","v":40.206595},{"$f":"G29-D29","v":0},0,2.2552331775320929E-3]
["Standard Supply Service – Administration Charge (if applicable)",1,{"$f":"VLOOKUP($A30,'Data Pass Through'!$A:$D,2,FALSE)","v":0.25},{"$f":"B30*C30","v":0.25},1,{"$f":"VLOOKUP($A30,'Data Pass Through'!$A:$D,3,FALSE)","v":0.25},{"$f":"E30*F30","v":0.25},0,0,1.4022781446253364E-5]
["Sub-Total:  Regulatory",null,null,{"$f":"SUM(D27:D30)","v":313.86144100000001},null,null,{"$f":"SUM(G27:G30)","v":313.86144100000001},0,0,1.7604841566196579E-2]
["Total Electricity Charge on Two-Tier RPP (before HST)",null,null,{"$f":"SUM(D13,D22,D25,D31)","v":16018.526050999997},null,null,{"$f":"SUM(G13,G22,G25,G31)","v":15777.108050999999},-241.41799999999785,-1.5071174415883709E-2,0.88495575221238942]
["     HST",null,0.13,{"$f":"D32*C33","v":2082.4083866299998},null,{"$f":"C33","v":0.13},{"$f":"G32*F33","v":2051.0240466300002},-31.384339999999611,-1.5071174415883655E-2,0.11504424778761065]
["Total Amount on WAHSP",null,null,{"$f":"SUM(D32:D33)","v":18100.934437629996},null,null,{"$f":"SUM(G32:G33)","v":17828.132097629998},-272.80233999999837,-1.5071174415883752E-2,1]

{"sheet":"BI_UGd_Low","index":54,"n_rows":34,"n_cols":10,"rows_kept":34,"cut":false,"hidden":false,"merged":[[0,0,0,9]]}
["2023 Bill Impacts (Low Consumption Level) - UGd"]
[]
["Rate Class",{"$f":"RIGHT(A1,LEN(A1)-FIND(\"- \",A1,1)-1)","v":"UGd"}]
["Monthly Consumption (kWh)",{"$f":"IF(COUNTIF(A1,\"*Low*\")>0,VLOOKUP(B3,'Data Billing Quantities'!$A:$Z,MATCH(\"Low kWh\",'Data Billing Quantities'!4:4,0),FALSE),IF(COUNTIF(A1,\"*Typical*\")>0,VLOOKUP(B3,'Data Billing Quantities'!$A:$Z,MATCH(\"Typical kWh\",'Data Billing Quantities'!4:4,0),FALSE),IF(COUNTIF(A1,\"*Average*\")>0,VLOOKUP(B3,'Data Billing Quantities'!$A:$Z,MATCH(\"Average kWh\",'Data Billing Quantities'!4:4,0),FALSE),IF(COUNTIF(A1,\"*High*\")>0,VLOOKUP(B3,'Data Billing Quantities'!$A:$Z,MATCH(\"High kWh\",'Data Billing Quantities'!4:4,0),FALSE),\"error\"))))","v":13900}]
["Peak (kW)",{"$f":"IF(COUNTIF(A1,\"*Low*\")>0,VLOOKUP(B3,'Data Billing Quantities'!$A:$Z,MATCH(\"Low kW\",'Data Billing Quantities'!4:4,0),FALSE),IF(COUNTIF(A1,\"*Typical*\")>0,VLOOKUP(B3,'Data Billing Quantities'!$A:$Z,MATCH(\"Typical kW\",'Data Billing Quantities'!4:4,0),FALSE),IF(COUNTIF(A1,\"*Average*\")>0,VLOOKUP(B3,'Data Billing Quantities'!$A:$Z,MATCH(\"Average kW\",'Data Billing Quantities'!4:4,0),FALSE),IF(COUNTIF(A1,\"*High*\")>0,VLOOKUP(B3,'Data Billing Quantities'!$A:$Z,MATCH(\"High kW\",'Data Billing Quantities'!4:4,0),FALSE),\"error\"))))","v":55}]
["Loss factor",{"$f":"VLOOKUP(B3,'Data Billing Quantities'!A:D,MATCH(A6,'Data Billing Quantities'!4:4,0),FALSE)","v":1.05}]
["Load factor",{"$f":"B4/(B5*730)","v":0.34620174346201743}]
["Monthly Consumption (kWh) - Uplifted",{"$f":"B4*B6","v":14595}]
["Charge determinant",{"$f":"VLOOKUP(B3,'Data Billing Quantities'!A:D,MATCH(A9,'Data Billing Quantities'!4:4,0),FALSE)","v":"kW"}]
[]
[null,"Volume","Current Rate ($)","Current Charge ($)","Volume","Proposed Rate ($)","Proposed Charge ($)","Change ($)","Change (%)","% of Total Bill "]
["Weighted Average Hourly Spot Price",{"$f":"B8","v":14595},{"$f":"VLOOKUP($A12,'Data Pass Through'!$A:$D,2,FALSE)","v":0.11899999999999999},{"$f":"B12*C12","v":1736.8049999999998},{"$f":"B8","v":14595},{"$f":"VLOOKUP($A12,'Data Pass Through'!$A:$D,3,FALSE)","v":0.11899999999999999},{"$f":"E12*F12","v":1736.8049999999998},{"$f":"G12-D12","v":0},{"$f":"IF(ISERROR(H12/ABS(D12)),\"N/A\",(H12/ABS(D12)))","v":0},{"$f":"G12/$G$34","v":0.55227644919400953}]
["Sub-Total:  Energy (WAHSP)",null,null,{"$f":"SUM(D12:D12)","v":1736.8049999999998},null,null,{"$f":"SUM(G12:G12)","v":1736.8049999999998},{"$f":"G13-D13","v":0},0,0.55227644919400953]
["Service Charge",1,{"$f":"VLOOKUP($B$3,'Data Current Rates'!$A:$AQ,MATCH($A14,CurrentHeader,0),FALSE)","v":103.78},{"$f":"B14*C14","v":103.78},{"$f":"B14","v":1},{"$f":"VLOOKUP($B$3,'Data Proposed Rates'!$A:$AZ,MATCH($A14,ProposedHeader,0),FALSE)","v":91.19},{"$f":"E14*F14","v":91.19},-12.590000000000003,-0.12131431875120451,2.8996973984990678E-2]
["Fixed Base Rate Adjustment to Recover Past Tax Amounts ",1,{"$f":"VLOOKUP($B$3,'Data Current Rates'!$A:$AQ,MATCH($A15,CurrentHeader,0),FALSE)","v":3.92},{"$f":"B15*C15","v":3.92},1,{"$f":"VLOOKUP($B$3,'Data Proposed Rates'!$A:$AZ,MATCH($A15,ProposedHeader,0),FALSE)","v":4.01},{"$f":"E15*F15","v":4.01},8.9999999999999858E-2,2.2959183673469351E-2,1.2751164127625025E-3]
["Distribution Volumetric Charge",{"$f":"IF($B$9=\"kWh\",$B$4,$B$5)","v":55},{"$f":"VLOOKUP($B$3,'Data Current Rates'!$A:$AQ,MATCH($A16,CurrentHeader,0),FALSE)","v":11.065899999999999},{"$f":"B16*C16","v":608.6244999999999},{"$f":"$B$5","v":55},{"$f":"VLOOKUP($B$3,'Data Proposed Rates'!$A:$AZ,MATCH($A16,ProposedHeader,0),FALSE)","v":10.671799999999999},586.94899999999996,-21.675499999999943,{"$f":"IF(ISERROR(H16/ABS(D16)),\"N/A\",(H16/ABS(D16)))","v":-3.5613913012045924E-2},0.18664047465200453]
["Volumetric Base Rate Adjustment to Recover Past Tax Amounts ",{"$f":"IF($B$9=\"kWh\",$B$4,$B$5)","v":55},{"$f":"VLOOKUP($B$3,'Data Current Rates'!$A:$AQ,MATCH($A17,CurrentHeader,0),FALSE)","v":0.41339999999999999},22.736999999999998,{"$f":"$B$5","v":55},{"$f":"VLOOKUP($B$3,'Data Proposed Rates'!$A:$AZ,MATCH($A17,ProposedHeader,0),FALSE)","v":0.46379999999999999},25.509,2.772000000000002,{"$f":"IF(ISERROR(H17/ABS(D17)),\"N/A\",(H17/ABS(D17)))","v":0.12191582002902768},8.1114574995408192E-3]
["Group 1 Volumetric DVA Rider (General)",null,null,null,55,{"$f":"VLOOKUP($B$3,'Data Proposed Rates'!$A:$AZ,MATCH($A18,ProposedHeader,0),FALSE)","v":-6.2899999999999998E-2},-3.4594999999999998,-3.4594999999999998,"N/A",-1.1000661421326379E-3]
["Group 1 Volumetric Deferral/Variance Account Rider (Sub-Account RSVA Wholesale Market Service Charge & RSVA Power) ",null,null,null,55,{"$f":"VLOOKUP($B$3,'Data Proposed Rates'!$A:$AZ,MATCH($A19,ProposedHeader,0),FALSE)","v":-8.77E-2},-4.8235000000000001,-4.8235000000000001,"N/A",-1.533796512957589E-3]
["Group 1 Volumetric Deferral/Variance Account Rider (Sub-Account Global Adjustment)",null,null,null,{"$f":"B4","v":13900},{"$f":"VLOOKUP($B$3,'Data Proposed Rates'!$A:$AZ,MATCH($A20,ProposedHeader,0),FALSE)","v":-6.9999999999999999E-4},-9.73,-9.73,"N/A",-3.0939857097703619E-3]
["Group 2 Volumetric DVA Rider ",null,null,null,{"$f":"B5","v":55},{"$f":"VLOOKUP($B$3,'Data Proposed Rates'!$A:$AZ,MATCH($A21,ProposedHeader,0),FALSE)","v":-2.76E-2},-1.518,-1.518,"N/A",-4.8269992882131647E-4]
["Sub-Total:  Distribution",null,null,{"$f":"SUM(INDIRECT(\"D14:D\"&ROW()-1))","v":739.06149999999991},null,null,{"$f":"SUM(INDIRECT(\"g14:g\"&ROW()-1))","v":688.12699999999995},-50.934499999999957,-6.8917809952216372E-2,0.21881347425561662]
["Retail Transmission Rate – Network Service Rate",{"$f":"IF($B$9=\"kWh\",$B$4,$B$5)","v":55},{"$f":"VLOOKUP($B$3,'Data Current Rates'!$A:$AQ,MATCH($A23,CurrentHeader,0),FALSE)","v":3.1179999999999999},{"$f":"B23*C23","v":171.48999999999998},55,{"$f":"VLOOKUP($B$3,'Data Proposed Rates'!$A:$AZ,MATCH($A23,ProposedHeader,0),FALSE)","v":3.1219999999999999},{"$f":"E23*F23","v":171.70999999999998},0.21999999999999886,1.2828736369467544E-3,5.4601057165947459E-2]
["Retail Transmission Rate – Line and Transformation Connection Service Rate",{"$f":"IF($B$9=\"kWh\",$B$4,$B$5)","v":55},{"$f":"VLOOKUP($B$3,'Data Current Rates'!$A:$AQ,MATCH($A24,CurrentHeader,0),FALSE)","v":2.1715},{"$f":"B24*C24","v":119.4325},55,{"$f":"VLOOKUP($B$3,'Data Proposed Rates'!$A:$AZ,MATCH($A24,ProposedHeader,0),FALSE)","v":2.3492000000000002},{"$f":"E24*F24","v":129.20600000000002},9.7735000000000127,8.1832834446235431E-2,4.1085459158950607E-2]
["Sub-Total:  Retail Transmission ",null,null,{"$f":"SUM(D23:D24)","v":290.92250000000001},null,null,{"$f":"SUM(G23:G24)","v":300.916},9.9934999999999832,3.4351072880234368E-2,9.5686516324898066E-2]
["Sub-Total:  Delivery ",null,null,{"$f":"D22+D25","v":1029.9839999999999},null,null,{"$f":"G22+G25","v":989.04299999999989},-40.941000000000031,-3.9749161152017931E-2,0.31449999058051464]
["Wholesale Market Service Rate (WMS) - not including CBR",{"$f":"$B$8","v":14595},{"$f":"VLOOKUP($A27,'Data Pass Through'!$A:$D,2,FALSE)","v":3.0000000000000001E-3},{"$f":"B27*C27","v":43.785000000000004},{"$f":"$B$8","v":14595},{"$f":"VLOOKUP($A27,'Data Pass Through'!$A:$D,3,FALSE)","v":3.0000000000000001E-3},{"$f":"E27*F27","v":43.785000000000004},0,0,1.392293569396663E-2]
["Capacity Based Recovery (CBR) - Applicable for Class B Customers",{"$f":"$B$8","v":14595},{"$f":"VLOOKUP($A28,'Data Pass Through'!$A:$D,2,FALSE)","v":4.0000000000000002E-4},{"$f":"B28*C28","v":5.8380000000000001},{"$f":"$B$8","v":14595},{"$f":"VLOOKUP($A28,'Data Pass Through'!$A:$D,3,FALSE)","v":4.0000000000000002E-4},{"$f":"E28*F28","v":5.8380000000000001},{"$f":"G28-D28","v":0},0,1.8563914258622172E-3]
["Rural Rate Protection Charge",{"$f":"$B$8","v":14595},{"$f":"VLOOKUP($A29,'Data Pass Through'!$A:$D,2,FALSE)","v":5.0000000000000001E-4},{"$f":"B29*C29","v":7.2975000000000003},{"$f":"$B$8","v":14595},{"$f":"VLOOKUP($A29,'Data Pass Through'!$A:$D,3,FALSE)","v":5.0000000000000001E-4},{"$f":"E29*F29","v":7.2975000000000003},{"$f":"G29-D29","v":0},0,2.3204892823277716E-3]
["Standard Supply Service – Administration Charge (if applicable)",1,{"$f":"VLOOKUP($A30,'Data Pass Through'!$A:$D,2,FALSE)","v":0.25},{"$f":"B30*C30","v":0.25},1,{"$f":"VLOOKUP($A30,'Data Pass Through'!$A:$D,3,FALSE)","v":0.25},{"$f":"E30*F30","v":0.25},0,0,7.9496035708385453E-5]
["Sub-Total:  Regulatory",null,null,{"$f":"SUM(D27:D30)","v":57.170500000000004},null,null,{"$f":"SUM(G27:G30)","v":57.170500000000004},0,0,1.8179312437865004E-2]
["Total Electricity Charge on Two-Tier RPP (before HST)",null,null,{"$f":"SUM(D13,D22,D25,D31)","v":2823.9594999999999},null,null,{"$f":"SUM(G13,G22,G25,G31)","v":2783.0185000000001},-40.940999999999804,-1.4497729163608686E-2,0.88495575221238931]
["     HST",null,0.13,{"$f":"D32*C33","v":367.114735},null,{"$f":"C33","v":0.13},{"$f":"G32*F33","v":361.79240500000003},-5.3223299999999654,-1.4497729163608662E-2,0.11504424778761062]
["Total Amount on WAHSP",null,null,{"$f":"SUM(D32:D33)","v":3191.074235},null,null,{"$f":"SUM(G32:G33)","v":3144.8109050000003},-46.263329999999769,-1.4497729163608683E-2,1]

{"sheet":"BI_UGd_Avg","index":55,"n_rows":34,"n_cols":10,"rows_kept":34,"cut":false,"hidden":false,"merged":[[0,0,0,9]]}
["2023 Bill Impacts (Average Consumption Level) - UGd"]
[]
["Rate Class",{"$f":"RIGHT(A1,LEN(A1)-FIND(\"- \",A1,1)-1)","v":"UGd"}]
["Monthly Consumption (kWh)",{"$f":"IF(COUNTIF(A1,\"*Low*\")>0,VLOOKUP(B3,'Data Billing Quantities'!$A:$Z,MATCH(\"Low kWh\",'Data Billing Quantities'!4:4,0),FALSE),IF(COUNTIF(A1,\"*Typical*\")>0,VLOOKUP(B3,'Data Billing Quantities'!$A:$Z,MATCH(\"Typical kWh\",'Data Billing Quantities'!4:4,0),FALSE),IF(COUNTIF(A1,\"*Average*\")>0,VLOOKUP(B3,'Data Billing Quantities'!$A:$Z,MATCH(\"Average kWh\",'Data Billing Quantities'!4:4,0),FALSE),IF(COUNTIF(A1,\"*High*\")>0,VLOOKUP(B3,'Data Billing Quantities'!$A:$Z,MATCH(\"High kWh\",'Data Billing Quantities'!4:4,0),FALSE),\"error\"))))","v":42592}]
["Peak (kW)",{"$f":"IF(COUNTIF(A1,\"*Low*\")>0,VLOOKUP(B3,'Data Billing Quantities'!$A:$Z,MATCH(\"Low kW\",'Data Billing Quantities'!4:4,0),FALSE),IF(COUNTIF(A1,\"*Typical*\")>0,VLOOKUP(B3,'Data Billing Quantities'!$A:$Z,MATCH(\"Typical kW\",'Data Billing Quantities'!4:4,0),FALSE),IF(COUNTIF(A1,\"*Average*\")>0,VLOOKUP(B3,'Data Billing Quantities'!$A:$Z,MATCH(\"Average kW\",'Data Billing Quantities'!4:4,0),FALSE),IF(COUNTIF(A1,\"*High*\")>0,VLOOKUP(B3,'Data Billing Quantities'!$A:$Z,MATCH(\"High kW\",'Data Billing Quantities'!4:4,0),FALSE),\"error\"))))","v":111}]
["Loss factor",{"$f":"VLOOKUP(B3,'Data Billing Quantities'!A:D,MATCH(A6,'Data Billing Quantities'!4:4,0),FALSE)","v":1.05}]
["Load factor",{"$f":"B4/(B5*730)","v":0.52563248179686539}]
["Monthly Consumption (kWh) - Uplifted",{"$f":"B4*B6","v":44721.599999999999}]
["Charge determinant",{"$f":"VLOOKUP(B3,'Data Billing Quantities'!A:D,MATCH(A9,'Data Billing Quantities'!4:4,0),FALSE)","v":"kW"}]
[]
[null,"Volume","Current Rate ($)","Current Charge ($)","Volume","Proposed Rate ($)","Proposed Charge ($)","Change ($)","Change (%)","% of Total Bill "]
["Weighted Average Hourly Spot Price",{"$f":"B8","v":44721.599999999999},{"$f":"VLOOKUP($A12,'Data Pass Through'!$A:$D,2,FALSE)","v":0.11899999999999999},{"$f":"B12*C12","v":5321.8703999999998},{"$f":"B8","v":44721.599999999999},{"$f":"VLOOKUP($A12,'Data Pass Through'!$A:$D,3,FALSE)","v":0.11899999999999999},{"$f":"E12*F12","v":5321.8703999999998},{"$f":"G12-D12","v":0},{"$f":"IF(ISERROR(H12/ABS(D12)),\"N/A\",(H12/ABS(D12)))","v":0},{"$f":"G12/$G$34","v":0.63768507392374663}]
["Sub-Total:  Energy (WAHSP)",null,null,{"$f":"SUM(D12:D12)","v":5321.8703999999998},null,null,{"$f":"SUM(G12:G12)","v":5321.8703999999998},{"$f":"G13-D13","v":0},0,0.63768507392374663]
["Service Charge",1,{"$f":"VLOOKUP($B$3,'Data Current Rates'!$A:$AQ,MATCH($A14,CurrentHeader,0),FALSE)","v":103.78},{"$f":"B14*C14","v":103.78},{"$f":"B14","v":1},{"$f":"VLOOKUP($B$3,'Data Proposed Rates'!$A:$AZ,MATCH($A14,ProposedHeader,0),FALSE)","v":91.19},{"$f":"E14*F14","v":91.19},-12.590000000000003,-0.12131431875120451,1.092670386920855E-2]
["Fixed Base Rate Adjustment to Recover Past Tax Amounts ",1,{"$f":"VLOOKUP($B$3,'Data Current Rates'!$A:$AQ,MATCH($A15,CurrentHeader,0),FALSE)","v":3.92},{"$f":"B15*C15","v":3.92},1,{"$f":"VLOOKUP($B$3,'Data Proposed Rates'!$A:$AZ,MATCH($A15,ProposedHeader,0),FALSE)","v":4.01},{"$f":"E15*F15","v":4.01},8.9999999999999858E-2,2.2959183673469351E-2,4.804921868135353E-4]
["Distribution Volumetric Charge",{"$f":"IF($B$9=\"kWh\",$B$4,$B$5)","v":111},{"$f":"VLOOKUP($B$3,'Data Current Rates'!$A:$AQ,MATCH($A16,CurrentHeader,0),FALSE)","v":11.065899999999999},{"$f":"B16*C16","v":1228.3148999999999},{"$f":"$B$5","v":111},{"$f":"VLOOKUP($B$3,'Data Proposed Rates'!$A:$AZ,MATCH($A16,ProposedHeader,0),FALSE)","v":10.671799999999999},1184.5698,-43.745099999999866,{"$f":"IF(ISERROR(H16/ABS(D16)),\"N/A\",(H16/ABS(D16)))","v":-3.561391301204591E-2},0.14193928519582846]
["Volumetric Base Rate Adjustment to Recover Past Tax Amounts ",{"$f":"IF($B$9=\"kWh\",$B$4,$B$5)","v":111},{"$f":"VLOOKUP($B$3,'Data Current Rates'!$A:$AQ,MATCH($A17,CurrentHeader,0),FALSE)","v":0.41339999999999999},45.8874,{"$f":"$B$5","v":111},{"$f":"VLOOKUP($B$3,'Data Proposed Rates'!$A:$AZ,MATCH($A17,ProposedHeader,0),FALSE)","v":0.46379999999999999},51.4818,5.5944000000000003,{"$f":"IF(ISERROR(H17/ABS(D17)),\"N/A\",(H17/ABS(D17)))","v":0.12191582002902758},6.1687288436651022E-3]
["Group 1 Volumetric DVA Rider (General)",null,null,null,111,{"$f":"VLOOKUP($B$3,'Data Proposed Rates'!$A:$AZ,MATCH($A18,ProposedHeader,0),FALSE)","v":-6.2899999999999998E-2},-6.9818999999999996,-6.9818999999999996,"N/A",-8.3659561075147683E-4]
["Group 1 Volumetric Deferral/Variance Account Rider (Sub-Account RSVA Wholesale Market Service Charge & RSVA Power) ",null,null,null,111,{"$f":"VLOOKUP($B$3,'Data Proposed Rates'!$A:$AZ,MATCH($A19,ProposedHeader,0),FALSE)","v":-8.77E-2},-9.7347000000000001,-9.7347000000000001,"N/A",-1.1664457084722499E-3]
["Group 1 Volumetric Deferral/Variance Account Rider (Sub-Account Global Adjustment)",null,null,null,{"$f":"B4","v":42592},{"$f":"VLOOKUP($B$3,'Data Proposed Rates'!$A:$AZ,MATCH($A20,ProposedHeader,0),FALSE)","v":-6.9999999999999999E-4},-29.814399999999999,-29.814399999999999,"N/A",-3.5724654001330338E-3]
["Group 2 Volumetric DVA Rider ",null,null,null,{"$f":"B5","v":111},{"$f":"VLOOKUP($B$3,'Data Proposed Rates'!$A:$AZ,MATCH($A21,ProposedHeader,0),FALSE)","v":-2.76E-2},-3.0636000000000001,-3.0636000000000001,"N/A",-3.6709123778602167E-4]
["Sub-Total:  Distribution",null,null,{"$f":"SUM(INDIRECT(\"D14:D\"&ROW()-1))","v":1381.9023},null,null,{"$f":"SUM(INDIRECT(\"g14:g\"&ROW()-1))","v":1281.6570000000002},-100.24529999999982,-7.2541524824149883E-2,0.15357261213837289]
["Retail Transmission Rate – Network Service Rate",{"$f":"IF($B$9=\"kWh\",$B$4,$B$5)","v":111},{"$f":"VLOOKUP($B$3,'Data Current Rates'!$A:$AQ,MATCH($A23,CurrentHeader,0),FALSE)","v":3.1179999999999999},{"$f":"B23*C23","v":346.09800000000001},111,{"$f":"VLOOKUP($B$3,'Data Proposed Rates'!$A:$AZ,MATCH($A23,ProposedHeader,0),FALSE)","v":3.1219999999999999},{"$f":"E23*F23","v":346.54199999999997},0.44399999999995998,1.2828736369466451E-3,4.1523871172752157E-2]
["Retail Transmission Rate – Line and Transformation Connection Service Rate",{"$f":"IF($B$9=\"kWh\",$B$4,$B$5)","v":111},{"$f":"VLOOKUP($B$3,'Data Current Rates'!$A:$AQ,MATCH($A24,CurrentHeader,0),FALSE)","v":2.1715},{"$f":"B24*C24","v":241.03649999999999},111,{"$f":"VLOOKUP($B$3,'Data Proposed Rates'!$A:$AZ,MATCH($A24,ProposedHeader,0),FALSE)","v":2.3492000000000002},{"$f":"E24*F24","v":260.76120000000003},19.724700000000041,8.18328344462355E-2,3.1245316514743555E-2]
["Sub-Total:  Retail Transmission ",null,null,{"$f":"SUM(D23:D24)","v":587.1345},null,null,{"$f":"SUM(G23:G24)","v":607.30320000000006},20.168700000000058,3.4351072880234527E-2,7.2769187687495712E-2]
["Sub-Total:  Delivery ",null,null,{"$f":"D22+D25","v":1969.0367999999999},null,null,{"$f":"G22+G25","v":1888.9602000000002},-80.076599999999644,-4.0667904226066087E-2,0.22634179982586861]
["Wholesale Market Service Rate (WMS) - not including CBR",{"$f":"$B$8","v":44721.599999999999},{"$f":"VLOOKUP($A27,'Data Pass Through'!$A:$D,2,FALSE)","v":3.0000000000000001E-3},{"$f":"B27*C27","v":134.16479999999999},{"$f":"$B$8","v":44721.599999999999},{"$f":"VLOOKUP($A27,'Data Pass Through'!$A:$D,3,FALSE)","v":3.0000000000000001E-3},{"$f":"E27*F27","v":134.16479999999999},0,0,1.6076094300598653E-2]
["Capacity Based Recovery (CBR) - Applicable for Class B Customers",{"$f":"$B$8","v":44721.599999999999},{"$f":"VLOOKUP($A28,'Data Pass Through'!$A:$D,2,FALSE)","v":4.0000000000000002E-4},{"$f":"B28*C28","v":17.888639999999999},{"$f":"$B$8","v":44721.599999999999},{"$f":"VLOOKUP($A28,'Data Pass Through'!$A:$D,3,FALSE)","v":4.0000000000000002E-4},{"$f":"E28*F28","v":17.888639999999999},{"$f":"G28-D28","v":0},0,2.1434792400798204E-3]
["Rural Rate Protection Charge",{"$f":"$B$8","v":44721.599999999999},{"$f":"VLOOKUP($A29,'Data Pass Through'!$A:$D,2,FALSE)","v":5.0000000000000001E-4},{"$f":"B29*C29","v":22.360800000000001},{"$f":"$B$8","v":44721.599999999999},{"$f":"VLOOKUP($A29,'Data Pass Through'!$A:$D,3,FALSE)","v":5.0000000000000001E-4},{"$f":"E29*F29","v":22.360800000000001},{"$f":"G29-D29","v":0},0,2.6793490500997756E-3]
["Standard Supply Service – Administration Charge (if applicable)",1,{"$f":"VLOOKUP($A30,'Data Pass Through'!$A:$D,2,FALSE)","v":0.25},{"$f":"B30*C30","v":0.25},1,{"$f":"VLOOKUP($A30,'Data Pass Through'!$A:$D,3,FALSE)","v":0.25},{"$f":"E30*F30","v":0.25},0,0,2.9955871995856317E-5]
["Sub-Total:  Regulatory",null,null,{"$f":"SUM(D27:D30)","v":174.66424000000001},null,null,{"$f":"SUM(G27:G30)","v":174.66424000000001},0,0,2.0928878462774105E-2]
["Total Electricity Charge on Two-Tier RPP (before HST)",null,null,{"$f":"SUM(D13,D22,D25,D31)","v":7465.5714399999997},null,null,{"$f":"SUM(G13,G22,G25,G31)","v":7385.4948400000003},-80.076599999999416,-1.0726117972825858E-2,0.88495575221238931]
["     HST",null,0.13,{"$f":"D32*C33","v":970.5242872},null,{"$f":"C33","v":0.13},{"$f":"G32*F33","v":960.11432920000004},-10.409957999999961,-1.0726117972825895E-2,0.11504424778761062]
["Total Amount on WAHSP",null,null,{"$f":"SUM(D32:D33)","v":8436.0957271999996},null,null,{"$f":"SUM(G32:G33)","v":8345.6091692000009},-90.486557999998695,-1.0726117972825782E-2,1]

{"sheet":"BI_UGd_High","index":56,"n_rows":34,"n_cols":10,"rows_kept":34,"cut":false,"hidden":false,"merged":[[0,0,0,9]]}
["2023 Bill Impacts (High Consumption Level) - UGd"]
[]
["Rate Class",{"$f":"RIGHT(A1,LEN(A1)-FIND(\"- \",A1,1)-1)","v":"UGd"}]
["Monthly Consumption (kWh)",{"$f":"IF(COUNTIF(A1,\"*Low*\")>0,VLOOKUP(B3,'Data Billing Quantities'!$A:$Z,MATCH(\"Low kWh\",'Data Billing Quantities'!4:4,0),FALSE),IF(COUNTIF(A1,\"*Typical*\")>0,VLOOKUP(B3,'Data Billing Quantities'!$A:$Z,MATCH(\"Typical kWh\",'Data Billing Quantities'!4:4,0),FALSE),IF(COUNTIF(A1,\"*Average*\")>0,VLOOKUP(B3,'Data Billing Quantities'!$A:$Z,MATCH(\"Average kWh\",'Data Billing Quantities'!4:4,0),FALSE),IF(COUNTIF(A1,\"*High*\")>0,VLOOKUP(B3,'Data Billing Quantities'!$A:$Z,MATCH(\"High kWh\",'Data Billing Quantities'!4:4,0),FALSE),\"error\"))))","v":97610}]
["Peak (kW)",{"$f":"IF(COUNTIF(A1,\"*Low*\")>0,VLOOKUP(B3,'Data Billing Quantities'!$A:$Z,MATCH(\"Low kW\",'Data Billing Quantities'!4:4,0),FALSE),IF(COUNTIF(A1,\"*Typical*\")>0,VLOOKUP(B3,'Data Billing Quantities'!$A:$Z,MATCH(\"Typical kW\",'Data Billing Quantities'!4:4,0),FALSE),IF(COUNTIF(A1,\"*Average*\")>0,VLOOKUP(B3,'Data Billing Quantities'!$A:$Z,MATCH(\"Average kW\",'Data Billing Quantities'!4:4,0),FALSE),IF(COUNTIF(A1,\"*High*\")>0,VLOOKUP(B3,'Data Billing Quantities'!$A:$Z,MATCH(\"High kW\",'Data Billing Quantities'!4:4,0),FALSE),\"error\"))))","v":280}]
["Loss factor",{"$f":"VLOOKUP(B3,'Data Billing Quantities'!A:D,MATCH(A6,'Data Billing Quantities'!4:4,0),FALSE)","v":1.05}]
["Load factor",{"$f":"B4/(B5*730)","v":0.47754403131115458}]
["Monthly Consumption (kWh) - Uplifted",{"$f":"B4*B6","v":102490.5}]
["Charge determinant",{"$f":"VLOOKUP(B3,'Data Billing Quantities'!A:D,MATCH(A9,'Data Billing Quantities'!4:4,0),FALSE)","v":"kW"}]
[]
[null,"Volume","Current Rate ($)","Current Charge ($)","Volume","Proposed Rate ($)","Proposed Charge ($)","Change ($)","Change (%)","% of Total Bill "]
["Weighted Average Hourly Spot Price",{"$f":"B8","v":102490.5},{"$f":"VLOOKUP($A12,'Data Pass Through'!$A:$D,2,FALSE)","v":0.11899999999999999},{"$f":"B12*C12","v":12196.369499999999},{"$f":"B8","v":102490.5},{"$f":"VLOOKUP($A12,'Data Pass Through'!$A:$D,3,FALSE)","v":0.11899999999999999},{"$f":"E12*F12","v":12196.369499999999},{"$f":"G12-D12","v":0},{"$f":"IF(ISERROR(H12/ABS(D12)),\"N/A\",(H12/ABS(D12)))","v":0},{"$f":"G12/$G$34","v":0.62666861654279404}]
["Sub-Total:  Energy (WAHSP)",null,null,{"$f":"SUM(D12:D12)","v":12196.369499999999},null,null,{"$f":"SUM(G12:G12)","v":12196.369499999999},{"$f":"G13-D13","v":0},0,0.62666861654279404]
["Service Charge",1,{"$f":"VLOOKUP($B$3,'Data Current Rates'!$A:$AQ,MATCH($A14,CurrentHeader,0),FALSE)","v":103.78},{"$f":"B14*C14","v":103.78},{"$f":"B14","v":1},{"$f":"VLOOKUP($B$3,'Data Proposed Rates'!$A:$AZ,MATCH($A14,ProposedHeader,0),FALSE)","v":91.19},{"$f":"E14*F14","v":91.19},-12.590000000000003,-0.12131431875120451,4.685485393217826E-3]
["Fixed Base Rate Adjustment to Recover Past Tax Amounts ",1,{"$f":"VLOOKUP($B$3,'Data Current Rates'!$A:$AQ,MATCH($A15,CurrentHeader,0),FALSE)","v":3.92},{"$f":"B15*C15","v":3.92},1,{"$f":"VLOOKUP($B$3,'Data Proposed Rates'!$A:$AZ,MATCH($A15,ProposedHeader,0),FALSE)","v":4.01},{"$f":"E15*F15","v":4.01},8.9999999999999858E-2,2.2959183673469351E-2,2.0604009679573945E-4]
["Distribution Volumetric Charge",{"$f":"IF($B$9=\"kWh\",$B$4,$B$5)","v":280},{"$f":"VLOOKUP($B$3,'Data Current Rates'!$A:$AQ,MATCH($A16,CurrentHeader,0),FALSE)","v":11.065899999999999},{"$f":"B16*C16","v":3098.4519999999998},{"$f":"$B$5","v":280},{"$f":"VLOOKUP($B$3,'Data Proposed Rates'!$A:$AZ,MATCH($A16,ProposedHeader,0),FALSE)","v":10.671799999999999},2988.1039999999998,-110.34799999999996,{"$f":"IF(ISERROR(H16/ABS(D16)),\"N/A\",(H16/ABS(D16)))","v":-3.5613913012046007E-2},0.15353347565978459]
["Volumetric Base Rate Adjustment to Recover Past Tax Amounts ",{"$f":"IF($B$9=\"kWh\",$B$4,$B$5)","v":280},{"$f":"VLOOKUP($B$3,'Data Current Rates'!$A:$AQ,MATCH($A17,CurrentHeader,0),FALSE)","v":0.41339999999999999},115.752,{"$f":"$B$5","v":280},{"$f":"VLOOKUP($B$3,'Data Proposed Rates'!$A:$AZ,MATCH($A17,ProposedHeader,0),FALSE)","v":0.46379999999999999},129.864,14.112000000000009,{"$f":"IF(ISERROR(H17/ABS(D17)),\"N/A\",(H17/ABS(D17)))","v":0.12191582002902766},6.672616241965564E-3]
["Group 1 Volumetric DVA Rider (General)",null,null,null,280,{"$f":"VLOOKUP($B$3,'Data Proposed Rates'!$A:$AZ,MATCH($A18,ProposedHeader,0),FALSE)","v":-6.2899999999999998E-2},-17.611999999999998,-17.611999999999998,"N/A",-9.0493221565250952E-4]
["Group 1 Volumetric Deferral/Variance Account Rider (Sub-Account RSVA Wholesale Market Service Charge & RSVA Power) ",null,null,null,280,{"$f":"VLOOKUP($B$3,'Data Proposed Rates'!$A:$AZ,MATCH($A19,ProposedHeader,0),FALSE)","v":-8.77E-2},-24.556000000000001,-24.556000000000001,"N/A",-1.2617258396299697E-3]
["Group 1 Volumetric Deferral/Variance Account Rider (Sub-Account Global Adjustment)",null,null,null,{"$f":"B4","v":97610},{"$f":"VLOOKUP($B$3,'Data Proposed Rates'!$A:$AZ,MATCH($A20,ProposedHeader,0),FALSE)","v":-6.9999999999999999E-4},-68.326999999999998,-68.326999999999998,"N/A",-3.5107485520604713E-3]
["Group 2 Volumetric DVA Rider ",null,null,null,{"$f":"B5","v":280},{"$f":"VLOOKUP($B$3,'Data Proposed Rates'!$A:$AZ,MATCH($A21,ProposedHeader,0),FALSE)","v":-2.76E-2},-7.7279999999999998,-7.7279999999999998,"N/A",-3.970767750716894E-4]
["Sub-Total:  Distribution",null,null,{"$f":"SUM(INDIRECT(\"D14:D\"&ROW()-1))","v":3321.9039999999995},null,null,{"$f":"SUM(INDIRECT(\"g14:g\"&ROW()-1))","v":3094.9449999999997},-226.95899999999983,-6.8321962344486731E-2,0.15902313400934909]
["Retail Transmission Rate – Network Service Rate",{"$f":"IF($B$9=\"kWh\",$B$4,$B$5)","v":280},{"$f":"VLOOKUP($B$3,'Data Current Rates'!$A:$AQ,MATCH($A23,CurrentHeader,0),FALSE)","v":3.1179999999999999},{"$f":"B23*C23","v":873.04},280,{"$f":"VLOOKUP($B$3,'Data Proposed Rates'!$A:$AZ,MATCH($A23,ProposedHeader,0),FALSE)","v":3.1219999999999999},{"$f":"E23*F23","v":874.16},1.1200000000000045,1.2828736369467661E-3,4.4915713470065739E-2]
["Retail Transmission Rate – Line and Transformation Connection Service Rate",{"$f":"IF($B$9=\"kWh\",$B$4,$B$5)","v":280},{"$f":"VLOOKUP($B$3,'Data Current Rates'!$A:$AQ,MATCH($A24,CurrentHeader,0),FALSE)","v":2.1715},{"$f":"B24*C24","v":608.02},280,{"$f":"VLOOKUP($B$3,'Data Proposed Rates'!$A:$AZ,MATCH($A24,ProposedHeader,0),FALSE)","v":2.3492000000000002},{"$f":"E24*F24","v":657.77600000000007},49.756000000000085,8.1832834446235458E-2,3.3797563768058439E-2]
["Sub-Total:  Retail Transmission ",null,null,{"$f":"SUM(D23:D24)","v":1481.06},null,null,{"$f":"SUM(G23:G24)","v":1531.9360000000001},50.876000000000204,3.4351072880234562E-2,7.8713277238124185E-2]
["Sub-Total:  Delivery ",null,null,{"$f":"D22+D25","v":4802.9639999999999},null,null,{"$f":"G22+G25","v":4626.8809999999994},-176.08300000000054,-3.6661319968253052E-2,0.23773641124747324]
["Wholesale Market Service Rate (WMS) - not including CBR",{"$f":"$B$8","v":102490.5},{"$f":"VLOOKUP($A27,'Data Pass Through'!$A:$D,2,FALSE)","v":3.0000000000000001E-3},{"$f":"B27*C27","v":307.47149999999999},{"$f":"$B$8","v":102490.5},{"$f":"VLOOKUP($A27,'Data Pass Through'!$A:$D,3,FALSE)","v":3.0000000000000001E-3},{"$f":"E27*F27","v":307.47149999999999},0,0,1.5798368484272119E-2]
["Capacity Based Recovery (CBR) - Applicable for Class B Customers",{"$f":"$B$8","v":102490.5},{"$f":"VLOOKUP($A28,'Data Pass Through'!$A:$D,2,FALSE)","v":4.0000000000000002E-4},{"$f":"B28*C28","v":40.996200000000002},{"$f":"$B$8","v":102490.5},{"$f":"VLOOKUP($A28,'Data Pass Through'!$A:$D,3,FALSE)","v":4.0000000000000002E-4},{"$f":"E28*F28","v":40.996200000000002},{"$f":"G28-D28","v":0},0,2.1064491312362829E-3]
["Rural Rate Protection Charge",{"$f":"$B$8","v":102490.5},{"$f":"VLOOKUP($A29,'Data Pass Through'!$A:$D,2,FALSE)","v":5.0000000000000001E-4},{"$f":"B29*C29","v":51.245249999999999},{"$f":"$B$8","v":102490.5},{"$f":"VLOOKUP($A29,'Data Pass Through'!$A:$D,3,FALSE)","v":5.0000000000000001E-4},{"$f":"E29*F29","v":51.245249999999999},{"$f":"G29-D29","v":0},0,2.6330614140453535E-3]
["Standard Supply Service – Administration Charge (if applicable)",1,{"$f":"VLOOKUP($A30,'Data Pass Through'!$A:$D,2,FALSE)","v":0.25},{"$f":"B30*C30","v":0.25},1,{"$f":"VLOOKUP($A30,'Data Pass Through'!$A:$D,3,FALSE)","v":0.25},{"$f":"E30*F30","v":0.25},0,0,1.2845392568312935E-5]
["Sub-Total:  Regulatory",null,null,{"$f":"SUM(D27:D30)","v":399.96294999999998},null,null,{"$f":"SUM(G27:G30)","v":399.96294999999998},0,0,2.0550724422122069E-2]
["Total Electricity Charge on Two-Tier RPP (before HST)",null,null,{"$f":"SUM(D13,D22,D25,D31)","v":17399.296450000002},null,null,{"$f":"SUM(G13,G22,G25,G31)","v":17223.213449999999},-176.08300000000236,-1.0120121839754179E-2,0.88495575221238942]
["     HST",null,0.13,{"$f":"D32*C33","v":2261.9085385000003},null,{"$f":"C33","v":0.13},{"$f":"G32*F33","v":2239.0177484999999},-22.890790000000379,-1.012012183975421E-2,0.11504424778761063]
["Total Amount on WAHSP",null,null,{"$f":"SUM(D32:D33)","v":19661.204988500001},null,null,{"$f":"SUM(G32:G33)","v":19462.231198499998},-198.97379000000365,-1.0120121839754229E-2,1]

{"sheet":"BI_StLgt_Low","index":57,"n_rows":37,"n_cols":10,"rows_kept":37,"cut":false,"hidden":false,"merged":[[0,0,0,9]]}
["2023 Bill Impacts (Low Consumption Level) - St Lgt"]
[]
["Rate Class",{"$f":"RIGHT(A1,LEN(A1)-FIND(\"- \",A1,1)-1)","v":"St Lgt"}]
["Monthly Consumption (kWh)",{"$f":"IF(COUNTIF(A1,\"*Low*\")>0,VLOOKUP(B3,'Data Billing Quantities'!$A:$Z,MATCH(\"Low kWh\",'Data Billing Quantities'!4:4,0),FALSE),IF(COUNTIF(A1,\"*Typical*\")>0,VLOOKUP(B3,'Data Billing Quantities'!$A:$Z,MATCH(\"Typical kWh\",'Data Billing Quantities'!4:4,0),FALSE),IF(COUNTIF(A1,\"*Average*\")>0,VLOOKUP(B3,'Data Billing Quantities'!$A:$Z,MATCH(\"Average kWh\",'Data Billing Quantities'!4:4,0),FALSE),IF(COUNTIF(A1,\"*High*\")>0,VLOOKUP(B3,'Data Billing Quantities'!$A:$Z,MATCH(\"High kWh\",'Data Billing Quantities'!4:4,0),FALSE),\"error\"))))","v":30}]
["Peak (kW)",{"$f":"IF(COUNTIF(A1,\"*Low*\")>0,VLOOKUP(B3,'Data Billing Quantities'!$A:$Z,MATCH(\"Low kW\",'Data Billing Quantities'!4:4,0),FALSE),IF(COUNTIF(A1,\"*Typical*\")>0,VLOOKUP(B3,'Data Billing Quantities'!$A:$Z,MATCH(\"Typical kW\",'Data Billing Quantities'!4:4,0),FALSE),IF(COUNTIF(A1,\"*Average*\")>0,VLOOKUP(B3,'Data Billing Quantities'!$A:$Z,MATCH(\"Average kW\",'Data Billing Quantities'!4:4,0),FALSE),IF(COUNTIF(A1,\"*High*\")>0,VLOOKUP(B3,'Data Billing Quantities'!$A:$Z,MATCH(\"High kW\",'Data Billing Quantities'!4:4,0),FALSE),\"error\"))))","v":0}]
["Loss factor",{"$f":"VLOOKUP(B3,'Data Billing Quantities'!A:D,MATCH(A6,'Data Billing Quantities'!4:4,0),FALSE)","v":1.0920000000000001}]
["Commodity Threshold",{"$f":"VLOOKUP(B3,'Data Billing Quantities'!A:D,MATCH(A7,'Data Billing Quantities'!4:4,0),FALSE)","v":750}]
["Monthly Consumption (kWh) - Uplifted",{"$f":"B4*B6","v":32.760000000000005}]
["Charge determinant",{"$f":"VLOOKUP(B3,'Data Billing Quantities'!A:D,MATCH(A9,'Data Billing Quantities'!4:4,0),FALSE)","v":"kWh"}]
[]
[null,"Volume","Current Rate ($)","Current Charge ($)","Volume","Proposed Rate ($)","Proposed Charge ($)","Change ($)","Change (%)","% of Total Bill"]
["Energy First Tier",{"$f":"IF(B4>B7,B7,B4)","v":30},{"$f":"VLOOKUP($A12,'Data Pass Through'!$A:$D,2,FALSE)","v":9.8000000000000004E-2},{"$f":"B12*C12","v":2.94},{"$f":"B12","v":30},{"$f":"VLOOKUP($A12,'Data Pass Through'!$A:$D,3,FALSE)","v":9.8000000000000004E-2},{"$f":"E12*F12","v":2.94},{"$f":"G12-D12","v":0},{"$f":"IF(ISERROR(H12/ABS(D12)),\"N/A\",(H12/ABS(D12)))","v":0},{"$f":"G12/$G$37","v":0.30382642182726416}]
["Energy Second Tier",{"$f":"IF(B4>B7,(B4)-B7,0)","v":0},{"$f":"VLOOKUP($A13,'Data Pass Through'!$A:$D,2,FALSE)","v":0.115},{"$f":"B13*C13","v":0},{"$f":"B13","v":0},{"$f":"VLOOKUP($A13,'Data Pass Through'!$A:$D,3,FALSE)","v":0.115},{"$f":"E13*F13","v":0},0,"N/A",{"$f":"G13/$G$37","v":0}]
["Sub-Total:  Energy (RPP Tiered)",null,null,{"$f":"SUM(D12:D13)","v":2.94},null,null,{"$f":"SUM(G12:G13)","v":2.94},0,0,{"$f":"G14/$G$37","v":0.30382642182726416}]
["Service Charge",1,{"$f":"VLOOKUP($B$3,'Data Current Rates'!$A:$AP,MATCH(BI_StLgt_Low!$A15,CurrentHeader,0),FALSE)","v":3.67},{"$f":"B15*C15","v":3.67},1,{"$f":"VLOOKUP($B$3,'Data Proposed Rates'!$A:$AZ,MATCH(BI_StLgt_Low!$A15,ProposedHeader,0),FALSE)","v":2.97},{"$f":"E15*F15","v":2.97},-0.69999999999999973,-0.19073569482288821,{"$f":"G15/$G$37","v":0.30692669143774648}]
["Fixed Base Rate Adjustment to Recover Past Tax Amounts ",1,{"$f":"VLOOKUP($B$3,'Data Current Rates'!$A:$AP,MATCH(BI_StLgt_Low!$A16,CurrentHeader,0),FALSE)","v":0.11},0.11,1,{"$f":"VLOOKUP($B$3,'Data Proposed Rates'!$A:$AZ,MATCH(BI_StLgt_Low!$A16,ProposedHeader,0),FALSE)","v":0.11},0.11,0,0]
["Distribution Volumetric Charge",{"$f":"IF($B$9=\"kWh\",$B$4,$B$5)","v":30},{"$f":"VLOOKUP($B$3,'Data Current Rates'!$A:$AP,MATCH(BI_StLgt_Low!$A17,CurrentHeader,0),FALSE)","v":0.1123},3.3689999999999998,30,{"$f":"VLOOKUP($B$3,'Data Proposed Rates'!$A:$AZ,MATCH(BI_StLgt_Low!$A17,ProposedHeader,0),FALSE)","v":0.10639999999999999},3.1919999999999997,-0.17700000000000005,-5.2537845057880693E-2,{"$f":"G17/$G$37","v":0.32986868655531537}]
["Volumetric Base Rate Adjustment to Recover Past Tax Amounts ",{"$f":"IF($B$9=\"kWh\",$B$4,$B$5)","v":30},{"$f":"VLOOKUP($B$3,'Data Current Rates'!$A:$AP,MATCH(BI_StLgt_Low!$A18,CurrentHeader,0),FALSE)","v":3.3999999999999998E-3},0.10199999999999999,30,{"$f":"VLOOKUP($B$3,'Data Proposed Rates'!$A:$AZ,MATCH(BI_StLgt_Low!$A18,ProposedHeader,0),FALSE)","v":4.1000000000000003E-3},0.12300000000000001,2.1000000000000019E-2,0.20588235294117666,1.2711105402977379E-2]
["Group 1 Volumetric DVA Rider (General)",null,null,null,{"$f":"B4","v":30},{"$f":"VLOOKUP($B$3,'Data Proposed Rates'!$A:$AZ,MATCH(BI_StLgt_Low!$A19,ProposedHeader,0),FALSE)","v":-4.0000000000000002E-4},-1.2E-2,-1.2E-2,"N/A",-1.2401078441929151E-3]
["Group 2 Volumetric DVA Rider ",null,null,null,{"$f":"B4","v":30},{"$f":"VLOOKUP($B$3,'Data Proposed Rates'!$A:$AZ,MATCH(BI_StLgt_Low!$A20,ProposedHeader,0),FALSE)","v":-2.9999999999999997E-4},-8.9999999999999993E-3,-8.9999999999999993E-3,"N/A",-9.3008088314468619E-4]
["Sub-Total:  Distribution (excluding pass through)",null,null,{"$f":"SUM(INDIRECT(\"D15:D\"&ROW()-1))","v":7.2509999999999994},null,null,{"$f":"SUM(INDIRECT(\"g15:g\"&ROW()-1))","v":6.3740000000000006},{"$f":"G21-D21","v":-0.87699999999999889},-0.1209488346434973,0.65870394990713677]
["Line Losses on Cost of Power (based on two-tier RPP prices)",{"$f":"B8-B4","v":2.7600000000000051},{"$f":"IF(B4>B7,C13,C12)","v":9.8000000000000004E-2},{"$f":"B22*C22","v":0.2704800000000005},2.7600000000000051,{"$f":"IF(B4>B7,F13,F12)","v":9.8000000000000004E-2},{"$f":"E22*F22","v":0.2704800000000005},0,0,2.7952030808108354E-2]
["Sub-Total:  Distribution (based on two-tier RPP prices)",null,null,{"$f":"SUM(D21,D22:D22)","v":7.5214800000000004},null,null,{"$f":"SUM(G21,G22:G22)","v":6.6444800000000015},-0.87699999999999889,-0.11659939267271852,0.68665598071524514]
["Retail Transmission Rate – Network Service Rate",{"$f":"B8","v":32.760000000000005},{"$f":"VLOOKUP($B$3,'Data Current Rates'!$A:$AP,MATCH(BI_StLgt_Low!$A24,CurrentHeader,0),FALSE)","v":6.4000000000000003E-3},{"$f":"B24*C24","v":0.20966400000000004},32.760000000000005,{"$f":"VLOOKUP($B$3,'Data Proposed Rates'!$A:$AZ,MATCH(BI_StLgt_Low!$A24,ProposedHeader,0),FALSE)","v":5.4999999999999997E-3},{"$f":"E24*F24","v":0.18018000000000001},{"$f":"G24-D24","v":-2.9484000000000038E-2},-0.14062500000000014,1.862021928055662E-2]
["Retail Transmission Rate – Line and Transformation Connection Service Rate",{"$f":"B8","v":32.760000000000005},{"$f":"VLOOKUP($B$3,'Data Current Rates'!$A:$AP,MATCH(BI_StLgt_Low!$A25,CurrentHeader,0),FALSE)","v":3.5999999999999999E-3},{"$f":"B25*C25","v":0.11793600000000001},32.760000000000005,{"$f":"VLOOKUP($B$3,'Data Proposed Rates'!$A:$AZ,MATCH(BI_StLgt_Low!$A25,ProposedHeader,0),FALSE)","v":4.3E-3},{"$f":"E25*F25","v":0.14086800000000002},{"$f":"G25-D25","v":2.2932000000000008E-2},0.1944444444444445,1.455762598298063E-2]
["Sub-Total:  Retail Transmission ",null,null,{"$f":"SUM(D24:D25)","v":0.32760000000000006},null,null,{"$f":"SUM(G24:G25)","v":0.321048},{"$f":"G26-D26","v":-6.5520000000000578E-3},-2.0000000000000174E-2,3.3177845263537245E-2]
["Sub-Total:  Delivery (based on two-tier RPP prices)",null,null,{"$f":"D23+D26","v":7.8490800000000007},null,null,{"$f":"G23+G26","v":6.9655280000000017},{"$f":"G27-D27","v":-0.883551999999999},-0.11256758753892163,0.71983382597878243]
["Wholesale Market Service Rate (WMS) - not including CBR",{"$f":"B8","v":32.760000000000005},{"$f":"VLOOKUP($A28,'Data Pass Through'!$A:$D,2,FALSE)","v":3.0000000000000001E-3},{"$f":"B28*C28","v":9.828000000000002E-2},{"$f":"$B$8","v":32.760000000000005},{"$f":"VLOOKUP($A28,'Data Pass Through'!$A:$D,3,FALSE)","v":3.0000000000000001E-3},{"$f":"E28*F28","v":9.828000000000002E-2},{"$f":"G28-D28","v":0},0,1.0156483243939975E-2]
["Capacity Based Recovery (CBR) - Applicable for Class B Customers",{"$f":"B8","v":32.760000000000005},{"$f":"VLOOKUP($A29,'Data Pass Through'!$A:$D,2,FALSE)","v":4.0000000000000002E-4},{"$f":"B29*C29","v":1.3104000000000003E-2},{"$f":"$B$8","v":32.760000000000005},{"$f":"VLOOKUP($A29,'Data Pass Through'!$A:$D,3,FALSE)","v":4.0000000000000002E-4},{"$f":"E29*F29","v":1.3104000000000003E-2},0,0,1.3541977658586635E-3]
["Rural Rate Protection Charge",{"$f":"B8","v":32.760000000000005},{"$f":"VLOOKUP($A30,'Data Pass Through'!$A:$D,2,FALSE)","v":5.0000000000000001E-4},1.6380000000000002E-2,32.760000000000005,{"$f":"VLOOKUP($A30,'Data Pass Through'!$A:$D,3,FALSE)","v":5.0000000000000001E-4},1.6380000000000002E-2,0,0,1.6927472073233292E-3]
["Standard Supply Service – Administration Charge (if applicable)",1,{"$f":"VLOOKUP($A31,'Data Pass Through'!$A:$D,2,FALSE)","v":0.25},{"$f":"B31*C31","v":0.25},1,{"$f":"VLOOKUP($A31,'Data Pass Through'!$A:$D,3,FALSE)","v":0.25},0.25,0,0,2.5835580087352397E-2]
["Sub-Total:  Regulatory",null,null,{"$f":"SUM(D28:D31)","v":0.37776399999999999},null,null,{"$f":"SUM(G28:G31)","v":0.37776399999999999},0,0,3.9039008304474362E-2]
["Total  Electricty Charge on Two-Tier RPP ",null,null,{"$f":"SUM(D14,D21,D22,D26,D32)","v":11.166844000000001},null,null,{"$f":"SUM(G14,G21,G22,G26,G32)","v":10.283291999999999},-0.88355200000000167,-7.9122803184140625E-2,1.0626992561105206]
["     HST",null,0.13,{"$f":"D33*C34","v":1.4516897200000003},null,{"$f":"C34","v":0.13},{"$f":"G33*F34","v":1.3368279599999999},-0.11486176000000037,-7.9122803184140722E-2,0.13815090329436769]
["Total Electricity Charge on Two-Tier RPP (including HST)",null,null,{"$f":"SUM(D33:D34)","v":12.618533720000002},null,null,{"$f":"SUM(G33:G34)","v":11.62011996},-0.99841376000000182,-7.9122803184140611E-2,1.2008501594048884]
["Ontario Electricity Rebate (OER)",null,{"$f":"IF(($B$4*12)<250000,VLOOKUP(A36,'Data Pass Through'!$A$4:$C$20,2,0),0)","v":-0.189},{"$f":"D33*C36","v":-2.1105335160000003},null,{"$f":"C36","v":-0.189},{"$f":"G33*F36","v":-1.9435421879999999},0.16699132800000038,7.9122803184140653E-2,-0.2008501594048884]
["Total Amount on Two-Tier RPP",null,null,{"$f":"SUM(D35:D36)","v":10.508000204000002},null,null,{"$f":"SUM(G35:G36)","v":9.6765777719999999},-0.83142243200000188,-7.9122803184140639E-2,1]

{"sheet":"BI_StLgt_Avg","index":58,"n_rows":37,"n_cols":10,"rows_kept":37,"cut":false,"hidden":false,"merged":[[0,0,0,9]]}
["2023 Bill Impacts (Average Consumption Level) - St Lgt"]
[]
["Rate Class",{"$f":"RIGHT(A1,LEN(A1)-FIND(\"- \",A1,1)-1)","v":"St Lgt"}]
["Monthly Consumption (kWh)",{"$f":"IF(COUNTIF(A1,\"*Low*\")>0,VLOOKUP(B3,'Data Billing Quantities'!$A:$Z,MATCH(\"Low kWh\",'Data Billing Quantities'!4:4,0),FALSE),IF(COUNTIF(A1,\"*Typical*\")>0,VLOOKUP(B3,'Data Billing Quantities'!$A:$Z,MATCH(\"Typical kWh\",'Data Billing Quantities'!4:4,0),FALSE),IF(COUNTIF(A1,\"*Average*\")>0,VLOOKUP(B3,'Data Billing Quantities'!$A:$Z,MATCH(\"Average kWh\",'Data Billing Quantities'!4:4,0),FALSE),IF(COUNTIF(A1,\"*High*\")>0,VLOOKUP(B3,'Data Billing Quantities'!$A:$Z,MATCH(\"High kWh\",'Data Billing Quantities'!4:4,0),FALSE),\"error\"))))","v":1274}]
["Peak (kW)",{"$f":"IF(COUNTIF(A1,\"*Low*\")>0,VLOOKUP(B3,'Data Billing Quantities'!$A:$Z,MATCH(\"Low kW\",'Data Billing Quantities'!4:4,0),FALSE),IF(COUNTIF(A1,\"*Typical*\")>0,VLOOKUP(B3,'Data Billing Quantities'!$A:$Z,MATCH(\"Typical kW\",'Data Billing Quantities'!4:4,0),FALSE),IF(COUNTIF(A1,\"*Average*\")>0,VLOOKUP(B3,'Data Billing Quantities'!$A:$Z,MATCH(\"Average kW\",'Data Billing Quantities'!4:4,0),FALSE),IF(COUNTIF(A1,\"*High*\")>0,VLOOKUP(B3,'Data Billing Quantities'!$A:$Z,MATCH(\"High kW\",'Data Billing Quantities'!4:4,0),FALSE),\"error\"))))","v":0}]
["Loss factor",{"$f":"VLOOKUP(B3,'Data Billing Quantities'!A:D,MATCH(A6,'Data Billing Quantities'!4:4,0),FALSE)","v":1.0920000000000001}]
["Commodity Threshold",{"$f":"VLOOKUP(B3,'Data Billing Quantities'!A:D,MATCH(A7,'Data Billing Quantities'!4:4,0),FALSE)","v":750}]
["Monthly Consumption (kWh) - Uplifted",{"$f":"B4*B6","v":1391.2080000000001}]
["Charge determinant",{"$f":"VLOOKUP(B3,'Data Billing Quantities'!A:D,MATCH(A9,'Data Billing Quantities'!4:4,0),FALSE)","v":"kWh"}]
[]
[null,"Volume","Current Rate ($)","Current Charge ($)","Volume","Proposed Rate ($)","Proposed Charge ($)","Change ($)","Change (%)","% of Total Bill"]
["Energy First Tier",{"$f":"IF(B4>B7,B7,B4)","v":750},{"$f":"VLOOKUP($A12,'Data Pass Through'!$A:$D,2,FALSE)","v":9.8000000000000004E-2},{"$f":"B12*C12","v":73.5},{"$f":"B12","v":750},{"$f":"VLOOKUP($A12,'Data Pass Through'!$A:$D,3,FALSE)","v":9.8000000000000004E-2},{"$f":"E12*F12","v":73.5},{"$f":"G12-D12","v":0},{"$f":"IF(ISERROR(H12/ABS(D12)),\"N/A\",(H12/ABS(D12)))","v":0},{"$f":"G12/$G$37","v":0.25235846747921231}]
["Energy Second Tier",{"$f":"IF(B4>B7,(B4)-B7,0)","v":524},{"$f":"VLOOKUP($A13,'Data Pass Through'!$A:$D,2,FALSE)","v":0.115},{"$f":"B13*C13","v":60.260000000000005},{"$f":"B13","v":524},{"$f":"VLOOKUP($A13,'Data Pass Through'!$A:$D,3,FALSE)","v":0.115},{"$f":"E13*F13","v":60.260000000000005},0,0,{"$f":"G13/$G$37","v":0.20689960884758279}]
["Sub-Total:  Energy (RPP Tiered)",null,null,{"$f":"SUM(D12:D13)","v":133.76},null,null,{"$f":"SUM(G12:G13)","v":133.76},0,0,{"$f":"G14/$G$37","v":0.45925807632679505}]
["Service Charge",1,{"$f":"VLOOKUP($B$3,'Data Current Rates'!$A:$AP,MATCH(BI_StLgt_Avg!$A15,CurrentHeader,0),FALSE)","v":3.67},{"$f":"B15*C15","v":3.67},1,{"$f":"VLOOKUP($B$3,'Data Proposed Rates'!$A:$AZ,MATCH(BI_StLgt_Avg!$A15,ProposedHeader,0),FALSE)","v":2.97},{"$f":"E15*F15","v":2.97},-0.69999999999999973,-0.19073569482288821,{"$f":"G15/$G$37","v":1.0197342155282457E-2}]
["Fixed Base Rate Adjustment to Recover Past Tax Amounts ",1,{"$f":"VLOOKUP($B$3,'Data Current Rates'!$A:$AP,MATCH(BI_StLgt_Avg!$A16,CurrentHeader,0),FALSE)","v":0.11},0.11,1,{"$f":"VLOOKUP($B$3,'Data Proposed Rates'!$A:$AZ,MATCH(BI_StLgt_Avg!$A16,ProposedHeader,0),FALSE)","v":0.11},0.11,0,0]
["Distribution Volumetric Charge",{"$f":"IF($B$9=\"kWh\",$B$4,$B$5)","v":1274},{"$f":"VLOOKUP($B$3,'Data Current Rates'!$A:$AP,MATCH(BI_StLgt_Avg!$A17,CurrentHeader,0),FALSE)","v":0.1123},143.0702,1274,{"$f":"VLOOKUP($B$3,'Data Proposed Rates'!$A:$AZ,MATCH(BI_StLgt_Avg!$A17,ProposedHeader,0),FALSE)","v":0.10639999999999999},135.55359999999999,-7.5166000000000111,-5.2537845057880755E-2,{"$f":"G17/$G$37","v":0.46541630962299529}]
["Volumetric Base Rate Adjustment to Recover Past Tax Amounts ",{"$f":"IF($B$9=\"kWh\",$B$4,$B$5)","v":1274},{"$f":"VLOOKUP($B$3,'Data Current Rates'!$A:$AP,MATCH(BI_StLgt_Avg!$A18,CurrentHeader,0),FALSE)","v":3.3999999999999998E-3},4.3315999999999999,1274,{"$f":"VLOOKUP($B$3,'Data Proposed Rates'!$A:$AZ,MATCH(BI_StLgt_Avg!$A18,ProposedHeader,0),FALSE)","v":4.1000000000000003E-3},5.2234000000000007,0.89180000000000081,0.20588235294117666,1.7934275088856026E-2]
["Group 1 Volumetric DVA Rider (General)",null,null,null,{"$f":"B4","v":1274},{"$f":"VLOOKUP($B$3,'Data Proposed Rates'!$A:$AZ,MATCH(BI_StLgt_Avg!$A19,ProposedHeader,0),FALSE)","v":-4.0000000000000002E-4},-0.50960000000000005,-0.50960000000000005,"N/A",-1.749685374522539E-3]
["Group 2 Volumetric DVA Rider ",null,null,null,{"$f":"B4","v":1274},{"$f":"VLOOKUP($B$3,'Data Proposed Rates'!$A:$AZ,MATCH(BI_StLgt_Avg!$A20,ProposedHeader,0),FALSE)","v":-2.9999999999999997E-4},-0.38219999999999998,-0.38219999999999998,"N/A",-1.3122640308919041E-3]
["Sub-Total:  Distribution (excluding pass through)",null,null,{"$f":"SUM(INDIRECT(\"D15:D\"&ROW()-1))","v":151.18180000000001},null,null,{"$f":"SUM(INDIRECT(\"g15:g\"&ROW()-1))","v":142.96519999999998},{"$f":"G21-D21","v":-8.2166000000000281},-5.4349134618056058E-2,0.49086365680080379]
["Line Losses on Cost of Power (based on two-tier RPP prices)",{"$f":"B8-B4","v":117.20800000000008},{"$f":"IF(B4>B7,C13,C12)","v":0.115},{"$f":"B22*C22","v":13.478920000000009},117.20800000000008,{"$f":"IF(B4>B7,F13,F12)","v":0.115},{"$f":"E22*F22","v":13.478920000000009},0,0,4.6279178156121183E-2]
["Sub-Total:  Distribution (based on two-tier RPP prices)",null,null,{"$f":"SUM(D21,D22:D22)","v":164.66072000000003},null,null,{"$f":"SUM(G21,G22:G22)","v":156.44412},-8.2166000000000281,-4.9900182630077332E-2,0.53714283495692505]
["Retail Transmission Rate – Network Service Rate",{"$f":"B8","v":1391.2080000000001},{"$f":"VLOOKUP($B$3,'Data Current Rates'!$A:$AP,MATCH(BI_StLgt_Avg!$A24,CurrentHeader,0),FALSE)","v":6.4000000000000003E-3},{"$f":"B24*C24","v":8.9037312000000011},1391.2080000000001,{"$f":"VLOOKUP($B$3,'Data Proposed Rates'!$A:$AZ,MATCH(BI_StLgt_Avg!$A24,ProposedHeader,0),FALSE)","v":5.4999999999999997E-3},{"$f":"E24*F24","v":7.6516440000000001},{"$f":"G24-D24","v":-1.252087200000001},-0.14062500000000008,2.6271525898455921E-2]
["Retail Transmission Rate – Line and Transformation Connection Service Rate",{"$f":"B8","v":1391.2080000000001},{"$f":"VLOOKUP($B$3,'Data Current Rates'!$A:$AP,MATCH(BI_StLgt_Avg!$A25,CurrentHeader,0),FALSE)","v":3.5999999999999999E-3},{"$f":"B25*C25","v":5.0083488000000003},1391.2080000000001,{"$f":"VLOOKUP($B$3,'Data Proposed Rates'!$A:$AZ,MATCH(BI_StLgt_Avg!$A25,ProposedHeader,0),FALSE)","v":4.3E-3},{"$f":"E25*F25","v":5.9821944},{"$f":"G25-D25","v":0.97384559999999976},0.19444444444444439,2.0539556611520082E-2]
["Sub-Total:  Retail Transmission ",null,null,{"$f":"SUM(D24:D25)","v":13.912080000000001},null,null,{"$f":"SUM(G24:G25)","v":13.6338384},{"$f":"G26-D26","v":-0.2782416000000012},-2.0000000000000084E-2,4.6811082509976003E-2]
["Sub-Total:  Delivery (based on two-tier RPP prices)",null,null,{"$f":"D23+D26","v":178.57280000000003},null,null,{"$f":"G23+G26","v":170.0779584},{"$f":"G27-D27","v":-8.4948416000000293},-4.7570747616658457E-2,0.58395391746690106]
["Wholesale Market Service Rate (WMS) - not including CBR",{"$f":"B8","v":1391.2080000000001},{"$f":"VLOOKUP($A28,'Data Pass Through'!$A:$D,2,FALSE)","v":3.0000000000000001E-3},{"$f":"B28*C28","v":4.1736240000000002},{"$f":"$B$8","v":1391.2080000000001},{"$f":"VLOOKUP($A28,'Data Pass Through'!$A:$D,3,FALSE)","v":3.0000000000000001E-3},{"$f":"E28*F28","v":4.1736240000000002},{"$f":"G28-D28","v":0},0,1.4329923217339594E-2]
["Capacity Based Recovery (CBR) - Applicable for Class B Customers",{"$f":"B8","v":1391.2080000000001},{"$f":"VLOOKUP($A29,'Data Pass Through'!$A:$D,2,FALSE)","v":4.0000000000000002E-4},{"$f":"B29*C29","v":0.55648320000000007},{"$f":"$B$8","v":1391.2080000000001},{"$f":"VLOOKUP($A29,'Data Pass Through'!$A:$D,3,FALSE)","v":4.0000000000000002E-4},{"$f":"E29*F29","v":0.55648320000000007},0,0,1.9106564289786126E-3]
["Rural Rate Protection Charge",{"$f":"B8","v":1391.2080000000001},{"$f":"VLOOKUP($A30,'Data Pass Through'!$A:$D,2,FALSE)","v":5.0000000000000001E-4},0.69560400000000011,1391.2080000000001,{"$f":"VLOOKUP($A30,'Data Pass Through'!$A:$D,3,FALSE)","v":5.0000000000000001E-4},0.69560400000000011,0,0,2.3883205362232656E-3]
["Standard Supply Service – Administration Charge (if applicable)",1,{"$f":"VLOOKUP($A31,'Data Pass Through'!$A:$D,2,FALSE)","v":0.25},{"$f":"B31*C31","v":0.25},1,{"$f":"VLOOKUP($A31,'Data Pass Through'!$A:$D,3,FALSE)","v":0.25},0.25,0,0,8.583621342830351E-4]
["Sub-Total:  Regulatory",null,null,{"$f":"SUM(D28:D31)","v":5.6757112000000003},null,null,{"$f":"SUM(G28:G31)","v":5.6757112000000003},0,0,1.9487262316824506E-2]
["Total  Electricty Charge on Two-Tier RPP ",null,null,{"$f":"SUM(D14,D21,D22,D26,D32)","v":318.00851120000004},null,null,{"$f":"SUM(G14,G21,G22,G26,G32)","v":309.51366960000001},-8.4948416000000293,-2.6712623407294602E-2,1.0626992561105206]
["     HST",null,0.13,{"$f":"D33*C34","v":41.341106456000006},null,{"$f":"C34","v":0.13},{"$f":"G33*F34","v":40.236777048},-1.1043294080000052,-2.6712623407294637E-2,0.13815090329436769]
["Total Electricity Charge on Two-Tier RPP (including HST)",null,null,{"$f":"SUM(D33:D34)","v":359.34961765600008},null,null,{"$f":"SUM(G33:G34)","v":349.75044664800004},-9.5991710080000416,-2.6712623407294626E-2,1.2008501594048884]
["Ontario Electricity Rebate (OER)",null,{"$f":"IF(($B$4*12)<250000,VLOOKUP(A36,'Data Pass Through'!$A$4:$C$20,2,0),0)","v":-0.189},{"$f":"D33*C36","v":-60.10360861680001},null,{"$f":"C36","v":-0.189},{"$f":"G33*F36","v":-58.498083554400004},1.6055250624000053,2.6712623407294599E-2,-0.2008501594048884]
["Total Amount on Two-Tier RPP",null,null,{"$f":"SUM(D35:D36)","v":299.24600903920009},null,null,{"$f":"SUM(G35:G36)","v":291.25236309360002},-7.9936459456000648,-2.6712623407294724E-2,1]

{"sheet":"BI_StLgt_High","index":59,"n_rows":37,"n_cols":10,"rows_kept":37,"cut":false,"hidden":false,"merged":[[0,0,0,9]]}
["2023 Bill Impacts (High Consumption Level) - St Lgt"]
[]
["Rate Class",{"$f":"RIGHT(A1,LEN(A1)-FIND(\"- \",A1,1)-1)","v":"St Lgt"}]
["Monthly Consumption (kWh)",{"$f":"IF(COUNTIF(A1,\"*Low*\")>0,VLOOKUP(B3,'Data Billing Quantities'!$A:$Z,MATCH(\"Low kWh\",'Data Billing Quantities'!4:4,0),FALSE),IF(COUNTIF(A1,\"*Typical*\")>0,VLOOKUP(B3,'Data Billing Quantities'!$A:$Z,MATCH(\"Typical kWh\",'Data Billing Quantities'!4:4,0),FALSE),IF(COUNTIF(A1,\"*Average*\")>0,VLOOKUP(B3,'Data Billing Quantities'!$A:$Z,MATCH(\"Average kWh\",'Data Billing Quantities'!4:4,0),FALSE),IF(COUNTIF(A1,\"*High*\")>0,VLOOKUP(B3,'Data Billing Quantities'!$A:$Z,MATCH(\"High kWh\",'Data Billing Quantities'!4:4,0),FALSE),\"error\"))))","v":2310}]
["Peak (kW)",{"$f":"IF(COUNTIF(A1,\"*Low*\")>0,VLOOKUP(B3,'Data Billing Quantities'!$A:$Z,MATCH(\"Low kW\",'Data Billing Quantities'!4:4,0),FALSE),IF(COUNTIF(A1,\"*Typical*\")>0,VLOOKUP(B3,'Data Billing Quantities'!$A:$Z,MATCH(\"Typical kW\",'Data Billing Quantities'!4:4,0),FALSE),IF(COUNTIF(A1,\"*Average*\")>0,VLOOKUP(B3,'Data Billing Quantities'!$A:$Z,MATCH(\"Average kW\",'Data Billing Quantities'!4:4,0),FALSE),IF(COUNTIF(A1,\"*High*\")>0,VLOOKUP(B3,'Data Billing Quantities'!$A:$Z,MATCH(\"High kW\",'Data Billing Quantities'!4:4,0),FALSE),\"error\"))))","v":0}]
["Loss factor",{"$f":"VLOOKUP(B3,'Data Billing Quantities'!A:D,MATCH(A6,'Data Billing Quantities'!4:4,0),FALSE)","v":1.0920000000000001}]
["Commodity Threshold",{"$f":"VLOOKUP(B3,'Data Billing Quantities'!A:D,MATCH(A7,'Data Billing Quantities'!4:4,0),FALSE)","v":750}]
["Monthly Consumption (kWh) - Uplifted",{"$f":"B4*B6","v":2522.52}]
["Charge determinant",{"$f":"VLOOKUP(B3,'Data Billing Quantities'!A:D,MATCH(A9,'Data Billing Quantities'!4:4,0),FALSE)","v":"kWh"}]
[]
[null,"Volume","Current Rate ($)","Current Charge ($)","Volume","Proposed Rate ($)","Proposed Charge ($)","Change ($)","Change (%)","% of Total Bill"]
["Energy First Tier",{"$f":"IF(B4>B7,B7,B4)","v":750},{"$f":"VLOOKUP($A12,'Data Pass Through'!$A:$D,2,FALSE)","v":9.8000000000000004E-2},{"$f":"B12*C12","v":73.5},{"$f":"B12","v":750},{"$f":"VLOOKUP($A12,'Data Pass Through'!$A:$D,3,FALSE)","v":9.8000000000000004E-2},{"$f":"E12*F12","v":73.5},{"$f":"G12-D12","v":0},{"$f":"IF(ISERROR(H12/ABS(D12)),\"N/A\",(H12/ABS(D12)))","v":0},{"$f":"G12/$G$37","v":0.13730535985132997}]
["Energy Second Tier",{"$f":"IF(B4>B7,(B4)-B7,0)","v":1560},{"$f":"VLOOKUP($A13,'Data Pass Through'!$A:$D,2,FALSE)","v":0.115},{"$f":"B13*C13","v":179.4},{"$f":"B13","v":1560},{"$f":"VLOOKUP($A13,'Data Pass Through'!$A:$D,3,FALSE)","v":0.115},{"$f":"E13*F13","v":179.4},0,0,{"$f":"G13/$G$37","v":0.33513716404528704}]
["Sub-Total:  Energy (RPP Tiered)",null,null,{"$f":"SUM(D12:D13)","v":252.9},null,null,{"$f":"SUM(G12:G13)","v":252.9},0,0,{"$f":"G14/$G$37","v":0.47244252389661706}]
["Service Charge",1,{"$f":"VLOOKUP($B$3,'Data Current Rates'!$A:$AP,MATCH(BI_StLgt_High!$A15,CurrentHeader,0),FALSE)","v":3.67},{"$f":"B15*C15","v":3.67},1,{"$f":"VLOOKUP($B$3,'Data Proposed Rates'!$A:$AZ,MATCH(BI_StLgt_High!$A15,ProposedHeader,0),FALSE)","v":2.97},{"$f":"E15*F15","v":2.97},-0.69999999999999973,-0.19073569482288821,{"$f":"G15/$G$37","v":5.5482573980741509E-3}]
["Fixed Base Rate Adjustment to Recover Past Tax Amounts ",1,{"$f":"VLOOKUP($B$3,'Data Current Rates'!$A:$AP,MATCH(BI_StLgt_High!$A16,CurrentHeader,0),FALSE)","v":0.11},0.11,1,{"$f":"VLOOKUP($B$3,'Data Proposed Rates'!$A:$AZ,MATCH(BI_StLgt_High!$A16,ProposedHeader,0),FALSE)","v":0.11},0.11,0,0]
["Distribution Volumetric Charge",{"$f":"IF($B$9=\"kWh\",$B$4,$B$5)","v":2310},{"$f":"VLOOKUP($B$3,'Data Current Rates'!$A:$AP,MATCH(BI_StLgt_High!$A17,CurrentHeader,0),FALSE)","v":0.1123},259.41300000000001,2310,{"$f":"VLOOKUP($B$3,'Data Proposed Rates'!$A:$AZ,MATCH(BI_StLgt_High!$A17,ProposedHeader,0),FALSE)","v":0.10639999999999999},245.78399999999999,-13.629000000000019,-5.2537845057880748E-2,{"$f":"G17/$G$37","v":0.45914912334284741}]
["Volumetric Base Rate Adjustment to Recover Past Tax Amounts ",{"$f":"IF($B$9=\"kWh\",$B$4,$B$5)","v":2310},{"$f":"VLOOKUP($B$3,'Data Current Rates'!$A:$AP,MATCH(BI_StLgt_High!$A18,CurrentHeader,0),FALSE)","v":3.3999999999999998E-3},7.8539999999999992,2310,{"$f":"VLOOKUP($B$3,'Data Proposed Rates'!$A:$AZ,MATCH(BI_StLgt_High!$A18,ProposedHeader,0),FALSE)","v":4.1000000000000003E-3},9.4710000000000001,1.6170000000000009,0.2058823529411766,1.7692776369414236E-2]
["Group 1 Volumetric DVA Rider (General)",null,null,null,{"$f":"B4","v":2310},{"$f":"VLOOKUP($B$3,'Data Proposed Rates'!$A:$AZ,MATCH(BI_StLgt_High!$A19,ProposedHeader,0),FALSE)","v":-4.0000000000000002E-4},-0.92400000000000004,-0.92400000000000004,"N/A",-1.7261245238452913E-3]
["Group 2 Volumetric DVA Rider ",null,null,null,{"$f":"B4","v":2310},{"$f":"VLOOKUP($B$3,'Data Proposed Rates'!$A:$AZ,MATCH(BI_StLgt_High!$A20,ProposedHeader,0),FALSE)","v":-2.9999999999999997E-4},-0.69299999999999995,-0.69299999999999995,"N/A",-1.2945933928839683E-3]
["Sub-Total:  Distribution (excluding pass through)",null,null,{"$f":"SUM(INDIRECT(\"D15:D\"&ROW()-1))","v":271.04699999999997},null,null,{"$f":"SUM(INDIRECT(\"g15:g\"&ROW()-1))","v":256.71800000000002},{"$f":"G21-D21","v":-14.328999999999951},-5.286537021254599E-2,0.47957493020835007]
["Line Losses on Cost of Power (based on two-tier RPP prices)",{"$f":"B8-B4","v":212.51999999999998},{"$f":"IF(B4>B7,C13,C12)","v":0.115},{"$f":"B22*C22","v":24.439799999999998},212.51999999999998,{"$f":"IF(B4>B7,F13,F12)","v":0.115},{"$f":"E22*F22","v":24.439799999999998},0,0,4.5655993655707945E-2]
["Sub-Total:  Distribution (based on two-tier RPP prices)",null,null,{"$f":"SUM(D21,D22:D22)","v":295.48679999999996},null,null,{"$f":"SUM(G21,G22:G22)","v":281.15780000000001},-14.328999999999951,-4.8492859917938648E-2,0.52523092386405801]
["Retail Transmission Rate – Network Service Rate",{"$f":"B8","v":2522.52},{"$f":"VLOOKUP($B$3,'Data Current Rates'!$A:$AP,MATCH(BI_StLgt_High!$A24,CurrentHeader,0),FALSE)","v":6.4000000000000003E-3},{"$f":"B24*C24","v":16.144128000000002},2522.52,{"$f":"VLOOKUP($B$3,'Data Proposed Rates'!$A:$AZ,MATCH(BI_StLgt_High!$A24,ProposedHeader,0),FALSE)","v":5.4999999999999997E-3},{"$f":"E24*F24","v":13.873859999999999},{"$f":"G24-D24","v":-2.2702680000000033},-0.14062500000000019,2.5917759725537046E-2]
["Retail Transmission Rate – Line and Transformation Connection Service Rate",{"$f":"B8","v":2522.52},{"$f":"VLOOKUP($B$3,'Data Current Rates'!$A:$AP,MATCH(BI_StLgt_High!$A25,CurrentHeader,0),FALSE)","v":3.5999999999999999E-3},{"$f":"B25*C25","v":9.0810719999999989},2522.52,{"$f":"VLOOKUP($B$3,'Data Proposed Rates'!$A:$AZ,MATCH(BI_StLgt_High!$A25,ProposedHeader,0),FALSE)","v":4.3E-3},{"$f":"E25*F25","v":10.846836},{"$f":"G25-D25","v":1.7657640000000008},0.19444444444444456,2.0262975785419874E-2]
["Sub-Total:  Retail Transmission ",null,null,{"$f":"SUM(D24:D25)","v":25.225200000000001},null,null,{"$f":"SUM(G24:G25)","v":24.720695999999997},{"$f":"G26-D26","v":-0.50450400000000428},-2.000000000000017E-2,4.6180735510956916E-2]
["Sub-Total:  Delivery (based on two-tier RPP prices)",null,null,{"$f":"D23+D26","v":320.71199999999999},null,null,{"$f":"G23+G26","v":305.87849599999998},{"$f":"G27-D27","v":-14.833504000000005},-4.6251789767766734E-2,0.57141165937501492]
["Wholesale Market Service Rate (WMS) - not including CBR",{"$f":"B8","v":2522.52},{"$f":"VLOOKUP($A28,'Data Pass Through'!$A:$D,2,FALSE)","v":3.0000000000000001E-3},{"$f":"B28*C28","v":7.5675600000000003},{"$f":"$B$8","v":2522.52},{"$f":"VLOOKUP($A28,'Data Pass Through'!$A:$D,3,FALSE)","v":3.0000000000000001E-3},{"$f":"E28*F28","v":7.5675600000000003},{"$f":"G28-D28","v":0},0,1.4136959850292936E-2]
["Capacity Based Recovery (CBR) - Applicable for Class B Customers",{"$f":"B8","v":2522.52},{"$f":"VLOOKUP($A29,'Data Pass Through'!$A:$D,2,FALSE)","v":4.0000000000000002E-4},{"$f":"B29*C29","v":1.0090080000000001},{"$f":"$B$8","v":2522.52},{"$f":"VLOOKUP($A29,'Data Pass Through'!$A:$D,3,FALSE)","v":4.0000000000000002E-4},{"$f":"E29*F29","v":1.0090080000000001},0,0,1.8849279800390582E-3]
["Rural Rate Protection Charge",{"$f":"B8","v":2522.52},{"$f":"VLOOKUP($A30,'Data Pass Through'!$A:$D,2,FALSE)","v":5.0000000000000001E-4},1.26126,2522.52,{"$f":"VLOOKUP($A30,'Data Pass Through'!$A:$D,3,FALSE)","v":5.0000000000000001E-4},1.26126,0,0,2.3561599750488225E-3]
["Standard Supply Service – Administration Charge (if applicable)",1,{"$f":"VLOOKUP($A31,'Data Pass Through'!$A:$D,2,FALSE)","v":0.25},{"$f":"B31*C31","v":0.25},1,{"$f":"VLOOKUP($A31,'Data Pass Through'!$A:$D,3,FALSE)","v":0.25},0.25,0,0,4.6702503350792509E-4]
["Sub-Total:  Regulatory",null,null,{"$f":"SUM(D28:D31)","v":10.087828},null,null,{"$f":"SUM(G28:G31)","v":10.087828},0,0,1.8845072838888741E-2]
["Total  Electricty Charge on Two-Tier RPP ",null,null,{"$f":"SUM(D14,D21,D22,D26,D32)","v":583.69982799999991},null,null,{"$f":"SUM(G14,G21,G22,G26,G32)","v":568.86632399999996},-14.833503999999948,-2.5412897671780624E-2,1.0626992561105206]
["     HST",null,0.13,{"$f":"D33*C34","v":75.880977639999998},null,{"$f":"C34","v":0.13},{"$f":"G33*F34","v":73.952622120000001},-1.9283555199999967,-2.5412897671780666E-2,0.13815090329436769]
["Total Electricity Charge on Two-Tier RPP (including HST)",null,null,{"$f":"SUM(D33:D34)","v":659.58080563999988},null,null,{"$f":"SUM(G33:G34)","v":642.81894611999996},-16.761859519999916,-2.5412897671780586E-2,1.2008501594048884]
["Ontario Electricity Rebate (OER)",null,{"$f":"IF(($B$4*12)<250000,VLOOKUP(A36,'Data Pass Through'!$A$4:$C$20,2,0),0)","v":-0.189},{"$f":"D33*C36","v":-110.31926749199998},null,{"$f":"C36","v":-0.189},{"$f":"G33*F36","v":-107.515735236},2.8035322559999827,2.5412897671780555E-2,-0.2008501594048884]
["Total Amount on Two-Tier RPP",null,null,{"$f":"SUM(D35:D36)","v":549.26153814799989},null,null,{"$f":"SUM(G35:G36)","v":535.30321088400001},-13.958327263999877,-2.5412897671780489E-2,1]

{"sheet":"BI_SenLgt_Low","index":60,"n_rows":37,"n_cols":10,"rows_kept":37,"cut":false,"hidden":false,"merged":[[0,0,0,9]]}
["2023 Bill Impacts (Low Consumption Level) - Sen Lgt"]
[]
["Rate Class",{"$f":"RIGHT(A1,LEN(A1)-FIND(\"- \",A1,1)-1)","v":"Sen Lgt"}]
["Monthly Consumption (kWh)",{"$f":"IF(COUNTIF(A1,\"*Low*\")>0,VLOOKUP(B3,'Data Billing Quantities'!$A:$Z,MATCH(\"Low kWh\",'Data Billing Quantities'!4:4,0),FALSE),IF(COUNTIF(A1,\"*Typical*\")>0,VLOOKUP(B3,'Data Billing Quantities'!$A:$Z,MATCH(\"Typical kWh\",'Data Billing Quantities'!4:4,0),FALSE),IF(COUNTIF(A1,\"*Average*\")>0,VLOOKUP(B3,'Data Billing Quantities'!$A:$Z,MATCH(\"Average kWh\",'Data Billing Quantities'!4:4,0),FALSE),IF(COUNTIF(A1,\"*High*\")>0,VLOOKUP(B3,'Data Billing Quantities'!$A:$Z,MATCH(\"High kWh\",'Data Billing Quantities'!4:4,0),FALSE),\"error\"))))","v":20}]
["Peak (kW)",{"$f":"IF(COUNTIF(A1,\"*Low*\")>0,VLOOKUP(B3,'Data Billing Quantities'!$A:$Z,MATCH(\"Low kW\",'Data Billing Quantities'!4:4,0),FALSE),IF(COUNTIF(A1,\"*Typical*\")>0,VLOOKUP(B3,'Data Billing Quantities'!$A:$Z,MATCH(\"Typical kW\",'Data Billing Quantities'!4:4,0),FALSE),IF(COUNTIF(A1,\"*Average*\")>0,VLOOKUP(B3,'Data Billing Quantities'!$A:$Z,MATCH(\"Average kW\",'Data Billing Quantities'!4:4,0),FALSE),IF(COUNTIF(A1,\"*High*\")>0,VLOOKUP(B3,'Data Billing Quantities'!$A:$Z,MATCH(\"High kW\",'Data Billing Quantities'!4:4,0),FALSE),\"error\"))))","v":0}]
["Loss factor",{"$f":"VLOOKUP(B3,'Data Billing Quantities'!A:D,MATCH(A6,'Data Billing Quantities'!4:4,0),FALSE)","v":1.0920000000000001}]
["Commodity Threshold",{"$f":"VLOOKUP(B3,'Data Billing Quantities'!A:D,MATCH(A7,'Data Billing Quantities'!4:4,0),FALSE)","v":750}]
["Monthly Consumption (kWh) - Uplifted",{"$f":"B4*B6","v":21.840000000000003}]
["Charge determinant",{"$f":"VLOOKUP(B3,'Data Billing Quantities'!A:D,MATCH(A9,'Data Billing Quantities'!4:4,0),FALSE)","v":"kWh"}]
[]
[null,"Volume","Current Rate ($)","Current Charge ($)","Volume","Proposed Rate ($)","Proposed Charge ($)","Change ($)","Change (%)","% of Total Bill"]
["Energy First Tier",{"$f":"IF(B4>B7,B7,B4)","v":20},{"$f":"VLOOKUP($A12,'Data Pass Through'!$A:$D,2,FALSE)","v":9.8000000000000004E-2},{"$f":"B12*C12","v":1.96},{"$f":"B12","v":20},{"$f":"VLOOKUP($A12,'Data Pass Through'!$A:$D,3,FALSE)","v":9.8000000000000004E-2},{"$f":"E12*F12","v":1.96},{"$f":"G12-D12","v":0},{"$f":"IF(ISERROR(H12/ABS(D12)),\"N/A\",(H12/ABS(D12)))","v":0},{"$f":"G12/$G$37","v":0.23310212244610734}]
["Energy Second Tier",{"$f":"IF(B4>B7,(B4)-B7,0)","v":0},{"$f":"VLOOKUP($A13,'Data Pass Through'!$A:$D,2,FALSE)","v":0.115},{"$f":"B13*C13","v":0},{"$f":"B13","v":0},{"$f":"VLOOKUP($A13,'Data Pass Through'!$A:$D,3,FALSE)","v":0.115},{"$f":"E13*F13","v":0},0,"N/A",{"$f":"G13/$G$37","v":0}]
["Sub-Total:  Energy (RPP Tiered)",null,null,{"$f":"SUM(D12:D13)","v":1.96},null,null,{"$f":"SUM(G12:G13)","v":1.96},0,0,{"$f":"G14/$G$37","v":0.23310212244610734}]
["Service Charge",1,{"$f":"VLOOKUP($B$3,'Data Current Rates'!$A:$AP,MATCH(BI_SenLgt_Low!$A15,CurrentHeader,0),FALSE)","v":3.14},{"$f":"B15*C15","v":3.14},1,{"$f":"VLOOKUP($B$3,'Data Proposed Rates'!$A:$AZ,MATCH(BI_SenLgt_Low!$A15,ProposedHeader,0),FALSE)","v":2.83},{"$f":"E15*F15","v":2.83},-0.31000000000000005,-9.8726114649681548E-2,{"$f":"G15/$G$37","v":0.3365709216951448}]
["Fixed Base Rate Adjustment to Recover Past Tax Amounts ",1,{"$f":"VLOOKUP($B$3,'Data Current Rates'!$A:$AP,MATCH(BI_SenLgt_Low!$A16,CurrentHeader,0),FALSE)","v":0.14000000000000001},0.14000000000000001,1,{"$f":"VLOOKUP($B$3,'Data Proposed Rates'!$A:$AZ,MATCH(BI_SenLgt_Low!$A16,ProposedHeader,0),FALSE)","v":0.16},0.16,1.999999999999999E-2,0.14285714285714277]
["Distribution Volumetric Charge",{"$f":"IF($B$9=\"kWh\",$B$4,$B$5)","v":20},{"$f":"VLOOKUP($B$3,'Data Current Rates'!$A:$AP,MATCH(BI_SenLgt_Low!$A17,CurrentHeader,0),FALSE)","v":0.17050000000000001},3.41,20,{"$f":"VLOOKUP($B$3,'Data Proposed Rates'!$A:$AZ,MATCH(BI_SenLgt_Low!$A17,ProposedHeader,0),FALSE)","v":0.1545},3.09,-0.32000000000000028,-9.3841642228739086E-2,{"$f":"G17/$G$37","v":0.36749263181554676}]
["Volumetric Base Rate Adjustment to Recover Past Tax Amounts ",{"$f":"IF($B$9=\"kWh\",$B$4,$B$5)","v":20},{"$f":"VLOOKUP($B$3,'Data Current Rates'!$A:$AP,MATCH(BI_SenLgt_Low!$A18,CurrentHeader,0),FALSE)","v":7.7999999999999996E-3},0.156,20,{"$f":"VLOOKUP($B$3,'Data Proposed Rates'!$A:$AZ,MATCH(BI_SenLgt_Low!$A18,ProposedHeader,0),FALSE)","v":8.9999999999999993E-3},0.18,2.3999999999999994E-2,0.1538461538461538,2.1407337775662918E-2]
["Group 1 Volumetric DVA Rider (General)",null,null,null,{"$f":"B4","v":20},{"$f":"VLOOKUP($B$3,'Data Proposed Rates'!$A:$AZ,MATCH(BI_SenLgt_Low!$A19,ProposedHeader,0),FALSE)","v":-4.0000000000000002E-4},-8.0000000000000002E-3,-8.0000000000000002E-3,"N/A",-9.5143723447390759E-4]
["Group 2 Volumetric DVA Rider ",null,null,null,{"$f":"B4","v":20},{"$f":"VLOOKUP($B$3,'Data Proposed Rates'!$A:$AZ,MATCH(BI_SenLgt_Low!$A20,ProposedHeader,0),FALSE)","v":-2.9999999999999997E-4},-5.9999999999999993E-3,-5.9999999999999993E-3,"N/A",-7.1357792585543059E-4]
["Sub-Total:  Distribution (excluding pass through)",null,null,{"$f":"SUM(INDIRECT(\"D15:D\"&ROW()-1))","v":6.8460000000000001},null,null,{"$f":"SUM(INDIRECT(\"g15:g\"&ROW()-1))","v":6.2459999999999996},{"$f":"G21-D21","v":-0.60000000000000053},-8.7642418930762564E-2,0.74283462081550322]
["Line Losses on Cost of Power (based on two-tier RPP prices)",{"$f":"B8-B4","v":1.8400000000000034},{"$f":"IF(B4>B7,C13,C12)","v":9.8000000000000004E-2},{"$f":"B22*C22","v":0.18032000000000034},1.8400000000000034,{"$f":"IF(B4>B7,F13,F12)","v":9.8000000000000004E-2},{"$f":"E22*F22","v":0.18032000000000034},0,0,2.1445395265041918E-2]
["Sub-Total:  Distribution (based on two-tier RPP prices)",null,null,{"$f":"SUM(D21,D22:D22)","v":7.0263200000000001},null,null,{"$f":"SUM(G21,G22:G22)","v":6.4263199999999996},-0.60000000000000053,-8.5393207255006959E-2,0.76428001608054519]
["Retail Transmission Rate – Network Service Rate",{"$f":"B8","v":21.840000000000003},{"$f":"VLOOKUP($B$3,'Data Current Rates'!$A:$AP,MATCH(BI_SenLgt_Low!$A24,CurrentHeader,0),FALSE)","v":6.4000000000000003E-3},{"$f":"B24*C24","v":0.13977600000000004},21.840000000000003,{"$f":"VLOOKUP($B$3,'Data Proposed Rates'!$A:$AZ,MATCH(BI_SenLgt_Low!$A24,ProposedHeader,0),FALSE)","v":5.4999999999999997E-3},{"$f":"E24*F24","v":0.12012000000000002},{"$f":"G24-D24","v":-1.9656000000000021E-2},-0.14062500000000011,1.4285830075625724E-2]
["Retail Transmission Rate – Line and Transformation Connection Service Rate",{"$f":"B8","v":21.840000000000003},{"$f":"VLOOKUP($B$3,'Data Current Rates'!$A:$AP,MATCH(BI_SenLgt_Low!$A25,CurrentHeader,0),FALSE)","v":3.7000000000000002E-3},{"$f":"B25*C25","v":8.0808000000000019E-2},21.840000000000003,{"$f":"VLOOKUP($B$3,'Data Proposed Rates'!$A:$AZ,MATCH(BI_SenLgt_Low!$A25,ProposedHeader,0),FALSE)","v":4.3E-3},{"$f":"E25*F25","v":9.3912000000000009E-2},{"$f":"G25-D25","v":1.3103999999999991E-2},0.162162162162162,1.1168921695489203E-2]
["Sub-Total:  Retail Transmission ",null,null,{"$f":"SUM(D24:D25)","v":0.22058400000000006},null,null,{"$f":"SUM(G24:G25)","v":0.21403200000000003},{"$f":"G26-D26","v":-6.55200000000003E-3},-2.970297029702983E-2,2.5454751771114927E-2]
["Sub-Total:  Delivery (based on two-tier RPP prices)",null,null,{"$f":"D23+D26","v":7.2469039999999998},null,null,{"$f":"G23+G26","v":6.640352},{"$f":"G27-D27","v":-0.60655199999999976},-8.3698086796789334E-2,0.78973476785166008]
["Wholesale Market Service Rate (WMS) - not including CBR",{"$f":"B8","v":21.840000000000003},{"$f":"VLOOKUP($A28,'Data Pass Through'!$A:$D,2,FALSE)","v":3.0000000000000001E-3},{"$f":"B28*C28","v":6.5520000000000009E-2},{"$f":"$B$8","v":21.840000000000003},{"$f":"VLOOKUP($A28,'Data Pass Through'!$A:$D,3,FALSE)","v":3.0000000000000001E-3},{"$f":"E28*F28","v":6.5520000000000009E-2},{"$f":"G28-D28","v":0},0,7.7922709503413035E-3]
["Capacity Based Recovery (CBR) - Applicable for Class B Customers",{"$f":"B8","v":21.840000000000003},{"$f":"VLOOKUP($A29,'Data Pass Through'!$A:$D,2,FALSE)","v":4.0000000000000002E-4},{"$f":"B29*C29","v":8.7360000000000024E-3},{"$f":"$B$8","v":21.840000000000003},{"$f":"VLOOKUP($A29,'Data Pass Through'!$A:$D,3,FALSE)","v":4.0000000000000002E-4},{"$f":"E29*F29","v":8.7360000000000024E-3},0,0,1.0389694600455074E-3]
["Rural Rate Protection Charge",{"$f":"B8","v":21.840000000000003},{"$f":"VLOOKUP($A30,'Data Pass Through'!$A:$D,2,FALSE)","v":5.0000000000000001E-4},1.0920000000000003E-2,21.840000000000003,{"$f":"VLOOKUP($A30,'Data Pass Through'!$A:$D,3,FALSE)","v":5.0000000000000001E-4},1.0920000000000003E-2,0,0,1.2987118250568841E-3]
["Standard Supply Service – Administration Charge (if applicable)",1,{"$f":"VLOOKUP($A31,'Data Pass Through'!$A:$D,2,FALSE)","v":0.25},{"$f":"B31*C31","v":0.25},1,{"$f":"VLOOKUP($A31,'Data Pass Through'!$A:$D,3,FALSE)","v":0.25},0.25,0,0,2.9732413577309613E-2]
["Sub-Total:  Regulatory",null,null,{"$f":"SUM(D28:D31)","v":0.33517600000000003},null,null,{"$f":"SUM(G28:G31)","v":0.33517600000000003},0,0,3.9862365812753306E-2]
["Total  Electricty Charge on Two-Tier RPP ",null,null,{"$f":"SUM(D14,D21,D22,D26,D32)","v":9.5420800000000021},null,null,{"$f":"SUM(G14,G21,G22,G26,G32)","v":8.9355279999999997},-0.60655200000000242,-6.3566014956906905E-2,1.0626992561105209]
["     HST",null,0.13,{"$f":"D33*C34","v":1.2404704000000004},null,{"$f":"C34","v":0.13},{"$f":"G33*F34","v":1.1616186399999999},-7.8851760000000493E-2,-6.3566014956907044E-2,0.13815090329436769]
["Total Electricity Charge on Two-Tier RPP (including HST)",null,null,{"$f":"SUM(D33:D34)","v":10.782550400000002},null,null,{"$f":"SUM(G33:G34)","v":10.09714664},-0.68540376000000158,-6.3566014956906808E-2,1.2008501594048886]
["Ontario Electricity Rebate (OER)",null,{"$f":"IF(($B$4*12)<250000,VLOOKUP(A36,'Data Pass Through'!$A$4:$C$20,2,0),0)","v":-0.189},{"$f":"D33*C36","v":-1.8034531200000004},null,{"$f":"C36","v":-0.189},{"$f":"G33*F36","v":-1.6888147920000001},0.11463832800000029,6.3566014956906822E-2,-0.20085015940488843]
["Total Amount on Two-Tier RPP",null,null,{"$f":"SUM(D35:D36)","v":8.9790972800000013},null,null,{"$f":"SUM(G35:G36)","v":8.4083318479999996},-0.57076543200000174,-6.3566014956906849E-2,1]

{"sheet":"BI_SenLgt_Avg","index":61,"n_rows":37,"n_cols":10,"rows_kept":37,"cut":false,"hidden":false,"merged":[[0,0,0,9]]}
["2023 Bill Impacts (Average Consumption Level) - Sen Lgt"]
[]
["Rate Class",{"$f":"RIGHT(A1,LEN(A1)-FIND(\"- \",A1,1)-1)","v":"Sen Lgt"}]
["Monthly Consumption (kWh)",{"$f":"IF(COUNTIF(A1,\"*Low*\")>0,VLOOKUP(B3,'Data Billing Quantities'!$A:$Z,MATCH(\"Low kWh\",'Data Billing Quantities'!4:4,0),FALSE),IF(COUNTIF(A1,\"*Typical*\")>0,VLOOKUP(B3,'Data Billing Quantities'!$A:$Z,MATCH(\"Typical kWh\",'Data Billing Quantities'!4:4,0),FALSE),IF(COUNTIF(A1,\"*Average*\")>0,VLOOKUP(B3,'Data Billing Quantities'!$A:$Z,MATCH(\"Average kWh\",'Data Billing Quantities'!4:4,0),FALSE),IF(COUNTIF(A1,\"*High*\")>0,VLOOKUP(B3,'Data Billing Quantities'!$A:$Z,MATCH(\"High kWh\",'Data Billing Quantities'!4:4,0),FALSE),\"error\"))))","v":49}]
["Peak (kW)",{"$f":"IF(COUNTIF(A1,\"*Low*\")>0,VLOOKUP(B3,'Data Billing Quantities'!$A:$Z,MATCH(\"Low kW\",'Data Billing Quantities'!4:4,0),FALSE),IF(COUNTIF(A1,\"*Typical*\")>0,VLOOKUP(B3,'Data Billing Quantities'!$A:$Z,MATCH(\"Typical kW\",'Data Billing Quantities'!4:4,0),FALSE),IF(COUNTIF(A1,\"*Average*\")>0,VLOOKUP(B3,'Data Billing Quantities'!$A:$Z,MATCH(\"Average kW\",'Data Billing Quantities'!4:4,0),FALSE),IF(COUNTIF(A1,\"*High*\")>0,VLOOKUP(B3,'Data Billing Quantities'!$A:$Z,MATCH(\"High kW\",'Data Billing Quantities'!4:4,0),FALSE),\"error\"))))","v":0}]
["Loss factor",{"$f":"VLOOKUP(B3,'Data Billing Quantities'!A:D,MATCH(A6,'Data Billing Quantities'!4:4,0),FALSE)","v":1.0920000000000001}]
["Commodity Threshold",{"$f":"VLOOKUP(B3,'Data Billing Quantities'!A:D,MATCH(A7,'Data Billing Quantities'!4:4,0),FALSE)","v":750}]
["Monthly Consumption (kWh) - Uplifted",{"$f":"B4*B6","v":53.508000000000003}]
["Charge determinant",{"$f":"VLOOKUP(B3,'Data Billing Quantities'!A:D,MATCH(A9,'Data Billing Quantities'!4:4,0),FALSE)","v":"kWh"}]
[]
[null,"Volume","Current Rate ($)","Current Charge ($)","Volume","Proposed Rate ($)","Proposed Charge ($)","Change ($)","Change (%)","% of Total Bill"]
["Energy First Tier",{"$f":"IF(B4>B7,B7,B4)","v":49},{"$f":"VLOOKUP($A12,'Data Pass Through'!$A:$D,2,FALSE)","v":9.8000000000000004E-2},{"$f":"B12*C12","v":4.8020000000000005},{"$f":"B12","v":49},{"$f":"VLOOKUP($A12,'Data Pass Through'!$A:$D,3,FALSE)","v":9.8000000000000004E-2},{"$f":"E12*F12","v":4.8020000000000005},{"$f":"G12-D12","v":0},{"$f":"IF(ISERROR(H12/ABS(D12)),\"N/A\",(H12/ABS(D12)))","v":0},{"$f":"G12/$G$37","v":0.29679358425278851}]
["Energy Second Tier",{"$f":"IF(B4>B7,(B4)-B7,0)","v":0},{"$f":"VLOOKUP($A13,'Data Pass Through'!$A:$D,2,FALSE)","v":0.115},{"$f":"B13*C13","v":0},{"$f":"B13","v":0},{"$f":"VLOOKUP($A13,'Data Pass Through'!$A:$D,3,FALSE)","v":0.115},{"$f":"E13*F13","v":0},0,"N/A",{"$f":"G13/$G$37","v":0}]
["Sub-Total:  Energy (RPP Tiered)",null,null,{"$f":"SUM(D12:D13)","v":4.8020000000000005},null,null,{"$f":"SUM(G12:G13)","v":4.8020000000000005},0,0,{"$f":"G14/$G$37","v":0.29679358425278851}]
["Service Charge",1,{"$f":"VLOOKUP($B$3,'Data Current Rates'!$A:$AP,MATCH(BI_SenLgt_Avg!$A15,CurrentHeader,0),FALSE)","v":3.14},{"$f":"B15*C15","v":3.14},1,{"$f":"VLOOKUP($B$3,'Data Proposed Rates'!$A:$AZ,MATCH(BI_SenLgt_Avg!$A15,ProposedHeader,0),FALSE)","v":2.83},{"$f":"E15*F15","v":2.83},-0.31000000000000005,-9.8726114649681548E-2,{"$f":"G15/$G$37","v":0.1749116708528512}]
["Fixed Base Rate Adjustment to Recover Past Tax Amounts ",1,{"$f":"VLOOKUP($B$3,'Data Current Rates'!$A:$AP,MATCH(BI_SenLgt_Avg!$A16,CurrentHeader,0),FALSE)","v":0.14000000000000001},0.14000000000000001,1,{"$f":"VLOOKUP($B$3,'Data Proposed Rates'!$A:$AZ,MATCH(BI_SenLgt_Avg!$A16,ProposedHeader,0),FALSE)","v":0.16},0.16,1.999999999999999E-2,0.14285714285714277]
["Distribution Volumetric Charge",{"$f":"IF($B$9=\"kWh\",$B$4,$B$5)","v":49},{"$f":"VLOOKUP($B$3,'Data Current Rates'!$A:$AP,MATCH(BI_SenLgt_Avg!$A17,CurrentHeader,0),FALSE)","v":0.17050000000000001},8.3544999999999998,49,{"$f":"VLOOKUP($B$3,'Data Proposed Rates'!$A:$AZ,MATCH(BI_SenLgt_Avg!$A17,ProposedHeader,0),FALSE)","v":0.1545},7.5705,-0.78399999999999981,-9.3841642228738989E-2,{"$f":"G17/$G$37","v":0.46790417109240634}]
["Volumetric Base Rate Adjustment to Recover Past Tax Amounts ",{"$f":"IF($B$9=\"kWh\",$B$4,$B$5)","v":49},{"$f":"VLOOKUP($B$3,'Data Current Rates'!$A:$AP,MATCH(BI_SenLgt_Avg!$A18,CurrentHeader,0),FALSE)","v":7.7999999999999996E-3},0.38219999999999998,49,{"$f":"VLOOKUP($B$3,'Data Proposed Rates'!$A:$AZ,MATCH(BI_SenLgt_Avg!$A18,ProposedHeader,0),FALSE)","v":8.9999999999999993E-3},0.44099999999999995,5.8799999999999963E-2,0.15384615384615374,2.7256553655868328E-2]
["Group 1 Volumetric DVA Rider (General)",null,null,null,{"$f":"B4","v":49},{"$f":"VLOOKUP($B$3,'Data Proposed Rates'!$A:$AZ,MATCH(BI_SenLgt_Avg!$A19,ProposedHeader,0),FALSE)","v":-4.0000000000000002E-4},-1.9599999999999999E-2,-1.9599999999999999E-2,"N/A",-1.2114023847052591E-3]
["Group 2 Volumetric DVA Rider ",null,null,null,{"$f":"B4","v":49},{"$f":"VLOOKUP($B$3,'Data Proposed Rates'!$A:$AZ,MATCH(BI_SenLgt_Avg!$A20,ProposedHeader,0),FALSE)","v":-2.9999999999999997E-4},-1.47E-2,-1.47E-2,"N/A",-9.0855178852894435E-4]
["Sub-Total:  Distribution (excluding pass through)",null,null,{"$f":"SUM(INDIRECT(\"D15:D\"&ROW()-1))","v":12.016699999999998},null,null,{"$f":"SUM(INDIRECT(\"g15:g\"&ROW()-1))","v":10.967200000000002},{"$f":"G21-D21","v":-1.0494999999999965},-8.7336789634425149E-2,0.67784144048671024]
["Line Losses on Cost of Power (based on two-tier RPP prices)",{"$f":"B8-B4","v":4.5080000000000027},{"$f":"IF(B4>B7,C13,C12)","v":9.8000000000000004E-2},{"$f":"B22*C22","v":0.44178400000000029},4.5080000000000027,{"$f":"IF(B4>B7,F13,F12)","v":9.8000000000000004E-2},{"$f":"E22*F22","v":0.44178400000000029},0,0,2.7305009751256559E-2]
["Sub-Total:  Distribution (based on two-tier RPP prices)",null,null,{"$f":"SUM(D21,D22:D22)","v":12.458483999999999},null,null,{"$f":"SUM(G21,G22:G22)","v":11.408984000000002},-1.0494999999999965,-8.423978390950268E-2,0.70514645023796685]
["Retail Transmission Rate – Network Service Rate",{"$f":"B8","v":53.508000000000003},{"$f":"VLOOKUP($B$3,'Data Current Rates'!$A:$AP,MATCH(BI_SenLgt_Avg!$A24,CurrentHeader,0),FALSE)","v":6.4000000000000003E-3},{"$f":"B24*C24","v":0.34245120000000001},53.508000000000003,{"$f":"VLOOKUP($B$3,'Data Proposed Rates'!$A:$AZ,MATCH(BI_SenLgt_Avg!$A24,ProposedHeader,0),FALSE)","v":5.4999999999999997E-3},{"$f":"E24*F24","v":0.294294},{"$f":"G24-D24","v":-4.8157200000000011E-2},-0.14062500000000003,1.8189206806349466E-2]
["Retail Transmission Rate – Line and Transformation Connection Service Rate",{"$f":"B8","v":53.508000000000003},{"$f":"VLOOKUP($B$3,'Data Current Rates'!$A:$AP,MATCH(BI_SenLgt_Avg!$A25,CurrentHeader,0),FALSE)","v":3.7000000000000002E-3},{"$f":"B25*C25","v":0.19797960000000001},53.508000000000003,{"$f":"VLOOKUP($B$3,'Data Proposed Rates'!$A:$AZ,MATCH(BI_SenLgt_Avg!$A25,ProposedHeader,0),FALSE)","v":4.3E-3},{"$f":"E25*F25","v":0.23008440000000002},{"$f":"G25-D25","v":3.2104800000000017E-2},0.16216216216216225,1.422065259405504E-2]
["Sub-Total:  Retail Transmission ",null,null,{"$f":"SUM(D24:D25)","v":0.54043079999999999},null,null,{"$f":"SUM(G24:G25)","v":0.52437840000000002},{"$f":"G26-D26","v":-1.6052399999999967E-2},-2.9702970297029643E-2,3.2409859400404507E-2]
["Sub-Total:  Delivery (based on two-tier RPP prices)",null,null,{"$f":"D23+D26","v":12.998914799999998},null,null,{"$f":"G23+G26","v":11.933362400000002},{"$f":"G27-D27","v":-1.0655523999999961},-8.1972412035502859E-2,0.73755630963837127]
["Wholesale Market Service Rate (WMS) - not including CBR",{"$f":"B8","v":53.508000000000003},{"$f":"VLOOKUP($A28,'Data Pass Through'!$A:$D,2,FALSE)","v":3.0000000000000001E-3},{"$f":"B28*C28","v":0.160524},{"$f":"$B$8","v":53.508000000000003},{"$f":"VLOOKUP($A28,'Data Pass Through'!$A:$D,3,FALSE)","v":3.0000000000000001E-3},{"$f":"E28*F28","v":0.160524},{"$f":"G28-D28","v":0},0,9.9213855307360727E-3]
["Capacity Based Recovery (CBR) - Applicable for Class B Customers",{"$f":"B8","v":53.508000000000003},{"$f":"VLOOKUP($A29,'Data Pass Through'!$A:$D,2,FALSE)","v":4.0000000000000002E-4},{"$f":"B29*C29","v":2.1403200000000001E-2},{"$f":"$B$8","v":53.508000000000003},{"$f":"VLOOKUP($A29,'Data Pass Through'!$A:$D,3,FALSE)","v":4.0000000000000002E-4},{"$f":"E29*F29","v":2.1403200000000001E-2},0,0,1.3228514040981431E-3]
["Rural Rate Protection Charge",{"$f":"B8","v":53.508000000000003},{"$f":"VLOOKUP($A30,'Data Pass Through'!$A:$D,2,FALSE)","v":5.0000000000000001E-4},2.6754000000000003E-2,53.508000000000003,{"$f":"VLOOKUP($A30,'Data Pass Through'!$A:$D,3,FALSE)","v":5.0000000000000001E-4},2.6754000000000003E-2,0,0,1.653564255122679E-3]
["Standard Supply Service – Administration Charge (if applicable)",1,{"$f":"VLOOKUP($A31,'Data Pass Through'!$A:$D,2,FALSE)","v":0.25},{"$f":"B31*C31","v":0.25},1,{"$f":"VLOOKUP($A31,'Data Pass Through'!$A:$D,3,FALSE)","v":0.25},0.25,0,0,1.5451561029403817E-2]
["Sub-Total:  Regulatory",null,null,{"$f":"SUM(D28:D31)","v":0.45868120000000001},null,null,{"$f":"SUM(G28:G31)","v":0.45868120000000001},0,0,2.8349362219360713E-2]
["Total  Electricty Charge on Two-Tier RPP ",null,null,{"$f":"SUM(D14,D21,D22,D26,D32)","v":18.259596000000002},null,null,{"$f":"SUM(G14,G21,G22,G26,G32)","v":17.194043600000004},-1.0655523999999978,-5.8355748944281007E-2,1.0626992561105206]
["     HST",null,0.13,{"$f":"D33*C34","v":2.3737474800000005},null,{"$f":"C34","v":0.13},{"$f":"G33*F34","v":2.2352256680000004},-0.13852181200000002,-5.8355748944281131E-2,0.13815090329436769]
["Total Electricity Charge on Two-Tier RPP (including HST)",null,null,{"$f":"SUM(D33:D34)","v":20.633343480000001},null,null,{"$f":"SUM(G33:G34)","v":19.429269268000006},-1.2040742119999948,-5.8355748944280875E-2,1.2008501594048884]
["Ontario Electricity Rebate (OER)",null,{"$f":"IF(($B$4*12)<250000,VLOOKUP(A36,'Data Pass Through'!$A$4:$C$20,2,0),0)","v":-0.189},{"$f":"D33*C36","v":-3.4510636440000004},null,{"$f":"C36","v":-0.189},{"$f":"G33*F36","v":-3.249674240400001},0.20138940359999946,5.8355748944280972E-2,-0.20085015940488843]
["Total Amount on Two-Tier RPP",null,null,{"$f":"SUM(D35:D36)","v":17.182279835999999},null,null,{"$f":"SUM(G35:G36)","v":16.179595027600005},-1.0026848083999944,-5.8355748944280812E-2,1]

{"sheet":"BI_SenLgt_High","index":62,"n_rows":37,"n_cols":10,"rows_kept":37,"cut":false,"hidden":false,"merged":[[0,0,0,9]]}
["2023 Bill Impacts (High Consumption Level) - Sen Lgt"]
[]
["Rate Class",{"$f":"RIGHT(A1,LEN(A1)-FIND(\"- \",A1,1)-1)","v":"Sen Lgt"}]
["Monthly Consumption (kWh)",{"$f":"IF(COUNTIF(A1,\"*Low*\")>0,VLOOKUP(B3,'Data Billing Quantities'!$A:$Z,MATCH(\"Low kWh\",'Data Billing Quantities'!4:4,0),FALSE),IF(COUNTIF(A1,\"*Typical*\")>0,VLOOKUP(B3,'Data Billing Quantities'!$A:$Z,MATCH(\"Typical kWh\",'Data Billing Quantities'!4:4,0),FALSE),IF(COUNTIF(A1,\"*Average*\")>0,VLOOKUP(B3,'Data Billing Quantities'!$A:$Z,MATCH(\"Average kWh\",'Data Billing Quantities'!4:4,0),FALSE),IF(COUNTIF(A1,\"*High*\")>0,VLOOKUP(B3,'Data Billing Quantities'!$A:$Z,MATCH(\"High kWh\",'Data Billing Quantities'!4:4,0),FALSE),\"error\"))))","v":80}]
["Peak (kW)",{"$f":"IF(COUNTIF(A1,\"*Low*\")>0,VLOOKUP(B3,'Data Billing Quantities'!$A:$Z,MATCH(\"Low kW\",'Data Billing Quantities'!4:4,0),FALSE),IF(COUNTIF(A1,\"*Typical*\")>0,VLOOKUP(B3,'Data Billing Quantities'!$A:$Z,MATCH(\"Typical kW\",'Data Billing Quantities'!4:4,0),FALSE),IF(COUNTIF(A1,\"*Average*\")>0,VLOOKUP(B3,'Data Billing Quantities'!$A:$Z,MATCH(\"Average kW\",'Data Billing Quantities'!4:4,0),FALSE),IF(COUNTIF(A1,\"*High*\")>0,VLOOKUP(B3,'Data Billing Quantities'!$A:$Z,MATCH(\"High kW\",'Data Billing Quantities'!4:4,0),FALSE),\"error\"))))","v":0}]
["Loss factor",{"$f":"VLOOKUP(B3,'Data Billing Quantities'!A:D,MATCH(A6,'Data Billing Quantities'!4:4,0),FALSE)","v":1.0920000000000001}]
["Commodity Threshold",{"$f":"VLOOKUP(B3,'Data Billing Quantities'!A:D,MATCH(A7,'Data Billing Quantities'!4:4,0),FALSE)","v":750}]
["Monthly Consumption (kWh) - Uplifted",{"$f":"B4*B6","v":87.360000000000014}]
["Charge determinant",{"$f":"VLOOKUP(B3,'Data Billing Quantities'!A:D,MATCH(A9,'Data Billing Quantities'!4:4,0),FALSE)","v":"kWh"}]
[]
[null,"Volume","Current Rate ($)","Current Charge ($)","Volume","Proposed Rate ($)","Proposed Charge ($)","Change ($)","Change (%)","% of Total Bill"]
["Energy First Tier",{"$f":"IF(B4>B7,B7,B4)","v":80},{"$f":"VLOOKUP($A12,'Data Pass Through'!$A:$D,2,FALSE)","v":9.8000000000000004E-2},{"$f":"B12*C12","v":7.84},{"$f":"B12","v":80},{"$f":"VLOOKUP($A12,'Data Pass Through'!$A:$D,3,FALSE)","v":9.8000000000000004E-2},{"$f":"E12*F12","v":7.84},{"$f":"G12-D12","v":0},{"$f":"IF(ISERROR(H12/ABS(D12)),\"N/A\",(H12/ABS(D12)))","v":0},{"$f":"G12/$G$37","v":0.32017240444997247}]
["Energy Second Tier",{"$f":"IF(B4>B7,(B4)-B7,0)","v":0},{"$f":"VLOOKUP($A13,'Data Pass Through'!$A:$D,2,FALSE)","v":0.115},{"$f":"B13*C13","v":0},{"$f":"B13","v":0},{"$f":"VLOOKUP($A13,'Data Pass Through'!$A:$D,3,FALSE)","v":0.115},{"$f":"E13*F13","v":0},0,"N/A",{"$f":"G13/$G$37","v":0}]
["Sub-Total:  Energy (RPP Tiered)",null,null,{"$f":"SUM(D12:D13)","v":7.84},null,null,{"$f":"SUM(G12:G13)","v":7.84},0,0,{"$f":"G14/$G$37","v":0.32017240444997247}]
["Service Charge",1,{"$f":"VLOOKUP($B$3,'Data Current Rates'!$A:$AP,MATCH(BI_SenLgt_High!$A15,CurrentHeader,0),FALSE)","v":3.14},{"$f":"B15*C15","v":3.14},1,{"$f":"VLOOKUP($B$3,'Data Proposed Rates'!$A:$AZ,MATCH(BI_SenLgt_High!$A15,ProposedHeader,0),FALSE)","v":2.83},{"$f":"E15*F15","v":2.83},-0.31000000000000005,-9.8726114649681548E-2,{"$f":"G15/$G$37","v":0.11557243681038547}]
["Fixed Base Rate Adjustment to Recover Past Tax Amounts ",1,{"$f":"VLOOKUP($B$3,'Data Current Rates'!$A:$AP,MATCH(BI_SenLgt_High!$A16,CurrentHeader,0),FALSE)","v":0.14000000000000001},0.14000000000000001,1,{"$f":"VLOOKUP($B$3,'Data Proposed Rates'!$A:$AZ,MATCH(BI_SenLgt_High!$A16,ProposedHeader,0),FALSE)","v":0.16},0.16,1.999999999999999E-2,0.14285714285714277]
["Distribution Volumetric Charge",{"$f":"IF($B$9=\"kWh\",$B$4,$B$5)","v":80},{"$f":"VLOOKUP($B$3,'Data Current Rates'!$A:$AP,MATCH(BI_SenLgt_High!$A17,CurrentHeader,0),FALSE)","v":0.17050000000000001},13.64,80,{"$f":"VLOOKUP($B$3,'Data Proposed Rates'!$A:$AZ,MATCH(BI_SenLgt_High!$A17,ProposedHeader,0),FALSE)","v":0.1545},12.36,-1.2800000000000011,-9.3841642228739086E-2,{"$f":"G17/$G$37","v":0.50476159681143618}]
["Volumetric Base Rate Adjustment to Recover Past Tax Amounts ",{"$f":"IF($B$9=\"kWh\",$B$4,$B$5)","v":80},{"$f":"VLOOKUP($B$3,'Data Current Rates'!$A:$AP,MATCH(BI_SenLgt_High!$A18,CurrentHeader,0),FALSE)","v":7.7999999999999996E-3},0.624,80,{"$f":"VLOOKUP($B$3,'Data Proposed Rates'!$A:$AZ,MATCH(BI_SenLgt_High!$A18,ProposedHeader,0),FALSE)","v":8.9999999999999993E-3},0.72,9.5999999999999974E-2,0.1538461538461538,2.9403588163772979E-2]
["Group 1 Volumetric DVA Rider (General)",null,null,null,{"$f":"B4","v":80},{"$f":"VLOOKUP($B$3,'Data Proposed Rates'!$A:$AZ,MATCH(BI_SenLgt_High!$A19,ProposedHeader,0),FALSE)","v":-4.0000000000000002E-4},-3.2000000000000001E-2,-3.2000000000000001E-2,"N/A",-1.3068261406121325E-3]
["Group 2 Volumetric DVA Rider ",null,null,null,{"$f":"B4","v":80},{"$f":"VLOOKUP($B$3,'Data Proposed Rates'!$A:$AZ,MATCH(BI_SenLgt_High!$A20,ProposedHeader,0),FALSE)","v":-2.9999999999999997E-4},-2.3999999999999997E-2,-2.3999999999999997E-2,"N/A",-9.8011960545909931E-4]
["Sub-Total:  Distribution (excluding pass through)",null,null,{"$f":"SUM(INDIRECT(\"D15:D\"&ROW()-1))","v":17.544},null,null,{"$f":"SUM(INDIRECT(\"g15:g\"&ROW()-1))","v":16.013999999999999},{"$f":"G21-D21","v":-1.5300000000000011},-8.7209302325581453E-2,0.65398480674258397]
["Line Losses on Cost of Power (based on two-tier RPP prices)",{"$f":"B8-B4","v":7.3600000000000136},{"$f":"IF(B4>B7,C13,C12)","v":9.8000000000000004E-2},{"$f":"B22*C22","v":0.72128000000000136},7.3600000000000136,{"$f":"IF(B4>B7,F13,F12)","v":9.8000000000000004E-2},{"$f":"E22*F22","v":0.72128000000000136},0,0,2.945586120939752E-2]
["Sub-Total:  Distribution (based on two-tier RPP prices)",null,null,{"$f":"SUM(D21,D22:D22)","v":18.265280000000001},null,null,{"$f":"SUM(G21,G22:G22)","v":16.735279999999999},-1.5300000000000011,-8.3765482927171175E-2,0.68344066795198144]
["Retail Transmission Rate – Network Service Rate",{"$f":"B8","v":87.360000000000014},{"$f":"VLOOKUP($B$3,'Data Current Rates'!$A:$AP,MATCH(BI_SenLgt_High!$A24,CurrentHeader,0),FALSE)","v":6.4000000000000003E-3},{"$f":"B24*C24","v":0.55910400000000016},87.360000000000014,{"$f":"VLOOKUP($B$3,'Data Proposed Rates'!$A:$AZ,MATCH(BI_SenLgt_High!$A24,ProposedHeader,0),FALSE)","v":5.4999999999999997E-3},{"$f":"E24*F24","v":0.48048000000000007},{"$f":"G24-D24","v":-7.8624000000000083E-2},-0.14062500000000011,1.9621994501291172E-2]
["Retail Transmission Rate – Line and Transformation Connection Service Rate",{"$f":"B8","v":87.360000000000014},{"$f":"VLOOKUP($B$3,'Data Current Rates'!$A:$AP,MATCH(BI_SenLgt_High!$A25,CurrentHeader,0),FALSE)","v":3.7000000000000002E-3},{"$f":"B25*C25","v":0.32323200000000007},87.360000000000014,{"$f":"VLOOKUP($B$3,'Data Proposed Rates'!$A:$AZ,MATCH(BI_SenLgt_High!$A25,ProposedHeader,0),FALSE)","v":4.3E-3},{"$f":"E25*F25","v":0.37564800000000004},{"$f":"G25-D25","v":5.2415999999999963E-2},0.162162162162162,1.5340832064645824E-2]
["Sub-Total:  Retail Transmission ",null,null,{"$f":"SUM(D24:D25)","v":0.88233600000000023},null,null,{"$f":"SUM(G24:G25)","v":0.85612800000000011},{"$f":"G26-D26","v":-2.620800000000012E-2},-2.970297029702983E-2,3.4962826565936994E-2]
["Sub-Total:  Delivery (based on two-tier RPP prices)",null,null,{"$f":"D23+D26","v":19.147615999999999},null,null,{"$f":"G23+G26","v":17.591408000000001},{"$f":"G27-D27","v":-1.556207999999998},-8.1274243226937395E-2,0.71840349451791852]
["Wholesale Market Service Rate (WMS) - not including CBR",{"$f":"B8","v":87.360000000000014},{"$f":"VLOOKUP($A28,'Data Pass Through'!$A:$D,2,FALSE)","v":3.0000000000000001E-3},{"$f":"B28*C28","v":0.26208000000000004},{"$f":"$B$8","v":87.360000000000014},{"$f":"VLOOKUP($A28,'Data Pass Through'!$A:$D,3,FALSE)","v":3.0000000000000001E-3},{"$f":"E28*F28","v":0.26208000000000004},{"$f":"G28-D28","v":0},0,1.0702906091613366E-2]
["Capacity Based Recovery (CBR) - Applicable for Class B Customers",{"$f":"B8","v":87.360000000000014},{"$f":"VLOOKUP($A29,'Data Pass Through'!$A:$D,2,FALSE)","v":4.0000000000000002E-4},{"$f":"B29*C29","v":3.494400000000001E-2},{"$f":"$B$8","v":87.360000000000014},{"$f":"VLOOKUP($A29,'Data Pass Through'!$A:$D,3,FALSE)","v":4.0000000000000002E-4},{"$f":"E29*F29","v":3.494400000000001E-2},0,0,1.427054145548449E-3]
["Rural Rate Protection Charge",{"$f":"B8","v":87.360000000000014},{"$f":"VLOOKUP($A30,'Data Pass Through'!$A:$D,2,FALSE)","v":5.0000000000000001E-4},4.368000000000001E-2,87.360000000000014,{"$f":"VLOOKUP($A30,'Data Pass Through'!$A:$D,3,FALSE)","v":5.0000000000000001E-4},4.368000000000001E-2,0,0,1.7838176819355612E-3]
["Standard Supply Service – Administration Charge (if applicable)",1,{"$f":"VLOOKUP($A31,'Data Pass Through'!$A:$D,2,FALSE)","v":0.25},{"$f":"B31*C31","v":0.25},1,{"$f":"VLOOKUP($A31,'Data Pass Through'!$A:$D,3,FALSE)","v":0.25},0.25,0,0,1.0209579223532285E-2]
["Sub-Total:  Regulatory",null,null,{"$f":"SUM(D28:D31)","v":0.59070400000000012},null,null,{"$f":"SUM(G28:G31)","v":0.59070400000000012},0,0,2.4123357142629663E-2]
["Total  Electricty Charge on Two-Tier RPP ",null,null,{"$f":"SUM(D14,D21,D22,D26,D32)","v":27.578319999999998},null,null,{"$f":"SUM(G14,G21,G22,G26,G32)","v":26.022112},-1.556207999999998,-5.6428672957598514E-2,1.0626992561105206]
["     HST",null,0.13,{"$f":"D33*C34","v":3.5851815999999999},null,{"$f":"C34","v":0.13},{"$f":"G33*F34","v":3.3828745600000003},-0.20230703999999955,-5.6428672957598451E-2,0.13815090329436769]
["Total Electricity Charge on Two-Tier RPP (including HST)",null,null,{"$f":"SUM(D33:D34)","v":31.163501599999996},null,null,{"$f":"SUM(G33:G34)","v":29.404986560000001},-1.7585150399999954,-5.6428672957598437E-2,1.2008501594048884]
["Ontario Electricity Rebate (OER)",null,{"$f":"IF(($B$4*12)<250000,VLOOKUP(A36,'Data Pass Through'!$A$4:$C$20,2,0),0)","v":-0.189},{"$f":"D33*C36","v":-5.21230248},null,{"$f":"C36","v":-0.189},{"$f":"G33*F36","v":-4.918179168},0.29412331199999997,5.6428672957598569E-2,-0.2008501594048884]
["Total Amount on Two-Tier RPP",null,null,{"$f":"SUM(D35:D36)","v":25.951199119999998},null,null,{"$f":"SUM(G35:G36)","v":24.486807392000003},-1.4643917279999954,-5.6428672957598403E-2,1]

{"sheet":"BI_USL_Low","index":63,"n_rows":37,"n_cols":10,"rows_kept":37,"cut":false,"hidden":false,"merged":[[0,0,0,9]]}
["2023 Bill Impacts (Low Consumption Level) - USL"]
[]
["Rate Class",{"$f":"RIGHT(A1,LEN(A1)-FIND(\"- \",A1,1)-1)","v":"USL"}]
["Monthly Consumption (kWh)",{"$f":"IF(COUNTIF(A1,\"*Low*\")>0,VLOOKUP(B3,'Data Billing Quantities'!$A:$Z,MATCH(\"Low kWh\",'Data Billing Quantities'!4:4,0),FALSE),IF(COUNTIF(A1,\"*Typical*\")>0,VLOOKUP(B3,'Data Billing Quantities'!$A:$Z,MATCH(\"Typical kWh\",'Data Billing Quantities'!4:4,0),FALSE),IF(COUNTIF(A1,\"*Average*\")>0,VLOOKUP(B3,'Data Billing Quantities'!$A:$Z,MATCH(\"Average kWh\",'Data Billing Quantities'!4:4,0),FALSE),IF(COUNTIF(A1,\"*High*\")>0,VLOOKUP(B3,'Data Billing Quantities'!$A:$Z,MATCH(\"High kWh\",'Data Billing Quantities'!4:4,0),FALSE),\"error\"))))","v":100}]
["Peak (kW)",{"$f":"IF(COUNTIF(A1,\"*Low*\")>0,VLOOKUP(B3,'Data Billing Quantities'!$A:$Z,MATCH(\"Low kW\",'Data Billing Quantities'!4:4,0),FALSE),IF(COUNTIF(A1,\"*Typical*\")>0,VLOOKUP(B3,'Data Billing Quantities'!$A:$Z,MATCH(\"Typical kW\",'Data Billing Quantities'!4:4,0),FALSE),IF(COUNTIF(A1,\"*Average*\")>0,VLOOKUP(B3,'Data Billing Quantities'!$A:$Z,MATCH(\"Average kW\",'Data Billing Quantities'!4:4,0),FALSE),IF(COUNTIF(A1,\"*High*\")>0,VLOOKUP(B3,'Data Billing Quantities'!$A:$Z,MATCH(\"High kW\",'Data Billing Quantities'!4:4,0),FALSE),\"error\"))))","v":0}]
["Loss factor",{"$f":"VLOOKUP(B3,'Data Billing Quantities'!A:D,MATCH(A6,'Data Billing Quantities'!4:4,0),FALSE)","v":1.0920000000000001}]
["Commodity Threshold",{"$f":"VLOOKUP(B3,'Data Billing Quantities'!A:D,MATCH(A7,'Data Billing Quantities'!4:4,0),FALSE)","v":750}]
["Monthly Consumption (kWh) - Uplifted",{"$f":"B4*B6","v":109.2}]
["Charge determinant",{"$f":"VLOOKUP(B3,'Data Billing Quantities'!A:D,MATCH(A9,'Data Billing Quantities'!4:4,0),FALSE)","v":"kWh"}]
[]
[null,"Volume","Current Rate ($)","Current Charge ($)","Volume","Proposed Rate ($)","Proposed Charge ($)","Change ($)","Change (%)","% of Total Bill"]
["Energy First Tier",{"$f":"IF(B4>B7,B7,B4)","v":100},{"$f":"VLOOKUP($A12,'Data Pass Through'!$A:$D,2,FALSE)","v":9.8000000000000004E-2},{"$f":"B12*C12","v":9.8000000000000007},{"$f":"B12","v":100},{"$f":"VLOOKUP($A12,'Data Pass Through'!$A:$D,3,FALSE)","v":9.8000000000000004E-2},{"$f":"E12*F12","v":9.8000000000000007},{"$f":"G12-D12","v":0},{"$f":"IF(ISERROR(H12/ABS(D12)),\"N/A\",(H12/ABS(D12)))","v":0},{"$f":"G12/$G$37","v":0.20708959128493976}]
["Energy Second Tier",{"$f":"IF(B4>B7,(B4)-B7,0)","v":0},{"$f":"VLOOKUP($A13,'Data Pass Through'!$A:$D,2,FALSE)","v":0.115},{"$f":"B13*C13","v":0},{"$f":"B13","v":0},{"$f":"VLOOKUP($A13,'Data Pass Through'!$A:$D,3,FALSE)","v":0.115},{"$f":"E13*F13","v":0},0,"N/A",{"$f":"G13/$G$37","v":0}]
["Sub-Total:  Energy (RPP Tiered)",null,null,{"$f":"SUM(D12:D13)","v":9.8000000000000007},null,null,{"$f":"SUM(G12:G13)","v":9.8000000000000007},0,0,{"$f":"G14/$G$37","v":0.20708959128493976}]
["Service Charge",1,{"$f":"VLOOKUP($B$3,'Data Current Rates'!$A:$AP,MATCH(BI_USL_Low!$A15,CurrentHeader,0),FALSE)","v":39.42},{"$f":"B15*C15","v":39.42},1,{"$f":"VLOOKUP($B$3,'Data Proposed Rates'!$A:$AZ,MATCH(BI_USL_Low!$A15,ProposedHeader,0),FALSE)","v":34.68},{"$f":"E15*F15","v":34.68},-4.740000000000002,-0.12024353120243536,{"$f":"G15/$G$37","v":0.73284357405731737}]
["Fixed Base Rate Adjustment to Recover Past Tax Amounts ",1,{"$f":"VLOOKUP($B$3,'Data Current Rates'!$A:$AP,MATCH(BI_USL_Low!$A16,CurrentHeader,0),FALSE)","v":0.89},0.89,1,{"$f":"VLOOKUP($B$3,'Data Proposed Rates'!$A:$AZ,MATCH(BI_USL_Low!$A16,ProposedHeader,0),FALSE)","v":0.87},0.87,-2.0000000000000018E-2,-2.2471910112359571E-2]
["Distribution Volumetric Charge",{"$f":"IF($B$9=\"kWh\",$B$4,$B$5)","v":100},{"$f":"VLOOKUP($B$3,'Data Current Rates'!$A:$AP,MATCH(BI_USL_Low!$A17,CurrentHeader,0),FALSE)","v":2.63E-2},2.63,100,{"$f":"VLOOKUP($B$3,'Data Proposed Rates'!$A:$AZ,MATCH(BI_USL_Low!$A17,ProposedHeader,0),FALSE)","v":2.1600000000000001E-2},2.16,-0.46999999999999975,-0.17870722433460068,{"$f":"G17/$G$37","v":4.564423644647652E-2}]
["Volumetric Base Rate Adjustment to Recover Past Tax Amounts ",{"$f":"IF($B$9=\"kWh\",$B$4,$B$5)","v":100},{"$f":"VLOOKUP($B$3,'Data Current Rates'!$A:$AP,MATCH(BI_USL_Low!$A18,CurrentHeader,0),FALSE)","v":5.9999999999999995E-4},0.06,100,{"$f":"VLOOKUP($B$3,'Data Proposed Rates'!$A:$AZ,MATCH(BI_USL_Low!$A18,ProposedHeader,0),FALSE)","v":5.0000000000000001E-4},0.05,-9.999999999999995E-3,-0.1666666666666666,1.0565795473721417E-3]
["Group 1 Volumetric DVA Rider (General)",null,null,null,{"$f":"B4","v":100},{"$f":"VLOOKUP($B$3,'Data Proposed Rates'!$A:$AZ,MATCH(BI_USL_Low!$A19,ProposedHeader,0),FALSE)","v":-4.0000000000000002E-4},-0.04,-0.04,"N/A",-8.4526363789771324E-4]
["Group 2 Volumetric DVA Rider ",null,null,null,{"$f":"B4","v":100},{"$f":"VLOOKUP($B$3,'Data Proposed Rates'!$A:$AZ,MATCH(BI_USL_Low!$A20,ProposedHeader,0),FALSE)","v":-2.0000000000000001E-4},-0.02,-0.02,"N/A",-4.2263181894885662E-4]
["Sub-Total:  Distribution (excluding pass through)",null,null,{"$f":"SUM(INDIRECT(\"D15:D\"&ROW()-1))","v":43.000000000000007},null,null,{"$f":"SUM(INDIRECT(\"g15:g\"&ROW()-1))","v":37.699999999999989},{"$f":"G21-D21","v":-5.3000000000000185},-0.12325581395348878,0.79666097871859454]
["Line Losses on Cost of Power (based on two-tier RPP prices)",{"$f":"B8-B4","v":9.2000000000000028},{"$f":"IF(B4>B7,C13,C12)","v":9.8000000000000004E-2},{"$f":"B22*C22","v":0.90160000000000029},9.2000000000000028,{"$f":"IF(B4>B7,F13,F12)","v":9.8000000000000004E-2},{"$f":"E22*F22","v":0.90160000000000029},0,0,1.9052242398214462E-2]
["Sub-Total:  Distribution (based on two-tier RPP prices)",null,null,{"$f":"SUM(D21,D22:D22)","v":43.901600000000009},null,null,{"$f":"SUM(G21,G22:G22)","v":38.601599999999991},-5.3000000000000185,-0.12072452940211786,0.815713221116809]
["Retail Transmission Rate – Network Service Rate",{"$f":"B8","v":109.2},{"$f":"VLOOKUP($B$3,'Data Current Rates'!$A:$AP,MATCH(BI_USL_Low!$A24,CurrentHeader,0),FALSE)","v":6.4999999999999997E-3},{"$f":"B24*C24","v":0.70979999999999999},109.2,{"$f":"VLOOKUP($B$3,'Data Proposed Rates'!$A:$AZ,MATCH(BI_USL_Low!$A24,ProposedHeader,0),FALSE)","v":6.4000000000000003E-3},{"$f":"E24*F24","v":0.69888000000000006},{"$f":"G24-D24","v":-1.091999999999993E-2},-1.5384615384615287E-2,1.4768446281348848E-2]
["Retail Transmission Rate – Line and Transformation Connection Service Rate",{"$f":"B8","v":109.2},{"$f":"VLOOKUP($B$3,'Data Current Rates'!$A:$AP,MATCH(BI_USL_Low!$A25,CurrentHeader,0),FALSE)","v":4.5999999999999999E-3},{"$f":"B25*C25","v":0.50231999999999999},109.2,{"$f":"VLOOKUP($B$3,'Data Proposed Rates'!$A:$AZ,MATCH(BI_USL_Low!$A25,ProposedHeader,0),FALSE)","v":4.7000000000000002E-3},{"$f":"E25*F25","v":0.51324000000000003},{"$f":"G25-D25","v":1.0920000000000041E-2},2.1739130434782691E-2,1.0845577737865559E-2]
["Sub-Total:  Retail Transmission ",null,null,{"$f":"SUM(D24:D25)","v":1.2121200000000001},null,null,{"$f":"SUM(G24:G25)","v":1.2121200000000001},{"$f":"G26-D26","v":0},0,2.5614024019214407E-2]
["Sub-Total:  Delivery (based on two-tier RPP prices)",null,null,{"$f":"D23+D26","v":45.113720000000008},null,null,{"$f":"G23+G26","v":39.813719999999989},{"$f":"G27-D27","v":-5.3000000000000185},-0.11748089051401697,0.84132724513602342]
["Wholesale Market Service Rate (WMS) - not including CBR",{"$f":"B8","v":109.2},{"$f":"VLOOKUP($A28,'Data Pass Through'!$A:$D,2,FALSE)","v":3.0000000000000001E-3},{"$f":"B28*C28","v":0.3276},{"$f":"$B$8","v":109.2},{"$f":"VLOOKUP($A28,'Data Pass Through'!$A:$D,3,FALSE)","v":3.0000000000000001E-3},{"$f":"E28*F28","v":0.3276},{"$f":"G28-D28","v":0},0,6.9227091943822715E-3]
["Capacity Based Recovery (CBR) - Applicable for Class B Customers",{"$f":"B8","v":109.2},{"$f":"VLOOKUP($A29,'Data Pass Through'!$A:$D,2,FALSE)","v":4.0000000000000002E-4},{"$f":"B29*C29","v":4.3680000000000004E-2},{"$f":"$B$8","v":109.2},{"$f":"VLOOKUP($A29,'Data Pass Through'!$A:$D,3,FALSE)","v":4.0000000000000002E-4},{"$f":"E29*F29","v":4.3680000000000004E-2},0,0,9.23027892584303E-4]
["Rural Rate Protection Charge",{"$f":"B8","v":109.2},{"$f":"VLOOKUP($A30,'Data Pass Through'!$A:$D,2,FALSE)","v":5.0000000000000001E-4},5.4600000000000003E-2,109.2,{"$f":"VLOOKUP($A30,'Data Pass Through'!$A:$D,3,FALSE)","v":5.0000000000000001E-4},5.4600000000000003E-2,0,0,1.1537848657303786E-3]
["Standard Supply Service – Administration Charge (if applicable)",1,{"$f":"VLOOKUP($A31,'Data Pass Through'!$A:$D,2,FALSE)","v":0.25},{"$f":"B31*C31","v":0.25},1,{"$f":"VLOOKUP($A31,'Data Pass Through'!$A:$D,3,FALSE)","v":0.25},0.25,0,0,5.2828977368607078E-3]
["Sub-Total:  Regulatory",null,null,{"$f":"SUM(D28:D31)","v":0.67588000000000004},null,null,{"$f":"SUM(G28:G31)","v":0.67588000000000004},0,0,1.4282419689557662E-2]
["Total  Electricty Charge on Two-Tier RPP ",null,null,{"$f":"SUM(D14,D21,D22,D26,D32)","v":55.589600000000011},null,null,{"$f":"SUM(G14,G21,G22,G26,G32)","v":50.289599999999986},-5.3000000000000256,-9.5341574683034683E-2,1.0626992561105206]
["     HST",null,0.13,{"$f":"D33*C34","v":7.2266480000000017},null,{"$f":"C34","v":0.13},{"$f":"G33*F34","v":6.5376479999999981},-0.68900000000000361,-9.5341574683034711E-2,0.13815090329436769]
["Total Electricity Charge on Two-Tier RPP (including HST)",null,null,{"$f":"SUM(D33:D34)","v":62.816248000000016},null,null,{"$f":"SUM(G33:G34)","v":56.827247999999983},-5.9890000000000327,-9.5341574683034738E-2,1.2008501594048884]
["Ontario Electricity Rebate (OER)",null,{"$f":"IF(($B$4*12)<250000,VLOOKUP(A36,'Data Pass Through'!$A$4:$C$20,2,0),0)","v":-0.189},{"$f":"D33*C36","v":-10.506434400000002},null,{"$f":"C36","v":-0.189},{"$f":"G33*F36","v":-9.5047343999999967},1.0017000000000049,9.5341574683034697E-2,-0.2008501594048884]
["Total Amount on Two-Tier RPP",null,null,{"$f":"SUM(D35:D36)","v":52.309813600000012},null,null,{"$f":"SUM(G35:G36)","v":47.322513599999986},-4.987300000000026,-9.5341574683034711E-2,1]

{"sheet":"BI_USL_Avg","index":64,"n_rows":37,"n_cols":10,"rows_kept":37,"cut":false,"hidden":false,"merged":[[0,0,0,9]]}
["2023 Bill Impacts (Average Consumption Level) - USL"]
[]
["Rate Class",{"$f":"RIGHT(A1,LEN(A1)-FIND(\"- \",A1,1)-1)","v":"USL"}]
["Monthly Consumption (kWh)",{"$f":"IF(COUNTIF(A1,\"*Low*\")>0,VLOOKUP(B3,'Data Billing Quantities'!$A:$Z,MATCH(\"Low kWh\",'Data Billing Quantities'!4:4,0),FALSE),IF(COUNTIF(A1,\"*Typical*\")>0,VLOOKUP(B3,'Data Billing Quantities'!$A:$Z,MATCH(\"Typical kWh\",'Data Billing Quantities'!4:4,0),FALSE),IF(COUNTIF(A1,\"*Average*\")>0,VLOOKUP(B3,'Data Billing Quantities'!$A:$Z,MATCH(\"Average kWh\",'Data Billing Quantities'!4:4,0),FALSE),IF(COUNTIF(A1,\"*High*\")>0,VLOOKUP(B3,'Data Billing Quantities'!$A:$Z,MATCH(\"High kWh\",'Data Billing Quantities'!4:4,0),FALSE),\"error\"))))","v":477}]
["Peak (kW)",{"$f":"IF(COUNTIF(A1,\"*Low*\")>0,VLOOKUP(B3,'Data Billing Quantities'!$A:$Z,MATCH(\"Low kW\",'Data Billing Quantities'!4:4,0),FALSE),IF(COUNTIF(A1,\"*Typical*\")>0,VLOOKUP(B3,'Data Billing Quantities'!$A:$Z,MATCH(\"Typical kW\",'Data Billing Quantities'!4:4,0),FALSE),IF(COUNTIF(A1,\"*Average*\")>0,VLOOKUP(B3,'Data Billing Quantities'!$A:$Z,MATCH(\"Average kW\",'Data Billing Quantities'!4:4,0),FALSE),IF(COUNTIF(A1,\"*High*\")>0,VLOOKUP(B3,'Data Billing Quantities'!$A:$Z,MATCH(\"High kW\",'Data Billing Quantities'!4:4,0),FALSE),\"error\"))))","v":0}]
["Loss factor",{"$f":"VLOOKUP(B3,'Data Billing Quantities'!A:D,MATCH(A6,'Data Billing Quantities'!4:4,0),FALSE)","v":1.0920000000000001}]
["Commodity Threshold",{"$f":"VLOOKUP(B3,'Data Billing Quantities'!A:D,MATCH(A7,'Data Billing Quantities'!4:4,0),FALSE)","v":750}]
["Monthly Consumption (kWh) - Uplifted",{"$f":"B4*B6","v":520.88400000000001}]
["Charge determinant",{"$f":"VLOOKUP(B3,'Data Billing Quantities'!A:D,MATCH(A9,'Data Billing Quantities'!4:4,0),FALSE)","v":"kWh"}]
[]
[null,"Volume","Current Rate ($)","Current Charge ($)","Volume","Proposed Rate ($)","Proposed Charge ($)","Change ($)","Change (%)","% of Total Bill"]
["Energy First Tier",{"$f":"IF(B4>B7,B7,B4)","v":477},{"$f":"VLOOKUP($A12,'Data Pass Through'!$A:$D,2,FALSE)","v":9.8000000000000004E-2},{"$f":"B12*C12","v":46.746000000000002},{"$f":"B12","v":477},{"$f":"VLOOKUP($A12,'Data Pass Through'!$A:$D,3,FALSE)","v":9.8000000000000004E-2},{"$f":"E12*F12","v":46.746000000000002},{"$f":"G12-D12","v":0},{"$f":"IF(ISERROR(H12/ABS(D12)),\"N/A\",(H12/ABS(D12)))","v":0},{"$f":"G12/$G$37","v":0.47349524678078114}]
["Energy Second Tier",{"$f":"IF(B4>B7,(B4)-B7,0)","v":0},{"$f":"VLOOKUP($A13,'Data Pass Through'!$A:$D,2,FALSE)","v":0.115},{"$f":"B13*C13","v":0},{"$f":"B13","v":0},{"$f":"VLOOKUP($A13,'Data Pass Through'!$A:$D,3,FALSE)","v":0.115},{"$f":"E13*F13","v":0},0,"N/A",{"$f":"G13/$G$37","v":0}]
["Sub-Total:  Energy (RPP Tiered)",null,null,{"$f":"SUM(D12:D13)","v":46.746000000000002},null,null,{"$f":"SUM(G12:G13)","v":46.746000000000002},0,0,{"$f":"G14/$G$37","v":0.47349524678078114}]
["Service Charge",1,{"$f":"VLOOKUP($B$3,'Data Current Rates'!$A:$AP,MATCH(BI_USL_Avg!$A15,CurrentHeader,0),FALSE)","v":39.42},{"$f":"B15*C15","v":39.42},1,{"$f":"VLOOKUP($B$3,'Data Proposed Rates'!$A:$AZ,MATCH(BI_USL_Avg!$A15,ProposedHeader,0),FALSE)","v":34.68},{"$f":"E15*F15","v":34.68},-4.740000000000002,-0.12024353120243536,{"$f":"G15/$G$37","v":0.3512774388901187}]
["Fixed Base Rate Adjustment to Recover Past Tax Amounts ",1,{"$f":"VLOOKUP($B$3,'Data Current Rates'!$A:$AP,MATCH(BI_USL_Avg!$A16,CurrentHeader,0),FALSE)","v":0.89},0.89,1,{"$f":"VLOOKUP($B$3,'Data Proposed Rates'!$A:$AZ,MATCH(BI_USL_Avg!$A16,ProposedHeader,0),FALSE)","v":0.87},0.87,-2.0000000000000018E-2,-2.2471910112359571E-2]
["Distribution Volumetric Charge",{"$f":"IF($B$9=\"kWh\",$B$4,$B$5)","v":477},{"$f":"VLOOKUP($B$3,'Data Current Rates'!$A:$AP,MATCH(BI_USL_Avg!$A17,CurrentHeader,0),FALSE)","v":2.63E-2},12.5451,477,{"$f":"VLOOKUP($B$3,'Data Proposed Rates'!$A:$AZ,MATCH(BI_USL_Avg!$A17,ProposedHeader,0),FALSE)","v":2.1600000000000001E-2},10.3032,-2.2418999999999993,-0.17870722433460071,{"$f":"G17/$G$37","v":0.10436221765780482}]
["Volumetric Base Rate Adjustment to Recover Past Tax Amounts ",{"$f":"IF($B$9=\"kWh\",$B$4,$B$5)","v":477},{"$f":"VLOOKUP($B$3,'Data Current Rates'!$A:$AP,MATCH(BI_USL_Avg!$A18,CurrentHeader,0),FALSE)","v":5.9999999999999995E-4},0.28619999999999995,477,{"$f":"VLOOKUP($B$3,'Data Proposed Rates'!$A:$AZ,MATCH(BI_USL_Avg!$A18,ProposedHeader,0),FALSE)","v":5.0000000000000001E-4},0.23850000000000002,-4.7699999999999937E-2,-0.16666666666666646,2.4157920754121487E-3]
["Group 1 Volumetric DVA Rider (General)",null,null,null,{"$f":"B4","v":477},{"$f":"VLOOKUP($B$3,'Data Proposed Rates'!$A:$AZ,MATCH(BI_USL_Avg!$A19,ProposedHeader,0),FALSE)","v":-4.0000000000000002E-4},-0.1908,-0.1908,"N/A",-1.9326336603297189E-3]
["Group 2 Volumetric DVA Rider ",null,null,null,{"$f":"B4","v":477},{"$f":"VLOOKUP($B$3,'Data Proposed Rates'!$A:$AZ,MATCH(BI_USL_Avg!$A20,ProposedHeader,0),FALSE)","v":-2.0000000000000001E-4},-9.5399999999999999E-2,-9.5399999999999999E-2,"N/A",-9.6631683016485943E-4]
["Sub-Total:  Distribution (excluding pass through)",null,null,{"$f":"SUM(INDIRECT(\"D15:D\"&ROW()-1))","v":53.141300000000001},null,null,{"$f":"SUM(INDIRECT(\"g15:g\"&ROW()-1))","v":45.805500000000002},{"$f":"G21-D21","v":-7.335799999999999},-0.13804329212872096,0.46396882142679741]
["Line Losses on Cost of Power (based on two-tier RPP prices)",{"$f":"B8-B4","v":43.884000000000015},{"$f":"IF(B4>B7,C13,C12)","v":9.8000000000000004E-2},{"$f":"B22*C22","v":4.300632000000002},43.884000000000015,{"$f":"IF(B4>B7,F13,F12)","v":9.8000000000000004E-2},{"$f":"E22*F22","v":4.300632000000002},0,0,4.3561562703831887E-2]
["Sub-Total:  Distribution (based on two-tier RPP prices)",null,null,{"$f":"SUM(D21,D22:D22)","v":57.441932000000001},null,null,{"$f":"SUM(G21,G22:G22)","v":50.106132000000002},-7.335799999999999,-0.127708100068779,0.50753038413062923]
["Retail Transmission Rate – Network Service Rate",{"$f":"B8","v":520.88400000000001},{"$f":"VLOOKUP($B$3,'Data Current Rates'!$A:$AP,MATCH(BI_USL_Avg!$A24,CurrentHeader,0),FALSE)","v":6.4999999999999997E-3},{"$f":"B24*C24","v":3.3857460000000001},520.88400000000001,{"$f":"VLOOKUP($B$3,'Data Proposed Rates'!$A:$AZ,MATCH(BI_USL_Avg!$A24,ProposedHeader,0),FALSE)","v":6.4000000000000003E-3},{"$f":"E24*F24","v":3.3336576000000004},{"$f":"G24-D24","v":-5.2088399999999702E-2},-1.5384615384615295E-2,3.376697531328085E-2]
["Retail Transmission Rate – Line and Transformation Connection Service Rate",{"$f":"B8","v":520.88400000000001},{"$f":"VLOOKUP($B$3,'Data Current Rates'!$A:$AP,MATCH(BI_USL_Avg!$A25,CurrentHeader,0),FALSE)","v":4.5999999999999999E-3},{"$f":"B25*C25","v":2.3960664},520.88400000000001,{"$f":"VLOOKUP($B$3,'Data Proposed Rates'!$A:$AZ,MATCH(BI_USL_Avg!$A25,ProposedHeader,0),FALSE)","v":4.7000000000000002E-3},{"$f":"E25*F25","v":2.4481548000000002},{"$f":"G25-D25","v":5.2088400000000146E-2},2.1739130434782671E-2,2.4797622495690626E-2]
["Sub-Total:  Retail Transmission ",null,null,{"$f":"SUM(D24:D25)","v":5.7818123999999997},null,null,{"$f":"SUM(G24:G25)","v":5.7818124000000006},{"$f":"G26-D26","v":0},0,5.8564597808971476E-2]
["Sub-Total:  Delivery (based on two-tier RPP prices)",null,null,{"$f":"D23+D26","v":63.223744400000001},null,null,{"$f":"G23+G26","v":55.887944400000002},{"$f":"G27-D27","v":-7.335799999999999},-0.11602919234881633,0.56609498193960073]
["Wholesale Market Service Rate (WMS) - not including CBR",{"$f":"B8","v":520.88400000000001},{"$f":"VLOOKUP($A28,'Data Pass Through'!$A:$D,2,FALSE)","v":3.0000000000000001E-3},{"$f":"B28*C28","v":1.5626520000000002},{"$f":"$B$8","v":520.88400000000001},{"$f":"VLOOKUP($A28,'Data Pass Through'!$A:$D,3,FALSE)","v":3.0000000000000001E-3},{"$f":"E28*F28","v":1.5626520000000002},{"$f":"G28-D28","v":0},0,1.5828269678100398E-2]
["Capacity Based Recovery (CBR) - Applicable for Class B Customers",{"$f":"B8","v":520.88400000000001},{"$f":"VLOOKUP($A29,'Data Pass Through'!$A:$D,2,FALSE)","v":4.0000000000000002E-4},{"$f":"B29*C29","v":0.20835360000000003},{"$f":"$B$8","v":520.88400000000001},{"$f":"VLOOKUP($A29,'Data Pass Through'!$A:$D,3,FALSE)","v":4.0000000000000002E-4},{"$f":"E29*F29","v":0.20835360000000003},0,0,2.1104359570800531E-3]
["Rural Rate Protection Charge",{"$f":"B8","v":520.88400000000001},{"$f":"VLOOKUP($A30,'Data Pass Through'!$A:$D,2,FALSE)","v":5.0000000000000001E-4},0.26044200000000001,520.88400000000001,{"$f":"VLOOKUP($A30,'Data Pass Through'!$A:$D,3,FALSE)","v":5.0000000000000001E-4},0.26044200000000001,0,0,2.6380449463500664E-3]
["Standard Supply Service – Administration Charge (if applicable)",1,{"$f":"VLOOKUP($A31,'Data Pass Through'!$A:$D,2,FALSE)","v":0.25},{"$f":"B31*C31","v":0.25},1,{"$f":"VLOOKUP($A31,'Data Pass Through'!$A:$D,3,FALSE)","v":0.25},0.25,0,0,2.5322768086081223E-3]
["Sub-Total:  Regulatory",null,null,{"$f":"SUM(D28:D31)","v":2.2814475999999999},null,null,{"$f":"SUM(G28:G31)","v":2.2814475999999999},0,0,2.3109027390138637E-2]
["Total  Electricty Charge on Two-Tier RPP ",null,null,{"$f":"SUM(D14,D21,D22,D26,D32)","v":112.25119200000003},null,null,{"$f":"SUM(G14,G21,G22,G26,G32)","v":104.91539200000003},-7.3358000000000061,-6.5351644550910457E-2,1.0626992561105206]
["     HST",null,0.13,{"$f":"D33*C34","v":14.592654960000004},null,{"$f":"C34","v":0.13},{"$f":"G33*F34","v":13.639000960000004},-0.95365400000000022,-6.5351644550910415E-2,0.13815090329436772]
["Total Electricity Charge on Two-Tier RPP (including HST)",null,null,{"$f":"SUM(D33:D34)","v":126.84384696000004},null,null,{"$f":"SUM(G33:G34)","v":118.55439296000003},-8.2894540000000063,-6.5351644550910457E-2,1.2008501594048884]
["Ontario Electricity Rebate (OER)",null,{"$f":"IF(($B$4*12)<250000,VLOOKUP(A36,'Data Pass Through'!$A$4:$C$20,2,0),0)","v":-0.189},{"$f":"D33*C36","v":-21.215475288000007},null,{"$f":"C36","v":-0.189},{"$f":"G33*F36","v":-19.829009088000006},1.386466200000001,6.5351644550910443E-2,-0.20085015940488843]
["Total Amount on Two-Tier RPP",null,null,{"$f":"SUM(D35:D36)","v":105.62837167200003},null,null,{"$f":"SUM(G35:G36)","v":98.725383872000023},-6.9029878000000053,-6.5351644550910457E-2,1]

{"sheet":"BI_USL_High","index":65,"n_rows":37,"n_cols":10,"rows_kept":37,"cut":false,"hidden":false,"merged":[[0,0,0,9]]}
["2023 Bill Impacts (High Consumption Level) - USL"]
[]
["Rate Class",{"$f":"RIGHT(A1,LEN(A1)-FIND(\"- \",A1,1)-1)","v":"USL"}]
["Monthly Consumption (kWh)",{"$f":"IF(COUNTIF(A1,\"*Low*\")>0,VLOOKUP(B3,'Data Billing Quantities'!$A:$Z,MATCH(\"Low kWh\",'Data Billing Quantities'!4:4,0),FALSE),IF(COUNTIF(A1,\"*Typical*\")>0,VLOOKUP(B3,'Data Billing Quantities'!$A:$Z,MATCH(\"Typical kWh\",'Data Billing Quantities'!4:4,0),FALSE),IF(COUNTIF(A1,\"*Average*\")>0,VLOOKUP(B3,'Data Billing Quantities'!$A:$Z,MATCH(\"Average kWh\",'Data Billing Quantities'!4:4,0),FALSE),IF(COUNTIF(A1,\"*High*\")>0,VLOOKUP(B3,'Data Billing Quantities'!$A:$Z,MATCH(\"High kWh\",'Data Billing Quantities'!4:4,0),FALSE),\"error\"))))","v":550}]
["Peak (kW)",{"$f":"IF(COUNTIF(A1,\"*Low*\")>0,VLOOKUP(B3,'Data Billing Quantities'!$A:$Z,MATCH(\"Low kW\",'Data Billing Quantities'!4:4,0),FALSE),IF(COUNTIF(A1,\"*Typical*\")>0,VLOOKUP(B3,'Data Billing Quantities'!$A:$Z,MATCH(\"Typical kW\",'Data Billing Quantities'!4:4,0),FALSE),IF(COUNTIF(A1,\"*Average*\")>0,VLOOKUP(B3,'Data Billing Quantities'!$A:$Z,MATCH(\"Average kW\",'Data Billing Quantities'!4:4,0),FALSE),IF(COUNTIF(A1,\"*High*\")>0,VLOOKUP(B3,'Data Billing Quantities'!$A:$Z,MATCH(\"High kW\",'Data Billing Quantities'!4:4,0),FALSE),\"error\"))))","v":0}]
["Loss factor",{"$f":"VLOOKUP(B3,'Data Billing Quantities'!A:D,MATCH(A6,'Data Billing Quantities'!4:4,0),FALSE)","v":1.0920000000000001}]
["Commodity Threshold",{"$f":"VLOOKUP(B3,'Data Billing Quantities'!A:D,MATCH(A7,'Data Billing Quantities'!4:4,0),FALSE)","v":750}]
["Monthly Consumption (kWh) - Uplifted",{"$f":"B4*B6","v":600.6}]
["Charge determinant",{"$f":"VLOOKUP(B3,'Data Billing Quantities'!A:D,MATCH(A9,'Data Billing Quantities'!4:4,0),FALSE)","v":"kWh"}]
[]
[null,"Volume","Current Rate ($)","Current Charge ($)","Volume","Proposed Rate ($)","Proposed Charge ($)","Change ($)","Change (%)","% of Total Bill"]
["Energy First Tier",{"$f":"IF(B4>B7,B7,B4)","v":550},{"$f":"VLOOKUP($A12,'Data Pass Through'!$A:$D,2,FALSE)","v":9.8000000000000004E-2},{"$f":"B12*C12","v":53.9},{"$f":"B12","v":550},{"$f":"VLOOKUP($A12,'Data Pass Through'!$A:$D,3,FALSE)","v":9.8000000000000004E-2},{"$f":"E12*F12","v":53.9},{"$f":"G12-D12","v":0},{"$f":"IF(ISERROR(H12/ABS(D12)),\"N/A\",(H12/ABS(D12)))","v":0},{"$f":"G12/$G$37","v":0.49595723633297545}]
["Energy Second Tier",{"$f":"IF(B4>B7,(B4)-B7,0)","v":0},{"$f":"VLOOKUP($A13,'Data Pass Through'!$A:$D,2,FALSE)","v":0.115},{"$f":"B13*C13","v":0},{"$f":"B13","v":0},{"$f":"VLOOKUP($A13,'Data Pass Through'!$A:$D,3,FALSE)","v":0.115},{"$f":"E13*F13","v":0},0,"N/A",{"$f":"G13/$G$37","v":0}]
["Sub-Total:  Energy (RPP Tiered)",null,null,{"$f":"SUM(D12:D13)","v":53.9},null,null,{"$f":"SUM(G12:G13)","v":53.9},0,0,{"$f":"G14/$G$37","v":0.49595723633297545}]
["Service Charge",1,{"$f":"VLOOKUP($B$3,'Data Current Rates'!$A:$AP,MATCH(BI_USL_High!$A15,CurrentHeader,0),FALSE)","v":39.42},{"$f":"B15*C15","v":39.42},1,{"$f":"VLOOKUP($B$3,'Data Proposed Rates'!$A:$AZ,MATCH(BI_USL_High!$A15,ProposedHeader,0),FALSE)","v":34.68},{"$f":"E15*F15","v":34.68},-4.740000000000002,-0.12024353120243536,{"$f":"G15/$G$37","v":0.3191056949170239}]
["Fixed Base Rate Adjustment to Recover Past Tax Amounts ",1,{"$f":"VLOOKUP($B$3,'Data Current Rates'!$A:$AP,MATCH(BI_USL_High!$A16,CurrentHeader,0),FALSE)","v":0.89},0.89,1,{"$f":"VLOOKUP($B$3,'Data Proposed Rates'!$A:$AZ,MATCH(BI_USL_High!$A16,ProposedHeader,0),FALSE)","v":0.87},0.87,-2.0000000000000018E-2,-2.2471910112359571E-2]
["Distribution Volumetric Charge",{"$f":"IF($B$9=\"kWh\",$B$4,$B$5)","v":550},{"$f":"VLOOKUP($B$3,'Data Current Rates'!$A:$AP,MATCH(BI_USL_High!$A17,CurrentHeader,0),FALSE)","v":2.63E-2},14.465,550,{"$f":"VLOOKUP($B$3,'Data Proposed Rates'!$A:$AZ,MATCH(BI_USL_High!$A17,ProposedHeader,0),FALSE)","v":2.1600000000000001E-2},11.88,-2.5849999999999991,-0.17870722433460071,{"$f":"G17/$G$37","v":0.10931302351828848}]
["Volumetric Base Rate Adjustment to Recover Past Tax Amounts ",{"$f":"IF($B$9=\"kWh\",$B$4,$B$5)","v":550},{"$f":"VLOOKUP($B$3,'Data Current Rates'!$A:$AP,MATCH(BI_USL_High!$A18,CurrentHeader,0),FALSE)","v":5.9999999999999995E-4},0.32999999999999996,550,{"$f":"VLOOKUP($B$3,'Data Proposed Rates'!$A:$AZ,MATCH(BI_USL_High!$A18,ProposedHeader,0),FALSE)","v":5.0000000000000001E-4},0.27500000000000002,-5.4999999999999938E-2,-0.16666666666666649,2.5303940629233445E-3]
["Group 1 Volumetric DVA Rider (General)",null,null,null,{"$f":"B4","v":550},{"$f":"VLOOKUP($B$3,'Data Proposed Rates'!$A:$AZ,MATCH(BI_USL_High!$A19,ProposedHeader,0),FALSE)","v":-4.0000000000000002E-4},-0.22,-0.22,"N/A",-2.0243152503386752E-3]
["Group 2 Volumetric DVA Rider ",null,null,null,{"$f":"B4","v":550},{"$f":"VLOOKUP($B$3,'Data Proposed Rates'!$A:$AZ,MATCH(BI_USL_High!$A20,ProposedHeader,0),FALSE)","v":-2.0000000000000001E-4},-0.11,-0.11,"N/A",-1.0121576251693376E-3]
["Sub-Total:  Distribution (excluding pass through)",null,null,{"$f":"SUM(INDIRECT(\"D15:D\"&ROW()-1))","v":55.105000000000004},null,null,{"$f":"SUM(INDIRECT(\"g15:g\"&ROW()-1))","v":47.375},{"$f":"G21-D21","v":-7.730000000000004},-0.14027765175573911,0.43591788629452155]
["Line Losses on Cost of Power (based on two-tier RPP prices)",{"$f":"B8-B4","v":50.600000000000023},{"$f":"IF(B4>B7,C13,C12)","v":9.8000000000000004E-2},{"$f":"B22*C22","v":4.9588000000000028},50.600000000000023,{"$f":"IF(B4>B7,F13,F12)","v":9.8000000000000004E-2},{"$f":"E22*F22","v":4.9588000000000028},0,0,4.5628065742633769E-2]
["Sub-Total:  Distribution (based on two-tier RPP prices)",null,null,{"$f":"SUM(D21,D22:D22)","v":60.063800000000008},null,null,{"$f":"SUM(G21,G22:G22)","v":52.333800000000004},-7.730000000000004,-0.12869648606981249,0.48154595203715533]
["Retail Transmission Rate – Network Service Rate",{"$f":"B8","v":600.6},{"$f":"VLOOKUP($B$3,'Data Current Rates'!$A:$AP,MATCH(BI_USL_High!$A24,CurrentHeader,0),FALSE)","v":6.4999999999999997E-3},{"$f":"B24*C24","v":3.9039000000000001},600.6,{"$f":"VLOOKUP($B$3,'Data Proposed Rates'!$A:$AZ,MATCH(BI_USL_High!$A24,ProposedHeader,0),FALSE)","v":6.4000000000000003E-3},{"$f":"E24*F24","v":3.8438400000000001},{"$f":"G24-D24","v":-6.0060000000000002E-2},-1.5384615384615385E-2,3.5368836053917337E-2]
["Retail Transmission Rate – Line and Transformation Connection Service Rate",{"$f":"B8","v":600.6},{"$f":"VLOOKUP($B$3,'Data Current Rates'!$A:$AP,MATCH(BI_USL_High!$A25,CurrentHeader,0),FALSE)","v":4.5999999999999999E-3},{"$f":"B25*C25","v":2.7627600000000001},600.6,{"$f":"VLOOKUP($B$3,'Data Proposed Rates'!$A:$AZ,MATCH(BI_USL_High!$A25,ProposedHeader,0),FALSE)","v":4.7000000000000002E-3},{"$f":"E25*F25","v":2.8228200000000001},{"$f":"G25-D25","v":6.0060000000000002E-2},2.1739130434782608E-2,2.5973988977095543E-2]
["Sub-Total:  Retail Transmission ",null,null,{"$f":"SUM(D24:D25)","v":6.6666600000000003},null,null,{"$f":"SUM(G24:G25)","v":6.6666600000000003},{"$f":"G26-D26","v":0},0,6.1342825031012883E-2]
["Sub-Total:  Delivery (based on two-tier RPP prices)",null,null,{"$f":"D23+D26","v":66.730460000000008},null,null,{"$f":"G23+G26","v":59.000460000000004},{"$f":"G27-D27","v":-7.730000000000004},-0.11583915351400249,0.54288877706816818]
["Wholesale Market Service Rate (WMS) - not including CBR",{"$f":"B8","v":600.6},{"$f":"VLOOKUP($A28,'Data Pass Through'!$A:$D,2,FALSE)","v":3.0000000000000001E-3},{"$f":"B28*C28","v":1.8018000000000001},{"$f":"$B$8","v":600.6},{"$f":"VLOOKUP($A28,'Data Pass Through'!$A:$D,3,FALSE)","v":3.0000000000000001E-3},{"$f":"E28*F28","v":1.8018000000000001},{"$f":"G28-D28","v":0},0,1.657914190027375E-2]
["Capacity Based Recovery (CBR) - Applicable for Class B Customers",{"$f":"B8","v":600.6},{"$f":"VLOOKUP($A29,'Data Pass Through'!$A:$D,2,FALSE)","v":4.0000000000000002E-4},{"$f":"B29*C29","v":0.24024000000000001},{"$f":"$B$8","v":600.6},{"$f":"VLOOKUP($A29,'Data Pass Through'!$A:$D,3,FALSE)","v":4.0000000000000002E-4},{"$f":"E29*F29","v":0.24024000000000001},0,0,2.2105522533698335E-3]
["Rural Rate Protection Charge",{"$f":"B8","v":600.6},{"$f":"VLOOKUP($A30,'Data Pass Through'!$A:$D,2,FALSE)","v":5.0000000000000001E-4},0.30030000000000001,600.6,{"$f":"VLOOKUP($A30,'Data Pass Through'!$A:$D,3,FALSE)","v":5.0000000000000001E-4},0.30030000000000001,0,0,2.7631903167122918E-3]
["Standard Supply Service – Administration Charge (if applicable)",1,{"$f":"VLOOKUP($A31,'Data Pass Through'!$A:$D,2,FALSE)","v":0.25},{"$f":"B31*C31","v":0.25},1,{"$f":"VLOOKUP($A31,'Data Pass Through'!$A:$D,3,FALSE)","v":0.25},0.25,0,0,2.3003582390212218E-3]
["Sub-Total:  Regulatory",null,null,{"$f":"SUM(D28:D31)","v":2.5923400000000001},null,null,{"$f":"SUM(G28:G31)","v":2.5923400000000001},0,0,2.3853242709377099E-2]
["Total  Electricty Charge on Two-Tier RPP ",null,null,{"$f":"SUM(D14,D21,D22,D26,D32)","v":123.22280000000001},null,null,{"$f":"SUM(G14,G21,G22,G26,G32)","v":115.49280000000002},-7.7299999999999898,-6.2731897019058069E-2,1.0626992561105209]
["     HST",null,0.13,{"$f":"D33*C34","v":16.018964},null,{"$f":"C34","v":0.13},{"$f":"G33*F34","v":15.014064000000003},-1.0048999999999975,-6.2731897019058E-2,0.13815090329436772]
["Total Electricity Charge on Two-Tier RPP (including HST)",null,null,{"$f":"SUM(D33:D34)","v":139.24176400000002},null,null,{"$f":"SUM(G33:G34)","v":130.50686400000001},-8.7349000000000103,-6.2731897019058222E-2,1.2008501594048886]
["Ontario Electricity Rebate (OER)",null,{"$f":"IF(($B$4*12)<250000,VLOOKUP(A36,'Data Pass Through'!$A$4:$C$20,2,0),0)","v":-0.189},{"$f":"D33*C36","v":-23.289109200000002},null,{"$f":"C36","v":-0.189},{"$f":"G33*F36","v":-21.828139200000003},1.4609699999999997,6.2731897019058139E-2,-0.20085015940488846]
["Total Amount on Two-Tier RPP",null,null,{"$f":"SUM(D35:D36)","v":115.95265480000002},null,null,{"$f":"SUM(G35:G36)","v":108.6787248},-7.2739300000000213,-6.2731897019058333E-2,1]

{"sheet":"BI_Dgen_Low","index":66,"n_rows":34,"n_cols":10,"rows_kept":34,"cut":false,"hidden":false,"merged":[[0,0,0,9]]}
["2023 Bill Impacts (Low Consumption Level) - Dgen"]
[]
["Rate Class",{"$f":"RIGHT(A1,LEN(A1)-FIND(\"- \",A1,1)-1)","v":"Dgen"}]
["Monthly Consumption (kWh)",{"$f":"IF(COUNTIF(A1,\"*Low*\")>0,VLOOKUP(B3,'Data Billing Quantities'!$A:$Z,MATCH(\"Low kWh\",'Data Billing Quantities'!4:4,0),FALSE),IF(COUNTIF(A1,\"*Typical*\")>0,VLOOKUP(B3,'Data Billing Quantities'!$A:$Z,MATCH(\"Typical kWh\",'Data Billing Quantities'!4:4,0),FALSE),IF(COUNTIF(A1,\"*Average*\")>0,VLOOKUP(B3,'Data Billing Quantities'!$A:$Z,MATCH(\"Average kWh\",'Data Billing Quantities'!4:4,0),FALSE),IF(COUNTIF(A1,\"*High*\")>0,VLOOKUP(B3,'Data Billing Quantities'!$A:$Z,MATCH(\"High kWh\",'Data Billing Quantities'!4:4,0),FALSE),\"error\"))))","v":10}]
["Peak (kW)",{"$f":"IF(COUNTIF(A1,\"*Low*\")>0,VLOOKUP(B3,'Data Billing Quantities'!$A:$Z,MATCH(\"Low kW\",'Data Billing Quantities'!4:4,0),FALSE),IF(COUNTIF(A1,\"*Typical*\")>0,VLOOKUP(B3,'Data Billing Quantities'!$A:$Z,MATCH(\"Typical kW\",'Data Billing Quantities'!4:4,0),FALSE),IF(COUNTIF(A1,\"*Average*\")>0,VLOOKUP(B3,'Data Billing Quantities'!$A:$Z,MATCH(\"Average kW\",'Data Billing Quantities'!4:4,0),FALSE),IF(COUNTIF(A1,\"*High*\")>0,VLOOKUP(B3,'Data Billing Quantities'!$A:$Z,MATCH(\"High kW\",'Data Billing Quantities'!4:4,0),FALSE),\"error\"))))","v":2.9416666666666664E-2}]
["Loss factor",{"$f":"VLOOKUP(B3,'Data Billing Quantities'!A:D,MATCH(A6,'Data Billing Quantities'!4:4,0),FALSE)","v":1.0609999999999999}]
["Load factor",{"$f":"B4/(B5*730)","v":0.46567581202219727}]
["Monthly Consumption (kWh) - Uplifted",{"$f":"B4*B6","v":10.61}]
["Charge determinant",{"$f":"VLOOKUP(B3,'Data Billing Quantities'!A:D,MATCH(A9,'Data Billing Quantities'!4:4,0),FALSE)","v":"kW"}]
[]
[null,"Volume","Current Rate ($)","Current Charge ($)","Volume","Proposed Rate ($)","Proposed Charge ($)","Change ($)","Change (%)","% of Total Bill "]
["Weighted Average Hourly Spot Price",{"$f":"B8","v":10.61},{"$f":"VLOOKUP($A12,'Data Pass Through'!$A:$D,2,FALSE)","v":0.11899999999999999},{"$f":"B12*C12","v":1.2625899999999999},{"$f":"B8","v":10.61},{"$f":"VLOOKUP($A12,'Data Pass Through'!$A:$D,3,FALSE)","v":0.11899999999999999},{"$f":"E12*F12","v":1.2625899999999999},{"$f":"G12-D12","v":0},{"$f":"IF(ISERROR(H12/ABS(D12)),\"N/A\",(H12/ABS(D12)))","v":0},{"$f":"G12/$G$34","v":5.6953063377997411E-3}]
["Sub-Total:  Energy (WAHSP)",null,null,{"$f":"SUM(D12:D12)","v":1.2625899999999999},null,null,{"$f":"SUM(G12:G12)","v":1.2625899999999999},{"$f":"G13-D13","v":0},0,5.6953063377997411E-3]
["Service Charge",1,{"$f":"VLOOKUP($B$3,'Data Current Rates'!$A:$AQ,MATCH($A14,CurrentHeader,0),FALSE)","v":202.25},{"$f":"B14*C14","v":202.25},{"$f":"B14","v":1},{"$f":"VLOOKUP($B$3,'Data Proposed Rates'!$A:$AZ,MATCH($A14,ProposedHeader,0),FALSE)","v":192.51},{"$f":"E14*F14","v":192.51},-9.7400000000000091,-4.8158220024721921E-2,0.86837645085881254]
["Fixed Base Rate Adjustment to Recover Past Tax Amounts ",1,{"$f":"VLOOKUP($B$3,'Data Current Rates'!$A:$AQ,MATCH($A15,CurrentHeader,0),FALSE)","v":1.74},{"$f":"B15*C15","v":1.74},1,{"$f":"VLOOKUP($B$3,'Data Proposed Rates'!$A:$AZ,MATCH($A15,ProposedHeader,0),FALSE)","v":1.77},{"$f":"E15*F15","v":1.77},3.0000000000000027E-2,1.7241379310344845E-2,7.9841375410113682E-3]
["Distribution Volumetric Charge",{"$f":"IF($B$9=\"kWh\",$B$4,$B$5)","v":2.9416666666666664E-2},{"$f":"VLOOKUP($B$3,'Data Current Rates'!$A:$AQ,MATCH($A16,CurrentHeader,0),FALSE)","v":10.499000000000001},{"$f":"B16*C16","v":0.30884558333333334},{"$f":"$B$5","v":2.9416666666666664E-2},{"$f":"VLOOKUP($B$3,'Data Proposed Rates'!$A:$AZ,MATCH($A16,ProposedHeader,0),FALSE)","v":10.0684},0.29617876666666665,-1.2666816666666691E-2,{"$f":"IF(ISERROR(H16/ABS(D16)),\"N/A\",(H16/ABS(D16)))","v":-4.1013429850462031E-2},1.3360067851942257E-3]
["Volumetric Base Rate Adjustment to Recover Past Tax Amounts ",{"$f":"IF($B$9=\"kWh\",$B$4,$B$5)","v":2.9416666666666664E-2},{"$f":"VLOOKUP($B$3,'Data Current Rates'!$A:$AQ,MATCH($A17,CurrentHeader,0),FALSE)","v":8.8300000000000003E-2},2.5974916666666667E-3,{"$f":"$B$5","v":2.9416666666666664E-2},{"$f":"VLOOKUP($B$3,'Data Proposed Rates'!$A:$AZ,MATCH($A17,ProposedHeader,0),FALSE)","v":9.1300000000000006E-2},2.6857416666666665E-3,8.8249999999999787E-5,{"$f":"IF(ISERROR(H17/ABS(D17)),\"N/A\",(H17/ABS(D17)))","v":3.3975084937712265E-2},1.2114876195645067E-5]
["Group 1 Volumetric DVA Rider (General)",null,null,null,2.9416666666666664E-2,{"$f":"VLOOKUP($B$3,'Data Proposed Rates'!$A:$AZ,MATCH($A18,ProposedHeader,0),FALSE)","v":-2.35E-2},-6.9129166666666655E-4,-6.9129166666666655E-4,"N/A",-3.1182868630630783E-6]
["Group 1 Volumetric Deferral/Variance Account Rider (Sub-Account RSVA Wholesale Market Service Charge & RSVA Power) ",null,null,null,2.9416666666666664E-2,{"$f":"VLOOKUP($B$3,'Data Proposed Rates'!$A:$AZ,MATCH($A19,ProposedHeader,0),FALSE)","v":-3.3599999999999998E-2},-9.8839999999999974E-4,-9.8839999999999974E-4,"N/A",-4.4584867488901888E-6]
["Group 1 Volumetric Deferral/Variance Account Rider (Sub-Account Global Adjustment)",null,null,null,{"$f":"B4","v":10},{"$f":"VLOOKUP($B$3,'Data Proposed Rates'!$A:$AZ,MATCH($A20,ProposedHeader,0),FALSE)","v":-6.9999999999999999E-4},-7.0000000000000001E-3,-7.0000000000000001E-3,"N/A",-3.1575685190440439E-5]
["Group 2 Volumetric DVA Rider ",null,null,null,{"$f":"B5","v":2.9416666666666664E-2},{"$f":"VLOOKUP($B$3,'Data Proposed Rates'!$A:$AZ,MATCH($A21,ProposedHeader,0),FALSE)","v":-5.9299999999999999E-2},-1.7444083333333332E-3,-1.7444083333333332E-3,"N/A",-7.8686983395591736E-6]
["Sub-Total:  Distribution",null,null,{"$f":"SUM(INDIRECT(\"D14:D\"&ROW()-1))","v":204.30144307500001},null,null,{"$f":"SUM(INDIRECT(\"g14:g\"&ROW()-1))","v":194.56844040833329},-9.7330026666667209,-4.764040096913897E-2,0.8776616889040717]
["Retail Transmission Rate – Network Service Rate",{"$f":"IF($B$9=\"kWh\",$B$4,$B$5)","v":2.9416666666666664E-2},{"$f":"VLOOKUP($B$3,'Data Current Rates'!$A:$AQ,MATCH($A23,CurrentHeader,0),FALSE)","v":1.1826000000000001},{"$f":"B23*C23","v":3.4788149999999997E-2},2.9416666666666664E-2,{"$f":"VLOOKUP($B$3,'Data Proposed Rates'!$A:$AZ,MATCH($A23,ProposedHeader,0),FALSE)","v":1.3408},{"$f":"E23*F23","v":3.9441866666666665E-2},4.6537166666666685E-3,0.13377304244884161,1.77914852169999E-4]
["Retail Transmission Rate – Line and Transformation Connection Service Rate",{"$f":"IF($B$9=\"kWh\",$B$4,$B$5)","v":2.9416666666666664E-2},{"$f":"VLOOKUP($B$3,'Data Current Rates'!$A:$AQ,MATCH($A24,CurrentHeader,0),FALSE)","v":0.83250000000000002},{"$f":"B24*C24","v":2.4489374999999997E-2},2.9416666666666664E-2,{"$f":"VLOOKUP($B$3,'Data Proposed Rates'!$A:$AZ,MATCH($A24,ProposedHeader,0),FALSE)","v":0.80249999999999999},{"$f":"E24*F24","v":2.3606874999999996E-2},-8.8250000000000134E-4,-3.6036036036036098E-2,1.0648617904715407E-4]
["Sub-Total:  Retail Transmission ",null,null,{"$f":"SUM(D23:D24)","v":5.9277524999999998E-2},null,null,{"$f":"SUM(G23:G24)","v":6.3048741666666658E-2},3.7712166666666602E-3,6.361967148032345E-2,2.8440103121715304E-4]
["Sub-Total:  Delivery ",null,null,{"$f":"D22+D25","v":204.36072060000001},null,null,{"$f":"G22+G25","v":194.63148914999996},-9.729231450000043,-4.760812851625873E-2,0.87794608993528889]
["Wholesale Market Service Rate (WMS) - not including CBR",{"$f":"$B$8","v":10.61},{"$f":"VLOOKUP($A27,'Data Pass Through'!$A:$D,2,FALSE)","v":3.0000000000000001E-3},{"$f":"B27*C27","v":3.1829999999999997E-2},{"$f":"$B$8","v":10.61},{"$f":"VLOOKUP($A27,'Data Pass Through'!$A:$D,3,FALSE)","v":3.0000000000000001E-3},{"$f":"E27*F27","v":3.1829999999999997E-2},0,0,1.4357915137310271E-4]
["Capacity Based Recovery (CBR) - Applicable for Class B Customers",{"$f":"$B$8","v":10.61},{"$f":"VLOOKUP($A28,'Data Pass Through'!$A:$D,2,FALSE)","v":4.0000000000000002E-4},{"$f":"B28*C28","v":4.2440000000000004E-3},{"$f":"$B$8","v":10.61},{"$f":"VLOOKUP($A28,'Data Pass Through'!$A:$D,3,FALSE)","v":4.0000000000000002E-4},{"$f":"E28*F28","v":4.2440000000000004E-3},{"$f":"G28-D28","v":0},0,1.914388684974703E-5]
["Rural Rate Protection Charge",{"$f":"$B$8","v":10.61},{"$f":"VLOOKUP($A29,'Data Pass Through'!$A:$D,2,FALSE)","v":5.0000000000000001E-4},{"$f":"B29*C29","v":5.3049999999999998E-3},{"$f":"$B$8","v":10.61},{"$f":"VLOOKUP($A29,'Data Pass Through'!$A:$D,3,FALSE)","v":5.0000000000000001E-4},{"$f":"E29*F29","v":5.3049999999999998E-3},{"$f":"G29-D29","v":0},0,2.3929858562183788E-5]
["Standard Supply Service – Administration Charge (if applicable)",1,{"$f":"VLOOKUP($A30,'Data Pass Through'!$A:$D,2,FALSE)","v":0.25},{"$f":"B30*C30","v":0.25},1,{"$f":"VLOOKUP($A30,'Data Pass Through'!$A:$D,3,FALSE)","v":0.25},{"$f":"E30*F30","v":0.25},0,0,1.12770304251573E-3]
["Sub-Total:  Regulatory",null,null,{"$f":"SUM(D27:D30)","v":0.291379},null,null,{"$f":"SUM(G27:G30)","v":0.291379},0,0,1.3143559393007634E-3]
["Total Electricity Charge on Two-Tier RPP (before HST)",null,null,{"$f":"SUM(D13,D22,D25,D31)","v":205.9146896},null,null,{"$f":"SUM(G13,G22,G25,G31)","v":196.18545814999996},-9.729231450000043,-4.7248845960915081E-2,0.88495575221238942]
["     HST",null,0.13,{"$f":"D32*C33","v":26.768909648000001},null,{"$f":"C33","v":0.13},{"$f":"G32*F33","v":25.504109559499994},-1.2648000885000066,-4.7248845960915116E-2,0.11504424778761062]
["Total Amount on WAHSP",null,null,{"$f":"SUM(D32:D33)","v":232.68359924800001},null,null,{"$f":"SUM(G32:G33)","v":221.68956770949995},-10.994031538500053,-4.7248845960915102E-2,1]

{"sheet":"BI_Dgen_Avg","index":67,"n_rows":34,"n_cols":10,"rows_kept":34,"cut":false,"hidden":false,"merged":[[0,0,0,9]]}
["2023 Bill Impacts (Average Consumption Level) - Dgen"]
[]
["Rate Class",{"$f":"RIGHT(A1,LEN(A1)-FIND(\"- \",A1,1)-1)","v":"Dgen"}]
["Monthly Consumption (kWh)",{"$f":"IF(COUNTIF(A1,\"*Low*\")>0,VLOOKUP(B3,'Data Billing Quantities'!$A:$Z,MATCH(\"Low kWh\",'Data Billing Quantities'!4:4,0),FALSE),IF(COUNTIF(A1,\"*Typical*\")>0,VLOOKUP(B3,'Data Billing Quantities'!$A:$Z,MATCH(\"Typical kWh\",'Data Billing Quantities'!4:4,0),FALSE),IF(COUNTIF(A1,\"*Average*\")>0,VLOOKUP(B3,'Data Billing Quantities'!$A:$Z,MATCH(\"Average kWh\",'Data Billing Quantities'!4:4,0),FALSE),IF(COUNTIF(A1,\"*High*\")>0,VLOOKUP(B3,'Data Billing Quantities'!$A:$Z,MATCH(\"High kWh\",'Data Billing Quantities'!4:4,0),FALSE),\"error\"))))","v":1709}]
["Peak (kW)",{"$f":"IF(COUNTIF(A1,\"*Low*\")>0,VLOOKUP(B3,'Data Billing Quantities'!$A:$Z,MATCH(\"Low kW\",'Data Billing Quantities'!4:4,0),FALSE),IF(COUNTIF(A1,\"*Typical*\")>0,VLOOKUP(B3,'Data Billing Quantities'!$A:$Z,MATCH(\"Typical kW\",'Data Billing Quantities'!4:4,0),FALSE),IF(COUNTIF(A1,\"*Average*\")>0,VLOOKUP(B3,'Data Billing Quantities'!$A:$Z,MATCH(\"Average kW\",'Data Billing Quantities'!4:4,0),FALSE),IF(COUNTIF(A1,\"*High*\")>0,VLOOKUP(B3,'Data Billing Quantities'!$A:$Z,MATCH(\"High kW\",'Data Billing Quantities'!4:4,0),FALSE),\"error\"))))","v":12}]
["Loss factor",{"$f":"VLOOKUP(B3,'Data Billing Quantities'!A:D,MATCH(A6,'Data Billing Quantities'!4:4,0),FALSE)","v":1.0609999999999999}]
["Load factor",{"$f":"B4/(B5*730)","v":0.19509132420091324}]
["Monthly Consumption (kWh) - Uplifted",{"$f":"B4*B6","v":1813.2489999999998}]
["Charge determinant",{"$f":"VLOOKUP(B3,'Data Billing Quantities'!A:D,MATCH(A9,'Data Billing Quantities'!4:4,0),FALSE)","v":"kW"}]
[]
[null,"Volume","Current Rate ($)","Current Charge ($)","Volume","Proposed Rate ($)","Proposed Charge ($)","Change ($)","Change (%)","% of Total Bill "]
["Weighted Average Hourly Spot Price",{"$f":"B8","v":1813.2489999999998},{"$f":"VLOOKUP($A12,'Data Pass Through'!$A:$D,2,FALSE)","v":0.11899999999999999},{"$f":"B12*C12","v":215.77663099999995},{"$f":"B8","v":1813.2489999999998},{"$f":"VLOOKUP($A12,'Data Pass Through'!$A:$D,3,FALSE)","v":0.11899999999999999},{"$f":"E12*F12","v":215.77663099999995},{"$f":"G12-D12","v":0},{"$f":"IF(ISERROR(H12/ABS(D12)),\"N/A\",(H12/ABS(D12)))","v":0},{"$f":"G12/$G$34","v":0.33951915412055933}]
["Sub-Total:  Energy (WAHSP)",null,null,{"$f":"SUM(D12:D12)","v":215.77663099999995},null,null,{"$f":"SUM(G12:G12)","v":215.77663099999995},{"$f":"G13-D13","v":0},0,0.33951915412055933]
["Service Charge",1,{"$f":"VLOOKUP($B$3,'Data Current Rates'!$A:$AQ,MATCH($A14,CurrentHeader,0),FALSE)","v":202.25},{"$f":"B14*C14","v":202.25},{"$f":"B14","v":1},{"$f":"VLOOKUP($B$3,'Data Proposed Rates'!$A:$AZ,MATCH($A14,ProposedHeader,0),FALSE)","v":192.51},{"$f":"E14*F14","v":192.51},-9.7400000000000091,-4.8158220024721921E-2,0.30290968978818139]
["Fixed Base Rate Adjustment to Recover Past Tax Amounts ",1,{"$f":"VLOOKUP($B$3,'Data Current Rates'!$A:$AQ,MATCH($A15,CurrentHeader,0),FALSE)","v":1.74},{"$f":"B15*C15","v":1.74},1,{"$f":"VLOOKUP($B$3,'Data Proposed Rates'!$A:$AZ,MATCH($A15,ProposedHeader,0),FALSE)","v":1.77},{"$f":"E15*F15","v":1.77},3.0000000000000027E-2,1.7241379310344845E-2,2.7850509112517848E-3]
["Distribution Volumetric Charge",{"$f":"IF($B$9=\"kWh\",$B$4,$B$5)","v":12},{"$f":"VLOOKUP($B$3,'Data Current Rates'!$A:$AQ,MATCH($A16,CurrentHeader,0),FALSE)","v":10.499000000000001},{"$f":"B16*C16","v":125.988},{"$f":"$B$5","v":12},{"$f":"VLOOKUP($B$3,'Data Proposed Rates'!$A:$AZ,MATCH($A16,ProposedHeader,0),FALSE)","v":10.0684},120.82080000000001,-5.167199999999994,{"$f":"IF(ISERROR(H16/ABS(D16)),\"N/A\",(H16/ABS(D16)))","v":-4.1013429850461899E-2},0.19010851928710151]
["Volumetric Base Rate Adjustment to Recover Past Tax Amounts ",{"$f":"IF($B$9=\"kWh\",$B$4,$B$5)","v":12},{"$f":"VLOOKUP($B$3,'Data Current Rates'!$A:$AQ,MATCH($A17,CurrentHeader,0),FALSE)","v":8.8300000000000003E-2},1.0596000000000001,{"$f":"$B$5","v":12},{"$f":"VLOOKUP($B$3,'Data Proposed Rates'!$A:$AZ,MATCH($A17,ProposedHeader,0),FALSE)","v":9.1300000000000006E-2},1.0956000000000001,3.6000000000000032E-2,{"$f":"IF(ISERROR(H17/ABS(D17)),\"N/A\",(H17/ABS(D17)))","v":3.3975084937712369E-2},1.723899309812122E-3]
["Group 1 Volumetric DVA Rider (General)",null,null,null,12,{"$f":"VLOOKUP($B$3,'Data Proposed Rates'!$A:$AZ,MATCH($A18,ProposedHeader,0),FALSE)","v":-2.35E-2},-0.28200000000000003,-0.28200000000000003,"N/A",-4.437199756909624E-4]
["Group 1 Volumetric Deferral/Variance Account Rider (Sub-Account RSVA Wholesale Market Service Charge & RSVA Power) ",null,null,null,12,{"$f":"VLOOKUP($B$3,'Data Proposed Rates'!$A:$AZ,MATCH($A19,ProposedHeader,0),FALSE)","v":-3.3599999999999998E-2},-0.4032,-0.4032,"N/A",-6.3442515673260995E-4]
["Group 1 Volumetric Deferral/Variance Account Rider (Sub-Account Global Adjustment)",null,null,null,{"$f":"B4","v":1709},{"$f":"VLOOKUP($B$3,'Data Proposed Rates'!$A:$AZ,MATCH($A20,ProposedHeader,0),FALSE)","v":-6.9999999999999999E-4},-1.1962999999999999,-1.1962999999999999,"N/A",-1.8823482514861638E-3]
["Group 2 Volumetric DVA Rider ",null,null,null,{"$f":"B5","v":12},{"$f":"VLOOKUP($B$3,'Data Proposed Rates'!$A:$AZ,MATCH($A21,ProposedHeader,0),FALSE)","v":-5.9299999999999999E-2},-0.71160000000000001,-0.71160000000000001,"N/A",-1.1196848748286838E-3]
["Sub-Total:  Distribution",null,null,{"$f":"SUM(INDIRECT(\"D14:D\"&ROW()-1))","v":331.0376},null,null,{"$f":"SUM(INDIRECT(\"g14:g\"&ROW()-1))","v":313.60329999999999},-17.434300000000007,-5.2665618648757746E-2,0.49344698103760837]
["Retail Transmission Rate – Network Service Rate",{"$f":"IF($B$9=\"kWh\",$B$4,$B$5)","v":12},{"$f":"VLOOKUP($B$3,'Data Current Rates'!$A:$AQ,MATCH($A23,CurrentHeader,0),FALSE)","v":1.1826000000000001},{"$f":"B23*C23","v":14.191200000000002},12,{"$f":"VLOOKUP($B$3,'Data Proposed Rates'!$A:$AZ,MATCH($A23,ProposedHeader,0),FALSE)","v":1.3408},{"$f":"E23*F23","v":16.089600000000001},1.8983999999999988,0.13377304244884142,2.5316584825806055E-2]
["Retail Transmission Rate – Line and Transformation Connection Service Rate",{"$f":"IF($B$9=\"kWh\",$B$4,$B$5)","v":12},{"$f":"VLOOKUP($B$3,'Data Current Rates'!$A:$AQ,MATCH($A24,CurrentHeader,0),FALSE)","v":0.83250000000000002},{"$f":"B24*C24","v":9.99},12,{"$f":"VLOOKUP($B$3,'Data Proposed Rates'!$A:$AZ,MATCH($A24,ProposedHeader,0),FALSE)","v":0.80249999999999999},{"$f":"E24*F24","v":9.629999999999999},-0.36000000000000121,-3.6036036036036154E-2,1.5152565127319032E-2]
["Sub-Total:  Retail Transmission ",null,null,{"$f":"SUM(D23:D24)","v":24.181200000000004},null,null,{"$f":"SUM(G23:G24)","v":25.7196},1.5383999999999958,6.3619671480323367E-2,4.0469149953125089E-2]
["Sub-Total:  Delivery ",null,null,{"$f":"D22+D25","v":355.21879999999999},null,null,{"$f":"G22+G25","v":339.3229},-15.895899999999983,-4.474960221699973E-2,0.53391613099073354]
["Wholesale Market Service Rate (WMS) - not including CBR",{"$f":"$B$8","v":1813.2489999999998},{"$f":"VLOOKUP($A27,'Data Pass Through'!$A:$D,2,FALSE)","v":3.0000000000000001E-3},{"$f":"B27*C27","v":5.4397469999999997},{"$f":"$B$8","v":1813.2489999999998},{"$f":"VLOOKUP($A27,'Data Pass Through'!$A:$D,3,FALSE)","v":3.0000000000000001E-3},{"$f":"E27*F27","v":5.4397469999999997},0,0,8.5593064064006571E-3]
["Capacity Based Recovery (CBR) - Applicable for Class B Customers",{"$f":"$B$8","v":1813.2489999999998},{"$f":"VLOOKUP($A28,'Data Pass Through'!$A:$D,2,FALSE)","v":4.0000000000000002E-4},{"$f":"B28*C28","v":0.72529959999999993},{"$f":"$B$8","v":1813.2489999999998},{"$f":"VLOOKUP($A28,'Data Pass Through'!$A:$D,3,FALSE)","v":4.0000000000000002E-4},{"$f":"E28*F28","v":0.72529959999999993},{"$f":"G28-D28","v":0},0,1.1412408541867543E-3]
["Rural Rate Protection Charge",{"$f":"$B$8","v":1813.2489999999998},{"$f":"VLOOKUP($A29,'Data Pass Through'!$A:$D,2,FALSE)","v":5.0000000000000001E-4},{"$f":"B29*C29","v":0.90662449999999994},{"$f":"$B$8","v":1813.2489999999998},{"$f":"VLOOKUP($A29,'Data Pass Through'!$A:$D,3,FALSE)","v":5.0000000000000001E-4},{"$f":"E29*F29","v":0.90662449999999994},{"$f":"G29-D29","v":0},0,1.4265510677334428E-3]
["Standard Supply Service – Administration Charge (if applicable)",1,{"$f":"VLOOKUP($A30,'Data Pass Through'!$A:$D,2,FALSE)","v":0.25},{"$f":"B30*C30","v":0.25},1,{"$f":"VLOOKUP($A30,'Data Pass Through'!$A:$D,3,FALSE)","v":0.25},{"$f":"E30*F30","v":0.25},0,0,3.9336877277567581E-4]
["Sub-Total:  Regulatory",null,null,{"$f":"SUM(D27:D30)","v":7.3216710999999997},null,null,{"$f":"SUM(G27:G30)","v":7.3216710999999997},0,0,1.152046710109653E-2]
["Total Electricity Charge on Two-Tier RPP (before HST)",null,null,{"$f":"SUM(D13,D22,D25,D31)","v":578.31710209999994},null,null,{"$f":"SUM(G13,G22,G25,G31)","v":562.42120209999996},-15.895899999999983,-2.748647747451767E-2,0.88495575221238931]
["     HST",null,0.13,{"$f":"D32*C33","v":75.181223273000001},null,{"$f":"C33","v":0.13},{"$f":"G32*F33","v":73.114756272999998},-2.0664670000000029,-2.7486477474517733E-2,0.11504424778761062]
["Total Amount on WAHSP",null,null,{"$f":"SUM(D32:D33)","v":653.49832537299994},null,null,{"$f":"SUM(G32:G33)","v":635.53595837299997},-17.962366999999972,-2.7486477474517653E-2,1]

{"sheet":"BI_Dgen_High","index":68,"n_rows":34,"n_cols":10,"rows_kept":34,"cut":false,"hidden":false,"merged":[[0,0,0,9]]}
["2023 Bill Impacts (High Consumption Level) - Dgen"]
[]
["Rate Class",{"$f":"RIGHT(A1,LEN(A1)-FIND(\"- \",A1,1)-1)","v":"Dgen"}]
["Monthly Consumption (kWh)",{"$f":"IF(COUNTIF(A1,\"*Low*\")>0,VLOOKUP(B3,'Data Billing Quantities'!$A:$Z,MATCH(\"Low kWh\",'Data Billing Quantities'!4:4,0),FALSE),IF(COUNTIF(A1,\"*Typical*\")>0,VLOOKUP(B3,'Data Billing Quantities'!$A:$Z,MATCH(\"Typical kWh\",'Data Billing Quantities'!4:4,0),FALSE),IF(COUNTIF(A1,\"*Average*\")>0,VLOOKUP(B3,'Data Billing Quantities'!$A:$Z,MATCH(\"Average kWh\",'Data Billing Quantities'!4:4,0),FALSE),IF(COUNTIF(A1,\"*High*\")>0,VLOOKUP(B3,'Data Billing Quantities'!$A:$Z,MATCH(\"High kWh\",'Data Billing Quantities'!4:4,0),FALSE),\"error\"))))","v":8490}]
["Peak (kW)",{"$f":"IF(COUNTIF(A1,\"*Low*\")>0,VLOOKUP(B3,'Data Billing Quantities'!$A:$Z,MATCH(\"Low kW\",'Data Billing Quantities'!4:4,0),FALSE),IF(COUNTIF(A1,\"*Typical*\")>0,VLOOKUP(B3,'Data Billing Quantities'!$A:$Z,MATCH(\"Typical kW\",'Data Billing Quantities'!4:4,0),FALSE),IF(COUNTIF(A1,\"*Average*\")>0,VLOOKUP(B3,'Data Billing Quantities'!$A:$Z,MATCH(\"Average kW\",'Data Billing Quantities'!4:4,0),FALSE),IF(COUNTIF(A1,\"*High*\")>0,VLOOKUP(B3,'Data Billing Quantities'!$A:$Z,MATCH(\"High kW\",'Data Billing Quantities'!4:4,0),FALSE),\"error\"))))","v":45}]
["Loss factor",{"$f":"VLOOKUP(B3,'Data Billing Quantities'!A:D,MATCH(A6,'Data Billing Quantities'!4:4,0),FALSE)","v":1.0609999999999999}]
["Load factor",{"$f":"B4/(B5*730)","v":0.25844748858447486}]
["Monthly Consumption (kWh) - Uplifted",{"$f":"B4*B6","v":9007.89}]
["Charge determinant",{"$f":"VLOOKUP(B3,'Data Billing Quantities'!A:D,MATCH(A9,'Data Billing Quantities'!4:4,0),FALSE)","v":"kW"}]
[]
[null,"Volume","Current Rate ($)","Current Charge ($)","Volume","Proposed Rate ($)","Proposed Charge ($)","Change ($)","Change (%)","% of Total Bill "]
["Weighted Average Hourly Spot Price",{"$f":"B8","v":9007.89},{"$f":"VLOOKUP($A12,'Data Pass Through'!$A:$D,2,FALSE)","v":0.11899999999999999},{"$f":"B12*C12","v":1071.9389099999999},{"$f":"B8","v":9007.89},{"$f":"VLOOKUP($A12,'Data Pass Through'!$A:$D,3,FALSE)","v":0.11899999999999999},{"$f":"E12*F12","v":1071.9389099999999},{"$f":"G12-D12","v":0},{"$f":"IF(ISERROR(H12/ABS(D12)),\"N/A\",(H12/ABS(D12)))","v":0},{"$f":"G12/$G$34","v":0.51442022225207584}]
["Sub-Total:  Energy (WAHSP)",null,null,{"$f":"SUM(D12:D12)","v":1071.9389099999999},null,null,{"$f":"SUM(G12:G12)","v":1071.9389099999999},{"$f":"G13-D13","v":0},0,0.51442022225207584]
["Service Charge",1,{"$f":"VLOOKUP($B$3,'Data Current Rates'!$A:$AQ,MATCH($A14,CurrentHeader,0),FALSE)","v":202.25},{"$f":"B14*C14","v":202.25},{"$f":"B14","v":1},{"$f":"VLOOKUP($B$3,'Data Proposed Rates'!$A:$AZ,MATCH($A14,ProposedHeader,0),FALSE)","v":192.51},{"$f":"E14*F14","v":192.51},-9.7400000000000091,-4.8158220024721921E-2,9.2384963417128985E-2]
["Fixed Base Rate Adjustment to Recover Past Tax Amounts ",1,{"$f":"VLOOKUP($B$3,'Data Current Rates'!$A:$AQ,MATCH($A15,CurrentHeader,0),FALSE)","v":1.74},{"$f":"B15*C15","v":1.74},1,{"$f":"VLOOKUP($B$3,'Data Proposed Rates'!$A:$AZ,MATCH($A15,ProposedHeader,0),FALSE)","v":1.77},{"$f":"E15*F15","v":1.77},3.0000000000000027E-2,1.7241379310344845E-2,8.4941761595926611E-4]
["Distribution Volumetric Charge",{"$f":"IF($B$9=\"kWh\",$B$4,$B$5)","v":45},{"$f":"VLOOKUP($B$3,'Data Current Rates'!$A:$AQ,MATCH($A16,CurrentHeader,0),FALSE)","v":10.499000000000001},{"$f":"B16*C16","v":472.45500000000004},{"$f":"$B$5","v":45},{"$f":"VLOOKUP($B$3,'Data Proposed Rates'!$A:$AZ,MATCH($A16,ProposedHeader,0),FALSE)","v":10.0684},453.07800000000003,-19.37700000000001,{"$f":"IF(ISERROR(H16/ABS(D16)),\"N/A\",(H16/ABS(D16)))","v":-4.1013429850461969E-2},0.21743075401332904]
["Volumetric Base Rate Adjustment to Recover Past Tax Amounts ",{"$f":"IF($B$9=\"kWh\",$B$4,$B$5)","v":45},{"$f":"VLOOKUP($B$3,'Data Current Rates'!$A:$AQ,MATCH($A17,CurrentHeader,0),FALSE)","v":8.8300000000000003E-2},3.9735,{"$f":"$B$5","v":45},{"$f":"VLOOKUP($B$3,'Data Proposed Rates'!$A:$AZ,MATCH($A17,ProposedHeader,0),FALSE)","v":9.1300000000000006E-2},4.1085000000000003,0.13500000000000023,{"$f":"IF(ISERROR(H17/ABS(D17)),\"N/A\",(H17/ABS(D17)))","v":3.3975084937712403E-2},1.9716566526376527E-3]
["Group 1 Volumetric DVA Rider (General)",null,null,null,45,{"$f":"VLOOKUP($B$3,'Data Proposed Rates'!$A:$AZ,MATCH($A18,ProposedHeader,0),FALSE)","v":-2.35E-2},-1.0575000000000001,-1.0575000000000001,"N/A",-5.0749103326379883E-4]
["Group 1 Volumetric Deferral/Variance Account Rider (Sub-Account RSVA Wholesale Market Service Charge & RSVA Power) ",null,null,null,45,{"$f":"VLOOKUP($B$3,'Data Proposed Rates'!$A:$AZ,MATCH($A19,ProposedHeader,0),FALSE)","v":-3.3599999999999998E-2},-1.512,-1.512,"N/A",-7.2560420075164429E-4]
["Group 1 Volumetric Deferral/Variance Account Rider (Sub-Account Global Adjustment)",null,null,null,{"$f":"B4","v":8490},{"$f":"VLOOKUP($B$3,'Data Proposed Rates'!$A:$AZ,MATCH($A20,ProposedHeader,0),FALSE)","v":-6.9999999999999999E-4},-5.9429999999999996,-5.9429999999999996,"N/A",-2.8520276223988239E-3]
["Group 2 Volumetric DVA Rider ",null,null,null,{"$f":"B5","v":45},{"$f":"VLOOKUP($B$3,'Data Proposed Rates'!$A:$AZ,MATCH($A21,ProposedHeader,0),FALSE)","v":-5.9299999999999999E-2},-2.6684999999999999,-2.6684999999999999,"N/A",-1.2806050328741817E-3]
["Sub-Total:  Distribution",null,null,{"$f":"SUM(INDIRECT(\"D14:D\"&ROW()-1))","v":680.41849999999999},null,null,{"$f":"SUM(INDIRECT(\"g14:g\"&ROW()-1))","v":640.28550000000018},-40.132999999999811,-5.8982817192653948E-2,0.30727106380976654]
["Retail Transmission Rate – Network Service Rate",{"$f":"IF($B$9=\"kWh\",$B$4,$B$5)","v":45},{"$f":"VLOOKUP($B$3,'Data Current Rates'!$A:$AQ,MATCH($A23,CurrentHeader,0),FALSE)","v":1.1826000000000001},{"$f":"B23*C23","v":53.217000000000006},45,{"$f":"VLOOKUP($B$3,'Data Proposed Rates'!$A:$AZ,MATCH($A23,ProposedHeader,0),FALSE)","v":1.3408},{"$f":"E23*F23","v":60.335999999999999},7.1189999999999927,0.13377304244884139,2.8955062868089423E-2]
["Retail Transmission Rate – Line and Transformation Connection Service Rate",{"$f":"IF($B$9=\"kWh\",$B$4,$B$5)","v":45},{"$f":"VLOOKUP($B$3,'Data Current Rates'!$A:$AQ,MATCH($A24,CurrentHeader,0),FALSE)","v":0.83250000000000002},{"$f":"B24*C24","v":37.462499999999999},45,{"$f":"VLOOKUP($B$3,'Data Proposed Rates'!$A:$AZ,MATCH($A24,ProposedHeader,0),FALSE)","v":0.80249999999999999},{"$f":"E24*F24","v":36.112499999999997},-1.3500000000000014,-3.6036036036036077E-2,1.7330278901880786E-2]
["Sub-Total:  Retail Transmission ",null,null,{"$f":"SUM(D23:D24)","v":90.679500000000004},null,null,{"$f":"SUM(G23:G24)","v":96.448499999999996},5.7689999999999912,6.3619671480323464E-2,4.6285341769970206E-2]
["Sub-Total:  Delivery ",null,null,{"$f":"D22+D25","v":771.09799999999996},null,null,{"$f":"G22+G25","v":736.73400000000015},-34.363999999999805,-4.4565022863500885E-2,0.35355640557973678]
["Wholesale Market Service Rate (WMS) - not including CBR",{"$f":"$B$8","v":9007.89},{"$f":"VLOOKUP($A27,'Data Pass Through'!$A:$D,2,FALSE)","v":3.0000000000000001E-3},{"$f":"B27*C27","v":27.023669999999999},{"$f":"$B$8","v":9007.89},{"$f":"VLOOKUP($A27,'Data Pass Through'!$A:$D,3,FALSE)","v":3.0000000000000001E-3},{"$f":"E27*F27","v":27.023669999999999},0,0,1.2968577031564937E-2]
["Capacity Based Recovery (CBR) - Applicable for Class B Customers",{"$f":"$B$8","v":9007.89},{"$f":"VLOOKUP($A28,'Data Pass Through'!$A:$D,2,FALSE)","v":4.0000000000000002E-4},{"$f":"B28*C28","v":3.6031559999999998},{"$f":"$B$8","v":9007.89},{"$f":"VLOOKUP($A28,'Data Pass Through'!$A:$D,3,FALSE)","v":4.0000000000000002E-4},{"$f":"E28*F28","v":3.6031559999999998},{"$f":"G28-D28","v":0},0,1.7291436042086582E-3]
["Rural Rate Protection Charge",{"$f":"$B$8","v":9007.89},{"$f":"VLOOKUP($A29,'Data Pass Through'!$A:$D,2,FALSE)","v":5.0000000000000001E-4},{"$f":"B29*C29","v":4.5039449999999999},{"$f":"$B$8","v":9007.89},{"$f":"VLOOKUP($A29,'Data Pass Through'!$A:$D,3,FALSE)","v":5.0000000000000001E-4},{"$f":"E29*F29","v":4.5039449999999999},{"$f":"G29-D29","v":0},0,2.1614295052608231E-3]
["Standard Supply Service – Administration Charge (if applicable)",1,{"$f":"VLOOKUP($A30,'Data Pass Through'!$A:$D,2,FALSE)","v":0.25},{"$f":"B30*C30","v":0.25},1,{"$f":"VLOOKUP($A30,'Data Pass Through'!$A:$D,3,FALSE)","v":0.25},{"$f":"E30*F30","v":0.25},0,0,1.1997423954226923E-4]
["Sub-Total:  Regulatory",null,null,{"$f":"SUM(D27:D30)","v":35.380770999999996},null,null,{"$f":"SUM(G27:G30)","v":35.380770999999996},0,0,1.6979124380576686E-2]
["Total Electricity Charge on Two-Tier RPP (before HST)",null,null,{"$f":"SUM(D13,D22,D25,D31)","v":1878.4176809999999},null,null,{"$f":"SUM(G13,G22,G25,G31)","v":1844.0536810000001},-34.363999999999805,-1.8294120816465954E-2,0.88495575221238931]
["     HST",null,0.13,{"$f":"D32*C33","v":244.19429853},null,{"$f":"C33","v":0.13},{"$f":"G32*F33","v":239.72697853000003},-4.4673199999999724,-1.8294120816465944E-2,0.11504424778761062]
["Total Amount on WAHSP",null,null,{"$f":"SUM(D32:D33)","v":2122.6119795300001},null,null,{"$f":"SUM(G32:G33)","v":2083.7806595300003},-38.831319999999778,-1.8294120816465954E-2,1]

{"sheet":"BI_ST_Low","index":69,"n_rows":34,"n_cols":10,"rows_kept":34,"cut":false,"hidden":false,"merged":[[0,0,0,9]]}
["2023 Bill Impacts (Low Consumption Level) - ST"]
[]
["Rate Class",{"$f":"RIGHT(A1,LEN(A1)-FIND(\"- \",A1,1)-1)","v":"ST"}]
["Monthly Consumption (kWh)",{"$f":"IF(COUNTIF(A1,\"*Low*\")>0,VLOOKUP(B3,'Data Billing Quantities'!$A:$Z,MATCH(\"Low kWh\",'Data Billing Quantities'!4:4,0),FALSE),IF(COUNTIF(A1,\"*Typical*\")>0,VLOOKUP(B3,'Data Billing Quantities'!$A:$Z,MATCH(\"Typical kWh\",'Data Billing Quantities'!4:4,0),FALSE),IF(COUNTIF(A1,\"*Average*\")>0,VLOOKUP(B3,'Data Billing Quantities'!$A:$Z,MATCH(\"Average kWh\",'Data Billing Quantities'!4:4,0),FALSE),IF(COUNTIF(A1,\"*High*\")>0,VLOOKUP(B3,'Data Billing Quantities'!$A:$Z,MATCH(\"High kWh\",'Data Billing Quantities'!4:4,0),FALSE),\"error\"))))","v":88780}]
["Peak (kW)",{"$f":"IF(COUNTIF(A1,\"*Low*\")>0,VLOOKUP(B3,'Data Billing Quantities'!$A:$Z,MATCH(\"Low kW\",'Data Billing Quantities'!4:4,0),FALSE),IF(COUNTIF(A1,\"*Typical*\")>0,VLOOKUP(B3,'Data Billing Quantities'!$A:$Z,MATCH(\"Typical kW\",'Data Billing Quantities'!4:4,0),FALSE),IF(COUNTIF(A1,\"*Average*\")>0,VLOOKUP(B3,'Data Billing Quantities'!$A:$Z,MATCH(\"Average kW\",'Data Billing Quantities'!4:4,0),FALSE),IF(COUNTIF(A1,\"*High*\")>0,VLOOKUP(B3,'Data Billing Quantities'!$A:$Z,MATCH(\"High kW\",'Data Billing Quantities'!4:4,0),FALSE),\"error\"))))","v":500}]
["Loss factor",{"$f":"VLOOKUP(B3,'Data Billing Quantities'!A:D,MATCH(A6,'Data Billing Quantities'!4:4,0),FALSE)","v":1.034}]
["Load factor",{"$f":"B4/(B5*730)","v":0.24323287671232877}]
["Monthly Consumption (kWh) - Uplifted",{"$f":"B4*B6","v":91798.52}]
["Charge determinant",{"$f":"VLOOKUP(B3,'Data Billing Quantities'!A:D,MATCH(A9,'Data Billing Quantities'!4:4,0),FALSE)","v":"kW"}]
[]
[null,"Volume","Current Rate ($)","Current Charge ($)","Volume","Proposed Rate ($)","Proposed Charge ($)","Change ($)","Change (%)","% of Total Bill "]
["Weighted Average Hourly Spot Price",{"$f":"B8","v":91798.52},{"$f":"VLOOKUP($A12,'Data Pass Through'!$A:$D,2,FALSE)","v":0.11899999999999999},{"$f":"B12*C12","v":10924.023880000001},{"$f":"B8","v":91798.52},{"$f":"VLOOKUP($A12,'Data Pass Through'!$A:$D,3,FALSE)","v":0.11899999999999999},{"$f":"E12*F12","v":10924.023880000001},{"$f":"G12-D12","v":0},{"$f":"IF(ISERROR(H12/ABS(D12)),\"N/A\",(H12/ABS(D12)))","v":0},{"$f":"G12/$G$34","v":0.57706264316996636}]
["Sub-Total:  Energy (WAHSP)",null,null,{"$f":"SUM(D12:D12)","v":10924.023880000001},null,null,{"$f":"SUM(G12:G12)","v":10924.023880000001},{"$f":"G13-D13","v":0},0,0.57706264316996636]
["Service Charge",1,{"$f":"VLOOKUP($B$3,'Data Current Rates'!$A:$AQ,MATCH($A14,CurrentHeader,0),FALSE)","v":1369.8069573381615},{"$f":"B14*C14","v":1369.8069573381615},{"$f":"B14","v":1},{"$f":"VLOOKUP($B$3,'Data Proposed Rates'!$A:$AZ,MATCH($A14,ProposedHeader,0),FALSE)","v":1162.53},{"$f":"E14*F14","v":1162.53},-207.27695733816154,-0.15131837097757672,6.1410762365010585E-2]
["Fixed Base Rate Adjustment to Recover Past Tax Amounts ",1,{"$f":"VLOOKUP($B$3,'Data Current Rates'!$A:$AQ,MATCH($A15,CurrentHeader,0),FALSE)","v":36.18},{"$f":"B15*C15","v":36.18},1,{"$f":"VLOOKUP($B$3,'Data Proposed Rates'!$A:$AZ,MATCH($A15,ProposedHeader,0),FALSE)","v":32.54},{"$f":"E15*F15","v":32.54},-3.6400000000000006,-0.1006080707573245,1.7189287221469076E-3]
["Distribution Volumetric Charge",{"$f":"IF($B$9=\"kWh\",$B$4,$B$5)","v":500},{"$f":"VLOOKUP($B$3,'Data Current Rates'!$A:$AQ,MATCH($A16,CurrentHeader,0),FALSE)","v":1.6076999999999999},{"$f":"B16*C16","v":803.84999999999991},{"$f":"$B$5","v":500},{"$f":"VLOOKUP($B$3,'Data Proposed Rates'!$A:$AZ,MATCH($A16,ProposedHeader,0),FALSE)","v":1.4638},731.9,-71.949999999999932,{"$f":"IF(ISERROR(H16/ABS(D16)),\"N/A\",(H16/ABS(D16)))","v":-8.9506748771536901E-2},3.8662689973550143E-2]
["Volumetric Base Rate Adjustment to Recover Past Tax Amounts ",{"$f":"IF($B$9=\"kWh\",$B$4,$B$5)","v":500},{"$f":"VLOOKUP($B$3,'Data Current Rates'!$A:$AQ,MATCH($A17,CurrentHeader,0),FALSE)","v":5.3999999999999999E-2},27,{"$f":"$B$5","v":500},{"$f":"VLOOKUP($B$3,'Data Proposed Rates'!$A:$AZ,MATCH($A17,ProposedHeader,0),FALSE)","v":5.04E-2},25.2,-1.8000000000000007,{"$f":"IF(ISERROR(H17/ABS(D17)),\"N/A\",(H17/ABS(D17)))","v":-6.6666666666666693E-2},1.3311924953319629E-3]
["Group 1 Volumetric DVA Rider (General)",null,null,null,500,{"$f":"VLOOKUP($B$3,'Data Proposed Rates'!$A:$AZ,MATCH($A18,ProposedHeader,0),FALSE)","v":-7.9899999999999999E-2},-39.950000000000003,-39.950000000000003,"N/A",-2.1103627058933301E-3]
["Group 1 Volumetric Deferral/Variance Account Rider (Sub-Account RSVA Wholesale Market Service Charge & RSVA Power) ",null,null,null,500,{"$f":"VLOOKUP($B$3,'Data Proposed Rates'!$A:$AZ,MATCH($A19,ProposedHeader,0),FALSE)","v":-0.1119},-55.95,-55.95,"N/A",-2.9555642902310843E-3]
["Group 1 Volumetric Deferral/Variance Account Rider (Sub-Account Global Adjustment)",null,null,null,{"$f":"B4","v":88780},{"$f":"VLOOKUP($B$3,'Data Proposed Rates'!$A:$AZ,MATCH($A20,ProposedHeader,0),FALSE)","v":-6.9999999999999999E-4},-62.146000000000001,-62.146000000000001,"N/A",-3.2828686037658797E-3]
["Group 2 Volumetric DVA Rider ",null,null,null,{"$f":"B5","v":500},{"$f":"VLOOKUP($B$3,'Data Proposed Rates'!$A:$AZ,MATCH($A21,ProposedHeader,0),FALSE)","v":-4.7999999999999996E-3},-2.4,-2.4,"N/A",-1.2678023765066312E-4]
["Sub-Total:  Distribution",null,null,{"$f":"SUM(INDIRECT(\"D14:D\"&ROW()-1))","v":2236.8369573381615},null,null,{"$f":"SUM(INDIRECT(\"g14:g\"&ROW()-1))","v":1791.7239999999997},-445.11295733816178,-0.19899213301082377,9.4647997718498633E-2]
["Retail Transmission Rate – Network Service Rate",{"$f":"IF($B$9=\"kWh\",$B$4,$B$5)","v":500},{"$f":"VLOOKUP($B$3,'Data Current Rates'!$A:$AQ,MATCH($A23,CurrentHeader,0),FALSE)","v":4.2840999999999996},{"$f":"B23*C23","v":2142.0499999999997},500,{"$f":"VLOOKUP($B$3,'Data Proposed Rates'!$A:$AZ,MATCH($A23,ProposedHeader,0),FALSE)","v":4.1165000000000003},{"$f":"E23*F23","v":2058.25},-83.799999999999727,-3.9121402394901958E-2,0.10872726006019891]
["Retail Transmission Rate – Line and Transformation Connection Service Rate",{"$f":"IF($B$9=\"kWh\",$B$4,$B$5)","v":500},{"$f":"VLOOKUP($B$3,'Data Current Rates'!$A:$AQ,MATCH($A24,CurrentHeader,0),FALSE)","v":2.9641000000000002},{"$f":"B24*C24","v":1482.0500000000002},500,{"$f":"VLOOKUP($B$3,'Data Proposed Rates'!$A:$AZ,MATCH($A24,ProposedHeader,0),FALSE)","v":3.2406000000000001},{"$f":"E24*F24","v":1620.3000000000002},138.25,9.3282952666914054E-2,8.5592507943903953E-2]
["Sub-Total:  Retail Transmission ",null,null,{"$f":"SUM(D23:D24)","v":3624.1},null,null,{"$f":"SUM(G23:G24)","v":3678.55},54.450000000000273,1.5024419855964316E-2,0.19431976800410286]
["Sub-Total:  Delivery ",null,null,{"$f":"D22+D25","v":5860.9369573381609},null,null,{"$f":"G22+G25","v":5470.2739999999994},-390.6629573381615,-6.6655376125319632E-2,0.28896776572260147]
["Wholesale Market Service Rate (WMS) - not including CBR",{"$f":"$B$8","v":91798.52},{"$f":"VLOOKUP($A27,'Data Pass Through'!$A:$D,2,FALSE)","v":3.0000000000000001E-3},{"$f":"B27*C27","v":275.39556000000005},{"$f":"$B$8","v":91798.52},{"$f":"VLOOKUP($A27,'Data Pass Through'!$A:$D,3,FALSE)","v":3.0000000000000001E-3},{"$f":"E27*F27","v":275.39556000000005},0,0,1.4547797726973942E-2]
["Capacity Based Recovery (CBR) - Applicable for Class B Customers",{"$f":"$B$8","v":91798.52},{"$f":"VLOOKUP($A28,'Data Pass Through'!$A:$D,2,FALSE)","v":4.0000000000000002E-4},{"$f":"B28*C28","v":36.719408000000001},{"$f":"$B$8","v":91798.52},{"$f":"VLOOKUP($A28,'Data Pass Through'!$A:$D,3,FALSE)","v":4.0000000000000002E-4},{"$f":"E28*F28","v":36.719408000000001},{"$f":"G28-D28","v":0},0,1.9397063635965255E-3]
["Rural Rate Protection Charge",{"$f":"$B$8","v":91798.52},{"$f":"VLOOKUP($A29,'Data Pass Through'!$A:$D,2,FALSE)","v":5.0000000000000001E-4},{"$f":"B29*C29","v":45.899260000000005},{"$f":"$B$8","v":91798.52},{"$f":"VLOOKUP($A29,'Data Pass Through'!$A:$D,3,FALSE)","v":5.0000000000000001E-4},{"$f":"E29*F29","v":45.899260000000005},{"$f":"G29-D29","v":0},0,2.4246329544956569E-3]
["Standard Supply Service – Administration Charge (if applicable)",1,{"$f":"VLOOKUP($A30,'Data Pass Through'!$A:$D,2,FALSE)","v":0.25},{"$f":"B30*C30","v":0.25},1,{"$f":"VLOOKUP($A30,'Data Pass Through'!$A:$D,3,FALSE)","v":0.25},{"$f":"E30*F30","v":0.25},0,0,1.320627475527741E-5]
["Sub-Total:  Regulatory",null,null,{"$f":"SUM(D27:D30)","v":358.26422800000006},null,null,{"$f":"SUM(G27:G30)","v":358.26422800000006},0,0,1.8925343319821403E-2]
["Total Electricity Charge on Two-Tier RPP (before HST)",null,null,{"$f":"SUM(D13,D22,D25,D31)","v":17143.22506533816},null,null,{"$f":"SUM(G13,G22,G25,G31)","v":16752.562108000002},-390.66295733815787,-2.2788183428101766E-2,0.88495575221238931]
["     HST",null,0.13,{"$f":"D32*C33","v":2228.6192584939608},null,{"$f":"C33","v":0.13},{"$f":"G32*F33","v":2177.8330740400002},-50.786184453960686,-2.2788183428101839E-2,0.1150442477876106]
["Total Amount on WAHSP",null,null,{"$f":"SUM(D32:D33)","v":19371.84432383212},null,null,{"$f":"SUM(G32:G33)","v":18930.395182040003},-441.44914179211628,-2.2788183428101658E-2,1]

{"sheet":"BI_ST_Avg","index":70,"n_rows":34,"n_cols":10,"rows_kept":34,"cut":false,"hidden":false,"merged":[[0,0,0,9]]}
["2023 Bill Impacts (Average Consumption Level) - ST"]
[]
["Rate Class",{"$f":"RIGHT(A1,LEN(A1)-FIND(\"- \",A1,1)-1)","v":"ST"}]
["Monthly Consumption (kWh)",{"$f":"IF(COUNTIF(A1,\"*Low*\")>0,VLOOKUP(B3,'Data Billing Quantities'!$A:$Z,MATCH(\"Low kWh\",'Data Billing Quantities'!4:4,0),FALSE),IF(COUNTIF(A1,\"*Typical*\")>0,VLOOKUP(B3,'Data Billing Quantities'!$A:$Z,MATCH(\"Typical kWh\",'Data Billing Quantities'!4:4,0),FALSE),IF(COUNTIF(A1,\"*Average*\")>0,VLOOKUP(B3,'Data Billing Quantities'!$A:$Z,MATCH(\"Average kWh\",'Data Billing Quantities'!4:4,0),FALSE),IF(COUNTIF(A1,\"*High*\")>0,VLOOKUP(B3,'Data Billing Quantities'!$A:$Z,MATCH(\"High kWh\",'Data Billing Quantities'!4:4,0),FALSE),\"error\"))))","v":1373443}]
["Peak (kW)",{"$f":"IF(COUNTIF(A1,\"*Low*\")>0,VLOOKUP(B3,'Data Billing Quantities'!$A:$Z,MATCH(\"Low kW\",'Data Billing Quantities'!4:4,0),FALSE),IF(COUNTIF(A1,\"*Typical*\")>0,VLOOKUP(B3,'Data Billing Quantities'!$A:$Z,MATCH(\"Typical kW\",'Data Billing Quantities'!4:4,0),FALSE),IF(COUNTIF(A1,\"*Average*\")>0,VLOOKUP(B3,'Data Billing Quantities'!$A:$Z,MATCH(\"Average kW\",'Data Billing Quantities'!4:4,0),FALSE),IF(COUNTIF(A1,\"*High*\")>0,VLOOKUP(B3,'Data Billing Quantities'!$A:$Z,MATCH(\"High kW\",'Data Billing Quantities'!4:4,0),FALSE),\"error\"))))","v":2808}]
["Loss factor",{"$f":"VLOOKUP(B3,'Data Billing Quantities'!A:D,MATCH(A6,'Data Billing Quantities'!4:4,0),FALSE)","v":1.034}]
["Load factor",{"$f":"B4/(B5*730)","v":0.67002448971627049}]
["Monthly Consumption (kWh) - Uplifted",{"$f":"B4*B6","v":1420140.0620000002}]
["Charge determinant",{"$f":"VLOOKUP(B3,'Data Billing Quantities'!A:D,MATCH(A9,'Data Billing Quantities'!4:4,0),FALSE)","v":"kW"}]
[]
[null,"Volume","Current Rate ($)","Current Charge ($)","Volume","Proposed Rate ($)","Proposed Charge ($)","Change ($)","Change (%)","% of Total Bill "]
["Weighted Average Hourly Spot Price",{"$f":"B8","v":1420140.0620000002},{"$f":"VLOOKUP($A12,'Data Pass Through'!$A:$D,2,FALSE)","v":0.11899999999999999},{"$f":"B12*C12","v":168996.66737800001},{"$f":"B8","v":1420140.0620000002},{"$f":"VLOOKUP($A12,'Data Pass Through'!$A:$D,3,FALSE)","v":0.11899999999999999},{"$f":"E12*F12","v":168996.66737800001},{"$f":"G12-D12","v":0},{"$f":"IF(ISERROR(H12/ABS(D12)),\"N/A\",(H12/ABS(D12)))","v":0},{"$f":"G12/$G$34","v":0.75104863402145139}]
["Sub-Total:  Energy (WAHSP)",null,null,{"$f":"SUM(D12:D12)","v":168996.66737800001},null,null,{"$f":"SUM(G12:G12)","v":168996.66737800001},{"$f":"G13-D13","v":0},0,0.75104863402145139]
["Service Charge",1,{"$f":"VLOOKUP($B$3,'Data Current Rates'!$A:$AQ,MATCH($A14,CurrentHeader,0),FALSE)","v":1369.8069573381615},{"$f":"B14*C14","v":1369.8069573381615},{"$f":"B14","v":1},{"$f":"VLOOKUP($B$3,'Data Proposed Rates'!$A:$AZ,MATCH($A14,ProposedHeader,0),FALSE)","v":1162.53},{"$f":"E14*F14","v":1162.53},-207.27695733816154,-0.15131837097757672,5.166472108920535E-3]
["Fixed Base Rate Adjustment to Recover Past Tax Amounts ",1,{"$f":"VLOOKUP($B$3,'Data Current Rates'!$A:$AQ,MATCH($A15,CurrentHeader,0),FALSE)","v":36.18},{"$f":"B15*C15","v":36.18},1,{"$f":"VLOOKUP($B$3,'Data Proposed Rates'!$A:$AZ,MATCH($A15,ProposedHeader,0),FALSE)","v":32.54},{"$f":"E15*F15","v":32.54},-3.6400000000000006,-0.1006080707573245,1.4461304432941447E-4]
["Distribution Volumetric Charge",{"$f":"IF($B$9=\"kWh\",$B$4,$B$5)","v":2808},{"$f":"VLOOKUP($B$3,'Data Current Rates'!$A:$AQ,MATCH($A16,CurrentHeader,0),FALSE)","v":1.6076999999999999},{"$f":"B16*C16","v":4514.4215999999997},{"$f":"$B$5","v":2808},{"$f":"VLOOKUP($B$3,'Data Proposed Rates'!$A:$AZ,MATCH($A16,ProposedHeader,0),FALSE)","v":1.4638},4110.3504000000003,-404.07119999999941,{"$f":"IF(ISERROR(H16/ABS(D16)),\"N/A\",(H16/ABS(D16)))","v":-8.9506748771536859E-2},1.8267064677462402E-2]
["Volumetric Base Rate Adjustment to Recover Past Tax Amounts ",{"$f":"IF($B$9=\"kWh\",$B$4,$B$5)","v":2808},{"$f":"VLOOKUP($B$3,'Data Current Rates'!$A:$AQ,MATCH($A17,CurrentHeader,0),FALSE)","v":5.3999999999999999E-2},151.63200000000001,{"$f":"$B$5","v":2808},{"$f":"VLOOKUP($B$3,'Data Proposed Rates'!$A:$AZ,MATCH($A17,ProposedHeader,0),FALSE)","v":5.04E-2},141.5232,-10.108800000000002,{"$f":"IF(ISERROR(H17/ABS(D17)),\"N/A\",(H17/ABS(D17)))","v":-6.666666666666668E-2},6.2895208344316503E-4]
["Group 1 Volumetric DVA Rider (General)",null,null,null,2808,{"$f":"VLOOKUP($B$3,'Data Proposed Rates'!$A:$AZ,MATCH($A18,ProposedHeader,0),FALSE)","v":-7.9899999999999999E-2},-224.35919999999999,-224.35919999999999,"N/A",-9.9708871958549376E-4]
["Group 1 Volumetric Deferral/Variance Account Rider (Sub-Account RSVA Wholesale Market Service Charge & RSVA Power) ",null,null,null,2808,{"$f":"VLOOKUP($B$3,'Data Proposed Rates'!$A:$AZ,MATCH($A19,ProposedHeader,0),FALSE)","v":-0.1119},-314.21519999999998,-314.21519999999998,"N/A",-1.3964233757398842E-3]
["Group 1 Volumetric Deferral/Variance Account Rider (Sub-Account Global Adjustment)",null,null,null,{"$f":"B4","v":1373443},{"$f":"VLOOKUP($B$3,'Data Proposed Rates'!$A:$AZ,MATCH($A20,ProposedHeader,0),FALSE)","v":-6.9999999999999999E-4},-961.41009999999994,-961.41009999999994,"N/A",-4.2726626124783892E-3]
["Group 2 Volumetric DVA Rider ",null,null,null,{"$f":"B5","v":2808},{"$f":"VLOOKUP($B$3,'Data Proposed Rates'!$A:$AZ,MATCH($A21,ProposedHeader,0),FALSE)","v":-4.7999999999999996E-3},-13.478399999999999,-13.478399999999999,"N/A",-5.9900198423158572E-5]
["Sub-Total:  Distribution",null,null,{"$f":"SUM(INDIRECT(\"D14:D\"&ROW()-1))","v":6072.0405573381613},null,null,{"$f":"SUM(INDIRECT(\"g14:g\"&ROW()-1))","v":3933.4807000000001},-2138.5598573381612,-0.35219788753776954,1.7481027007928588E-2]
["Retail Transmission Rate – Network Service Rate",{"$f":"IF($B$9=\"kWh\",$B$4,$B$5)","v":2808},{"$f":"VLOOKUP($B$3,'Data Current Rates'!$A:$AQ,MATCH($A23,CurrentHeader,0),FALSE)","v":4.2840999999999996},{"$f":"B23*C23","v":12029.752799999998},2808,{"$f":"VLOOKUP($B$3,'Data Proposed Rates'!$A:$AZ,MATCH($A23,ProposedHeader,0),FALSE)","v":4.1165000000000003},{"$f":"E23*F23","v":11559.132000000001},-470.62079999999696,-3.9121402394901833E-2,5.1370659751860899E-2]
["Retail Transmission Rate – Line and Transformation Connection Service Rate",{"$f":"IF($B$9=\"kWh\",$B$4,$B$5)","v":2808},{"$f":"VLOOKUP($B$3,'Data Current Rates'!$A:$AQ,MATCH($A24,CurrentHeader,0),FALSE)","v":2.9641000000000002},{"$f":"B24*C24","v":8323.1928000000007},2808,{"$f":"VLOOKUP($B$3,'Data Proposed Rates'!$A:$AZ,MATCH($A24,ProposedHeader,0),FALSE)","v":3.2406000000000001},{"$f":"E24*F24","v":9099.604800000001},776.41200000000026,9.3282952666914096E-2,4.0440121460434936E-2]
["Sub-Total:  Retail Transmission ",null,null,{"$f":"SUM(D23:D24)","v":20352.945599999999},null,null,{"$f":"SUM(G23:G24)","v":20658.736800000002},305.7912000000033,1.5024419855964402E-2,9.1810781212295842E-2]
["Sub-Total:  Delivery ",null,null,{"$f":"D22+D25","v":26424.98615733816},null,null,{"$f":"G22+G25","v":24592.217500000002},-1832.7686573381579,-6.935741220167875E-2,0.10929180822022443]
["Wholesale Market Service Rate (WMS) - not including CBR",{"$f":"$B$8","v":1420140.0620000002},{"$f":"VLOOKUP($A27,'Data Pass Through'!$A:$D,2,FALSE)","v":3.0000000000000001E-3},{"$f":"B27*C27","v":4260.4201860000003},{"$f":"$B$8","v":1420140.0620000002},{"$f":"VLOOKUP($A27,'Data Pass Through'!$A:$D,3,FALSE)","v":3.0000000000000001E-3},{"$f":"E27*F27","v":4260.4201860000003},0,0,1.8933999177011381E-2]
["Capacity Based Recovery (CBR) - Applicable for Class B Customers",{"$f":"$B$8","v":1420140.0620000002},{"$f":"VLOOKUP($A28,'Data Pass Through'!$A:$D,2,FALSE)","v":4.0000000000000002E-4},{"$f":"B28*C28","v":568.05602480000005},{"$f":"$B$8","v":1420140.0620000002},{"$f":"VLOOKUP($A28,'Data Pass Through'!$A:$D,3,FALSE)","v":4.0000000000000002E-4},{"$f":"E28*F28","v":568.05602480000005},{"$f":"G28-D28","v":0},0,2.5245332236015173E-3]
["Rural Rate Protection Charge",{"$f":"$B$8","v":1420140.0620000002},{"$f":"VLOOKUP($A29,'Data Pass Through'!$A:$D,2,FALSE)","v":5.0000000000000001E-4},{"$f":"B29*C29","v":710.07003100000009},{"$f":"$B$8","v":1420140.0620000002},{"$f":"VLOOKUP($A29,'Data Pass Through'!$A:$D,3,FALSE)","v":5.0000000000000001E-4},{"$f":"E29*F29","v":710.07003100000009},{"$f":"G29-D29","v":0},0,3.1556665295018969E-3]
["Standard Supply Service – Administration Charge (if applicable)",1,{"$f":"VLOOKUP($A30,'Data Pass Through'!$A:$D,2,FALSE)","v":0.25},{"$f":"B30*C30","v":0.25},1,{"$f":"VLOOKUP($A30,'Data Pass Through'!$A:$D,3,FALSE)","v":0.25},{"$f":"E30*F30","v":0.25},0,0,1.1110405987201482E-6]
["Sub-Total:  Regulatory",null,null,{"$f":"SUM(D27:D30)","v":5538.7962418000006},null,null,{"$f":"SUM(G27:G30)","v":5538.7962418000006},0,0,2.4615309970713515E-2]
["Total Electricity Charge on Two-Tier RPP (before HST)",null,null,{"$f":"SUM(D13,D22,D25,D31)","v":200960.44977713819},null,null,{"$f":"SUM(G13,G22,G25,G31)","v":199127.68111980002},-1832.7686573381652,-9.1200465532928262E-3,0.88495575221238942]
["     HST",null,0.13,{"$f":"D32*C33","v":26124.858471027965},null,{"$f":"C33","v":0.13},{"$f":"G32*F33","v":25886.598545574005},-238.25992545396002,-9.1200465532927707E-3,0.11504424778761063]
["Total Amount on WAHSP",null,null,{"$f":"SUM(D32:D33)","v":227085.30824816614},null,null,{"$f":"SUM(G32:G33)","v":225014.27966537402},-2071.028582792118,-9.120046553292788E-3,1]

{"sheet":"BI_ST_High","index":71,"n_rows":34,"n_cols":10,"rows_kept":34,"cut":false,"hidden":false,"merged":[[0,0,0,9]]}
["2023 Bill Impacts (High Consumption Level) - ST"]
[]
["Rate Class",{"$f":"RIGHT(A1,LEN(A1)-FIND(\"- \",A1,1)-1)","v":"ST"}]
["Monthly Consumption (kWh)",{"$f":"IF(COUNTIF(A1,\"*Low*\")>0,VLOOKUP(B3,'Data Billing Quantities'!$A:$Z,MATCH(\"Low kWh\",'Data Billing Quantities'!4:4,0),FALSE),IF(COUNTIF(A1,\"*Typical*\")>0,VLOOKUP(B3,'Data Billing Quantities'!$A:$Z,MATCH(\"Typical kWh\",'Data Billing Quantities'!4:4,0),FALSE),IF(COUNTIF(A1,\"*Average*\")>0,VLOOKUP(B3,'Data Billing Quantities'!$A:$Z,MATCH(\"Average kWh\",'Data Billing Quantities'!4:4,0),FALSE),IF(COUNTIF(A1,\"*High*\")>0,VLOOKUP(B3,'Data Billing Quantities'!$A:$Z,MATCH(\"High kWh\",'Data Billing Quantities'!4:4,0),FALSE),\"error\"))))","v":2641420}]
["Peak (kW)",{"$f":"IF(COUNTIF(A1,\"*Low*\")>0,VLOOKUP(B3,'Data Billing Quantities'!$A:$Z,MATCH(\"Low kW\",'Data Billing Quantities'!4:4,0),FALSE),IF(COUNTIF(A1,\"*Typical*\")>0,VLOOKUP(B3,'Data Billing Quantities'!$A:$Z,MATCH(\"Typical kW\",'Data Billing Quantities'!4:4,0),FALSE),IF(COUNTIF(A1,\"*Average*\")>0,VLOOKUP(B3,'Data Billing Quantities'!$A:$Z,MATCH(\"Average kW\",'Data Billing Quantities'!4:4,0),FALSE),IF(COUNTIF(A1,\"*High*\")>0,VLOOKUP(B3,'Data Billing Quantities'!$A:$Z,MATCH(\"High kW\",'Data Billing Quantities'!4:4,0),FALSE),\"error\"))))","v":13730}]
["Loss factor",{"$f":"VLOOKUP(B3,'Data Billing Quantities'!A:D,MATCH(A6,'Data Billing Quantities'!4:4,0),FALSE)","v":1.034}]
["Load factor",{"$f":"B4/(B5*730)","v":0.2635384968422313}]
["Monthly Consumption (kWh) - Uplifted",{"$f":"B4*B6","v":2731228.2800000003}]
["Charge determinant",{"$f":"VLOOKUP(B3,'Data Billing Quantities'!A:D,MATCH(A9,'Data Billing Quantities'!4:4,0),FALSE)","v":"kW"}]
[]
[null,"Volume","Current Rate ($)","Current Charge ($)","Volume","Proposed Rate ($)","Proposed Charge ($)","Change ($)","Change (%)","% of Total Bill "]
["Weighted Average Hourly Spot Price",{"$f":"B8","v":2731228.2800000003},{"$f":"VLOOKUP($A12,'Data Pass Through'!$A:$D,2,FALSE)","v":0.11899999999999999},{"$f":"B12*C12","v":325016.16532000003},{"$f":"B8","v":2731228.2800000003},{"$f":"VLOOKUP($A12,'Data Pass Through'!$A:$D,3,FALSE)","v":0.11899999999999999},{"$f":"E12*F12","v":325016.16532000003},{"$f":"G12-D12","v":0},{"$f":"IF(ISERROR(H12/ABS(D12)),\"N/A\",(H12/ABS(D12)))","v":0},{"$f":"G12/$G$34","v":0.63337057859616885}]
["Sub-Total:  Energy (WAHSP)",null,null,{"$f":"SUM(D12:D12)","v":325016.16532000003},null,null,{"$f":"SUM(G12:G12)","v":325016.16532000003},{"$f":"G13-D13","v":0},0,0.63337057859616885]
["Service Charge",1,{"$f":"VLOOKUP($B$3,'Data Current Rates'!$A:$AQ,MATCH($A14,CurrentHeader,0),FALSE)","v":1369.8069573381615},{"$f":"B14*C14","v":1369.8069573381615},{"$f":"B14","v":1},{"$f":"VLOOKUP($B$3,'Data Proposed Rates'!$A:$AZ,MATCH($A14,ProposedHeader,0),FALSE)","v":1162.53},{"$f":"E14*F14","v":1162.53},-207.27695733816154,-0.15131837097757672,2.2654636208954584E-3]
["Fixed Base Rate Adjustment to Recover Past Tax Amounts ",1,{"$f":"VLOOKUP($B$3,'Data Current Rates'!$A:$AQ,MATCH($A15,CurrentHeader,0),FALSE)","v":36.18},{"$f":"B15*C15","v":36.18},1,{"$f":"VLOOKUP($B$3,'Data Proposed Rates'!$A:$AZ,MATCH($A15,ProposedHeader,0),FALSE)","v":32.54},{"$f":"E15*F15","v":32.54},-3.6400000000000006,-0.1006080707573245,6.3411857090946657E-5]
["Distribution Volumetric Charge",{"$f":"IF($B$9=\"kWh\",$B$4,$B$5)","v":13730},{"$f":"VLOOKUP($B$3,'Data Current Rates'!$A:$AQ,MATCH($A16,CurrentHeader,0),FALSE)","v":1.6076999999999999},{"$f":"B16*C16","v":22073.720999999998},{"$f":"$B$5","v":13730},{"$f":"VLOOKUP($B$3,'Data Proposed Rates'!$A:$AZ,MATCH($A16,ProposedHeader,0),FALSE)","v":1.4638},20097.973999999998,-1975.7469999999994,{"$f":"IF(ISERROR(H16/ABS(D16)),\"N/A\",(H16/ABS(D16)))","v":-8.9506748771536956E-2},3.9165637833606687E-2]
["Volumetric Base Rate Adjustment to Recover Past Tax Amounts ",{"$f":"IF($B$9=\"kWh\",$B$4,$B$5)","v":13730},{"$f":"VLOOKUP($B$3,'Data Current Rates'!$A:$AQ,MATCH($A17,CurrentHeader,0),FALSE)","v":5.3999999999999999E-2},741.42,{"$f":"$B$5","v":13730},{"$f":"VLOOKUP($B$3,'Data Proposed Rates'!$A:$AZ,MATCH($A17,ProposedHeader,0),FALSE)","v":5.04E-2},691.99199999999996,-49.427999999999997,{"$f":"IF(ISERROR(H17/ABS(D17)),\"N/A\",(H17/ABS(D17)))","v":-6.6666666666666666E-2},1.348509459498413E-3]
["Group 1 Volumetric DVA Rider (General)",null,null,null,13730,{"$f":"VLOOKUP($B$3,'Data Proposed Rates'!$A:$AZ,MATCH($A18,ProposedHeader,0),FALSE)","v":-7.9899999999999999E-2},-1097.027,-1097.027,"N/A",-2.1378155915460955E-3]
["Group 1 Volumetric Deferral/Variance Account Rider (Sub-Account RSVA Wholesale Market Service Charge & RSVA Power) ",null,null,null,13730,{"$f":"VLOOKUP($B$3,'Data Proposed Rates'!$A:$AZ,MATCH($A19,ProposedHeader,0),FALSE)","v":-0.1119},-1536.3869999999999,-1536.3869999999999,"N/A",-2.9940120737673099E-3]
["Group 1 Volumetric Deferral/Variance Account Rider (Sub-Account Global Adjustment)",null,null,null,{"$f":"B4","v":2641420},{"$f":"VLOOKUP($B$3,'Data Proposed Rates'!$A:$AZ,MATCH($A20,ProposedHeader,0),FALSE)","v":-6.9999999999999999E-4},-1848.9939999999999,-1848.9939999999999,"N/A",-3.6032004698837686E-3]
["Group 2 Volumetric DVA Rider ",null,null,null,{"$f":"B5","v":13730},{"$f":"VLOOKUP($B$3,'Data Proposed Rates'!$A:$AZ,MATCH($A21,ProposedHeader,0),FALSE)","v":-4.7999999999999996E-3},-65.903999999999996,-65.903999999999996,"N/A",-1.284294723331822E-4]
["Sub-Total:  Distribution",null,null,{"$f":"SUM(INDIRECT(\"D14:D\"&ROW()-1))","v":24221.127957338158},null,null,{"$f":"SUM(INDIRECT(\"g14:g\"&ROW()-1))","v":17436.724000000002},-6784.403957338156,-0.28010272557445937,3.3979565163561154E-2]
["Retail Transmission Rate – Network Service Rate",{"$f":"IF($B$9=\"kWh\",$B$4,$B$5)","v":13730},{"$f":"VLOOKUP($B$3,'Data Current Rates'!$A:$AQ,MATCH($A23,CurrentHeader,0),FALSE)","v":4.2840999999999996},{"$f":"B23*C23","v":58820.692999999992},13730,{"$f":"VLOOKUP($B$3,'Data Proposed Rates'!$A:$AZ,MATCH($A23,ProposedHeader,0),FALSE)","v":4.1165000000000003},{"$f":"E23*F23","v":56519.545000000006},-2301.1479999999865,-3.9121402394901854E-2,0.11014165059573845]
["Retail Transmission Rate – Line and Transformation Connection Service Rate",{"$f":"IF($B$9=\"kWh\",$B$4,$B$5)","v":13730},{"$f":"VLOOKUP($B$3,'Data Current Rates'!$A:$AQ,MATCH($A24,CurrentHeader,0),FALSE)","v":2.9641000000000002},{"$f":"B24*C24","v":40697.093000000001},13730,{"$f":"VLOOKUP($B$3,'Data Proposed Rates'!$A:$AZ,MATCH($A24,ProposedHeader,0),FALSE)","v":3.2406000000000001},{"$f":"E24*F24","v":44493.438000000002},3796.3450000000012,9.3282952666914096E-2,8.6705947508939632E-2]
["Sub-Total:  Retail Transmission ",null,null,{"$f":"SUM(D23:D24)","v":99517.785999999993},null,null,{"$f":"SUM(G23:G24)","v":101012.98300000001},1495.1970000000147,1.5024419855964389E-2,0.19684759810467808]
["Sub-Total:  Delivery ",null,null,{"$f":"D22+D25","v":123738.91395733815},null,null,{"$f":"G22+G25","v":118449.70700000001},-5289.206957338145,-4.2744895588478507E-2,0.23082716326823924]
["Wholesale Market Service Rate (WMS) - not including CBR",{"$f":"$B$8","v":2731228.2800000003},{"$f":"VLOOKUP($A27,'Data Pass Through'!$A:$D,2,FALSE)","v":3.0000000000000001E-3},{"$f":"B27*C27","v":8193.6848400000017},{"$f":"$B$8","v":2731228.2800000003},{"$f":"VLOOKUP($A27,'Data Pass Through'!$A:$D,3,FALSE)","v":3.0000000000000001E-3},{"$f":"E27*F27","v":8193.6848400000017},0,0,1.5967325510827791E-2]
["Capacity Based Recovery (CBR) - Applicable for Class B Customers",{"$f":"$B$8","v":2731228.2800000003},{"$f":"VLOOKUP($A28,'Data Pass Through'!$A:$D,2,FALSE)","v":4.0000000000000002E-4},{"$f":"B28*C28","v":1092.4913120000001},{"$f":"$B$8","v":2731228.2800000003},{"$f":"VLOOKUP($A28,'Data Pass Through'!$A:$D,3,FALSE)","v":4.0000000000000002E-4},{"$f":"E28*F28","v":1092.4913120000001},{"$f":"G28-D28","v":0},0,2.1289767347770381E-3]
["Rural Rate Protection Charge",{"$f":"$B$8","v":2731228.2800000003},{"$f":"VLOOKUP($A29,'Data Pass Through'!$A:$D,2,FALSE)","v":5.0000000000000001E-4},{"$f":"B29*C29","v":1365.6141400000001},{"$f":"$B$8","v":2731228.2800000003},{"$f":"VLOOKUP($A29,'Data Pass Through'!$A:$D,3,FALSE)","v":5.0000000000000001E-4},{"$f":"E29*F29","v":1365.6141400000001},{"$f":"G29-D29","v":0},0,2.6612209184712979E-3]
["Standard Supply Service – Administration Charge (if applicable)",1,{"$f":"VLOOKUP($A30,'Data Pass Through'!$A:$D,2,FALSE)","v":0.25},{"$f":"B30*C30","v":0.25},1,{"$f":"VLOOKUP($A30,'Data Pass Through'!$A:$D,3,FALSE)","v":0.25},{"$f":"E30*F30","v":0.25},0,0,4.8718390512405235E-7]
["Sub-Total:  Regulatory",null,null,{"$f":"SUM(D27:D30)","v":10652.040292000002},null,null,{"$f":"SUM(G27:G30)","v":10652.040292000002},0,0,2.0758010347981248E-2]
["Total Electricity Charge on Two-Tier RPP (before HST)",null,null,{"$f":"SUM(D13,D22,D25,D31)","v":459407.11956933822},null,null,{"$f":"SUM(G13,G22,G25,G31)","v":454117.91261200001},-5289.2069573382032,-1.1513114908398594E-2,0.88495575221238931]
["     HST",null,0.13,{"$f":"D32*C33","v":59722.925544013968},null,{"$f":"C33","v":0.13},{"$f":"G32*F33","v":59035.328639560001},-687.596904453967,-1.1513114908398604E-2,0.11504424778761062]
["Total Amount on WAHSP",null,null,{"$f":"SUM(D32:D33)","v":519130.04511335219},null,null,{"$f":"SUM(G32:G33)","v":513153.24125156004},-5976.8038617921411,-1.1513114908398538E-2,1]

{"sheet":"BI_WHSI_AUR_Low","index":72,"n_rows":49,"n_cols":11,"rows_kept":49,"cut":false,"hidden":false,"merged":[[0,0,0,10]]}
["2023 Bill Impacts (Low Consumption Level) - AUR_WHSI"]
[]
["Rate Class",{"$f":"VLOOKUP(A1,'Data BI List Acq_Seas'!C:E,2,FALSE)","v":"WHSI_RES"},{"$f":"VLOOKUP(A1,'Data BI List Acq_Seas'!C:E,3,FALSE)","v":"AUR-WHSI"}]
["Monthly Consumption (kWh)",{"$f":"IF(COUNTIF(A1,\"*Low*\")>0,VLOOKUP(B3,'Data Billing Quantities'!$A:$Z,MATCH(\"Low kWh\",'Data Billing Quantities'!4:4,0),FALSE),IF(COUNTIF(A1,\"*Typical*\")>0,VLOOKUP(B3,'Data Billing Quantities'!$A:$Z,MATCH(\"Typical kWh\",'Data Billing Quantities'!4:4,0),FALSE),IF(COUNTIF(A1,\"*Average*\")>0,VLOOKUP(B3,'Data Billing Quantities'!$A:$Z,MATCH(\"Average kWh\",'Data Billing Quantities'!4:4,0),FALSE),IF(COUNTIF(A1,\"*High*\")>0,VLOOKUP(B3,'Data Billing Quantities'!$A:$Z,MATCH(\"High kWh\",'Data Billing Quantities'!4:4,0),FALSE),\"error\"))))","v":310},{"$f":"B4","v":310}]
["Peak (kW)",{"$f":"IF(COUNTIF(A1,\"*Low*\")>0,VLOOKUP(B3,'Data Billing Quantities'!$A:$Z,MATCH(\"Low kW\",'Data Billing Quantities'!4:4,0),FALSE),IF(COUNTIF(A1,\"*Typical*\")>0,VLOOKUP(B3,'Data Billing Quantities'!$A:$Z,MATCH(\"Typical kW\",'Data Billing Quantities'!4:4,0),FALSE),IF(COUNTIF(A1,\"*Average*\")>0,VLOOKUP(B3,'Data Billing Quantities'!$A:$Z,MATCH(\"Average kW\",'Data Billing Quantities'!4:4,0),FALSE),IF(COUNTIF(A1,\"*High*\")>0,VLOOKUP(B3,'Data Billing Quantities'!$A:$Z,MATCH(\"High kW\",'Data Billing Quantities'!4:4,0),FALSE),\"error\"))))","v":0},{"$f":"B5","v":0}]
["Loss factor",{"$f":"VLOOKUP(B3,'Data Billing Quantities'!A:D,MATCH(A6,'Data Billing Quantities'!4:4,0),FALSE)","v":1.0430999999999999},{"$f":"VLOOKUP(C3,'Data Billing Quantities'!A:D,MATCH(A6,'Data Billing Quantities'!4:4,0),FALSE)","v":1.0429999999999999}]
["Commodity Threshold",{"$f":"VLOOKUP(B3,'Data Billing Quantities'!A:D,MATCH(A7,'Data Billing Quantities'!4:4,0),FALSE)","v":600},{"$f":"B7","v":600}]
["Monthly Consumption (kWh) - Uplifted",{"$f":"B4*B6","v":323.36099999999999},{"$f":"C4*C6","v":323.33}]
["Charge determinant",{"$f":"VLOOKUP(B3,'Data Billing Quantities'!A:D,MATCH(A9,'Data Billing Quantities'!4:4,0),FALSE)","v":"kWh"},{"$f":"VLOOKUP(C3,'Data Billing Quantities'!A:D,MATCH(A9,'Data Billing Quantities'!4:4,0),FALSE)","v":"kWh"}]
[]
[null,"Volume","Current Rate ($)","Current Charge ($)","Volume","Proposed Rate ($)","Proposed Charge ($)","Change ($)","Change (%)","% of Total Bill on RPP","% of Total Bill"]
["Energy First Tier",{"$f":"IF(B4>B7,B7,B4)","v":310},{"$f":"VLOOKUP($A12,'Data Pass Through'!$A:$D,2,FALSE)","v":9.8000000000000004E-2},{"$f":"B12*C12","v":30.380000000000003},{"$f":"B12","v":310},{"$f":"VLOOKUP($A12,'Data Pass Through'!$A:$D,3,FALSE)","v":9.8000000000000004E-2},{"$f":"E12*F12","v":30.380000000000003},{"$f":"G12-D12","v":0},{"$f":"IF(ISERROR(H12/ABS(D12)),\"N/A\",(H12/ABS(D12)))","v":0},{"$f":"G12/$G$44","v":0.46730694211939644}]
["Energy Second Tier",{"$f":"IF(B4>B7,(B4)-B7,0)","v":0},{"$f":"VLOOKUP($A13,'Data Pass Through'!$A:$D,2,FALSE)","v":0.115},{"$f":"B13*C13","v":0},{"$f":"B13","v":0},{"$f":"VLOOKUP($A13,'Data Pass Through'!$A:$D,3,FALSE)","v":0.115},{"$f":"E13*F13","v":0},0,"N/A",{"$f":"G13/$G$44","v":0}]
["Sub-Total:  Energy (RPP Tiered)",null,null,{"$f":"SUM(D12:D13)","v":30.380000000000003},null,null,{"$f":"SUM(G12:G13)","v":30.380000000000003},0,0,{"$f":"G14/$G$44","v":0.46730694211939644}]
["TOU-Off Peak",{"$f":"B$4*VLOOKUP($B$3,'Data Billing Quantities'!$A:$O,MATCH(BI_WHSI_AUR_Low!$A15,'Data Billing Quantities'!$4:$4,0),FALSE)","v":198.4},{"$f":"VLOOKUP($A15,'Data Pass Through'!$A:$D,2,FALSE)","v":8.2000000000000003E-2},{"$f":"B15*C15","v":16.268800000000002},198.4,{"$f":"VLOOKUP($A15,'Data Pass Through'!$A:$D,3,FALSE)","v":8.2000000000000003E-2},{"$f":"E15*F15","v":16.268800000000002},0,0,null,{"$f":"G15/$G$49","v":0.24405692522040373}]
["TOU-Mid Peak",{"$f":"B$4*VLOOKUP($B$3,'Data Billing Quantities'!$A:$O,MATCH(BI_WHSI_AUR_Low!$A16,'Data Billing Quantities'!$4:$4,0),FALSE)","v":55.8},{"$f":"VLOOKUP($A16,'Data Pass Through'!$A:$D,2,FALSE)","v":0.113},{"$f":"B16*C16","v":6.3053999999999997},55.8,{"$f":"VLOOKUP($A16,'Data Pass Through'!$A:$D,3,FALSE)","v":0.113},{"$f":"E16*F16","v":6.3053999999999997},0,0,null,9.4590660422694567E-2]
["TOU-On Peak",{"$f":"B$4*VLOOKUP($B$3,'Data Billing Quantities'!$A:$O,MATCH(BI_WHSI_AUR_Low!$A17,'Data Billing Quantities'!$4:$4,0),FALSE)","v":55.8},{"$f":"VLOOKUP($A17,'Data Pass Through'!$A:$D,2,FALSE)","v":0.17},{"$f":"B17*C17","v":9.4860000000000007},55.8,{"$f":"VLOOKUP($A17,'Data Pass Through'!$A:$D,3,FALSE)","v":0.17},{"$f":"E17*F17","v":9.4860000000000007},0,0,null,0.14230453337927504]
["Sub-Total:  Energy (RPP TOU)",null,null,{"$f":"SUM(D15:D17)","v":32.060200000000002},null,null,{"$f":"SUM(G15:G17)","v":32.060200000000002},0,0,{"$f":"G18/$G$44","v":0.49315187708150998},0.48095211902237334]
["Service Charge",1,{"$f":"VLOOKUP($B$3,'Data Current Rates'!$A:$AP,MATCH(BI_WHSI_AUR_Low!$A19,CurrentHeader,0),FALSE)","v":31.08},{"$f":"B19*C19","v":31.08},1,{"$f":"VLOOKUP($C$3,'Data Proposed Rates'!$A:$AZ,MATCH(BI_WHSI_AUR_Low!$A19,ProposedHeader,0),FALSE)","v":29.59},{"$f":"E19*F19","v":29.59},-1.4899999999999984,-4.7940797940797891E-2,0.45515511577725276,0.44389533446054691]
["Rate Rider for Recovery of Smart Meter Incremental Revenue Requirement",1,{"$f":"VLOOKUP($B$3,'Data Current Rates'!$A:$AP,MATCH(BI_WHSI_AUR_Low!$A20,CurrentHeader,0),FALSE)","v":0.64},{"$f":"B20*C20","v":0.64},null,null,null,{"$f":"G20-D20","v":-0.64},{"$f":"IF(ISERROR(H20/ABS(D20)),\"N/A\",(H20/ABS(D20)))","v":-1},0,0]
["Distribution Volumetric Charge",{"$f":"IF($B$9=\"kWh\",$B$4,$B$5)","v":310},{"$f":"VLOOKUP($B$3,'Data Current Rates'!$A:$AP,MATCH(BI_WHSI_AUR_Low!$A21,CurrentHeader,0),FALSE)","v":0},{"$f":"B21*C21","v":0},{"$f":"IF($C$9=\"kWh\",$C$4,$C$5)","v":310},{"$f":"VLOOKUP($C$3,'Data Proposed Rates'!$A:$AZ,MATCH(BI_WHSI_AUR_Low!$A21,ProposedHeader,0),FALSE)","v":0},0,0,"N/A",0,0]
["Rate Rider for Recovery of Incremental Capital",{"$f":"IF($B$9=\"kWh\",$B$4,$B$5)","v":310},{"$f":"VLOOKUP($B$3,'Data Current Rates'!$A:$AP,MATCH(BI_WHSI_AUR_Low!$A22,CurrentHeader,0),FALSE)","v":8.0000000000000004E-4},0.248,null,null,null,-0.248,-1,0,0]
["Group 1 Volumetric DVA Rider (General)",null,null,null,{"$f":"IF($C$9=\"kWh\",$C$4,$C$5)","v":310},{"$f":"VLOOKUP($C$3,'Data Proposed Rates'!$A:$AZ,MATCH(BI_WHSI_AUR_Low!$A23,ProposedHeader,0),FALSE)","v":-5.0000000000000001E-4},-0.155,-0.155,"N/A",-2.3842190924458998E-3,-2.3252374735175658E-3]
["Sub-Total:  Distribution (excluding pass through)",null,null,{"$f":"SUM(INDIRECT(\"D19:D\"&ROW()-1))","v":31.968},null,null,{"$f":"SUM(INDIRECT(\"g19:g\"&ROW()-1))","v":29.434999999999999},{"$f":"G24-D24","v":-2.5330000000000013},-7.9235485485485521E-2,0.45277089668480686,0.44157009698702931]
["Smart Metering Entity Charge",{"$f":"B19","v":1},{"$f":"VLOOKUP($A25,'Data Pass Through'!$A:$D,2,FALSE)","v":0.56999999999999995},{"$f":"B25*C25","v":0.56999999999999995},{"$f":"E19","v":1},{"$f":"VLOOKUP($A25,'Data Pass Through'!$A:$D,3,FALSE)","v":0.56999999999999995},{"$f":"E25*F25","v":0.56999999999999995},0,0,8.7677734367365336E-3,8.5508732897097567E-3]
["Line Losses on Cost of Power (based on two-tier RPP prices)",{"$f":"B8-B4","v":13.36099999999999},{"$f":"IF(B4>B7,C13,C12)","v":9.8000000000000004E-2},{"$f":"B26*C26","v":1.309377999999999},{"$f":"C8-C4","v":13.329999999999984},{"$f":"IF(C4>C7,F13,F12)","v":9.8000000000000004E-2},{"$f":"E26*F26","v":1.3063399999999985},-3.0380000000005403E-3,-2.3201856148496024E-3,2.0094198511134021E-2,1.959710142680602E-2]
["Line Losses on Cost of Power (based on TOU prices)",{"$f":"B8-B4","v":13.36099999999999},{"$f":"VLOOKUP($B$3,'Data Billing Quantities'!$A:$O,MATCH(BI_WHSI_AUR_Low!$A15,'Data Billing Quantities'!$4:$4,0),FALSE)*C15+VLOOKUP($B$3,'Data Billing Quantities'!$A:$O,MATCH(BI_WHSI_AUR_Low!$A16,'Data Billing Quantities'!$4:$4,0),FALSE)*C16+VLOOKUP($B$3,'Data Billing Quantities'!$A:$O,MATCH(BI_WHSI_AUR_Low!$A17,'Data Billing Quantities'!$4:$4,0),FALSE)*C17","v":0.10342000000000001},{"$f":"B27*C27","v":1.3817946199999991},{"$f":"C8-C4","v":13.329999999999984},{"$f":"VLOOKUP($C$3,'Data Billing Quantities'!$A:$O,MATCH(BI_WHSI_AUR_Low!$A15,'Data Billing Quantities'!$4:$4,0),FALSE)*F15+VLOOKUP($C$3,'Data Billing Quantities'!$A:$O,MATCH(BI_WHSI_AUR_Low!$A16,'Data Billing Quantities'!$4:$4,0),FALSE)*F16+VLOOKUP($C$3,'Data Billing Quantities'!$A:$O,MATCH(BI_WHSI_AUR_Low!$A17,'Data Billing Quantities'!$4:$4,0),FALSE)*F17","v":0.10342000000000001},{"$f":"E27*F27","v":1.3785885999999985},-3.2060200000005867E-3,-2.3201856148496141E-3,2.1205530714504903E-2,2.068094111796203E-2]
["Sub-Total:  Distribution (based on two-tier RPP prices)",null,null,{"$f":"SUM(D24,D25:D26)","v":33.847377999999999},null,null,{"$f":"SUM(G24,G25:G26)","v":31.311339999999998},-2.5360380000000013,-7.4925685528728442E-2,0.4816328686326774,0.46971807170354507]
["Sub-Total:  Distribution (based on TOU prices)",null,null,{"$f":"SUM(D24,D25,D27)","v":33.919794619999998},null,null,{"$f":"SUM(G24,G25,G27)","v":31.383588599999996},-2.5362060200000016,-7.477067737033373E-2,0.48274420083604824,0.47080191139470107]
["Retail Transmission Rate – Network Service Rate",{"$f":"IF($B$9=\"kWh\",$B$8,$B$5)","v":323.36099999999999},{"$f":"VLOOKUP($B$3,'Data Current Rates'!$A:$AP,MATCH(BI_WHSI_AUR_Low!$A30,CurrentHeader,0),FALSE)","v":9.1999999999999998E-3},{"$f":"B30*C30","v":2.9749211999999998},{"$f":"IF($C$9=\"kWh\",$C$8,$C$5)","v":323.33},{"$f":"VLOOKUP($C$3,'Data Proposed Rates'!$A:$AZ,MATCH(BI_WHSI_AUR_Low!$A30,ProposedHeader,0),FALSE)","v":1.06E-2},{"$f":"E30*F30","v":3.427298},{"$f":"G30-D30","v":0.45237680000000013},0.15206345633625529,5.2718898884526758E-2,5.1414720919431008E-2]
["Retail Transmission Rate – Line and Transformation Connection Service Rate",{"$f":"IF($B$9=\"kWh\",$B$8,$B$5)","v":323.36099999999999},{"$f":"VLOOKUP($B$3,'Data Current Rates'!$A:$AP,MATCH(BI_WHSI_AUR_Low!$A31,CurrentHeader,0),FALSE)","v":6.4000000000000003E-3},{"$f":"B31*C31","v":2.0695104},{"$f":"IF($C$9=\"kWh\",$C$8,$C$5)","v":323.33},{"$f":"VLOOKUP($C$3,'Data Proposed Rates'!$A:$AZ,MATCH(BI_WHSI_AUR_Low!$A31,ProposedHeader,0),FALSE)","v":7.6E-3},{"$f":"E31*F31","v":2.4573079999999998},{"$f":"G31-D31","v":0.38779759999999985},0.18738615664845165,3.7798455804000319E-2,3.6863384810158079E-2]
["Sub-Total:  Retail Transmission ",null,null,{"$f":"SUM(D30:D31)","v":5.0444315999999993},null,null,{"$f":"SUM(G30:G31)","v":5.8846059999999998},{"$f":"G32-D32","v":0.84017440000000043},0.16655482056690005,9.0517354688527077E-2,8.8278105729589079E-2]
["Sub-Total:  Delivery (based on two-tier RPP prices)",null,null,{"$f":"D28+D32","v":38.891809600000002},null,null,{"$f":"G28+G32","v":37.195945999999999},{"$f":"G33-D33","v":-1.6958636000000027},-4.3604646259504533E-2,0.57215022332120447,0.55799617743313423]
["Sub-Total:  Delivery (based on TOU prices)",null,null,{"$f":"D29+D32","v":38.96422622},null,null,{"$f":"G29+G32","v":37.268194599999994},{"$f":"G34-D34","v":-1.6960316200000065},-4.3527917388218228E-2,0.57326155552457536,0.55908001712429012]
["Wholesale Market Service Rate (WMS) - not including CBR",{"$f":"B8","v":323.36099999999999},{"$f":"VLOOKUP($A35,'Data Pass Through'!$A:$D,2,FALSE)","v":3.0000000000000001E-3},{"$f":"B35*C35","v":0.97008300000000003},{"$f":"$C$8","v":323.33},{"$f":"VLOOKUP($A35,'Data Pass Through'!$A:$D,3,FALSE)","v":3.0000000000000001E-3},{"$f":"E35*F35","v":0.96999000000000002},-9.3000000000009742E-5,-9.5868085514342323E-5,1.4920443080526442E-2,1.4551336109272926E-2]
["Capacity Based Recovery (CBR) - Applicable for Class B Customers",{"$f":"B8","v":323.36099999999999},{"$f":"VLOOKUP($A36,'Data Pass Through'!$A:$D,2,FALSE)","v":4.0000000000000002E-4},{"$f":"B36*C36","v":0.1293444},{"$f":"$C$8","v":323.33},{"$f":"VLOOKUP($A36,'Data Pass Through'!$A:$D,3,FALSE)","v":4.0000000000000002E-4},{"$f":"E36*F36","v":0.129332},-1.2399999999995748E-5,-9.5868085514299402E-5,1.989392410736859E-3,1.9401781479030569E-3]
["Rural Rate Protection Charge",{"$f":"B8","v":323.36099999999999},{"$f":"VLOOKUP($A37,'Data Pass Through'!$A:$D,2,FALSE)","v":5.0000000000000001E-4},0.1616805,323.33,{"$f":"VLOOKUP($A37,'Data Pass Through'!$A:$D,3,FALSE)","v":5.0000000000000001E-4},0.161665,-1.5500000000001624E-5,-9.5868085514342323E-5,2.4867405134210738E-3,2.4252226848788211E-3]
["Standard Supply Service – Administration Charge (if applicable)",1,{"$f":"VLOOKUP($A38,'Data Pass Through'!$A:$D,2,FALSE)","v":0.25},{"$f":"B38*C38","v":0.25},1,{"$f":"VLOOKUP($A38,'Data Pass Through'!$A:$D,3,FALSE)","v":0.25},0.25,0,0,3.8455146652353225E-3,3.7503830218025254E-3]
["Sub-Total:  Regulatory",null,null,{"$f":"SUM(D35:D38)","v":1.5111078999999998},null,null,{"$f":"SUM(G35:G38)","v":1.5109869999999999},-1.2089999999997936E-4,-8.0007522957149097E-5,2.3242090669919696E-2,2.2667119963857327E-2]
["Total  Electricty Charge on Two-Tier RPP ",null,null,{"$f":"SUM(D14,D24,D25,D26,D32,D39)","v":70.782917499999996},null,null,{"$f":"SUM(G14,G24,G25,G26,G32,G39)","v":69.086933000000002},-1.6959844999999945,-2.3960364448102813E-2,1.0626992561105206]
["     HST",null,0.13,{"$f":"D40*C41","v":9.2017792749999998},null,{"$f":"C41","v":0.13},{"$f":"G40*F41","v":8.9813012900000011},-0.22047798499999871,-2.3960364448102751E-2,0.13815090329436769]
["Total Electricity Charge on Two-Tier RPP (including HST)",null,null,{"$f":"SUM(D40:D41)","v":79.984696775000003},null,null,{"$f":"SUM(G40:G41)","v":78.068234290000007},-1.9164624849999967,-2.3960364448102848E-2,1.2008501594048884]
["Ontario Electricity Rebate (OER)",null,{"$f":"IF(($B$4*12)<250000,VLOOKUP(A43,'Data Pass Through'!$A$4:$C$20,2,0),0)","v":-0.189},{"$f":"D40*C43","v":-13.377971407499999},null,{"$f":"C43","v":-0.189},{"$f":"G40*F43","v":-13.057430337000001},0.32054107049999736,2.3960364448102695E-2,-0.20085015940488843]
["Total Amount on Two-Tier RPP",null,null,{"$f":"SUM(D42:D43)","v":66.606725367500005},null,null,{"$f":"SUM(G42:G43)","v":65.010803953000007},-1.5959214144999976,-2.3960364448102855E-2,1]
["Total Electricty Charge on TOU (before HST)",null,null,{"$f":"SUM(D18,D24,D25,D27,D32,D39)","v":72.53553411999998},null,null,{"$f":"SUM(G18,G24,G25,G27,G32,G39)","v":70.839381599999996},-1.6961525199999841,-2.3383746195263896E-2,null,{"$f":"G45/$G$49","v":1.0626992561105209}]
["     HST",null,0.13,{"$f":"D45*C46","v":9.4296194355999976},null,{"$f":"C46","v":0.13},{"$f":"G45*F46","v":9.209119608},-0.22049982759999764,-2.3383746195263864E-2,null,{"$f":"G46/$G$49","v":0.13815090329436772}]
["Total Electricity Charge on TOU (including HST)",null,null,{"$f":"SUM(D45:D46)","v":81.965153555599983},null,null,{"$f":"SUM(G45:G46)","v":80.04850120799999},-1.9166523475999924,-2.3383746195264021E-2,null,{"$f":"G47/$G$49","v":1.2008501594048884}]
["Ontario Electricity Rebate (OER)",null,{"$f":"IF(($B$4*12)<250000,VLOOKUP(A48,'Data Pass Through'!$A$4:$C$20,2,0),0)","v":-0.189},{"$f":"D45*C48","v":-13.709215948679997},null,{"$f":"C48","v":-0.189},{"$f":"G45*F48","v":-13.3886431224},0.32057282627999761,2.3383746195263941E-2,null,{"$f":"G48/$G$49","v":-0.20085015940488843}]
["Total Amount on TOU",null,null,{"$f":"SUM(D47:D48)","v":68.255937606919986},null,null,{"$f":"SUM(G47:G48)","v":66.659858085599993},-1.596079521319993,-2.338374619526401E-2,null,{"$f":"G49/$G$49","v":1}]

{"sheet":"BI_WHSI_AUR_Typical","index":73,"n_rows":49,"n_cols":11,"rows_kept":49,"cut":false,"hidden":false,"merged":[[0,0,0,10]]}
["2023 Bill Impacts (Typical Consumption Level) - AUR_WHSI"]
[]
["Rate Class",{"$f":"VLOOKUP(A1,'Data BI List Acq_Seas'!C:E,2,FALSE)","v":"WHSI_RES"},{"$f":"VLOOKUP(A1,'Data BI List Acq_Seas'!C:E,3,FALSE)","v":"AUR-WHSI"}]
["Monthly Consumption (kWh)",{"$f":"IF(COUNTIF(A1,\"*Low*\")>0,VLOOKUP(B3,'Data Billing Quantities'!$A:$Z,MATCH(\"Low kWh\",'Data Billing Quantities'!4:4,0),FALSE),IF(COUNTIF(A1,\"*Typical*\")>0,VLOOKUP(B3,'Data Billing Quantities'!$A:$Z,MATCH(\"Typical kWh\",'Data Billing Quantities'!4:4,0),FALSE),IF(COUNTIF(A1,\"*Average*\")>0,VLOOKUP(B3,'Data Billing Quantities'!$A:$Z,MATCH(\"Average kWh\",'Data Billing Quantities'!4:4,0),FALSE),IF(COUNTIF(A1,\"*High*\")>0,VLOOKUP(B3,'Data Billing Quantities'!$A:$Z,MATCH(\"High kWh\",'Data Billing Quantities'!4:4,0),FALSE),\"error\"))))","v":750},{"$f":"B4","v":750}]
["Peak (kW)",{"$f":"IF(COUNTIF(A1,\"*Low*\")>0,VLOOKUP(B3,'Data Billing Quantities'!$A:$Z,MATCH(\"Low kW\",'Data Billing Quantities'!4:4,0),FALSE),IF(COUNTIF(A1,\"*Typical*\")>0,VLOOKUP(B3,'Data Billing Quantities'!$A:$Z,MATCH(\"Typical kW\",'Data Billing Quantities'!4:4,0),FALSE),IF(COUNTIF(A1,\"*Average*\")>0,VLOOKUP(B3,'Data Billing Quantities'!$A:$Z,MATCH(\"Average kW\",'Data Billing Quantities'!4:4,0),FALSE),IF(COUNTIF(A1,\"*High*\")>0,VLOOKUP(B3,'Data Billing Quantities'!$A:$Z,MATCH(\"High kW\",'Data Billing Quantities'!4:4,0),FALSE),\"error\"))))","v":0},{"$f":"B5","v":0}]
["Loss factor",{"$f":"VLOOKUP(B3,'Data Billing Quantities'!A:D,MATCH(A6,'Data Billing Quantities'!4:4,0),FALSE)","v":1.0430999999999999},{"$f":"VLOOKUP(C3,'Data Billing Quantities'!A:D,MATCH(A6,'Data Billing Quantities'!4:4,0),FALSE)","v":1.0429999999999999}]
["Commodity Threshold",{"$f":"VLOOKUP(B3,'Data Billing Quantities'!A:D,MATCH(A7,'Data Billing Quantities'!4:4,0),FALSE)","v":600},{"$f":"B7","v":600}]
["Monthly Consumption (kWh) - Uplifted",{"$f":"B4*B6","v":782.32499999999993},{"$f":"C4*C6","v":782.25}]
["Charge determinant",{"$f":"VLOOKUP(B3,'Data Billing Quantities'!A:D,MATCH(A9,'Data Billing Quantities'!4:4,0),FALSE)","v":"kWh"},{"$f":"VLOOKUP(C3,'Data Billing Quantities'!A:D,MATCH(A9,'Data Billing Quantities'!4:4,0),FALSE)","v":"kWh"}]
[]
[null,"Volume","Current Rate ($)","Current Charge ($)","Volume","Proposed Rate ($)","Proposed Charge ($)","Change ($)","Change (%)","% of Total Bill on RPP","% of Total Bill"]
["Energy First Tier",{"$f":"IF(B4>B7,B7,B4)","v":600},{"$f":"VLOOKUP($A12,'Data Pass Through'!$A:$D,2,FALSE)","v":9.8000000000000004E-2},{"$f":"B12*C12","v":58.800000000000004},{"$f":"B12","v":600},{"$f":"VLOOKUP($A12,'Data Pass Through'!$A:$D,3,FALSE)","v":9.8000000000000004E-2},{"$f":"E12*F12","v":58.800000000000004},{"$f":"G12-D12","v":0},{"$f":"IF(ISERROR(H12/ABS(D12)),\"N/A\",(H12/ABS(D12)))","v":0},{"$f":"G12/$G$44","v":0.49170594108463583}]
["Energy Second Tier",{"$f":"IF(B4>B7,(B4)-B7,0)","v":150},{"$f":"VLOOKUP($A13,'Data Pass Through'!$A:$D,2,FALSE)","v":0.115},{"$f":"B13*C13","v":17.25},{"$f":"B13","v":150},{"$f":"VLOOKUP($A13,'Data Pass Through'!$A:$D,3,FALSE)","v":0.115},{"$f":"E13*F13","v":17.25},0,0,{"$f":"G13/$G$44","v":0.14425046741003347}]
["Sub-Total:  Energy (RPP Tiered)",null,null,{"$f":"SUM(D12:D13)","v":76.050000000000011},null,null,{"$f":"SUM(G12:G13)","v":76.050000000000011},0,0,{"$f":"G14/$G$44","v":0.63595640849466939}]
["TOU-Off Peak",{"$f":"B$4*VLOOKUP($B$3,'Data Billing Quantities'!$A:$O,MATCH(BI_WHSI_AUR_Typical!$A15,'Data Billing Quantities'!$4:$4,0),FALSE)","v":480},{"$f":"VLOOKUP($A15,'Data Pass Through'!$A:$D,2,FALSE)","v":8.2000000000000003E-2},{"$f":"B15*C15","v":39.36},480,{"$f":"VLOOKUP($A15,'Data Pass Through'!$A:$D,3,FALSE)","v":8.2000000000000003E-2},{"$f":"E15*F15","v":39.36},0,0,null,{"$f":"G15/$G$49","v":0.32621164842717087}]
["TOU-Mid Peak",{"$f":"B$4*VLOOKUP($B$3,'Data Billing Quantities'!$A:$O,MATCH(BI_WHSI_AUR_Typical!$A16,'Data Billing Quantities'!$4:$4,0),FALSE)","v":135},{"$f":"VLOOKUP($A16,'Data Pass Through'!$A:$D,2,FALSE)","v":0.113},{"$f":"B16*C16","v":15.255000000000001},135,{"$f":"VLOOKUP($A16,'Data Pass Through'!$A:$D,3,FALSE)","v":0.113},{"$f":"E16*F16","v":15.255000000000001},0,0,null,0.12643187745824419]
["TOU-On Peak",{"$f":"B$4*VLOOKUP($B$3,'Data Billing Quantities'!$A:$O,MATCH(BI_WHSI_AUR_Typical!$A17,'Data Billing Quantities'!$4:$4,0),FALSE)","v":135},{"$f":"VLOOKUP($A17,'Data Pass Through'!$A:$D,2,FALSE)","v":0.17},{"$f":"B17*C17","v":22.950000000000003},135,{"$f":"VLOOKUP($A17,'Data Pass Through'!$A:$D,3,FALSE)","v":0.17},{"$f":"E17*F17","v":22.950000000000003},0,0,null,0.19020724927346475]
["Sub-Total:  Energy (RPP TOU)",null,null,{"$f":"SUM(D15:D17)","v":77.564999999999998},null,null,{"$f":"SUM(G15:G17)","v":77.564999999999998},0,0,{"$f":"G18/$G$44","v":0.64862536258894177},0.64285077515887978]
["Service Charge",1,{"$f":"VLOOKUP($B$3,'Data Current Rates'!$A:$AP,MATCH(BI_WHSI_AUR_Typical!$A19,CurrentHeader,0),FALSE)","v":31.08},{"$f":"B19*C19","v":31.08},1,{"$f":"VLOOKUP($C$3,'Data Proposed Rates'!$A:$AZ,MATCH(BI_WHSI_AUR_Typical!$A19,ProposedHeader,0),FALSE)","v":29.59},{"$f":"E19*F19","v":29.59},-1.4899999999999984,-4.7940797940797891E-2,0.24744181627031248,0.24523888915040615]
["Rate Rider for Recovery of Smart Meter Incremental Revenue Requirement",1,{"$f":"VLOOKUP($B$3,'Data Current Rates'!$A:$AP,MATCH(BI_WHSI_AUR_Typical!$A20,CurrentHeader,0),FALSE)","v":0.64},{"$f":"B20*C20","v":0.64},null,null,null,{"$f":"G20-D20","v":-0.64},{"$f":"IF(ISERROR(H20/ABS(D20)),\"N/A\",(H20/ABS(D20)))","v":-1},0,0]
["Distribution Volumetric Charge",{"$f":"IF($B$9=\"kWh\",$B$4,$B$5)","v":750},{"$f":"VLOOKUP($B$3,'Data Current Rates'!$A:$AP,MATCH(BI_WHSI_AUR_Typical!$A21,CurrentHeader,0),FALSE)","v":0},{"$f":"B21*C21","v":0},{"$f":"IF($C$9=\"kWh\",$C$4,$C$5)","v":750},{"$f":"VLOOKUP($C$3,'Data Proposed Rates'!$A:$AZ,MATCH(BI_WHSI_AUR_Typical!$A21,ProposedHeader,0),FALSE)","v":0},0,0,"N/A",0,0]
["Rate Rider for Recovery of Incremental Capital",{"$f":"IF($B$9=\"kWh\",$B$4,$B$5)","v":750},{"$f":"VLOOKUP($B$3,'Data Current Rates'!$A:$AP,MATCH(BI_WHSI_AUR_Typical!$A22,CurrentHeader,0),FALSE)","v":8.0000000000000004E-4},0.6,null,null,null,-0.6,-1,0,0]
["Group 1 Volumetric DVA Rider (General)",null,null,null,{"$f":"IF($C$9=\"kWh\",$C$4,$C$5)","v":750},{"$f":"VLOOKUP($C$3,'Data Proposed Rates'!$A:$AZ,MATCH(BI_WHSI_AUR_Typical!$A23,ProposedHeader,0),FALSE)","v":-5.0000000000000001E-4},-0.375,-0.375,"N/A",-3.1358797263050754E-3,-3.107961589435698E-3]
["Sub-Total:  Distribution (excluding pass through)",null,null,{"$f":"SUM(INDIRECT(\"D19:D\"&ROW()-1))","v":32.32},null,null,{"$f":"SUM(INDIRECT(\"g19:g\"&ROW()-1))","v":29.215},{"$f":"G24-D24","v":-3.1050000000000004},-9.6070544554455461E-2,0.2443059365440074,0.24213092756097043]
["Smart Metering Entity Charge",{"$f":"B19","v":1},{"$f":"VLOOKUP($A25,'Data Pass Through'!$A:$D,2,FALSE)","v":0.56999999999999995},{"$f":"B25*C25","v":0.56999999999999995},{"$f":"E19","v":1},{"$f":"VLOOKUP($A25,'Data Pass Through'!$A:$D,3,FALSE)","v":0.56999999999999995},{"$f":"E25*F25","v":0.56999999999999995},0,0,4.7665371839837141E-3,4.7241016159422604E-3]
["Line Losses on Cost of Power (based on two-tier RPP prices)",{"$f":"B8-B4","v":32.324999999999932},{"$f":"IF(B4>B7,C13,C12)","v":0.115},{"$f":"B26*C26","v":3.7173749999999921},{"$f":"C8-C4","v":32.25},{"$f":"IF(C4>C7,F13,F12)","v":0.115},{"$f":"E26*F26","v":3.7087500000000002},-8.6249999999918892E-3,-2.3201856148470112E-3,3.1013850493157198E-2,3.0737740119519054E-2]
["Line Losses on Cost of Power (based on TOU prices)",{"$f":"B8-B4","v":32.324999999999932},{"$f":"VLOOKUP($B$3,'Data Billing Quantities'!$A:$O,MATCH(BI_WHSI_AUR_Typical!$A15,'Data Billing Quantities'!$4:$4,0),FALSE)*C15+VLOOKUP($B$3,'Data Billing Quantities'!$A:$O,MATCH(BI_WHSI_AUR_Typical!$A16,'Data Billing Quantities'!$4:$4,0),FALSE)*C16+VLOOKUP($B$3,'Data Billing Quantities'!$A:$O,MATCH(BI_WHSI_AUR_Typical!$A17,'Data Billing Quantities'!$4:$4,0),FALSE)*C17","v":0.10342000000000001},{"$f":"B27*C27","v":3.3430514999999934},{"$f":"C8-C4","v":32.25},{"$f":"VLOOKUP($C$3,'Data Billing Quantities'!$A:$O,MATCH(BI_WHSI_AUR_Typical!$A15,'Data Billing Quantities'!$4:$4,0),FALSE)*F15+VLOOKUP($C$3,'Data Billing Quantities'!$A:$O,MATCH(BI_WHSI_AUR_Typical!$A16,'Data Billing Quantities'!$4:$4,0),FALSE)*F16+VLOOKUP($C$3,'Data Billing Quantities'!$A:$O,MATCH(BI_WHSI_AUR_Typical!$A17,'Data Billing Quantities'!$4:$4,0),FALSE)*F17","v":0.10342000000000001},{"$f":"E27*F27","v":3.3352950000000003},-7.7564999999930606E-3,-2.3201856148471166E-3,2.7890890591324501E-2,2.7642583331831835E-2]
["Sub-Total:  Distribution (based on two-tier RPP prices)",null,null,{"$f":"SUM(D24,D25:D26)","v":36.60737499999999},null,null,{"$f":"SUM(G24,G25:G26)","v":33.493749999999999},-3.1136249999999919,-8.5054582580695634E-2,0.28008632422114832,0.27759276929643173]
["Sub-Total:  Distribution (based on TOU prices)",null,null,{"$f":"SUM(D24,D25,D27)","v":36.233051499999995},null,null,{"$f":"SUM(G24,G25,G27)","v":33.120294999999999},-3.1127564999999962,-8.5909311281717374E-2,0.27696336431931562,0.27449761250874455]
["Retail Transmission Rate – Network Service Rate",{"$f":"IF($B$9=\"kWh\",$B$8,$B$5)","v":782.32499999999993},{"$f":"VLOOKUP($B$3,'Data Current Rates'!$A:$AP,MATCH(BI_WHSI_AUR_Typical!$A30,CurrentHeader,0),FALSE)","v":9.1999999999999998E-3},{"$f":"B30*C30","v":7.1973899999999995},{"$f":"IF($C$9=\"kWh\",$C$8,$C$5)","v":782.25},{"$f":"VLOOKUP($C$3,'Data Proposed Rates'!$A:$AZ,MATCH(BI_WHSI_AUR_Typical!$A30,ProposedHeader,0),FALSE)","v":1.06E-2},{"$f":"E30*F30","v":8.2918500000000002},{"$f":"G30-D30","v":1.0944600000000007},0.15206345633625531,6.9339318156167312E-2,6.8722003480966382E-2]
["Retail Transmission Rate – Line and Transformation Connection Service Rate",{"$f":"IF($B$9=\"kWh\",$B$8,$B$5)","v":782.32499999999993},{"$f":"VLOOKUP($B$3,'Data Current Rates'!$A:$AP,MATCH(BI_WHSI_AUR_Typical!$A31,CurrentHeader,0),FALSE)","v":6.4000000000000003E-3},{"$f":"B31*C31","v":5.0068799999999998},{"$f":"IF($C$9=\"kWh\",$C$8,$C$5)","v":782.25},{"$f":"VLOOKUP($C$3,'Data Proposed Rates'!$A:$AZ,MATCH(BI_WHSI_AUR_Typical!$A31,ProposedHeader,0),FALSE)","v":7.6E-3},{"$f":"E31*F31","v":5.9451000000000001},{"$f":"G31-D31","v":0.93822000000000028},0.18738615664845179,4.9714982828950142E-2,4.9272379854277785E-2]
["Sub-Total:  Retail Transmission ",null,null,{"$f":"SUM(D30:D31)","v":12.204269999999999},null,null,{"$f":"SUM(G30:G31)","v":14.23695},{"$f":"G32-D32","v":2.0326800000000009},0.16655482056690002,0.11905430098511745,0.11799438333524416]
["Sub-Total:  Delivery (based on two-tier RPP prices)",null,null,{"$f":"D28+D32","v":48.811644999999992},null,null,{"$f":"G28+G32","v":47.730699999999999},{"$f":"G33-D33","v":-1.0809449999999927},-2.2145227844707814E-2,0.39914062520626575,0.39558715263167593]
["Sub-Total:  Delivery (based on TOU prices)",null,null,{"$f":"D29+D32","v":48.437321499999996},null,null,{"$f":"G29+G32","v":47.357244999999999},{"$f":"G34-D34","v":-1.080076499999997},-2.2298435721719193E-2,0.39601766530443305,0.39249199584398869]
["Wholesale Market Service Rate (WMS) - not including CBR",{"$f":"B8","v":782.32499999999993},{"$f":"VLOOKUP($A35,'Data Pass Through'!$A:$D,2,FALSE)","v":3.0000000000000001E-3},{"$f":"B35*C35","v":2.346975},{"$f":"$C$8","v":782.25},{"$f":"VLOOKUP($A35,'Data Pass Through'!$A:$D,3,FALSE)","v":3.0000000000000001E-3},{"$f":"E35*F35","v":2.3467500000000001},-2.2499999999991971E-4,-9.5868085514298074E-5,1.9624335327217163E-2,1.94496236266886E-2]
["Capacity Based Recovery (CBR) - Applicable for Class B Customers",{"$f":"B8","v":782.32499999999993},{"$f":"VLOOKUP($A36,'Data Pass Through'!$A:$D,2,FALSE)","v":4.0000000000000002E-4},{"$f":"B36*C36","v":0.31292999999999999},{"$f":"$C$8","v":782.25},{"$f":"VLOOKUP($A36,'Data Pass Through'!$A:$D,3,FALSE)","v":4.0000000000000002E-4},{"$f":"E36*F36","v":0.31290000000000001},-2.9999999999974492E-5,-9.5868085514250762E-5,2.6165780436289551E-3,2.5932831502251466E-3]
["Rural Rate Protection Charge",{"$f":"B8","v":782.32499999999993},{"$f":"VLOOKUP($A37,'Data Pass Through'!$A:$D,2,FALSE)","v":5.0000000000000001E-4},0.39116249999999997,782.25,{"$f":"VLOOKUP($A37,'Data Pass Through'!$A:$D,3,FALSE)","v":5.0000000000000001E-4},0.391125,-3.7499999999968114E-5,-9.5868085514250775E-5,3.2707225545361937E-3,3.2416039377814328E-3]
["Standard Supply Service – Administration Charge (if applicable)",1,{"$f":"VLOOKUP($A38,'Data Pass Through'!$A:$D,2,FALSE)","v":0.25},{"$f":"B38*C38","v":0.25},1,{"$f":"VLOOKUP($A38,'Data Pass Through'!$A:$D,3,FALSE)","v":0.25},0.25,0,0,2.0905864842033837E-3,2.071974392957132E-3]
["Sub-Total:  Regulatory",null,null,{"$f":"SUM(D35:D38)","v":3.3010675000000003},null,null,{"$f":"SUM(G35:G38)","v":3.3007750000000002},-2.9250000000002885E-4,-8.8607700387837815E-5,2.7602222409585694E-2,2.7356485107652311E-2]
["Total  Electricty Charge on Two-Tier RPP ",null,null,{"$f":"SUM(D14,D24,D25,D26,D32,D39)","v":128.16271249999997},null,null,{"$f":"SUM(G14,G24,G25,G26,G32,G39)","v":127.081475},-1.0812374999999719,-8.4364436341027981E-3,1.0626992561105206]
["     HST",null,0.13,{"$f":"D40*C41","v":16.661152624999996},null,{"$f":"C41","v":0.13},{"$f":"G40*F41","v":16.520591750000001},-0.14056087499999492,-8.4364436341027131E-3,0.13815090329436772]
["Total Electricity Charge on Two-Tier RPP (including HST)",null,null,{"$f":"SUM(D40:D41)","v":144.82386512499997},null,null,{"$f":"SUM(G40:G41)","v":143.60206675000001},-1.2217983749999632,-8.4364436341027634E-3,1.2008501594048886]
["Ontario Electricity Rebate (OER)",null,{"$f":"IF(($B$4*12)<250000,VLOOKUP(A43,'Data Pass Through'!$A$4:$C$20,2,0),0)","v":-0.189},{"$f":"D40*C43","v":-24.222752662499996},null,{"$f":"C43","v":-0.189},{"$f":"G40*F43","v":-24.018398775000001},0.20435388749999461,8.4364436341027946E-3,-0.20085015940488843]
["Total Amount on Two-Tier RPP",null,null,{"$f":"SUM(D42:D43)","v":120.60111246249997},null,null,{"$f":"SUM(G42:G43)","v":119.583667975},-1.0174444874999722,-8.4364436341027877E-3,1]
["Total Electricty Charge on TOU (before HST)",null,null,{"$f":"SUM(D18,D24,D25,D27,D32,D39)","v":129.30338899999995},null,null,{"$f":"SUM(G18,G24,G25,G27,G32,G39)","v":128.22301999999999},-1.0803689999999619,-8.3553030462330917E-3,null,{"$f":"G45/$G$49","v":1.0626992561105206}]
["     HST",null,0.13,{"$f":"D45*C46","v":16.809440569999996},null,{"$f":"C46","v":0.13},{"$f":"G45*F46","v":16.668992599999999},-0.14044796999999676,-8.3553030462331906E-3,null,{"$f":"G46/$G$49","v":0.13815090329436769}]
["Total Electricity Charge on TOU (including HST)",null,null,{"$f":"SUM(D45:D46)","v":146.11282956999995},null,null,{"$f":"SUM(G45:G46)","v":144.89201259999999},-1.2208169699999587,-8.3553030462331021E-3,null,{"$f":"G47/$G$49","v":1.2008501594048884}]
["Ontario Electricity Rebate (OER)",null,{"$f":"IF(($B$4*12)<250000,VLOOKUP(A48,'Data Pass Through'!$A$4:$C$20,2,0),0)","v":-0.189},{"$f":"D45*C48","v":-24.43834052099999},null,{"$f":"C48","v":-0.189},{"$f":"G45*F48","v":-24.23415078},0.20418974099998977,8.3553030462329668E-3,null,{"$f":"G48/$G$49","v":-0.20085015940488843}]
["Total Amount on TOU",null,null,{"$f":"SUM(D47:D48)","v":121.67448904899996},null,null,{"$f":"SUM(G47:G48)","v":120.65786181999999},-1.0166272289999654,-8.3553030462331004E-3,null,{"$f":"G49/$G$49","v":1}]

{"sheet":"BI_WHSI_AUR_Avg","index":74,"n_rows":49,"n_cols":11,"rows_kept":49,"cut":false,"hidden":false,"merged":[[0,0,0,10]]}
["2023 Bill Impacts (Average Consumption Level) - AUR_WHSI"]
[]
["Rate Class",{"$f":"VLOOKUP(A1,'Data BI List Acq_Seas'!C:E,2,FALSE)","v":"WHSI_RES"},{"$f":"VLOOKUP(A1,'Data BI List Acq_Seas'!C:E,3,FALSE)","v":"AUR-WHSI"}]
["Monthly Consumption (kWh)",{"$f":"IF(COUNTIF(A1,\"*Low*\")>0,VLOOKUP(B3,'Data Billing Quantities'!$A:$Z,MATCH(\"Low kWh\",'Data Billing Quantities'!4:4,0),FALSE),IF(COUNTIF(A1,\"*Typical*\")>0,VLOOKUP(B3,'Data Billing Quantities'!$A:$Z,MATCH(\"Typical kWh\",'Data Billing Quantities'!4:4,0),FALSE),IF(COUNTIF(A1,\"*Average*\")>0,VLOOKUP(B3,'Data Billing Quantities'!$A:$Z,MATCH(\"Average kWh\",'Data Billing Quantities'!4:4,0),FALSE),IF(COUNTIF(A1,\"*High*\")>0,VLOOKUP(B3,'Data Billing Quantities'!$A:$Z,MATCH(\"High kWh\",'Data Billing Quantities'!4:4,0),FALSE),\"error\"))))","v":636},{"$f":"B4","v":636}]
["Peak (kW)",{"$f":"IF(COUNTIF(A1,\"*Low*\")>0,VLOOKUP(B3,'Data Billing Quantities'!$A:$Z,MATCH(\"Low kW\",'Data Billing Quantities'!4:4,0),FALSE),IF(COUNTIF(A1,\"*Typical*\")>0,VLOOKUP(B3,'Data Billing Quantities'!$A:$Z,MATCH(\"Typical kW\",'Data Billing Quantities'!4:4,0),FALSE),IF(COUNTIF(A1,\"*Average*\")>0,VLOOKUP(B3,'Data Billing Quantities'!$A:$Z,MATCH(\"Average kW\",'Data Billing Quantities'!4:4,0),FALSE),IF(COUNTIF(A1,\"*High*\")>0,VLOOKUP(B3,'Data Billing Quantities'!$A:$Z,MATCH(\"High kW\",'Data Billing Quantities'!4:4,0),FALSE),\"error\"))))","v":0},{"$f":"B5","v":0}]
["Loss factor",{"$f":"VLOOKUP(B3,'Data Billing Quantities'!A:D,MATCH(A6,'Data Billing Quantities'!4:4,0),FALSE)","v":1.0430999999999999},{"$f":"VLOOKUP(C3,'Data Billing Quantities'!A:D,MATCH(A6,'Data Billing Quantities'!4:4,0),FALSE)","v":1.0429999999999999}]
["Commodity Threshold",{"$f":"VLOOKUP(B3,'Data Billing Quantities'!A:D,MATCH(A7,'Data Billing Quantities'!4:4,0),FALSE)","v":600},{"$f":"B7","v":600}]
["Monthly Consumption (kWh) - Uplifted",{"$f":"B4*B6","v":663.41159999999991},{"$f":"C4*C6","v":663.34799999999996}]
["Charge determinant",{"$f":"VLOOKUP(B3,'Data Billing Quantities'!A:D,MATCH(A9,'Data Billing Quantities'!4:4,0),FALSE)","v":"kWh"},{"$f":"VLOOKUP(C3,'Data Billing Quantities'!A:D,MATCH(A9,'Data Billing Quantities'!4:4,0),FALSE)","v":"kWh"}]
[]
[null,"Volume","Current Rate ($)","Current Charge ($)","Volume","Proposed Rate ($)","Proposed Charge ($)","Change ($)","Change (%)","% of Total Bill on RPP","% of Total Bill"]
["Energy First Tier",{"$f":"IF(B4>B7,B7,B4)","v":600},{"$f":"VLOOKUP($A12,'Data Pass Through'!$A:$D,2,FALSE)","v":9.8000000000000004E-2},{"$f":"B12*C12","v":58.800000000000004},{"$f":"B12","v":600},{"$f":"VLOOKUP($A12,'Data Pass Through'!$A:$D,3,FALSE)","v":9.8000000000000004E-2},{"$f":"E12*F12","v":58.800000000000004},{"$f":"G12-D12","v":0},{"$f":"IF(ISERROR(H12/ABS(D12)),\"N/A\",(H12/ABS(D12)))","v":0},{"$f":"G12/$G$44","v":0.56377121512283346}]
["Energy Second Tier",{"$f":"IF(B4>B7,(B4)-B7,0)","v":36},{"$f":"VLOOKUP($A13,'Data Pass Through'!$A:$D,2,FALSE)","v":0.115},{"$f":"B13*C13","v":4.1400000000000006},{"$f":"B13","v":36},{"$f":"VLOOKUP($A13,'Data Pass Through'!$A:$D,3,FALSE)","v":0.115},{"$f":"E13*F13","v":4.1400000000000006},0,0,{"$f":"G13/$G$44","v":3.9694095758648483E-2}]
["Sub-Total:  Energy (RPP Tiered)",null,null,{"$f":"SUM(D12:D13)","v":62.940000000000005},null,null,{"$f":"SUM(G12:G13)","v":62.940000000000005},0,0,{"$f":"G14/$G$44","v":0.60346531088148192}]
["TOU-Off Peak",{"$f":"B$4*VLOOKUP($B$3,'Data Billing Quantities'!$A:$O,MATCH(BI_WHSI_AUR_Avg!$A15,'Data Billing Quantities'!$4:$4,0),FALSE)","v":407.04},{"$f":"VLOOKUP($A15,'Data Pass Through'!$A:$D,2,FALSE)","v":8.2000000000000003E-2},{"$f":"B15*C15","v":33.377280000000006},407.04,{"$f":"VLOOKUP($A15,'Data Pass Through'!$A:$D,3,FALSE)","v":8.2000000000000003E-2},{"$f":"E15*F15","v":33.377280000000006},0,0,null,{"$f":"G15/$G$49","v":0.31290964356540202}]
["TOU-Mid Peak",{"$f":"B$4*VLOOKUP($B$3,'Data Billing Quantities'!$A:$O,MATCH(BI_WHSI_AUR_Avg!$A16,'Data Billing Quantities'!$4:$4,0),FALSE)","v":114.47999999999999},{"$f":"VLOOKUP($A16,'Data Pass Through'!$A:$D,2,FALSE)","v":0.113},{"$f":"B16*C16","v":12.93624},114.47999999999999,{"$f":"VLOOKUP($A16,'Data Pass Through'!$A:$D,3,FALSE)","v":0.113},{"$f":"E16*F16","v":12.93624},0,0,null,0.12127633670198695]
["TOU-On Peak",{"$f":"B$4*VLOOKUP($B$3,'Data Billing Quantities'!$A:$O,MATCH(BI_WHSI_AUR_Avg!$A17,'Data Billing Quantities'!$4:$4,0),FALSE)","v":114.47999999999999},{"$f":"VLOOKUP($A17,'Data Pass Through'!$A:$D,2,FALSE)","v":0.17},{"$f":"B17*C17","v":19.461600000000001},114.47999999999999,{"$f":"VLOOKUP($A17,'Data Pass Through'!$A:$D,3,FALSE)","v":0.17},{"$f":"E17*F17","v":19.461600000000001},0,0,null,0.1824511260118388]
["Sub-Total:  Energy (RPP TOU)",null,null,{"$f":"SUM(D15:D17)","v":65.775120000000001},null,null,{"$f":"SUM(G15:G17)","v":65.775120000000001},0,0,{"$f":"G18/$G$44","v":0.63064828787840443},0.61663710627922774]
["Service Charge",1,{"$f":"VLOOKUP($B$3,'Data Current Rates'!$A:$AP,MATCH(BI_WHSI_AUR_Avg!$A19,CurrentHeader,0),FALSE)","v":31.08},{"$f":"B19*C19","v":31.08},1,{"$f":"VLOOKUP($C$3,'Data Proposed Rates'!$A:$AZ,MATCH(BI_WHSI_AUR_Avg!$A19,ProposedHeader,0),FALSE)","v":29.59},{"$f":"E19*F19","v":29.59},-1.4899999999999984,-4.7940797940797891E-2,0.28370731727014697,0.27740416094721448]
["Rate Rider for Recovery of Smart Meter Incremental Revenue Requirement",1,{"$f":"VLOOKUP($B$3,'Data Current Rates'!$A:$AP,MATCH(BI_WHSI_AUR_Avg!$A20,CurrentHeader,0),FALSE)","v":0.64},{"$f":"B20*C20","v":0.64},null,null,null,{"$f":"G20-D20","v":-0.64},{"$f":"IF(ISERROR(H20/ABS(D20)),\"N/A\",(H20/ABS(D20)))","v":-1},0,0]
["Distribution Volumetric Charge",{"$f":"IF($B$9=\"kWh\",$B$4,$B$5)","v":636},{"$f":"VLOOKUP($B$3,'Data Current Rates'!$A:$AP,MATCH(BI_WHSI_AUR_Avg!$A21,CurrentHeader,0),FALSE)","v":0},{"$f":"B21*C21","v":0},{"$f":"IF($C$9=\"kWh\",$C$4,$C$5)","v":636},{"$f":"VLOOKUP($C$3,'Data Proposed Rates'!$A:$AZ,MATCH(BI_WHSI_AUR_Avg!$A21,ProposedHeader,0),FALSE)","v":0},0,0,"N/A",0,0]
["Rate Rider for Recovery of Incremental Capital",{"$f":"IF($B$9=\"kWh\",$B$4,$B$5)","v":636},{"$f":"VLOOKUP($B$3,'Data Current Rates'!$A:$AP,MATCH(BI_WHSI_AUR_Avg!$A22,CurrentHeader,0),FALSE)","v":8.0000000000000004E-4},0.50880000000000003,null,null,null,-0.50880000000000003,-1,0,0]
["Group 1 Volumetric DVA Rider (General)",null,null,null,{"$f":"IF($C$9=\"kWh\",$C$4,$C$5)","v":636},{"$f":"VLOOKUP($C$3,'Data Proposed Rates'!$A:$AZ,MATCH(BI_WHSI_AUR_Avg!$A23,ProposedHeader,0),FALSE)","v":-5.0000000000000001E-4},-0.318,-0.318,"N/A",-3.0489667756643034E-3,-2.9812275492130521E-3]
["Sub-Total:  Distribution (excluding pass through)",null,null,{"$f":"SUM(INDIRECT(\"D19:D\"&ROW()-1))","v":32.2288},null,null,{"$f":"SUM(INDIRECT(\"g19:g\"&ROW()-1))","v":29.271999999999998},{"$f":"G24-D24","v":-2.9568000000000012},-9.1744030184183131E-2,0.28065835049448262,0.27442293339800145]
["Smart Metering Entity Charge",{"$f":"B19","v":1},{"$f":"VLOOKUP($A25,'Data Pass Through'!$A:$D,2,FALSE)","v":0.56999999999999995},{"$f":"B25*C25","v":0.56999999999999995},{"$f":"E19","v":1},{"$f":"VLOOKUP($A25,'Data Pass Through'!$A:$D,3,FALSE)","v":0.56999999999999995},{"$f":"E25*F25","v":0.56999999999999995},0,0,5.4651291261907315E-3,5.3437097580233952E-3]
["Line Losses on Cost of Power (based on two-tier RPP prices)",{"$f":"B8-B4","v":27.411599999999908},{"$f":"IF(B4>B7,C13,C12)","v":0.115},{"$f":"B26*C26","v":3.1523339999999895},{"$f":"C8-C4","v":27.347999999999956},{"$f":"IF(C4>C7,F13,F12)","v":0.115},{"$f":"E26*F26","v":3.1450199999999953},-7.3139999999942695E-3,-2.3201856148473777E-3,3.0154281411319914E-2,2.9484340461717041E-2]
["Line Losses on Cost of Power (based on TOU prices)",{"$f":"B8-B4","v":27.411599999999908},{"$f":"VLOOKUP($B$3,'Data Billing Quantities'!$A:$O,MATCH(BI_WHSI_AUR_Avg!$A15,'Data Billing Quantities'!$4:$4,0),FALSE)*C15+VLOOKUP($B$3,'Data Billing Quantities'!$A:$O,MATCH(BI_WHSI_AUR_Avg!$A16,'Data Billing Quantities'!$4:$4,0),FALSE)*C16+VLOOKUP($B$3,'Data Billing Quantities'!$A:$O,MATCH(BI_WHSI_AUR_Avg!$A17,'Data Billing Quantities'!$4:$4,0),FALSE)*C17","v":0.10342000000000001},{"$f":"B27*C27","v":2.8349076719999906},{"$f":"C8-C4","v":27.347999999999956},{"$f":"VLOOKUP($C$3,'Data Billing Quantities'!$A:$O,MATCH(BI_WHSI_AUR_Avg!$A15,'Data Billing Quantities'!$4:$4,0),FALSE)*F15+VLOOKUP($C$3,'Data Billing Quantities'!$A:$O,MATCH(BI_WHSI_AUR_Avg!$A16,'Data Billing Quantities'!$4:$4,0),FALSE)*F16+VLOOKUP($C$3,'Data Billing Quantities'!$A:$O,MATCH(BI_WHSI_AUR_Avg!$A17,'Data Billing Quantities'!$4:$4,0),FALSE)*F17","v":0.10342000000000001},{"$f":"E27*F27","v":2.8283301599999957},-6.5775119999949005E-3,-2.3201856148473967E-3,2.711787637877135E-2,2.6515395570006751E-2]
["Sub-Total:  Distribution (based on two-tier RPP prices)",null,null,{"$f":"SUM(D24,D25:D26)","v":35.951133999999989},null,null,{"$f":"SUM(G24,G25:G26)","v":32.987019999999994},-2.964113999999995,-8.244841456183262E-2,0.31627776103199329,0.30925098361774189]
["Sub-Total:  Distribution (based on TOU prices)",null,null,{"$f":"SUM(D24,D25,D27)","v":35.633707671999993},null,null,{"$f":"SUM(G24,G25,G27)","v":32.670330159999992},-2.963377512000001,-8.3162199658738944E-2,0.31324135599944469,0.30628203872603155]
["Retail Transmission Rate – Network Service Rate",{"$f":"IF($B$9=\"kWh\",$B$8,$B$5)","v":663.41159999999991},{"$f":"VLOOKUP($B$3,'Data Current Rates'!$A:$AP,MATCH(BI_WHSI_AUR_Avg!$A30,CurrentHeader,0),FALSE)","v":9.1999999999999998E-3},{"$f":"B30*C30","v":6.1033867199999987},{"$f":"IF($C$9=\"kWh\",$C$8,$C$5)","v":663.34799999999996},{"$f":"VLOOKUP($C$3,'Data Proposed Rates'!$A:$AZ,MATCH(BI_WHSI_AUR_Avg!$A30,ProposedHeader,0),FALSE)","v":1.06E-2},{"$f":"E30*F30","v":7.0314888},{"$f":"G30-D30","v":0.92810208000000127},0.15206345633625545,6.7417533756778808E-2,6.5919711077179324E-2]
["Retail Transmission Rate – Line and Transformation Connection Service Rate",{"$f":"IF($B$9=\"kWh\",$B$8,$B$5)","v":663.41159999999991},{"$f":"VLOOKUP($B$3,'Data Current Rates'!$A:$AP,MATCH(BI_WHSI_AUR_Avg!$A31,CurrentHeader,0),FALSE)","v":6.4000000000000003E-3},{"$f":"B31*C31","v":4.2458342399999998},{"$f":"IF($C$9=\"kWh\",$C$8,$C$5)","v":663.34799999999996},{"$f":"VLOOKUP($C$3,'Data Proposed Rates'!$A:$AZ,MATCH(BI_WHSI_AUR_Avg!$A31,ProposedHeader,0),FALSE)","v":7.6E-3},{"$f":"E31*F31","v":5.0414447999999998},{"$f":"G31-D31","v":0.79561056000000008},0.18738615664845176,4.8337099674671598E-2,4.7263189074204043E-2]
["Sub-Total:  Retail Transmission ",null,null,{"$f":"SUM(D30:D31)","v":10.349220959999998},null,null,{"$f":"SUM(G30:G31)","v":12.072933599999999},{"$f":"G32-D32","v":1.7237126400000005},0.16655482056690002,0.1157546334314504,0.11318290015138335]
["Sub-Total:  Delivery (based on two-tier RPP prices)",null,null,{"$f":"D28+D32","v":46.300354959999986},null,null,{"$f":"G28+G32","v":45.059953599999993},{"$f":"G33-D33","v":-1.2404013599999928},-2.6790320745307589E-2,0.43203239446344366,0.42243388376912522]
["Sub-Total:  Delivery (based on TOU prices)",null,null,{"$f":"D29+D32","v":45.982928631999989},null,null,{"$f":"G29+G32","v":44.743263759999991},{"$f":"G34-D34","v":-1.2396648719999988},-2.695924137240148E-2,0.42899598943089506,0.41946493887741493]
["Wholesale Market Service Rate (WMS) - not including CBR",{"$f":"B8","v":663.41159999999991},{"$f":"VLOOKUP($A35,'Data Pass Through'!$A:$D,2,FALSE)","v":3.0000000000000001E-3},{"$f":"B35*C35","v":1.9902347999999999},{"$f":"$C$8","v":663.34799999999996},{"$f":"VLOOKUP($A35,'Data Pass Through'!$A:$D,3,FALSE)","v":3.0000000000000001E-3},{"$f":"E35*F35","v":1.9900439999999999},-1.9079999999993547E-4,-9.5868085514299862E-5,1.908043408210721E-2,1.8656522002975278E-2]
["Capacity Based Recovery (CBR) - Applicable for Class B Customers",{"$f":"B8","v":663.41159999999991},{"$f":"VLOOKUP($A36,'Data Pass Through'!$A:$D,2,FALSE)","v":4.0000000000000002E-4},{"$f":"B36*C36","v":0.26536463999999998},{"$f":"$C$8","v":663.34799999999996},{"$f":"VLOOKUP($A36,'Data Pass Through'!$A:$D,3,FALSE)","v":4.0000000000000002E-4},{"$f":"E36*F36","v":0.2653392},-2.5439999999987695E-5,-9.5868085514285917E-5,2.5440578776142948E-3,2.4875362670633708E-3]
["Rural Rate Protection Charge",{"$f":"B8","v":663.41159999999991},{"$f":"VLOOKUP($A37,'Data Pass Through'!$A:$D,2,FALSE)","v":5.0000000000000001E-4},0.33170579999999994,663.34799999999996,{"$f":"VLOOKUP($A37,'Data Pass Through'!$A:$D,3,FALSE)","v":5.0000000000000001E-4},0.33167399999999997,-3.1799999999970741E-5,-9.5868085514244094E-5,3.1800723470178679E-3,3.1094203338292129E-3]
["Standard Supply Service – Administration Charge (if applicable)",1,{"$f":"VLOOKUP($A38,'Data Pass Through'!$A:$D,2,FALSE)","v":0.25},{"$f":"B38*C38","v":0.25},1,{"$f":"VLOOKUP($A38,'Data Pass Through'!$A:$D,3,FALSE)","v":0.25},0.25,0,0,2.3969864588555844E-3,2.3437323500102611E-3]
["Sub-Total:  Regulatory",null,null,{"$f":"SUM(D35:D38)","v":2.8373052399999996},null,null,{"$f":"SUM(G35:G38)","v":2.8370571999999998},-2.4803999999978288E-4,-8.7420978364591788E-5,2.7201550765594953E-2,2.6597210953878122E-2]
["Total  Electricty Charge on Two-Tier RPP ",null,null,{"$f":"SUM(D14,D24,D25,D26,D32,D39)","v":112.0776602},null,null,{"$f":"SUM(G14,G24,G25,G26,G32,G39)","v":110.8370108},-1.2406493999999952,-1.106955121820071E-2,1.0626992561105206]
["     HST",null,0.13,{"$f":"D40*C41","v":14.570095825999999},null,{"$f":"C41","v":0.13},{"$f":"G40*F41","v":14.408811404000001},-0.16128442199999782,-1.1069551218200604E-2,0.13815090329436769]
["Total Electricity Charge on Two-Tier RPP (including HST)",null,null,{"$f":"SUM(D40:D41)","v":126.647756026},null,null,{"$f":"SUM(G40:G41)","v":125.24582220400001},-1.4019338219999895,-1.106955121820067E-2,1.2008501594048884]
["Ontario Electricity Rebate (OER)",null,{"$f":"IF(($B$4*12)<250000,VLOOKUP(A43,'Data Pass Through'!$A$4:$C$20,2,0),0)","v":-0.189},{"$f":"D40*C43","v":-21.182677777799999},null,{"$f":"C43","v":-0.189},{"$f":"G40*F43","v":-20.948195041200002},0.23448273659999685,1.1069551218200606E-2,-0.2008501594048884]
["Total Amount on Two-Tier RPP",null,null,{"$f":"SUM(D42:D43)","v":105.4650782482},null,null,{"$f":"SUM(G42:G43)","v":104.29762716280001},-1.1674510853999891,-1.1069551218200649E-2,1]
["Total Electricty Charge on TOU (before HST)",null,null,{"$f":"SUM(D18,D24,D25,D27,D32,D39)","v":114.59535387199998},null,null,{"$f":"SUM(G18,G24,G25,G27,G32,G39)","v":113.35544096},-1.2399129119999799,-1.0819923060623647E-2,null,{"$f":"G45/$G$49","v":1.0626992561105209}]
["     HST",null,0.13,{"$f":"D45*C46","v":14.897396003359997},null,{"$f":"C46","v":0.13},{"$f":"G45*F46","v":14.736207324800001},-0.16118867855999675,-1.0819923060623604E-2,null,{"$f":"G46/$G$49","v":0.13815090329436772}]
["Total Electricity Charge on TOU (including HST)",null,null,{"$f":"SUM(D45:D46)","v":129.49274987535998},null,null,{"$f":"SUM(G45:G46)","v":128.09164828479999},-1.4011015905599891,-1.0819923060623737E-2,null,{"$f":"G47/$G$49","v":1.2008501594048884}]
["Ontario Electricity Rebate (OER)",null,{"$f":"IF(($B$4*12)<250000,VLOOKUP(A48,'Data Pass Through'!$A$4:$C$20,2,0),0)","v":-0.189},{"$f":"D45*C48","v":-21.658521881807996},null,{"$f":"C48","v":-0.189},{"$f":"G45*F48","v":-21.424178341440001},0.23434354036799476,1.0819923060623581E-2,null,{"$f":"G48/$G$49","v":-0.20085015940488846}]
["Total Amount on TOU",null,null,{"$f":"SUM(D47:D48)","v":107.83422799355198},null,null,{"$f":"SUM(G47:G48)","v":106.66746994335999},-1.1667580501919872,-1.0819923060623704E-2,null,{"$f":"G49/$G$49","v":1}]

{"sheet":"BI_WHSI_AUR_High","index":75,"n_rows":49,"n_cols":11,"rows_kept":49,"cut":false,"hidden":false,"merged":[[0,0,0,10]]}
["2023 Bill Impacts (High Consumption Level) - AUR_WHSI"]
[]
["Rate Class",{"$f":"VLOOKUP(A1,'Data BI List Acq_Seas'!C:E,2,FALSE)","v":"WHSI_RES"},{"$f":"VLOOKUP(A1,'Data BI List Acq_Seas'!C:E,3,FALSE)","v":"AUR-WHSI"}]
["Monthly Consumption (kWh)",{"$f":"IF(COUNTIF(A1,\"*Low*\")>0,VLOOKUP(B3,'Data Billing Quantities'!$A:$Z,MATCH(\"Low kWh\",'Data Billing Quantities'!4:4,0),FALSE),IF(COUNTIF(A1,\"*Typical*\")>0,VLOOKUP(B3,'Data Billing Quantities'!$A:$Z,MATCH(\"Typical kWh\",'Data Billing Quantities'!4:4,0),FALSE),IF(COUNTIF(A1,\"*Average*\")>0,VLOOKUP(B3,'Data Billing Quantities'!$A:$Z,MATCH(\"Average kWh\",'Data Billing Quantities'!4:4,0),FALSE),IF(COUNTIF(A1,\"*High*\")>0,VLOOKUP(B3,'Data Billing Quantities'!$A:$Z,MATCH(\"High kWh\",'Data Billing Quantities'!4:4,0),FALSE),\"error\"))))","v":1160},{"$f":"B4","v":1160}]
["Peak (kW)",{"$f":"IF(COUNTIF(A1,\"*Low*\")>0,VLOOKUP(B3,'Data Billing Quantities'!$A:$Z,MATCH(\"Low kW\",'Data Billing Quantities'!4:4,0),FALSE),IF(COUNTIF(A1,\"*Typical*\")>0,VLOOKUP(B3,'Data Billing Quantities'!$A:$Z,MATCH(\"Typical kW\",'Data Billing Quantities'!4:4,0),FALSE),IF(COUNTIF(A1,\"*Average*\")>0,VLOOKUP(B3,'Data Billing Quantities'!$A:$Z,MATCH(\"Average kW\",'Data Billing Quantities'!4:4,0),FALSE),IF(COUNTIF(A1,\"*High*\")>0,VLOOKUP(B3,'Data Billing Quantities'!$A:$Z,MATCH(\"High kW\",'Data Billing Quantities'!4:4,0),FALSE),\"error\"))))","v":0},{"$f":"B5","v":0}]
["Loss factor",{"$f":"VLOOKUP(B3,'Data Billing Quantities'!A:D,MATCH(A6,'Data Billing Quantities'!4:4,0),FALSE)","v":1.0430999999999999},{"$f":"VLOOKUP(C3,'Data Billing Quantities'!A:D,MATCH(A6,'Data Billing Quantities'!4:4,0),FALSE)","v":1.0429999999999999}]
["Commodity Threshold",{"$f":"VLOOKUP(B3,'Data Billing Quantities'!A:D,MATCH(A7,'Data Billing Quantities'!4:4,0),FALSE)","v":600},{"$f":"B7","v":600}]
["Monthly Consumption (kWh) - Uplifted",{"$f":"B4*B6","v":1209.9959999999999},{"$f":"C4*C6","v":1209.8799999999999}]
["Charge determinant",{"$f":"VLOOKUP(B3,'Data Billing Quantities'!A:D,MATCH(A9,'Data Billing Quantities'!4:4,0),FALSE)","v":"kWh"},{"$f":"VLOOKUP(C3,'Data Billing Quantities'!A:D,MATCH(A9,'Data Billing Quantities'!4:4,0),FALSE)","v":"kWh"}]
[]
[null,"Volume","Current Rate ($)","Current Charge ($)","Volume","Proposed Rate ($)","Proposed Charge ($)","Change ($)","Change (%)","% of Total Bill on RPP","% of Total Bill"]
["Energy First Tier",{"$f":"IF(B4>B7,B7,B4)","v":600},{"$f":"VLOOKUP($A12,'Data Pass Through'!$A:$D,2,FALSE)","v":9.8000000000000004E-2},{"$f":"B12*C12","v":58.800000000000004},{"$f":"B12","v":600},{"$f":"VLOOKUP($A12,'Data Pass Through'!$A:$D,3,FALSE)","v":9.8000000000000004E-2},{"$f":"E12*F12","v":58.800000000000004},{"$f":"G12-D12","v":0},{"$f":"IF(ISERROR(H12/ABS(D12)),\"N/A\",(H12/ABS(D12)))","v":0},{"$f":"G12/$G$44","v":0.33684735459584864}]
["Energy Second Tier",{"$f":"IF(B4>B7,(B4)-B7,0)","v":560},{"$f":"VLOOKUP($A13,'Data Pass Through'!$A:$D,2,FALSE)","v":0.115},{"$f":"B13*C13","v":64.400000000000006},{"$f":"B13","v":560},{"$f":"VLOOKUP($A13,'Data Pass Through'!$A:$D,3,FALSE)","v":0.115},{"$f":"E13*F13","v":64.400000000000006},0,0,{"$f":"G13/$G$44","v":0.36892805503354847}]
["Sub-Total:  Energy (RPP Tiered)",null,null,{"$f":"SUM(D12:D13)","v":123.20000000000002},null,null,{"$f":"SUM(G12:G13)","v":123.20000000000002},0,0,{"$f":"G14/$G$44","v":0.70577540962939711}]
["TOU-Off Peak",{"$f":"B$4*VLOOKUP($B$3,'Data Billing Quantities'!$A:$O,MATCH(BI_WHSI_AUR_High!$A15,'Data Billing Quantities'!$4:$4,0),FALSE)","v":742.4},{"$f":"VLOOKUP($A15,'Data Pass Through'!$A:$D,2,FALSE)","v":8.2000000000000003E-2},{"$f":"B15*C15","v":60.876800000000003},742.4,{"$f":"VLOOKUP($A15,'Data Pass Through'!$A:$D,3,FALSE)","v":8.2000000000000003E-2},{"$f":"E15*F15","v":60.876800000000003},0,0,null,{"$f":"G15/$G$49","v":0.35605843385443908}]
["TOU-Mid Peak",{"$f":"B$4*VLOOKUP($B$3,'Data Billing Quantities'!$A:$O,MATCH(BI_WHSI_AUR_High!$A16,'Data Billing Quantities'!$4:$4,0),FALSE)","v":208.79999999999998},{"$f":"VLOOKUP($A16,'Data Pass Through'!$A:$D,2,FALSE)","v":0.113},{"$f":"B16*C16","v":23.5944},208.79999999999998,{"$f":"VLOOKUP($A16,'Data Pass Through'!$A:$D,3,FALSE)","v":0.113},{"$f":"E16*F16","v":23.5944},0,0,null,0.13799978171873648]
["TOU-On Peak",{"$f":"B$4*VLOOKUP($B$3,'Data Billing Quantities'!$A:$O,MATCH(BI_WHSI_AUR_High!$A17,'Data Billing Quantities'!$4:$4,0),FALSE)","v":208.79999999999998},{"$f":"VLOOKUP($A17,'Data Pass Through'!$A:$D,2,FALSE)","v":0.17},{"$f":"B17*C17","v":35.496000000000002},208.79999999999998,{"$f":"VLOOKUP($A17,'Data Pass Through'!$A:$D,3,FALSE)","v":0.17},{"$f":"E17*F17","v":35.496000000000002},0,0,null,0.20761029108128498]
["Sub-Total:  Energy (RPP TOU)",null,null,{"$f":"SUM(D15:D17)","v":119.96720000000002},null,null,{"$f":"SUM(G15:G17)","v":119.96720000000002},0,0,{"$f":"G18/$G$44","v":0.68725567956243361},0.70166850665446068]
["Service Charge",1,{"$f":"VLOOKUP($B$3,'Data Current Rates'!$A:$AP,MATCH(BI_WHSI_AUR_High!$A19,CurrentHeader,0),FALSE)","v":31.08},{"$f":"B19*C19","v":31.08},1,{"$f":"VLOOKUP($C$3,'Data Proposed Rates'!$A:$AZ,MATCH(BI_WHSI_AUR_High!$A19,ProposedHeader,0),FALSE)","v":29.59},{"$f":"E19*F19","v":29.59},-1.4899999999999984,-4.7940797940797891E-2,0.1695121296342034,0.1730670642634444]
["Rate Rider for Recovery of Smart Meter Incremental Revenue Requirement",1,{"$f":"VLOOKUP($B$3,'Data Current Rates'!$A:$AP,MATCH(BI_WHSI_AUR_High!$A20,CurrentHeader,0),FALSE)","v":0.64},{"$f":"B20*C20","v":0.64},null,null,null,{"$f":"G20-D20","v":-0.64},{"$f":"IF(ISERROR(H20/ABS(D20)),\"N/A\",(H20/ABS(D20)))","v":-1},0,0]
["Distribution Volumetric Charge",{"$f":"IF($B$9=\"kWh\",$B$4,$B$5)","v":1160},{"$f":"VLOOKUP($B$3,'Data Current Rates'!$A:$AP,MATCH(BI_WHSI_AUR_High!$A21,CurrentHeader,0),FALSE)","v":0},{"$f":"B21*C21","v":0},{"$f":"IF($C$9=\"kWh\",$C$4,$C$5)","v":1160},{"$f":"VLOOKUP($C$3,'Data Proposed Rates'!$A:$AZ,MATCH(BI_WHSI_AUR_High!$A21,ProposedHeader,0),FALSE)","v":0},0,0,"N/A",0,0]
["Rate Rider for Recovery of Incremental Capital",{"$f":"IF($B$9=\"kWh\",$B$4,$B$5)","v":1160},{"$f":"VLOOKUP($B$3,'Data Current Rates'!$A:$AP,MATCH(BI_WHSI_AUR_High!$A22,CurrentHeader,0),FALSE)","v":8.0000000000000004E-4},0.92800000000000005,null,null,null,-0.92800000000000005,-1,0,0]
["Group 1 Volumetric DVA Rider (General)",null,null,null,{"$f":"IF($C$9=\"kWh\",$C$4,$C$5)","v":1160},{"$f":"VLOOKUP($C$3,'Data Proposed Rates'!$A:$AZ,MATCH(BI_WHSI_AUR_High!$A23,ProposedHeader,0),FALSE)","v":-5.0000000000000001E-4},-0.57999999999999996,-0.57999999999999996,"N/A",-3.3226439739046289E-3,-3.3923250176680548E-3]
["Sub-Total:  Distribution (excluding pass through)",null,null,{"$f":"SUM(INDIRECT(\"D19:D\"&ROW()-1))","v":32.647999999999996},null,null,{"$f":"SUM(INDIRECT(\"g19:g\"&ROW()-1))","v":29.01},{"$f":"G24-D24","v":-3.6379999999999946},-0.11143102180838015,0.16618948566029879,0.16967473924577636]
["Smart Metering Entity Charge",{"$f":"B19","v":1},{"$f":"VLOOKUP($A25,'Data Pass Through'!$A:$D,2,FALSE)","v":0.56999999999999995},{"$f":"B25*C25","v":0.56999999999999995},{"$f":"E19","v":1},{"$f":"VLOOKUP($A25,'Data Pass Through'!$A:$D,3,FALSE)","v":0.56999999999999995},{"$f":"E25*F25","v":0.56999999999999995},0,0,3.2653570088373076E-3,3.3338366552944677E-3]
["Line Losses on Cost of Power (based on two-tier RPP prices)",{"$f":"B8-B4","v":49.995999999999867},{"$f":"IF(B4>B7,C13,C12)","v":0.115},{"$f":"B26*C26","v":5.7495399999999846},{"$f":"C8-C4","v":49.879999999999882},{"$f":"IF(C4>C7,F13,F12)","v":0.115},{"$f":"E26*F26","v":5.7361999999999869},-1.3339999999997687E-2,-2.3201856148487919E-3,3.2860948901916709E-2,3.3550094424736991E-2]
["Line Losses on Cost of Power (based on TOU prices)",{"$f":"B8-B4","v":49.995999999999867},{"$f":"VLOOKUP($B$3,'Data Billing Quantities'!$A:$O,MATCH(BI_WHSI_AUR_High!$A15,'Data Billing Quantities'!$4:$4,0),FALSE)*C15+VLOOKUP($B$3,'Data Billing Quantities'!$A:$O,MATCH(BI_WHSI_AUR_High!$A16,'Data Billing Quantities'!$4:$4,0),FALSE)*C16+VLOOKUP($B$3,'Data Billing Quantities'!$A:$O,MATCH(BI_WHSI_AUR_High!$A17,'Data Billing Quantities'!$4:$4,0),FALSE)*C17","v":0.10342000000000001},{"$f":"B27*C27","v":5.1705863199999866},{"$f":"C8-C4","v":49.879999999999882},{"$f":"VLOOKUP($C$3,'Data Billing Quantities'!$A:$O,MATCH(BI_WHSI_AUR_High!$A15,'Data Billing Quantities'!$4:$4,0),FALSE)*F15+VLOOKUP($C$3,'Data Billing Quantities'!$A:$O,MATCH(BI_WHSI_AUR_High!$A16,'Data Billing Quantities'!$4:$4,0),FALSE)*F16+VLOOKUP($C$3,'Data Billing Quantities'!$A:$O,MATCH(BI_WHSI_AUR_High!$A17,'Data Billing Quantities'!$4:$4,0),FALSE)*F17","v":0.10342000000000001},{"$f":"E27*F27","v":5.1585895999999885},-1.1996719999998184E-2,-2.3201856148488426E-3,2.9551994221184572E-2,3.0171745786141735E-2]
["Sub-Total:  Distribution (based on two-tier RPP prices)",null,null,{"$f":"SUM(D24,D25:D26)","v":38.967539999999978},null,null,{"$f":"SUM(G24,G25:G26)","v":35.316199999999988},-3.6513399999999905,-9.3702091535672827E-2,0.20231579157105278,0.2065586703258078]
["Sub-Total:  Distribution (based on TOU prices)",null,null,{"$f":"SUM(D24,D25,D27)","v":38.38858631999998},null,null,{"$f":"SUM(G24,G25,G27)","v":34.73858959999999},-3.6499967199999901,-9.5080258740822321E-2,0.19900683689032067,0.20318032168721256]
["Retail Transmission Rate – Network Service Rate",{"$f":"IF($B$9=\"kWh\",$B$8,$B$5)","v":1209.9959999999999},{"$f":"VLOOKUP($B$3,'Data Current Rates'!$A:$AP,MATCH(BI_WHSI_AUR_High!$A30,CurrentHeader,0),FALSE)","v":9.1999999999999998E-3},{"$f":"B30*C30","v":11.131963199999998},{"$f":"IF($C$9=\"kWh\",$C$8,$C$5)","v":1209.8799999999999},{"$f":"VLOOKUP($C$3,'Data Proposed Rates'!$A:$AZ,MATCH(BI_WHSI_AUR_High!$A30,ProposedHeader,0),FALSE)","v":1.06E-2},{"$f":"E30*F30","v":12.824727999999999},{"$f":"G30-D30","v":1.6927648000000008},0.15206345633625534,7.3468974493389586E-2,7.5009733860668962E-2]
["Retail Transmission Rate – Line and Transformation Connection Service Rate",{"$f":"IF($B$9=\"kWh\",$B$8,$B$5)","v":1209.9959999999999},{"$f":"VLOOKUP($B$3,'Data Current Rates'!$A:$AP,MATCH(BI_WHSI_AUR_High!$A31,CurrentHeader,0),FALSE)","v":6.4000000000000003E-3},{"$f":"B31*C31","v":7.7439743999999999},{"$f":"IF($C$9=\"kWh\",$C$8,$C$5)","v":1209.8799999999999},{"$f":"VLOOKUP($C$3,'Data Proposed Rates'!$A:$AZ,MATCH(BI_WHSI_AUR_High!$A31,ProposedHeader,0),FALSE)","v":7.6E-3},{"$f":"E31*F31","v":9.1950879999999984},{"$f":"G31-D31","v":1.4511135999999984},0.18738615664845154,5.2675868504694419E-2,5.3780563900102267E-2]
["Sub-Total:  Retail Transmission ",null,null,{"$f":"SUM(D30:D31)","v":18.875937599999997},null,null,{"$f":"SUM(G30:G31)","v":22.019815999999999},{"$f":"G32-D32","v":3.143878400000002},0.16655482056690007,0.12614484299808401,0.12879029776077125]
["Sub-Total:  Delivery (based on two-tier RPP prices)",null,null,{"$f":"D28+D32","v":57.843477599999972},null,null,{"$f":"G28+G32","v":57.336015999999987},{"$f":"G33-D33","v":-0.50746159999998497},-8.7730133293366375E-3,0.32846063456913682,0.33534896808657905]
["Sub-Total:  Delivery (based on TOU prices)",null,null,{"$f":"D29+D32","v":57.264523919999974},null,null,{"$f":"G29+G32","v":56.758405599999989},{"$f":"G34-D34","v":-0.50611831999998458},-8.8382524703609685E-3,0.32515167988840465,0.33197061944798378]
["Wholesale Market Service Rate (WMS) - not including CBR",{"$f":"B8","v":1209.9959999999999},{"$f":"VLOOKUP($A35,'Data Pass Through'!$A:$D,2,FALSE)","v":3.0000000000000001E-3},{"$f":"B35*C35","v":3.6299879999999995},{"$f":"$C$8","v":1209.8799999999999},{"$f":"VLOOKUP($A35,'Data Pass Through'!$A:$D,3,FALSE)","v":3.0000000000000001E-3},{"$f":"E35*F35","v":3.6296399999999998},-3.4799999999979292E-4,-9.5868085514275238E-5,2.0793105988695167E-2,2.1229169960566688E-2]
["Capacity Based Recovery (CBR) - Applicable for Class B Customers",{"$f":"B8","v":1209.9959999999999},{"$f":"VLOOKUP($A36,'Data Pass Through'!$A:$D,2,FALSE)","v":4.0000000000000002E-4},{"$f":"B36*C36","v":0.4839984},{"$f":"$C$8","v":1209.8799999999999},{"$f":"VLOOKUP($A36,'Data Pass Through'!$A:$D,3,FALSE)","v":4.0000000000000002E-4},{"$f":"E36*F36","v":0.48395199999999999},-4.6400000000001995E-5,-9.58680855143364E-5,2.7724141318260223E-3,2.830555994742225E-3]
["Rural Rate Protection Charge",{"$f":"B8","v":1209.9959999999999},{"$f":"VLOOKUP($A37,'Data Pass Through'!$A:$D,2,FALSE)","v":5.0000000000000001E-4},0.60499799999999992,1209.8799999999999,{"$f":"VLOOKUP($A37,'Data Pass Through'!$A:$D,3,FALSE)","v":5.0000000000000001E-4},0.60493999999999992,-5.8000000000002494E-5,-9.5868085514336414E-5,3.4655176647825276E-3,3.5381949934277812E-3]
["Standard Supply Service – Administration Charge (if applicable)",1,{"$f":"VLOOKUP($A38,'Data Pass Through'!$A:$D,2,FALSE)","v":0.25},{"$f":"B38*C38","v":0.25},1,{"$f":"VLOOKUP($A38,'Data Pass Through'!$A:$D,3,FALSE)","v":0.25},0.25,0,0,1.4321741266830298E-3,1.4622090593396789E-3]
["Sub-Total:  Regulatory",null,null,{"$f":"SUM(D35:D38)","v":4.9689844000000001},null,null,{"$f":"SUM(G35:G38)","v":4.9685319999999997},-4.5240000000035252E-4,-9.1044761581532136E-5,2.8463211911986749E-2,2.9060130008076373E-2]
["Total  Electricty Charge on Two-Tier RPP ",null,null,{"$f":"SUM(D14,D24,D25,D26,D32,D39)","v":186.012462},null,null,{"$f":"SUM(G14,G24,G25,G26,G32,G39)","v":185.504548},-0.50791399999999953,-2.7305374840960899E-3,1.0626992561105206]
["     HST",null,0.13,{"$f":"D40*C41","v":24.18162006},null,{"$f":"C41","v":0.13},{"$f":"G40*F41","v":24.115591240000001},-6.6028819999999655E-2,-2.7305374840960782E-3,0.13815090329436769]
["Total Electricity Charge on Two-Tier RPP (including HST)",null,null,{"$f":"SUM(D40:D41)","v":210.19408206},null,null,{"$f":"SUM(G40:G41)","v":209.62013924000001},-0.57394281999998498,-2.730537484096021E-3,1.2008501594048884]
["Ontario Electricity Rebate (OER)",null,{"$f":"IF(($B$4*12)<250000,VLOOKUP(A43,'Data Pass Through'!$A$4:$C$20,2,0),0)","v":-0.189},{"$f":"D40*C43","v":-35.156355318000003},null,{"$f":"C43","v":-0.189},{"$f":"G40*F43","v":-35.060359572000003},9.5995745999999826E-2,2.7305374840960873E-3,-0.20085015940488843]
["Total Amount on Two-Tier RPP",null,null,{"$f":"SUM(D42:D43)","v":175.03772674199999},null,null,{"$f":"SUM(G42:G43)","v":174.559779668},-0.47794707399998515,-2.730537484096008E-3,1]
["Total Electricty Charge on TOU (before HST)",null,null,{"$f":"SUM(D18,D24,D25,D27,D32,D39)","v":182.20070831999999},null,null,{"$f":"SUM(G18,G24,G25,G27,G32,G39)","v":181.6941376},-0.50657071999998493,-2.780289520665816E-3,null,{"$f":"G45/$G$49","v":1.0626992561105209}]
["     HST",null,0.13,{"$f":"D45*C46","v":23.686092081599998},null,{"$f":"C46","v":0.13},{"$f":"G45*F46","v":23.620237888000002},-6.5854193599996336E-2,-2.7802895206657441E-3,null,{"$f":"G46/$G$49","v":0.13815090329436772}]
["Total Electricity Charge on TOU (including HST)",null,null,{"$f":"SUM(D45:D46)","v":205.8868004016},null,null,{"$f":"SUM(G45:G46)","v":205.314375488},-0.57242491360000258,-2.780289520665911E-3,null,{"$f":"G47/$G$49","v":1.2008501594048884}]
["Ontario Electricity Rebate (OER)",null,{"$f":"IF(($B$4*12)<250000,VLOOKUP(A48,'Data Pass Through'!$A$4:$C$20,2,0),0)","v":-0.189},{"$f":"D45*C48","v":-34.43593387248},null,{"$f":"C48","v":-0.189},{"$f":"G45*F48","v":-34.340192006400002},9.5741866079997351E-2,2.7802895206658217E-3,null,{"$f":"G48/$G$49","v":-0.20085015940488843}]
["Total Amount on TOU",null,null,{"$f":"SUM(D47:D48)","v":171.45086652911999},null,null,{"$f":"SUM(G47:G48)","v":170.97418348159999},-0.47668304751999813,-2.7802895206658876E-3,null,{"$f":"G49/$G$49","v":1}]

{"sheet":"BI_WHSI_AUGe_Low","index":76,"n_rows":49,"n_cols":11,"rows_kept":49,"cut":false,"hidden":false,"merged":[[0,0,0,10]]}
["2023 Bill Impacts (Low Consumption Level) - AUGe_WHSI"]
[]
["Rate Class",{"$f":"VLOOKUP(A1,'Data BI List Acq_Seas'!C:E,2,FALSE)","v":"WHSI_GS<50"},{"$f":"VLOOKUP(A1,'Data BI List Acq_Seas'!C:E,3,FALSE)","v":"AUGe-WHSI"}]
["Monthly Consumption (kWh)",{"$f":"IF(COUNTIF(A1,\"*Low*\")>0,VLOOKUP(B3,'Data Billing Quantities'!$A:$Z,MATCH(\"Low kWh\",'Data Billing Quantities'!4:4,0),FALSE),IF(COUNTIF(A1,\"*Typical*\")>0,VLOOKUP(B3,'Data Billing Quantities'!$A:$Z,MATCH(\"Typical kWh\",'Data Billing Quantities'!4:4,0),FALSE),IF(COUNTIF(A1,\"*Average*\")>0,VLOOKUP(B3,'Data Billing Quantities'!$A:$Z,MATCH(\"Average kWh\",'Data Billing Quantities'!4:4,0),FALSE),IF(COUNTIF(A1,\"*High*\")>0,VLOOKUP(B3,'Data Billing Quantities'!$A:$Z,MATCH(\"High kWh\",'Data Billing Quantities'!4:4,0),FALSE),\"error\"))))","v":190},{"$f":"B4","v":190}]
["Peak (kW)",{"$f":"IF(COUNTIF(A1,\"*Low*\")>0,VLOOKUP(B3,'Data Billing Quantities'!$A:$Z,MATCH(\"Low kW\",'Data Billing Quantities'!4:4,0),FALSE),IF(COUNTIF(A1,\"*Typical*\")>0,VLOOKUP(B3,'Data Billing Quantities'!$A:$Z,MATCH(\"Typical kW\",'Data Billing Quantities'!4:4,0),FALSE),IF(COUNTIF(A1,\"*Average*\")>0,VLOOKUP(B3,'Data Billing Quantities'!$A:$Z,MATCH(\"Average kW\",'Data Billing Quantities'!4:4,0),FALSE),IF(COUNTIF(A1,\"*High*\")>0,VLOOKUP(B3,'Data Billing Quantities'!$A:$Z,MATCH(\"High kW\",'Data Billing Quantities'!4:4,0),FALSE),\"error\"))))","v":0},{"$f":"B5","v":0}]
["Loss factor",{"$f":"VLOOKUP(B3,'Data Billing Quantities'!A:D,MATCH(A6,'Data Billing Quantities'!4:4,0),FALSE)","v":1.0430999999999999},{"$f":"VLOOKUP(C3,'Data Billing Quantities'!A:D,MATCH(A6,'Data Billing Quantities'!4:4,0),FALSE)","v":1.0429999999999999}]
["Commodity Threshold",{"$f":"VLOOKUP(B3,'Data Billing Quantities'!A:D,MATCH(A7,'Data Billing Quantities'!4:4,0),FALSE)","v":750},{"$f":"B7","v":750}]
["Monthly Consumption (kWh) - Uplifted",{"$f":"B4*B6","v":198.18899999999999},{"$f":"C4*C6","v":198.17}]
["Charge determinant",{"$f":"VLOOKUP(B3,'Data Billing Quantities'!A:D,MATCH(A9,'Data Billing Quantities'!4:4,0),FALSE)","v":"kWh"},{"$f":"VLOOKUP(C3,'Data Billing Quantities'!A:D,MATCH(A9,'Data Billing Quantities'!4:4,0),FALSE)","v":"kWh"}]
[]
[null,"Volume","Current Rate ($)","Current Charge ($)","Volume","Proposed Rate ($)","Proposed Charge ($)","Change ($)","Change (%)","% of Total Bill on RPP","% of Total Bill"]
["Energy First Tier",{"$f":"IF(B4>B7,B7,B4)","v":190},{"$f":"VLOOKUP($A12,'Data Pass Through'!$A:$D,2,FALSE)","v":9.8000000000000004E-2},{"$f":"B12*C12","v":18.62},{"$f":"B12","v":190},{"$f":"VLOOKUP($A12,'Data Pass Through'!$A:$D,3,FALSE)","v":9.8000000000000004E-2},{"$f":"E12*F12","v":18.62},{"$f":"G12-D12","v":0},{"$f":"IF(ISERROR(H12/ABS(D12)),\"N/A\",(H12/ABS(D12)))","v":0},{"$f":"G12/$G$44","v":0.38122194771618162}]
["Energy Second Tier",{"$f":"IF(B4>B7,(B4)-B7,0)","v":0},{"$f":"VLOOKUP($A13,'Data Pass Through'!$A:$D,2,FALSE)","v":0.115},{"$f":"B13*C13","v":0},{"$f":"B13","v":0},{"$f":"VLOOKUP($A13,'Data Pass Through'!$A:$D,3,FALSE)","v":0.115},{"$f":"E13*F13","v":0},0,"N/A",{"$f":"G13/$G$44","v":0}]
["Sub-Total:  Energy (RPP Tiered)",null,null,{"$f":"SUM(D12:D13)","v":18.62},null,null,{"$f":"SUM(G12:G13)","v":18.62},0,0,{"$f":"G14/$G$44","v":0.38122194771618162}]
["TOU-Off Peak",{"$f":"B$4*VLOOKUP($B$3,'Data Billing Quantities'!$A:$O,MATCH(BI_WHSI_AUGe_Low!$A15,'Data Billing Quantities'!$4:$4,0),FALSE)","v":121.60000000000001},{"$f":"VLOOKUP($A15,'Data Pass Through'!$A:$D,2,FALSE)","v":8.2000000000000003E-2},{"$f":"B15*C15","v":9.9712000000000014},121.60000000000001,{"$f":"VLOOKUP($A15,'Data Pass Through'!$A:$D,3,FALSE)","v":8.2000000000000003E-2},{"$f":"E15*F15","v":9.9712000000000014},0,0,null,{"$f":"G15/$G$49","v":0.20000943276434438}]
["TOU-Mid Peak",{"$f":"B$4*VLOOKUP($B$3,'Data Billing Quantities'!$A:$O,MATCH(BI_WHSI_AUGe_Low!$A16,'Data Billing Quantities'!$4:$4,0),FALSE)","v":34.199999999999996},{"$f":"VLOOKUP($A16,'Data Pass Through'!$A:$D,2,FALSE)","v":0.113},{"$f":"B16*C16","v":3.8645999999999998},34.199999999999996,{"$f":"VLOOKUP($A16,'Data Pass Through'!$A:$D,3,FALSE)","v":0.113},{"$f":"E16*F16","v":3.8645999999999998},0,0,null,7.7518899817583156E-2]
["TOU-On Peak",{"$f":"B$4*VLOOKUP($B$3,'Data Billing Quantities'!$A:$O,MATCH(BI_WHSI_AUGe_Low!$A17,'Data Billing Quantities'!$4:$4,0),FALSE)","v":34.199999999999996},{"$f":"VLOOKUP($A17,'Data Pass Through'!$A:$D,2,FALSE)","v":0.17},{"$f":"B17*C17","v":5.8140000000000001},34.199999999999996,{"$f":"VLOOKUP($A17,'Data Pass Through'!$A:$D,3,FALSE)","v":0.17},{"$f":"E17*F17","v":5.8140000000000001},0,0,null,0.11662135370786847]
["Sub-Total:  Energy (RPP TOU)",null,null,{"$f":"SUM(D15:D17)","v":19.649799999999999},null,null,{"$f":"SUM(G15:G17)","v":19.649799999999999},0,0,{"$f":"G18/$G$44","v":0.40230585543681119},0.39414968628979596]
["Service Charge",1,{"$f":"VLOOKUP($B$3,'Data Current Rates'!$A:$AP,MATCH(BI_WHSI_AUGe_Low!$A19,CurrentHeader,0),FALSE)","v":26.08},{"$f":"B19*C19","v":26.08},1,{"$f":"VLOOKUP($C$3,'Data Proposed Rates'!$A:$AZ,MATCH(BI_WHSI_AUGe_Low!$A19,ProposedHeader,0),FALSE)","v":25.36},{"$f":"E19*F19","v":25.36},-0.71999999999999886,-2.7607361963190143E-2,0.51921528432236119,0.50868894565386036]
["Rate Rider for Recovery of Smart Meter Incremental Revenue Requirement",1,{"$f":"VLOOKUP($B$3,'Data Current Rates'!$A:$AP,MATCH(BI_WHSI_AUGe_Low!$A20,CurrentHeader,0),FALSE)","v":4.24},{"$f":"B20*C20","v":4.24},null,null,null,{"$f":"G20-D20","v":-4.24},{"$f":"IF(ISERROR(H20/ABS(D20)),\"N/A\",(H20/ABS(D20)))","v":-1},0,0]
["Distribution Volumetric Charge",{"$f":"IF($B$9=\"kWh\",$B$4,$B$5)","v":190},{"$f":"VLOOKUP($B$3,'Data Current Rates'!$A:$AP,MATCH(BI_WHSI_AUGe_Low!$A21,CurrentHeader,0),FALSE)","v":1.5100000000000001E-2},{"$f":"B21*C21","v":2.8690000000000002},{"$f":"IF($C$9=\"kWh\",$C$4,$C$5)","v":190},{"$f":"VLOOKUP($C$3,'Data Proposed Rates'!$A:$AZ,MATCH(BI_WHSI_AUGe_Low!$A21,ProposedHeader,0),FALSE)","v":1.47E-2},2.7929999999999997,-7.6000000000000512E-2,-2.649006622516574E-2,5.7183292157427228E-2,5.6023983643976018E-2]
["Rate Rider for Recovery of Incremental Capital",{"$f":"IF($B$9=\"kWh\",$B$4,$B$5)","v":190},{"$f":"VLOOKUP($B$3,'Data Current Rates'!$A:$AP,MATCH(BI_WHSI_AUGe_Low!$A22,CurrentHeader,0),FALSE)","v":6.9999999999999999E-4},0.13300000000000001,null,null,null,-0.13300000000000001,-1,0,0]
["Group 1 Volumetric DVA Rider (General)",null,null,null,{"$f":"IF($C$9=\"kWh\",$C$4,$C$5)","v":190},{"$f":"VLOOKUP($C$3,'Data Proposed Rates'!$A:$AZ,MATCH(BI_WHSI_AUGe_Low!$A23,ProposedHeader,0),FALSE)","v":-5.0000000000000001E-4},-9.5000000000000001E-2,-9.5000000000000001E-2,"N/A",-1.9450099373274571E-3,-1.9055776749651711E-3]
["Sub-Total:  Distribution (excluding pass through)",null,null,{"$f":"SUM(INDIRECT(\"D19:D\"&ROW()-1))","v":33.322000000000003},null,null,{"$f":"SUM(INDIRECT(\"g19:g\"&ROW()-1))","v":28.058},{"$f":"G24-D24","v":-5.2640000000000029},-0.15797371106176109,0.57445356654246094,0.56280735162287121]
["Smart Metering Entity Charge",{"$f":"B19","v":1},{"$f":"VLOOKUP($A25,'Data Pass Through'!$A:$D,2,FALSE)","v":0.56999999999999995},{"$f":"B25*C25","v":0.56999999999999995},{"$f":"E19","v":1},{"$f":"VLOOKUP($A25,'Data Pass Through'!$A:$D,3,FALSE)","v":0.56999999999999995},{"$f":"E25*F25","v":0.56999999999999995},0,0,1.1670059623964741E-2,1.1433466049791025E-2]
["Line Losses on Cost of Power (based on two-tier RPP prices)",{"$f":"B8-B4","v":8.188999999999993},{"$f":"IF(B4>B7,C13,C12)","v":9.8000000000000004E-2},{"$f":"B26*C26","v":0.80252199999999929},{"$f":"C8-C4","v":8.1699999999999875},{"$f":"IF(C4>C7,F13,F12)","v":9.8000000000000004E-2},{"$f":"E26*F26","v":0.80065999999999882},-1.8620000000004744E-3,-2.3201856148497811E-3,1.6392543751795784E-2,1.6060208644606437E-2]
["Line Losses on Cost of Power (based on TOU prices)",{"$f":"B8-B4","v":8.188999999999993},{"$f":"VLOOKUP($B$3,'Data Billing Quantities'!$A:$O,MATCH(BI_WHSI_AUGe_Low!$A15,'Data Billing Quantities'!$4:$4,0),FALSE)*C15+VLOOKUP($B$3,'Data Billing Quantities'!$A:$O,MATCH(BI_WHSI_AUGe_Low!$A16,'Data Billing Quantities'!$4:$4,0),FALSE)*C16+VLOOKUP($B$3,'Data Billing Quantities'!$A:$O,MATCH(BI_WHSI_AUGe_Low!$A17,'Data Billing Quantities'!$4:$4,0),FALSE)*C17","v":0.10342000000000001},{"$f":"B27*C27","v":0.8469063799999994},{"$f":"C8-C4","v":8.1699999999999875},{"$f":"VLOOKUP($C$3,'Data Billing Quantities'!$A:$O,MATCH(BI_WHSI_AUGe_Low!$A15,'Data Billing Quantities'!$4:$4,0),FALSE)*F15+VLOOKUP($C$3,'Data Billing Quantities'!$A:$O,MATCH(BI_WHSI_AUGe_Low!$A16,'Data Billing Quantities'!$4:$4,0),FALSE)*F16+VLOOKUP($C$3,'Data Billing Quantities'!$A:$O,MATCH(BI_WHSI_AUGe_Low!$A17,'Data Billing Quantities'!$4:$4,0),FALSE)*F17","v":0.10342000000000001},{"$f":"E27*F27","v":0.84494139999999884},-1.9649800000005602E-3,-2.3201856148498509E-3,1.7299151783782857E-2,1.6948436510461202E-2]
["Sub-Total:  Distribution (based on two-tier RPP prices)",null,null,{"$f":"SUM(D24,D25:D26)","v":34.694521999999999},null,null,{"$f":"SUM(G24,G25:G26)","v":29.428660000000001},-5.2658619999999985,-0.15177790891599541,0.60251616991822154,0.59030102631726877]
["Sub-Total:  Distribution (based on TOU prices)",null,null,{"$f":"SUM(D24,D25,D27)","v":34.738906380000003},null,null,{"$f":"SUM(G24,G25,G27)","v":29.4729414},-5.2659649800000032,-0.15158695332538569,0.6034227779502086,0.59118925418312351]
["Retail Transmission Rate – Network Service Rate",{"$f":"IF($B$9=\"kWh\",$B$8,$B$5)","v":198.18899999999999},{"$f":"VLOOKUP($B$3,'Data Current Rates'!$A:$AP,MATCH(BI_WHSI_AUGe_Low!$A30,CurrentHeader,0),FALSE)","v":8.3000000000000001E-3},{"$f":"B30*C30","v":1.6449687},{"$f":"IF($C$9=\"kWh\",$C$8,$C$5)","v":198.17},{"$f":"VLOOKUP($C$3,'Data Proposed Rates'!$A:$AZ,MATCH(BI_WHSI_AUGe_Low!$A30,ProposedHeader,0),FALSE)","v":8.0999999999999996E-3},{"$f":"E30*F30","v":1.6051769999999999},{"$f":"G30-D30","v":-3.9791700000000096E-2},-2.4189943553333322E-2,3.2864054907047108E-2,3.2197783742816503E-2]
["Retail Transmission Rate – Line and Transformation Connection Service Rate",{"$f":"IF($B$9=\"kWh\",$B$8,$B$5)","v":198.18899999999999},{"$f":"VLOOKUP($B$3,'Data Current Rates'!$A:$AP,MATCH(BI_WHSI_AUGe_Low!$A31,CurrentHeader,0),FALSE)","v":6.0000000000000001E-3},{"$f":"B31*C31","v":1.1891339999999999},{"$f":"IF($C$9=\"kWh\",$C$8,$C$5)","v":198.17},{"$f":"VLOOKUP($C$3,'Data Proposed Rates'!$A:$AZ,MATCH(BI_WHSI_AUGe_Low!$A31,ProposedHeader,0),FALSE)","v":6.1999999999999998E-3},{"$f":"E31*F31","v":1.2286539999999999},{"$f":"G31-D31","v":3.952E-2},3.3234269644968527E-2,2.5155202521443466E-2,2.4645217185859547E-2]
["Sub-Total:  Retail Transmission ",null,null,{"$f":"SUM(D30:D31)","v":2.8341026999999999},null,null,{"$f":"SUM(G30:G31)","v":2.833831},{"$f":"G32-D32","v":-2.7169999999987482E-4},-9.5868085514288112E-5,5.8019257428490574E-2,5.6843000928676057E-2]
["Sub-Total:  Delivery (based on two-tier RPP prices)",null,null,{"$f":"D28+D32","v":37.528624700000002},null,null,{"$f":"G28+G32","v":32.262490999999997},{"$f":"G33-D33","v":-5.2661337000000046},-0.14032311980779846,0.660535427346712,0.64714402724594466]
["Sub-Total:  Delivery (based on TOU prices)",null,null,{"$f":"D29+D32","v":37.573009080000006},null,null,{"$f":"G29+G32","v":32.3067724},{"$f":"G34-D34","v":-5.2662366800000058},-0.14016009920278669,0.66144203537869917,0.64803225511179952]
["Wholesale Market Service Rate (WMS) - not including CBR",{"$f":"B8","v":198.18899999999999},{"$f":"VLOOKUP($A35,'Data Pass Through'!$A:$D,2,FALSE)","v":3.0000000000000001E-3},{"$f":"B35*C35","v":0.59456699999999996},{"$f":"$C$8","v":198.17},{"$f":"VLOOKUP($A35,'Data Pass Through'!$A:$D,3,FALSE)","v":3.0000000000000001E-3},{"$f":"E35*F35","v":0.59450999999999998},-5.6999999999973738E-5,-9.5868085514288112E-5,1.2171872187795226E-2,1.1925105089932039E-2]
["Capacity Based Recovery (CBR) - Applicable for Class B Customers",{"$f":"B8","v":198.18899999999999},{"$f":"VLOOKUP($A36,'Data Pass Through'!$A:$D,2,FALSE)","v":4.0000000000000002E-4},{"$f":"B36*C36","v":7.9275600000000002E-2},{"$f":"$C$8","v":198.17},{"$f":"VLOOKUP($A36,'Data Pass Through'!$A:$D,3,FALSE)","v":4.0000000000000002E-4},{"$f":"E36*F36","v":7.9268000000000005E-2},-7.5999999999964984E-6,-9.5868085514288112E-5,1.6229162917060303E-3,1.5900140119909387E-3]
["Rural Rate Protection Charge",{"$f":"B8","v":198.18899999999999},{"$f":"VLOOKUP($A37,'Data Pass Through'!$A:$D,2,FALSE)","v":5.0000000000000001E-4},9.9094500000000002E-2,198.17,{"$f":"VLOOKUP($A37,'Data Pass Through'!$A:$D,3,FALSE)","v":5.0000000000000001E-4},9.9084999999999993E-2,-9.5000000000095008E-6,-9.5868085514428151E-5,2.0286453646325376E-3,1.9875175149886731E-3]
["Standard Supply Service – Administration Charge (if applicable)",1,{"$f":"VLOOKUP($A38,'Data Pass Through'!$A:$D,2,FALSE)","v":0.25},{"$f":"B38*C38","v":0.25},1,{"$f":"VLOOKUP($A38,'Data Pass Through'!$A:$D,3,FALSE)","v":0.25},0.25,0,0,5.1184472034933081E-3,5.0146780920136075E-3]
["Sub-Total:  Regulatory",null,null,{"$f":"SUM(D35:D38)","v":1.0229371},null,null,{"$f":"SUM(G35:G38)","v":1.0228630000000001},-7.409999999996586E-5,-7.2438471534531161E-5,2.0941881047627103E-2,2.0517314708925261E-2]
["Total  Electricty Charge on Two-Tier RPP ",null,null,{"$f":"SUM(D14,D24,D25,D26,D32,D39)","v":57.171561800000006},null,null,{"$f":"SUM(G14,G24,G25,G26,G32,G39)","v":51.905354000000003},-5.2662078000000037,-9.211236555724113E-2,1.0626992561105209]
["     HST",null,0.13,{"$f":"D40*C41","v":7.4323030340000011},null,{"$f":"C41","v":0.13},{"$f":"G40*F41","v":6.7476960200000002},-0.6846070140000009,-9.2112365557241185E-2,0.13815090329436769]
["Total Electricity Charge on Two-Tier RPP (including HST)",null,null,{"$f":"SUM(D40:D41)","v":64.603864834000007},null,null,{"$f":"SUM(G40:G41)","v":58.653050020000002},-5.9508148140000046,-9.2112365557241144E-2,1.2008501594048884]
["Ontario Electricity Rebate (OER)",null,{"$f":"IF(($B$4*12)<250000,VLOOKUP(A43,'Data Pass Through'!$A$4:$C$20,2,0),0)","v":-0.189},{"$f":"D40*C43","v":-10.805425180200002},null,{"$f":"C43","v":-0.189},{"$f":"G40*F43","v":-9.8101119060000013},0.99531327420000082,9.2112365557241144E-2,-0.20085015940488846]
["Total Amount on Two-Tier RPP",null,null,{"$f":"SUM(D42:D43)","v":53.798439653800003},null,null,{"$f":"SUM(G42:G43)","v":48.842938113999999},-4.9555015398000037,-9.2112365557241144E-2,1]
["Total Electricty Charge on TOU (before HST)",null,null,{"$f":"SUM(D18,D24,D25,D27,D32,D39)","v":58.245746180000005},null,null,{"$f":"SUM(G18,G24,G25,G27,G32,G39)","v":52.9794354},-5.2663107800000049,-9.0415371514431936E-2,null,{"$f":"G45/$G$49","v":1.0626992561105209}]
["     HST",null,0.13,{"$f":"D45*C46","v":7.5719470034000009},null,{"$f":"C46","v":0.13},{"$f":"G45*F46","v":6.8873266019999999},-0.68462040140000102,-9.0415371514431978E-2,null,{"$f":"G46/$G$49","v":0.13815090329436769}]
["Total Electricity Charge on TOU (including HST)",null,null,{"$f":"SUM(D45:D46)","v":65.81769318340001},null,null,{"$f":"SUM(G45:G46)","v":59.866762002000002},-5.9509311814000085,-9.0415371514431964E-2,null,{"$f":"G47/$G$49","v":1.2008501594048886}]
["Ontario Electricity Rebate (OER)",null,{"$f":"IF(($B$4*12)<250000,VLOOKUP(A48,'Data Pass Through'!$A$4:$C$20,2,0),0)","v":-0.189},{"$f":"D45*C48","v":-11.008446028020002},null,{"$f":"C48","v":-0.189},{"$f":"G45*F48","v":-10.0131132906},0.99533273742000183,9.0415371514432005E-2,null,{"$f":"G48/$G$49","v":-0.20085015940488843}]
["Total Amount on TOU",null,null,{"$f":"SUM(D47:D48)","v":54.809247155380007},null,null,{"$f":"SUM(G47:G48)","v":49.853648711399998},-4.9555984439800085,-9.0415371514431991E-2,null,{"$f":"G49/$G$49","v":1}]

{"sheet":"BI_WHSI_AUGe_Typical","index":77,"n_rows":49,"n_cols":11,"rows_kept":49,"cut":false,"hidden":false,"merged":[[0,0,0,10]]}
["2023 Bill Impacts (Typical Consumption Level) - AUGe_WHSI"]
[]
["Rate Class",{"$f":"VLOOKUP(A1,'Data BI List Acq_Seas'!C:E,2,FALSE)","v":"WHSI_GS<50"},{"$f":"VLOOKUP(A1,'Data BI List Acq_Seas'!C:E,3,FALSE)","v":"AUGe-WHSI"}]
["Monthly Consumption (kWh)",{"$f":"IF(COUNTIF(A1,\"*Low*\")>0,VLOOKUP(B3,'Data Billing Quantities'!$A:$Z,MATCH(\"Low kWh\",'Data Billing Quantities'!4:4,0),FALSE),IF(COUNTIF(A1,\"*Typical*\")>0,VLOOKUP(B3,'Data Billing Quantities'!$A:$Z,MATCH(\"Typical kWh\",'Data Billing Quantities'!4:4,0),FALSE),IF(COUNTIF(A1,\"*Average*\")>0,VLOOKUP(B3,'Data Billing Quantities'!$A:$Z,MATCH(\"Average kWh\",'Data Billing Quantities'!4:4,0),FALSE),IF(COUNTIF(A1,\"*High*\")>0,VLOOKUP(B3,'Data Billing Quantities'!$A:$Z,MATCH(\"High kWh\",'Data Billing Quantities'!4:4,0),FALSE),\"error\"))))","v":2000},{"$f":"B4","v":2000}]
["Peak (kW)",{"$f":"IF(COUNTIF(A1,\"*Low*\")>0,VLOOKUP(B3,'Data Billing Quantities'!$A:$Z,MATCH(\"Low kW\",'Data Billing Quantities'!4:4,0),FALSE),IF(COUNTIF(A1,\"*Typical*\")>0,VLOOKUP(B3,'Data Billing Quantities'!$A:$Z,MATCH(\"Typical kW\",'Data Billing Quantities'!4:4,0),FALSE),IF(COUNTIF(A1,\"*Average*\")>0,VLOOKUP(B3,'Data Billing Quantities'!$A:$Z,MATCH(\"Average kW\",'Data Billing Quantities'!4:4,0),FALSE),IF(COUNTIF(A1,\"*High*\")>0,VLOOKUP(B3,'Data Billing Quantities'!$A:$Z,MATCH(\"High kW\",'Data Billing Quantities'!4:4,0),FALSE),\"error\"))))","v":0},{"$f":"B5","v":0}]
["Loss factor",{"$f":"VLOOKUP(B3,'Data Billing Quantities'!A:D,MATCH(A6,'Data Billing Quantities'!4:4,0),FALSE)","v":1.0430999999999999},{"$f":"VLOOKUP(C3,'Data Billing Quantities'!A:D,MATCH(A6,'Data Billing Quantities'!4:4,0),FALSE)","v":1.0429999999999999}]
["Commodity Threshold",{"$f":"VLOOKUP(B3,'Data Billing Quantities'!A:D,MATCH(A7,'Data Billing Quantities'!4:4,0),FALSE)","v":750},{"$f":"B7","v":750}]
["Monthly Consumption (kWh) - Uplifted",{"$f":"B4*B6","v":2086.1999999999998},{"$f":"C4*C6","v":2086}]
["Charge determinant",{"$f":"VLOOKUP(B3,'Data Billing Quantities'!A:D,MATCH(A9,'Data Billing Quantities'!4:4,0),FALSE)","v":"kWh"},{"$f":"VLOOKUP(C3,'Data Billing Quantities'!A:D,MATCH(A9,'Data Billing Quantities'!4:4,0),FALSE)","v":"kWh"}]
[]
[null,"Volume","Current Rate ($)","Current Charge ($)","Volume","Proposed Rate ($)","Proposed Charge ($)","Change ($)","Change (%)","% of Total Bill on RPP","% of Total Bill"]
["Energy First Tier",{"$f":"IF(B4>B7,B7,B4)","v":750},{"$f":"VLOOKUP($A12,'Data Pass Through'!$A:$D,2,FALSE)","v":9.8000000000000004E-2},{"$f":"B12*C12","v":73.5},{"$f":"B12","v":750},{"$f":"VLOOKUP($A12,'Data Pass Through'!$A:$D,3,FALSE)","v":9.8000000000000004E-2},{"$f":"E12*F12","v":73.5},{"$f":"G12-D12","v":0},{"$f":"IF(ISERROR(H12/ABS(D12)),\"N/A\",(H12/ABS(D12)))","v":0},{"$f":"G12/$G$44","v":0.24432909413423984}]
["Energy Second Tier",{"$f":"IF(B4>B7,(B4)-B7,0)","v":1250},{"$f":"VLOOKUP($A13,'Data Pass Through'!$A:$D,2,FALSE)","v":0.115},{"$f":"B13*C13","v":143.75},{"$f":"B13","v":1250},{"$f":"VLOOKUP($A13,'Data Pass Through'!$A:$D,3,FALSE)","v":0.115},{"$f":"E13*F13","v":143.75},0,0,{"$f":"G13/$G$44","v":0.47785452084077518}]
["Sub-Total:  Energy (RPP Tiered)",null,null,{"$f":"SUM(D12:D13)","v":217.25},null,null,{"$f":"SUM(G12:G13)","v":217.25},0,0,{"$f":"G14/$G$44","v":0.72218361497501504}]
["TOU-Off Peak",{"$f":"B$4*VLOOKUP($B$3,'Data Billing Quantities'!$A:$O,MATCH(BI_WHSI_AUGe_Typical!$A15,'Data Billing Quantities'!$4:$4,0),FALSE)","v":1280},{"$f":"VLOOKUP($A15,'Data Pass Through'!$A:$D,2,FALSE)","v":8.2000000000000003E-2},{"$f":"B15*C15","v":104.96000000000001},1280,{"$f":"VLOOKUP($A15,'Data Pass Through'!$A:$D,3,FALSE)","v":8.2000000000000003E-2},{"$f":"E15*F15","v":104.96000000000001},0,0,null,{"$f":"G15/$G$49","v":0.36181769805824232}]
["TOU-Mid Peak",{"$f":"B$4*VLOOKUP($B$3,'Data Billing Quantities'!$A:$O,MATCH(BI_WHSI_AUGe_Typical!$A16,'Data Billing Quantities'!$4:$4,0),FALSE)","v":360},{"$f":"VLOOKUP($A16,'Data Pass Through'!$A:$D,2,FALSE)","v":0.113},{"$f":"B16*C16","v":40.68},360,{"$f":"VLOOKUP($A16,'Data Pass Through'!$A:$D,3,FALSE)","v":0.113},{"$f":"E16*F16","v":40.68},0,0,null,0.14023193556601846]
["TOU-On Peak",{"$f":"B$4*VLOOKUP($B$3,'Data Billing Quantities'!$A:$O,MATCH(BI_WHSI_AUGe_Typical!$A17,'Data Billing Quantities'!$4:$4,0),FALSE)","v":360},{"$f":"VLOOKUP($A17,'Data Pass Through'!$A:$D,2,FALSE)","v":0.17},{"$f":"B17*C17","v":61.2},360,{"$f":"VLOOKUP($A17,'Data Pass Through'!$A:$D,3,FALSE)","v":0.17},{"$f":"E17*F17","v":61.2},0,0,null,0.21096839863914282]
["Sub-Total:  Energy (RPP TOU)",null,null,{"$f":"SUM(D15:D17)","v":206.84000000000003},null,null,{"$f":"SUM(G15:G17)","v":206.84000000000003},0,0,{"$f":"G18/$G$44","v":0.68757863715273704},0.71301803226340366]
["Service Charge",1,{"$f":"VLOOKUP($B$3,'Data Current Rates'!$A:$AP,MATCH(BI_WHSI_AUGe_Typical!$A19,CurrentHeader,0),FALSE)","v":26.08},{"$f":"B19*C19","v":26.08},1,{"$f":"VLOOKUP($C$3,'Data Proposed Rates'!$A:$AZ,MATCH(BI_WHSI_AUGe_Typical!$A19,ProposedHeader,0),FALSE)","v":25.36},{"$f":"E19*F19","v":25.36},-0.71999999999999886,-2.7607361963190143E-2,8.4301847989718667E-2,8.7420891985108842E-2]
["Rate Rider for Recovery of Smart Meter Incremental Revenue Requirement",1,{"$f":"VLOOKUP($B$3,'Data Current Rates'!$A:$AP,MATCH(BI_WHSI_AUGe_Typical!$A20,CurrentHeader,0),FALSE)","v":4.24},{"$f":"B20*C20","v":4.24},null,null,null,{"$f":"G20-D20","v":-4.24},{"$f":"IF(ISERROR(H20/ABS(D20)),\"N/A\",(H20/ABS(D20)))","v":-1},0,0]
["Distribution Volumetric Charge",{"$f":"IF($B$9=\"kWh\",$B$4,$B$5)","v":2000},{"$f":"VLOOKUP($B$3,'Data Current Rates'!$A:$AP,MATCH(BI_WHSI_AUGe_Typical!$A21,CurrentHeader,0),FALSE)","v":1.5100000000000001E-2},{"$f":"B21*C21","v":30.200000000000003},{"$f":"IF($C$9=\"kWh\",$C$4,$C$5)","v":2000},{"$f":"VLOOKUP($C$3,'Data Proposed Rates'!$A:$AZ,MATCH(BI_WHSI_AUGe_Typical!$A21,ProposedHeader,0),FALSE)","v":1.47E-2},29.4,-0.80000000000000426,-2.6490066225165702E-2,9.7731637653695927E-2,0.10134756405213723]
["Rate Rider for Recovery of Incremental Capital",{"$f":"IF($B$9=\"kWh\",$B$4,$B$5)","v":2000},{"$f":"VLOOKUP($B$3,'Data Current Rates'!$A:$AP,MATCH(BI_WHSI_AUGe_Typical!$A22,CurrentHeader,0),FALSE)","v":6.9999999999999999E-4},1.4,null,null,null,-1.4,-1,0,0]
["Group 1 Volumetric DVA Rider (General)",null,null,null,{"$f":"IF($C$9=\"kWh\",$C$4,$C$5)","v":2000},{"$f":"VLOOKUP($C$3,'Data Proposed Rates'!$A:$AZ,MATCH(BI_WHSI_AUGe_Typical!$A23,ProposedHeader,0),FALSE)","v":-5.0000000000000001E-4},-1,-1,"N/A",-3.3242053623706099E-3,-3.4471960561951441E-3]
["Sub-Total:  Distribution (excluding pass through)",null,null,{"$f":"SUM(INDIRECT(\"D19:D\"&ROW()-1))","v":61.92},null,null,{"$f":"SUM(INDIRECT(\"g19:g\"&ROW()-1))","v":53.76},{"$f":"G24-D24","v":-8.1600000000000037},-0.13178294573643418,0.17870928028104399,0.18532125998105092]
["Smart Metering Entity Charge",{"$f":"B19","v":1},{"$f":"VLOOKUP($A25,'Data Pass Through'!$A:$D,2,FALSE)","v":0.56999999999999995},{"$f":"B25*C25","v":0.56999999999999995},{"$f":"E19","v":1},{"$f":"VLOOKUP($A25,'Data Pass Through'!$A:$D,3,FALSE)","v":0.56999999999999995},{"$f":"E25*F25","v":0.56999999999999995},0,0,1.8947970565512476E-3,1.9649017520312318E-3]
["Line Losses on Cost of Power (based on two-tier RPP prices)",{"$f":"B8-B4","v":86.199999999999818},{"$f":"IF(B4>B7,C13,C12)","v":0.115},{"$f":"B26*C26","v":9.9129999999999789},{"$f":"C8-C4","v":86},{"$f":"IF(C4>C7,F13,F12)","v":0.115},{"$f":"E26*F26","v":9.89},-2.2999999999978371E-2,-2.3201856148470112E-3,3.2876391033845334E-2,3.4092768995769976E-2]
["Line Losses on Cost of Power (based on TOU prices)",{"$f":"B8-B4","v":86.199999999999818},{"$f":"VLOOKUP($B$3,'Data Billing Quantities'!$A:$O,MATCH(BI_WHSI_AUGe_Typical!$A15,'Data Billing Quantities'!$4:$4,0),FALSE)*C15+VLOOKUP($B$3,'Data Billing Quantities'!$A:$O,MATCH(BI_WHSI_AUGe_Typical!$A16,'Data Billing Quantities'!$4:$4,0),FALSE)*C16+VLOOKUP($B$3,'Data Billing Quantities'!$A:$O,MATCH(BI_WHSI_AUGe_Typical!$A17,'Data Billing Quantities'!$4:$4,0),FALSE)*C17","v":0.10342000000000001},{"$f":"B27*C27","v":8.9148039999999824},{"$f":"C8-C4","v":86},{"$f":"VLOOKUP($C$3,'Data Billing Quantities'!$A:$O,MATCH(BI_WHSI_AUGe_Typical!$A15,'Data Billing Quantities'!$4:$4,0),FALSE)*F15+VLOOKUP($C$3,'Data Billing Quantities'!$A:$O,MATCH(BI_WHSI_AUGe_Typical!$A16,'Data Billing Quantities'!$4:$4,0),FALSE)*F16+VLOOKUP($C$3,'Data Billing Quantities'!$A:$O,MATCH(BI_WHSI_AUGe_Typical!$A17,'Data Billing Quantities'!$4:$4,0),FALSE)*F17","v":0.10342000000000001},{"$f":"E27*F27","v":8.8941200000000009},-2.0683999999981495E-2,-2.3201856148471166E-3,2.9565881397567693E-2,3.0659775387326355E-2]
["Sub-Total:  Distribution (based on two-tier RPP prices)",null,null,{"$f":"SUM(D24,D25:D26)","v":72.402999999999977},null,null,{"$f":"SUM(G24,G25:G26)","v":64.22},-8.1829999999999785,-0.11302017872187591,0.21348046837144055,0.22137893072885215]
["Sub-Total:  Distribution (based on TOU prices)",null,null,{"$f":"SUM(D24,D25,D27)","v":71.404803999999984},null,null,{"$f":"SUM(G24,G25,G27)","v":63.224119999999999},-8.1806839999999852,-0.11456769771400797,0.21016995873516292,0.21794593712040852]
["Retail Transmission Rate – Network Service Rate",{"$f":"IF($B$9=\"kWh\",$B$8,$B$5)","v":2086.1999999999998},{"$f":"VLOOKUP($B$3,'Data Current Rates'!$A:$AP,MATCH(BI_WHSI_AUGe_Typical!$A30,CurrentHeader,0),FALSE)","v":8.3000000000000001E-3},{"$f":"B30*C30","v":17.315459999999998},{"$f":"IF($C$9=\"kWh\",$C$8,$C$5)","v":2086},{"$f":"VLOOKUP($C$3,'Data Proposed Rates'!$A:$AZ,MATCH(BI_WHSI_AUGe_Typical!$A30,ProposedHeader,0),FALSE)","v":8.0999999999999996E-3},{"$f":"E30*F30","v":16.896599999999999},{"$f":"G30-D30","v":-0.41885999999999868},-2.418994355333319E-2,5.6167768325831244E-2,5.8245892883106866E-2]
["Retail Transmission Rate – Line and Transformation Connection Service Rate",{"$f":"IF($B$9=\"kWh\",$B$8,$B$5)","v":2086.1999999999998},{"$f":"VLOOKUP($B$3,'Data Current Rates'!$A:$AP,MATCH(BI_WHSI_AUGe_Typical!$A31,CurrentHeader,0),FALSE)","v":6.0000000000000001E-3},{"$f":"B31*C31","v":12.517199999999999},{"$f":"IF($C$9=\"kWh\",$C$8,$C$5)","v":2086},{"$f":"VLOOKUP($C$3,'Data Proposed Rates'!$A:$AZ,MATCH(BI_WHSI_AUGe_Typical!$A31,ProposedHeader,0),FALSE)","v":6.1999999999999998E-3},{"$f":"E31*F31","v":12.933199999999999},{"$f":"G31-D31","v":0.41600000000000037},3.3234269644968555E-2,4.2992612792611573E-2,4.458327603398303E-2]
["Sub-Total:  Retail Transmission ",null,null,{"$f":"SUM(D30:D31)","v":29.832659999999997},null,null,{"$f":"SUM(G30:G31)","v":29.829799999999999},{"$f":"G32-D32","v":-2.8599999999983083E-3},-9.586808551427559E-5,9.9160381118442817E-2,0.1028291689170899]
["Sub-Total:  Delivery (based on two-tier RPP prices)",null,null,{"$f":"D28+D32","v":102.23565999999997},null,null,{"$f":"G28+G32","v":94.049800000000005},{"$f":"G33-D33","v":-8.1858599999999626},-8.0068539685663159E-2,0.31264084948988341,0.32420809964594205]
["Sub-Total:  Delivery (based on TOU prices)",null,null,{"$f":"D29+D32","v":101.23746399999999},null,null,{"$f":"G29+G32","v":93.053920000000005},{"$f":"G34-D34","v":-8.1835439999999835},-8.0835134313518409E-2,0.30933033985360575,0.32077510603749843]
["Wholesale Market Service Rate (WMS) - not including CBR",{"$f":"B8","v":2086.1999999999998},{"$f":"VLOOKUP($A35,'Data Pass Through'!$A:$D,2,FALSE)","v":3.0000000000000001E-3},{"$f":"B35*C35","v":6.2585999999999995},{"$f":"$C$8","v":2086},{"$f":"VLOOKUP($A35,'Data Pass Through'!$A:$D,3,FALSE)","v":3.0000000000000001E-3},{"$f":"E35*F35","v":6.258},-5.9999999999948983E-4,-9.5868085514250775E-5,2.0802877157715276E-2,2.1572552919669211E-2]
["Capacity Based Recovery (CBR) - Applicable for Class B Customers",{"$f":"B8","v":2086.1999999999998},{"$f":"VLOOKUP($A36,'Data Pass Through'!$A:$D,2,FALSE)","v":4.0000000000000002E-4},{"$f":"B36*C36","v":0.83448},{"$f":"$C$8","v":2086},{"$f":"VLOOKUP($A36,'Data Pass Through'!$A:$D,3,FALSE)","v":4.0000000000000002E-4},{"$f":"E36*F36","v":0.83440000000000003},-7.9999999999968985E-5,-9.5868085514295106E-5,2.7737169543620372E-3,2.8763403892892283E-3]
["Rural Rate Protection Charge",{"$f":"B8","v":2086.1999999999998},{"$f":"VLOOKUP($A37,'Data Pass Through'!$A:$D,2,FALSE)","v":5.0000000000000001E-4},1.0430999999999999,2086,{"$f":"VLOOKUP($A37,'Data Pass Through'!$A:$D,3,FALSE)","v":5.0000000000000001E-4},1.0429999999999999,-9.9999999999988987E-5,-9.5868085514321723E-5,3.4671461929525458E-3,3.5954254866115347E-3]
["Standard Supply Service – Administration Charge (if applicable)",1,{"$f":"VLOOKUP($A38,'Data Pass Through'!$A:$D,2,FALSE)","v":0.25},{"$f":"B38*C38","v":0.25},1,{"$f":"VLOOKUP($A38,'Data Pass Through'!$A:$D,3,FALSE)","v":0.25},0.25,0,0,8.3105134059265247E-4,8.6179901404878601E-4]
["Sub-Total:  Regulatory",null,null,{"$f":"SUM(D35:D38)","v":8.3861799999999995},null,null,{"$f":"SUM(G35:G38)","v":8.3853999999999989},-7.8000000000066905E-4,-9.3010166726765835E-5,2.787479164562251E-2,2.8906117809618756E-2]
["Total  Electricty Charge on Two-Tier RPP ",null,null,{"$f":"SUM(D14,D24,D25,D26,D32,D39)","v":327.87183999999996},null,null,{"$f":"SUM(G14,G24,G25,G26,G32,G39)","v":319.68519999999995},-8.1866400000000112,-2.4969024482248955E-2,1.0626992561105209]
["     HST",null,0.13,{"$f":"D40*C41","v":42.623339199999997},null,{"$f":"C41","v":0.13},{"$f":"G40*F41","v":41.559075999999997},-1.0642631999999992,-2.49690244822489E-2,0.13815090329436772]
["Total Electricity Charge on Two-Tier RPP (including HST)",null,null,{"$f":"SUM(D40:D41)","v":370.49517919999994},null,null,{"$f":"SUM(G40:G41)","v":361.24427599999996},-9.250903199999982,-2.4969024482248872E-2,1.2008501594048884]
["Ontario Electricity Rebate (OER)",null,{"$f":"IF(($B$4*12)<250000,VLOOKUP(A43,'Data Pass Through'!$A$4:$C$20,2,0),0)","v":-0.189},{"$f":"D40*C43","v":-61.967777759999997},null,{"$f":"C43","v":-0.189},{"$f":"G40*F43","v":-60.420502799999994},1.5472749600000029,2.4969024482248966E-2,-0.20085015940488843]
["Total Amount on Two-Tier RPP",null,null,{"$f":"SUM(D42:D43)","v":308.52740143999995},null,null,{"$f":"SUM(G42:G43)","v":300.82377319999995},-7.7036282400000005,-2.4969024482248924E-2,1]
["Total Electricty Charge on TOU (before HST)",null,null,{"$f":"SUM(D18,D24,D25,D27,D32,D39)","v":316.46364400000004},null,null,{"$f":"SUM(G18,G24,G25,G27,G32,G39)","v":308.27931999999998},-8.1843240000000606,-2.586181431949908E-2,null,{"$f":"G45/$G$49","v":1.0626992561105206}]
["     HST",null,0.13,{"$f":"D45*C46","v":41.14027372000001},null,{"$f":"C46","v":0.13},{"$f":"G45*F46","v":40.076311599999997},-1.0639621200000136,-2.5861814319499216E-2,null,{"$f":"G46/$G$49","v":0.13815090329436769}]
["Total Electricity Charge on TOU (including HST)",null,null,{"$f":"SUM(D45:D46)","v":357.60391772000003},null,null,{"$f":"SUM(G45:G46)","v":348.35563159999998},-9.2482861200000457,-2.5861814319499018E-2,null,{"$f":"G47/$G$49","v":1.2008501594048884}]
["Ontario Electricity Rebate (OER)",null,{"$f":"IF(($B$4*12)<250000,VLOOKUP(A48,'Data Pass Through'!$A$4:$C$20,2,0),0)","v":-0.189},{"$f":"D45*C48","v":-59.811628716000008},null,{"$f":"C48","v":-0.189},{"$f":"G45*F48","v":-58.26479148},1.5468372360000089,2.5861814319499039E-2,null,{"$f":"G48/$G$49","v":-0.20085015940488843}]
["Total Amount on TOU",null,null,{"$f":"SUM(D47:D48)","v":297.792289004},null,null,{"$f":"SUM(G47:G48)","v":290.09084012},-7.7014488840000013,-2.5861814319498896E-2,null,{"$f":"G49/$G$49","v":1}]

{"sheet":"BI_WHSI_AUGe_Avg","index":78,"n_rows":49,"n_cols":11,"rows_kept":49,"cut":false,"hidden":false,"merged":[[0,0,0,10]]}
["2023 Bill Impacts (Average Consumption Level) - AUGe_WHSI"]
[]
["Rate Class",{"$f":"VLOOKUP(A1,'Data BI List Acq_Seas'!C:E,2,FALSE)","v":"WHSI_GS<50"},{"$f":"VLOOKUP(A1,'Data BI List Acq_Seas'!C:E,3,FALSE)","v":"AUGe-WHSI"}]
["Monthly Consumption (kWh)",{"$f":"IF(COUNTIF(A1,\"*Low*\")>0,VLOOKUP(B3,'Data Billing Quantities'!$A:$Z,MATCH(\"Low kWh\",'Data Billing Quantities'!4:4,0),FALSE),IF(COUNTIF(A1,\"*Typical*\")>0,VLOOKUP(B3,'Data Billing Quantities'!$A:$Z,MATCH(\"Typical kWh\",'Data Billing Quantities'!4:4,0),FALSE),IF(COUNTIF(A1,\"*Average*\")>0,VLOOKUP(B3,'Data Billing Quantities'!$A:$Z,MATCH(\"Average kWh\",'Data Billing Quantities'!4:4,0),FALSE),IF(COUNTIF(A1,\"*High*\")>0,VLOOKUP(B3,'Data Billing Quantities'!$A:$Z,MATCH(\"High kWh\",'Data Billing Quantities'!4:4,0),FALSE),\"error\"))))","v":2471},{"$f":"B4","v":2471}]
["Peak (kW)",{"$f":"IF(COUNTIF(A1,\"*Low*\")>0,VLOOKUP(B3,'Data Billing Quantities'!$A:$Z,MATCH(\"Low kW\",'Data Billing Quantities'!4:4,0),FALSE),IF(COUNTIF(A1,\"*Typical*\")>0,VLOOKUP(B3,'Data Billing Quantities'!$A:$Z,MATCH(\"Typical kW\",'Data Billing Quantities'!4:4,0),FALSE),IF(COUNTIF(A1,\"*Average*\")>0,VLOOKUP(B3,'Data Billing Quantities'!$A:$Z,MATCH(\"Average kW\",'Data Billing Quantities'!4:4,0),FALSE),IF(COUNTIF(A1,\"*High*\")>0,VLOOKUP(B3,'Data Billing Quantities'!$A:$Z,MATCH(\"High kW\",'Data Billing Quantities'!4:4,0),FALSE),\"error\"))))","v":0},{"$f":"B5","v":0}]
["Loss factor",{"$f":"VLOOKUP(B3,'Data Billing Quantities'!A:D,MATCH(A6,'Data Billing Quantities'!4:4,0),FALSE)","v":1.0430999999999999},{"$f":"VLOOKUP(C3,'Data Billing Quantities'!A:D,MATCH(A6,'Data Billing Quantities'!4:4,0),FALSE)","v":1.0429999999999999}]
["Commodity Threshold",{"$f":"VLOOKUP(B3,'Data Billing Quantities'!A:D,MATCH(A7,'Data Billing Quantities'!4:4,0),FALSE)","v":750},{"$f":"B7","v":750}]
["Monthly Consumption (kWh) - Uplifted",{"$f":"B4*B6","v":2577.5000999999997},{"$f":"C4*C6","v":2577.2529999999997}]
["Charge determinant",{"$f":"VLOOKUP(B3,'Data Billing Quantities'!A:D,MATCH(A9,'Data Billing Quantities'!4:4,0),FALSE)","v":"kWh"},{"$f":"VLOOKUP(C3,'Data Billing Quantities'!A:D,MATCH(A9,'Data Billing Quantities'!4:4,0),FALSE)","v":"kWh"}]
[]
[null,"Volume","Current Rate ($)","Current Charge ($)","Volume","Proposed Rate ($)","Proposed Charge ($)","Change ($)","Change (%)","% of Total Bill on RPP","% of Total Bill"]
["Energy First Tier",{"$f":"IF(B4>B7,B7,B4)","v":750},{"$f":"VLOOKUP($A12,'Data Pass Through'!$A:$D,2,FALSE)","v":9.8000000000000004E-2},{"$f":"B12*C12","v":73.5},{"$f":"B12","v":750},{"$f":"VLOOKUP($A12,'Data Pass Through'!$A:$D,3,FALSE)","v":9.8000000000000004E-2},{"$f":"E12*F12","v":73.5},{"$f":"G12-D12","v":0},{"$f":"IF(ISERROR(H12/ABS(D12)),\"N/A\",(H12/ABS(D12)))","v":0},{"$f":"G12/$G$44","v":0.19935360073756661}]
["Energy Second Tier",{"$f":"IF(B4>B7,(B4)-B7,0)","v":1721},{"$f":"VLOOKUP($A13,'Data Pass Through'!$A:$D,2,FALSE)","v":0.115},{"$f":"B13*C13","v":197.91500000000002},{"$f":"B13","v":1721},{"$f":"VLOOKUP($A13,'Data Pass Through'!$A:$D,3,FALSE)","v":0.115},{"$f":"E13*F13","v":197.91500000000002},0,0,{"$f":"G13/$G$44","v":0.53680364476157139}]
["Sub-Total:  Energy (RPP Tiered)",null,null,{"$f":"SUM(D12:D13)","v":271.41500000000002},null,null,{"$f":"SUM(G12:G13)","v":271.41500000000002},0,0,{"$f":"G14/$G$44","v":0.73615724549913808}]
["TOU-Off Peak",{"$f":"B$4*VLOOKUP($B$3,'Data Billing Quantities'!$A:$O,MATCH(BI_WHSI_AUGe_Avg!$A15,'Data Billing Quantities'!$4:$4,0),FALSE)","v":1581.44},{"$f":"VLOOKUP($A15,'Data Pass Through'!$A:$D,2,FALSE)","v":8.2000000000000003E-2},{"$f":"B15*C15","v":129.67808000000002},1581.44,{"$f":"VLOOKUP($A15,'Data Pass Through'!$A:$D,3,FALSE)","v":8.2000000000000003E-2},{"$f":"E15*F15","v":129.67808000000002},0,0,null,{"$f":"G15/$G$49","v":0.36777090222113451}]
["TOU-Mid Peak",{"$f":"B$4*VLOOKUP($B$3,'Data Billing Quantities'!$A:$O,MATCH(BI_WHSI_AUGe_Avg!$A16,'Data Billing Quantities'!$4:$4,0),FALSE)","v":444.78},{"$f":"VLOOKUP($A16,'Data Pass Through'!$A:$D,2,FALSE)","v":0.113},{"$f":"B16*C16","v":50.26014},444.78,{"$f":"VLOOKUP($A16,'Data Pass Through'!$A:$D,3,FALSE)","v":0.113},{"$f":"E16*F16","v":50.26014},0,0,null,0.14253925592945646]
["TOU-On Peak",{"$f":"B$4*VLOOKUP($B$3,'Data Billing Quantities'!$A:$O,MATCH(BI_WHSI_AUGe_Avg!$A17,'Data Billing Quantities'!$4:$4,0),FALSE)","v":444.78},{"$f":"VLOOKUP($A17,'Data Pass Through'!$A:$D,2,FALSE)","v":0.17},{"$f":"B17*C17","v":75.6126},444.78,{"$f":"VLOOKUP($A17,'Data Pass Through'!$A:$D,3,FALSE)","v":0.17},{"$f":"E17*F17","v":75.6126},0,0,null,0.21443958856643891]
["Sub-Total:  Energy (RPP TOU)",null,null,{"$f":"SUM(D15:D17)","v":255.55082000000004},null,null,{"$f":"SUM(G15:G17)","v":255.55082000000004},0,0,{"$f":"G18/$G$44","v":0.69312892705357498},0.72474974671702996]
["Service Charge",1,{"$f":"VLOOKUP($B$3,'Data Current Rates'!$A:$AP,MATCH(BI_WHSI_AUGe_Avg!$A19,CurrentHeader,0),FALSE)","v":26.08},{"$f":"B19*C19","v":26.08},1,{"$f":"VLOOKUP($C$3,'Data Proposed Rates'!$A:$AZ,MATCH(BI_WHSI_AUGe_Avg!$A19,ProposedHeader,0),FALSE)","v":25.36},{"$f":"E19*F19","v":25.36},-0.71999999999999886,-2.7607361963190143E-2,6.878377298917944E-2,7.1921716301845073E-2]
["Rate Rider for Recovery of Smart Meter Incremental Revenue Requirement",1,{"$f":"VLOOKUP($B$3,'Data Current Rates'!$A:$AP,MATCH(BI_WHSI_AUGe_Avg!$A20,CurrentHeader,0),FALSE)","v":4.24},{"$f":"B20*C20","v":4.24},null,null,null,{"$f":"G20-D20","v":-4.24},{"$f":"IF(ISERROR(H20/ABS(D20)),\"N/A\",(H20/ABS(D20)))","v":-1},0,0]
["Distribution Volumetric Charge",{"$f":"IF($B$9=\"kWh\",$B$4,$B$5)","v":2471},{"$f":"VLOOKUP($B$3,'Data Current Rates'!$A:$AP,MATCH(BI_WHSI_AUGe_Avg!$A21,CurrentHeader,0),FALSE)","v":1.5100000000000001E-2},{"$f":"B21*C21","v":37.312100000000001},{"$f":"IF($C$9=\"kWh\",$C$4,$C$5)","v":2471},{"$f":"VLOOKUP($C$3,'Data Proposed Rates'!$A:$AZ,MATCH(BI_WHSI_AUGe_Avg!$A21,ProposedHeader,0),FALSE)","v":1.47E-2},36.323700000000002,-0.98839999999999861,-2.6490066225165525E-2,9.8520549484505421E-2,0.10301509646819125]
["Rate Rider for Recovery of Incremental Capital",{"$f":"IF($B$9=\"kWh\",$B$4,$B$5)","v":2471},{"$f":"VLOOKUP($B$3,'Data Current Rates'!$A:$AP,MATCH(BI_WHSI_AUGe_Avg!$A22,CurrentHeader,0),FALSE)","v":6.9999999999999999E-4},1.7297,null,null,null,-1.7297,-1,0,0]
["Group 1 Volumetric DVA Rider (General)",null,null,null,{"$f":"IF($C$9=\"kWh\",$C$4,$C$5)","v":2471},{"$f":"VLOOKUP($C$3,'Data Proposed Rates'!$A:$AZ,MATCH(BI_WHSI_AUGe_Avg!$A23,ProposedHeader,0),FALSE)","v":-5.0000000000000001E-4},-1.2355,-1.2355,"N/A",-3.3510390981124293E-3,-3.503914845856845E-3]
["Sub-Total:  Distribution (excluding pass through)",null,null,{"$f":"SUM(INDIRECT(\"D19:D\"&ROW()-1))","v":69.361800000000002},null,null,{"$f":"SUM(INDIRECT(\"g19:g\"&ROW()-1))","v":60.4482},{"$f":"G24-D24","v":-8.9136000000000024},-0.12850877572381342,0.16395328337557244,0.17143289792417946]
["Smart Metering Entity Charge",{"$f":"B19","v":1},{"$f":"VLOOKUP($A25,'Data Pass Through'!$A:$D,2,FALSE)","v":0.56999999999999995},{"$f":"B25*C25","v":0.56999999999999995},{"$f":"E19","v":1},{"$f":"VLOOKUP($A25,'Data Pass Through'!$A:$D,3,FALSE)","v":0.56999999999999995},{"$f":"E25*F25","v":0.56999999999999995},0,0,1.5460075159239859E-3,1.6165369988979373E-3]
["Line Losses on Cost of Power (based on two-tier RPP prices)",{"$f":"B8-B4","v":106.50009999999975},{"$f":"IF(B4>B7,C13,C12)","v":0.115},{"$f":"B26*C26","v":12.247511499999971},{"$f":"C8-C4","v":106.2529999999997},{"$f":"IF(C4>C7,F13,F12)","v":0.115},{"$f":"E26*F26","v":12.219094999999966},-2.841650000000584E-2,-2.3201856148496701E-3,3.314177668033183E-2,3.4653717825524101E-2]
["Line Losses on Cost of Power (based on TOU prices)",{"$f":"B8-B4","v":106.50009999999975},{"$f":"VLOOKUP($B$3,'Data Billing Quantities'!$A:$O,MATCH(BI_WHSI_AUGe_Avg!$A15,'Data Billing Quantities'!$4:$4,0),FALSE)*C15+VLOOKUP($B$3,'Data Billing Quantities'!$A:$O,MATCH(BI_WHSI_AUGe_Avg!$A16,'Data Billing Quantities'!$4:$4,0),FALSE)*C16+VLOOKUP($B$3,'Data Billing Quantities'!$A:$O,MATCH(BI_WHSI_AUGe_Avg!$A17,'Data Billing Quantities'!$4:$4,0),FALSE)*C17","v":0.10342000000000001},{"$f":"B27*C27","v":11.014240341999976},{"$f":"C8-C4","v":106.2529999999997},{"$f":"VLOOKUP($C$3,'Data Billing Quantities'!$A:$O,MATCH(BI_WHSI_AUGe_Avg!$A15,'Data Billing Quantities'!$4:$4,0),FALSE)*F15+VLOOKUP($C$3,'Data Billing Quantities'!$A:$O,MATCH(BI_WHSI_AUGe_Avg!$A16,'Data Billing Quantities'!$4:$4,0),FALSE)*F16+VLOOKUP($C$3,'Data Billing Quantities'!$A:$O,MATCH(BI_WHSI_AUGe_Avg!$A17,'Data Billing Quantities'!$4:$4,0),FALSE)*F17","v":0.10342000000000001},{"$f":"E27*F27","v":10.98868525999997},-2.5555082000005669E-2,-2.3201856148497078E-3,2.980454386330364E-2,3.1164239108832197E-2]
["Sub-Total:  Distribution (based on two-tier RPP prices)",null,null,{"$f":"SUM(D24,D25:D26)","v":82.179311499999969},null,null,{"$f":"SUM(G24,G25:G26)","v":73.237294999999961},-8.9420165000000083,-0.1088110418155549,0.19864106757182823,0.20770315274860149]
["Sub-Total:  Distribution (based on TOU prices)",null,null,{"$f":"SUM(D24,D25,D27)","v":80.946040341999975},null,null,{"$f":"SUM(G24,G25,G27)","v":72.006885259999976},-8.9391550819999992,-0.11043350662035774,0.19530383475480007,0.20421367403190963]
["Retail Transmission Rate – Network Service Rate",{"$f":"IF($B$9=\"kWh\",$B$8,$B$5)","v":2577.5000999999997},{"$f":"VLOOKUP($B$3,'Data Current Rates'!$A:$AP,MATCH(BI_WHSI_AUGe_Avg!$A30,CurrentHeader,0),FALSE)","v":8.3000000000000001E-3},{"$f":"B30*C30","v":21.393250829999999},{"$f":"IF($C$9=\"kWh\",$C$8,$C$5)","v":2577.2529999999997},{"$f":"VLOOKUP($C$3,'Data Proposed Rates'!$A:$AZ,MATCH(BI_WHSI_AUGe_Avg!$A30,ProposedHeader,0),FALSE)","v":8.0999999999999996E-3},{"$f":"E30*F30","v":20.875749299999995},{"$f":"G30-D30","v":-0.5175015300000041},-2.4189943553333457E-2,5.6621167225166462E-2,5.9204247584504752E-2]
["Retail Transmission Rate – Line and Transformation Connection Service Rate",{"$f":"IF($B$9=\"kWh\",$B$8,$B$5)","v":2577.5000999999997},{"$f":"VLOOKUP($B$3,'Data Current Rates'!$A:$AP,MATCH(BI_WHSI_AUGe_Avg!$A31,CurrentHeader,0),FALSE)","v":6.0000000000000001E-3},{"$f":"B31*C31","v":15.465000599999998},{"$f":"IF($C$9=\"kWh\",$C$8,$C$5)","v":2577.2529999999997},{"$f":"VLOOKUP($C$3,'Data Proposed Rates'!$A:$AZ,MATCH(BI_WHSI_AUGe_Avg!$A31,ProposedHeader,0),FALSE)","v":6.1999999999999998E-3},{"$f":"E31*F31","v":15.978968599999998},{"$f":"G31-D31","v":0.5139680000000002},3.3234269644968541E-2,4.3339658863707664E-2,4.5316831484435743E-2]
["Sub-Total:  Retail Transmission ",null,null,{"$f":"SUM(D30:D31)","v":36.858251429999996},null,null,{"$f":"SUM(G30:G31)","v":36.854717899999997},{"$f":"G32-D32","v":-3.5335299999985637E-3},-9.5868085514293317E-5,9.9960826088874133E-2,0.10452107906894051]
["Sub-Total:  Delivery (based on two-tier RPP prices)",null,null,{"$f":"D28+D32","v":119.03756292999996},null,null,{"$f":"G28+G32","v":110.09201289999996},{"$f":"G33-D33","v":-8.9455500300000068},-7.5148968189649834E-2,0.29860189366070239,0.312224231817542]
["Sub-Total:  Delivery (based on TOU prices)",null,null,{"$f":"D29+D32","v":117.80429177199997},null,null,{"$f":"G29+G32","v":108.86160315999997},{"$f":"G34-D34","v":-8.9426886119999978},-7.5911399130583451E-2,0.2952646608436742,0.30873475310085013]
["Wholesale Market Service Rate (WMS) - not including CBR",{"$f":"B8","v":2577.5000999999997},{"$f":"VLOOKUP($A35,'Data Pass Through'!$A:$D,2,FALSE)","v":3.0000000000000001E-3},{"$f":"B35*C35","v":7.732500299999999},{"$f":"$C$8","v":2577.2529999999997},{"$f":"VLOOKUP($A35,'Data Pass Through'!$A:$D,3,FALSE)","v":3.0000000000000001E-3},{"$f":"E35*F35","v":7.7317589999999994},-7.4129999999961171E-4,-9.5868085514282082E-5,2.0970802675987582E-2,2.1927499105372134E-2]
["Capacity Based Recovery (CBR) - Applicable for Class B Customers",{"$f":"B8","v":2577.5000999999997},{"$f":"VLOOKUP($A36,'Data Pass Through'!$A:$D,2,FALSE)","v":4.0000000000000002E-4},{"$f":"B36*C36","v":1.0310000399999999},{"$f":"$C$8","v":2577.2529999999997},{"$f":"VLOOKUP($A36,'Data Pass Through'!$A:$D,3,FALSE)","v":4.0000000000000002E-4},{"$f":"E36*F36","v":1.0309012},-9.8839999999933426E-5,-9.5868085514267716E-5,2.7961070234650107E-3,2.9236665473829511E-3]
["Rural Rate Protection Charge",{"$f":"B8","v":2577.5000999999997},{"$f":"VLOOKUP($A37,'Data Pass Through'!$A:$D,2,FALSE)","v":5.0000000000000001E-4},1.28875005,2577.2529999999997,{"$f":"VLOOKUP($A37,'Data Pass Through'!$A:$D,3,FALSE)","v":5.0000000000000001E-4},1.2886264999999999,-1.2355000000008332E-4,-9.5868085514396926E-5,3.4951337793312632E-3,3.654583184228689E-3]
["Standard Supply Service – Administration Charge (if applicable)",1,{"$f":"VLOOKUP($A38,'Data Pass Through'!$A:$D,2,FALSE)","v":0.25},{"$f":"B38*C38","v":0.25},1,{"$f":"VLOOKUP($A38,'Data Pass Through'!$A:$D,3,FALSE)","v":0.25},0.25,0,0,6.7807347189648506E-4,7.0900745565699011E-4]
["Sub-Total:  Regulatory",null,null,{"$f":"SUM(D35:D38)","v":10.302250389999998},null,null,{"$f":"SUM(G35:G38)","v":10.301286699999999},-9.6368999999896232E-4,-9.3541698514178957E-5,2.7940116950680337E-2,2.9214756292640764E-2]
["Total  Electricty Charge on Two-Tier RPP ",null,null,{"$f":"SUM(D14,D24,D25,D26,D32,D39)","v":400.75481331999998},null,null,{"$f":"SUM(G14,G24,G25,G26,G32,G39)","v":391.80829959999994},-8.9465137200000413,-2.2324157870703628E-2,1.0626992561105206]
["     HST",null,0.13,{"$f":"D40*C41","v":52.0981257316},null,{"$f":"C41","v":0.13},{"$f":"G40*F41","v":50.935078947999997},-1.1630467836000022,-2.2324157870703569E-2,0.13815090329436769]
["Total Electricity Charge on Two-Tier RPP (including HST)",null,null,{"$f":"SUM(D40:D41)","v":452.8529390516},null,null,{"$f":"SUM(G40:G41)","v":442.74337854799995},-10.109560503600051,-2.2324157870703638E-2,1.2008501594048884]
["Ontario Electricity Rebate (OER)",null,{"$f":"IF(($B$4*12)<250000,VLOOKUP(A43,'Data Pass Through'!$A$4:$C$20,2,0),0)","v":-0.189},{"$f":"D40*C43","v":-75.742659717479995},null,{"$f":"C43","v":-0.189},{"$f":"G40*F43","v":-74.051768624399983},1.6908910930800118,2.2324157870703683E-2,-0.2008501594048884]
["Total Amount on Two-Tier RPP",null,null,{"$f":"SUM(D42:D43)","v":377.11027933412004},null,null,{"$f":"SUM(G42:G43)","v":368.69160992359997},-8.4186694105200672,-2.2324157870703701E-2,1]
["Total Electricty Charge on TOU (before HST)",null,null,{"$f":"SUM(D18,D24,D25,D27,D32,D39)","v":383.65736216200003},null,null,{"$f":"SUM(G18,G24,G25,G27,G32,G39)","v":374.71370985999999},-8.9436523020000323,-2.3311561784193153E-2,null,{"$f":"G45/$G$49","v":1.0626992561105209}]
["     HST",null,0.13,{"$f":"D45*C46","v":49.875457081060006},null,{"$f":"C46","v":0.13},{"$f":"G45*F46","v":48.712782281800003},-1.1626747992600031,-2.3311561784193129E-2,null,{"$f":"G46/$G$49","v":0.13815090329436772}]
["Total Electricity Charge on TOU (including HST)",null,null,{"$f":"SUM(D45:D46)","v":433.53281924306003},null,null,{"$f":"SUM(G45:G46)","v":423.4264921418},-10.106327101260035,-2.3311561784193149E-2,null,{"$f":"G47/$G$49","v":1.2008501594048884}]
["Ontario Electricity Rebate (OER)",null,{"$f":"IF(($B$4*12)<250000,VLOOKUP(A48,'Data Pass Through'!$A$4:$C$20,2,0),0)","v":-0.189},{"$f":"D45*C48","v":-72.511241448618009},null,{"$f":"C48","v":-0.189},{"$f":"G45*F48","v":-70.820891163539997},1.6903502850780114,2.3311561784193226E-2,null,{"$f":"G48/$G$49","v":-0.20085015940488843}]
["Total Amount on TOU",null,null,{"$f":"SUM(D47:D48)","v":361.02157779444201},null,null,{"$f":"SUM(G47:G48)","v":352.60560097825999},-8.4159768161820239,-2.3311561784193136E-2,null,{"$f":"G49/$G$49","v":1}]

{"sheet":"BI_WHSI_AUGe_High","index":79,"n_rows":49,"n_cols":11,"rows_kept":49,"cut":false,"hidden":false,"merged":[[0,0,0,10]]}
["2023 Bill Impacts (High Consumption Level) - AUGe_WHSI"]
[]
["Rate Class",{"$f":"VLOOKUP(A1,'Data BI List Acq_Seas'!C:E,2,FALSE)","v":"WHSI_GS<50"},{"$f":"VLOOKUP(A1,'Data BI List Acq_Seas'!C:E,3,FALSE)","v":"AUGe-WHSI"}]
["Monthly Consumption (kWh)",{"$f":"IF(COUNTIF(A1,\"*Low*\")>0,VLOOKUP(B3,'Data Billing Quantities'!$A:$Z,MATCH(\"Low kWh\",'Data Billing Quantities'!4:4,0),FALSE),IF(COUNTIF(A1,\"*Typical*\")>0,VLOOKUP(B3,'Data Billing Quantities'!$A:$Z,MATCH(\"Typical kWh\",'Data Billing Quantities'!4:4,0),FALSE),IF(COUNTIF(A1,\"*Average*\")>0,VLOOKUP(B3,'Data Billing Quantities'!$A:$Z,MATCH(\"Average kWh\",'Data Billing Quantities'!4:4,0),FALSE),IF(COUNTIF(A1,\"*High*\")>0,VLOOKUP(B3,'Data Billing Quantities'!$A:$Z,MATCH(\"High kWh\",'Data Billing Quantities'!4:4,0),FALSE),\"error\"))))","v":7240},{"$f":"B4","v":7240}]
["Peak (kW)",{"$f":"IF(COUNTIF(A1,\"*Low*\")>0,VLOOKUP(B3,'Data Billing Quantities'!$A:$Z,MATCH(\"Low kW\",'Data Billing Quantities'!4:4,0),FALSE),IF(COUNTIF(A1,\"*Typical*\")>0,VLOOKUP(B3,'Data Billing Quantities'!$A:$Z,MATCH(\"Typical kW\",'Data Billing Quantities'!4:4,0),FALSE),IF(COUNTIF(A1,\"*Average*\")>0,VLOOKUP(B3,'Data Billing Quantities'!$A:$Z,MATCH(\"Average kW\",'Data Billing Quantities'!4:4,0),FALSE),IF(COUNTIF(A1,\"*High*\")>0,VLOOKUP(B3,'Data Billing Quantities'!$A:$Z,MATCH(\"High kW\",'Data Billing Quantities'!4:4,0),FALSE),\"error\"))))","v":0},{"$f":"B5","v":0}]
["Loss factor",{"$f":"VLOOKUP(B3,'Data Billing Quantities'!A:D,MATCH(A6,'Data Billing Quantities'!4:4,0),FALSE)","v":1.0430999999999999},{"$f":"VLOOKUP(C3,'Data Billing Quantities'!A:D,MATCH(A6,'Data Billing Quantities'!4:4,0),FALSE)","v":1.0429999999999999}]
["Commodity Threshold",{"$f":"VLOOKUP(B3,'Data Billing Quantities'!A:D,MATCH(A7,'Data Billing Quantities'!4:4,0),FALSE)","v":750},{"$f":"B7","v":750}]
["Monthly Consumption (kWh) - Uplifted",{"$f":"B4*B6","v":7552.043999999999},{"$f":"C4*C6","v":7551.32}]
["Charge determinant",{"$f":"VLOOKUP(B3,'Data Billing Quantities'!A:D,MATCH(A9,'Data Billing Quantities'!4:4,0),FALSE)","v":"kWh"},{"$f":"VLOOKUP(C3,'Data Billing Quantities'!A:D,MATCH(A9,'Data Billing Quantities'!4:4,0),FALSE)","v":"kWh"}]
[]
[null,"Volume","Current Rate ($)","Current Charge ($)","Volume","Proposed Rate ($)","Proposed Charge ($)","Change ($)","Change (%)","% of Total Bill on RPP","% of Total Bill"]
["Energy First Tier",{"$f":"IF(B4>B7,B7,B4)","v":750},{"$f":"VLOOKUP($A12,'Data Pass Through'!$A:$D,2,FALSE)","v":9.8000000000000004E-2},{"$f":"B12*C12","v":73.5},{"$f":"B12","v":750},{"$f":"VLOOKUP($A12,'Data Pass Through'!$A:$D,3,FALSE)","v":9.8000000000000004E-2},{"$f":"E12*F12","v":73.5},{"$f":"G12-D12","v":0},{"$f":"IF(ISERROR(H12/ABS(D12)),\"N/A\",(H12/ABS(D12)))","v":0},{"$f":"G12/$G$44","v":6.9610745437123117E-2}]
["Energy Second Tier",{"$f":"IF(B4>B7,(B4)-B7,0)","v":6490},{"$f":"VLOOKUP($A13,'Data Pass Through'!$A:$D,2,FALSE)","v":0.115},{"$f":"B13*C13","v":746.35},{"$f":"B13","v":6490},{"$f":"VLOOKUP($A13,'Data Pass Through'!$A:$D,3,FALSE)","v":0.115},{"$f":"E13*F13","v":746.35},0,0,{"$f":"G13/$G$44","v":0.70685686880267806}]
["Sub-Total:  Energy (RPP Tiered)",null,null,{"$f":"SUM(D12:D13)","v":819.85},null,null,{"$f":"SUM(G12:G13)","v":819.85},0,0,{"$f":"G14/$G$44","v":0.77646761423980115}]
["TOU-Off Peak",{"$f":"B$4*VLOOKUP($B$3,'Data Billing Quantities'!$A:$O,MATCH(BI_WHSI_AUGe_High!$A15,'Data Billing Quantities'!$4:$4,0),FALSE)","v":4633.6000000000004},{"$f":"VLOOKUP($A15,'Data Pass Through'!$A:$D,2,FALSE)","v":8.2000000000000003E-2},{"$f":"B15*C15","v":379.95520000000005},4633.6000000000004,{"$f":"VLOOKUP($A15,'Data Pass Through'!$A:$D,3,FALSE)","v":8.2000000000000003E-2},{"$f":"E15*F15","v":379.95520000000005},0,0,null,{"$f":"G15/$G$49","v":0.38551269486526774}]
["TOU-Mid Peak",{"$f":"B$4*VLOOKUP($B$3,'Data Billing Quantities'!$A:$O,MATCH(BI_WHSI_AUGe_High!$A16,'Data Billing Quantities'!$4:$4,0),FALSE)","v":1303.2},{"$f":"VLOOKUP($A16,'Data Pass Through'!$A:$D,2,FALSE)","v":0.113},{"$f":"B16*C16","v":147.26160000000002},1303.2,{"$f":"VLOOKUP($A16,'Data Pass Through'!$A:$D,3,FALSE)","v":0.113},{"$f":"E16*F16","v":147.26160000000002},0,0,null,0.1494155528498389]
["TOU-On Peak",{"$f":"B$4*VLOOKUP($B$3,'Data Billing Quantities'!$A:$O,MATCH(BI_WHSI_AUGe_High!$A17,'Data Billing Quantities'!$4:$4,0),FALSE)","v":1303.2},{"$f":"VLOOKUP($A17,'Data Pass Through'!$A:$D,2,FALSE)","v":0.17},{"$f":"B17*C17","v":221.54400000000001},1303.2,{"$f":"VLOOKUP($A17,'Data Pass Through'!$A:$D,3,FALSE)","v":0.17},{"$f":"E17*F17","v":221.54400000000001},0,0,null,0.22478446003958064]
["Sub-Total:  Energy (RPP TOU)",null,null,{"$f":"SUM(D15:D17)","v":748.76080000000002},null,null,{"$f":"SUM(G15:G17)","v":748.76080000000002},0,0,{"$f":"G18/$G$44","v":0.70914010125301574},0.75971270775468724]
["Service Charge",1,{"$f":"VLOOKUP($B$3,'Data Current Rates'!$A:$AP,MATCH(BI_WHSI_AUGe_High!$A19,CurrentHeader,0),FALSE)","v":26.08},{"$f":"B19*C19","v":26.08},1,{"$f":"VLOOKUP($C$3,'Data Proposed Rates'!$A:$AZ,MATCH(BI_WHSI_AUGe_High!$A19,ProposedHeader,0),FALSE)","v":25.36},{"$f":"E19*F19","v":25.36},-0.71999999999999886,-2.7607361963190143E-2,2.4018074888237307E-2,2.5730933388418392E-2]
["Rate Rider for Recovery of Smart Meter Incremental Revenue Requirement",1,{"$f":"VLOOKUP($B$3,'Data Current Rates'!$A:$AP,MATCH(BI_WHSI_AUGe_High!$A20,CurrentHeader,0),FALSE)","v":4.24},{"$f":"B20*C20","v":4.24},null,null,null,{"$f":"G20-D20","v":-4.24},{"$f":"IF(ISERROR(H20/ABS(D20)),\"N/A\",(H20/ABS(D20)))","v":-1},0,0]
["Distribution Volumetric Charge",{"$f":"IF($B$9=\"kWh\",$B$4,$B$5)","v":7240},{"$f":"VLOOKUP($B$3,'Data Current Rates'!$A:$AP,MATCH(BI_WHSI_AUGe_High!$A21,CurrentHeader,0),FALSE)","v":1.5100000000000001E-2},{"$f":"B21*C21","v":109.324},{"$f":"IF($C$9=\"kWh\",$C$4,$C$5)","v":7240},{"$f":"VLOOKUP($C$3,'Data Proposed Rates'!$A:$AZ,MATCH(BI_WHSI_AUGe_High!$A21,ProposedHeader,0),FALSE)","v":1.47E-2},106.428,-2.8960000000000008,-2.649006622516557E-2,0.10079635939295427,0.10798469158764168]
["Rate Rider for Recovery of Incremental Capital",{"$f":"IF($B$9=\"kWh\",$B$4,$B$5)","v":7240},{"$f":"VLOOKUP($B$3,'Data Current Rates'!$A:$AP,MATCH(BI_WHSI_AUGe_High!$A22,CurrentHeader,0),FALSE)","v":6.9999999999999999E-4},5.0679999999999996,null,null,null,-5.0679999999999996,-1,0,0]
["Group 1 Volumetric DVA Rider (General)",null,null,null,{"$f":"IF($C$9=\"kWh\",$C$4,$C$5)","v":7240},{"$f":"VLOOKUP($C$3,'Data Proposed Rates'!$A:$AZ,MATCH(BI_WHSI_AUGe_High!$A23,ProposedHeader,0),FALSE)","v":-5.0000000000000001E-4},-3.62,-3.62,"N/A",-3.4284475983998052E-3,-3.6729486934571997E-3]
["Sub-Total:  Distribution (excluding pass through)",null,null,{"$f":"SUM(INDIRECT(\"D19:D\"&ROW()-1))","v":144.71200000000002},null,null,{"$f":"SUM(INDIRECT(\"g19:g\"&ROW()-1))","v":128.16800000000001},{"$f":"G24-D24","v":-16.544000000000011},-0.11432362209077346,0.12138598668279178,0.13004267628260288]
["Smart Metering Entity Charge",{"$f":"B19","v":1},{"$f":"VLOOKUP($A25,'Data Pass Through'!$A:$D,2,FALSE)","v":0.56999999999999995},{"$f":"B25*C25","v":0.56999999999999995},{"$f":"E19","v":1},{"$f":"VLOOKUP($A25,'Data Pass Through'!$A:$D,3,FALSE)","v":0.56999999999999995},{"$f":"E25*F25","v":0.56999999999999995},0,0,5.398384340021792E-4,5.7833722521287391E-4]
["Line Losses on Cost of Power (based on two-tier RPP prices)",{"$f":"B8-B4","v":312.04399999999896},{"$f":"IF(B4>B7,C13,C12)","v":0.115},{"$f":"B26*C26","v":35.885059999999882},{"$f":"C8-C4","v":311.31999999999971},{"$f":"IF(C4>C7,F13,F12)","v":0.115},{"$f":"E26*F26","v":35.801799999999965},-8.3259999999917511E-2,-2.3201856148468967E-3,3.3907346748174041E-2,3.6325462578291667E-2]
["Line Losses on Cost of Power (based on TOU prices)",{"$f":"B8-B4","v":312.04399999999896},{"$f":"VLOOKUP($B$3,'Data Billing Quantities'!$A:$O,MATCH(BI_WHSI_AUGe_High!$A15,'Data Billing Quantities'!$4:$4,0),FALSE)*C15+VLOOKUP($B$3,'Data Billing Quantities'!$A:$O,MATCH(BI_WHSI_AUGe_High!$A16,'Data Billing Quantities'!$4:$4,0),FALSE)*C16+VLOOKUP($B$3,'Data Billing Quantities'!$A:$O,MATCH(BI_WHSI_AUGe_High!$A17,'Data Billing Quantities'!$4:$4,0),FALSE)*C17","v":0.10342000000000001},{"$f":"B27*C27","v":32.271590479999894},{"$f":"C8-C4","v":311.31999999999971},{"$f":"VLOOKUP($C$3,'Data Billing Quantities'!$A:$O,MATCH(BI_WHSI_AUGe_High!$A15,'Data Billing Quantities'!$4:$4,0),FALSE)*F15+VLOOKUP($C$3,'Data Billing Quantities'!$A:$O,MATCH(BI_WHSI_AUGe_High!$A16,'Data Billing Quantities'!$4:$4,0),FALSE)*F16+VLOOKUP($C$3,'Data Billing Quantities'!$A:$O,MATCH(BI_WHSI_AUGe_High!$A17,'Data Billing Quantities'!$4:$4,0),FALSE)*F17","v":0.10342000000000001},{"$f":"E27*F27","v":32.196714399999976},-7.4876079999917522E-2,-2.32018561484664E-3,3.0493024353879652E-2,3.2667646433451526E-2]
["Sub-Total:  Distribution (based on two-tier RPP prices)",null,null,{"$f":"SUM(D24,D25:D26)","v":181.16705999999988},null,null,{"$f":"SUM(G24,G25:G26)","v":164.53979999999996},-16.627259999999922,-9.1778604786101475E-2,0.15583317186496798,0.16694647608610741]
["Sub-Total:  Distribution (based on TOU prices)",null,null,{"$f":"SUM(D24,D25,D27)","v":177.55359047999991},null,null,{"$f":"SUM(G24,G25,G27)","v":160.93471439999996},-16.61887607999995,-9.3599211568024823E-2,0.15241884947067358,0.16328865994126726]
["Retail Transmission Rate – Network Service Rate",{"$f":"IF($B$9=\"kWh\",$B$8,$B$5)","v":7552.043999999999},{"$f":"VLOOKUP($B$3,'Data Current Rates'!$A:$AP,MATCH(BI_WHSI_AUGe_High!$A30,CurrentHeader,0),FALSE)","v":8.3000000000000001E-3},{"$f":"B30*C30","v":62.681965199999993},{"$f":"IF($C$9=\"kWh\",$C$8,$C$5)","v":7551.32},{"$f":"VLOOKUP($C$3,'Data Proposed Rates'!$A:$AZ,MATCH(BI_WHSI_AUGe_High!$A30,ProposedHeader,0),FALSE)","v":8.0999999999999996E-3},{"$f":"E30*F30","v":61.165691999999993},{"$f":"G30-D30","v":-1.5162732000000005},-2.4189943553333277E-2,5.7929107691122139E-2,6.2060344893868913E-2]
["Retail Transmission Rate – Line and Transformation Connection Service Rate",{"$f":"IF($B$9=\"kWh\",$B$8,$B$5)","v":7552.043999999999},{"$f":"VLOOKUP($B$3,'Data Current Rates'!$A:$AP,MATCH(BI_WHSI_AUGe_High!$A31,CurrentHeader,0),FALSE)","v":6.0000000000000001E-3},{"$f":"B31*C31","v":45.312263999999992},{"$f":"IF($C$9=\"kWh\",$C$8,$C$5)","v":7551.32},{"$f":"VLOOKUP($C$3,'Data Proposed Rates'!$A:$AZ,MATCH(BI_WHSI_AUGe_High!$A31,ProposedHeader,0),FALSE)","v":6.1999999999999998E-3},{"$f":"E31*F31","v":46.818183999999995},{"$f":"G31-D31","v":1.5059200000000033},3.3234269644968603E-2,4.4340798479624355E-2,4.7502980042220651E-2]
["Sub-Total:  Retail Transmission ",null,null,{"$f":"SUM(D30:D31)","v":107.99422919999998},null,null,{"$f":"SUM(G30:G31)","v":107.98387599999998},{"$f":"G32-D32","v":-1.0353199999997287E-2},-9.5868085514307181E-5,0.10226990617074648,0.10956332493608956]
["Sub-Total:  Delivery (based on two-tier RPP prices)",null,null,{"$f":"D28+D32","v":289.16128919999983},null,null,{"$f":"G28+G32","v":272.52367599999991},{"$f":"G33-D33","v":-16.637613199999919},-5.7537484516097977E-2,0.25810307803571442,0.27650980102219691]
["Sub-Total:  Delivery (based on TOU prices)",null,null,{"$f":"D29+D32","v":285.54781967999986},null,null,{"$f":"G29+G32","v":268.91859039999997},{"$f":"G34-D34","v":-16.62922927999989},-5.8236232721494752E-2,0.25468875564142013,0.27285198487735685]
["Wholesale Market Service Rate (WMS) - not including CBR",{"$f":"B8","v":7552.043999999999},{"$f":"VLOOKUP($A35,'Data Pass Through'!$A:$D,2,FALSE)","v":3.0000000000000001E-3},{"$f":"B35*C35","v":22.656131999999996},{"$f":"$C$8","v":7551.32},{"$f":"VLOOKUP($A35,'Data Pass Through'!$A:$D,3,FALSE)","v":3.0000000000000001E-3},{"$f":"E35*F35","v":22.653959999999998},-2.1719999999980644E-3,-9.5868085514246859E-5,2.1455225070785979E-2,2.2985312923655153E-2]
["Capacity Based Recovery (CBR) - Applicable for Class B Customers",{"$f":"B8","v":7552.043999999999},{"$f":"VLOOKUP($A36,'Data Pass Through'!$A:$D,2,FALSE)","v":4.0000000000000002E-4},{"$f":"B36*C36","v":3.0208175999999995},{"$f":"$C$8","v":7551.32},{"$f":"VLOOKUP($A36,'Data Pass Through'!$A:$D,3,FALSE)","v":4.0000000000000002E-4},{"$f":"E36*F36","v":3.0205280000000001},-2.8959999999944586E-4,-9.5868085514148847E-5,2.8606966761047974E-3,3.0647083898206876E-3]
["Rural Rate Protection Charge",{"$f":"B8","v":7552.043999999999},{"$f":"VLOOKUP($A37,'Data Pass Through'!$A:$D,2,FALSE)","v":5.0000000000000001E-4},3.7760219999999998,7551.32,{"$f":"VLOOKUP($A37,'Data Pass Through'!$A:$D,3,FALSE)","v":5.0000000000000001E-4},3.7756599999999998,-3.6199999999997345E-4,-9.586808551432526E-5,3.5758708451309965E-3,3.830885487275859E-3]
["Standard Supply Service – Administration Charge (if applicable)",1,{"$f":"VLOOKUP($A38,'Data Pass Through'!$A:$D,2,FALSE)","v":0.25},{"$f":"B38*C38","v":0.25},1,{"$f":"VLOOKUP($A38,'Data Pass Through'!$A:$D,3,FALSE)","v":0.25},0.25,0,0,2.3677124298341194E-4,2.5365667772494474E-4]
["Sub-Total:  Regulatory",null,null,{"$f":"SUM(D35:D38)","v":29.702971599999998},null,null,{"$f":"SUM(G35:G38)","v":29.700147999999995},-2.8236000000028127E-3,-9.5061195830076917E-5,2.8128563835005182E-2,3.0134563478476643E-2]
["Total  Electricty Charge on Two-Tier RPP ",null,null,{"$f":"SUM(D14,D24,D25,D26,D32,D39)","v":1138.7142607999999},null,null,{"$f":"SUM(G14,G24,G25,G26,G32,G39)","v":1122.0738239999998},-16.640436800000089,-1.4613355933831377E-2,1.0626992561105206]
["     HST",null,0.13,{"$f":"D40*C41","v":148.03285390400001},null,{"$f":"C41","v":0.13},{"$f":"G40*F41","v":145.86959711999998},-2.1632567840000263,-1.4613355933831475E-2,0.13815090329436769]
["Total Electricity Charge on Two-Tier RPP (including HST)",null,null,{"$f":"SUM(D40:D41)","v":1286.7471147039998},null,null,{"$f":"SUM(G40:G41)","v":1267.9434211199998},-18.80369358400003,-1.4613355933831323E-2,1.2008501594048884]
["Ontario Electricity Rebate (OER)",null,{"$f":"IF(($B$4*12)<250000,VLOOKUP(A43,'Data Pass Through'!$A$4:$C$20,2,0),0)","v":-0.189},{"$f":"D40*C43","v":-215.21699529119999},null,{"$f":"C43","v":-0.189},{"$f":"G40*F43","v":-212.07195273599996},3.1450425552000354,1.4613355933831463E-2,-0.2008501594048884]
["Total Amount on Two-Tier RPP",null,null,{"$f":"SUM(D42:D43)","v":1071.5301194127999},null,null,{"$f":"SUM(G42:G43)","v":1055.8714683839999},-15.658651028800023,-1.4613355933831321E-2,1]
["Total Electricty Charge on TOU (before HST)",null,null,{"$f":"SUM(D18,D24,D25,D27,D32,D39)","v":1064.0115912799999},null,null,{"$f":"SUM(G18,G24,G25,G27,G32,G39)","v":1047.3795384},-16.632052879999947,-1.5631458356568918E-2,null,{"$f":"G45/$G$49","v":1.0626992561105206}]
["     HST",null,0.13,{"$f":"D45*C46","v":138.3215068664},null,{"$f":"C46","v":0.13},{"$f":"G45*F46","v":136.15933999200001},-2.1621668743999862,-1.5631458356568866E-2,null,{"$f":"G46/$G$49","v":0.13815090329436772}]
["Total Electricity Charge on TOU (including HST)",null,null,{"$f":"SUM(D45:D46)","v":1202.3330981464001},null,null,{"$f":"SUM(G45:G46)","v":1183.538878392},-18.794219754400046,-1.5631458356569004E-2,null,{"$f":"G47/$G$49","v":1.2008501594048884}]
["Ontario Electricity Rebate (OER)",null,{"$f":"IF(($B$4*12)<250000,VLOOKUP(A48,'Data Pass Through'!$A$4:$C$20,2,0),0)","v":-0.189},{"$f":"D45*C48","v":-201.09819075191999},null,{"$f":"C48","v":-0.189},{"$f":"G45*F48","v":-197.9547327576},3.1434579943199878,1.5631458356568907E-2,null,{"$f":"G48/$G$49","v":-0.20085015940488843}]
["Total Amount on TOU",null,null,{"$f":"SUM(D47:D48)","v":1001.23490739448},null,null,{"$f":"SUM(G47:G48)","v":985.58414563439999},-15.650761760080059,-1.5631458356569025E-2,null,{"$f":"G49/$G$49","v":1}]

{"sheet":"BI_WHSI_AUGd_Low","index":80,"n_rows":32,"n_cols":10,"rows_kept":32,"cut":false,"hidden":false,"merged":[[0,0,0,9]]}
["2023 Bill Impacts (Low Consumption Level) - AUGd_WHSI"]
[]
["Rate Class",{"$f":"VLOOKUP(A1,'Data BI List Acq_Seas'!C:E,2,FALSE)","v":"WHSI_GS 50>999"},{"$f":"VLOOKUP(A1,'Data BI List Acq_Seas'!C:E,3,FALSE)","v":"AUGd-WHSI"}]
["Monthly Consumption (kWh)",{"$f":"IF(COUNTIF(A1,\"*Low*\")>0,VLOOKUP(B3,'Data Billing Quantities'!$A:$Z,MATCH(\"Low kWh\",'Data Billing Quantities'!4:4,0),FALSE),IF(COUNTIF(A1,\"*Typical*\")>0,VLOOKUP(B3,'Data Billing Quantities'!$A:$Z,MATCH(\"Typical kWh\",'Data Billing Quantities'!4:4,0),FALSE),IF(COUNTIF(A1,\"*Average*\")>0,VLOOKUP(B3,'Data Billing Quantities'!$A:$Z,MATCH(\"Average kWh\",'Data Billing Quantities'!4:4,0),FALSE),IF(COUNTIF(A1,\"*High*\")>0,VLOOKUP(B3,'Data Billing Quantities'!$A:$Z,MATCH(\"High kWh\",'Data Billing Quantities'!4:4,0),FALSE),\"error\"))))","v":9370},{"$f":"B4","v":9370}]
["Peak (kW)",{"$f":"IF(COUNTIF(A1,\"*Low*\")>0,VLOOKUP(B3,'Data Billing Quantities'!$A:$Z,MATCH(\"Low kW\",'Data Billing Quantities'!4:4,0),FALSE),IF(COUNTIF(A1,\"*Typical*\")>0,VLOOKUP(B3,'Data Billing Quantities'!$A:$Z,MATCH(\"Typical kW\",'Data Billing Quantities'!4:4,0),FALSE),IF(COUNTIF(A1,\"*Average*\")>0,VLOOKUP(B3,'Data Billing Quantities'!$A:$Z,MATCH(\"Average kW\",'Data Billing Quantities'!4:4,0),FALSE),IF(COUNTIF(A1,\"*High*\")>0,VLOOKUP(B3,'Data Billing Quantities'!$A:$Z,MATCH(\"High kW\",'Data Billing Quantities'!4:4,0),FALSE),\"error\"))))","v":50},{"$f":"B5","v":50}]
["Loss factor",{"$f":"VLOOKUP(B3,'Data Billing Quantities'!A:D,MATCH(A6,'Data Billing Quantities'!4:4,0),FALSE)","v":1.0430999999999999},{"$f":"VLOOKUP(C3,'Data Billing Quantities'!A:D,MATCH(A6,'Data Billing Quantities'!4:4,0),FALSE)","v":1.0329999999999999}]
["Commodity Threshold",{"$f":"VLOOKUP(B3,'Data Billing Quantities'!A:D,MATCH(A7,'Data Billing Quantities'!4:4,0),FALSE)","v":0},{"$f":"B7","v":0}]
["Monthly Consumption (kWh) - Uplifted",{"$f":"B4*B6","v":9773.8469999999998},{"$f":"C4*C6","v":9679.2099999999991}]
["Charge determinant",{"$f":"VLOOKUP(B3,'Data Billing Quantities'!A:D,MATCH(A9,'Data Billing Quantities'!4:4,0),FALSE)","v":"kW"},{"$f":"VLOOKUP(C3,'Data Billing Quantities'!A:D,MATCH(A9,'Data Billing Quantities'!4:4,0),FALSE)","v":"kW"}]
[]
[null,"Volume","Current Rate ($)","Current Charge ($)","Volume","Proposed Rate ($)","Proposed Charge ($)","Change ($)","Change (%)","% of Total Bill"]
["Weighted Average Hourly Spot Price",{"$f":"B8","v":9773.8469999999998},{"$f":"VLOOKUP($A12,'Data Pass Through'!$A:$D,2,FALSE)","v":0.11899999999999999},{"$f":"B12*C12","v":1163.0877929999999},{"$f":"C8","v":9679.2099999999991},{"$f":"VLOOKUP($A12,'Data Pass Through'!$A:$D,3,FALSE)","v":0.11899999999999999},{"$f":"E12*F12","v":1151.8259899999998},{"$f":"G12-D12","v":-11.2618030000001},{"$f":"IF(ISERROR(H12/ABS(D12)),\"N/A\",(H12/ABS(D12)))","v":-9.6826766369476468E-3},{"$f":"G12/G$32","v":0.59978375034263687}]
["Sub-Total:  Energy (WAHSP)",null,null,{"$f":"SUM(D12:D12)","v":1163.0877929999999},null,null,{"$f":"SUM(G12:G12)","v":1151.8259899999998},-11.2618030000001,-9.6826766369476468E-3,{"$f":"G13/G$32","v":0.59978375034263687}]
["Service Charge",1,{"$f":"VLOOKUP($B$3,'Data Current Rates'!$A:$AP,MATCH(BI_WHSI_AUGd_Low!$A14,CurrentHeader,0),FALSE)","v":144.9},{"$f":"B14*C14","v":144.9},1,{"$f":"VLOOKUP($C$3,'Data Proposed Rates'!$A:$AZ,MATCH(BI_WHSI_AUGd_Low!$A14,ProposedHeader,0),FALSE)","v":150.84},{"$f":"E14*F14","v":150.84},5.9399999999999977,4.0993788819875761E-2,7.8546049218496422E-2]
["Distribution Volumetric Charge",{"$f":"IF($B$9=\"kWh\",$B$4,$B$5)","v":50},{"$f":"VLOOKUP($B$3,'Data Current Rates'!$A:$AP,MATCH(BI_WHSI_AUGd_Low!$A15,CurrentHeader,0),FALSE)","v":2.6686999999999999},{"$f":"B15*C15","v":133.435},{"$f":"IF($C$9=\"kWh\",$C$4,$C$5)","v":50},{"$f":"VLOOKUP($C$3,'Data Proposed Rates'!$A:$AZ,MATCH(BI_WHSI_AUGd_Low!$A15,ProposedHeader,0),FALSE)","v":2.4538000000000002},122.69000000000001,-10.74499999999999,-8.0526098849627081E-2,6.3887660956094702E-2]
["Rate Rider for Recovery of Incremental Capital",{"$f":"IF($B$9=\"kWh\",$B$4,$B$5)","v":50},{"$f":"VLOOKUP($B$3,'Data Current Rates'!$A:$AP,MATCH(BI_WHSI_AUGd_Low!$A16,CurrentHeader,0),FALSE)","v":0.3251},16.254999999999999,null,null,null,-16.254999999999999,-1,0]
["Group 1 Volumetric DVA Rider (General)",null,null,null,{"$f":"IF($C$9=\"kWh\",$C$4,$C$5)","v":50},{"$f":"VLOOKUP($C$3,'Data Proposed Rates'!$A:$AZ,MATCH(BI_WHSI_AUGd_Low!$A17,ProposedHeader,0),FALSE)","v":-3.8300000000000001E-2},-1.915,-1.915,"N/A",-9.971869812610756E-4]
["Group 1 Volumetric Deferral/Variance Account Rider (Sub-Account RSVA Wholesale Market Service Charge & RSVA Power) ",null,null,null,50,{"$f":"VLOOKUP($C$3,'Data Proposed Rates'!$A:$AZ,MATCH(BI_WHSI_AUGd_Low!$A18,ProposedHeader,0),FALSE)","v":-8.0299999999999996E-2},-4.0149999999999997,-4.0149999999999997,"N/A",-2.0907079528789648E-3]
["Group 1 Volumetric Deferral/Variance Account Rider (Sub-Account Global Adjustment)",null,null,null,{"$f":"C4","v":9370},{"$f":"VLOOKUP($C$3,'Data Proposed Rates'!$A:$AZ,MATCH(BI_WHSI_AUGd_Low!$A19,ProposedHeader,0),FALSE)","v":-6.9999999999999999E-4},-6.5590000000000002,-6.5590000000000002,"N/A",-3.4154305013532086E-3]
["Sub-Total:  Distribution",null,null,{"$f":"SUM(INDIRECT(\"D14:D\"&ROW()-1))","v":294.59000000000003},null,null,{"$f":"SUM(INDIRECT(\"g14:g\"&ROW()-1))","v":261.041},{"$f":"G20-D20","v":-33.549000000000035},-0.11388370277334611,0.13593038473909785]
["Retail Transmission Rate – Network Service Rate",{"$f":"IF($B$9=\"kWh\",$B$4,$B$5)","v":50},{"$f":"VLOOKUP($B$3,'Data Current Rates'!$A:$AP,MATCH(BI_WHSI_AUGd_Low!$A21,CurrentHeader,0),FALSE)","v":3.5638000000000001},{"$f":"B21*C21","v":178.19},{"$f":"IF($C$9=\"kWh\",$C$4,$C$5)","v":50},{"$f":"VLOOKUP($C$3,'Data Proposed Rates'!$A:$AZ,MATCH(BI_WHSI_AUGd_Low!$A21,ProposedHeader,0),FALSE)","v":2.8411},{"$f":"E21*F21","v":142.05500000000001},{"$f":"G21-D21","v":-36.134999999999991},-0.20278915764072053,7.3971486487228247E-2]
["Retail Transmission Rate – Line and Transformation Connection Service Rate",{"$f":"IF($B$9=\"kWh\",$B$4,$B$5)","v":50},{"$f":"VLOOKUP($B$3,'Data Current Rates'!$A:$AP,MATCH(BI_WHSI_AUGd_Low!$A22,CurrentHeader,0),FALSE)","v":2.5609000000000002},{"$f":"B22*C22","v":128.04500000000002},{"$f":"IF($C$9=\"kWh\",$C$4,$C$5)","v":50},{"$f":"VLOOKUP($C$3,'Data Proposed Rates'!$A:$AZ,MATCH(BI_WHSI_AUGd_Low!$A22,ProposedHeader,0),FALSE)","v":2.1309999999999998},{"$f":"E22*F22","v":106.54999999999998},{"$f":"G22-D22","v":-21.495000000000033},-0.16787067046741402,5.5483171202802911E-2]
["Sub-Total:  Retail Transmission ",null,null,{"$f":"SUM(D21:D22)","v":306.23500000000001},null,null,{"$f":"SUM(G21:G22)","v":248.60499999999999},{"$f":"G23-D23","v":-57.630000000000024},-0.18818880924779996,0.12945465769003117]
["Sub-Total:  Delivery (based on two-tier RPP prices)",null,null,{"$f":"SUM(D20,D23)","v":600.82500000000005},null,null,{"$f":"SUM(G20,G23)","v":509.64599999999996},{"$f":"G24-D24","v":-91.179000000000087},-0.15175633503932107,0.26538504242912903]
["Wholesale Market Service Rate (WMS) - not including CBR",{"$f":"B8","v":9773.8469999999998},{"$f":"VLOOKUP($A25,'Data Pass Through'!$A:$D,2,FALSE)","v":3.0000000000000001E-3},{"$f":"B25*C25","v":29.321541},{"$f":"$C$8","v":9679.2099999999991},{"$f":"VLOOKUP($A25,'Data Pass Through'!$A:$D,3,FALSE)","v":3.0000000000000001E-3},{"$f":"E25*F25","v":29.037629999999996},{"$f":"G25-D25","v":-0.28391100000000336},-9.6826766369476746E-3,1.5120598748133703E-2]
["Capacity Based Recovery (CBR) - Applicable for Class B Customers",{"$f":"B8","v":9773.8469999999998},{"$f":"VLOOKUP($A26,'Data Pass Through'!$A:$D,2,FALSE)","v":4.0000000000000002E-4},{"$f":"B26*C26","v":3.9095388},{"$f":"$C$8","v":9679.2099999999991},{"$f":"VLOOKUP($A26,'Data Pass Through'!$A:$D,3,FALSE)","v":4.0000000000000002E-4},{"$f":"E26*F26","v":3.8716839999999997},-3.7854800000000299E-2,-9.6826766369476364E-3,2.0160798330844938E-3]
["Rural Rate Protection Charge",{"$f":"B8","v":9773.8469999999998},{"$f":"VLOOKUP($A27,'Data Pass Through'!$A:$D,2,FALSE)","v":5.0000000000000001E-4},4.8869235,9679.2099999999991,{"$f":"VLOOKUP($A27,'Data Pass Through'!$A:$D,3,FALSE)","v":5.0000000000000001E-4},4.8396049999999997,-4.7318500000000263E-2,-9.6826766369476139E-3,2.5200997913556174E-3]
["Standard Supply Service – Administration Charge (if applicable)",1,{"$f":"VLOOKUP($A28,'Data Pass Through'!$A:$D,2,FALSE)","v":0.25},{"$f":"B28*C28","v":0.25},{"$f":"B28","v":1},{"$f":"VLOOKUP($A28,'Data Pass Through'!$A:$D,3,FALSE)","v":0.25},0.25,0,0,1.3018106804974877E-4]
["Sub-Total:  Regulatory",null,null,{"$f":"SUM(D25:D28)","v":38.368003300000005},null,null,{"$f":"SUM(G25:G28)","v":37.998918999999994},-0.36908430000001147,-9.6195858073232447E-3,1.9786959440623562E-2]
["Total  Electricty Charge on WAHSP",null,null,{"$f":"SUM(D13,D24,D29)","v":1802.2807963},null,null,{"$f":"SUM(G13,G24,G29)","v":1699.4709089999997},-102.80988730000036,-5.7044322677722775E-2,0.88495575221238942]
["     HST",null,0.13,{"$f":"D30*C31","v":234.296503519},null,{"$f":"C31","v":0.13},{"$f":"G30*F31","v":220.93121816999997},-13.365285349000033,-5.704432267772272E-2,0.11504424778761062]
["Total Amount on WAHSP",null,null,{"$f":"SUM(D30:D31)","v":2036.577299819},null,null,{"$f":"SUM(G30:G31)","v":1920.4021271699996},-116.17517264900039,-5.7044322677722768E-2,1]

{"sheet":"BI_WHSI_AUGd_Avg","index":81,"n_rows":32,"n_cols":10,"rows_kept":32,"cut":false,"hidden":false,"merged":[[0,0,0,9]]}
["2023 Bill Impacts (Average Consumption Level) - AUGd_WHSI"]
[]
["Rate Class",{"$f":"VLOOKUP(A1,'Data BI List Acq_Seas'!C:E,2,FALSE)","v":"WHSI_GS 50>999"},{"$f":"VLOOKUP(A1,'Data BI List Acq_Seas'!C:E,3,FALSE)","v":"AUGd-WHSI"}]
["Monthly Consumption (kWh)",{"$f":"IF(COUNTIF(A1,\"*Low*\")>0,VLOOKUP(B3,'Data Billing Quantities'!$A:$Z,MATCH(\"Low kWh\",'Data Billing Quantities'!4:4,0),FALSE),IF(COUNTIF(A1,\"*Typical*\")>0,VLOOKUP(B3,'Data Billing Quantities'!$A:$Z,MATCH(\"Typical kWh\",'Data Billing Quantities'!4:4,0),FALSE),IF(COUNTIF(A1,\"*Average*\")>0,VLOOKUP(B3,'Data Billing Quantities'!$A:$Z,MATCH(\"Average kWh\",'Data Billing Quantities'!4:4,0),FALSE),IF(COUNTIF(A1,\"*High*\")>0,VLOOKUP(B3,'Data Billing Quantities'!$A:$Z,MATCH(\"High kWh\",'Data Billing Quantities'!4:4,0),FALSE),\"error\"))))","v":47636},{"$f":"B4","v":47636}]
["Peak (kW)",{"$f":"IF(COUNTIF(A1,\"*Low*\")>0,VLOOKUP(B3,'Data Billing Quantities'!$A:$Z,MATCH(\"Low kW\",'Data Billing Quantities'!4:4,0),FALSE),IF(COUNTIF(A1,\"*Typical*\")>0,VLOOKUP(B3,'Data Billing Quantities'!$A:$Z,MATCH(\"Typical kW\",'Data Billing Quantities'!4:4,0),FALSE),IF(COUNTIF(A1,\"*Average*\")>0,VLOOKUP(B3,'Data Billing Quantities'!$A:$Z,MATCH(\"Average kW\",'Data Billing Quantities'!4:4,0),FALSE),IF(COUNTIF(A1,\"*High*\")>0,VLOOKUP(B3,'Data Billing Quantities'!$A:$Z,MATCH(\"High kW\",'Data Billing Quantities'!4:4,0),FALSE),\"error\"))))","v":134},{"$f":"B5","v":134}]
["Loss factor",{"$f":"VLOOKUP(B3,'Data Billing Quantities'!A:D,MATCH(A6,'Data Billing Quantities'!4:4,0),FALSE)","v":1.0430999999999999},{"$f":"VLOOKUP(C3,'Data Billing Quantities'!A:D,MATCH(A6,'Data Billing Quantities'!4:4,0),FALSE)","v":1.0329999999999999}]
["Commodity Threshold",{"$f":"VLOOKUP(B3,'Data Billing Quantities'!A:D,MATCH(A7,'Data Billing Quantities'!4:4,0),FALSE)","v":0},{"$f":"B7","v":0}]
["Monthly Consumption (kWh) - Uplifted",{"$f":"B4*B6","v":49689.111599999997},{"$f":"C4*C6","v":49207.987999999998}]
["Charge determinant",{"$f":"VLOOKUP(B3,'Data Billing Quantities'!A:D,MATCH(A9,'Data Billing Quantities'!4:4,0),FALSE)","v":"kW"},{"$f":"VLOOKUP(C3,'Data Billing Quantities'!A:D,MATCH(A9,'Data Billing Quantities'!4:4,0),FALSE)","v":"kW"}]
[]
[null,"Volume","Current Rate ($)","Current Charge ($)","Volume","Proposed Rate ($)","Proposed Charge ($)","Change ($)","Change (%)","% of Total Bill"]
["Weighted Average Hourly Spot Price",{"$f":"B8","v":49689.111599999997},{"$f":"VLOOKUP($A12,'Data Pass Through'!$A:$D,2,FALSE)","v":0.11899999999999999},{"$f":"B12*C12","v":5913.0042803999995},{"$f":"C8","v":49207.987999999998},{"$f":"VLOOKUP($A12,'Data Pass Through'!$A:$D,3,FALSE)","v":0.11899999999999999},{"$f":"E12*F12","v":5855.750571999999},{"$f":"G12-D12","v":-57.253708400000505},{"$f":"IF(ISERROR(H12/ABS(D12)),\"N/A\",(H12/ABS(D12)))","v":-9.6826766369476468E-3},{"$f":"G12/G$32","v":0.72531579532319512}]
["Sub-Total:  Energy (WAHSP)",null,null,{"$f":"SUM(D12:D12)","v":5913.0042803999995},null,null,{"$f":"SUM(G12:G12)","v":5855.750571999999},-57.253708400000505,-9.6826766369476468E-3,{"$f":"G13/G$32","v":0.72531579532319512}]
["Service Charge",1,{"$f":"VLOOKUP($B$3,'Data Current Rates'!$A:$AP,MATCH(BI_WHSI_AUGd_Avg!$A14,CurrentHeader,0),FALSE)","v":144.9},{"$f":"B14*C14","v":144.9},1,{"$f":"VLOOKUP($C$3,'Data Proposed Rates'!$A:$AZ,MATCH(BI_WHSI_AUGd_Avg!$A14,ProposedHeader,0),FALSE)","v":150.84},{"$f":"E14*F14","v":150.84},5.9399999999999977,4.0993788819875761E-2,1.868362274337507E-2]
["Distribution Volumetric Charge",{"$f":"IF($B$9=\"kWh\",$B$4,$B$5)","v":134},{"$f":"VLOOKUP($B$3,'Data Current Rates'!$A:$AP,MATCH(BI_WHSI_AUGd_Avg!$A15,CurrentHeader,0),FALSE)","v":2.6686999999999999},{"$f":"B15*C15","v":357.60579999999999},{"$f":"IF($C$9=\"kWh\",$C$4,$C$5)","v":134},{"$f":"VLOOKUP($C$3,'Data Proposed Rates'!$A:$AZ,MATCH(BI_WHSI_AUGd_Avg!$A15,ProposedHeader,0),FALSE)","v":2.4538000000000002},328.80920000000003,-28.796599999999955,-8.052609884962704E-2,4.0727572575914625E-2]
["Rate Rider for Recovery of Incremental Capital",{"$f":"IF($B$9=\"kWh\",$B$4,$B$5)","v":134},{"$f":"VLOOKUP($B$3,'Data Current Rates'!$A:$AP,MATCH(BI_WHSI_AUGd_Avg!$A16,CurrentHeader,0),FALSE)","v":0.3251},43.563400000000001,null,null,null,-43.563400000000001,-1,0]
["Group 1 Volumetric DVA Rider (General)",null,null,null,{"$f":"IF($C$9=\"kWh\",$C$4,$C$5)","v":134},{"$f":"VLOOKUP($C$3,'Data Proposed Rates'!$A:$AZ,MATCH(BI_WHSI_AUGd_Avg!$A17,ProposedHeader,0),FALSE)","v":-3.8300000000000001E-2},-5.1322000000000001,-5.1322000000000001,"N/A",-6.3569403767932593E-4]
["Group 1 Volumetric Deferral/Variance Account Rider (Sub-Account RSVA Wholesale Market Service Charge & RSVA Power) ",null,null,null,134,{"$f":"VLOOKUP($C$3,'Data Proposed Rates'!$A:$AZ,MATCH(BI_WHSI_AUGd_Avg!$A18,ProposedHeader,0),FALSE)","v":-8.0299999999999996E-2},-10.760199999999999,-10.760199999999999,"N/A",-1.3327997709046964E-3]
["Group 1 Volumetric Deferral/Variance Account Rider (Sub-Account Global Adjustment)",null,null,null,{"$f":"C4","v":47636},{"$f":"VLOOKUP($C$3,'Data Proposed Rates'!$A:$AZ,MATCH(BI_WHSI_AUGd_Avg!$A19,ProposedHeader,0),FALSE)","v":-6.9999999999999999E-4},-33.345199999999998,-33.345199999999998,"N/A",-4.1302647646671324E-3]
["Sub-Total:  Distribution",null,null,{"$f":"SUM(INDIRECT(\"D14:D\"&ROW()-1))","v":546.06920000000002},null,null,{"$f":"SUM(INDIRECT(\"g14:g\"&ROW()-1))","v":430.41160000000008},{"$f":"G20-D20","v":-115.65759999999995},-0.2118002626773309,5.3312436746038548E-2]
["Retail Transmission Rate – Network Service Rate",{"$f":"IF($B$9=\"kWh\",$B$4,$B$5)","v":134},{"$f":"VLOOKUP($B$3,'Data Current Rates'!$A:$AP,MATCH(BI_WHSI_AUGd_Avg!$A21,CurrentHeader,0),FALSE)","v":3.5638000000000001},{"$f":"B21*C21","v":477.54919999999998},{"$f":"IF($C$9=\"kWh\",$C$4,$C$5)","v":134},{"$f":"VLOOKUP($C$3,'Data Proposed Rates'!$A:$AZ,MATCH(BI_WHSI_AUGd_Avg!$A21,ProposedHeader,0),FALSE)","v":2.8411},{"$f":"E21*F21","v":380.70740000000001},{"$f":"G21-D21","v":-96.841799999999978},-0.20278915764072053,4.7155883301585717E-2]
["Retail Transmission Rate – Line and Transformation Connection Service Rate",{"$f":"IF($B$9=\"kWh\",$B$4,$B$5)","v":134},{"$f":"VLOOKUP($B$3,'Data Current Rates'!$A:$AP,MATCH(BI_WHSI_AUGd_Avg!$A22,CurrentHeader,0),FALSE)","v":2.5609000000000002},{"$f":"B22*C22","v":343.16060000000004},{"$f":"IF($C$9=\"kWh\",$C$4,$C$5)","v":134},{"$f":"VLOOKUP($C$3,'Data Proposed Rates'!$A:$AZ,MATCH(BI_WHSI_AUGd_Avg!$A22,ProposedHeader,0),FALSE)","v":2.1309999999999998},{"$f":"E22*F22","v":285.55399999999997},{"$f":"G22-D22","v":-57.606600000000071},-0.167870670467414,3.5369817083411054E-2]
["Sub-Total:  Retail Transmission ",null,null,{"$f":"SUM(D21:D22)","v":820.70980000000009},null,null,{"$f":"SUM(G21:G22)","v":666.26139999999998},{"$f":"G23-D23","v":-154.44840000000011},-0.18818880924780002,8.2525700384996778E-2]
["Sub-Total:  Delivery (based on two-tier RPP prices)",null,null,{"$f":"SUM(D20,D23)","v":1366.779},null,null,{"$f":"SUM(G20,G23)","v":1096.673},{"$f":"G24-D24","v":-270.10599999999999},-0.19762229299689268,0.13583813713103532]
["Wholesale Market Service Rate (WMS) - not including CBR",{"$f":"B8","v":49689.111599999997},{"$f":"VLOOKUP($A25,'Data Pass Through'!$A:$D,2,FALSE)","v":3.0000000000000001E-3},{"$f":"B25*C25","v":149.0673348},{"$f":"$C$8","v":49207.987999999998},{"$f":"VLOOKUP($A25,'Data Pass Through'!$A:$D,3,FALSE)","v":3.0000000000000001E-3},{"$f":"E25*F25","v":147.623964},{"$f":"G25-D25","v":-1.4433707999999967},-9.6826766369475376E-3,1.8285272151004922E-2]
["Capacity Based Recovery (CBR) - Applicable for Class B Customers",{"$f":"B8","v":49689.111599999997},{"$f":"VLOOKUP($A26,'Data Pass Through'!$A:$D,2,FALSE)","v":4.0000000000000002E-4},{"$f":"B26*C26","v":19.875644640000001},{"$f":"$C$8","v":49207.987999999998},{"$f":"VLOOKUP($A26,'Data Pass Through'!$A:$D,3,FALSE)","v":4.0000000000000002E-4},{"$f":"E26*F26","v":19.6831952},-0.19244944000000075,-9.6826766369475983E-3,2.4380362868006563E-3]
["Rural Rate Protection Charge",{"$f":"B8","v":49689.111599999997},{"$f":"VLOOKUP($A27,'Data Pass Through'!$A:$D,2,FALSE)","v":5.0000000000000001E-4},24.844555799999998,49207.987999999998,{"$f":"VLOOKUP($A27,'Data Pass Through'!$A:$D,3,FALSE)","v":5.0000000000000001E-4},24.603994,-0.24056179999999827,-9.6826766369474907E-3,3.0475453585008202E-3]
["Standard Supply Service – Administration Charge (if applicable)",1,{"$f":"VLOOKUP($A28,'Data Pass Through'!$A:$D,2,FALSE)","v":0.25},{"$f":"B28*C28","v":0.25},{"$f":"B28","v":1},{"$f":"VLOOKUP($A28,'Data Pass Through'!$A:$D,3,FALSE)","v":0.25},0.25,0,0,3.0965961852583976E-5]
["Sub-Total:  Regulatory",null,null,{"$f":"SUM(D25:D28)","v":194.03753523999998},null,null,{"$f":"SUM(G25:G28)","v":192.1611532},-1.8763820399999815,-9.6702013745904019E-3,2.3801819758158982E-2]
["Total  Electricty Charge on WAHSP",null,null,{"$f":"SUM(D13,D24,D29)","v":7473.8208156399987},null,null,{"$f":"SUM(G13,G24,G29)","v":7144.5847251999985},-329.23609044000023,-4.4051911139082758E-2,0.88495575221238931]
["     HST",null,0.13,{"$f":"D30*C31","v":971.59670603319989},null,{"$f":"C31","v":0.13},{"$f":"G30*F31","v":928.79601427599982},-42.80069175720007,-4.4051911139082793E-2,0.11504424778761062]
["Total Amount on WAHSP",null,null,{"$f":"SUM(D30:D31)","v":8445.4175216731983},null,null,{"$f":"SUM(G30:G31)","v":8073.3807394759988},-372.0367821971995,-4.4051911139082668E-2,1]

{"sheet":"BI_WHSI_AUGd_High","index":82,"n_rows":32,"n_cols":10,"rows_kept":32,"cut":false,"hidden":false,"merged":[[0,0,0,9]]}
["2023 Bill Impacts (High Consumption Level) - AUGd_WHSI"]
[]
["Rate Class",{"$f":"VLOOKUP(A1,'Data BI List Acq_Seas'!C:E,2,FALSE)","v":"WHSI_GS 50>999"},{"$f":"VLOOKUP(A1,'Data BI List Acq_Seas'!C:E,3,FALSE)","v":"AUGd-WHSI"}]
["Monthly Consumption (kWh)",{"$f":"IF(COUNTIF(A1,\"*Low*\")>0,VLOOKUP(B3,'Data Billing Quantities'!$A:$Z,MATCH(\"Low kWh\",'Data Billing Quantities'!4:4,0),FALSE),IF(COUNTIF(A1,\"*Typical*\")>0,VLOOKUP(B3,'Data Billing Quantities'!$A:$Z,MATCH(\"Typical kWh\",'Data Billing Quantities'!4:4,0),FALSE),IF(COUNTIF(A1,\"*Average*\")>0,VLOOKUP(B3,'Data Billing Quantities'!$A:$Z,MATCH(\"Average kWh\",'Data Billing Quantities'!4:4,0),FALSE),IF(COUNTIF(A1,\"*High*\")>0,VLOOKUP(B3,'Data Billing Quantities'!$A:$Z,MATCH(\"High kWh\",'Data Billing Quantities'!4:4,0),FALSE),\"error\"))))","v":137890},{"$f":"B4","v":137890}]
["Peak (kW)",{"$f":"IF(COUNTIF(A1,\"*Low*\")>0,VLOOKUP(B3,'Data Billing Quantities'!$A:$Z,MATCH(\"Low kW\",'Data Billing Quantities'!4:4,0),FALSE),IF(COUNTIF(A1,\"*Typical*\")>0,VLOOKUP(B3,'Data Billing Quantities'!$A:$Z,MATCH(\"Typical kW\",'Data Billing Quantities'!4:4,0),FALSE),IF(COUNTIF(A1,\"*Average*\")>0,VLOOKUP(B3,'Data Billing Quantities'!$A:$Z,MATCH(\"Average kW\",'Data Billing Quantities'!4:4,0),FALSE),IF(COUNTIF(A1,\"*High*\")>0,VLOOKUP(B3,'Data Billing Quantities'!$A:$Z,MATCH(\"High kW\",'Data Billing Quantities'!4:4,0),FALSE),\"error\"))))","v":340},{"$f":"B5","v":340}]
["Loss factor",{"$f":"VLOOKUP(B3,'Data Billing Quantities'!A:D,MATCH(A6,'Data Billing Quantities'!4:4,0),FALSE)","v":1.0430999999999999},{"$f":"VLOOKUP(C3,'Data Billing Quantities'!A:D,MATCH(A6,'Data Billing Quantities'!4:4,0),FALSE)","v":1.0329999999999999}]
["Commodity Threshold",{"$f":"VLOOKUP(B3,'Data Billing Quantities'!A:D,MATCH(A7,'Data Billing Quantities'!4:4,0),FALSE)","v":0},{"$f":"B7","v":0}]
["Monthly Consumption (kWh) - Uplifted",{"$f":"B4*B6","v":143833.05899999998},{"$f":"C4*C6","v":142440.37}]
["Charge determinant",{"$f":"VLOOKUP(B3,'Data Billing Quantities'!A:D,MATCH(A9,'Data Billing Quantities'!4:4,0),FALSE)","v":"kW"},{"$f":"VLOOKUP(C3,'Data Billing Quantities'!A:D,MATCH(A9,'Data Billing Quantities'!4:4,0),FALSE)","v":"kW"}]
[]
[null,"Volume","Current Rate ($)","Current Charge ($)","Volume","Proposed Rate ($)","Proposed Charge ($)","Change ($)","Change (%)","% of Total Bill"]
["Weighted Average Hourly Spot Price",{"$f":"B8","v":143833.05899999998},{"$f":"VLOOKUP($A12,'Data Pass Through'!$A:$D,2,FALSE)","v":0.11899999999999999},{"$f":"B12*C12","v":17116.134020999998},{"$f":"C8","v":142440.37},{"$f":"VLOOKUP($A12,'Data Pass Through'!$A:$D,3,FALSE)","v":0.11899999999999999},{"$f":"E12*F12","v":16950.404029999998},{"$f":"G12-D12","v":-165.72999100000015},{"$f":"IF(ISERROR(H12/ABS(D12)),\"N/A\",(H12/ABS(D12)))","v":-9.6826766369475705E-3},{"$f":"G12/G$32","v":0.74833522797539742}]
["Sub-Total:  Energy (WAHSP)",null,null,{"$f":"SUM(D12:D12)","v":17116.134020999998},null,null,{"$f":"SUM(G12:G12)","v":16950.404029999998},-165.72999100000015,-9.6826766369475705E-3,{"$f":"G13/G$32","v":0.74833522797539742}]
["Service Charge",1,{"$f":"VLOOKUP($B$3,'Data Current Rates'!$A:$AP,MATCH(BI_WHSI_AUGd_High!$A14,CurrentHeader,0),FALSE)","v":144.9},{"$f":"B14*C14","v":144.9},1,{"$f":"VLOOKUP($C$3,'Data Proposed Rates'!$A:$AZ,MATCH(BI_WHSI_AUGd_High!$A14,ProposedHeader,0),FALSE)","v":150.84},{"$f":"E14*F14","v":150.84},5.9399999999999977,4.0993788819875761E-2,6.6593625490004894E-3]
["Distribution Volumetric Charge",{"$f":"IF($B$9=\"kWh\",$B$4,$B$5)","v":340},{"$f":"VLOOKUP($B$3,'Data Current Rates'!$A:$AP,MATCH(BI_WHSI_AUGd_High!$A15,CurrentHeader,0),FALSE)","v":2.6686999999999999},{"$f":"B15*C15","v":907.35799999999995},{"$f":"IF($C$9=\"kWh\",$C$4,$C$5)","v":340},{"$f":"VLOOKUP($C$3,'Data Proposed Rates'!$A:$AZ,MATCH(BI_WHSI_AUGd_High!$A15,ProposedHeader,0),FALSE)","v":2.4538000000000002},834.29200000000003,-73.065999999999917,-8.0526098849627067E-2,3.6832755898506472E-2]
["Rate Rider for Recovery of Incremental Capital",{"$f":"IF($B$9=\"kWh\",$B$4,$B$5)","v":340},{"$f":"VLOOKUP($B$3,'Data Current Rates'!$A:$AP,MATCH(BI_WHSI_AUGd_High!$A16,CurrentHeader,0),FALSE)","v":0.3251},110.53400000000001,null,null,null,-110.53400000000001,-1,0]
["Group 1 Volumetric DVA Rider (General)",null,null,null,{"$f":"IF($C$9=\"kWh\",$C$4,$C$5)","v":340},{"$f":"VLOOKUP($C$3,'Data Proposed Rates'!$A:$AZ,MATCH(BI_WHSI_AUGd_High!$A17,ProposedHeader,0),FALSE)","v":-3.8300000000000001E-2},-13.022,-13.022,"N/A",-5.7490200950069197E-4]
["Group 1 Volumetric Deferral/Variance Account Rider (Sub-Account RSVA Wholesale Market Service Charge & RSVA Power) ",null,null,null,340,{"$f":"VLOOKUP($C$3,'Data Proposed Rates'!$A:$AZ,MATCH(BI_WHSI_AUGd_High!$A18,ProposedHeader,0),FALSE)","v":-8.0299999999999996E-2},-27.302,-27.302,"N/A",-1.2053428554283437E-3]
["Group 1 Volumetric Deferral/Variance Account Rider (Sub-Account Global Adjustment)",null,null,null,{"$f":"C4","v":137890},{"$f":"VLOOKUP($C$3,'Data Proposed Rates'!$A:$AZ,MATCH(BI_WHSI_AUGd_High!$A19,ProposedHeader,0),FALSE)","v":-6.9999999999999999E-4},-96.522999999999996,-96.522999999999996,"N/A",-4.2613474629884258E-3]
["Sub-Total:  Distribution",null,null,{"$f":"SUM(INDIRECT(\"D14:D\"&ROW()-1))","v":1162.7920000000001},null,null,{"$f":"SUM(INDIRECT(\"g14:g\"&ROW()-1))","v":848.28499999999997},{"$f":"G20-D20","v":-314.50700000000018},-0.27047571706719697,3.7450526119589496E-2]
["Retail Transmission Rate – Network Service Rate",{"$f":"IF($B$9=\"kWh\",$B$4,$B$5)","v":340},{"$f":"VLOOKUP($B$3,'Data Current Rates'!$A:$AP,MATCH(BI_WHSI_AUGd_High!$A21,CurrentHeader,0),FALSE)","v":3.5638000000000001},{"$f":"B21*C21","v":1211.692},{"$f":"IF($C$9=\"kWh\",$C$4,$C$5)","v":340},{"$f":"VLOOKUP($C$3,'Data Proposed Rates'!$A:$AZ,MATCH(BI_WHSI_AUGd_High!$A21,ProposedHeader,0),FALSE)","v":2.8411},{"$f":"E21*F21","v":965.97399999999993},{"$f":"G21-D21","v":-245.71800000000007},-0.20278915764072064,4.2646321127739313E-2]
["Retail Transmission Rate – Line and Transformation Connection Service Rate",{"$f":"IF($B$9=\"kWh\",$B$4,$B$5)","v":340},{"$f":"VLOOKUP($B$3,'Data Current Rates'!$A:$AP,MATCH(BI_WHSI_AUGd_High!$A22,CurrentHeader,0),FALSE)","v":2.5609000000000002},{"$f":"B22*C22","v":870.70600000000002},{"$f":"IF($C$9=\"kWh\",$C$4,$C$5)","v":340},{"$f":"VLOOKUP($C$3,'Data Proposed Rates'!$A:$AZ,MATCH(BI_WHSI_AUGd_High!$A22,ProposedHeader,0),FALSE)","v":2.1309999999999998},{"$f":"E22*F22","v":724.54},{"$f":"G22-D22","v":-146.16600000000005},-0.16787067046741386,3.1987367682662519E-2]
["Sub-Total:  Retail Transmission ",null,null,{"$f":"SUM(D21:D22)","v":2082.3980000000001},null,null,{"$f":"SUM(G21:G22)","v":1690.5139999999999},{"$f":"G23-D23","v":-391.88400000000024},-0.18818880924779999,7.4633688810401833E-2]
["Sub-Total:  Delivery (based on two-tier RPP prices)",null,null,{"$f":"SUM(D20,D23)","v":3245.1900000000005},null,null,{"$f":"SUM(G20,G23)","v":2538.799},{"$f":"G24-D24","v":-706.39100000000053},-0.21767323330837343,0.11208421492999134]
["Wholesale Market Service Rate (WMS) - not including CBR",{"$f":"B8","v":143833.05899999998},{"$f":"VLOOKUP($A25,'Data Pass Through'!$A:$D,2,FALSE)","v":3.0000000000000001E-3},{"$f":"B25*C25","v":431.49917699999997},{"$f":"$C$8","v":142440.37},{"$f":"VLOOKUP($A25,'Data Pass Through'!$A:$D,3,FALSE)","v":3.0000000000000001E-3},{"$f":"E25*F25","v":427.32110999999998},{"$f":"G25-D25","v":-4.1780669999999986},-9.6826766369475584E-3,1.8865593982573047E-2]
["Capacity Based Recovery (CBR) - Applicable for Class B Customers",{"$f":"B8","v":143833.05899999998},{"$f":"VLOOKUP($A26,'Data Pass Through'!$A:$D,2,FALSE)","v":4.0000000000000002E-4},{"$f":"B26*C26","v":57.533223599999992},{"$f":"$C$8","v":142440.37},{"$f":"VLOOKUP($A26,'Data Pass Through'!$A:$D,3,FALSE)","v":4.0000000000000002E-4},{"$f":"E26*F26","v":56.976148000000002},-0.55707559999999035,-9.6826766369473936E-3,2.5154125310097399E-3]
["Rural Rate Protection Charge",{"$f":"B8","v":143833.05899999998},{"$f":"VLOOKUP($A27,'Data Pass Through'!$A:$D,2,FALSE)","v":5.0000000000000001E-4},71.916529499999996,142440.37,{"$f":"VLOOKUP($A27,'Data Pass Through'!$A:$D,3,FALSE)","v":5.0000000000000001E-4},71.220185000000001,-0.69634449999999504,-9.6826766369474924E-3,3.1442656637621748E-3]
["Standard Supply Service – Administration Charge (if applicable)",1,{"$f":"VLOOKUP($A28,'Data Pass Through'!$A:$D,2,FALSE)","v":0.25},{"$f":"B28*C28","v":0.25},{"$f":"B28","v":1},{"$f":"VLOOKUP($A28,'Data Pass Through'!$A:$D,3,FALSE)","v":0.25},0.25,0,0,1.1037129655596145E-5]
["Sub-Total:  Regulatory",null,null,{"$f":"SUM(D25:D28)","v":561.19893009999998},null,null,{"$f":"SUM(G25:G28)","v":555.76744299999996},-5.4314871000000267,-9.6783632481840087E-3,2.4536309307000556E-2]
["Total  Electricty Charge on WAHSP",null,null,{"$f":"SUM(D13,D24,D29)","v":20922.5229511},null,null,{"$f":"SUM(G13,G24,G29)","v":20044.970472999998},-877.55247810000219,-4.1942956886748928E-2,0.88495575221238931]
["     HST",null,0.13,{"$f":"D30*C31","v":2719.9279836430001},null,{"$f":"C31","v":0.13},{"$f":"G30*F31","v":2605.8461614899998},-114.0818221530003,-4.1942956886748928E-2,0.11504424778761062]
["Total Amount on WAHSP",null,null,{"$f":"SUM(D30:D31)","v":23642.450934742999},null,null,{"$f":"SUM(G30:G31)","v":22650.816634489998},-991.63430025300113,-4.1942956886748872E-2,1]

{"sheet":"BI_WHSI_ST_Avg","index":83,"n_rows":32,"n_cols":10,"rows_kept":32,"cut":false,"hidden":false,"merged":[[0,0,0,9]]}
["2023 Bill Impacts (Average Consumption Level) - ST_WHSI"]
[]
["Rate Class",{"$f":"VLOOKUP(A1,'Data BI List Acq_Seas'!C:E,2,FALSE)","v":"WHSI_GS >1,000kW"},{"$f":"VLOOKUP(A1,'Data BI List Acq_Seas'!C:E,3,FALSE)","v":"ST-WHSI"}]
["Monthly Consumption (kWh)",{"$f":"IF(COUNTIF(A1,\"*Low*\")>0,VLOOKUP(B3,'Data Billing Quantities'!$A:$Z,MATCH(\"Low kWh\",'Data Billing Quantities'!4:4,0),FALSE),IF(COUNTIF(A1,\"*Typical*\")>0,VLOOKUP(B3,'Data Billing Quantities'!$A:$Z,MATCH(\"Typical kWh\",'Data Billing Quantities'!4:4,0),FALSE),IF(COUNTIF(A1,\"*Average*\")>0,VLOOKUP(B3,'Data Billing Quantities'!$A:$Z,MATCH(\"Average kWh\",'Data Billing Quantities'!4:4,0),FALSE),IF(COUNTIF(A1,\"*High*\")>0,VLOOKUP(B3,'Data Billing Quantities'!$A:$Z,MATCH(\"High kWh\",'Data Billing Quantities'!4:4,0),FALSE),\"error\"))))","v":895853},{"$f":"B4","v":895853}]
["Peak (kW)",{"$f":"IF(COUNTIF(A1,\"*Low*\")>0,VLOOKUP(B3,'Data Billing Quantities'!$A:$Z,MATCH(\"Low kW\",'Data Billing Quantities'!4:4,0),FALSE),IF(COUNTIF(A1,\"*Typical*\")>0,VLOOKUP(B3,'Data Billing Quantities'!$A:$Z,MATCH(\"Typical kW\",'Data Billing Quantities'!4:4,0),FALSE),IF(COUNTIF(A1,\"*Average*\")>0,VLOOKUP(B3,'Data Billing Quantities'!$A:$Z,MATCH(\"Average kW\",'Data Billing Quantities'!4:4,0),FALSE),IF(COUNTIF(A1,\"*High*\")>0,VLOOKUP(B3,'Data Billing Quantities'!$A:$Z,MATCH(\"High kW\",'Data Billing Quantities'!4:4,0),FALSE),\"error\"))))","v":3301},{"$f":"B5","v":3301}]
["Loss factor",{"$f":"VLOOKUP(B3,'Data Billing Quantities'!A:D,MATCH(A6,'Data Billing Quantities'!4:4,0),FALSE)","v":1.0326},{"$f":"VLOOKUP(C3,'Data Billing Quantities'!A:D,MATCH(A6,'Data Billing Quantities'!4:4,0),FALSE)","v":1.034}]
["Commodity Threshold",{"$f":"VLOOKUP(B3,'Data Billing Quantities'!A:D,MATCH(A7,'Data Billing Quantities'!4:4,0),FALSE)","v":0},{"$f":"B7","v":0}]
["Monthly Consumption (kWh) - Uplifted",{"$f":"B4*B6","v":925057.80779999995},{"$f":"C4*C6","v":926312.00199999998}]
["Charge determinant",{"$f":"VLOOKUP(B3,'Data Billing Quantities'!A:D,MATCH(A9,'Data Billing Quantities'!4:4,0),FALSE)","v":"kW"},{"$f":"VLOOKUP(C3,'Data Billing Quantities'!A:D,MATCH(A9,'Data Billing Quantities'!4:4,0),FALSE)","v":"kW"}]
[]
[null,"Volume","Current Rate ($)","Current Charge ($)","Volume","Proposed Rate ($)","Proposed Charge ($)","Change ($)","Change (%)","% of Total Bill"]
["Weighted Average Hourly Spot Price",{"$f":"B8","v":925057.80779999995},{"$f":"VLOOKUP($A12,'Data Pass Through'!$A:$D,2,FALSE)","v":0.11899999999999999},{"$f":"B12*C12","v":110081.87912819999},{"$f":"C8","v":926312.00199999998},{"$f":"VLOOKUP($A12,'Data Pass Through'!$A:$D,3,FALSE)","v":0.11899999999999999},{"$f":"E12*F12","v":110231.12823799999},{"$f":"G12-D12","v":149.24910980000277},{"$f":"IF(ISERROR(H12/ABS(D12)),\"N/A\",(H12/ABS(D12)))","v":1.3558008909548966E-3},{"$f":"G12/G$32","v":0.67782666988211571}]
["Sub-Total:  Energy (WAHSP)",null,null,{"$f":"SUM(D12:D12)","v":110081.87912819999},null,null,{"$f":"SUM(G12:G12)","v":110231.12823799999},149.24910980000277,1.3558008909548966E-3,{"$f":"G13/G$32","v":0.67782666988211571}]
["Service Charge",1,{"$f":"VLOOKUP($B$3,'Data Current Rates'!$A:$AP,MATCH(BI_WHSI_ST_Avg!$A14,CurrentHeader,0),FALSE)","v":537.16999999999996},{"$f":"B14*C14","v":537.16999999999996},1,{"$f":"VLOOKUP($C$3,'Data Proposed Rates'!$A:$AZ,MATCH(BI_WHSI_ST_Avg!$A14,ProposedHeader,0),FALSE)","v":1162.53},{"$f":"E14*F14","v":1162.53},625.36,1.1641752145503288,7.1485600404696823E-3]
["Distribution Volumetric Charge",{"$f":"IF($B$9=\"kWh\",$B$4,$B$5)","v":3301},{"$f":"VLOOKUP($B$3,'Data Current Rates'!$A:$AP,MATCH(BI_WHSI_ST_Avg!$A15,CurrentHeader,0),FALSE)","v":2.8365},{"$f":"B15*C15","v":9363.2865000000002},{"$f":"IF($C$9=\"kWh\",$C$4,$C$5)","v":3301},{"$f":"VLOOKUP($C$3,'Data Proposed Rates'!$A:$AZ,MATCH(BI_WHSI_ST_Avg!$A15,ProposedHeader,0),FALSE)","v":1.4638},4832.0038000000004,-4531.2826999999997,-0.4839414771725718,2.9712669161292751E-2]
["Rate Rider for Recovery of Incremental Capital",{"$f":"IF($B$9=\"kWh\",$B$4,$B$5)","v":3301},{"$f":"VLOOKUP($B$3,'Data Current Rates'!$A:$AP,MATCH(BI_WHSI_ST_Avg!$A16,CurrentHeader,0),FALSE)","v":0.47949999999999998},1582.8295000000001,null,null,null,-1582.8295000000001,-1,0]
["Group 1 Volumetric DVA Rider (General)",null,null,null,{"$f":"IF($C$9=\"kWh\",$C$4,$C$5)","v":3301},{"$f":"VLOOKUP($C$3,'Data Proposed Rates'!$A:$AZ,MATCH(BI_WHSI_ST_Avg!$A17,ProposedHeader,0),FALSE)","v":-6.3299999999999995E-2},-208.95329999999998,-208.95329999999998,"N/A",-1.2848831520083555E-3]
["Group 1 Volumetric Deferral/Variance Account Rider (Sub-Account RSVA Wholesale Market Service Charge & RSVA Power) ",null,null,null,3301,{"$f":"VLOOKUP($C$3,'Data Proposed Rates'!$A:$AZ,MATCH(BI_WHSI_ST_Avg!$A18,ProposedHeader,0),FALSE)","v":0},0,0,"N/A",0]
["Group 1 Volumetric Deferral/Variance Account Rider (Sub-Account Global Adjustment)",null,null,null,{"$f":"C4","v":895853},{"$f":"VLOOKUP($C$3,'Data Proposed Rates'!$A:$AZ,MATCH(BI_WHSI_ST_Avg!$A19,ProposedHeader,0),FALSE)","v":0},0,0,"N/A",0]
["Sub-Total:  Distribution",null,null,{"$f":"SUM(INDIRECT(\"D14:D\"&ROW()-1))","v":11483.286},null,null,{"$f":"SUM(INDIRECT(\"g14:g\"&ROW()-1))","v":5785.5805},{"$f":"G20-D20","v":-5697.7055},-0.49617378684115332,3.5576346049754071E-2]
["Retail Transmission Rate – Network Service Rate",{"$f":"IF($B$9=\"kWh\",$B$4,$B$5)","v":3301},{"$f":"VLOOKUP($B$3,'Data Current Rates'!$A:$AP,MATCH(BI_WHSI_ST_Avg!$A21,CurrentHeader,0),FALSE)","v":3.5638000000000001},{"$f":"B21*C21","v":11764.103800000001},{"$f":"IF($C$9=\"kWh\",$C$4,$C$5)","v":3301},{"$f":"VLOOKUP($C$3,'Data Proposed Rates'!$A:$AZ,MATCH(BI_WHSI_ST_Avg!$A21,ProposedHeader,0),FALSE)","v":4.1165000000000003},{"$f":"E21*F21","v":13588.566500000001},{"$f":"G21-D21","v":1824.4627},0.1550872664010326,8.3558001504619214E-2]
["Retail Transmission Rate – Line and Transformation Connection Service Rate",{"$f":"IF($B$9=\"kWh\",$B$4,$B$5)","v":3301},{"$f":"VLOOKUP($B$3,'Data Current Rates'!$A:$AP,MATCH(BI_WHSI_ST_Avg!$A22,CurrentHeader,0),FALSE)","v":2.5609000000000002},{"$f":"B22*C22","v":8453.5308999999997},{"$f":"IF($C$9=\"kWh\",$C$4,$C$5)","v":3301},{"$f":"VLOOKUP($C$3,'Data Proposed Rates'!$A:$AZ,MATCH(BI_WHSI_ST_Avg!$A22,ProposedHeader,0),FALSE)","v":3.2406000000000001},{"$f":"E22*F22","v":10697.220600000001},{"$f":"G22-D22","v":2243.6897000000008},0.26541450271388978,6.5778709990494108E-2]
["Sub-Total:  Retail Transmission ",null,null,{"$f":"SUM(D21:D22)","v":20217.634700000002},null,null,{"$f":"SUM(G21:G22)","v":24285.787100000001},{"$f":"G23-D23","v":4068.152399999999},0.20121801884173912,0.14933671149511332]
["Sub-Total:  Delivery (based on two-tier RPP prices)",null,null,{"$f":"SUM(D20,D23)","v":31700.920700000002},null,null,{"$f":"SUM(G20,G23)","v":30071.367600000001},{"$f":"G24-D24","v":-1629.553100000001},-5.1403967582556706E-2,0.18491305754486739]
["Wholesale Market Service Rate (WMS) - not including CBR",{"$f":"B8","v":925057.80779999995},{"$f":"VLOOKUP($A25,'Data Pass Through'!$A:$D,2,FALSE)","v":3.0000000000000001E-3},{"$f":"B25*C25","v":2775.1734234},{"$f":"$C$8","v":926312.00199999998},{"$f":"VLOOKUP($A25,'Data Pass Through'!$A:$D,3,FALSE)","v":3.0000000000000001E-3},{"$f":"E25*F25","v":2778.9360059999999},{"$f":"G25-D25","v":3.7625825999998597},1.3558008909548207E-3,1.7088067307952495E-2]
["Capacity Based Recovery (CBR) - Applicable for Class B Customers",{"$f":"B8","v":925057.80779999995},{"$f":"VLOOKUP($A26,'Data Pass Through'!$A:$D,2,FALSE)","v":4.0000000000000002E-4},{"$f":"B26*C26","v":370.02312311999998},{"$f":"$C$8","v":926312.00199999998},{"$f":"VLOOKUP($A26,'Data Pass Through'!$A:$D,3,FALSE)","v":4.0000000000000002E-4},{"$f":"E26*F26","v":370.52480080000004},0.50167768000005708,1.3558008909550256E-3,2.2784089743936664E-3]
["Rural Rate Protection Charge",{"$f":"B8","v":925057.80779999995},{"$f":"VLOOKUP($A27,'Data Pass Through'!$A:$D,2,FALSE)","v":5.0000000000000001E-4},462.52890389999999,926312.00199999998,{"$f":"VLOOKUP($A27,'Data Pass Through'!$A:$D,3,FALSE)","v":5.0000000000000001E-4},463.156001,0.62709710000001451,1.3558008909549026E-3,2.8480112179920828E-3]
["Standard Supply Service – Administration Charge (if applicable)",1,{"$f":"VLOOKUP($A28,'Data Pass Through'!$A:$D,2,FALSE)","v":0.25},{"$f":"B28*C28","v":0.25},{"$f":"B28","v":1},{"$f":"VLOOKUP($A28,'Data Pass Through'!$A:$D,3,FALSE)","v":0.25},0.25,0,0,1.5372850680132302E-6]
["Sub-Total:  Regulatory",null,null,{"$f":"SUM(D25:D28)","v":3607.97545042},null,null,{"$f":"SUM(G25:G28)","v":3612.8668077999996},4.8913573799995902,1.3557069462404999E-3,2.2216024785406258E-2]
["Total  Electricty Charge on WAHSP",null,null,{"$f":"SUM(D13,D24,D29)","v":145390.77527861999},null,null,{"$f":"SUM(G13,G24,G29)","v":143915.36264579999},-1475.4126328199927,-1.0147910897321937E-2,0.88495575221238931]
["     HST",null,0.13,{"$f":"D30*C31","v":18900.8007862206},null,{"$f":"C31","v":0.13},{"$f":"G30*F31","v":18708.997143953999},-191.80364226660095,-1.0147910897322037E-2,0.1150442477876106]
["Total Amount on WAHSP",null,null,{"$f":"SUM(D30:D31)","v":164291.5760648406},null,null,{"$f":"SUM(G30:G31)","v":162624.359789754},-1667.2162750865973,-1.014791089732197E-2,1]

{"sheet":"BI_NPDI_AR_Low","index":84,"n_rows":49,"n_cols":11,"rows_kept":49,"cut":false,"hidden":false,"merged":[[0,0,0,10]]}
["2023 Bill Impacts (Low Consumption Level) - AR_NPDI"]
[]
["Rate Class",{"$f":"VLOOKUP(A1,'Data BI List Acq_Seas'!C:E,2,FALSE)","v":"NPDI_RES"},{"$f":"VLOOKUP(A1,'Data BI List Acq_Seas'!C:E,3,FALSE)","v":"AR-NPDI"}]
["Monthly Consumption (kWh)",{"$f":"IF(COUNTIF(A1,\"*Low*\")>0,VLOOKUP(B3,'Data Billing Quantities'!$A:$Z,MATCH(\"Low kWh\",'Data Billing Quantities'!4:4,0),FALSE),IF(COUNTIF(A1,\"*Typical*\")>0,VLOOKUP(B3,'Data Billing Quantities'!$A:$Z,MATCH(\"Typical kWh\",'Data Billing Quantities'!4:4,0),FALSE),IF(COUNTIF(A1,\"*Average*\")>0,VLOOKUP(B3,'Data Billing Quantities'!$A:$Z,MATCH(\"Average kWh\",'Data Billing Quantities'!4:4,0),FALSE),IF(COUNTIF(A1,\"*High*\")>0,VLOOKUP(B3,'Data Billing Quantities'!$A:$Z,MATCH(\"High kWh\",'Data Billing Quantities'!4:4,0),FALSE),\"error\"))))","v":290},{"$f":"B4","v":290}]
["Peak (kW)",{"$f":"IF(COUNTIF(A1,\"*Low*\")>0,VLOOKUP(B3,'Data Billing Quantities'!$A:$Z,MATCH(\"Low kW\",'Data Billing Quantities'!4:4,0),FALSE),IF(COUNTIF(A1,\"*Typical*\")>0,VLOOKUP(B3,'Data Billing Quantities'!$A:$Z,MATCH(\"Typical kW\",'Data Billing Quantities'!4:4,0),FALSE),IF(COUNTIF(A1,\"*Average*\")>0,VLOOKUP(B3,'Data Billing Quantities'!$A:$Z,MATCH(\"Average kW\",'Data Billing Quantities'!4:4,0),FALSE),IF(COUNTIF(A1,\"*High*\")>0,VLOOKUP(B3,'Data Billing Quantities'!$A:$Z,MATCH(\"High kW\",'Data Billing Quantities'!4:4,0),FALSE),\"error\"))))","v":0},{"$f":"B5","v":0}]
["Loss factor",{"$f":"VLOOKUP(B3,'Data Billing Quantities'!A:D,MATCH(A6,'Data Billing Quantities'!4:4,0),FALSE)","v":1.0564},{"$f":"VLOOKUP(C3,'Data Billing Quantities'!A:D,MATCH(A6,'Data Billing Quantities'!4:4,0),FALSE)","v":1.0640000000000001}]
["Commodity Threshold",{"$f":"VLOOKUP(B3,'Data Billing Quantities'!A:D,MATCH(A7,'Data Billing Quantities'!4:4,0),FALSE)","v":600},{"$f":"B7","v":600}]
["Monthly Consumption (kWh) - Uplifted",{"$f":"B4*B6","v":306.35599999999999},{"$f":"C4*C6","v":308.56}]
["Charge determinant",{"$f":"VLOOKUP(B3,'Data Billing Quantities'!A:D,MATCH(A9,'Data Billing Quantities'!4:4,0),FALSE)","v":"kWh"},{"$f":"VLOOKUP(C3,'Data Billing Quantities'!A:D,MATCH(A9,'Data Billing Quantities'!4:4,0),FALSE)","v":"kWh"}]
[]
[null,"Volume","Current Rate ($)","Current Charge ($)","Volume","Proposed Rate ($)","Proposed Charge ($)","Change ($)","Change (%)","% of Total Bill on RPP","% of Total Bill"]
["Energy First Tier",{"$f":"IF(B4>B7,B7,B4)","v":290},{"$f":"VLOOKUP($A12,'Data Pass Through'!$A:$D,2,FALSE)","v":9.8000000000000004E-2},{"$f":"B12*C12","v":28.42},{"$f":"B12","v":290},{"$f":"VLOOKUP($A12,'Data Pass Through'!$A:$D,3,FALSE)","v":9.8000000000000004E-2},{"$f":"E12*F12","v":28.42},{"$f":"G12-D12","v":0},{"$f":"IF(ISERROR(H12/ABS(D12)),\"N/A\",(H12/ABS(D12)))","v":0},{"$f":"G12/$G$44","v":0.4111505580819429}]
["Energy Second Tier",{"$f":"IF(B4>B7,(B4)-B7,0)","v":0},{"$f":"VLOOKUP($A13,'Data Pass Through'!$A:$D,2,FALSE)","v":0.115},{"$f":"B13*C13","v":0},{"$f":"B13","v":0},{"$f":"VLOOKUP($A13,'Data Pass Through'!$A:$D,3,FALSE)","v":0.115},{"$f":"E13*F13","v":0},0,"N/A",{"$f":"G13/$G$44","v":0}]
["Sub-Total:  Energy (RPP Tiered)",null,null,{"$f":"SUM(D12:D13)","v":28.42},null,null,{"$f":"SUM(G12:G13)","v":28.42},0,0,{"$f":"G14/$G$44","v":0.4111505580819429}]
["TOU-Off Peak",{"$f":"B$4*VLOOKUP($B$3,'Data Billing Quantities'!$A:$O,MATCH(BI_NPDI_AR_Low!$A15,'Data Billing Quantities'!$4:$4,0),FALSE)","v":185.6},{"$f":"VLOOKUP($A15,'Data Pass Through'!$A:$D,2,FALSE)","v":8.2000000000000003E-2},{"$f":"B15*C15","v":15.219200000000001},185.6,{"$f":"VLOOKUP($A15,'Data Pass Through'!$A:$D,3,FALSE)","v":8.2000000000000003E-2},{"$f":"E15*F15","v":15.219200000000001},0,0,null,{"$f":"G15/$G$49","v":0.21527417727768283}]
["TOU-Mid Peak",{"$f":"B$4*VLOOKUP($B$3,'Data Billing Quantities'!$A:$O,MATCH(BI_NPDI_AR_Low!$A16,'Data Billing Quantities'!$4:$4,0),FALSE)","v":52.199999999999996},{"$f":"VLOOKUP($A16,'Data Pass Through'!$A:$D,2,FALSE)","v":0.113},{"$f":"B16*C16","v":5.8986000000000001},52.199999999999996,{"$f":"VLOOKUP($A16,'Data Pass Through'!$A:$D,3,FALSE)","v":0.113},{"$f":"E16*F16","v":5.8986000000000001},0,0,null,8.3435151787882397E-2]
["TOU-On Peak",{"$f":"B$4*VLOOKUP($B$3,'Data Billing Quantities'!$A:$O,MATCH(BI_NPDI_AR_Low!$A17,'Data Billing Quantities'!$4:$4,0),FALSE)","v":52.199999999999996},{"$f":"VLOOKUP($A17,'Data Pass Through'!$A:$D,2,FALSE)","v":0.17},{"$f":"B17*C17","v":8.8740000000000006},52.199999999999996,{"$f":"VLOOKUP($A17,'Data Pass Through'!$A:$D,3,FALSE)","v":0.17},{"$f":"E17*F17","v":8.8740000000000006},0,0,null,0.1255219097693806]
["Sub-Total:  Energy (RPP TOU)",null,null,{"$f":"SUM(D15:D17)","v":29.991800000000005},null,null,{"$f":"SUM(G15:G17)","v":29.991800000000005},0,0,{"$f":"G18/$G$44","v":0.43388970119218917},0.4242312388349459]
["Service Charge",1,{"$f":"VLOOKUP($B$3,'Data Current Rates'!$A:$AP,MATCH(BI_NPDI_AR_Low!$A19,CurrentHeader,0),FALSE)","v":38.69},{"$f":"B19*C19","v":38.69},1,{"$f":"VLOOKUP($C$3,'Data Proposed Rates'!$A:$AZ,MATCH(BI_NPDI_AR_Low!$A19,ProposedHeader,0),FALSE)","v":35.94},{"$f":"E19*F19","v":35.94},-2.75,-7.1077797880589308E-2,0.51994197950263987,0.50836797803826217]
["Distribution Volumetric Charge",{"$f":"IF($B$9=\"kWh\",$B$4,$B$5)","v":290},{"$f":"VLOOKUP($B$3,'Data Current Rates'!$A:$AP,MATCH(BI_NPDI_AR_Low!$A20,CurrentHeader,0),FALSE)","v":0},{"$f":"B20*C20","v":0},{"$f":"IF($C$9=\"kWh\",$C$4,$C$5)","v":290},{"$f":"VLOOKUP($C$3,'Data Proposed Rates'!$A:$AZ,MATCH(BI_NPDI_AR_Low!$A20,ProposedHeader,0),FALSE)","v":0},0,0,"N/A",0,0]
["Low Voltage Service Rate",{"$f":"IF($B$9=\"kWh\",$B$4,$B$5)","v":290},{"$f":"VLOOKUP($B$3,'Data Current Rates'!$A:$AP,MATCH(BI_NPDI_AR_Low!$A21,CurrentHeader,0),FALSE)","v":8.9999999999999998E-4},0.26100000000000001,null,null,null,-0.26100000000000001,-1,0,0]
["Rate Rider for Application of Tax Change",290,{"$f":"VLOOKUP($B$3,'Data Current Rates'!$A:$AP,MATCH(BI_NPDI_AR_Low!$A22,CurrentHeader,0),FALSE)","v":2.0000000000000001E-4},5.8000000000000003E-2,null,null,null,-5.8000000000000003E-2,-1,0,0]
["Group 1 Volumetric DVA Rider (General)",null,null,null,{"$f":"IF($C$9=\"kWh\",$C$4,$C$5)","v":290},{"$f":"VLOOKUP($C$3,'Data Proposed Rates'!$A:$AZ,MATCH(BI_NPDI_AR_Low!$A23,ProposedHeader,0),FALSE)","v":-5.0000000000000001E-4},-0.14499999999999999,-0.14499999999999999,"N/A",-2.0977069289895042E-3,-2.0510115975388987E-3]
["Sub-Total:  Distribution (excluding pass through)",null,null,{"$f":"SUM(INDIRECT(\"D19:D\"&ROW()-1))","v":39.009},null,null,{"$f":"SUM(INDIRECT(\"g19:g\"&ROW()-1))","v":35.794999999999995},{"$f":"G24-D24","v":-3.2140000000000057},-8.2391243046476603E-2,0.5178442725736504,0.50631696644072322]
["Smart Metering Entity Charge",{"$f":"B19","v":1},{"$f":"VLOOKUP($A25,'Data Pass Through'!$A:$D,2,FALSE)","v":0.56999999999999995},{"$f":"B25*C25","v":0.56999999999999995},{"$f":"E19","v":1},{"$f":"VLOOKUP($A25,'Data Pass Through'!$A:$D,3,FALSE)","v":0.56999999999999995},{"$f":"E25*F25","v":0.56999999999999995},0,0,8.2461582725794312E-3,8.062597314463257E-3]
["Line Losses on Cost of Power (based on two-tier RPP prices)",{"$f":"B8-B4","v":16.355999999999995},{"$f":"IF(B4>B7,C13,C12)","v":9.8000000000000004E-2},{"$f":"B26*C26","v":1.6028879999999994},{"$f":"C8-C4","v":18.560000000000002},{"$f":"IF(C4>C7,F13,F12)","v":9.8000000000000004E-2},{"$f":"E26*F26","v":1.8188800000000003},0.21599200000000085,0.13475177304964597,2.6313635717244349E-2,2.5727889479527949E-2]
["Line Losses on Cost of Power (based on TOU prices)",{"$f":"B8-B4","v":16.355999999999995},{"$f":"VLOOKUP($B$3,'Data Billing Quantities'!$A:$O,MATCH(BI_NPDI_AR_Low!$A15,'Data Billing Quantities'!$4:$4,0),FALSE)*C15+VLOOKUP($B$3,'Data Billing Quantities'!$A:$O,MATCH(BI_NPDI_AR_Low!$A16,'Data Billing Quantities'!$4:$4,0),FALSE)*C16+VLOOKUP($B$3,'Data Billing Quantities'!$A:$O,MATCH(BI_NPDI_AR_Low!$A17,'Data Billing Quantities'!$4:$4,0),FALSE)*C17","v":0.10342000000000001},{"$f":"B27*C27","v":1.6915375199999996},{"$f":"C8-C4","v":18.560000000000002},{"$f":"VLOOKUP($C$3,'Data Billing Quantities'!$A:$O,MATCH(BI_NPDI_AR_Low!$A15,'Data Billing Quantities'!$4:$4,0),FALSE)*F15+VLOOKUP($C$3,'Data Billing Quantities'!$A:$O,MATCH(BI_NPDI_AR_Low!$A16,'Data Billing Quantities'!$4:$4,0),FALSE)*F16+VLOOKUP($C$3,'Data Billing Quantities'!$A:$O,MATCH(BI_NPDI_AR_Low!$A17,'Data Billing Quantities'!$4:$4,0),FALSE)*F17","v":0.10342000000000001},{"$f":"E27*F27","v":1.9194752000000004},0.22793768000000081,0.13475177304964589,2.7768940876300108E-2,2.7150799285436539E-2]
["Sub-Total:  Distribution (based on two-tier RPP prices)",null,null,{"$f":"SUM(D24,D25:D26)","v":41.181888000000001},null,null,{"$f":"SUM(G24,G25:G26)","v":38.183879999999995},-2.9980080000000058,-7.2799187837138638E-2,0.55240406656347418,0.54010745323471443]
["Sub-Total:  Distribution (based on TOU prices)",null,null,{"$f":"SUM(D24,D25,D27)","v":41.270537519999998},null,null,{"$f":"SUM(G24,G25,G27)","v":38.284475199999996},-2.986062320000002,-7.2353366334347718E-2,0.55385937172252997,0.54153036304062308]
["Retail Transmission Rate – Network Service Rate",{"$f":"IF($B$9=\"kWh\",$B$8,$B$5)","v":306.35599999999999},{"$f":"VLOOKUP($B$3,'Data Current Rates'!$A:$AP,MATCH(BI_NPDI_AR_Low!$A30,CurrentHeader,0),FALSE)","v":8.3000000000000001E-3},{"$f":"B30*C30","v":2.5427548},{"$f":"IF($C$9=\"kWh\",$C$8,$C$5)","v":308.56},{"$f":"VLOOKUP($C$3,'Data Proposed Rates'!$A:$AZ,MATCH(BI_NPDI_AR_Low!$A30,ProposedHeader,0),FALSE)","v":1.01E-2},{"$f":"E30*F30","v":3.1164559999999999},{"$f":"G30-D30","v":0.57370119999999991},0.22562191210886709,4.5085595483385622E-2,4.408198206358404E-2]
["Retail Transmission Rate – Line and Transformation Connection Service Rate",{"$f":"IF($B$9=\"kWh\",$B$8,$B$5)","v":306.35599999999999},{"$f":"VLOOKUP($B$3,'Data Current Rates'!$A:$AP,MATCH(BI_NPDI_AR_Low!$A31,CurrentHeader,0),FALSE)","v":3.8999999999999998E-3},{"$f":"B31*C31","v":1.1947884},{"$f":"IF($C$9=\"kWh\",$C$8,$C$5)","v":308.56},{"$f":"VLOOKUP($C$3,'Data Proposed Rates'!$A:$AZ,MATCH(BI_NPDI_AR_Low!$A31,ProposedHeader,0),FALSE)","v":7.4000000000000003E-3},{"$f":"E31*F31","v":2.283344},{"$f":"G31-D31","v":1.0885556000000001},0.91108651540306229,3.303301055218353E-2,3.2297689828764548E-2]
["Sub-Total:  Retail Transmission ",null,null,{"$f":"SUM(D30:D31)","v":3.7375432000000002},null,null,{"$f":"SUM(G30:G31)","v":5.3997999999999999},{"$f":"G32-D32","v":1.6622567999999998},0.44474584267012612,7.8118606035569152E-2,7.6379671892348594E-2]
["Sub-Total:  Delivery (based on two-tier RPP prices)",null,null,{"$f":"D28+D32","v":44.919431199999998},null,null,{"$f":"G28+G32","v":43.583679999999994},{"$f":"G33-D33","v":-1.3357512000000042},-2.9736600938971913E-2,0.63052267259904327,0.61648712512706305]
["Sub-Total:  Delivery (based on TOU prices)",null,null,{"$f":"D29+D32","v":45.008080719999995},null,null,{"$f":"G29+G32","v":43.684275199999995},{"$f":"G34-D34","v":-1.3238055200000005},-2.9412618774738115E-2,0.63197797775809905,0.61791003493297159]
["Wholesale Market Service Rate (WMS) - not including CBR",{"$f":"B8","v":306.35599999999999},{"$f":"VLOOKUP($A35,'Data Pass Through'!$A:$D,2,FALSE)","v":3.0000000000000001E-3},{"$f":"B35*C35","v":0.919068},{"$f":"$C$8","v":308.56},{"$f":"VLOOKUP($A35,'Data Pass Through'!$A:$D,3,FALSE)","v":3.0000000000000001E-3},{"$f":"E35*F35","v":0.92568000000000006},6.6120000000000623E-3,7.1942446043166148E-3,1.3391761034668997E-2,1.3093658038688331E-2]
["Capacity Based Recovery (CBR) - Applicable for Class B Customers",{"$f":"B8","v":306.35599999999999},{"$f":"VLOOKUP($A36,'Data Pass Through'!$A:$D,2,FALSE)","v":4.0000000000000002E-4},{"$f":"B36*C36","v":0.12254240000000001},{"$f":"$C$8","v":308.56},{"$f":"VLOOKUP($A36,'Data Pass Through'!$A:$D,3,FALSE)","v":4.0000000000000002E-4},{"$f":"E36*F36","v":0.12342400000000001},8.8159999999999628E-4,7.1942446043165159E-3,1.7855681379558663E-3,1.7458210718251108E-3]
["Rural Rate Protection Charge",{"$f":"B8","v":306.35599999999999},{"$f":"VLOOKUP($A37,'Data Pass Through'!$A:$D,2,FALSE)","v":5.0000000000000001E-4},0.15317800000000001,308.56,{"$f":"VLOOKUP($A37,'Data Pass Through'!$A:$D,3,FALSE)","v":5.0000000000000001E-4},0.15428,1.1019999999999919E-3,7.1942446043164934E-3,2.231960172444833E-3,2.1822763397813883E-3]
["Standard Supply Service – Administration Charge (if applicable)",1,{"$f":"VLOOKUP($A38,'Data Pass Through'!$A:$D,2,FALSE)","v":0.25},{"$f":"B38*C38","v":0.25},1,{"$f":"VLOOKUP($A38,'Data Pass Through'!$A:$D,3,FALSE)","v":0.25},0.25,0,0,3.6167360844646629E-3,3.5362268923084463E-3]
["Sub-Total:  Regulatory",null,null,{"$f":"SUM(D35:D38)","v":1.4447884},null,null,{"$f":"SUM(G35:G38)","v":1.453384},8.5956000000000365E-3,5.9493833145393728E-3,2.102602542953436E-2,2.0557982342603275E-2]
["Total  Electricty Charge on Two-Tier RPP ",null,null,{"$f":"SUM(D14,D24,D25,D26,D32,D39)","v":74.784219599999986},null,null,{"$f":"SUM(G14,G24,G25,G26,G32,G39)","v":73.457064000000003},-1.3271555999999833,-1.7746465860024613E-2,1.0626992561105206]
["     HST",null,0.13,{"$f":"D40*C41","v":9.7219485479999985},null,{"$f":"C41","v":0.13},{"$f":"G40*F41","v":9.5494183200000009},-0.17253022799999762,-1.7746465860024593E-2,0.13815090329436769]
["Total Electricity Charge on Two-Tier RPP (including HST)",null,null,{"$f":"SUM(D40:D41)","v":84.506168147999986},null,null,{"$f":"SUM(G40:G41)","v":83.006482320000003},-1.4996858279999827,-1.7746465860024631E-2,1.2008501594048884]
["Ontario Electricity Rebate (OER)",null,{"$f":"IF(($B$4*12)<250000,VLOOKUP(A43,'Data Pass Through'!$A$4:$C$20,2,0),0)","v":-0.189},{"$f":"D40*C43","v":-14.134217504399997},null,{"$f":"C43","v":-0.189},{"$f":"G40*F43","v":-13.883385096000001},0.25083240839999554,1.7746465860024523E-2,-0.20085015940488843]
["Total Amount on Two-Tier RPP",null,null,{"$f":"SUM(D42:D43)","v":70.371950643599988},null,null,{"$f":"SUM(G42:G43)","v":69.123097224000006},-1.2488534195999819,-1.7746465860024579E-2,1]
["Total Electricty Charge on TOU (before HST)",null,null,{"$f":"SUM(D18,D24,D25,D27,D32,D39)","v":76.444669119999986},null,null,{"$f":"SUM(G18,G24,G25,G27,G32,G39)","v":75.129459199999985},-1.3152099200000009,-1.7204730364329703E-2,null,{"$f":"G45/$G$49","v":1.0626992561105206}]
["     HST",null,0.13,{"$f":"D45*C46","v":9.9378069855999982},null,{"$f":"C46","v":0.13},{"$f":"G45*F46","v":9.7668296959999985},-0.17097728959999969,-1.7204730364329658E-2,null,{"$f":"G46/$G$49","v":0.13815090329436769}]
["Total Electricity Charge on TOU (including HST)",null,null,{"$f":"SUM(D45:D46)","v":86.382476105599977},null,null,{"$f":"SUM(G45:G46)","v":84.896288895999987},-1.48618720959999,-1.7204730364329575E-2,null,{"$f":"G47/$G$49","v":1.2008501594048884}]
["Ontario Electricity Rebate (OER)",null,{"$f":"IF(($B$4*12)<250000,VLOOKUP(A48,'Data Pass Through'!$A$4:$C$20,2,0),0)","v":-0.189},{"$f":"D45*C48","v":-14.448042463679997},null,{"$f":"C48","v":-0.189},{"$f":"G45*F48","v":-14.199467788799998},0.24857467487999862,1.7204730364329596E-2,null,{"$f":"G48/$G$49","v":-0.2008501594048884}]
["Total Amount on TOU",null,null,{"$f":"SUM(D47:D48)","v":71.934433641919981},null,null,{"$f":"SUM(G47:G48)","v":70.696821107199995},-1.237612534719986,-1.7204730364329499E-2,null,{"$f":"G49/$G$49","v":1}]

{"sheet":"BI_NPDI_AR_Typical","index":85,"n_rows":49,"n_cols":11,"rows_kept":49,"cut":false,"hidden":false,"merged":[[0,0,0,10]]}
["2023 Bill Impacts (Typical Consumption Level) - AR_NPDI"]
[]
["Rate Class",{"$f":"VLOOKUP(A1,'Data BI List Acq_Seas'!C:E,2,FALSE)","v":"NPDI_RES"},{"$f":"VLOOKUP(A1,'Data BI List Acq_Seas'!C:E,3,FALSE)","v":"AR-NPDI"}]
["Monthly Consumption (kWh)",{"$f":"IF(COUNTIF(A1,\"*Low*\")>0,VLOOKUP(B3,'Data Billing Quantities'!$A:$Z,MATCH(\"Low kWh\",'Data Billing Quantities'!4:4,0),FALSE),IF(COUNTIF(A1,\"*Typical*\")>0,VLOOKUP(B3,'Data Billing Quantities'!$A:$Z,MATCH(\"Typical kWh\",'Data Billing Quantities'!4:4,0),FALSE),IF(COUNTIF(A1,\"*Average*\")>0,VLOOKUP(B3,'Data Billing Quantities'!$A:$Z,MATCH(\"Average kWh\",'Data Billing Quantities'!4:4,0),FALSE),IF(COUNTIF(A1,\"*High*\")>0,VLOOKUP(B3,'Data Billing Quantities'!$A:$Z,MATCH(\"High kWh\",'Data Billing Quantities'!4:4,0),FALSE),\"error\"))))","v":750},{"$f":"B4","v":750}]
["Peak (kW)",{"$f":"IF(COUNTIF(A1,\"*Low*\")>0,VLOOKUP(B3,'Data Billing Quantities'!$A:$Z,MATCH(\"Low kW\",'Data Billing Quantities'!4:4,0),FALSE),IF(COUNTIF(A1,\"*Typical*\")>0,VLOOKUP(B3,'Data Billing Quantities'!$A:$Z,MATCH(\"Typical kW\",'Data Billing Quantities'!4:4,0),FALSE),IF(COUNTIF(A1,\"*Average*\")>0,VLOOKUP(B3,'Data Billing Quantities'!$A:$Z,MATCH(\"Average kW\",'Data Billing Quantities'!4:4,0),FALSE),IF(COUNTIF(A1,\"*High*\")>0,VLOOKUP(B3,'Data Billing Quantities'!$A:$Z,MATCH(\"High kW\",'Data Billing Quantities'!4:4,0),FALSE),\"error\"))))","v":0},{"$f":"B5","v":0}]
["Loss factor",{"$f":"VLOOKUP(B3,'Data Billing Quantities'!A:D,MATCH(A6,'Data Billing Quantities'!4:4,0),FALSE)","v":1.0564},{"$f":"VLOOKUP(C3,'Data Billing Quantities'!A:D,MATCH(A6,'Data Billing Quantities'!4:4,0),FALSE)","v":1.0640000000000001}]
["Commodity Threshold",{"$f":"VLOOKUP(B3,'Data Billing Quantities'!A:D,MATCH(A7,'Data Billing Quantities'!4:4,0),FALSE)","v":600},{"$f":"B7","v":600}]
["Monthly Consumption (kWh) - Uplifted",{"$f":"B4*B6","v":792.3},{"$f":"C4*C6","v":798}]
["Charge determinant",{"$f":"VLOOKUP(B3,'Data Billing Quantities'!A:D,MATCH(A9,'Data Billing Quantities'!4:4,0),FALSE)","v":"kWh"},{"$f":"VLOOKUP(C3,'Data Billing Quantities'!A:D,MATCH(A9,'Data Billing Quantities'!4:4,0),FALSE)","v":"kWh"}]
[]
[null,"Volume","Current Rate ($)","Current Charge ($)","Volume","Proposed Rate ($)","Proposed Charge ($)","Change ($)","Change (%)","% of Total Bill on RPP","% of Total Bill"]
["Energy First Tier",{"$f":"IF(B4>B7,B7,B4)","v":600},{"$f":"VLOOKUP($A12,'Data Pass Through'!$A:$D,2,FALSE)","v":9.8000000000000004E-2},{"$f":"B12*C12","v":58.800000000000004},{"$f":"B12","v":600},{"$f":"VLOOKUP($A12,'Data Pass Through'!$A:$D,3,FALSE)","v":9.8000000000000004E-2},{"$f":"E12*F12","v":58.800000000000004},{"$f":"G12-D12","v":0},{"$f":"IF(ISERROR(H12/ABS(D12)),\"N/A\",(H12/ABS(D12)))","v":0},{"$f":"G12/$G$44","v":0.46275418943999008}]
["Energy Second Tier",{"$f":"IF(B4>B7,(B4)-B7,0)","v":150},{"$f":"VLOOKUP($A13,'Data Pass Through'!$A:$D,2,FALSE)","v":0.115},{"$f":"B13*C13","v":17.25},{"$f":"B13","v":150},{"$f":"VLOOKUP($A13,'Data Pass Through'!$A:$D,3,FALSE)","v":0.115},{"$f":"E13*F13","v":17.25},0,0,{"$f":"G13/$G$44","v":0.13575696884081342}]
["Sub-Total:  Energy (RPP Tiered)",null,null,{"$f":"SUM(D12:D13)","v":76.050000000000011},null,null,{"$f":"SUM(G12:G13)","v":76.050000000000011},0,0,{"$f":"G14/$G$44","v":0.59851115828080359}]
["TOU-Off Peak",{"$f":"B$4*VLOOKUP($B$3,'Data Billing Quantities'!$A:$O,MATCH(BI_NPDI_AR_Typical!$A15,'Data Billing Quantities'!$4:$4,0),FALSE)","v":480},{"$f":"VLOOKUP($A15,'Data Pass Through'!$A:$D,2,FALSE)","v":8.2000000000000003E-2},{"$f":"B15*C15","v":39.36},480,{"$f":"VLOOKUP($A15,'Data Pass Through'!$A:$D,3,FALSE)","v":8.2000000000000003E-2},{"$f":"E15*F15","v":39.36},0,0,null,{"$f":"G15/$G$49","v":0.3075772072616238}]
["TOU-Mid Peak",{"$f":"B$4*VLOOKUP($B$3,'Data Billing Quantities'!$A:$O,MATCH(BI_NPDI_AR_Typical!$A16,'Data Billing Quantities'!$4:$4,0),FALSE)","v":135},{"$f":"VLOOKUP($A16,'Data Pass Through'!$A:$D,2,FALSE)","v":0.113},{"$f":"B16*C16","v":15.255000000000001},135,{"$f":"VLOOKUP($A16,'Data Pass Through'!$A:$D,3,FALSE)","v":0.113},{"$f":"E16*F16","v":15.255000000000001},0,0,null,0.11920961119857905]
["TOU-On Peak",{"$f":"B$4*VLOOKUP($B$3,'Data Billing Quantities'!$A:$O,MATCH(BI_NPDI_AR_Typical!$A17,'Data Billing Quantities'!$4:$4,0),FALSE)","v":135},{"$f":"VLOOKUP($A17,'Data Pass Through'!$A:$D,2,FALSE)","v":0.17},{"$f":"B17*C17","v":22.950000000000003},135,{"$f":"VLOOKUP($A17,'Data Pass Through'!$A:$D,3,FALSE)","v":0.17},{"$f":"E17*F17","v":22.950000000000003},0,0,null,0.1793418929536145]
["Sub-Total:  Energy (RPP TOU)",null,null,{"$f":"SUM(D15:D17)","v":77.564999999999998},null,null,{"$f":"SUM(G15:G17)","v":77.564999999999998},0,0,{"$f":"G18/$G$44","v":0.61043416163117059},0.6061287114138173]
["Service Charge",1,{"$f":"VLOOKUP($B$3,'Data Current Rates'!$A:$AP,MATCH(BI_NPDI_AR_Typical!$A19,CurrentHeader,0),FALSE)","v":38.69},{"$f":"B19*C19","v":38.69},1,{"$f":"VLOOKUP($C$3,'Data Proposed Rates'!$A:$AZ,MATCH(BI_NPDI_AR_Typical!$A19,ProposedHeader,0),FALSE)","v":35.94},{"$f":"E19*F19","v":35.94},-2.75,-7.1077797880589308E-2,0.28284669334138168,0.28085174870383023]
["Distribution Volumetric Charge",{"$f":"IF($B$9=\"kWh\",$B$4,$B$5)","v":750},{"$f":"VLOOKUP($B$3,'Data Current Rates'!$A:$AP,MATCH(BI_NPDI_AR_Typical!$A20,CurrentHeader,0),FALSE)","v":0},{"$f":"B20*C20","v":0},{"$f":"IF($C$9=\"kWh\",$C$4,$C$5)","v":750},{"$f":"VLOOKUP($C$3,'Data Proposed Rates'!$A:$AZ,MATCH(BI_NPDI_AR_Typical!$A20,ProposedHeader,0),FALSE)","v":0},0,0,"N/A",0,0]
["Low Voltage Service Rate",{"$f":"IF($B$9=\"kWh\",$B$4,$B$5)","v":750},{"$f":"VLOOKUP($B$3,'Data Current Rates'!$A:$AP,MATCH(BI_NPDI_AR_Typical!$A21,CurrentHeader,0),FALSE)","v":8.9999999999999998E-4},0.67499999999999993,null,null,null,-0.67499999999999993,-1,0,0]
["Rate Rider for Application of Tax Change",750,{"$f":"VLOOKUP($B$3,'Data Current Rates'!$A:$AP,MATCH(BI_NPDI_AR_Typical!$A22,CurrentHeader,0),FALSE)","v":2.0000000000000001E-4},0.15,null,null,null,-0.15,-1,0,0]
["Group 1 Volumetric DVA Rider (General)",null,null,null,{"$f":"IF($C$9=\"kWh\",$C$4,$C$5)","v":750},{"$f":"VLOOKUP($C$3,'Data Proposed Rates'!$A:$AZ,MATCH(BI_NPDI_AR_Typical!$A23,ProposedHeader,0),FALSE)","v":-5.0000000000000001E-4},-0.375,-0.375,"N/A",-2.9512384530611612E-3,-2.930423087477361E-3]
["Sub-Total:  Distribution (excluding pass through)",null,null,{"$f":"SUM(INDIRECT(\"D19:D\"&ROW()-1))","v":39.514999999999993},null,null,{"$f":"SUM(INDIRECT(\"g19:g\"&ROW()-1))","v":35.564999999999998},{"$f":"G24-D24","v":-3.9499999999999957},-9.9962039731747346E-2,0.27989545488832052,0.27792132561635291]
["Smart Metering Entity Charge",{"$f":"B19","v":1},{"$f":"VLOOKUP($A25,'Data Pass Through'!$A:$D,2,FALSE)","v":0.56999999999999995},{"$f":"B25*C25","v":0.56999999999999995},{"$f":"E19","v":1},{"$f":"VLOOKUP($A25,'Data Pass Through'!$A:$D,3,FALSE)","v":0.56999999999999995},{"$f":"E25*F25","v":0.56999999999999995},0,0,4.4858824486529647E-3,4.4542430929655884E-3]
["Line Losses on Cost of Power (based on two-tier RPP prices)",{"$f":"B8-B4","v":42.299999999999955},{"$f":"IF(B4>B7,C13,C12)","v":0.115},{"$f":"B26*C26","v":4.8644999999999952},{"$f":"C8-C4","v":48},{"$f":"IF(C4>C7,F13,F12)","v":0.115},{"$f":"E26*F26","v":5.5200000000000005},0.6555000000000053,0.13475177304964661,4.3442230029060294E-2,4.3135827847666758E-2]
["Line Losses on Cost of Power (based on TOU prices)",{"$f":"B8-B4","v":42.299999999999955},{"$f":"VLOOKUP($B$3,'Data Billing Quantities'!$A:$O,MATCH(BI_NPDI_AR_Typical!$A15,'Data Billing Quantities'!$4:$4,0),FALSE)*C15+VLOOKUP($B$3,'Data Billing Quantities'!$A:$O,MATCH(BI_NPDI_AR_Typical!$A16,'Data Billing Quantities'!$4:$4,0),FALSE)*C16+VLOOKUP($B$3,'Data Billing Quantities'!$A:$O,MATCH(BI_NPDI_AR_Typical!$A17,'Data Billing Quantities'!$4:$4,0),FALSE)*C17","v":0.10342000000000001},{"$f":"B27*C27","v":4.3746659999999959},{"$f":"C8-C4","v":48},{"$f":"VLOOKUP($C$3,'Data Billing Quantities'!$A:$O,MATCH(BI_NPDI_AR_Typical!$A15,'Data Billing Quantities'!$4:$4,0),FALSE)*F15+VLOOKUP($C$3,'Data Billing Quantities'!$A:$O,MATCH(BI_NPDI_AR_Typical!$A16,'Data Billing Quantities'!$4:$4,0),FALSE)*F16+VLOOKUP($C$3,'Data Billing Quantities'!$A:$O,MATCH(BI_NPDI_AR_Typical!$A17,'Data Billing Quantities'!$4:$4,0),FALSE)*F17","v":0.10342000000000001},{"$f":"E27*F27","v":4.9641600000000006},0.58949400000000463,0.13475177304964658,3.9067786344394922E-2,3.8792237530484316E-2]
["Sub-Total:  Distribution (based on two-tier RPP prices)",null,null,{"$f":"SUM(D24,D25:D26)","v":44.949499999999986},null,null,{"$f":"SUM(G24,G25:G26)","v":41.655000000000001},-3.2944999999999851,-7.3293362551307265E-2,0.3278235673660338,0.32551139655698524]
["Sub-Total:  Distribution (based on TOU prices)",null,null,{"$f":"SUM(D24,D25,D27)","v":44.459665999999991},null,null,{"$f":"SUM(G24,G25,G27)","v":41.099159999999998},-3.3605059999999938,-7.5585498100682866E-2,0.32344912368136841,0.32116780623980279]
["Retail Transmission Rate – Network Service Rate",{"$f":"IF($B$9=\"kWh\",$B$8,$B$5)","v":792.3},{"$f":"VLOOKUP($B$3,'Data Current Rates'!$A:$AP,MATCH(BI_NPDI_AR_Typical!$A30,CurrentHeader,0),FALSE)","v":8.3000000000000001E-3},{"$f":"B30*C30","v":6.5760899999999998},{"$f":"IF($C$9=\"kWh\",$C$8,$C$5)","v":798},{"$f":"VLOOKUP($C$3,'Data Proposed Rates'!$A:$AZ,MATCH(BI_NPDI_AR_Typical!$A30,ProposedHeader,0),FALSE)","v":1.01E-2},{"$f":"E30*F30","v":8.0597999999999992},{"$f":"G30-D30","v":1.4837099999999994},0.22562191210886703,6.3430377823952916E-2,6.2982997334533414E-2]
["Retail Transmission Rate – Line and Transformation Connection Service Rate",{"$f":"IF($B$9=\"kWh\",$B$8,$B$5)","v":792.3},{"$f":"VLOOKUP($B$3,'Data Current Rates'!$A:$AP,MATCH(BI_NPDI_AR_Typical!$A31,CurrentHeader,0),FALSE)","v":3.8999999999999998E-3},{"$f":"B31*C31","v":3.0899699999999997},{"$f":"IF($C$9=\"kWh\",$C$8,$C$5)","v":798},{"$f":"VLOOKUP($C$3,'Data Proposed Rates'!$A:$AZ,MATCH(BI_NPDI_AR_Typical!$A31,ProposedHeader,0),FALSE)","v":7.4000000000000003E-3},{"$f":"E31*F31","v":5.9052000000000007},{"$f":"G31-D31","v":2.815230000000001},0.91108651540306262,4.6473742168044722E-2,4.6145958443123504E-2]
["Sub-Total:  Retail Transmission ",null,null,{"$f":"SUM(D30:D31)","v":9.6660599999999999},null,null,{"$f":"SUM(G30:G31)","v":13.965},{"$f":"G32-D32","v":4.29894},0.44474584267012618,0.10990411999199765,0.10912895577765691]
["Sub-Total:  Delivery (based on two-tier RPP prices)",null,null,{"$f":"D28+D32","v":54.615559999999988},null,null,{"$f":"G28+G32","v":55.620000000000005},{"$f":"G33-D33","v":1.0044400000000167},1.8391095870847373E-2,0.43772768735803147,0.43464035233464221]
["Sub-Total:  Delivery (based on TOU prices)",null,null,{"$f":"D29+D32","v":54.125725999999993},null,null,{"$f":"G29+G32","v":55.064160000000001},{"$f":"G34-D34","v":0.93843400000000798},1.7338039955344119E-2,0.43335324367336608,0.43029676201745976]
["Wholesale Market Service Rate (WMS) - not including CBR",{"$f":"B8","v":792.3},{"$f":"VLOOKUP($A35,'Data Pass Through'!$A:$D,2,FALSE)","v":3.0000000000000001E-3},{"$f":"B35*C35","v":2.3769},{"$f":"$C$8","v":798},{"$f":"VLOOKUP($A35,'Data Pass Through'!$A:$D,3,FALSE)","v":3.0000000000000001E-3},{"$f":"E35*F35","v":2.3940000000000001},1.7100000000000115E-2,7.1942446043165948E-3,1.8840706284342455E-2,1.8707820990455471E-2]
["Capacity Based Recovery (CBR) - Applicable for Class B Customers",{"$f":"B8","v":792.3},{"$f":"VLOOKUP($A36,'Data Pass Through'!$A:$D,2,FALSE)","v":4.0000000000000002E-4},{"$f":"B36*C36","v":0.31691999999999998},{"$f":"$C$8","v":798},{"$f":"VLOOKUP($A36,'Data Pass Through'!$A:$D,3,FALSE)","v":4.0000000000000002E-4},{"$f":"E36*F36","v":0.31920000000000004},2.2800000000000598E-3,7.1942446043167354E-3,2.5120941712456608E-3,2.4943761320607299E-3]
["Rural Rate Protection Charge",{"$f":"B8","v":792.3},{"$f":"VLOOKUP($A37,'Data Pass Through'!$A:$D,2,FALSE)","v":5.0000000000000001E-4},0.39615,798,{"$f":"VLOOKUP($A37,'Data Pass Through'!$A:$D,3,FALSE)","v":5.0000000000000001E-4},0.39900000000000002,2.8500000000000192E-3,7.1942446043165948E-3,3.1401177140570756E-3,3.117970165075912E-3]
["Standard Supply Service – Administration Charge (if applicable)",1,{"$f":"VLOOKUP($A38,'Data Pass Through'!$A:$D,2,FALSE)","v":0.25},{"$f":"B38*C38","v":0.25},1,{"$f":"VLOOKUP($A38,'Data Pass Through'!$A:$D,3,FALSE)","v":0.25},0.25,0,0,1.9674923020407743E-3,1.9536153916515737E-3]
["Sub-Total:  Regulatory",null,null,{"$f":"SUM(D35:D38)","v":3.3399700000000001},null,null,{"$f":"SUM(G35:G38)","v":3.3622000000000001},2.2229999999999972E-2,6.6557484049257843E-3,2.6460410471685965E-2,2.6273782679243688E-2]
["Total  Electricty Charge on Two-Tier RPP ",null,null,{"$f":"SUM(D14,D24,D25,D26,D32,D39)","v":134.00552999999996},null,null,{"$f":"SUM(G14,G24,G25,G26,G32,G39)","v":135.03219999999999},1.0266700000000242,7.661400242214067E-3,1.0626992561105209]
["     HST",null,0.13,{"$f":"D40*C41","v":17.420718899999997},null,{"$f":"C41","v":0.13},{"$f":"G40*F41","v":17.554185999999998},0.13346710000000073,7.6614002422139274E-3,0.13815090329436769]
["Total Electricity Charge on Two-Tier RPP (including HST)",null,null,{"$f":"SUM(D40:D41)","v":151.42624889999996},null,null,{"$f":"SUM(G40:G41)","v":152.58638599999998},1.1601371000000142,7.6614002422139811E-3,1.2008501594048884]
["Ontario Electricity Rebate (OER)",null,{"$f":"IF(($B$4*12)<250000,VLOOKUP(A43,'Data Pass Through'!$A$4:$C$20,2,0),0)","v":-0.189},{"$f":"D40*C43","v":-25.327045169999995},null,{"$f":"C43","v":-0.189},{"$f":"G40*F43","v":-25.521085799999998},-0.19404063000000349,-7.6614002422140245E-3,-0.20085015940488843]
["Total Amount on Two-Tier RPP",null,null,{"$f":"SUM(D42:D43)","v":126.09920372999997},null,null,{"$f":"SUM(G42:G43)","v":127.06530019999998},0.96609647000001075,7.6614002422139716E-3,1]
["Total Electricty Charge on TOU (before HST)",null,null,{"$f":"SUM(D18,D24,D25,D27,D32,D39)","v":135.03069599999995},null,null,{"$f":"SUM(G18,G24,G25,G27,G32,G39)","v":135.99135999999999},0.96066400000003682,7.1144119704458697E-3,null,{"$f":"G45/$G$49","v":1.0626992561105206}]
["     HST",null,0.13,{"$f":"D45*C46","v":17.553990479999992},null,{"$f":"C46","v":0.13},{"$f":"G45*F46","v":17.678876799999998},0.12488632000000521,7.114411970445894E-3,null,{"$f":"G46/$G$49","v":0.13815090329436769}]
["Total Electricity Charge on TOU (including HST)",null,null,{"$f":"SUM(D45:D46)","v":152.58468647999993},null,null,{"$f":"SUM(G45:G46)","v":153.6702368},1.0855503200000669,7.1144119704460362E-3,null,{"$f":"G47/$G$49","v":1.2008501594048884}]
["Ontario Electricity Rebate (OER)",null,{"$f":"IF(($B$4*12)<250000,VLOOKUP(A48,'Data Pass Through'!$A$4:$C$20,2,0),0)","v":-0.189},{"$f":"D45*C48","v":-25.52080154399999},null,{"$f":"C48","v":-0.189},{"$f":"G45*F48","v":-25.702367039999999},-0.18156549600000815,-7.1144119704459165E-3,null,{"$f":"G48/$G$49","v":-0.2008501594048884}]
["Total Amount on TOU",null,null,{"$f":"SUM(D47:D48)","v":127.06388493599994},null,null,{"$f":"SUM(G47:G48)","v":127.96786976},0.9039848240000623,7.1144119704460882E-3,null,{"$f":"G49/$G$49","v":1}]

{"sheet":"BI_NPDI_AR_Avg","index":86,"n_rows":49,"n_cols":11,"rows_kept":49,"cut":false,"hidden":false,"merged":[[0,0,0,10]]}
["2023 Bill Impacts (Average Consumption Level) - AR_NPDI"]
[]
["Rate Class",{"$f":"VLOOKUP(A1,'Data BI List Acq_Seas'!C:E,2,FALSE)","v":"NPDI_RES"},{"$f":"VLOOKUP(A1,'Data BI List Acq_Seas'!C:E,3,FALSE)","v":"AR-NPDI"}]
["Monthly Consumption (kWh)",{"$f":"IF(COUNTIF(A1,\"*Low*\")>0,VLOOKUP(B3,'Data Billing Quantities'!$A:$Z,MATCH(\"Low kWh\",'Data Billing Quantities'!4:4,0),FALSE),IF(COUNTIF(A1,\"*Typical*\")>0,VLOOKUP(B3,'Data Billing Quantities'!$A:$Z,MATCH(\"Typical kWh\",'Data Billing Quantities'!4:4,0),FALSE),IF(COUNTIF(A1,\"*Average*\")>0,VLOOKUP(B3,'Data Billing Quantities'!$A:$Z,MATCH(\"Average kWh\",'Data Billing Quantities'!4:4,0),FALSE),IF(COUNTIF(A1,\"*High*\")>0,VLOOKUP(B3,'Data Billing Quantities'!$A:$Z,MATCH(\"High kWh\",'Data Billing Quantities'!4:4,0),FALSE),\"error\"))))","v":692},{"$f":"B4","v":692}]
["Peak (kW)",{"$f":"IF(COUNTIF(A1,\"*Low*\")>0,VLOOKUP(B3,'Data Billing Quantities'!$A:$Z,MATCH(\"Low kW\",'Data Billing Quantities'!4:4,0),FALSE),IF(COUNTIF(A1,\"*Typical*\")>0,VLOOKUP(B3,'Data Billing Quantities'!$A:$Z,MATCH(\"Typical kW\",'Data Billing Quantities'!4:4,0),FALSE),IF(COUNTIF(A1,\"*Average*\")>0,VLOOKUP(B3,'Data Billing Quantities'!$A:$Z,MATCH(\"Average kW\",'Data Billing Quantities'!4:4,0),FALSE),IF(COUNTIF(A1,\"*High*\")>0,VLOOKUP(B3,'Data Billing Quantities'!$A:$Z,MATCH(\"High kW\",'Data Billing Quantities'!4:4,0),FALSE),\"error\"))))","v":0},{"$f":"B5","v":0}]
["Loss factor",{"$f":"VLOOKUP(B3,'Data Billing Quantities'!A:D,MATCH(A6,'Data Billing Quantities'!4:4,0),FALSE)","v":1.0564},{"$f":"VLOOKUP(C3,'Data Billing Quantities'!A:D,MATCH(A6,'Data Billing Quantities'!4:4,0),FALSE)","v":1.0640000000000001}]
["Commodity Threshold",{"$f":"VLOOKUP(B3,'Data Billing Quantities'!A:D,MATCH(A7,'Data Billing Quantities'!4:4,0),FALSE)","v":600},{"$f":"B7","v":600}]
["Monthly Consumption (kWh) - Uplifted",{"$f":"B4*B6","v":731.02880000000005},{"$f":"C4*C6","v":736.28800000000001}]
["Charge determinant",{"$f":"VLOOKUP(B3,'Data Billing Quantities'!A:D,MATCH(A9,'Data Billing Quantities'!4:4,0),FALSE)","v":"kWh"},{"$f":"VLOOKUP(C3,'Data Billing Quantities'!A:D,MATCH(A9,'Data Billing Quantities'!4:4,0),FALSE)","v":"kWh"}]
[]
[null,"Volume","Current Rate ($)","Current Charge ($)","Volume","Proposed Rate ($)","Proposed Charge ($)","Change ($)","Change (%)","% of Total Bill on RPP","% of Total Bill"]
["Energy First Tier",{"$f":"IF(B4>B7,B7,B4)","v":600},{"$f":"VLOOKUP($A12,'Data Pass Through'!$A:$D,2,FALSE)","v":9.8000000000000004E-2},{"$f":"B12*C12","v":58.800000000000004},{"$f":"B12","v":600},{"$f":"VLOOKUP($A12,'Data Pass Through'!$A:$D,3,FALSE)","v":9.8000000000000004E-2},{"$f":"E12*F12","v":58.800000000000004},{"$f":"G12-D12","v":0},{"$f":"IF(ISERROR(H12/ABS(D12)),\"N/A\",(H12/ABS(D12)))","v":0},{"$f":"G12/$G$44","v":0.49340570868124128}]
["Energy Second Tier",{"$f":"IF(B4>B7,(B4)-B7,0)","v":92},{"$f":"VLOOKUP($A13,'Data Pass Through'!$A:$D,2,FALSE)","v":0.115},{"$f":"B13*C13","v":10.58},{"$f":"B13","v":92},{"$f":"VLOOKUP($A13,'Data Pass Through'!$A:$D,3,FALSE)","v":0.115},{"$f":"E13*F13","v":10.58},0,0,{"$f":"G13/$G$44","v":8.8779462548427418E-2}]
["Sub-Total:  Energy (RPP Tiered)",null,null,{"$f":"SUM(D12:D13)","v":69.38000000000001},null,null,{"$f":"SUM(G12:G13)","v":69.38000000000001},0,0,{"$f":"G14/$G$44","v":0.58218517122966873}]
["TOU-Off Peak",{"$f":"B$4*VLOOKUP($B$3,'Data Billing Quantities'!$A:$O,MATCH(BI_NPDI_AR_Avg!$A15,'Data Billing Quantities'!$4:$4,0),FALSE)","v":442.88},{"$f":"VLOOKUP($A15,'Data Pass Through'!$A:$D,2,FALSE)","v":8.2000000000000003E-2},{"$f":"B15*C15","v":36.316160000000004},442.88,{"$f":"VLOOKUP($A15,'Data Pass Through'!$A:$D,3,FALSE)","v":8.2000000000000003E-2},{"$f":"E15*F15","v":36.316160000000004},0,0,null,{"$f":"G15/$G$49","v":0.30076307435140914}]
["TOU-Mid Peak",{"$f":"B$4*VLOOKUP($B$3,'Data Billing Quantities'!$A:$O,MATCH(BI_NPDI_AR_Avg!$A16,'Data Billing Quantities'!$4:$4,0),FALSE)","v":124.56},{"$f":"VLOOKUP($A16,'Data Pass Through'!$A:$D,2,FALSE)","v":0.113},{"$f":"B16*C16","v":14.075280000000001},124.56,{"$f":"VLOOKUP($A16,'Data Pass Through'!$A:$D,3,FALSE)","v":0.113},{"$f":"E16*F16","v":14.075280000000001},0,0,null,0.11656861532598441]
["TOU-On Peak",{"$f":"B$4*VLOOKUP($B$3,'Data Billing Quantities'!$A:$O,MATCH(BI_NPDI_AR_Avg!$A17,'Data Billing Quantities'!$4:$4,0),FALSE)","v":124.56},{"$f":"VLOOKUP($A17,'Data Pass Through'!$A:$D,2,FALSE)","v":0.17},{"$f":"B17*C17","v":21.1752},124.56,{"$f":"VLOOKUP($A17,'Data Pass Through'!$A:$D,3,FALSE)","v":0.17},{"$f":"E17*F17","v":21.1752},0,0,null,0.17536871332227741]
["Sub-Total:  Energy (RPP TOU)",null,null,{"$f":"SUM(D15:D17)","v":71.566640000000007},null,null,{"$f":"SUM(G15:G17)","v":71.566640000000007},0,0,{"$f":"G18/$G$44","v":0.60053382189005566},0.59270040299967097]
["Service Charge",1,{"$f":"VLOOKUP($B$3,'Data Current Rates'!$A:$AP,MATCH(BI_NPDI_AR_Avg!$A19,CurrentHeader,0),FALSE)","v":38.69},{"$f":"B19*C19","v":38.69},1,{"$f":"VLOOKUP($C$3,'Data Proposed Rates'!$A:$AZ,MATCH(BI_NPDI_AR_Avg!$A19,ProposedHeader,0),FALSE)","v":35.94},{"$f":"E19*F19","v":35.94},-2.75,-7.1077797880589308E-2,0.30158165255108521,0.29764779349440146]
["Distribution Volumetric Charge",{"$f":"IF($B$9=\"kWh\",$B$4,$B$5)","v":692},{"$f":"VLOOKUP($B$3,'Data Current Rates'!$A:$AP,MATCH(BI_NPDI_AR_Avg!$A20,CurrentHeader,0),FALSE)","v":0},{"$f":"B20*C20","v":0},{"$f":"IF($C$9=\"kWh\",$C$4,$C$5)","v":692},{"$f":"VLOOKUP($C$3,'Data Proposed Rates'!$A:$AZ,MATCH(BI_NPDI_AR_Avg!$A20,ProposedHeader,0),FALSE)","v":0},0,0,"N/A",0,0]
["Low Voltage Service Rate",{"$f":"IF($B$9=\"kWh\",$B$4,$B$5)","v":692},{"$f":"VLOOKUP($B$3,'Data Current Rates'!$A:$AP,MATCH(BI_NPDI_AR_Avg!$A21,CurrentHeader,0),FALSE)","v":8.9999999999999998E-4},0.62280000000000002,null,null,null,-0.62280000000000002,-1,0,0]
["Rate Rider for Application of Tax Change",692,{"$f":"VLOOKUP($B$3,'Data Current Rates'!$A:$AP,MATCH(BI_NPDI_AR_Avg!$A22,CurrentHeader,0),FALSE)","v":2.0000000000000001E-4},0.1384,null,null,null,-0.1384,-1,0,0]
["Group 1 Volumetric DVA Rider (General)",null,null,null,{"$f":"IF($C$9=\"kWh\",$C$4,$C$5)","v":692},{"$f":"VLOOKUP($C$3,'Data Proposed Rates'!$A:$AZ,MATCH(BI_NPDI_AR_Avg!$A23,ProposedHeader,0),FALSE)","v":-5.0000000000000001E-4},-0.34600000000000003,-0.34600000000000003,"N/A",-2.9033737279542432E-3,-2.8655018516711996E-3]
["Sub-Total:  Distribution (excluding pass through)",null,null,{"$f":"SUM(INDIRECT(\"D19:D\"&ROW()-1))","v":39.451199999999993},null,null,{"$f":"SUM(INDIRECT(\"g19:g\"&ROW()-1))","v":35.594000000000001},{"$f":"G24-D24","v":-3.8571999999999917},-9.7771423936407323E-2,0.29867827882313097,0.29478229164273029]
["Smart Metering Entity Charge",{"$f":"B19","v":1},{"$f":"VLOOKUP($A25,'Data Pass Through'!$A:$D,2,FALSE)","v":0.56999999999999995},{"$f":"B25*C25","v":0.56999999999999995},{"$f":"E19","v":1},{"$f":"VLOOKUP($A25,'Data Pass Through'!$A:$D,3,FALSE)","v":0.56999999999999995},{"$f":"E25*F25","v":0.56999999999999995},0,0,4.7830145229303999E-3,4.7206244377242298E-3]
["Line Losses on Cost of Power (based on two-tier RPP prices)",{"$f":"B8-B4","v":39.028800000000047},{"$f":"IF(B4>B7,C13,C12)","v":0.115},{"$f":"B26*C26","v":4.4883120000000059},{"$f":"C8-C4","v":44.288000000000011},{"$f":"IF(C4>C7,F13,F12)","v":0.115},{"$f":"E26*F26","v":5.0931200000000016},0.60480799999999579,0.13475177304964428,4.273766127548647E-2,4.2180187256600069E-2]
["Line Losses on Cost of Power (based on TOU prices)",{"$f":"B8-B4","v":39.028800000000047},{"$f":"VLOOKUP($B$3,'Data Billing Quantities'!$A:$O,MATCH(BI_NPDI_AR_Avg!$A15,'Data Billing Quantities'!$4:$4,0),FALSE)*C15+VLOOKUP($B$3,'Data Billing Quantities'!$A:$O,MATCH(BI_NPDI_AR_Avg!$A16,'Data Billing Quantities'!$4:$4,0),FALSE)*C16+VLOOKUP($B$3,'Data Billing Quantities'!$A:$O,MATCH(BI_NPDI_AR_Avg!$A17,'Data Billing Quantities'!$4:$4,0),FALSE)*C17","v":0.10342000000000001},{"$f":"B27*C27","v":4.0363584960000054},{"$f":"C8-C4","v":44.288000000000011},{"$f":"VLOOKUP($C$3,'Data Billing Quantities'!$A:$O,MATCH(BI_NPDI_AR_Avg!$A15,'Data Billing Quantities'!$4:$4,0),FALSE)*F15+VLOOKUP($C$3,'Data Billing Quantities'!$A:$O,MATCH(BI_NPDI_AR_Avg!$A16,'Data Billing Quantities'!$4:$4,0),FALSE)*F16+VLOOKUP($C$3,'Data Billing Quantities'!$A:$O,MATCH(BI_NPDI_AR_Avg!$A17,'Data Billing Quantities'!$4:$4,0),FALSE)*F17","v":0.10342000000000001},{"$f":"E27*F27","v":4.5802649600000018},0.54390646399999643,0.13475177304964434,3.843416460096357E-2,3.7932825791978951E-2]
["Sub-Total:  Distribution (based on two-tier RPP prices)",null,null,{"$f":"SUM(D24,D25:D26)","v":44.509512000000001},null,null,{"$f":"SUM(G24,G25:G26)","v":41.25712},-3.2523920000000004,-7.3071841362808032E-2,0.34619895462154782,0.34168310333705454]
["Sub-Total:  Distribution (based on TOU prices)",null,null,{"$f":"SUM(D24,D25,D27)","v":44.057558495999999},null,null,{"$f":"SUM(G24,G25,G27)","v":40.744264960000002},-3.3132935359999962,-7.5203748212711585E-2,0.34189545794702497,0.33743574187243347]
["Retail Transmission Rate – Network Service Rate",{"$f":"IF($B$9=\"kWh\",$B$8,$B$5)","v":731.02880000000005},{"$f":"VLOOKUP($B$3,'Data Current Rates'!$A:$AP,MATCH(BI_NPDI_AR_Avg!$A30,CurrentHeader,0),FALSE)","v":8.3000000000000001E-3},{"$f":"B30*C30","v":6.0675390400000007},{"$f":"IF($C$9=\"kWh\",$C$8,$C$5)","v":736.28800000000001},{"$f":"VLOOKUP($C$3,'Data Proposed Rates'!$A:$AZ,MATCH(BI_NPDI_AR_Avg!$A30,ProposedHeader,0),FALSE)","v":1.01E-2},{"$f":"E30*F30","v":7.4365087999999995},{"$f":"G30-D30","v":1.3689697599999988},0.2256219121088669,6.2401630860174945E-2,6.1587658197598753E-2]
["Retail Transmission Rate – Line and Transformation Connection Service Rate",{"$f":"IF($B$9=\"kWh\",$B$8,$B$5)","v":731.02880000000005},{"$f":"VLOOKUP($B$3,'Data Current Rates'!$A:$AP,MATCH(BI_NPDI_AR_Avg!$A31,CurrentHeader,0),FALSE)","v":3.8999999999999998E-3},{"$f":"B31*C31","v":2.8510123200000002},{"$f":"IF($C$9=\"kWh\",$C$8,$C$5)","v":736.28800000000001},{"$f":"VLOOKUP($C$3,'Data Proposed Rates'!$A:$AZ,MATCH(BI_NPDI_AR_Avg!$A31,ProposedHeader,0),FALSE)","v":7.4000000000000003E-3},{"$f":"E31*F31","v":5.4485312000000006},{"$f":"G31-D31","v":2.5975188800000004},0.91108651540306229,4.5720006768841054E-2,4.5123630758636714E-2]
["Sub-Total:  Retail Transmission ",null,null,{"$f":"SUM(D30:D31)","v":8.9185513600000004},null,null,{"$f":"SUM(G30:G31)","v":12.88504},{"$f":"G32-D32","v":3.9664886399999997},0.44474584267012612,0.108121637629016,0.10671128895623547]
["Sub-Total:  Delivery (based on two-tier RPP prices)",null,null,{"$f":"D28+D32","v":53.428063360000003},null,null,{"$f":"G28+G32","v":54.142160000000004},{"$f":"G33-D33","v":0.71409664000000106},1.3365572230990202E-2,0.45432059225056387,0.44839439229329003]
["Sub-Total:  Delivery (based on TOU prices)",null,null,{"$f":"D29+D32","v":52.976109856000001},null,null,{"$f":"G29+G32","v":53.629304959999999},{"$f":"G34-D34","v":0.65319510399999814},1.2329993760876691E-2,0.45001709557604092,0.44414703082866891]
["Wholesale Market Service Rate (WMS) - not including CBR",{"$f":"B8","v":731.02880000000005},{"$f":"VLOOKUP($A35,'Data Pass Through'!$A:$D,2,FALSE)","v":3.0000000000000001E-3},{"$f":"B35*C35","v":2.1930864000000003},{"$f":"$C$8","v":736.28800000000001},{"$f":"VLOOKUP($A35,'Data Pass Through'!$A:$D,3,FALSE)","v":3.0000000000000001E-3},{"$f":"E35*F35","v":2.2088640000000002},1.5777599999999836E-2,7.1942446043164708E-3,1.8535137879259887E-2,1.8293363821068939E-2]
["Capacity Based Recovery (CBR) - Applicable for Class B Customers",{"$f":"B8","v":731.02880000000005},{"$f":"VLOOKUP($A36,'Data Pass Through'!$A:$D,2,FALSE)","v":4.0000000000000002E-4},{"$f":"B36*C36","v":0.29241152000000004},{"$f":"$C$8","v":736.28800000000001},{"$f":"VLOOKUP($A36,'Data Pass Through'!$A:$D,3,FALSE)","v":4.0000000000000002E-4},{"$f":"E36*F36","v":0.29451520000000003},2.1036799999999967E-3,7.1942446043165341E-3,2.4713517172346515E-3,2.4391151761425254E-3]
["Rural Rate Protection Charge",{"$f":"B8","v":731.02880000000005},{"$f":"VLOOKUP($A37,'Data Pass Through'!$A:$D,2,FALSE)","v":5.0000000000000001E-4},0.36551440000000002,736.28800000000001,{"$f":"VLOOKUP($A37,'Data Pass Through'!$A:$D,3,FALSE)","v":5.0000000000000001E-4},0.36814400000000003,2.6296000000000097E-3,7.1942446043165732E-3,3.0891896465433145E-3,3.0488939701781566E-3]
["Standard Supply Service – Administration Charge (if applicable)",1,{"$f":"VLOOKUP($A38,'Data Pass Through'!$A:$D,2,FALSE)","v":0.25},{"$f":"B38*C38","v":0.25},1,{"$f":"VLOOKUP($A38,'Data Pass Through'!$A:$D,3,FALSE)","v":0.25},0.25,0,0,2.0978133872501755E-3,2.0704493147913291E-3]
["Sub-Total:  Regulatory",null,null,{"$f":"SUM(D35:D38)","v":3.1010123200000002},null,null,{"$f":"SUM(G35:G38)","v":3.1215232000000004},2.0510880000000231E-2,6.6142529869085559E-3,2.6193492630288029E-2,2.5851822282180952E-2]
["Total  Electricty Charge on Two-Tier RPP ",null,null,{"$f":"SUM(D14,D24,D25,D26,D32,D39)","v":125.90907567999999},null,null,{"$f":"SUM(G14,G24,G25,G26,G32,G39)","v":126.64368320000001},0.73460752000002572,5.8344286623709558E-3,1.0626992561105206]
["     HST",null,0.13,{"$f":"D40*C41","v":16.3681798384},null,{"$f":"C41","v":0.13},{"$f":"G40*F41","v":16.463678816000002},9.5498977600001922E-2,5.8344286623708682E-3,0.13815090329436769]
["Total Electricity Charge on Two-Tier RPP (including HST)",null,null,{"$f":"SUM(D40:D41)","v":142.27725551839998},null,null,{"$f":"SUM(G40:G41)","v":143.10736201600002},0.83010649760004185,5.8344286623710452E-3,1.2008501594048884]
["Ontario Electricity Rebate (OER)",null,{"$f":"IF(($B$4*12)<250000,VLOOKUP(A43,'Data Pass Through'!$A$4:$C$20,2,0),0)","v":-0.189},{"$f":"D40*C43","v":-23.796815303519999},null,{"$f":"C43","v":-0.189},{"$f":"G40*F43","v":-23.935656124800001},-0.1388408212800023,-5.8344286623708474E-3,-0.2008501594048884]
["Total Amount on Two-Tier RPP",null,null,{"$f":"SUM(D42:D43)","v":118.48044021487999},null,null,{"$f":"SUM(G42:G43)","v":119.17170589120002},0.69126567632002889,5.8344286623709949E-3,1]
["Total Electricty Charge on TOU (before HST)",null,null,{"$f":"SUM(D18,D24,D25,D27,D32,D39)","v":127.643762176},null,null,{"$f":"SUM(G18,G24,G25,G27,G32,G39)","v":128.31746816},0.67370598400000858,5.2780172921499885E-3,null,{"$f":"G45/$G$49","v":1.0626992561105209}]
["     HST",null,0.13,{"$f":"D45*C46","v":16.593689082880001},null,{"$f":"C46","v":0.13},{"$f":"G45*F46","v":16.681270860800002},8.7581777920000548E-2,5.2780172921499538E-3,null,{"$f":"G46/$G$49","v":0.13815090329436772}]
["Total Electricity Charge on TOU (including HST)",null,null,{"$f":"SUM(D45:D46)","v":144.23745125887999},null,null,{"$f":"SUM(G45:G46)","v":144.9987390208},0.76128776192001624,5.2780172921500336E-3,null,{"$f":"G47/$G$49","v":1.2008501594048884}]
["Ontario Electricity Rebate (OER)",null,{"$f":"IF(($B$4*12)<250000,VLOOKUP(A48,'Data Pass Through'!$A$4:$C$20,2,0),0)","v":-0.189},{"$f":"D45*C48","v":-24.124671051263999},null,{"$f":"C48","v":-0.189},{"$f":"G45*F48","v":-24.252001482240001},-0.12733043097600216,-5.2780172921500111E-3,null,{"$f":"G48/$G$49","v":-0.20085015940488843}]
["Total Amount on TOU",null,null,{"$f":"SUM(D47:D48)","v":120.11278020761598},null,null,{"$f":"SUM(G47:G48)","v":120.74673753856},0.63395733094401407,5.2780172921500388E-3,null,{"$f":"G49/$G$49","v":1}]

{"sheet":"BI_NPDI_AR_High","index":87,"n_rows":49,"n_cols":11,"rows_kept":49,"cut":false,"hidden":false,"merged":[[0,0,0,10]]}
["2023 Bill Impacts (High Consumption Level) - AR_NPDI"]
[]
["Rate Class",{"$f":"VLOOKUP(A1,'Data BI List Acq_Seas'!C:E,2,FALSE)","v":"NPDI_RES"},{"$f":"VLOOKUP(A1,'Data BI List Acq_Seas'!C:E,3,FALSE)","v":"AR-NPDI"}]
["Monthly Consumption (kWh)",{"$f":"IF(COUNTIF(A1,\"*Low*\")>0,VLOOKUP(B3,'Data Billing Quantities'!$A:$Z,MATCH(\"Low kWh\",'Data Billing Quantities'!4:4,0),FALSE),IF(COUNTIF(A1,\"*Typical*\")>0,VLOOKUP(B3,'Data Billing Quantities'!$A:$Z,MATCH(\"Typical kWh\",'Data Billing Quantities'!4:4,0),FALSE),IF(COUNTIF(A1,\"*Average*\")>0,VLOOKUP(B3,'Data Billing Quantities'!$A:$Z,MATCH(\"Average kWh\",'Data Billing Quantities'!4:4,0),FALSE),IF(COUNTIF(A1,\"*High*\")>0,VLOOKUP(B3,'Data Billing Quantities'!$A:$Z,MATCH(\"High kWh\",'Data Billing Quantities'!4:4,0),FALSE),\"error\"))))","v":1230},{"$f":"B4","v":1230}]
["Peak (kW)",{"$f":"IF(COUNTIF(A1,\"*Low*\")>0,VLOOKUP(B3,'Data Billing Quantities'!$A:$Z,MATCH(\"Low kW\",'Data Billing Quantities'!4:4,0),FALSE),IF(COUNTIF(A1,\"*Typical*\")>0,VLOOKUP(B3,'Data Billing Quantities'!$A:$Z,MATCH(\"Typical kW\",'Data Billing Quantities'!4:4,0),FALSE),IF(COUNTIF(A1,\"*Average*\")>0,VLOOKUP(B3,'Data Billing Quantities'!$A:$Z,MATCH(\"Average kW\",'Data Billing Quantities'!4:4,0),FALSE),IF(COUNTIF(A1,\"*High*\")>0,VLOOKUP(B3,'Data Billing Quantities'!$A:$Z,MATCH(\"High kW\",'Data Billing Quantities'!4:4,0),FALSE),\"error\"))))","v":0},{"$f":"B5","v":0}]
["Loss factor",{"$f":"VLOOKUP(B3,'Data Billing Quantities'!A:D,MATCH(A6,'Data Billing Quantities'!4:4,0),FALSE)","v":1.0564},{"$f":"VLOOKUP(C3,'Data Billing Quantities'!A:D,MATCH(A6,'Data Billing Quantities'!4:4,0),FALSE)","v":1.0640000000000001}]
["Commodity Threshold",{"$f":"VLOOKUP(B3,'Data Billing Quantities'!A:D,MATCH(A7,'Data Billing Quantities'!4:4,0),FALSE)","v":600},{"$f":"B7","v":600}]
["Monthly Consumption (kWh) - Uplifted",{"$f":"B4*B6","v":1299.3720000000001},{"$f":"C4*C6","v":1308.72}]
["Charge determinant",{"$f":"VLOOKUP(B3,'Data Billing Quantities'!A:D,MATCH(A9,'Data Billing Quantities'!4:4,0),FALSE)","v":"kWh"},{"$f":"VLOOKUP(C3,'Data Billing Quantities'!A:D,MATCH(A9,'Data Billing Quantities'!4:4,0),FALSE)","v":"kWh"}]
[]
[null,"Volume","Current Rate ($)","Current Charge ($)","Volume","Proposed Rate ($)","Proposed Charge ($)","Change ($)","Change (%)","% of Total Bill on RPP","% of Total Bill"]
["Energy First Tier",{"$f":"IF(B4>B7,B7,B4)","v":600},{"$f":"VLOOKUP($A12,'Data Pass Through'!$A:$D,2,FALSE)","v":9.8000000000000004E-2},{"$f":"B12*C12","v":58.800000000000004},{"$f":"B12","v":600},{"$f":"VLOOKUP($A12,'Data Pass Through'!$A:$D,3,FALSE)","v":9.8000000000000004E-2},{"$f":"E12*F12","v":58.800000000000004},{"$f":"G12-D12","v":0},{"$f":"IF(ISERROR(H12/ABS(D12)),\"N/A\",(H12/ABS(D12)))","v":0},{"$f":"G12/$G$44","v":0.30562665227202451}]
["Energy Second Tier",{"$f":"IF(B4>B7,(B4)-B7,0)","v":630},{"$f":"VLOOKUP($A13,'Data Pass Through'!$A:$D,2,FALSE)","v":0.115},{"$f":"B13*C13","v":72.45},{"$f":"B13","v":630},{"$f":"VLOOKUP($A13,'Data Pass Through'!$A:$D,3,FALSE)","v":0.115},{"$f":"E13*F13","v":72.45},0,0,{"$f":"G13/$G$44","v":0.37657569654945877}]
["Sub-Total:  Energy (RPP Tiered)",null,null,{"$f":"SUM(D12:D13)","v":131.25},null,null,{"$f":"SUM(G12:G13)","v":131.25},0,0,{"$f":"G14/$G$44","v":0.68220234882148323}]
["TOU-Off Peak",{"$f":"B$4*VLOOKUP($B$3,'Data Billing Quantities'!$A:$O,MATCH(BI_NPDI_AR_High!$A15,'Data Billing Quantities'!$4:$4,0),FALSE)","v":787.2},{"$f":"VLOOKUP($A15,'Data Pass Through'!$A:$D,2,FALSE)","v":8.2000000000000003E-2},{"$f":"B15*C15","v":64.55040000000001},787.2,{"$f":"VLOOKUP($A15,'Data Pass Through'!$A:$D,3,FALSE)","v":8.2000000000000003E-2},{"$f":"E15*F15","v":64.55040000000001},0,0,null,{"$f":"G15/$G$49","v":0.34384891186955768}]
["TOU-Mid Peak",{"$f":"B$4*VLOOKUP($B$3,'Data Billing Quantities'!$A:$O,MATCH(BI_NPDI_AR_High!$A16,'Data Billing Quantities'!$4:$4,0),FALSE)","v":221.4},{"$f":"VLOOKUP($A16,'Data Pass Through'!$A:$D,2,FALSE)","v":0.113},{"$f":"B16*C16","v":25.0182},221.4,{"$f":"VLOOKUP($A16,'Data Pass Through'!$A:$D,3,FALSE)","v":0.113},{"$f":"E16*F16","v":25.0182},0,0,null,0.1332676613457851]
["TOU-On Peak",{"$f":"B$4*VLOOKUP($B$3,'Data Billing Quantities'!$A:$O,MATCH(BI_NPDI_AR_High!$A17,'Data Billing Quantities'!$4:$4,0),FALSE)","v":221.4},{"$f":"VLOOKUP($A17,'Data Pass Through'!$A:$D,2,FALSE)","v":0.17},{"$f":"B17*C17","v":37.638000000000005},221.4,{"$f":"VLOOKUP($A17,'Data Pass Through'!$A:$D,3,FALSE)","v":0.17},{"$f":"E17*F17","v":37.638000000000005},0,0,null,0.20049117193613691]
["Sub-Total:  Energy (RPP TOU)",null,null,{"$f":"SUM(D15:D17)","v":127.20660000000001},null,null,{"$f":"SUM(G15:G17)","v":127.20660000000001},0,0,{"$f":"G18/$G$44","v":0.66118583851881829},0.6776077451514797]
["Service Charge",1,{"$f":"VLOOKUP($B$3,'Data Current Rates'!$A:$AP,MATCH(BI_NPDI_AR_High!$A19,CurrentHeader,0),FALSE)","v":38.69},{"$f":"B19*C19","v":38.69},1,{"$f":"VLOOKUP($C$3,'Data Proposed Rates'!$A:$AZ,MATCH(BI_NPDI_AR_High!$A19,ProposedHeader,0),FALSE)","v":35.94},{"$f":"E19*F19","v":35.94},-2.75,-7.1077797880589308E-2,0.18680649460300272,0.19144621710464849]
["Distribution Volumetric Charge",{"$f":"IF($B$9=\"kWh\",$B$4,$B$5)","v":1230},{"$f":"VLOOKUP($B$3,'Data Current Rates'!$A:$AP,MATCH(BI_NPDI_AR_High!$A20,CurrentHeader,0),FALSE)","v":0},{"$f":"B20*C20","v":0},{"$f":"IF($C$9=\"kWh\",$C$4,$C$5)","v":1230},{"$f":"VLOOKUP($C$3,'Data Proposed Rates'!$A:$AZ,MATCH(BI_NPDI_AR_High!$A20,ProposedHeader,0),FALSE)","v":0},0,0,"N/A",0,0]
["Low Voltage Service Rate",{"$f":"IF($B$9=\"kWh\",$B$4,$B$5)","v":1230},{"$f":"VLOOKUP($B$3,'Data Current Rates'!$A:$AP,MATCH(BI_NPDI_AR_High!$A21,CurrentHeader,0),FALSE)","v":8.9999999999999998E-4},1.107,null,null,null,-1.107,-1,0,0]
["Rate Rider for Application of Tax Change",1230,{"$f":"VLOOKUP($B$3,'Data Current Rates'!$A:$AP,MATCH(BI_NPDI_AR_High!$A22,CurrentHeader,0),FALSE)","v":2.0000000000000001E-4},0.24600000000000002,null,null,null,-0.24600000000000002,-1,0,0]
["Group 1 Volumetric DVA Rider (General)",null,null,null,{"$f":"IF($C$9=\"kWh\",$C$4,$C$5)","v":1230},{"$f":"VLOOKUP($C$3,'Data Proposed Rates'!$A:$AZ,MATCH(BI_NPDI_AR_High!$A23,ProposedHeader,0),FALSE)","v":-5.0000000000000001E-4},-0.61499999999999999,-0.61499999999999999,"N/A",-3.1966052916206642E-3,-3.2759995414401452E-3]
["Sub-Total:  Distribution (excluding pass through)",null,null,{"$f":"SUM(INDIRECT(\"D19:D\"&ROW()-1))","v":40.042999999999999},null,null,{"$f":"SUM(INDIRECT(\"g19:g\"&ROW()-1))","v":35.324999999999996},{"$f":"G24-D24","v":-4.7180000000000035},-0.11782333990959727,0.18360988931138206,0.18817021756320831]
["Smart Metering Entity Charge",{"$f":"B19","v":1},{"$f":"VLOOKUP($A25,'Data Pass Through'!$A:$D,2,FALSE)","v":0.56999999999999995},{"$f":"B25*C25","v":0.56999999999999995},{"$f":"E19","v":1},{"$f":"VLOOKUP($A25,'Data Pass Through'!$A:$D,3,FALSE)","v":0.56999999999999995},{"$f":"E25*F25","v":0.56999999999999995},0,0,2.9627073434532985E-3,3.0362922579201344E-3]
["Line Losses on Cost of Power (based on two-tier RPP prices)",{"$f":"B8-B4","v":69.372000000000071},{"$f":"IF(B4>B7,C13,C12)","v":0.115},{"$f":"B26*C26","v":7.9777800000000081},{"$f":"C8-C4","v":78.720000000000027},{"$f":"IF(C4>C7,F13,F12)","v":0.115},{"$f":"E26*F26","v":9.0528000000000031},1.075019999999995,0.13475177304964461,4.7054029892656196E-2,4.8222713249998952E-2]
["Line Losses on Cost of Power (based on TOU prices)",{"$f":"B8-B4","v":69.372000000000071},{"$f":"VLOOKUP($B$3,'Data Billing Quantities'!$A:$O,MATCH(BI_NPDI_AR_High!$A15,'Data Billing Quantities'!$4:$4,0),FALSE)*C15+VLOOKUP($B$3,'Data Billing Quantities'!$A:$O,MATCH(BI_NPDI_AR_High!$A16,'Data Billing Quantities'!$4:$4,0),FALSE)*C16+VLOOKUP($B$3,'Data Billing Quantities'!$A:$O,MATCH(BI_NPDI_AR_High!$A17,'Data Billing Quantities'!$4:$4,0),FALSE)*C17","v":0.10342000000000001},{"$f":"B27*C27","v":7.1744522400000079},{"$f":"C8-C4","v":78.720000000000027},{"$f":"VLOOKUP($C$3,'Data Billing Quantities'!$A:$O,MATCH(BI_NPDI_AR_High!$A15,'Data Billing Quantities'!$4:$4,0),FALSE)*F15+VLOOKUP($C$3,'Data Billing Quantities'!$A:$O,MATCH(BI_NPDI_AR_High!$A16,'Data Billing Quantities'!$4:$4,0),FALSE)*F16+VLOOKUP($C$3,'Data Billing Quantities'!$A:$O,MATCH(BI_NPDI_AR_High!$A17,'Data Billing Quantities'!$4:$4,0),FALSE)*F17","v":0.10342000000000001},{"$f":"E27*F27","v":8.1412224000000037},0.96677015999999583,0.13475177304964467,4.2315893665204385E-2,4.3366895689694721E-2]
["Sub-Total:  Distribution (based on two-tier RPP prices)",null,null,{"$f":"SUM(D24,D25:D26)","v":48.590780000000009},null,null,{"$f":"SUM(G24,G25:G26)","v":44.947800000000001},-3.6429800000000085,-7.497265942221977E-2,0.23362662654749156,0.23942922307112743]
["Sub-Total:  Distribution (based on TOU prices)",null,null,{"$f":"SUM(D24,D25,D27)","v":47.787452240000007},null,null,{"$f":"SUM(G24,G25,G27)","v":44.0362224},-3.7512298400000077,-7.8498217924664299E-2,0.22888849032003974,0.23457340551082317]
["Retail Transmission Rate – Network Service Rate",{"$f":"IF($B$9=\"kWh\",$B$8,$B$5)","v":1299.3720000000001},{"$f":"VLOOKUP($B$3,'Data Current Rates'!$A:$AP,MATCH(BI_NPDI_AR_High!$A30,CurrentHeader,0),FALSE)","v":8.3000000000000001E-3},{"$f":"B30*C30","v":10.784787600000001},{"$f":"IF($C$9=\"kWh\",$C$8,$C$5)","v":1308.72},{"$f":"VLOOKUP($C$3,'Data Proposed Rates'!$A:$AZ,MATCH(BI_NPDI_AR_High!$A30,ProposedHeader,0),FALSE)","v":1.01E-2},{"$f":"E30*F30","v":13.218071999999999},{"$f":"G30-D30","v":2.433284399999998},0.22562191210886692,6.870399821174461E-2,7.0410402944264747E-2]
["Retail Transmission Rate – Line and Transformation Connection Service Rate",{"$f":"IF($B$9=\"kWh\",$B$8,$B$5)","v":1299.3720000000001},{"$f":"VLOOKUP($B$3,'Data Current Rates'!$A:$AP,MATCH(BI_NPDI_AR_High!$A31,CurrentHeader,0),FALSE)","v":3.8999999999999998E-3},{"$f":"B31*C31","v":5.0675508000000002},{"$f":"IF($C$9=\"kWh\",$C$8,$C$5)","v":1308.72},{"$f":"VLOOKUP($C$3,'Data Proposed Rates'!$A:$AZ,MATCH(BI_NPDI_AR_High!$A31,ProposedHeader,0),FALSE)","v":7.4000000000000003E-3},{"$f":"E31*F31","v":9.6845280000000002},{"$f":"G31-D31","v":4.6169772},0.91108651540306207,5.0337582848208925E-2,5.1587819978966255E-2]
["Sub-Total:  Retail Transmission ",null,null,{"$f":"SUM(D30:D31)","v":15.852338400000001},null,null,{"$f":"SUM(G30:G31)","v":22.9026},{"$f":"G32-D32","v":7.0502615999999989},0.44474584267012612,0.11904158105995354,0.12199822292323101]
["Sub-Total:  Delivery (based on two-tier RPP prices)",null,null,{"$f":"D28+D32","v":64.443118400000003},null,null,{"$f":"G28+G32","v":67.850400000000008},{"$f":"G33-D33","v":3.4072816000000046},5.2872698972308028E-2,0.35266820760744511,0.36142744599435844]
["Sub-Total:  Delivery (based on TOU prices)",null,null,{"$f":"D29+D32","v":63.639790640000008},null,null,{"$f":"G29+G32","v":66.938822399999992},{"$f":"G34-D34","v":3.2990317599999841},5.1839135968596635E-2,0.34793007137999321,0.35657162843405416]
["Wholesale Market Service Rate (WMS) - not including CBR",{"$f":"B8","v":1299.3720000000001},{"$f":"VLOOKUP($A35,'Data Pass Through'!$A:$D,2,FALSE)","v":3.0000000000000001E-3},{"$f":"B35*C35","v":3.8981160000000004},{"$f":"$C$8","v":1308.72},{"$f":"VLOOKUP($A35,'Data Pass Through'!$A:$D,3,FALSE)","v":3.0000000000000001E-3},{"$f":"E35*F35","v":3.9261600000000003},2.8043999999999958E-2,7.194244604316535E-3,2.0407128181706324E-2,2.0913981072553888E-2]
["Capacity Based Recovery (CBR) - Applicable for Class B Customers",{"$f":"B8","v":1299.3720000000001},{"$f":"VLOOKUP($A36,'Data Pass Through'!$A:$D,2,FALSE)","v":4.0000000000000002E-4},{"$f":"B36*C36","v":0.51974880000000001},{"$f":"$C$8","v":1308.72},{"$f":"VLOOKUP($A36,'Data Pass Through'!$A:$D,3,FALSE)","v":4.0000000000000002E-4},{"$f":"E36*F36","v":0.52348800000000006},3.7392000000000536E-3,7.1942446043166495E-3,2.7209504242275101E-3,2.7885308096738518E-3]
["Rural Rate Protection Charge",{"$f":"B8","v":1299.3720000000001},{"$f":"VLOOKUP($A37,'Data Pass Through'!$A:$D,2,FALSE)","v":5.0000000000000001E-4},0.6496860000000001,1308.72,{"$f":"VLOOKUP($A37,'Data Pass Through'!$A:$D,3,FALSE)","v":5.0000000000000001E-4},0.65436000000000005,4.673999999999956E-3,7.1942446043164777E-3,3.4011880302843873E-3,3.4856635120923147E-3]
["Standard Supply Service – Administration Charge (if applicable)",1,{"$f":"VLOOKUP($A38,'Data Pass Through'!$A:$D,2,FALSE)","v":0.25},{"$f":"B38*C38","v":0.25},1,{"$f":"VLOOKUP($A38,'Data Pass Through'!$A:$D,3,FALSE)","v":0.25},0.25,0,0,1.2994330453742538E-3,1.3317071306667258E-3]
["Sub-Total:  Regulatory",null,null,{"$f":"SUM(D35:D38)","v":5.3175508000000002},null,null,{"$f":"SUM(G35:G38)","v":5.3540080000000003},3.6457200000000078E-2,6.8560134865096305E-3,2.7828699681592475E-2,2.851988252498678E-2]
["Total  Electricty Charge on Two-Tier RPP ",null,null,{"$f":"SUM(D14,D24,D25,D26,D32,D39)","v":201.0106692},null,null,{"$f":"SUM(G14,G24,G25,G26,G32,G39)","v":204.45440799999997},3.4437387999999771,1.7132119472591543E-2,1.0626992561105206]
["     HST",null,0.13,{"$f":"D40*C41","v":26.131386996},null,{"$f":"C41","v":0.13},{"$f":"G40*F41","v":26.579073039999997},0.44768604399999745,1.7132119472591561E-2,0.13815090329436769]
["Total Electricity Charge on Two-Tier RPP (including HST)",null,null,{"$f":"SUM(D40:D41)","v":227.142056196},null,null,{"$f":"SUM(G40:G41)","v":231.03348103999997},3.891424843999971,1.713211947259153E-2,1.2008501594048884]
["Ontario Electricity Rebate (OER)",null,{"$f":"IF(($B$4*12)<250000,VLOOKUP(A43,'Data Pass Through'!$A$4:$C$20,2,0),0)","v":-0.189},{"$f":"D40*C43","v":-37.991016478799999},null,{"$f":"C43","v":-0.189},{"$f":"G40*F43","v":-38.641883111999995},-0.65086663319999616,-1.7132119472591557E-2,-0.2008501594048884]
["Total Amount on Two-Tier RPP",null,null,{"$f":"SUM(D42:D43)","v":189.15103971720001},null,null,{"$f":"SUM(G42:G43)","v":192.39159792799998},3.2405582107999749,1.7132119472591523E-2,1]
["Total Electricty Charge on TOU (before HST)",null,null,{"$f":"SUM(D18,D24,D25,D27,D32,D39)","v":196.16394144000003},null,null,{"$f":"SUM(G18,G24,G25,G27,G32,G39)","v":199.49943039999999},3.3354889599999638,1.7003578412601267E-2,null,{"$f":"G45/$G$49","v":1.0626992561105206}]
["     HST",null,0.13,{"$f":"D45*C46","v":25.501312387200006},null,{"$f":"C46","v":0.13},{"$f":"G45*F46","v":25.934925952},0.43361356479999458,1.700357841260124E-2,null,{"$f":"G46/$G$49","v":0.13815090329436769}]
["Total Electricity Charge on TOU (including HST)",null,null,{"$f":"SUM(D45:D46)","v":221.66525382720005},null,null,{"$f":"SUM(G45:G46)","v":225.43435635200001},3.7691025247999619,1.7003578412601278E-2,null,{"$f":"G47/$G$49","v":1.2008501594048884}]
["Ontario Electricity Rebate (OER)",null,{"$f":"IF(($B$4*12)<250000,VLOOKUP(A48,'Data Pass Through'!$A$4:$C$20,2,0),0)","v":-0.189},{"$f":"D45*C48","v":-37.074984932160007},null,{"$f":"C48","v":-0.189},{"$f":"G45*F48","v":-37.705392345599996},-0.63040741343998974,-1.7003578412601174E-2,null,{"$f":"G48/$G$49","v":-0.20085015940488837}]
["Total Amount on TOU",null,null,{"$f":"SUM(D47:D48)","v":184.59026889504003},null,null,{"$f":"SUM(G47:G48)","v":187.72896400640002},3.1386951113599935,1.7003578412601417E-2,null,{"$f":"G49/$G$49","v":1}]

{"sheet":"BI_HCHI_AR_Low","index":88,"n_rows":49,"n_cols":11,"rows_kept":49,"cut":false,"hidden":false,"merged":[[0,0,0,10]]}
["2023 Bill Impacts (Low Consumption Level) - AR_HCHI"]
[]
["Rate Class",{"$f":"VLOOKUP(A1,'Data BI List Acq_Seas'!C:E,2,FALSE)","v":"HCHI_RES"},{"$f":"VLOOKUP(A1,'Data BI List Acq_Seas'!C:E,3,FALSE)","v":"AR-HCHI"}]
["Monthly Consumption (kWh)",{"$f":"IF(COUNTIF(A1,\"*Low*\")>0,VLOOKUP(B3,'Data Billing Quantities'!$A:$Z,MATCH(\"Low kWh\",'Data Billing Quantities'!4:4,0),FALSE),IF(COUNTIF(A1,\"*Typical*\")>0,VLOOKUP(B3,'Data Billing Quantities'!$A:$Z,MATCH(\"Typical kWh\",'Data Billing Quantities'!4:4,0),FALSE),IF(COUNTIF(A1,\"*Average*\")>0,VLOOKUP(B3,'Data Billing Quantities'!$A:$Z,MATCH(\"Average kWh\",'Data Billing Quantities'!4:4,0),FALSE),IF(COUNTIF(A1,\"*High*\")>0,VLOOKUP(B3,'Data Billing Quantities'!$A:$Z,MATCH(\"High kWh\",'Data Billing Quantities'!4:4,0),FALSE),\"error\"))))","v":250},{"$f":"B4","v":250}]
["Peak (kW)",{"$f":"IF(COUNTIF(A1,\"*Low*\")>0,VLOOKUP(B3,'Data Billing Quantities'!$A:$Z,MATCH(\"Low kW\",'Data Billing Quantities'!4:4,0),FALSE),IF(COUNTIF(A1,\"*Typical*\")>0,VLOOKUP(B3,'Data Billing Quantities'!$A:$Z,MATCH(\"Typical kW\",'Data Billing Quantities'!4:4,0),FALSE),IF(COUNTIF(A1,\"*Average*\")>0,VLOOKUP(B3,'Data Billing Quantities'!$A:$Z,MATCH(\"Average kW\",'Data Billing Quantities'!4:4,0),FALSE),IF(COUNTIF(A1,\"*High*\")>0,VLOOKUP(B3,'Data Billing Quantities'!$A:$Z,MATCH(\"High kW\",'Data Billing Quantities'!4:4,0),FALSE),\"error\"))))","v":0},{"$f":"B5","v":0}]
["Loss factor",{"$f":"VLOOKUP(B3,'Data Billing Quantities'!A:D,MATCH(A6,'Data Billing Quantities'!4:4,0),FALSE)","v":1.0655000000000001},{"$f":"VLOOKUP(C3,'Data Billing Quantities'!A:D,MATCH(A6,'Data Billing Quantities'!4:4,0),FALSE)","v":1.0640000000000001}]
["Commodity Threshold",{"$f":"VLOOKUP(B3,'Data Billing Quantities'!A:D,MATCH(A7,'Data Billing Quantities'!4:4,0),FALSE)","v":600},{"$f":"B7","v":600}]
["Monthly Consumption (kWh) - Uplifted",{"$f":"B4*B6","v":266.375},{"$f":"C4*C6","v":266}]
["Charge determinant",{"$f":"VLOOKUP(B3,'Data Billing Quantities'!A:D,MATCH(A9,'Data Billing Quantities'!4:4,0),FALSE)","v":"kWh"},{"$f":"VLOOKUP(C3,'Data Billing Quantities'!A:D,MATCH(A9,'Data Billing Quantities'!4:4,0),FALSE)","v":"kWh"}]
[]
[null,"Volume","Current Rate ($)","Current Charge ($)","Volume","Proposed Rate ($)","Proposed Charge ($)","Change ($)","Change (%)","% of Total Bill on RPP","% of Total Bill "]
["Energy First Tier",{"$f":"IF(B4>B7,B7,B4)","v":250},{"$f":"VLOOKUP($A12,'Data Pass Through'!$A:$D,2,FALSE)","v":9.8000000000000004E-2},{"$f":"B12*C12","v":24.5},{"$f":"B12","v":250},{"$f":"VLOOKUP($A12,'Data Pass Through'!$A:$D,3,FALSE)","v":9.8000000000000004E-2},{"$f":"E12*F12","v":24.5},{"$f":"G12-D12","v":0},{"$f":"IF(ISERROR(H12/ABS(D12)),\"N/A\",(H12/ABS(D12)))","v":0},{"$f":"G12/$G$44","v":0.38053170947126519}]
["Energy Second Tier",{"$f":"IF(B4>B7,(B4)-B7,0)","v":0},{"$f":"VLOOKUP($A13,'Data Pass Through'!$A:$D,2,FALSE)","v":0.115},{"$f":"B13*C13","v":0},{"$f":"B13","v":0},{"$f":"VLOOKUP($A13,'Data Pass Through'!$A:$D,3,FALSE)","v":0.115},{"$f":"E13*F13","v":0},0,"N/A",{"$f":"G13/$G$44","v":0}]
["Sub-Total:  Energy (RPP Tiered)",null,null,{"$f":"SUM(D12:D13)","v":24.5},null,null,{"$f":"SUM(G12:G13)","v":24.5},0,0,{"$f":"G14/$G$44","v":0.38053170947126519}]
["TOU-Off Peak",{"$f":"B$4*VLOOKUP($B$3,'Data Billing Quantities'!$A:$O,MATCH(BI_HCHI_AR_Low!$A15,'Data Billing Quantities'!$4:$4,0),FALSE)","v":160},{"$f":"VLOOKUP($A15,'Data Pass Through'!$A:$D,2,FALSE)","v":8.2000000000000003E-2},{"$f":"B15*C15","v":13.120000000000001},160,{"$f":"VLOOKUP($A15,'Data Pass Through'!$A:$D,3,FALSE)","v":8.2000000000000003E-2},{"$f":"E15*F15","v":13.120000000000001},0,0,null,{"$f":"G15/$G$49","v":0.19957330582252633}]
["TOU-Mid Peak",{"$f":"B$4*VLOOKUP($B$3,'Data Billing Quantities'!$A:$O,MATCH(BI_HCHI_AR_Low!$A16,'Data Billing Quantities'!$4:$4,0),FALSE)","v":45},{"$f":"VLOOKUP($A16,'Data Pass Through'!$A:$D,2,FALSE)","v":0.113},{"$f":"B16*C16","v":5.085},45,{"$f":"VLOOKUP($A16,'Data Pass Through'!$A:$D,3,FALSE)","v":0.113},{"$f":"E16*F16","v":5.085},0,0,null,7.7349867386245913E-2]
["TOU-On Peak",{"$f":"B$4*VLOOKUP($B$3,'Data Billing Quantities'!$A:$O,MATCH(BI_HCHI_AR_Low!$A17,'Data Billing Quantities'!$4:$4,0),FALSE)","v":45},{"$f":"VLOOKUP($A17,'Data Pass Through'!$A:$D,2,FALSE)","v":0.17},{"$f":"B17*C17","v":7.65},45,{"$f":"VLOOKUP($A17,'Data Pass Through'!$A:$D,3,FALSE)","v":0.17},{"$f":"E17*F17","v":7.65},0,0,null,0.11636705712975048]
["Sub-Total:  Energy (RPP TOU)",null,null,{"$f":"SUM(D15:D17)","v":25.855000000000004},null,null,{"$f":"SUM(G15:G17)","v":25.855000000000004},0,0,{"$f":"G18/$G$44","v":0.40157744279100255},0.39329023033852278]
["Service Charge",1,{"$f":"VLOOKUP($B$3,'Data Current Rates'!$A:$AP,MATCH(BI_HCHI_AR_Low!$A19,CurrentHeader,0),FALSE)","v":36.909999999999997},{"$f":"B19*C19","v":36.909999999999997},1,{"$f":"VLOOKUP($C$3,'Data Proposed Rates'!$A:$AZ,MATCH(BI_HCHI_AR_Low!$A19,ProposedHeader,0),FALSE)","v":35.94},{"$f":"E19*F19","v":35.94},-0.96999999999999886,-2.6280140883229448E-2,0.55821671993458244,0.54669699780957282]
["Distribution Volumetric Charge",{"$f":"IF($B$9=\"kWh\",$B$4,$B$5)","v":250},{"$f":"VLOOKUP($B$3,'Data Current Rates'!$A:$AP,MATCH(BI_HCHI_AR_Low!$A20,CurrentHeader,0),FALSE)","v":0},{"$f":"B20*C20","v":0},{"$f":"IF($C$9=\"kWh\",$C$4,$C$5)","v":250},{"$f":"VLOOKUP($C$3,'Data Proposed Rates'!$A:$AZ,MATCH(BI_HCHI_AR_Low!$A20,ProposedHeader,0),FALSE)","v":0},0,0,"N/A",0,0]
["Low Voltage Service Rate",{"$f":"IF($B$9=\"kWh\",$B$4,$B$5)","v":250},{"$f":"VLOOKUP($B$3,'Data Current Rates'!$A:$AP,MATCH(BI_HCHI_AR_Low!$A21,CurrentHeader,0),FALSE)","v":4.0000000000000002E-4},0.1,null,null,null,-0.1,-1,0,0]
["Funding Adder for Renewable Energy Generation",250,{"$f":"VLOOKUP($B$3,'Data Current Rates'!$A:$AP,MATCH(BI_HCHI_AR_Low!$A22,CurrentHeader,0),FALSE)","v":2.0000000000000001E-4},0.05,null,null,null,-0.05,-1,0,0]
["Group 1 Volumetric DVA Rider (General)",null,null,null,{"$f":"IF($C$9=\"kWh\",$C$4,$C$5)","v":250},{"$f":"VLOOKUP($C$3,'Data Proposed Rates'!$A:$AZ,MATCH(BI_HCHI_AR_Low!$A23,ProposedHeader,0),FALSE)","v":-4.0000000000000002E-4},-0.1,-0.1,"N/A",-1.5531906509031231E-3,-1.5211380016960849E-3]
["Sub-Total:  Distribution (excluding pass through)",null,null,{"$f":"SUM(INDIRECT(\"D19:D\"&ROW()-1))","v":37.059999999999995},null,null,{"$f":"SUM(INDIRECT(\"g19:g\"&ROW()-1))","v":35.839999999999996},{"$f":"G24-D24","v":-1.2199999999999989},-3.2919589854290311E-2,0.55666352928367924,0.54517585980787675]
["Smart Metering Entity Charge",{"$f":"B19","v":1},{"$f":"VLOOKUP($A25,'Data Pass Through'!$A:$D,2,FALSE)","v":0.56999999999999995},{"$f":"B25*C25","v":0.56999999999999995},{"$f":"E19","v":1},{"$f":"VLOOKUP($A25,'Data Pass Through'!$A:$D,3,FALSE)","v":0.56999999999999995},{"$f":"E25*F25","v":0.56999999999999995},0,0,8.8531867101478007E-3,8.6704866096676825E-3]
["Line Losses on Cost of Power (based on two-tier RPP prices)",{"$f":"B8-B4","v":16.375},{"$f":"IF(B4>B7,C13,C12)","v":9.8000000000000004E-2},{"$f":"B26*C26","v":1.6047500000000001},{"$f":"C8-C4","v":16},{"$f":"IF(C4>C7,F13,F12)","v":9.8000000000000004E-2},{"$f":"E26*F26","v":1.5680000000000001},-3.675000000000006E-2,-2.2900763358778661E-2,2.4354029406160972E-2,2.3851443866594609E-2]
["Line Losses on Cost of Power (based on TOU prices)",{"$f":"B8-B4","v":16.375},{"$f":"VLOOKUP($B$3,'Data Billing Quantities'!$A:$O,MATCH(BI_HCHI_AR_Low!$A15,'Data Billing Quantities'!$4:$4,0),FALSE)*C15+VLOOKUP($B$3,'Data Billing Quantities'!$A:$O,MATCH(BI_HCHI_AR_Low!$A16,'Data Billing Quantities'!$4:$4,0),FALSE)*C16+VLOOKUP($B$3,'Data Billing Quantities'!$A:$O,MATCH(BI_HCHI_AR_Low!$A17,'Data Billing Quantities'!$4:$4,0),FALSE)*C17","v":0.10342000000000001},{"$f":"B27*C27","v":1.6935025000000001},{"$f":"C8-C4","v":16},{"$f":"VLOOKUP($C$3,'Data Billing Quantities'!$A:$O,MATCH(BI_HCHI_AR_Low!$A15,'Data Billing Quantities'!$4:$4,0),FALSE)*F15+VLOOKUP($C$3,'Data Billing Quantities'!$A:$O,MATCH(BI_HCHI_AR_Low!$A16,'Data Billing Quantities'!$4:$4,0),FALSE)*F16+VLOOKUP($C$3,'Data Billing Quantities'!$A:$O,MATCH(BI_HCHI_AR_Low!$A17,'Data Billing Quantities'!$4:$4,0),FALSE)*F17","v":0.10342000000000001},{"$f":"E27*F27","v":1.6547200000000002},-3.8782499999999942E-2,-2.2900763358778591E-2,2.570095633862416E-2,2.5170574741665456E-2]
["Sub-Total:  Distribution (based on two-tier RPP prices)",null,null,{"$f":"SUM(D24,D25:D26)","v":39.234749999999998},null,null,{"$f":"SUM(G24,G25:G26)","v":37.977999999999994},-1.2567500000000038,-3.203155366097666E-2,0.58987074539998796,0.57769779028413892]
["Sub-Total:  Distribution (based on TOU prices)",null,null,{"$f":"SUM(D24,D25,D27)","v":39.323502499999996},null,null,{"$f":"SUM(G24,G25,G27)","v":38.064719999999994},-1.2587825000000024,-3.2010945617064565E-2,0.59121767233245115,0.57901692115920977]
["Retail Transmission Rate – Network Service Rate",{"$f":"IF($B$9=\"kWh\",$B$8,$B$5)","v":266.375},{"$f":"VLOOKUP($B$3,'Data Current Rates'!$A:$AP,MATCH(BI_HCHI_AR_Low!$A30,CurrentHeader,0),FALSE)","v":7.9000000000000008E-3},{"$f":"B30*C30","v":2.1043625000000001},{"$f":"IF($C$9=\"kWh\",$C$8,$C$5)","v":266},{"$f":"VLOOKUP($C$3,'Data Proposed Rates'!$A:$AZ,MATCH(BI_HCHI_AR_Low!$A30,ProposedHeader,0),FALSE)","v":1.01E-2},{"$f":"E30*F30","v":2.6865999999999999},{"$f":"G30-D30","v":0.58223749999999974},0.27668118016739024,4.1728020027163304E-2,4.0866893553567013E-2]
["Retail Transmission Rate – Line and Transformation Connection Service Rate",{"$f":"IF($B$9=\"kWh\",$B$8,$B$5)","v":266.375},{"$f":"VLOOKUP($B$3,'Data Current Rates'!$A:$AP,MATCH(BI_HCHI_AR_Low!$A31,CurrentHeader,0),FALSE)","v":6.1000000000000004E-3},{"$f":"B31*C31","v":1.6248875},{"$f":"IF($C$9=\"kWh\",$C$8,$C$5)","v":266},{"$f":"VLOOKUP($C$3,'Data Proposed Rates'!$A:$AZ,MATCH(BI_HCHI_AR_Low!$A31,ProposedHeader,0),FALSE)","v":7.4000000000000003E-3},{"$f":"E31*F31","v":1.9684000000000001},{"$f":"G31-D31","v":0.34351250000000011},0.21140694355763098,3.0573004772377076E-2,2.9942080425385733E-2]
["Sub-Total:  Retail Transmission ",null,null,{"$f":"SUM(D30:D31)","v":3.7292500000000004},null,null,{"$f":"SUM(G30:G31)","v":4.6550000000000002},{"$f":"G32-D32","v":0.92574999999999985},0.24824026278742367,7.2301024799540384E-2,7.0808973978952749E-2]
["Sub-Total:  Delivery (based on two-tier RPP prices)",null,null,{"$f":"D28+D32","v":42.963999999999999},null,null,{"$f":"G28+G32","v":42.632999999999996},{"$f":"G33-D33","v":-0.33100000000000307},-7.7041243832046153E-3,0.66217177019952844,0.64850676426309173]
["Sub-Total:  Delivery (based on TOU prices)",null,null,{"$f":"D29+D32","v":43.052752499999997},null,null,{"$f":"G29+G32","v":42.719719999999995},{"$f":"G34-D34","v":-0.33303250000000162},-7.7354519899744305E-3,0.66351869713199163,0.64982589513816258]
["Wholesale Market Service Rate (WMS) - not including CBR",{"$f":"B8","v":266.375},{"$f":"VLOOKUP($A35,'Data Pass Through'!$A:$D,2,FALSE)","v":3.0000000000000001E-3},{"$f":"B35*C35","v":0.79912499999999997},{"$f":"$C$8","v":266},{"$f":"VLOOKUP($A35,'Data Pass Through'!$A:$D,3,FALSE)","v":3.0000000000000001E-3},{"$f":"E35*F35","v":0.79800000000000004},-1.1249999999999316E-3,-1.4077897700609187E-3,1.2394461394206923E-2,1.2138681253534758E-2]
["Capacity Based Recovery (CBR) - Applicable for Class B Customers",{"$f":"B8","v":266.375},{"$f":"VLOOKUP($A36,'Data Pass Through'!$A:$D,2,FALSE)","v":4.0000000000000002E-4},{"$f":"B36*C36","v":0.10655000000000001},{"$f":"$C$8","v":266},{"$f":"VLOOKUP($A36,'Data Pass Through'!$A:$D,3,FALSE)","v":4.0000000000000002E-4},{"$f":"E36*F36","v":0.10640000000000001},-1.4999999999999736E-4,-1.4077897700609794E-3,1.6525948525609232E-3,1.6184908338046343E-3]
["Rural Rate Protection Charge",{"$f":"B8","v":266.375},{"$f":"VLOOKUP($A37,'Data Pass Through'!$A:$D,2,FALSE)","v":5.0000000000000001E-4},0.13318750000000001,266,{"$f":"VLOOKUP($A37,'Data Pass Through'!$A:$D,3,FALSE)","v":5.0000000000000001E-4},0.13300000000000001,-1.8750000000000711E-4,-1.4077897700610575E-3,2.065743565701154E-3,2.0231135422557928E-3]
["Standard Supply Service – Administration Charge (if applicable)",1,{"$f":"VLOOKUP($A38,'Data Pass Through'!$A:$D,2,FALSE)","v":0.25},{"$f":"B38*C38","v":0.25},1,{"$f":"VLOOKUP($A38,'Data Pass Through'!$A:$D,3,FALSE)","v":0.25},0.25,0,0,3.882976627257808E-3,3.8028450042402119E-3]
["Sub-Total:  Regulatory",null,null,{"$f":"SUM(D35:D38)","v":1.2888625},null,null,{"$f":"SUM(G35:G38)","v":1.2874000000000001},-1.4624999999999222E-3,-1.134721508306683E-3,1.999577643972681E-2,1.9583130633835398E-2]
["Total  Electricty Charge on Two-Tier RPP ",null,null,{"$f":"SUM(D14,D24,D25,D26,D32,D39)","v":68.752862499999992},null,null,{"$f":"SUM(G14,G24,G25,G26,G32,G39)","v":68.420400000000001},-0.33246249999999122,-4.835616844316719E-3,1.0626992561105204]
["     HST",null,0.13,{"$f":"D40*C41","v":8.9378721249999984},null,{"$f":"C41","v":0.13},{"$f":"G40*F41","v":8.8946520000000007},-4.3220124999997722E-2,-4.8356168443165915E-3,0.13815090329436766]
["Total Electricity Charge on Two-Tier RPP (including HST)",null,null,{"$f":"SUM(D40:D41)","v":77.69073462499999},null,null,{"$f":"SUM(G40:G41)","v":77.315052000000009},-0.37568262499998184,-4.8356168443166123E-3,1.2008501594048882]
["Ontario Electricity Rebate (OER)",null,{"$f":"IF(($B$4*12)<250000,VLOOKUP(A43,'Data Pass Through'!$A$4:$C$20,2,0),0)","v":-0.189},{"$f":"D40*C43","v":-12.994291012499998},null,{"$f":"C43","v":-0.189},{"$f":"G40*F43","v":-12.9314556},6.2835412499998355E-2,4.8356168443167199E-3,-0.20085015940488837]
["Total Amount on Two-Tier RPP",null,null,{"$f":"SUM(D42:D43)","v":64.696443612499991},null,null,{"$f":"SUM(G42:G43)","v":64.383596400000016},-0.3128472124999746,-4.8356168443164536E-3,1]
["Total Electricty Charge on TOU (before HST)",null,null,{"$f":"SUM(D18,D24,D25,D27,D32,D39)","v":70.19661499999998},null,null,{"$f":"SUM(G18,G24,G25,G27,G32,G39)","v":69.862120000000004},-0.33449499999997556,-4.7651158107834069E-3,null,{"$f":"G45/$G$49","v":1.0626992561105209}]
["     HST",null,0.13,{"$f":"D45*C46","v":9.1255599499999978},null,{"$f":"C46","v":0.13},{"$f":"G45*F46","v":9.0820756000000014},-4.3484349999996397E-2,-4.76511581078336E-3,null,{"$f":"G46/$G$49","v":0.13815090329436772}]
["Total Electricity Charge on TOU (including HST)",null,null,{"$f":"SUM(D45:D46)","v":79.322174949999976},null,null,{"$f":"SUM(G45:G46)","v":78.9441956},-0.37797934999997551,-4.7651158107834459E-3,null,{"$f":"G47/$G$49","v":1.2008501594048884}]
["Ontario Electricity Rebate (OER)",null,{"$f":"IF(($B$4*12)<250000,VLOOKUP(A48,'Data Pass Through'!$A$4:$C$20,2,0),0)","v":-0.189},{"$f":"D45*C48","v":-13.267160234999997},null,{"$f":"C48","v":-0.189},{"$f":"G45*F48","v":-13.203940680000001},6.3219554999996319E-2,4.7651158107834771E-3,null,{"$f":"G48/$G$49","v":-0.20085015940488843}]
["Total Amount on TOU",null,null,{"$f":"SUM(D47:D48)","v":66.055014714999984},null,null,{"$f":"SUM(G47:G48)","v":65.740254919999998},-0.3147597949999863,-4.7651158107835474E-3,null,{"$f":"G49/$G$49","v":1}]

{"sheet":"BI_HCHI_AR_Typical","index":89,"n_rows":49,"n_cols":11,"rows_kept":49,"cut":false,"hidden":false,"merged":[[0,0,0,10]]}
["2023 Bill Impacts (Typical Consumption Level) - AR_HCHI"]
[]
["Rate Class",{"$f":"VLOOKUP(A1,'Data BI List Acq_Seas'!C:E,2,FALSE)","v":"HCHI_RES"},{"$f":"VLOOKUP(A1,'Data BI List Acq_Seas'!C:E,3,FALSE)","v":"AR-HCHI"}]
["Monthly Consumption (kWh)",{"$f":"IF(COUNTIF(A1,\"*Low*\")>0,VLOOKUP(B3,'Data Billing Quantities'!$A:$Z,MATCH(\"Low kWh\",'Data Billing Quantities'!4:4,0),FALSE),IF(COUNTIF(A1,\"*Typical*\")>0,VLOOKUP(B3,'Data Billing Quantities'!$A:$Z,MATCH(\"Typical kWh\",'Data Billing Quantities'!4:4,0),FALSE),IF(COUNTIF(A1,\"*Average*\")>0,VLOOKUP(B3,'Data Billing Quantities'!$A:$Z,MATCH(\"Average kWh\",'Data Billing Quantities'!4:4,0),FALSE),IF(COUNTIF(A1,\"*High*\")>0,VLOOKUP(B3,'Data Billing Quantities'!$A:$Z,MATCH(\"High kWh\",'Data Billing Quantities'!4:4,0),FALSE),\"error\"))))","v":750},{"$f":"B4","v":750}]
["Peak (kW)",{"$f":"IF(COUNTIF(A1,\"*Low*\")>0,VLOOKUP(B3,'Data Billing Quantities'!$A:$Z,MATCH(\"Low kW\",'Data Billing Quantities'!4:4,0),FALSE),IF(COUNTIF(A1,\"*Typical*\")>0,VLOOKUP(B3,'Data Billing Quantities'!$A:$Z,MATCH(\"Typical kW\",'Data Billing Quantities'!4:4,0),FALSE),IF(COUNTIF(A1,\"*Average*\")>0,VLOOKUP(B3,'Data Billing Quantities'!$A:$Z,MATCH(\"Average kW\",'Data Billing Quantities'!4:4,0),FALSE),IF(COUNTIF(A1,\"*High*\")>0,VLOOKUP(B3,'Data Billing Quantities'!$A:$Z,MATCH(\"High kW\",'Data Billing Quantities'!4:4,0),FALSE),\"error\"))))","v":0},{"$f":"B5","v":0}]
["Loss factor",{"$f":"VLOOKUP(B3,'Data Billing Quantities'!A:D,MATCH(A6,'Data Billing Quantities'!4:4,0),FALSE)","v":1.0655000000000001},{"$f":"VLOOKUP(C3,'Data Billing Quantities'!A:D,MATCH(A6,'Data Billing Quantities'!4:4,0),FALSE)","v":1.0640000000000001}]
["Commodity Threshold",{"$f":"VLOOKUP(B3,'Data Billing Quantities'!A:D,MATCH(A7,'Data Billing Quantities'!4:4,0),FALSE)","v":600},{"$f":"B7","v":600}]
["Monthly Consumption (kWh) - Uplifted",{"$f":"B4*B6","v":799.12500000000011},{"$f":"C4*C6","v":798}]
["Charge determinant",{"$f":"VLOOKUP(B3,'Data Billing Quantities'!A:D,MATCH(A9,'Data Billing Quantities'!4:4,0),FALSE)","v":"kWh"},{"$f":"VLOOKUP(C3,'Data Billing Quantities'!A:D,MATCH(A9,'Data Billing Quantities'!4:4,0),FALSE)","v":"kWh"}]
[]
[null,"Volume","Current Rate ($)","Current Charge ($)","Volume","Proposed Rate ($)","Proposed Charge ($)","Change ($)","Change (%)","% of Total Bill on RPP","% of Total Bill "]
["Energy First Tier",{"$f":"IF(B4>B7,B7,B4)","v":600},{"$f":"VLOOKUP($A12,'Data Pass Through'!$A:$D,2,FALSE)","v":9.8000000000000004E-2},{"$f":"B12*C12","v":58.800000000000004},{"$f":"B12","v":600},{"$f":"VLOOKUP($A12,'Data Pass Through'!$A:$D,3,FALSE)","v":9.8000000000000004E-2},{"$f":"E12*F12","v":58.800000000000004},{"$f":"G12-D12","v":0},{"$f":"IF(ISERROR(H12/ABS(D12)),\"N/A\",(H12/ABS(D12)))","v":0},{"$f":"G12/$G$44","v":0.46249730776227038}]
["Energy Second Tier",{"$f":"IF(B4>B7,(B4)-B7,0)","v":150},{"$f":"VLOOKUP($A13,'Data Pass Through'!$A:$D,2,FALSE)","v":0.115},{"$f":"B13*C13","v":17.25},{"$f":"B13","v":150},{"$f":"VLOOKUP($A13,'Data Pass Through'!$A:$D,3,FALSE)","v":0.115},{"$f":"E13*F13","v":17.25},0,0,{"$f":"G13/$G$44","v":0.13568160814454358}]
["Sub-Total:  Energy (RPP Tiered)",null,null,{"$f":"SUM(D12:D13)","v":76.050000000000011},null,null,{"$f":"SUM(G12:G13)","v":76.050000000000011},0,0,{"$f":"G14/$G$44","v":0.59817891590681405}]
["TOU-Off Peak",{"$f":"B$4*VLOOKUP($B$3,'Data Billing Quantities'!$A:$O,MATCH(BI_HCHI_AR_Typical!$A15,'Data Billing Quantities'!$4:$4,0),FALSE)","v":480},{"$f":"VLOOKUP($A15,'Data Pass Through'!$A:$D,2,FALSE)","v":8.2000000000000003E-2},{"$f":"B15*C15","v":39.36},480,{"$f":"VLOOKUP($A15,'Data Pass Through'!$A:$D,3,FALSE)","v":8.2000000000000003E-2},{"$f":"E15*F15","v":39.36},0,0,null,{"$f":"G15/$G$49","v":0.30740767020231963}]
["TOU-Mid Peak",{"$f":"B$4*VLOOKUP($B$3,'Data Billing Quantities'!$A:$O,MATCH(BI_HCHI_AR_Typical!$A16,'Data Billing Quantities'!$4:$4,0),FALSE)","v":135},{"$f":"VLOOKUP($A16,'Data Pass Through'!$A:$D,2,FALSE)","v":0.113},{"$f":"B16*C16","v":15.255000000000001},135,{"$f":"VLOOKUP($A16,'Data Pass Through'!$A:$D,3,FALSE)","v":0.113},{"$f":"E16*F16","v":15.255000000000001},0,0,null,0.11914390266606671]
["TOU-On Peak",{"$f":"B$4*VLOOKUP($B$3,'Data Billing Quantities'!$A:$O,MATCH(BI_HCHI_AR_Typical!$A17,'Data Billing Quantities'!$4:$4,0),FALSE)","v":135},{"$f":"VLOOKUP($A17,'Data Pass Through'!$A:$D,2,FALSE)","v":0.17},{"$f":"B17*C17","v":22.950000000000003},135,{"$f":"VLOOKUP($A17,'Data Pass Through'!$A:$D,3,FALSE)","v":0.17},{"$f":"E17*F17","v":22.950000000000003},0,0,null,0.17924303940912695]
["Sub-Total:  Energy (RPP TOU)",null,null,{"$f":"SUM(D15:D17)","v":77.564999999999998},null,null,{"$f":"SUM(G15:G17)","v":77.564999999999998},0,0,{"$f":"G18/$G$44","v":0.61009530062211725},0.60579461227751319]
["Service Charge",1,{"$f":"VLOOKUP($B$3,'Data Current Rates'!$A:$AP,MATCH(BI_HCHI_AR_Typical!$A19,CurrentHeader,0),FALSE)","v":36.909999999999997},{"$f":"B19*C19","v":36.909999999999997},1,{"$f":"VLOOKUP($C$3,'Data Proposed Rates'!$A:$AZ,MATCH(BI_HCHI_AR_Typical!$A19,ProposedHeader,0),FALSE)","v":35.94},{"$f":"E19*F19","v":35.94},-0.96999999999999886,-2.6280140883229448E-2,0.28268968096897951,0.28069694276095952]
["Distribution Volumetric Charge",{"$f":"IF($B$9=\"kWh\",$B$4,$B$5)","v":750},{"$f":"VLOOKUP($B$3,'Data Current Rates'!$A:$AP,MATCH(BI_HCHI_AR_Typical!$A20,CurrentHeader,0),FALSE)","v":0},{"$f":"B20*C20","v":0},{"$f":"IF($C$9=\"kWh\",$C$4,$C$5)","v":750},{"$f":"VLOOKUP($C$3,'Data Proposed Rates'!$A:$AZ,MATCH(BI_HCHI_AR_Typical!$A20,ProposedHeader,0),FALSE)","v":0},0,0,"N/A",0,0]
["Low Voltage Service Rate",{"$f":"IF($B$9=\"kWh\",$B$4,$B$5)","v":750},{"$f":"VLOOKUP($B$3,'Data Current Rates'!$A:$AP,MATCH(BI_HCHI_AR_Typical!$A21,CurrentHeader,0),FALSE)","v":4.0000000000000002E-4},0.3,null,null,null,-0.3,-1,0,0]
["Funding Adder for Renewable Energy Generation",750,{"$f":"VLOOKUP($B$3,'Data Current Rates'!$A:$AP,MATCH(BI_HCHI_AR_Typical!$A22,CurrentHeader,0),FALSE)","v":2.0000000000000001E-4},0.15,null,null,null,-0.15,-1,0,0]
["Group 1 Volumetric DVA Rider (General)",null,null,null,{"$f":"IF($C$9=\"kWh\",$C$4,$C$5)","v":750},{"$f":"VLOOKUP($C$3,'Data Proposed Rates'!$A:$AZ,MATCH(BI_HCHI_AR_Typical!$A23,ProposedHeader,0),FALSE)","v":-4.0000000000000002E-4},-0.3,-0.3,"N/A",-2.3596801416442361E-3,-2.3430462667859728E-3]
["Sub-Total:  Distribution (excluding pass through)",null,null,{"$f":"SUM(INDIRECT(\"D19:D\"&ROW()-1))","v":37.359999999999992},null,null,{"$f":"SUM(INDIRECT(\"g19:g\"&ROW()-1))","v":35.64},{"$f":"G24-D24","v":-1.7199999999999918},-4.603854389721606E-2,0.28033000082733528,0.27835389649417358]
["Smart Metering Entity Charge",{"$f":"B19","v":1},{"$f":"VLOOKUP($A25,'Data Pass Through'!$A:$D,2,FALSE)","v":0.56999999999999995},{"$f":"B25*C25","v":0.56999999999999995},{"$f":"E19","v":1},{"$f":"VLOOKUP($A25,'Data Pass Through'!$A:$D,3,FALSE)","v":0.56999999999999995},{"$f":"E25*F25","v":0.56999999999999995},0,0,4.4833922691240487E-3,4.4517879068933482E-3]
["Line Losses on Cost of Power (based on two-tier RPP prices)",{"$f":"B8-B4","v":49.125000000000114},{"$f":"IF(B4>B7,C13,C12)","v":0.115},{"$f":"B26*C26","v":5.6493750000000134},{"$f":"C8-C4","v":48},{"$f":"IF(C4>C7,F13,F12)","v":0.115},{"$f":"E26*F26","v":5.5200000000000005},-0.1293750000000129,-2.2900763358780853E-2,4.3418114606253951E-2,4.31120513088619E-2]
["Line Losses on Cost of Power (based on TOU prices)",{"$f":"B8-B4","v":49.125000000000114},{"$f":"VLOOKUP($B$3,'Data Billing Quantities'!$A:$O,MATCH(BI_HCHI_AR_Typical!$A15,'Data Billing Quantities'!$4:$4,0),FALSE)*C15+VLOOKUP($B$3,'Data Billing Quantities'!$A:$O,MATCH(BI_HCHI_AR_Typical!$A16,'Data Billing Quantities'!$4:$4,0),FALSE)*C16+VLOOKUP($B$3,'Data Billing Quantities'!$A:$O,MATCH(BI_HCHI_AR_Typical!$A17,'Data Billing Quantities'!$4:$4,0),FALSE)*C17","v":0.10342000000000001},{"$f":"B27*C27","v":5.0805075000000119},{"$f":"C8-C4","v":48},{"$f":"VLOOKUP($C$3,'Data Billing Quantities'!$A:$O,MATCH(BI_HCHI_AR_Typical!$A15,'Data Billing Quantities'!$4:$4,0),FALSE)*F15+VLOOKUP($C$3,'Data Billing Quantities'!$A:$O,MATCH(BI_HCHI_AR_Typical!$A16,'Data Billing Quantities'!$4:$4,0),FALSE)*F16+VLOOKUP($C$3,'Data Billing Quantities'!$A:$O,MATCH(BI_HCHI_AR_Typical!$A17,'Data Billing Quantities'!$4:$4,0),FALSE)*F17","v":0.10342000000000001},{"$f":"E27*F27","v":4.9641600000000006},-0.11634750000001137,-2.2900763358780812E-2,3.9046099239815515E-2,3.8770855185760851E-2]
["Sub-Total:  Distribution (based on two-tier RPP prices)",null,null,{"$f":"SUM(D24,D25:D26)","v":43.579375000000006},null,null,{"$f":"SUM(G24,G25:G26)","v":41.730000000000004},-1.849375000000002,-4.2436932608602158E-2,0.32823150770271331,0.32591773570992882]
["Sub-Total:  Distribution (based on TOU prices)",null,null,{"$f":"SUM(D24,D25,D27)","v":43.010507500000003},null,null,{"$f":"SUM(G24,G25,G27)","v":41.174160000000001},-1.8363475000000022,-4.2695322765024385E-2,0.32385949233627487,0.32157653958682775]
["Retail Transmission Rate – Network Service Rate",{"$f":"IF($B$9=\"kWh\",$B$8,$B$5)","v":799.12500000000011},{"$f":"VLOOKUP($B$3,'Data Current Rates'!$A:$AP,MATCH(BI_HCHI_AR_Typical!$A30,CurrentHeader,0),FALSE)","v":7.9000000000000008E-3},{"$f":"B30*C30","v":6.3130875000000017},{"$f":"IF($C$9=\"kWh\",$C$8,$C$5)","v":798},{"$f":"VLOOKUP($C$3,'Data Proposed Rates'!$A:$AZ,MATCH(BI_HCHI_AR_Typical!$A30,ProposedHeader,0),FALSE)","v":1.01E-2},{"$f":"E30*F30","v":8.0597999999999992},{"$f":"G30-D30","v":1.7467124999999974},0.27668118016738991,6.3395166685414048E-2,6.294828100347194E-2]
["Retail Transmission Rate – Line and Transformation Connection Service Rate",{"$f":"IF($B$9=\"kWh\",$B$8,$B$5)","v":799.12500000000011},{"$f":"VLOOKUP($B$3,'Data Current Rates'!$A:$AP,MATCH(BI_HCHI_AR_Typical!$A31,CurrentHeader,0),FALSE)","v":6.1000000000000004E-3},{"$f":"B31*C31","v":4.8746625000000012},{"$f":"IF($C$9=\"kWh\",$C$8,$C$5)","v":798},{"$f":"VLOOKUP($C$3,'Data Proposed Rates'!$A:$AZ,MATCH(BI_HCHI_AR_Typical!$A31,ProposedHeader,0),FALSE)","v":7.4000000000000003E-3},{"$f":"E31*F31","v":5.9052000000000007},{"$f":"G31-D31","v":1.0305374999999994},0.21140694355763073,4.6447943908125157E-2,4.6120522715415092E-2]
["Sub-Total:  Retail Transmission ",null,null,{"$f":"SUM(D30:D31)","v":11.187750000000003},null,null,{"$f":"SUM(G30:G31)","v":13.965},{"$f":"G32-D32","v":2.7772499999999969},0.24824026278742339,0.1098431105935392,0.10906880371888703]
["Sub-Total:  Delivery (based on two-tier RPP prices)",null,null,{"$f":"D28+D32","v":54.767125000000007},null,null,{"$f":"G28+G32","v":55.695000000000007},{"$f":"G33-D33","v":0.92787500000000023},1.6942189315214191E-2,0.43807461829625255,0.43498653942881588]
["Sub-Total:  Delivery (based on TOU prices)",null,null,{"$f":"D29+D32","v":54.198257500000004},null,null,{"$f":"G29+G32","v":55.139160000000004},{"$f":"G34-D34","v":0.94090249999999997},1.7360382849946787E-2,0.43370260292981411,0.4306453433057148]
["Wholesale Market Service Rate (WMS) - not including CBR",{"$f":"B8","v":799.12500000000011},{"$f":"VLOOKUP($A35,'Data Pass Through'!$A:$D,2,FALSE)","v":3.0000000000000001E-3},{"$f":"B35*C35","v":2.3973750000000003},{"$f":"$C$8","v":798},{"$f":"VLOOKUP($A35,'Data Pass Through'!$A:$D,3,FALSE)","v":3.0000000000000001E-3},{"$f":"E35*F35","v":2.3940000000000001},-3.3750000000001279E-3,-1.4077897700610575E-3,1.8830247530321007E-2,1.8697509208952062E-2]
["Capacity Based Recovery (CBR) - Applicable for Class B Customers",{"$f":"B8","v":799.12500000000011},{"$f":"VLOOKUP($A36,'Data Pass Through'!$A:$D,2,FALSE)","v":4.0000000000000002E-4},{"$f":"B36*C36","v":0.31965000000000005},{"$f":"$C$8","v":798},{"$f":"VLOOKUP($A36,'Data Pass Through'!$A:$D,3,FALSE)","v":4.0000000000000002E-4},{"$f":"E36*F36","v":0.31920000000000004},-4.5000000000000595E-4,-1.4077897700610225E-3,2.5106996707094679E-3,2.4930012278602753E-3]
["Rural Rate Protection Charge",{"$f":"B8","v":799.12500000000011},{"$f":"VLOOKUP($A37,'Data Pass Through'!$A:$D,2,FALSE)","v":5.0000000000000001E-4},0.39956250000000004,798,{"$f":"VLOOKUP($A37,'Data Pass Through'!$A:$D,3,FALSE)","v":5.0000000000000001E-4},0.39900000000000002,-5.6250000000002132E-4,-1.4077897700610575E-3,3.1383745883868347E-3,3.1162515348253437E-3]
["Standard Supply Service – Administration Charge (if applicable)",1,{"$f":"VLOOKUP($A38,'Data Pass Through'!$A:$D,2,FALSE)","v":0.25},{"$f":"B38*C38","v":0.25},1,{"$f":"VLOOKUP($A38,'Data Pass Through'!$A:$D,3,FALSE)","v":0.25},0.25,0,0,1.9664001180368638E-3,1.9525385556549773E-3]
["Sub-Total:  Regulatory",null,null,{"$f":"SUM(D35:D38)","v":3.3665875000000005},null,null,{"$f":"SUM(G35:G38)","v":3.3622000000000001},-4.3875000000004327E-3,-1.3032484674764676E-3,2.6445721907454173E-2,2.625930052729266E-2]
["Total  Electricty Charge on Two-Tier RPP ",null,null,{"$f":"SUM(D14,D24,D25,D26,D32,D39)","v":134.18371250000001},null,null,{"$f":"SUM(G14,G24,G25,G26,G32,G39)","v":135.10720000000001},0.92348749999999313,6.8822622566803186E-3,1.0626992561105206]
["     HST",null,0.13,{"$f":"D40*C41","v":17.443882625000001},null,{"$f":"C41","v":0.13},{"$f":"G40*F41","v":17.563936000000002},0.12005337500000124,6.8822622566804409E-3,0.13815090329436769]
["Total Electricity Charge on Two-Tier RPP (including HST)",null,null,{"$f":"SUM(D40:D41)","v":151.62759512500003},null,null,{"$f":"SUM(G40:G41)","v":152.67113600000002},1.0435408749999908,6.8822622566803082E-3,1.2008501594048884]
["Ontario Electricity Rebate (OER)",null,{"$f":"IF(($B$4*12)<250000,VLOOKUP(A43,'Data Pass Through'!$A$4:$C$20,2,0),0)","v":-0.189},{"$f":"D40*C43","v":-25.360721662500001},null,{"$f":"C43","v":-0.189},{"$f":"G40*F43","v":-25.5352608},-0.17453913749999828,-6.8822622566803021E-3,-0.2008501594048884]
["Total Amount on Two-Tier RPP",null,null,{"$f":"SUM(D42:D43)","v":126.26687346250003},null,null,{"$f":"SUM(G42:G43)","v":127.13587520000002},0.86900173749998544,6.8822622566802535E-3,1]
["Total Electricty Charge on TOU (before HST)",null,null,{"$f":"SUM(D18,D24,D25,D27,D32,D39)","v":135.12984499999999},null,null,{"$f":"SUM(G18,G24,G25,G27,G32,G39)","v":136.06636},0.9365150000000142,6.9304823075910012E-3,null,{"$f":"G45/$G$49","v":1.0626992561105206}]
["     HST",null,0.13,{"$f":"D45*C46","v":17.566879849999999},null,{"$f":"C46","v":0.13},{"$f":"G45*F46","v":17.688626800000002},0.12174695000000213,6.9304823075910169E-3,null,{"$f":"G46/$G$49","v":0.13815090329436769}]
["Total Electricity Charge on TOU (including HST)",null,null,{"$f":"SUM(D45:D46)","v":152.69672484999998},null,null,{"$f":"SUM(G45:G46)","v":153.75498680000001},1.0582619500000305,6.9304823075910958E-3,null,{"$f":"G47/$G$49","v":1.2008501594048884}]
["Ontario Electricity Rebate (OER)",null,{"$f":"IF(($B$4*12)<250000,VLOOKUP(A48,'Data Pass Through'!$A$4:$C$20,2,0),0)","v":-0.189},{"$f":"D45*C48","v":-25.539540704999997},null,{"$f":"C48","v":-0.189},{"$f":"G45*F48","v":-25.71654204},-0.17700133500000348,-6.9304823075910325E-3,null,{"$f":"G48/$G$49","v":-0.2008501594048884}]
["Total Amount on TOU",null,null,{"$f":"SUM(D47:D48)","v":127.15718414499999},null,null,{"$f":"SUM(G47:G48)","v":128.03844476},0.8812606150000164,6.9304823075910247E-3,null,{"$f":"G49/$G$49","v":1}]

{"sheet":"BI_HCHI_AR_Avg","index":90,"n_rows":49,"n_cols":11,"rows_kept":49,"cut":false,"hidden":false,"merged":[[0,0,0,10]]}
["2023 Bill Impacts (Average Consumption Level) - AR_HCHI"]
[]
["Rate Class",{"$f":"VLOOKUP(A1,'Data BI List Acq_Seas'!C:E,2,FALSE)","v":"HCHI_RES"},{"$f":"VLOOKUP(A1,'Data BI List Acq_Seas'!C:E,3,FALSE)","v":"AR-HCHI"}]
["Monthly Consumption (kWh)",{"$f":"IF(COUNTIF(A1,\"*Low*\")>0,VLOOKUP(B3,'Data Billing Quantities'!$A:$Z,MATCH(\"Low kWh\",'Data Billing Quantities'!4:4,0),FALSE),IF(COUNTIF(A1,\"*Typical*\")>0,VLOOKUP(B3,'Data Billing Quantities'!$A:$Z,MATCH(\"Typical kWh\",'Data Billing Quantities'!4:4,0),FALSE),IF(COUNTIF(A1,\"*Average*\")>0,VLOOKUP(B3,'Data Billing Quantities'!$A:$Z,MATCH(\"Average kWh\",'Data Billing Quantities'!4:4,0),FALSE),IF(COUNTIF(A1,\"*High*\")>0,VLOOKUP(B3,'Data Billing Quantities'!$A:$Z,MATCH(\"High kWh\",'Data Billing Quantities'!4:4,0),FALSE),\"error\"))))","v":742},{"$f":"B4","v":742}]
["Peak (kW)",{"$f":"IF(COUNTIF(A1,\"*Low*\")>0,VLOOKUP(B3,'Data Billing Quantities'!$A:$Z,MATCH(\"Low kW\",'Data Billing Quantities'!4:4,0),FALSE),IF(COUNTIF(A1,\"*Typical*\")>0,VLOOKUP(B3,'Data Billing Quantities'!$A:$Z,MATCH(\"Typical kW\",'Data Billing Quantities'!4:4,0),FALSE),IF(COUNTIF(A1,\"*Average*\")>0,VLOOKUP(B3,'Data Billing Quantities'!$A:$Z,MATCH(\"Average kW\",'Data Billing Quantities'!4:4,0),FALSE),IF(COUNTIF(A1,\"*High*\")>0,VLOOKUP(B3,'Data Billing Quantities'!$A:$Z,MATCH(\"High kW\",'Data Billing Quantities'!4:4,0),FALSE),\"error\"))))","v":0},{"$f":"B5","v":0}]
["Loss factor",{"$f":"VLOOKUP(B3,'Data Billing Quantities'!A:D,MATCH(A6,'Data Billing Quantities'!4:4,0),FALSE)","v":1.0655000000000001},{"$f":"VLOOKUP(C3,'Data Billing Quantities'!A:D,MATCH(A6,'Data Billing Quantities'!4:4,0),FALSE)","v":1.0640000000000001}]
["Commodity Threshold",{"$f":"VLOOKUP(B3,'Data Billing Quantities'!A:D,MATCH(A7,'Data Billing Quantities'!4:4,0),FALSE)","v":600},{"$f":"B7","v":600}]
["Monthly Consumption (kWh) - Uplifted",{"$f":"B4*B6","v":790.60100000000011},{"$f":"C4*C6","v":789.48800000000006}]
["Charge determinant",{"$f":"VLOOKUP(B3,'Data Billing Quantities'!A:D,MATCH(A9,'Data Billing Quantities'!4:4,0),FALSE)","v":"kWh"},{"$f":"VLOOKUP(C3,'Data Billing Quantities'!A:D,MATCH(A9,'Data Billing Quantities'!4:4,0),FALSE)","v":"kWh"}]
[]
[null,"Volume","Current Rate ($)","Current Charge ($)","Volume","Proposed Rate ($)","Proposed Charge ($)","Change ($)","Change (%)","% of Total Bill on RPP","% of Total Bill "]
["Energy First Tier",{"$f":"IF(B4>B7,B7,B4)","v":600},{"$f":"VLOOKUP($A12,'Data Pass Through'!$A:$D,2,FALSE)","v":9.8000000000000004E-2},{"$f":"B12*C12","v":58.800000000000004},{"$f":"B12","v":600},{"$f":"VLOOKUP($A12,'Data Pass Through'!$A:$D,3,FALSE)","v":9.8000000000000004E-2},{"$f":"E12*F12","v":58.800000000000004},{"$f":"G12-D12","v":0},{"$f":"IF(ISERROR(H12/ABS(D12)),\"N/A\",(H12/ABS(D12)))","v":0},{"$f":"G12/$G$44","v":0.46649506027139237}]
["Energy Second Tier",{"$f":"IF(B4>B7,(B4)-B7,0)","v":142},{"$f":"VLOOKUP($A13,'Data Pass Through'!$A:$D,2,FALSE)","v":0.115},{"$f":"B13*C13","v":16.330000000000002},{"$f":"B13","v":142},{"$f":"VLOOKUP($A13,'Data Pass Through'!$A:$D,3,FALSE)","v":0.115},{"$f":"E13*F13","v":16.330000000000002},0,0,{"$f":"G13/$G$44","v":0.12955551588829656}]
["Sub-Total:  Energy (RPP Tiered)",null,null,{"$f":"SUM(D12:D13)","v":75.13000000000001},null,null,{"$f":"SUM(G12:G13)","v":75.13000000000001},0,0,{"$f":"G14/$G$44","v":0.59605057615968893}]
["TOU-Off Peak",{"$f":"B$4*VLOOKUP($B$3,'Data Billing Quantities'!$A:$O,MATCH(BI_HCHI_AR_Avg!$A15,'Data Billing Quantities'!$4:$4,0),FALSE)","v":474.88},{"$f":"VLOOKUP($A15,'Data Pass Through'!$A:$D,2,FALSE)","v":8.2000000000000003E-2},{"$f":"B15*C15","v":38.940159999999999},474.88,{"$f":"VLOOKUP($A15,'Data Pass Through'!$A:$D,3,FALSE)","v":8.2000000000000003E-2},{"$f":"E15*F15","v":38.940159999999999},0,0,null,{"$f":"G15/$G$49","v":0.30651485342549462}]
["TOU-Mid Peak",{"$f":"B$4*VLOOKUP($B$3,'Data Billing Quantities'!$A:$O,MATCH(BI_HCHI_AR_Avg!$A16,'Data Billing Quantities'!$4:$4,0),FALSE)","v":133.56},{"$f":"VLOOKUP($A16,'Data Pass Through'!$A:$D,2,FALSE)","v":0.113},{"$f":"B16*C16","v":15.092280000000001},133.56,{"$f":"VLOOKUP($A16,'Data Pass Through'!$A:$D,3,FALSE)","v":0.113},{"$f":"E16*F16","v":15.092280000000001},0,0,null,0.11879786811498783]
["TOU-On Peak",{"$f":"B$4*VLOOKUP($B$3,'Data Billing Quantities'!$A:$O,MATCH(BI_HCHI_AR_Avg!$A17,'Data Billing Quantities'!$4:$4,0),FALSE)","v":133.56},{"$f":"VLOOKUP($A17,'Data Pass Through'!$A:$D,2,FALSE)","v":0.17},{"$f":"B17*C17","v":22.705200000000001},133.56,{"$f":"VLOOKUP($A17,'Data Pass Through'!$A:$D,3,FALSE)","v":0.17},{"$f":"E17*F17","v":22.705200000000001},0,0,null,0.17872245645617638]
["Sub-Total:  Energy (RPP TOU)",null,null,{"$f":"SUM(D15:D17)","v":76.737639999999999},null,null,{"$f":"SUM(G15:G17)","v":76.737639999999999},0,0,{"$f":"G18/$G$44","v":0.60880493191980278},0.60403517799665885]
["Service Charge",1,{"$f":"VLOOKUP($B$3,'Data Current Rates'!$A:$AP,MATCH(BI_HCHI_AR_Avg!$A19,CurrentHeader,0),FALSE)","v":36.909999999999997},{"$f":"B19*C19","v":36.909999999999997},1,{"$f":"VLOOKUP($C$3,'Data Proposed Rates'!$A:$AZ,MATCH(BI_HCHI_AR_Avg!$A19,ProposedHeader,0),FALSE)","v":35.94},{"$f":"E19*F19","v":35.94},-0.96999999999999886,-2.6280140883229448E-2,0.28513320520669794,0.28289929553736493]
["Distribution Volumetric Charge",{"$f":"IF($B$9=\"kWh\",$B$4,$B$5)","v":742},{"$f":"VLOOKUP($B$3,'Data Current Rates'!$A:$AP,MATCH(BI_HCHI_AR_Avg!$A20,CurrentHeader,0),FALSE)","v":0},{"$f":"B20*C20","v":0},{"$f":"IF($C$9=\"kWh\",$C$4,$C$5)","v":742},{"$f":"VLOOKUP($C$3,'Data Proposed Rates'!$A:$AZ,MATCH(BI_HCHI_AR_Avg!$A20,ProposedHeader,0),FALSE)","v":0},0,0,"N/A",0,0]
["Low Voltage Service Rate",{"$f":"IF($B$9=\"kWh\",$B$4,$B$5)","v":742},{"$f":"VLOOKUP($B$3,'Data Current Rates'!$A:$AP,MATCH(BI_HCHI_AR_Avg!$A21,CurrentHeader,0),FALSE)","v":4.0000000000000002E-4},0.29680000000000001,null,null,null,-0.29680000000000001,-1,0,0]
["Funding Adder for Renewable Energy Generation",742,{"$f":"VLOOKUP($B$3,'Data Current Rates'!$A:$AP,MATCH(BI_HCHI_AR_Avg!$A22,CurrentHeader,0),FALSE)","v":2.0000000000000001E-4},0.1484,null,null,null,-0.1484,-1,0,0]
["Group 1 Volumetric DVA Rider (General)",null,null,null,{"$f":"IF($C$9=\"kWh\",$C$4,$C$5)","v":742},{"$f":"VLOOKUP($C$3,'Data Proposed Rates'!$A:$AZ,MATCH(BI_HCHI_AR_Avg!$A23,ProposedHeader,0),FALSE)","v":-4.0000000000000002E-4},-0.29680000000000001,-0.29680000000000001,"N/A",-2.3546893518460754E-3,-2.3362412608650507E-3]
["Sub-Total:  Distribution (excluding pass through)",null,null,{"$f":"SUM(INDIRECT(\"D19:D\"&ROW()-1))","v":37.355199999999996},null,null,{"$f":"SUM(INDIRECT(\"g19:g\"&ROW()-1))","v":35.6432},{"$f":"G24-D24","v":-1.7119999999999962},-4.5830299396067919E-2,0.28277851585485186,0.28056305427649991]
["Smart Metering Entity Charge",{"$f":"B19","v":1},{"$f":"VLOOKUP($A25,'Data Pass Through'!$A:$D,2,FALSE)","v":0.56999999999999995},{"$f":"B25*C25","v":0.56999999999999995},{"$f":"E19","v":1},{"$f":"VLOOKUP($A25,'Data Pass Through'!$A:$D,3,FALSE)","v":0.56999999999999995},{"$f":"E25*F25","v":0.56999999999999995},0,0,4.5221459924267623E-3,4.4867167071869227E-3]
["Line Losses on Cost of Power (based on two-tier RPP prices)",{"$f":"B8-B4","v":48.601000000000113},{"$f":"IF(B4>B7,C13,C12)","v":0.115},{"$f":"B26*C26","v":5.5891150000000129},{"$f":"C8-C4","v":47.488000000000056},{"$f":"IF(C4>C7,F13,F12)","v":0.115},{"$f":"E26*F26","v":5.4611200000000064},-0.12799500000000652,-2.290076335877974E-2,4.3326284073967838E-2,4.2986839199916985E-2]
["Line Losses on Cost of Power (based on TOU prices)",{"$f":"B8-B4","v":48.601000000000113},{"$f":"VLOOKUP($B$3,'Data Billing Quantities'!$A:$O,MATCH(BI_HCHI_AR_Avg!$A15,'Data Billing Quantities'!$4:$4,0),FALSE)*C15+VLOOKUP($B$3,'Data Billing Quantities'!$A:$O,MATCH(BI_HCHI_AR_Avg!$A16,'Data Billing Quantities'!$4:$4,0),FALSE)*C16+VLOOKUP($B$3,'Data Billing Quantities'!$A:$O,MATCH(BI_HCHI_AR_Avg!$A17,'Data Billing Quantities'!$4:$4,0),FALSE)*C17","v":0.10342000000000001},{"$f":"B27*C27","v":5.026315420000012},{"$f":"C8-C4","v":47.488000000000056},{"$f":"VLOOKUP($C$3,'Data Billing Quantities'!$A:$O,MATCH(BI_HCHI_AR_Avg!$A15,'Data Billing Quantities'!$4:$4,0),FALSE)*F15+VLOOKUP($C$3,'Data Billing Quantities'!$A:$O,MATCH(BI_HCHI_AR_Avg!$A16,'Data Billing Quantities'!$4:$4,0),FALSE)*F16+VLOOKUP($C$3,'Data Billing Quantities'!$A:$O,MATCH(BI_HCHI_AR_Avg!$A17,'Data Billing Quantities'!$4:$4,0),FALSE)*F17","v":0.10342000000000001},{"$f":"E27*F27","v":4.9112089600000068},-0.11510646000000513,-2.290076335877959E-2,3.8963515642867437E-2,3.8658251391786219E-2]
["Sub-Total:  Distribution (based on two-tier RPP prices)",null,null,{"$f":"SUM(D24,D25:D26)","v":43.514315000000011},null,null,{"$f":"SUM(G24,G25:G26)","v":41.674320000000009},-1.8399950000000018,-4.2284820524004604E-2,0.33062694592124653,0.32803661018360386]
["Sub-Total:  Distribution (based on TOU prices)",null,null,{"$f":"SUM(D24,D25,D27)","v":42.951515420000007},null,null,{"$f":"SUM(G24,G25,G27)","v":41.124408960000011},-1.827106459999996,-4.2538812475734426E-2,0.32626417749014613,0.32370802237547308]
["Retail Transmission Rate – Network Service Rate",{"$f":"IF($B$9=\"kWh\",$B$8,$B$5)","v":790.60100000000011},{"$f":"VLOOKUP($B$3,'Data Current Rates'!$A:$AP,MATCH(BI_HCHI_AR_Avg!$A30,CurrentHeader,0),FALSE)","v":7.9000000000000008E-3},{"$f":"B30*C30","v":6.2457479000000014},{"$f":"IF($C$9=\"kWh\",$C$8,$C$5)","v":789.48800000000006},{"$f":"VLOOKUP($C$3,'Data Proposed Rates'!$A:$AZ,MATCH(BI_HCHI_AR_Avg!$A30,ProposedHeader,0),FALSE)","v":1.01E-2},{"$f":"E30*F30","v":7.9738288000000006},{"$f":"G30-D30","v":1.7280808999999993},0.27668118016739018,6.3261084126696676E-2,6.2765457714400452E-2]
["Retail Transmission Rate – Line and Transformation Connection Service Rate",{"$f":"IF($B$9=\"kWh\",$B$8,$B$5)","v":790.60100000000011},{"$f":"VLOOKUP($B$3,'Data Current Rates'!$A:$AP,MATCH(BI_HCHI_AR_Avg!$A31,CurrentHeader,0),FALSE)","v":6.1000000000000004E-3},{"$f":"B31*C31","v":4.8226661000000011},{"$f":"IF($C$9=\"kWh\",$C$8,$C$5)","v":789.48800000000006},{"$f":"VLOOKUP($C$3,'Data Proposed Rates'!$A:$AZ,MATCH(BI_HCHI_AR_Avg!$A31,ProposedHeader,0),FALSE)","v":7.4000000000000003E-3},{"$f":"E31*F31","v":5.8422112000000004},{"$f":"G31-D31","v":1.0195450999999993},0.21140694355763073,4.6349705201738152E-2,4.5986572978867664E-2]
["Sub-Total:  Retail Transmission ",null,null,{"$f":"SUM(D30:D31)","v":11.068414000000002},null,null,{"$f":"SUM(G30:G31)","v":13.816040000000001},{"$f":"G32-D32","v":2.7476259999999986},0.24824026278742356,0.10961078932843482,0.10875203069326812]
["Sub-Total:  Delivery (based on two-tier RPP prices)",null,null,{"$f":"D28+D32","v":54.582729000000015},null,null,{"$f":"G28+G32","v":55.49036000000001},{"$f":"G33-D33","v":0.90763099999999497},1.6628538305587373E-2,0.44023773524968135,0.43678864087687197]
["Sub-Total:  Delivery (based on TOU prices)",null,null,{"$f":"D29+D32","v":54.019929420000011},null,null,{"$f":"G29+G32","v":54.940448960000012},{"$f":"G34-D34","v":0.9205195400000008},1.7040369172700052E-2,0.43587496681858096,0.43246005306874119]
["Wholesale Market Service Rate (WMS) - not including CBR",{"$f":"B8","v":790.60100000000011},{"$f":"VLOOKUP($A35,'Data Pass Through'!$A:$D,2,FALSE)","v":3.0000000000000001E-3},{"$f":"B35*C35","v":2.3718030000000003},{"$f":"$C$8","v":789.48800000000006},{"$f":"VLOOKUP($A35,'Data Pass Through'!$A:$D,3,FALSE)","v":3.0000000000000001E-3},{"$f":"E35*F35","v":2.3684640000000003},-3.3389999999999809E-3,-1.4077897700609959E-3,1.8790421027731687E-2,1.8643205261703107E-2]
["Capacity Based Recovery (CBR) - Applicable for Class B Customers",{"$f":"B8","v":790.60100000000011},{"$f":"VLOOKUP($A36,'Data Pass Through'!$A:$D,2,FALSE)","v":4.0000000000000002E-4},{"$f":"B36*C36","v":0.31624040000000003},{"$f":"$C$8","v":789.48800000000006},{"$f":"VLOOKUP($A36,'Data Pass Through'!$A:$D,3,FALSE)","v":4.0000000000000002E-4},{"$f":"E36*F36","v":0.31579520000000005},-4.4519999999997895E-4,-1.4077897700609375E-3,2.5053894703642248E-3,2.4857607015604144E-3]
["Rural Rate Protection Charge",{"$f":"B8","v":790.60100000000011},{"$f":"VLOOKUP($A37,'Data Pass Through'!$A:$D,2,FALSE)","v":5.0000000000000001E-4},0.39530050000000005,789.48800000000006,{"$f":"VLOOKUP($A37,'Data Pass Through'!$A:$D,3,FALSE)","v":5.0000000000000001E-4},0.39474400000000004,-5.5650000000001532E-4,-1.4077897700610427E-3,3.1317368379552807E-3,3.1072008769505179E-3]
["Standard Supply Service – Administration Charge (if applicable)",1,{"$f":"VLOOKUP($A38,'Data Pass Through'!$A:$D,2,FALSE)","v":0.25},{"$f":"B38*C38","v":0.25},1,{"$f":"VLOOKUP($A38,'Data Pass Through'!$A:$D,3,FALSE)","v":0.25},0.25,0,0,1.9833973650994572E-3,1.9678582049065456E-3]
["Sub-Total:  Regulatory",null,null,{"$f":"SUM(D35:D38)","v":3.3333439},null,null,{"$f":"SUM(G35:G38)","v":3.3290032000000007},-4.340699999999309E-3,-1.3022058720071783E-3,2.641094470115065E-2,2.6204025045120587E-2]
["Total  Electricty Charge on Two-Tier RPP ",null,null,{"$f":"SUM(D14,D24,D25,D26,D32,D39)","v":133.04607289999998},null,null,{"$f":"SUM(G14,G24,G25,G26,G32,G39)","v":133.94936319999999},0.90329030000000898,6.7893044891218961E-3,1.0626992561105206]
["     HST",null,0.13,{"$f":"D40*C41","v":17.295989476999999},null,{"$f":"C41","v":0.13},{"$f":"G40*F41","v":17.413417215999999},0.11742773900000003,6.7893044891218302E-3,0.13815090329436769]
["Total Electricity Charge on Two-Tier RPP (including HST)",null,null,{"$f":"SUM(D40:D41)","v":150.34206237699999},null,null,{"$f":"SUM(G40:G41)","v":151.36278041599999},1.0207180390000019,6.7893044891218415E-3,1.2008501594048884]
["Ontario Electricity Rebate (OER)",null,{"$f":"IF(($B$4*12)<250000,VLOOKUP(A43,'Data Pass Through'!$A$4:$C$20,2,0),0)","v":-0.189},{"$f":"D40*C43","v":-25.145707778099997},null,{"$f":"C43","v":-0.189},{"$f":"G40*F43","v":-25.316429644799999},-0.17072186670000278,-6.7893044891219395E-3,-0.20085015940488843]
["Total Amount on Two-Tier RPP",null,null,{"$f":"SUM(D42:D43)","v":125.1963545989},null,null,{"$f":"SUM(G42:G43)","v":126.0463507712},0.84999617229999558,6.7893044891217929E-3,1]
["Total Electricty Charge on TOU (before HST)",null,null,{"$f":"SUM(D18,D24,D25,D27,D32,D39)","v":134.09091332},null,null,{"$f":"SUM(G18,G24,G25,G27,G32,G39)","v":135.00709216000001},0.91617884000001482,6.8325199472212446E-3,null,{"$f":"G45/$G$49","v":1.0626992561105206}]
["     HST",null,0.13,{"$f":"D45*C46","v":17.4318187316},null,{"$f":"C46","v":0.13},{"$f":"G45*F46","v":17.550921980800002},0.11910324920000193,6.8325199472212437E-3,null,{"$f":"G46/$G$49","v":0.13815090329436769}]
["Total Electricity Charge on TOU (including HST)",null,null,{"$f":"SUM(D45:D46)","v":151.5227320516},null,null,{"$f":"SUM(G45:G46)","v":152.55801414080003},1.0352820892000238,6.8325199472212906E-3,null,{"$f":"G47/$G$49","v":1.2008501594048884}]
["Ontario Electricity Rebate (OER)",null,{"$f":"IF(($B$4*12)<250000,VLOOKUP(A48,'Data Pass Through'!$A$4:$C$20,2,0),0)","v":-0.189},{"$f":"D45*C48","v":-25.34318261748},null,{"$f":"C48","v":-0.189},{"$f":"G45*F48","v":-25.516340418240002},-0.17315780076000209,-6.832519947221216E-3,null,{"$f":"G48/$G$49","v":-0.2008501594048884}]
["Total Amount on TOU",null,null,{"$f":"SUM(D47:D48)","v":126.17954943412001},null,null,{"$f":"SUM(G47:G48)","v":127.04167372256002},0.86212428844001465,6.8325199472212498E-3,null,{"$f":"G49/$G$49","v":1}]

{"sheet":"BI_HCHI_AR_High","index":91,"n_rows":49,"n_cols":11,"rows_kept":49,"cut":false,"hidden":false,"merged":[[0,0,0,10]]}
["2023 Bill Impacts (High Consumption Level) - AR_HCHI"]
[]
["Rate Class",{"$f":"VLOOKUP(A1,'Data BI List Acq_Seas'!C:E,2,FALSE)","v":"HCHI_RES"},{"$f":"VLOOKUP(A1,'Data BI List Acq_Seas'!C:E,3,FALSE)","v":"AR-HCHI"}]
["Monthly Consumption (kWh)",{"$f":"IF(COUNTIF(A1,\"*Low*\")>0,VLOOKUP(B3,'Data Billing Quantities'!$A:$Z,MATCH(\"Low kWh\",'Data Billing Quantities'!4:4,0),FALSE),IF(COUNTIF(A1,\"*Typical*\")>0,VLOOKUP(B3,'Data Billing Quantities'!$A:$Z,MATCH(\"Typical kWh\",'Data Billing Quantities'!4:4,0),FALSE),IF(COUNTIF(A1,\"*Average*\")>0,VLOOKUP(B3,'Data Billing Quantities'!$A:$Z,MATCH(\"Average kWh\",'Data Billing Quantities'!4:4,0),FALSE),IF(COUNTIF(A1,\"*High*\")>0,VLOOKUP(B3,'Data Billing Quantities'!$A:$Z,MATCH(\"High kWh\",'Data Billing Quantities'!4:4,0),FALSE),\"error\"))))","v":1410},{"$f":"B4","v":1410}]
["Peak (kW)",{"$f":"IF(COUNTIF(A1,\"*Low*\")>0,VLOOKUP(B3,'Data Billing Quantities'!$A:$Z,MATCH(\"Low kW\",'Data Billing Quantities'!4:4,0),FALSE),IF(COUNTIF(A1,\"*Typical*\")>0,VLOOKUP(B3,'Data Billing Quantities'!$A:$Z,MATCH(\"Typical kW\",'Data Billing Quantities'!4:4,0),FALSE),IF(COUNTIF(A1,\"*Average*\")>0,VLOOKUP(B3,'Data Billing Quantities'!$A:$Z,MATCH(\"Average kW\",'Data Billing Quantities'!4:4,0),FALSE),IF(COUNTIF(A1,\"*High*\")>0,VLOOKUP(B3,'Data Billing Quantities'!$A:$Z,MATCH(\"High kW\",'Data Billing Quantities'!4:4,0),FALSE),\"error\"))))","v":0},{"$f":"B5","v":0}]
["Loss factor",{"$f":"VLOOKUP(B3,'Data Billing Quantities'!A:D,MATCH(A6,'Data Billing Quantities'!4:4,0),FALSE)","v":1.0655000000000001},{"$f":"VLOOKUP(C3,'Data Billing Quantities'!A:D,MATCH(A6,'Data Billing Quantities'!4:4,0),FALSE)","v":1.0640000000000001}]
["Commodity Threshold",{"$f":"VLOOKUP(B3,'Data Billing Quantities'!A:D,MATCH(A7,'Data Billing Quantities'!4:4,0),FALSE)","v":600},{"$f":"B7","v":600}]
["Monthly Consumption (kWh) - Uplifted",{"$f":"B4*B6","v":1502.3550000000002},{"$f":"C4*C6","v":1500.24}]
["Charge determinant",{"$f":"VLOOKUP(B3,'Data Billing Quantities'!A:D,MATCH(A9,'Data Billing Quantities'!4:4,0),FALSE)","v":"kWh"},{"$f":"VLOOKUP(C3,'Data Billing Quantities'!A:D,MATCH(A9,'Data Billing Quantities'!4:4,0),FALSE)","v":"kWh"}]
[]
[null,"Volume","Current Rate ($)","Current Charge ($)","Volume","Proposed Rate ($)","Proposed Charge ($)","Change ($)","Change (%)","% of Total Bill on RPP","% of Total Bill "]
["Energy First Tier",{"$f":"IF(B4>B7,B7,B4)","v":600},{"$f":"VLOOKUP($A12,'Data Pass Through'!$A:$D,2,FALSE)","v":9.8000000000000004E-2},{"$f":"B12*C12","v":58.800000000000004},{"$f":"B12","v":600},{"$f":"VLOOKUP($A12,'Data Pass Through'!$A:$D,3,FALSE)","v":9.8000000000000004E-2},{"$f":"E12*F12","v":58.800000000000004},{"$f":"G12-D12","v":0},{"$f":"IF(ISERROR(H12/ABS(D12)),\"N/A\",(H12/ABS(D12)))","v":0},{"$f":"G12/$G$44","v":0.27094072205858438}]
["Energy Second Tier",{"$f":"IF(B4>B7,(B4)-B7,0)","v":810},{"$f":"VLOOKUP($A13,'Data Pass Through'!$A:$D,2,FALSE)","v":0.115},{"$f":"B13*C13","v":93.15},{"$f":"B13","v":810},{"$f":"VLOOKUP($A13,'Data Pass Through'!$A:$D,3,FALSE)","v":0.115},{"$f":"E13*F13","v":93.15},0,0,{"$f":"G13/$G$44","v":0.42921986836321652}]
["Sub-Total:  Energy (RPP Tiered)",null,null,{"$f":"SUM(D12:D13)","v":151.95000000000002},null,null,{"$f":"SUM(G12:G13)","v":151.95000000000002},0,0,{"$f":"G14/$G$44","v":0.7001605904218009}]
["TOU-Off Peak",{"$f":"B$4*VLOOKUP($B$3,'Data Billing Quantities'!$A:$O,MATCH(BI_HCHI_AR_High!$A15,'Data Billing Quantities'!$4:$4,0),FALSE)","v":902.4},{"$f":"VLOOKUP($A15,'Data Pass Through'!$A:$D,2,FALSE)","v":8.2000000000000003E-2},{"$f":"B15*C15","v":73.996800000000007},902.4,{"$f":"VLOOKUP($A15,'Data Pass Through'!$A:$D,3,FALSE)","v":8.2000000000000003E-2},{"$f":"E15*F15","v":73.996800000000007},0,0,null,{"$f":"G15/$G$49","v":0.35190981453647691}]
["TOU-Mid Peak",{"$f":"B$4*VLOOKUP($B$3,'Data Billing Quantities'!$A:$O,MATCH(BI_HCHI_AR_High!$A16,'Data Billing Quantities'!$4:$4,0),FALSE)","v":253.79999999999998},{"$f":"VLOOKUP($A16,'Data Pass Through'!$A:$D,2,FALSE)","v":0.113},{"$f":"B16*C16","v":28.679399999999998},253.79999999999998,{"$f":"VLOOKUP($A16,'Data Pass Through'!$A:$D,3,FALSE)","v":0.113},{"$f":"E16*F16","v":28.679399999999998},0,0,null,0.13639187552728541]
["TOU-On Peak",{"$f":"B$4*VLOOKUP($B$3,'Data Billing Quantities'!$A:$O,MATCH(BI_HCHI_AR_High!$A17,'Data Billing Quantities'!$4:$4,0),FALSE)","v":253.79999999999998},{"$f":"VLOOKUP($A17,'Data Pass Through'!$A:$D,2,FALSE)","v":0.17},{"$f":"B17*C17","v":43.146000000000001},253.79999999999998,{"$f":"VLOOKUP($A17,'Data Pass Through'!$A:$D,3,FALSE)","v":0.17},{"$f":"E17*F17","v":43.146000000000001},0,0,null,0.20519131716494268]
["Sub-Total:  Energy (RPP TOU)",null,null,{"$f":"SUM(D15:D17)","v":145.82220000000001},null,null,{"$f":"SUM(G15:G17)","v":145.82220000000001},0,0,{"$f":"G18/$G$44","v":0.67192469660155274},0.69349300722870499]
["Service Charge",1,{"$f":"VLOOKUP($B$3,'Data Current Rates'!$A:$AP,MATCH(BI_HCHI_AR_High!$A19,CurrentHeader,0),FALSE)","v":36.909999999999997},{"$f":"B19*C19","v":36.909999999999997},1,{"$f":"VLOOKUP($C$3,'Data Proposed Rates'!$A:$AZ,MATCH(BI_HCHI_AR_High!$A19,ProposedHeader,0),FALSE)","v":35.94},{"$f":"E19*F19","v":35.94},-0.96999999999999886,-2.6280140883229448E-2,0.16560560460519594,0.17092142814879802]
["Distribution Volumetric Charge",{"$f":"IF($B$9=\"kWh\",$B$4,$B$5)","v":1410},{"$f":"VLOOKUP($B$3,'Data Current Rates'!$A:$AP,MATCH(BI_HCHI_AR_High!$A20,CurrentHeader,0),FALSE)","v":0},{"$f":"B20*C20","v":0},{"$f":"IF($C$9=\"kWh\",$C$4,$C$5)","v":1410},{"$f":"VLOOKUP($C$3,'Data Proposed Rates'!$A:$AZ,MATCH(BI_HCHI_AR_High!$A20,ProposedHeader,0),FALSE)","v":0},0,0,"N/A",0,0]
["Low Voltage Service Rate",{"$f":"IF($B$9=\"kWh\",$B$4,$B$5)","v":1410},{"$f":"VLOOKUP($B$3,'Data Current Rates'!$A:$AP,MATCH(BI_HCHI_AR_High!$A21,CurrentHeader,0),FALSE)","v":4.0000000000000002E-4},0.56400000000000006,null,null,null,-0.56400000000000006,-1,0,0]
["Funding Adder for Renewable Energy Generation",1410,{"$f":"VLOOKUP($B$3,'Data Current Rates'!$A:$AP,MATCH(BI_HCHI_AR_High!$A22,CurrentHeader,0),FALSE)","v":2.0000000000000001E-4},0.28200000000000003,null,null,null,-0.28200000000000003,-1,0,0]
["Group 1 Volumetric DVA Rider (General)",null,null,null,{"$f":"IF($C$9=\"kWh\",$C$4,$C$5)","v":1410},{"$f":"VLOOKUP($C$3,'Data Proposed Rates'!$A:$AZ,MATCH(BI_HCHI_AR_High!$A23,ProposedHeader,0),FALSE)","v":-4.0000000000000002E-4},-0.56400000000000006,-0.56400000000000006,"N/A",-2.5988191707660134E-3,-2.6822394400646105E-3]
["Sub-Total:  Distribution (excluding pass through)",null,null,{"$f":"SUM(INDIRECT(\"D19:D\"&ROW()-1))","v":37.756},null,null,{"$f":"SUM(INDIRECT(\"g19:g\"&ROW()-1))","v":35.375999999999998},{"$f":"G24-D24","v":-2.3800000000000026},-6.3036338595190242E-2,0.16300678543442992,0.16823918870873342]
["Smart Metering Entity Charge",{"$f":"B19","v":1},{"$f":"VLOOKUP($A25,'Data Pass Through'!$A:$D,2,FALSE)","v":0.56999999999999995},{"$f":"B25*C25","v":0.56999999999999995},{"$f":"E19","v":1},{"$f":"VLOOKUP($A25,'Data Pass Through'!$A:$D,3,FALSE)","v":0.56999999999999995},{"$f":"E25*F25","v":0.56999999999999995},0,0,2.6264661832209706E-3,2.7107739021929567E-3]
["Line Losses on Cost of Power (based on two-tier RPP prices)",{"$f":"B8-B4","v":92.355000000000246},{"$f":"IF(B4>B7,C13,C12)","v":0.115},{"$f":"B26*C26","v":10.620825000000028},{"$f":"C8-C4","v":90.240000000000009},{"$f":"IF(C4>C7,F13,F12)","v":0.115},{"$f":"E26*F26","v":10.377600000000001},-0.24322500000002734,-2.2900763358781138E-2,4.7818272742094645E-2,4.9353205697188832E-2]
["Line Losses on Cost of Power (based on TOU prices)",{"$f":"B8-B4","v":92.355000000000246},{"$f":"VLOOKUP($B$3,'Data Billing Quantities'!$A:$O,MATCH(BI_HCHI_AR_High!$A15,'Data Billing Quantities'!$4:$4,0),FALSE)*C15+VLOOKUP($B$3,'Data Billing Quantities'!$A:$O,MATCH(BI_HCHI_AR_High!$A16,'Data Billing Quantities'!$4:$4,0),FALSE)*C16+VLOOKUP($B$3,'Data Billing Quantities'!$A:$O,MATCH(BI_HCHI_AR_High!$A17,'Data Billing Quantities'!$4:$4,0),FALSE)*C17","v":0.10342000000000001},{"$f":"B27*C27","v":9.5513541000000259},{"$f":"C8-C4","v":90.240000000000009},{"$f":"VLOOKUP($C$3,'Data Billing Quantities'!$A:$O,MATCH(BI_HCHI_AR_High!$A15,'Data Billing Quantities'!$4:$4,0),FALSE)*F15+VLOOKUP($C$3,'Data Billing Quantities'!$A:$O,MATCH(BI_HCHI_AR_High!$A16,'Data Billing Quantities'!$4:$4,0),FALSE)*F16+VLOOKUP($C$3,'Data Billing Quantities'!$A:$O,MATCH(BI_HCHI_AR_High!$A17,'Data Billing Quantities'!$4:$4,0),FALSE)*F17","v":0.10342000000000001},{"$f":"E27*F27","v":9.3326208000000026},-0.21873330000002333,-2.2900763358781006E-2,4.3003180582499384E-2,4.438355246263713E-2]
["Sub-Total:  Distribution (based on two-tier RPP prices)",null,null,{"$f":"SUM(D24,D25:D26)","v":48.946825000000032},null,null,{"$f":"SUM(G24,G25:G26)","v":46.323599999999999},-2.6232250000000334,-5.3593363818797882E-2,0.21345152435974554,0.22030316830811519]
["Sub-Total:  Distribution (based on TOU prices)",null,null,{"$f":"SUM(D24,D25,D27)","v":47.877354100000026},null,null,{"$f":"SUM(G24,G25,G27)","v":45.278620799999999},-2.5987333000000277,-5.4278966514568233E-2,0.20863643220015027,0.21533351507356349]
["Retail Transmission Rate – Network Service Rate",{"$f":"IF($B$9=\"kWh\",$B$8,$B$5)","v":1502.3550000000002},{"$f":"VLOOKUP($B$3,'Data Current Rates'!$A:$AP,MATCH(BI_HCHI_AR_High!$A30,CurrentHeader,0),FALSE)","v":7.9000000000000008E-3},{"$f":"B30*C30","v":11.868604500000004},{"$f":"IF($C$9=\"kWh\",$C$8,$C$5)","v":1500.24},{"$f":"VLOOKUP($C$3,'Data Proposed Rates'!$A:$AZ,MATCH(BI_HCHI_AR_High!$A30,ProposedHeader,0),FALSE)","v":1.01E-2},{"$f":"E30*F30","v":15.152424},{"$f":"G30-D30","v":3.2838194999999963},0.27668118016738996,6.9819875841799703E-2,7.2061044796775817E-2]
["Retail Transmission Rate – Line and Transformation Connection Service Rate",{"$f":"IF($B$9=\"kWh\",$B$8,$B$5)","v":1502.3550000000002},{"$f":"VLOOKUP($B$3,'Data Current Rates'!$A:$AP,MATCH(BI_HCHI_AR_High!$A31,CurrentHeader,0),FALSE)","v":6.1000000000000004E-3},{"$f":"B31*C31","v":9.1643655000000024},{"$f":"IF($C$9=\"kWh\",$C$8,$C$5)","v":1500.24},{"$f":"VLOOKUP($C$3,'Data Proposed Rates'!$A:$AZ,MATCH(BI_HCHI_AR_High!$A31,ProposedHeader,0),FALSE)","v":7.4000000000000003E-3},{"$f":"E31*F31","v":11.101776000000001},{"$f":"G31-D31","v":1.9374104999999986},0.21140694355763071,5.1155156557358208E-2,5.2797201138231789E-2]
["Sub-Total:  Retail Transmission ",null,null,{"$f":"SUM(D30:D31)","v":21.032970000000006},null,null,{"$f":"SUM(G30:G31)","v":26.254200000000001},{"$f":"G32-D32","v":5.2212299999999949},0.24824026278742342,0.12097503239915791,0.12485824593500761]
["Sub-Total:  Delivery (based on two-tier RPP prices)",null,null,{"$f":"D28+D32","v":69.979795000000038},null,null,{"$f":"G28+G32","v":72.577799999999996},{"$f":"G33-D33","v":2.5980049999999579},3.712507303000754E-2,0.33442655675890343,0.3451614142431228]
["Sub-Total:  Delivery (based on TOU prices)",null,null,{"$f":"D29+D32","v":68.910324100000025},null,null,{"$f":"G29+G32","v":71.532820799999996},{"$f":"G34-D34","v":2.6224966999999708},3.8056658915060451E-2,0.32961146459930818,0.34019176100857107]
["Wholesale Market Service Rate (WMS) - not including CBR",{"$f":"B8","v":1502.3550000000002},{"$f":"VLOOKUP($A35,'Data Pass Through'!$A:$D,2,FALSE)","v":3.0000000000000001E-3},{"$f":"B35*C35","v":4.5070650000000008},{"$f":"$C$8","v":1500.24},{"$f":"VLOOKUP($A35,'Data Pass Through'!$A:$D,3,FALSE)","v":3.0000000000000001E-3},{"$f":"E35*F35","v":4.5007200000000003},-6.3450000000004891E-3,-1.4077897700611125E-3,2.0738576982712784E-2,2.140427073171559E-2]
["Capacity Based Recovery (CBR) - Applicable for Class B Customers",{"$f":"B8","v":1502.3550000000002},{"$f":"VLOOKUP($A36,'Data Pass Through'!$A:$D,2,FALSE)","v":4.0000000000000002E-4},{"$f":"B36*C36","v":0.60094200000000009},{"$f":"$C$8","v":1500.24},{"$f":"VLOOKUP($A36,'Data Pass Through'!$A:$D,3,FALSE)","v":4.0000000000000002E-4},{"$f":"E36*F36","v":0.60009600000000007},-8.4600000000001341E-4,-1.4077897700610262E-3,2.7651435976950383E-3,2.8539027642287456E-3]
["Rural Rate Protection Charge",{"$f":"B8","v":1502.3550000000002},{"$f":"VLOOKUP($A37,'Data Pass Through'!$A:$D,2,FALSE)","v":5.0000000000000001E-4},0.75117750000000016,1500.24,{"$f":"VLOOKUP($A37,'Data Pass Through'!$A:$D,3,FALSE)","v":5.0000000000000001E-4},0.75012000000000001,-1.0575000000001555E-3,-1.407789770061211E-3,3.4564294971187975E-3,3.5673784552859313E-3]
["Standard Supply Service – Administration Charge (if applicable)",1,{"$f":"VLOOKUP($A38,'Data Pass Through'!$A:$D,2,FALSE)","v":0.25},{"$f":"B38*C38","v":0.25},1,{"$f":"VLOOKUP($A38,'Data Pass Through'!$A:$D,3,FALSE)","v":0.25},0.25,0,0,1.1519588522898995E-3,1.1889359220144549E-3]
["Sub-Total:  Regulatory",null,null,{"$f":"SUM(D35:D38)","v":6.1091845000000005},null,null,{"$f":"SUM(G35:G38)","v":6.1009359999999999},-8.2485000000005471E-3,-1.3501802081768109E-3,2.8112108929816519E-2,2.9014487873244718E-2]
["Total  Electricty Charge on Two-Tier RPP ",null,null,{"$f":"SUM(D14,D24,D25,D26,D32,D39)","v":228.03897950000004},null,null,{"$f":"SUM(G14,G24,G25,G26,G32,G39)","v":230.628736},2.5897564999999645,1.1356639578366311E-2,1.0626992561105209]
["     HST",null,0.13,{"$f":"D40*C41","v":29.645067335000007},null,{"$f":"C41","v":0.13},{"$f":"G40*F41","v":29.98173568},0.33666834499999254,1.1356639578366216E-2,0.13815090329436772]
["Total Electricity Charge on Two-Tier RPP (including HST)",null,null,{"$f":"SUM(D40:D41)","v":257.68404683500006},null,null,{"$f":"SUM(G40:G41)","v":260.61047167999999},2.9264248449999286,1.135663957836619E-2,1.2008501594048884]
["Ontario Electricity Rebate (OER)",null,{"$f":"IF(($B$4*12)<250000,VLOOKUP(A43,'Data Pass Through'!$A$4:$C$20,2,0),0)","v":-0.189},{"$f":"D40*C43","v":-43.099367125500009},null,{"$f":"C43","v":-0.189},{"$f":"G40*F43","v":-43.588831104},-0.48946397849999101,-1.1356639578366259E-2,-0.20085015940488843]
["Total Amount on Two-Tier RPP",null,null,{"$f":"SUM(D42:D43)","v":214.58467970950005},null,null,{"$f":"SUM(G42:G43)","v":217.02164057599998},2.4369608664999305,1.1356639578366143E-2,1]
["Total Electricty Charge on TOU (before HST)",null,null,{"$f":"SUM(D18,D24,D25,D27,D32,D39)","v":220.84170860000003},null,null,{"$f":"SUM(G18,G24,G25,G27,G32,G39)","v":223.4559568},2.6142481999999632,1.1837656104785103E-2,null,{"$f":"G45/$G$49","v":1.0626992561105206}]
["     HST",null,0.13,{"$f":"D45*C46","v":28.709422118000006},null,{"$f":"C46","v":0.13},{"$f":"G45*F46","v":29.049274384},0.33985226599999407,1.1837656104785063E-2,null,{"$f":"G46/$G$49","v":0.13815090329436769}]
["Total Electricity Charge on TOU (including HST)",null,null,{"$f":"SUM(D45:D46)","v":249.55113071800002},null,null,{"$f":"SUM(G45:G46)","v":252.505231184},2.9541004659999714,1.1837656104785156E-2,null,{"$f":"G47/$G$49","v":1.2008501594048884}]
["Ontario Electricity Rebate (OER)",null,{"$f":"IF(($B$4*12)<250000,VLOOKUP(A48,'Data Pass Through'!$A$4:$C$20,2,0),0)","v":-0.189},{"$f":"D45*C48","v":-41.739082925400005},null,{"$f":"C48","v":-0.189},{"$f":"G45*F48","v":-42.233175835200001},-0.49409290979999554,-1.1837656104785163E-2,null,{"$f":"G48/$G$49","v":-0.20085015940488843}]
["Total Amount on TOU",null,null,{"$f":"SUM(D47:D48)","v":207.81204779260003},null,null,{"$f":"SUM(G47:G48)","v":210.2720553488},2.4600075561999688,1.183765610478512E-2,null,{"$f":"G49/$G$49","v":1}]

{"sheet":"BI_NPDI_AGSe_Low","index":92,"n_rows":49,"n_cols":11,"rows_kept":49,"cut":false,"hidden":false,"merged":[[0,0,0,10]]}
["2023 Bill Impacts (Low Consumption Level) - AGSe_NPDI"]
[]
["Rate Class",{"$f":"VLOOKUP(A1,'Data BI List Acq_Seas'!C:E,2,FALSE)","v":"NPDI_GS<50"},{"$f":"VLOOKUP(A1,'Data BI List Acq_Seas'!C:E,3,FALSE)","v":"AGSe-NPDI"}]
["Monthly Consumption (kWh)",{"$f":"IF(COUNTIF(A1,\"*Low*\")>0,VLOOKUP(B3,'Data Billing Quantities'!$A:$Z,MATCH(\"Low kWh\",'Data Billing Quantities'!4:4,0),FALSE),IF(COUNTIF(A1,\"*Typical*\")>0,VLOOKUP(B3,'Data Billing Quantities'!$A:$Z,MATCH(\"Typical kWh\",'Data Billing Quantities'!4:4,0),FALSE),IF(COUNTIF(A1,\"*Average*\")>0,VLOOKUP(B3,'Data Billing Quantities'!$A:$Z,MATCH(\"Average kWh\",'Data Billing Quantities'!4:4,0),FALSE),IF(COUNTIF(A1,\"*High*\")>0,VLOOKUP(B3,'Data Billing Quantities'!$A:$Z,MATCH(\"High kWh\",'Data Billing Quantities'!4:4,0),FALSE),\"error\"))))","v":110},{"$f":"B4","v":110}]
["Peak (kW)",{"$f":"IF(COUNTIF(A1,\"*Low*\")>0,VLOOKUP(B3,'Data Billing Quantities'!$A:$Z,MATCH(\"Low kW\",'Data Billing Quantities'!4:4,0),FALSE),IF(COUNTIF(A1,\"*Typical*\")>0,VLOOKUP(B3,'Data Billing Quantities'!$A:$Z,MATCH(\"Typical kW\",'Data Billing Quantities'!4:4,0),FALSE),IF(COUNTIF(A1,\"*Average*\")>0,VLOOKUP(B3,'Data Billing Quantities'!$A:$Z,MATCH(\"Average kW\",'Data Billing Quantities'!4:4,0),FALSE),IF(COUNTIF(A1,\"*High*\")>0,VLOOKUP(B3,'Data Billing Quantities'!$A:$Z,MATCH(\"High kW\",'Data Billing Quantities'!4:4,0),FALSE),\"error\"))))","v":0},{"$f":"B5","v":0}]
["Loss factor",{"$f":"VLOOKUP(B3,'Data Billing Quantities'!A:D,MATCH(A6,'Data Billing Quantities'!4:4,0),FALSE)","v":1.0564},{"$f":"VLOOKUP(C3,'Data Billing Quantities'!A:D,MATCH(A6,'Data Billing Quantities'!4:4,0),FALSE)","v":1.0640000000000001}]
["Commodity Threshold",{"$f":"VLOOKUP(B3,'Data Billing Quantities'!A:D,MATCH(A7,'Data Billing Quantities'!4:4,0),FALSE)","v":750},{"$f":"B7","v":750}]
["Monthly Consumption (kWh) - Uplifted",{"$f":"B4*B6","v":116.20400000000001},{"$f":"C4*C6","v":117.04}]
["Charge determinant",{"$f":"VLOOKUP(B3,'Data Billing Quantities'!A:D,MATCH(A9,'Data Billing Quantities'!4:4,0),FALSE)","v":"kWh"},{"$f":"VLOOKUP(C3,'Data Billing Quantities'!A:D,MATCH(A9,'Data Billing Quantities'!4:4,0),FALSE)","v":"kWh"}]
[]
[null,"Volume","Current Rate ($)","Current Charge ($)","Volume","Proposed Rate ($)","Proposed Charge ($)","Change ($)","Change (%)","% of Total Bill on RPP","% of Total Bill"]
["Energy First Tier",{"$f":"IF(B4>B7,B7,B4)","v":110},{"$f":"VLOOKUP($A12,'Data Pass Through'!$A:$D,2,FALSE)","v":9.8000000000000004E-2},{"$f":"B12*C12","v":10.780000000000001},{"$f":"B12","v":110},{"$f":"VLOOKUP($A12,'Data Pass Through'!$A:$D,3,FALSE)","v":9.8000000000000004E-2},{"$f":"E12*F12","v":10.780000000000001},{"$f":"G12-D12","v":0},{"$f":"IF(ISERROR(H12/ABS(D12)),\"N/A\",(H12/ABS(D12)))","v":0},{"$f":"G12/$G$44","v":0.21264779266194145}]
["Energy Second Tier",{"$f":"IF(B4>B7,(B4)-B7,0)","v":0},{"$f":"VLOOKUP($A13,'Data Pass Through'!$A:$D,2,FALSE)","v":0.115},{"$f":"B13*C13","v":0},{"$f":"B13","v":0},{"$f":"VLOOKUP($A13,'Data Pass Through'!$A:$D,3,FALSE)","v":0.115},{"$f":"E13*F13","v":0},0,"N/A",{"$f":"G13/$G$44","v":0}]
["Sub-Total:  Energy (RPP Tiered)",null,null,{"$f":"SUM(D12:D13)","v":10.780000000000001},null,null,{"$f":"SUM(G12:G13)","v":10.780000000000001},0,0,{"$f":"G14/$G$44","v":0.21264779266194145}]
["TOU-Off Peak",{"$f":"B$4*VLOOKUP($B$3,'Data Billing Quantities'!$A:$O,MATCH(BI_NPDI_AGSe_Low!$A15,'Data Billing Quantities'!$4:$4,0),FALSE)","v":70.400000000000006},{"$f":"VLOOKUP($A15,'Data Pass Through'!$A:$D,2,FALSE)","v":8.2000000000000003E-2},{"$f":"B15*C15","v":5.772800000000001},70.400000000000006,{"$f":"VLOOKUP($A15,'Data Pass Through'!$A:$D,3,FALSE)","v":8.2000000000000003E-2},{"$f":"E15*F15","v":5.772800000000001},0,0,null,{"$f":"G15/$G$49","v":0.11254977573218297}]
["TOU-Mid Peak",{"$f":"B$4*VLOOKUP($B$3,'Data Billing Quantities'!$A:$O,MATCH(BI_NPDI_AGSe_Low!$A16,'Data Billing Quantities'!$4:$4,0),FALSE)","v":19.8},{"$f":"VLOOKUP($A16,'Data Pass Through'!$A:$D,2,FALSE)","v":0.113},{"$f":"B16*C16","v":2.2374000000000001},19.8,{"$f":"VLOOKUP($A16,'Data Pass Through'!$A:$D,3,FALSE)","v":0.113},{"$f":"E16*F16","v":2.2374000000000001},0,0,null,4.3621616585224871E-2]
["TOU-On Peak",{"$f":"B$4*VLOOKUP($B$3,'Data Billing Quantities'!$A:$O,MATCH(BI_NPDI_AGSe_Low!$A17,'Data Billing Quantities'!$4:$4,0),FALSE)","v":19.8},{"$f":"VLOOKUP($A17,'Data Pass Through'!$A:$D,2,FALSE)","v":0.17},{"$f":"B17*C17","v":3.3660000000000005},19.8,{"$f":"VLOOKUP($A17,'Data Pass Through'!$A:$D,3,FALSE)","v":0.17},{"$f":"E17*F17","v":3.3660000000000005},0,0,null,6.5625440880426808E-2]
["Sub-Total:  Energy (RPP TOU)",null,null,{"$f":"SUM(D15:D17)","v":11.376200000000001},null,null,{"$f":"SUM(G15:G17)","v":11.376200000000001},0,0,{"$f":"G18/$G$44","v":0.224408517521408},0.22179683319783464]
["Service Charge",1,{"$f":"VLOOKUP($B$3,'Data Current Rates'!$A:$AP,MATCH(BI_NPDI_AGSe_Low!$A19,CurrentHeader,0),FALSE)","v":52.54},{"$f":"B19*C19","v":52.54},1,{"$f":"VLOOKUP($C$3,'Data Proposed Rates'!$A:$AZ,MATCH(BI_NPDI_AGSe_Low!$A19,ProposedHeader,0),FALSE)","v":37.65},{"$f":"E19*F19","v":37.65},-14.89,-0.28340312143129048,0.74268918309110343,0.73404570681760806]
["Distribution Volumetric Charge",{"$f":"IF($B$9=\"kWh\",$B$4,$B$5)","v":110},{"$f":"VLOOKUP($B$3,'Data Current Rates'!$A:$AP,MATCH(BI_NPDI_AGSe_Low!$A20,CurrentHeader,0),FALSE)","v":1.6400000000000001E-2},{"$f":"B20*C20","v":1.804},{"$f":"IF($C$9=\"kWh\",$C$4,$C$5)","v":110},{"$f":"VLOOKUP($C$3,'Data Proposed Rates'!$A:$AZ,MATCH(BI_NPDI_AGSe_Low!$A20,ProposedHeader,0),FALSE)","v":1.7100000000000001E-2},1.881,7.6999999999999957E-2,4.2682926829268268E-2,3.7104869944073457E-2,3.6673040492003206E-2]
["Low Voltage Service Rate",{"$f":"IF($B$9=\"kWh\",$B$4,$B$5)","v":110},{"$f":"VLOOKUP($B$3,'Data Current Rates'!$A:$AP,MATCH(BI_NPDI_AGSe_Low!$A21,CurrentHeader,0),FALSE)","v":8.0000000000000004E-4},8.8000000000000009E-2,null,null,null,-8.8000000000000009E-2,-1,0,0]
["Rate Rider for Application of Tax Change",110,{"$f":"VLOOKUP($B$3,'Data Current Rates'!$A:$AP,MATCH(BI_NPDI_AGSe_Low!$A22,CurrentHeader,0),FALSE)","v":1E-4},1.1000000000000001E-2,null,null,null,-1.1000000000000001E-2,-1,0,0]
["Group 1 Volumetric DVA Rider (General)",null,null,null,{"$f":"IF($C$9=\"kWh\",$C$4,$C$5)","v":110},{"$f":"VLOOKUP($C$3,'Data Proposed Rates'!$A:$AZ,MATCH(BI_NPDI_AGSe_Low!$A23,ProposedHeader,0),FALSE)","v":-5.0000000000000001E-4},-5.5E-2,-5.5E-2,"N/A",-1.0849377176629666E-3,-1.0723111254971698E-3]
["Sub-Total:  Distribution (excluding pass through)",null,null,{"$f":"SUM(INDIRECT(\"D19:D\"&ROW()-1))","v":54.443000000000005},null,null,{"$f":"SUM(INDIRECT(\"g19:g\"&ROW()-1))","v":39.475999999999999},{"$f":"G24-D24","v":-14.967000000000006},-0.27491137519975029,0.77870911531751386,0.7696464361841141]
["Smart Metering Entity Charge",{"$f":"B19","v":1},{"$f":"VLOOKUP($A25,'Data Pass Through'!$A:$D,2,FALSE)","v":0.56999999999999995},{"$f":"B25*C25","v":0.56999999999999995},{"$f":"E19","v":1},{"$f":"VLOOKUP($A25,'Data Pass Through'!$A:$D,3,FALSE)","v":0.56999999999999995},{"$f":"E25*F25","v":0.56999999999999995},0,0,1.1243899983052561E-2,1.1113042573334305E-2]
["Line Losses on Cost of Power (based on two-tier RPP prices)",{"$f":"B8-B4","v":6.2040000000000077},{"$f":"IF(B4>B7,C13,C12)","v":9.8000000000000004E-2},{"$f":"B26*C26","v":0.60799200000000075},{"$f":"C8-C4","v":7.0400000000000063},{"$f":"IF(C4>C7,F13,F12)","v":9.8000000000000004E-2},{"$f":"E26*F26","v":0.68992000000000064},8.192799999999989E-2,0.13475177304964503,1.3609458730364265E-2,1.3451070758236511E-2]
["Line Losses on Cost of Power (based on TOU prices)",{"$f":"B8-B4","v":6.2040000000000077},{"$f":"VLOOKUP($B$3,'Data Billing Quantities'!$A:$O,MATCH(BI_NPDI_AGSe_Low!$A15,'Data Billing Quantities'!$4:$4,0),FALSE)*C15+VLOOKUP($B$3,'Data Billing Quantities'!$A:$O,MATCH(BI_NPDI_AGSe_Low!$A16,'Data Billing Quantities'!$4:$4,0),FALSE)*C16+VLOOKUP($B$3,'Data Billing Quantities'!$A:$O,MATCH(BI_NPDI_AGSe_Low!$A17,'Data Billing Quantities'!$4:$4,0),FALSE)*C17","v":0.10342000000000001},{"$f":"B27*C27","v":0.64161768000000086},{"$f":"C8-C4","v":7.0400000000000063},{"$f":"VLOOKUP($C$3,'Data Billing Quantities'!$A:$O,MATCH(BI_NPDI_AGSe_Low!$A15,'Data Billing Quantities'!$4:$4,0),FALSE)*F15+VLOOKUP($C$3,'Data Billing Quantities'!$A:$O,MATCH(BI_NPDI_AGSe_Low!$A16,'Data Billing Quantities'!$4:$4,0),FALSE)*F16+VLOOKUP($C$3,'Data Billing Quantities'!$A:$O,MATCH(BI_NPDI_AGSe_Low!$A17,'Data Billing Quantities'!$4:$4,0),FALSE)*F17","v":0.10342000000000001},{"$f":"E27*F27","v":0.72807680000000075},8.6459119999999889E-2,0.13475177304964503,1.4362145121370126E-2,1.4194997324661429E-2]
["Sub-Total:  Distribution (based on two-tier RPP prices)",null,null,{"$f":"SUM(D24,D25:D26)","v":55.620992000000008},null,null,{"$f":"SUM(G24,G25:G26)","v":40.73592},-14.885072000000008,-0.26761608279118798,0.80356247403093073,0.79421054951568493]
["Sub-Total:  Distribution (based on TOU prices)",null,null,{"$f":"SUM(D24,D25,D27)","v":55.654617680000008},null,null,{"$f":"SUM(G24,G25,G27)","v":40.774076800000003},-14.880540880000005,-0.2673729782056784,0.80431516042193663,0.7949544760821099]
["Retail Transmission Rate – Network Service Rate",{"$f":"IF($B$9=\"kWh\",$B$8,$B$5)","v":116.20400000000001},{"$f":"VLOOKUP($B$3,'Data Current Rates'!$A:$AP,MATCH(BI_NPDI_AGSe_Low!$A30,CurrentHeader,0),FALSE)","v":7.7000000000000002E-3},{"$f":"B30*C30","v":0.89477080000000009},{"$f":"IF($C$9=\"kWh\",$C$8,$C$5)","v":117.04},{"$f":"VLOOKUP($C$3,'Data Proposed Rates'!$A:$AZ,MATCH(BI_NPDI_AGSe_Low!$A30,ProposedHeader,0),FALSE)","v":8.0000000000000002E-3},{"$f":"E30*F30","v":0.93632000000000004},{"$f":"G30-D30","v":4.1549199999999953E-2},4.6435578809679474E-2,1.8469979705494341E-2,1.8255024600463819E-2]
["Retail Transmission Rate – Line and Transformation Connection Service Rate",{"$f":"IF($B$9=\"kWh\",$B$8,$B$5)","v":116.20400000000001},{"$f":"VLOOKUP($B$3,'Data Current Rates'!$A:$AP,MATCH(BI_NPDI_AGSe_Low!$A31,CurrentHeader,0),FALSE)","v":3.3E-3},{"$f":"B31*C31","v":0.38347320000000001},{"$f":"IF($C$9=\"kWh\",$C$8,$C$5)","v":117.04},{"$f":"VLOOKUP($C$3,'Data Proposed Rates'!$A:$AZ,MATCH(BI_NPDI_AGSe_Low!$A31,ProposedHeader,0),FALSE)","v":6.1000000000000004E-3},{"$f":"E31*F31","v":0.71394400000000013},{"$f":"G31-D31","v":0.33047080000000012},0.86178330063222175,1.4083359525439439E-2,1.3919456257853666E-2]
["Sub-Total:  Retail Transmission ",null,null,{"$f":"SUM(D30:D31)","v":1.2782440000000002},null,null,{"$f":"SUM(G30:G31)","v":1.6502640000000002},{"$f":"G32-D32","v":0.37202000000000002},0.29103989535644209,3.255333923093378E-2,3.2174480858317485E-2]
["Sub-Total:  Delivery (based on two-tier RPP prices)",null,null,{"$f":"D28+D32","v":56.899236000000009},null,null,{"$f":"G28+G32","v":42.386184},{"$f":"G33-D33","v":-14.513052000000009},-0.25506585009331245,0.83611581326186457,0.82638503037400246]
["Sub-Total:  Delivery (based on TOU prices)",null,null,{"$f":"D29+D32","v":56.932861680000009},null,null,{"$f":"G29+G32","v":42.424340800000003},{"$f":"G34-D34","v":-14.508520880000006},-0.25483561605505445,0.83686849965287047,0.82712895694042743]
["Wholesale Market Service Rate (WMS) - not including CBR",{"$f":"B8","v":116.20400000000001},{"$f":"VLOOKUP($A35,'Data Pass Through'!$A:$D,2,FALSE)","v":3.0000000000000001E-3},{"$f":"B35*C35","v":0.34861200000000003},{"$f":"$C$8","v":117.04},{"$f":"VLOOKUP($A35,'Data Pass Through'!$A:$D,3,FALSE)","v":3.0000000000000001E-3},{"$f":"E35*F35","v":0.35112000000000004},2.5080000000000102E-3,7.1942446043165758E-3,6.9262423895603787E-3,6.8456342251739331E-3]
["Capacity Based Recovery (CBR) - Applicable for Class B Customers",{"$f":"B8","v":116.20400000000001},{"$f":"VLOOKUP($A36,'Data Pass Through'!$A:$D,2,FALSE)","v":4.0000000000000002E-4},{"$f":"B36*C36","v":4.6481600000000005E-2},{"$f":"$C$8","v":117.04},{"$f":"VLOOKUP($A36,'Data Pass Through'!$A:$D,3,FALSE)","v":4.0000000000000002E-4},{"$f":"E36*F36","v":4.6816000000000003E-2},3.3439999999999859E-4,7.1942446043165159E-3,9.234989852747172E-4,9.1275123002319109E-4]
["Rural Rate Protection Charge",{"$f":"B8","v":116.20400000000001},{"$f":"VLOOKUP($A37,'Data Pass Through'!$A:$D,2,FALSE)","v":5.0000000000000001E-4},5.8102000000000008E-2,117.04,{"$f":"VLOOKUP($A37,'Data Pass Through'!$A:$D,3,FALSE)","v":5.0000000000000001E-4},5.8520000000000003E-2,4.1799999999999476E-4,7.1942446043164561E-3,1.1543737315933963E-3,1.1409390375289887E-3]
["Standard Supply Service – Administration Charge (if applicable)",1,{"$f":"VLOOKUP($A38,'Data Pass Through'!$A:$D,2,FALSE)","v":0.25},{"$f":"B38*C38","v":0.25},1,{"$f":"VLOOKUP($A38,'Data Pass Through'!$A:$D,3,FALSE)","v":0.25},0.25,0,0,4.9315350802862116E-3,4.8741414795325901E-3]
["Sub-Total:  Regulatory",null,null,{"$f":"SUM(D35:D38)","v":0.70319560000000003},null,null,{"$f":"SUM(G35:G38)","v":0.70645600000000008},3.2604000000000521E-3,4.6365477827222642E-3,1.3935650186714705E-2,1.3773465972258704E-2]
["Total  Electricty Charge on Two-Tier RPP ",null,null,{"$f":"SUM(D14,D24,D25,D26,D32,D39)","v":68.382431600000004},null,null,{"$f":"SUM(G14,G24,G25,G26,G32,G39)","v":53.872640000000004},-14.5097916,-0.21218595566876564,1.0626992561105206]
["     HST",null,0.13,{"$f":"D40*C41","v":8.889716108},null,{"$f":"C41","v":0.13},{"$f":"G40*F41","v":7.0034432000000004},-1.8862729079999996,-0.21218595566876561,0.13815090329436769]
["Total Electricity Charge on Two-Tier RPP (including HST)",null,null,{"$f":"SUM(D40:D41)","v":77.272147708000006},null,null,{"$f":"SUM(G40:G41)","v":60.876083200000004},-16.396064508000002,-0.21218595566876566,1.2008501594048884]
["Ontario Electricity Rebate (OER)",null,{"$f":"IF(($B$4*12)<250000,VLOOKUP(A43,'Data Pass Through'!$A$4:$C$20,2,0),0)","v":-0.189},{"$f":"D40*C43","v":-12.924279572400001},null,{"$f":"C43","v":-0.189},{"$f":"G40*F43","v":-10.18192896},2.742350612400001,0.21218595566876572,-0.2008501594048884]
["Total Amount on Two-Tier RPP",null,null,{"$f":"SUM(D42:D43)","v":64.34786813560001},null,null,{"$f":"SUM(G42:G43)","v":50.694154240000003},-13.653713895600006,-0.21218595566876572,1]
["Total Electricty Charge on TOU (before HST)",null,null,{"$f":"SUM(D18,D24,D25,D27,D32,D39)","v":69.01225728},null,null,{"$f":"SUM(G18,G24,G25,G27,G32,G39)","v":54.506996800000003},-14.505260479999997,-0.21018382895589874,null,{"$f":"G45/$G$49","v":1.0626992561105206}]
["     HST",null,0.13,{"$f":"D45*C46","v":8.9715934464},null,{"$f":"C46","v":0.13},{"$f":"G45*F46","v":7.0859095840000004},-1.8856838623999996,-0.21018382895589874,null,{"$f":"G46/$G$49","v":0.13815090329436769}]
["Total Electricity Charge on TOU (including HST)",null,null,{"$f":"SUM(D45:D46)","v":77.983850726399993},null,null,{"$f":"SUM(G45:G46)","v":61.592906384000003},-16.39094434239999,-0.21018382895589868,null,{"$f":"G47/$G$49","v":1.2008501594048884}]
["Ontario Electricity Rebate (OER)",null,{"$f":"IF(($B$4*12)<250000,VLOOKUP(A48,'Data Pass Through'!$A$4:$C$20,2,0),0)","v":-0.189},{"$f":"D45*C48","v":-13.043316625919999},null,{"$f":"C48","v":-0.189},{"$f":"G45*F48","v":-10.3018223952},2.741494230719999,0.21018382895589871,null,{"$f":"G48/$G$49","v":-0.2008501594048884}]
["Total Amount on TOU",null,null,{"$f":"SUM(D47:D48)","v":64.940534100479994},null,null,{"$f":"SUM(G47:G48)","v":51.291083988800004},-13.64945011167999,-0.21018382895589863,null,{"$f":"G49/$G$49","v":1}]

{"sheet":"BI_NPDI_AGSe_Typical","index":93,"n_rows":49,"n_cols":11,"rows_kept":49,"cut":false,"hidden":false,"merged":[[0,0,0,10]]}
["2023 Bill Impacts (Typical Consumption Level) - AGSe_NPDI"]
[]
["Rate Class",{"$f":"VLOOKUP(A1,'Data BI List Acq_Seas'!C:E,2,FALSE)","v":"NPDI_GS<50"},{"$f":"VLOOKUP(A1,'Data BI List Acq_Seas'!C:E,3,FALSE)","v":"AGSe-NPDI"}]
["Monthly Consumption (kWh)",{"$f":"IF(COUNTIF(A1,\"*Low*\")>0,VLOOKUP(B3,'Data Billing Quantities'!$A:$Z,MATCH(\"Low kWh\",'Data Billing Quantities'!4:4,0),FALSE),IF(COUNTIF(A1,\"*Typical*\")>0,VLOOKUP(B3,'Data Billing Quantities'!$A:$Z,MATCH(\"Typical kWh\",'Data Billing Quantities'!4:4,0),FALSE),IF(COUNTIF(A1,\"*Average*\")>0,VLOOKUP(B3,'Data Billing Quantities'!$A:$Z,MATCH(\"Average kWh\",'Data Billing Quantities'!4:4,0),FALSE),IF(COUNTIF(A1,\"*High*\")>0,VLOOKUP(B3,'Data Billing Quantities'!$A:$Z,MATCH(\"High kWh\",'Data Billing Quantities'!4:4,0),FALSE),\"error\"))))","v":2000},{"$f":"B4","v":2000}]
["Peak (kW)",{"$f":"IF(COUNTIF(A1,\"*Low*\")>0,VLOOKUP(B3,'Data Billing Quantities'!$A:$Z,MATCH(\"Low kW\",'Data Billing Quantities'!4:4,0),FALSE),IF(COUNTIF(A1,\"*Typical*\")>0,VLOOKUP(B3,'Data Billing Quantities'!$A:$Z,MATCH(\"Typical kW\",'Data Billing Quantities'!4:4,0),FALSE),IF(COUNTIF(A1,\"*Average*\")>0,VLOOKUP(B3,'Data Billing Quantities'!$A:$Z,MATCH(\"Average kW\",'Data Billing Quantities'!4:4,0),FALSE),IF(COUNTIF(A1,\"*High*\")>0,VLOOKUP(B3,'Data Billing Quantities'!$A:$Z,MATCH(\"High kW\",'Data Billing Quantities'!4:4,0),FALSE),\"error\"))))","v":0},{"$f":"B5","v":0}]
["Loss factor",{"$f":"VLOOKUP(B3,'Data Billing Quantities'!A:D,MATCH(A6,'Data Billing Quantities'!4:4,0),FALSE)","v":1.0564},{"$f":"VLOOKUP(C3,'Data Billing Quantities'!A:D,MATCH(A6,'Data Billing Quantities'!4:4,0),FALSE)","v":1.0640000000000001}]
["Commodity Threshold",{"$f":"VLOOKUP(B3,'Data Billing Quantities'!A:D,MATCH(A7,'Data Billing Quantities'!4:4,0),FALSE)","v":750},{"$f":"B7","v":750}]
["Monthly Consumption (kWh) - Uplifted",{"$f":"B4*B6","v":2112.8000000000002},{"$f":"C4*C6","v":2128}]
["Charge determinant",{"$f":"VLOOKUP(B3,'Data Billing Quantities'!A:D,MATCH(A9,'Data Billing Quantities'!4:4,0),FALSE)","v":"kWh"},{"$f":"VLOOKUP(C3,'Data Billing Quantities'!A:D,MATCH(A9,'Data Billing Quantities'!4:4,0),FALSE)","v":"kWh"}]
[]
[null,"Volume","Current Rate ($)","Current Charge ($)","Volume","Proposed Rate ($)","Proposed Charge ($)","Change ($)","Change (%)","% of Total Bill on RPP","% of Total Bill"]
["Energy First Tier",{"$f":"IF(B4>B7,B7,B4)","v":750},{"$f":"VLOOKUP($A12,'Data Pass Through'!$A:$D,2,FALSE)","v":9.8000000000000004E-2},{"$f":"B12*C12","v":73.5},{"$f":"B12","v":750},{"$f":"VLOOKUP($A12,'Data Pass Through'!$A:$D,3,FALSE)","v":9.8000000000000004E-2},{"$f":"E12*F12","v":73.5},{"$f":"G12-D12","v":0},{"$f":"IF(ISERROR(H12/ABS(D12)),\"N/A\",(H12/ABS(D12)))","v":0},{"$f":"G12/$G$44","v":0.22842452367675195}]
["Energy Second Tier",{"$f":"IF(B4>B7,(B4)-B7,0)","v":1250},{"$f":"VLOOKUP($A13,'Data Pass Through'!$A:$D,2,FALSE)","v":0.115},{"$f":"B13*C13","v":143.75},{"$f":"B13","v":1250},{"$f":"VLOOKUP($A13,'Data Pass Through'!$A:$D,3,FALSE)","v":0.115},{"$f":"E13*F13","v":143.75},0,0,{"$f":"G13/$G$44","v":0.44674864324534819}]
["Sub-Total:  Energy (RPP Tiered)",null,null,{"$f":"SUM(D12:D13)","v":217.25},null,null,{"$f":"SUM(G12:G13)","v":217.25},0,0,{"$f":"G14/$G$44","v":0.67517316692210017}]
["TOU-Off Peak",{"$f":"B$4*VLOOKUP($B$3,'Data Billing Quantities'!$A:$O,MATCH(BI_NPDI_AGSe_Typical!$A15,'Data Billing Quantities'!$4:$4,0),FALSE)","v":1280},{"$f":"VLOOKUP($A15,'Data Pass Through'!$A:$D,2,FALSE)","v":8.2000000000000003E-2},{"$f":"B15*C15","v":104.96000000000001},1280,{"$f":"VLOOKUP($A15,'Data Pass Through'!$A:$D,3,FALSE)","v":8.2000000000000003E-2},{"$f":"E15*F15","v":104.96000000000001},0,0,null,{"$f":"G15/$G$49","v":0.3379497625504565}]
["TOU-Mid Peak",{"$f":"B$4*VLOOKUP($B$3,'Data Billing Quantities'!$A:$O,MATCH(BI_NPDI_AGSe_Typical!$A16,'Data Billing Quantities'!$4:$4,0),FALSE)","v":360},{"$f":"VLOOKUP($A16,'Data Pass Through'!$A:$D,2,FALSE)","v":0.113},{"$f":"B16*C16","v":40.68},360,{"$f":"VLOOKUP($A16,'Data Pass Through'!$A:$D,3,FALSE)","v":0.113},{"$f":"E16*F16","v":40.68},0,0,null,0.13098129135434994]
["TOU-On Peak",{"$f":"B$4*VLOOKUP($B$3,'Data Billing Quantities'!$A:$O,MATCH(BI_NPDI_AGSe_Typical!$A17,'Data Billing Quantities'!$4:$4,0),FALSE)","v":360},{"$f":"VLOOKUP($A17,'Data Pass Through'!$A:$D,2,FALSE)","v":0.17},{"$f":"B17*C17","v":61.2},360,{"$f":"VLOOKUP($A17,'Data Pass Through'!$A:$D,3,FALSE)","v":0.17},{"$f":"E17*F17","v":61.2},0,0,null,0.19705150026760609]
["Sub-Total:  Energy (RPP TOU)",null,null,{"$f":"SUM(D15:D17)","v":206.84000000000003},null,null,{"$f":"SUM(G15:G17)","v":206.84000000000003},0,0,{"$f":"G18/$G$44","v":0.64282079560951533},0.66598255417241259]
["Service Charge",1,{"$f":"VLOOKUP($B$3,'Data Current Rates'!$A:$AP,MATCH(BI_NPDI_AGSe_Typical!$A19,CurrentHeader,0),FALSE)","v":52.54},{"$f":"B19*C19","v":52.54},1,{"$f":"VLOOKUP($C$3,'Data Proposed Rates'!$A:$AZ,MATCH(BI_NPDI_AGSe_Typical!$A19,ProposedHeader,0),FALSE)","v":37.65},{"$f":"E19*F19","v":37.65},-14.89,-0.28340312143129048,0.11700929682217293,0.12122531021364982]
["Distribution Volumetric Charge",{"$f":"IF($B$9=\"kWh\",$B$4,$B$5)","v":2000},{"$f":"VLOOKUP($B$3,'Data Current Rates'!$A:$AP,MATCH(BI_NPDI_AGSe_Typical!$A20,CurrentHeader,0),FALSE)","v":1.6400000000000001E-2},{"$f":"B20*C20","v":32.800000000000004},{"$f":"IF($C$9=\"kWh\",$C$4,$C$5)","v":2000},{"$f":"VLOOKUP($C$3,'Data Proposed Rates'!$A:$AZ,MATCH(BI_NPDI_AGSe_Typical!$A20,ProposedHeader,0),FALSE)","v":1.7100000000000001E-2},34.200000000000003,1.3999999999999986,4.268292682926824E-2,0.10628732938428459,0.11011701485542695]
["Low Voltage Service Rate",{"$f":"IF($B$9=\"kWh\",$B$4,$B$5)","v":2000},{"$f":"VLOOKUP($B$3,'Data Current Rates'!$A:$AP,MATCH(BI_NPDI_AGSe_Typical!$A21,CurrentHeader,0),FALSE)","v":8.0000000000000004E-4},1.6,null,null,null,-1.6,-1,0,0]
["Rate Rider for Application of Tax Change",2000,{"$f":"VLOOKUP($B$3,'Data Current Rates'!$A:$AP,MATCH(BI_NPDI_AGSe_Typical!$A22,CurrentHeader,0),FALSE)","v":1E-4},0.2,null,null,null,-0.2,-1,0,0]
["Group 1 Volumetric DVA Rider (General)",null,null,null,{"$f":"IF($C$9=\"kWh\",$C$4,$C$5)","v":2000},{"$f":"VLOOKUP($C$3,'Data Proposed Rates'!$A:$AZ,MATCH(BI_NPDI_AGSe_Typical!$A23,ProposedHeader,0),FALSE)","v":-5.0000000000000001E-4},-1,-1,"N/A",-3.1078166486632917E-3,-3.2197957560066355E-3]
["Sub-Total:  Distribution (excluding pass through)",null,null,{"$f":"SUM(INDIRECT(\"D19:D\"&ROW()-1))","v":87.14},null,null,{"$f":"SUM(INDIRECT(\"g19:g\"&ROW()-1))","v":70.849999999999994},{"$f":"G24-D24","v":-16.290000000000006},-0.18694055542804688,0.22018880955779419,0.22812252931307012]
["Smart Metering Entity Charge",{"$f":"B19","v":1},{"$f":"VLOOKUP($A25,'Data Pass Through'!$A:$D,2,FALSE)","v":0.56999999999999995},{"$f":"B25*C25","v":0.56999999999999995},{"$f":"E19","v":1},{"$f":"VLOOKUP($A25,'Data Pass Through'!$A:$D,3,FALSE)","v":0.56999999999999995},{"$f":"E25*F25","v":0.56999999999999995},0,0,1.7714554897380762E-3,1.8352835809237822E-3]
["Line Losses on Cost of Power (based on two-tier RPP prices)",{"$f":"B8-B4","v":112.80000000000018},{"$f":"IF(B4>B7,C13,C12)","v":0.115},{"$f":"B26*C26","v":12.972000000000021},{"$f":"C8-C4","v":128},{"$f":"IF(C4>C7,F13,F12)","v":0.115},{"$f":"E26*F26","v":14.72},1.7479999999999798,0.13475177304964361,4.5747061068323658E-2,4.7395393528417679E-2]
["Line Losses on Cost of Power (based on TOU prices)",{"$f":"B8-B4","v":112.80000000000018},{"$f":"VLOOKUP($B$3,'Data Billing Quantities'!$A:$O,MATCH(BI_NPDI_AGSe_Typical!$A15,'Data Billing Quantities'!$4:$4,0),FALSE)*C15+VLOOKUP($B$3,'Data Billing Quantities'!$A:$O,MATCH(BI_NPDI_AGSe_Typical!$A16,'Data Billing Quantities'!$4:$4,0),FALSE)*C16+VLOOKUP($B$3,'Data Billing Quantities'!$A:$O,MATCH(BI_NPDI_AGSe_Typical!$A17,'Data Billing Quantities'!$4:$4,0),FALSE)*C17","v":0.10342000000000001},{"$f":"B27*C27","v":11.665776000000021},{"$f":"C8-C4","v":128},{"$f":"VLOOKUP($C$3,'Data Billing Quantities'!$A:$O,MATCH(BI_NPDI_AGSe_Typical!$A15,'Data Billing Quantities'!$4:$4,0),FALSE)*F15+VLOOKUP($C$3,'Data Billing Quantities'!$A:$O,MATCH(BI_NPDI_AGSe_Typical!$A16,'Data Billing Quantities'!$4:$4,0),FALSE)*F16+VLOOKUP($C$3,'Data Billing Quantities'!$A:$O,MATCH(BI_NPDI_AGSe_Typical!$A17,'Data Billing Quantities'!$4:$4,0),FALSE)*F17","v":0.10342000000000001},{"$f":"E27*F27","v":13.237760000000002},1.571983999999981,0.13475177304964353,4.1140530919008982E-2,4.2622883467034405E-2]
["Sub-Total:  Distribution (based on two-tier RPP prices)",null,null,{"$f":"SUM(D24,D25:D26)","v":100.68200000000002},null,null,{"$f":"SUM(G24,G25:G26)","v":86.139999999999986},-14.54200000000003,-0.14443495361633685,0.2677073261158559,0.27735320642241157]
["Sub-Total:  Distribution (based on TOU prices)",null,null,{"$f":"SUM(D24,D25,D27)","v":99.375776000000016},null,null,{"$f":"SUM(G24,G25,G27)","v":84.657759999999996},-14.71801600000002,-0.14810466486319582,0.26310079596654123,0.27258069636102827]
["Retail Transmission Rate – Network Service Rate",{"$f":"IF($B$9=\"kWh\",$B$8,$B$5)","v":2112.8000000000002},{"$f":"VLOOKUP($B$3,'Data Current Rates'!$A:$AP,MATCH(BI_NPDI_AGSe_Typical!$A30,CurrentHeader,0),FALSE)","v":7.7000000000000002E-3},{"$f":"B30*C30","v":16.268560000000001},{"$f":"IF($C$9=\"kWh\",$C$8,$C$5)","v":2128},{"$f":"VLOOKUP($C$3,'Data Proposed Rates'!$A:$AZ,MATCH(BI_NPDI_AGSe_Typical!$A30,ProposedHeader,0),FALSE)","v":8.0000000000000002E-3},{"$f":"E30*F30","v":17.024000000000001},{"$f":"G30-D30","v":0.75544000000000011},4.6435578809679537E-2,5.290747062684388E-2,5.4813802950256965E-2]
["Retail Transmission Rate – Line and Transformation Connection Service Rate",{"$f":"IF($B$9=\"kWh\",$B$8,$B$5)","v":2112.8000000000002},{"$f":"VLOOKUP($B$3,'Data Current Rates'!$A:$AP,MATCH(BI_NPDI_AGSe_Typical!$A31,CurrentHeader,0),FALSE)","v":3.3E-3},{"$f":"B31*C31","v":6.9722400000000002},{"$f":"IF($C$9=\"kWh\",$C$8,$C$5)","v":2128},{"$f":"VLOOKUP($C$3,'Data Proposed Rates'!$A:$AZ,MATCH(BI_NPDI_AGSe_Typical!$A31,ProposedHeader,0),FALSE)","v":6.1000000000000004E-3},{"$f":"E31*F31","v":12.9808},{"$f":"G31-D31","v":6.0085600000000001},0.86178330063222153,4.0341946352968457E-2,4.1795524749570934E-2]
["Sub-Total:  Retail Transmission ",null,null,{"$f":"SUM(D30:D31)","v":23.2408},null,null,{"$f":"SUM(G30:G31)","v":30.004800000000003},{"$f":"G32-D32","v":6.7640000000000029},0.29103989535644226,9.3249416979812344E-2,9.6609327699827913E-2]
["Sub-Total:  Delivery (based on two-tier RPP prices)",null,null,{"$f":"D28+D32","v":123.92280000000002},null,null,{"$f":"G28+G32","v":116.14479999999999},{"$f":"G33-D33","v":-7.7780000000000342},-6.2764882652748585E-2,0.36095674309566822,0.37396253412223945]
["Sub-Total:  Delivery (based on TOU prices)",null,null,{"$f":"D29+D32","v":122.61657600000001},null,null,{"$f":"G29+G32","v":114.66256},{"$f":"G34-D34","v":-7.95401600000001},-6.4869010858695064E-2,0.35635021294635361,0.36919002406085621]
["Wholesale Market Service Rate (WMS) - not including CBR",{"$f":"B8","v":2112.8000000000002},{"$f":"VLOOKUP($A35,'Data Pass Through'!$A:$D,2,FALSE)","v":3.0000000000000001E-3},{"$f":"B35*C35","v":6.3384000000000009},{"$f":"$C$8","v":2128},{"$f":"VLOOKUP($A35,'Data Pass Through'!$A:$D,3,FALSE)","v":3.0000000000000001E-3},{"$f":"E35*F35","v":6.3840000000000003},4.5599999999999419E-2,7.1942446043164543E-3,1.9840301485066453E-2,2.0555176106346364E-2]
["Capacity Based Recovery (CBR) - Applicable for Class B Customers",{"$f":"B8","v":2112.8000000000002},{"$f":"VLOOKUP($A36,'Data Pass Through'!$A:$D,2,FALSE)","v":4.0000000000000002E-4},{"$f":"B36*C36","v":0.84512000000000009},{"$f":"$C$8","v":2128},{"$f":"VLOOKUP($A36,'Data Pass Through'!$A:$D,3,FALSE)","v":4.0000000000000002E-4},{"$f":"E36*F36","v":0.85120000000000007},6.0799999999999743E-3,7.1942446043165159E-3,2.6453735313421941E-3,2.7406901475128483E-3]
["Rural Rate Protection Charge",{"$f":"B8","v":2112.8000000000002},{"$f":"VLOOKUP($A37,'Data Pass Through'!$A:$D,2,FALSE)","v":5.0000000000000001E-4},1.0564,2128,{"$f":"VLOOKUP($A37,'Data Pass Through'!$A:$D,3,FALSE)","v":5.0000000000000001E-4},1.0640000000000001,7.6000000000000512E-3,7.1942446043165948E-3,3.3067169141777425E-3,3.4258626843910603E-3]
["Standard Supply Service – Administration Charge (if applicable)",1,{"$f":"VLOOKUP($A38,'Data Pass Through'!$A:$D,2,FALSE)","v":0.25},{"$f":"B38*C38","v":0.25},1,{"$f":"VLOOKUP($A38,'Data Pass Through'!$A:$D,3,FALSE)","v":0.25},0.25,0,0,7.7695416216582293E-4,8.0494893900165886E-4]
["Sub-Total:  Regulatory",null,null,{"$f":"SUM(D35:D38)","v":8.4899200000000015},null,null,{"$f":"SUM(G35:G38)","v":8.5492000000000008},5.9279999999999333E-2,6.9823979495683497E-3,2.6569346092752216E-2,2.752667787725193E-2]
["Total  Electricty Charge on Two-Tier RPP ",null,null,{"$f":"SUM(D14,D24,D25,D26,D32,D39)","v":349.66271999999998},null,null,{"$f":"SUM(G14,G24,G25,G26,G32,G39)","v":341.94400000000002},-7.7187199999999621,-2.2074758212714134E-2,1.0626992561105206]
["     HST",null,0.13,{"$f":"D40*C41","v":45.4561536},null,{"$f":"C41","v":0.13},{"$f":"G40*F41","v":44.452720000000006},-1.0034335999999939,-2.2074758212714107E-2,0.13815090329436769]
["Total Electricity Charge on Two-Tier RPP (including HST)",null,null,{"$f":"SUM(D40:D41)","v":395.11887359999997},null,null,{"$f":"SUM(G40:G41)","v":386.39672000000002},-8.722153599999956,-2.2074758212714131E-2,1.2008501594048884]
["Ontario Electricity Rebate (OER)",null,{"$f":"IF(($B$4*12)<250000,VLOOKUP(A43,'Data Pass Through'!$A$4:$C$20,2,0),0)","v":-0.189},{"$f":"D40*C43","v":-66.086254080000003},null,{"$f":"C43","v":-0.189},{"$f":"G40*F43","v":-64.627415999999997},1.4588380800000067,2.2074758212714343E-2,-0.20085015940488837]
["Total Amount on Two-Tier RPP",null,null,{"$f":"SUM(D42:D43)","v":329.03261951999997},null,null,{"$f":"SUM(G42:G43)","v":321.76930400000003},-7.2633155199999351,-2.2074758212714044E-2,1]
["Total Electricty Charge on TOU (before HST)",null,null,{"$f":"SUM(D18,D24,D25,D27,D32,D39)","v":337.94649599999997},null,null,{"$f":"SUM(G18,G24,G25,G27,G32,G39)","v":330.05176},-7.8947359999999662,-2.336090503509753E-2,null,{"$f":"G45/$G$49","v":1.0626992561105206}]
["     HST",null,0.13,{"$f":"D45*C46","v":43.93304448},null,{"$f":"C46","v":0.13},{"$f":"G45*F46","v":42.906728800000003},-1.0263156799999962,-2.3360905035097541E-2,null,{"$f":"G46/$G$49","v":0.13815090329436769}]
["Total Electricity Charge on TOU (including HST)",null,null,{"$f":"SUM(D45:D46)","v":381.87954047999995},null,null,{"$f":"SUM(G45:G46)","v":372.9584888},-8.9210516799999482,-2.3360905035097496E-2,null,{"$f":"G47/$G$49","v":1.2008501594048884}]
["Ontario Electricity Rebate (OER)",null,{"$f":"IF(($B$4*12)<250000,VLOOKUP(A48,'Data Pass Through'!$A$4:$C$20,2,0),0)","v":-0.189},{"$f":"D45*C48","v":-63.871887743999991},null,{"$f":"C48","v":-0.189},{"$f":"G45*F48","v":-62.379782640000002},1.4921051039999895,2.3360905035097464E-2,null,{"$f":"G48/$G$49","v":-0.2008501594048884}]
["Total Amount on TOU",null,null,{"$f":"SUM(D47:D48)","v":318.00765273599995},null,null,{"$f":"SUM(G47:G48)","v":310.57870616000002},-7.4289465759999302,-2.3360905035097412E-2,null,{"$f":"G49/$G$49","v":1}]

{"sheet":"BI_NPDI_AGSe_Avg","index":94,"n_rows":49,"n_cols":11,"rows_kept":49,"cut":false,"hidden":false,"merged":[[0,0,0,10]]}
["2023 Bill Impacts (Average Consumption Level) - AGSe_NPDI"]
[]
["Rate Class",{"$f":"VLOOKUP(A1,'Data BI List Acq_Seas'!C:E,2,FALSE)","v":"NPDI_GS<50"},{"$f":"VLOOKUP(A1,'Data BI List Acq_Seas'!C:E,3,FALSE)","v":"AGSe-NPDI"}]
["Monthly Consumption (kWh)",{"$f":"IF(COUNTIF(A1,\"*Low*\")>0,VLOOKUP(B3,'Data Billing Quantities'!$A:$Z,MATCH(\"Low kWh\",'Data Billing Quantities'!4:4,0),FALSE),IF(COUNTIF(A1,\"*Typical*\")>0,VLOOKUP(B3,'Data Billing Quantities'!$A:$Z,MATCH(\"Typical kWh\",'Data Billing Quantities'!4:4,0),FALSE),IF(COUNTIF(A1,\"*Average*\")>0,VLOOKUP(B3,'Data Billing Quantities'!$A:$Z,MATCH(\"Average kWh\",'Data Billing Quantities'!4:4,0),FALSE),IF(COUNTIF(A1,\"*High*\")>0,VLOOKUP(B3,'Data Billing Quantities'!$A:$Z,MATCH(\"High kWh\",'Data Billing Quantities'!4:4,0),FALSE),\"error\"))))","v":2377},{"$f":"B4","v":2377}]
["Peak (kW)",{"$f":"IF(COUNTIF(A1,\"*Low*\")>0,VLOOKUP(B3,'Data Billing Quantities'!$A:$Z,MATCH(\"Low kW\",'Data Billing Quantities'!4:4,0),FALSE),IF(COUNTIF(A1,\"*Typical*\")>0,VLOOKUP(B3,'Data Billing Quantities'!$A:$Z,MATCH(\"Typical kW\",'Data Billing Quantities'!4:4,0),FALSE),IF(COUNTIF(A1,\"*Average*\")>0,VLOOKUP(B3,'Data Billing Quantities'!$A:$Z,MATCH(\"Average kW\",'Data Billing Quantities'!4:4,0),FALSE),IF(COUNTIF(A1,\"*High*\")>0,VLOOKUP(B3,'Data Billing Quantities'!$A:$Z,MATCH(\"High kW\",'Data Billing Quantities'!4:4,0),FALSE),\"error\"))))","v":0},{"$f":"B5","v":0}]
["Loss factor",{"$f":"VLOOKUP(B3,'Data Billing Quantities'!A:D,MATCH(A6,'Data Billing Quantities'!4:4,0),FALSE)","v":1.0564},{"$f":"VLOOKUP(C3,'Data Billing Quantities'!A:D,MATCH(A6,'Data Billing Quantities'!4:4,0),FALSE)","v":1.0640000000000001}]
["Commodity Threshold",{"$f":"VLOOKUP(B3,'Data Billing Quantities'!A:D,MATCH(A7,'Data Billing Quantities'!4:4,0),FALSE)","v":750},{"$f":"B7","v":750}]
["Monthly Consumption (kWh) - Uplifted",{"$f":"B4*B6","v":2511.0628000000002},{"$f":"C4*C6","v":2529.1280000000002}]
["Charge determinant",{"$f":"VLOOKUP(B3,'Data Billing Quantities'!A:D,MATCH(A9,'Data Billing Quantities'!4:4,0),FALSE)","v":"kWh"},{"$f":"VLOOKUP(C3,'Data Billing Quantities'!A:D,MATCH(A9,'Data Billing Quantities'!4:4,0),FALSE)","v":"kWh"}]
[]
[null,"Volume","Current Rate ($)","Current Charge ($)","Volume","Proposed Rate ($)","Proposed Charge ($)","Change ($)","Change (%)","% of Total Bill on RPP","% of Total Bill"]
["Energy First Tier",{"$f":"IF(B4>B7,B7,B4)","v":750},{"$f":"VLOOKUP($A12,'Data Pass Through'!$A:$D,2,FALSE)","v":9.8000000000000004E-2},{"$f":"B12*C12","v":73.5},{"$f":"B12","v":750},{"$f":"VLOOKUP($A12,'Data Pass Through'!$A:$D,3,FALSE)","v":9.8000000000000004E-2},{"$f":"E12*F12","v":73.5},{"$f":"G12-D12","v":0},{"$f":"IF(ISERROR(H12/ABS(D12)),\"N/A\",(H12/ABS(D12)))","v":0},{"$f":"G12/$G$44","v":0.19451615669329045}]
["Energy Second Tier",{"$f":"IF(B4>B7,(B4)-B7,0)","v":1627},{"$f":"VLOOKUP($A13,'Data Pass Through'!$A:$D,2,FALSE)","v":0.115},{"$f":"B13*C13","v":187.10500000000002},{"$f":"B13","v":1627},{"$f":"VLOOKUP($A13,'Data Pass Through'!$A:$D,3,FALSE)","v":0.115},{"$f":"E13*F13","v":187.10500000000002},0,0,{"$f":"G13/$G$44","v":0.49516932650473622}]
["Sub-Total:  Energy (RPP Tiered)",null,null,{"$f":"SUM(D12:D13)","v":260.60500000000002},null,null,{"$f":"SUM(G12:G13)","v":260.60500000000002},0,0,{"$f":"G14/$G$44","v":0.68968548319802669}]
["TOU-Off Peak",{"$f":"B$4*VLOOKUP($B$3,'Data Billing Quantities'!$A:$O,MATCH(BI_NPDI_AGSe_Avg!$A15,'Data Billing Quantities'!$4:$4,0),FALSE)","v":1521.28},{"$f":"VLOOKUP($A15,'Data Pass Through'!$A:$D,2,FALSE)","v":8.2000000000000003E-2},{"$f":"B15*C15","v":124.74496000000001},1521.28,{"$f":"VLOOKUP($A15,'Data Pass Through'!$A:$D,3,FALSE)","v":8.2000000000000003E-2},{"$f":"E15*F15","v":124.74496000000001},0,0,null,{"$f":"G15/$G$49","v":0.34431490496405287}]
["TOU-Mid Peak",{"$f":"B$4*VLOOKUP($B$3,'Data Billing Quantities'!$A:$O,MATCH(BI_NPDI_AGSe_Avg!$A16,'Data Billing Quantities'!$4:$4,0),FALSE)","v":427.85999999999996},{"$f":"VLOOKUP($A16,'Data Pass Through'!$A:$D,2,FALSE)","v":0.113},{"$f":"B16*C16","v":48.348179999999999},427.85999999999996,{"$f":"VLOOKUP($A16,'Data Pass Through'!$A:$D,3,FALSE)","v":0.113},{"$f":"E16*F16","v":48.348179999999999},0,0,null,0.13344826918766833]
["TOU-On Peak",{"$f":"B$4*VLOOKUP($B$3,'Data Billing Quantities'!$A:$O,MATCH(BI_NPDI_AGSe_Avg!$A17,'Data Billing Quantities'!$4:$4,0),FALSE)","v":427.85999999999996},{"$f":"VLOOKUP($A17,'Data Pass Through'!$A:$D,2,FALSE)","v":0.17},{"$f":"B17*C17","v":72.736199999999997},427.85999999999996,{"$f":"VLOOKUP($A17,'Data Pass Through'!$A:$D,3,FALSE)","v":0.17},{"$f":"E17*F17","v":72.736199999999997},0,0,null,0.20076288284870458]
["Sub-Total:  Energy (RPP TOU)",null,null,{"$f":"SUM(D15:D17)","v":245.82934},null,null,{"$f":"SUM(G15:G17)","v":245.82934},0,0,{"$f":"G18/$G$44","v":0.65058201930949899},0.67852605700042579]
["Service Charge",1,{"$f":"VLOOKUP($B$3,'Data Current Rates'!$A:$AP,MATCH(BI_NPDI_AGSe_Avg!$A19,CurrentHeader,0),FALSE)","v":52.54},{"$f":"B19*C19","v":52.54},1,{"$f":"VLOOKUP($C$3,'Data Proposed Rates'!$A:$AZ,MATCH(BI_NPDI_AGSe_Avg!$A19,ProposedHeader,0),FALSE)","v":37.65},{"$f":"E19*F19","v":37.65},-14.89,-0.28340312143129048,9.9639908836767141E-2,0.10391967877416923]
["Distribution Volumetric Charge",{"$f":"IF($B$9=\"kWh\",$B$4,$B$5)","v":2377},{"$f":"VLOOKUP($B$3,'Data Current Rates'!$A:$AP,MATCH(BI_NPDI_AGSe_Avg!$A20,CurrentHeader,0),FALSE)","v":1.6400000000000001E-2},{"$f":"B20*C20","v":38.982800000000005},{"$f":"IF($C$9=\"kWh\",$C$4,$C$5)","v":2377},{"$f":"VLOOKUP($C$3,'Data Proposed Rates'!$A:$AZ,MATCH(BI_NPDI_AGSe_Avg!$A20,ProposedHeader,0),FALSE)","v":1.7100000000000001E-2},40.646700000000003,1.6638999999999982,4.268292682926824E-2,0.10757061042537645,0.11219102276839375]
["Low Voltage Service Rate",{"$f":"IF($B$9=\"kWh\",$B$4,$B$5)","v":2377},{"$f":"VLOOKUP($B$3,'Data Current Rates'!$A:$AP,MATCH(BI_NPDI_AGSe_Avg!$A21,CurrentHeader,0),FALSE)","v":8.0000000000000004E-4},1.9016000000000002,null,null,null,-1.9016000000000002,-1,0,0]
["Rate Rider for Application of Tax Change",2377,{"$f":"VLOOKUP($B$3,'Data Current Rates'!$A:$AP,MATCH(BI_NPDI_AGSe_Avg!$A22,CurrentHeader,0),FALSE)","v":1E-4},0.23770000000000002,null,null,null,-0.23770000000000002,-1,0,0]
["Group 1 Volumetric DVA Rider (General)",null,null,null,{"$f":"IF($C$9=\"kWh\",$C$4,$C$5)","v":2377},{"$f":"VLOOKUP($C$3,'Data Proposed Rates'!$A:$AZ,MATCH(BI_NPDI_AGSe_Avg!$A23,ProposedHeader,0),FALSE)","v":-5.0000000000000001E-4},-1.1885000000000001,-1.1885000000000001,"N/A",-3.1453394861221187E-3,-3.2804392622337356E-3]
["Sub-Total:  Distribution (excluding pass through)",null,null,{"$f":"SUM(INDIRECT(\"D19:D\"&ROW()-1))","v":93.662100000000009},null,null,{"$f":"SUM(INDIRECT(\"g19:g\"&ROW()-1))","v":77.108199999999997},{"$f":"G24-D24","v":-16.553900000000013},-0.17674064536242526,0.20406517977602145,0.21283026228032922]
["Smart Metering Entity Charge",{"$f":"B19","v":1},{"$f":"VLOOKUP($A25,'Data Pass Through'!$A:$D,2,FALSE)","v":0.56999999999999995},{"$f":"B25*C25","v":0.56999999999999995},{"$f":"E19","v":1},{"$f":"VLOOKUP($A25,'Data Pass Through'!$A:$D,3,FALSE)","v":0.56999999999999995},{"$f":"E25*F25","v":0.56999999999999995},0,0,1.508492643743885E-3,1.5732859734734783E-3]
["Line Losses on Cost of Power (based on two-tier RPP prices)",{"$f":"B8-B4","v":134.06280000000015},{"$f":"IF(B4>B7,C13,C12)","v":0.115},{"$f":"B26*C26","v":15.417222000000018},{"$f":"C8-C4","v":152.12800000000016},{"$f":"IF(C4>C7,F13,F12)","v":0.115},{"$f":"E26*F26","v":17.494720000000019},2.0774980000000003,0.13475177304964525,4.6299397235717632E-2,4.8288065940080636E-2]
["Line Losses on Cost of Power (based on TOU prices)",{"$f":"B8-B4","v":134.06280000000015},{"$f":"VLOOKUP($B$3,'Data Billing Quantities'!$A:$O,MATCH(BI_NPDI_AGSe_Avg!$A15,'Data Billing Quantities'!$4:$4,0),FALSE)*C15+VLOOKUP($B$3,'Data Billing Quantities'!$A:$O,MATCH(BI_NPDI_AGSe_Avg!$A16,'Data Billing Quantities'!$4:$4,0),FALSE)*C16+VLOOKUP($B$3,'Data Billing Quantities'!$A:$O,MATCH(BI_NPDI_AGSe_Avg!$A17,'Data Billing Quantities'!$4:$4,0),FALSE)*C17","v":0.10342000000000001},{"$f":"B27*C27","v":13.864774776000017},{"$f":"C8-C4","v":152.12800000000016},{"$f":"VLOOKUP($C$3,'Data Billing Quantities'!$A:$O,MATCH(BI_NPDI_AGSe_Avg!$A15,'Data Billing Quantities'!$4:$4,0),FALSE)*F15+VLOOKUP($C$3,'Data Billing Quantities'!$A:$O,MATCH(BI_NPDI_AGSe_Avg!$A16,'Data Billing Quantities'!$4:$4,0),FALSE)*F16+VLOOKUP($C$3,'Data Billing Quantities'!$A:$O,MATCH(BI_NPDI_AGSe_Avg!$A17,'Data Billing Quantities'!$4:$4,0),FALSE)*F17","v":0.10342000000000001},{"$f":"E27*F27","v":15.733077760000018},1.8683029840000014,0.13475177304964533,4.1637249235807978E-2,4.34256676480273E-2]
["Sub-Total:  Distribution (based on two-tier RPP prices)",null,null,{"$f":"SUM(D24,D25:D26)","v":109.64932200000003},null,null,{"$f":"SUM(G24,G25:G26)","v":95.172920000000005},-14.476402000000022,-0.13202454639892819,0.25187306965548295,0.26269161419388332]
["Sub-Total:  Distribution (based on TOU prices)",null,null,{"$f":"SUM(D24,D25,D27)","v":108.09687477600002},null,null,{"$f":"SUM(G24,G25,G27)","v":93.411277760000004},-14.685597016000017,-0.13585588895545531,0.24721092165557329,0.25782921590183]
["Retail Transmission Rate – Network Service Rate",{"$f":"IF($B$9=\"kWh\",$B$8,$B$5)","v":2511.0628000000002},{"$f":"VLOOKUP($B$3,'Data Current Rates'!$A:$AP,MATCH(BI_NPDI_AGSe_Avg!$A30,CurrentHeader,0),FALSE)","v":7.7000000000000002E-3},{"$f":"B30*C30","v":19.335183560000001},{"$f":"IF($C$9=\"kWh\",$C$8,$C$5)","v":2529.1280000000002},{"$f":"VLOOKUP($C$3,'Data Proposed Rates'!$A:$AZ,MATCH(BI_NPDI_AGSe_Avg!$A30,ProposedHeader,0),FALSE)","v":8.0000000000000002E-3},{"$f":"E30*F30","v":20.233024},{"$f":"G30-D30","v":0.89784043999999952},4.6435578809679502E-2,5.3546259411742944E-2,5.5846198000267105E-2]
["Retail Transmission Rate – Line and Transformation Connection Service Rate",{"$f":"IF($B$9=\"kWh\",$B$8,$B$5)","v":2511.0628000000002},{"$f":"VLOOKUP($B$3,'Data Current Rates'!$A:$AP,MATCH(BI_NPDI_AGSe_Avg!$A31,CurrentHeader,0),FALSE)","v":3.3E-3},{"$f":"B31*C31","v":8.2865072400000006},{"$f":"IF($C$9=\"kWh\",$C$8,$C$5)","v":2529.1280000000002},{"$f":"VLOOKUP($C$3,'Data Proposed Rates'!$A:$AZ,MATCH(BI_NPDI_AGSe_Avg!$A31,ProposedHeader,0),FALSE)","v":6.1000000000000004E-3},{"$f":"E31*F31","v":15.427680800000003},{"$f":"G31-D31","v":7.1411735600000021},0.86178330063222164,4.0829022801454E-2,4.2582725975203677E-2]
["Sub-Total:  Retail Transmission ",null,null,{"$f":"SUM(D30:D31)","v":27.621690800000003},null,null,{"$f":"SUM(G30:G31)","v":35.660704800000005},{"$f":"G32-D32","v":8.0390140000000017},0.29103989535644215,9.4375282213196951E-2,9.8428923975470789E-2]
["Sub-Total:  Delivery (based on two-tier RPP prices)",null,null,{"$f":"D28+D32","v":137.27101280000002},null,null,{"$f":"G28+G32","v":130.8336248},{"$f":"G33-D33","v":-6.437388000000027},-4.6895465172819256E-2,0.34624835186867986,0.36112053816935408]
["Sub-Total:  Delivery (based on TOU prices)",null,null,{"$f":"D29+D32","v":135.71856557600003},null,null,{"$f":"G29+G32","v":129.07198256000001},{"$f":"G34-D34","v":-6.6465830160000223},-4.8973277810529556E-2,0.34158620386877026,0.35625813987730076]
["Wholesale Market Service Rate (WMS) - not including CBR",{"$f":"B8","v":2511.0628000000002},{"$f":"VLOOKUP($A35,'Data Pass Through'!$A:$D,2,FALSE)","v":3.0000000000000001E-3},{"$f":"B35*C35","v":7.5331884000000002},{"$f":"$C$8","v":2529.1280000000002},{"$f":"VLOOKUP($A35,'Data Pass Through'!$A:$D,3,FALSE)","v":3.0000000000000001E-3},{"$f":"E35*F35","v":7.587384000000001},5.4195600000000788E-2,7.1942446043166512E-3,2.0079847279403606E-2,2.0942324250100168E-2]
["Capacity Based Recovery (CBR) - Applicable for Class B Customers",{"$f":"B8","v":2511.0628000000002},{"$f":"VLOOKUP($A36,'Data Pass Through'!$A:$D,2,FALSE)","v":4.0000000000000002E-4},{"$f":"B36*C36","v":1.0044251200000001},{"$f":"$C$8","v":2529.1280000000002},{"$f":"VLOOKUP($A36,'Data Pass Through'!$A:$D,3,FALSE)","v":4.0000000000000002E-4},{"$f":"E36*F36","v":1.0116512000000002},7.2260800000001346E-3,7.1942446043166807E-3,2.6773129705871474E-3,2.7923099000133557E-3]
["Rural Rate Protection Charge",{"$f":"B8","v":2511.0628000000002},{"$f":"VLOOKUP($A37,'Data Pass Through'!$A:$D,2,FALSE)","v":5.0000000000000001E-4},1.2555314000000002,2529.1280000000002,{"$f":"VLOOKUP($A37,'Data Pass Through'!$A:$D,3,FALSE)","v":5.0000000000000001E-4},1.264564,9.0325999999998352E-3,7.1942446043164144E-3,3.346641213233934E-3,3.4903873750166941E-3]
["Standard Supply Service – Administration Charge (if applicable)",1,{"$f":"VLOOKUP($A38,'Data Pass Through'!$A:$D,2,FALSE)","v":0.25},{"$f":"B38*C38","v":0.25},1,{"$f":"VLOOKUP($A38,'Data Pass Through'!$A:$D,3,FALSE)","v":0.25},0.25,0,0,6.6161958058942323E-4,6.9003770766380625E-4]
["Sub-Total:  Regulatory",null,null,{"$f":"SUM(D35:D38)","v":10.043144920000001},null,null,{"$f":"SUM(G35:G38)","v":10.113599200000001},7.0454279999999869E-2,7.0151611433682129E-3,2.676542104381411E-2,2.7915059232794026E-2]
["Total  Electricty Charge on Two-Tier RPP ",null,null,{"$f":"SUM(D14,D24,D25,D26,D32,D39)","v":407.91915772000004},null,null,{"$f":"SUM(G14,G24,G25,G26,G32,G39)","v":401.55222400000008},-6.3669337199999632,-1.5608322383255883E-2,1.0626992561105209]
["     HST",null,0.13,{"$f":"D40*C41","v":53.029490503600009},null,{"$f":"C41","v":0.13},{"$f":"G40*F41","v":52.201789120000015},-0.82770138359999379,-1.5608322383255855E-2,0.13815090329436772]
["Total Electricity Charge on Two-Tier RPP (including HST)",null,null,{"$f":"SUM(D40:D41)","v":460.94864822360006},null,null,{"$f":"SUM(G40:G41)","v":453.75401312000008},-7.1946351035999783,-1.5608322383255924E-2,1.2008501594048884]
["Ontario Electricity Rebate (OER)",null,{"$f":"IF(($B$4*12)<250000,VLOOKUP(A43,'Data Pass Through'!$A$4:$C$20,2,0),0)","v":-0.189},{"$f":"D40*C43","v":-77.096720809080011},null,{"$f":"C43","v":-0.189},{"$f":"G40*F43","v":-75.893370336000018},1.2033504730799933,1.5608322383255884E-2,-0.20085015940488843]
["Total Amount on Two-Tier RPP",null,null,{"$f":"SUM(D42:D43)","v":383.85192741452005},null,null,{"$f":"SUM(G42:G43)","v":377.86064278400005},-5.9912846305199992,-1.5608322383255969E-2,1]
["Total Electricty Charge on TOU (before HST)",null,null,{"$f":"SUM(D18,D24,D25,D27,D32,D39)","v":391.59105049599998},null,null,{"$f":"SUM(G18,G24,G25,G27,G32,G39)","v":385.01492176000005},-6.5761287359999301,-1.6793358090463062E-2,null,{"$f":"G45/$G$49","v":1.0626992561105206}]
["     HST",null,0.13,{"$f":"D45*C46","v":50.906836564480002},null,{"$f":"C46","v":0.13},{"$f":"G45*F46","v":50.051939828800009},-0.85489673567999347,-1.6793358090463111E-2,null,{"$f":"G46/$G$49","v":0.13815090329436769}]
["Total Electricity Charge on TOU (including HST)",null,null,{"$f":"SUM(D45:D46)","v":442.49788706047997},null,null,{"$f":"SUM(G45:G46)","v":435.06686158880007},-7.4310254716799022,-1.6793358090463017E-2,null,{"$f":"G47/$G$49","v":1.2008501594048884}]
["Ontario Electricity Rebate (OER)",null,{"$f":"IF(($B$4*12)<250000,VLOOKUP(A48,'Data Pass Through'!$A$4:$C$20,2,0),0)","v":-0.189},{"$f":"D45*C48","v":-74.010708543744002},null,{"$f":"C48","v":-0.189},{"$f":"G45*F48","v":-72.767820212640004},1.2428883311039982,1.6793358090463215E-2,null,{"$f":"G48/$G$49","v":-0.2008501594048884}]
["Total Amount on TOU",null,null,{"$f":"SUM(D47:D48)","v":368.48717851673598},null,null,{"$f":"SUM(G47:G48)","v":362.29904137616006},-6.1881371405759182,-1.6793358090463017E-2,null,{"$f":"G49/$G$49","v":1}]

{"sheet":"BI_NPDI_AGSe_High","index":95,"n_rows":49,"n_cols":11,"rows_kept":49,"cut":false,"hidden":false,"merged":[[0,0,0,10]]}
["2023 Bill Impacts (High Consumption Level) - AGSe_NPDI"]
[]
["Rate Class",{"$f":"VLOOKUP(A1,'Data BI List Acq_Seas'!C:E,2,FALSE)","v":"NPDI_GS<50"},{"$f":"VLOOKUP(A1,'Data BI List Acq_Seas'!C:E,3,FALSE)","v":"AGSe-NPDI"}]
["Monthly Consumption (kWh)",{"$f":"IF(COUNTIF(A1,\"*Low*\")>0,VLOOKUP(B3,'Data Billing Quantities'!$A:$Z,MATCH(\"Low kWh\",'Data Billing Quantities'!4:4,0),FALSE),IF(COUNTIF(A1,\"*Typical*\")>0,VLOOKUP(B3,'Data Billing Quantities'!$A:$Z,MATCH(\"Typical kWh\",'Data Billing Quantities'!4:4,0),FALSE),IF(COUNTIF(A1,\"*Average*\")>0,VLOOKUP(B3,'Data Billing Quantities'!$A:$Z,MATCH(\"Average kWh\",'Data Billing Quantities'!4:4,0),FALSE),IF(COUNTIF(A1,\"*High*\")>0,VLOOKUP(B3,'Data Billing Quantities'!$A:$Z,MATCH(\"High kWh\",'Data Billing Quantities'!4:4,0),FALSE),\"error\"))))","v":6410},{"$f":"B4","v":6410}]
["Peak (kW)",{"$f":"IF(COUNTIF(A1,\"*Low*\")>0,VLOOKUP(B3,'Data Billing Quantities'!$A:$Z,MATCH(\"Low kW\",'Data Billing Quantities'!4:4,0),FALSE),IF(COUNTIF(A1,\"*Typical*\")>0,VLOOKUP(B3,'Data Billing Quantities'!$A:$Z,MATCH(\"Typical kW\",'Data Billing Quantities'!4:4,0),FALSE),IF(COUNTIF(A1,\"*Average*\")>0,VLOOKUP(B3,'Data Billing Quantities'!$A:$Z,MATCH(\"Average kW\",'Data Billing Quantities'!4:4,0),FALSE),IF(COUNTIF(A1,\"*High*\")>0,VLOOKUP(B3,'Data Billing Quantities'!$A:$Z,MATCH(\"High kW\",'Data Billing Quantities'!4:4,0),FALSE),\"error\"))))","v":0},{"$f":"B5","v":0}]
["Loss factor",{"$f":"VLOOKUP(B3,'Data Billing Quantities'!A:D,MATCH(A6,'Data Billing Quantities'!4:4,0),FALSE)","v":1.0564},{"$f":"VLOOKUP(C3,'Data Billing Quantities'!A:D,MATCH(A6,'Data Billing Quantities'!4:4,0),FALSE)","v":1.0640000000000001}]
["Commodity Threshold",{"$f":"VLOOKUP(B3,'Data Billing Quantities'!A:D,MATCH(A7,'Data Billing Quantities'!4:4,0),FALSE)","v":750},{"$f":"B7","v":750}]
["Monthly Consumption (kWh) - Uplifted",{"$f":"B4*B6","v":6771.5240000000003},{"$f":"C4*C6","v":6820.2400000000007}]
["Charge determinant",{"$f":"VLOOKUP(B3,'Data Billing Quantities'!A:D,MATCH(A9,'Data Billing Quantities'!4:4,0),FALSE)","v":"kWh"},{"$f":"VLOOKUP(C3,'Data Billing Quantities'!A:D,MATCH(A9,'Data Billing Quantities'!4:4,0),FALSE)","v":"kWh"}]
[]
[null,"Volume","Current Rate ($)","Current Charge ($)","Volume","Proposed Rate ($)","Proposed Charge ($)","Change ($)","Change (%)","% of Total Bill on RPP","% of Total Bill"]
["Energy First Tier",{"$f":"IF(B4>B7,B7,B4)","v":750},{"$f":"VLOOKUP($A12,'Data Pass Through'!$A:$D,2,FALSE)","v":9.8000000000000004E-2},{"$f":"B12*C12","v":73.5},{"$f":"B12","v":750},{"$f":"VLOOKUP($A12,'Data Pass Through'!$A:$D,3,FALSE)","v":9.8000000000000004E-2},{"$f":"E12*F12","v":73.5},{"$f":"G12-D12","v":0},{"$f":"IF(ISERROR(H12/ABS(D12)),\"N/A\",(H12/ABS(D12)))","v":0},{"$f":"G12/$G$44","v":7.5160747155056065E-2}]
["Energy Second Tier",{"$f":"IF(B4>B7,(B4)-B7,0)","v":5660},{"$f":"VLOOKUP($A13,'Data Pass Through'!$A:$D,2,FALSE)","v":0.115},{"$f":"B13*C13","v":650.9},{"$f":"B13","v":5660},{"$f":"VLOOKUP($A13,'Data Pass Through'!$A:$D,3,FALSE)","v":0.115},{"$f":"E13*F13","v":650.9},0,0,{"$f":"G13/$G$44","v":0.66560721528198619}]
["Sub-Total:  Energy (RPP Tiered)",null,null,{"$f":"SUM(D12:D13)","v":724.4},null,null,{"$f":"SUM(G12:G13)","v":724.4},0,0,{"$f":"G14/$G$44","v":0.74076796243704224}]
["TOU-Off Peak",{"$f":"B$4*VLOOKUP($B$3,'Data Billing Quantities'!$A:$O,MATCH(BI_NPDI_AGSe_High!$A15,'Data Billing Quantities'!$4:$4,0),FALSE)","v":4102.3999999999996},{"$f":"VLOOKUP($A15,'Data Pass Through'!$A:$D,2,FALSE)","v":8.2000000000000003E-2},{"$f":"B15*C15","v":336.39679999999998},4102.3999999999996,{"$f":"VLOOKUP($A15,'Data Pass Through'!$A:$D,3,FALSE)","v":8.2000000000000003E-2},{"$f":"E15*F15","v":336.39679999999998},0,0,null,{"$f":"G15/$G$49","v":0.3674126124973856}]
["TOU-Mid Peak",{"$f":"B$4*VLOOKUP($B$3,'Data Billing Quantities'!$A:$O,MATCH(BI_NPDI_AGSe_High!$A16,'Data Billing Quantities'!$4:$4,0),FALSE)","v":1153.8},{"$f":"VLOOKUP($A16,'Data Pass Through'!$A:$D,2,FALSE)","v":0.113},{"$f":"B16*C16","v":130.3794},1153.8,{"$f":"VLOOKUP($A16,'Data Pass Through'!$A:$D,3,FALSE)","v":0.113},{"$f":"E16*F16","v":130.3794},0,0,null,0.1424003913528358]
["TOU-On Peak",{"$f":"B$4*VLOOKUP($B$3,'Data Billing Quantities'!$A:$O,MATCH(BI_NPDI_AGSe_High!$A17,'Data Billing Quantities'!$4:$4,0),FALSE)","v":1153.8},{"$f":"VLOOKUP($A17,'Data Pass Through'!$A:$D,2,FALSE)","v":0.17},{"$f":"B17*C17","v":196.14600000000002},1153.8,{"$f":"VLOOKUP($A17,'Data Pass Through'!$A:$D,3,FALSE)","v":0.17},{"$f":"E17*F17","v":196.14600000000002},0,0,null,0.21423067725647865]
["Sub-Total:  Energy (RPP TOU)",null,null,{"$f":"SUM(D15:D17)","v":662.92219999999998},null,null,{"$f":"SUM(G15:G17)","v":662.92219999999998},0,0,{"$f":"G18/$G$44","v":0.67790105928807487},0.72404368110670003]
["Service Charge",1,{"$f":"VLOOKUP($B$3,'Data Current Rates'!$A:$AP,MATCH(BI_NPDI_AGSe_High!$A19,CurrentHeader,0),FALSE)","v":52.54},{"$f":"B19*C19","v":52.54},1,{"$f":"VLOOKUP($C$3,'Data Proposed Rates'!$A:$AZ,MATCH(BI_NPDI_AGSe_High!$A19,ProposedHeader,0),FALSE)","v":37.65},{"$f":"E19*F19","v":37.65},-14.89,-0.28340312143129048,3.8500709256977697E-2,4.1121333082022683E-2]
["Distribution Volumetric Charge",{"$f":"IF($B$9=\"kWh\",$B$4,$B$5)","v":6410},{"$f":"VLOOKUP($B$3,'Data Current Rates'!$A:$AP,MATCH(BI_NPDI_AGSe_High!$A20,CurrentHeader,0),FALSE)","v":1.6400000000000001E-2},{"$f":"B20*C20","v":105.12400000000001},{"$f":"IF($C$9=\"kWh\",$C$4,$C$5)","v":6410},{"$f":"VLOOKUP($C$3,'Data Proposed Rates'!$A:$AZ,MATCH(BI_NPDI_AGSe_High!$A20,ProposedHeader,0),FALSE)","v":1.7100000000000001E-2},109.611,4.4869999999999948,4.268292682926824E-2,0.11208768240017483,0.11971714317273807]
["Low Voltage Service Rate",{"$f":"IF($B$9=\"kWh\",$B$4,$B$5)","v":6410},{"$f":"VLOOKUP($B$3,'Data Current Rates'!$A:$AP,MATCH(BI_NPDI_AGSe_High!$A21,CurrentHeader,0),FALSE)","v":8.0000000000000004E-4},5.1280000000000001,null,null,null,-5.1280000000000001,-1,0,0]
["Rate Rider for Application of Tax Change",6410,{"$f":"VLOOKUP($B$3,'Data Current Rates'!$A:$AP,MATCH(BI_NPDI_AGSe_High!$A22,CurrentHeader,0),FALSE)","v":1E-4},0.64100000000000001,null,null,null,-0.64100000000000001,-1,0,0]
["Group 1 Volumetric DVA Rider (General)",null,null,null,{"$f":"IF($C$9=\"kWh\",$C$4,$C$5)","v":6410},{"$f":"VLOOKUP($C$3,'Data Proposed Rates'!$A:$AZ,MATCH(BI_NPDI_AGSe_High!$A23,ProposedHeader,0),FALSE)","v":-5.0000000000000001E-4},-3.2050000000000001,-3.2050000000000001,"N/A",-3.2774176140401997E-3,-3.5005012623607621E-3]
["Sub-Total:  Distribution (excluding pass through)",null,null,{"$f":"SUM(INDIRECT(\"D19:D\"&ROW()-1))","v":163.43300000000002},null,null,{"$f":"SUM(INDIRECT(\"g19:g\"&ROW()-1))","v":144.05599999999998},{"$f":"G24-D24","v":-19.377000000000038},-0.11856234664969764,0.1473109740431123,0.15733797499239996]
["Smart Metering Entity Charge",{"$f":"B19","v":1},{"$f":"VLOOKUP($A25,'Data Pass Through'!$A:$D,2,FALSE)","v":0.56999999999999995},{"$f":"B25*C25","v":0.56999999999999995},{"$f":"E19","v":1},{"$f":"VLOOKUP($A25,'Data Pass Through'!$A:$D,3,FALSE)","v":0.56999999999999995},{"$f":"E25*F25","v":0.56999999999999995},0,0,5.8287926365145507E-4,6.2255404666010426E-4]
["Line Losses on Cost of Power (based on two-tier RPP prices)",{"$f":"B8-B4","v":361.52400000000034},{"$f":"IF(B4>B7,C13,C12)","v":0.115},{"$f":"B26*C26","v":41.575260000000043},{"$f":"C8-C4","v":410.24000000000069},{"$f":"IF(C4>C7,F13,F12)","v":0.115},{"$f":"E26*F26","v":47.177600000000083},5.6023400000000407,0.13475177304964622,4.8243587278671826E-2,5.1527378581950507E-2]
["Line Losses on Cost of Power (based on TOU prices)",{"$f":"B8-B4","v":361.52400000000034},{"$f":"VLOOKUP($B$3,'Data Billing Quantities'!$A:$O,MATCH(BI_NPDI_AGSe_High!$A15,'Data Billing Quantities'!$4:$4,0),FALSE)*C15+VLOOKUP($B$3,'Data Billing Quantities'!$A:$O,MATCH(BI_NPDI_AGSe_High!$A16,'Data Billing Quantities'!$4:$4,0),FALSE)*C16+VLOOKUP($B$3,'Data Billing Quantities'!$A:$O,MATCH(BI_NPDI_AGSe_High!$A17,'Data Billing Quantities'!$4:$4,0),FALSE)*C17","v":0.10342000000000001},{"$f":"B27*C27","v":37.388812080000037},{"$f":"C8-C4","v":410.24000000000069},{"$f":"VLOOKUP($C$3,'Data Billing Quantities'!$A:$O,MATCH(BI_NPDI_AGSe_High!$A15,'Data Billing Quantities'!$4:$4,0),FALSE)*F15+VLOOKUP($C$3,'Data Billing Quantities'!$A:$O,MATCH(BI_NPDI_AGSe_High!$A16,'Data Billing Quantities'!$4:$4,0),FALSE)*F16+VLOOKUP($C$3,'Data Billing Quantities'!$A:$O,MATCH(BI_NPDI_AGSe_High!$A17,'Data Billing Quantities'!$4:$4,0),FALSE)*F17","v":0.10342000000000001},{"$f":"E27*F27","v":42.427020800000079},5.0382087200000427,0.13475177304964639,4.3385667794436873E-2,4.6338795590828888E-2]
["Sub-Total:  Distribution (based on two-tier RPP prices)",null,null,{"$f":"SUM(D24,D25:D26)","v":205.57826000000006},null,null,{"$f":"SUM(G24,G25:G26)","v":191.80360000000007},-13.774659999999983,-6.7004458545373319E-2,0.19613744058543559,0.20948790762101061]
["Sub-Total:  Distribution (based on TOU prices)",null,null,{"$f":"SUM(D24,D25,D27)","v":201.39181208000005},null,null,{"$f":"SUM(G24,G25,G27)","v":187.05302080000007},-14.338791279999981,-7.1198481864317792E-2,0.19127952110120064,0.20429932462988898]
["Retail Transmission Rate – Network Service Rate",{"$f":"IF($B$9=\"kWh\",$B$8,$B$5)","v":6771.5240000000003},{"$f":"VLOOKUP($B$3,'Data Current Rates'!$A:$AP,MATCH(BI_NPDI_AGSe_High!$A30,CurrentHeader,0),FALSE)","v":7.7000000000000002E-3},{"$f":"B30*C30","v":52.140734800000004},{"$f":"IF($C$9=\"kWh\",$C$8,$C$5)","v":6820.2400000000007},{"$f":"VLOOKUP($C$3,'Data Proposed Rates'!$A:$AZ,MATCH(BI_NPDI_AGSe_High!$A30,ProposedHeader,0),FALSE)","v":8.0000000000000002E-3},{"$f":"E30*F30","v":54.561920000000008},{"$f":"G30-D30","v":2.4211852000000036},4.6435578809679592E-2,5.5794757461420368E-2,5.9592533490429624E-2]
["Retail Transmission Rate – Line and Transformation Connection Service Rate",{"$f":"IF($B$9=\"kWh\",$B$8,$B$5)","v":6771.5240000000003},{"$f":"VLOOKUP($B$3,'Data Current Rates'!$A:$AP,MATCH(BI_NPDI_AGSe_High!$A31,CurrentHeader,0),FALSE)","v":3.3E-3},{"$f":"B31*C31","v":22.3460292},{"$f":"IF($C$9=\"kWh\",$C$8,$C$5)","v":6820.2400000000007},{"$f":"VLOOKUP($C$3,'Data Proposed Rates'!$A:$AZ,MATCH(BI_NPDI_AGSe_High!$A31,ProposedHeader,0),FALSE)","v":6.1000000000000004E-3},{"$f":"E31*F31","v":41.60346400000001},{"$f":"G31-D31","v":19.257434800000009},0.86178330063222186,4.2543502564333036E-2,4.5439306786452589E-2]
["Sub-Total:  Retail Transmission ",null,null,{"$f":"SUM(D30:D31)","v":74.486764000000008},null,null,{"$f":"SUM(G30:G31)","v":96.165384000000017},{"$f":"G32-D32","v":21.678620000000009},0.2910398953564422,9.8338260025753396E-2,0.10503184027688221]
["Sub-Total:  Delivery (based on two-tier RPP prices)",null,null,{"$f":"D28+D32","v":280.06502400000005},null,null,{"$f":"G28+G32","v":287.96898400000009},{"$f":"G33-D33","v":7.9039600000000405},2.8221874645796681E-2,0.294475700611189,0.31451974789789283]
["Sub-Total:  Delivery (based on TOU prices)",null,null,{"$f":"D29+D32","v":275.87857608000007},null,null,{"$f":"G29+G32","v":283.21840480000009},{"$f":"G34-D34","v":7.3398287200000141},2.6605287095115313E-2,0.28961778112695402,0.30933116490677121]
["Wholesale Market Service Rate (WMS) - not including CBR",{"$f":"B8","v":6771.5240000000003},{"$f":"VLOOKUP($A35,'Data Pass Through'!$A:$D,2,FALSE)","v":3.0000000000000001E-3},{"$f":"B35*C35","v":20.314572000000002},{"$f":"$C$8","v":6820.2400000000007},{"$f":"VLOOKUP($A35,'Data Pass Through'!$A:$D,3,FALSE)","v":3.0000000000000001E-3},{"$f":"E35*F35","v":20.460720000000002},0.14614800000000017,7.1942446043165541E-3,2.0923034048032637E-2,2.234720005891111E-2]
["Capacity Based Recovery (CBR) - Applicable for Class B Customers",{"$f":"B8","v":6771.5240000000003},{"$f":"VLOOKUP($A36,'Data Pass Through'!$A:$D,2,FALSE)","v":4.0000000000000002E-4},{"$f":"B36*C36","v":2.7086096000000004},{"$f":"$C$8","v":6820.2400000000007},{"$f":"VLOOKUP($A36,'Data Pass Through'!$A:$D,3,FALSE)","v":4.0000000000000002E-4},{"$f":"E36*F36","v":2.7280960000000003},1.9486399999999904E-2,7.1942446043165098E-3,2.7897378730710183E-3,2.9796266745214812E-3]
["Rural Rate Protection Charge",{"$f":"B8","v":6771.5240000000003},{"$f":"VLOOKUP($A37,'Data Pass Through'!$A:$D,2,FALSE)","v":5.0000000000000001E-4},3.3857620000000002,6820.2400000000007,{"$f":"VLOOKUP($A37,'Data Pass Through'!$A:$D,3,FALSE)","v":5.0000000000000001E-4},3.4101200000000005,2.4358000000000324E-2,7.1942446043166417E-3,3.487172341338773E-3,3.7245333431518515E-3]
["Standard Supply Service – Administration Charge (if applicable)",1,{"$f":"VLOOKUP($A38,'Data Pass Through'!$A:$D,2,FALSE)","v":0.25},{"$f":"B38*C38","v":0.25},1,{"$f":"VLOOKUP($A38,'Data Pass Through'!$A:$D,3,FALSE)","v":0.25},0.25,0,0,2.5564879984712948E-4,2.7305002046495807E-4]
["Sub-Total:  Regulatory",null,null,{"$f":"SUM(D35:D38)","v":26.658943600000001},null,null,{"$f":"SUM(G35:G38)","v":26.848936000000002},0.18999240000000128,7.1267790221065351E-3,2.7455593062289556E-2,2.9324410097049398E-2]
["Total  Electricty Charge on Two-Tier RPP ",null,null,{"$f":"SUM(D14,D24,D25,D26,D32,D39)","v":1031.1239676},null,null,{"$f":"SUM(G14,G24,G25,G26,G32,G39)","v":1039.21792},8.0939524000000347,7.8496404451146376E-3,1.0626992561105209]
["     HST",null,0.13,{"$f":"D40*C41","v":134.04611578800001},null,{"$f":"C41","v":0.13},{"$f":"G40*F41","v":135.0983296},1.0522138119999909,7.8496404451145353E-3,0.13815090329436769]
["Total Electricity Charge on Two-Tier RPP (including HST)",null,null,{"$f":"SUM(D40:D41)","v":1165.170083388},null,null,{"$f":"SUM(G40:G41)","v":1174.3162496},9.1461662120000256,7.8496404451146255E-3,1.2008501594048884]
["Ontario Electricity Rebate (OER)",null,{"$f":"IF(($B$4*12)<250000,VLOOKUP(A43,'Data Pass Through'!$A$4:$C$20,2,0),0)","v":-0.189},{"$f":"D40*C43","v":-194.88242987640001},null,{"$f":"C43","v":-0.189},{"$f":"G40*F43","v":-196.41218688000001},-1.5297570035999968,-7.8496404451145873E-3,-0.20085015940488843]
["Total Amount on Two-Tier RPP",null,null,{"$f":"SUM(D42:D43)","v":970.28765351159996},null,null,{"$f":"SUM(G42:G43)","v":977.90406271999996},7.6164092084000004,7.8496404451146046E-3,1]
["Total Electricty Charge on TOU (before HST)",null,null,{"$f":"SUM(D18,D24,D25,D27,D32,D39)","v":965.45971968000015},null,null,{"$f":"SUM(G18,G24,G25,G27,G32,G39)","v":972.9895408000001},7.5298211199999514,7.7992079488263862E-3,null,{"$f":"G45/$G$49","v":1.0626992561105206}]
["     HST",null,0.13,{"$f":"D45*C46","v":125.50976355840002},null,{"$f":"C46","v":0.13},{"$f":"G45*F46","v":126.48864030400001},0.97887674559999027,7.7992079488263585E-3,null,{"$f":"G46/$G$49","v":0.13815090329436769}]
["Total Electricity Charge on TOU (including HST)",null,null,{"$f":"SUM(D45:D46)","v":1090.9694832384002},null,null,{"$f":"SUM(G45:G46)","v":1099.4781811040002},8.5086978655999701,7.7992079488264079E-3,null,{"$f":"G47/$G$49","v":1.2008501594048884}]
["Ontario Electricity Rebate (OER)",null,{"$f":"IF(($B$4*12)<250000,VLOOKUP(A48,'Data Pass Through'!$A$4:$C$20,2,0),0)","v":-0.189},{"$f":"D45*C48","v":-182.47188701952004},null,{"$f":"C48","v":-0.189},{"$f":"G45*F48","v":-183.89502321120003},-1.423136191679987,-7.7992079488263645E-3,null,{"$f":"G48/$G$49","v":-0.2008501594048884}]
["Total Amount on TOU",null,null,{"$f":"SUM(D47:D48)","v":908.49759621888018},null,null,{"$f":"SUM(G47:G48)","v":915.58315789280016},7.0855616739199831,7.7992079488264174E-3,null,{"$f":"G49/$G$49","v":1}]

{"sheet":"BI_HCHI_AGSe_Low","index":96,"n_rows":49,"n_cols":11,"rows_kept":49,"cut":false,"hidden":false,"merged":[[0,0,0,10]]}
["2023 Bill Impacts (Low Consumption Level) - AGSe_HCHI"]
[]
["Rate Class",{"$f":"VLOOKUP(A1,'Data BI List Acq_Seas'!C:E,2,FALSE)","v":"HCHI_GS<50"},{"$f":"VLOOKUP(A1,'Data BI List Acq_Seas'!C:E,3,FALSE)","v":"AGSe-HCHI"}]
["Monthly Consumption (kWh)",{"$f":"IF(COUNTIF(A1,\"*Low*\")>0,VLOOKUP(B3,'Data Billing Quantities'!$A:$Z,MATCH(\"Low kWh\",'Data Billing Quantities'!4:4,0),FALSE),IF(COUNTIF(A1,\"*Typical*\")>0,VLOOKUP(B3,'Data Billing Quantities'!$A:$Z,MATCH(\"Typical kWh\",'Data Billing Quantities'!4:4,0),FALSE),IF(COUNTIF(A1,\"*Average*\")>0,VLOOKUP(B3,'Data Billing Quantities'!$A:$Z,MATCH(\"Average kWh\",'Data Billing Quantities'!4:4,0),FALSE),IF(COUNTIF(A1,\"*High*\")>0,VLOOKUP(B3,'Data Billing Quantities'!$A:$Z,MATCH(\"High kWh\",'Data Billing Quantities'!4:4,0),FALSE),\"error\"))))","v":90},{"$f":"B4","v":90}]
["Peak (kW)",{"$f":"IF(COUNTIF(A1,\"*Low*\")>0,VLOOKUP(B3,'Data Billing Quantities'!$A:$Z,MATCH(\"Low kW\",'Data Billing Quantities'!4:4,0),FALSE),IF(COUNTIF(A1,\"*Typical*\")>0,VLOOKUP(B3,'Data Billing Quantities'!$A:$Z,MATCH(\"Typical kW\",'Data Billing Quantities'!4:4,0),FALSE),IF(COUNTIF(A1,\"*Average*\")>0,VLOOKUP(B3,'Data Billing Quantities'!$A:$Z,MATCH(\"Average kW\",'Data Billing Quantities'!4:4,0),FALSE),IF(COUNTIF(A1,\"*High*\")>0,VLOOKUP(B3,'Data Billing Quantities'!$A:$Z,MATCH(\"High kW\",'Data Billing Quantities'!4:4,0),FALSE),\"error\"))))","v":0},{"$f":"B5","v":0}]
["Loss factor",{"$f":"VLOOKUP(B3,'Data Billing Quantities'!A:D,MATCH(A6,'Data Billing Quantities'!4:4,0),FALSE)","v":1.0654999999999999},{"$f":"VLOOKUP(C3,'Data Billing Quantities'!A:D,MATCH(A6,'Data Billing Quantities'!4:4,0),FALSE)","v":1.0640000000000001}]
["Commodity Threshold",{"$f":"VLOOKUP(B3,'Data Billing Quantities'!A:D,MATCH(A7,'Data Billing Quantities'!4:4,0),FALSE)","v":750},{"$f":"B7","v":750}]
["Monthly Consumption (kWh) - Uplifted",{"$f":"B4*B6","v":95.894999999999996},{"$f":"C4*C6","v":95.76}]
["Charge determinant",{"$f":"VLOOKUP(B3,'Data Billing Quantities'!A:D,MATCH(A9,'Data Billing Quantities'!4:4,0),FALSE)","v":"kWh"},{"$f":"VLOOKUP(C3,'Data Billing Quantities'!A:D,MATCH(A9,'Data Billing Quantities'!4:4,0),FALSE)","v":"kWh"}]
[]
[null,"Volume","Current Rate ($)","Current Charge ($)","Volume","Proposed Rate ($)","Proposed Charge ($)","Change ($)","Change (%)","% of Total Bill on RPP","% of Total Bill "]
["Energy First Tier",{"$f":"IF(B4>B7,B7,B4)","v":90},{"$f":"VLOOKUP($A12,'Data Pass Through'!$A:$D,2,FALSE)","v":9.8000000000000004E-2},{"$f":"B12*C12","v":8.82},{"$f":"B12","v":90},{"$f":"VLOOKUP($A12,'Data Pass Through'!$A:$D,3,FALSE)","v":9.8000000000000004E-2},{"$f":"E12*F12","v":8.82},{"$f":"G12-D12","v":0},{"$f":"IF(ISERROR(H12/ABS(D12)),\"N/A\",(H12/ABS(D12)))","v":0},{"$f":"G12/$G$44","v":0.18349245473076164}]
["Energy Second Tier",{"$f":"IF(B4>B7,(B4)-B7,0)","v":0},{"$f":"VLOOKUP($A13,'Data Pass Through'!$A:$D,2,FALSE)","v":0.115},{"$f":"B13*C13","v":0},{"$f":"B13","v":0},{"$f":"VLOOKUP($A13,'Data Pass Through'!$A:$D,3,FALSE)","v":0.115},{"$f":"E13*F13","v":0},0,"N/A",{"$f":"G13/$G$44","v":0}]
["Sub-Total:  Energy (RPP Tiered)",null,null,{"$f":"SUM(D12:D13)","v":8.82},null,null,{"$f":"SUM(G12:G13)","v":8.82},0,0,{"$f":"G14/$G$44","v":0.18349245473076164}]
["TOU-Off Peak",{"$f":"B$4*VLOOKUP($B$3,'Data Billing Quantities'!$A:$O,MATCH(BI_HCHI_AGSe_Low!$A15,'Data Billing Quantities'!$4:$4,0),FALSE)","v":57.6},{"$f":"VLOOKUP($A15,'Data Pass Through'!$A:$D,2,FALSE)","v":8.2000000000000003E-2},{"$f":"B15*C15","v":4.7232000000000003},57.6,{"$f":"VLOOKUP($A15,'Data Pass Through'!$A:$D,3,FALSE)","v":8.2000000000000003E-2},{"$f":"E15*F15","v":4.7232000000000003},0,0,null,{"$f":"G15/$G$49","v":9.7273715019602344E-2}]
["TOU-Mid Peak",{"$f":"B$4*VLOOKUP($B$3,'Data Billing Quantities'!$A:$O,MATCH(BI_HCHI_AGSe_Low!$A16,'Data Billing Quantities'!$4:$4,0),FALSE)","v":16.2},{"$f":"VLOOKUP($A16,'Data Pass Through'!$A:$D,2,FALSE)","v":0.113},{"$f":"B16*C16","v":1.8306},16.2,{"$f":"VLOOKUP($A16,'Data Pass Through'!$A:$D,3,FALSE)","v":0.113},{"$f":"E16*F16","v":1.8306},0,0,null,3.7700978725204108E-2]
["TOU-On Peak",{"$f":"B$4*VLOOKUP($B$3,'Data Billing Quantities'!$A:$O,MATCH(BI_HCHI_AGSe_Low!$A17,'Data Billing Quantities'!$4:$4,0),FALSE)","v":16.2},{"$f":"VLOOKUP($A17,'Data Pass Through'!$A:$D,2,FALSE)","v":0.17},{"$f":"B17*C17","v":2.754},16.2,{"$f":"VLOOKUP($A17,'Data Pass Through'!$A:$D,3,FALSE)","v":0.17},{"$f":"E17*F17","v":2.754},0,0,null,5.6718286577740688E-2]
["Sub-Total:  Energy (RPP TOU)",null,null,{"$f":"SUM(D15:D17)","v":9.3078000000000003},null,null,{"$f":"SUM(G15:G17)","v":9.3078000000000003},0,0,{"$f":"G18/$G$44","v":0.19364071090056498},0.19169298032254714]
["Service Charge",1,{"$f":"VLOOKUP($B$3,'Data Current Rates'!$A:$AP,MATCH(BI_HCHI_AGSe_Low!$A19,CurrentHeader,0),FALSE)","v":27.89},{"$f":"B19*C19","v":27.89},1,{"$f":"VLOOKUP($C$3,'Data Proposed Rates'!$A:$AZ,MATCH(BI_HCHI_AGSe_Low!$A19,ProposedHeader,0),FALSE)","v":37.65},{"$f":"E19*F19","v":37.65},9.759999999999998,0.34994621728217989,0.78327561458199269,0.77539705506606282]
["Distribution Volumetric Charge",{"$f":"IF($B$9=\"kWh\",$B$4,$B$5)","v":90},{"$f":"VLOOKUP($B$3,'Data Current Rates'!$A:$AP,MATCH(BI_HCHI_AGSe_Low!$A20,CurrentHeader,0),FALSE)","v":1.9599999999999999E-2},{"$f":"B20*C20","v":1.764},{"$f":"IF($C$9=\"kWh\",$C$4,$C$5)","v":90},{"$f":"VLOOKUP($C$3,'Data Proposed Rates'!$A:$AZ,MATCH(BI_HCHI_AGSe_Low!$A20,ProposedHeader,0),FALSE)","v":1.7100000000000001E-2},1.5390000000000001,-0.22499999999999987,-0.12755102040816318,3.2017560978530861E-2,3.1695513087560974E-2]
["Low Voltage Service Rate",{"$f":"IF($B$9=\"kWh\",$B$4,$B$5)","v":90},{"$f":"VLOOKUP($B$3,'Data Current Rates'!$A:$AP,MATCH(BI_HCHI_AGSe_Low!$A21,CurrentHeader,0),FALSE)","v":4.0000000000000002E-4},3.6000000000000004E-2,null,null,null,-3.6000000000000004E-2,-1,0,0]
["Funding Adder for Renewable Energy Generation",90,{"$f":"VLOOKUP($B$3,'Data Current Rates'!$A:$AP,MATCH(BI_HCHI_AGSe_Low!$A22,CurrentHeader,0),FALSE)","v":2.0000000000000001E-4},1.8000000000000002E-2,null,null,null,-1.8000000000000002E-2,-1,0,0]
["Group 1 Volumetric DVA Rider (General)",null,null,null,{"$f":"IF($C$9=\"kWh\",$C$4,$C$5)","v":90},{"$f":"VLOOKUP($C$3,'Data Proposed Rates'!$A:$AZ,MATCH(BI_HCHI_AGSe_Low!$A23,ProposedHeader,0),FALSE)","v":-4.0000000000000002E-4},-3.6000000000000004E-2,-3.6000000000000004E-2,"N/A",-7.4894879481943535E-4,-7.4141551082013981E-4]
["Sub-Total:  Distribution (excluding pass through)",null,null,{"$f":"SUM(INDIRECT(\"D19:D\"&ROW()-1))","v":29.708000000000002},null,null,{"$f":"SUM(INDIRECT(\"g19:g\"&ROW()-1))","v":39.152999999999999},{"$f":"G24-D24","v":9.4449999999999967},0.31792783088730298,0.81454422676570404,0.80635115264280366]
["Smart Metering Entity Charge",{"$f":"B19","v":1},{"$f":"VLOOKUP($A25,'Data Pass Through'!$A:$D,2,FALSE)","v":0.56999999999999995},{"$f":"B25*C25","v":0.56999999999999995},{"$f":"E19","v":1},{"$f":"VLOOKUP($A25,'Data Pass Through'!$A:$D,3,FALSE)","v":0.56999999999999995},{"$f":"E25*F25","v":0.56999999999999995},0,0,1.185835591797439E-2,1.1739078921318879E-2]
["Line Losses on Cost of Power (based on two-tier RPP prices)",{"$f":"B8-B4","v":5.894999999999996},{"$f":"IF(B4>B7,C13,C12)","v":9.8000000000000004E-2},{"$f":"B26*C26","v":0.57770999999999961},{"$f":"C8-C4","v":5.7600000000000051},{"$f":"IF(C4>C7,F13,F12)","v":9.8000000000000004E-2},{"$f":"E26*F26","v":0.56448000000000054},-1.3229999999999076E-2,-2.290076335877704E-2,1.1743517102768756E-2,1.1625395209659802E-2]
["Line Losses on Cost of Power (based on TOU prices)",{"$f":"B8-B4","v":5.894999999999996},{"$f":"VLOOKUP($B$3,'Data Billing Quantities'!$A:$O,MATCH(BI_HCHI_AGSe_Low!$A15,'Data Billing Quantities'!$4:$4,0),FALSE)*C15+VLOOKUP($B$3,'Data Billing Quantities'!$A:$O,MATCH(BI_HCHI_AGSe_Low!$A16,'Data Billing Quantities'!$4:$4,0),FALSE)*C16+VLOOKUP($B$3,'Data Billing Quantities'!$A:$O,MATCH(BI_HCHI_AGSe_Low!$A17,'Data Billing Quantities'!$4:$4,0),FALSE)*C17","v":0.10342000000000001},{"$f":"B27*C27","v":0.60966089999999962},{"$f":"C8-C4","v":5.7600000000000051},{"$f":"VLOOKUP($C$3,'Data Billing Quantities'!$A:$O,MATCH(BI_HCHI_AGSe_Low!$A15,'Data Billing Quantities'!$4:$4,0),FALSE)*F15+VLOOKUP($C$3,'Data Billing Quantities'!$A:$O,MATCH(BI_HCHI_AGSe_Low!$A16,'Data Billing Quantities'!$4:$4,0),FALSE)*F16+VLOOKUP($C$3,'Data Billing Quantities'!$A:$O,MATCH(BI_HCHI_AGSe_Low!$A17,'Data Billing Quantities'!$4:$4,0),FALSE)*F17","v":0.10342000000000001},{"$f":"E27*F27","v":0.59569920000000065},-1.3961699999998967E-2,-2.2900763358776947E-2,1.2393005497636172E-2,1.226835074064303E-2]
["Sub-Total:  Distribution (based on two-tier RPP prices)",null,null,{"$f":"SUM(D24,D25:D26)","v":30.855710000000002},null,null,{"$f":"SUM(G24,G25:G26)","v":40.287480000000002},9.4317700000000002,0.30567340696422152,0.83814609978644727,0.82971562677378241]
["Sub-Total:  Distribution (based on TOU prices)",null,null,{"$f":"SUM(D24,D25,D27)","v":30.8876609},null,null,{"$f":"SUM(G24,G25,G27)","v":40.318699199999998},9.4310382999999973,0.30533352235811412,0.83879558818131461,0.83035858230476545]
["Retail Transmission Rate – Network Service Rate",{"$f":"IF($B$9=\"kWh\",$B$8,$B$5)","v":95.894999999999996},{"$f":"VLOOKUP($B$3,'Data Current Rates'!$A:$AP,MATCH(BI_HCHI_AGSe_Low!$A30,CurrentHeader,0),FALSE)","v":7.1999999999999998E-3},{"$f":"B30*C30","v":0.69044399999999995},{"$f":"IF($C$9=\"kWh\",$C$8,$C$5)","v":95.76},{"$f":"VLOOKUP($C$3,'Data Proposed Rates'!$A:$AZ,MATCH(BI_HCHI_AGSe_Low!$A30,ProposedHeader,0),FALSE)","v":8.0000000000000002E-3},{"$f":"E30*F30","v":0.76608000000000009},{"$f":"G30-D30","v":7.5636000000000148E-2},0.10954690025548799,1.5937630353757583E-2,1.5777322070252574E-2]
["Retail Transmission Rate – Line and Transformation Connection Service Rate",{"$f":"IF($B$9=\"kWh\",$B$8,$B$5)","v":95.894999999999996},{"$f":"VLOOKUP($B$3,'Data Current Rates'!$A:$AP,MATCH(BI_HCHI_AGSe_Low!$A31,CurrentHeader,0),FALSE)","v":5.7000000000000002E-3},{"$f":"B31*C31","v":0.54660149999999996},{"$f":"IF($C$9=\"kWh\",$C$8,$C$5)","v":95.76},{"$f":"VLOOKUP($C$3,'Data Proposed Rates'!$A:$AZ,MATCH(BI_HCHI_AGSe_Low!$A31,ProposedHeader,0),FALSE)","v":6.1000000000000004E-3},{"$f":"E31*F31","v":0.5841360000000001},{"$f":"G31-D31","v":3.7534500000000137E-2},6.8668856561864791E-2,1.2152443144740158E-2,1.2030208078567589E-2]
["Sub-Total:  Retail Transmission ",null,null,{"$f":"SUM(D30:D31)","v":1.2370454999999998},null,null,{"$f":"SUM(G30:G31)","v":1.3502160000000001},{"$f":"G32-D32","v":0.11317050000000028},9.1484508855980085E-2,2.809007349849774E-2,2.7807530148820161E-2]
["Sub-Total:  Delivery (based on two-tier RPP prices)",null,null,{"$f":"D28+D32","v":32.092755500000003},null,null,{"$f":"G28+G32","v":41.637696000000005},{"$f":"G33-D33","v":9.5449405000000027},0.29741729406812706,0.86623617328494507,0.85752315692260261]
["Sub-Total:  Delivery (based on TOU prices)",null,null,{"$f":"D29+D32","v":32.124706400000001},null,null,{"$f":"G29+G32","v":41.668915200000001},{"$f":"G34-D34","v":9.5442087999999998},0.29709870904843505,0.8668856616798124,0.85816611245358576]
["Wholesale Market Service Rate (WMS) - not including CBR",{"$f":"B8","v":95.894999999999996},{"$f":"VLOOKUP($A35,'Data Pass Through'!$A:$D,2,FALSE)","v":3.0000000000000001E-3},{"$f":"B35*C35","v":0.28768499999999997},{"$f":"$C$8","v":95.76},{"$f":"VLOOKUP($A35,'Data Pass Through'!$A:$D,3,FALSE)","v":3.0000000000000001E-3},{"$f":"E35*F35","v":0.28728000000000004},-4.0499999999993319E-4,-1.4077897700607721E-3,5.9766113826590942E-3,5.9164957763447159E-3]
["Capacity Based Recovery (CBR) - Applicable for Class B Customers",{"$f":"B8","v":95.894999999999996},{"$f":"VLOOKUP($A36,'Data Pass Through'!$A:$D,2,FALSE)","v":4.0000000000000002E-4},{"$f":"B36*C36","v":3.8358000000000003E-2},{"$f":"$C$8","v":95.76},{"$f":"VLOOKUP($A36,'Data Pass Through'!$A:$D,3,FALSE)","v":4.0000000000000002E-4},{"$f":"E36*F36","v":3.8304000000000005E-2},-5.3999999999998494E-5,-1.4077897700609649E-3,7.9688151768787915E-4,7.8886610351262874E-4]
["Rural Rate Protection Charge",{"$f":"B8","v":95.894999999999996},{"$f":"VLOOKUP($A37,'Data Pass Through'!$A:$D,2,FALSE)","v":5.0000000000000001E-4},4.7947499999999997E-2,95.76,{"$f":"VLOOKUP($A37,'Data Pass Through'!$A:$D,3,FALSE)","v":5.0000000000000001E-4},4.7880000000000006E-2,-6.7499999999991178E-5,-1.4077897700608202E-3,9.9610189710984897E-4,9.860826293907859E-4]
["Standard Supply Service – Administration Charge (if applicable)",1,{"$f":"VLOOKUP($A38,'Data Pass Through'!$A:$D,2,FALSE)","v":0.25},{"$f":"B38*C38","v":0.25},1,{"$f":"VLOOKUP($A38,'Data Pass Through'!$A:$D,3,FALSE)","v":0.25},0.25,0,0,5.2010332973571891E-3,5.1487188251398593E-3]
["Sub-Total:  Regulatory",null,null,{"$f":"SUM(D35:D38)","v":0.62399049999999989},null,null,{"$f":"SUM(G35:G38)","v":0.62346400000000002},-5.2649999999987429E-4,-8.4376284574825156E-4,1.297062809481401E-2,1.2840163334387989E-2]
["Total  Electricty Charge on Two-Tier RPP ",null,null,{"$f":"SUM(D14,D24,D25,D26,D32,D39)","v":41.536746000000001},null,null,{"$f":"SUM(G14,G24,G25,G26,G32,G39)","v":51.081160000000004},9.5444140000000033,0.22978241964356097,1.0626992561105206]
["     HST",null,0.13,{"$f":"D40*C41","v":5.3997769800000004},null,{"$f":"C41","v":0.13},{"$f":"G40*F41","v":6.6405508000000006},1.2407738200000002,0.22978241964356094,0.13815090329436769]
["Total Electricity Charge on Two-Tier RPP (including HST)",null,null,{"$f":"SUM(D40:D41)","v":46.936522979999999},null,null,{"$f":"SUM(G40:G41)","v":57.721710800000004},10.785187820000004,0.229782419643561,1.2008501594048884]
["Ontario Electricity Rebate (OER)",null,{"$f":"IF(($B$4*12)<250000,VLOOKUP(A43,'Data Pass Through'!$A$4:$C$20,2,0),0)","v":-0.189},{"$f":"D40*C43","v":-7.8504449940000001},null,{"$f":"C43","v":-0.189},{"$f":"G40*F43","v":-9.6543392400000005},-1.8038942460000005,-0.22978241964356097,-0.2008501594048884]
["Total Amount on Two-Tier RPP",null,null,{"$f":"SUM(D42:D43)","v":39.086077985999999},null,null,{"$f":"SUM(G42:G43)","v":48.067371560000005},8.9812935740000057,0.22978241964356105,1]
["Total Electricty Charge on TOU (before HST)",null,null,{"$f":"SUM(D18,D24,D25,D27,D32,D39)","v":42.056496899999999},null,null,{"$f":"SUM(G18,G24,G25,G27,G32,G39)","v":51.600179199999999},9.5436823000000004,0.22692527917131397,null,{"$f":"G45/$G$49","v":1.0626992561105209}]
["     HST",null,0.13,{"$f":"D45*C46","v":5.4673445970000003},null,{"$f":"C46","v":0.13},{"$f":"G45*F46","v":6.7080232960000004},1.2406786990000001,0.22692527917131394,null,{"$f":"G46/$G$49","v":0.13815090329436772}]
["Total Electricity Charge on TOU (including HST)",null,null,{"$f":"SUM(D45:D46)","v":47.523841496999999},null,null,{"$f":"SUM(G45:G46)","v":58.308202496},10.784360999,0.22692527917131397,null,{"$f":"G47/$G$49","v":1.2008501594048886}]
["Ontario Electricity Rebate (OER)",null,{"$f":"IF(($B$4*12)<250000,VLOOKUP(A48,'Data Pass Through'!$A$4:$C$20,2,0),0)","v":-0.189},{"$f":"D45*C48","v":-7.9486779141000001},null,{"$f":"C48","v":-0.189},{"$f":"G45*F48","v":-9.7524338688000007},-1.8037559547000006,-0.22692527917131403,null,{"$f":"G48/$G$49","v":-0.20085015940488846}]
["Total Amount on TOU",null,null,{"$f":"SUM(D47:D48)","v":39.575163582899997},null,null,{"$f":"SUM(G47:G48)","v":48.555768627199996},8.980605044299999,0.22692527917131394,null,{"$f":"G49/$G$49","v":1}]

{"sheet":"BI_HCHI_AGSe_Typical","index":97,"n_rows":49,"n_cols":11,"rows_kept":49,"cut":false,"hidden":false,"merged":[[0,0,0,10]]}
["2023 Bill Impacts (Typical Consumption Level) - AGSe_HCHI"]
[]
["Rate Class",{"$f":"VLOOKUP(A1,'Data BI List Acq_Seas'!C:E,2,FALSE)","v":"HCHI_GS<50"},{"$f":"VLOOKUP(A1,'Data BI List Acq_Seas'!C:E,3,FALSE)","v":"AGSe-HCHI"}]
["Monthly Consumption (kWh)",{"$f":"IF(COUNTIF(A1,\"*Low*\")>0,VLOOKUP(B3,'Data Billing Quantities'!$A:$Z,MATCH(\"Low kWh\",'Data Billing Quantities'!4:4,0),FALSE),IF(COUNTIF(A1,\"*Typical*\")>0,VLOOKUP(B3,'Data Billing Quantities'!$A:$Z,MATCH(\"Typical kWh\",'Data Billing Quantities'!4:4,0),FALSE),IF(COUNTIF(A1,\"*Average*\")>0,VLOOKUP(B3,'Data Billing Quantities'!$A:$Z,MATCH(\"Average kWh\",'Data Billing Quantities'!4:4,0),FALSE),IF(COUNTIF(A1,\"*High*\")>0,VLOOKUP(B3,'Data Billing Quantities'!$A:$Z,MATCH(\"High kWh\",'Data Billing Quantities'!4:4,0),FALSE),\"error\"))))","v":2000},{"$f":"B4","v":2000}]
["Peak (kW)",{"$f":"IF(COUNTIF(A1,\"*Low*\")>0,VLOOKUP(B3,'Data Billing Quantities'!$A:$Z,MATCH(\"Low kW\",'Data Billing Quantities'!4:4,0),FALSE),IF(COUNTIF(A1,\"*Typical*\")>0,VLOOKUP(B3,'Data Billing Quantities'!$A:$Z,MATCH(\"Typical kW\",'Data Billing Quantities'!4:4,0),FALSE),IF(COUNTIF(A1,\"*Average*\")>0,VLOOKUP(B3,'Data Billing Quantities'!$A:$Z,MATCH(\"Average kW\",'Data Billing Quantities'!4:4,0),FALSE),IF(COUNTIF(A1,\"*High*\")>0,VLOOKUP(B3,'Data Billing Quantities'!$A:$Z,MATCH(\"High kW\",'Data Billing Quantities'!4:4,0),FALSE),\"error\"))))","v":0},{"$f":"B5","v":0}]
["Loss factor",{"$f":"VLOOKUP(B3,'Data Billing Quantities'!A:D,MATCH(A6,'Data Billing Quantities'!4:4,0),FALSE)","v":1.0654999999999999},{"$f":"VLOOKUP(C3,'Data Billing Quantities'!A:D,MATCH(A6,'Data Billing Quantities'!4:4,0),FALSE)","v":1.0640000000000001}]
["Commodity Threshold",{"$f":"VLOOKUP(B3,'Data Billing Quantities'!A:D,MATCH(A7,'Data Billing Quantities'!4:4,0),FALSE)","v":750},{"$f":"B7","v":750}]
["Monthly Consumption (kWh) - Uplifted",{"$f":"B4*B6","v":2131},{"$f":"C4*C6","v":2128}]
["Charge determinant",{"$f":"VLOOKUP(B3,'Data Billing Quantities'!A:D,MATCH(A9,'Data Billing Quantities'!4:4,0),FALSE)","v":"kWh"},{"$f":"VLOOKUP(C3,'Data Billing Quantities'!A:D,MATCH(A9,'Data Billing Quantities'!4:4,0),FALSE)","v":"kWh"}]
[]
[null,"Volume","Current Rate ($)","Current Charge ($)","Volume","Proposed Rate ($)","Proposed Charge ($)","Change ($)","Change (%)","% of Total Bill on RPP","% of Total Bill "]
["Energy First Tier",{"$f":"IF(B4>B7,B7,B4)","v":750},{"$f":"VLOOKUP($A12,'Data Pass Through'!$A:$D,2,FALSE)","v":9.8000000000000004E-2},{"$f":"B12*C12","v":73.5},{"$f":"B12","v":750},{"$f":"VLOOKUP($A12,'Data Pass Through'!$A:$D,3,FALSE)","v":9.8000000000000004E-2},{"$f":"E12*F12","v":73.5},{"$f":"G12-D12","v":0},{"$f":"IF(ISERROR(H12/ABS(D12)),\"N/A\",(H12/ABS(D12)))","v":0},{"$f":"G12/$G$44","v":0.22829099830516761}]
["Energy Second Tier",{"$f":"IF(B4>B7,(B4)-B7,0)","v":1250},{"$f":"VLOOKUP($A13,'Data Pass Through'!$A:$D,2,FALSE)","v":0.115},{"$f":"B13*C13","v":143.75},{"$f":"B13","v":1250},{"$f":"VLOOKUP($A13,'Data Pass Through'!$A:$D,3,FALSE)","v":0.115},{"$f":"E13*F13","v":143.75},0,0,{"$f":"G13/$G$44","v":0.44648749668527676}]
["Sub-Total:  Energy (RPP Tiered)",null,null,{"$f":"SUM(D12:D13)","v":217.25},null,null,{"$f":"SUM(G12:G13)","v":217.25},0,0,{"$f":"G14/$G$44","v":0.6747784949904444}]
["TOU-Off Peak",{"$f":"B$4*VLOOKUP($B$3,'Data Billing Quantities'!$A:$O,MATCH(BI_HCHI_AGSe_Typical!$A15,'Data Billing Quantities'!$4:$4,0),FALSE)","v":1280},{"$f":"VLOOKUP($A15,'Data Pass Through'!$A:$D,2,FALSE)","v":8.2000000000000003E-2},{"$f":"B15*C15","v":104.96000000000001},1280,{"$f":"VLOOKUP($A15,'Data Pass Through'!$A:$D,3,FALSE)","v":8.2000000000000003E-2},{"$f":"E15*F15","v":104.96000000000001},0,0,null,{"$f":"G15/$G$49","v":0.3377451006509708}]
["TOU-Mid Peak",{"$f":"B$4*VLOOKUP($B$3,'Data Billing Quantities'!$A:$O,MATCH(BI_HCHI_AGSe_Typical!$A16,'Data Billing Quantities'!$4:$4,0),FALSE)","v":360},{"$f":"VLOOKUP($A16,'Data Pass Through'!$A:$D,2,FALSE)","v":0.113},{"$f":"B16*C16","v":40.68},360,{"$f":"VLOOKUP($A16,'Data Pass Through'!$A:$D,3,FALSE)","v":0.113},{"$f":"E16*F16","v":40.68},0,0,null,0.13090196926906908]
["TOU-On Peak",{"$f":"B$4*VLOOKUP($B$3,'Data Billing Quantities'!$A:$O,MATCH(BI_HCHI_AGSe_Typical!$A17,'Data Billing Quantities'!$4:$4,0),FALSE)","v":360},{"$f":"VLOOKUP($A17,'Data Pass Through'!$A:$D,2,FALSE)","v":0.17},{"$f":"B17*C17","v":61.2},360,{"$f":"VLOOKUP($A17,'Data Pass Through'!$A:$D,3,FALSE)","v":0.17},{"$f":"E17*F17","v":61.2},0,0,null,0.19693216615700659]
["Sub-Total:  Energy (RPP TOU)",null,null,{"$f":"SUM(D15:D17)","v":206.84000000000003},null,null,{"$f":"SUM(G15:G17)","v":206.84000000000003},0,0,{"$f":"G18/$G$44","v":0.64244503523048813},0.66557923607704661]
["Service Charge",1,{"$f":"VLOOKUP($B$3,'Data Current Rates'!$A:$AP,MATCH(BI_HCHI_AGSe_Typical!$A19,CurrentHeader,0),FALSE)","v":27.89},{"$f":"B19*C19","v":27.89},1,{"$f":"VLOOKUP($C$3,'Data Proposed Rates'!$A:$AZ,MATCH(BI_HCHI_AGSe_Typical!$A19,ProposedHeader,0),FALSE)","v":37.65},{"$f":"E19*F19","v":37.65},9.759999999999998,0.34994621728217989,0.11694089913183076,0.12115189633678591]
["Distribution Volumetric Charge",{"$f":"IF($B$9=\"kWh\",$B$4,$B$5)","v":2000},{"$f":"VLOOKUP($B$3,'Data Current Rates'!$A:$AP,MATCH(BI_HCHI_AGSe_Typical!$A20,CurrentHeader,0),FALSE)","v":1.9599999999999999E-2},{"$f":"B20*C20","v":39.199999999999996},{"$f":"IF($C$9=\"kWh\",$C$4,$C$5)","v":2000},{"$f":"VLOOKUP($C$3,'Data Proposed Rates'!$A:$AZ,MATCH(BI_HCHI_AGSe_Typical!$A20,ProposedHeader,0),FALSE)","v":1.7100000000000001E-2},34.200000000000003,-4.9999999999999929,-0.1275510204081631,0.10622519921138412,0.11005032814656251]
["Low Voltage Service Rate",{"$f":"IF($B$9=\"kWh\",$B$4,$B$5)","v":2000},{"$f":"VLOOKUP($B$3,'Data Current Rates'!$A:$AP,MATCH(BI_HCHI_AGSe_Typical!$A21,CurrentHeader,0),FALSE)","v":4.0000000000000002E-4},0.8,null,null,null,-0.8,-1,0,0]
["Funding Adder for Renewable Energy Generation",2000,{"$f":"VLOOKUP($B$3,'Data Current Rates'!$A:$AP,MATCH(BI_HCHI_AGSe_Typical!$A22,CurrentHeader,0),FALSE)","v":2.0000000000000001E-4},0.4,null,null,null,-0.4,-1,0,0]
["Group 1 Volumetric DVA Rider (General)",null,null,null,{"$f":"IF($C$9=\"kWh\",$C$4,$C$5)","v":2000},{"$f":"VLOOKUP($C$3,'Data Proposed Rates'!$A:$AZ,MATCH(BI_HCHI_AGSe_Typical!$A23,ProposedHeader,0),FALSE)","v":-4.0000000000000002E-4},-0.8,-0.8,"N/A",-2.4847999815528449E-3,-2.5742766817909361E-3]
["Sub-Total:  Distribution (excluding pass through)",null,null,{"$f":"SUM(INDIRECT(\"D19:D\"&ROW()-1))","v":68.290000000000006},null,null,{"$f":"SUM(INDIRECT(\"g19:g\"&ROW()-1))","v":71.05},{"$f":"G24-D24","v":2.7599999999999909},4.0415873480743748E-2,0.220681298361662,0.22862794780155749]
["Smart Metering Entity Charge",{"$f":"B19","v":1},{"$f":"VLOOKUP($A25,'Data Pass Through'!$A:$D,2,FALSE)","v":0.56999999999999995},{"$f":"B25*C25","v":0.56999999999999995},{"$f":"E19","v":1},{"$f":"VLOOKUP($A25,'Data Pass Through'!$A:$D,3,FALSE)","v":0.56999999999999995},{"$f":"E25*F25","v":0.56999999999999995},0,0,1.7704199868564018E-3,1.8341721357760417E-3]
["Line Losses on Cost of Power (based on two-tier RPP prices)",{"$f":"B8-B4","v":131},{"$f":"IF(B4>B7,C13,C12)","v":0.115},{"$f":"B26*C26","v":15.065000000000001},{"$f":"C8-C4","v":128},{"$f":"IF(C4>C7,F13,F12)","v":0.115},{"$f":"E26*F26","v":14.72},-0.34500000000000064,-2.2900763358778668E-2,4.5720319660572342E-2,4.7366690944953223E-2]
["Line Losses on Cost of Power (based on TOU prices)",{"$f":"B8-B4","v":131},{"$f":"VLOOKUP($B$3,'Data Billing Quantities'!$A:$O,MATCH(BI_HCHI_AGSe_Typical!$A15,'Data Billing Quantities'!$4:$4,0),FALSE)*C15+VLOOKUP($B$3,'Data Billing Quantities'!$A:$O,MATCH(BI_HCHI_AGSe_Typical!$A16,'Data Billing Quantities'!$4:$4,0),FALSE)*C16+VLOOKUP($B$3,'Data Billing Quantities'!$A:$O,MATCH(BI_HCHI_AGSe_Typical!$A17,'Data Billing Quantities'!$4:$4,0),FALSE)*C17","v":0.10342000000000001},{"$f":"B27*C27","v":13.548020000000001},{"$f":"C8-C4","v":128},{"$f":"VLOOKUP($C$3,'Data Billing Quantities'!$A:$O,MATCH(BI_HCHI_AGSe_Typical!$A15,'Data Billing Quantities'!$4:$4,0),FALSE)*F15+VLOOKUP($C$3,'Data Billing Quantities'!$A:$O,MATCH(BI_HCHI_AGSe_Typical!$A16,'Data Billing Quantities'!$4:$4,0),FALSE)*F16+VLOOKUP($C$3,'Data Billing Quantities'!$A:$O,MATCH(BI_HCHI_AGSe_Typical!$A17,'Data Billing Quantities'!$4:$4,0),FALSE)*F17","v":0.10342000000000001},{"$f":"E27*F27","v":13.237760000000002},-0.31025999999999954,-2.2900763358778591E-2,4.1116482254751237E-2,4.2597071108930983E-2]
["Sub-Total:  Distribution (based on two-tier RPP prices)",null,null,{"$f":"SUM(D24,D25:D26)","v":83.924999999999997},null,null,{"$f":"SUM(G24,G25:G26)","v":86.339999999999989},2.414999999999992,2.8775692582663E-2,0.26817203800909073,0.27782881088228673]
["Sub-Total:  Distribution (based on TOU prices)",null,null,{"$f":"SUM(D24,D25,D27)","v":82.408019999999993},null,null,{"$f":"SUM(G24,G25,G27)","v":84.857759999999985},2.4497399999999914,2.9726961040927709E-2,0.26356820060326963,0.27305919104626447]
["Retail Transmission Rate – Network Service Rate",{"$f":"IF($B$9=\"kWh\",$B$8,$B$5)","v":2131},{"$f":"VLOOKUP($B$3,'Data Current Rates'!$A:$AP,MATCH(BI_HCHI_AGSe_Typical!$A30,CurrentHeader,0),FALSE)","v":7.1999999999999998E-3},{"$f":"B30*C30","v":15.3432},{"$f":"IF($C$9=\"kWh\",$C$8,$C$5)","v":2128},{"$f":"VLOOKUP($C$3,'Data Proposed Rates'!$A:$AZ,MATCH(BI_HCHI_AGSe_Typical!$A30,ProposedHeader,0),FALSE)","v":8.0000000000000002E-3},{"$f":"E30*F30","v":17.024000000000001},{"$f":"G30-D30","v":1.6808000000000014},0.10954690025548787,5.2876543607444537E-2,5.478060778851112E-2]
["Retail Transmission Rate – Line and Transformation Connection Service Rate",{"$f":"IF($B$9=\"kWh\",$B$8,$B$5)","v":2131},{"$f":"VLOOKUP($B$3,'Data Current Rates'!$A:$AP,MATCH(BI_HCHI_AGSe_Typical!$A31,CurrentHeader,0),FALSE)","v":5.7000000000000002E-3},{"$f":"B31*C31","v":12.146700000000001},{"$f":"IF($C$9=\"kWh\",$C$8,$C$5)","v":2128},{"$f":"VLOOKUP($C$3,'Data Proposed Rates'!$A:$AZ,MATCH(BI_HCHI_AGSe_Typical!$A31,ProposedHeader,0),FALSE)","v":6.1000000000000004E-3},{"$f":"E31*F31","v":12.9808},{"$f":"G31-D31","v":0.8340999999999994},6.8668856561864486E-2,4.0318364500676461E-2,4.1770213438739726E-2]
["Sub-Total:  Retail Transmission ",null,null,{"$f":"SUM(D30:D31)","v":27.489899999999999},null,null,{"$f":"SUM(G30:G31)","v":30.004800000000003},{"$f":"G32-D32","v":2.5149000000000044},9.1484508855980001E-2,9.3194908108121005E-2,9.6550821227250852E-2]
["Sub-Total:  Delivery (based on two-tier RPP prices)",null,null,{"$f":"D28+D32","v":111.41489999999999},null,null,{"$f":"G28+G32","v":116.34479999999999},{"$f":"G33-D33","v":4.9299000000000035},4.4248121211794868E-2,0.36136694611721176,0.37437963210953756]
["Sub-Total:  Delivery (based on TOU prices)",null,null,{"$f":"D29+D32","v":109.89792},null,null,{"$f":"G29+G32","v":114.86255999999999},{"$f":"G34-D34","v":4.9646399999999886},4.5175013321453114E-2,0.35676310871139061,0.36961001227351531]
["Wholesale Market Service Rate (WMS) - not including CBR",{"$f":"B8","v":2131},{"$f":"VLOOKUP($A35,'Data Pass Through'!$A:$D,2,FALSE)","v":3.0000000000000001E-3},{"$f":"B35*C35","v":6.3929999999999998},{"$f":"$C$8","v":2128},{"$f":"VLOOKUP($A35,'Data Pass Through'!$A:$D,3,FALSE)","v":3.0000000000000001E-3},{"$f":"E35*F35","v":6.3840000000000003},-8.9999999999994529E-3,-1.4077897700609187E-3,1.9828703852791701E-2,2.0542727920691669E-2]
["Capacity Based Recovery (CBR) - Applicable for Class B Customers",{"$f":"B8","v":2131},{"$f":"VLOOKUP($A36,'Data Pass Through'!$A:$D,2,FALSE)","v":4.0000000000000002E-4},{"$f":"B36*C36","v":0.85240000000000005},{"$f":"$C$8","v":2128},{"$f":"VLOOKUP($A36,'Data Pass Through'!$A:$D,3,FALSE)","v":4.0000000000000002E-4},{"$f":"E36*F36","v":0.85120000000000007},-1.1999999999999789E-3,-1.4077897700609794E-3,2.6438271803722268E-3,2.739030389425556E-3]
["Rural Rate Protection Charge",{"$f":"B8","v":2131},{"$f":"VLOOKUP($A37,'Data Pass Through'!$A:$D,2,FALSE)","v":5.0000000000000001E-4},1.0655000000000001,2128,{"$f":"VLOOKUP($A37,'Data Pass Through'!$A:$D,3,FALSE)","v":5.0000000000000001E-4},1.0640000000000001,-1.5000000000000568E-3,-1.4077897700610575E-3,3.3047839754652836E-3,3.423787986781945E-3]
["Standard Supply Service – Administration Charge (if applicable)",1,{"$f":"VLOOKUP($A38,'Data Pass Through'!$A:$D,2,FALSE)","v":0.25},{"$f":"B38*C38","v":0.25},1,{"$f":"VLOOKUP($A38,'Data Pass Through'!$A:$D,3,FALSE)","v":0.25},0.25,0,0,7.7649999423526394E-4,8.0446146305966745E-4]
["Sub-Total:  Regulatory",null,null,{"$f":"SUM(D35:D38)","v":8.5609000000000002},null,null,{"$f":"SUM(G35:G38)","v":8.5492000000000008},-1.1699999999999378E-2,-1.3666787370486021E-3,2.6553815002864477E-2,2.7510007759958838E-2]
["Total  Electricty Charge on Two-Tier RPP ",null,null,{"$f":"SUM(D14,D24,D25,D26,D32,D39)","v":337.22579999999999},null,null,{"$f":"SUM(G14,G24,G25,G26,G32,G39)","v":342.14400000000001},4.918200000000013,1.4584293372571177E-2,1.0626992561105206]
["     HST",null,0.13,{"$f":"D40*C41","v":43.839354},null,{"$f":"C41","v":0.13},{"$f":"G40*F41","v":44.478720000000003},0.63936600000000254,1.4584293372571196E-2,0.13815090329436769]
["Total Electricity Charge on Two-Tier RPP (including HST)",null,null,{"$f":"SUM(D40:D41)","v":381.06515400000001},null,null,{"$f":"SUM(G40:G41)","v":386.62272000000002},5.5575660000000084,1.458429337257116E-2,1.2008501594048884]
["Ontario Electricity Rebate (OER)",null,{"$f":"IF(($B$4*12)<250000,VLOOKUP(A43,'Data Pass Through'!$A$4:$C$20,2,0),0)","v":-0.189},{"$f":"D40*C43","v":-63.7356762},null,{"$f":"C43","v":-0.189},{"$f":"G40*F43","v":-64.665216000000001},-0.92953980000000058,-1.4584293372571147E-2,-0.2008501594048884]
["Total Amount on Two-Tier RPP",null,null,{"$f":"SUM(D42:D43)","v":317.32947780000001},null,null,{"$f":"SUM(G42:G43)","v":321.95750400000003},4.6280262000000221,1.4584293372571206E-2,1]
["Total Electricty Charge on TOU (before HST)",null,null,{"$f":"SUM(D18,D24,D25,D27,D32,D39)","v":325.29882000000003},null,null,{"$f":"SUM(G18,G24,G25,G27,G32,G39)","v":330.25175999999999},4.9529399999999555,1.5225816066593647E-2,null,{"$f":"G45/$G$49","v":1.0626992561105206}]
["     HST",null,0.13,{"$f":"D45*C46","v":42.288846600000007},null,{"$f":"C46","v":0.13},{"$f":"G45*F46","v":42.9327288},0.64388219999999308,1.5225816066593619E-2,null,{"$f":"G46/$G$49","v":0.13815090329436769}]
["Total Electricity Charge on TOU (including HST)",null,null,{"$f":"SUM(D45:D46)","v":367.58766660000003},null,null,{"$f":"SUM(G45:G46)","v":373.1844888},5.5968221999999628,1.5225816066593683E-2,null,{"$f":"G47/$G$49","v":1.2008501594048884}]
["Ontario Electricity Rebate (OER)",null,{"$f":"IF(($B$4*12)<250000,VLOOKUP(A48,'Data Pass Through'!$A$4:$C$20,2,0),0)","v":-0.189},{"$f":"D45*C48","v":-61.481476980000004},null,{"$f":"C48","v":-0.189},{"$f":"G45*F48","v":-62.417582639999999},-0.93610565999999551,-1.5225816066593713E-2,null,{"$f":"G48/$G$49","v":-0.2008501594048884}]
["Total Amount on TOU",null,null,{"$f":"SUM(D47:D48)","v":306.10618962000001},null,null,{"$f":"SUM(G47:G48)","v":310.76690616000002},4.6607165400000099,1.5225816066593819E-2,null,{"$f":"G49/$G$49","v":1}]

{"sheet":"BI_HCHI_AGSe_Avg","index":98,"n_rows":49,"n_cols":11,"rows_kept":49,"cut":false,"hidden":false,"merged":[[0,0,0,10]]}
["2023 Bill Impacts (Average Consumption Level) - AGSe_HCHI"]
[]
["Rate Class",{"$f":"VLOOKUP(A1,'Data BI List Acq_Seas'!C:E,2,FALSE)","v":"HCHI_GS<50"},{"$f":"VLOOKUP(A1,'Data BI List Acq_Seas'!C:E,3,FALSE)","v":"AGSe-HCHI"}]
["Monthly Consumption (kWh)",{"$f":"IF(COUNTIF(A1,\"*Low*\")>0,VLOOKUP(B3,'Data Billing Quantities'!$A:$Z,MATCH(\"Low kWh\",'Data Billing Quantities'!4:4,0),FALSE),IF(COUNTIF(A1,\"*Typical*\")>0,VLOOKUP(B3,'Data Billing Quantities'!$A:$Z,MATCH(\"Typical kWh\",'Data Billing Quantities'!4:4,0),FALSE),IF(COUNTIF(A1,\"*Average*\")>0,VLOOKUP(B3,'Data Billing Quantities'!$A:$Z,MATCH(\"Average kWh\",'Data Billing Quantities'!4:4,0),FALSE),IF(COUNTIF(A1,\"*High*\")>0,VLOOKUP(B3,'Data Billing Quantities'!$A:$Z,MATCH(\"High kWh\",'Data Billing Quantities'!4:4,0),FALSE),\"error\"))))","v":2261},{"$f":"B4","v":2261}]
["Peak (kW)",{"$f":"IF(COUNTIF(A1,\"*Low*\")>0,VLOOKUP(B3,'Data Billing Quantities'!$A:$Z,MATCH(\"Low kW\",'Data Billing Quantities'!4:4,0),FALSE),IF(COUNTIF(A1,\"*Typical*\")>0,VLOOKUP(B3,'Data Billing Quantities'!$A:$Z,MATCH(\"Typical kW\",'Data Billing Quantities'!4:4,0),FALSE),IF(COUNTIF(A1,\"*Average*\")>0,VLOOKUP(B3,'Data Billing Quantities'!$A:$Z,MATCH(\"Average kW\",'Data Billing Quantities'!4:4,0),FALSE),IF(COUNTIF(A1,\"*High*\")>0,VLOOKUP(B3,'Data Billing Quantities'!$A:$Z,MATCH(\"High kW\",'Data Billing Quantities'!4:4,0),FALSE),\"error\"))))","v":0},{"$f":"B5","v":0}]
["Loss factor",{"$f":"VLOOKUP(B3,'Data Billing Quantities'!A:D,MATCH(A6,'Data Billing Quantities'!4:4,0),FALSE)","v":1.0654999999999999},{"$f":"VLOOKUP(C3,'Data Billing Quantities'!A:D,MATCH(A6,'Data Billing Quantities'!4:4,0),FALSE)","v":1.0640000000000001}]
["Commodity Threshold",{"$f":"VLOOKUP(B3,'Data Billing Quantities'!A:D,MATCH(A7,'Data Billing Quantities'!4:4,0),FALSE)","v":750},{"$f":"B7","v":750}]
["Monthly Consumption (kWh) - Uplifted",{"$f":"B4*B6","v":2409.0954999999999},{"$f":"C4*C6","v":2405.7040000000002}]
["Charge determinant",{"$f":"VLOOKUP(B3,'Data Billing Quantities'!A:D,MATCH(A9,'Data Billing Quantities'!4:4,0),FALSE)","v":"kWh"},{"$f":"VLOOKUP(C3,'Data Billing Quantities'!A:D,MATCH(A9,'Data Billing Quantities'!4:4,0),FALSE)","v":"kWh"}]
[]
[null,"Volume","Current Rate ($)","Current Charge ($)","Volume","Proposed Rate ($)","Proposed Charge ($)","Change ($)","Change (%)","% of Total Bill on RPP","% of Total Bill "]
["Energy First Tier",{"$f":"IF(B4>B7,B7,B4)","v":750},{"$f":"VLOOKUP($A12,'Data Pass Through'!$A:$D,2,FALSE)","v":9.8000000000000004E-2},{"$f":"B12*C12","v":73.5},{"$f":"B12","v":750},{"$f":"VLOOKUP($A12,'Data Pass Through'!$A:$D,3,FALSE)","v":9.8000000000000004E-2},{"$f":"E12*F12","v":73.5},{"$f":"G12-D12","v":0},{"$f":"IF(ISERROR(H12/ABS(D12)),\"N/A\",(H12/ABS(D12)))","v":0},{"$f":"G12/$G$44","v":0.20370576572894386}]
["Energy Second Tier",{"$f":"IF(B4>B7,(B4)-B7,0)","v":1511},{"$f":"VLOOKUP($A13,'Data Pass Through'!$A:$D,2,FALSE)","v":0.115},{"$f":"B13*C13","v":173.76500000000001},{"$f":"B13","v":1511},{"$f":"VLOOKUP($A13,'Data Pass Through'!$A:$D,3,FALSE)","v":0.115},{"$f":"E13*F13","v":173.76500000000001},0,0,{"$f":"G13/$G$44","v":0.48159091676040727}]
["Sub-Total:  Energy (RPP Tiered)",null,null,{"$f":"SUM(D12:D13)","v":247.26500000000001},null,null,{"$f":"SUM(G12:G13)","v":247.26500000000001},0,0,{"$f":"G14/$G$44","v":0.68529668248935116}]
["TOU-Off Peak",{"$f":"B$4*VLOOKUP($B$3,'Data Billing Quantities'!$A:$O,MATCH(BI_HCHI_AGSe_Avg!$A15,'Data Billing Quantities'!$4:$4,0),FALSE)","v":1447.04},{"$f":"VLOOKUP($A15,'Data Pass Through'!$A:$D,2,FALSE)","v":8.2000000000000003E-2},{"$f":"B15*C15","v":118.65728},1447.04,{"$f":"VLOOKUP($A15,'Data Pass Through'!$A:$D,3,FALSE)","v":8.2000000000000003E-2},{"$f":"E15*F15","v":118.65728},0,0,null,{"$f":"G15/$G$49","v":0.34234857271637303}]
["TOU-Mid Peak",{"$f":"B$4*VLOOKUP($B$3,'Data Billing Quantities'!$A:$O,MATCH(BI_HCHI_AGSe_Avg!$A16,'Data Billing Quantities'!$4:$4,0),FALSE)","v":406.97999999999996},{"$f":"VLOOKUP($A16,'Data Pass Through'!$A:$D,2,FALSE)","v":0.113},{"$f":"B16*C16","v":45.98874},406.97999999999996,{"$f":"VLOOKUP($A16,'Data Pass Through'!$A:$D,3,FALSE)","v":0.113},{"$f":"E16*F16","v":45.98874},0,0,null,0.13268616556880769]
["TOU-On Peak",{"$f":"B$4*VLOOKUP($B$3,'Data Billing Quantities'!$A:$O,MATCH(BI_HCHI_AGSe_Avg!$A17,'Data Billing Quantities'!$4:$4,0),FALSE)","v":406.97999999999996},{"$f":"VLOOKUP($A17,'Data Pass Through'!$A:$D,2,FALSE)","v":0.17},{"$f":"B17*C17","v":69.186599999999999},406.97999999999996,{"$f":"VLOOKUP($A17,'Data Pass Through'!$A:$D,3,FALSE)","v":0.17},{"$f":"E17*F17","v":69.186599999999999},0,0,null,0.19961635528050714]
["Sub-Total:  Energy (RPP TOU)",null,null,{"$f":"SUM(D15:D17)","v":233.83261999999999},null,null,{"$f":"SUM(G15:G17)","v":233.83261999999999},0,0,{"$f":"G18/$G$44","v":0.64806874706809725},0.67465109356568786]
["Service Charge",1,{"$f":"VLOOKUP($B$3,'Data Current Rates'!$A:$AP,MATCH(BI_HCHI_AGSe_Avg!$A19,CurrentHeader,0),FALSE)","v":27.89},{"$f":"B19*C19","v":27.89},1,{"$f":"VLOOKUP($C$3,'Data Proposed Rates'!$A:$AZ,MATCH(BI_HCHI_AGSe_Avg!$A19,ProposedHeader,0),FALSE)","v":37.65},{"$f":"E19*F19","v":37.65},9.759999999999998,0.34994621728217989,0.10434723917952023,0.10862733211794037]
["Distribution Volumetric Charge",{"$f":"IF($B$9=\"kWh\",$B$4,$B$5)","v":2261},{"$f":"VLOOKUP($B$3,'Data Current Rates'!$A:$AP,MATCH(BI_HCHI_AGSe_Avg!$A20,CurrentHeader,0),FALSE)","v":1.9599999999999999E-2},{"$f":"B20*C20","v":44.315599999999996},{"$f":"IF($C$9=\"kWh\",$C$4,$C$5)","v":2261},{"$f":"VLOOKUP($C$3,'Data Proposed Rates'!$A:$AZ,MATCH(BI_HCHI_AGSe_Avg!$A20,ProposedHeader,0),FALSE)","v":1.7100000000000001E-2},38.6631,-5.6524999999999963,-0.12755102040816318,0.10715505293815958,0.11155031618616576]
["Low Voltage Service Rate",{"$f":"IF($B$9=\"kWh\",$B$4,$B$5)","v":2261},{"$f":"VLOOKUP($B$3,'Data Current Rates'!$A:$AP,MATCH(BI_HCHI_AGSe_Avg!$A21,CurrentHeader,0),FALSE)","v":4.0000000000000002E-4},0.90440000000000009,null,null,null,-0.90440000000000009,-1,0,0]
["Funding Adder for Renewable Energy Generation",2261,{"$f":"VLOOKUP($B$3,'Data Current Rates'!$A:$AP,MATCH(BI_HCHI_AGSe_Avg!$A22,CurrentHeader,0),FALSE)","v":2.0000000000000001E-4},0.45220000000000005,null,null,null,-0.45220000000000005,-1,0,0]
["Group 1 Volumetric DVA Rider (General)",null,null,null,{"$f":"IF($C$9=\"kWh\",$C$4,$C$5)","v":2261},{"$f":"VLOOKUP($C$3,'Data Proposed Rates'!$A:$AZ,MATCH(BI_HCHI_AGSe_Avg!$A23,ProposedHeader,0),FALSE)","v":-4.0000000000000002E-4},-0.90440000000000009,-0.90440000000000009,"N/A",-2.5065509459218619E-3,-2.6093641213138191E-3]
["Sub-Total:  Distribution (excluding pass through)",null,null,{"$f":"SUM(INDIRECT(\"D19:D\"&ROW()-1))","v":73.562200000000004},null,null,{"$f":"SUM(INDIRECT(\"g19:g\"&ROW()-1))","v":75.408699999999996},{"$f":"G24-D24","v":1.8464999999999918},2.5101206869832492E-2,0.20899574117175793,0.21756828418279231]
["Smart Metering Entity Charge",{"$f":"B19","v":1},{"$f":"VLOOKUP($A25,'Data Pass Through'!$A:$D,2,FALSE)","v":0.56999999999999995},{"$f":"B25*C25","v":0.56999999999999995},{"$f":"E19","v":1},{"$f":"VLOOKUP($A25,'Data Pass Through'!$A:$D,3,FALSE)","v":0.56999999999999995},{"$f":"E25*F25","v":0.56999999999999995},0,0,1.5797589995305849E-3,1.644557219315432E-3]
["Line Losses on Cost of Power (based on two-tier RPP prices)",{"$f":"B8-B4","v":148.0954999999999},{"$f":"IF(B4>B7,C13,C12)","v":0.115},{"$f":"B26*C26","v":17.03098249999999},{"$f":"C8-C4","v":144.70400000000018},{"$f":"IF(C4>C7,F13,F12)","v":0.115},{"$f":"E26*F26","v":16.640960000000021},-0.39002249999996863,-2.2900763358776798E-2,4.612053740496231E-2,4.8012299832174324E-2]
["Line Losses on Cost of Power (based on TOU prices)",{"$f":"B8-B4","v":148.0954999999999},{"$f":"VLOOKUP($B$3,'Data Billing Quantities'!$A:$O,MATCH(BI_HCHI_AGSe_Avg!$A15,'Data Billing Quantities'!$4:$4,0),FALSE)*C15+VLOOKUP($B$3,'Data Billing Quantities'!$A:$O,MATCH(BI_HCHI_AGSe_Avg!$A16,'Data Billing Quantities'!$4:$4,0),FALSE)*C16+VLOOKUP($B$3,'Data Billing Quantities'!$A:$O,MATCH(BI_HCHI_AGSe_Avg!$A17,'Data Billing Quantities'!$4:$4,0),FALSE)*C17","v":0.10342000000000001},{"$f":"B27*C27","v":15.316036609999992},{"$f":"C8-C4","v":144.70400000000018},{"$f":"VLOOKUP($C$3,'Data Billing Quantities'!$A:$O,MATCH(BI_HCHI_AGSe_Avg!$A15,'Data Billing Quantities'!$4:$4,0),FALSE)*F15+VLOOKUP($C$3,'Data Billing Quantities'!$A:$O,MATCH(BI_HCHI_AGSe_Avg!$A16,'Data Billing Quantities'!$4:$4,0),FALSE)*F16+VLOOKUP($C$3,'Data Billing Quantities'!$A:$O,MATCH(BI_HCHI_AGSe_Avg!$A17,'Data Billing Quantities'!$4:$4,0),FALSE)*F17","v":0.10342000000000001},{"$f":"E27*F27","v":14.965287680000021},-0.35074892999997154,-2.290076335877678E-2,4.1476399812358289E-2,4.3177669988204083E-2]
["Sub-Total:  Distribution (based on two-tier RPP prices)",null,null,{"$f":"SUM(D24,D25:D26)","v":91.163182499999991},null,null,{"$f":"SUM(G24,G25:G26)","v":92.61966000000001},1.4564775000000196,1.5976597789354487E-2,0.25669603757625081,0.26722514123428204]
["Sub-Total:  Distribution (based on TOU prices)",null,null,{"$f":"SUM(D24,D25,D27)","v":89.448236609999995},null,null,{"$f":"SUM(G24,G25,G27)","v":90.943987680000006},1.4957510700000114,1.6721973810636215E-2,0.2520518999836468,0.26239051139031178]
["Retail Transmission Rate – Network Service Rate",{"$f":"IF($B$9=\"kWh\",$B$8,$B$5)","v":2409.0954999999999},{"$f":"VLOOKUP($B$3,'Data Current Rates'!$A:$AP,MATCH(BI_HCHI_AGSe_Avg!$A30,CurrentHeader,0),FALSE)","v":7.1999999999999998E-3},{"$f":"B30*C30","v":17.345487599999998},{"$f":"IF($C$9=\"kWh\",$C$8,$C$5)","v":2405.7040000000002},{"$f":"VLOOKUP($C$3,'Data Proposed Rates'!$A:$AZ,MATCH(BI_HCHI_AGSe_Avg!$A30,ProposedHeader,0),FALSE)","v":8.0000000000000002E-3},{"$f":"E30*F30","v":19.245632000000001},{"$f":"G30-D30","v":1.9001444000000021},0.1095469002554879,5.333940412921722E-2,5.5527268501558064E-2]
["Retail Transmission Rate – Line and Transformation Connection Service Rate",{"$f":"IF($B$9=\"kWh\",$B$8,$B$5)","v":2409.0954999999999},{"$f":"VLOOKUP($B$3,'Data Current Rates'!$A:$AP,MATCH(BI_HCHI_AGSe_Avg!$A31,CurrentHeader,0),FALSE)","v":5.7000000000000002E-3},{"$f":"B31*C31","v":13.731844349999999},{"$f":"IF($C$9=\"kWh\",$C$8,$C$5)","v":2405.7040000000002},{"$f":"VLOOKUP($C$3,'Data Proposed Rates'!$A:$AZ,MATCH(BI_HCHI_AGSe_Avg!$A31,ProposedHeader,0),FALSE)","v":6.1000000000000004E-3},{"$f":"E31*F31","v":14.674794400000001},{"$f":"G31-D31","v":0.94295005000000209},6.8668856561864694E-2,4.067129564852813E-2,4.2339542232438028E-2]
["Sub-Total:  Retail Transmission ",null,null,{"$f":"SUM(D30:D31)","v":31.077331949999998},null,null,{"$f":"SUM(G30:G31)","v":33.920426400000004},{"$f":"G32-D32","v":2.8430944500000059},9.1484508855980029E-2,9.4010699777745357E-2,9.7866810733996099E-2]
["Sub-Total:  Delivery (based on two-tier RPP prices)",null,null,{"$f":"D28+D32","v":122.24051444999999},null,null,{"$f":"G28+G32","v":126.54008640000001},{"$f":"G33-D33","v":4.2995719500000149},3.5173051826108505E-2,0.35070673735399616,0.36509195196827809]
["Sub-Total:  Delivery (based on TOU prices)",null,null,{"$f":"D29+D32","v":120.52556856},null,null,{"$f":"G29+G32","v":124.86441408000002},{"$f":"G34-D34","v":4.3388455200000209},3.5999378155516092E-2,0.34606259976139214,0.36025732212430789]
["Wholesale Market Service Rate (WMS) - not including CBR",{"$f":"B8","v":2409.0954999999999},{"$f":"VLOOKUP($A35,'Data Pass Through'!$A:$D,2,FALSE)","v":3.0000000000000001E-3},{"$f":"B35*C35","v":7.2272864999999999},{"$f":"$C$8","v":2405.7040000000002},{"$f":"VLOOKUP($A35,'Data Pass Through'!$A:$D,3,FALSE)","v":3.0000000000000001E-3},{"$f":"E35*F35","v":7.2171120000000011},-1.0174499999998865E-2,-1.4077897700608471E-3,2.000227654845646E-2,2.0822725688084277E-2]
["Capacity Based Recovery (CBR) - Applicable for Class B Customers",{"$f":"B8","v":2409.0954999999999},{"$f":"VLOOKUP($A36,'Data Pass Through'!$A:$D,2,FALSE)","v":4.0000000000000002E-4},{"$f":"B36*C36","v":0.9636382},{"$f":"$C$8","v":2405.7040000000002},{"$f":"VLOOKUP($A36,'Data Pass Through'!$A:$D,3,FALSE)","v":4.0000000000000002E-4},{"$f":"E36*F36","v":0.96228160000000007},-1.3565999999999301E-3,-1.4077897700609317E-3,2.6669702064608608E-3,2.7763634250779034E-3]
["Rural Rate Protection Charge",{"$f":"B8","v":2409.0954999999999},{"$f":"VLOOKUP($A37,'Data Pass Through'!$A:$D,2,FALSE)","v":5.0000000000000001E-4},1.2045477499999999,2405.7040000000002,{"$f":"VLOOKUP($A37,'Data Pass Through'!$A:$D,3,FALSE)","v":5.0000000000000001E-4},1.202852,-1.6957499999998848E-3,-1.4077897700609087E-3,3.3337127580760763E-3,3.470454281347379E-3]
["Standard Supply Service – Administration Charge (if applicable)",1,{"$f":"VLOOKUP($A38,'Data Pass Through'!$A:$D,2,FALSE)","v":0.25},{"$f":"B38*C38","v":0.25},1,{"$f":"VLOOKUP($A38,'Data Pass Through'!$A:$D,3,FALSE)","v":0.25},0.25,0,0,6.9287675418008116E-4,7.2129702601554039E-4]
["Sub-Total:  Regulatory",null,null,{"$f":"SUM(D35:D38)","v":9.6454724499999998},null,null,{"$f":"SUM(G35:G38)","v":9.632245600000001},-1.3226849999998791E-2,-1.3713014130270821E-3,2.6695836267173475E-2,2.7790840420525098E-2]
["Total  Electricty Charge on Two-Tier RPP ",null,null,{"$f":"SUM(D14,D24,D25,D26,D32,D39)","v":379.15098689999996},null,null,{"$f":"SUM(G14,G24,G25,G26,G32,G39)","v":383.43733199999997},4.2863451000000055,1.1305113920567263E-2,1.0626992561105206]
["     HST",null,0.13,{"$f":"D40*C41","v":49.289628297},null,{"$f":"C41","v":0.13},{"$f":"G40*F41","v":49.846853159999995},0.55722486299999474,1.130511392056714E-2,0.13815090329436769]
["Total Electricity Charge on Two-Tier RPP (including HST)",null,null,{"$f":"SUM(D40:D41)","v":428.44061519699994},null,null,{"$f":"SUM(G40:G41)","v":433.28418515999999},4.8435699630000499,1.1305113920567366E-2,1.2008501594048884]
["Ontario Electricity Rebate (OER)",null,{"$f":"IF(($B$4*12)<250000,VLOOKUP(A43,'Data Pass Through'!$A$4:$C$20,2,0),0)","v":-0.189},{"$f":"D40*C43","v":-71.659536524099991},null,{"$f":"C43","v":-0.189},{"$f":"G40*F43","v":-72.469655747999994},-0.81011922390000279,-1.1305113920567288E-2,-0.2008501594048884]
["Total Amount on Two-Tier RPP",null,null,{"$f":"SUM(D42:D43)","v":356.78107867289998},null,null,{"$f":"SUM(G42:G43)","v":360.81452941200001},4.0334507391000329,1.130511392056734E-2,1]
["Total Electricty Charge on TOU (before HST)",null,null,{"$f":"SUM(D18,D24,D25,D27,D32,D39)","v":364.00366100999992},null,null,{"$f":"SUM(G18,G24,G25,G27,G32,G39)","v":368.32927967999996},4.3256186700000399,1.1883448254332822E-2,null,{"$f":"G45/$G$49","v":1.0626992561105206}]
["     HST",null,0.13,{"$f":"D45*C46","v":47.320475931299988},null,{"$f":"C46","v":0.13},{"$f":"G45*F46","v":47.882806358399996},0.56233042710000802,1.1883448254332882E-2,null,{"$f":"G46/$G$49","v":0.13815090329436769}]
["Total Electricity Charge on TOU (including HST)",null,null,{"$f":"SUM(D45:D46)","v":411.32413694129991},null,null,{"$f":"SUM(G45:G46)","v":416.21208603839995},4.8879490971000337,1.1883448254332794E-2,null,{"$f":"G47/$G$49","v":1.2008501594048884}]
["Ontario Electricity Rebate (OER)",null,{"$f":"IF(($B$4*12)<250000,VLOOKUP(A48,'Data Pass Through'!$A$4:$C$20,2,0),0)","v":-0.189},{"$f":"D45*C48","v":-68.796691930889992},null,{"$f":"C48","v":-0.189},{"$f":"G45*F48","v":-69.614233859519999},-0.81754192863000696,-1.1883448254332813E-2,null,{"$f":"G48/$G$49","v":-0.20085015940488843}]
["Total Amount on TOU",null,null,{"$f":"SUM(D47:D48)","v":342.52744501040991},null,null,{"$f":"SUM(G47:G48)","v":346.59785217887998},4.0704071684700693,1.1883448254332915E-2,null,{"$f":"G49/$G$49","v":1}]

{"sheet":"BI_HCHI_AGSe_High","index":99,"n_rows":49,"n_cols":11,"rows_kept":49,"cut":false,"hidden":false,"merged":[[0,0,0,10]]}
["2023 Bill Impacts (High Consumption Level) - AGSe_HCHI"]
[]
["Rate Class",{"$f":"VLOOKUP(A1,'Data BI List Acq_Seas'!C:E,2,FALSE)","v":"HCHI_GS<50"},{"$f":"VLOOKUP(A1,'Data BI List Acq_Seas'!C:E,3,FALSE)","v":"AGSe-HCHI"}]
["Monthly Consumption (kWh)",{"$f":"IF(COUNTIF(A1,\"*Low*\")>0,VLOOKUP(B3,'Data Billing Quantities'!$A:$Z,MATCH(\"Low kWh\",'Data Billing Quantities'!4:4,0),FALSE),IF(COUNTIF(A1,\"*Typical*\")>0,VLOOKUP(B3,'Data Billing Quantities'!$A:$Z,MATCH(\"Typical kWh\",'Data Billing Quantities'!4:4,0),FALSE),IF(COUNTIF(A1,\"*Average*\")>0,VLOOKUP(B3,'Data Billing Quantities'!$A:$Z,MATCH(\"Average kWh\",'Data Billing Quantities'!4:4,0),FALSE),IF(COUNTIF(A1,\"*High*\")>0,VLOOKUP(B3,'Data Billing Quantities'!$A:$Z,MATCH(\"High kWh\",'Data Billing Quantities'!4:4,0),FALSE),\"error\"))))","v":5430},{"$f":"B4","v":5430}]
["Peak (kW)",{"$f":"IF(COUNTIF(A1,\"*Low*\")>0,VLOOKUP(B3,'Data Billing Quantities'!$A:$Z,MATCH(\"Low kW\",'Data Billing Quantities'!4:4,0),FALSE),IF(COUNTIF(A1,\"*Typical*\")>0,VLOOKUP(B3,'Data Billing Quantities'!$A:$Z,MATCH(\"Typical kW\",'Data Billing Quantities'!4:4,0),FALSE),IF(COUNTIF(A1,\"*Average*\")>0,VLOOKUP(B3,'Data Billing Quantities'!$A:$Z,MATCH(\"Average kW\",'Data Billing Quantities'!4:4,0),FALSE),IF(COUNTIF(A1,\"*High*\")>0,VLOOKUP(B3,'Data Billing Quantities'!$A:$Z,MATCH(\"High kW\",'Data Billing Quantities'!4:4,0),FALSE),\"error\"))))","v":0},{"$f":"B5","v":0}]
["Loss factor",{"$f":"VLOOKUP(B3,'Data Billing Quantities'!A:D,MATCH(A6,'Data Billing Quantities'!4:4,0),FALSE)","v":1.0654999999999999},{"$f":"VLOOKUP(C3,'Data Billing Quantities'!A:D,MATCH(A6,'Data Billing Quantities'!4:4,0),FALSE)","v":1.0640000000000001}]
["Commodity Threshold",{"$f":"VLOOKUP(B3,'Data Billing Quantities'!A:D,MATCH(A7,'Data Billing Quantities'!4:4,0),FALSE)","v":750},{"$f":"B7","v":750}]
["Monthly Consumption (kWh) - Uplifted",{"$f":"B4*B6","v":5785.6649999999991},{"$f":"C4*C6","v":5777.52}]
["Charge determinant",{"$f":"VLOOKUP(B3,'Data Billing Quantities'!A:D,MATCH(A9,'Data Billing Quantities'!4:4,0),FALSE)","v":"kWh"},{"$f":"VLOOKUP(C3,'Data Billing Quantities'!A:D,MATCH(A9,'Data Billing Quantities'!4:4,0),FALSE)","v":"kWh"}]
[]
[null,"Volume","Current Rate ($)","Current Charge ($)","Volume","Proposed Rate ($)","Proposed Charge ($)","Change ($)","Change (%)","% of Total Bill on RPP","% of Total Bill "]
["Energy First Tier",{"$f":"IF(B4>B7,B7,B4)","v":750},{"$f":"VLOOKUP($A12,'Data Pass Through'!$A:$D,2,FALSE)","v":9.8000000000000004E-2},{"$f":"B12*C12","v":73.5},{"$f":"B12","v":750},{"$f":"VLOOKUP($A12,'Data Pass Through'!$A:$D,3,FALSE)","v":9.8000000000000004E-2},{"$f":"E12*F12","v":73.5},{"$f":"G12-D12","v":0},{"$f":"IF(ISERROR(H12/ABS(D12)),\"N/A\",(H12/ABS(D12)))","v":0},{"$f":"G12/$G$44","v":8.8276910209996964E-2}]
["Energy Second Tier",{"$f":"IF(B4>B7,(B4)-B7,0)","v":4680},{"$f":"VLOOKUP($A13,'Data Pass Through'!$A:$D,2,FALSE)","v":0.115},{"$f":"B13*C13","v":538.20000000000005},{"$f":"B13","v":4680},{"$f":"VLOOKUP($A13,'Data Pass Through'!$A:$D,3,FALSE)","v":0.115},{"$f":"E13*F13","v":538.20000000000005},0,0,{"$f":"G13/$G$44","v":0.64640317108871248}]
["Sub-Total:  Energy (RPP Tiered)",null,null,{"$f":"SUM(D12:D13)","v":611.70000000000005},null,null,{"$f":"SUM(G12:G13)","v":611.70000000000005},0,0,{"$f":"G14/$G$44","v":0.73468008129870943}]
["TOU-Off Peak",{"$f":"B$4*VLOOKUP($B$3,'Data Billing Quantities'!$A:$O,MATCH(BI_HCHI_AGSe_High!$A15,'Data Billing Quantities'!$4:$4,0),FALSE)","v":3475.2000000000003},{"$f":"VLOOKUP($A15,'Data Pass Through'!$A:$D,2,FALSE)","v":8.2000000000000003E-2},{"$f":"B15*C15","v":284.96640000000002},3475.2000000000003,{"$f":"VLOOKUP($A15,'Data Pass Through'!$A:$D,3,FALSE)","v":8.2000000000000003E-2},{"$f":"E15*F15","v":284.96640000000002},0,0,null,{"$f":"G15/$G$49","v":0.36457094430764231}]
["TOU-Mid Peak",{"$f":"B$4*VLOOKUP($B$3,'Data Billing Quantities'!$A:$O,MATCH(BI_HCHI_AGSe_High!$A16,'Data Billing Quantities'!$4:$4,0),FALSE)","v":977.4},{"$f":"VLOOKUP($A16,'Data Pass Through'!$A:$D,2,FALSE)","v":0.113},{"$f":"B16*C16","v":110.4462},977.4,{"$f":"VLOOKUP($A16,'Data Pass Through'!$A:$D,3,FALSE)","v":0.113},{"$f":"E16*F16","v":110.4462},0,0,null,0.14129902833874705]
["TOU-On Peak",{"$f":"B$4*VLOOKUP($B$3,'Data Billing Quantities'!$A:$O,MATCH(BI_HCHI_AGSe_High!$A17,'Data Billing Quantities'!$4:$4,0),FALSE)","v":977.4},{"$f":"VLOOKUP($A17,'Data Pass Through'!$A:$D,2,FALSE)","v":0.17},{"$f":"B17*C17","v":166.15800000000002},977.4,{"$f":"VLOOKUP($A17,'Data Pass Through'!$A:$D,3,FALSE)","v":0.17},{"$f":"E17*F17","v":166.15800000000002},0,0,null,0.21257375944767254]
["Sub-Total:  Energy (RPP TOU)",null,null,{"$f":"SUM(D15:D17)","v":561.57060000000001},null,null,{"$f":"SUM(G15:G17)","v":561.57060000000001},0,0,{"$f":"G18/$G$44","v":0.67447234602413764},0.71844373209406187]
["Service Charge",1,{"$f":"VLOOKUP($B$3,'Data Current Rates'!$A:$AP,MATCH(BI_HCHI_AGSe_High!$A19,CurrentHeader,0),FALSE)","v":27.89},{"$f":"B19*C19","v":27.89},1,{"$f":"VLOOKUP($C$3,'Data Proposed Rates'!$A:$AZ,MATCH(BI_HCHI_AGSe_High!$A19,ProposedHeader,0),FALSE)","v":37.65},{"$f":"E19*F19","v":37.65},9.759999999999998,0.34994621728217989,4.5219396862671908E-2,4.8167419222696892E-2]
["Distribution Volumetric Charge",{"$f":"IF($B$9=\"kWh\",$B$4,$B$5)","v":5430},{"$f":"VLOOKUP($B$3,'Data Current Rates'!$A:$AP,MATCH(BI_HCHI_AGSe_High!$A20,CurrentHeader,0),FALSE)","v":1.9599999999999999E-2},{"$f":"B20*C20","v":106.428},{"$f":"IF($C$9=\"kWh\",$C$4,$C$5)","v":5430},{"$f":"VLOOKUP($C$3,'Data Proposed Rates'!$A:$AZ,MATCH(BI_HCHI_AGSe_High!$A20,ProposedHeader,0),FALSE)","v":1.7100000000000001E-2},92.853000000000009,-13.574999999999989,-0.12755102040816316,0.11152076113916801,0.11879121851487584]
["Low Voltage Service Rate",{"$f":"IF($B$9=\"kWh\",$B$4,$B$5)","v":5430},{"$f":"VLOOKUP($B$3,'Data Current Rates'!$A:$AP,MATCH(BI_HCHI_AGSe_High!$A21,CurrentHeader,0),FALSE)","v":4.0000000000000002E-4},2.1720000000000002,null,null,null,-2.1720000000000002,-1,0,0]
["Funding Adder for Renewable Energy Generation",5430,{"$f":"VLOOKUP($B$3,'Data Current Rates'!$A:$AP,MATCH(BI_HCHI_AGSe_High!$A22,CurrentHeader,0),FALSE)","v":2.0000000000000001E-4},1.0860000000000001,null,null,null,-1.0860000000000001,-1,0,0]
["Group 1 Volumetric DVA Rider (General)",null,null,null,{"$f":"IF($C$9=\"kWh\",$C$4,$C$5)","v":5430},{"$f":"VLOOKUP($C$3,'Data Proposed Rates'!$A:$AZ,MATCH(BI_HCHI_AGSe_High!$A23,ProposedHeader,0),FALSE)","v":-4.0000000000000002E-4},-2.1720000000000002,-2.1720000000000002,"N/A",-2.6086727751852166E-3,-2.7787419535643472E-3]
["Sub-Total:  Distribution (excluding pass through)",null,null,{"$f":"SUM(INDIRECT(\"D19:D\"&ROW()-1))","v":137.57599999999999},null,null,{"$f":"SUM(INDIRECT(\"g19:g\"&ROW()-1))","v":128.33100000000002},{"$f":"G24-D24","v":-9.2449999999999761},-6.7199220794324416E-2,0.15413148522665471,0.16417989578400841]
["Smart Metering Entity Charge",{"$f":"B19","v":1},{"$f":"VLOOKUP($A25,'Data Pass Through'!$A:$D,2,FALSE)","v":0.56999999999999995},{"$f":"B25*C25","v":0.56999999999999995},{"$f":"E19","v":1},{"$f":"VLOOKUP($A25,'Data Pass Through'!$A:$D,3,FALSE)","v":0.56999999999999995},{"$f":"E25*F25","v":0.56999999999999995},0,0,6.8459644652650695E-4,7.2922786074202468E-4]
["Line Losses on Cost of Power (based on two-tier RPP prices)",{"$f":"B8-B4","v":355.66499999999905},{"$f":"IF(B4>B7,C13,C12)","v":0.115},{"$f":"B26*C26","v":40.901474999999891},{"$f":"C8-C4","v":347.52000000000044},{"$f":"IF(C4>C7,F13,F12)","v":0.115},{"$f":"E26*F26","v":39.964800000000054},-0.93667499999983761,-2.2900763358774716E-2,4.7999579063408043E-2,5.1128851945584051E-2]
["Line Losses on Cost of Power (based on TOU prices)",{"$f":"B8-B4","v":355.66499999999905},{"$f":"VLOOKUP($B$3,'Data Billing Quantities'!$A:$O,MATCH(BI_HCHI_AGSe_High!$A15,'Data Billing Quantities'!$4:$4,0),FALSE)*C15+VLOOKUP($B$3,'Data Billing Quantities'!$A:$O,MATCH(BI_HCHI_AGSe_High!$A16,'Data Billing Quantities'!$4:$4,0),FALSE)*C16+VLOOKUP($B$3,'Data Billing Quantities'!$A:$O,MATCH(BI_HCHI_AGSe_High!$A17,'Data Billing Quantities'!$4:$4,0),FALSE)*C17","v":0.10342000000000001},{"$f":"B27*C27","v":36.782874299999904},{"$f":"C8-C4","v":347.52000000000044},{"$f":"VLOOKUP($C$3,'Data Billing Quantities'!$A:$O,MATCH(BI_HCHI_AGSe_High!$A15,'Data Billing Quantities'!$4:$4,0),FALSE)*F15+VLOOKUP($C$3,'Data Billing Quantities'!$A:$O,MATCH(BI_HCHI_AGSe_High!$A16,'Data Billing Quantities'!$4:$4,0),FALSE)*F16+VLOOKUP($C$3,'Data Billing Quantities'!$A:$O,MATCH(BI_HCHI_AGSe_High!$A17,'Data Billing Quantities'!$4:$4,0),FALSE)*F17","v":0.10342000000000001},{"$f":"E27*F27","v":35.940518400000052},-0.84235589999985194,-2.290076335877466E-2,4.3166230145544875E-2,4.5980398854020027E-2]
["Sub-Total:  Distribution (based on two-tier RPP prices)",null,null,{"$f":"SUM(D24,D25:D26)","v":179.04747499999988},null,null,{"$f":"SUM(G24,G25:G26)","v":168.86580000000006},-10.181674999999814,-5.6865783781646854E-2,0.20281566073658924,0.21603797559033447]
["Sub-Total:  Distribution (based on TOU prices)",null,null,{"$f":"SUM(D24,D25,D27)","v":174.9288742999999},null,null,{"$f":"SUM(G24,G25,G27)","v":164.84151840000007},-10.087355899999835,-5.7665470839880897E-2,0.19798231181872608,0.21088952249877044]
["Retail Transmission Rate – Network Service Rate",{"$f":"IF($B$9=\"kWh\",$B$8,$B$5)","v":5785.6649999999991},{"$f":"VLOOKUP($B$3,'Data Current Rates'!$A:$AP,MATCH(BI_HCHI_AGSe_High!$A30,CurrentHeader,0),FALSE)","v":7.1999999999999998E-3},{"$f":"B30*C30","v":41.656787999999992},{"$f":"IF($C$9=\"kWh\",$C$8,$C$5)","v":5777.52},{"$f":"VLOOKUP($C$3,'Data Proposed Rates'!$A:$AZ,MATCH(BI_HCHI_AGSe_High!$A30,ProposedHeader,0),FALSE)","v":8.0000000000000002E-3},{"$f":"E30*F30","v":46.220160000000007},{"$f":"G30-D30","v":4.5633720000000153},0.10954690025548816,5.551255665594141E-2,5.9131628771849312E-2]
["Retail Transmission Rate – Line and Transformation Connection Service Rate",{"$f":"IF($B$9=\"kWh\",$B$8,$B$5)","v":5785.6649999999991},{"$f":"VLOOKUP($B$3,'Data Current Rates'!$A:$AP,MATCH(BI_HCHI_AGSe_High!$A31,CurrentHeader,0),FALSE)","v":5.7000000000000002E-3},{"$f":"B31*C31","v":32.978290499999993},{"$f":"IF($C$9=\"kWh\",$C$8,$C$5)","v":5777.52},{"$f":"VLOOKUP($C$3,'Data Proposed Rates'!$A:$AZ,MATCH(BI_HCHI_AGSe_High!$A31,ProposedHeader,0),FALSE)","v":6.1000000000000004E-3},{"$f":"E31*F31","v":35.242872000000006},{"$f":"G31-D31","v":2.2645815000000127},6.8668856561864944E-2,4.2328324450155323E-2,4.5087866938535101E-2]
["Sub-Total:  Retail Transmission ",null,null,{"$f":"SUM(D30:D31)","v":74.635078499999992},null,null,{"$f":"SUM(G30:G31)","v":81.463032000000013},{"$f":"G32-D32","v":6.8279535000000209},9.1484508855980126E-2,9.7840881106096733E-2,0.10421949571038441]
["Sub-Total:  Delivery (based on two-tier RPP prices)",null,null,{"$f":"D28+D32","v":253.68255349999987},null,null,{"$f":"G28+G32","v":250.32883200000009},{"$f":"G33-D33","v":-3.3537214999997786},-1.3220150356140988E-2,0.30065654184268603,0.32025747130071891]
["Sub-Total:  Delivery (based on TOU prices)",null,null,{"$f":"D29+D32","v":249.5639527999999},null,null,{"$f":"G29+G32","v":246.3045504000001},{"$f":"G34-D34","v":-3.2594023999998001},-1.3060389384887966E-2,0.29582319292482284,0.31510901820915488]
["Wholesale Market Service Rate (WMS) - not including CBR",{"$f":"B8","v":5785.6649999999991},{"$f":"VLOOKUP($A35,'Data Pass Through'!$A:$D,2,FALSE)","v":3.0000000000000001E-3},{"$f":"B35*C35","v":17.356994999999998},{"$f":"$C$8","v":5777.52},{"$f":"VLOOKUP($A35,'Data Pass Through'!$A:$D,3,FALSE)","v":3.0000000000000001E-3},{"$f":"E35*F35","v":17.332560000000001},-2.4434999999996876E-2,-1.4077897700608244E-3,2.0817208745978026E-2,2.217436078944349E-2]
["Capacity Based Recovery (CBR) - Applicable for Class B Customers",{"$f":"B8","v":5785.6649999999991},{"$f":"VLOOKUP($A36,'Data Pass Through'!$A:$D,2,FALSE)","v":4.0000000000000002E-4},{"$f":"B36*C36","v":2.3142659999999999},{"$f":"$C$8","v":5777.52},{"$f":"VLOOKUP($A36,'Data Pass Through'!$A:$D,3,FALSE)","v":4.0000000000000002E-4},{"$f":"E36*F36","v":2.3110080000000002},-3.2579999999997611E-3,-1.4077897700609011E-3,2.7756278327970701E-3,2.9565814385924651E-3]
["Rural Rate Protection Charge",{"$f":"B8","v":5785.6649999999991},{"$f":"VLOOKUP($A37,'Data Pass Through'!$A:$D,2,FALSE)","v":5.0000000000000001E-4},2.8928324999999995,5777.52,{"$f":"VLOOKUP($A37,'Data Pass Through'!$A:$D,3,FALSE)","v":5.0000000000000001E-4},2.8887600000000004,-4.0724999999990352E-3,-1.407789770060671E-3,3.4695347909963381E-3,3.695726798240582E-3]
["Standard Supply Service – Administration Charge (if applicable)",1,{"$f":"VLOOKUP($A38,'Data Pass Through'!$A:$D,2,FALSE)","v":0.25},{"$f":"B38*C38","v":0.25},1,{"$f":"VLOOKUP($A38,'Data Pass Through'!$A:$D,3,FALSE)","v":0.25},0.25,0,0,3.0026159935373116E-4,3.1983678102720384E-4]
["Sub-Total:  Regulatory",null,null,{"$f":"SUM(D35:D38)","v":22.814093499999998},null,null,{"$f":"SUM(G35:G38)","v":22.782328000000003},-3.1765499999995228E-2,-1.3923630145548072E-3,2.7362632969125167E-2,2.9146505807303741E-2]
["Total  Electricty Charge on Two-Tier RPP ",null,null,{"$f":"SUM(D14,D24,D25,D26,D32,D39)","v":888.19664699999998},null,null,{"$f":"SUM(G14,G24,G25,G26,G32,G39)","v":884.8111600000002},-3.3854869999997845,-3.8116412749752077E-3,1.0626992561105206]
["     HST",null,0.13,{"$f":"D40*C41","v":115.46556411},null,{"$f":"C41","v":0.13},{"$f":"G40*F41","v":115.02545080000003},-0.44011330999997256,-3.8116412749752125E-3,0.13815090329436769]
["Total Electricity Charge on Two-Tier RPP (including HST)",null,null,{"$f":"SUM(D40:D41)","v":1003.66221111},null,null,{"$f":"SUM(G40:G41)","v":999.83661080000024},-3.8256003099997997,-3.8116412749752506E-3,1.2008501594048884]
["Ontario Electricity Rebate (OER)",null,{"$f":"IF(($B$4*12)<250000,VLOOKUP(A43,'Data Pass Through'!$A$4:$C$20,2,0),0)","v":-0.189},{"$f":"D40*C43","v":-167.869166283},null,{"$f":"C43","v":-0.189},{"$f":"G40*F43","v":-167.22930924000005},0.6398570429999495,3.8116412749751496E-3,-0.20085015940488843]
["Total Amount on Two-Tier RPP",null,null,{"$f":"SUM(D42:D43)","v":835.79304482700002},null,null,{"$f":"SUM(G42:G43)","v":832.60730156000022},-3.1857432669997934,-3.8116412749752029E-3,1]
["Total Electricty Charge on TOU (before HST)",null,null,{"$f":"SUM(D18,D24,D25,D27,D32,D39)","v":833.94864629999995},null,null,{"$f":"SUM(G18,G24,G25,G27,G32,G39)","v":830.65747840000017},-3.2911678999997775,-3.9464874900892056E-3,null,{"$f":"G45/$G$49","v":1.0626992561105206}]
["     HST",null,0.13,{"$f":"D45*C46","v":108.413324019},null,{"$f":"C46","v":0.13},{"$f":"G45*F46","v":107.98547219200003},-0.42785182699996938,-3.94648749008919E-3,null,{"$f":"G46/$G$49","v":0.13815090329436769}]
["Total Electricity Charge on TOU (including HST)",null,null,{"$f":"SUM(D45:D46)","v":942.36197031899997},null,null,{"$f":"SUM(G45:G46)","v":938.64295059200026},-3.7190197269997043,-3.9464874900891588E-3,null,{"$f":"G47/$G$49","v":1.2008501594048884}]
["Ontario Electricity Rebate (OER)",null,{"$f":"IF(($B$4*12)<250000,VLOOKUP(A48,'Data Pass Through'!$A$4:$C$20,2,0),0)","v":-0.189},{"$f":"D45*C48","v":-157.61629415069999},null,{"$f":"C48","v":-0.189},{"$f":"G45*F48","v":-156.99426341760002},0.62203073309996171,3.9464874900892299E-3,null,{"$f":"G48/$G$49","v":-0.20085015940488837}]
["Total Amount on TOU",null,null,{"$f":"SUM(D47:D48)","v":784.74567616829995},null,null,{"$f":"SUM(G47:G48)","v":781.64868717440027},-3.0969889938996857,-3.946487490089072E-3,null,{"$f":"G49/$G$49","v":1}]

{"sheet":"BI_NPDI_AGSd_Low","index":100,"n_rows":33,"n_cols":10,"rows_kept":33,"cut":false,"hidden":false,"merged":[[0,0,0,9]]}
["2023 Bill Impacts (Low Consumption Level) - AGSd_NPDI"]
[]
["Rate Class",{"$f":"VLOOKUP(A1,'Data BI List Acq_Seas'!C:E,2,FALSE)","v":"NPDI_GS >50"},{"$f":"VLOOKUP(A1,'Data BI List Acq_Seas'!C:E,3,FALSE)","v":"AGSd-NPDI"}]
["Monthly Consumption (kWh)",{"$f":"IF(COUNTIF(A1,\"*Low*\")>0,VLOOKUP(B3,'Data Billing Quantities'!$A:$Z,MATCH(\"Low kWh\",'Data Billing Quantities'!4:4,0),FALSE),IF(COUNTIF(A1,\"*Typical*\")>0,VLOOKUP(B3,'Data Billing Quantities'!$A:$Z,MATCH(\"Typical kWh\",'Data Billing Quantities'!4:4,0),FALSE),IF(COUNTIF(A1,\"*Average*\")>0,VLOOKUP(B3,'Data Billing Quantities'!$A:$Z,MATCH(\"Average kWh\",'Data Billing Quantities'!4:4,0),FALSE),IF(COUNTIF(A1,\"*High*\")>0,VLOOKUP(B3,'Data Billing Quantities'!$A:$Z,MATCH(\"High kWh\",'Data Billing Quantities'!4:4,0),FALSE),\"error\"))))","v":13020},{"$f":"B4","v":13020}]
["Peak (kW)",{"$f":"IF(COUNTIF(A1,\"*Low*\")>0,VLOOKUP(B3,'Data Billing Quantities'!$A:$Z,MATCH(\"Low kW\",'Data Billing Quantities'!4:4,0),FALSE),IF(COUNTIF(A1,\"*Typical*\")>0,VLOOKUP(B3,'Data Billing Quantities'!$A:$Z,MATCH(\"Typical kW\",'Data Billing Quantities'!4:4,0),FALSE),IF(COUNTIF(A1,\"*Average*\")>0,VLOOKUP(B3,'Data Billing Quantities'!$A:$Z,MATCH(\"Average kW\",'Data Billing Quantities'!4:4,0),FALSE),IF(COUNTIF(A1,\"*High*\")>0,VLOOKUP(B3,'Data Billing Quantities'!$A:$Z,MATCH(\"High kW\",'Data Billing Quantities'!4:4,0),FALSE),\"error\"))))","v":55},{"$f":"B5","v":55}]
["Loss factor",{"$f":"VLOOKUP(B3,'Data Billing Quantities'!A:D,MATCH(A6,'Data Billing Quantities'!4:4,0),FALSE)","v":1.0464},{"$f":"VLOOKUP(C3,'Data Billing Quantities'!A:D,MATCH(A6,'Data Billing Quantities'!4:4,0),FALSE)","v":1.0529999999999999}]
["Commodity Threshold",{"$f":"VLOOKUP(B3,'Data Billing Quantities'!A:D,MATCH(A7,'Data Billing Quantities'!4:4,0),FALSE)","v":0},{"$f":"B7","v":0}]
["Monthly Consumption (kWh) - Uplifted",{"$f":"B4*B6","v":13624.128000000001},{"$f":"C4*C6","v":13710.06}]
["Charge determinant",{"$f":"VLOOKUP(B3,'Data Billing Quantities'!A:D,MATCH(A9,'Data Billing Quantities'!4:4,0),FALSE)","v":"kW"},{"$f":"VLOOKUP(C3,'Data Billing Quantities'!A:D,MATCH(A9,'Data Billing Quantities'!4:4,0),FALSE)","v":"kW"}]
[]
[null,"Volume","Current Rate ($)","Current Charge ($)","Volume","Proposed Rate ($)","Proposed Charge ($)","Change ($)","Change (%)","% of Total Bill"]
["Weighted Average Hourly Spot Price",{"$f":"B8","v":13624.128000000001},{"$f":"VLOOKUP($A12,'Data Pass Through'!$A:$D,2,FALSE)","v":0.11899999999999999},{"$f":"B12*C12","v":1621.2712320000001},{"$f":"C8","v":13710.06},{"$f":"VLOOKUP($A12,'Data Pass Through'!$A:$D,3,FALSE)","v":0.11899999999999999},{"$f":"E12*F12","v":1631.4971399999999},{"$f":"G12-D12","v":10.22590799999989},{"$f":"IF(ISERROR(H12/ABS(D12)),\"N/A\",(H12/ABS(D12)))","v":6.3073394495412162E-3},{"$f":"G12/G$33","v":0.62549918209318645}]
["Sub-Total:  Energy (WASHP)",null,null,{"$f":"SUM(D12:D12)","v":1621.2712320000001},null,null,{"$f":"SUM(G12:G12)","v":1631.4971399999999},10.22590799999989,6.3073394495412162E-3,0.62549918209318645]
["Service Charge",1,{"$f":"VLOOKUP($B$3,'Data Current Rates'!$A:$AP,MATCH(BI_NPDI_AGSd_Low!$A14,CurrentHeader,0),FALSE)","v":258.16000000000003},{"$f":"B14*C14","v":258.16000000000003},1,{"$f":"VLOOKUP($C$3,'Data Proposed Rates'!$A:$AZ,MATCH(BI_NPDI_AGSd_Low!$A14,ProposedHeader,0),FALSE)","v":171.2},{"$f":"E14*F14","v":171.2},-86.960000000000036,-0.33684536721413089,6.5636314860076012E-2]
["Distribution Volumetric Charge",{"$f":"IF($B$9=\"kWh\",$B$4,$B$5)","v":55},{"$f":"VLOOKUP($B$3,'Data Current Rates'!$A:$AP,MATCH(BI_NPDI_AGSd_Low!$A15,CurrentHeader,0),FALSE)","v":4.1635999999999997},{"$f":"B15*C15","v":228.99799999999999},{"$f":"IF($C$9=\"kWh\",$C$4,$C$5)","v":55},{"$f":"VLOOKUP($C$3,'Data Proposed Rates'!$A:$AZ,MATCH(BI_NPDI_AGSd_Low!$A15,ProposedHeader,0),FALSE)","v":4.0885999999999996},224.87299999999999,-4.125,-1.8013257757709674E-2,8.6213989670151134E-2]
["Low Voltage Service Rate",{"$f":"IF($B$9=\"kWh\",$B$4,$B$5)","v":55},{"$f":"VLOOKUP($B$3,'Data Current Rates'!$A:$AP,MATCH(BI_NPDI_AGSd_Low!$A16,CurrentHeader,0),FALSE)","v":0.30499999999999999},16.774999999999999,null,null,null,-16.774999999999999,-1,0]
["Rate Rider for Application of Tax Change",55,{"$f":"VLOOKUP($B$3,'Data Current Rates'!$A:$AP,MATCH(BI_NPDI_AGSd_Low!$A17,CurrentHeader,0),FALSE)","v":2.1100000000000001E-2},1.1605000000000001,null,null,null,-1.1605000000000001,-1,0]
["Group 1 Volumetric DVA Rider (General)",null,null,null,{"$f":"IF($C$9=\"kWh\",$C$4,$C$5)","v":55},{"$f":"VLOOKUP($C$3,'Data Proposed Rates'!$A:$AZ,MATCH(BI_NPDI_AGSd_Low!$A18,ProposedHeader,0),FALSE)","v":-3.8800000000000001E-2},-2.1339999999999999,-2.1339999999999999,"N/A",-8.1815359761333063E-4]
["Group 1 Volumetric Deferral/Variance Account Rider (Sub-Account RSVA Wholesale Market Service Charge & RSVA Power) ",null,null,null,55,{"$f":"VLOOKUP($C$3,'Data Proposed Rates'!$A:$AZ,MATCH(BI_NPDI_AGSd_Low!$A19,ProposedHeader,0),FALSE)","v":-8.1000000000000003E-2},-4.4550000000000001,-4.4550000000000001,"N/A",-1.7080010671824688E-3]
["Group 1 Volumetric Deferral/Variance Account Rider (Sub-Account Global Adjustment)",null,null,null,{"$f":"C4","v":13020},{"$f":"VLOOKUP($C$3,'Data Proposed Rates'!$A:$AZ,MATCH(BI_NPDI_AGSd_Low!$A20,ProposedHeader,0),FALSE)","v":-6.9999999999999999E-4},-9.1140000000000008,-9.1140000000000008,"N/A",-3.4942136310440004E-3]
["Sub-Total:  Distribution",null,null,{"$f":"SUM(INDIRECT(\"D14:D\"&ROW()-1))","v":505.09350000000001},null,null,{"$f":"SUM(INDIRECT(\"g14:g\"&ROW()-1))","v":380.37},{"$f":"G21-D21","v":-124.7235},-0.24693150872066261,0.14582993623438734]
["Retail Transmission Rate – Network Service Rate",{"$f":"IF($B$9=\"kWh\",$B$4,$B$5)","v":55},{"$f":"VLOOKUP($B$3,'Data Current Rates'!$A:$AP,MATCH(BI_NPDI_AGSd_Low!$A22,CurrentHeader,0),FALSE)","v":3.1089000000000002},{"$f":"B22*C22","v":170.98950000000002},{"$f":"IF($C$9=\"kWh\",$C$4,$C$5)","v":55},{"$f":"VLOOKUP($C$3,'Data Proposed Rates'!$A:$AZ,MATCH(BI_NPDI_AGSd_Low!$A22,ProposedHeader,0),FALSE)","v":2.4941},{"$f":"E22*F22","v":137.1755},{"$f":"G22-D22","v":-33.814000000000021},-0.19775483289909623,5.2591672366170308E-2]
["Retail Transmission Rate – Line and Transformation Connection Service Rate",{"$f":"IF($B$9=\"kWh\",$B$4,$B$5)","v":55},{"$f":"VLOOKUP($B$3,'Data Current Rates'!$A:$AP,MATCH(BI_NPDI_AGSd_Low!$A23,CurrentHeader,0),FALSE)","v":1.3103},{"$f":"B23*C23","v":72.066500000000005},{"$f":"IF($C$9=\"kWh\",$C$4,$C$5)","v":55},{"$f":"VLOOKUP($C$3,'Data Proposed Rates'!$A:$AZ,MATCH(BI_NPDI_AGSd_Low!$A23,ProposedHeader,0),FALSE)","v":1.9177999999999999},{"$f":"E23*F23","v":105.479},{"$f":"G23-D23","v":33.412499999999994},0.46363428222544445,4.043956106966097E-2]
["Sub-Total:  Retail Transmission ",null,null,{"$f":"SUM(D22:D23)","v":243.05600000000004},null,null,{"$f":"SUM(G22:G23)","v":242.65449999999998},{"$f":"G24-D24","v":-0.40150000000005548},-1.6518826937004453E-3,9.3031233435831279E-2]
["Sub-Total:  Delivery (based on two-tier RPP prices)",null,null,{"$f":"SUM(D21,D24)","v":748.14949999999999},null,null,{"$f":"SUM(G21,G24)","v":623.02449999999999},{"$f":"G25-D25","v":-125.125},-0.16724598492680942,0.23886116967021861]
["Wholesale Market Service Rate (WMS) - not including CBR",{"$f":"B8","v":13624.128000000001},{"$f":"VLOOKUP($A26,'Data Pass Through'!$A:$D,2,FALSE)","v":3.0000000000000001E-3},{"$f":"B26*C26","v":40.872384000000004},{"$f":"$C$8","v":13710.06},{"$f":"VLOOKUP($A26,'Data Pass Through'!$A:$D,3,FALSE)","v":3.0000000000000001E-3},{"$f":"E26*F26","v":41.130180000000003},{"$f":"G26-D26","v":0.25779599999999903},6.3073394495412596E-3,1.5768886943525708E-2]
["Capacity Based Recovery (CBR) - Applicable for Class B Customers",{"$f":"B8","v":13624.128000000001},{"$f":"VLOOKUP($A27,'Data Pass Through'!$A:$D,2,FALSE)","v":4.0000000000000002E-4},{"$f":"B27*C27","v":5.4496512000000008},{"$f":"$C$8","v":13710.06},{"$f":"VLOOKUP($A27,'Data Pass Through'!$A:$D,3,FALSE)","v":4.0000000000000002E-4},{"$f":"E27*F27","v":5.4840239999999998},3.4372799999998982E-2,6.3073394495410965E-3,2.1025182591367609E-3]
["Rural Rate Protection Charge",{"$f":"B8","v":13624.128000000001},{"$f":"VLOOKUP($A28,'Data Pass Through'!$A:$D,2,FALSE)","v":5.0000000000000001E-4},6.8120640000000003,13710.06,{"$f":"VLOOKUP($A28,'Data Pass Through'!$A:$D,3,FALSE)","v":5.0000000000000001E-4},6.8550300000000002,4.2965999999999838E-2,6.3073394495412605E-3,2.6281478239209514E-3]
["Standard Supply Service – Administration Charge (if applicable)",1,{"$f":"VLOOKUP($A29,'Data Pass Through'!$A:$D,2,FALSE)","v":0.25},{"$f":"B29*C29","v":0.25},{"$f":"B29","v":1},{"$f":"VLOOKUP($A29,'Data Pass Through'!$A:$D,3,FALSE)","v":0.25},0.25,0,0,9.5847422400811938E-5]
["Sub-Total:  Regulatory",null,null,{"$f":"SUM(D26:D29)","v":53.384099200000001},null,null,{"$f":"SUM(G26:G29)","v":53.719234},0.33513479999999873,6.277801911472522E-3,2.0595400448984232E-2]
["Total Electricity Charge on WAHSP",null,null,{"$f":"SUM(D13,D25,D30)","v":2422.8048312000001},null,null,{"$f":"SUM(G13,G25,G30)","v":2308.2408740000001},-114.5639572,-4.7285673086287019E-2,0.88495575221238931]
["     HST",null,0.13,{"$f":"D31*C32","v":314.96462805600004},null,{"$f":"C32","v":0.13},{"$f":"G31*F32","v":300.07131362000001},-14.893314436000026,-4.7285673086287096E-2,0.11504424778761062]
["Total Amount on WAHSP",null,null,{"$f":"SUM(D31:D32)","v":2737.7694592560001},null,null,{"$f":"SUM(G31:G32)","v":2608.3121876200003},-129.45727163599986,-4.7285673086286964E-2,1]

{"sheet":"BI_NPDI_AGSd_Avg","index":101,"n_rows":33,"n_cols":10,"rows_kept":33,"cut":false,"hidden":false,"merged":[[0,0,0,9]]}
["2023 Bill Impacts (Average Consumption Level) - AGSd_NPDI"]
[]
["Rate Class",{"$f":"VLOOKUP(A1,'Data BI List Acq_Seas'!C:E,2,FALSE)","v":"NPDI_GS >50"},{"$f":"VLOOKUP(A1,'Data BI List Acq_Seas'!C:E,3,FALSE)","v":"AGSd-NPDI"}]
["Monthly Consumption (kWh)",{"$f":"IF(COUNTIF(A1,\"*Low*\")>0,VLOOKUP(B3,'Data Billing Quantities'!$A:$Z,MATCH(\"Low kWh\",'Data Billing Quantities'!4:4,0),FALSE),IF(COUNTIF(A1,\"*Typical*\")>0,VLOOKUP(B3,'Data Billing Quantities'!$A:$Z,MATCH(\"Typical kWh\",'Data Billing Quantities'!4:4,0),FALSE),IF(COUNTIF(A1,\"*Average*\")>0,VLOOKUP(B3,'Data Billing Quantities'!$A:$Z,MATCH(\"Average kWh\",'Data Billing Quantities'!4:4,0),FALSE),IF(COUNTIF(A1,\"*High*\")>0,VLOOKUP(B3,'Data Billing Quantities'!$A:$Z,MATCH(\"High kWh\",'Data Billing Quantities'!4:4,0),FALSE),\"error\"))))","v":70294},{"$f":"B4","v":70294}]
["Peak (kW)",{"$f":"IF(COUNTIF(A1,\"*Low*\")>0,VLOOKUP(B3,'Data Billing Quantities'!$A:$Z,MATCH(\"Low kW\",'Data Billing Quantities'!4:4,0),FALSE),IF(COUNTIF(A1,\"*Typical*\")>0,VLOOKUP(B3,'Data Billing Quantities'!$A:$Z,MATCH(\"Typical kW\",'Data Billing Quantities'!4:4,0),FALSE),IF(COUNTIF(A1,\"*Average*\")>0,VLOOKUP(B3,'Data Billing Quantities'!$A:$Z,MATCH(\"Average kW\",'Data Billing Quantities'!4:4,0),FALSE),IF(COUNTIF(A1,\"*High*\")>0,VLOOKUP(B3,'Data Billing Quantities'!$A:$Z,MATCH(\"High kW\",'Data Billing Quantities'!4:4,0),FALSE),\"error\"))))","v":181},{"$f":"B5","v":181}]
["Loss factor",{"$f":"VLOOKUP(B3,'Data Billing Quantities'!A:D,MATCH(A6,'Data Billing Quantities'!4:4,0),FALSE)","v":1.0464},{"$f":"VLOOKUP(C3,'Data Billing Quantities'!A:D,MATCH(A6,'Data Billing Quantities'!4:4,0),FALSE)","v":1.0529999999999999}]
["Commodity Threshold",{"$f":"VLOOKUP(B3,'Data Billing Quantities'!A:D,MATCH(A7,'Data Billing Quantities'!4:4,0),FALSE)","v":0},{"$f":"B7","v":0}]
["Monthly Consumption (kWh) - Uplifted",{"$f":"B4*B6","v":73555.641600000003},{"$f":"C4*C6","v":74019.581999999995}]
["Charge determinant",{"$f":"VLOOKUP(B3,'Data Billing Quantities'!A:D,MATCH(A9,'Data Billing Quantities'!4:4,0),FALSE)","v":"kW"},{"$f":"VLOOKUP(C3,'Data Billing Quantities'!A:D,MATCH(A9,'Data Billing Quantities'!4:4,0),FALSE)","v":"kW"}]
[]
[null,"Volume","Current Rate ($)","Current Charge ($)","Volume","Proposed Rate ($)","Proposed Charge ($)","Change ($)","Change (%)","% of Total Bill"]
["Weighted Average Hourly Spot Price",{"$f":"B8","v":73555.641600000003},{"$f":"VLOOKUP($A12,'Data Pass Through'!$A:$D,2,FALSE)","v":0.11899999999999999},{"$f":"B12*C12","v":8753.1213504000007},{"$f":"C8","v":74019.581999999995},{"$f":"VLOOKUP($A12,'Data Pass Through'!$A:$D,3,FALSE)","v":0.11899999999999999},{"$f":"E12*F12","v":8808.3302579999981},{"$f":"G12-D12","v":55.208907599997474},{"$f":"IF(ISERROR(H12/ABS(D12)),\"N/A\",(H12/ABS(D12)))","v":6.3073394495409951E-3},{"$f":"G12/G$33","v":0.72604956745645366}]
["Sub-Total:  Energy (WASHP)",null,null,{"$f":"SUM(D12:D12)","v":8753.1213504000007},null,null,{"$f":"SUM(G12:G12)","v":8808.3302579999981},55.208907599997474,6.3073394495409951E-3,0.72604956745645366]
["Service Charge",1,{"$f":"VLOOKUP($B$3,'Data Current Rates'!$A:$AP,MATCH(BI_NPDI_AGSd_Avg!$A14,CurrentHeader,0),FALSE)","v":258.16000000000003},{"$f":"B14*C14","v":258.16000000000003},1,{"$f":"VLOOKUP($C$3,'Data Proposed Rates'!$A:$AZ,MATCH(BI_NPDI_AGSd_Avg!$A14,ProposedHeader,0),FALSE)","v":171.2},{"$f":"E14*F14","v":171.2},-86.960000000000036,-0.33684536721413089,1.4111605980674038E-2]
["Distribution Volumetric Charge",{"$f":"IF($B$9=\"kWh\",$B$4,$B$5)","v":181},{"$f":"VLOOKUP($B$3,'Data Current Rates'!$A:$AP,MATCH(BI_NPDI_AGSd_Avg!$A15,CurrentHeader,0),FALSE)","v":4.1635999999999997},{"$f":"B15*C15","v":753.61159999999995},{"$f":"IF($C$9=\"kWh\",$C$4,$C$5)","v":181},{"$f":"VLOOKUP($C$3,'Data Proposed Rates'!$A:$AZ,MATCH(BI_NPDI_AGSd_Avg!$A15,ProposedHeader,0),FALSE)","v":4.0885999999999996},740.03659999999991,-13.575000000000045,-1.8013257757709737E-2,6.0999444570547193E-2]
["Low Voltage Service Rate",{"$f":"IF($B$9=\"kWh\",$B$4,$B$5)","v":181},{"$f":"VLOOKUP($B$3,'Data Current Rates'!$A:$AP,MATCH(BI_NPDI_AGSd_Avg!$A16,CurrentHeader,0),FALSE)","v":0.30499999999999999},55.204999999999998,null,null,null,-55.204999999999998,-1,0]
["Rate Rider for Application of Tax Change",181,{"$f":"VLOOKUP($B$3,'Data Current Rates'!$A:$AP,MATCH(BI_NPDI_AGSd_Avg!$A17,CurrentHeader,0),FALSE)","v":2.1100000000000001E-2},3.8191000000000002,null,null,null,-3.8191000000000002,-1,0]
["Group 1 Volumetric DVA Rider (General)",null,null,null,{"$f":"IF($C$9=\"kWh\",$C$4,$C$5)","v":181},{"$f":"VLOOKUP($C$3,'Data Proposed Rates'!$A:$AZ,MATCH(BI_NPDI_AGSd_Avg!$A18,ProposedHeader,0),FALSE)","v":-3.8800000000000001E-2},-7.0228000000000002,-7.0228000000000002,"N/A",-5.788725845857339E-4]
["Group 1 Volumetric Deferral/Variance Account Rider (Sub-Account RSVA Wholesale Market Service Charge & RSVA Power) ",null,null,null,181,{"$f":"VLOOKUP($C$3,'Data Proposed Rates'!$A:$AZ,MATCH(BI_NPDI_AGSd_Avg!$A19,ProposedHeader,0),FALSE)","v":-8.1000000000000003E-2},-14.661,-14.661,"N/A",-1.208471117305269E-3]
["Group 1 Volumetric Deferral/Variance Account Rider (Sub-Account Global Adjustment)",null,null,null,{"$f":"C4","v":70294},{"$f":"VLOOKUP($C$3,'Data Proposed Rates'!$A:$AZ,MATCH(BI_NPDI_AGSd_Avg!$A20,ProposedHeader,0),FALSE)","v":-6.9999999999999999E-4},-49.205799999999996,-49.205799999999996,"N/A",-4.0559162474523977E-3]
["Sub-Total:  Distribution",null,null,{"$f":"SUM(INDIRECT(\"D14:D\"&ROW()-1))","v":1070.7956999999999},null,null,{"$f":"SUM(INDIRECT(\"g14:g\"&ROW()-1))","v":840.34700000000009},{"$f":"G21-D21","v":-230.4486999999998},-0.21521257509719158,6.9267790601877849E-2]
["Retail Transmission Rate – Network Service Rate",{"$f":"IF($B$9=\"kWh\",$B$4,$B$5)","v":181},{"$f":"VLOOKUP($B$3,'Data Current Rates'!$A:$AP,MATCH(BI_NPDI_AGSd_Avg!$A22,CurrentHeader,0),FALSE)","v":3.1089000000000002},{"$f":"B22*C22","v":562.71090000000004},{"$f":"IF($C$9=\"kWh\",$C$4,$C$5)","v":181},{"$f":"VLOOKUP($C$3,'Data Proposed Rates'!$A:$AZ,MATCH(BI_NPDI_AGSd_Avg!$A22,ProposedHeader,0),FALSE)","v":2.4941},{"$f":"E22*F22","v":451.43209999999999},{"$f":"G22-D22","v":-111.27880000000005},-0.19775483289909621,3.7210466835445329E-2]
["Retail Transmission Rate – Line and Transformation Connection Service Rate",{"$f":"IF($B$9=\"kWh\",$B$4,$B$5)","v":181},{"$f":"VLOOKUP($B$3,'Data Current Rates'!$A:$AP,MATCH(BI_NPDI_AGSd_Avg!$A23,CurrentHeader,0),FALSE)","v":1.3103},{"$f":"B23*C23","v":237.1643},{"$f":"IF($C$9=\"kWh\",$C$4,$C$5)","v":181},{"$f":"VLOOKUP($C$3,'Data Proposed Rates'!$A:$AZ,MATCH(BI_NPDI_AGSd_Avg!$A23,ProposedHeader,0),FALSE)","v":1.9177999999999999},{"$f":"E23*F23","v":347.12180000000001},{"$f":"G23-D23","v":109.95750000000001},0.46363428222544462,2.861241862676599E-2]
["Sub-Total:  Retail Transmission ",null,null,{"$f":"SUM(D22:D23)","v":799.87520000000006},null,null,{"$f":"SUM(G22:G23)","v":798.5539},{"$f":"G24-D24","v":-1.3213000000000648},-1.6518826937002981E-3,6.5822885462211322E-2]
["Sub-Total:  Delivery (based on two-tier RPP prices)",null,null,{"$f":"SUM(D21,D24)","v":1870.6709000000001},null,null,{"$f":"SUM(G21,G24)","v":1638.9009000000001},{"$f":"G25-D25","v":-231.76999999999998},-0.12389672603556295,0.13509067606408917]
["Wholesale Market Service Rate (WMS) - not including CBR",{"$f":"B8","v":73555.641600000003},{"$f":"VLOOKUP($A26,'Data Pass Through'!$A:$D,2,FALSE)","v":3.0000000000000001E-3},{"$f":"B26*C26","v":220.6669248},{"$f":"$C$8","v":74019.581999999995},{"$f":"VLOOKUP($A26,'Data Pass Through'!$A:$D,3,FALSE)","v":3.0000000000000001E-3},{"$f":"E26*F26","v":222.05874599999999},{"$f":"G26-D26","v":1.3918211999999812},6.3073394495411989E-3,1.8303770608145895E-2]
["Capacity Based Recovery (CBR) - Applicable for Class B Customers",{"$f":"B8","v":73555.641600000003},{"$f":"VLOOKUP($A27,'Data Pass Through'!$A:$D,2,FALSE)","v":4.0000000000000002E-4},{"$f":"B27*C27","v":29.422256640000004},{"$f":"$C$8","v":74019.581999999995},{"$f":"VLOOKUP($A27,'Data Pass Through'!$A:$D,3,FALSE)","v":4.0000000000000002E-4},{"$f":"E27*F27","v":29.607832800000001},0.18557615999999655,6.3073394495411659E-3,2.4405027477527861E-3]
["Rural Rate Protection Charge",{"$f":"B8","v":73555.641600000003},{"$f":"VLOOKUP($A28,'Data Pass Through'!$A:$D,2,FALSE)","v":5.0000000000000001E-4},36.777820800000001,74019.581999999995,{"$f":"VLOOKUP($A28,'Data Pass Through'!$A:$D,3,FALSE)","v":5.0000000000000001E-4},37.009791,0.23197019999999924,6.3073394495412639E-3,3.0506284346909825E-3]
["Standard Supply Service – Administration Charge (if applicable)",1,{"$f":"VLOOKUP($A29,'Data Pass Through'!$A:$D,2,FALSE)","v":0.25},{"$f":"B29*C29","v":0.25},{"$f":"B29","v":1},{"$f":"VLOOKUP($A29,'Data Pass Through'!$A:$D,3,FALSE)","v":0.25},0.25,0,0,2.0606901256825408E-5]
["Sub-Total:  Regulatory",null,null,{"$f":"SUM(D26:D29)","v":287.11700224000003},null,null,{"$f":"SUM(G26:G29)","v":288.92636979999997},1.8093675599999415,6.3018474903394888E-3,2.3815508691846485E-2]
["Total Electricity Charge on WAHSP",null,null,{"$f":"SUM(D13,D25,D30)","v":10910.909252640002},null,null,{"$f":"SUM(G13,G25,G30)","v":10736.157527799998},-174.75172484000359,-1.6016238499804283E-2,0.88495575221238931]
["     HST",null,0.13,{"$f":"D31*C32","v":1418.4182028432003},null,{"$f":"C32","v":0.13},{"$f":"G31*F32","v":1395.7004786139998},-22.717724229200485,-1.6016238499804297E-2,0.11504424778761062]
["Total Amount on WAHSP",null,null,{"$f":"SUM(D31:D32)","v":12329.327455483202},null,null,{"$f":"SUM(G31:G32)","v":12131.858006413999},-197.46944906920362,-1.6016238499804249E-2,1]

{"sheet":"BI_NPDI_AGSd_High","index":102,"n_rows":33,"n_cols":10,"rows_kept":33,"cut":false,"hidden":false,"merged":[[0,0,0,9]]}
["2023 Bill Impacts (High Consumption Level) - AGSd_NPDI"]
[]
["Rate Class",{"$f":"VLOOKUP(A1,'Data BI List Acq_Seas'!C:E,2,FALSE)","v":"NPDI_GS >50"},{"$f":"VLOOKUP(A1,'Data BI List Acq_Seas'!C:E,3,FALSE)","v":"AGSd-NPDI"}]
["Monthly Consumption (kWh)",{"$f":"IF(COUNTIF(A1,\"*Low*\")>0,VLOOKUP(B3,'Data Billing Quantities'!$A:$Z,MATCH(\"Low kWh\",'Data Billing Quantities'!4:4,0),FALSE),IF(COUNTIF(A1,\"*Typical*\")>0,VLOOKUP(B3,'Data Billing Quantities'!$A:$Z,MATCH(\"Typical kWh\",'Data Billing Quantities'!4:4,0),FALSE),IF(COUNTIF(A1,\"*Average*\")>0,VLOOKUP(B3,'Data Billing Quantities'!$A:$Z,MATCH(\"Average kWh\",'Data Billing Quantities'!4:4,0),FALSE),IF(COUNTIF(A1,\"*High*\")>0,VLOOKUP(B3,'Data Billing Quantities'!$A:$Z,MATCH(\"High kWh\",'Data Billing Quantities'!4:4,0),FALSE),\"error\"))))","v":129420},{"$f":"B4","v":129420}]
["Peak (kW)",{"$f":"IF(COUNTIF(A1,\"*Low*\")>0,VLOOKUP(B3,'Data Billing Quantities'!$A:$Z,MATCH(\"Low kW\",'Data Billing Quantities'!4:4,0),FALSE),IF(COUNTIF(A1,\"*Typical*\")>0,VLOOKUP(B3,'Data Billing Quantities'!$A:$Z,MATCH(\"Typical kW\",'Data Billing Quantities'!4:4,0),FALSE),IF(COUNTIF(A1,\"*Average*\")>0,VLOOKUP(B3,'Data Billing Quantities'!$A:$Z,MATCH(\"Average kW\",'Data Billing Quantities'!4:4,0),FALSE),IF(COUNTIF(A1,\"*High*\")>0,VLOOKUP(B3,'Data Billing Quantities'!$A:$Z,MATCH(\"High kW\",'Data Billing Quantities'!4:4,0),FALSE),\"error\"))))","v":300},{"$f":"B5","v":300}]
["Loss factor",{"$f":"VLOOKUP(B3,'Data Billing Quantities'!A:D,MATCH(A6,'Data Billing Quantities'!4:4,0),FALSE)","v":1.0464},{"$f":"VLOOKUP(C3,'Data Billing Quantities'!A:D,MATCH(A6,'Data Billing Quantities'!4:4,0),FALSE)","v":1.0529999999999999}]
["Commodity Threshold",{"$f":"VLOOKUP(B3,'Data Billing Quantities'!A:D,MATCH(A7,'Data Billing Quantities'!4:4,0),FALSE)","v":0},{"$f":"B7","v":0}]
["Monthly Consumption (kWh) - Uplifted",{"$f":"B4*B6","v":135425.08799999999},{"$f":"C4*C6","v":136279.25999999998}]
["Charge determinant",{"$f":"VLOOKUP(B3,'Data Billing Quantities'!A:D,MATCH(A9,'Data Billing Quantities'!4:4,0),FALSE)","v":"kW"},{"$f":"VLOOKUP(C3,'Data Billing Quantities'!A:D,MATCH(A9,'Data Billing Quantities'!4:4,0),FALSE)","v":"kW"}]
[]
[null,"Volume","Current Rate ($)","Current Charge ($)","Volume","Proposed Rate ($)","Proposed Charge ($)","Change ($)","Change (%)","% of Total Bill"]
["Weighted Average Hourly Spot Price",{"$f":"B8","v":135425.08799999999},{"$f":"VLOOKUP($A12,'Data Pass Through'!$A:$D,2,FALSE)","v":0.11899999999999999},{"$f":"B12*C12","v":16115.585471999999},{"$f":"C8","v":136279.25999999998},{"$f":"VLOOKUP($A12,'Data Pass Through'!$A:$D,3,FALSE)","v":0.11899999999999999},{"$f":"E12*F12","v":16217.231939999996},{"$f":"G12-D12","v":101.64646799999718},{"$f":"IF(ISERROR(H12/ABS(D12)),\"N/A\",(H12/ABS(D12)))","v":6.3073394495411104E-3},{"$f":"G12/G$33","v":0.7419194933340526}]
["Sub-Total:  Energy (WASHP)",null,null,{"$f":"SUM(D12:D12)","v":16115.585471999999},null,null,{"$f":"SUM(G12:G12)","v":16217.231939999996},101.64646799999718,6.3073394495411104E-3,0.7419194933340526]
["Service Charge",1,{"$f":"VLOOKUP($B$3,'Data Current Rates'!$A:$AP,MATCH(BI_NPDI_AGSd_High!$A14,CurrentHeader,0),FALSE)","v":258.16000000000003},{"$f":"B14*C14","v":258.16000000000003},1,{"$f":"VLOOKUP($C$3,'Data Proposed Rates'!$A:$AZ,MATCH(BI_NPDI_AGSd_High!$A14,ProposedHeader,0),FALSE)","v":171.2},{"$f":"E14*F14","v":171.2},-86.960000000000036,-0.33684536721413089,7.832200817545305E-3]
["Distribution Volumetric Charge",{"$f":"IF($B$9=\"kWh\",$B$4,$B$5)","v":300},{"$f":"VLOOKUP($B$3,'Data Current Rates'!$A:$AP,MATCH(BI_NPDI_AGSd_High!$A15,CurrentHeader,0),FALSE)","v":4.1635999999999997},{"$f":"B15*C15","v":1249.08},{"$f":"IF($C$9=\"kWh\",$C$4,$C$5)","v":300},{"$f":"VLOOKUP($C$3,'Data Proposed Rates'!$A:$AZ,MATCH(BI_NPDI_AGSd_High!$A15,ProposedHeader,0),FALSE)","v":4.0885999999999996},1226.58,-22.5,-1.8013257757709674E-2,5.6114607936826634E-2]
["Low Voltage Service Rate",{"$f":"IF($B$9=\"kWh\",$B$4,$B$5)","v":300},{"$f":"VLOOKUP($B$3,'Data Current Rates'!$A:$AP,MATCH(BI_NPDI_AGSd_High!$A16,CurrentHeader,0),FALSE)","v":0.30499999999999999},91.5,null,null,null,-91.5,-1,0]
["Rate Rider for Application of Tax Change",300,{"$f":"VLOOKUP($B$3,'Data Current Rates'!$A:$AP,MATCH(BI_NPDI_AGSd_High!$A17,CurrentHeader,0),FALSE)","v":2.1100000000000001E-2},6.33,null,null,null,-6.33,-1,0]
["Group 1 Volumetric DVA Rider (General)",null,null,null,{"$f":"IF($C$9=\"kWh\",$C$4,$C$5)","v":300},{"$f":"VLOOKUP($C$3,'Data Proposed Rates'!$A:$AZ,MATCH(BI_NPDI_AGSd_High!$A18,ProposedHeader,0),FALSE)","v":-3.8800000000000001E-2},-11.64,-11.64,"N/A",-5.3251645745459907E-4]
["Group 1 Volumetric Deferral/Variance Account Rider (Sub-Account RSVA Wholesale Market Service Charge & RSVA Power) ",null,null,null,300,{"$f":"VLOOKUP($C$3,'Data Proposed Rates'!$A:$AZ,MATCH(BI_NPDI_AGSd_High!$A19,ProposedHeader,0),FALSE)","v":-8.1000000000000003E-2},-24.3,-24.3,"N/A",-1.1116967281913021E-3]
["Group 1 Volumetric Deferral/Variance Account Rider (Sub-Account Global Adjustment)",null,null,null,{"$f":"C4","v":129420},{"$f":"VLOOKUP($C$3,'Data Proposed Rates'!$A:$AZ,MATCH(BI_NPDI_AGSd_High!$A20,ProposedHeader,0),FALSE)","v":-6.9999999999999999E-4},-90.593999999999994,-90.593999999999994,"N/A",-4.1445700985087578E-3]
["Sub-Total:  Distribution",null,null,{"$f":"SUM(INDIRECT(\"D14:D\"&ROW()-1))","v":1605.07},null,null,{"$f":"SUM(INDIRECT(\"g14:g\"&ROW()-1))","v":1271.2459999999999},{"$f":"G21-D21","v":-333.82400000000007},-0.20798096033194818,5.8158025470217277E-2]
["Retail Transmission Rate – Network Service Rate",{"$f":"IF($B$9=\"kWh\",$B$4,$B$5)","v":300},{"$f":"VLOOKUP($B$3,'Data Current Rates'!$A:$AP,MATCH(BI_NPDI_AGSd_High!$A22,CurrentHeader,0),FALSE)","v":3.1089000000000002},{"$f":"B22*C22","v":932.67000000000007},{"$f":"IF($C$9=\"kWh\",$C$4,$C$5)","v":300},{"$f":"VLOOKUP($C$3,'Data Proposed Rates'!$A:$AZ,MATCH(BI_NPDI_AGSd_High!$A22,ProposedHeader,0),FALSE)","v":2.4941},{"$f":"E22*F22","v":748.23},{"$f":"G22-D22","v":-184.44000000000005},-0.19775483289909618,3.4230651972616377E-2]
["Retail Transmission Rate – Line and Transformation Connection Service Rate",{"$f":"IF($B$9=\"kWh\",$B$4,$B$5)","v":300},{"$f":"VLOOKUP($B$3,'Data Current Rates'!$A:$AP,MATCH(BI_NPDI_AGSd_High!$A23,CurrentHeader,0),FALSE)","v":1.3103},{"$f":"B23*C23","v":393.09000000000003},{"$f":"IF($C$9=\"kWh\",$C$4,$C$5)","v":300},{"$f":"VLOOKUP($C$3,'Data Proposed Rates'!$A:$AZ,MATCH(BI_NPDI_AGSd_High!$A23,ProposedHeader,0),FALSE)","v":1.9177999999999999},{"$f":"E23*F23","v":575.34},{"$f":"G23-D23","v":182.25},0.46363428222544451,2.6321135621299743E-2]
["Sub-Total:  Retail Transmission ",null,null,{"$f":"SUM(D22:D23)","v":1325.7600000000002},null,null,{"$f":"SUM(G22:G23)","v":1323.5700000000002},{"$f":"G24-D24","v":-2.1900000000000546},-1.6518826937002582E-3,6.0551787593916127E-2]
["Sub-Total:  Delivery (based on two-tier RPP prices)",null,null,{"$f":"SUM(D21,D24)","v":2930.83},null,null,{"$f":"SUM(G21,G24)","v":2594.8159999999998},{"$f":"G25-D25","v":-336.01400000000012},-0.1146480689770475,0.11870981306413339]
["Wholesale Market Service Rate (WMS) - not including CBR",{"$f":"B8","v":135425.08799999999},{"$f":"VLOOKUP($A26,'Data Pass Through'!$A:$D,2,FALSE)","v":3.0000000000000001E-3},{"$f":"B26*C26","v":406.27526399999999},{"$f":"$C$8","v":136279.25999999998},{"$f":"VLOOKUP($A26,'Data Pass Through'!$A:$D,3,FALSE)","v":3.0000000000000001E-3},{"$f":"E26*F26","v":408.83777999999995},{"$f":"G26-D26","v":2.5625159999999596},6.307339449541185E-3,1.8703852773127378E-2]
["Capacity Based Recovery (CBR) - Applicable for Class B Customers",{"$f":"B8","v":135425.08799999999},{"$f":"VLOOKUP($A27,'Data Pass Through'!$A:$D,2,FALSE)","v":4.0000000000000002E-4},{"$f":"B27*C27","v":54.170035200000001},{"$f":"$C$8","v":136279.25999999998},{"$f":"VLOOKUP($A27,'Data Pass Through'!$A:$D,3,FALSE)","v":4.0000000000000002E-4},{"$f":"E27*F27","v":54.511703999999995},0.34166879999999367,6.3073394495411677E-3,2.493847036416984E-3]
["Rural Rate Protection Charge",{"$f":"B8","v":135425.08799999999},{"$f":"VLOOKUP($A28,'Data Pass Through'!$A:$D,2,FALSE)","v":5.0000000000000001E-4},67.712543999999994,136279.25999999998,{"$f":"VLOOKUP($A28,'Data Pass Through'!$A:$D,3,FALSE)","v":5.0000000000000001E-4},68.139629999999997,0.42708600000000274,6.3073394495413255E-3,3.1173087955212301E-3]
["Standard Supply Service – Administration Charge (if applicable)",1,{"$f":"VLOOKUP($A29,'Data Pass Through'!$A:$D,2,FALSE)","v":0.25},{"$f":"B29*C29","v":0.25},{"$f":"B29","v":1},{"$f":"VLOOKUP($A29,'Data Pass Through'!$A:$D,3,FALSE)","v":0.25},0.25,0,0,1.1437209137770597E-5]
["Sub-Total:  Regulatory",null,null,{"$f":"SUM(D26:D29)","v":528.4078432},null,null,{"$f":"SUM(G26:G29)","v":531.73911399999997},3.3312707999999702,6.3043553249059157E-3,2.4326445814203367E-2]
["Total Electricity Charge on WAHSP",null,null,{"$f":"SUM(D13,D25,D30)","v":19574.823315199999},null,null,{"$f":"SUM(G13,G25,G30)","v":19343.787053999997},-231.03626120000263,-1.1802725239445774E-2,0.88495575221238942]
["     HST",null,0.13,{"$f":"D31*C32","v":2544.7270309760002},null,{"$f":"C32","v":0.13},{"$f":"G31*F32","v":2514.6923170199998},-30.03471395600036,-1.1802725239445779E-2,0.11504424778761063]
["Total Amount on WAHSP",null,null,{"$f":"SUM(D31:D32)","v":22119.550346175998},null,null,{"$f":"SUM(G31:G32)","v":21858.479371019996},-261.07097515600253,-1.1802725239445755E-2,1]

{"sheet":"BI_HCHI_AGSd_Low","index":103,"n_rows":33,"n_cols":10,"rows_kept":33,"cut":false,"hidden":false,"merged":[[0,0,0,9]]}
["2023 Bill Impacts (Low Consumption Level) - AGSd_HCHI"]
[]
["Rate Class",{"$f":"VLOOKUP(A1,'Data BI List Acq_Seas'!C:E,2,FALSE)","v":"HCHI_GS >50"},{"$f":"VLOOKUP(A1,'Data BI List Acq_Seas'!C:E,3,FALSE)","v":"AGSd-HCHI"}]
["Monthly Consumption (kWh)",{"$f":"IF(COUNTIF(A1,\"*Low*\")>0,VLOOKUP(B3,'Data Billing Quantities'!$A:$Z,MATCH(\"Low kWh\",'Data Billing Quantities'!4:4,0),FALSE),IF(COUNTIF(A1,\"*Typical*\")>0,VLOOKUP(B3,'Data Billing Quantities'!$A:$Z,MATCH(\"Typical kWh\",'Data Billing Quantities'!4:4,0),FALSE),IF(COUNTIF(A1,\"*Average*\")>0,VLOOKUP(B3,'Data Billing Quantities'!$A:$Z,MATCH(\"Average kWh\",'Data Billing Quantities'!4:4,0),FALSE),IF(COUNTIF(A1,\"*High*\")>0,VLOOKUP(B3,'Data Billing Quantities'!$A:$Z,MATCH(\"High kWh\",'Data Billing Quantities'!4:4,0),FALSE),\"error\"))))","v":10880},{"$f":"B4","v":10880}]
["Peak (kW)",{"$f":"IF(COUNTIF(A1,\"*Low*\")>0,VLOOKUP(B3,'Data Billing Quantities'!$A:$Z,MATCH(\"Low kW\",'Data Billing Quantities'!4:4,0),FALSE),IF(COUNTIF(A1,\"*Typical*\")>0,VLOOKUP(B3,'Data Billing Quantities'!$A:$Z,MATCH(\"Typical kW\",'Data Billing Quantities'!4:4,0),FALSE),IF(COUNTIF(A1,\"*Average*\")>0,VLOOKUP(B3,'Data Billing Quantities'!$A:$Z,MATCH(\"Average kW\",'Data Billing Quantities'!4:4,0),FALSE),IF(COUNTIF(A1,\"*High*\")>0,VLOOKUP(B3,'Data Billing Quantities'!$A:$Z,MATCH(\"High kW\",'Data Billing Quantities'!4:4,0),FALSE),\"error\"))))","v":55},{"$f":"B5","v":55}]
["Loss factor",{"$f":"VLOOKUP(B3,'Data Billing Quantities'!A:D,MATCH(A6,'Data Billing Quantities'!4:4,0),FALSE)","v":1.0548},{"$f":"VLOOKUP(C3,'Data Billing Quantities'!A:D,MATCH(A6,'Data Billing Quantities'!4:4,0),FALSE)","v":1.0529999999999999}]
["Commodity Threshold",{"$f":"VLOOKUP(B3,'Data Billing Quantities'!A:D,MATCH(A7,'Data Billing Quantities'!4:4,0),FALSE)","v":0},{"$f":"B7","v":0}]
["Monthly Consumption (kWh) - Uplifted",{"$f":"B4*B6","v":11476.224},{"$f":"C4*C6","v":11456.64}]
["Charge determinant",{"$f":"VLOOKUP(B3,'Data Billing Quantities'!A:D,MATCH(A9,'Data Billing Quantities'!4:4,0),FALSE)","v":"kW"},{"$f":"VLOOKUP(C3,'Data Billing Quantities'!A:D,MATCH(A9,'Data Billing Quantities'!4:4,0),FALSE)","v":"kW"}]
[]
[null,"Volume","Current Rate ($)","Current Charge ($)","Volume","Proposed Rate ($)","Proposed Charge ($)","Change ($)","Change (%)","% of Total Bill"]
["Weighted Average Hourly Spot Price",{"$f":"B8","v":11476.224},{"$f":"VLOOKUP($A12,'Data Pass Through'!$A:$D,2,FALSE)","v":0.11899999999999999},{"$f":"B12*C12","v":1365.670656},{"$f":"C8","v":11456.64},{"$f":"VLOOKUP($A12,'Data Pass Through'!$A:$D,3,FALSE)","v":0.11899999999999999},{"$f":"E12*F12","v":1363.34016},{"$f":"G12-D12","v":-2.3304960000000392},{"$f":"IF(ISERROR(H12/ABS(D12)),\"N/A\",(H12/ABS(D12)))","v":-1.7064846416382539E-3},{"$f":"G12/G$33","v":0.59383101795483773}]
["Sub-Total:  Energy (WAHSP)",null,null,{"$f":"SUM(D12:D12)","v":1365.670656},null,null,{"$f":"SUM(G12:G12)","v":1363.34016},-2.3304960000000392,-1.7064846416382539E-3,0.59383101795483773]
["Service Charge",1,{"$f":"VLOOKUP($B$3,'Data Current Rates'!$A:$AP,MATCH(BI_HCHI_AGSd_Low!$A14,CurrentHeader,0),FALSE)","v":86.56},{"$f":"B14*C14","v":86.56},1,{"$f":"VLOOKUP($C$3,'Data Proposed Rates'!$A:$AZ,MATCH(BI_HCHI_AGSd_Low!$A14,ProposedHeader,0),FALSE)","v":171.2},{"$f":"E14*F14","v":171.2},84.639999999999986,0.97781885397412183,7.4569702600023324E-2]
["Distribution Volumetric Charge",{"$f":"IF($B$9=\"kWh\",$B$4,$B$5)","v":55},{"$f":"VLOOKUP($B$3,'Data Current Rates'!$A:$AP,MATCH(BI_HCHI_AGSd_Low!$A15,CurrentHeader,0),FALSE)","v":4.0727000000000002},{"$f":"B15*C15","v":223.99850000000001},{"$f":"IF($C$9=\"kWh\",$C$4,$C$5)","v":55},{"$f":"VLOOKUP($C$3,'Data Proposed Rates'!$A:$AZ,MATCH(BI_HCHI_AGSd_Low!$A15,ProposedHeader,0),FALSE)","v":4.0885999999999996},224.87299999999999,0.8744999999999834,3.9040440002945705E-3,9.7948088392377605E-2]
["Low Voltage Service Rate",{"$f":"IF($B$9=\"kWh\",$B$4,$B$5)","v":55},{"$f":"VLOOKUP($B$3,'Data Current Rates'!$A:$AP,MATCH(BI_HCHI_AGSd_Low!$A16,CurrentHeader,0),FALSE)","v":0.155},8.5250000000000004,null,null,null,-8.5250000000000004,-1,0]
["Funding Adder for Renewable Energy Generation",55,{"$f":"VLOOKUP($B$3,'Data Current Rates'!$A:$AP,MATCH(BI_HCHI_AGSd_Low!$A17,CurrentHeader,0),FALSE)","v":1.95E-2},1.0725,null,null,null,-1.0725,-1,0]
["Group 1 Volumetric DVA Rider (General)",null,null,null,{"$f":"IF($C$9=\"kWh\",$C$4,$C$5)","v":55},{"$f":"VLOOKUP($C$3,'Data Proposed Rates'!$A:$AZ,MATCH(BI_HCHI_AGSd_Low!$A18,ProposedHeader,0),FALSE)","v":-5.8400000000000001E-2},-3.2120000000000002,-3.2120000000000002,"N/A",-1.3990530651359519E-3]
["Group 1 Volumetric Deferral/Variance Account Rider (Sub-Account RSVA Wholesale Market Service Charge & RSVA Power) ",null,null,null,55,{"$f":"VLOOKUP($C$3,'Data Proposed Rates'!$A:$AZ,MATCH(BI_HCHI_AGSd_Low!$A19,ProposedHeader,0),FALSE)","v":-8.1000000000000003E-2},-4.4550000000000001,-4.4550000000000001,"N/A",-1.9404674362330839E-3]
["Group 1 Volumetric Deferral/Variance Account Rider (Sub-Account Global Adjustment)",null,null,null,{"$f":"C4","v":10880},{"$f":"VLOOKUP($C$3,'Data Proposed Rates'!$A:$AZ,MATCH(BI_HCHI_AGSd_Low!$A20,ProposedHeader,0),FALSE)","v":-6.9999999999999999E-4},-7.6159999999999997,-7.6159999999999997,"N/A",-3.3173063960384211E-3]
["Sub-Total:  Distribution",null,null,{"$f":"SUM(INDIRECT(\"D14:D\"&ROW()-1))","v":320.15599999999995},null,null,{"$f":"SUM(INDIRECT(\"g14:g\"&ROW()-1))","v":380.79},{"$f":"G21-D21","v":60.634000000000071},0.18938892290008646,0.16586096409499351]
["Retail Transmission Rate – Network Service Rate",{"$f":"IF($B$9=\"kWh\",$B$4,$B$5)","v":55},{"$f":"VLOOKUP($B$3,'Data Current Rates'!$A:$AP,MATCH(BI_HCHI_AGSd_Low!$A22,CurrentHeader,0),FALSE)","v":3.0442},{"$f":"B22*C22","v":167.43100000000001},{"$f":"IF($C$9=\"kWh\",$C$4,$C$5)","v":55},{"$f":"VLOOKUP($C$3,'Data Proposed Rates'!$A:$AZ,MATCH(BI_HCHI_AGSd_Low!$A22,ProposedHeader,0),FALSE)","v":2.4941},{"$f":"E22*F22","v":137.1755},{"$f":"G22-D22","v":-30.255500000000012},-0.18070429012548458,5.9749627564307836E-2]
["Retail Transmission Rate – Line and Transformation Connection Service Rate",{"$f":"IF($B$9=\"kWh\",$B$4,$B$5)","v":55},{"$f":"VLOOKUP($B$3,'Data Current Rates'!$A:$AP,MATCH(BI_HCHI_AGSd_Low!$A23,CurrentHeader,0),FALSE)","v":2.4142999999999999},{"$f":"B23*C23","v":132.78649999999999},{"$f":"IF($C$9=\"kWh\",$C$4,$C$5)","v":55},{"$f":"VLOOKUP($C$3,'Data Proposed Rates'!$A:$AZ,MATCH(BI_HCHI_AGSd_Low!$A23,ProposedHeader,0),FALSE)","v":1.9177999999999999},{"$f":"E23*F23","v":105.479},{"$f":"G23-D23","v":-27.30749999999999},-0.20564967071200757,4.5943561101330965E-2]
["Sub-Total:  Retail Transmission ",null,null,{"$f":"SUM(D22:D23)","v":300.21749999999997},null,null,{"$f":"SUM(G22:G23)","v":242.65449999999998},{"$f":"G24-D24","v":-57.562999999999988},-0.1917376568654392,0.10569318866563879]
["Sub-Total:  Delivery (based on two-tier RPP prices)",null,null,{"$f":"SUM(D21,D24)","v":620.37349999999992},null,null,{"$f":"SUM(G21,G24)","v":623.44450000000006},{"$f":"G25-D25","v":3.0710000000001401},4.9502436838455227E-3,0.27155415276063233]
["Wholesale Market Service Rate (WMS) - not including CBR",{"$f":"B8","v":11476.224},{"$f":"VLOOKUP($A26,'Data Pass Through'!$A:$D,2,FALSE)","v":3.0000000000000001E-3},{"$f":"B26*C26","v":34.428671999999999},{"$f":"$C$8","v":11456.64},{"$f":"VLOOKUP($A26,'Data Pass Through'!$A:$D,3,FALSE)","v":3.0000000000000001E-3},{"$f":"E26*F26","v":34.36992},{"$f":"G26-D26","v":-5.8751999999998361E-2},-1.7064846416381778E-3,1.4970529864407675E-2]
["Capacity Based Recovery (CBR) - Applicable for Class B Customers",{"$f":"B8","v":11476.224},{"$f":"VLOOKUP($A27,'Data Pass Through'!$A:$D,2,FALSE)","v":4.0000000000000002E-4},{"$f":"B27*C27","v":4.5904896000000006},{"$f":"$C$8","v":11456.64},{"$f":"VLOOKUP($A27,'Data Pass Through'!$A:$D,3,FALSE)","v":4.0000000000000002E-4},{"$f":"E27*F27","v":4.5826560000000001},-7.8336000000005512E-3,-1.7064846416383452E-3,1.99607064858769E-3]
["Rural Rate Protection Charge",{"$f":"B8","v":11476.224},{"$f":"VLOOKUP($A28,'Data Pass Through'!$A:$D,2,FALSE)","v":5.0000000000000001E-4},5.7381120000000001,11456.64,{"$f":"VLOOKUP($A28,'Data Pass Through'!$A:$D,3,FALSE)","v":5.0000000000000001E-4},5.7283200000000001,-9.7920000000000229E-3,-1.7064846416382292E-3,2.4950883107346124E-3]
["Standard Supply Service – Administration Charge (if applicable)",1,{"$f":"VLOOKUP($A29,'Data Pass Through'!$A:$D,2,FALSE)","v":0.25},{"$f":"B29*C29","v":0.25},{"$f":"B29","v":1},{"$f":"VLOOKUP($A29,'Data Pass Through'!$A:$D,3,FALSE)","v":0.25},0.25,0,0,1.0889267318928641E-4]
["Sub-Total:  Regulatory",null,null,{"$f":"SUM(D26:D29)","v":45.007273599999998},null,null,{"$f":"SUM(G26:G29)","v":44.930896000000004},-7.6377599999993606E-2,-1.6970057035401854E-3,1.9570581496919266E-2]
["Total  Electricty Charge on WAHSP",null,null,{"$f":"SUM(D13,D25,D30)","v":2031.0514295999999},null,null,{"$f":"SUM(G13,G25,G30)","v":2031.7155560000001},0.66412640000021383,3.2698650084454458E-4,0.88495575221238942]
["     HST",null,0.13,{"$f":"D31*C32","v":264.03668584799999},null,{"$f":"C32","v":0.13},{"$f":"G31*F32","v":264.12302228000004},8.633643200005281E-2,3.2698650084463928E-4,0.11504424778761063]
["Total Amount on WAHSP",null,null,{"$f":"SUM(D31:D32)","v":2295.0881154479998},null,null,{"$f":"SUM(G31:G32)","v":2295.8385782800001},0.75046283200026664,3.2698650084455547E-4,1]

{"sheet":"BI_HCHI_AGSd_Avg","index":104,"n_rows":33,"n_cols":10,"rows_kept":33,"cut":false,"hidden":false,"merged":[[0,0,0,9]]}
["2023 Bill Impacts (Average Consumption Level) - AGSd_HCHI"]
[]
["Rate Class",{"$f":"VLOOKUP(A1,'Data BI List Acq_Seas'!C:E,2,FALSE)","v":"HCHI_GS >50"},{"$f":"VLOOKUP(A1,'Data BI List Acq_Seas'!C:E,3,FALSE)","v":"AGSd-HCHI"}]
["Monthly Consumption (kWh)",{"$f":"IF(COUNTIF(A1,\"*Low*\")>0,VLOOKUP(B3,'Data Billing Quantities'!$A:$Z,MATCH(\"Low kWh\",'Data Billing Quantities'!4:4,0),FALSE),IF(COUNTIF(A1,\"*Typical*\")>0,VLOOKUP(B3,'Data Billing Quantities'!$A:$Z,MATCH(\"Typical kWh\",'Data Billing Quantities'!4:4,0),FALSE),IF(COUNTIF(A1,\"*Average*\")>0,VLOOKUP(B3,'Data Billing Quantities'!$A:$Z,MATCH(\"Average kWh\",'Data Billing Quantities'!4:4,0),FALSE),IF(COUNTIF(A1,\"*High*\")>0,VLOOKUP(B3,'Data Billing Quantities'!$A:$Z,MATCH(\"High kWh\",'Data Billing Quantities'!4:4,0),FALSE),\"error\"))))","v":57529},{"$f":"B4","v":57529}]
["Peak (kW)",{"$f":"IF(COUNTIF(A1,\"*Low*\")>0,VLOOKUP(B3,'Data Billing Quantities'!$A:$Z,MATCH(\"Low kW\",'Data Billing Quantities'!4:4,0),FALSE),IF(COUNTIF(A1,\"*Typical*\")>0,VLOOKUP(B3,'Data Billing Quantities'!$A:$Z,MATCH(\"Typical kW\",'Data Billing Quantities'!4:4,0),FALSE),IF(COUNTIF(A1,\"*Average*\")>0,VLOOKUP(B3,'Data Billing Quantities'!$A:$Z,MATCH(\"Average kW\",'Data Billing Quantities'!4:4,0),FALSE),IF(COUNTIF(A1,\"*High*\")>0,VLOOKUP(B3,'Data Billing Quantities'!$A:$Z,MATCH(\"High kW\",'Data Billing Quantities'!4:4,0),FALSE),\"error\"))))","v":175},{"$f":"B5","v":175}]
["Loss factor",{"$f":"VLOOKUP(B3,'Data Billing Quantities'!A:D,MATCH(A6,'Data Billing Quantities'!4:4,0),FALSE)","v":1.0548},{"$f":"VLOOKUP(C3,'Data Billing Quantities'!A:D,MATCH(A6,'Data Billing Quantities'!4:4,0),FALSE)","v":1.0529999999999999}]
["Commodity Threshold",{"$f":"VLOOKUP(B3,'Data Billing Quantities'!A:D,MATCH(A7,'Data Billing Quantities'!4:4,0),FALSE)","v":0},{"$f":"B7","v":0}]
["Monthly Consumption (kWh) - Uplifted",{"$f":"B4*B6","v":60681.589199999995},{"$f":"C4*C6","v":60578.036999999997}]
["Charge determinant",{"$f":"VLOOKUP(B3,'Data Billing Quantities'!A:D,MATCH(A9,'Data Billing Quantities'!4:4,0),FALSE)","v":"kW"},{"$f":"VLOOKUP(C3,'Data Billing Quantities'!A:D,MATCH(A9,'Data Billing Quantities'!4:4,0),FALSE)","v":"kW"}]
[]
[null,"Volume","Current Rate ($)","Current Charge ($)","Volume","Proposed Rate ($)","Proposed Charge ($)","Change ($)","Change (%)","% of Total Bill"]
["Weighted Average Hourly Spot Price",{"$f":"B8","v":60681.589199999995},{"$f":"VLOOKUP($A12,'Data Pass Through'!$A:$D,2,FALSE)","v":0.11899999999999999},{"$f":"B12*C12","v":7221.1091147999987},{"$f":"C8","v":60578.036999999997},{"$f":"VLOOKUP($A12,'Data Pass Through'!$A:$D,3,FALSE)","v":0.11899999999999999},{"$f":"E12*F12","v":7208.7864029999992},{"$f":"G12-D12","v":-12.322711799999524},{"$f":"IF(ISERROR(H12/ABS(D12)),\"N/A\",(H12/ABS(D12)))","v":-1.7064846416381598E-3},{"$f":"G12/G$33","v":0.7057379755740445}]
["Sub-Total:  Energy (WAHSP)",null,null,{"$f":"SUM(D12:D12)","v":7221.1091147999987},null,null,{"$f":"SUM(G12:G12)","v":7208.7864029999992},-12.322711799999524,-1.7064846416381598E-3,0.7057379755740445]
["Service Charge",1,{"$f":"VLOOKUP($B$3,'Data Current Rates'!$A:$AP,MATCH(BI_HCHI_AGSd_Avg!$A14,CurrentHeader,0),FALSE)","v":86.56},{"$f":"B14*C14","v":86.56},1,{"$f":"VLOOKUP($C$3,'Data Proposed Rates'!$A:$AZ,MATCH(BI_HCHI_AGSd_Avg!$A14,ProposedHeader,0),FALSE)","v":171.2},{"$f":"E14*F14","v":171.2},84.639999999999986,0.97781885397412183,1.6760427437272261E-2]
["Distribution Volumetric Charge",{"$f":"IF($B$9=\"kWh\",$B$4,$B$5)","v":175},{"$f":"VLOOKUP($B$3,'Data Current Rates'!$A:$AP,MATCH(BI_HCHI_AGSd_Avg!$A15,CurrentHeader,0),FALSE)","v":4.0727000000000002},{"$f":"B15*C15","v":712.72250000000008},{"$f":"IF($C$9=\"kWh\",$C$4,$C$5)","v":175},{"$f":"VLOOKUP($C$3,'Data Proposed Rates'!$A:$AZ,MATCH(BI_HCHI_AGSd_Avg!$A15,ProposedHeader,0),FALSE)","v":4.0885999999999996},715.50499999999988,2.7824999999997999,3.9040440002943637E-3,7.0047719821877866E-2]
["Low Voltage Service Rate",{"$f":"IF($B$9=\"kWh\",$B$4,$B$5)","v":175},{"$f":"VLOOKUP($B$3,'Data Current Rates'!$A:$AP,MATCH(BI_HCHI_AGSd_Avg!$A16,CurrentHeader,0),FALSE)","v":0.155},27.125,null,null,null,-27.125,-1,0]
["Funding Adder for Renewable Energy Generation",175,{"$f":"VLOOKUP($B$3,'Data Current Rates'!$A:$AP,MATCH(BI_HCHI_AGSd_Avg!$A17,CurrentHeader,0),FALSE)","v":1.95E-2},3.4125000000000001,null,null,null,-3.4125000000000001,-1,0]
["Group 1 Volumetric DVA Rider (General)",null,null,null,{"$f":"IF($C$9=\"kWh\",$C$4,$C$5)","v":175},{"$f":"VLOOKUP($C$3,'Data Proposed Rates'!$A:$AZ,MATCH(BI_HCHI_AGSd_Avg!$A18,ProposedHeader,0),FALSE)","v":-5.8400000000000001E-2},-10.220000000000001,-10.220000000000001,"N/A",-1.0005348622016503E-3]
["Group 1 Volumetric Deferral/Variance Account Rider (Sub-Account RSVA Wholesale Market Service Charge & RSVA Power) ",null,null,null,175,{"$f":"VLOOKUP($C$3,'Data Proposed Rates'!$A:$AZ,MATCH(BI_HCHI_AGSd_Avg!$A19,ProposedHeader,0),FALSE)","v":-8.1000000000000003E-2},-14.175000000000001,-14.175000000000001,"N/A",-1.3877281479166726E-3]
["Group 1 Volumetric Deferral/Variance Account Rider (Sub-Account Global Adjustment)",null,null,null,{"$f":"C4","v":57529},{"$f":"VLOOKUP($C$3,'Data Proposed Rates'!$A:$AZ,MATCH(BI_HCHI_AGSd_Avg!$A20,ProposedHeader,0),FALSE)","v":-6.9999999999999999E-4},-40.270299999999999,-40.270299999999999,"N/A",-3.9424500059999142E-3]
["Sub-Total:  Distribution",null,null,{"$f":"SUM(INDIRECT(\"D14:D\"&ROW()-1))","v":829.82},null,null,{"$f":"SUM(INDIRECT(\"g14:g\"&ROW()-1))","v":822.03969999999993},{"$f":"G21-D21","v":-7.7803000000001248},-9.3758887469573213E-3,8.0477434243031887E-2]
["Retail Transmission Rate – Network Service Rate",{"$f":"IF($B$9=\"kWh\",$B$4,$B$5)","v":175},{"$f":"VLOOKUP($B$3,'Data Current Rates'!$A:$AP,MATCH(BI_HCHI_AGSd_Avg!$A22,CurrentHeader,0),FALSE)","v":3.0442},{"$f":"B22*C22","v":532.73500000000001},{"$f":"IF($C$9=\"kWh\",$C$4,$C$5)","v":175},{"$f":"VLOOKUP($C$3,'Data Proposed Rates'!$A:$AZ,MATCH(BI_HCHI_AGSd_Avg!$A22,ProposedHeader,0),FALSE)","v":2.4941},{"$f":"E22*F22","v":436.46749999999997},{"$f":"G22-D22","v":-96.267500000000041},-0.18070429012548461,4.2730034243444112E-2]
["Retail Transmission Rate – Line and Transformation Connection Service Rate",{"$f":"IF($B$9=\"kWh\",$B$4,$B$5)","v":175},{"$f":"VLOOKUP($B$3,'Data Current Rates'!$A:$AP,MATCH(BI_HCHI_AGSd_Avg!$A23,CurrentHeader,0),FALSE)","v":2.4142999999999999},{"$f":"B23*C23","v":422.5025},{"$f":"IF($C$9=\"kWh\",$C$4,$C$5)","v":175},{"$f":"VLOOKUP($C$3,'Data Proposed Rates'!$A:$AZ,MATCH(BI_HCHI_AGSd_Avg!$A23,ProposedHeader,0),FALSE)","v":1.9177999999999999},{"$f":"E23*F23","v":335.61500000000001},{"$f":"G23-D23","v":-86.887499999999989},-0.2056496707120076,3.2856605457711047E-2]
["Sub-Total:  Retail Transmission ",null,null,{"$f":"SUM(D22:D23)","v":955.23749999999995},null,null,{"$f":"SUM(G22:G23)","v":772.08249999999998},{"$f":"G24-D24","v":-183.15499999999997},-0.1917376568654392,7.5586639701155159E-2]
["Sub-Total:  Delivery (based on two-tier RPP prices)",null,null,{"$f":"SUM(D21,D24)","v":1785.0574999999999},null,null,{"$f":"SUM(G21,G24)","v":1594.1221999999998},{"$f":"G25-D25","v":-190.9353000000001},-0.10696310903150184,0.15606407394418703]
["Wholesale Market Service Rate (WMS) - not including CBR",{"$f":"B8","v":60681.589199999995},{"$f":"VLOOKUP($A26,'Data Pass Through'!$A:$D,2,FALSE)","v":3.0000000000000001E-3},{"$f":"B26*C26","v":182.0447676},{"$f":"$C$8","v":60578.036999999997},{"$f":"VLOOKUP($A26,'Data Pass Through'!$A:$D,3,FALSE)","v":3.0000000000000001E-3},{"$f":"E26*F26","v":181.73411099999998},{"$f":"G26-D26","v":-0.31065660000001571},-1.7064846416383116E-3,1.7791713669933897E-2]
["Capacity Based Recovery (CBR) - Applicable for Class B Customers",{"$f":"B8","v":60681.589199999995},{"$f":"VLOOKUP($A27,'Data Pass Through'!$A:$D,2,FALSE)","v":4.0000000000000002E-4},{"$f":"B27*C27","v":24.27263568},{"$f":"$C$8","v":60578.036999999997},{"$f":"VLOOKUP($A27,'Data Pass Through'!$A:$D,3,FALSE)","v":4.0000000000000002E-4},{"$f":"E27*F27","v":24.2312148},-4.1420880000000437E-2,-1.7064846416382433E-3,2.3722284893245198E-3]
["Rural Rate Protection Charge",{"$f":"B8","v":60681.589199999995},{"$f":"VLOOKUP($A28,'Data Pass Through'!$A:$D,2,FALSE)","v":5.0000000000000001E-4},30.340794599999999,60578.036999999997,{"$f":"VLOOKUP($A28,'Data Pass Through'!$A:$D,3,FALSE)","v":5.0000000000000001E-4},30.289018499999997,-5.1776100000001435E-2,-1.7064846416382725E-3,2.9652856116556491E-3]
["Standard Supply Service – Administration Charge (if applicable)",1,{"$f":"VLOOKUP($A29,'Data Pass Through'!$A:$D,2,FALSE)","v":0.25},{"$f":"B29*C29","v":0.25},{"$f":"B29","v":1},{"$f":"VLOOKUP($A29,'Data Pass Through'!$A:$D,3,FALSE)","v":0.25},0.25,0,0,2.4474923243680291E-5]
["Sub-Total:  Regulatory",null,null,{"$f":"SUM(D26:D29)","v":236.90819788000002},null,null,{"$f":"SUM(G26:G29)","v":236.50434429999999},-0.4038535800000318,-1.7046838548178643E-3,2.3153702694157747E-2]
["Total  Electricty Charge on WAHSP",null,null,{"$f":"SUM(D13,D25,D30)","v":9243.074812679999},null,null,{"$f":"SUM(G13,G25,G30)","v":9039.4129472999994},-203.66186537999965,-2.2033995126882304E-2,0.88495575221238931]
["     HST",null,0.13,{"$f":"D31*C32","v":1201.5997256484},null,{"$f":"C32","v":0.13},{"$f":"G31*F32","v":1175.123683149},-26.47604249939991,-2.2033995126882262E-2,0.11504424778761063]
["Total Amount on WAHSP",null,null,{"$f":"SUM(D31:D32)","v":10444.6745383284},null,null,{"$f":"SUM(G31:G32)","v":10214.536630449},-230.13790787939979,-2.2033995126882318E-2,1]

{"sheet":"BI_HCHI_AGSd_High","index":105,"n_rows":33,"n_cols":10,"rows_kept":33,"cut":false,"hidden":false,"merged":[[0,0,0,9]]}
["2023 Bill Impacts (High Consumption Level) - AGSd_HCHI"]
[]
["Rate Class",{"$f":"VLOOKUP(A1,'Data BI List Acq_Seas'!C:E,2,FALSE)","v":"HCHI_GS >50"},{"$f":"VLOOKUP(A1,'Data BI List Acq_Seas'!C:E,3,FALSE)","v":"AGSd-HCHI"}]
["Monthly Consumption (kWh)",{"$f":"IF(COUNTIF(A1,\"*Low*\")>0,VLOOKUP(B3,'Data Billing Quantities'!$A:$Z,MATCH(\"Low kWh\",'Data Billing Quantities'!4:4,0),FALSE),IF(COUNTIF(A1,\"*Typical*\")>0,VLOOKUP(B3,'Data Billing Quantities'!$A:$Z,MATCH(\"Typical kWh\",'Data Billing Quantities'!4:4,0),FALSE),IF(COUNTIF(A1,\"*Average*\")>0,VLOOKUP(B3,'Data Billing Quantities'!$A:$Z,MATCH(\"Average kWh\",'Data Billing Quantities'!4:4,0),FALSE),IF(COUNTIF(A1,\"*High*\")>0,VLOOKUP(B3,'Data Billing Quantities'!$A:$Z,MATCH(\"High kWh\",'Data Billing Quantities'!4:4,0),FALSE),\"error\"))))","v":135160},{"$f":"B4","v":135160}]
["Peak (kW)",{"$f":"IF(COUNTIF(A1,\"*Low*\")>0,VLOOKUP(B3,'Data Billing Quantities'!$A:$Z,MATCH(\"Low kW\",'Data Billing Quantities'!4:4,0),FALSE),IF(COUNTIF(A1,\"*Typical*\")>0,VLOOKUP(B3,'Data Billing Quantities'!$A:$Z,MATCH(\"Typical kW\",'Data Billing Quantities'!4:4,0),FALSE),IF(COUNTIF(A1,\"*Average*\")>0,VLOOKUP(B3,'Data Billing Quantities'!$A:$Z,MATCH(\"Average kW\",'Data Billing Quantities'!4:4,0),FALSE),IF(COUNTIF(A1,\"*High*\")>0,VLOOKUP(B3,'Data Billing Quantities'!$A:$Z,MATCH(\"High kW\",'Data Billing Quantities'!4:4,0),FALSE),\"error\"))))","v":375},{"$f":"B5","v":375}]
["Loss factor",{"$f":"VLOOKUP(B3,'Data Billing Quantities'!A:D,MATCH(A6,'Data Billing Quantities'!4:4,0),FALSE)","v":1.0548},{"$f":"VLOOKUP(C3,'Data Billing Quantities'!A:D,MATCH(A6,'Data Billing Quantities'!4:4,0),FALSE)","v":1.0529999999999999}]
["Commodity Threshold",{"$f":"VLOOKUP(B3,'Data Billing Quantities'!A:D,MATCH(A7,'Data Billing Quantities'!4:4,0),FALSE)","v":0},{"$f":"B7","v":0}]
["Monthly Consumption (kWh) - Uplifted",{"$f":"B4*B6","v":142566.76799999998},{"$f":"C4*C6","v":142323.47999999998}]
["Charge determinant",{"$f":"VLOOKUP(B3,'Data Billing Quantities'!A:D,MATCH(A9,'Data Billing Quantities'!4:4,0),FALSE)","v":"kW"},{"$f":"VLOOKUP(C3,'Data Billing Quantities'!A:D,MATCH(A9,'Data Billing Quantities'!4:4,0),FALSE)","v":"kW"}]
[]
[null,"Volume","Current Rate ($)","Current Charge ($)","Volume","Proposed Rate ($)","Proposed Charge ($)","Change ($)","Change (%)","% of Total Bill"]
["Weighted Average Hourly Spot Price",{"$f":"B8","v":142566.76799999998},{"$f":"VLOOKUP($A12,'Data Pass Through'!$A:$D,2,FALSE)","v":0.11899999999999999},{"$f":"B12*C12","v":16965.445391999998},{"$f":"C8","v":142323.47999999998},{"$f":"VLOOKUP($A12,'Data Pass Through'!$A:$D,3,FALSE)","v":0.11899999999999999},{"$f":"E12*F12","v":16936.494119999996},{"$f":"G12-D12","v":-28.951272000002064},{"$f":"IF(ISERROR(H12/ABS(D12)),\"N/A\",(H12/ABS(D12)))","v":-1.7064846416383471E-3},{"$f":"G12/G$33","v":0.7239271733328303}]
["Sub-Total:  Energy (WAHSP)",null,null,{"$f":"SUM(D12:D12)","v":16965.445391999998},null,null,{"$f":"SUM(G12:G12)","v":16936.494119999996},-28.951272000002064,-1.7064846416383471E-3,0.7239271733328303]
["Service Charge",1,{"$f":"VLOOKUP($B$3,'Data Current Rates'!$A:$AP,MATCH(BI_HCHI_AGSd_High!$A14,CurrentHeader,0),FALSE)","v":86.56},{"$f":"B14*C14","v":86.56},1,{"$f":"VLOOKUP($C$3,'Data Proposed Rates'!$A:$AZ,MATCH(BI_HCHI_AGSd_High!$A14,ProposedHeader,0),FALSE)","v":171.2},{"$f":"E14*F14","v":171.2},84.639999999999986,0.97781885397412183,7.3177088006794976E-3]
["Distribution Volumetric Charge",{"$f":"IF($B$9=\"kWh\",$B$4,$B$5)","v":375},{"$f":"VLOOKUP($B$3,'Data Current Rates'!$A:$AP,MATCH(BI_HCHI_AGSd_High!$A15,CurrentHeader,0),FALSE)","v":4.0727000000000002},{"$f":"B15*C15","v":1527.2625},{"$f":"IF($C$9=\"kWh\",$C$4,$C$5)","v":375},{"$f":"VLOOKUP($C$3,'Data Proposed Rates'!$A:$AZ,MATCH(BI_HCHI_AGSd_High!$A15,ProposedHeader,0),FALSE)","v":4.0885999999999996},1533.2249999999999,5.9624999999998636,3.9040440002945554E-3,6.5535596237861121E-2]
["Low Voltage Service Rate",{"$f":"IF($B$9=\"kWh\",$B$4,$B$5)","v":375},{"$f":"VLOOKUP($B$3,'Data Current Rates'!$A:$AP,MATCH(BI_HCHI_AGSd_High!$A16,CurrentHeader,0),FALSE)","v":0.155},58.125,null,null,null,-58.125,-1,0]
["Funding Adder for Renewable Energy Generation",375,{"$f":"VLOOKUP($B$3,'Data Current Rates'!$A:$AP,MATCH(BI_HCHI_AGSd_High!$A17,CurrentHeader,0),FALSE)","v":1.95E-2},7.3125,null,null,null,-7.3125,-1,0]
["Group 1 Volumetric DVA Rider (General)",null,null,null,{"$f":"IF($C$9=\"kWh\",$C$4,$C$5)","v":375},{"$f":"VLOOKUP($C$3,'Data Proposed Rates'!$A:$AZ,MATCH(BI_HCHI_AGSd_High!$A18,ProposedHeader,0),FALSE)","v":-5.8400000000000001E-2},-21.9,-21.9,"N/A",-9.3608541317103386E-4]
["Group 1 Volumetric Deferral/Variance Account Rider (Sub-Account RSVA Wholesale Market Service Charge & RSVA Power) ",null,null,null,375,{"$f":"VLOOKUP($C$3,'Data Proposed Rates'!$A:$AZ,MATCH(BI_HCHI_AGSd_High!$A19,ProposedHeader,0),FALSE)","v":-8.1000000000000003E-2},-30.375,-30.375,"N/A",-1.2983376449803724E-3]
["Group 1 Volumetric Deferral/Variance Account Rider (Sub-Account Global Adjustment)",null,null,null,{"$f":"C4","v":135160},{"$f":"VLOOKUP($C$3,'Data Proposed Rates'!$A:$AZ,MATCH(BI_HCHI_AGSd_High!$A20,ProposedHeader,0),FALSE)","v":-6.9999999999999999E-4},-94.611999999999995,-94.611999999999995,"N/A",-4.0440599594035549E-3]
["Sub-Total:  Distribution",null,null,{"$f":"SUM(INDIRECT(\"D14:D\"&ROW()-1))","v":1679.26},null,null,{"$f":"SUM(INDIRECT(\"g14:g\"&ROW()-1))","v":1557.5379999999998},{"$f":"G21-D21","v":-121.72200000000021},-7.2485499565284828E-2,6.6574822020985649E-2]
["Retail Transmission Rate – Network Service Rate",{"$f":"IF($B$9=\"kWh\",$B$4,$B$5)","v":375},{"$f":"VLOOKUP($B$3,'Data Current Rates'!$A:$AP,MATCH(BI_HCHI_AGSd_High!$A22,CurrentHeader,0),FALSE)","v":3.0442},{"$f":"B22*C22","v":1141.575},{"$f":"IF($C$9=\"kWh\",$C$4,$C$5)","v":375},{"$f":"VLOOKUP($C$3,'Data Proposed Rates'!$A:$AZ,MATCH(BI_HCHI_AGSd_High!$A22,ProposedHeader,0),FALSE)","v":2.4941},{"$f":"E22*F22","v":935.28750000000002},{"$f":"G22-D22","v":-206.28750000000002},-0.18070429012548453,3.997757926352527E-2]
["Retail Transmission Rate – Line and Transformation Connection Service Rate",{"$f":"IF($B$9=\"kWh\",$B$4,$B$5)","v":375},{"$f":"VLOOKUP($B$3,'Data Current Rates'!$A:$AP,MATCH(BI_HCHI_AGSd_High!$A23,CurrentHeader,0),FALSE)","v":2.4142999999999999},{"$f":"B23*C23","v":905.36249999999995},{"$f":"IF($C$9=\"kWh\",$C$4,$C$5)","v":375},{"$f":"VLOOKUP($C$3,'Data Proposed Rates'!$A:$AZ,MATCH(BI_HCHI_AGSd_High!$A23,ProposedHeader,0),FALSE)","v":1.9177999999999999},{"$f":"E23*F23","v":719.17499999999995},{"$f":"G23-D23","v":-186.1875},-0.20564967071200763,3.0740147352387136E-2]
["Sub-Total:  Retail Transmission ",null,null,{"$f":"SUM(D22:D23)","v":2046.9375},null,null,{"$f":"SUM(G22:G23)","v":1654.4625000000001},{"$f":"G24-D24","v":-392.47499999999991},-0.19173765686543917,7.0717726615912413E-2]
["Sub-Total:  Delivery (based on two-tier RPP prices)",null,null,{"$f":"SUM(D21,D24)","v":3726.1975000000002},null,null,{"$f":"SUM(G21,G24)","v":3212.0005000000001},{"$f":"G25-D25","v":-514.19700000000012},-0.13799510090380343,0.13729254863689808]
["Wholesale Market Service Rate (WMS) - not including CBR",{"$f":"B8","v":142566.76799999998},{"$f":"VLOOKUP($A26,'Data Pass Through'!$A:$D,2,FALSE)","v":3.0000000000000001E-3},{"$f":"B26*C26","v":427.70030399999996},{"$f":"$C$8","v":142323.47999999998},{"$f":"VLOOKUP($A26,'Data Pass Through'!$A:$D,3,FALSE)","v":3.0000000000000001E-3},{"$f":"E26*F26","v":426.97043999999994},{"$f":"G26-D26","v":-0.7298640000000205},-1.7064846416382734E-3,1.8250264873936901E-2]
["Capacity Based Recovery (CBR) - Applicable for Class B Customers",{"$f":"B8","v":142566.76799999998},{"$f":"VLOOKUP($A27,'Data Pass Through'!$A:$D,2,FALSE)","v":4.0000000000000002E-4},{"$f":"B27*C27","v":57.026707199999997},{"$f":"$C$8","v":142323.47999999998},{"$f":"VLOOKUP($A27,'Data Pass Through'!$A:$D,3,FALSE)","v":4.0000000000000002E-4},{"$f":"E27*F27","v":56.929391999999993},-9.7315200000004154E-2,-1.7064846416382981E-3,2.4333686498582536E-3]
["Rural Rate Protection Charge",{"$f":"B8","v":142566.76799999998},{"$f":"VLOOKUP($A28,'Data Pass Through'!$A:$D,2,FALSE)","v":5.0000000000000001E-4},71.283383999999998,142323.47999999998,{"$f":"VLOOKUP($A28,'Data Pass Through'!$A:$D,3,FALSE)","v":5.0000000000000001E-4},71.161739999999995,-0.12164400000000342,-1.7064846416382732E-3,3.0417108123228171E-3]
["Standard Supply Service – Administration Charge (if applicable)",1,{"$f":"VLOOKUP($A29,'Data Pass Through'!$A:$D,2,FALSE)","v":0.25},{"$f":"B29*C29","v":0.25},{"$f":"B29","v":1},{"$f":"VLOOKUP($A29,'Data Pass Through'!$A:$D,3,FALSE)","v":0.25},0.25,0,0,1.0685906543048334E-5]
["Sub-Total:  Regulatory",null,null,{"$f":"SUM(D26:D29)","v":556.26039519999995},null,null,{"$f":"SUM(G26:G29)","v":555.31157199999996},-0.94882319999999254,-1.7057176965813809E-3,2.3736030242661021E-2]
["Total  Electricty Charge on WAHSP",null,null,{"$f":"SUM(D13,D25,D30)","v":21247.903287199995},null,null,{"$f":"SUM(G13,G25,G30)","v":20703.806191999996},-544.09709519999888,-2.5607095808261225E-2,0.88495575221238942]
["     HST",null,0.13,{"$f":"D31*C32","v":2762.2274273359994},null,{"$f":"C32","v":0.13},{"$f":"G31*F32","v":2691.4948049599998},-70.732622375999654,-2.5607095808261152E-2,0.11504424778761063]
["Total Amount on WAHSP",null,null,{"$f":"SUM(D31:D32)","v":24010.130714535993},null,null,{"$f":"SUM(G31:G32)","v":23395.300996959995},-614.82971757599807,-2.5607095808261197E-2,1]

{"sheet":"BI_WHSI_USL_Avg","index":106,"n_rows":35,"n_cols":10,"rows_kept":35,"cut":false,"hidden":false,"merged":[[0,0,0,9]]}
["2023 Bill Impacts (Average Consumption Level) - USL_WHSI"]
[]
["Rate Class",{"$f":"VLOOKUP(A1,'Data BI List Acq_Seas'!C:E,2,FALSE)","v":"WHSI_USL"},{"$f":"VLOOKUP(A1,'Data BI List Acq_Seas'!C:E,3,FALSE)","v":"USL-WHSI"}]
["Monthly Consumption (kWh)",{"$f":"IF(COUNTIF(A1,\"*Low*\")>0,VLOOKUP(B3,'Data Billing Quantities'!$A:$Z,MATCH(\"Low kWh\",'Data Billing Quantities'!4:4,0),FALSE),IF(COUNTIF(A1,\"*Typical*\")>0,VLOOKUP(B3,'Data Billing Quantities'!$A:$Z,MATCH(\"Typical kWh\",'Data Billing Quantities'!4:4,0),FALSE),IF(COUNTIF(A1,\"*Average*\")>0,VLOOKUP(B3,'Data Billing Quantities'!$A:$Z,MATCH(\"Average kWh\",'Data Billing Quantities'!4:4,0),FALSE),IF(COUNTIF(A1,\"*High*\")>0,VLOOKUP(B3,'Data Billing Quantities'!$A:$Z,MATCH(\"High kWh\",'Data Billing Quantities'!4:4,0),FALSE),\"error\"))))","v":1349},{"$f":"B4","v":1349}]
["Peak (kW)",{"$f":"IF(COUNTIF(A1,\"*Low*\")>0,VLOOKUP(B3,'Data Billing Quantities'!$A:$Z,MATCH(\"Low kW\",'Data Billing Quantities'!4:4,0),FALSE),IF(COUNTIF(A1,\"*Typical*\")>0,VLOOKUP(B3,'Data Billing Quantities'!$A:$Z,MATCH(\"Typical kW\",'Data Billing Quantities'!4:4,0),FALSE),IF(COUNTIF(A1,\"*Average*\")>0,VLOOKUP(B3,'Data Billing Quantities'!$A:$Z,MATCH(\"Average kW\",'Data Billing Quantities'!4:4,0),FALSE),IF(COUNTIF(A1,\"*High*\")>0,VLOOKUP(B3,'Data Billing Quantities'!$A:$Z,MATCH(\"High kW\",'Data Billing Quantities'!4:4,0),FALSE),\"error\"))))","v":0},{"$f":"B5","v":0}]
["Loss factor",{"$f":"VLOOKUP(B3,'Data Billing Quantities'!A:D,MATCH(A6,'Data Billing Quantities'!4:4,0),FALSE)","v":1.0430999999999999},{"$f":"VLOOKUP(C3,'Data Billing Quantities'!A:D,MATCH(A6,'Data Billing Quantities'!4:4,0),FALSE)","v":1.0920000000000001}]
["Commodity Threshold",{"$f":"VLOOKUP(B3,'Data Billing Quantities'!A:D,MATCH(A7,'Data Billing Quantities'!4:4,0),FALSE)","v":750},{"$f":"B7","v":750}]
["Monthly Consumption (kWh) - Uplifted",{"$f":"B4*B6","v":1407.1418999999999},{"$f":"C4*C6","v":1473.1080000000002}]
["Charge determinant",{"$f":"VLOOKUP(B3,'Data Billing Quantities'!A:D,MATCH(A9,'Data Billing Quantities'!4:4,0),FALSE)","v":"kWh"},{"$f":"VLOOKUP(C3,'Data Billing Quantities'!A:D,MATCH(A9,'Data Billing Quantities'!4:4,0),FALSE)","v":"kWh"}]
[]
[null,"Volume","Current Rate ($)","Current Charge ($)","Volume","Proposed Rate ($)","Proposed Charge ($)","Change ($)","Change (%)","% of Total Bill"]
["Energy First Tier",{"$f":"IF(B4>B7,B7,B4)","v":750},{"$f":"VLOOKUP($A12,'Data Pass Through'!$A:$D,2,FALSE)","v":9.8000000000000004E-2},{"$f":"B12*C12","v":73.5},{"$f":"B12","v":750},{"$f":"VLOOKUP($A12,'Data Pass Through'!$A:$D,3,FALSE)","v":9.8000000000000004E-2},{"$f":"E12*F12","v":73.5},{"$f":"G12-D12","v":0},{"$f":"IF(ISERROR(H12/ABS(D12)),\"N/A\",(H12/ABS(D12)))","v":0},{"$f":"G12/$G$35","v":0.32256477310574383}]
["Energy Second Tier",{"$f":"IF(B4>B7,(B4)-B7,0)","v":599},{"$f":"VLOOKUP($A13,'Data Pass Through'!$A:$D,2,FALSE)","v":0.115},{"$f":"B13*C13","v":68.885000000000005},{"$f":"B13","v":599},{"$f":"VLOOKUP($A13,'Data Pass Through'!$A:$D,3,FALSE)","v":0.115},{"$f":"E13*F13","v":68.885000000000005},0,0,0.3023112162637982]
["Sub-Total:  Energy (RPP Tiered)",null,null,{"$f":"SUM(D12:D13)","v":142.38499999999999},null,null,{"$f":"SUM(G12:G13)","v":142.38499999999999},0,0,0.62487598936954192]
["Service Charge",{"$f":"IF(VLOOKUP(B$3,'Data Billing Quantities'!A:P,MATCH(\"Acquired Street Light Service Charge\",'Data Billing Quantities'!$4:$4,0),FALSE)>0,VLOOKUP(B$3,'Data Billing Quantities'!A:P,MATCH(\"Acquired Street Light Service Charge\",'Data Billing Quantities'!$4:$4,0),FALSE),1)","v":1},{"$f":"VLOOKUP($B$3,'Data Current Rates'!$A:$AP,MATCH(BI_WHSI_USL_Avg!$A15,CurrentHeader,0),FALSE)","v":10.9},{"$f":"B15*C15","v":10.9},1,{"$f":"VLOOKUP($C$3,'Data Proposed Rates'!$A:$AZ,MATCH(BI_WHSI_USL_Avg!$A15,ProposedHeader,0),FALSE)","v":34.68},{"$f":"E15*F15","v":34.68},23.78,2.1816513761467888,0.15219790926948568]
["Distribution Volumetric Charge",{"$f":"IF($B$9=\"kWh\",$B$4,$B$5)","v":1349},{"$f":"VLOOKUP($B$3,'Data Current Rates'!$A:$AP,MATCH(BI_WHSI_USL_Avg!$A16,CurrentHeader,0),FALSE)","v":1.26E-2},{"$f":"B16*C16","v":16.997399999999999},{"$f":"IF($C$9=\"kWh\",$C$4,$C$5)","v":1349},{"$f":"VLOOKUP($C$3,'Data Proposed Rates'!$A:$AZ,MATCH(BI_WHSI_USL_Avg!$A16,ProposedHeader,0),FALSE)","v":2.1600000000000001E-2},29.138400000000001,12.141000000000002,0.71428571428571441,0.12787784196822322]
["Rate Rider for Recovery of Incremental Capital",{"$f":"IF($B$9=\"kWh\",$B$4,$B$5)","v":1349},{"$f":"VLOOKUP($B$3,'Data Current Rates'!$A:$AP,MATCH(BI_WHSI_USL_Avg!$A17,CurrentHeader,0),FALSE)","v":8.0000000000000004E-4},1.0792000000000002,null,null,null,-1.0792000000000002,-1,0]
["Group 1 Volumetric DVA Rider (General)",null,null,null,{"$f":"IF($C$9=\"kWh\",$C$4,$C$5)","v":1349},{"$f":"VLOOKUP($C$3,'Data Proposed Rates'!$A:$AZ,MATCH(BI_WHSI_USL_Avg!$A18,ProposedHeader,0),FALSE)","v":-5.0000000000000001E-4},-0.67449999999999999,-0.67449999999999999,"N/A",-2.9601352307459076E-3]
["Sub-Total:  Distribution (excluding pass through)",null,null,{"$f":"SUM(INDIRECT(\"D15:D\"&ROW()-1))","v":28.976599999999998},null,null,{"$f":"SUM(INDIRECT(\"g15:g\"&ROW()-1))","v":63.143899999999995},{"$f":"G19-D19","v":34.167299999999997},1.1791341979390266,0.27711561600696294]
["Line Losses on Cost of Power (based on two-tier RPP prices)",{"$f":"B8-B4","v":58.14189999999985},{"$f":"IF(B4>B7,C13,C12)","v":0.115},{"$f":"B20*C20","v":6.6863184999999827},{"$f":"C8-C4","v":124.10800000000017},{"$f":"IF(C4>C7,F13,F12)","v":0.115},{"$f":"E20*F20","v":14.27242000000002},7.5861015000000371,1.1345707656612614,6.2636461482583491E-2]
["Sub-Total:  Distribution (based on two-tier RPP prices)",null,null,{"$f":"SUM(D19,D20:D20)","v":35.662918499999982},null,null,{"$f":"SUM(G19,G20:G20)","v":77.416320000000013},41.753401500000031,1.1707791525811342,0.33975207748954644]
["Retail Transmission Rate – Network Service Rate",{"$f":"IF($B$9=\"kWh\",$B$8,$B$5)","v":1407.1418999999999},{"$f":"VLOOKUP($B$3,'Data Current Rates'!$A:$AP,MATCH(BI_WHSI_USL_Avg!$A22,CurrentHeader,0),FALSE)","v":8.3000000000000001E-3},{"$f":"B22*C22","v":11.679277769999999},{"$f":"IF($C$9=\"kWh\",$C$8,$C$5)","v":1473.1080000000002},{"$f":"VLOOKUP($C$3,'Data Proposed Rates'!$A:$AZ,MATCH(BI_WHSI_USL_Avg!$A22,ProposedHeader,0),FALSE)","v":6.4000000000000003E-3},{"$f":"E22*F22","v":9.4278912000000012},{"$f":"G22-D22","v":-2.2513865699999975},-0.19276761922582458,4.1375586201274003E-2]
["Retail Transmission Rate – Line and Transformation Connection Service Rate",{"$f":"IF($B$9=\"kWh\",$B$8,$B$5)","v":1407.1418999999999},{"$f":"VLOOKUP($B$3,'Data Current Rates'!$A:$AP,MATCH(BI_WHSI_USL_Avg!$A23,CurrentHeader,0),FALSE)","v":6.0000000000000001E-3},{"$f":"B23*C23","v":8.4428513999999986},{"$f":"IF($C$9=\"kWh\",$C$8,$C$5)","v":1473.1080000000002},{"$f":"VLOOKUP($C$3,'Data Proposed Rates'!$A:$AZ,MATCH(BI_WHSI_USL_Avg!$A23,ProposedHeader,0),FALSE)","v":4.7000000000000002E-3},{"$f":"E23*F23","v":6.9236076000000013},{"$f":"G23-D23","v":-1.5192437999999973},-0.17994439651040139,3.0385196116560601E-2]
["Sub-Total:  Retail Transmission ",null,null,{"$f":"SUM(D22:D23)","v":20.122129169999997},null,null,{"$f":"SUM(G22:G23)","v":16.351498800000002},{"$f":"G24-D24","v":-3.7706303699999957},-0.1873872460585142,7.1760782317834601E-2]
["Sub-Total:  Delivery (based on two-tier RPP prices)",null,null,{"$f":"D21+D24","v":55.785047669999983},null,null,{"$f":"G21+G24","v":93.767818800000015},{"$f":"G25-D25","v":37.982771130000032},0.68087727296908562,0.41151285980738106]
["Wholesale Market Service Rate (WMS) - not including CBR",{"$f":"B8","v":1407.1418999999999},{"$f":"VLOOKUP($A26,'Data Pass Through'!$A:$D,2,FALSE)","v":3.0000000000000001E-3},{"$f":"B26*C26","v":4.2214256999999993},{"$f":"$C$8","v":1473.1080000000002},{"$f":"VLOOKUP($A26,'Data Pass Through'!$A:$D,3,FALSE)","v":3.0000000000000001E-3},{"$f":"E26*F26","v":4.4193240000000005},{"$f":"G26-D26","v":0.19789830000000119},4.6879493816508772E-2,1.9394806031847189E-2]
["Capacity Based Recovery (CBR) - Applicable for Class B Customers",{"$f":"B8","v":1407.1418999999999},{"$f":"VLOOKUP($A27,'Data Pass Through'!$A:$D,2,FALSE)","v":4.0000000000000002E-4},{"$f":"B27*C27","v":0.56285675999999996},{"$f":"$C$8","v":1473.1080000000002},{"$f":"VLOOKUP($A27,'Data Pass Through'!$A:$D,3,FALSE)","v":4.0000000000000002E-4},{"$f":"E27*F27","v":0.58924320000000008},2.6386440000000122E-2,4.6879493816508702E-2,2.5859741375796252E-3]
["Rural Rate Protection Charge",{"$f":"B8","v":1407.1418999999999},{"$f":"VLOOKUP($A28,'Data Pass Through'!$A:$D,2,FALSE)","v":5.0000000000000001E-4},0.70357094999999992,1473.1080000000002,{"$f":"VLOOKUP($A28,'Data Pass Through'!$A:$D,3,FALSE)","v":5.0000000000000001E-4},0.73655400000000015,3.2983050000000236E-2,4.6879493816508827E-2,3.2324676719745322E-3]
["Standard Supply Service – Administration Charge (if applicable)",1,{"$f":"VLOOKUP($A29,'Data Pass Through'!$A:$D,2,FALSE)","v":0.25},{"$f":"B29*C29","v":0.25},1,{"$f":"VLOOKUP($A29,'Data Pass Through'!$A:$D,3,FALSE)","v":0.25},0.25,0,0,1.0971590921964075E-3]
["Sub-Total:  Regulatory",null,null,{"$f":"SUM(D26:D29)","v":5.7378534099999987},null,null,{"$f":"SUM(G26:G29)","v":5.9951212000000007},0.25726779000000199,4.4836940161565066E-2,2.6310406933597756E-2]
["Total  Electricty Charge on Two-Tier RPP ",null,null,{"$f":"SUM(D25,D30,D14)","v":203.90790107999999},null,null,{"$f":"SUM(G25,G30,G14)","v":242.14794000000001},38.240038920000018,0.18753583709832389,1.0626992561105209]
["     HST",null,0.13,{"$f":"D31*C32","v":26.508027140399999},null,{"$f":"C32","v":0.13},{"$f":"G31*F32","v":31.479232200000002},4.9712050596000026,0.18753583709832389,0.13815090329436772]
["Total Electricity Charge on Two-Tier RPP (including HST)",null,null,{"$f":"SUM(D31:D32)","v":230.41592822039999},null,null,{"$f":"SUM(G31:G32)","v":273.62717220000002},43.211243979600027,0.18753583709832392,1.2008501594048886]
["Ontario Electricity Rebate (OER)",null,{"$f":"IF(($B$4*12)<250000,VLOOKUP(A34,'Data Pass Through'!$A$4:$C$20,2,0),0)","v":-0.189},{"$f":"D31*C34","v":-38.538593304119999},null,{"$f":"C34","v":-0.189},{"$f":"G31*F34","v":-45.765960660000005},-7.2273673558800056,-0.18753583709832394,-0.20085015940488843]
["Total Amount on Two-Tier RPP",null,null,{"$f":"SUM(D33:D34)","v":191.87733491628001},null,null,{"$f":"SUM(G33:G34)","v":227.86121154},35.983876623719993,0.18753583709832375,1]

{"sheet":"BI_NPDI_USL_Avg","index":107,"n_rows":36,"n_cols":10,"rows_kept":36,"cut":false,"hidden":false,"merged":[[0,0,0,9]]}
["2023 Bill Impacts (Average Consumption Level) - USL_NPDI"]
[]
["Rate Class",{"$f":"VLOOKUP(A1,'Data BI List Acq_Seas'!C:E,2,FALSE)","v":"NPDI_USL"},{"$f":"VLOOKUP(A1,'Data BI List Acq_Seas'!C:E,3,FALSE)","v":"USL-NPDI"}]
["Monthly Consumption (kWh)",{"$f":"IF(COUNTIF(A1,\"*Low*\")>0,VLOOKUP(B3,'Data Billing Quantities'!$A:$Z,MATCH(\"Low kWh\",'Data Billing Quantities'!4:4,0),FALSE),IF(COUNTIF(A1,\"*Typical*\")>0,VLOOKUP(B3,'Data Billing Quantities'!$A:$Z,MATCH(\"Typical kWh\",'Data Billing Quantities'!4:4,0),FALSE),IF(COUNTIF(A1,\"*Average*\")>0,VLOOKUP(B3,'Data Billing Quantities'!$A:$Z,MATCH(\"Average kWh\",'Data Billing Quantities'!4:4,0),FALSE),IF(COUNTIF(A1,\"*High*\")>0,VLOOKUP(B3,'Data Billing Quantities'!$A:$Z,MATCH(\"High kWh\",'Data Billing Quantities'!4:4,0),FALSE),\"error\"))))","v":904},{"$f":"B4","v":904}]
["Peak (kW)",{"$f":"IF(COUNTIF(A1,\"*Low*\")>0,VLOOKUP(B3,'Data Billing Quantities'!$A:$Z,MATCH(\"Low kW\",'Data Billing Quantities'!4:4,0),FALSE),IF(COUNTIF(A1,\"*Typical*\")>0,VLOOKUP(B3,'Data Billing Quantities'!$A:$Z,MATCH(\"Typical kW\",'Data Billing Quantities'!4:4,0),FALSE),IF(COUNTIF(A1,\"*Average*\")>0,VLOOKUP(B3,'Data Billing Quantities'!$A:$Z,MATCH(\"Average kW\",'Data Billing Quantities'!4:4,0),FALSE),IF(COUNTIF(A1,\"*High*\")>0,VLOOKUP(B3,'Data Billing Quantities'!$A:$Z,MATCH(\"High kW\",'Data Billing Quantities'!4:4,0),FALSE),\"error\"))))","v":0},{"$f":"B5","v":0}]
["Loss factor",{"$f":"VLOOKUP(B3,'Data Billing Quantities'!A:D,MATCH(A6,'Data Billing Quantities'!4:4,0),FALSE)","v":1.0564},{"$f":"VLOOKUP(C3,'Data Billing Quantities'!A:D,MATCH(A6,'Data Billing Quantities'!4:4,0),FALSE)","v":1.0920000000000001}]
["Commodity Threshold",{"$f":"VLOOKUP(B3,'Data Billing Quantities'!A:D,MATCH(A7,'Data Billing Quantities'!4:4,0),FALSE)","v":750},{"$f":"B7","v":750}]
["Monthly Consumption (kWh) - Uplifted",{"$f":"B4*B6","v":954.98559999999998},{"$f":"C4*C6","v":987.16800000000012}]
["Charge determinant",{"$f":"VLOOKUP(B3,'Data Billing Quantities'!A:D,MATCH(A9,'Data Billing Quantities'!4:4,0),FALSE)","v":"kWh"},{"$f":"VLOOKUP(C3,'Data Billing Quantities'!A:D,MATCH(A9,'Data Billing Quantities'!4:4,0),FALSE)","v":"kWh"}]
[]
[null,"Volume","Current Rate ($)","Current Charge ($)","Volume","Proposed Rate ($)","Proposed Charge ($)","Change ($)","Change (%)","% of Total Bill "]
["Energy First Tier",{"$f":"IF(B4>B7,B7,B4)","v":750},{"$f":"VLOOKUP($A12,'Data Pass Through'!$A:$D,2,FALSE)","v":9.8000000000000004E-2},{"$f":"B12*C12","v":73.5},{"$f":"B12","v":750},{"$f":"VLOOKUP($A12,'Data Pass Through'!$A:$D,3,FALSE)","v":9.8000000000000004E-2},{"$f":"E12*F12","v":73.5},{"$f":"G12-D12","v":0},{"$f":"IF(ISERROR(H12/ABS(D12)),\"N/A\",(H12/ABS(D12)))","v":0},{"$f":"G12/$G$36","v":0.46156632582656559}]
["Energy Second Tier",{"$f":"IF(B4>B7,(B4)-B7,0)","v":154},{"$f":"VLOOKUP($A13,'Data Pass Through'!$A:$D,2,FALSE)","v":0.115},{"$f":"B13*C13","v":17.71},{"$f":"B13","v":154},{"$f":"VLOOKUP($A13,'Data Pass Through'!$A:$D,3,FALSE)","v":0.115},{"$f":"E13*F13","v":17.71},0,0,0.11121550517535343]
["Sub-Total:  Energy (RPP Tiered)",null,null,{"$f":"SUM(D12:D13)","v":91.210000000000008},null,null,{"$f":"SUM(G12:G13)","v":91.210000000000008},0,0,0.57278183100191904]
["Service Charge",{"$f":"IF(VLOOKUP(B$3,'Data Billing Quantities'!A:P,MATCH(\"Acquired Street Light Service Charge\",'Data Billing Quantities'!$4:$4,0),FALSE)>0,VLOOKUP(B$3,'Data Billing Quantities'!A:P,MATCH(\"Acquired Street Light Service Charge\",'Data Billing Quantities'!$4:$4,0),FALSE),1)","v":1},{"$f":"VLOOKUP($B$3,'Data Current Rates'!$A:$AP,MATCH(BI_NPDI_USL_Avg!$A15,CurrentHeader,0),FALSE)","v":16.29},{"$f":"B15*C15","v":16.29},1,{"$f":"VLOOKUP($C$3,'Data Proposed Rates'!$A:$AZ,MATCH(BI_NPDI_USL_Avg!$A15,ProposedHeader,0),FALSE)","v":34.68},{"$f":"E15*F15","v":34.68},18.39,1.128913443830571,0.21778394802265708]
["Distribution Volumetric Charge",{"$f":"IF($B$9=\"kWh\",$B$4,$B$5)","v":904},{"$f":"VLOOKUP($B$3,'Data Current Rates'!$A:$AP,MATCH(BI_NPDI_USL_Avg!$A16,CurrentHeader,0),FALSE)","v":9.1999999999999998E-3},{"$f":"B16*C16","v":8.3168000000000006},{"$f":"IF($C$9=\"kWh\",$C$4,$C$5)","v":904},{"$f":"VLOOKUP($C$3,'Data Proposed Rates'!$A:$AZ,MATCH(BI_NPDI_USL_Avg!$A16,ProposedHeader,0),FALSE)","v":2.1600000000000001E-2},19.526400000000002,11.209600000000002,1.347826086956522,0.12262215924652858]
["Low Voltage Service Rate",{"$f":"IF($B$9=\"kWh\",$B$4,$B$5)","v":904},{"$f":"VLOOKUP($B$3,'Data Current Rates'!$A:$AP,MATCH(BI_NPDI_USL_Avg!$A17,CurrentHeader,0),FALSE)","v":8.0000000000000004E-4},0.72320000000000007,null,null,null,-0.72320000000000007,-1,0]
["Rate Rider for Application of Tax Change",904,{"$f":"VLOOKUP($B$3,'Data Current Rates'!$A:$AP,MATCH(BI_NPDI_USL_Avg!$A18,CurrentHeader,0),FALSE)","v":2.0000000000000001E-4},0.18080000000000002,null,null,null,-0.18080000000000002,-1,0]
["Group 1 Volumetric DVA Rider (General)",null,null,null,{"$f":"IF($C$9=\"kWh\",$C$4,$C$5)","v":904},{"$f":"VLOOKUP($C$3,'Data Proposed Rates'!$A:$AZ,MATCH(BI_NPDI_USL_Avg!$A19,ProposedHeader,0),FALSE)","v":-8.9999999999999998E-4},-0.81359999999999999,-0.81359999999999999,"N/A",-5.1092566352720237E-3]
["Sub-Total:  Distribution (excluding pass through)",null,null,{"$f":"SUM(INDIRECT(\"D15:D\"&ROW()-1))","v":25.5108},null,null,{"$f":"SUM(INDIRECT(\"g15:g\"&ROW()-1))","v":53.392800000000001},{"$f":"G20-D20","v":27.882000000000001},1.0929488687144269,0.33529685063391362]
["Line Losses on Cost of Power (based on two-tier RPP prices)",{"$f":"B8-B4","v":50.985599999999977},{"$f":"IF(B4>B7,C13,C12)","v":0.115},{"$f":"B21*C21","v":5.8633439999999979},{"$f":"C8-C4","v":83.16800000000012},{"$f":"IF(C4>C7,F13,F12)","v":0.115},{"$f":"E21*F21","v":9.5643200000000146},3.7009760000000167,0.63120567375886827,6.0062150223531216E-2]
["Sub-Total:  Distribution (based on two-tier RPP prices)",null,null,{"$f":"SUM(D20,D21:D21)","v":31.374143999999998},null,null,{"$f":"SUM(G20,G21:G21)","v":62.957120000000018},31.58297600000002,1.0066561815997281,0.39535900085744485]
["Retail Transmission Rate – Network Service Rate",{"$f":"IF($B$9=\"kWh\",$B$8,$B$5)","v":954.98559999999998},{"$f":"VLOOKUP($B$3,'Data Current Rates'!$A:$AP,MATCH(BI_NPDI_USL_Avg!$A23,CurrentHeader,0),FALSE)","v":7.7000000000000002E-3},{"$f":"B23*C23","v":7.3533891200000001},{"$f":"IF($C$9=\"kWh\",$C$8,$C$5)","v":987.16800000000012},{"$f":"VLOOKUP($C$3,'Data Proposed Rates'!$A:$AZ,MATCH(BI_NPDI_USL_Avg!$A23,ProposedHeader,0),FALSE)","v":6.4000000000000003E-3},{"$f":"E23*F23","v":6.3178752000000014},{"$f":"G23-D23","v":-1.0355139199999988},-0.14082131424047348,3.9675080858432361E-2]
["Retail Transmission Rate – Line and Transformation Connection Service Rate",{"$f":"IF($B$9=\"kWh\",$B$8,$B$5)","v":954.98559999999998},{"$f":"VLOOKUP($B$3,'Data Current Rates'!$A:$AP,MATCH(BI_NPDI_USL_Avg!$A24,CurrentHeader,0),FALSE)","v":3.3E-3},{"$f":"B24*C24","v":3.1514524800000001},{"$f":"IF($C$9=\"kWh\",$C$8,$C$5)","v":987.16800000000012},{"$f":"VLOOKUP($C$3,'Data Proposed Rates'!$A:$AZ,MATCH(BI_NPDI_USL_Avg!$A24,ProposedHeader,0),FALSE)","v":4.7000000000000002E-3},{"$f":"E24*F24","v":4.6396896000000005},{"$f":"G24-D24","v":1.4882371200000004},0.47223847716085515,2.9136387505411265E-2]
["Sub-Total:  Retail Transmission ",null,null,{"$f":"SUM(D23:D24)","v":10.504841600000001},null,null,{"$f":"SUM(G23:G24)","v":10.957564800000002},{"$f":"G25-D25","v":0.45272320000000121},4.3096623179925075E-2,6.8811468363843636E-2]
["Sub-Total:  Delivery (based on two-tier RPP prices)",null,null,{"$f":"D22+D25","v":41.8789856},null,null,{"$f":"G22+G25","v":73.914684800000018},{"$f":"G26-D26","v":32.035699200000018},0.76495881504828089,0.46417046922128846]
["Wholesale Market Service Rate (WMS) - not including CBR",{"$f":"B8","v":954.98559999999998},{"$f":"VLOOKUP($A27,'Data Pass Through'!$A:$D,2,FALSE)","v":3.0000000000000001E-3},{"$f":"B27*C27","v":2.8649567999999999},{"$f":"$C$8","v":987.16800000000012},{"$f":"VLOOKUP($A27,'Data Pass Through'!$A:$D,3,FALSE)","v":3.0000000000000001E-3},{"$f":"E27*F27","v":2.9615040000000006},{"$f":"G27-D27","v":9.6547200000000721E-2},3.369935630443039E-2,1.8597694152390171E-2]
["Capacity Based Recovery (CBR) - Applicable for Class B Customers",{"$f":"B8","v":954.98559999999998},{"$f":"VLOOKUP($A28,'Data Pass Through'!$A:$D,2,FALSE)","v":4.0000000000000002E-4},{"$f":"B28*C28","v":0.38199423999999998},{"$f":"$C$8","v":987.16800000000012},{"$f":"VLOOKUP($A28,'Data Pass Through'!$A:$D,3,FALSE)","v":4.0000000000000002E-4},{"$f":"E28*F28","v":0.39486720000000008},1.28729600000001E-2,3.3699356304430404E-2,2.4796925536520226E-3]
["Rural Rate Protection Charge",{"$f":"B8","v":954.98559999999998},{"$f":"VLOOKUP($A29,'Data Pass Through'!$A:$D,2,FALSE)","v":5.0000000000000001E-4},0.4774928,987.16800000000012,{"$f":"VLOOKUP($A29,'Data Pass Through'!$A:$D,3,FALSE)","v":5.0000000000000001E-4},0.49358400000000008,1.6091200000000083E-2,3.3699356304430314E-2,3.0996156920650281E-3]
["Standard Supply Service – Administration Charge (if applicable)",1,{"$f":"VLOOKUP($A30,'Data Pass Through'!$A:$D,2,FALSE)","v":0.25},{"$f":"B30*C30","v":0.25},1,{"$f":"VLOOKUP($A30,'Data Pass Through'!$A:$D,3,FALSE)","v":0.25},0.25,0,0,1.5699534892060054E-3]
["Sub-Total:  Regulatory",null,null,{"$f":"SUM(D27:D30)","v":3.9744438399999997},null,null,{"$f":"SUM(G27:G30)","v":4.099955200000001},0.12551136000000129,3.1579603348981099E-2,2.5746955887313228E-2]
["Total  Electricty Charge on Two-Tier RPP ",null,null,{"$f":"SUM(D26,D31,D14)","v":137.06342943999999},null,null,{"$f":"SUM(G26,G31,G14)","v":169.22464000000002},32.161210560000029,0.23464472391651861,1.0626992561105206]
["     HST",null,0.13,{"$f":"D32*C33","v":17.818245827199998},null,{"$f":"C33","v":0.13},{"$f":"G32*F33","v":21.999203200000004},4.1809573728000053,0.23464472391651872,0.13815090329436769]
["Total Electricity Charge on Two-Tier RPP (including HST)",null,null,{"$f":"SUM(D32:D33)","v":154.8816752672},null,null,{"$f":"SUM(G32:G33)","v":191.22384320000003},36.342167932800038,0.23464472391651864,1.2008501594048884]
["Ontario Electricity Rebate (OER)",null,{"$f":"IF(($B$4*12)<250000,VLOOKUP(A35,'Data Pass Through'!$A$4:$C$20,2,0),0)","v":-0.189},{"$f":"D32*C35","v":-25.904988164159999},null,{"$f":"C35","v":-0.189},{"$f":"G32*F35","v":-31.983456960000005},-6.0784687958400063,-0.23464472391651867,-0.20085015940488843]
["Total Amount on Two-Tier RPP",null,null,{"$f":"SUM(D34:D35)","v":128.97668710304001},null,null,{"$f":"SUM(G34:G35)","v":159.24038624000002},30.263699136960014,0.2346447239165185,1]

{"sheet":"BI_HCHI_USL_Avg","index":108,"n_rows":36,"n_cols":10,"rows_kept":36,"cut":false,"hidden":false,"merged":[[0,0,0,9]]}
["2023 Bill Impacts (Average Consumption Level) - USL_HCHI"]
[]
["Rate Class",{"$f":"VLOOKUP(A1,'Data BI List Acq_Seas'!C:E,2,FALSE)","v":"HCHI_USL"},{"$f":"VLOOKUP(A1,'Data BI List Acq_Seas'!C:E,3,FALSE)","v":"USL-HCHI"}]
["Monthly Consumption (kWh)",{"$f":"IF(COUNTIF(A1,\"*Low*\")>0,VLOOKUP(B3,'Data Billing Quantities'!$A:$Z,MATCH(\"Low kWh\",'Data Billing Quantities'!4:4,0),FALSE),IF(COUNTIF(A1,\"*Typical*\")>0,VLOOKUP(B3,'Data Billing Quantities'!$A:$Z,MATCH(\"Typical kWh\",'Data Billing Quantities'!4:4,0),FALSE),IF(COUNTIF(A1,\"*Average*\")>0,VLOOKUP(B3,'Data Billing Quantities'!$A:$Z,MATCH(\"Average kWh\",'Data Billing Quantities'!4:4,0),FALSE),IF(COUNTIF(A1,\"*High*\")>0,VLOOKUP(B3,'Data Billing Quantities'!$A:$Z,MATCH(\"High kWh\",'Data Billing Quantities'!4:4,0),FALSE),\"error\"))))","v":471},{"$f":"B4","v":471}]
["Peak (kW)",{"$f":"IF(COUNTIF(A1,\"*Low*\")>0,VLOOKUP(B3,'Data Billing Quantities'!$A:$Z,MATCH(\"Low kW\",'Data Billing Quantities'!4:4,0),FALSE),IF(COUNTIF(A1,\"*Typical*\")>0,VLOOKUP(B3,'Data Billing Quantities'!$A:$Z,MATCH(\"Typical kW\",'Data Billing Quantities'!4:4,0),FALSE),IF(COUNTIF(A1,\"*Average*\")>0,VLOOKUP(B3,'Data Billing Quantities'!$A:$Z,MATCH(\"Average kW\",'Data Billing Quantities'!4:4,0),FALSE),IF(COUNTIF(A1,\"*High*\")>0,VLOOKUP(B3,'Data Billing Quantities'!$A:$Z,MATCH(\"High kW\",'Data Billing Quantities'!4:4,0),FALSE),\"error\"))))","v":0},{"$f":"B5","v":0}]
["Loss factor",{"$f":"VLOOKUP(B3,'Data Billing Quantities'!A:D,MATCH(A6,'Data Billing Quantities'!4:4,0),FALSE)","v":1.0654999999999999},{"$f":"VLOOKUP(C3,'Data Billing Quantities'!A:D,MATCH(A6,'Data Billing Quantities'!4:4,0),FALSE)","v":1.0920000000000001}]
["Commodity Threshold",{"$f":"VLOOKUP(B3,'Data Billing Quantities'!A:D,MATCH(A7,'Data Billing Quantities'!4:4,0),FALSE)","v":750},{"$f":"B7","v":750}]
["Monthly Consumption (kWh) - Uplifted",{"$f":"B4*B6","v":501.85049999999995},{"$f":"C4*C6","v":514.33199999999999}]
["Charge determinant",{"$f":"VLOOKUP(B3,'Data Billing Quantities'!A:D,MATCH(A9,'Data Billing Quantities'!4:4,0),FALSE)","v":"kWh"},{"$f":"VLOOKUP(C3,'Data Billing Quantities'!A:D,MATCH(A9,'Data Billing Quantities'!4:4,0),FALSE)","v":"kWh"}]
[]
[null,"Volume","Current Rate ($)","Current Charge ($)","Volume","Proposed Rate ($)","Proposed Charge ($)","Change ($)","Change (%)","% of Total Bill"]
["Energy First Tier",{"$f":"IF(B4>B7,B7,B4)","v":471},{"$f":"VLOOKUP($A12,'Data Pass Through'!$A:$D,2,FALSE)","v":9.8000000000000004E-2},{"$f":"B12*C12","v":46.158000000000001},{"$f":"B12","v":471},{"$f":"VLOOKUP($A12,'Data Pass Through'!$A:$D,3,FALSE)","v":9.8000000000000004E-2},{"$f":"E12*F12","v":46.158000000000001},{"$f":"G12-D12","v":0},{"$f":"IF(ISERROR(H12/ABS(D12)),\"N/A\",(H12/ABS(D12)))","v":0},{"$f":"G12/$G$36","v":0.47607325150048863}]
["Energy Second Tier",{"$f":"IF(B4>B7,(B4)-B7,0)","v":0},{"$f":"VLOOKUP($A13,'Data Pass Through'!$A:$D,2,FALSE)","v":0.115},{"$f":"B13*C13","v":0},{"$f":"B13","v":0},{"$f":"VLOOKUP($A13,'Data Pass Through'!$A:$D,3,FALSE)","v":0.115},{"$f":"E13*F13","v":0},0,"N/A",0]
["Sub-Total:  Energy (RPP Tiered)",null,null,{"$f":"SUM(D12:D13)","v":46.158000000000001},null,null,{"$f":"SUM(G12:G13)","v":46.158000000000001},0,0,0.47607325150048863]
["Service Charge",{"$f":"IF(VLOOKUP(B$3,'Data Billing Quantities'!A:P,MATCH(\"Acquired Street Light Service Charge\",'Data Billing Quantities'!$4:$4,0),FALSE)>0,VLOOKUP(B$3,'Data Billing Quantities'!A:P,MATCH(\"Acquired Street Light Service Charge\",'Data Billing Quantities'!$4:$4,0),FALSE),1)","v":1},{"$f":"VLOOKUP($B$3,'Data Current Rates'!$A:$AP,MATCH(BI_HCHI_USL_Avg!$A15,CurrentHeader,0),FALSE)","v":20.2},{"$f":"B15*C15","v":20.2},1,{"$f":"VLOOKUP($C$3,'Data Proposed Rates'!$A:$AZ,MATCH(BI_HCHI_USL_Avg!$A15,ProposedHeader,0),FALSE)","v":34.68},{"$f":"E15*F15","v":34.68},14.48,0.71683168316831691,0.35768924914504407]
["Distribution Volumetric Charge",{"$f":"IF($B$9=\"kWh\",$B$4,$B$5)","v":471},{"$f":"VLOOKUP($B$3,'Data Current Rates'!$A:$AP,MATCH(BI_HCHI_USL_Avg!$A16,CurrentHeader,0),FALSE)","v":2.5000000000000001E-3},{"$f":"B16*C16","v":1.1775},{"$f":"IF($C$9=\"kWh\",$C$4,$C$5)","v":471},{"$f":"VLOOKUP($C$3,'Data Proposed Rates'!$A:$AZ,MATCH(BI_HCHI_USL_Avg!$A16,ProposedHeader,0),FALSE)","v":2.1600000000000001E-2},10.1736,8.9961000000000002,7.6400000000000006,0.10493043094296484]
["Low Voltage Service Rate",{"$f":"IF($B$9=\"kWh\",$B$4,$B$5)","v":471},{"$f":"VLOOKUP($B$3,'Data Current Rates'!$A:$AP,MATCH(BI_HCHI_USL_Avg!$A17,CurrentHeader,0),FALSE)","v":4.0000000000000002E-4},0.18840000000000001,null,null,null,-0.18840000000000001,-1,0]
["Funding Adder for Renewable Energy Generation",471,{"$f":"VLOOKUP($B$3,'Data Current Rates'!$A:$AP,MATCH(BI_HCHI_USL_Avg!$A18,CurrentHeader,0),FALSE)","v":2.0000000000000001E-4},9.4200000000000006E-2,null,null,null,-9.4200000000000006E-2,-1,0]
["Group 1 Volumetric DVA Rider (General)",null,null,null,{"$f":"IF($C$9=\"kWh\",$C$4,$C$5)","v":471},{"$f":"VLOOKUP($C$3,'Data Proposed Rates'!$A:$AZ,MATCH(BI_HCHI_USL_Avg!$A19,ProposedHeader,0),FALSE)","v":-4.0000000000000002E-4},-0.18840000000000001,-0.18840000000000001,"N/A",-1.9431561285734231E-3]
["Sub-Total:  Distribution (excluding pass through)",null,null,{"$f":"SUM(INDIRECT(\"D15:D\"&ROW()-1))","v":21.6601},null,null,{"$f":"SUM(INDIRECT(\"g15:g\"&ROW()-1))","v":44.665199999999999},{"$f":"G20-D20","v":23.005099999999999},1.0620957428636062,0.46067652395943548]
["Line Losses on Cost of Power (based on two-tier RPP prices)",{"$f":"B8-B4","v":30.850499999999954},{"$f":"IF(B4>B7,C13,C12)","v":9.8000000000000004E-2},{"$f":"B21*C21","v":3.0233489999999956},{"$f":"C8-C4","v":43.331999999999994},{"$f":"IF(C4>C7,F13,F12)","v":9.8000000000000004E-2},{"$f":"E21*F21","v":4.2465359999999999},1.2231870000000042,0.40458015267175773,4.3798739138044947E-2]
["Sub-Total:  Distribution (based on two-tier RPP prices)",null,null,{"$f":"SUM(D20,D21:D21)","v":24.683448999999996},null,null,{"$f":"SUM(G20,G21:G21)","v":48.911735999999998},24.228287000000002,0.98156003239255607,0.50447526309748048]
["Retail Transmission Rate – Network Service Rate",{"$f":"IF($B$9=\"kWh\",$B$8,$B$5)","v":501.85049999999995},{"$f":"VLOOKUP($B$3,'Data Current Rates'!$A:$AP,MATCH(BI_HCHI_USL_Avg!$A23,CurrentHeader,0),FALSE)","v":7.1999999999999998E-3},{"$f":"B23*C23","v":3.6133235999999997},{"$f":"IF($C$9=\"kWh\",$C$8,$C$5)","v":514.33199999999999},{"$f":"VLOOKUP($C$3,'Data Proposed Rates'!$A:$AZ,MATCH(BI_HCHI_USL_Avg!$A23,ProposedHeader,0),FALSE)","v":6.4000000000000003E-3},{"$f":"E23*F23","v":3.2917247999999999},{"$f":"G23-D23","v":-0.32159879999999985},-8.9003597684967906E-2,3.3950823878434844E-2]
["Retail Transmission Rate – Line and Transformation Connection Service Rate",{"$f":"IF($B$9=\"kWh\",$B$8,$B$5)","v":501.85049999999995},{"$f":"VLOOKUP($B$3,'Data Current Rates'!$A:$AP,MATCH(BI_HCHI_USL_Avg!$A24,CurrentHeader,0),FALSE)","v":5.7000000000000002E-3},{"$f":"B24*C24","v":2.8605478499999997},{"$f":"IF($C$9=\"kWh\",$C$8,$C$5)","v":514.33199999999999},{"$f":"VLOOKUP($C$3,'Data Proposed Rates'!$A:$AZ,MATCH(BI_HCHI_USL_Avg!$A24,ProposedHeader,0),FALSE)","v":4.7000000000000002E-3},{"$f":"E24*F24","v":2.4173604000000002},{"$f":"G24-D24","v":-0.44318744999999948},-0.15493096890513455,2.493263628572559E-2]
["Sub-Total:  Retail Transmission ",null,null,{"$f":"SUM(D23:D24)","v":6.473871449999999},null,null,{"$f":"SUM(G23:G24)","v":5.7090852000000005},{"$f":"G25-D25","v":-0.76478624999999845},-0.1181342965962042,5.8883460164160441E-2]
["Sub-Total:  Delivery (based on two-tier RPP prices)",null,null,{"$f":"D22+D25","v":31.157320449999993},null,null,{"$f":"G22+G25","v":54.620821199999995},{"$f":"G26-D26","v":23.463500750000001},0.75306542446913172,0.56335872326164083]
["Wholesale Market Service Rate (WMS) - not including CBR",{"$f":"B8","v":501.85049999999995},{"$f":"VLOOKUP($A27,'Data Pass Through'!$A:$D,2,FALSE)","v":3.0000000000000001E-3},{"$f":"B27*C27","v":1.5055514999999999},{"$f":"$C$8","v":514.33199999999999},{"$f":"VLOOKUP($A27,'Data Pass Through'!$A:$D,3,FALSE)","v":3.0000000000000001E-3},{"$f":"E27*F27","v":1.542996},{"$f":"G27-D27","v":3.7444500000000103E-2},2.4870952604411144E-2,1.5914448693016333E-2]
["Capacity Based Recovery (CBR) - Applicable for Class B Customers",{"$f":"B8","v":501.85049999999995},{"$f":"VLOOKUP($A28,'Data Pass Through'!$A:$D,2,FALSE)","v":4.0000000000000002E-4},{"$f":"B28*C28","v":0.20074019999999998},{"$f":"$C$8","v":514.33199999999999},{"$f":"VLOOKUP($A28,'Data Pass Through'!$A:$D,3,FALSE)","v":4.0000000000000002E-4},{"$f":"E28*F28","v":0.20573279999999999},4.9926000000000137E-3,2.4870952604411144E-2,2.1219264924021777E-3]
["Rural Rate Protection Charge",{"$f":"B8","v":501.85049999999995},{"$f":"VLOOKUP($A29,'Data Pass Through'!$A:$D,2,FALSE)","v":5.0000000000000001E-4},0.25092524999999999,514.33199999999999,{"$f":"VLOOKUP($A29,'Data Pass Through'!$A:$D,3,FALSE)","v":5.0000000000000001E-4},0.25716600000000001,6.2407500000000171E-3,2.4870952604411144E-2,2.6524081155027222E-3]
["Standard Supply Service – Administration Charge (if applicable)",1,{"$f":"VLOOKUP($A30,'Data Pass Through'!$A:$D,2,FALSE)","v":0.25},{"$f":"B30*C30","v":0.25},1,{"$f":"VLOOKUP($A30,'Data Pass Through'!$A:$D,3,FALSE)","v":0.25},0.25,0,0,2.5784980474700412E-3]
["Sub-Total:  Regulatory",null,null,{"$f":"SUM(D27:D30)","v":2.2072169499999998},null,null,{"$f":"SUM(G27:G30)","v":2.2558948000000001},4.8677850000000245E-2,2.2053948978599611E-2,2.3267281348391275E-2]
["Total  Electricty Charge on Two-Tier RPP ",null,null,{"$f":"SUM(D26,D31,D14)","v":79.522537400000004},null,null,{"$f":"SUM(G26,G31,G14)","v":103.034716},23.512178599999999,0.29566685582142904,1.0626992561105209]
["     HST",null,0.13,{"$f":"D32*C33","v":10.337929862000001},null,{"$f":"C33","v":0.13},{"$f":"G32*F33","v":13.394513080000001},3.0565832180000001,0.29566685582142904,0.13815090329436772]
["Total Electricity Charge on Two-Tier RPP (including HST)",null,null,{"$f":"SUM(D32:D33)","v":89.860467262},null,null,{"$f":"SUM(G32:G33)","v":116.42922908},26.568761817999999,0.29566685582142904,1.2008501594048884]
["Ontario Electricity Rebate (OER)",null,{"$f":"IF(($B$4*12)<250000,VLOOKUP(A35,'Data Pass Through'!$A$4:$C$20,2,0),0)","v":-0.189},{"$f":"D32*C35","v":-15.029759568600001},null,{"$f":"C35","v":-0.189},{"$f":"G32*F35","v":-19.473561324000002},-4.4438017554000009,-0.2956668558214291,-0.20085015940488846]
["Total Amount on Two-Tier RPP",null,null,{"$f":"SUM(D34:D35)","v":74.830707693400001},null,null,{"$f":"SUM(G34:G35)","v":96.955667755999997},22.124960062599996,0.29566685582142899,1]

{"sheet":"BI_WHSI_StLgt_Avg","index":109,"n_rows":35,"n_cols":10,"rows_kept":35,"cut":false,"hidden":false,"merged":[[0,0,0,9]]}
["2023 Bill Impacts (Average Consumption Level) - St Lgt_WHSI"]
[]
["Rate Class",{"$f":"VLOOKUP(A1,'Data BI List Acq_Seas'!C:E,2,FALSE)","v":"WHSI_St Lgt"},{"$f":"VLOOKUP(A1,'Data BI List Acq_Seas'!C:E,3,FALSE)","v":"St Lgt-WHSI"}]
["Monthly Consumption (kWh)",{"$f":"IF(COUNTIF(A1,\"*Low*\")>0,VLOOKUP(B3,'Data Billing Quantities'!$A:$Z,MATCH(\"Low kWh\",'Data Billing Quantities'!4:4,0),FALSE),IF(COUNTIF(A1,\"*Typical*\")>0,VLOOKUP(B3,'Data Billing Quantities'!$A:$Z,MATCH(\"Typical kWh\",'Data Billing Quantities'!4:4,0),FALSE),IF(COUNTIF(A1,\"*Average*\")>0,VLOOKUP(B3,'Data Billing Quantities'!$A:$Z,MATCH(\"Average kWh\",'Data Billing Quantities'!4:4,0),FALSE),IF(COUNTIF(A1,\"*High*\")>0,VLOOKUP(B3,'Data Billing Quantities'!$A:$Z,MATCH(\"High kWh\",'Data Billing Quantities'!4:4,0),FALSE),\"error\"))))","v":37079},{"$f":"B4","v":37079}]
["Peak (kW)",{"$f":"IF(COUNTIF(A1,\"*Low*\")>0,VLOOKUP(B3,'Data Billing Quantities'!$A:$Z,MATCH(\"Low kW\",'Data Billing Quantities'!4:4,0),FALSE),IF(COUNTIF(A1,\"*Typical*\")>0,VLOOKUP(B3,'Data Billing Quantities'!$A:$Z,MATCH(\"Typical kW\",'Data Billing Quantities'!4:4,0),FALSE),IF(COUNTIF(A1,\"*Average*\")>0,VLOOKUP(B3,'Data Billing Quantities'!$A:$Z,MATCH(\"Average kW\",'Data Billing Quantities'!4:4,0),FALSE),IF(COUNTIF(A1,\"*High*\")>0,VLOOKUP(B3,'Data Billing Quantities'!$A:$Z,MATCH(\"High kW\",'Data Billing Quantities'!4:4,0),FALSE),\"error\"))))","v":104},{"$f":"B5","v":104}]
["Loss factor",{"$f":"VLOOKUP(B3,'Data Billing Quantities'!A:D,MATCH(A6,'Data Billing Quantities'!4:4,0),FALSE)","v":1.0430999999999999},{"$f":"VLOOKUP(C3,'Data Billing Quantities'!A:D,MATCH(A6,'Data Billing Quantities'!4:4,0),FALSE)","v":1.0920000000000001}]
["Commodity Threshold",{"$f":"VLOOKUP(B3,'Data Billing Quantities'!A:D,MATCH(A7,'Data Billing Quantities'!4:4,0),FALSE)","v":750},{"$f":"B7","v":750}]
["Monthly Consumption (kWh) - Uplifted",{"$f":"B4*B6","v":38677.104899999998},{"$f":"C4*C6","v":40490.268000000004}]
["Charge determinant",{"$f":"VLOOKUP(B3,'Data Billing Quantities'!A:D,MATCH(A9,'Data Billing Quantities'!4:4,0),FALSE)","v":"kW"},{"$f":"VLOOKUP(C3,'Data Billing Quantities'!A:D,MATCH(A9,'Data Billing Quantities'!4:4,0),FALSE)","v":"kWh"}]
[]
[null,"Volume","Current Rate ($)","Current Charge ($)","Volume","Proposed Rate ($)","Proposed Charge ($)","Change ($)","Change (%)","% of Total Bill"]
["Energy First Tier",{"$f":"IF(B4>B7,B7,B4)","v":750},{"$f":"VLOOKUP($A12,'Data Pass Through'!$A:$D,2,FALSE)","v":9.8000000000000004E-2},{"$f":"B12*C12","v":73.5},{"$f":"B12","v":750},{"$f":"VLOOKUP($A12,'Data Pass Through'!$A:$D,3,FALSE)","v":9.8000000000000004E-2},{"$f":"E12*F12","v":73.5},{"$f":"G12-D12","v":0},{"$f":"IF(ISERROR(H12/ABS(D12)),\"N/A\",(H12/ABS(D12)))","v":0},{"$f":"G12/$G$35","v":7.1198275020730511E-3}]
["Energy Second Tier",{"$f":"IF(B4>B7,(B4)-B7,0)","v":36329},{"$f":"VLOOKUP($A13,'Data Pass Through'!$A:$D,2,FALSE)","v":0.115},{"$f":"B13*C13","v":4177.835},{"$f":"B13","v":36329},{"$f":"VLOOKUP($A13,'Data Pass Through'!$A:$D,3,FALSE)","v":0.115},{"$f":"E13*F13","v":4177.835},0,0,0.40470019771596416]
["Sub-Total:  Energy (RPP Tiered)",null,null,{"$f":"SUM(D12:D13)","v":4251.335},null,null,{"$f":"SUM(G12:G13)","v":4251.335},0,0,0.41182002521803723]
["Service Charge",{"$f":"IF(VLOOKUP(B$3,'Data Billing Quantities'!A:P,MATCH(\"Acquired Street Light Service Charge\",'Data Billing Quantities'!$4:$4,0),FALSE)>0,VLOOKUP(B$3,'Data Billing Quantities'!A:P,MATCH(\"Acquired Street Light Service Charge\",'Data Billing Quantities'!$4:$4,0),FALSE),1)","v":786},{"$f":"VLOOKUP($B$3,'Data Current Rates'!$A:$AP,MATCH(BI_WHSI_StLgt_Avg!$A15,CurrentHeader,0),FALSE)","v":3.19},{"$f":"B15*C15","v":2507.34},1,{"$f":"VLOOKUP($C$3,'Data Proposed Rates'!$A:$AZ,MATCH(BI_WHSI_StLgt_Avg!$A15,ProposedHeader,0),FALSE)","v":2.97},{"$f":"E15*F15","v":2.97},-2504.3700000000003,-0.99881547775730462,2.8769915212458456E-4]
["Distribution Volumetric Charge",{"$f":"IF($B$9=\"kWh\",$B$4,$B$5)","v":104},{"$f":"VLOOKUP($B$3,'Data Current Rates'!$A:$AP,MATCH(BI_WHSI_StLgt_Avg!$A16,CurrentHeader,0),FALSE)","v":12.895},{"$f":"B16*C16","v":1341.08},{"$f":"IF($C$9=\"kWh\",$C$4,$C$5)","v":37079},{"$f":"VLOOKUP($C$3,'Data Proposed Rates'!$A:$AZ,MATCH(BI_WHSI_StLgt_Avg!$A16,ProposedHeader,0),FALSE)","v":0.10639999999999999},3945.2055999999998,2604.1255999999998,1.9418122707071912,0.38216575962194033]
["Rate Rider for Recovery of Incremental Capital",{"$f":"IF($B$9=\"kWh\",$B$4,$B$5)","v":104},{"$f":"VLOOKUP($B$3,'Data Current Rates'!$A:$AP,MATCH(BI_WHSI_StLgt_Avg!$A17,CurrentHeader,0),FALSE)","v":0.21870000000000001},22.744800000000001,null,null,null,-22.744800000000001,-1,0]
["Group 1 Volumetric DVA Rider (General)",null,null,null,{"$f":"IF($C$9=\"kWh\",$C$4,$C$5)","v":37079},{"$f":"VLOOKUP($C$3,'Data Proposed Rates'!$A:$AZ,MATCH(BI_WHSI_StLgt_Avg!$A18,ProposedHeader,0),FALSE)","v":-2.9999999999999997E-4},-11.123699999999999,-11.123699999999999,"N/A",-1.0775350365280273E-3]
["Sub-Total:  Distribution (excluding pass through)",null,null,{"$f":"SUM(INDIRECT(\"D15:D\"&ROW()-1))","v":3871.1648},null,null,{"$f":"SUM(INDIRECT(\"g15:g\"&ROW()-1))","v":3937.0518999999995},{"$f":"G19-D19","v":65.887099999999464},1.7019967736842272E-2,0.38137592373753681]
["Line Losses on Cost of Power (based on two-tier RPP prices)",{"$f":"B8-B4","v":1598.1048999999985},{"$f":"IF(B4>B7,C13,C12)","v":0.115},{"$f":"B20*C20","v":183.78206349999982},{"$f":"C8-C4","v":3411.2680000000037},{"$f":"IF(C4>C7,F13,F12)","v":0.115},{"$f":"E20*F20","v":392.29582000000045},208.51375650000062,1.1345707656612574,3.8001068954888473E-2]
["Sub-Total:  Distribution (based on two-tier RPP prices)",null,null,{"$f":"SUM(D19,D20:D20)","v":4054.9468634999998},null,null,{"$f":"SUM(G19,G20:G20)","v":4329.3477199999998},274.40085649999992,6.7670641746252799E-2,0.41937699269242529]
["Retail Transmission Rate – Network Service Rate",{"$f":"IF($B$9=\"kWh\",$B$8,$B$5)","v":104},{"$f":"VLOOKUP($B$3,'Data Current Rates'!$A:$AP,MATCH(BI_WHSI_StLgt_Avg!$A22,CurrentHeader,0),FALSE)","v":2.6301999999999999},{"$f":"B22*C22","v":273.54079999999999},{"$f":"IF($C$9=\"kWh\",$C$8,$C$5)","v":40490.268000000004},{"$f":"VLOOKUP($C$3,'Data Proposed Rates'!$A:$AZ,MATCH(BI_WHSI_StLgt_Avg!$A22,ProposedHeader,0),FALSE)","v":5.4999999999999997E-3},{"$f":"E22*F22","v":222.69647399999999},{"$f":"G22-D22","v":-50.844325999999995},-0.18587474336552354,2.1572251431291104E-2]
["Retail Transmission Rate – Line and Transformation Connection Service Rate",{"$f":"IF($B$9=\"kWh\",$B$8,$B$5)","v":104},{"$f":"VLOOKUP($B$3,'Data Current Rates'!$A:$AP,MATCH(BI_WHSI_StLgt_Avg!$A23,CurrentHeader,0),FALSE)","v":1.8902000000000001},{"$f":"B23*C23","v":196.58080000000001},{"$f":"IF($C$9=\"kWh\",$C$8,$C$5)","v":40490.268000000004},{"$f":"VLOOKUP($C$3,'Data Proposed Rates'!$A:$AZ,MATCH(BI_WHSI_StLgt_Avg!$A23,ProposedHeader,0),FALSE)","v":4.3E-3},{"$f":"E23*F23","v":174.10815240000002},{"$f":"G23-D23","v":-22.472647599999988},-0.11431761189292132,1.6865578391736684E-2]
["Sub-Total:  Retail Transmission ",null,null,{"$f":"SUM(D22:D23)","v":470.1216},null,null,{"$f":"SUM(G22:G23)","v":396.80462640000002},{"$f":"G24-D24","v":-73.316973599999983},-0.15595321210512342,3.8437829823027791E-2]
["Sub-Total:  Delivery (based on two-tier RPP prices)",null,null,{"$f":"D21+D24","v":4525.0684634999998},null,null,{"$f":"G21+G24","v":4726.1523464000002},{"$f":"G25-D25","v":201.08388290000039},4.4437754814535615E-2,0.45781482251545313]
["Wholesale Market Service Rate (WMS) - not including CBR",{"$f":"B8","v":38677.104899999998},{"$f":"VLOOKUP($A26,'Data Pass Through'!$A:$D,2,FALSE)","v":3.0000000000000001E-3},{"$f":"B26*C26","v":116.0313147},{"$f":"$C$8","v":40490.268000000004},{"$f":"VLOOKUP($A26,'Data Pass Through'!$A:$D,3,FALSE)","v":3.0000000000000001E-3},{"$f":"E26*F26","v":121.47080400000002},{"$f":"G26-D26","v":5.4394893000000195},4.6879493816508654E-2,1.1766682598886059E-2]
["Capacity Based Recovery (CBR) - Applicable for Class B Customers",{"$f":"B8","v":38677.104899999998},{"$f":"VLOOKUP($A27,'Data Pass Through'!$A:$D,2,FALSE)","v":4.0000000000000002E-4},{"$f":"B27*C27","v":15.47084196},{"$f":"$C$8","v":40490.268000000004},{"$f":"VLOOKUP($A27,'Data Pass Through'!$A:$D,3,FALSE)","v":4.0000000000000002E-4},{"$f":"E27*F27","v":16.196107200000004},0.72526524000000414,4.6879493816508751E-2,1.5688910131848081E-3]
["Rural Rate Protection Charge",{"$f":"B8","v":38677.104899999998},{"$f":"VLOOKUP($A28,'Data Pass Through'!$A:$D,2,FALSE)","v":5.0000000000000001E-4},19.338552449999998,40490.268000000004,{"$f":"VLOOKUP($A28,'Data Pass Through'!$A:$D,3,FALSE)","v":5.0000000000000001E-4},20.245134000000004,0.90658155000000562,4.6879493816508779E-2,1.9611137664810102E-3]
["Standard Supply Service – Administration Charge (if applicable)",1,{"$f":"VLOOKUP($A29,'Data Pass Through'!$A:$D,2,FALSE)","v":0.25},{"$f":"B29*C29","v":0.25},1,{"$f":"VLOOKUP($A29,'Data Pass Through'!$A:$D,3,FALSE)","v":0.25},0.25,0,0,2.421710034718725E-5]
["Sub-Total:  Regulatory",null,null,{"$f":"SUM(D26:D29)","v":151.09070911000001},null,null,{"$f":"SUM(G26:G29)","v":158.16204520000002},7.0713360900000168,4.6801925357645949E-2,1.5320904478899064E-2]
["Total  Electricty Charge on Two-Tier RPP ",null,null,{"$f":"SUM(D25,D30,D14)","v":8927.4941726100005},null,null,{"$f":"SUM(G25,G30,G14)","v":9135.6493915999999},208.15521898999941,2.3316197688331184E-2,0.88495575221238942]
["     HST",null,0.13,{"$f":"D31*C32","v":1160.5742424393002},null,{"$f":"C32","v":0.13},{"$f":"G31*F32","v":1187.634420908},27.06017846869986,2.3316197688331129E-2,0.11504424778761063]
["Total Electricity Charge on Two-Tier RPP (including HST)",null,null,{"$f":"SUM(D31:D32)","v":10088.0684150493},null,null,{"$f":"SUM(G31:G32)","v":10323.283812508},235.21539745869995,2.3316197688331246E-2,1]
["Ontario Electricity Rebate (OER)",null,{"$f":"IF(($B$4*12)<250000,VLOOKUP(A34,'Data Pass Through'!$A$4:$C$20,2,0),0)","v":0},{"$f":"D31*C34","v":0},null,{"$f":"C34","v":0},{"$f":"G31*F34","v":0},0,"N/A",0]
["Total Amount on Two-Tier RPP",null,null,{"$f":"SUM(D33:D34)","v":10088.0684150493},null,null,{"$f":"SUM(G33:G34)","v":10323.283812508},235.21539745869995,2.3316197688331246E-2,1]

{"sheet":"BI_NPDI_StLgt_Avg","index":110,"n_rows":36,"n_cols":10,"rows_kept":36,"cut":false,"hidden":false,"merged":[[0,0,0,9]]}
["2023 Bill Impacts (Average Consumption Level) - St Lgt_NPDI"]
[]
["Rate Class",{"$f":"VLOOKUP(A1,'Data BI List Acq_Seas'!C:E,2,FALSE)","v":"NPDI_St Lgt"},{"$f":"VLOOKUP(A1,'Data BI List Acq_Seas'!C:E,3,FALSE)","v":"St Lgt-NPDI"}]
["Monthly Consumption (kWh)",{"$f":"IF(COUNTIF(A1,\"*Low*\")>0,VLOOKUP(B3,'Data Billing Quantities'!$A:$Z,MATCH(\"Low kWh\",'Data Billing Quantities'!4:4,0),FALSE),IF(COUNTIF(A1,\"*Typical*\")>0,VLOOKUP(B3,'Data Billing Quantities'!$A:$Z,MATCH(\"Typical kWh\",'Data Billing Quantities'!4:4,0),FALSE),IF(COUNTIF(A1,\"*Average*\")>0,VLOOKUP(B3,'Data Billing Quantities'!$A:$Z,MATCH(\"Average kWh\",'Data Billing Quantities'!4:4,0),FALSE),IF(COUNTIF(A1,\"*High*\")>0,VLOOKUP(B3,'Data Billing Quantities'!$A:$Z,MATCH(\"High kWh\",'Data Billing Quantities'!4:4,0),FALSE),\"error\"))))","v":11389},{"$f":"B4","v":11389}]
["Peak (kW)",{"$f":"IF(COUNTIF(A1,\"*Low*\")>0,VLOOKUP(B3,'Data Billing Quantities'!$A:$Z,MATCH(\"Low kW\",'Data Billing Quantities'!4:4,0),FALSE),IF(COUNTIF(A1,\"*Typical*\")>0,VLOOKUP(B3,'Data Billing Quantities'!$A:$Z,MATCH(\"Typical kW\",'Data Billing Quantities'!4:4,0),FALSE),IF(COUNTIF(A1,\"*Average*\")>0,VLOOKUP(B3,'Data Billing Quantities'!$A:$Z,MATCH(\"Average kW\",'Data Billing Quantities'!4:4,0),FALSE),IF(COUNTIF(A1,\"*High*\")>0,VLOOKUP(B3,'Data Billing Quantities'!$A:$Z,MATCH(\"High kW\",'Data Billing Quantities'!4:4,0),FALSE),\"error\"))))","v":39},{"$f":"B5","v":39}]
["Loss factor",{"$f":"VLOOKUP(B3,'Data Billing Quantities'!A:D,MATCH(A6,'Data Billing Quantities'!4:4,0),FALSE)","v":1.0564},{"$f":"VLOOKUP(C3,'Data Billing Quantities'!A:D,MATCH(A6,'Data Billing Quantities'!4:4,0),FALSE)","v":1.0920000000000001}]
["Commodity Threshold",{"$f":"VLOOKUP(B3,'Data Billing Quantities'!A:D,MATCH(A7,'Data Billing Quantities'!4:4,0),FALSE)","v":750},{"$f":"B7","v":750}]
["Monthly Consumption (kWh) - Uplifted",{"$f":"B4*B6","v":12031.339599999999},{"$f":"C4*C6","v":12436.788}]
["Charge determinant",{"$f":"VLOOKUP(B3,'Data Billing Quantities'!A:D,MATCH(A9,'Data Billing Quantities'!4:4,0),FALSE)","v":"kW"},{"$f":"VLOOKUP(C3,'Data Billing Quantities'!A:D,MATCH(A9,'Data Billing Quantities'!4:4,0),FALSE)","v":"kWh"}]
[]
[null,"Volume","Current Rate ($)","Current Charge ($)","Volume","Proposed Rate ($)","Proposed Charge ($)","Change ($)","Change (%)","% of Total Bill "]
["Energy First Tier",{"$f":"IF(B4>B7,B7,B4)","v":750},{"$f":"VLOOKUP($A12,'Data Pass Through'!$A:$D,2,FALSE)","v":9.8000000000000004E-2},{"$f":"B12*C12","v":73.5},{"$f":"B12","v":750},{"$f":"VLOOKUP($A12,'Data Pass Through'!$A:$D,3,FALSE)","v":9.8000000000000004E-2},{"$f":"E12*F12","v":73.5},{"$f":"G12-D12","v":0},{"$f":"IF(ISERROR(H12/ABS(D12)),\"N/A\",(H12/ABS(D12)))","v":0},{"$f":"G12/$G$36","v":2.7946739342856408E-2}]
["Energy Second Tier",{"$f":"IF(B4>B7,(B4)-B7,0)","v":10639},{"$f":"VLOOKUP($A13,'Data Pass Through'!$A:$D,2,FALSE)","v":0.115},{"$f":"B13*C13","v":1223.4850000000001},{"$f":"B13","v":10639},{"$f":"VLOOKUP($A13,'Data Pass Through'!$A:$D,3,FALSE)","v":0.115},{"$f":"E13*F13","v":1223.4850000000001},0,0,0.46520294401217249]
["Sub-Total:  Energy (RPP Tiered)",null,null,{"$f":"SUM(D12:D13)","v":1296.9850000000001},null,null,{"$f":"SUM(G12:G13)","v":1296.9850000000001},0,0,0.4931496833550289]
["Service Charge",{"$f":"IF(VLOOKUP(B$3,'Data Billing Quantities'!A:P,MATCH(\"Acquired Street Light Service Charge\",'Data Billing Quantities'!$4:$4,0),FALSE)>0,VLOOKUP(B$3,'Data Billing Quantities'!A:P,MATCH(\"Acquired Street Light Service Charge\",'Data Billing Quantities'!$4:$4,0),FALSE),1)","v":328},{"$f":"VLOOKUP($B$3,'Data Current Rates'!$A:$AP,MATCH(BI_NPDI_StLgt_Avg!$A15,CurrentHeader,0),FALSE)","v":2.08},{"$f":"B15*C15","v":682.24},1,{"$f":"VLOOKUP($C$3,'Data Proposed Rates'!$A:$AZ,MATCH(BI_NPDI_StLgt_Avg!$A15,ProposedHeader,0),FALSE)","v":2.97},{"$f":"E15*F15","v":2.97},-679.27,-0.99564669324577859,1.1292764060990958E-3]
["Distribution Volumetric Charge",{"$f":"IF($B$9=\"kWh\",$B$4,$B$5)","v":39},{"$f":"VLOOKUP($B$3,'Data Current Rates'!$A:$AP,MATCH(BI_NPDI_StLgt_Avg!$A16,CurrentHeader,0),FALSE)","v":7.8083},{"$f":"B16*C16","v":304.52370000000002},{"$f":"IF($C$9=\"kWh\",$C$4,$C$5)","v":11389},{"$f":"VLOOKUP($C$3,'Data Proposed Rates'!$A:$AZ,MATCH(BI_NPDI_StLgt_Avg!$A16,ProposedHeader,0),FALSE)","v":0.10639999999999999},1211.7895999999998,907.26589999999987,2.9792948791834588,0.46075602842971736]
["Low Voltage Service Rate",{"$f":"IF($B$9=\"kWh\",$B$4,$B$5)","v":39},{"$f":"VLOOKUP($B$3,'Data Current Rates'!$A:$AP,MATCH(BI_NPDI_StLgt_Avg!$A17,CurrentHeader,0),FALSE)","v":0.2407},9.3872999999999998,null,null,null,-9.3872999999999998,-1,0]
["Rate Rider for Application of Tax Change",39,{"$f":"VLOOKUP($B$3,'Data Current Rates'!$A:$AP,MATCH(BI_NPDI_StLgt_Avg!$A18,CurrentHeader,0),FALSE)","v":0.2079},8.1081000000000003,null,null,null,-8.1081000000000003,-1,0]
["Group 1 Volumetric DVA Rider (General)",null,null,null,{"$f":"IF($C$9=\"kWh\",$C$4,$C$5)","v":11389},{"$f":"VLOOKUP($C$3,'Data Proposed Rates'!$A:$AZ,MATCH(BI_NPDI_StLgt_Avg!$A19,ProposedHeader,0),FALSE)","v":-6.9999999999999999E-4},-7.9722999999999997,-7.9722999999999997,"N/A",-3.0312896607218253E-3]
["Sub-Total:  Distribution (excluding pass through)",null,null,{"$f":"SUM(INDIRECT(\"D15:D\"&ROW()-1))","v":1004.2591},null,null,{"$f":"SUM(INDIRECT(\"g15:g\"&ROW()-1))","v":1206.7873},{"$f":"G20-D20","v":202.52819999999997},0.20166927041039506,0.45885401517509466]
["Line Losses on Cost of Power (based on two-tier RPP prices)",{"$f":"B8-B4","v":642.33959999999934},{"$f":"IF(B4>B7,C13,C12)","v":0.115},{"$f":"B21*C21","v":73.86905399999992},{"$f":"C8-C4","v":1047.7880000000005},{"$f":"IF(C4>C7,F13,F12)","v":0.115},{"$f":"E21*F21","v":120.49562000000006},46.626566000000139,0.63120567375886782,4.5815778014909894E-2]
["Sub-Total:  Distribution (based on two-tier RPP prices)",null,null,{"$f":"SUM(D20,D21:D21)","v":1078.128154},null,null,{"$f":"SUM(G20,G21:G21)","v":1327.2829200000001},249.15476600000011,0.23109939674203156,0.5046697931900046]
["Retail Transmission Rate – Network Service Rate",{"$f":"IF($B$9=\"kWh\",$B$8,$B$5)","v":39},{"$f":"VLOOKUP($B$3,'Data Current Rates'!$A:$AP,MATCH(BI_NPDI_StLgt_Avg!$A23,CurrentHeader,0),FALSE)","v":2.3447},{"$f":"B23*C23","v":91.443299999999994},{"$f":"IF($C$9=\"kWh\",$C$8,$C$5)","v":12436.788},{"$f":"VLOOKUP($C$3,'Data Proposed Rates'!$A:$AZ,MATCH(BI_NPDI_StLgt_Avg!$A23,ProposedHeader,0),FALSE)","v":5.4999999999999997E-3},{"$f":"E23*F23","v":68.402333999999996},{"$f":"G23-D23","v":-23.040965999999997},-0.25196997483686612,2.6008465288993258E-2]
["Retail Transmission Rate – Line and Transformation Connection Service Rate",{"$f":"IF($B$9=\"kWh\",$B$8,$B$5)","v":39},{"$f":"VLOOKUP($B$3,'Data Current Rates'!$A:$AP,MATCH(BI_NPDI_StLgt_Avg!$A24,CurrentHeader,0),FALSE)","v":1.0129999999999999},{"$f":"B24*C24","v":39.506999999999998},{"$f":"IF($C$9=\"kWh\",$C$8,$C$5)","v":12436.788},{"$f":"VLOOKUP($C$3,'Data Proposed Rates'!$A:$AZ,MATCH(BI_NPDI_StLgt_Avg!$A24,ProposedHeader,0),FALSE)","v":4.3E-3},{"$f":"E24*F24","v":53.478188400000001},{"$f":"G24-D24","v":13.971188400000003},0.35363830207305041,2.0333891044122004E-2]
["Sub-Total:  Retail Transmission ",null,null,{"$f":"SUM(D23:D24)","v":130.9503},null,null,{"$f":"SUM(G23:G24)","v":121.88052239999999},{"$f":"G25-D25","v":-9.069777600000009},-6.9261220478303673E-2,4.6342356333115259E-2]
["Sub-Total:  Delivery (based on two-tier RPP prices)",null,null,{"$f":"D22+D25","v":1209.078454},null,null,{"$f":"G22+G25","v":1449.1634424000001},{"$f":"G26-D26","v":240.08498840000016},0.19856857725462385,0.55101214952311994]
["Wholesale Market Service Rate (WMS) - not including CBR",{"$f":"B8","v":12031.339599999999},{"$f":"VLOOKUP($A27,'Data Pass Through'!$A:$D,2,FALSE)","v":3.0000000000000001E-3},{"$f":"B27*C27","v":36.094018800000001},{"$f":"$C$8","v":12436.788},{"$f":"VLOOKUP($A27,'Data Pass Through'!$A:$D,3,FALSE)","v":3.0000000000000001E-3},{"$f":"E27*F27","v":37.310364},{"$f":"G27-D27","v":1.2163451999999992},3.369935630443012E-2,1.4186435612178142E-2]
["Capacity Based Recovery (CBR) - Applicable for Class B Customers",{"$f":"B8","v":12031.339599999999},{"$f":"VLOOKUP($A28,'Data Pass Through'!$A:$D,2,FALSE)","v":4.0000000000000002E-4},{"$f":"B28*C28","v":4.8125358399999998},{"$f":"$C$8","v":12436.788},{"$f":"VLOOKUP($A28,'Data Pass Through'!$A:$D,3,FALSE)","v":4.0000000000000002E-4},{"$f":"E28*F28","v":4.9747152000000003},0.16217936000000055,3.3699356304430259E-2,1.8915247482904191E-3]
["Rural Rate Protection Charge",{"$f":"B8","v":12031.339599999999},{"$f":"VLOOKUP($A29,'Data Pass Through'!$A:$D,2,FALSE)","v":5.0000000000000001E-4},6.0156697999999995,12436.788,{"$f":"VLOOKUP($A29,'Data Pass Through'!$A:$D,3,FALSE)","v":5.0000000000000001E-4},6.218394,0.20272420000000047,3.3699356304430217E-2,2.3644059353630236E-3]
["Standard Supply Service – Administration Charge (if applicable)",1,{"$f":"VLOOKUP($A30,'Data Pass Through'!$A:$D,2,FALSE)","v":0.25},{"$f":"B30*C30","v":0.25},1,{"$f":"VLOOKUP($A30,'Data Pass Through'!$A:$D,3,FALSE)","v":0.25},0.25,0,0,9.5056936540327921E-5]
["Sub-Total:  Regulatory",null,null,{"$f":"SUM(D27:D30)","v":47.172224440000001},null,null,{"$f":"SUM(G27:G30)","v":48.753473200000002},1.5812487600000011,3.3520758852727976E-2,1.8537423232371914E-2]
["Total  Electricty Charge on Two-Tier RPP ",null,null,{"$f":"SUM(D26,D31,D14)","v":2553.2356784399999},null,null,{"$f":"SUM(G26,G31,G14)","v":2794.9019156000004},241.66623716000049,9.46509713931524E-2,1.0626992561105209]
["     HST",null,0.13,{"$f":"D32*C33","v":331.92063819719999},null,{"$f":"C33","v":0.13},{"$f":"G32*F33","v":363.33724902800009},31.416610830800096,9.4650971393152497E-2,0.13815090329436772]
["Total Electricity Charge on Two-Tier RPP (including HST)",null,null,{"$f":"SUM(D32:D33)","v":2885.1563166371998},null,null,{"$f":"SUM(G32:G33)","v":3158.2391646280003},273.08284799080047,9.4650971393152372E-2,1.2008501594048884]
["Ontario Electricity Rebate (OER)",null,{"$f":"IF(($B$4*12)<250000,VLOOKUP(A35,'Data Pass Through'!$A$4:$C$20,2,0),0)","v":-0.189},{"$f":"D32*C35","v":-482.56154322515999},null,{"$f":"C35","v":-0.189},{"$f":"G32*F35","v":-528.23646204840009},-45.674918823240091,-9.46509713931524E-2,-0.20085015940488843]
["Total Amount on Two-Tier RPP",null,null,{"$f":"SUM(D34:D35)","v":2402.59477341204},null,null,{"$f":"SUM(G34:G35)","v":2630.0027025796003},227.40792916756027,9.4650971393152317E-2,1]

{"sheet":"BI_HCHI_StLgt_Avg","index":111,"n_rows":36,"n_cols":10,"rows_kept":36,"cut":false,"hidden":false,"merged":[[0,0,0,9]]}
["2023 Bill Impacts (Average Consumption Level) - St Lgt_HCHI"]
[]
["Rate Class",{"$f":"VLOOKUP(A1,'Data BI List Acq_Seas'!C:E,2,FALSE)","v":"HCHI_St Lgt"},{"$f":"VLOOKUP(A1,'Data BI List Acq_Seas'!C:E,3,FALSE)","v":"St Lgt-HCHI"}]
["Monthly Consumption (kWh)",{"$f":"IF(COUNTIF(A1,\"*Low*\")>0,VLOOKUP(B3,'Data Billing Quantities'!$A:$Z,MATCH(\"Low kWh\",'Data Billing Quantities'!4:4,0),FALSE),IF(COUNTIF(A1,\"*Typical*\")>0,VLOOKUP(B3,'Data Billing Quantities'!$A:$Z,MATCH(\"Typical kWh\",'Data Billing Quantities'!4:4,0),FALSE),IF(COUNTIF(A1,\"*Average*\")>0,VLOOKUP(B3,'Data Billing Quantities'!$A:$Z,MATCH(\"Average kWh\",'Data Billing Quantities'!4:4,0),FALSE),IF(COUNTIF(A1,\"*High*\")>0,VLOOKUP(B3,'Data Billing Quantities'!$A:$Z,MATCH(\"High kWh\",'Data Billing Quantities'!4:4,0),FALSE),\"error\"))))","v":31001},{"$f":"B4","v":31001}]
["Peak (kW)",{"$f":"IF(COUNTIF(A1,\"*Low*\")>0,VLOOKUP(B3,'Data Billing Quantities'!$A:$Z,MATCH(\"Low kW\",'Data Billing Quantities'!4:4,0),FALSE),IF(COUNTIF(A1,\"*Typical*\")>0,VLOOKUP(B3,'Data Billing Quantities'!$A:$Z,MATCH(\"Typical kW\",'Data Billing Quantities'!4:4,0),FALSE),IF(COUNTIF(A1,\"*Average*\")>0,VLOOKUP(B3,'Data Billing Quantities'!$A:$Z,MATCH(\"Average kW\",'Data Billing Quantities'!4:4,0),FALSE),IF(COUNTIF(A1,\"*High*\")>0,VLOOKUP(B3,'Data Billing Quantities'!$A:$Z,MATCH(\"High kW\",'Data Billing Quantities'!4:4,0),FALSE),\"error\"))))","v":85},{"$f":"B5","v":85}]
["Loss factor",{"$f":"VLOOKUP(B3,'Data Billing Quantities'!A:D,MATCH(A6,'Data Billing Quantities'!4:4,0),FALSE)","v":1.0654999999999999},{"$f":"VLOOKUP(C3,'Data Billing Quantities'!A:D,MATCH(A6,'Data Billing Quantities'!4:4,0),FALSE)","v":1.0920000000000001}]
["Commodity Threshold",{"$f":"VLOOKUP(B3,'Data Billing Quantities'!A:D,MATCH(A7,'Data Billing Quantities'!4:4,0),FALSE)","v":750},{"$f":"B7","v":750}]
["Monthly Consumption (kWh) - Uplifted",{"$f":"B4*B6","v":33031.565499999997},{"$f":"C4*C6","v":33853.092000000004}]
["Charge determinant",{"$f":"VLOOKUP(B3,'Data Billing Quantities'!A:D,MATCH(A9,'Data Billing Quantities'!4:4,0),FALSE)","v":"kW"},{"$f":"VLOOKUP(C3,'Data Billing Quantities'!A:D,MATCH(A9,'Data Billing Quantities'!4:4,0),FALSE)","v":"kWh"}]
[]
[null,"Volume","Current Rate ($)","Current Charge ($)","Volume","Proposed Rate ($)","Proposed Charge ($)","Change ($)","Change (%)","% of Total Bill"]
["Energy First Tier",{"$f":"IF(B4>B7,B7,B4)","v":750},{"$f":"VLOOKUP($A12,'Data Pass Through'!$A:$D,2,FALSE)","v":9.8000000000000004E-2},{"$f":"B12*C12","v":73.5},{"$f":"B12","v":750},{"$f":"VLOOKUP($A12,'Data Pass Through'!$A:$D,3,FALSE)","v":9.8000000000000004E-2},{"$f":"E12*F12","v":73.5},{"$f":"G12-D12","v":0},{"$f":"IF(ISERROR(H12/ABS(D12)),\"N/A\",(H12/ABS(D12)))","v":0},{"$f":"G12/$G$36","v":8.5209291208830484E-3}]
["Energy Second Tier",{"$f":"IF(B4>B7,(B4)-B7,0)","v":30251},{"$f":"VLOOKUP($A13,'Data Pass Through'!$A:$D,2,FALSE)","v":0.115},{"$f":"B13*C13","v":3478.8650000000002},{"$f":"B13","v":30251},{"$f":"VLOOKUP($A13,'Data Pass Through'!$A:$D,3,FALSE)","v":0.115},{"$f":"E13*F13","v":3478.8650000000002},0,0,0.40330832770232389]
["Sub-Total:  Energy (RPP Tiered)",null,null,{"$f":"SUM(D12:D13)","v":3552.3650000000002},null,null,{"$f":"SUM(G12:G13)","v":3552.3650000000002},0,0,0.41182925682320692]
["Service Charge",{"$f":"IF(VLOOKUP(B$3,'Data Billing Quantities'!A:P,MATCH(\"Acquired Street Light Service Charge\",'Data Billing Quantities'!$4:$4,0),FALSE)>0,VLOOKUP(B$3,'Data Billing Quantities'!A:P,MATCH(\"Acquired Street Light Service Charge\",'Data Billing Quantities'!$4:$4,0),FALSE),1)","v":701},{"$f":"VLOOKUP($B$3,'Data Current Rates'!$A:$AP,MATCH(BI_HCHI_StLgt_Avg!$A15,CurrentHeader,0),FALSE)","v":5.9},{"$f":"B15*C15","v":4135.9000000000005},1,{"$f":"VLOOKUP($C$3,'Data Proposed Rates'!$A:$AZ,MATCH(BI_HCHI_StLgt_Avg!$A15,ProposedHeader,0),FALSE)","v":2.97},{"$f":"E15*F15","v":2.97},-4132.93,-0.99928189753137153,3.4431509508874356E-4]
["Distribution Volumetric Charge",{"$f":"IF($B$9=\"kWh\",$B$4,$B$5)","v":85},{"$f":"VLOOKUP($B$3,'Data Current Rates'!$A:$AP,MATCH(BI_HCHI_StLgt_Avg!$A16,CurrentHeader,0),FALSE)","v":15.103300000000001},{"$f":"B16*C16","v":1283.7805000000001},{"$f":"IF($C$9=\"kWh\",$C$4,$C$5)","v":31001},{"$f":"VLOOKUP($C$3,'Data Proposed Rates'!$A:$AZ,MATCH(BI_HCHI_StLgt_Avg!$A16,ProposedHeader,0),FALSE)","v":0.10639999999999999},3298.5063999999998,2014.7258999999997,1.5693694521765984,0.38239917332216466]
["Low Voltage Service Rate",{"$f":"IF($B$9=\"kWh\",$B$4,$B$5)","v":85},{"$f":"VLOOKUP($B$3,'Data Current Rates'!$A:$AP,MATCH(BI_HCHI_StLgt_Avg!$A17,CurrentHeader,0),FALSE)","v":0.113},9.6050000000000004,null,null,null,-9.6050000000000004,-1,0]
["Funding Adder for Renewable Energy Generation",85,{"$f":"VLOOKUP($B$3,'Data Current Rates'!$A:$AP,MATCH(BI_HCHI_StLgt_Avg!$A18,CurrentHeader,0),FALSE)","v":0.2152},18.292000000000002,null,null,null,-18.292000000000002,-1,0]
["Group 1 Volumetric DVA Rider (General)",null,null,null,{"$f":"IF($C$9=\"kWh\",$C$4,$C$5)","v":31001},{"$f":"VLOOKUP($C$3,'Data Proposed Rates'!$A:$AZ,MATCH(BI_HCHI_StLgt_Avg!$A19,ProposedHeader,0),FALSE)","v":-4.0000000000000002E-4},-12.400400000000001,-12.400400000000001,"N/A",-1.4375908771509954E-3]
["Sub-Total:  Distribution (excluding pass through)",null,null,{"$f":"SUM(INDIRECT(\"D15:D\"&ROW()-1))","v":5447.5775000000003},null,null,{"$f":"SUM(INDIRECT(\"g15:g\"&ROW()-1))","v":3289.0759999999996},{"$f":"G20-D20","v":-2158.5015000000008},-0.39623144416027134,0.38130589754010241]
["Line Losses on Cost of Power (based on two-tier RPP prices)",{"$f":"B8-B4","v":2030.565499999997},{"$f":"IF(B4>B7,C13,C12)","v":0.115},{"$f":"B21*C21","v":233.51503249999965},{"$f":"C8-C4","v":2852.0920000000042},{"$f":"IF(C4>C7,F13,F12)","v":0.115},{"$f":"E21*F21","v":327.99058000000048},94.475547500000829,0.4045801526717599,3.8024278700643878E-2]
["Sub-Total:  Distribution (based on two-tier RPP prices)",null,null,{"$f":"SUM(D20,D21:D21)","v":5681.0925324999998},null,null,{"$f":"SUM(G20,G21:G21)","v":3617.0665800000002},-2064.0259524999997,-0.36331496814957037,0.41933017624074631]
["Retail Transmission Rate – Network Service Rate",{"$f":"IF($B$9=\"kWh\",$B$8,$B$5)","v":85},{"$f":"VLOOKUP($B$3,'Data Current Rates'!$A:$AP,MATCH(BI_HCHI_StLgt_Avg!$A23,CurrentHeader,0),FALSE)","v":2.1987999999999999},{"$f":"B23*C23","v":186.898},{"$f":"IF($C$9=\"kWh\",$C$8,$C$5)","v":33853.092000000004},{"$f":"VLOOKUP($C$3,'Data Proposed Rates'!$A:$AZ,MATCH(BI_HCHI_StLgt_Avg!$A23,ProposedHeader,0),FALSE)","v":5.4999999999999997E-3},{"$f":"E23*F23","v":186.19200600000002},{"$f":"G23-D23","v":-0.70599399999997559},-3.7774293999934486E-3,2.1585427020422196E-2]
["Retail Transmission Rate – Line and Transformation Connection Service Rate",{"$f":"IF($B$9=\"kWh\",$B$8,$B$5)","v":85},{"$f":"VLOOKUP($B$3,'Data Current Rates'!$A:$AP,MATCH(BI_HCHI_StLgt_Avg!$A24,CurrentHeader,0),FALSE)","v":1.7343999999999999},{"$f":"B24*C24","v":147.42400000000001},{"$f":"IF($C$9=\"kWh\",$C$8,$C$5)","v":33853.092000000004},{"$f":"VLOOKUP($C$3,'Data Proposed Rates'!$A:$AZ,MATCH(BI_HCHI_StLgt_Avg!$A24,ProposedHeader,0),FALSE)","v":4.3E-3},{"$f":"E24*F24","v":145.56829560000003},{"$f":"G24-D24","v":-1.8557043999999792},-1.2587532559148979E-2,1.6875879306875535E-2]
["Sub-Total:  Retail Transmission ",null,null,{"$f":"SUM(D23:D24)","v":334.322},null,null,{"$f":"SUM(G23:G24)","v":331.76030160000005},{"$f":"G25-D25","v":-2.5616983999999547},-7.6623686146886976E-3,3.8461306327297731E-2]
["Sub-Total:  Delivery (based on two-tier RPP prices)",null,null,{"$f":"D22+D25","v":6015.4145325},null,null,{"$f":"G22+G25","v":3948.8268816},{"$f":"G26-D26","v":-2066.5876509},-0.34354866813162555,0.45779148256804403]
["Wholesale Market Service Rate (WMS) - not including CBR",{"$f":"B8","v":33031.565499999997},{"$f":"VLOOKUP($A27,'Data Pass Through'!$A:$D,2,FALSE)","v":3.0000000000000001E-3},{"$f":"B27*C27","v":99.094696499999998},{"$f":"$C$8","v":33853.092000000004},{"$f":"VLOOKUP($A27,'Data Pass Through'!$A:$D,3,FALSE)","v":3.0000000000000001E-3},{"$f":"E27*F27","v":101.55927600000001},{"$f":"G27-D27","v":2.4645795000000135},2.487095260441121E-2,1.1773869283866652E-2]
["Capacity Based Recovery (CBR) - Applicable for Class B Customers",{"$f":"B8","v":33031.565499999997},{"$f":"VLOOKUP($A28,'Data Pass Through'!$A:$D,2,FALSE)","v":4.0000000000000002E-4},{"$f":"B28*C28","v":13.212626199999999},{"$f":"$C$8","v":33853.092000000004},{"$f":"VLOOKUP($A28,'Data Pass Through'!$A:$D,3,FALSE)","v":4.0000000000000002E-4},{"$f":"E28*F28","v":13.541236800000002},0.32861060000000286,2.4870952604411294E-2,1.569849237848887E-3]
["Rural Rate Protection Charge",{"$f":"B8","v":33031.565499999997},{"$f":"VLOOKUP($A29,'Data Pass Through'!$A:$D,2,FALSE)","v":5.0000000000000001E-4},16.51578275,33853.092000000004,{"$f":"VLOOKUP($A29,'Data Pass Through'!$A:$D,3,FALSE)","v":5.0000000000000001E-4},16.926546000000002,0.41076325000000224,2.487095260441121E-2,1.9623115473111088E-3]
["Standard Supply Service – Administration Charge (if applicable)",1,{"$f":"VLOOKUP($A30,'Data Pass Through'!$A:$D,2,FALSE)","v":0.25},{"$f":"B30*C30","v":0.25},1,{"$f":"VLOOKUP($A30,'Data Pass Through'!$A:$D,3,FALSE)","v":0.25},0.25,0,0,2.8982752111847101E-5]
["Sub-Total:  Regulatory",null,null,{"$f":"SUM(D27:D30)","v":129.07310545000001},null,null,{"$f":"SUM(G27:G30)","v":132.27705880000002},3.2039533500000061,2.4822780383486974E-2,1.5335012821138494E-2]
["Total  Electricty Charge on Two-Tier RPP ",null,null,{"$f":"SUM(D26,D31,D14)","v":9696.8526379499999},null,null,{"$f":"SUM(G26,G31,G14)","v":7633.4689404000001},-2063.3836975499999,-0.21278901253739352,0.88495575221238942]
["     HST",null,0.13,{"$f":"D32*C33","v":1260.5908429335},null,{"$f":"C33","v":0.13},{"$f":"G32*F33","v":992.35096225200004},-268.23988068149993,-0.21278901253739346,0.11504424778761063]
["Total Electricity Charge on Two-Tier RPP (including HST)",null,null,{"$f":"SUM(D32:D33)","v":10957.443480883499},null,null,{"$f":"SUM(G32:G33)","v":8625.8199026519997},-2331.6235782314998,-0.21278901253739352,1]
["Ontario Electricity Rebate (OER)",null,{"$f":"IF(($B$4*12)<250000,VLOOKUP(A35,'Data Pass Through'!$A$4:$C$20,2,0),0)","v":0},{"$f":"D32*C35","v":0},null,{"$f":"C35","v":0},{"$f":"G32*F35","v":0},0,"N/A",0]
["Total Amount on Two-Tier RPP",null,null,{"$f":"SUM(D34:D35)","v":10957.443480883499},null,null,{"$f":"SUM(G34:G35)","v":8625.8199026519997},-2331.6235782314998,-0.21278901253739352,1]

{"sheet":"BI_NPDI_SenLgt_Avg","index":112,"n_rows":36,"n_cols":10,"rows_kept":36,"cut":false,"hidden":false,"merged":[[0,0,0,9]]}
["2023 Bill Impacts (Average Consumption Level) - Sen Lgt_NPDI"]
[]
["Rate Class",{"$f":"VLOOKUP(A1,'Data BI List Acq_Seas'!C:E,2,FALSE)","v":"NPDI_Sen Lgt"},{"$f":"VLOOKUP(A1,'Data BI List Acq_Seas'!C:E,3,FALSE)","v":"Sen Lgt-NPDI"}]
["Monthly Consumption (kWh)",{"$f":"IF(COUNTIF(A1,\"*Low*\")>0,VLOOKUP(B3,'Data Billing Quantities'!$A:$Z,MATCH(\"Low kWh\",'Data Billing Quantities'!4:4,0),FALSE),IF(COUNTIF(A1,\"*Typical*\")>0,VLOOKUP(B3,'Data Billing Quantities'!$A:$Z,MATCH(\"Typical kWh\",'Data Billing Quantities'!4:4,0),FALSE),IF(COUNTIF(A1,\"*Average*\")>0,VLOOKUP(B3,'Data Billing Quantities'!$A:$Z,MATCH(\"Average kWh\",'Data Billing Quantities'!4:4,0),FALSE),IF(COUNTIF(A1,\"*High*\")>0,VLOOKUP(B3,'Data Billing Quantities'!$A:$Z,MATCH(\"High kWh\",'Data Billing Quantities'!4:4,0),FALSE),\"error\"))))","v":108},{"$f":"B4","v":108}]
["Peak (kW)",{"$f":"IF(COUNTIF(A1,\"*Low*\")>0,VLOOKUP(B3,'Data Billing Quantities'!$A:$Z,MATCH(\"Low kW\",'Data Billing Quantities'!4:4,0),FALSE),IF(COUNTIF(A1,\"*Typical*\")>0,VLOOKUP(B3,'Data Billing Quantities'!$A:$Z,MATCH(\"Typical kW\",'Data Billing Quantities'!4:4,0),FALSE),IF(COUNTIF(A1,\"*Average*\")>0,VLOOKUP(B3,'Data Billing Quantities'!$A:$Z,MATCH(\"Average kW\",'Data Billing Quantities'!4:4,0),FALSE),IF(COUNTIF(A1,\"*High*\")>0,VLOOKUP(B3,'Data Billing Quantities'!$A:$Z,MATCH(\"High kW\",'Data Billing Quantities'!4:4,0),FALSE),\"error\"))))","v":0.33680272108843551},{"$f":"B5","v":0.33680272108843551}]
["Loss factor",{"$f":"VLOOKUP(B3,'Data Billing Quantities'!A:D,MATCH(A6,'Data Billing Quantities'!4:4,0),FALSE)","v":1.0564},{"$f":"VLOOKUP(C3,'Data Billing Quantities'!A:D,MATCH(A6,'Data Billing Quantities'!4:4,0),FALSE)","v":1.0920000000000001}]
["Commodity Threshold",{"$f":"VLOOKUP(B3,'Data Billing Quantities'!A:D,MATCH(A7,'Data Billing Quantities'!4:4,0),FALSE)","v":750},{"$f":"B7","v":750}]
["Monthly Consumption (kWh) - Uplifted",{"$f":"B4*B6","v":114.0912},{"$f":"C4*C6","v":117.93600000000001}]
["Charge determinant",{"$f":"VLOOKUP(B3,'Data Billing Quantities'!A:D,MATCH(A9,'Data Billing Quantities'!4:4,0),FALSE)","v":"kW"},{"$f":"VLOOKUP(C3,'Data Billing Quantities'!A:D,MATCH(A9,'Data Billing Quantities'!4:4,0),FALSE)","v":"kWh"}]
[]
[null,"Volume","Current Rate ($)","Current Charge ($)","Volume","Proposed Rate ($)","Proposed Charge ($)","Change ($)","Change (%)","% of Total Bill "]
["Energy First Tier",{"$f":"IF(B4>B7,B7,B4)","v":108},{"$f":"VLOOKUP($A12,'Data Pass Through'!$A:$D,2,FALSE)","v":9.8000000000000004E-2},{"$f":"B12*C12","v":10.584},{"$f":"B12","v":108},{"$f":"VLOOKUP($A12,'Data Pass Through'!$A:$D,3,FALSE)","v":9.8000000000000004E-2},{"$f":"E12*F12","v":10.584},{"$f":"G12-D12","v":0},{"$f":"IF(ISERROR(H12/ABS(D12)),\"N/A\",(H12/ABS(D12)))","v":0},{"$f":"G12/$G$36","v":0.34224865668433141}]
["Energy Second Tier",{"$f":"IF(B4>B7,(B4)-B7,0)","v":0},{"$f":"VLOOKUP($A13,'Data Pass Through'!$A:$D,2,FALSE)","v":0.115},{"$f":"B13*C13","v":0},{"$f":"B13","v":0},{"$f":"VLOOKUP($A13,'Data Pass Through'!$A:$D,3,FALSE)","v":0.115},{"$f":"E13*F13","v":0},0,"N/A",0]
["Sub-Total:  Energy (RPP Tiered)",null,null,{"$f":"SUM(D12:D13)","v":10.584},null,null,{"$f":"SUM(G12:G13)","v":10.584},0,0,0.34224865668433141]
["Service Charge",{"$f":"IF(VLOOKUP(B$3,'Data Billing Quantities'!A:P,MATCH(\"Acquired Street Light Service Charge\",'Data Billing Quantities'!$4:$4,0),FALSE)>0,VLOOKUP(B$3,'Data Billing Quantities'!A:P,MATCH(\"Acquired Street Light Service Charge\",'Data Billing Quantities'!$4:$4,0),FALSE),1)","v":1},{"$f":"VLOOKUP($B$3,'Data Current Rates'!$A:$AP,MATCH(BI_NPDI_SenLgt_Avg!$A15,CurrentHeader,0),FALSE)","v":6.87},{"$f":"B15*C15","v":6.87},1,{"$f":"VLOOKUP($C$3,'Data Proposed Rates'!$A:$AZ,MATCH(BI_NPDI_SenLgt_Avg!$A15,ProposedHeader,0),FALSE)","v":2.83},{"$f":"E15*F15","v":2.83},-4.04,-0.58806404657933042,9.1512065232110529E-2]
["Distribution Volumetric Charge",{"$f":"IF($B$9=\"kWh\",$B$4,$B$5)","v":0.33680272108843551},{"$f":"VLOOKUP($B$3,'Data Current Rates'!$A:$AP,MATCH(BI_NPDI_SenLgt_Avg!$A16,CurrentHeader,0),FALSE)","v":20.430900000000001},{"$f":"B16*C16","v":6.8811827142857176},{"$f":"IF($C$9=\"kWh\",$C$4,$C$5)","v":108},{"$f":"VLOOKUP($C$3,'Data Proposed Rates'!$A:$AZ,MATCH(BI_NPDI_SenLgt_Avg!$A16,ProposedHeader,0),FALSE)","v":0.1545},16.686,9.8048172857142823,1.4248738469564159,0.53956548426254292]
["Low Voltage Service Rate",{"$f":"IF($B$9=\"kWh\",$B$4,$B$5)","v":0.33680272108843551},{"$f":"VLOOKUP($B$3,'Data Current Rates'!$A:$AP,MATCH(BI_NPDI_SenLgt_Avg!$A17,CurrentHeader,0),FALSE)","v":0.23580000000000001},7.9418081632653098E-2,null,null,null,-7.9418081632653098E-2,-1,0]
["Rate Rider for Application of Tax Change",0.33680272108843551,{"$f":"VLOOKUP($B$3,'Data Current Rates'!$A:$AP,MATCH(BI_NPDI_SenLgt_Avg!$A18,CurrentHeader,0),FALSE)","v":6.5500000000000003E-2},2.2060578231292528E-2,null,null,null,-2.2060578231292528E-2,-1,0]
["Group 1 Volumetric DVA Rider (General)",null,null,null,{"$f":"IF($C$9=\"kWh\",$C$4,$C$5)","v":108},{"$f":"VLOOKUP($C$3,'Data Proposed Rates'!$A:$AZ,MATCH(BI_NPDI_SenLgt_Avg!$A19,ProposedHeader,0),FALSE)","v":-6.9999999999999999E-4},-7.5600000000000001E-2,-7.5600000000000001E-2,"N/A",-2.4446332620309385E-3]
["Sub-Total:  Distribution (excluding pass through)",null,null,{"$f":"SUM(INDIRECT(\"D15:D\"&ROW()-1))","v":13.852661374149664},null,null,{"$f":"SUM(INDIRECT(\"g15:g\"&ROW()-1))","v":19.440399999999997},{"$f":"G20-D20","v":5.5877386258503332},0.4033693219613067,0.62863291623262241]
["Line Losses on Cost of Power (based on two-tier RPP prices)",{"$f":"B8-B4","v":6.0912000000000006},{"$f":"IF(B4>B7,C13,C12)","v":9.8000000000000004E-2},{"$f":"B21*C21","v":0.59693760000000007},{"$f":"C8-C4","v":9.936000000000007},{"$f":"IF(C4>C7,F13,F12)","v":9.8000000000000004E-2},{"$f":"E21*F21","v":0.9737280000000007},0.37679040000000064,0.63120567375886627,3.1486876414958509E-2]
["Sub-Total:  Distribution (based on two-tier RPP prices)",null,null,{"$f":"SUM(D20,D21:D21)","v":14.449598974149664},null,null,{"$f":"SUM(G20,G21:G21)","v":20.414127999999998},5.9645290258503341,0.41278163058510331,0.66011979264758092]
["Retail Transmission Rate – Network Service Rate",{"$f":"IF($B$9=\"kWh\",$B$8,$B$5)","v":0.33680272108843551},{"$f":"VLOOKUP($B$3,'Data Current Rates'!$A:$AP,MATCH(BI_NPDI_SenLgt_Avg!$A23,CurrentHeader,0),FALSE)","v":2.3565999999999998},{"$f":"B23*C23","v":0.79370929251700706},{"$f":"IF($C$9=\"kWh\",$C$8,$C$5)","v":117.93600000000001},{"$f":"VLOOKUP($C$3,'Data Proposed Rates'!$A:$AZ,MATCH(BI_NPDI_SenLgt_Avg!$A23,ProposedHeader,0),FALSE)","v":5.4999999999999997E-3},{"$f":"E23*F23","v":0.648648},{"$f":"G23-D23","v":-0.14506129251700706},-0.18276375731596817,2.0974953388225453E-2]
["Retail Transmission Rate – Line and Transformation Connection Service Rate",{"$f":"IF($B$9=\"kWh\",$B$8,$B$5)","v":0.33680272108843551},{"$f":"VLOOKUP($B$3,'Data Current Rates'!$A:$AP,MATCH(BI_NPDI_SenLgt_Avg!$A24,CurrentHeader,0),FALSE)","v":1.0341},{"$f":"B24*C24","v":0.34828769387755115},{"$f":"IF($C$9=\"kWh\",$C$8,$C$5)","v":117.93600000000001},{"$f":"VLOOKUP($C$3,'Data Proposed Rates'!$A:$AZ,MATCH(BI_NPDI_SenLgt_Avg!$A24,ProposedHeader,0),FALSE)","v":4.3E-3},{"$f":"E24*F24","v":0.50712480000000004},{"$f":"G24-D24","v":0.15883710612244889},0.45605144515468254,1.6398599921703536E-2]
["Sub-Total:  Retail Transmission ",null,null,{"$f":"SUM(D23:D24)","v":1.1419969863945583},null,null,{"$f":"SUM(G23:G24)","v":1.1557728},{"$f":"G25-D25","v":1.3775813605441778E-2},1.2062915900447268E-2,3.7373553309928989E-2]
["Sub-Total:  Delivery (based on two-tier RPP prices)",null,null,{"$f":"D22+D25","v":15.591595960544222},null,null,{"$f":"G22+G25","v":21.569900799999999},{"$f":"G26-D26","v":5.9783048394557774},0.38343123145214608,0.69749334595750989]
["Wholesale Market Service Rate (WMS) - not including CBR",{"$f":"B8","v":114.0912},{"$f":"VLOOKUP($A27,'Data Pass Through'!$A:$D,2,FALSE)","v":3.0000000000000001E-3},{"$f":"B27*C27","v":0.34227360000000001},{"$f":"$C$8","v":117.93600000000001},{"$f":"VLOOKUP($A27,'Data Pass Through'!$A:$D,3,FALSE)","v":3.0000000000000001E-3},{"$f":"E27*F27","v":0.35380800000000001},{"$f":"G27-D27","v":1.15344E-2},3.3699356304430141E-2,1.1440883666304793E-2]
["Capacity Based Recovery (CBR) - Applicable for Class B Customers",{"$f":"B8","v":114.0912},{"$f":"VLOOKUP($A28,'Data Pass Through'!$A:$D,2,FALSE)","v":4.0000000000000002E-4},{"$f":"B28*C28","v":4.563648E-2},{"$f":"$C$8","v":117.93600000000001},{"$f":"VLOOKUP($A28,'Data Pass Through'!$A:$D,3,FALSE)","v":4.0000000000000002E-4},{"$f":"E28*F28","v":4.7174400000000005E-2},1.5379200000000051E-3,3.3699356304430252E-2,1.5254511555073058E-3]
["Rural Rate Protection Charge",{"$f":"B8","v":114.0912},{"$f":"VLOOKUP($A29,'Data Pass Through'!$A:$D,2,FALSE)","v":5.0000000000000001E-4},5.7045600000000002E-2,117.93600000000001,{"$f":"VLOOKUP($A29,'Data Pass Through'!$A:$D,3,FALSE)","v":5.0000000000000001E-4},5.8968000000000007E-2,1.9224000000000047E-3,3.3699356304430224E-2,1.9068139443841324E-3]
["Standard Supply Service – Administration Charge (if applicable)",1,{"$f":"VLOOKUP($A30,'Data Pass Through'!$A:$D,2,FALSE)","v":0.25},{"$f":"B30*C30","v":0.25},1,{"$f":"VLOOKUP($A30,'Data Pass Through'!$A:$D,3,FALSE)","v":0.25},0.25,0,0,8.0841047024832625E-3]
["Sub-Total:  Regulatory",null,null,{"$f":"SUM(D27:D30)","v":0.69495567999999996},null,null,{"$f":"SUM(G27:G30)","v":0.70995040000000009},1.4994720000000128E-2,2.1576512620200657E-2,2.2957253468679495E-2]
["Total  Electricty Charge on Two-Tier RPP ",null,null,{"$f":"SUM(D26,D31,D14)","v":26.870551640544221},null,null,{"$f":"SUM(G26,G31,G14)","v":32.863851199999999},5.9932995594557781,0.22304341345983597,1.0626992561105209]
["     HST",null,0.13,{"$f":"D32*C33","v":3.4931717132707489},null,{"$f":"C33","v":0.13},{"$f":"G32*F33","v":4.2723006559999996},0.77912894272925071,0.2230434134598358,0.13815090329436769]
["Total Electricity Charge on Two-Tier RPP (including HST)",null,null,{"$f":"SUM(D32:D33)","v":30.363723353814969},null,null,{"$f":"SUM(G32:G33)","v":37.136151855999998},6.7724285021850292,0.22304341345983597,1.2008501594048884]
["Ontario Electricity Rebate (OER)",null,{"$f":"IF(($B$4*12)<250000,VLOOKUP(A35,'Data Pass Through'!$A$4:$C$20,2,0),0)","v":-0.189},{"$f":"D32*C35","v":-5.0785342600628578},null,{"$f":"C35","v":-0.189},{"$f":"G32*F35","v":-6.2112678768},-1.1327336167371422,-0.223043413459836,-0.20085015940488843]
["Total Amount on Two-Tier RPP",null,null,{"$f":"SUM(D34:D35)","v":25.285189093752109},null,null,{"$f":"SUM(G34:G35)","v":30.924883979199997},5.6396948854478879,0.223043413459836,1]

{"sheet":"BI_HCHI_SenLgt_Avg","index":113,"n_rows":36,"n_cols":10,"rows_kept":36,"cut":false,"hidden":false,"merged":[[0,0,0,9]]}
["2023 Bill Impacts (Average Consumption Level) - Sen Lgt_HCHI"]
[]
["Rate Class",{"$f":"VLOOKUP(A1,'Data BI List Acq_Seas'!C:E,2,FALSE)","v":"HCHI_Sen Lgt"},{"$f":"VLOOKUP(A1,'Data BI List Acq_Seas'!C:E,3,FALSE)","v":"Sen Lgt-HCHI"}]
["Monthly Consumption (kWh)",{"$f":"IF(COUNTIF(A1,\"*Low*\")>0,VLOOKUP(B3,'Data Billing Quantities'!$A:$Z,MATCH(\"Low kWh\",'Data Billing Quantities'!4:4,0),FALSE),IF(COUNTIF(A1,\"*Typical*\")>0,VLOOKUP(B3,'Data Billing Quantities'!$A:$Z,MATCH(\"Typical kWh\",'Data Billing Quantities'!4:4,0),FALSE),IF(COUNTIF(A1,\"*Average*\")>0,VLOOKUP(B3,'Data Billing Quantities'!$A:$Z,MATCH(\"Average kWh\",'Data Billing Quantities'!4:4,0),FALSE),IF(COUNTIF(A1,\"*High*\")>0,VLOOKUP(B3,'Data Billing Quantities'!$A:$Z,MATCH(\"High kWh\",'Data Billing Quantities'!4:4,0),FALSE),\"error\"))))","v":61},{"$f":"B4","v":61}]
["Peak (kW)",{"$f":"IF(COUNTIF(A1,\"*Low*\")>0,VLOOKUP(B3,'Data Billing Quantities'!$A:$Z,MATCH(\"Low kW\",'Data Billing Quantities'!4:4,0),FALSE),IF(COUNTIF(A1,\"*Typical*\")>0,VLOOKUP(B3,'Data Billing Quantities'!$A:$Z,MATCH(\"Typical kW\",'Data Billing Quantities'!4:4,0),FALSE),IF(COUNTIF(A1,\"*Average*\")>0,VLOOKUP(B3,'Data Billing Quantities'!$A:$Z,MATCH(\"Average kW\",'Data Billing Quantities'!4:4,0),FALSE),IF(COUNTIF(A1,\"*High*\")>0,VLOOKUP(B3,'Data Billing Quantities'!$A:$Z,MATCH(\"High kW\",'Data Billing Quantities'!4:4,0),FALSE),\"error\"))))","v":0.1956473214285713},{"$f":"B5","v":0.1956473214285713}]
["Loss factor",{"$f":"VLOOKUP(B3,'Data Billing Quantities'!A:D,MATCH(A6,'Data Billing Quantities'!4:4,0),FALSE)","v":1.0654999999999999},{"$f":"VLOOKUP(C3,'Data Billing Quantities'!A:D,MATCH(A6,'Data Billing Quantities'!4:4,0),FALSE)","v":1.0920000000000001}]
["Commodity Threshold",{"$f":"VLOOKUP(B3,'Data Billing Quantities'!A:D,MATCH(A7,'Data Billing Quantities'!4:4,0),FALSE)","v":750},{"$f":"B7","v":750}]
["Monthly Consumption (kWh) - Uplifted",{"$f":"B4*B6","v":64.995499999999993},{"$f":"C4*C6","v":66.612000000000009}]
["Charge determinant",{"$f":"VLOOKUP(B3,'Data Billing Quantities'!A:D,MATCH(A9,'Data Billing Quantities'!4:4,0),FALSE)","v":"kW"},{"$f":"VLOOKUP(C3,'Data Billing Quantities'!A:D,MATCH(A9,'Data Billing Quantities'!4:4,0),FALSE)","v":"kWh"}]
[]
[null,"Volume","Current Rate ($)","Current Charge ($)","Volume","Proposed Rate ($)","Proposed Charge ($)","Change ($)","Change (%)","% of Total Bill"]
["Energy First Tier",{"$f":"IF(B4>B7,B7,B4)","v":61},{"$f":"VLOOKUP($A12,'Data Pass Through'!$A:$D,2,FALSE)","v":9.8000000000000004E-2},{"$f":"B12*C12","v":5.9780000000000006},{"$f":"B12","v":61},{"$f":"VLOOKUP($A12,'Data Pass Through'!$A:$D,3,FALSE)","v":9.8000000000000004E-2},{"$f":"E12*F12","v":5.9780000000000006},{"$f":"G12-D12","v":0},{"$f":"IF(ISERROR(H12/ABS(D12)),\"N/A\",(H12/ABS(D12)))","v":0},{"$f":"G12/$G$36","v":0.3189059009825142}]
["Energy Second Tier",{"$f":"IF(B4>B7,(B4)-B7,0)","v":0},{"$f":"VLOOKUP($A13,'Data Pass Through'!$A:$D,2,FALSE)","v":0.115},{"$f":"B13*C13","v":0},{"$f":"B13","v":0},{"$f":"VLOOKUP($A13,'Data Pass Through'!$A:$D,3,FALSE)","v":0.115},{"$f":"E13*F13","v":0},0,"N/A",0]
["Sub-Total:  Energy (RPP Tiered)",null,null,{"$f":"SUM(D12:D13)","v":5.9780000000000006},null,null,{"$f":"SUM(G12:G13)","v":5.9780000000000006},0,0,0.3189059009825142]
["Service Charge",{"$f":"IF(VLOOKUP(B$3,'Data Billing Quantities'!A:P,MATCH(\"Acquired Street Light Service Charge\",'Data Billing Quantities'!$4:$4,0),FALSE)>0,VLOOKUP(B$3,'Data Billing Quantities'!A:P,MATCH(\"Acquired Street Light Service Charge\",'Data Billing Quantities'!$4:$4,0),FALSE),1)","v":1},{"$f":"VLOOKUP($B$3,'Data Current Rates'!$A:$AP,MATCH(BI_HCHI_SenLgt_Avg!$A15,CurrentHeader,0),FALSE)","v":14.73},{"$f":"B15*C15","v":14.73},1,{"$f":"VLOOKUP($C$3,'Data Proposed Rates'!$A:$AZ,MATCH(BI_HCHI_SenLgt_Avg!$A15,ProposedHeader,0),FALSE)","v":2.83},{"$f":"E15*F15","v":2.83},-11.9,-0.80787508486082826,0.15097084305461947]
["Distribution Volumetric Charge",{"$f":"IF($B$9=\"kWh\",$B$4,$B$5)","v":0.1956473214285713},{"$f":"VLOOKUP($B$3,'Data Current Rates'!$A:$AP,MATCH(BI_HCHI_SenLgt_Avg!$A16,CurrentHeader,0),FALSE)","v":38.022799999999997},{"$f":"B16*C16","v":7.43905897321428},{"$f":"IF($C$9=\"kWh\",$C$4,$C$5)","v":61},{"$f":"VLOOKUP($C$3,'Data Proposed Rates'!$A:$AZ,MATCH(BI_HCHI_SenLgt_Avg!$A16,ProposedHeader,0),FALSE)","v":0.1545},9.4245000000000001,1.9854410267857201,0.26689411038878319,0.50276491532447387]
["Low Voltage Service Rate",{"$f":"IF($B$9=\"kWh\",$B$4,$B$5)","v":0.1956473214285713},{"$f":"VLOOKUP($B$3,'Data Current Rates'!$A:$AP,MATCH(BI_HCHI_SenLgt_Avg!$A17,CurrentHeader,0),FALSE)","v":0.1099},2.1501640624999985E-2,null,null,null,-2.1501640624999985E-2,-1,0]
["Funding Adder for Renewable Energy Generation",0.1956473214285713,{"$f":"VLOOKUP($B$3,'Data Current Rates'!$A:$AP,MATCH(BI_HCHI_SenLgt_Avg!$A18,CurrentHeader,0),FALSE)","v":0.62239999999999995},0.12177089285714277,null,null,null,-0.12177089285714277,-1,0]
["Group 1 Volumetric DVA Rider (General)",null,null,null,{"$f":"IF($C$9=\"kWh\",$C$4,$C$5)","v":61},{"$f":"VLOOKUP($C$3,'Data Proposed Rates'!$A:$AZ,MATCH(BI_HCHI_SenLgt_Avg!$A19,ProposedHeader,0),FALSE)","v":-4.0000000000000002E-4},-2.4400000000000002E-2,-2.4400000000000002E-2,"N/A",-1.3016567387041397E-3]
["Sub-Total:  Distribution (excluding pass through)",null,null,{"$f":"SUM(INDIRECT(\"D15:D\"&ROW()-1))","v":22.312331506696424},null,null,{"$f":"SUM(INDIRECT(\"g15:g\"&ROW()-1))","v":12.2301},{"$f":"G20-D20","v":-10.082231506696424},-0.45186812967844814,0.65243410164038929]
["Line Losses on Cost of Power (based on two-tier RPP prices)",{"$f":"B8-B4","v":3.9954999999999927},{"$f":"IF(B4>B7,C13,C12)","v":9.8000000000000004E-2},{"$f":"B21*C21","v":0.39155899999999932},{"$f":"C8-C4","v":5.612000000000009},{"$f":"IF(C4>C7,F13,F12)","v":9.8000000000000004E-2},{"$f":"E21*F21","v":0.54997600000000091},0.15841700000000158,0.40458015267176045,2.9339342890391355E-2]
["Sub-Total:  Distribution (based on two-tier RPP prices)",null,null,{"$f":"SUM(D20,D21:D21)","v":22.703890506696425},null,null,{"$f":"SUM(G20,G21:G21)","v":12.780076000000001},-9.9238145066964236,-0.43709753197450602,0.68177344453078059]
["Retail Transmission Rate – Network Service Rate",{"$f":"IF($B$9=\"kWh\",$B$8,$B$5)","v":0.1956473214285713},{"$f":"VLOOKUP($B$3,'Data Current Rates'!$A:$AP,MATCH(BI_HCHI_SenLgt_Avg!$A23,CurrentHeader,0),FALSE)","v":2.2099000000000002},{"$f":"B23*C23","v":0.43236101562499973},{"$f":"IF($C$9=\"kWh\",$C$8,$C$5)","v":66.612000000000009},{"$f":"VLOOKUP($C$3,'Data Proposed Rates'!$A:$AZ,MATCH(BI_HCHI_SenLgt_Avg!$A23,ProposedHeader,0),FALSE)","v":5.4999999999999997E-3},{"$f":"E23*F23","v":0.36636600000000002},{"$f":"G23-D23","v":-6.5995015624999709E-2},-0.15263868211984971,1.9544375931642658E-2]
["Retail Transmission Rate – Line and Transformation Connection Service Rate",{"$f":"IF($B$9=\"kWh\",$B$8,$B$5)","v":0.1956473214285713},{"$f":"VLOOKUP($B$3,'Data Current Rates'!$A:$AP,MATCH(BI_HCHI_SenLgt_Avg!$A24,CurrentHeader,0),FALSE)","v":1.7706},{"$f":"B24*C24","v":0.34641314732142836},{"$f":"IF($C$9=\"kWh\",$C$8,$C$5)","v":66.612000000000009},{"$f":"VLOOKUP($C$3,'Data Proposed Rates'!$A:$AZ,MATCH(BI_HCHI_SenLgt_Avg!$A24,ProposedHeader,0),FALSE)","v":4.3E-3},{"$f":"E24*F24","v":0.28643160000000006},{"$f":"G24-D24","v":-5.9981547321428297E-2},-0.17315032003035633,1.5280148455647898E-2]
["Sub-Total:  Retail Transmission ",null,null,{"$f":"SUM(D23:D24)","v":0.77877416294642809},null,null,{"$f":"SUM(G23:G24)","v":0.65279760000000009},{"$f":"G25-D25","v":-0.12597656294642801},-0.16176263792548795,3.4824524387290556E-2]
["Sub-Total:  Delivery (based on two-tier RPP prices)",null,null,{"$f":"D22+D25","v":23.482664669642851},null,null,{"$f":"G22+G25","v":13.432873600000001},{"$f":"G26-D26","v":-10.049791069642851},-0.42796638333104886,0.71659796891807115]
["Wholesale Market Service Rate (WMS) - not including CBR",{"$f":"B8","v":64.995499999999993},{"$f":"VLOOKUP($A27,'Data Pass Through'!$A:$D,2,FALSE)","v":3.0000000000000001E-3},{"$f":"B27*C27","v":0.19498649999999998},{"$f":"$C$8","v":66.612000000000009},{"$f":"VLOOKUP($A27,'Data Pass Through'!$A:$D,3,FALSE)","v":3.0000000000000001E-3},{"$f":"E27*F27","v":0.19983600000000004},{"$f":"G27-D27","v":4.8495000000000621E-3},2.4870952604411394E-2,1.0660568689986905E-2]
["Capacity Based Recovery (CBR) - Applicable for Class B Customers",{"$f":"B8","v":64.995499999999993},{"$f":"VLOOKUP($A28,'Data Pass Through'!$A:$D,2,FALSE)","v":4.0000000000000002E-4},{"$f":"B28*C28","v":2.5998199999999999E-2},{"$f":"$C$8","v":66.612000000000009},{"$f":"VLOOKUP($A28,'Data Pass Through'!$A:$D,3,FALSE)","v":4.0000000000000002E-4},{"$f":"E28*F28","v":2.6644800000000003E-2},6.4660000000000412E-4,2.4870952604411235E-2,1.4214091586649206E-3]
["Rural Rate Protection Charge",{"$f":"B8","v":64.995499999999993},{"$f":"VLOOKUP($A29,'Data Pass Through'!$A:$D,2,FALSE)","v":5.0000000000000001E-4},3.2497749999999999E-2,66.612000000000009,{"$f":"VLOOKUP($A29,'Data Pass Through'!$A:$D,3,FALSE)","v":5.0000000000000001E-4},3.3306000000000002E-2,8.0825000000000341E-4,2.4870952604411179E-2,1.7767614483311506E-3]
["Standard Supply Service – Administration Charge (if applicable)",1,{"$f":"VLOOKUP($A30,'Data Pass Through'!$A:$D,2,FALSE)","v":0.25},{"$f":"B30*C30","v":0.25},1,{"$f":"VLOOKUP($A30,'Data Pass Through'!$A:$D,3,FALSE)","v":0.25},0.25,0,0,1.3336646912952249E-2]
["Sub-Total:  Regulatory",null,null,{"$f":"SUM(D27:D30)","v":0.50348244999999991},null,null,{"$f":"SUM(G27:G30)","v":0.5097868000000001},6.3043500000001806E-3,1.2521489080702181E-2,2.7195386209935227E-2]
["Total  Electricty Charge on Two-Tier RPP ",null,null,{"$f":"SUM(D26,D31,D14)","v":29.964147119642853},null,null,{"$f":"SUM(G26,G31,G14)","v":19.920660400000003},-10.04348671964285,-0.33518346707952484,1.0626992561105206]
["     HST",null,0.13,{"$f":"D32*C33","v":3.895339125553571},null,{"$f":"C33","v":0.13},{"$f":"G32*F33","v":2.5896858520000006},-1.3056532735535704,-0.33518346707952484,0.13815090329436769]
["Total Electricity Charge on Two-Tier RPP (including HST)",null,null,{"$f":"SUM(D32:D33)","v":33.859486245196422},null,null,{"$f":"SUM(G32:G33)","v":22.510346252000005},-11.349139993196417,-0.33518346707952479,1.2008501594048884]
["Ontario Electricity Rebate (OER)",null,{"$f":"IF(($B$4*12)<250000,VLOOKUP(A35,'Data Pass Through'!$A$4:$C$20,2,0),0)","v":-0.189},{"$f":"D32*C35","v":-5.6632238056124988},null,{"$f":"C35","v":-0.189},{"$f":"G32*F35","v":-3.7650048156000007},1.8982189900124982,0.33518346707952479,-0.2008501594048884]
["Total Amount on Two-Tier RPP",null,null,{"$f":"SUM(D34:D35)","v":28.196262439583922},null,null,{"$f":"SUM(G34:G35)","v":18.745341436400004},-9.4509210031839181,-0.33518346707952479,1]

{"sheet":"BI_Seas_UR_Low","index":114,"n_rows":52,"n_cols":11,"rows_kept":52,"cut":false,"hidden":false,"merged":[[0,0,0,10]]}
["2023 Bill Impacts (Low Consumption Level) - Seas-UR"]
[]
["Rate Class",{"$f":"VLOOKUP(A1,'Data BI List Acq_Seas'!C:E,2,FALSE)","v":"Seasonal"},{"$f":"VLOOKUP(A1,'Data BI List Acq_Seas'!C:E,3,FALSE)","v":"UR"}]
["Monthly Consumption (kWh)",{"$f":"IF(COUNTIF(A1,\"*Low*\")>0,VLOOKUP(B3,'Data Billing Quantities'!$A:$Z,MATCH(\"Low kWh\",'Data Billing Quantities'!4:4,0),FALSE),IF(COUNTIF(A1,\"*Typical*\")>0,VLOOKUP(B3,'Data Billing Quantities'!$A:$Z,MATCH(\"Typical kWh\",'Data Billing Quantities'!4:4,0),FALSE),IF(COUNTIF(A1,\"*Average*\")>0,VLOOKUP(B3,'Data Billing Quantities'!$A:$Z,MATCH(\"Average kWh\",'Data Billing Quantities'!4:4,0),FALSE),IF(COUNTIF(A1,\"*High*\")>0,VLOOKUP(B3,'Data Billing Quantities'!$A:$Z,MATCH(\"High kWh\",'Data Billing Quantities'!4:4,0),FALSE),\"error\"))))","v":40},{"$f":"B4","v":40}]
["Peak (kW)",{"$f":"IF(COUNTIF(A1,\"*Low*\")>0,VLOOKUP(B3,'Data Billing Quantities'!$A:$Z,MATCH(\"Low kW\",'Data Billing Quantities'!4:4,0),FALSE),IF(COUNTIF(A1,\"*Typical*\")>0,VLOOKUP(B3,'Data Billing Quantities'!$A:$Z,MATCH(\"Typical kW\",'Data Billing Quantities'!4:4,0),FALSE),IF(COUNTIF(A1,\"*Average*\")>0,VLOOKUP(B3,'Data Billing Quantities'!$A:$Z,MATCH(\"Average kW\",'Data Billing Quantities'!4:4,0),FALSE),IF(COUNTIF(A1,\"*High*\")>0,VLOOKUP(B3,'Data Billing Quantities'!$A:$Z,MATCH(\"High kW\",'Data Billing Quantities'!4:4,0),FALSE),\"error\"))))","v":0},{"$f":"B5","v":0}]
["Loss factor",{"$f":"VLOOKUP(B3,'Data Billing Quantities'!A:D,MATCH(A6,'Data Billing Quantities'!4:4,0),FALSE)","v":1.1040000000000001},{"$f":"VLOOKUP(C3,'Data Billing Quantities'!A:D,MATCH(A6,'Data Billing Quantities'!4:4,0),FALSE)","v":1.0569999999999999}]
["Commodity Threshold",{"$f":"VLOOKUP(B3,'Data Billing Quantities'!A:D,MATCH(A7,'Data Billing Quantities'!4:4,0),FALSE)","v":600},{"$f":"B7","v":600}]
["Monthly Consumption (kWh) - Uplifted",{"$f":"B4*B6","v":44.160000000000004},{"$f":"C4*C6","v":42.28}]
["Charge determinant",{"$f":"VLOOKUP(B3,'Data Billing Quantities'!A:D,MATCH(A9,'Data Billing Quantities'!4:4,0),FALSE)","v":"kWh"},{"$f":"VLOOKUP(C3,'Data Billing Quantities'!A:D,MATCH(A9,'Data Billing Quantities'!4:4,0),FALSE)","v":"kWh"}]
[]
[null,"Volume","Current Rate ($)","Current Charge ($)","Volume","Proposed Rate ($)","Proposed Charge ($)","Change ($)","Change (%)","% of Total Bill on RPP","% of Total Bill"]
["Energy First Tier",{"$f":"IF(B4>B7,B7,B4)","v":40},{"$f":"VLOOKUP($A12,'Data Pass Through'!$A:$D,2,FALSE)","v":9.8000000000000004E-2},{"$f":"B12*C12","v":3.92},{"$f":"B12","v":40},{"$f":"VLOOKUP($A12,'Data Pass Through'!$A:$D,3,FALSE)","v":9.8000000000000004E-2},{"$f":"E12*F12","v":3.92},{"$f":"G12-D12","v":0},{"$f":"IF(ISERROR(H12/ABS(D12)),\"N/A\",(H12/ABS(D12)))","v":0},{"$f":"G12/$G$46","v":9.811889837149021E-2}]
["Energy Second Tier",{"$f":"IF(B4>B7,(B4)-B7,0)","v":0},{"$f":"VLOOKUP($A13,'Data Pass Through'!$A:$D,2,FALSE)","v":0.115},{"$f":"B13*C13","v":0},{"$f":"B13","v":0},{"$f":"VLOOKUP($A13,'Data Pass Through'!$A:$D,3,FALSE)","v":0.115},{"$f":"E13*F13","v":0},0,"N/A",{"$f":"G13/$G$46","v":0}]
["Sub-Total:  Energy (RPP Tiered)",null,null,{"$f":"SUM(D12:D13)","v":3.92},null,null,{"$f":"SUM(G12:G13)","v":3.92},0,0,{"$f":"G14/$G$46","v":9.811889837149021E-2}]
["TOU-Off Peak",{"$f":"B$4*VLOOKUP($B$3,'Data Billing Quantities'!$A:$O,MATCH(BI_Seas_UR_Low!$A15,'Data Billing Quantities'!$4:$4,0),FALSE)","v":25.6},{"$f":"VLOOKUP($A15,'Data Pass Through'!$A:$D,2,FALSE)","v":8.2000000000000003E-2},{"$f":"B15*C15","v":2.0992000000000002},25.6,{"$f":"VLOOKUP($A15,'Data Pass Through'!$A:$D,3,FALSE)","v":8.2000000000000003E-2},{"$f":"E15*F15","v":2.0992000000000002},0,0,null,{"$f":"G15/$G$51","v":5.2261590761830859E-2}]
["TOU-Mid Peak",{"$f":"B$4*VLOOKUP($B$3,'Data Billing Quantities'!$A:$O,MATCH(BI_Seas_UR_Low!$A16,'Data Billing Quantities'!$4:$4,0),FALSE)","v":7.1999999999999993},{"$f":"VLOOKUP($A16,'Data Pass Through'!$A:$D,2,FALSE)","v":0.113},{"$f":"B16*C16","v":0.81359999999999999},7.1999999999999993,{"$f":"VLOOKUP($A16,'Data Pass Through'!$A:$D,3,FALSE)","v":0.113},{"$f":"E16*F16","v":0.81359999999999999},0,0,null,2.0255349773163865E-2]
["TOU-On Peak",{"$f":"B$4*VLOOKUP($B$3,'Data Billing Quantities'!$A:$O,MATCH(BI_Seas_UR_Low!$A17,'Data Billing Quantities'!$4:$4,0),FALSE)","v":7.1999999999999993},{"$f":"VLOOKUP($A17,'Data Pass Through'!$A:$D,2,FALSE)","v":0.17},{"$f":"B17*C17","v":1.224},7.1999999999999993,{"$f":"VLOOKUP($A17,'Data Pass Through'!$A:$D,3,FALSE)","v":0.17},{"$f":"E17*F17","v":1.224},0,0,null,3.0472650101219974E-2]
["Sub-Total:  Energy (RPP TOU)",null,null,{"$f":"SUM(D15:D17)","v":4.1368},null,null,{"$f":"SUM(G15:G17)","v":4.1368},0,0,{"$f":"G18/$G$46","v":0.10354547417938284},0.1029895906362147]
["Service Charge",1,{"$f":"VLOOKUP($B$3,'Data Current Rates'!$A:$AP,MATCH(BI_Seas_UR_Low!$A19,CurrentHeader,0),FALSE)","v":57.87},{"$f":"B19*C19","v":57.87},1,{"$f":"IF(C3=\"R2\",(VLOOKUP($C$3,'Data Proposed Rates'!$A:$AZ,MATCH(BI_Seas_UR_Low!$A19,ProposedHeader,0),FALSE)+'Data Pass Through'!B4),VLOOKUP($C$3,'Data Proposed Rates'!$A:$AZ,MATCH(BI_Seas_UR_Low!$A19,ProposedHeader,0),FALSE))","v":35.880000000000003},{"$f":"E19*F19","v":35.880000000000003},-21.989999999999995,-0.37998963193364432,0.89808828407374208,0.8932669000259581]
["Fixed Base Rate Adjustment to Recover Past Tax Amounts ",1,{"$f":"VLOOKUP($B$3,'Data Current Rates'!$A:$AP,MATCH(BI_Seas_UR_Low!$A20,CurrentHeader,0),FALSE)","v":1.79},{"$f":"B20*C20","v":1.79},1,{"$f":"IF(C4=\"R2\",(VLOOKUP($C$3,'Data Proposed Rates'!$A:$AZ,MATCH(BI_Seas_UR_Low!$A20,ProposedHeader,0),FALSE)+'Data Pass Through'!B5),VLOOKUP($C$3,'Data Proposed Rates'!$A:$AZ,MATCH(BI_Seas_UR_Low!$A20,ProposedHeader,0),FALSE))","v":0.8},0.8,-0.99,-0.55307262569832405,2.0024264973773513E-2,1.99167647720392E-2]
["Group 2 Fixed DVA Rider ",null,null,null,1,{"$f":"VLOOKUP($C$3,'Data Proposed Rates'!$A:$AZ,MATCH(BI_Seas_UR_Low!$A21,ProposedHeader,0),FALSE)","v":-0.08},-0.08,-0.08,"N/A",-2.0024264973773514E-3,-1.99167647720392E-3]
["Distribution Volumetric Charge",{"$f":"IF($B$9=\"kWh\",$B$4,$B$5)","v":40},{"$f":"VLOOKUP($B$3,'Data Current Rates'!$A:$AP,MATCH(BI_Seas_UR_Low!$A22,CurrentHeader,0),FALSE)","v":3.0800000000000001E-2},1.232,{"$f":"IF($C$9=\"kWh\",$C$4,$C$5)","v":40},{"$f":"VLOOKUP($C$3,'Data Proposed Rates'!$A:$AZ,MATCH(BI_Seas_UR_Low!$A22,ProposedHeader,0),FALSE)","v":0},0,-1.232,-1,0,0]
["Volumetric Base Rate Adjustment to Recover Past Tax Amounts ",{"$f":"IF($B$9=\"kWh\",$B$4,$B$5)","v":40},{"$f":"VLOOKUP($B$3,'Data Current Rates'!$A:$AP,MATCH(BI_Seas_UR_Low!$A23,CurrentHeader,0),FALSE)","v":0},0,{"$f":"IF($C$9=\"kWh\",$C$4,$C$5)","v":40},{"$f":"VLOOKUP($C$3,'Data Proposed Rates'!$A:$AZ,MATCH(BI_Seas_UR_Low!$A23,ProposedHeader,0),FALSE)","v":0},0,0,"N/A",0,0]
["Group 1 Volumetric DVA Rider (General)",null,null,null,{"$f":"IF($C$9=\"kWh\",$C$4,$C$5)","v":40},{"$f":"VLOOKUP($C$3,'Data Proposed Rates'!$A:$AZ,MATCH(BI_Seas_UR_Low!$A24,ProposedHeader,0),FALSE)","v":-4.0000000000000002E-4},-1.6E-2,-1.6E-2,"N/A",-4.0048529947547026E-4,-3.9833529544078397E-4]
["Group 2 Volumetric DVA Rider ",null,null,null,40,{"$f":"VLOOKUP($C$3,'Data Proposed Rates'!$A:$AZ,MATCH(BI_Seas_UR_Low!$A25,ProposedHeader,0),FALSE)","v":0},0,0,"N/A",0,0]
["Sub-Total:  Distribution (excluding pass through)",null,null,{"$f":"SUM(INDIRECT(\"D19:D\"&ROW()-1))","v":60.891999999999996},null,null,{"$f":"SUM(INDIRECT(\"g19:g\"&ROW()-1))","v":36.584000000000003},{"$f":"G26-D26","v":-24.307999999999993},-0.39919858109439654,0.91570963725066279,0.91079365302535265]
["Smart Metering Entity Charge",{"$f":"B19","v":1},{"$f":"VLOOKUP($A27,'Data Pass Through'!$A:$D,2,FALSE)","v":0.56999999999999995},{"$f":"B27*C27","v":0.56999999999999995},{"$f":"E19","v":1},{"$f":"VLOOKUP($A27,'Data Pass Through'!$A:$D,3,FALSE)","v":0.56999999999999995},{"$f":"E27*F27","v":0.56999999999999995},0,0,1.4267288793813627E-2,1.4190694900077927E-2]
["Line Losses on Cost of Power (based on two-tier RPP prices)",{"$f":"B8-B4","v":4.1600000000000037},{"$f":"IF(B4>B7,C13,C12)","v":9.8000000000000004E-2},{"$f":"B28*C28","v":0.40768000000000038},{"$f":"C8-C4","v":2.2800000000000011},{"$f":"IF(C4>C7,F13,F12)","v":9.8000000000000004E-2},{"$f":"E28*F28","v":0.22344000000000011},-0.18424000000000026,-0.45192307692307715,5.5927772071749449E-3,5.5627524008305508E-3]
["Line Losses on Cost of Power (based on TOU prices)",{"$f":"B8-B4","v":4.1600000000000037},{"$f":"VLOOKUP($B$3,'Data Billing Quantities'!$A:$O,MATCH(BI_Seas_UR_Low!$A15,'Data Billing Quantities'!$4:$4,0),FALSE)*C15+VLOOKUP($B$3,'Data Billing Quantities'!$A:$O,MATCH(BI_Seas_UR_Low!$A16,'Data Billing Quantities'!$4:$4,0),FALSE)*C16+VLOOKUP($B$3,'Data Billing Quantities'!$A:$O,MATCH(BI_Seas_UR_Low!$A17,'Data Billing Quantities'!$4:$4,0),FALSE)*C17","v":0.10342000000000001},{"$f":"B29*C29","v":0.43022720000000042},{"$f":"C8-C4","v":2.2800000000000011},{"$f":"VLOOKUP($C$3,'Data Billing Quantities'!$A:$O,MATCH(BI_Seas_UR_Low!$A15,'Data Billing Quantities'!$4:$4,0),FALSE)*F15+VLOOKUP($C$3,'Data Billing Quantities'!$A:$O,MATCH(BI_Seas_UR_Low!$A16,'Data Billing Quantities'!$4:$4,0),FALSE)*F16+VLOOKUP($C$3,'Data Billing Quantities'!$A:$O,MATCH(BI_Seas_UR_Low!$A17,'Data Billing Quantities'!$4:$4,0),FALSE)*F17","v":0.10342000000000001},{"$f":"E29*F29","v":0.23579760000000013},-0.19442960000000029,-0.45192307692307715,5.9020920282248247E-3,5.8704066662642407E-3]
["Sub-Total:  Distribution (based on two-tier RPP prices)",null,null,{"$f":"SUM(D26,D27:D28)","v":61.869679999999995},null,null,{"$f":"SUM(G26,G27:G28)","v":37.377440000000007},-24.492239999999988,-0.39586821848763387,0.93556970325165145,0.9305471003262612]
["Sub-Total:  Distribution (based on TOU prices)",null,null,{"$f":"SUM(D26,D27,D29)","v":61.892227199999994},null,null,{"$f":"SUM(G26,G27,G29)","v":37.389797600000001},-24.502429599999992,-0.39588863914724326,0.93587901807270124,0.93085475459169476]
["Retail Transmission Rate – Network Service Rate",{"$f":"IF($B$9=\"kWh\",$B$8,$B$5)","v":44.160000000000004},{"$f":"VLOOKUP($B$3,'Data Current Rates'!$A:$AP,MATCH(BI_Seas_UR_Low!$A32,CurrentHeader,0),FALSE)","v":7.7000000000000002E-3},{"$f":"B32*C32","v":0.34003200000000006},{"$f":"IF($C$9=\"kWh\",$C$8,$C$5)","v":42.28},{"$f":"VLOOKUP($C$3,'Data Proposed Rates'!$A:$AZ,MATCH(BI_Seas_UR_Low!$A32,ProposedHeader,0),FALSE)","v":1.0200000000000001E-2},{"$f":"E32*F32","v":0.43125600000000003},{"$f":"G32-D32","v":9.1223999999999972E-2},0.26828063241106709,1.0794480519412088E-2,1.0736530385663171E-2]
["Retail Transmission Rate – Line and Transformation Connection Service Rate",{"$f":"IF($B$9=\"kWh\",$B$8,$B$5)","v":44.160000000000004},{"$f":"VLOOKUP($B$3,'Data Current Rates'!$A:$AP,MATCH(BI_Seas_UR_Low!$A33,CurrentHeader,0),FALSE)","v":6.1000000000000004E-3},{"$f":"B33*C33","v":0.26937600000000006},{"$f":"IF($C$9=\"kWh\",$C$8,$C$5)","v":42.28},{"$f":"VLOOKUP($C$3,'Data Proposed Rates'!$A:$AZ,MATCH(BI_Seas_UR_Low!$A33,ProposedHeader,0),FALSE)","v":7.4000000000000003E-3},{"$f":"E33*F33","v":0.31287200000000004},{"$f":"G33-D33","v":4.3495999999999979E-2},0.16146947018294119,7.8312897885930849E-3,7.7892475346968111E-3]
["Sub-Total:  Retail Transmission ",null,null,{"$f":"SUM(D32:D33)","v":0.60940800000000017},null,null,{"$f":"SUM(G32:G33)","v":0.74412800000000012},{"$f":"G34-D34","v":0.13471999999999995},0.22106700273051866,1.8625770308005173E-2,1.8525777920359983E-2]
["Sub-Total:  Delivery (based on two-tier RPP prices)",null,null,{"$f":"D30+D34","v":62.479087999999997},null,null,{"$f":"G30+G34","v":38.121568000000011},{"$f":"G35-D35","v":-24.357519999999987},-0.38985076094580617,0.95419547355965673,0.94907287824662123]
["Sub-Total:  Delivery (based on TOU prices)",null,null,{"$f":"D31+D34","v":62.501635199999996},null,null,{"$f":"G31+G34","v":38.133925600000005},{"$f":"G36-D36","v":-24.367709599999991},-0.3898731532707162,0.95450478838070651,0.94938053251205479]
["Wholesale Market Service Rate (WMS) - not including CBR",{"$f":"B8","v":44.160000000000004},{"$f":"VLOOKUP($A37,'Data Pass Through'!$A:$D,2,FALSE)","v":3.0000000000000001E-3},{"$f":"B37*C37","v":0.13248000000000001},{"$f":"$C$8","v":42.28},{"$f":"VLOOKUP($A37,'Data Pass Through'!$A:$D,3,FALSE)","v":3.0000000000000001E-3},{"$f":"E37*F37","v":0.12684000000000001},-5.6400000000000061E-3,-4.2572463768115985E-2,3.1748472115917907E-3,3.157803054606815E-3]
["Capacity Based Recovery (CBR) - Applicable for Class B Customers",{"$f":"B8","v":44.160000000000004},{"$f":"VLOOKUP($A38,'Data Pass Through'!$A:$D,2,FALSE)","v":4.0000000000000002E-4},{"$f":"B38*C38","v":1.7664000000000003E-2},{"$f":"$C$8","v":42.28},{"$f":"VLOOKUP($A38,'Data Pass Through'!$A:$D,3,FALSE)","v":4.0000000000000002E-4},{"$f":"E38*F38","v":1.6912E-2},-7.5200000000000267E-4,-4.2572463768116089E-2,4.2331296154557208E-4,4.2104040728090867E-4]
["Rural Rate Protection Charge",{"$f":"B8","v":44.160000000000004},{"$f":"VLOOKUP($A39,'Data Pass Through'!$A:$D,2,FALSE)","v":5.0000000000000001E-4},2.2080000000000002E-2,42.28,{"$f":"VLOOKUP($A39,'Data Pass Through'!$A:$D,3,FALSE)","v":5.0000000000000001E-4},2.1140000000000003E-2,-9.3999999999999986E-4,-4.257246376811593E-2,5.2914120193196519E-4,5.2630050910113587E-4]
["Standard Supply Service – Administration Charge (if applicable)",1,{"$f":"VLOOKUP($A40,'Data Pass Through'!$A:$D,2,FALSE)","v":0.25},{"$f":"B40*C40","v":0.25},1,{"$f":"VLOOKUP($A40,'Data Pass Through'!$A:$D,3,FALSE)","v":0.25},0.25,0,0,6.2575828043042224E-3,6.22398899126225E-3]
["Sub-Total:  Regulatory",null,null,{"$f":"SUM(D37:D40)","v":0.42222400000000004},null,null,{"$f":"SUM(G37:G40)","v":0.41489200000000004},-7.3320000000000052E-3,-1.7365190041305101E-2,1.0384884179373551E-2,1.032913296225111E-2]
["Total  Electricty Charge on Two-Tier RPP ",null,null,{"$f":"SUM(D14,D26,D27,D28,D34,D41)","v":66.821311999999992},null,null,{"$f":"SUM(G14,G26,G27,G28,G34,G41)","v":42.456460000000014},-24.364851999999978,-0.3646269621284895,1.0626992561105206]
["     HST",null,0.13,{"$f":"D42*C43","v":8.6867705599999994},null,{"$f":"C43","v":0.13},{"$f":"G42*F43","v":5.5193398000000018},-3.1674307599999976,-0.36462696212848955,0.13815090329436769]
["Total Electricity Charge on Two-Tier RPP (including HST)",null,null,{"$f":"SUM(D42:D43)","v":75.508082559999991},null,null,{"$f":"SUM(G42:G43)","v":47.975799800000019},-27.532282759999973,-0.36462696212848944,1.2008501594048884]
["Ontario Electricity Rebate (OER)",null,{"$f":"IF(($B$4*12)<250000,VLOOKUP(A45,'Data Pass Through'!$A$4:$C$20,2,0),0)","v":-0.189},{"$f":"D42*C45","v":-12.629227967999999},null,{"$f":"C45","v":-0.189},{"$f":"G42*F45","v":-8.0242709400000027},4.6049570279999958,0.3646269621284895,-0.2008501594048884]
["Total Amount on Two-Tier RPP",null,null,{"$f":"SUM(D44:D45)","v":62.878854591999996},null,null,{"$f":"SUM(G44:G45)","v":39.951528860000018},-22.927325731999979,-0.36462696212848944,1]
["Total Electricty Charge on TOU (before HST)",null,null,{"$f":"SUM(D18,D26,D27,D29,D34,D41)","v":67.060659199999989},null,null,{"$f":"SUM(G18,G26,G27,G29,G34,G41)","v":42.685617600000008},-24.375041599999982,-0.36347751260995637,null,{"$f":"G47/$G$51","v":1.0626992561105206}]
["     HST",null,0.13,{"$f":"D47*C48","v":8.7178856959999997},null,{"$f":"C48","v":0.13},{"$f":"G47*F48","v":5.5491302880000015},-3.1687554079999982,-0.36347751260995637,null,{"$f":"G48/$G$51","v":0.13815090329436772}]
["Total Electricity Charge on TOU (including HST)",null,null,{"$f":"SUM(D47:D48)","v":75.778544895999985},null,null,{"$f":"SUM(G47:G48)","v":48.234747888000008},-27.543797007999977,-0.36347751260995637,null,{"$f":"G49/$G$51","v":1.2008501594048884}]
["Ontario Electricity Rebate (OER)",null,{"$f":"IF(($B$4*12)<250000,VLOOKUP(A50,'Data Pass Through'!$A$4:$C$20,2,0),0)","v":-0.189},{"$f":"D47*C50","v":-12.674464588799998},null,{"$f":"C50","v":-0.189},{"$f":"G47*F50","v":-8.067581726400002},4.6068828623999956,0.36347751260995631,null,{"$f":"G50/$G$51","v":-0.20085015940488843}]
["Total Amount on TOU",null,null,{"$f":"SUM(D49:D50)","v":63.104080307199986},null,null,{"$f":"SUM(G49:G50)","v":40.167166161600008},-22.936914145599978,-0.36347751260995631,null,{"$f":"G51/$G$51","v":1}]
["* Distribution rate protection applies to R1 and R2 customers"]

{"sheet":"BI_Seas_UR_Avg","index":115,"n_rows":52,"n_cols":11,"rows_kept":52,"cut":false,"hidden":false,"merged":[[0,0,0,10]]}
["2023 Bill Impacts (Average Consumption Level) - Seas-UR"]
[]
["Rate Class",{"$f":"VLOOKUP(A1,'Data BI List Acq_Seas'!C:E,2,FALSE)","v":"Seasonal"},{"$f":"VLOOKUP(A1,'Data BI List Acq_Seas'!C:E,3,FALSE)","v":"UR"}]
["Monthly Consumption (kWh)",{"$f":"IF(COUNTIF(A1,\"*Low*\")>0,VLOOKUP(B3,'Data Billing Quantities'!$A:$Z,MATCH(\"Low kWh\",'Data Billing Quantities'!4:4,0),FALSE),IF(COUNTIF(A1,\"*Typical*\")>0,VLOOKUP(B3,'Data Billing Quantities'!$A:$Z,MATCH(\"Typical kWh\",'Data Billing Quantities'!4:4,0),FALSE),IF(COUNTIF(A1,\"*Average*\")>0,VLOOKUP(B3,'Data Billing Quantities'!$A:$Z,MATCH(\"Average kWh\",'Data Billing Quantities'!4:4,0),FALSE),IF(COUNTIF(A1,\"*High*\")>0,VLOOKUP(B3,'Data Billing Quantities'!$A:$Z,MATCH(\"High kWh\",'Data Billing Quantities'!4:4,0),FALSE),\"error\"))))","v":369},{"$f":"B4","v":369}]
["Peak (kW)",{"$f":"IF(COUNTIF(A1,\"*Low*\")>0,VLOOKUP(B3,'Data Billing Quantities'!$A:$Z,MATCH(\"Low kW\",'Data Billing Quantities'!4:4,0),FALSE),IF(COUNTIF(A1,\"*Typical*\")>0,VLOOKUP(B3,'Data Billing Quantities'!$A:$Z,MATCH(\"Typical kW\",'Data Billing Quantities'!4:4,0),FALSE),IF(COUNTIF(A1,\"*Average*\")>0,VLOOKUP(B3,'Data Billing Quantities'!$A:$Z,MATCH(\"Average kW\",'Data Billing Quantities'!4:4,0),FALSE),IF(COUNTIF(A1,\"*High*\")>0,VLOOKUP(B3,'Data Billing Quantities'!$A:$Z,MATCH(\"High kW\",'Data Billing Quantities'!4:4,0),FALSE),\"error\"))))","v":0},{"$f":"B5","v":0}]
["Loss factor",{"$f":"VLOOKUP(B3,'Data Billing Quantities'!A:D,MATCH(A6,'Data Billing Quantities'!4:4,0),FALSE)","v":1.1040000000000001},{"$f":"VLOOKUP(C3,'Data Billing Quantities'!A:D,MATCH(A6,'Data Billing Quantities'!4:4,0),FALSE)","v":1.0569999999999999}]
["Commodity Threshold",{"$f":"VLOOKUP(B3,'Data Billing Quantities'!A:D,MATCH(A7,'Data Billing Quantities'!4:4,0),FALSE)","v":600},{"$f":"B7","v":600}]
["Monthly Consumption (kWh) - Uplifted",{"$f":"B4*B6","v":407.37600000000003},{"$f":"C4*C6","v":390.03299999999996}]
["Charge determinant",{"$f":"VLOOKUP(B3,'Data Billing Quantities'!A:D,MATCH(A9,'Data Billing Quantities'!4:4,0),FALSE)","v":"kWh"},{"$f":"VLOOKUP(C3,'Data Billing Quantities'!A:D,MATCH(A9,'Data Billing Quantities'!4:4,0),FALSE)","v":"kWh"}]
[]
[null,"Volume","Current Rate ($)","Current Charge ($)","Volume","Proposed Rate ($)","Proposed Charge ($)","Change ($)","Change (%)","% of Total Bill on RPP","% of Total Bill"]
["Energy First Tier",{"$f":"IF(B4>B7,B7,B4)","v":369},{"$f":"VLOOKUP($A12,'Data Pass Through'!$A:$D,2,FALSE)","v":9.8000000000000004E-2},{"$f":"B12*C12","v":36.161999999999999},{"$f":"B12","v":369},{"$f":"VLOOKUP($A12,'Data Pass Through'!$A:$D,3,FALSE)","v":9.8000000000000004E-2},{"$f":"E12*F12","v":36.161999999999999},{"$f":"G12-D12","v":0},{"$f":"IF(ISERROR(H12/ABS(D12)),\"N/A\",(H12/ABS(D12)))","v":0},{"$f":"G12/$G$46","v":0.45813918680819232}]
["Energy Second Tier",{"$f":"IF(B4>B7,(B4)-B7,0)","v":0},{"$f":"VLOOKUP($A13,'Data Pass Through'!$A:$D,2,FALSE)","v":0.115},{"$f":"B13*C13","v":0},{"$f":"B13","v":0},{"$f":"VLOOKUP($A13,'Data Pass Through'!$A:$D,3,FALSE)","v":0.115},{"$f":"E13*F13","v":0},0,"N/A",{"$f":"G13/$G$46","v":0}]
["Sub-Total:  Energy (RPP Tiered)",null,null,{"$f":"SUM(D12:D13)","v":36.161999999999999},null,null,{"$f":"SUM(G12:G13)","v":36.161999999999999},0,0,{"$f":"G14/$G$46","v":0.45813918680819232}]
["TOU-Off Peak",{"$f":"B$4*VLOOKUP($B$3,'Data Billing Quantities'!$A:$O,MATCH(BI_Seas_UR_Avg!$A15,'Data Billing Quantities'!$4:$4,0),FALSE)","v":236.16},{"$f":"VLOOKUP($A15,'Data Pass Through'!$A:$D,2,FALSE)","v":8.2000000000000003E-2},{"$f":"B15*C15","v":19.365120000000001},236.16,{"$f":"VLOOKUP($A15,'Data Pass Through'!$A:$D,3,FALSE)","v":8.2000000000000003E-2},{"$f":"E15*F15","v":19.365120000000001},0,0,null,{"$f":"G15/$G$51","v":0.23930718617857349}]
["TOU-Mid Peak",{"$f":"B$4*VLOOKUP($B$3,'Data Billing Quantities'!$A:$O,MATCH(BI_Seas_UR_Avg!$A16,'Data Billing Quantities'!$4:$4,0),FALSE)","v":66.42},{"$f":"VLOOKUP($A16,'Data Pass Through'!$A:$D,2,FALSE)","v":0.113},{"$f":"B16*C16","v":7.5054600000000002},66.42,{"$f":"VLOOKUP($A16,'Data Pass Through'!$A:$D,3,FALSE)","v":0.113},{"$f":"E16*F16","v":7.5054600000000002},0,0,null,9.2749774521192554E-2]
["TOU-On Peak",{"$f":"B$4*VLOOKUP($B$3,'Data Billing Quantities'!$A:$O,MATCH(BI_Seas_UR_Avg!$A17,'Data Billing Quantities'!$4:$4,0),FALSE)","v":66.42},{"$f":"VLOOKUP($A17,'Data Pass Through'!$A:$D,2,FALSE)","v":0.17},{"$f":"B17*C17","v":11.291400000000001},66.42,{"$f":"VLOOKUP($A17,'Data Pass Through'!$A:$D,3,FALSE)","v":0.17},{"$f":"E17*F17","v":11.291400000000001},0,0,null,0.13953505901418348]
["Sub-Total:  Energy (RPP TOU)",null,null,{"$f":"SUM(D15:D17)","v":38.16198},null,null,{"$f":"SUM(G15:G17)","v":38.16198},0,0,{"$f":"G18/$G$46","v":0.48347708877248213},0.47159201971394948]
["Service Charge",1,{"$f":"VLOOKUP($B$3,'Data Current Rates'!$A:$AP,MATCH(BI_Seas_UR_Avg!$A19,CurrentHeader,0),FALSE)","v":57.87},{"$f":"B19*C19","v":57.87},1,{"$f":"IF(C3=\"R2\",(VLOOKUP($C$3,'Data Proposed Rates'!$A:$AZ,MATCH(BI_Seas_UR_Avg!$A19,ProposedHeader,0),FALSE)+'Data Pass Through'!B4),VLOOKUP($C$3,'Data Proposed Rates'!$A:$AZ,MATCH(BI_Seas_UR_Avg!$A19,ProposedHeader,0),FALSE))","v":35.880000000000003},{"$f":"E19*F19","v":35.880000000000003},-21.989999999999995,-0.37998963193364432,0.45456650690442846,0.44339213183740755]
["Fixed Base Rate Adjustment to Recover Past Tax Amounts ",1,{"$f":"VLOOKUP($B$3,'Data Current Rates'!$A:$AP,MATCH(BI_Seas_UR_Avg!$A20,CurrentHeader,0),FALSE)","v":1.79},{"$f":"B20*C20","v":1.79},1,{"$f":"IF(C4=\"R2\",(VLOOKUP($C$3,'Data Proposed Rates'!$A:$AZ,MATCH(BI_Seas_UR_Avg!$A20,ProposedHeader,0),FALSE)+'Data Pass Through'!B5),VLOOKUP($C$3,'Data Proposed Rates'!$A:$AZ,MATCH(BI_Seas_UR_Avg!$A20,ProposedHeader,0),FALSE))","v":0.8},0.8,-0.99,-0.55307262569832405,1.0135262138337311E-2,9.8861121925843381E-3]
["Group 2 Fixed DVA Rider ",null,null,null,1,{"$f":"VLOOKUP($C$3,'Data Proposed Rates'!$A:$AZ,MATCH(BI_Seas_UR_Avg!$A21,ProposedHeader,0),FALSE)","v":-0.08},-0.08,-0.08,"N/A",-1.0135262138337312E-3,-9.8861121925843359E-4]
["Distribution Volumetric Charge",{"$f":"IF($B$9=\"kWh\",$B$4,$B$5)","v":369},{"$f":"VLOOKUP($B$3,'Data Current Rates'!$A:$AP,MATCH(BI_Seas_UR_Avg!$A22,CurrentHeader,0),FALSE)","v":3.0800000000000001E-2},11.3652,{"$f":"IF($C$9=\"kWh\",$C$4,$C$5)","v":369},{"$f":"VLOOKUP($C$3,'Data Proposed Rates'!$A:$AZ,MATCH(BI_Seas_UR_Avg!$A22,ProposedHeader,0),FALSE)","v":0},0,-11.3652,-1,0,0]
["Volumetric Base Rate Adjustment to Recover Past Tax Amounts ",{"$f":"IF($B$9=\"kWh\",$B$4,$B$5)","v":369},{"$f":"VLOOKUP($B$3,'Data Current Rates'!$A:$AP,MATCH(BI_Seas_UR_Avg!$A23,CurrentHeader,0),FALSE)","v":0},0,{"$f":"IF($C$9=\"kWh\",$C$4,$C$5)","v":369},{"$f":"VLOOKUP($C$3,'Data Proposed Rates'!$A:$AZ,MATCH(BI_Seas_UR_Avg!$A23,ProposedHeader,0),FALSE)","v":0},0,0,"N/A",0,0]
["Group 1 Volumetric DVA Rider (General)",null,null,null,{"$f":"IF($C$9=\"kWh\",$C$4,$C$5)","v":369},{"$f":"VLOOKUP($C$3,'Data Proposed Rates'!$A:$AZ,MATCH(BI_Seas_UR_Avg!$A24,ProposedHeader,0),FALSE)","v":-4.0000000000000002E-4},-0.14760000000000001,-0.14760000000000001,"N/A",-1.869955864523234E-3,-1.8239876995318103E-3]
["Group 2 Volumetric DVA Rider ",null,null,null,369,{"$f":"VLOOKUP($C$3,'Data Proposed Rates'!$A:$AZ,MATCH(BI_Seas_UR_Avg!$A25,ProposedHeader,0),FALSE)","v":0},0,0,"N/A",0,0]
["Sub-Total:  Distribution (excluding pass through)",null,null,{"$f":"SUM(INDIRECT(\"D19:D\"&ROW()-1))","v":71.025199999999998},null,null,{"$f":"SUM(INDIRECT(\"g19:g\"&ROW()-1))","v":36.452400000000004},{"$f":"G26-D26","v":-34.572799999999994},-0.48676807668264216,0.4618182869644088,0.45046564511120163]
["Smart Metering Entity Charge",{"$f":"B19","v":1},{"$f":"VLOOKUP($A27,'Data Pass Through'!$A:$D,2,FALSE)","v":0.56999999999999995},{"$f":"B27*C27","v":0.56999999999999995},{"$f":"E19","v":1},{"$f":"VLOOKUP($A27,'Data Pass Through'!$A:$D,3,FALSE)","v":0.56999999999999995},{"$f":"E27*F27","v":0.56999999999999995},0,0,7.2213742735653336E-3,7.0438549372163397E-3]
["Line Losses on Cost of Power (based on two-tier RPP prices)",{"$f":"B8-B4","v":38.376000000000033},{"$f":"IF(B4>B7,C13,C12)","v":9.8000000000000004E-2},{"$f":"B28*C28","v":3.7608480000000033},{"$f":"C8-C4","v":21.032999999999959},{"$f":"IF(C4>C7,F13,F12)","v":9.8000000000000004E-2},{"$f":"E28*F28","v":2.0612339999999962},-1.6996140000000071,-0.45192307692307843,2.6113933648066915E-2,2.5471988223961683E-2]
["Line Losses on Cost of Power (based on TOU prices)",{"$f":"B8-B4","v":38.376000000000033},{"$f":"VLOOKUP($B$3,'Data Billing Quantities'!$A:$O,MATCH(BI_Seas_UR_Avg!$A15,'Data Billing Quantities'!$4:$4,0),FALSE)*C15+VLOOKUP($B$3,'Data Billing Quantities'!$A:$O,MATCH(BI_Seas_UR_Avg!$A16,'Data Billing Quantities'!$4:$4,0),FALSE)*C16+VLOOKUP($B$3,'Data Billing Quantities'!$A:$O,MATCH(BI_Seas_UR_Avg!$A17,'Data Billing Quantities'!$4:$4,0),FALSE)*C17","v":0.10342000000000001},{"$f":"B29*C29","v":3.9688459200000037},{"$f":"C8-C4","v":21.032999999999959},{"$f":"VLOOKUP($C$3,'Data Billing Quantities'!$A:$O,MATCH(BI_Seas_UR_Avg!$A15,'Data Billing Quantities'!$4:$4,0),FALSE)*F15+VLOOKUP($C$3,'Data Billing Quantities'!$A:$O,MATCH(BI_Seas_UR_Avg!$A16,'Data Billing Quantities'!$4:$4,0),FALSE)*F16+VLOOKUP($C$3,'Data Billing Quantities'!$A:$O,MATCH(BI_Seas_UR_Avg!$A17,'Data Billing Quantities'!$4:$4,0),FALSE)*F17","v":0.10342000000000001},{"$f":"E29*F29","v":2.1752328599999959},-1.7936130600000078,-0.45192307692307848,2.7558194060031429E-2,2.6880745123695073E-2]
["Sub-Total:  Distribution (based on two-tier RPP prices)",null,null,{"$f":"SUM(D26,D27:D28)","v":75.356048000000001},null,null,{"$f":"SUM(G26,G27:G28)","v":39.083634000000004},-36.272413999999998,-0.48134708444370644,0.4951535948860411,0.48298148827237969]
["Sub-Total:  Distribution (based on TOU prices)",null,null,{"$f":"SUM(D26,D27,D29)","v":75.564045919999998},null,null,{"$f":"SUM(G26,G27,G29)","v":39.197632859999999},-36.366413059999999,-0.48126609179319602,0.49659785529800554,0.48439024517211304]
["Retail Transmission Rate – Network Service Rate",{"$f":"IF($B$9=\"kWh\",$B$8,$B$5)","v":407.37600000000003},{"$f":"VLOOKUP($B$3,'Data Current Rates'!$A:$AP,MATCH(BI_Seas_UR_Avg!$A32,CurrentHeader,0),FALSE)","v":7.7000000000000002E-3},{"$f":"B32*C32","v":3.1367952000000003},{"$f":"IF($C$9=\"kWh\",$C$8,$C$5)","v":390.03299999999996},{"$f":"VLOOKUP($C$3,'Data Proposed Rates'!$A:$AZ,MATCH(BI_Seas_UR_Avg!$A32,ProposedHeader,0),FALSE)","v":1.0200000000000001E-2},{"$f":"E32*F32","v":3.9783366},{"$f":"G32-D32","v":0.84154139999999966},0.26828063241106703,5.0401855394426986E-2,4.9162852459330643E-2]
["Retail Transmission Rate – Line and Transformation Connection Service Rate",{"$f":"IF($B$9=\"kWh\",$B$8,$B$5)","v":407.37600000000003},{"$f":"VLOOKUP($B$3,'Data Current Rates'!$A:$AP,MATCH(BI_Seas_UR_Avg!$A33,CurrentHeader,0),FALSE)","v":6.1000000000000004E-3},{"$f":"B33*C33","v":2.4849936000000006},{"$f":"IF($C$9=\"kWh\",$C$8,$C$5)","v":390.03299999999996},{"$f":"VLOOKUP($C$3,'Data Proposed Rates'!$A:$AZ,MATCH(BI_Seas_UR_Avg!$A33,ProposedHeader,0),FALSE)","v":7.4000000000000003E-3},{"$f":"E33*F33","v":2.8862441999999997},{"$f":"G33-D33","v":0.40125059999999912},0.16146947018294092,3.6566051952819575E-2,3.5667167470494775E-2]
["Sub-Total:  Retail Transmission ",null,null,{"$f":"SUM(D32:D33)","v":5.6217888000000009},null,null,{"$f":"SUM(G32:G33)","v":6.8645807999999997},{"$f":"G34-D34","v":1.2427919999999988},0.22106700273051855,8.6967907347246562E-2,8.4830019929825418E-2]
["Sub-Total:  Delivery (based on two-tier RPP prices)",null,null,{"$f":"D30+D34","v":80.977836800000006},null,null,{"$f":"G30+G34","v":45.948214800000002},{"$f":"G35-D35","v":-35.029622000000003},-0.43258283234357775,0.58212150223328762,0.56781150820220516]
["Sub-Total:  Delivery (based on TOU prices)",null,null,{"$f":"D31+D34","v":81.185834720000003},null,null,{"$f":"G31+G34","v":46.062213659999998},{"$f":"G36-D36","v":-35.123621060000005},-0.4326323820052731,0.58356576264525206,0.56922026510193846]
["Wholesale Market Service Rate (WMS) - not including CBR",{"$f":"B8","v":407.37600000000003},{"$f":"VLOOKUP($A37,'Data Pass Through'!$A:$D,2,FALSE)","v":3.0000000000000001E-3},{"$f":"B37*C37","v":1.2221280000000001},{"$f":"$C$8","v":390.03299999999996},{"$f":"VLOOKUP($A37,'Data Pass Through'!$A:$D,3,FALSE)","v":3.0000000000000001E-3},{"$f":"E37*F37","v":1.170099},-5.2029000000000103E-2,-4.257246376811602E-2,1.4824075116007937E-2,1.4459662488038426E-2]
["Capacity Based Recovery (CBR) - Applicable for Class B Customers",{"$f":"B8","v":407.37600000000003},{"$f":"VLOOKUP($A38,'Data Pass Through'!$A:$D,2,FALSE)","v":4.0000000000000002E-4},{"$f":"B38*C38","v":0.16295040000000002},{"$f":"$C$8","v":390.03299999999996},{"$f":"VLOOKUP($A38,'Data Pass Through'!$A:$D,3,FALSE)","v":4.0000000000000002E-4},{"$f":"E38*F38","v":0.15601319999999999},-6.9372000000000322E-3,-4.2572463768116131E-2,1.9765433488010582E-3,1.9279549984051233E-3]
["Rural Rate Protection Charge",{"$f":"B8","v":407.37600000000003},{"$f":"VLOOKUP($A39,'Data Pass Through'!$A:$D,2,FALSE)","v":5.0000000000000001E-4},0.20368800000000001,390.03299999999996,{"$f":"VLOOKUP($A39,'Data Pass Through'!$A:$D,3,FALSE)","v":5.0000000000000001E-4},0.19501649999999998,-8.6715000000000264E-3,-4.2572463768116069E-2,2.4706791860013228E-3,2.4099437480064041E-3]
["Standard Supply Service – Administration Charge (if applicable)",1,{"$f":"VLOOKUP($A40,'Data Pass Through'!$A:$D,2,FALSE)","v":0.25},{"$f":"B40*C40","v":0.25},1,{"$f":"VLOOKUP($A40,'Data Pass Through'!$A:$D,3,FALSE)","v":0.25},0.25,0,0,3.1672694182304098E-3,3.0894100601826053E-3]
["Sub-Total:  Regulatory",null,null,{"$f":"SUM(D37:D40)","v":1.8387664000000001},null,null,{"$f":"SUM(G37:G40)","v":1.7711287},-6.7637700000000134E-2,-3.6784281026670994E-2,2.2438567069040728E-2,2.1886971294632556E-2]
["Total  Electricty Charge on Two-Tier RPP ",null,null,{"$f":"SUM(D14,D26,D27,D28,D34,D41)","v":118.97860319999999},null,null,{"$f":"SUM(G14,G26,G27,G28,G34,G41)","v":83.8813435},-35.097259699999995,-0.29498799579116253,1.0626992561105206]
["     HST",null,0.13,{"$f":"D42*C43","v":15.467218416},null,{"$f":"C43","v":0.13},{"$f":"G42*F43","v":10.904574655000001},-4.5626437609999986,-0.29498799579116247,0.13815090329436769]
["Total Electricity Charge on Two-Tier RPP (including HST)",null,null,{"$f":"SUM(D42:D43)","v":134.44582161599999},null,null,{"$f":"SUM(G42:G43)","v":94.785918155000005},-39.659903460999985,-0.29498799579116247,1.2008501594048884]
["Ontario Electricity Rebate (OER)",null,{"$f":"IF(($B$4*12)<250000,VLOOKUP(A45,'Data Pass Through'!$A$4:$C$20,2,0),0)","v":-0.189},{"$f":"D42*C45","v":-22.4869560048},null,{"$f":"C45","v":-0.189},{"$f":"G42*F45","v":-15.853573921500001},6.633382083299999,0.29498799579116253,-0.20085015940488843]
["Total Amount on Two-Tier RPP",null,null,{"$f":"SUM(D44:D45)","v":111.9588656112},null,null,{"$f":"SUM(G44:G45)","v":78.932344233500004},-33.026521377699993,-0.29498799579116253,1]
["Total Electricty Charge on TOU (before HST)",null,null,{"$f":"SUM(D18,D26,D27,D29,D34,D41)","v":121.18658112},null,null,{"$f":"SUM(G18,G26,G27,G29,G34,G41)","v":85.995322360000003},-35.191258759999997,-0.29038907141998921,null,{"$f":"G47/$G$51","v":1.0626992561105206}]
["     HST",null,0.13,{"$f":"D47*C48","v":15.754255545600001},null,{"$f":"C48","v":0.13},{"$f":"G47*F48","v":11.179391906800001},-4.5748636388000001,-0.29038907141998921,null,{"$f":"G48/$G$51","v":0.13815090329436769}]
["Total Electricity Charge on TOU (including HST)",null,null,{"$f":"SUM(D47:D48)","v":136.94083666559999},null,null,{"$f":"SUM(G47:G48)","v":97.174714266800009},-39.766122398799979,-0.2903890714199891,null,{"$f":"G49/$G$51","v":1.2008501594048884}]
["Ontario Electricity Rebate (OER)",null,{"$f":"IF(($B$4*12)<250000,VLOOKUP(A50,'Data Pass Through'!$A$4:$C$20,2,0),0)","v":-0.189},{"$f":"D47*C50","v":-22.904263831680002},null,{"$f":"C50","v":-0.189},{"$f":"G47*F50","v":-16.25311592604},6.651147905640002,0.29038907141998932,null,{"$f":"G50/$G$51","v":-0.20085015940488837}]
["Total Amount on TOU",null,null,{"$f":"SUM(D49:D50)","v":114.03657283391999},null,null,{"$f":"SUM(G49:G50)","v":80.921598340760013},-33.114974493159977,-0.29038907141998904,null,{"$f":"G51/$G$51","v":1}]
["* Distribution rate protection applies to R1 and R2 customers"]

{"sheet":"BI_Seas_UR_High","index":116,"n_rows":52,"n_cols":11,"rows_kept":52,"cut":false,"hidden":false,"merged":[[0,0,0,10]]}
["2023 Bill Impacts (High Consumption Level) - Seas-UR"]
[]
["Rate Class",{"$f":"VLOOKUP(A1,'Data BI List Acq_Seas'!C:E,2,FALSE)","v":"Seasonal"},{"$f":"VLOOKUP(A1,'Data BI List Acq_Seas'!C:E,3,FALSE)","v":"UR"}]
["Monthly Consumption (kWh)",{"$f":"IF(COUNTIF(A1,\"*Low*\")>0,VLOOKUP(B3,'Data Billing Quantities'!$A:$Z,MATCH(\"Low kWh\",'Data Billing Quantities'!4:4,0),FALSE),IF(COUNTIF(A1,\"*Typical*\")>0,VLOOKUP(B3,'Data Billing Quantities'!$A:$Z,MATCH(\"Typical kWh\",'Data Billing Quantities'!4:4,0),FALSE),IF(COUNTIF(A1,\"*Average*\")>0,VLOOKUP(B3,'Data Billing Quantities'!$A:$Z,MATCH(\"Average kWh\",'Data Billing Quantities'!4:4,0),FALSE),IF(COUNTIF(A1,\"*High*\")>0,VLOOKUP(B3,'Data Billing Quantities'!$A:$Z,MATCH(\"High kWh\",'Data Billing Quantities'!4:4,0),FALSE),\"error\"))))","v":1040},{"$f":"B4","v":1040}]
["Peak (kW)",{"$f":"IF(COUNTIF(A1,\"*Low*\")>0,VLOOKUP(B3,'Data Billing Quantities'!$A:$Z,MATCH(\"Low kW\",'Data Billing Quantities'!4:4,0),FALSE),IF(COUNTIF(A1,\"*Typical*\")>0,VLOOKUP(B3,'Data Billing Quantities'!$A:$Z,MATCH(\"Typical kW\",'Data Billing Quantities'!4:4,0),FALSE),IF(COUNTIF(A1,\"*Average*\")>0,VLOOKUP(B3,'Data Billing Quantities'!$A:$Z,MATCH(\"Average kW\",'Data Billing Quantities'!4:4,0),FALSE),IF(COUNTIF(A1,\"*High*\")>0,VLOOKUP(B3,'Data Billing Quantities'!$A:$Z,MATCH(\"High kW\",'Data Billing Quantities'!4:4,0),FALSE),\"error\"))))","v":0},{"$f":"B5","v":0}]
["Loss factor",{"$f":"VLOOKUP(B3,'Data Billing Quantities'!A:D,MATCH(A6,'Data Billing Quantities'!4:4,0),FALSE)","v":1.1040000000000001},{"$f":"VLOOKUP(C3,'Data Billing Quantities'!A:D,MATCH(A6,'Data Billing Quantities'!4:4,0),FALSE)","v":1.0569999999999999}]
["Commodity Threshold",{"$f":"VLOOKUP(B3,'Data Billing Quantities'!A:D,MATCH(A7,'Data Billing Quantities'!4:4,0),FALSE)","v":600},{"$f":"B7","v":600}]
["Monthly Consumption (kWh) - Uplifted",{"$f":"B4*B6","v":1148.1600000000001},{"$f":"C4*C6","v":1099.28}]
["Charge determinant",{"$f":"VLOOKUP(B3,'Data Billing Quantities'!A:D,MATCH(A9,'Data Billing Quantities'!4:4,0),FALSE)","v":"kWh"},{"$f":"VLOOKUP(C3,'Data Billing Quantities'!A:D,MATCH(A9,'Data Billing Quantities'!4:4,0),FALSE)","v":"kWh"}]
[]
[null,"Volume","Current Rate ($)","Current Charge ($)","Volume","Proposed Rate ($)","Proposed Charge ($)","Change ($)","Change (%)","% of Total Bill on RPP","% of Total Bill"]
["Energy First Tier",{"$f":"IF(B4>B7,B7,B4)","v":600},{"$f":"VLOOKUP($A12,'Data Pass Through'!$A:$D,2,FALSE)","v":9.8000000000000004E-2},{"$f":"B12*C12","v":58.800000000000004},{"$f":"B12","v":600},{"$f":"VLOOKUP($A12,'Data Pass Through'!$A:$D,3,FALSE)","v":9.8000000000000004E-2},{"$f":"E12*F12","v":58.800000000000004},{"$f":"G12-D12","v":0},{"$f":"IF(ISERROR(H12/ABS(D12)),\"N/A\",(H12/ABS(D12)))","v":0},{"$f":"G12/$G$46","v":0.35332030119974989}]
["Energy Second Tier",{"$f":"IF(B4>B7,(B4)-B7,0)","v":440},{"$f":"VLOOKUP($A13,'Data Pass Through'!$A:$D,2,FALSE)","v":0.115},{"$f":"B13*C13","v":50.6},{"$f":"B13","v":440},{"$f":"VLOOKUP($A13,'Data Pass Through'!$A:$D,3,FALSE)","v":0.115},{"$f":"E13*F13","v":50.6},0,0,{"$f":"G13/$G$46","v":0.30404774218890041}]
["Sub-Total:  Energy (RPP Tiered)",null,null,{"$f":"SUM(D12:D13)","v":109.4},null,null,{"$f":"SUM(G12:G13)","v":109.4},0,0,{"$f":"G14/$G$46","v":0.65736804338865029}]
["TOU-Off Peak",{"$f":"B$4*VLOOKUP($B$3,'Data Billing Quantities'!$A:$O,MATCH(BI_Seas_UR_High!$A15,'Data Billing Quantities'!$4:$4,0),FALSE)","v":665.6},{"$f":"VLOOKUP($A15,'Data Pass Through'!$A:$D,2,FALSE)","v":8.2000000000000003E-2},{"$f":"B15*C15","v":54.579200000000007},665.6,{"$f":"VLOOKUP($A15,'Data Pass Through'!$A:$D,3,FALSE)","v":8.2000000000000003E-2},{"$f":"E15*F15","v":54.579200000000007},0,0,null,{"$f":"G15/$G$51","v":0.332717185472032}]
["TOU-Mid Peak",{"$f":"B$4*VLOOKUP($B$3,'Data Billing Quantities'!$A:$O,MATCH(BI_Seas_UR_High!$A16,'Data Billing Quantities'!$4:$4,0),FALSE)","v":187.2},{"$f":"VLOOKUP($A16,'Data Pass Through'!$A:$D,2,FALSE)","v":0.113},{"$f":"B16*C16","v":21.153600000000001},187.2,{"$f":"VLOOKUP($A16,'Data Pass Through'!$A:$D,3,FALSE)","v":0.113},{"$f":"E16*F16","v":21.153600000000001},0,0,null,0.12895326891198799]
["TOU-On Peak",{"$f":"B$4*VLOOKUP($B$3,'Data Billing Quantities'!$A:$O,MATCH(BI_Seas_UR_High!$A17,'Data Billing Quantities'!$4:$4,0),FALSE)","v":187.2},{"$f":"VLOOKUP($A17,'Data Pass Through'!$A:$D,2,FALSE)","v":0.17},{"$f":"B17*C17","v":31.824000000000002},187.2,{"$f":"VLOOKUP($A17,'Data Pass Through'!$A:$D,3,FALSE)","v":0.17},{"$f":"E17*F17","v":31.824000000000002},0,0,null,0.19400049305343328]
["Sub-Total:  Energy (RPP TOU)",null,null,{"$f":"SUM(D15:D17)","v":107.55680000000001},null,null,{"$f":"SUM(G15:G17)","v":107.55680000000001},0,0,{"$f":"G18/$G$46","v":0.6462925335387969},0.65567094743745336]
["Service Charge",1,{"$f":"VLOOKUP($B$3,'Data Current Rates'!$A:$AP,MATCH(BI_Seas_UR_High!$A19,CurrentHeader,0),FALSE)","v":57.87},{"$f":"B19*C19","v":57.87},1,{"$f":"IF(C3=\"R2\",(VLOOKUP($C$3,'Data Proposed Rates'!$A:$AZ,MATCH(BI_Seas_UR_High!$A19,ProposedHeader,0),FALSE)+'Data Pass Through'!B4),VLOOKUP($C$3,'Data Proposed Rates'!$A:$AZ,MATCH(BI_Seas_UR_High!$A19,ProposedHeader,0),FALSE))","v":35.880000000000003},{"$f":"E19*F19","v":35.880000000000003},-21.989999999999995,-0.37998963193364432,0.21559748991576574,0.21872604608965518]
["Fixed Base Rate Adjustment to Recover Past Tax Amounts ",1,{"$f":"VLOOKUP($B$3,'Data Current Rates'!$A:$AP,MATCH(BI_Seas_UR_High!$A20,CurrentHeader,0),FALSE)","v":1.79},{"$f":"B20*C20","v":1.79},1,{"$f":"IF(C4=\"R2\",(VLOOKUP($C$3,'Data Proposed Rates'!$A:$AZ,MATCH(BI_Seas_UR_High!$A20,ProposedHeader,0),FALSE)+'Data Pass Through'!B5),VLOOKUP($C$3,'Data Proposed Rates'!$A:$AZ,MATCH(BI_Seas_UR_High!$A20,ProposedHeader,0),FALSE))","v":0.8},0.8,-0.99,-0.55307262569832405,4.807078927887753E-3,4.8768349183869603E-3]
["Group 2 Fixed DVA Rider ",null,null,null,1,{"$f":"VLOOKUP($C$3,'Data Proposed Rates'!$A:$AZ,MATCH(BI_Seas_UR_High!$A21,ProposedHeader,0),FALSE)","v":-0.08},-0.08,-0.08,"N/A",-4.8070789278877529E-4,-4.87683491838696E-4]
["Distribution Volumetric Charge",{"$f":"IF($B$9=\"kWh\",$B$4,$B$5)","v":1040},{"$f":"VLOOKUP($B$3,'Data Current Rates'!$A:$AP,MATCH(BI_Seas_UR_High!$A22,CurrentHeader,0),FALSE)","v":3.0800000000000001E-2},32.032000000000004,{"$f":"IF($C$9=\"kWh\",$C$4,$C$5)","v":1040},{"$f":"VLOOKUP($C$3,'Data Proposed Rates'!$A:$AZ,MATCH(BI_Seas_UR_High!$A22,ProposedHeader,0),FALSE)","v":0},0,-32.032000000000004,-1,0,0]
["Volumetric Base Rate Adjustment to Recover Past Tax Amounts ",{"$f":"IF($B$9=\"kWh\",$B$4,$B$5)","v":1040},{"$f":"VLOOKUP($B$3,'Data Current Rates'!$A:$AP,MATCH(BI_Seas_UR_High!$A23,CurrentHeader,0),FALSE)","v":0},0,{"$f":"IF($C$9=\"kWh\",$C$4,$C$5)","v":1040},{"$f":"VLOOKUP($C$3,'Data Proposed Rates'!$A:$AZ,MATCH(BI_Seas_UR_High!$A23,ProposedHeader,0),FALSE)","v":0},0,0,"N/A",0,0]
["Group 1 Volumetric DVA Rider (General)",null,null,null,{"$f":"IF($C$9=\"kWh\",$C$4,$C$5)","v":1040},{"$f":"VLOOKUP($C$3,'Data Proposed Rates'!$A:$AZ,MATCH(BI_Seas_UR_High!$A24,ProposedHeader,0),FALSE)","v":-4.0000000000000002E-4},-0.41600000000000004,-0.41600000000000004,"N/A",-2.4996810425016317E-3,-2.5359541575612197E-3]
["Group 2 Volumetric DVA Rider ",null,null,null,1040,{"$f":"VLOOKUP($C$3,'Data Proposed Rates'!$A:$AZ,MATCH(BI_Seas_UR_High!$A25,ProposedHeader,0),FALSE)","v":0},0,0,"N/A",0,0]
["Sub-Total:  Distribution (excluding pass through)",null,null,{"$f":"SUM(INDIRECT(\"D19:D\"&ROW()-1))","v":91.692000000000007},null,null,{"$f":"SUM(INDIRECT(\"g19:g\"&ROW()-1))","v":36.184000000000005},{"$f":"G26-D26","v":-55.508000000000003},-0.60537451467957948,0.2174241799083631,0.22057924335864224]
["Smart Metering Entity Charge",{"$f":"B19","v":1},{"$f":"VLOOKUP($A27,'Data Pass Through'!$A:$D,2,FALSE)","v":0.56999999999999995},{"$f":"B27*C27","v":0.56999999999999995},{"$f":"E19","v":1},{"$f":"VLOOKUP($A27,'Data Pass Through'!$A:$D,3,FALSE)","v":0.56999999999999995},{"$f":"E27*F27","v":0.56999999999999995},0,0,3.4250437361200239E-3,3.4747448793507087E-3]
["Line Losses on Cost of Power (based on two-tier RPP prices)",{"$f":"B8-B4","v":108.16000000000008},{"$f":"IF(B4>B7,C13,C12)","v":0.115},{"$f":"B28*C28","v":12.43840000000001},{"$f":"C8-C4","v":59.279999999999973},{"$f":"IF(C4>C7,F13,F12)","v":0.115},{"$f":"E28*F28","v":6.817199999999997},-5.6212000000000133,-0.45192307692307759,4.0963523083995472E-2,4.155794875703446E-2]
["Line Losses on Cost of Power (based on TOU prices)",{"$f":"B8-B4","v":108.16000000000008},{"$f":"VLOOKUP($B$3,'Data Billing Quantities'!$A:$O,MATCH(BI_Seas_UR_High!$A15,'Data Billing Quantities'!$4:$4,0),FALSE)*C15+VLOOKUP($B$3,'Data Billing Quantities'!$A:$O,MATCH(BI_Seas_UR_High!$A16,'Data Billing Quantities'!$4:$4,0),FALSE)*C16+VLOOKUP($B$3,'Data Billing Quantities'!$A:$O,MATCH(BI_Seas_UR_High!$A17,'Data Billing Quantities'!$4:$4,0),FALSE)*C17","v":0.10342000000000001},{"$f":"B29*C29","v":11.18590720000001},{"$f":"C8-C4","v":59.279999999999973},{"$f":"VLOOKUP($C$3,'Data Billing Quantities'!$A:$O,MATCH(BI_Seas_UR_High!$A15,'Data Billing Quantities'!$4:$4,0),FALSE)*F15+VLOOKUP($C$3,'Data Billing Quantities'!$A:$O,MATCH(BI_Seas_UR_High!$A16,'Data Billing Quantities'!$4:$4,0),FALSE)*F16+VLOOKUP($C$3,'Data Billing Quantities'!$A:$O,MATCH(BI_Seas_UR_High!$A17,'Data Billing Quantities'!$4:$4,0),FALSE)*F17","v":0.10342000000000001},{"$f":"E29*F29","v":6.130737599999998},-5.0551696000000117,-0.45192307692307759,3.683867441171141E-2,3.7373244003934825E-2]
["Sub-Total:  Distribution (based on two-tier RPP prices)",null,null,{"$f":"SUM(D26,D27:D28)","v":104.70040000000002},null,null,{"$f":"SUM(G26,G27:G28)","v":43.571200000000005},-61.129200000000012,-0.583848772306505,0.2618127467284786,0.26561193699502744]
["Sub-Total:  Distribution (based on TOU prices)",null,null,{"$f":"SUM(D26,D27,D29)","v":103.4479072},null,null,{"$f":"SUM(G26,G27,G29)","v":42.884737600000001},-60.563169600000002,-0.5854460591736359,0.25768789805619452,0.26142723224192776]
["Retail Transmission Rate – Network Service Rate",{"$f":"IF($B$9=\"kWh\",$B$8,$B$5)","v":1148.1600000000001},{"$f":"VLOOKUP($B$3,'Data Current Rates'!$A:$AP,MATCH(BI_Seas_UR_High!$A32,CurrentHeader,0),FALSE)","v":7.7000000000000002E-3},{"$f":"B32*C32","v":8.8408320000000007},{"$f":"IF($C$9=\"kWh\",$C$8,$C$5)","v":1099.28},{"$f":"VLOOKUP($C$3,'Data Proposed Rates'!$A:$AZ,MATCH(BI_Seas_UR_High!$A32,ProposedHeader,0),FALSE)","v":1.0200000000000001E-2},{"$f":"E32*F32","v":11.212656000000001},{"$f":"G32-D32","v":2.3718240000000002},0.2682806324110672,6.7375152979067737E-2,6.8352840385826327E-2]
["Retail Transmission Rate – Line and Transformation Connection Service Rate",{"$f":"IF($B$9=\"kWh\",$B$8,$B$5)","v":1148.1600000000001},{"$f":"VLOOKUP($B$3,'Data Current Rates'!$A:$AP,MATCH(BI_Seas_UR_High!$A33,CurrentHeader,0),FALSE)","v":6.1000000000000004E-3},{"$f":"B33*C33","v":7.0037760000000011},{"$f":"IF($C$9=\"kWh\",$C$8,$C$5)","v":1099.28},{"$f":"VLOOKUP($C$3,'Data Proposed Rates'!$A:$AZ,MATCH(BI_Seas_UR_High!$A33,ProposedHeader,0),FALSE)","v":7.4000000000000003E-3},{"$f":"E33*F33","v":8.1346720000000001},{"$f":"G33-D33","v":1.130895999999999},0.16146947018294114,4.8880012945598156E-2,4.9589315574030859E-2]
["Sub-Total:  Retail Transmission ",null,null,{"$f":"SUM(D32:D33)","v":15.844608000000001},null,null,{"$f":"SUM(G32:G33)","v":19.347328000000001},{"$f":"G34-D34","v":3.5027200000000001},0.2210670027305188,0.11625516592466588,0.11794215595985719]
["Sub-Total:  Delivery (based on two-tier RPP prices)",null,null,{"$f":"D30+D34","v":120.54500800000002},null,null,{"$f":"G30+G34","v":62.918528000000009},{"$f":"G35-D35","v":-57.626480000000015},-0.4780494933477461,0.37806791265314449,0.38355409295488463]
["Sub-Total:  Delivery (based on TOU prices)",null,null,{"$f":"D31+D34","v":119.2925152},null,null,{"$f":"G31+G34","v":62.232065599999999},{"$f":"G36-D36","v":-57.060449599999998},-0.47832380350380943,0.37394306398086036,0.37936938820178495]
["Wholesale Market Service Rate (WMS) - not including CBR",{"$f":"B8","v":1148.1600000000001},{"$f":"VLOOKUP($A37,'Data Pass Through'!$A:$D,2,FALSE)","v":3.0000000000000001E-3},{"$f":"B37*C37","v":3.4444800000000004},{"$f":"$C$8","v":1099.28},{"$f":"VLOOKUP($A37,'Data Pass Through'!$A:$D,3,FALSE)","v":3.0000000000000001E-3},{"$f":"E37*F37","v":3.2978399999999999},-0.14664000000000055,-4.2572463768116096E-2,1.9816221464431683E-2,2.0103776584066566E-2]
["Capacity Based Recovery (CBR) - Applicable for Class B Customers",{"$f":"B8","v":1148.1600000000001},{"$f":"VLOOKUP($A38,'Data Pass Through'!$A:$D,2,FALSE)","v":4.0000000000000002E-4},{"$f":"B38*C38","v":0.45926400000000006},{"$f":"$C$8","v":1099.28},{"$f":"VLOOKUP($A38,'Data Pass Through'!$A:$D,3,FALSE)","v":4.0000000000000002E-4},{"$f":"E38*F38","v":0.43971199999999999},-1.9552000000000069E-2,-4.2572463768116089E-2,2.6421628619242247E-3,2.6805035445422085E-3]
["Rural Rate Protection Charge",{"$f":"B8","v":1148.1600000000001},{"$f":"VLOOKUP($A39,'Data Pass Through'!$A:$D,2,FALSE)","v":5.0000000000000001E-4},0.57408000000000003,1099.28,{"$f":"VLOOKUP($A39,'Data Pass Through'!$A:$D,3,FALSE)","v":5.0000000000000001E-4},0.54964000000000002,-2.4440000000000017E-2,-4.2572463768115971E-2,3.3027035774052809E-3,3.3506294306777612E-3]
["Standard Supply Service – Administration Charge (if applicable)",1,{"$f":"VLOOKUP($A40,'Data Pass Through'!$A:$D,2,FALSE)","v":0.25},{"$f":"B40*C40","v":0.25},1,{"$f":"VLOOKUP($A40,'Data Pass Through'!$A:$D,3,FALSE)","v":0.25},0.25,0,0,1.5022121649649227E-3,1.5240109119959251E-3]
["Sub-Total:  Regulatory",null,null,{"$f":"SUM(D37:D40)","v":4.7278240000000009},null,null,{"$f":"SUM(G37:G40)","v":4.5371920000000001},-0.1906320000000008,-4.0321297916335458E-2,2.7263300068726112E-2,2.7658920471282461E-2]
["Total  Electricty Charge on Two-Tier RPP ",null,null,{"$f":"SUM(D14,D26,D27,D28,D34,D41)","v":234.672832},null,null,{"$f":"SUM(G14,G26,G27,G28,G34,G41)","v":176.85571999999999},-57.817112000000009,-0.24637326573874563,1.0626992561105206]
["     HST",null,0.13,{"$f":"D42*C43","v":30.507468160000002},null,{"$f":"C43","v":0.13},{"$f":"G42*F43","v":22.991243600000001},-7.5162245600000013,-0.24637326573874563,0.13815090329436772]
["Total Electricity Charge on Two-Tier RPP (including HST)",null,null,{"$f":"SUM(D42:D43)","v":265.18030016},null,null,{"$f":"SUM(G42:G43)","v":199.84696359999998},-65.333336560000021,-0.24637326573874566,1.2008501594048884]
["Ontario Electricity Rebate (OER)",null,{"$f":"IF(($B$4*12)<250000,VLOOKUP(A45,'Data Pass Through'!$A$4:$C$20,2,0),0)","v":-0.189},{"$f":"D42*C45","v":-44.353165248000003},null,{"$f":"C45","v":-0.189},{"$f":"G42*F45","v":-33.425731079999998},10.927434168000005,0.24637326573874568,-0.20085015940488843]
["Total Amount on Two-Tier RPP",null,null,{"$f":"SUM(D44:D45)","v":220.82713491199999},null,null,{"$f":"SUM(G44:G45)","v":166.42123251999999},-54.405902392000002,-0.2463732657387456,1]
["Total Electricty Charge on TOU (before HST)",null,null,{"$f":"SUM(D18,D26,D27,D29,D34,D41)","v":231.5771392},null,null,{"$f":"SUM(G18,G26,G27,G29,G34,G41)","v":174.32605760000001},-57.251081599999992,-0.24722250994972128,null,{"$f":"G47/$G$51","v":1.0626992561105206}]
["     HST",null,0.13,{"$f":"D47*C48","v":30.105028096000002},null,{"$f":"C48","v":0.13},{"$f":"G47*F48","v":22.662387488000004},-7.4426406079999978,-0.24722250994972123,null,{"$f":"G48/$G$51","v":0.13815090329436772}]
["Total Electricity Charge on TOU (including HST)",null,null,{"$f":"SUM(D47:D48)","v":261.68216729599999},null,null,{"$f":"SUM(G47:G48)","v":196.98844508800002},-64.693722207999969,-0.24722250994972123,null,{"$f":"G49/$G$51","v":1.2008501594048884}]
["Ontario Electricity Rebate (OER)",null,{"$f":"IF(($B$4*12)<250000,VLOOKUP(A50,'Data Pass Through'!$A$4:$C$20,2,0),0)","v":-0.189},{"$f":"D47*C50","v":-43.768079308800004},null,{"$f":"C50","v":-0.189},{"$f":"G47*F50","v":-32.9476248864},10.820454422400005,0.24722250994972139,null,{"$f":"G50/$G$51","v":-0.2008501594048884}]
["Total Amount on TOU",null,null,{"$f":"SUM(D49:D50)","v":217.91408798719999},null,null,{"$f":"SUM(G49:G50)","v":164.04082020160001},-53.873267785599978,-0.24722250994972123,null,{"$f":"G51/$G$51","v":1}]
["* Distribution rate protection applies to R1 and R2 customers"]

{"sheet":"BI_Seas_R1_Low","index":117,"n_rows":52,"n_cols":11,"rows_kept":52,"cut":false,"hidden":false,"merged":[[0,0,0,10]]}
["2023 Bill Impacts (Low Consumption Level) - Seas-R1"]
[]
["Rate Class",{"$f":"VLOOKUP(A1,'Data BI List Acq_Seas'!C:E,2,FALSE)","v":"Seasonal"},{"$f":"VLOOKUP(A1,'Data BI List Acq_Seas'!C:E,3,FALSE)","v":"R1"}]
["Monthly Consumption (kWh)",{"$f":"IF(COUNTIF(A1,\"*Low*\")>0,VLOOKUP(B3,'Data Billing Quantities'!$A:$Z,MATCH(\"Low kWh\",'Data Billing Quantities'!4:4,0),FALSE),IF(COUNTIF(A1,\"*Typical*\")>0,VLOOKUP(B3,'Data Billing Quantities'!$A:$Z,MATCH(\"Typical kWh\",'Data Billing Quantities'!4:4,0),FALSE),IF(COUNTIF(A1,\"*Average*\")>0,VLOOKUP(B3,'Data Billing Quantities'!$A:$Z,MATCH(\"Average kWh\",'Data Billing Quantities'!4:4,0),FALSE),IF(COUNTIF(A1,\"*High*\")>0,VLOOKUP(B3,'Data Billing Quantities'!$A:$Z,MATCH(\"High kWh\",'Data Billing Quantities'!4:4,0),FALSE),\"error\"))))","v":40},{"$f":"B4","v":40}]
["Peak (kW)",{"$f":"IF(COUNTIF(A1,\"*Low*\")>0,VLOOKUP(B3,'Data Billing Quantities'!$A:$Z,MATCH(\"Low kW\",'Data Billing Quantities'!4:4,0),FALSE),IF(COUNTIF(A1,\"*Typical*\")>0,VLOOKUP(B3,'Data Billing Quantities'!$A:$Z,MATCH(\"Typical kW\",'Data Billing Quantities'!4:4,0),FALSE),IF(COUNTIF(A1,\"*Average*\")>0,VLOOKUP(B3,'Data Billing Quantities'!$A:$Z,MATCH(\"Average kW\",'Data Billing Quantities'!4:4,0),FALSE),IF(COUNTIF(A1,\"*High*\")>0,VLOOKUP(B3,'Data Billing Quantities'!$A:$Z,MATCH(\"High kW\",'Data Billing Quantities'!4:4,0),FALSE),\"error\"))))","v":0},{"$f":"B5","v":0}]
["Loss factor",{"$f":"VLOOKUP(B3,'Data Billing Quantities'!A:D,MATCH(A6,'Data Billing Quantities'!4:4,0),FALSE)","v":1.1040000000000001},{"$f":"VLOOKUP(C3,'Data Billing Quantities'!A:D,MATCH(A6,'Data Billing Quantities'!4:4,0),FALSE)","v":1.0760000000000001}]
["Commodity Threshold",{"$f":"VLOOKUP(B3,'Data Billing Quantities'!A:D,MATCH(A7,'Data Billing Quantities'!4:4,0),FALSE)","v":600},{"$f":"B7","v":600}]
["Monthly Consumption (kWh) - Uplifted",{"$f":"B4*B6","v":44.160000000000004},{"$f":"C4*C6","v":43.040000000000006}]
["Charge determinant",{"$f":"VLOOKUP(B3,'Data Billing Quantities'!A:D,MATCH(A9,'Data Billing Quantities'!4:4,0),FALSE)","v":"kWh"},{"$f":"VLOOKUP(C3,'Data Billing Quantities'!A:D,MATCH(A9,'Data Billing Quantities'!4:4,0),FALSE)","v":"kWh"}]
[]
[null,"Volume","Current Rate ($)","Current Charge ($)","Volume","Proposed Rate ($)","Proposed Charge ($)","Change ($)","Change (%)","% of Total Bill on RPP","% of Total Bill"]
["Energy First Tier",{"$f":"IF(B4>B7,B7,B4)","v":40},{"$f":"VLOOKUP($A12,'Data Pass Through'!$A:$D,2,FALSE)","v":9.8000000000000004E-2},{"$f":"B12*C12","v":3.92},{"$f":"B12","v":40},{"$f":"VLOOKUP($A12,'Data Pass Through'!$A:$D,3,FALSE)","v":9.8000000000000004E-2},{"$f":"E12*F12","v":3.92},{"$f":"G12-D12","v":0},{"$f":"IF(ISERROR(H12/ABS(D12)),\"N/A\",(H12/ABS(D12)))","v":0},{"$f":"G12/$G$46","v":6.4462193705752124E-2}]
["Energy Second Tier",{"$f":"IF(B4>B7,(B4)-B7,0)","v":0},{"$f":"VLOOKUP($A13,'Data Pass Through'!$A:$D,2,FALSE)","v":0.115},{"$f":"B13*C13","v":0},{"$f":"B13","v":0},{"$f":"VLOOKUP($A13,'Data Pass Through'!$A:$D,3,FALSE)","v":0.115},{"$f":"E13*F13","v":0},0,"N/A",{"$f":"G13/$G$46","v":0}]
["Sub-Total:  Energy (RPP Tiered)",null,null,{"$f":"SUM(D12:D13)","v":3.92},null,null,{"$f":"SUM(G12:G13)","v":3.92},0,0,{"$f":"G14/$G$46","v":6.4462193705752124E-2}]
["TOU-Off Peak",{"$f":"B$4*VLOOKUP($B$3,'Data Billing Quantities'!$A:$O,MATCH(BI_Seas_R1_Low!$A15,'Data Billing Quantities'!$4:$4,0),FALSE)","v":25.6},{"$f":"VLOOKUP($A15,'Data Pass Through'!$A:$D,2,FALSE)","v":8.2000000000000003E-2},{"$f":"B15*C15","v":2.0992000000000002},25.6,{"$f":"VLOOKUP($A15,'Data Pass Through'!$A:$D,3,FALSE)","v":8.2000000000000003E-2},{"$f":"E15*F15","v":2.0992000000000002},0,0,null,{"$f":"G15/$G$51","v":3.4396000668277388E-2}]
["TOU-Mid Peak",{"$f":"B$4*VLOOKUP($B$3,'Data Billing Quantities'!$A:$O,MATCH(BI_Seas_R1_Low!$A16,'Data Billing Quantities'!$4:$4,0),FALSE)","v":7.1999999999999993},{"$f":"VLOOKUP($A16,'Data Pass Through'!$A:$D,2,FALSE)","v":0.113},{"$f":"B16*C16","v":0.81359999999999999},7.1999999999999993,{"$f":"VLOOKUP($A16,'Data Pass Through'!$A:$D,3,FALSE)","v":0.113},{"$f":"E16*F16","v":0.81359999999999999},0,0,null,1.3331071905349885E-2]
["TOU-On Peak",{"$f":"B$4*VLOOKUP($B$3,'Data Billing Quantities'!$A:$O,MATCH(BI_Seas_R1_Low!$A17,'Data Billing Quantities'!$4:$4,0),FALSE)","v":7.1999999999999993},{"$f":"VLOOKUP($A17,'Data Pass Through'!$A:$D,2,FALSE)","v":0.17},{"$f":"B17*C17","v":1.224},7.1999999999999993,{"$f":"VLOOKUP($A17,'Data Pass Through'!$A:$D,3,FALSE)","v":0.17},{"$f":"E17*F17","v":1.224},0,0,null,2.005559490185381E-2]
["Sub-Total:  Energy (RPP TOU)",null,null,{"$f":"SUM(D15:D17)","v":4.1368},null,null,{"$f":"SUM(G15:G17)","v":4.1368},0,0,{"$f":"G18/$G$46","v":6.802734768417229E-2},6.7782667475481076E-2]
["Service Charge",1,{"$f":"VLOOKUP($B$3,'Data Current Rates'!$A:$AP,MATCH(BI_Seas_R1_Low!$A19,CurrentHeader,0),FALSE)","v":57.87},{"$f":"B19*C19","v":57.87},1,{"$f":"IF(C3=\"R2\",(VLOOKUP($C$3,'Data Proposed Rates'!$A:$AZ,MATCH(BI_Seas_R1_Low!$A19,ProposedHeader,0),FALSE)+'Data Pass Through'!B4),VLOOKUP($C$3,'Data Proposed Rates'!$A:$AZ,MATCH(BI_Seas_R1_Low!$A19,ProposedHeader,0),FALSE))","v":57.22},{"$f":"E19*F19","v":57.22},-0.64999999999999858,-1.1232071885260042E-2,0.94095069485794303,0.93756629108176059]
["Fixed Base Rate Adjustment to Recover Past Tax Amounts ",1,{"$f":"VLOOKUP($B$3,'Data Current Rates'!$A:$AP,MATCH(BI_Seas_R1_Low!$A20,CurrentHeader,0),FALSE)","v":1.79},{"$f":"B20*C20","v":1.79},1,{"$f":"IF(C4=\"R2\",(VLOOKUP($C$3,'Data Proposed Rates'!$A:$AZ,MATCH(BI_Seas_R1_Low!$A20,ProposedHeader,0),FALSE)+'Data Pass Through'!B5),VLOOKUP($C$3,'Data Proposed Rates'!$A:$AZ,MATCH(BI_Seas_R1_Low!$A20,ProposedHeader,0),FALSE))","v":1.44},1.44,-0.35000000000000009,-0.19553072625698328,2.3679989524562003E-2,2.3594817531592715E-2]
["Group 2 Fixed DVA Rider ",null,null,null,1,{"$f":"VLOOKUP($C$3,'Data Proposed Rates'!$A:$AZ,MATCH(BI_Seas_R1_Low!$A21,ProposedHeader,0),FALSE)","v":-0.14000000000000001},-0.14000000000000001,-0.14000000000000001,"N/A",-2.3022212037768618E-3,-2.293940593349292E-3]
["Distribution Volumetric Charge",{"$f":"IF($B$9=\"kWh\",$B$4,$B$5)","v":40},{"$f":"VLOOKUP($B$3,'Data Current Rates'!$A:$AP,MATCH(BI_Seas_R1_Low!$A22,CurrentHeader,0),FALSE)","v":3.0800000000000001E-2},1.232,{"$f":"IF($C$9=\"kWh\",$C$4,$C$5)","v":40},{"$f":"VLOOKUP($C$3,'Data Proposed Rates'!$A:$AZ,MATCH(BI_Seas_R1_Low!$A22,ProposedHeader,0),FALSE)","v":5.1999999999999998E-3},0.20799999999999999,-1.024,-0.83116883116883122,3.4204429313256226E-3,3.4081403101189479E-3]
["Volumetric Base Rate Adjustment to Recover Past Tax Amounts ",{"$f":"IF($B$9=\"kWh\",$B$4,$B$5)","v":40},{"$f":"VLOOKUP($B$3,'Data Current Rates'!$A:$AP,MATCH(BI_Seas_R1_Low!$A23,CurrentHeader,0),FALSE)","v":0},0,{"$f":"IF($C$9=\"kWh\",$C$4,$C$5)","v":40},{"$f":"VLOOKUP($C$3,'Data Proposed Rates'!$A:$AZ,MATCH(BI_Seas_R1_Low!$A23,ProposedHeader,0),FALSE)","v":0},0,0,"N/A",0,0]
["Group 1 Volumetric DVA Rider (General)",null,null,null,{"$f":"IF($C$9=\"kWh\",$C$4,$C$5)","v":40},{"$f":"VLOOKUP($C$3,'Data Proposed Rates'!$A:$AZ,MATCH(BI_Seas_R1_Low!$A24,ProposedHeader,0),FALSE)","v":-4.0000000000000002E-4},-1.6E-2,-1.6E-2,"N/A",-2.6311099471735562E-4,-2.6216463923991909E-4]
["Group 2 Volumetric DVA Rider ",null,null,null,40,{"$f":"VLOOKUP($C$3,'Data Proposed Rates'!$A:$AZ,MATCH(BI_Seas_R1_Low!$A25,ProposedHeader,0),FALSE)","v":0},0,0,"N/A",0,0]
["Sub-Total:  Distribution (excluding pass through)",null,null,{"$f":"SUM(INDIRECT(\"D19:D\"&ROW()-1))","v":60.891999999999996},null,null,{"$f":"SUM(INDIRECT(\"g19:g\"&ROW()-1))","v":58.711999999999996},{"$f":"G26-D26","v":-2.1799999999999997},-3.5801090455232214E-2,0.96548579511533639,0.96201314369088298]
["Smart Metering Entity Charge",{"$f":"B19","v":1},{"$f":"VLOOKUP($A27,'Data Pass Through'!$A:$D,2,FALSE)","v":0.56999999999999995},{"$f":"B27*C27","v":0.56999999999999995},{"$f":"E19","v":1},{"$f":"VLOOKUP($A27,'Data Pass Through'!$A:$D,3,FALSE)","v":0.56999999999999995},{"$f":"E27*F27","v":0.56999999999999995},0,0,9.3733291868057927E-3,9.3396152729221162E-3]
["Line Losses on Cost of Power (based on two-tier RPP prices)",{"$f":"B8-B4","v":4.1600000000000037},{"$f":"IF(B4>B7,C13,C12)","v":9.8000000000000004E-2},{"$f":"B28*C28","v":0.40768000000000038},{"$f":"C8-C4","v":3.0400000000000063},{"$f":"IF(C4>C7,F13,F12)","v":9.8000000000000004E-2},{"$f":"E28*F28","v":0.29792000000000063},-0.10975999999999975,-0.26923076923076839,4.8991267216371721E-3,4.8815055826473032E-3]
["Line Losses on Cost of Power (based on TOU prices)",{"$f":"B8-B4","v":4.1600000000000037},{"$f":"VLOOKUP($B$3,'Data Billing Quantities'!$A:$O,MATCH(BI_Seas_R1_Low!$A15,'Data Billing Quantities'!$4:$4,0),FALSE)*C15+VLOOKUP($B$3,'Data Billing Quantities'!$A:$O,MATCH(BI_Seas_R1_Low!$A16,'Data Billing Quantities'!$4:$4,0),FALSE)*C16+VLOOKUP($B$3,'Data Billing Quantities'!$A:$O,MATCH(BI_Seas_R1_Low!$A17,'Data Billing Quantities'!$4:$4,0),FALSE)*C17","v":0.10342000000000001},{"$f":"B29*C29","v":0.43022720000000042},{"$f":"C8-C4","v":3.0400000000000063},{"$f":"VLOOKUP($C$3,'Data Billing Quantities'!$A:$O,MATCH(BI_Seas_R1_Low!$A15,'Data Billing Quantities'!$4:$4,0),FALSE)*F15+VLOOKUP($C$3,'Data Billing Quantities'!$A:$O,MATCH(BI_Seas_R1_Low!$A16,'Data Billing Quantities'!$4:$4,0),FALSE)*F16+VLOOKUP($C$3,'Data Billing Quantities'!$A:$O,MATCH(BI_Seas_R1_Low!$A17,'Data Billing Quantities'!$4:$4,0),FALSE)*F17","v":0.10342000000000001},{"$f":"E29*F29","v":0.3143968000000007},-0.11583039999999972,-0.26923076923076833,5.1700784239971055E-3,5.1514827281365734E-3]
["Sub-Total:  Distribution (based on two-tier RPP prices)",null,null,{"$f":"SUM(D26,D27:D28)","v":61.869679999999995},null,null,{"$f":"SUM(G26,G27:G28)","v":59.579919999999994},-2.2897600000000011,-3.7009404283325879E-2,0.97975825102377934,0.97623426454645235]
["Sub-Total:  Distribution (based on TOU prices)",null,null,{"$f":"SUM(D26,D27,D29)","v":61.892227199999994},null,null,{"$f":"SUM(G26,G27,G29)","v":59.596396799999994},-2.2958303999999998,-3.7094002007412009E-2,0.98002920272613925,0.97650424169194161]
["Retail Transmission Rate – Network Service Rate",{"$f":"IF($B$9=\"kWh\",$B$8,$B$5)","v":44.160000000000004},{"$f":"VLOOKUP($B$3,'Data Current Rates'!$A:$AP,MATCH(BI_Seas_R1_Low!$A32,CurrentHeader,0),FALSE)","v":7.7000000000000002E-3},{"$f":"B32*C32","v":0.34003200000000006},{"$f":"IF($C$9=\"kWh\",$C$8,$C$5)","v":43.040000000000006},{"$f":"VLOOKUP($C$3,'Data Proposed Rates'!$A:$AZ,MATCH(BI_Seas_R1_Low!$A32,ProposedHeader,0),FALSE)","v":9.4999999999999998E-3},{"$f":"E32*F32","v":0.40888000000000008},{"$f":"G32-D32","v":6.884800000000002E-2},0.20247506117071337,6.723801470002024E-3,6.6996173557761331E-3]
["Retail Transmission Rate – Line and Transformation Connection Service Rate",{"$f":"IF($B$9=\"kWh\",$B$8,$B$5)","v":44.160000000000004},{"$f":"VLOOKUP($B$3,'Data Current Rates'!$A:$AP,MATCH(BI_Seas_R1_Low!$A33,CurrentHeader,0),FALSE)","v":6.1000000000000004E-3},{"$f":"B33*C33","v":0.26937600000000006},{"$f":"IF($C$9=\"kWh\",$C$8,$C$5)","v":43.040000000000006},{"$f":"VLOOKUP($C$3,'Data Proposed Rates'!$A:$AZ,MATCH(BI_Seas_R1_Low!$A33,ProposedHeader,0),FALSE)","v":6.8999999999999999E-3},{"$f":"E33*F33","v":0.29697600000000002},{"$f":"G33-D33","v":2.7599999999999958E-2},0.10245901639344245,4.8836031729488378E-3,4.8660378689321382E-3]
["Sub-Total:  Retail Transmission ",null,null,{"$f":"SUM(D32:D33)","v":0.60940800000000017},null,null,{"$f":"SUM(G32:G33)","v":0.70585600000000004},{"$f":"G34-D34","v":9.6447999999999867E-2},0.15826507036336879,1.1607404642950861E-2,1.156565522470827E-2]
["Sub-Total:  Delivery (based on two-tier RPP prices)",null,null,{"$f":"D30+D34","v":62.479087999999997},null,null,{"$f":"G30+G34","v":60.285775999999991},{"$f":"G35-D35","v":-2.1933120000000059},-3.5104737764418172E-2,0.99136565566673007,0.98779991977116055]
["Sub-Total:  Delivery (based on TOU prices)",null,null,{"$f":"D31+D34","v":62.501635199999996},null,null,{"$f":"G31+G34","v":60.302252799999991},{"$f":"G36-D36","v":-2.1993824000000046},-3.518919773798182E-2,0.99163660736908998,0.98806989691664981]
["Wholesale Market Service Rate (WMS) - not including CBR",{"$f":"B8","v":44.160000000000004},{"$f":"VLOOKUP($A37,'Data Pass Through'!$A:$D,2,FALSE)","v":3.0000000000000001E-3},{"$f":"B37*C37","v":0.13248000000000001},{"$f":"$C$8","v":43.040000000000006},{"$f":"VLOOKUP($A37,'Data Pass Through'!$A:$D,3,FALSE)","v":3.0000000000000001E-3},{"$f":"E37*F37","v":0.12912000000000001},-3.3600000000000019E-3,-2.5362318840579722E-2,2.1233057273690602E-3,2.1156686386661471E-3]
["Capacity Based Recovery (CBR) - Applicable for Class B Customers",{"$f":"B8","v":44.160000000000004},{"$f":"VLOOKUP($A38,'Data Pass Through'!$A:$D,2,FALSE)","v":4.0000000000000002E-4},{"$f":"B38*C38","v":1.7664000000000003E-2},{"$f":"$C$8","v":43.040000000000006},{"$f":"VLOOKUP($A38,'Data Pass Through'!$A:$D,3,FALSE)","v":4.0000000000000002E-4},{"$f":"E38*F38","v":1.7216000000000002E-2},-4.4800000000000048E-4,-2.5362318840579733E-2,2.8310743031587467E-4,2.8208915182215296E-4]
["Rural Rate Protection Charge",{"$f":"B8","v":44.160000000000004},{"$f":"VLOOKUP($A39,'Data Pass Through'!$A:$D,2,FALSE)","v":5.0000000000000001E-4},2.2080000000000002E-2,43.040000000000006,{"$f":"VLOOKUP($A39,'Data Pass Through'!$A:$D,3,FALSE)","v":5.0000000000000001E-4},2.1520000000000004E-2,-5.59999999999998E-4,-2.5362318840579618E-2,3.5388428789484338E-4,3.5261143977769122E-4]
["Standard Supply Service – Administration Charge (if applicable)",1,{"$f":"VLOOKUP($A40,'Data Pass Through'!$A:$D,2,FALSE)","v":0.25},{"$f":"B40*C40","v":0.25},1,{"$f":"VLOOKUP($A40,'Data Pass Through'!$A:$D,3,FALSE)","v":0.25},0.25,0,0,4.1111092924586813E-3,4.0963224881237353E-3]
["Sub-Total:  Regulatory",null,null,{"$f":"SUM(D37:D40)","v":0.42222400000000004},null,null,{"$f":"SUM(G37:G40)","v":0.41785600000000001},-4.3680000000000385E-3,-1.0345219599075462E-2,6.8714067380384594E-3,6.8466917183897264E-3]
["Total  Electricty Charge on Two-Tier RPP ",null,null,{"$f":"SUM(D14,D26,D27,D28,D34,D41)","v":66.821311999999992},null,null,{"$f":"SUM(G14,G26,G27,G28,G34,G41)","v":64.623632000000001},-2.1976799999999912,-3.2888908257293591E-2,1.0626992561105209]
["     HST",null,0.13,{"$f":"D42*C43","v":8.6867705599999994},null,{"$f":"C43","v":0.13},{"$f":"G42*F43","v":8.40107216},-0.28569839999999935,-3.2888908257293646E-2,0.13815090329436772]
["Total Electricity Charge on Two-Tier RPP (including HST)",null,null,{"$f":"SUM(D42:D43)","v":75.508082559999991},null,null,{"$f":"SUM(G42:G43)","v":73.024704159999999},-2.4833783999999923,-3.2888908257293625E-2,1.2008501594048886]
["Ontario Electricity Rebate (OER)",null,{"$f":"IF(($B$4*12)<250000,VLOOKUP(A45,'Data Pass Through'!$A$4:$C$20,2,0),0)","v":-0.189},{"$f":"D42*C45","v":-12.629227967999999},null,{"$f":"C45","v":-0.189},{"$f":"G42*F45","v":-12.213866448000001},0.4153615199999976,3.2888908257293535E-2,-0.20085015940488846]
["Total Amount on Two-Tier RPP",null,null,{"$f":"SUM(D44:D45)","v":62.878854591999996},null,null,{"$f":"SUM(G44:G45)","v":60.810837711999994},-2.0680168800000018,-3.288890825729375E-2,1]
["Total Electricty Charge on TOU (before HST)",null,null,{"$f":"SUM(D18,D26,D27,D29,D34,D41)","v":67.060659199999989},null,null,{"$f":"SUM(G18,G26,G27,G29,G34,G41)","v":64.856908799999999},-2.2037503999999899,-3.2862044994630628E-2,null,{"$f":"G47/$G$51","v":1.0626992561105209}]
["     HST",null,0.13,{"$f":"D47*C48","v":8.7178856959999997},null,{"$f":"C48","v":0.13},{"$f":"G47*F48","v":8.431398144000001},-0.28648755199999876,-3.2862044994630628E-2,null,{"$f":"G48/$G$51","v":0.13815090329436772}]
["Total Electricity Charge on TOU (including HST)",null,null,{"$f":"SUM(D47:D48)","v":75.778544895999985},null,null,{"$f":"SUM(G47:G48)","v":73.288306943999999},-2.4902379519999869,-3.2862044994630607E-2,null,{"$f":"G49/$G$51","v":1.2008501594048884}]
["Ontario Electricity Rebate (OER)",null,{"$f":"IF(($B$4*12)<250000,VLOOKUP(A50,'Data Pass Through'!$A$4:$C$20,2,0),0)","v":-0.189},{"$f":"D47*C50","v":-12.674464588799998},null,{"$f":"C50","v":-0.189},{"$f":"G47*F50","v":-12.2579557632},0.41650882559999758,3.2862044994630586E-2,null,{"$f":"G50/$G$51","v":-0.20085015940488843}]
["Total Amount on TOU",null,null,{"$f":"SUM(D49:D50)","v":63.104080307199986},null,null,{"$f":"SUM(G49:G50)","v":61.030351180799997},-2.0737291263999893,-3.2862044994630607E-2,null,{"$f":"G51/$G$51","v":1}]
["* Distribution rate protection applies to R1 and R2 customers"]

{"sheet":"BI_Seas_R1_Avg","index":118,"n_rows":52,"n_cols":11,"rows_kept":52,"cut":false,"hidden":false,"merged":[[0,0,0,10]]}
["2023 Bill Impacts (Average Consumption Level) - Seas-R1"]
[]
["Rate Class",{"$f":"VLOOKUP(A1,'Data BI List Acq_Seas'!C:E,2,FALSE)","v":"Seasonal"},{"$f":"VLOOKUP(A1,'Data BI List Acq_Seas'!C:E,3,FALSE)","v":"R1"}]
["Monthly Consumption (kWh)",{"$f":"IF(COUNTIF(A1,\"*Low*\")>0,VLOOKUP(B3,'Data Billing Quantities'!$A:$Z,MATCH(\"Low kWh\",'Data Billing Quantities'!4:4,0),FALSE),IF(COUNTIF(A1,\"*Typical*\")>0,VLOOKUP(B3,'Data Billing Quantities'!$A:$Z,MATCH(\"Typical kWh\",'Data Billing Quantities'!4:4,0),FALSE),IF(COUNTIF(A1,\"*Average*\")>0,VLOOKUP(B3,'Data Billing Quantities'!$A:$Z,MATCH(\"Average kWh\",'Data Billing Quantities'!4:4,0),FALSE),IF(COUNTIF(A1,\"*High*\")>0,VLOOKUP(B3,'Data Billing Quantities'!$A:$Z,MATCH(\"High kWh\",'Data Billing Quantities'!4:4,0),FALSE),\"error\"))))","v":369},{"$f":"B4","v":369}]
["Peak (kW)",{"$f":"IF(COUNTIF(A1,\"*Low*\")>0,VLOOKUP(B3,'Data Billing Quantities'!$A:$Z,MATCH(\"Low kW\",'Data Billing Quantities'!4:4,0),FALSE),IF(COUNTIF(A1,\"*Typical*\")>0,VLOOKUP(B3,'Data Billing Quantities'!$A:$Z,MATCH(\"Typical kW\",'Data Billing Quantities'!4:4,0),FALSE),IF(COUNTIF(A1,\"*Average*\")>0,VLOOKUP(B3,'Data Billing Quantities'!$A:$Z,MATCH(\"Average kW\",'Data Billing Quantities'!4:4,0),FALSE),IF(COUNTIF(A1,\"*High*\")>0,VLOOKUP(B3,'Data Billing Quantities'!$A:$Z,MATCH(\"High kW\",'Data Billing Quantities'!4:4,0),FALSE),\"error\"))))","v":0},{"$f":"B5","v":0}]
["Loss factor",{"$f":"VLOOKUP(B3,'Data Billing Quantities'!A:D,MATCH(A6,'Data Billing Quantities'!4:4,0),FALSE)","v":1.1040000000000001},{"$f":"VLOOKUP(C3,'Data Billing Quantities'!A:D,MATCH(A6,'Data Billing Quantities'!4:4,0),FALSE)","v":1.0760000000000001}]
["Commodity Threshold",{"$f":"VLOOKUP(B3,'Data Billing Quantities'!A:D,MATCH(A7,'Data Billing Quantities'!4:4,0),FALSE)","v":600},{"$f":"B7","v":600}]
["Monthly Consumption (kWh) - Uplifted",{"$f":"B4*B6","v":407.37600000000003},{"$f":"C4*C6","v":397.04400000000004}]
["Charge determinant",{"$f":"VLOOKUP(B3,'Data Billing Quantities'!A:D,MATCH(A9,'Data Billing Quantities'!4:4,0),FALSE)","v":"kWh"},{"$f":"VLOOKUP(C3,'Data Billing Quantities'!A:D,MATCH(A9,'Data Billing Quantities'!4:4,0),FALSE)","v":"kWh"}]
[]
[null,"Volume","Current Rate ($)","Current Charge ($)","Volume","Proposed Rate ($)","Proposed Charge ($)","Change ($)","Change (%)","% of Total Bill on RPP","% of Total Bill"]
["Energy First Tier",{"$f":"IF(B4>B7,B7,B4)","v":369},{"$f":"VLOOKUP($A12,'Data Pass Through'!$A:$D,2,FALSE)","v":9.8000000000000004E-2},{"$f":"B12*C12","v":36.161999999999999},{"$f":"B12","v":369},{"$f":"VLOOKUP($A12,'Data Pass Through'!$A:$D,3,FALSE)","v":9.8000000000000004E-2},{"$f":"E12*F12","v":36.161999999999999},{"$f":"G12-D12","v":0},{"$f":"IF(ISERROR(H12/ABS(D12)),\"N/A\",(H12/ABS(D12)))","v":0},{"$f":"G12/$G$46","v":0.35555880192783118}]
["Energy Second Tier",{"$f":"IF(B4>B7,(B4)-B7,0)","v":0},{"$f":"VLOOKUP($A13,'Data Pass Through'!$A:$D,2,FALSE)","v":0.115},{"$f":"B13*C13","v":0},{"$f":"B13","v":0},{"$f":"VLOOKUP($A13,'Data Pass Through'!$A:$D,3,FALSE)","v":0.115},{"$f":"E13*F13","v":0},0,"N/A",{"$f":"G13/$G$46","v":0}]
["Sub-Total:  Energy (RPP Tiered)",null,null,{"$f":"SUM(D12:D13)","v":36.161999999999999},null,null,{"$f":"SUM(G12:G13)","v":36.161999999999999},0,0,{"$f":"G14/$G$46","v":0.35555880192783118}]
["TOU-Off Peak",{"$f":"B$4*VLOOKUP($B$3,'Data Billing Quantities'!$A:$O,MATCH(BI_Seas_R1_Avg!$A15,'Data Billing Quantities'!$4:$4,0),FALSE)","v":236.16},{"$f":"VLOOKUP($A15,'Data Pass Through'!$A:$D,2,FALSE)","v":8.2000000000000003E-2},{"$f":"B15*C15","v":19.365120000000001},236.16,{"$f":"VLOOKUP($A15,'Data Pass Through'!$A:$D,3,FALSE)","v":8.2000000000000003E-2},{"$f":"E15*F15","v":19.365120000000001},0,0,null,{"$f":"G15/$G$51","v":0.1866882723060011}]
["TOU-Mid Peak",{"$f":"B$4*VLOOKUP($B$3,'Data Billing Quantities'!$A:$O,MATCH(BI_Seas_R1_Avg!$A16,'Data Billing Quantities'!$4:$4,0),FALSE)","v":66.42},{"$f":"VLOOKUP($A16,'Data Pass Through'!$A:$D,2,FALSE)","v":0.113},{"$f":"B16*C16","v":7.5054600000000002},66.42,{"$f":"VLOOKUP($A16,'Data Pass Through'!$A:$D,3,FALSE)","v":0.113},{"$f":"E16*F16","v":7.5054600000000002},0,0,null,7.2355934807623132E-2]
["TOU-On Peak",{"$f":"B$4*VLOOKUP($B$3,'Data Billing Quantities'!$A:$O,MATCH(BI_Seas_R1_Avg!$A17,'Data Billing Quantities'!$4:$4,0),FALSE)","v":66.42},{"$f":"VLOOKUP($A17,'Data Pass Through'!$A:$D,2,FALSE)","v":0.17},{"$f":"B17*C17","v":11.291400000000001},66.42,{"$f":"VLOOKUP($A17,'Data Pass Through'!$A:$D,3,FALSE)","v":0.17},{"$f":"E17*F17","v":11.291400000000001},0,0,null,0.10885406121500826]
["Sub-Total:  Energy (RPP TOU)",null,null,{"$f":"SUM(D15:D17)","v":38.16198},null,null,{"$f":"SUM(G15:G17)","v":38.16198},0,0,{"$f":"G18/$G$46","v":0.37522338056506432},0.36789826832863248]
["Service Charge",1,{"$f":"VLOOKUP($B$3,'Data Current Rates'!$A:$AP,MATCH(BI_Seas_R1_Avg!$A19,CurrentHeader,0),FALSE)","v":57.87},{"$f":"B19*C19","v":57.87},1,{"$f":"IF(C3=\"R2\",(VLOOKUP($C$3,'Data Proposed Rates'!$A:$AZ,MATCH(BI_Seas_R1_Avg!$A19,ProposedHeader,0),FALSE)+'Data Pass Through'!B4),VLOOKUP($C$3,'Data Proposed Rates'!$A:$AZ,MATCH(BI_Seas_R1_Avg!$A19,ProposedHeader,0),FALSE))","v":57.22},{"$f":"E19*F19","v":57.22},-0.64999999999999858,-1.1232071885260042E-2,0.56260922090344834,0.55162596159225363]
["Fixed Base Rate Adjustment to Recover Past Tax Amounts ",1,{"$f":"VLOOKUP($B$3,'Data Current Rates'!$A:$AP,MATCH(BI_Seas_R1_Avg!$A20,CurrentHeader,0),FALSE)","v":1.79},{"$f":"B20*C20","v":1.79},1,{"$f":"IF(C4=\"R2\",(VLOOKUP($C$3,'Data Proposed Rates'!$A:$AZ,MATCH(BI_Seas_R1_Avg!$A20,ProposedHeader,0),FALSE)+'Data Pass Through'!B5),VLOOKUP($C$3,'Data Proposed Rates'!$A:$AZ,MATCH(BI_Seas_R1_Avg!$A20,ProposedHeader,0),FALSE))","v":1.44},1.44,-0.35000000000000009,-0.19553072625698328,1.4158638205189892E-2,1.3882233217281461E-2]
["Group 2 Fixed DVA Rider ",null,null,null,1,{"$f":"VLOOKUP($C$3,'Data Proposed Rates'!$A:$AZ,MATCH(BI_Seas_R1_Avg!$A21,ProposedHeader,0),FALSE)","v":-0.14000000000000001},-0.14000000000000001,-0.14000000000000001,"N/A",-1.3765342699490176E-3,-1.3496615627912533E-3]
["Distribution Volumetric Charge",{"$f":"IF($B$9=\"kWh\",$B$4,$B$5)","v":369},{"$f":"VLOOKUP($B$3,'Data Current Rates'!$A:$AP,MATCH(BI_Seas_R1_Avg!$A22,CurrentHeader,0),FALSE)","v":3.0800000000000001E-2},11.3652,{"$f":"IF($C$9=\"kWh\",$C$4,$C$5)","v":369},{"$f":"VLOOKUP($C$3,'Data Proposed Rates'!$A:$AZ,MATCH(BI_Seas_R1_Avg!$A22,ProposedHeader,0),FALSE)","v":5.1999999999999998E-3},1.9187999999999998,-9.4464000000000006,-0.83116883116883122,1.886638540841553E-2,1.8498075762027544E-2]
["Volumetric Base Rate Adjustment to Recover Past Tax Amounts ",{"$f":"IF($B$9=\"kWh\",$B$4,$B$5)","v":369},{"$f":"VLOOKUP($B$3,'Data Current Rates'!$A:$AP,MATCH(BI_Seas_R1_Avg!$A23,CurrentHeader,0),FALSE)","v":0},0,{"$f":"IF($C$9=\"kWh\",$C$4,$C$5)","v":369},{"$f":"VLOOKUP($C$3,'Data Proposed Rates'!$A:$AZ,MATCH(BI_Seas_R1_Avg!$A23,ProposedHeader,0),FALSE)","v":0},0,0,"N/A",0,0]
["Group 1 Volumetric DVA Rider (General)",null,null,null,{"$f":"IF($C$9=\"kWh\",$C$4,$C$5)","v":369},{"$f":"VLOOKUP($C$3,'Data Proposed Rates'!$A:$AZ,MATCH(BI_Seas_R1_Avg!$A24,ProposedHeader,0),FALSE)","v":-4.0000000000000002E-4},-0.14760000000000001,-0.14760000000000001,"N/A",-1.4512604160319641E-3,-1.4229289047713498E-3]
["Group 2 Volumetric DVA Rider ",null,null,null,369,{"$f":"VLOOKUP($C$3,'Data Proposed Rates'!$A:$AZ,MATCH(BI_Seas_R1_Avg!$A25,ProposedHeader,0),FALSE)","v":0},0,0,"N/A",0,0]
["Sub-Total:  Distribution (excluding pass through)",null,null,{"$f":"SUM(INDIRECT(\"D19:D\"&ROW()-1))","v":71.025199999999998},null,null,{"$f":"SUM(INDIRECT(\"g19:g\"&ROW()-1))","v":60.291199999999996},{"$f":"G26-D26","v":-10.734000000000002},-0.15112945827678068,0.59280644983107278,0.58123368010400001]
["Smart Metering Entity Charge",{"$f":"B19","v":1},{"$f":"VLOOKUP($A27,'Data Pass Through'!$A:$D,2,FALSE)","v":0.56999999999999995},{"$f":"B27*C27","v":0.56999999999999995},{"$f":"E19","v":1},{"$f":"VLOOKUP($A27,'Data Pass Through'!$A:$D,3,FALSE)","v":0.56999999999999995},{"$f":"E27*F27","v":0.56999999999999995},0,0,5.6044609562209986E-3,5.4950506485072449E-3]
["Line Losses on Cost of Power (based on two-tier RPP prices)",{"$f":"B8-B4","v":38.376000000000033},{"$f":"IF(B4>B7,C13,C12)","v":9.8000000000000004E-2},{"$f":"B28*C28","v":3.7608480000000033},{"$f":"C8-C4","v":28.04400000000004},{"$f":"IF(C4>C7,F13,F12)","v":9.8000000000000004E-2},{"$f":"E28*F28","v":2.7483120000000039},-1.0125359999999994,-0.26923076923076883,2.7022468946515207E-2,2.6494936206842571E-2]
["Line Losses on Cost of Power (based on TOU prices)",{"$f":"B8-B4","v":38.376000000000033},{"$f":"VLOOKUP($B$3,'Data Billing Quantities'!$A:$O,MATCH(BI_Seas_R1_Avg!$A15,'Data Billing Quantities'!$4:$4,0),FALSE)*C15+VLOOKUP($B$3,'Data Billing Quantities'!$A:$O,MATCH(BI_Seas_R1_Avg!$A16,'Data Billing Quantities'!$4:$4,0),FALSE)*C16+VLOOKUP($B$3,'Data Billing Quantities'!$A:$O,MATCH(BI_Seas_R1_Avg!$A17,'Data Billing Quantities'!$4:$4,0),FALSE)*C17","v":0.10342000000000001},{"$f":"B29*C29","v":3.9688459200000037},{"$f":"C8-C4","v":28.04400000000004},{"$f":"VLOOKUP($C$3,'Data Billing Quantities'!$A:$O,MATCH(BI_Seas_R1_Avg!$A15,'Data Billing Quantities'!$4:$4,0),FALSE)*F15+VLOOKUP($C$3,'Data Billing Quantities'!$A:$O,MATCH(BI_Seas_R1_Avg!$A16,'Data Billing Quantities'!$4:$4,0),FALSE)*F16+VLOOKUP($C$3,'Data Billing Quantities'!$A:$O,MATCH(BI_Seas_R1_Avg!$A17,'Data Billing Quantities'!$4:$4,0),FALSE)*F17","v":0.10342000000000001},{"$f":"E29*F29","v":2.9003104800000044},-1.0685354399999993,-0.26923076923076883,2.8516976922944932E-2,2.796026839297611E-2]
["Sub-Total:  Distribution (based on two-tier RPP prices)",null,null,{"$f":"SUM(D26,D27:D28)","v":75.356048000000001},null,null,{"$f":"SUM(G26,G27:G28)","v":63.609512000000002},-11.746535999999999,-0.15588046761687926,0.62543337973380908,0.61322366695934982]
["Sub-Total:  Distribution (based on TOU prices)",null,null,{"$f":"SUM(D26,D27,D29)","v":75.564045919999998},null,null,{"$f":"SUM(G26,G27,G29)","v":63.761510479999998},-11.80253544,-0.15619247614792089,0.62692788771023866,0.61468899914548336]
["Retail Transmission Rate – Network Service Rate",{"$f":"IF($B$9=\"kWh\",$B$8,$B$5)","v":407.37600000000003},{"$f":"VLOOKUP($B$3,'Data Current Rates'!$A:$AP,MATCH(BI_Seas_R1_Avg!$A32,CurrentHeader,0),FALSE)","v":7.7000000000000002E-3},{"$f":"B32*C32","v":3.1367952000000003},{"$f":"IF($C$9=\"kWh\",$C$8,$C$5)","v":397.04400000000004},{"$f":"VLOOKUP($C$3,'Data Proposed Rates'!$A:$AZ,MATCH(BI_Seas_R1_Avg!$A32,ProposedHeader,0),FALSE)","v":9.4999999999999998E-3},{"$f":"E32*F32","v":3.7719180000000003},{"$f":"G32-D32","v":0.63512279999999999},0.20247506117071332,3.7086959931696847E-2,3.6362948161431846E-2]
["Retail Transmission Rate – Line and Transformation Connection Service Rate",{"$f":"IF($B$9=\"kWh\",$B$8,$B$5)","v":407.37600000000003},{"$f":"VLOOKUP($B$3,'Data Current Rates'!$A:$AP,MATCH(BI_Seas_R1_Avg!$A33,CurrentHeader,0),FALSE)","v":6.1000000000000004E-3},{"$f":"B33*C33","v":2.4849936000000006},{"$f":"IF($C$9=\"kWh\",$C$8,$C$5)","v":397.04400000000004},{"$f":"VLOOKUP($C$3,'Data Proposed Rates'!$A:$AZ,MATCH(BI_Seas_R1_Avg!$A33,ProposedHeader,0),FALSE)","v":6.8999999999999999E-3},{"$f":"E33*F33","v":2.7396036000000001},{"$f":"G33-D33","v":0.25460999999999956},0.10245901639344242,2.6936844581969287E-2,2.6410983401461023E-2]
["Sub-Total:  Retail Transmission ",null,null,{"$f":"SUM(D32:D33)","v":5.6217888000000009},null,null,{"$f":"SUM(G32:G33)","v":6.5115216},{"$f":"G34-D34","v":0.8897327999999991},0.15826507036336884,6.4023804513666127E-2,6.2773931562892862E-2]
["Sub-Total:  Delivery (based on two-tier RPP prices)",null,null,{"$f":"D30+D34","v":80.977836800000006},null,null,{"$f":"G30+G34","v":70.121033600000004},{"$f":"G35-D35","v":-10.856803200000002},-0.13407129196120982,0.68945718424747515,0.67599759852224273]
["Sub-Total:  Delivery (based on TOU prices)",null,null,{"$f":"D31+D34","v":81.185834720000003},null,null,{"$f":"G31+G34","v":70.273032079999993},{"$f":"G36-D36","v":-10.91280264000001},-0.13441757022806908,0.69095169222390485,0.67746293070837615]
["Wholesale Market Service Rate (WMS) - not including CBR",{"$f":"B8","v":407.37600000000003},{"$f":"VLOOKUP($A37,'Data Pass Through'!$A:$D,2,FALSE)","v":3.0000000000000001E-3},{"$f":"B37*C37","v":1.2221280000000001},{"$f":"$C$8","v":397.04400000000004},{"$f":"VLOOKUP($A37,'Data Pass Through'!$A:$D,3,FALSE)","v":3.0000000000000001E-3},{"$f":"E37*F37","v":1.1911320000000001},-3.0996000000000024E-2,-2.5362318840579726E-2,1.1711671557377951E-2,1.1483036261504794E-2]
["Capacity Based Recovery (CBR) - Applicable for Class B Customers",{"$f":"B8","v":407.37600000000003},{"$f":"VLOOKUP($A38,'Data Pass Through'!$A:$D,2,FALSE)","v":4.0000000000000002E-4},{"$f":"B38*C38","v":0.16295040000000002},{"$f":"$C$8","v":397.04400000000004},{"$f":"VLOOKUP($A38,'Data Pass Through'!$A:$D,3,FALSE)","v":4.0000000000000002E-4},{"$f":"E38*F38","v":0.15881760000000003},-4.132799999999992E-3,-2.5362318840579656E-2,1.5615562076503936E-3,1.5310715015339727E-3]
["Rural Rate Protection Charge",{"$f":"B8","v":407.37600000000003},{"$f":"VLOOKUP($A39,'Data Pass Through'!$A:$D,2,FALSE)","v":5.0000000000000001E-4},0.20368800000000001,397.04400000000004,{"$f":"VLOOKUP($A39,'Data Pass Through'!$A:$D,3,FALSE)","v":5.0000000000000001E-4},0.19852200000000003,-5.1659999999999762E-3,-2.5362318840579594E-2,1.951945259562992E-3,1.9138393769174658E-3]
["Standard Supply Service – Administration Charge (if applicable)",1,{"$f":"VLOOKUP($A40,'Data Pass Through'!$A:$D,2,FALSE)","v":0.25},{"$f":"B40*C40","v":0.25},1,{"$f":"VLOOKUP($A40,'Data Pass Through'!$A:$D,3,FALSE)","v":0.25},0.25,0,0,2.4580969106232455E-3,2.4101099335558092E-3]
["Sub-Total:  Regulatory",null,null,{"$f":"SUM(D37:D40)","v":1.8387664000000001},null,null,{"$f":"SUM(G37:G40)","v":1.7984716000000003},-4.0294799999999853E-2,-2.1914039760569833E-2,1.7683269935214584E-2,1.7338057073512041E-2]
["Total  Electricty Charge on Two-Tier RPP ",null,null,{"$f":"SUM(D14,D26,D27,D28,D34,D41)","v":118.97860319999999},null,null,{"$f":"SUM(G14,G26,G27,G28,G34,G41)","v":108.08150519999998},-10.897098000000014,-9.1588720214526895E-2,1.0626992561105206]
["     HST",null,0.13,{"$f":"D42*C43","v":15.467218416},null,{"$f":"C43","v":0.13},{"$f":"G42*F43","v":14.050595675999999},-1.4166227400000011,-9.1588720214526853E-2,0.13815090329436772]
["Total Electricity Charge on Two-Tier RPP (including HST)",null,null,{"$f":"SUM(D42:D43)","v":134.44582161599999},null,null,{"$f":"SUM(G42:G43)","v":122.13210087599998},-12.313720740000008,-9.1588720214526839E-2,1.2008501594048884]
["Ontario Electricity Rebate (OER)",null,{"$f":"IF(($B$4*12)<250000,VLOOKUP(A45,'Data Pass Through'!$A$4:$C$20,2,0),0)","v":-0.189},{"$f":"D42*C45","v":-22.4869560048},null,{"$f":"C45","v":-0.189},{"$f":"G42*F45","v":-20.427404482799997},2.0595515220000031,9.1588720214526909E-2,-0.20085015940488843]
["Total Amount on Two-Tier RPP",null,null,{"$f":"SUM(D44:D45)","v":111.9588656112},null,null,{"$f":"SUM(G44:G45)","v":101.70469639319998},-10.254169218000015,-9.1588720214526909E-2,1]
["Total Electricty Charge on TOU (before HST)",null,null,{"$f":"SUM(D18,D26,D27,D29,D34,D41)","v":121.18658112},null,null,{"$f":"SUM(G18,G26,G27,G29,G34,G41)","v":110.23348367999999},-10.953097440000008,-9.0382097908630291E-2,null,{"$f":"G47/$G$51","v":1.0626992561105206}]
["     HST",null,0.13,{"$f":"D47*C48","v":15.754255545600001},null,{"$f":"C48","v":0.13},{"$f":"G47*F48","v":14.330352878399999},-1.4239026672000019,-9.0382097908630346E-2,null,{"$f":"G48/$G$51","v":0.13815090329436769}]
["Total Electricity Charge on TOU (including HST)",null,null,{"$f":"SUM(D47:D48)","v":136.94083666559999},null,null,{"$f":"SUM(G47:G48)","v":124.5638365584},-12.37700010719999,-9.0382097908630166E-2,null,{"$f":"G49/$G$51","v":1.2008501594048884}]
["Ontario Electricity Rebate (OER)",null,{"$f":"IF(($B$4*12)<250000,VLOOKUP(A50,'Data Pass Through'!$A$4:$C$20,2,0),0)","v":-0.189},{"$f":"D47*C50","v":-22.904263831680002},null,{"$f":"C50","v":-0.189},{"$f":"G47*F50","v":-20.834128415519999},2.070135416160003,9.038209790863036E-2,null,{"$f":"G50/$G$51","v":-0.2008501594048884}]
["Total Amount on TOU",null,null,{"$f":"SUM(D49:D50)","v":114.03657283391999},null,null,{"$f":"SUM(G49:G50)","v":103.72970814288},-10.306864691039991,-9.0382097908630152E-2,null,{"$f":"G51/$G$51","v":1}]
["* Distribution rate protection applies to R1 and R2 customers"]

{"sheet":"BI_Seas_R1_High","index":119,"n_rows":52,"n_cols":11,"rows_kept":52,"cut":false,"hidden":false,"merged":[[0,0,0,10]]}
["2023 Bill Impacts (High Consumption Level) - Seas-R1"]
[]
["Rate Class",{"$f":"VLOOKUP(A1,'Data BI List Acq_Seas'!C:E,2,FALSE)","v":"Seasonal"},{"$f":"VLOOKUP(A1,'Data BI List Acq_Seas'!C:E,3,FALSE)","v":"R1"}]
["Monthly Consumption (kWh)",{"$f":"IF(COUNTIF(A1,\"*Low*\")>0,VLOOKUP(B3,'Data Billing Quantities'!$A:$Z,MATCH(\"Low kWh\",'Data Billing Quantities'!4:4,0),FALSE),IF(COUNTIF(A1,\"*Typical*\")>0,VLOOKUP(B3,'Data Billing Quantities'!$A:$Z,MATCH(\"Typical kWh\",'Data Billing Quantities'!4:4,0),FALSE),IF(COUNTIF(A1,\"*Average*\")>0,VLOOKUP(B3,'Data Billing Quantities'!$A:$Z,MATCH(\"Average kWh\",'Data Billing Quantities'!4:4,0),FALSE),IF(COUNTIF(A1,\"*High*\")>0,VLOOKUP(B3,'Data Billing Quantities'!$A:$Z,MATCH(\"High kWh\",'Data Billing Quantities'!4:4,0),FALSE),\"error\"))))","v":1040},{"$f":"B4","v":1040}]
["Peak (kW)",{"$f":"IF(COUNTIF(A1,\"*Low*\")>0,VLOOKUP(B3,'Data Billing Quantities'!$A:$Z,MATCH(\"Low kW\",'Data Billing Quantities'!4:4,0),FALSE),IF(COUNTIF(A1,\"*Typical*\")>0,VLOOKUP(B3,'Data Billing Quantities'!$A:$Z,MATCH(\"Typical kW\",'Data Billing Quantities'!4:4,0),FALSE),IF(COUNTIF(A1,\"*Average*\")>0,VLOOKUP(B3,'Data Billing Quantities'!$A:$Z,MATCH(\"Average kW\",'Data Billing Quantities'!4:4,0),FALSE),IF(COUNTIF(A1,\"*High*\")>0,VLOOKUP(B3,'Data Billing Quantities'!$A:$Z,MATCH(\"High kW\",'Data Billing Quantities'!4:4,0),FALSE),\"error\"))))","v":0},{"$f":"B5","v":0}]
["Loss factor",{"$f":"VLOOKUP(B3,'Data Billing Quantities'!A:D,MATCH(A6,'Data Billing Quantities'!4:4,0),FALSE)","v":1.1040000000000001},{"$f":"VLOOKUP(C3,'Data Billing Quantities'!A:D,MATCH(A6,'Data Billing Quantities'!4:4,0),FALSE)","v":1.0760000000000001}]
["Commodity Threshold",{"$f":"VLOOKUP(B3,'Data Billing Quantities'!A:D,MATCH(A7,'Data Billing Quantities'!4:4,0),FALSE)","v":600},{"$f":"B7","v":600}]
["Monthly Consumption (kWh) - Uplifted",{"$f":"B4*B6","v":1148.1600000000001},{"$f":"C4*C6","v":1119.04}]
["Charge determinant",{"$f":"VLOOKUP(B3,'Data Billing Quantities'!A:D,MATCH(A9,'Data Billing Quantities'!4:4,0),FALSE)","v":"kWh"},{"$f":"VLOOKUP(C3,'Data Billing Quantities'!A:D,MATCH(A9,'Data Billing Quantities'!4:4,0),FALSE)","v":"kWh"}]
[]
[null,"Volume","Current Rate ($)","Current Charge ($)","Volume","Proposed Rate ($)","Proposed Charge ($)","Change ($)","Change (%)","% of Total Bill on RPP","% of Total Bill"]
["Energy First Tier",{"$f":"IF(B4>B7,B7,B4)","v":600},{"$f":"VLOOKUP($A12,'Data Pass Through'!$A:$D,2,FALSE)","v":9.8000000000000004E-2},{"$f":"B12*C12","v":58.800000000000004},{"$f":"B12","v":600},{"$f":"VLOOKUP($A12,'Data Pass Through'!$A:$D,3,FALSE)","v":9.8000000000000004E-2},{"$f":"E12*F12","v":58.800000000000004},{"$f":"G12-D12","v":0},{"$f":"IF(ISERROR(H12/ABS(D12)),\"N/A\",(H12/ABS(D12)))","v":0},{"$f":"G12/$G$46","v":0.30401522934733693}]
["Energy Second Tier",{"$f":"IF(B4>B7,(B4)-B7,0)","v":440},{"$f":"VLOOKUP($A13,'Data Pass Through'!$A:$D,2,FALSE)","v":0.115},{"$f":"B13*C13","v":50.6},{"$f":"B13","v":440},{"$f":"VLOOKUP($A13,'Data Pass Through'!$A:$D,3,FALSE)","v":0.115},{"$f":"E13*F13","v":50.6},0,0,{"$f":"G13/$G$46","v":0.26161854770366066}]
["Sub-Total:  Energy (RPP Tiered)",null,null,{"$f":"SUM(D12:D13)","v":109.4},null,null,{"$f":"SUM(G12:G13)","v":109.4},0,0,{"$f":"G14/$G$46","v":0.5656337770509976}]
["TOU-Off Peak",{"$f":"B$4*VLOOKUP($B$3,'Data Billing Quantities'!$A:$O,MATCH(BI_Seas_R1_High!$A15,'Data Billing Quantities'!$4:$4,0),FALSE)","v":665.6},{"$f":"VLOOKUP($A15,'Data Pass Through'!$A:$D,2,FALSE)","v":8.2000000000000003E-2},{"$f":"B15*C15","v":54.579200000000007},665.6,{"$f":"VLOOKUP($A15,'Data Pass Through'!$A:$D,3,FALSE)","v":8.2000000000000003E-2},{"$f":"E15*F15","v":54.579200000000007},0,0,null,{"$f":"G15/$G$51","v":0.286031075124975}]
["TOU-Mid Peak",{"$f":"B$4*VLOOKUP($B$3,'Data Billing Quantities'!$A:$O,MATCH(BI_Seas_R1_High!$A16,'Data Billing Quantities'!$4:$4,0),FALSE)","v":187.2},{"$f":"VLOOKUP($A16,'Data Pass Through'!$A:$D,2,FALSE)","v":0.113},{"$f":"B16*C16","v":21.153600000000001},187.2,{"$f":"VLOOKUP($A16,'Data Pass Through'!$A:$D,3,FALSE)","v":0.113},{"$f":"E16*F16","v":21.153600000000001},0,0,null,0.11085884275994647]
["TOU-On Peak",{"$f":"B$4*VLOOKUP($B$3,'Data Billing Quantities'!$A:$O,MATCH(BI_Seas_R1_High!$A17,'Data Billing Quantities'!$4:$4,0),FALSE)","v":187.2},{"$f":"VLOOKUP($A17,'Data Pass Through'!$A:$D,2,FALSE)","v":0.17},{"$f":"B17*C17","v":31.824000000000002},187.2,{"$f":"VLOOKUP($A17,'Data Pass Through'!$A:$D,3,FALSE)","v":0.17},{"$f":"E17*F17","v":31.824000000000002},0,0,null,0.16677878999283982]
["Sub-Total:  Energy (RPP TOU)",null,null,{"$f":"SUM(D15:D17)","v":107.55680000000001},null,null,{"$f":"SUM(G15:G17)","v":107.55680000000001},0,0,{"$f":"G18/$G$46","v":0.55610383026982391},0.56366870787776124]
["Service Charge",1,{"$f":"VLOOKUP($B$3,'Data Current Rates'!$A:$AP,MATCH(BI_Seas_R1_High!$A19,CurrentHeader,0),FALSE)","v":57.87},{"$f":"B19*C19","v":57.87},1,{"$f":"IF(C3=\"R2\",(VLOOKUP($C$3,'Data Proposed Rates'!$A:$AZ,MATCH(BI_Seas_R1_High!$A19,ProposedHeader,0),FALSE)+'Data Pass Through'!B4),VLOOKUP($C$3,'Data Proposed Rates'!$A:$AZ,MATCH(BI_Seas_R1_High!$A19,ProposedHeader,0),FALSE))","v":57.22},{"$f":"E19*F19","v":57.22},-0.64999999999999858,-1.1232071885260042E-2,0.29584611264038463,0.29987061222317413]
["Fixed Base Rate Adjustment to Recover Past Tax Amounts ",1,{"$f":"VLOOKUP($B$3,'Data Current Rates'!$A:$AP,MATCH(BI_Seas_R1_High!$A20,CurrentHeader,0),FALSE)","v":1.79},{"$f":"B20*C20","v":1.79},1,{"$f":"IF(C4=\"R2\",(VLOOKUP($C$3,'Data Proposed Rates'!$A:$AZ,MATCH(BI_Seas_R1_High!$A20,ProposedHeader,0),FALSE)+'Data Pass Through'!B5),VLOOKUP($C$3,'Data Proposed Rates'!$A:$AZ,MATCH(BI_Seas_R1_High!$A20,ProposedHeader,0),FALSE))","v":1.44},1.44,-0.35000000000000009,-0.19553072625698328,7.445270922791924E-3,7.5465515833864167E-3]
["Group 2 Fixed DVA Rider ",null,null,null,1,{"$f":"VLOOKUP($C$3,'Data Proposed Rates'!$A:$AZ,MATCH(BI_Seas_R1_High!$A21,ProposedHeader,0),FALSE)","v":-0.14000000000000001},-0.14000000000000001,-0.14000000000000001,"N/A",-7.2384578416032606E-4,-7.336925150514573E-4]
["Distribution Volumetric Charge",{"$f":"IF($B$9=\"kWh\",$B$4,$B$5)","v":1040},{"$f":"VLOOKUP($B$3,'Data Current Rates'!$A:$AP,MATCH(BI_Seas_R1_High!$A22,CurrentHeader,0),FALSE)","v":3.0800000000000001E-2},32.032000000000004,{"$f":"IF($C$9=\"kWh\",$C$4,$C$5)","v":1040},{"$f":"VLOOKUP($C$3,'Data Proposed Rates'!$A:$AZ,MATCH(BI_Seas_R1_High!$A22,ProposedHeader,0),FALSE)","v":5.1999999999999998E-3},5.4079999999999995,-26.624000000000002,-0.83116883116883111,2.7961128576707444E-2,2.8341493724273428E-2]
["Volumetric Base Rate Adjustment to Recover Past Tax Amounts ",{"$f":"IF($B$9=\"kWh\",$B$4,$B$5)","v":1040},{"$f":"VLOOKUP($B$3,'Data Current Rates'!$A:$AP,MATCH(BI_Seas_R1_High!$A23,CurrentHeader,0),FALSE)","v":0},0,{"$f":"IF($C$9=\"kWh\",$C$4,$C$5)","v":1040},{"$f":"VLOOKUP($C$3,'Data Proposed Rates'!$A:$AZ,MATCH(BI_Seas_R1_High!$A23,ProposedHeader,0),FALSE)","v":0},0,0,"N/A",0,0]
["Group 1 Volumetric DVA Rider (General)",null,null,null,{"$f":"IF($C$9=\"kWh\",$C$4,$C$5)","v":1040},{"$f":"VLOOKUP($C$3,'Data Proposed Rates'!$A:$AZ,MATCH(BI_Seas_R1_High!$A24,ProposedHeader,0),FALSE)","v":-4.0000000000000002E-4},-0.41600000000000004,-0.41600000000000004,"N/A",-2.1508560443621117E-3,-2.1801149018671872E-3]
["Group 2 Volumetric DVA Rider ",null,null,null,1040,{"$f":"VLOOKUP($C$3,'Data Proposed Rates'!$A:$AZ,MATCH(BI_Seas_R1_High!$A25,ProposedHeader,0),FALSE)","v":0},0,0,"N/A",0,0]
["Sub-Total:  Distribution (excluding pass through)",null,null,{"$f":"SUM(INDIRECT(\"D19:D\"&ROW()-1))","v":91.692000000000007},null,null,{"$f":"SUM(INDIRECT(\"g19:g\"&ROW()-1))","v":63.512},{"$f":"G26-D26","v":-28.180000000000007},-0.30733324608471846,0.3283778103113616,0.33284485011391535]
["Smart Metering Entity Charge",{"$f":"B19","v":1},{"$f":"VLOOKUP($A27,'Data Pass Through'!$A:$D,2,FALSE)","v":0.56999999999999995},{"$f":"B27*C27","v":0.56999999999999995},{"$f":"E19","v":1},{"$f":"VLOOKUP($A27,'Data Pass Through'!$A:$D,3,FALSE)","v":0.56999999999999995},{"$f":"E27*F27","v":0.56999999999999995},0,0,2.9470864069384697E-3,2.9871766684237896E-3]
["Line Losses on Cost of Power (based on two-tier RPP prices)",{"$f":"B8-B4","v":108.16000000000008},{"$f":"IF(B4>B7,C13,C12)","v":0.115},{"$f":"B28*C28","v":12.43840000000001},{"$f":"C8-C4","v":79.039999999999964},{"$f":"IF(C4>C7,F13,F12)","v":0.115},{"$f":"E28*F28","v":9.0895999999999955},-3.3488000000000149,-0.26923076923077022,4.6996204569312111E-2,4.7635510605798015E-2]
["Line Losses on Cost of Power (based on TOU prices)",{"$f":"B8-B4","v":108.16000000000008},{"$f":"VLOOKUP($B$3,'Data Billing Quantities'!$A:$O,MATCH(BI_Seas_R1_High!$A15,'Data Billing Quantities'!$4:$4,0),FALSE)*C15+VLOOKUP($B$3,'Data Billing Quantities'!$A:$O,MATCH(BI_Seas_R1_High!$A16,'Data Billing Quantities'!$4:$4,0),FALSE)*C16+VLOOKUP($B$3,'Data Billing Quantities'!$A:$O,MATCH(BI_Seas_R1_High!$A17,'Data Billing Quantities'!$4:$4,0),FALSE)*C17","v":0.10342000000000001},{"$f":"B29*C29","v":11.18590720000001},{"$f":"C8-C4","v":79.039999999999964},{"$f":"VLOOKUP($C$3,'Data Billing Quantities'!$A:$O,MATCH(BI_Seas_R1_High!$A15,'Data Billing Quantities'!$4:$4,0),FALSE)*F15+VLOOKUP($C$3,'Data Billing Quantities'!$A:$O,MATCH(BI_Seas_R1_High!$A16,'Data Billing Quantities'!$4:$4,0),FALSE)*F16+VLOOKUP($C$3,'Data Billing Quantities'!$A:$O,MATCH(BI_Seas_R1_High!$A17,'Data Billing Quantities'!$4:$4,0),FALSE)*F17","v":0.10342000000000001},{"$f":"E29*F29","v":8.1743167999999979},-3.0115904000000118,-0.26923076923077005,4.2263891100506608E-2,4.283882179870984E-2]
["Sub-Total:  Distribution (based on two-tier RPP prices)",null,null,{"$f":"SUM(D26,D27:D28)","v":104.70040000000002},null,null,{"$f":"SUM(G26,G27:G28)","v":73.171599999999984},-31.528800000000032,-0.30113352002475663,0.37832110128761209,0.3834675373881371]
["Sub-Total:  Distribution (based on TOU prices)",null,null,{"$f":"SUM(D26,D27,D29)","v":103.4479072},null,null,{"$f":"SUM(G26,G27,G29)","v":72.256316799999993},-31.19159040000001,-0.30151978173609689,0.37358878781880667,0.37867084858104894]
["Retail Transmission Rate – Network Service Rate",{"$f":"IF($B$9=\"kWh\",$B$8,$B$5)","v":1148.1600000000001},{"$f":"VLOOKUP($B$3,'Data Current Rates'!$A:$AP,MATCH(BI_Seas_R1_High!$A32,CurrentHeader,0),FALSE)","v":7.7000000000000002E-3},{"$f":"B32*C32","v":8.8408320000000007},{"$f":"IF($C$9=\"kWh\",$C$8,$C$5)","v":1119.04},{"$f":"VLOOKUP($C$3,'Data Proposed Rates'!$A:$AZ,MATCH(BI_Seas_R1_High!$A32,ProposedHeader,0),FALSE)","v":9.4999999999999998E-3},{"$f":"E32*F32","v":10.630879999999999},{"$f":"G32-D32","v":1.7900479999999988},0.20247506117071318,5.4965126213673755E-2,5.5712836317215964E-2]
["Retail Transmission Rate – Line and Transformation Connection Service Rate",{"$f":"IF($B$9=\"kWh\",$B$8,$B$5)","v":1148.1600000000001},{"$f":"VLOOKUP($B$3,'Data Current Rates'!$A:$AP,MATCH(BI_Seas_R1_High!$A33,CurrentHeader,0),FALSE)","v":6.1000000000000004E-3},{"$f":"B33*C33","v":7.0037760000000011},{"$f":"IF($C$9=\"kWh\",$C$8,$C$5)","v":1119.04},{"$f":"VLOOKUP($C$3,'Data Proposed Rates'!$A:$AZ,MATCH(BI_Seas_R1_High!$A33,ProposedHeader,0),FALSE)","v":6.8999999999999999E-3},{"$f":"E33*F33","v":7.7213759999999994},{"$f":"G33-D33","v":0.71759999999999824},0.10245901639344236,3.9922039039405145E-2,4.0465112693556855E-2]
["Sub-Total:  Retail Transmission ",null,null,{"$f":"SUM(D32:D33)","v":15.844608000000001},null,null,{"$f":"SUM(G32:G33)","v":18.352255999999997},{"$f":"G34-D34","v":2.5076479999999961},0.15826507036336879,9.4887165253078887E-2,9.6177949010772812E-2]
["Sub-Total:  Delivery (based on two-tier RPP prices)",null,null,{"$f":"D30+D34","v":120.54500800000002},null,null,{"$f":"G30+G34","v":91.523855999999981},{"$f":"G35-D35","v":-29.021152000000043},-0.24074951324404936,0.47320826654069098,0.47964548639890991]
["Sub-Total:  Delivery (based on TOU prices)",null,null,{"$f":"D31+D34","v":119.2925152},null,null,{"$f":"G31+G34","v":90.60857279999999},{"$f":"G36-D36","v":-28.683942400000007},-0.24045047882434126,0.46847595307188555,0.47484879759182175]
["Wholesale Market Service Rate (WMS) - not including CBR",{"$f":"B8","v":1148.1600000000001},{"$f":"VLOOKUP($A37,'Data Pass Through'!$A:$D,2,FALSE)","v":3.0000000000000001E-3},{"$f":"B37*C37","v":3.4444800000000004},{"$f":"$C$8","v":1119.04},{"$f":"VLOOKUP($A37,'Data Pass Through'!$A:$D,3,FALSE)","v":3.0000000000000001E-3},{"$f":"E37*F37","v":3.3571200000000001},-8.7360000000000326E-2,-2.5362318840579802E-2,1.7357408278002241E-2,1.75935272580682E-2]
["Capacity Based Recovery (CBR) - Applicable for Class B Customers",{"$f":"B8","v":1148.1600000000001},{"$f":"VLOOKUP($A38,'Data Pass Through'!$A:$D,2,FALSE)","v":4.0000000000000002E-4},{"$f":"B38*C38","v":0.45926400000000006},{"$f":"$C$8","v":1119.04},{"$f":"VLOOKUP($A38,'Data Pass Through'!$A:$D,3,FALSE)","v":4.0000000000000002E-4},{"$f":"E38*F38","v":0.44761600000000001},-1.1648000000000047E-2,-2.5362318840579809E-2,2.3143211037336318E-3,2.3458036344090934E-3]
["Rural Rate Protection Charge",{"$f":"B8","v":1148.1600000000001},{"$f":"VLOOKUP($A39,'Data Pass Through'!$A:$D,2,FALSE)","v":5.0000000000000001E-4},0.57408000000000003,1119.04,{"$f":"VLOOKUP($A39,'Data Pass Through'!$A:$D,3,FALSE)","v":5.0000000000000001E-4},0.55952000000000002,-1.4560000000000017E-2,-2.536231884057974E-2,2.8929013796670398E-3,2.9322545430113668E-3]
["Standard Supply Service – Administration Charge (if applicable)",1,{"$f":"VLOOKUP($A40,'Data Pass Through'!$A:$D,2,FALSE)","v":0.25},{"$f":"B40*C40","v":0.25},1,{"$f":"VLOOKUP($A40,'Data Pass Through'!$A:$D,3,FALSE)","v":0.25},0.25,0,0,1.2925817574291536E-3,1.3101652054490307E-3]
["Sub-Total:  Regulatory",null,null,{"$f":"SUM(D37:D40)","v":4.7278240000000009},null,null,{"$f":"SUM(G37:G40)","v":4.6142560000000001},-0.11356800000000078,-2.4021198758667997E-2,2.3857212518832067E-2,2.418175064093769E-2]
["Total  Electricty Charge on Two-Tier RPP ",null,null,{"$f":"SUM(D14,D26,D27,D28,D34,D41)","v":234.672832},null,null,{"$f":"SUM(G14,G26,G27,G28,G34,G41)","v":205.53811200000001},-29.134719999999987,-0.12415037459470378,1.0626992561105209]
["     HST",null,0.13,{"$f":"D42*C43","v":30.507468160000002},null,{"$f":"C43","v":0.13},{"$f":"G42*F43","v":26.719954560000001},-3.7875136000000005,-0.12415037459470384,0.13815090329436772]
["Total Electricity Charge on Two-Tier RPP (including HST)",null,null,{"$f":"SUM(D42:D43)","v":265.18030016},null,null,{"$f":"SUM(G42:G43)","v":232.25806656},-32.922233599999998,-0.12415037459470382,1.2008501594048884]
["Ontario Electricity Rebate (OER)",null,{"$f":"IF(($B$4*12)<250000,VLOOKUP(A45,'Data Pass Through'!$A$4:$C$20,2,0),0)","v":-0.189},{"$f":"D42*C45","v":-44.353165248000003},null,{"$f":"C45","v":-0.189},{"$f":"G42*F45","v":-38.846703168000005},5.5064620799999986,0.12415037459470379,-0.20085015940488846]
["Total Amount on Two-Tier RPP",null,null,{"$f":"SUM(D44:D45)","v":220.82713491199999},null,null,{"$f":"SUM(G44:G45)","v":193.411363392},-27.415771519999993,-0.12415037459470381,1]
["Total Electricty Charge on TOU (before HST)",null,null,{"$f":"SUM(D18,D26,D27,D29,D34,D41)","v":231.5771392},null,null,{"$f":"SUM(G18,G26,G27,G29,G34,G41)","v":202.77962880000001},-28.797510399999993,-0.12435385677309548,null,{"$f":"G47/$G$51","v":1.0626992561105209}]
["     HST",null,0.13,{"$f":"D47*C48","v":30.105028096000002},null,{"$f":"C48","v":0.13},{"$f":"G47*F48","v":26.361351744000004},-3.7436763519999978,-0.12435385677309542,null,{"$f":"G48/$G$51","v":0.13815090329436772}]
["Total Electricity Charge on TOU (including HST)",null,null,{"$f":"SUM(D47:D48)","v":261.68216729599999},null,null,{"$f":"SUM(G47:G48)","v":229.140980544},-32.541186751999987,-0.12435385677309546,null,{"$f":"G49/$G$51","v":1.2008501594048884}]
["Ontario Electricity Rebate (OER)",null,{"$f":"IF(($B$4*12)<250000,VLOOKUP(A50,'Data Pass Through'!$A$4:$C$20,2,0),0)","v":-0.189},{"$f":"D47*C50","v":-43.768079308800004},null,{"$f":"C50","v":-0.189},{"$f":"G47*F50","v":-38.325349843200001},5.4427294656000029,0.12435385677309556,null,{"$f":"G50/$G$51","v":-0.20085015940488843}]
["Total Amount on TOU",null,null,{"$f":"SUM(D49:D50)","v":217.91408798719999},null,null,{"$f":"SUM(G49:G50)","v":190.8156307008},-27.098457286399992,-0.12435385677309548,null,{"$f":"G51/$G$51","v":1}]
["* Distribution rate protection applies to R1 and R2 customers"]

{"sheet":"BI_Seas_R2_Low","index":120,"n_rows":52,"n_cols":11,"rows_kept":52,"cut":false,"hidden":false,"merged":[[0,0,0,10]]}
["2023 Bill Impacts (Low Consumption Level) - Seas-R2"]
[]
["Rate Class",{"$f":"VLOOKUP(A1,'Data BI List Acq_Seas'!C:E,2,FALSE)","v":"Seasonal"},{"$f":"VLOOKUP(A1,'Data BI List Acq_Seas'!C:E,3,FALSE)","v":"R2"}]
["Monthly Consumption (kWh)",{"$f":"IF(COUNTIF(A1,\"*Low*\")>0,VLOOKUP(B3,'Data Billing Quantities'!$A:$Z,MATCH(\"Low kWh\",'Data Billing Quantities'!4:4,0),FALSE),IF(COUNTIF(A1,\"*Typical*\")>0,VLOOKUP(B3,'Data Billing Quantities'!$A:$Z,MATCH(\"Typical kWh\",'Data Billing Quantities'!4:4,0),FALSE),IF(COUNTIF(A1,\"*Average*\")>0,VLOOKUP(B3,'Data Billing Quantities'!$A:$Z,MATCH(\"Average kWh\",'Data Billing Quantities'!4:4,0),FALSE),IF(COUNTIF(A1,\"*High*\")>0,VLOOKUP(B3,'Data Billing Quantities'!$A:$Z,MATCH(\"High kWh\",'Data Billing Quantities'!4:4,0),FALSE),\"error\"))))","v":40},{"$f":"B4","v":40}]
["Peak (kW)",{"$f":"IF(COUNTIF(A1,\"*Low*\")>0,VLOOKUP(B3,'Data Billing Quantities'!$A:$Z,MATCH(\"Low kW\",'Data Billing Quantities'!4:4,0),FALSE),IF(COUNTIF(A1,\"*Typical*\")>0,VLOOKUP(B3,'Data Billing Quantities'!$A:$Z,MATCH(\"Typical kW\",'Data Billing Quantities'!4:4,0),FALSE),IF(COUNTIF(A1,\"*Average*\")>0,VLOOKUP(B3,'Data Billing Quantities'!$A:$Z,MATCH(\"Average kW\",'Data Billing Quantities'!4:4,0),FALSE),IF(COUNTIF(A1,\"*High*\")>0,VLOOKUP(B3,'Data Billing Quantities'!$A:$Z,MATCH(\"High kW\",'Data Billing Quantities'!4:4,0),FALSE),\"error\"))))","v":0},{"$f":"B5","v":0}]
["Loss factor",{"$f":"VLOOKUP(B3,'Data Billing Quantities'!A:D,MATCH(A6,'Data Billing Quantities'!4:4,0),FALSE)","v":1.1040000000000001},{"$f":"VLOOKUP(C3,'Data Billing Quantities'!A:D,MATCH(A6,'Data Billing Quantities'!4:4,0),FALSE)","v":1.105}]
["Commodity Threshold",{"$f":"VLOOKUP(B3,'Data Billing Quantities'!A:D,MATCH(A7,'Data Billing Quantities'!4:4,0),FALSE)","v":600},{"$f":"B7","v":600}]
["Monthly Consumption (kWh) - Uplifted",{"$f":"B4*B6","v":44.160000000000004},{"$f":"C4*C6","v":44.2}]
["Charge determinant",{"$f":"VLOOKUP(B3,'Data Billing Quantities'!A:D,MATCH(A9,'Data Billing Quantities'!4:4,0),FALSE)","v":"kWh"},{"$f":"VLOOKUP(C3,'Data Billing Quantities'!A:D,MATCH(A9,'Data Billing Quantities'!4:4,0),FALSE)","v":"kWh"}]
[]
[null,"Volume","Current Rate ($)","Current Charge ($)","Volume","Proposed Rate ($)","Proposed Charge ($)","Change ($)","Change (%)","% of Total Bill on RPP","% of Total Bill"]
["Energy First Tier",{"$f":"IF(B4>B7,B7,B4)","v":40},{"$f":"VLOOKUP($A12,'Data Pass Through'!$A:$D,2,FALSE)","v":9.8000000000000004E-2},{"$f":"B12*C12","v":3.92},{"$f":"B12","v":40},{"$f":"VLOOKUP($A12,'Data Pass Through'!$A:$D,3,FALSE)","v":9.8000000000000004E-2},{"$f":"E12*F12","v":3.92},{"$f":"G12-D12","v":0},{"$f":"IF(ISERROR(H12/ABS(D12)),\"N/A\",(H12/ABS(D12)))","v":0},{"$f":"G12/$G$46","v":3.2905521308615675E-2}]
["Energy Second Tier",{"$f":"IF(B4>B7,(B4)-B7,0)","v":0},{"$f":"VLOOKUP($A13,'Data Pass Through'!$A:$D,2,FALSE)","v":0.115},{"$f":"B13*C13","v":0},{"$f":"B13","v":0},{"$f":"VLOOKUP($A13,'Data Pass Through'!$A:$D,3,FALSE)","v":0.115},{"$f":"E13*F13","v":0},0,"N/A",{"$f":"G13/$G$46","v":0}]
["Sub-Total:  Energy (RPP Tiered)",null,null,{"$f":"SUM(D12:D13)","v":3.92},null,null,{"$f":"SUM(G12:G13)","v":3.92},0,0,{"$f":"G14/$G$46","v":3.2905521308615675E-2}]
["TOU-Off Peak",{"$f":"B$4*VLOOKUP($B$3,'Data Billing Quantities'!$A:$O,MATCH(BI_Seas_R2_Low!$A15,'Data Billing Quantities'!$4:$4,0),FALSE)","v":25.6},{"$f":"VLOOKUP($A15,'Data Pass Through'!$A:$D,2,FALSE)","v":8.2000000000000003E-2},{"$f":"B15*C15","v":2.0992000000000002},25.6,{"$f":"VLOOKUP($A15,'Data Pass Through'!$A:$D,3,FALSE)","v":8.2000000000000003E-2},{"$f":"E15*F15","v":2.0992000000000002},0,0,null,{"$f":"G15/$G$51","v":1.7587960435101867E-2}]
["TOU-Mid Peak",{"$f":"B$4*VLOOKUP($B$3,'Data Billing Quantities'!$A:$O,MATCH(BI_Seas_R2_Low!$A16,'Data Billing Quantities'!$4:$4,0),FALSE)","v":7.1999999999999993},{"$f":"VLOOKUP($A16,'Data Pass Through'!$A:$D,2,FALSE)","v":0.113},{"$f":"B16*C16","v":0.81359999999999999},7.1999999999999993,{"$f":"VLOOKUP($A16,'Data Pass Through'!$A:$D,3,FALSE)","v":0.113},{"$f":"E16*F16","v":0.81359999999999999},0,0,null,6.8166752143668441E-3]
["TOU-On Peak",{"$f":"B$4*VLOOKUP($B$3,'Data Billing Quantities'!$A:$O,MATCH(BI_Seas_R2_Low!$A17,'Data Billing Quantities'!$4:$4,0),FALSE)","v":7.1999999999999993},{"$f":"VLOOKUP($A17,'Data Pass Through'!$A:$D,2,FALSE)","v":0.17},{"$f":"B17*C17","v":1.224},7.1999999999999993,{"$f":"VLOOKUP($A17,'Data Pass Through'!$A:$D,3,FALSE)","v":0.17},{"$f":"E17*F17","v":1.224},0,0,null,1.0255175101259855E-2]
["Sub-Total:  Energy (RPP TOU)",null,null,{"$f":"SUM(D15:D17)","v":4.1368},null,null,{"$f":"SUM(G15:G17)","v":4.1368},0,0,{"$f":"G18/$G$46","v":3.4725398099357478E-2},3.4659810750728569E-2]
["Service Charge",1,{"$f":"VLOOKUP($B$3,'Data Current Rates'!$A:$AP,MATCH(BI_Seas_R2_Low!$A19,CurrentHeader,0),FALSE)","v":57.87},{"$f":"B19*C19","v":57.87},1,{"$f":"IF(C3=\"R2\",(VLOOKUP($C$3,'Data Proposed Rates'!$A:$AZ,MATCH(BI_Seas_R2_Low!$A19,ProposedHeader,0),FALSE)+'Data Pass Through'!B4),VLOOKUP($C$3,'Data Proposed Rates'!$A:$AZ,MATCH(BI_Seas_R2_Low!$A19,ProposedHeader,0),FALSE))","v":116.58},{"$f":"E19*F19","v":116.58},58.71,1.0145152928978747,0.97860348830571819,0.9767551579288184]
["Fixed Base Rate Adjustment to Recover Past Tax Amounts ",1,{"$f":"VLOOKUP($B$3,'Data Current Rates'!$A:$AP,MATCH(BI_Seas_R2_Low!$A20,CurrentHeader,0),FALSE)","v":1.79},{"$f":"B20*C20","v":1.79},1,{"$f":"IF(C4=\"R2\",(VLOOKUP($C$3,'Data Proposed Rates'!$A:$AZ,MATCH(BI_Seas_R2_Low!$A20,ProposedHeader,0),FALSE)+'Data Pass Through'!B5),VLOOKUP($C$3,'Data Proposed Rates'!$A:$AZ,MATCH(BI_Seas_R2_Low!$A20,ProposedHeader,0),FALSE))","v":4},4,2.21,1.2346368715083798,3.357706255981191E-2,3.3513644121764226E-2]
["Group 2 Fixed DVA Rider ",null,null,null,1,{"$f":"VLOOKUP($C$3,'Data Proposed Rates'!$A:$AZ,MATCH(BI_Seas_R2_Low!$A21,ProposedHeader,0),FALSE)","v":-0.28999999999999998},-0.28999999999999998,-0.28999999999999998,"N/A",-2.4343370355863632E-3,-2.4297391988279066E-3]
["Distribution Volumetric Charge",{"$f":"IF($B$9=\"kWh\",$B$4,$B$5)","v":40},{"$f":"VLOOKUP($B$3,'Data Current Rates'!$A:$AP,MATCH(BI_Seas_R2_Low!$A22,CurrentHeader,0),FALSE)","v":3.0800000000000001E-2},1.232,{"$f":"IF($C$9=\"kWh\",$C$4,$C$5)","v":40},{"$f":"VLOOKUP($C$3,'Data Proposed Rates'!$A:$AZ,MATCH(BI_Seas_R2_Low!$A22,ProposedHeader,0),FALSE)","v":8.0999999999999996E-3},0.32399999999999995,-0.90800000000000003,-0.73701298701298701,2.7197420673447646E-3,2.7146051738629021E-3]
["Volumetric Base Rate Adjustment to Recover Past Tax Amounts ",{"$f":"IF($B$9=\"kWh\",$B$4,$B$5)","v":40},{"$f":"VLOOKUP($B$3,'Data Current Rates'!$A:$AP,MATCH(BI_Seas_R2_Low!$A23,CurrentHeader,0),FALSE)","v":0},0,{"$f":"IF($C$9=\"kWh\",$C$4,$C$5)","v":40},{"$f":"VLOOKUP($C$3,'Data Proposed Rates'!$A:$AZ,MATCH(BI_Seas_R2_Low!$A23,ProposedHeader,0),FALSE)","v":0},0,0,"N/A",0,0]
["Group 1 Volumetric DVA Rider (General)",null,null,null,{"$f":"IF($C$9=\"kWh\",$C$4,$C$5)","v":40},{"$f":"VLOOKUP($C$3,'Data Proposed Rates'!$A:$AZ,MATCH(BI_Seas_R2_Low!$A24,ProposedHeader,0),FALSE)","v":-4.0000000000000002E-4},-1.6E-2,-1.6E-2,"N/A",-1.3430825023924765E-4,-1.3405457648705692E-4]
["Group 2 Volumetric DVA Rider ",null,null,null,40,{"$f":"VLOOKUP($C$3,'Data Proposed Rates'!$A:$AZ,MATCH(BI_Seas_R2_Low!$A25,ProposedHeader,0),FALSE)","v":0},0,0,"N/A",0,0]
["Sub-Total:  Distribution (excluding pass through)",null,null,{"$f":"SUM(INDIRECT(\"D19:D\"&ROW()-1))","v":60.891999999999996},null,null,{"$f":"SUM(INDIRECT(\"g19:g\"&ROW()-1))","v":120.59799999999998},{"$f":"G26-D26","v":59.705999999999989},0.98052289299086892,1.0123316476470492,1.0104196134491306]
["Smart Metering Entity Charge",{"$f":"B19","v":1},{"$f":"VLOOKUP($A27,'Data Pass Through'!$A:$D,2,FALSE)","v":0.56999999999999995},{"$f":"B27*C27","v":0.56999999999999995},{"$f":"E19","v":1},{"$f":"VLOOKUP($A27,'Data Pass Through'!$A:$D,3,FALSE)","v":0.56999999999999995},{"$f":"E27*F27","v":0.56999999999999995},0,0,4.7847314147731971E-3,4.7756942873514018E-3]
["Line Losses on Cost of Power (based on two-tier RPP prices)",{"$f":"B8-B4","v":4.1600000000000037},{"$f":"IF(B4>B7,C13,C12)","v":9.8000000000000004E-2},{"$f":"B28*C28","v":0.40768000000000038},{"$f":"C8-C4","v":4.2000000000000028},{"$f":"IF(C4>C7,F13,F12)","v":9.8000000000000004E-2},{"$f":"E28*F28","v":0.4116000000000003},3.9199999999999235E-3,9.6153846153844182E-3,3.455079737404648E-3,3.4485539801295418E-3]
["Line Losses on Cost of Power (based on TOU prices)",{"$f":"B8-B4","v":4.1600000000000037},{"$f":"VLOOKUP($B$3,'Data Billing Quantities'!$A:$O,MATCH(BI_Seas_R2_Low!$A15,'Data Billing Quantities'!$4:$4,0),FALSE)*C15+VLOOKUP($B$3,'Data Billing Quantities'!$A:$O,MATCH(BI_Seas_R2_Low!$A16,'Data Billing Quantities'!$4:$4,0),FALSE)*C16+VLOOKUP($B$3,'Data Billing Quantities'!$A:$O,MATCH(BI_Seas_R2_Low!$A17,'Data Billing Quantities'!$4:$4,0),FALSE)*C17","v":0.10342000000000001},{"$f":"B29*C29","v":0.43022720000000042},{"$f":"C8-C4","v":4.2000000000000028},{"$f":"VLOOKUP($C$3,'Data Billing Quantities'!$A:$O,MATCH(BI_Seas_R2_Low!$A15,'Data Billing Quantities'!$4:$4,0),FALSE)*F15+VLOOKUP($C$3,'Data Billing Quantities'!$A:$O,MATCH(BI_Seas_R2_Low!$A16,'Data Billing Quantities'!$4:$4,0),FALSE)*F16+VLOOKUP($C$3,'Data Billing Quantities'!$A:$O,MATCH(BI_Seas_R2_Low!$A17,'Data Billing Quantities'!$4:$4,0),FALSE)*F17","v":0.10342000000000001},{"$f":"E29*F29","v":0.43436400000000036},4.1367999999999405E-3,9.6153846153844685E-3,3.6461668004325381E-3,3.6392801288265024E-3]
["Sub-Total:  Distribution (based on two-tier RPP prices)",null,null,{"$f":"SUM(D26,D27:D28)","v":61.869679999999995},null,null,{"$f":"SUM(G26,G27:G28)","v":121.57959999999999},59.70991999999999,0.96509178647764127,1.0205714587992269,1.0186438617166114]
["Sub-Total:  Distribution (based on TOU prices)",null,null,{"$f":"SUM(D26,D27,D29)","v":61.892227199999994},null,null,{"$f":"SUM(G26,G27,G29)","v":121.60236399999998},59.710136799999987,0.96474370856054759,1.0207625458622547,1.0188345878653084]
["Retail Transmission Rate – Network Service Rate",{"$f":"IF($B$9=\"kWh\",$B$8,$B$5)","v":44.160000000000004},{"$f":"VLOOKUP($B$3,'Data Current Rates'!$A:$AP,MATCH(BI_Seas_R2_Low!$A32,CurrentHeader,0),FALSE)","v":7.7000000000000002E-3},{"$f":"B32*C32","v":0.34003200000000006},{"$f":"IF($C$9=\"kWh\",$C$8,$C$5)","v":44.2},{"$f":"VLOOKUP($C$3,'Data Proposed Rates'!$A:$AZ,MATCH(BI_Seas_R2_Low!$A32,ProposedHeader,0),FALSE)","v":8.8000000000000005E-3},{"$f":"E32*F32","v":0.38896000000000003},{"$f":"G32-D32","v":4.8927999999999972E-2},0.14389233954451336,3.2650335633161104E-3,3.2588667544003538E-3]
["Retail Transmission Rate – Line and Transformation Connection Service Rate",{"$f":"IF($B$9=\"kWh\",$B$8,$B$5)","v":44.160000000000004},{"$f":"VLOOKUP($B$3,'Data Current Rates'!$A:$AP,MATCH(BI_Seas_R2_Low!$A33,CurrentHeader,0),FALSE)","v":6.1000000000000004E-3},{"$f":"B33*C33","v":0.26937600000000006},{"$f":"IF($C$9=\"kWh\",$C$8,$C$5)","v":44.2},{"$f":"VLOOKUP($C$3,'Data Proposed Rates'!$A:$AZ,MATCH(BI_Seas_R2_Low!$A33,ProposedHeader,0),FALSE)","v":6.4999999999999997E-3},{"$f":"E33*F33","v":0.2873},{"$f":"G33-D33","v":1.792399999999994E-2},6.6538964124494893E-2,2.4116725183584904E-3,2.4071174890457157E-3]
["Sub-Total:  Retail Transmission ",null,null,{"$f":"SUM(D32:D33)","v":0.60940800000000017},null,null,{"$f":"SUM(G32:G33)","v":0.67626000000000008},{"$f":"G34-D34","v":6.6851999999999911E-2},0.10969990548204141,5.6767060816746012E-3,5.6659842434460704E-3]
["Sub-Total:  Delivery (based on two-tier RPP prices)",null,null,{"$f":"D30+D34","v":62.479087999999997},null,null,{"$f":"G30+G34","v":122.25585999999998},{"$f":"G35-D35","v":59.776771999999987},0.95674847238487204,1.0262481648809014,1.0243098459600575]
["Sub-Total:  Delivery (based on TOU prices)",null,null,{"$f":"D31+D34","v":62.501635199999996},null,null,{"$f":"G31+G34","v":122.27862399999998},{"$f":"G36-D36","v":59.776988799999984},0.95640679813765872,1.0264392519439294,1.0245005721087543]
["Wholesale Market Service Rate (WMS) - not including CBR",{"$f":"B8","v":44.160000000000004},{"$f":"VLOOKUP($A37,'Data Pass Through'!$A:$D,2,FALSE)","v":3.0000000000000001E-3},{"$f":"B37*C37","v":0.13248000000000001},{"$f":"$C$8","v":44.2},{"$f":"VLOOKUP($A37,'Data Pass Through'!$A:$D,3,FALSE)","v":3.0000000000000001E-3},{"$f":"E37*F37","v":0.13260000000000002},1.2000000000000899E-4,9.0579710144934314E-4,1.113079623857765E-3,1.1109773026364844E-3]
["Capacity Based Recovery (CBR) - Applicable for Class B Customers",{"$f":"B8","v":44.160000000000004},{"$f":"VLOOKUP($A38,'Data Pass Through'!$A:$D,2,FALSE)","v":4.0000000000000002E-4},{"$f":"B38*C38","v":1.7664000000000003E-2},{"$f":"$C$8","v":44.2},{"$f":"VLOOKUP($A38,'Data Pass Through'!$A:$D,3,FALSE)","v":4.0000000000000002E-4},{"$f":"E38*F38","v":1.7680000000000001E-2},1.5999999999998654E-5,9.0579710144919905E-4,1.4841061651436866E-4,1.481303070181979E-4]
["Rural Rate Protection Charge",{"$f":"B8","v":44.160000000000004},{"$f":"VLOOKUP($A39,'Data Pass Through'!$A:$D,2,FALSE)","v":5.0000000000000001E-4},2.2080000000000002E-2,44.2,{"$f":"VLOOKUP($A39,'Data Pass Through'!$A:$D,3,FALSE)","v":5.0000000000000001E-4},2.2100000000000002E-2,1.9999999999999185E-5,9.057971014492384E-4,1.8551327064296081E-4,1.8516288377274737E-4]
["Standard Supply Service – Administration Charge (if applicable)",1,{"$f":"VLOOKUP($A40,'Data Pass Through'!$A:$D,2,FALSE)","v":0.25},{"$f":"B40*C40","v":0.25},1,{"$f":"VLOOKUP($A40,'Data Pass Through'!$A:$D,3,FALSE)","v":0.25},0.25,0,0,2.0985664099882444E-3,2.0946027576102641E-3]
["Sub-Total:  Regulatory",null,null,{"$f":"SUM(D37:D40)","v":0.42222400000000004},null,null,{"$f":"SUM(G37:G40)","v":0.42238000000000003},1.5599999999998948E-4,3.6947212853838119E-4,3.5455699210033388E-3,3.5388732510376942E-3]
["Total  Electricty Charge on Two-Tier RPP ",null,null,{"$f":"SUM(D14,D26,D27,D28,D34,D41)","v":66.821311999999992},null,null,{"$f":"SUM(G14,G26,G27,G28,G34,G41)","v":126.59823999999999},59.776927999999998,0.89457878348751974,1.0626992561105206]
["     HST",null,0.13,{"$f":"D42*C43","v":8.6867705599999994},null,{"$f":"C43","v":0.13},{"$f":"G42*F43","v":16.4577712},7.7710006400000005,0.89457878348751974,0.13815090329436769]
["Total Electricity Charge on Two-Tier RPP (including HST)",null,null,{"$f":"SUM(D42:D43)","v":75.508082559999991},null,null,{"$f":"SUM(G42:G43)","v":143.0560112},67.547928640000009,0.89457878348751985,1.2008501594048884]
["Ontario Electricity Rebate (OER)",null,{"$f":"IF(($B$4*12)<250000,VLOOKUP(A45,'Data Pass Through'!$A$4:$C$20,2,0),0)","v":-0.189},{"$f":"D42*C45","v":-12.629227967999999},null,{"$f":"C45","v":-0.189},{"$f":"G42*F45","v":-23.927067359999999},-11.297839392,-0.89457878348751974,-0.2008501594048884]
["Total Amount on Two-Tier RPP",null,null,{"$f":"SUM(D44:D45)","v":62.878854591999996},null,null,{"$f":"SUM(G44:G45)","v":119.12894384000001},56.250089248000009,0.89457878348751985,1]
["Total Electricty Charge on TOU (before HST)",null,null,{"$f":"SUM(D18,D26,D27,D29,D34,D41)","v":67.060659199999989},null,null,{"$f":"SUM(G18,G26,G27,G29,G34,G41)","v":126.83780399999998},59.777144799999988,0.89138916188882311,null,{"$f":"G47/$G$51","v":1.0626992561105206}]
["     HST",null,0.13,{"$f":"D47*C48","v":8.7178856959999997},null,{"$f":"C48","v":0.13},{"$f":"G47*F48","v":16.488914519999998},7.7710288239999983,0.891389161888823,null,{"$f":"G48/$G$51","v":0.13815090329436769}]
["Total Electricity Charge on TOU (including HST)",null,null,{"$f":"SUM(D47:D48)","v":75.778544895999985},null,null,{"$f":"SUM(G47:G48)","v":143.32671851999999},67.548173624,0.89138916188882333,null,{"$f":"G49/$G$51","v":1.2008501594048884}]
["Ontario Electricity Rebate (OER)",null,{"$f":"IF(($B$4*12)<250000,VLOOKUP(A50,'Data Pass Through'!$A$4:$C$20,2,0),0)","v":-0.189},{"$f":"D47*C50","v":-12.674464588799998},null,{"$f":"C50","v":-0.189},{"$f":"G47*F50","v":-23.972344955999997},-11.297880367199999,-0.89138916188882333,null,{"$f":"G50/$G$51","v":-0.20085015940488843}]
["Total Amount on TOU",null,null,{"$f":"SUM(D49:D50)","v":63.104080307199986},null,null,{"$f":"SUM(G49:G50)","v":119.35437356399999},56.250293256799999,0.89138916188882333,null,{"$f":"G51/$G$51","v":1}]
["* Distribution rate protection applies to R1 and R2 customers"]

{"sheet":"BI_Seas_R2_Avg","index":121,"n_rows":52,"n_cols":11,"rows_kept":52,"cut":false,"hidden":false,"merged":[[0,0,0,10]]}
["2023 Bill Impacts (Average Consumption Level) - Seas-R2"]
[]
["Rate Class",{"$f":"VLOOKUP(A1,'Data BI List Acq_Seas'!C:E,2,FALSE)","v":"Seasonal"},{"$f":"VLOOKUP(A1,'Data BI List Acq_Seas'!C:E,3,FALSE)","v":"R2"}]
["Monthly Consumption (kWh)",{"$f":"IF(COUNTIF(A1,\"*Low*\")>0,VLOOKUP(B3,'Data Billing Quantities'!$A:$Z,MATCH(\"Low kWh\",'Data Billing Quantities'!4:4,0),FALSE),IF(COUNTIF(A1,\"*Typical*\")>0,VLOOKUP(B3,'Data Billing Quantities'!$A:$Z,MATCH(\"Typical kWh\",'Data Billing Quantities'!4:4,0),FALSE),IF(COUNTIF(A1,\"*Average*\")>0,VLOOKUP(B3,'Data Billing Quantities'!$A:$Z,MATCH(\"Average kWh\",'Data Billing Quantities'!4:4,0),FALSE),IF(COUNTIF(A1,\"*High*\")>0,VLOOKUP(B3,'Data Billing Quantities'!$A:$Z,MATCH(\"High kWh\",'Data Billing Quantities'!4:4,0),FALSE),\"error\"))))","v":369},{"$f":"B4","v":369}]
["Peak (kW)",{"$f":"IF(COUNTIF(A1,\"*Low*\")>0,VLOOKUP(B3,'Data Billing Quantities'!$A:$Z,MATCH(\"Low kW\",'Data Billing Quantities'!4:4,0),FALSE),IF(COUNTIF(A1,\"*Typical*\")>0,VLOOKUP(B3,'Data Billing Quantities'!$A:$Z,MATCH(\"Typical kW\",'Data Billing Quantities'!4:4,0),FALSE),IF(COUNTIF(A1,\"*Average*\")>0,VLOOKUP(B3,'Data Billing Quantities'!$A:$Z,MATCH(\"Average kW\",'Data Billing Quantities'!4:4,0),FALSE),IF(COUNTIF(A1,\"*High*\")>0,VLOOKUP(B3,'Data Billing Quantities'!$A:$Z,MATCH(\"High kW\",'Data Billing Quantities'!4:4,0),FALSE),\"error\"))))","v":0},{"$f":"B5","v":0}]
["Loss factor",{"$f":"VLOOKUP(B3,'Data Billing Quantities'!A:D,MATCH(A6,'Data Billing Quantities'!4:4,0),FALSE)","v":1.1040000000000001},{"$f":"VLOOKUP(C3,'Data Billing Quantities'!A:D,MATCH(A6,'Data Billing Quantities'!4:4,0),FALSE)","v":1.105}]
["Commodity Threshold",{"$f":"VLOOKUP(B3,'Data Billing Quantities'!A:D,MATCH(A7,'Data Billing Quantities'!4:4,0),FALSE)","v":600},{"$f":"B7","v":600}]
["Monthly Consumption (kWh) - Uplifted",{"$f":"B4*B6","v":407.37600000000003},{"$f":"C4*C6","v":407.745}]
["Charge determinant",{"$f":"VLOOKUP(B3,'Data Billing Quantities'!A:D,MATCH(A9,'Data Billing Quantities'!4:4,0),FALSE)","v":"kWh"},{"$f":"VLOOKUP(C3,'Data Billing Quantities'!A:D,MATCH(A9,'Data Billing Quantities'!4:4,0),FALSE)","v":"kWh"}]
[]
[null,"Volume","Current Rate ($)","Current Charge ($)","Volume","Proposed Rate ($)","Proposed Charge ($)","Change ($)","Change (%)","% of Total Bill on RPP","% of Total Bill"]
["Energy First Tier",{"$f":"IF(B4>B7,B7,B4)","v":369},{"$f":"VLOOKUP($A12,'Data Pass Through'!$A:$D,2,FALSE)","v":9.8000000000000004E-2},{"$f":"B12*C12","v":36.161999999999999},{"$f":"B12","v":369},{"$f":"VLOOKUP($A12,'Data Pass Through'!$A:$D,3,FALSE)","v":9.8000000000000004E-2},{"$f":"E12*F12","v":36.161999999999999},{"$f":"G12-D12","v":0},{"$f":"IF(ISERROR(H12/ABS(D12)),\"N/A\",(H12/ABS(D12)))","v":0},{"$f":"G12/$G$46","v":0.2237658736032376}]
["Energy Second Tier",{"$f":"IF(B4>B7,(B4)-B7,0)","v":0},{"$f":"VLOOKUP($A13,'Data Pass Through'!$A:$D,2,FALSE)","v":0.115},{"$f":"B13*C13","v":0},{"$f":"B13","v":0},{"$f":"VLOOKUP($A13,'Data Pass Through'!$A:$D,3,FALSE)","v":0.115},{"$f":"E13*F13","v":0},0,"N/A",{"$f":"G13/$G$46","v":0}]
["Sub-Total:  Energy (RPP Tiered)",null,null,{"$f":"SUM(D12:D13)","v":36.161999999999999},null,null,{"$f":"SUM(G12:G13)","v":36.161999999999999},0,0,{"$f":"G14/$G$46","v":0.2237658736032376}]
["TOU-Off Peak",{"$f":"B$4*VLOOKUP($B$3,'Data Billing Quantities'!$A:$O,MATCH(BI_Seas_R2_Avg!$A15,'Data Billing Quantities'!$4:$4,0),FALSE)","v":236.16},{"$f":"VLOOKUP($A15,'Data Pass Through'!$A:$D,2,FALSE)","v":8.2000000000000003E-2},{"$f":"B15*C15","v":19.365120000000001},236.16,{"$f":"VLOOKUP($A15,'Data Pass Through'!$A:$D,3,FALSE)","v":8.2000000000000003E-2},{"$f":"E15*F15","v":19.365120000000001},0,0,null,{"$f":"G15/$G$51","v":0.11830651269494924}]
["TOU-Mid Peak",{"$f":"B$4*VLOOKUP($B$3,'Data Billing Quantities'!$A:$O,MATCH(BI_Seas_R2_Avg!$A16,'Data Billing Quantities'!$4:$4,0),FALSE)","v":66.42},{"$f":"VLOOKUP($A16,'Data Pass Through'!$A:$D,2,FALSE)","v":0.113},{"$f":"B16*C16","v":7.5054600000000002},66.42,{"$f":"VLOOKUP($A16,'Data Pass Through'!$A:$D,3,FALSE)","v":0.113},{"$f":"E16*F16","v":7.5054600000000002},0,0,null,4.5852790933979946E-2]
["TOU-On Peak",{"$f":"B$4*VLOOKUP($B$3,'Data Billing Quantities'!$A:$O,MATCH(BI_Seas_R2_Avg!$A17,'Data Billing Quantities'!$4:$4,0),FALSE)","v":66.42},{"$f":"VLOOKUP($A17,'Data Pass Through'!$A:$D,2,FALSE)","v":0.17},{"$f":"B17*C17","v":11.291400000000001},66.42,{"$f":"VLOOKUP($A17,'Data Pass Through'!$A:$D,3,FALSE)","v":0.17},{"$f":"E17*F17","v":11.291400000000001},0,0,null,6.8982074856430015E-2]
["Sub-Total:  Energy (RPP TOU)",null,null,{"$f":"SUM(D15:D17)","v":38.16198},null,null,{"$f":"SUM(G15:G17)","v":38.16198},0,0,{"$f":"G18/$G$46","v":0.23614149640864115},0.23314137848535918]
["Service Charge",1,{"$f":"VLOOKUP($B$3,'Data Current Rates'!$A:$AP,MATCH(BI_Seas_R2_Avg!$A19,CurrentHeader,0),FALSE)","v":57.87},{"$f":"B19*C19","v":57.87},1,{"$f":"IF(C3=\"R2\",(VLOOKUP($C$3,'Data Proposed Rates'!$A:$AZ,MATCH(BI_Seas_R2_Avg!$A19,ProposedHeader,0),FALSE)+'Data Pass Through'!B4),VLOOKUP($C$3,'Data Proposed Rates'!$A:$AZ,MATCH(BI_Seas_R2_Avg!$A19,ProposedHeader,0),FALSE))","v":116.58},{"$f":"E19*F19","v":116.58},58.71,1.0145152928978747,0.72138226714964437,0.7122172880920532]
["Fixed Base Rate Adjustment to Recover Past Tax Amounts ",1,{"$f":"VLOOKUP($B$3,'Data Current Rates'!$A:$AP,MATCH(BI_Seas_R2_Avg!$A20,CurrentHeader,0),FALSE)","v":1.79},{"$f":"B20*C20","v":1.79},1,{"$f":"IF(C4=\"R2\",(VLOOKUP($C$3,'Data Proposed Rates'!$A:$AZ,MATCH(BI_Seas_R2_Avg!$A20,ProposedHeader,0),FALSE)+'Data Pass Through'!B5),VLOOKUP($C$3,'Data Proposed Rates'!$A:$AZ,MATCH(BI_Seas_R2_Avg!$A20,ProposedHeader,0),FALSE))","v":4},4,2.21,1.2346368715083798,2.4751493125738357E-2,2.4437031672398461E-2]
["Group 2 Fixed DVA Rider ",null,null,null,1,{"$f":"VLOOKUP($C$3,'Data Proposed Rates'!$A:$AZ,MATCH(BI_Seas_R2_Avg!$A21,ProposedHeader,0),FALSE)","v":-0.28999999999999998},-0.28999999999999998,-0.28999999999999998,"N/A",-1.7944832516160307E-3,-1.7716847962488884E-3]
["Distribution Volumetric Charge",{"$f":"IF($B$9=\"kWh\",$B$4,$B$5)","v":369},{"$f":"VLOOKUP($B$3,'Data Current Rates'!$A:$AP,MATCH(BI_Seas_R2_Avg!$A22,CurrentHeader,0),FALSE)","v":3.0800000000000001E-2},11.3652,{"$f":"IF($C$9=\"kWh\",$C$4,$C$5)","v":369},{"$f":"VLOOKUP($C$3,'Data Proposed Rates'!$A:$AZ,MATCH(BI_Seas_R2_Avg!$A22,ProposedHeader,0),FALSE)","v":8.0999999999999996E-3},2.9888999999999997,-8.3763000000000005,-0.73701298701298712,1.8494934450879841E-2,1.8259960991407941E-2]
["Volumetric Base Rate Adjustment to Recover Past Tax Amounts ",{"$f":"IF($B$9=\"kWh\",$B$4,$B$5)","v":369},{"$f":"VLOOKUP($B$3,'Data Current Rates'!$A:$AP,MATCH(BI_Seas_R2_Avg!$A23,CurrentHeader,0),FALSE)","v":0},0,{"$f":"IF($C$9=\"kWh\",$C$4,$C$5)","v":369},{"$f":"VLOOKUP($C$3,'Data Proposed Rates'!$A:$AZ,MATCH(BI_Seas_R2_Avg!$A23,ProposedHeader,0),FALSE)","v":0},0,0,"N/A",0,0]
["Group 1 Volumetric DVA Rider (General)",null,null,null,{"$f":"IF($C$9=\"kWh\",$C$4,$C$5)","v":369},{"$f":"VLOOKUP($C$3,'Data Proposed Rates'!$A:$AZ,MATCH(BI_Seas_R2_Avg!$A24,ProposedHeader,0),FALSE)","v":-4.0000000000000002E-4},-0.14760000000000001,-0.14760000000000001,"N/A",-9.1333009633974538E-4,-9.0172646871150336E-4]
["Group 2 Volumetric DVA Rider ",null,null,null,369,{"$f":"VLOOKUP($C$3,'Data Proposed Rates'!$A:$AZ,MATCH(BI_Seas_R2_Avg!$A25,ProposedHeader,0),FALSE)","v":0},0,0,"N/A",0,0]
["Sub-Total:  Distribution (excluding pass through)",null,null,{"$f":"SUM(INDIRECT(\"D19:D\"&ROW()-1))","v":71.025199999999998},null,null,{"$f":"SUM(INDIRECT(\"g19:g\"&ROW()-1))","v":123.1313},{"$f":"G26-D26","v":52.106099999999998},0.73362834599550586,0.76192088137830682,0.75224086949089919]
["Smart Metering Entity Charge",{"$f":"B19","v":1},{"$f":"VLOOKUP($A27,'Data Pass Through'!$A:$D,2,FALSE)","v":0.56999999999999995},{"$f":"B27*C27","v":0.56999999999999995},{"$f":"E19","v":1},{"$f":"VLOOKUP($A27,'Data Pass Through'!$A:$D,3,FALSE)","v":0.56999999999999995},{"$f":"E27*F27","v":0.56999999999999995},0,0,3.5270877704177152E-3,3.4822770133167806E-3]
["Line Losses on Cost of Power (based on two-tier RPP prices)",{"$f":"B8-B4","v":38.376000000000033},{"$f":"IF(B4>B7,C13,C12)","v":9.8000000000000004E-2},{"$f":"B28*C28","v":3.7608480000000033},{"$f":"C8-C4","v":38.745000000000005},{"$f":"IF(C4>C7,F13,F12)","v":9.8000000000000004E-2},{"$f":"E28*F28","v":3.7970100000000007},3.6161999999997363E-2,9.6153846153839064E-3,2.3495416728339952E-2,2.3196913407603426E-2]
["Line Losses on Cost of Power (based on TOU prices)",{"$f":"B8-B4","v":38.376000000000033},{"$f":"VLOOKUP($B$3,'Data Billing Quantities'!$A:$O,MATCH(BI_Seas_R2_Avg!$A15,'Data Billing Quantities'!$4:$4,0),FALSE)*C15+VLOOKUP($B$3,'Data Billing Quantities'!$A:$O,MATCH(BI_Seas_R2_Avg!$A16,'Data Billing Quantities'!$4:$4,0),FALSE)*C16+VLOOKUP($B$3,'Data Billing Quantities'!$A:$O,MATCH(BI_Seas_R2_Avg!$A17,'Data Billing Quantities'!$4:$4,0),FALSE)*C17","v":0.10342000000000001},{"$f":"B29*C29","v":3.9688459200000037},{"$f":"C8-C4","v":38.745000000000005},{"$f":"VLOOKUP($C$3,'Data Billing Quantities'!$A:$O,MATCH(BI_Seas_R2_Avg!$A15,'Data Billing Quantities'!$4:$4,0),FALSE)*F15+VLOOKUP($C$3,'Data Billing Quantities'!$A:$O,MATCH(BI_Seas_R2_Avg!$A16,'Data Billing Quantities'!$4:$4,0),FALSE)*F16+VLOOKUP($C$3,'Data Billing Quantities'!$A:$O,MATCH(BI_Seas_R2_Avg!$A17,'Data Billing Quantities'!$4:$4,0),FALSE)*F17","v":0.10342000000000001},{"$f":"E29*F29","v":4.0070079000000005},3.816197999999682E-2,9.6153846153838058E-3,2.4794857122907323E-2,2.4479844740962715E-2]
["Sub-Total:  Distribution (based on two-tier RPP prices)",null,null,{"$f":"SUM(D26,D27:D28)","v":75.356048000000001},null,null,{"$f":"SUM(G26,G27:G28)","v":127.49830999999999},52.142261999999988,0.69194528354247009,0.78894338587706436,0.77892005991181934]
["Sub-Total:  Distribution (based on TOU prices)",null,null,{"$f":"SUM(D26,D27,D29)","v":75.564045919999998},null,null,{"$f":"SUM(G26,G27,G29)","v":127.70830789999999},52.144261979999996,0.69006709930812027,0.79024282627163178,0.78020299124517867]
["Retail Transmission Rate – Network Service Rate",{"$f":"IF($B$9=\"kWh\",$B$8,$B$5)","v":407.37600000000003},{"$f":"VLOOKUP($B$3,'Data Current Rates'!$A:$AP,MATCH(BI_Seas_R2_Avg!$A32,CurrentHeader,0),FALSE)","v":7.7000000000000002E-3},{"$f":"B32*C32","v":3.1367952000000003},{"$f":"IF($C$9=\"kWh\",$C$8,$C$5)","v":407.745},{"$f":"VLOOKUP($C$3,'Data Proposed Rates'!$A:$AZ,MATCH(BI_Seas_R2_Avg!$A32,ProposedHeader,0),FALSE)","v":8.8000000000000005E-3},{"$f":"E32*F32","v":3.5881560000000001},{"$f":"G32-D32","v":0.45136079999999978},0.14389233954451339,2.2203054642019208E-2,2.1920970454376645E-2]
["Retail Transmission Rate – Line and Transformation Connection Service Rate",{"$f":"IF($B$9=\"kWh\",$B$8,$B$5)","v":407.37600000000003},{"$f":"VLOOKUP($B$3,'Data Current Rates'!$A:$AP,MATCH(BI_Seas_R2_Avg!$A33,CurrentHeader,0),FALSE)","v":6.1000000000000004E-3},{"$f":"B33*C33","v":2.4849936000000006},{"$f":"IF($C$9=\"kWh\",$C$8,$C$5)","v":407.745},{"$f":"VLOOKUP($C$3,'Data Proposed Rates'!$A:$AZ,MATCH(BI_Seas_R2_Avg!$A33,ProposedHeader,0),FALSE)","v":6.4999999999999997E-3},{"$f":"E33*F33","v":2.6503424999999998},{"$f":"G33-D33","v":0.16534889999999924},6.6538964124494809E-2,1.6399983542400551E-2,1.6191625903800931E-2]
["Sub-Total:  Retail Transmission ",null,null,{"$f":"SUM(D32:D33)","v":5.6217888000000009},null,null,{"$f":"SUM(G32:G33)","v":6.2384985000000004},{"$f":"G34-D34","v":0.61670969999999947},0.10969990548204148,3.8603038184419763E-2,3.8112596358177576E-2]
["Sub-Total:  Delivery (based on two-tier RPP prices)",null,null,{"$f":"D30+D34","v":80.977836800000006},null,null,{"$f":"G30+G34","v":133.7368085},{"$f":"G35-D35","v":52.758971699999989},0.65152359935601523,0.82754642406148415,0.81703265626999699]
["Sub-Total:  Delivery (based on TOU prices)",null,null,{"$f":"D31+D34","v":81.185834720000003},null,null,{"$f":"G31+G34","v":133.94680639999999},{"$f":"G36-D36","v":52.760971679999983},0.64987903200066999,0.82884586445605157,0.81831558760335621]
["Wholesale Market Service Rate (WMS) - not including CBR",{"$f":"B8","v":407.37600000000003},{"$f":"VLOOKUP($A37,'Data Pass Through'!$A:$D,2,FALSE)","v":3.0000000000000001E-3},{"$f":"B37*C37","v":1.2221280000000001},{"$f":"$C$8","v":407.745},{"$f":"VLOOKUP($A37,'Data Pass Through'!$A:$D,3,FALSE)","v":3.0000000000000001E-3},{"$f":"E37*F37","v":1.2232350000000001},1.1069999999999691E-3,9.0579710144925E-4,7.5692231734156403E-3,7.473058109446584E-3]
["Capacity Based Recovery (CBR) - Applicable for Class B Customers",{"$f":"B8","v":407.37600000000003},{"$f":"VLOOKUP($A38,'Data Pass Through'!$A:$D,2,FALSE)","v":4.0000000000000002E-4},{"$f":"B38*C38","v":0.16295040000000002},{"$f":"$C$8","v":407.745},{"$f":"VLOOKUP($A38,'Data Pass Through'!$A:$D,3,FALSE)","v":4.0000000000000002E-4},{"$f":"E38*F38","v":0.16309800000000002},1.4759999999999773E-4,9.0579710144926128E-4,1.0092297564554186E-3,9.9640774792621135E-4]
["Rural Rate Protection Charge",{"$f":"B8","v":407.37600000000003},{"$f":"VLOOKUP($A39,'Data Pass Through'!$A:$D,2,FALSE)","v":5.0000000000000001E-4},0.20368800000000001,407.745,{"$f":"VLOOKUP($A39,'Data Pass Through'!$A:$D,3,FALSE)","v":5.0000000000000001E-4},0.20387250000000001,1.8450000000000411E-4,9.0579710144929543E-4,1.2615371955692733E-3,1.2455096849077641E-3]
["Standard Supply Service – Administration Charge (if applicable)",1,{"$f":"VLOOKUP($A40,'Data Pass Through'!$A:$D,2,FALSE)","v":0.25},{"$f":"B40*C40","v":0.25},1,{"$f":"VLOOKUP($A40,'Data Pass Through'!$A:$D,3,FALSE)","v":0.25},0.25,0,0,1.5469683203586473E-3,1.5273144795249038E-3]
["Sub-Total:  Regulatory",null,null,{"$f":"SUM(D37:D40)","v":1.8387664000000001},null,null,{"$f":"SUM(G37:G40)","v":1.8402055000000002},1.4391000000000265E-3,7.8264427716322551E-4,1.138695844579898E-2,1.1242290021805464E-2]
["Total  Electricty Charge on Two-Tier RPP ",null,null,{"$f":"SUM(D14,D26,D27,D28,D34,D41)","v":118.97860319999999},null,null,{"$f":"SUM(G14,G26,G27,G28,G34,G41)","v":171.73901399999997},52.760410799999974,0.44344453020104019,1.0626992561105206]
["     HST",null,0.13,{"$f":"D42*C43","v":15.467218416},null,{"$f":"C43","v":0.13},{"$f":"G42*F43","v":22.326071819999996},6.858853403999996,0.44344453020104013,0.13815090329436769]
["Total Electricity Charge on Two-Tier RPP (including HST)",null,null,{"$f":"SUM(D42:D43)","v":134.44582161599999},null,null,{"$f":"SUM(G42:G43)","v":194.06508581999998},59.61926420399999,0.44344453020104035,1.2008501594048884]
["Ontario Electricity Rebate (OER)",null,{"$f":"IF(($B$4*12)<250000,VLOOKUP(A45,'Data Pass Through'!$A$4:$C$20,2,0),0)","v":-0.189},{"$f":"D42*C45","v":-22.4869560048},null,{"$f":"C45","v":-0.189},{"$f":"G42*F45","v":-32.458673645999994},-9.9717176411999944,-0.44344453020104013,-0.2008501594048884]
["Total Amount on Two-Tier RPP",null,null,{"$f":"SUM(D44:D45)","v":111.9588656112},null,null,{"$f":"SUM(G44:G45)","v":161.60641217399998},49.647546562799988,0.4434445302010403,1]
["Total Electricty Charge on TOU (before HST)",null,null,{"$f":"SUM(D18,D26,D27,D29,D34,D41)","v":121.18658112},null,null,{"$f":"SUM(G18,G26,G27,G29,G34,G41)","v":173.94899189999995},52.762410779999954,0.43538162635147004,null,{"$f":"G47/$G$51","v":1.0626992561105206}]
["     HST",null,0.13,{"$f":"D47*C48","v":15.754255545600001},null,{"$f":"C48","v":0.13},{"$f":"G47*F48","v":22.613368946999994},6.859113401399993,0.43538162635146993,null,{"$f":"G48/$G$51","v":0.13815090329436769}]
["Total Electricity Charge on TOU (including HST)",null,null,{"$f":"SUM(D47:D48)","v":136.94083666559999},null,null,{"$f":"SUM(G47:G48)","v":196.56236084699995},59.621524181399963,0.43538162635147021,null,{"$f":"G49/$G$51","v":1.2008501594048884}]
["Ontario Electricity Rebate (OER)",null,{"$f":"IF(($B$4*12)<250000,VLOOKUP(A50,'Data Pass Through'!$A$4:$C$20,2,0),0)","v":-0.189},{"$f":"D47*C50","v":-22.904263831680002},null,{"$f":"C50","v":-0.189},{"$f":"G47*F50","v":-32.876359469099988},-9.9720956374199865,-0.43538162635146982,null,{"$f":"G50/$G$51","v":-0.20085015940488837}]
["Total Amount on TOU",null,null,{"$f":"SUM(D49:D50)","v":114.03657283391999},null,null,{"$f":"SUM(G49:G50)","v":163.68600137789997},49.64942854397998,0.43538162635147026,null,{"$f":"G51/$G$51","v":1}]
["* Distribution rate protection applies to R1 and R2 customers"]

{"sheet":"BI_Seas_R2_High","index":122,"n_rows":52,"n_cols":11,"rows_kept":52,"cut":false,"hidden":false,"merged":[[0,0,0,10]]}
["2023 Bill Impacts (High Consumption Level) - Seas-R2"]
[]
["Rate Class",{"$f":"VLOOKUP(A1,'Data BI List Acq_Seas'!C:E,2,FALSE)","v":"Seasonal"},{"$f":"VLOOKUP(A1,'Data BI List Acq_Seas'!C:E,3,FALSE)","v":"R2"}]
["Monthly Consumption (kWh)",{"$f":"IF(COUNTIF(A1,\"*Low*\")>0,VLOOKUP(B3,'Data Billing Quantities'!$A:$Z,MATCH(\"Low kWh\",'Data Billing Quantities'!4:4,0),FALSE),IF(COUNTIF(A1,\"*Typical*\")>0,VLOOKUP(B3,'Data Billing Quantities'!$A:$Z,MATCH(\"Typical kWh\",'Data Billing Quantities'!4:4,0),FALSE),IF(COUNTIF(A1,\"*Average*\")>0,VLOOKUP(B3,'Data Billing Quantities'!$A:$Z,MATCH(\"Average kWh\",'Data Billing Quantities'!4:4,0),FALSE),IF(COUNTIF(A1,\"*High*\")>0,VLOOKUP(B3,'Data Billing Quantities'!$A:$Z,MATCH(\"High kWh\",'Data Billing Quantities'!4:4,0),FALSE),\"error\"))))","v":1040},{"$f":"B4","v":1040}]
["Peak (kW)",{"$f":"IF(COUNTIF(A1,\"*Low*\")>0,VLOOKUP(B3,'Data Billing Quantities'!$A:$Z,MATCH(\"Low kW\",'Data Billing Quantities'!4:4,0),FALSE),IF(COUNTIF(A1,\"*Typical*\")>0,VLOOKUP(B3,'Data Billing Quantities'!$A:$Z,MATCH(\"Typical kW\",'Data Billing Quantities'!4:4,0),FALSE),IF(COUNTIF(A1,\"*Average*\")>0,VLOOKUP(B3,'Data Billing Quantities'!$A:$Z,MATCH(\"Average kW\",'Data Billing Quantities'!4:4,0),FALSE),IF(COUNTIF(A1,\"*High*\")>0,VLOOKUP(B3,'Data Billing Quantities'!$A:$Z,MATCH(\"High kW\",'Data Billing Quantities'!4:4,0),FALSE),\"error\"))))","v":0},{"$f":"B5","v":0}]
["Loss factor",{"$f":"VLOOKUP(B3,'Data Billing Quantities'!A:D,MATCH(A6,'Data Billing Quantities'!4:4,0),FALSE)","v":1.1040000000000001},{"$f":"VLOOKUP(C3,'Data Billing Quantities'!A:D,MATCH(A6,'Data Billing Quantities'!4:4,0),FALSE)","v":1.105}]
["Commodity Threshold",{"$f":"VLOOKUP(B3,'Data Billing Quantities'!A:D,MATCH(A7,'Data Billing Quantities'!4:4,0),FALSE)","v":600},{"$f":"B7","v":600}]
["Monthly Consumption (kWh) - Uplifted",{"$f":"B4*B6","v":1148.1600000000001},{"$f":"C4*C6","v":1149.2}]
["Charge determinant",{"$f":"VLOOKUP(B3,'Data Billing Quantities'!A:D,MATCH(A9,'Data Billing Quantities'!4:4,0),FALSE)","v":"kWh"},{"$f":"VLOOKUP(C3,'Data Billing Quantities'!A:D,MATCH(A9,'Data Billing Quantities'!4:4,0),FALSE)","v":"kWh"}]
[]
[null,"Volume","Current Rate ($)","Current Charge ($)","Volume","Proposed Rate ($)","Proposed Charge ($)","Change ($)","Change (%)","% of Total Bill on RPP","% of Total Bill"]
["Energy First Tier",{"$f":"IF(B4>B7,B7,B4)","v":600},{"$f":"VLOOKUP($A12,'Data Pass Through'!$A:$D,2,FALSE)","v":9.8000000000000004E-2},{"$f":"B12*C12","v":58.800000000000004},{"$f":"B12","v":600},{"$f":"VLOOKUP($A12,'Data Pass Through'!$A:$D,3,FALSE)","v":9.8000000000000004E-2},{"$f":"E12*F12","v":58.800000000000004},{"$f":"G12-D12","v":0},{"$f":"IF(ISERROR(H12/ABS(D12)),\"N/A\",(H12/ABS(D12)))","v":0},{"$f":"G12/$G$46","v":0.22877121566127481}]
["Energy Second Tier",{"$f":"IF(B4>B7,(B4)-B7,0)","v":440},{"$f":"VLOOKUP($A13,'Data Pass Through'!$A:$D,2,FALSE)","v":0.115},{"$f":"B13*C13","v":50.6},{"$f":"B13","v":440},{"$f":"VLOOKUP($A13,'Data Pass Through'!$A:$D,3,FALSE)","v":0.115},{"$f":"E13*F13","v":50.6},0,0,{"$f":"G13/$G$46","v":0.1968677468105528}]
["Sub-Total:  Energy (RPP Tiered)",null,null,{"$f":"SUM(D12:D13)","v":109.4},null,null,{"$f":"SUM(G12:G13)","v":109.4},0,0,{"$f":"G14/$G$46","v":0.42563896247182764}]
["TOU-Off Peak",{"$f":"B$4*VLOOKUP($B$3,'Data Billing Quantities'!$A:$O,MATCH(BI_Seas_R2_High!$A15,'Data Billing Quantities'!$4:$4,0),FALSE)","v":665.6},{"$f":"VLOOKUP($A15,'Data Pass Through'!$A:$D,2,FALSE)","v":8.2000000000000003E-2},{"$f":"B15*C15","v":54.579200000000007},665.6,{"$f":"VLOOKUP($A15,'Data Pass Through'!$A:$D,3,FALSE)","v":8.2000000000000003E-2},{"$f":"E15*F15","v":54.579200000000007},0,0,null,{"$f":"G15/$G$51","v":0.21479336177159858}]
["TOU-Mid Peak",{"$f":"B$4*VLOOKUP($B$3,'Data Billing Quantities'!$A:$O,MATCH(BI_Seas_R2_High!$A16,'Data Billing Quantities'!$4:$4,0),FALSE)","v":187.2},{"$f":"VLOOKUP($A16,'Data Pass Through'!$A:$D,2,FALSE)","v":0.113},{"$f":"B16*C16","v":21.153600000000001},187.2,{"$f":"VLOOKUP($A16,'Data Pass Through'!$A:$D,3,FALSE)","v":0.113},{"$f":"E16*F16","v":21.153600000000001},0,0,null,8.3248799131751428E-2]
["TOU-On Peak",{"$f":"B$4*VLOOKUP($B$3,'Data Billing Quantities'!$A:$O,MATCH(BI_Seas_R2_High!$A17,'Data Billing Quantities'!$4:$4,0),FALSE)","v":187.2},{"$f":"VLOOKUP($A17,'Data Pass Through'!$A:$D,2,FALSE)","v":0.17},{"$f":"B17*C17","v":31.824000000000002},187.2,{"$f":"VLOOKUP($A17,'Data Pass Through'!$A:$D,3,FALSE)","v":0.17},{"$f":"E17*F17","v":31.824000000000002},0,0,null,0.12524155621590924]
["Sub-Total:  Energy (RPP TOU)",null,null,{"$f":"SUM(D15:D17)","v":107.55680000000001},null,null,{"$f":"SUM(G15:G17)","v":107.55680000000001},0,0,{"$f":"G18/$G$46","v":0.41846768518089461},0.42328371711925922]
["Service Charge",1,{"$f":"VLOOKUP($B$3,'Data Current Rates'!$A:$AP,MATCH(BI_Seas_R2_High!$A19,CurrentHeader,0),FALSE)","v":57.87},{"$f":"B19*C19","v":57.87},1,{"$f":"IF(C3=\"R2\",(VLOOKUP($C$3,'Data Proposed Rates'!$A:$AZ,MATCH(BI_Seas_R2_High!$A19,ProposedHeader,0),FALSE)+'Data Pass Through'!B4),VLOOKUP($C$3,'Data Proposed Rates'!$A:$AZ,MATCH(BI_Seas_R2_High!$A19,ProposedHeader,0),FALSE))","v":116.58},{"$f":"E19*F19","v":116.58},58.71,1.0145152928978747,0.45357395105087439,0.45879401155262373]
["Fixed Base Rate Adjustment to Recover Past Tax Amounts ",1,{"$f":"VLOOKUP($B$3,'Data Current Rates'!$A:$AP,MATCH(BI_Seas_R2_High!$A20,CurrentHeader,0),FALSE)","v":1.79},{"$f":"B20*C20","v":1.79},1,{"$f":"IF(C4=\"R2\",(VLOOKUP($C$3,'Data Proposed Rates'!$A:$AZ,MATCH(BI_Seas_R2_High!$A20,ProposedHeader,0),FALSE)+'Data Pass Through'!B5),VLOOKUP($C$3,'Data Proposed Rates'!$A:$AZ,MATCH(BI_Seas_R2_High!$A20,ProposedHeader,0),FALSE))","v":4},4,2.21,1.2346368715083798,1.5562667732059511E-2,1.5741774285559229E-2]
["Group 2 Fixed DVA Rider ",null,null,null,1,{"$f":"VLOOKUP($C$3,'Data Proposed Rates'!$A:$AZ,MATCH(BI_Seas_R2_High!$A21,ProposedHeader,0),FALSE)","v":-0.28999999999999998},-0.28999999999999998,-0.28999999999999998,"N/A",-1.1282934105743144E-3,-1.1412786357030439E-3]
["Distribution Volumetric Charge",{"$f":"IF($B$9=\"kWh\",$B$4,$B$5)","v":1040},{"$f":"VLOOKUP($B$3,'Data Current Rates'!$A:$AP,MATCH(BI_Seas_R2_High!$A22,CurrentHeader,0),FALSE)","v":3.0800000000000001E-2},32.032000000000004,{"$f":"IF($C$9=\"kWh\",$C$4,$C$5)","v":1040},{"$f":"VLOOKUP($C$3,'Data Proposed Rates'!$A:$AZ,MATCH(BI_Seas_R2_High!$A22,ProposedHeader,0),FALSE)","v":8.0999999999999996E-3},8.4239999999999995,-23.608000000000004,-0.73701298701298701,3.2774978243717327E-2,3.3152176645387735E-2]
["Volumetric Base Rate Adjustment to Recover Past Tax Amounts ",{"$f":"IF($B$9=\"kWh\",$B$4,$B$5)","v":1040},{"$f":"VLOOKUP($B$3,'Data Current Rates'!$A:$AP,MATCH(BI_Seas_R2_High!$A23,CurrentHeader,0),FALSE)","v":0},0,{"$f":"IF($C$9=\"kWh\",$C$4,$C$5)","v":1040},{"$f":"VLOOKUP($C$3,'Data Proposed Rates'!$A:$AZ,MATCH(BI_Seas_R2_High!$A23,ProposedHeader,0),FALSE)","v":0},0,0,"N/A",0,0]
["Group 1 Volumetric DVA Rider (General)",null,null,null,{"$f":"IF($C$9=\"kWh\",$C$4,$C$5)","v":1040},{"$f":"VLOOKUP($C$3,'Data Proposed Rates'!$A:$AZ,MATCH(BI_Seas_R2_High!$A24,ProposedHeader,0),FALSE)","v":-4.0000000000000002E-4},-0.41600000000000004,-0.41600000000000004,"N/A",-1.6185174441341892E-3,-1.6371445256981598E-3]
["Group 2 Volumetric DVA Rider ",null,null,null,1040,{"$f":"VLOOKUP($C$3,'Data Proposed Rates'!$A:$AZ,MATCH(BI_Seas_R2_High!$A25,ProposedHeader,0),FALSE)","v":0},0,0,"N/A",0,0]
["Sub-Total:  Distribution (excluding pass through)",null,null,{"$f":"SUM(INDIRECT(\"D19:D\"&ROW()-1))","v":91.692000000000007},null,null,{"$f":"SUM(INDIRECT(\"g19:g\"&ROW()-1))","v":128.298},{"$f":"G26-D26","v":36.605999999999995},0.399227849757885,0.49916478617194276,0.50490953932216953]
["Smart Metering Entity Charge",{"$f":"B19","v":1},{"$f":"VLOOKUP($A27,'Data Pass Through'!$A:$D,2,FALSE)","v":0.56999999999999995},{"$f":"B27*C27","v":0.56999999999999995},{"$f":"E19","v":1},{"$f":"VLOOKUP($A27,'Data Pass Through'!$A:$D,3,FALSE)","v":0.56999999999999995},{"$f":"E27*F27","v":0.56999999999999995},0,0,2.2176801518184802E-3,2.2432028356921901E-3]
["Line Losses on Cost of Power (based on two-tier RPP prices)",{"$f":"B8-B4","v":108.16000000000008},{"$f":"IF(B4>B7,C13,C12)","v":0.115},{"$f":"B28*C28","v":12.43840000000001},{"$f":"C8-C4","v":109.20000000000005},{"$f":"IF(C4>C7,F13,F12)","v":0.115},{"$f":"E28*F28","v":12.558000000000005},0.11959999999999482,9.6153846153841909E-3,4.885899534480085E-2,4.942130036951322E-2]
["Line Losses on Cost of Power (based on TOU prices)",{"$f":"B8-B4","v":108.16000000000008},{"$f":"VLOOKUP($B$3,'Data Billing Quantities'!$A:$O,MATCH(BI_Seas_R2_High!$A15,'Data Billing Quantities'!$4:$4,0),FALSE)*C15+VLOOKUP($B$3,'Data Billing Quantities'!$A:$O,MATCH(BI_Seas_R2_High!$A16,'Data Billing Quantities'!$4:$4,0),FALSE)*C16+VLOOKUP($B$3,'Data Billing Quantities'!$A:$O,MATCH(BI_Seas_R2_High!$A17,'Data Billing Quantities'!$4:$4,0),FALSE)*C17","v":0.10342000000000001},{"$f":"B29*C29","v":11.18590720000001},{"$f":"C8-C4","v":109.20000000000005},{"$f":"VLOOKUP($C$3,'Data Billing Quantities'!$A:$O,MATCH(BI_Seas_R2_High!$A15,'Data Billing Quantities'!$4:$4,0),FALSE)*F15+VLOOKUP($C$3,'Data Billing Quantities'!$A:$O,MATCH(BI_Seas_R2_High!$A16,'Data Billing Quantities'!$4:$4,0),FALSE)*F16+VLOOKUP($C$3,'Data Billing Quantities'!$A:$O,MATCH(BI_Seas_R2_High!$A17,'Data Billing Quantities'!$4:$4,0),FALSE)*F17","v":0.10342000000000001},{"$f":"E29*F29","v":11.293464000000005},0.10755679999999579,9.6153846153842308E-3,4.3939106943993951E-2,4.4444790297522241E-2]
["Sub-Total:  Distribution (based on two-tier RPP prices)",null,null,{"$f":"SUM(D26,D27:D28)","v":104.70040000000002},null,null,{"$f":"SUM(G26,G27:G28)","v":141.42599999999999},36.725599999999972,0.3507684784394326,0.55024146166856203,0.55657404252737486]
["Sub-Total:  Distribution (based on TOU prices)",null,null,{"$f":"SUM(D26,D27,D29)","v":103.4479072},null,null,{"$f":"SUM(G26,G27,G29)","v":140.161464},36.713556799999992,0.35489898049866003,0.5453215732677551,0.5515975324553839]
["Retail Transmission Rate – Network Service Rate",{"$f":"IF($B$9=\"kWh\",$B$8,$B$5)","v":1148.1600000000001},{"$f":"VLOOKUP($B$3,'Data Current Rates'!$A:$AP,MATCH(BI_Seas_R2_High!$A32,CurrentHeader,0),FALSE)","v":7.7000000000000002E-3},{"$f":"B32*C32","v":8.8408320000000007},{"$f":"IF($C$9=\"kWh\",$C$8,$C$5)","v":1149.2},{"$f":"VLOOKUP($C$3,'Data Proposed Rates'!$A:$AZ,MATCH(BI_Seas_R2_High!$A32,ProposedHeader,0),FALSE)","v":8.8000000000000005E-3},{"$f":"E32*F32","v":10.112960000000001},{"$f":"G32-D32","v":1.2721280000000004},0.1438923395445135,3.9346159066902142E-2,3.9798983419722267E-2]
["Retail Transmission Rate – Line and Transformation Connection Service Rate",{"$f":"IF($B$9=\"kWh\",$B$8,$B$5)","v":1148.1600000000001},{"$f":"VLOOKUP($B$3,'Data Current Rates'!$A:$AP,MATCH(BI_Seas_R2_High!$A33,CurrentHeader,0),FALSE)","v":6.1000000000000004E-3},{"$f":"B33*C33","v":7.0037760000000011},{"$f":"IF($C$9=\"kWh\",$C$8,$C$5)","v":1149.2},{"$f":"VLOOKUP($C$3,'Data Proposed Rates'!$A:$AZ,MATCH(BI_Seas_R2_High!$A33,ProposedHeader,0),FALSE)","v":6.4999999999999997E-3},{"$f":"E33*F33","v":7.4698000000000002},{"$f":"G33-D33","v":0.46602399999999911},6.653896412449499E-2,2.9062503856234535E-2,2.9396976389567581E-2]
["Sub-Total:  Retail Transmission ",null,null,{"$f":"SUM(D32:D33)","v":15.844608000000001},null,null,{"$f":"SUM(G32:G33)","v":17.58276},{"$f":"G34-D34","v":1.7381519999999995},0.10969990548204155,6.8408662923136673E-2,6.9195959809289845E-2]
["Sub-Total:  Delivery (based on two-tier RPP prices)",null,null,{"$f":"D30+D34","v":120.54500800000002},null,null,{"$f":"G30+G34","v":159.00876},{"$f":"G35-D35","v":38.463751999999971},0.31908208094357554,0.61865012459169877,0.62577000233666469]
["Sub-Total:  Delivery (based on TOU prices)",null,null,{"$f":"D31+D34","v":119.2925152},null,null,{"$f":"G31+G34","v":157.744224},{"$f":"G36-D36","v":38.451708800000006},0.32233127732728034,0.61373023619089184,0.62079349226467373]
["Wholesale Market Service Rate (WMS) - not including CBR",{"$f":"B8","v":1148.1600000000001},{"$f":"VLOOKUP($A37,'Data Pass Through'!$A:$D,2,FALSE)","v":3.0000000000000001E-3},{"$f":"B37*C37","v":3.4444800000000004},{"$f":"$C$8","v":1149.2},{"$f":"VLOOKUP($A37,'Data Pass Through'!$A:$D,3,FALSE)","v":3.0000000000000001E-3},{"$f":"E37*F37","v":3.4476},3.1199999999995676E-3,9.0579710144914971E-4,1.3413463318262092E-2,1.3567835256723499E-2]
["Capacity Based Recovery (CBR) - Applicable for Class B Customers",{"$f":"B8","v":1148.1600000000001},{"$f":"VLOOKUP($A38,'Data Pass Through'!$A:$D,2,FALSE)","v":4.0000000000000002E-4},{"$f":"B38*C38","v":0.45926400000000006},{"$f":"$C$8","v":1149.2},{"$f":"VLOOKUP($A38,'Data Pass Through'!$A:$D,3,FALSE)","v":4.0000000000000002E-4},{"$f":"E38*F38","v":0.45968000000000003},4.1599999999997195E-4,9.0579710144921412E-4,1.7884617757682791E-3,1.8090447008964666E-3]
["Rural Rate Protection Charge",{"$f":"B8","v":1148.1600000000001},{"$f":"VLOOKUP($A39,'Data Pass Through'!$A:$D,2,FALSE)","v":5.0000000000000001E-4},0.57408000000000003,1149.2,{"$f":"VLOOKUP($A39,'Data Pass Through'!$A:$D,3,FALSE)","v":5.0000000000000001E-4},0.5746,5.1999999999996493E-4,9.0579710144921422E-4,2.2355772197103487E-3,2.2613058761205831E-3]
["Standard Supply Service – Administration Charge (if applicable)",1,{"$f":"VLOOKUP($A40,'Data Pass Through'!$A:$D,2,FALSE)","v":0.25},{"$f":"B40*C40","v":0.25},1,{"$f":"VLOOKUP($A40,'Data Pass Through'!$A:$D,3,FALSE)","v":0.25},0.25,0,0,9.7266673325371942E-4,9.8386089284745182E-4]
["Sub-Total:  Regulatory",null,null,{"$f":"SUM(D37:D40)","v":4.7278240000000009},null,null,{"$f":"SUM(G37:G40)","v":4.7318800000000003},4.0559999999993934E-3,8.5789995566657991E-4,1.841016904699444E-2,1.8622046726588001E-2]
["Total  Electricty Charge on Two-Tier RPP ",null,null,{"$f":"SUM(D14,D26,D27,D28,D34,D41)","v":234.672832},null,null,{"$f":"SUM(G14,G26,G27,G28,G34,G41)","v":273.14063999999996},38.467807999999962,0.16392101152978783,1.0626992561105206]
["     HST",null,0.13,{"$f":"D42*C43","v":30.507468160000002},null,{"$f":"C43","v":0.13},{"$f":"G42*F43","v":35.508283199999994},5.000815039999992,0.16392101152978772,0.13815090329436769]
["Total Electricity Charge on Two-Tier RPP (including HST)",null,null,{"$f":"SUM(D42:D43)","v":265.18030016},null,null,{"$f":"SUM(G42:G43)","v":308.64892319999996},43.468623039999954,0.16392101152978783,1.2008501594048884]
["Ontario Electricity Rebate (OER)",null,{"$f":"IF(($B$4*12)<250000,VLOOKUP(A45,'Data Pass Through'!$A$4:$C$20,2,0),0)","v":-0.189},{"$f":"D42*C45","v":-44.353165248000003},null,{"$f":"C45","v":-0.189},{"$f":"G42*F45","v":-51.623580959999991},-7.2704157119999877,-0.16392101152978769,-0.2008501594048884]
["Total Amount on Two-Tier RPP",null,null,{"$f":"SUM(D44:D45)","v":220.82713491199999},null,null,{"$f":"SUM(G44:G45)","v":257.02534223999999},36.198207327999995,0.16392101152978797,1]
["Total Electricty Charge on TOU (before HST)",null,null,{"$f":"SUM(D18,D26,D27,D29,D34,D41)","v":231.5771392},null,null,{"$f":"SUM(G18,G26,G27,G29,G34,G41)","v":270.03290399999997},38.455764799999969,0.16606028096230999,null,{"$f":"G47/$G$51","v":1.0626992561105209}]
["     HST",null,0.13,{"$f":"D47*C48","v":30.105028096000002},null,{"$f":"C48","v":0.13},{"$f":"G47*F48","v":35.104277519999997},4.9992494239999949,0.16606028096230993,null,{"$f":"G48/$G$51","v":0.13815090329436772}]
["Total Electricity Charge on TOU (including HST)",null,null,{"$f":"SUM(D47:D48)","v":261.68216729599999},null,null,{"$f":"SUM(G47:G48)","v":305.13718151999996},43.455014223999967,0.16606028096230999,null,{"$f":"G49/$G$51","v":1.2008501594048884}]
["Ontario Electricity Rebate (OER)",null,{"$f":"IF(($B$4*12)<250000,VLOOKUP(A50,'Data Pass Through'!$A$4:$C$20,2,0),0)","v":-0.189},{"$f":"D47*C50","v":-43.768079308800004},null,{"$f":"C50","v":-0.189},{"$f":"G47*F50","v":-51.036218855999998},-7.2681395471999934,-0.16606028096230996,null,{"$f":"G50/$G$51","v":-0.20085015940488846}]
["Total Amount on TOU",null,null,{"$f":"SUM(D49:D50)","v":217.91408798719999},null,null,{"$f":"SUM(G49:G50)","v":254.10096266399995},36.18687467679996,0.16606028096230993,null,{"$f":"G51/$G$51","v":1}]
["* Distribution rate protection applies to R1 and R2 customers"]